{"text_format":"1","workbook":"xlsx","n_sheets":18,"sheets":["AER Changes","Instructions","DNSP Inputs General","DNSP Inputs O & M","DNSP Inputs Capex","PL Tariffs","PL Tariff Components","Cashflow Summary","Charges Summary","O & M 2022-2026","Capex 2022-2026","WACC","Depn & WACC Post 2004 Central","Depn & WACC Post 2004 N & E","Total RAB","RAB 2001 to 2004 Central","RAB 2001 to 2004 N & E","Inputs PL Final Decision 2004"],"not_rendered":{"charts":0,"images":0,"macros":0,"external_links":0,"defined_names":0,"comments":2,"pivot_tables":0},"unopened":[],"bounds":{"document_bytes":16777216,"sheet_cells":100000,"rows_first":2000,"rows_last":500,"rows_between":2000,"halvings":0,"cell_chars":16384,"cell_head_chars":4096},"cells_cut":0,"cells_raw":0,"read":"whole","date_system":"1900"}

{"sheet":"AER Changes","index":0,"n_rows":28,"n_cols":3,"rows_kept":28,"cut":false,"hidden":false,"merged":[]}
[]
["Issues","Location","Comment"]
[]
[]
[null,"Final Decision"]
[1,"DNSP Inputs General'!N9","Actual 2019 capex data inputs amended to reconile to Table \"8.2.3 - CAPEX OTHER\" in file \"[Ausnet (D) 2019 - Annual - RIN Response - 28 May 2020 - PUBLIC (#11009434.2)_0.xlsx]8.2 Capex\""]
[]
[{"$f":"A6+1","v":2},"DNSP Inputs General'!B26:F26","Update for AER Draft Decision Real Pre Tax WACC"]
[]
[{"$f":"A8+1","v":3},"DNSP Inputs General'!D31:D35","Update for AER Final Decision CPI Forecast"]
[]
[{"$f":"A10+1","v":4},"DNSP Inputs General'!C31","CPI to escalate prices in 2021-22 is Forecast CPI"]
[null,"WACC!C14"]
[]
[]
[{"$f":"A12+1","v":5},"DNSP Inputs General'!M42:U130","Updated Quantities"]
[]
[{"$f":"A16+1","v":6},"DNSP Inputs General'!Q134:U134","AER Final Decision Real Labour Escalator"]
[]
[]
[{"$f":"A18+1","v":7},"DNSP Inputs O & M'!D384:H386","Update for AER Final Decision - Number of Repairs in 1 day"]
[null,"DNSP Inputs O & M'!D430:H432"]
[null,"DNSP Inputs O & M'!D476:H478"]
[]
[]
[null,"Revised Proposal Model"]
[null,"[ASD - EDPR 2022-26 Revised proposal - Public Lighting Model - 20210303 - PUBLIC.xlsm]Report|Charges Summary'!$B$25:$K$25"]
[null,"Formula should refer to Opening RAB of current year not average RAB of previous year. Note average RAB of previous year includes half year depreciation which already has been recovered by the business"]

{"sheet":"Instructions","index":1,"n_rows":68,"n_cols":12,"rows_kept":68,"cut":false,"hidden":false,"merged":[]}
[{"$f":"'DNSP Inputs O & M'!$A$3","v":"AusNet"}]
[]
["Instructions"]
[]
["This model is to be used for the setting of Public Lighting Tariffs for the Regulatory Period 2021-22 to 2025-26 based on forecast inflation rates, Real Pre Tax WACC and Nominal vanilla WACC."]
[]
["Distributor data input fields are shaded",null,"      and located in tabs \"DNSP Inputs General\" , \"DNSP Inputs O & M\" and  \"DNSP Inputs Capex\""]
[]
[]
["This model will also to be used for the annual Public Lighting Tariff Approvals in the Regulatory Period 2021-22 to 2025-26 based on actual inflation rates and Real Pre Tax WACC."]
[]
[]
[]
[]
[]
[]
[]
[]
[]
[]
[]
[]
[]
[]
[]
[]
[]
[]
[]
[]
[]
[]
[]
[]
[]
[]
[]
[]
[]
[]
[]
[]
[]
[]
[]
[]
[]
[]
[]
[]
[]
[]
[]
[]
[]
[]
[]
[]
[]
[]
[]
[]
[]
[]
[]
[]
[]
[null,null,null,null,null,null,null,{"$f":"G68","v":0},{"$f":"H68","v":0},{"$f":"I68","v":0},{"$f":"J68","v":0},{"$f":"K68","v":0}]

{"sheet":"DNSP Inputs General","index":2,"n_rows":134,"n_cols":21,"rows_kept":134,"cut":false,"hidden":false,"merged":[[86,15,86,20],[2,15,2,20],[17,15,17,20],[39,15,39,20],[38,1,38,3],[85,1,85,3],[17,5,17,8],[86,5,86,8],[39,5,39,8],[2,3,2,8],[2,9,2,14],[17,9,17,14]]}
[{"$f":"'DNSP Inputs O & M'!$A$3","v":"AusNet"}]
[null,null,null,2009,2010,2011,2012,2013,2014,2015,2016,2017,2018,2019,2020,"HY2021","2022-06-30","2023-06-30","2024-06-30","2025-06-30","2026-06-30"]
["Capital Expenditure",null,null,"Nominal $ - Actual",null,null,null,null,null,"Nominal $",null,null,null,null,null,"Real 2021 $ - Forecast"]
["(Net of customer contributions)"]
[null,null,null,null,null,null,null,null,null,null,null,null,null,null,2137492.9594749101]
["Poles and Brackets",null,null,945891.23557411402,957809.46514234785,880178.8893283339,925158.84987236292,998447.23143259203,775787.61765560566,1086336.9712855413,1960186,3550606.6064872313,4528111,1787545,{"$f":"O5*M$31","v":2317131.1779765785},1181527.8287529736,{"$f":"'Capex 2022-2026'!B31","v":2313667.6977823633},{"$f":"'Capex 2022-2026'!C31","v":2319279.8584877239},{"$f":"'Capex 2022-2026'!D31","v":2324499.2252419302},{"$f":"'Capex 2022-2026'!E31","v":2330741.4373704777},{"$f":"'Capex 2022-2026'!F31","v":2338792.1710712588}]
[]
["Existing Lights",null,null,null,null,null,null,null,null,null,null,null,null,null,407937.5559544377]
["Luminaires",null,null,448491.44047919766,418018.41375785205,-892269.53277506784,258757.31488222803,398955.56933179055,829176.38234439434,1161608.1294883217,3323078,3418777,1644455,1417144.999184818,{"$f":"O8*M$31","v":442221.25990150566},0,{"$f":"'Capex 2022-2026'!B13-'Capex 2022-2026'!B45","v":0},{"$f":"'Capex 2022-2026'!C13-'Capex 2022-2026'!C45","v":0},{"$f":"'Capex 2022-2026'!D13-'Capex 2022-2026'!D45","v":0},{"$f":"'Capex 2022-2026'!E13-'Capex 2022-2026'!E45","v":0},{"$f":"'Capex 2022-2026'!F13-'Capex 2022-2026'!F45","v":0}]
[]
["Energy Efficient Lights",null,null,null,null,null,null,null,null,null,null,null,null,null,590393.0974752116]
["Luminaires",null,null,0,1941138.4570565673,0,0,0,0,0,0,0,483844,638979,{"$f":"O11*M$31","v":640010.64768795366},2682244.4062899249,{"$f":"'Capex 2022-2026'!B26","v":2764823.6268379469},{"$f":"'Capex 2022-2026'!C26","v":2960549.7103252481},{"$f":"'Capex 2022-2026'!D26","v":2919928.8750201194},{"$f":"'Capex 2022-2026'!E26","v":2878251.3524002577},{"$f":"'Capex 2022-2026'!F26","v":1181793.2400644175}]
[]
["Total Net Capex",null,null,{"$f":"SUM(D6,D9,D12)","v":1394382.6760533117},3316966.3359567672,-12090.643446733942,1183916.164754591,1397402.8007643826,1604964,2247945.100773863,5283264,6969383.6064872313,6656410,3843668.999184818,3399363.0855660383,3863772.2350428985,5078491.3246203102,5279829.5688129719,5244428.1002620496,5208992.7897707354,3520585.4111356763]
[]
[]
[null,null,null,null,null,2011,2012,2013,2014,2015,2016,2017,2018,2019,2020,2015,2016,2017,2018,2019,2020]
["Operating and Maintenance Expenditure",null,null,null,null,"Nominal $ - Actual",null,null,null,"Nominal $",null,null,null,null,null,{"$f":"P3","v":"Real 2021 $ - Forecast"}]
[null,null,null,null,null,null,null,null,null,null,null,null,null,null,7852450.9411685374]
["Total O & M",null,null,null,null,2283204.04,2209782.2600000012,2391738.6399999983,1580678,1063000,1946538.3028133116,2338331,2966870.8600000003,2955471.78,{"$f":"O19*M$31","v":8512383.0788115971},3926225.4705842687,{"$f":"'Cashflow Summary'!K13","v":5565079.8576325318},{"$f":"'Cashflow Summary'!L13","v":5507355.1883576419},{"$f":"'Cashflow Summary'!M13","v":5455320.8741917014},{"$f":"'Cashflow Summary'!N13","v":5410627.1165289916},{"$f":"'Cashflow Summary'!O13","v":5493856.1388962129}]
[]
[]
[]
["WACC"]
["Regulatory Period",{"$f":"Q2","v":"2022-06-30"},{"$f":"R2","v":"2023-06-30"},"2024-06-30","2025-06-30","2026-06-30"]
["Real Pre Tax WACC",2.9892389027807331E-2,2.9892389027807331E-2,2.9892389027807331E-2,2.9892389027807331E-2,2.9892389027807331E-2]
[]
[]
["CPI Index","CPI Index","Actual CPI","F'cast CPI",null,null,null,{"$f":"J2","v":2015},2016,2017,2018,2019,2020]
[null,null,null,null,null,null,null,"Actual CPI",1.5108593012275628E-2,1.0232558139534831E-2,1.9337016574585641E-2,2.0776874435411097E-2,1.5929203539823078E-2]
["2020-12-31",117.2,{"$f":"D31","v":1.9993872504847632E-2},1.9993872504847632E-2,null,null,null,1,{"$f":"H31*(1+I30)","v":1.0151085930122756},{"$f":"I31*(1+J30)","v":1.0254957507082152},1.0453257790368271,1.0670443814919734,1.0840415486307837]
["2021-12-31",null,{"$f":"IF(B32=\"\",\"\",B32/B31-1)","v":""},1.9993872504847632E-2]
["2022-12-31",null,{"$f":"IF(B33=\"\",\"\",B33/B32-1)","v":""},1.9993872504847632E-2]
["2023-12-31",null,"",1.9993872504847632E-2]
["2024-12-31",null,"",1.9993872504847632E-2]
[]
[]
[]
["Number Of Lights","Central",null,null,{"$f":"P$2","v":"HY2021"},{"$f":"F$2","v":2011},2012,2013,2014,{"$f":"J$2","v":2015},{"$f":"K$2","v":2016},2017,2018,2019,2020,"HY2021","2022-06-30","2023-06-30","2024-06-30","2025-06-30","2026-06-30"]
[null,null,null,null,"Actual Prices","Actual Volumes",null,null,null,null,null,null,null,null,null,"Forecast Volumes"]
["Existing Lights","Reference Light",null,"Price Factor"]
["Mercury Vapour 80W",{"$f":"A$42","v":"Mercury Vapour 80W"},null,1,43.97,59322.500000000007,58866.850000000006,58715.366666666669,56826.283333333333,48843.369902977167,33071,19501,20899,20183,19640,19640,14785.813197209627,9857.2087981397508,4928.6043990698754,1,1]
["HP Sodium 150W",{"$f":"A$43","v":"HP Sodium 150W"},null,1,104.07,12679.833333333334,13325.133333333331,13781.75,14149.800000000001,14308.290313255447,15306,14457,16891,15334,14783,14783,14443.463291763097,13972.765067016817,13511.187229390693,13058.481214470334,12614.401408937565]
["HP Sodium 250W",{"$f":"A$44","v":"HP Sodium 250W"},null,1,105.12,6080.2666666666664,6156.5333333333338,6248.6333333333341,6374.1833333333343,6445.579841640706,6810,7048,7381,6784,6880,6880,6758.2156292482441,6503.8412413293827,6255.5636597643688,6013.165332777874,5776.5201085887866]
["Mercury Vapour 50W",{"$f":"A$42","v":"Mercury Vapour 80W"},null,1.53,67.27,324,322.33333333333331,319.58333333333331,270.16666666666669,273.19277301666312,75,71,71,25,71,70.371650000000002,54.814855996531598,36.543237331021068,18.271618665510534,0,0]
["Mercury Vapour 125W",{"$f":"A$42","v":"Mercury Vapour 80W"},null,1.47,64.63,855.25,848.08333333333337,839.5,803.65,812.65159297288574,425,332,289,297,284,281.48660000000001,211.11495000000002,140.7433,70.371650000000002,0,0]
["Mercury Vapour 250W",{"$f":"A$44","v":"HP Sodium 250W"},null,1.05,110.37,875.86666666666633,850.08333333333337,817.78333333333319,791.59999999999991,800.46662228250648,702,668,655,1036,611,605.59264999999994,460.85809332755269,307.23872888503513,153.61936444251756,0,0]
["Mercury Vapour 400W",{"$f":"A$44","v":"HP Sodium 250W"},null,1.0900000000000001,114.58,151.16666666666666,146.86666666666667,148,147.91666666666666,149.57346456032604,143,141,146,206,116,114.9734,87,58,29,0,0]
["HP Sodium 100W",{"$f":"A$43","v":"HP Sodium 150W"},null,1.07,111.36,2304.1666666666665,2478.2000000000003,2612.4166666666665,2729.4833333333331,2760.0559681780319,2851,2465,3109,2948,2497,2481.4589410036815,2465.6776371993524,2434.5955192067154,2403.5134012140775,2372.4312832214405,2341.3491652288026]
["HP Sodium 400W",{"$f":"A$44","v":"HP Sodium 250W"},null,1.42,149.26,289.5,283.55,275.25,267.91666666666669,270.91757102053424,282,281,297,443,212,212,215.70351535696486,212.38678266661969,209.00421985645434,205.55467657970098,202.03697163436587]
["Metal Halide 70W",{"$f":"A$42","v":"Mercury Vapour 80W"},null,4.3651056775797761,191.93,31,31,31,31,31.347227502220445,31,31,31,31,31,27.125,19.375,11.625,3.875,0,0]
["Metal Halide 100W","HP Sodium 150W",null,2.3876890876224905,248.49,34,34,34,34,34.380830163725648,34,34,34,34,34,29.75,21.25,12.75,4.25,0,0]
["Metal Halide 150W","HP Sodium 150W",null,2.7125868138140996,282.31,32,32,32,32.166666666666664,32.526961870583577,33,33,33,33,33,28.875,20.625,12.375,4.125,0,0]
["HP Sodium 50W",{"$f":"A$43","v":"HP Sodium 150W"},null,0.44334506707259064,46.14,94,95,95,95,96.064084280998131,0,0,0,0,0,0,0,0,0,0,0]
[]
[]
[]
[]
[]
[]
[]
[]
[]
[]
[]
["Total Existing Lights",null,null,null,null,{"$f":"SUM(F42:F65)","v":83073.550000000017},83469.633333333331,83950.28333333334,82553.166666666686,74858.417153721792,59763,45062,49836,47354,45192,45154.633241003678,39543.911170101383,33560.072674575335,27591.385542403495,21650.632507049351,20935.307654389522]
[]
["Energy Efficient Lights","Reference Light",null,"Price Factor"]
["T5 2X14W",{"$f":"A$69","v":"T5 2X14W"},null,1,35.6,3208.75,5202.25,6045.833333333333,8439.5833333333339,11516.802884651741,21929,21271,22991,22499,22518,22518,22528.43237331021,22528.43237331021,22528.43237331021,22528.43237331021,22528.43237331021]
["T5 2X24W",{"$f":"A$70","v":"T5 2X24W"},null,1,42.08,105.16666666666667,277,352.41666666666669,542.91666666666663,932.74932484535293,1690,1584,2040,1780,1649,1781,1781,1781,1781,1781,1781]
["LED 18W",{"$f":"A$71","v":"LED 18W"},null,1,16.27,0,0,0,0,2982.68873065342,12368,23946,30035,30436,30959,32106.503848553304,38758.369932298003,46086.982028474486,53479.674849108887,60938.237642774184,63479.091138569529]
["LED 14W",{"$f":"A72","v":"LED 14W"},null,1,16.27,null,null,null,null,null,0,0,307,1726,2673,2673,2732.1167820911937,2732.1167820911937,2732.1167820911937,2732.1167820911937,2732.1167820911937]
["LED 70W-125W (L1)",{"$f":"A73","v":"LED 70W-125W (L1)"},null,1,23.59,null,null,null,null,null,0,0,417,1259,1833.4217792699637,2118.1985565842951,2465.3300999201228,2476.904084056167,2852.4849272584929,2843.2454049206731,2683.1953335137578]
["LED 155W-250W (L2)","LED 155W-250W (L2)",null,1,24.3,null,null,null,null,null,0,0,273,901,1227,1434.1751433875991,2465.2057164955359,2936.2403647516226,3385.7155842775778,3577.6296420826243,3525.5934562050852]
["LED 275W-400W (L4)","LED 275W-400W (L4)",null,1,25.83,null,null,null,null,null,0,0,0,50,68,77.836613362978397,119.39023633288262,137.10415659934768,156.78970790234621,166.33321692536668,151.05366829633135]
["Compact Fluorescent 32W",{"$f":"A$69","v":"T5 2X14W"},null,0.87960989252886512,31.59,1978.9333333333332,2125.0833333333335,2279.5,2420.8333333333335,4159.0741192260184,2908,2707,2827,3108,3107,3107,3111.1729493240841,3111.1729493240841,3111.1729493240841,3111.1729493240841,3111.1729493240841]
["Compact Fluorescent 42W","T5 2X14W",null,0.87960989252886512,31.59,245.5,366.33333333333331,572.16666666666663,791.08333333333337,1359.1081106303818,1570,1336,2089,1921,1924,1924,1992.1581722933765,1992.1581722933765,1992.1581722933765,1992.1581722933765,1992.1581722933765]
["Smart lighting L1",{"$f":"A78","v":"Smart lighting L1"},null,1,{"$f":"E$75","v":25.83},null,null,null,null,null,null,null,0,0,0,1,1,612.70578769516021,1210.8688957079764,1877.4141562094171,2656.0711629072098]
["Smart lighting L2",{"$f":"A79","v":"Smart lighting L2"},null,1,{"$f":"E$75","v":25.83},null,null,null,null,null,null,null,0,0,0,3,3,733.45153607814336,1449.2325578372117,2382.3044618390268,3521.4205068810011]
["Smart lighting L4","Smart lighting L4",null,1,25.83,null,null,null,null,null,null,null,0,0,0,1,1,34.276039149836919,67.19558910100551,110.88881128357781,151.05366829633135]
["Total Energy Efficient Lights",null,null,null,null,{"$f":"SUM(F69:F77)","v":5538.3499999999995},7970.666666666667,9249.9166666666661,12194.416666666668,{"$f":"SUM(J69:J77)","v":20950.423170006914},40465,50844,60979,63680,65958.421779269964,{"$f":"SUM(P69:P80)","v":67744.714161888172},{"$f":"SUM(Q69:Q80)","v":75958.176262065404},85162.544273823616,94746.842388212375,104040.93361305374,108312.35921168809]
[]
["Total Number of Lights",null,null,null,null,{"$f":"SUM(F66,F81)","v":88611.900000000023},91440.3,93200.200000000012,94747.583333333358,{"$f":"SUM(J66,J81)","v":95808.840323728713},100228,95906,110815,111034,111150.42177926996,112899.34740289184,115502.08743216679,118722.61694839895,122338.22793061587,125691.56612010309,129247.6668660776]
[]
[]
["Number Of Lights","North & East",null,null,"HY2021",{"$f":"F$2","v":2011},2012,2013,2014,{"$f":"J$2","v":2015},{"$f":"K$2","v":2016},2017,2018,2019,2020,"HY2021","2022-06-30","2023-06-30","2024-06-30","2025-06-30","2026-06-30"]
[null,null,null,null,"Actual Prices","Actual Volumes",null,null,null,null,null,null,null,null,null,"Forecast Volumes"]
["Existing Lights","Reference Light",null,"Price Factor"]
["Mercury Vapour 80W",{"$f":"A$89","v":"Mercury Vapour 80W"},null,1,49.95,28734.833333333339,28906.483333333334,28889.050000000003,26233.916666666668,22548.595836149958,6984,8177,4522,4620,4664,4664,3522.4368027903729,2348.2912018602487,1174.1456009301244,1,1]
["HP Sodium 150W",{"$f":"A$90","v":"HP Sodium 150W"},null,1,118.4,4571.583333333333,4712.166666666667,4750.25,4824.416666666667,4878.4544134033549,5333,7159,5274,5404,5446,5446,5238.8777144357464,4977.8739252605228,4724.4157962568888,4478.406600130098,4239.7529806685807]
["HP Sodium 250W",{"$f":"A$91","v":"HP Sodium 250W"},null,1,117.12,4504.6999999999989,4586.8666666666677,4654.6166666666659,4713.4833333333327,4766.2785283201401,5034,5363,5257,5214,5137,5137,5005.0448814785095,4831.6258750111156,4661.8033821311346,4495.4387398062763,4332.4512505760986]
["Mercury Vapour 50W",{"$f":"A$89","v":"Mercury Vapour 80W"},null,1.48,73.930000000000007,376.74999999999994,367.75,363.16666666666669,289.41666666666669,292.65839009465481,146,128,128,128,125,125,94.435144003468395,62.956762668978932,31.478381334489466,0,0]
["Mercury Vapour 125W",{"$f":"A$89","v":"Mercury Vapour 80W"},null,1.48,73.930000000000007,62,62.083333333333336,60.333333333333336,54.583333333333336,55.194715091275249,26,21,13,17,17,17,12.75,8.5,4.25,0,0]
["Mercury Vapour 250W",{"$f":"A$91","v":"HP Sodium 250W"},null,1.04,121.81,433.84999999999997,433.2833333333333,427.8,417.68333333333339,422.36175722212187,277,275,274,272,260,260,196.14190667244733,130.7612711149649,65.380635557482449,0,0]
["Mercury Vapour 400W",{"$f":"A$91","v":"HP Sodium 250W"},null,1.07,125.32,132,131.33333333333334,127.66666666666667,123.16666666666669,124.54624260290812,92,91,85,91,91,91,68.25,45.5,22.75,0,0]
["HP Sodium 100W",{"$f":"A$90","v":"HP Sodium 150W"},null,1.07,126.69,143.91666666666666,196.83333333333334,222.91666666666666,248.50000000000003,251.28342046134776,244,729,152,329,315,315,316.86809591687819,311.93993177792191,306.91395401753471,301.78845339405683,296.56167481962024]
["HP Sodium 400W",{"$f":"A$91","v":"HP Sodium 250W"},null,1.42,166.31,299.08333333333331,310.41666666666669,321.49999999999994,330.08333333333331,333.78055950616977,349,361,354,367,354,354,351.61585962568898,346.07754183143339,340.42930015785538,334.66921374289927,328.79531020210385]
["Metal Halide 70W",{"$f":"A$89","v":"Mercury Vapour 80W"},null,3.8044420368364027,190.05,0,0,0,0,0,0,0,0,0,0,0,0,0,0,0,0]
["Metal Halide 100W",{"$f":"A$90","v":"HP Sodium 150W"},null,2.1180491097797653,250.78,0,0,0,0,0,0,0,0,0,0,0,0,0,0,0,0]
["Metal Halide 150W",{"$f":"A$90","v":"HP Sodium 150W"},null,2.4062948274407225,284.91000000000003,0,0,0,0,0,0,0,0,0,0,0,0,0,0,0,0]
[{"$f":"A54","v":"HP Sodium 50W"},{"$f":"A$90","v":"HP Sodium 150W"},null,0.45472955868703063,53.84,0,0,0,0,0,0,0,0,0,0,0,0,0,0,0,0]
[]
[]
[]
[]
[]
[]
[]
[]
[]
[]
[]
["Total Existing Lights",null,null,null,null,{"$f":"SUM(F89:F112)","v":39258.716666666667},39707.216666666674,39817.300000000003,37235.25,{"$f":"SUM(J89:J112)","v":33673.153862851934},18485,22304,16059,16442,16409,16409,14806.42040492311,13063.526509525187,11331.567050385509,9611.3030070733312,9198.5612162664038]
[]
["Energy Efficient Lights","Reference Light",null,"Price Factor"]
["T5 2X14W",{"$f":"A$116","v":"T5 2X14W"},null,1,40.6,64.75,140,249.58333333333334,3014.5833333333335,5220.5984078107704,7036,8015,6506,7097,7099,7099,7103.567626689789,7103.567626689789,7103.567626689789,7103.567626689789,7103.567626689789]
["T5 2X24W",{"$f":"A$117","v":"T5 2X24W"},null,1,47.91,36.5,44.333333333333336,64.416666666666671,93.5,128.23440738477976,1002,1159,761,1015,1020,1020,1020,1020,1020,1020,1020]
["LED 18W",{"$f":"A$118","v":"LED 18W"},null,1,16.739999999999998,0,0,0,0,33.687124434534233,14920,19876,18786,19360,18962,19356.529623844079,21167.16157499676,23165.86642361504,25182.216048139089,27216.605017313494,28059.791122215476]
["LED 14W",{"$f":"A119","v":"LED 14W"},null,1,16.739999999999998,null,null,null,null,null,0,0,47,324,937,937,962.88321790880616,962.88321790880616,962.88321790880616,962.88321790880616,962.88321790880616]
["LED 70W-125W (L1)",{"$f":"A120","v":"LED 70W-125W (L1)"},null,1,24.09,null,null,null,null,null,0,0,33,181,497.20953611094137,583.39254116102018,681.59883423279166,689.76363025760236,732.29980255497924,740.55400815539451,713.81590874974506]
["LED 155W-250W (L2)","LED 155W-250W (L2)",null,1,24.89,null,null,null,null,null,0,0,117,180,278,359.10763471638836,1013.705102375826,1382.296185939859,1690.9221943388495,1845.7347126195623,1855.5417351657852]
["LED 275W-400W (L4)","LED 275W-400W (L4)",null,1,26.37,null,null,null,null,null,0,0,9,9,68,73.942114915324254,107.80351475372228,118.38084990290113,131.96700056066086,137.67363043782677,124.01470150007364]
["Compact Fluorescent 32W",{"$f":"A$116","v":"T5 2X14W"},null,0.87960989252886512,36.130000000000003,180.58333333333334,291.75,405.75,536.58333333333337,929.24486932670493,640,718,689,651,680,680,681.82705067591576,681.82705067591576,681.82705067591576,681.82705067591576,681.82705067591576]
["Compact Fluorescent 42W","T5 2X14W",null,0.87960989252886512,36.130000000000003,709.16666666666663,1220.0833333333333,1602.3333333333333,1877.5,3251.4189945536045,2614,3222,2634,2761,2715,2715,2744.8418277066235,2744.8418277066235,2744.8418277066235,2744.8418277066235,2744.8418277066235]
["Smart lighting L1",{"$f":"A125","v":"Smart lighting L1"},null,1,{"$f":"E$122","v":26.37},null,null,null,null,null,null,null,0,0,0,1,1,169.58614088328227,308.75313135494014,485.78545250796151,701.94007935629281]
["Smart lighting L2",{"$f":"A126","v":"Smart lighting L2"},null,1,{"$f":"E$122","v":26.37},null,null,null,null,null,null,null,0,0,0,3,3,345.30760159472703,723.89791871268596,1229.271774629098,1853.7146844898696]
["Smart lighting L4","Smart lighting L4",null,1,26.37,null,null,null,null,null,null,null,0,0,0,1,1,29.595212475725283,56.557285954568933,91.782420291884534,124.01470150007364]
["Total Energy Efficient Lights",null,null,null,null,{"$f":"SUM(F116:F124)","v":991},1696.1666666666665,2322.083333333333,5522.166666666667,{"$f":"SUM(J116:J124)","v":9563.1838035103938},26212,32990,29582,31578,32256.209536110942,{"$f":"SUM(P116:P127)","v":32828.971914636815},{"$f":"SUM(Q116:Q127)","v":35488.388749340236},38413.915767650265,41339.733104596904,44260.526738936343,45945.952655958463]
[]
["Total Number of Lights",null,null,null,null,{"$f":"SUM(F113,F128)","v":40249.716666666667},41403.383333333339,42139.383333333339,42757.416666666664,{"$f":"SUM(J113,J128)","v":43236.337666362328},44697,55294,45641,48020,48665.209536110939,49237.971914636815,50294.809154263348,51477.442277175454,52671.300154982411,53871.829746009673,55144.513872224867]
[]
[]
[null,null,null,null,null,null,null,null,null,null,null,null,null,null,null,null,{"$f":"Q2","v":"2022-06-30"},{"$f":"R2","v":"2023-06-30"},"2024-06-30","2025-06-30","2026-06-30"]
[null,null,null,null,null,null,null,null,null,null,null,null,null,null,null,"Real Labour Escalation",1.0035262398578897E-2,6.6268624707600688E-3,6.0912696932914154E-3,7.3277279219734291E-3,9.5094682370305637E-3]

{"sheet":"DNSP Inputs O & M","index":3,"n_rows":641,"n_cols":8,"rows_kept":641,"cut":false,"hidden":false,"merged":[[4,2,4,7],[2,2,2,7]]}
["Public Lighting Cost Build-up Model"]
[]
["AusNet",null,"O & M Data Inputs"]
[]
[null,null,"Real 2021 $ "]
[]
["Input parameters",null,{"$f":"'DNSP Inputs General'!P2","v":"HY2021"},{"$f":"'DNSP Inputs General'!Q2","v":"2022-06-30"},{"$f":"'DNSP Inputs General'!R2","v":"2023-06-30"},{"$f":"'DNSP Inputs General'!S2","v":"2024-06-30"},{"$f":"'DNSP Inputs General'!T2","v":"2025-06-30"},{"$f":"'DNSP Inputs General'!U2","v":"2026-06-30"}]
[]
["Inputs - all lamps"]
[]
["Material premium for rural areas",null,0.05,0.05,0.05,0.05,0.05,0.05]
["Labour rate (per hour)",null,105.14613928035978,111.36223236834823,{"$f":"D12*(1+'DNSP Inputs General'!R$134)","v":112.10021456669011},{"$f":"E12*(1+'DNSP Inputs General'!S$134)","v":112.78304720629164},{"$f":"F12*(1+'DNSP Inputs General'!T$134)","v":113.60949069043043},{"$f":"G12*(1+'DNSP Inputs General'!U$134)","v":114.68985653357629}]
["Labour rate for night patrols (per hour)",null,131.42923029921559,143.47813587064053,{"$f":"D13*(1+'DNSP Inputs General'!R$134)","v":144.4289457446163},{"$f":"E13*(1+'DNSP Inputs General'!S$134)","v":145.3087014046645},{"$f":"F13*(1+'DNSP Inputs General'!T$134)","v":146.37348403325316},{"$f":"G13*(1+'DNSP Inputs General'!U$134)","v":147.76541803041087}]
["Elevated platform vehicle (per hour) - urban MV,urban T5",null,49.790457219554725,50.18,50.18,50.18,50.18,50.18]
["Elevated platform vehicle (per hour) - rural MV, rural T5, S-HP",null,89.971356195735396,63.64,63.64,63.64,63.64,63.64]
["Patrol vehicle (per hour)",null,34.106463195394987,34.369999999999997,34.369999999999997,34.369999999999997,34.369999999999997,34.369999999999997]
["Number of hours in a day",null,8,7.5,7.5,7.5,7.5,7.5]
["Indirect overheads",null,0.25,0.25,0.25,0.25,0.25,0.25]
[]
[]
[]
["Inputs - MV80"]
[]
["Depreciation period","years",20,{"$f":"C24","v":20},{"$f":"D24","v":20},{"$f":"E24","v":20},{"$f":"F24","v":20},{"$f":"G24","v":20}]
["Lamps - bulk change","years",4,4,4,4,4,4]
["PE cells - bulk change","years",8,8,8,8,8,8]
["Proportion of lamps that fail between bulk change",null,0.107,0.19416850184289608,0.19416850184289608,0.19416850184289608,0.19416850184289608,0.19416850184289608]
["Unit cost - lamp",null,6.111746931067044,4.71,4.71,4.71,4.71,4.71]
["Unit cost - PE cell",null,24.673806764877483,15.120000000000001,15.120000000000001,15.120000000000001,15.120000000000001,15.120000000000001]
["Unit cost - luminaire",null,212.03482530689328,205,205,205,205,205]
["Unit cost - miscellaneous materials (bulk lamp)",null,1.3373336999933596,1.3476456706921032,1.3476456706921032,1.3476456706921032,1.3476456706921032,1.3476456706921032]
["Unit cost - miscellaneous materials (repair)",null,13.373336999933597,13.476456706921033,13.476456706921033,13.476456706921033,13.476456706921033,13.476456706921033]
["Number of men in crew",null,2,2,2,2,2,2]
["Number of bulk lamp changes in 1 day - urban",null,85,86,86,86,86,86]
["Number of bulk lamp changes in 1 day - rural",null,70,72,72,72,72,72]
["Number of bulk lamp changes in 1 day - remote",null,50,60,60,60,60,60]
["Number of repairs in 1 day - urban",null,20,28.8,28.8,28.8,28.8,28.8]
["Number of repairs in 1 day - rural",null,15,24,24,24,24,24]
["Number of repairs in 1 day - remote",null,10,19.2,19.2,19.2,19.2,19.2]
["   % of repairs - lamps",null,0.6,0.6,0.6,0.6,0.6,0.6]
["   % of repairs - PE cells",null,0.5,0.5,0.5,0.5,0.5,0.5]
["   % of repairs - luminaires",null,0.15,0.15,0.15,0.15,0.15,0.15]
["   % of repairs - other",null,0.1,0.1,0.1,0.1,0.1,0.1]
[]
["Other Maintenance and Repair costs"]
["Traffic control costs",null,6771.1475260162197,{"$f":"D49*D50-D47","v":38447.325000000004},{"$f":"E49*E50-E47","v":25631.55},12815.775,4.2,4.2]
["Other costs : Describe…………………………………….",null,0,0,0,0,0,0]
[null,null,{"$f":"SUM(C46:C47)","v":6771.1475260162197},38447.325000000004,25631.55,12815.775,4.2,4.2]
["Number of Lights",null,{"$f":"C48/C50","v":34321.640010886862},{"$f":"SUM('DNSP Inputs General'!Q42,'DNSP Inputs General'!Q89)","v":18308.25},{"$f":"SUM('DNSP Inputs General'!R42,'DNSP Inputs General'!R89)","v":12205.5},{"$f":"SUM('DNSP Inputs General'!S42,'DNSP Inputs General'!S89)","v":6102.75},{"$f":"SUM('DNSP Inputs General'!T42,'DNSP Inputs General'!T89)","v":2},{"$f":"SUM('DNSP Inputs General'!U42,'DNSP Inputs General'!U89)","v":2}]
["Unit Cost",null,0.1972850808955634,2.1,2.1,2.1,2.1,2.1]
[]
["Other O & M costs specific to North/East zone"]
["Other N\\E O & M costs : Describe…………………………………….",null,2873.4725549580835,{"$f":"D54*D55","v":3451.9880667345656},{"$f":"E54*E55","v":2301.3253778230437},1150.6626889115221,0.98,0.98]
["Number of Lights",null,{"$f":"C53/C55","v":10840.222439976529},{"$f":"'DNSP Inputs General'!Q89","v":3522.4368027903729},{"$f":"'DNSP Inputs General'!R89","v":2348.2912018602487},{"$f":"'DNSP Inputs General'!S89","v":1174.1456009301244},{"$f":"'DNSP Inputs General'!T89","v":1},{"$f":"'DNSP Inputs General'!U89","v":1}]
["Unit Cost",null,0.26507505458202618,0.98,0.98,0.98000000000000009,0.98,0.98]
[]
["Location of selected public lighting assets within distributors' areas (%)"]
["SP AusNet - Central"]
["Urban",null,0.96,0.96,0.96,0.96,0.96,0.96]
["Rural",null,0.04,0.04,0.04,0.04,0.04,0.04]
["Remote",null,0,0,0,0,0,0]
[]
["SP AusNet - North/East"]
["Urban",null,0.35,0.35,0.35,0.35,0.35,0.35]
["Rural",null,0.53,0.53,0.53,0.53,0.53,0.53]
["Remote",null,0.12,0.12,0.12,0.12,0.12,0.12]
[]
[]
[]
["Inputs - S-HP150"]
[]
["Depreciation period ","years",20,{"$f":"C72","v":20},{"$f":"D72","v":20},{"$f":"E72","v":20},{"$f":"F72","v":20},{"$f":"G72","v":20}]
["Number of patrols per year",null,3,3,3,3,3,3]
["Lamps - frequency of replacement","years",5,5,5,5,5,5]
["PE cells - frequency of replacement","years",10,10,10,10,10,10]
["Unit cost - lamp",null,44.197695939565627,19.329999999999998,19.329999999999998,19.329999999999998,19.329999999999998,19.329999999999998]
["Unit cost - PE cell",null,24.005139914880804,15.120000000000001,15.120000000000001,15.120000000000001,15.120000000000001,15.120000000000001]
["Unit cost - miscellaneous materials",null,2.6746673999867192,2.6952913413842063,2.6952913413842063,2.6952913413842063,2.6952913413842063,2.6952913413842063]
["Number of men in crew - road patrols",null,2,2,2,2,2,2]
["Number of men in crew - repairs",null,2,2,2,2,2,2]
["Number of lamps patrolled in 1 day - urban",null,3000,3000,3000,3000,3000,3000]
["Number of lamps patrolled in 1 day - rural",null,2000,2000,2000,2000,2000,2000]
["Number of lamps patrolled in 1 day - remote",null,1000,1000,1000,1000,1000,1000]
["Number of repairs in 1 day - urban",null,15,15,15,15,15,15]
["Number of repairs in 1 day - rural",null,12,11,11,11,11,11]
["Number of repairs in 1 day - remote",null,9,9,9,9,9,9]
[]
["Other Maintenance and Repair costs"]
["Traffic control costs",null,4101.2817430757059,54736.60844435032,52834.474946450238,50974.889413689089,49156.956467786811,47359.628507272704]
["Other costs : Describe…………………………………….",null,995.80914439109449,0,0,0,0,0]
[null,null,{"$f":"SUM(C89:C90)","v":5097.0908874668003},54736.60844435032,52834.474946450238,50974.889413689089,49156.956467786811,47359.628507272704]
["Number of Lights",null,{"$f":"C91/C93","v":20788.605628252233},{"$f":"SUM('DNSP Inputs General'!Q43,'DNSP Inputs General'!Q90)","v":19682.341006198843},{"$f":"SUM('DNSP Inputs General'!R43,'DNSP Inputs General'!R90)","v":18950.638992277338},{"$f":"SUM('DNSP Inputs General'!S43,'DNSP Inputs General'!S90)","v":18235.603025647582},{"$f":"SUM('DNSP Inputs General'!T43,'DNSP Inputs General'!T90)","v":17536.887814600432},{"$f":"SUM('DNSP Inputs General'!U43,'DNSP Inputs General'!U90)","v":16854.154389606145}]
["Unit Cost",null,0.24518676137372708,{"$f":"D91/D92","v":2.7810009199165551},{"$f":"E91/E92","v":2.7880049304923733},{"$f":"F91/F92","v":2.7953498078454069},{"$f":"G91/G92","v":2.8030604396557135},{"$f":"H91/H92","v":2.809967644326262}]
[]
["Other O & M costs specific to North/East zone"]
["Other N\\E O & M costs : Describe…………………………………….",null,1401.1194879799334,8769.0488596421874,8434.927770089962,8108.8102320282587,7790.55049767944,7476.183726156798]
["Number of Lights",null,{"$f":"C96/C98","v":5285.746296230087},{"$f":"'DNSP Inputs General'!Q90","v":5238.8777144357464},{"$f":"'DNSP Inputs General'!R90","v":4977.8739252605228},{"$f":"'DNSP Inputs General'!S90","v":4724.4157962568888},{"$f":"'DNSP Inputs General'!T90","v":4478.406600130098},{"$f":"'DNSP Inputs General'!U90","v":4239.7529806685807}]
["Unit Cost",null,0.26507505458202624,{"$f":"D96/D97","v":1.6738411044562163},{"$f":"E96/E97","v":1.694484009987961},{"$f":"F96/F97","v":1.7163625264424851},{"$f":"G96/G97","v":1.7395808807206394},{"$f":"H96/H97","v":1.7633536105157366}]
[]
["Location of selected public lighting assets within distributors' areas (%)"]
["SP AusNet - Central"]
["Urban",null,0.94,0.94,0.94,0.94,0.94,0.94]
["Rural",null,0.06,0.06,0.06,0.06,0.06,0.06]
["Remote",null,0,0,0,0,0,0]
[]
["SP AusNet - North/East"]
["Urban",null,0.3,0.3,0.3,0.3,0.3,0.3]
["Rural",null,0.63,0.63,0.63,0.63,0.63,0.63]
["Remote",null,7.0000000000000007E-2,7.0000000000000007E-2,7.0000000000000007E-2,7.0000000000000007E-2,7.0000000000000007E-2,7.0000000000000007E-2]
[]
[]
[]
["Inputs - S-HP250"]
[]
["Depreciation period ","years",{"$f":"C72","v":20},{"$f":"D72","v":20},20,20,20,20]
["Number of patrols per year",null,{"$f":"C73","v":3},3,3,3,3,3]
["Lamps - frequency of replacement","years",{"$f":"C74","v":5},5,5,5,5,5]
["PE cells - frequency of replacement","years",{"$f":"C75","v":10},10,10,10,10,10]
["Unit cost - lamp",null,44.417148253068923,21.28,21.28,21.28,21.28,21.28]
["Unit cost - PE cell",null,24.005139914880804,15.120000000000001,15.120000000000001,15.120000000000001,15.120000000000001,15.120000000000001]
["Unit cost - miscellaneous materials",null,2.6746673999867192,2.548069545426245,2.548069545426245,2.548069545426245,2.548069545426245,2.548069545426245]
["Number of men in crew - road patrols",null,{"$f":"C79","v":2},2,2,2,2,2]
["Number of men in crew - repairs",null,{"$f":"C80","v":2},2,2,2,2,2]
["Number of lamps patrolled in 1 day - urban",null,{"$f":"C81","v":3000},3000,3000,3000,3000,3000]
["Number of lamps patrolled in 1 day - rural",null,{"$f":"C82","v":2000},2000,2000,2000,2000,2000]
["Number of lamps patrolled in 1 day - remote",null,{"$f":"C83","v":1000},1000,1000,1000,1000,1000]
["Number of repairs in 1 day - urban",null,{"$f":"C84","v":15},15,15,15,15,15]
["Number of repairs in 1 day - rural",null,{"$f":"C85","v":12},11,11,11,11,11]
["Number of repairs in 1 day - remote",null,{"$f":"C86","v":9},9,9,9,9,9]
[]
["Other Maintenance and Repair costs"]
["Traffic control costs",null,2396.6019610809972,41324.634121010626,39886.865469064607,38481.499489999609,37107.853640535555,35749.89366171111]
["Other costs : Describe…………………………………….",null,995.80914439109449,0,0,0,0,0]
[null,null,{"$f":"SUM(C132:C133)","v":3392.4111054720915},41324.634121010626,39886.865469064607,38481.499489999609,37107.853640535555,35749.89366171111]
["Number of Lights",null,{"$f":"C134/C136","v":12147.912808215253},{"$f":"SUM('DNSP Inputs General'!Q44,'DNSP Inputs General'!Q91)","v":11763.260510726754},{"$f":"SUM('DNSP Inputs General'!R44,'DNSP Inputs General'!R91)","v":11335.467116340498},{"$f":"SUM('DNSP Inputs General'!S44,'DNSP Inputs General'!S91)","v":10917.367041895504},{"$f":"SUM('DNSP Inputs General'!T44,'DNSP Inputs General'!T91)","v":10508.60407258415},{"$f":"SUM('DNSP Inputs General'!U44,'DNSP Inputs General'!U91)","v":10108.971359164885}]
["Unit Cost",null,0.2792587631331952,{"$f":"D134/D135","v":3.5130254986130134},{"$f":"E134/E135","v":3.5187668103739815},{"$f":"F134/F135","v":3.5247967153917674},{"$f":"G134/G135","v":3.5311877185806311},{"$f":"H134/H135","v":3.5364521662532886}]
[]
["Other O & M costs specific to North/East zone"]
["Other N\\E O & M costs : Describe…………………………………….",null,1368.9019441940025,7817.865259196542,7554.2292916463148,7296.2906901606721,7043.9264977740977,6794.3181261733116]
["Number of Lights",null,{"$f":"C139/C141","v":5164.2050827925132},{"$f":"'DNSP Inputs General'!Q91","v":5005.0448814785095},{"$f":"'DNSP Inputs General'!R91","v":4831.6258750111156},{"$f":"'DNSP Inputs General'!S91","v":4661.8033821311346},{"$f":"'DNSP Inputs General'!T91","v":4495.4387398062763},{"$f":"'DNSP Inputs General'!U91","v":4332.4512505760986}]
["Unit Cost",null,0.26507505458202618,{"$f":"D139/D140","v":1.5619970338581888},{"$f":"E139/E140","v":1.5634963234045798},{"$f":"F139/F140","v":1.5651219264475256},{"$f":"G139/G140","v":1.5669052356116957},{"$f":"H139/H140","v":1.5682387944399494}]
[]
["Location of selected public lighting assets within distributors' areas (%)"]
["SP AusNet - Central"]
["Urban",null,0.9,0.9,0.9,0.9,0.9,0.9]
["Rural",null,0.1,0.1,0.1,0.1,0.1,0.1]
["Remote",null,0,0,0,0,0,0]
[]
["SP AusNet - North/East"]
["Urban",null,0.37,0.37,0.37,0.37,0.37,0.37]
["Rural",null,0.56999999999999995,0.56999999999999995,0.56999999999999995,0.56999999999999995,0.56999999999999995,0.56999999999999995]
["Remote",null,0.06,0.06,0.06,0.06,0.06,0.06]
[]
[]
[]
["Dedicated street lighting poles"]
[]
["Period of inspection","years",5,5,5,5,5,5]
["Pole inspection rate","per day",75,75,75,75,75,75]
["Depreciation of dedicated street lighting pole & bracket","years",35,{"$f":"C160","v":35},{"$f":"D160","v":35},{"$f":"E160","v":35},{"$f":"F160","v":35},{"$f":"G160","v":35}]
["Proportion of lights on dedicated poles"]
["SP AusNet - Central",null,0.38119062500000001,0.38119062500000001,0.38119062500000001,0.38119062500000001,0.38119062500000001,0.38119062500000001]
["SP AusNet - North/East",null,0.38296744016378254,0.38296744016378254,0.38296744016378254,0.38296744016378254,0.38296744016378254,0.38296744016378254]
[]
[]
[]
["Other direct costs"]
["Call centre"]
["Number of calls",null,4000,4000,4000,4000,4000,4000]
["Average cost per call $",null,16.030991501416427,15.61,16.61,17.61,18.61,19.61]
[null,null,{"$f":"C169*C170","v":64123.966005665709},62440,66440,70440,74440,78440]
[]
["GIS and other",null,124476.14304888682,118584.41510767433,118584.41510767433,118584.41510767433,118584.41510767433,118584.41510767433]
["Complaints handling",null,37342.842914666042,35575.3245323023,35575.3245323023,35575.3245323023,35575.3245323023,35575.3245323023]
[]
[]
[]
["ENERGY EFFICIENT LIGHTS"]
[]
["Inputs - T5 (2 X 14W)"]
[]
["Depreciation period","years",20,{"$f":"C182","v":20},{"$f":"D182","v":20},{"$f":"E182","v":20},{"$f":"F182","v":20},{"$f":"G182","v":20}]
["Lamps - bulk change","years",4,4,4,4,4,4]
["PE cells - bulk change","years",8,8,8,8,8,8]
["Ballast unit life","years",20,{"$f":"C185","v":20},{"$f":"D185","v":20},{"$f":"E185","v":20},{"$f":"F185","v":20},{"$f":"G185","v":20}]
["Proportion of luminaires that fail between bulk change",null,0.114,0.41565636121546606,0.41565636121546606,0.41565636121546606,0.41565636121546606,0.41565636121546606]
["Unit cost - lamp",null,10.698300283286118,8.1,8.1,8.1,8.1,8.1]
["Unit cost - PE cell",null,18.05400494991035,15.120000000000001,15.120000000000001,15.120000000000001,15.120000000000001,15.120000000000001]
["Unit cost - luminaire",null,258.10883852691217,260.27999999999997,260.27999999999997,260.27999999999997,260.27999999999997,260.27999999999997]
["Unit cost - miscellaneous materials (bulk lamp)",null,1.3373336999933596,1.3476456706921032,1.3476456706921032,1.3476456706921032,1.3476456706921032,1.3476456706921032]
["Unit cost - miscellaneous materials (repair)",null,13.373336999933597,13.476456706921033,13.476456706921033,13.476456706921033,13.476456706921033,13.476456706921033]
["Number of men in crew",null,2,2,2,2,2,2]
["Number of bulk lamp changes in 1 day - urban",null,85,73.92,73.92,73.92,73.92,73.92]
["Number of bulk lamp changes in 1 day - rural",null,70,61.44,61.44,61.44,61.44,61.44]
["Number of bulk lamp changes in 1 day - remote",null,50,48.96,48.96,48.96,48.96,48.96]
["Number of repairs in 1 day - urban",null,20,24.96,24.96,24.96,24.96,24.96]
["Number of repairs in 1 day - rural",null,15,20.16,20.16,20.16,20.16,20.16]
["Number of repairs in 1 day - remote",null,10,16.32,16.32,16.32,16.32,16.32]
["   % of repairs - lamps",null,0.6,0.6,0.6,0.6,0.6,0.6]
["   % of repairs - PE cells",null,0.5,0.5,0.5,0.5,0.5,0.5]
["   % of repairs - luminaires",null,0.15,0,0,0,0,0]
["   % of repairs - other",null,0.1,0.1,0.1,0.1,0.1,0.1]
[]
["Other Maintenance and Repair costs"]
["Traffic control costs",null,7051.2759824612167,30287.25,30287.25,30287.25,30287.25,30287.25]
["Other costs : Describe…………………………………….",null,0,0,0,0,0,0]
[null,null,{"$f":"SUM(C205:C206)","v":7051.2759824612167},30287.25,30287.25,30287.25,30287.25,30287.25]
["Number of Lights",null,{"$f":"C207/C209","v":35741.557093178999},{"$f":"SUM('DNSP Inputs General'!Q69,'DNSP Inputs General'!Q116)","v":29632},{"$f":"SUM('DNSP Inputs General'!R69,'DNSP Inputs General'!R116)","v":29632},{"$f":"SUM('DNSP Inputs General'!S69,'DNSP Inputs General'!S116)","v":29632},{"$f":"SUM('DNSP Inputs General'!T69,'DNSP Inputs General'!T116)","v":29632},{"$f":"SUM('DNSP Inputs General'!U69,'DNSP Inputs General'!U116)","v":29632}]
["Unit Cost",null,0.1972850808955634,{"$f":"D207/D208","v":1.0221129184665227},{"$f":"E207/E208","v":1.0221129184665227},{"$f":"F207/F208","v":1.0221129184665227},{"$f":"G207/G208","v":1.0221129184665227},{"$f":"H207/H208","v":1.0221129184665227}]
[]
["Other O & M costs specific to North/East zone"]
["Other N\\E O & M costs : Describe…………………………………….",null,3466.0715928848704,7762.58,7762.58,7762.58,7762.58,7762.58]
["Number of Lights",null,{"$f":"C212/C214","v":13075.812050101122},{"$f":"'DNSP Inputs General'!Q116","v":7103.567626689789},{"$f":"'DNSP Inputs General'!R116","v":7103.567626689789},{"$f":"'DNSP Inputs General'!S116","v":7103.567626689789},{"$f":"'DNSP Inputs General'!T116","v":7103.567626689789},{"$f":"'DNSP Inputs General'!U116","v":7103.567626689789}]
["Unit Cost",null,0.26507505458202618,{"$f":"D212/D213","v":1.0927720277954622},{"$f":"E212/E213","v":1.0927720277954622},{"$f":"F212/F213","v":1.0927720277954622},{"$f":"G212/G213","v":1.0927720277954622},{"$f":"H212/H213","v":1.0927720277954622}]
[]
["Location of selected public lighting assets within distributors' areas (%)"]
["SP AusNet - Central"]
["Urban",null,0.96,0.96,0.96,0.96,0.96,0.96]
["Rural",null,0.04,0.04,0.04,0.04,0.04,0.04]
["Remote",null,0,0,0,0,0,0]
[]
["SP AusNet - North/East"]
["Urban",null,0.35,0.35,0.35,0.35,0.35,0.35]
["Rural",null,0.53,0.53,0.53,0.53,0.53,0.53]
["Remote",null,0.12,0.12,0.12,0.12,0.12,0.12]
[]
[]
[]
["Inputs - T5 (2 x 24W)"]
[]
["Depreciation period","years",20,{"$f":"C231","v":20},{"$f":"D231","v":20},{"$f":"E231","v":20},{"$f":"F231","v":20},{"$f":"G231","v":20}]
["Lamps - bulk change","years",4,4,4,4,4,4]
["PE cells - bulk change","years",8,8,8,8,8,8]
["Ballast unit life",null,20,{"$f":"C234","v":20},{"$f":"D234","v":20},20,20,20]
["Proportion of luminaires that fail between bulk change",null,0.114,0.41565636121546606,0.41565636121546606,0.41565636121546606,0.41565636121546606,0.41565636121546606]
["Unit cost - lamp",null,18.455939565627951,8.1,8.1,8.1,8.1,8.1]
["Unit cost - PE cell",null,23.403339749883791,15.120000000000001,15.120000000000001,15.120000000000001,15.120000000000001,15.120000000000001]
["Unit cost - luminaire",null,286.18776203966002,267.33,267.33,267.33,267.33,267.33]
["Unit cost - miscellaneous materials (bulk lamp)",null,1.3373336999933596,1.3476456706921032,1.3476456706921032,1.3476456706921032,1.3476456706921032,1.3476456706921032]
["Unit cost - miscellaneous materials (repair)",null,13.373336999933597,13.476456706921033,13.476456706921033,13.476456706921033,13.476456706921033,13.476456706921033]
["Number of men in crew",null,2,2,2,2,2,2]
["Number of bulk lamp changes in 1 day - urban",null,85,{"$f":"D193","v":73.92},{"$f":"E193","v":73.92},73.92,73.92,73.92]
["Number of bulk lamp changes in 1 day - rural",null,70,{"$f":"D194","v":61.44},61.44,61.44,61.44,61.44]
["Number of bulk lamp changes in 1 day - remote",null,50,{"$f":"D195","v":48.96},48.96,48.96,48.96,48.96]
["Number of repairs in 1 day - urban",null,20,{"$f":"D196","v":24.96},24.96,24.96,24.96,24.96]
["Number of repairs in 1 day - rural",null,15,{"$f":"D197","v":20.16},20.16,20.16,20.16,20.16]
["Number of repairs in 1 day - remote",null,10,{"$f":"D198","v":16.32},16.32,16.32,16.32,16.32]
["   % of repairs - lamps",null,0.6,0.6,0.6,0.6,0.6,0.6]
["   % of repairs - PE cells",null,0.5,0.5,0.5,0.5,0.5,0.5]
["   % of repairs - luminaires",null,0.15,0,0,0,0,0]
["   % of repairs - other",null,0.1,0.1,0.1,0.1,0.1,0.1]
[]
["Other Maintenance and Repair costs"]
["Traffic control costs",null,508.07466243803941,2938.9500000000003,2938.9500000000003,2938.9500000000003,2938.9500000000003,2938.9500000000003]
["Other costs : Describe…………………………………….",null,0,0,0,0,0,0]
[null,null,{"$f":"SUM(C254:C255)","v":508.07466243803941},{"$f":"SUM(D254:D255)","v":2938.9500000000003},2938.9500000000003,2938.9500000000003,2938.9500000000003,2938.9500000000003]
["Number of Lights",null,{"$f":"C256/C258","v":2575.3324079634708},{"$f":"SUM('DNSP Inputs General'!Q70,'DNSP Inputs General'!Q117)","v":2801},{"$f":"SUM('DNSP Inputs General'!R70,'DNSP Inputs General'!R117)","v":2801},{"$f":"SUM('DNSP Inputs General'!S70,'DNSP Inputs General'!S117)","v":2801},{"$f":"SUM('DNSP Inputs General'!T70,'DNSP Inputs General'!T117)","v":2801},{"$f":"SUM('DNSP Inputs General'!U70,'DNSP Inputs General'!U117)","v":2801}]
["Unit Cost",null,0.1972850808955634,{"$f":"D256/D257","v":1.0492502677615139},{"$f":"E256/E257","v":1.0492502677615139},{"$f":"F256/F257","v":1.0492502677615139},{"$f":"G256/G257","v":1.0492502677615139},{"$f":"H256/H257","v":1.0492502677615139}]
[]
["Other O & M costs specific to North/East zone"]
["Other N\\E O & M costs : Describe…………………………………….",null,67.3289113720313,1127,1127,1127,1127,1127]
["Number of Lights",null,{"$f":"C261/C263","v":253.9994247221656},{"$f":"'DNSP Inputs General'!Q117","v":1020},{"$f":"'DNSP Inputs General'!R117","v":1020},{"$f":"'DNSP Inputs General'!S117","v":1020},{"$f":"'DNSP Inputs General'!T117","v":1020},{"$f":"'DNSP Inputs General'!U117","v":1020}]
["Unit Cost",null,0.26507505458202618,{"$f":"D261/D262","v":1.1049019607843138},{"$f":"E261/E262","v":1.1049019607843138},{"$f":"F261/F262","v":1.1049019607843138},{"$f":"G261/G262","v":1.1049019607843138},{"$f":"H261/H262","v":1.1049019607843138}]
[]
["Location of selected public lighting assets within distributors' areas (%)"]
["SP AusNet - Central"]
["Urban",null,0.96,0.96,0.96,0.96,0.96,0.96]
["Rural",null,0.04,0.04,0.04,0.04,0.04,0.04]
["Remote",null,0,0,0,0,0,0]
[]
["SP AusNet - North/East"]
["Urban",null,0.35,0.35,0.35,0.35,0.35,0.35]
["Rural",null,0.53,0.53,0.53,0.53,0.53,0.53]
["Remote",null,0.12,0.12,0.12,0.12,0.12,0.12]
[]
[]
[]
[]
[]
["Inputs - LED 18W"]
[]
["Depreciation period","years",20,{"$f":"C282","v":20},{"$f":"D282","v":20},{"$f":"E282","v":20},{"$f":"F282","v":20},{"$f":"G282","v":20}]
["PE cells - bulk change","years",20,8,8,8,8,8]
["Proportion of PE cells that fail between PE cell bulk change",null,0.05,4.2746393209543501E-2,4.2746393209543501E-2,4.2746393209543501E-2,4.2746393209543501E-2,4.2746393209543501E-2]
["Unit cost - PE cell",null,39.290404590687878,15.120000000000001,15.120000000000001,15.120000000000001,15.120000000000001,15.120000000000001]
["Unit cost - luminaire",null,391.14159061523941,205,205,205,205,205]
["Unit cost - miscellaneous materials (repair)",null,23.011004175291369,23.188438424353883,23.188438424353883,23.188438424353883,23.188438424353883,23.188438424353883]
["Number of men in crew",null,2,2,2,2,2,2]
["Number of bulk PE cells changes in 1 day - urban",null,0,73.92,73.92,73.92,73.92,73.92]
["Number of bulk PE cells changes in 1 day - rural",null,0,61.44,61.44,61.44,61.44,61.44]
["Number of bulk PE cells changes in 1 day - remote",null,0,48.96,48.96,48.96,48.96,48.96]
["Number of repairs in 1 day - urban",null,20,24.96,24.96,24.96,24.96,24.96]
["Number of repairs in 1 day - rural",null,15,20.16,20.16,20.16,20.16,20.16]
["Number of repairs in 1 day - remote",null,10,16.32,16.32,16.32,16.32,16.32]
["   % of repairs - PE cells",null,0.5,0.9,0.9,0.9,0.9,0.9]
["   % of repairs - luminaires",null,0.15,0,0,0,0,0]
["   % of repairs - other",null,0.1,0.1,0.1,0.1,0.1,0.1]
[]
["Other Maintenance and Repair costs"]
["Traffic control costs",null,3120.1721052807725,{"$f":"D303*D304-D301","v":62921.808082659503},{"$f":"E303*E304-E301","v":72715.490874694005},82594.985442110366,92562.584793092072,96115.826373824253]
["Other costs : Describe…………………………………….",null,0,0,0,0,0,0]
[null,null,{"$f":"SUM(C300:C301)","v":3120.1721052807725},62921.808082659503,72715.490874694005,82594.985442110366,92562.584793092072,96115.826373824253]
["Number of Lights",null,{"$f":"C302/C304","v":13570.694263197212},{"$f":"SUM('DNSP Inputs General'!Q71,'DNSP Inputs General'!Q118)","v":59925.531507294763},{"$f":"SUM('DNSP Inputs General'!R71,'DNSP Inputs General'!R118)","v":69252.848452089529},{"$f":"SUM('DNSP Inputs General'!S71,'DNSP Inputs General'!S118)","v":78661.890897247969},{"$f":"SUM('DNSP Inputs General'!T71,'DNSP Inputs General'!T118)","v":88154.842660087685},{"$f":"SUM('DNSP Inputs General'!U71,'DNSP Inputs General'!U118)","v":91538.882260785002}]
["Unit Cost",null,0.22991985853977009,1.05,1.05,1.05,1.05,1.05]
[]
["Other O & M costs specific to North/East zone"]
["Other N\\E O & M costs : Describe…………………………………….",null,40.174401059670821,{"$f":"D308*D309","v":20743.818343496823},{"$f":"E308*E309","v":22702.549095142738},24678.57172717631,26672.272916967228,27498.595299771165]
["Number of Lights",null,{"$f":"C307/C309","v":151.55858827613312},{"$f":"'DNSP Inputs General'!Q118","v":21167.16157499676},{"$f":"'DNSP Inputs General'!R118","v":23165.86642361504},{"$f":"'DNSP Inputs General'!S118","v":25182.216048139089},{"$f":"'DNSP Inputs General'!T118","v":27216.605017313494},{"$f":"'DNSP Inputs General'!U118","v":28059.791122215476}]
["Unit Cost",null,0.26507505458202618,0.98,0.98,0.98000000000000009,0.98000000000000009,0.97999999999999987]
[]
[]
[]
["Location of selected public lighting assets within distributors' areas (%)"]
["SP AusNet - Central"]
["Urban",null,0.96,0.96,0.96,0.96,0.96,0.96]
["Rural",null,0.04,0.04,0.04,0.04,0.04,0.04]
["Remote",null,0,0,0,0,0,0]
[]
["SP AusNet - North/East"]
["Urban",null,0.35,0.35,0.35,0.35,0.35,0.35]
["Rural",null,0.53,0.53,0.53,0.53,0.53,0.53]
["Remote",null,0.12,0.12,0.12,0.12,0.12,0.12]
[]
[]
[]
["Inputs - LED 14W"]
[]
["Depreciation period",null,null,20,20,20,20,20]
["PE cells - bulk change",null,null,8,8,8,8,8]
["Proportion of PE cells that fail between PE cell bulk change",null,null,4.2746393209543501E-2,4.2746393209543501E-2,4.2746393209543501E-2,4.2746393209543501E-2,4.2746393209543501E-2]
["Unit cost - PE cell",null,null,15.120000000000001,15.120000000000001,15.120000000000001,15.120000000000001,15.120000000000001]
["Unit cost - luminaire",null,null,205,205,205,205,205]
["Unit cost - miscellaneous materials (repair)",null,null,23.188438424353883,23.188438424353883,23.188438424353883,23.188438424353883,23.188438424353883]
["Number of men in crew",null,null,2,2,2,2,2]
["Number of bulk PE cells changes in 1 day - urban",null,null,{"$f":"D289","v":73.92},{"$f":"E289","v":73.92},73.92,73.92,73.92]
["Number of bulk PE cells changes in 1 day - rural",null,null,{"$f":"D290","v":61.44},61.44,61.44,61.44,61.44]
["Number of bulk PE cells changes in 1 day - remote",null,null,{"$f":"D291","v":48.96},48.96,48.96,48.96,48.96]
["Number of repairs in 1 day - urban",null,null,{"$f":"D292","v":24.96},24.96,24.96,24.96,24.96]
["Number of repairs in 1 day - rural",null,null,{"$f":"D293","v":20.16},20.16,20.16,20.16,20.16]
["Number of repairs in 1 day - remote",null,null,{"$f":"D294","v":16.32},16.32,16.32,16.32,16.32]
["   % of repairs - PE cells",null,null,0.9,0.9,0.9,0.9,0.9]
["   % of repairs - luminaires",null,null,0,0,0,0,0]
["   % of repairs - other",null,null,0.1,0.1,0.1,0.1,0.1]
[]
["Other Maintenance and Repair costs"]
["Traffic control costs",null,null,{"$f":"D350*D349-D347","v":5727.261772853185},{"$f":"E350*E349-E347","v":5727.261772853185},5727.261772853185,5727.261772853185,5727.261772853185]
["Other costs : Describe…………………………………….",null,null,0.5,0.5,0.5,0.5,0.5]
[null,null,null,{"$f":"SUM(D346:D347)","v":5727.761772853185},{"$f":"SUM(E346:E347)","v":5727.761772853185},5727.761772853185,5727.761772853185,5727.761772853185]
["Number of Lights",null,null,{"$f":"SUM('DNSP Inputs General'!Q72,'DNSP Inputs General'!Q119)","v":3695},{"$f":"SUM('DNSP Inputs General'!R72,'DNSP Inputs General'!R119)","v":3695},{"$f":"SUM('DNSP Inputs General'!S72,'DNSP Inputs General'!S119)","v":3695},{"$f":"SUM('DNSP Inputs General'!T72,'DNSP Inputs General'!T119)","v":3695},{"$f":"SUM('DNSP Inputs General'!U72,'DNSP Inputs General'!U119)","v":3695}]
["Unit Cost",null,null,1.5501385041551246,1.5501385041551246,1.5501385041551246,1.5501385041551246,1.5501385041551246]
[]
["Other O & M costs specific to North/East zone"]
["Other N\\E O & M costs: additional travel related expenses.",null,null,{"$f":"D354*D355","v":943.62555355063},{"$f":"E354*E355","v":943.62555355063},943.62555355063012,943.62555355063012,943.62555355062989]
["Number of Lights",null,null,{"$f":"'DNSP Inputs General'!Q119","v":962.88321790880616},{"$f":"'DNSP Inputs General'!R119","v":962.88321790880616},{"$f":"'DNSP Inputs General'!S119","v":962.88321790880616},{"$f":"'DNSP Inputs General'!T119","v":962.88321790880616},{"$f":"'DNSP Inputs General'!U119","v":962.88321790880616}]
["Unit Cost",null,null,0.98,0.98,0.98000000000000009,0.98000000000000009,0.97999999999999987]
[]
[]
[]
["Location of selected public lighting assets within distributors' areas (%)"]
["SP AusNet - Central"]
["Urban",null,null,0.96,0.96,0.96,0.96,0.96]
["Rural",null,null,0.04,0.04,0.04,0.04,0.04]
["Remote",null,null,0,0,0,0,0]
[]
["SP AusNet - North/East"]
["Urban",null,null,0.35,0.35,0.35,0.35,0.35]
["Rural",null,null,0.53,0.53,0.53,0.53,0.53]
["Remote",null,null,0.12,0.12,0.12,0.12,0.12]
[]
[]
[]
["Inputs - LED 70W (L1)"]
[]
["Depreciation period",null,null,20,20,20,20,20]
["Number of patrols per year",null,null,3,3,3,3,3]
["PE cells - frequency of replacement",null,null,10,10,10,10,10]
["Unit cost - PE cell",null,null,15.120000000000001,15.120000000000001,15.120000000000001,15.120000000000001,15.120000000000001]
["Unit cost - luminaire",null,null,402,402,402,402,402]
["Unit cost - miscellaneous materials (repair)",null,null,23.188438424353883,23.188438424353883,23.188438424353883,23.188438424353883,23.188438424353883]
["Number of men in crew",null,null,2,2,2,2,2]
["Number of lamps patrolled in 1 day - urban",null,null,3000,3000,3000,3000,3000]
["Number of lamps patrolled in 1 day - rural",null,null,2000,2000,2000,2000,2000]
["Number of lamps patrolled in 1 day - remote",null,null,1000,1000,1000,1000,1000]
["Number of repairs in 1 day - urban",null,null,19,19,19,19,19]
["Number of repairs in 1 day - rural",null,null,15,15,15,15,15]
["Number of repairs in 1 day - remote",null,null,11,11,11,11,11]
["   % of repairs - PE cells",null,null,0.9,0.9,0.9,0.9,0.9]
["   % of repairs - luminaires",null,null,0,0,0,0,0]
["   % of repairs - other",null,null,0.1,0.1,0.1,0.1,0.1]
[]
["Other Maintenance and Repair costs"]
["Traffic control costs",null,null,{"$f":"D395*D396-D393","v":6608.5507617211215},{"$f":"E395*E396-E393","v":6650.0022000589161},7528.0479326082914,7525.9787674597419,7133.7236087533565]
["Other costs : Describe…………………………………….",null,null,0,0,0,0,0]
[null,null,null,{"$f":"SUM(D392:D393)","v":6608.5507617211215},{"$f":"SUM(E392:E393)","v":6650.0022000589161},7528.0479326082914,7525.9787674597419,7133.7236087533565]
["Number of Lights",null,null,{"$f":"SUM('DNSP Inputs General'!Q73,'DNSP Inputs General'!Q120)","v":3146.9289341529147},{"$f":"SUM('DNSP Inputs General'!R73,'DNSP Inputs General'!R120)","v":3166.6677143137695},{"$f":"SUM('DNSP Inputs General'!S73,'DNSP Inputs General'!S120)","v":3584.784729813472},{"$f":"SUM('DNSP Inputs General'!T73,'DNSP Inputs General'!T120)","v":3583.7994130760676},{"$f":"SUM('DNSP Inputs General'!U73,'DNSP Inputs General'!U120)","v":3397.0112422635029}]
["Unit Cost",null,null,2.1,2.1,2.1,2.1,2.1]
[]
["Other O & M costs specific to North/East zone"]
["Other N\\E O & M costs: additional travel related expenses.",null,null,{"$f":"D400*D401","v":667.96685754813586},{"$f":"E400*E401","v":675.96835765245032},717.65380650387954,725.7429279922867,699.53959057475026]
["Number of Lights",null,null,{"$f":"'DNSP Inputs General'!Q120","v":681.59883423279166},{"$f":"'DNSP Inputs General'!R120","v":689.76363025760236},{"$f":"'DNSP Inputs General'!S120","v":732.29980255497924},{"$f":"'DNSP Inputs General'!T120","v":740.55400815539451},{"$f":"'DNSP Inputs General'!U120","v":713.81590874974506}]
["Unit Cost",null,null,0.98,0.98,0.97999999999999987,0.98000000000000009,0.98000000000000009]
[]
[]
[]
["Location of selected public lighting assets within distributors' areas (%)"]
["SP AusNet - Central"]
["Urban",null,null,0.96,0.96,0.96,0.96,0.96]
["Rural",null,null,0.04,0.04,0.04,0.04,0.04]
["Remote",null,null,0,0,0,0,0]
[]
["SP AusNet - North/East"]
["Urban",null,null,0.35,0.35,0.35,0.35,0.35]
["Rural",null,null,0.53,0.53,0.53,0.53,0.53]
["Remote",null,null,0.12,0.12,0.12,0.12,0.12]
[]
[]
[]
["Inputs - LED 155W (L2)"]
[]
["Depreciation period",null,null,20,20,20,20,20]
["Number of patrols per year",null,null,3,3,3,3,3]
["PE cells - frequency of replacement",null,null,10,10,10,10,10]
["Unit cost - PE cell",null,null,15.120000000000001,15.120000000000001,15.120000000000001,15.120000000000001,15.120000000000001]
["Unit cost - luminaire",null,null,427,427,427,427,427]
["Unit cost - miscellaneous materials (repair)",null,null,23.188438424353883,23.188438424353883,23.188438424353883,23.188438424353883,23.188438424353883]
["Number of men in crew",null,null,2,2,2,2,2]
["Number of lamps patrolled in 1 day - urban",null,null,3000,3000,3000,3000,3000]
["Number of lamps patrolled in 1 day - rural",null,null,2000,2000,2000,2000,2000]
["Number of lamps patrolled in 1 day - remote",null,null,1000,1000,1000,1000,1000]
["Number of repairs in 1 day - urban",null,null,19,19,19,19,19]
["Number of repairs in 1 day - rural",null,null,15,15,15,15,15]
["Number of repairs in 1 day - remote",null,null,11,11,11,11,11]
["   % of repairs - PE cells",null,null,0.9,0.9,0.9,0.9,0.9]
["   % of repairs - luminaires",null,null,0,0,0,0,0]
["   % of repairs - other",null,null,0.1,0.1,0.1,0.1,0.1]
[]
["Other Maintenance and Repair costs"]
["Traffic control costs",null,null,{"$f":"D441*D442-D439","v":7305.7127196298597},{"$f":"E441*E442-E439","v":9068.9267564521106},10660.939335094497,11389.065144874592,11300.383901878828]
["Other costs : Describe…………………………………….",null,null,0,0,0,0,0]
[null,null,null,{"$f":"SUM(D438:D439)","v":7305.7127196298597},{"$f":"SUM(E438:E439)","v":9068.9267564521106},10660.939335094497,11389.065144874592,11300.383901878828]
["Number of Lights",null,null,{"$f":"SUM('DNSP Inputs General'!Q74,'DNSP Inputs General'!Q121)","v":3478.9108188713617},{"$f":"SUM('DNSP Inputs General'!R74,'DNSP Inputs General'!R121)","v":4318.5365506914814},{"$f":"SUM('DNSP Inputs General'!S74,'DNSP Inputs General'!S121)","v":5076.6377786164276},{"$f":"SUM('DNSP Inputs General'!T74,'DNSP Inputs General'!T121)","v":5423.3643547021866},{"$f":"SUM('DNSP Inputs General'!U74,'DNSP Inputs General'!U121)","v":5381.1351913708704}]
["Unit Cost",null,null,2.1,2.1,2.1,2.1,2.1]
[]
["Other O & M costs specific to North/East zone"]
["Other N\\E O & M costs: additional travel related expenses.",null,null,{"$f":"D446*D447","v":993.43100032830944},{"$f":"E446*E447","v":1354.6502622210617},1657.1037504520725,1808.8200183671711,1818.4309004624695]
["Number of Lights",null,null,{"$f":"'DNSP Inputs General'!Q121","v":1013.705102375826},{"$f":"'DNSP Inputs General'!R121","v":1382.296185939859},{"$f":"'DNSP Inputs General'!S121","v":1690.9221943388495},{"$f":"'DNSP Inputs General'!T121","v":1845.7347126195623},{"$f":"'DNSP Inputs General'!U121","v":1855.5417351657852}]
["Unit Cost",null,null,0.98,0.97999999999999987,0.98,0.98,0.98]
[]
[]
[]
["Location of selected public lighting assets within distributors' areas (%)"]
["SP AusNet - Central"]
["Urban",null,null,0.96,0.96,0.96,0.96,0.96]
["Rural",null,null,0.04,0.04,0.04,0.04,0.04]
["Remote",null,null,0,0,0,0,0]
[]
["SP AusNet - North/East"]
["Urban",null,null,0.35,0.35,0.35,0.35,0.35]
["Rural",null,null,0.53,0.53,0.53,0.53,0.53]
["Remote",null,null,0.12,0.12,0.12,0.12,0.12]
[]
[]
[]
["Inputs - LED 275W (L4)"]
[]
["Depreciation period",null,null,20,20,20,20,20]
["Number of patrols per year",null,null,3,3,3,3,3]
["PE cells - frequency of replacement",null,null,10,10,10,10,10]
["Unit cost - PE cell",null,null,15.120000000000001,15.120000000000001,15.120000000000001,15.120000000000001,15.120000000000001]
["Unit cost - luminaire",null,null,650.88,650.88,650.88,650.88,650.88]
["Unit cost - miscellaneous materials (repair)",null,null,23.188438424353883,23.188438424353883,23.188438424353883,23.188438424353883,23.188438424353883]
["Number of men in crew",null,null,2,2,2,2,2]
["Number of lamps patrolled in 1 day - urban",null,null,3000,3000,3000,3000,3000]
["Number of lamps patrolled in 1 day - rural",null,null,2000,2000,2000,2000,2000]
["Number of lamps patrolled in 1 day - remote",null,null,1000,1000,1000,1000,1000]
["Number of repairs in 1 day - urban",null,null,19,19,19,19,19]
["Number of repairs in 1 day - rural",null,null,15,15,15,15,15]
["Number of repairs in 1 day - remote",null,null,11,11,11,11,11]
["   % of repairs - PE cells",null,null,0.9,0.9,0.9,0.9,0.9]
["   % of repairs - luminaires",null,null,0,0,0,0,0]
["   % of repairs - other",null,null,0.1,0.1,0.1,0.1,0.1]
[]
["Other Maintenance and Repair costs"]
["Traffic control costs",null,null,{"$f":"D487*D488-D485","v":477.10687728187031},{"$f":"E487*E488-E485","v":536.51851365472248},606.38908777231484,638.41437946270628,577.64357657245057]
["Other costs : Describe…………………………………….",null,null,0,0,0,0,0]
[null,null,null,{"$f":"SUM(D484:D485)","v":477.10687728187031},{"$f":"SUM(E484:E485)","v":536.51851365472248},606.38908777231484,638.41437946270628,577.64357657245057]
["Number of Lights",null,null,{"$f":"SUM('DNSP Inputs General'!Q75,'DNSP Inputs General'!Q122)","v":227.19375108660489},{"$f":"SUM('DNSP Inputs General'!R75,'DNSP Inputs General'!R122)","v":255.48500650224881},{"$f":"SUM('DNSP Inputs General'!S75,'DNSP Inputs General'!S122)","v":288.75670846300704},{"$f":"SUM('DNSP Inputs General'!T75,'DNSP Inputs General'!T122)","v":304.00684736319346},{"$f":"SUM('DNSP Inputs General'!U75,'DNSP Inputs General'!U122)","v":275.06836979640502}]
["Unit Cost",null,null,2.1,2.1,2.1,2.1,2.1]
[]
["Other O & M costs specific to North/East zone"]
["Other N\\E O & M costs: additional travel related expenses.",null,null,{"$f":"D492*D493","v":105.64744445864784},{"$f":"E492*E493","v":116.01323290484309},129.32766054944764,134.92015782907023,121.53440747007217]
["Number of Lights",null,null,{"$f":"'DNSP Inputs General'!Q122","v":107.80351475372228},{"$f":"'DNSP Inputs General'!R122","v":118.38084990290113},{"$f":"'DNSP Inputs General'!S122","v":131.96700056066086},{"$f":"'DNSP Inputs General'!T122","v":137.67363043782677},{"$f":"'DNSP Inputs General'!U122","v":124.01470150007364}]
["Unit Cost",null,null,0.98,0.97999999999999987,0.98,0.98,0.98]
[]
[]
[]
["Location of selected public lighting assets within distributors' areas (%)"]
["SP AusNet - Central"]
["Urban",null,null,0.96,0.96,0.96,0.96,0.96]
["Rural",null,null,0.04,0.04,0.04,0.04,0.04]
["Remote",null,null,0,0,0,0,0]
[]
["SP AusNet - North/East"]
["Urban",null,null,0.35,0.35,0.35,0.35,0.35]
["Rural",null,null,0.53,0.53,0.53,0.53,0.53]
["Remote",null,null,0.12,0.12,0.12,0.12,0.12]
[]
[]
[]
["NEW"]
["Inputs - Smart lighting L1"]
[]
["Depreciation period",null,null,20,20,20,20,20]
["Number of patrols per year",null,null,3,3,3,3,3]
["PE cells - frequency of replacement",null,null,10,10,10,10,10]
["Unit cost - PE cell",null,null,114.023,114.023,114.023,114.023,114.023]
["Unit cost - luminaire",null,null,402,402,402,402,402]
["Unit cost - miscellaneous materials (repair)",null,null,23.188438424353883,23.188438424353883,23.188438424353883,23.188438424353883,23.188438424353883]
["Number of men in crew",null,null,2,2,2,2,2]
["Number of lamps patrolled in 1 day - urban",null,null,3000,3000,3000,3000,3000]
["Number of lamps patrolled in 1 day - rural",null,null,2000,2000,2000,2000,2000]
["Number of lamps patrolled in 1 day - remote",null,null,1000,1000,1000,1000,1000]
["Number of repairs in 1 day - urban",null,null,15,15,15,15,15]
["Number of repairs in 1 day - rural",null,null,11,11,11,11,11]
["Number of repairs in 1 day - remote",null,null,9,9,9,9,9]
["   % of repairs - PE cells",null,null,0.9,0.9,0.9,0.9,0.9]
["   % of repairs - luminaires",null,null,0,0,0,0,0]
["   % of repairs - other",null,null,0.1,0.1,0.1,0.1,0.1]
[]
["Other Maintenance and Repair costs"]
["Traffic control costs",null,null,{"$f":"D534*D535-D532","v":11.420276224},{"$f":"E534*E535-E532","v":4466.9949560857467},8677.2516525666542,13494.196152000592,19174.707974973287]
["UIQ Software as a cost plus AusNet's IT software costs",null,null,7.2202762240000009,2824.1819060710177,5486.0453957345308,8531.4769736940962,12122.884366219938]
[null,null,null,{"$f":"SUM(D531:D532)","v":18.640552448000001},{"$f":"SUM(E531:E532)","v":7291.1768621567644},14163.297048301185,22025.673125694688,31297.592341193224]
["Number of Lights",null,null,{"$f":"SUM('DNSP Inputs General'!Q78,'DNSP Inputs General'!Q125)","v":2},{"$f":"SUM('DNSP Inputs General'!R78,'DNSP Inputs General'!R125,)","v":782.29192857844248},{"$f":"SUM('DNSP Inputs General'!S78,'DNSP Inputs General'!S125,)","v":1519.6220270629165},{"$f":"SUM('DNSP Inputs General'!T78,'DNSP Inputs General'!T125,)","v":2363.1996087173784},{"$f":"SUM('DNSP Inputs General'!U78,'DNSP Inputs General'!U125,)","v":3358.0112422635025}]
["Unit Cost",null,null,9.3202762240000006,9.3202762240000006,9.3202762240000006,9.3202762240000006,9.3202762240000006]
[]
["Other O & M costs specific to North/East zone"]
["Other N\\E O & M costs: additional travel related expenses.",null,null,{"$f":"D539*D540","v":0.98},{"$f":"E539*E540","v":166.19441806561659},302.57806872784136,476.06974345780225,687.901277769167]
["Number of Lights",null,null,{"$f":"'DNSP Inputs General'!Q125","v":1},{"$f":"'DNSP Inputs General'!R125","v":169.58614088328227},{"$f":"'DNSP Inputs General'!S125","v":308.75313135494014},{"$f":"'DNSP Inputs General'!T125","v":485.78545250796151},{"$f":"'DNSP Inputs General'!U125","v":701.94007935629281}]
["Unit Cost",null,null,0.98,0.97999999999999987,0.98,0.98,0.98]
[]
[]
[]
["Location of selected public lighting assets within distributors' areas (%)"]
["SP AusNet - Central"]
["Urban",null,null,0.96,0.96,0.96,0.96,0.96]
["Rural",null,null,0.04,0.04,0.04,0.04,0.04]
["Remote",null,null,0,0,0,0,0]
[]
["SP AusNet - North/East"]
["Urban",null,null,0.35,0.35,0.35,0.35,0.35]
["Rural",null,null,0.53,0.53,0.53,0.53,0.53]
["Remote",null,null,0.12,0.12,0.12,0.12,0.12]
[]
["Inputs - Smart lighting L2"]
[]
["Depreciation period",null,null,20,20,20,20,20]
["Number of patrols per year",null,null,3,3,3,3,3]
["PE cells - frequency of replacement",null,null,10,10,10,10,10]
["Unit cost - PE cell",null,null,114.023,114.023,114.023,114.023,114.023]
["Unit cost - luminaire",null,null,427,427,427,427,427]
["Unit cost - miscellaneous materials (repair)",null,null,23.188438424353883,23.188438424353883,23.188438424353883,23.188438424353883,23.188438424353883]
["Number of men in crew",null,null,2,2,2,2,2]
["Number of lamps patrolled in 1 day - urban",null,null,3000,3000,3000,3000,3000]
["Number of lamps patrolled in 1 day - rural",null,null,2000,2000,2000,2000,2000]
["Number of lamps patrolled in 1 day - remote",null,null,1000,1000,1000,1000,1000]
["Number of repairs in 1 day - urban",null,null,15,15,15,15,15]
["Number of repairs in 1 day - rural",null,null,11,11,11,11,11]
["Number of repairs in 1 day - remote",null,null,9,9,9,9,9]
["   % of repairs - PE cells",null,null,0.9,0.9,0.9,0.9,0.9]
["   % of repairs - luminaires",null,null,0,0,0,0,0]
["   % of repairs - other",null,null,0.1,0.1,0.1,0.1,0.1]
[]
["Other Maintenance and Repair costs"]
["Traffic control costs",null,null,{"$f":"D578*D579-D576","v":34.260828672000002},{"$f":"E578*E579-E576","v":6159.8636656941135},{"$f":"F578*F579-F576","v":12408.875156496295},{"$f":"G578*G579-G576","v":20622.599112250165},{"$f":"H578*H579-H576","v":30692.764313399224}]
["UIQ Software as a cost plus AusNet's IT software costs",null,null,21.660828672000001,3894.4694765810846,7845.3011557415084,13038.289015667104,19404.980411520395]
[null,null,null,{"$f":"SUM(D575:D576)","v":55.921657344000003},{"$f":"SUM(E575:E576)","v":10054.333142275198},20254.176312237803,33660.888127917271,50097.744724919619]
["Number of Lights",null,null,{"$f":"SUM('DNSP Inputs General'!Q79,'DNSP Inputs General'!Q126)","v":6},{"$f":"SUM('DNSP Inputs General'!R79,'DNSP Inputs General'!R126)","v":1078.7591376728703},{"$f":"SUM('DNSP Inputs General'!S79,'DNSP Inputs General'!S126)","v":2173.1304765498976},{"$f":"SUM('DNSP Inputs General'!T79,'DNSP Inputs General'!T126)","v":3611.576236468125},{"$f":"SUM('DNSP Inputs General'!U79,'DNSP Inputs General'!U126)","v":5375.1351913708704}]
["Unit Cost",null,null,9.3202762240000006,9.3202762240000023,9.3202762240000023,9.3202762240000006,9.3202762240000006]
[]
["Other O & M costs specific to North/East zone"]
["Other N\\E O & M costs: additional travel related expenses.",null,null,{"$f":"D583*D584","v":2.94},{"$f":"E583*E584","v":338.40144956283245},709.41996033843225,1204.6863391365159,1816.6403908000721]
["Number of Lights",null,null,{"$f":"'DNSP Inputs General'!Q126","v":3},{"$f":"'DNSP Inputs General'!R126","v":345.30760159472703},{"$f":"'DNSP Inputs General'!S126","v":723.89791871268596},{"$f":"'DNSP Inputs General'!T126","v":1229.271774629098},{"$f":"'DNSP Inputs General'!U126","v":1853.7146844898696}]
["Unit Cost",null,null,0.98,0.97999999999999987,0.98,0.98,0.98]
[]
[]
[]
["Location of selected public lighting assets within distributors' areas (%)"]
["SP AusNet - Central"]
["Urban",null,null,0.96,0.96,0.96,0.96,0.96]
["Rural",null,null,0.04,0.04,0.04,0.04,0.04]
["Remote",null,null,0,0,0,0,0]
[]
["SP AusNet - North/East"]
["Urban",null,null,0.35,0.35,0.35,0.35,0.35]
["Rural",null,null,0.53,0.53,0.53,0.53,0.53]
["Remote",null,null,0.12,0.12,0.12,0.12,0.12]
[]
["Inputs - Smart lighting L4"]
[]
["Depreciation period",null,null,20,20,20,20,20]
["Number of patrols per year",null,null,3,3,3,3,3]
["PE cells - frequency of replacement",null,null,10,10,10,10,10]
["Unit cost - PE cell",null,null,114.023,114.023,114.023,114.023,114.023]
["Unit cost - luminaire",null,null,650.88,650.88,650.88,650.88,650.88]
["Unit cost - miscellaneous materials (repair)",null,null,23.188438424353883,23.188438424353883,23.188438424353883,23.188438424353883,23.188438424353883]
["Number of men in crew",null,null,2,2,2,2,2]
["Number of lamps patrolled in 1 day - urban",null,null,3000,3000,3000,3000,3000]
["Number of lamps patrolled in 1 day - rural",null,null,2000,2000,2000,2000,2000]
["Number of lamps patrolled in 1 day - remote",null,null,1000,1000,1000,1000,1000]
["Number of repairs in 1 day - urban",null,null,15,15,15,15,15]
["Number of repairs in 1 day - rural",null,null,11,11,11,11,11]
["Number of repairs in 1 day - remote",null,null,9,9,9,9,9]
["   % of repairs - PE cells",null,null,0.9,0.9,0.9,0.9,0.9]
["   % of repairs - luminaires",null,null,0,0,0,0,0]
["   % of repairs - other",null,null,0.1,0.1,0.1,0.1,0.1]
[]
["Other Maintenance and Repair costs"]
["Traffic control costs",null,null,{"$f":"D622*D623-D620","v":11.420276224},{"$f":"E622*E623-E620","v":364.71366816826469},{"$f":"F622*F623-F620","v":706.64600832440988},{"$f":"G622*G623-G620","v":1157.2807236250253},{"$f":"H622*H623-H620","v":1570.678381780162}]
["UIQ Software as a cost plus AusNet's IT software costs",null,null,7.2202762240000009,230.5840397545841,446.76497070770347,731.67113731655445,993.03480520771154]
[null,null,null,{"$f":"SUM(D619:D620)","v":18.640552448000001},{"$f":"SUM(E619:E620)","v":595.29770792284876},1153.4109790321133,1888.9518609415798,2563.7131869878735]
["Number of Lights",null,null,{"$f":"SUM('DNSP Inputs General'!Q80,'DNSP Inputs General'!Q127)","v":2},{"$f":"SUM('DNSP Inputs General'!R80,'DNSP Inputs General'!R127)","v":63.871251625562202},{"$f":"SUM('DNSP Inputs General'!S80,'DNSP Inputs General'!S127)","v":123.75287505557444},{"$f":"SUM('DNSP Inputs General'!T80,'DNSP Inputs General'!T127)","v":202.67123157546234},{"$f":"SUM('DNSP Inputs General'!U80,'DNSP Inputs General'!U127)","v":275.06836979640502}]
["Unit Cost",null,null,9.3202762240000006,9.3202762240000006,9.3202762240000023,9.3202762240000006,9.3202762240000006]
[]
["Other O & M costs specific to North/East zone"]
["Other N\\E O & M costs: additional travel related expenses.",null,null,{"$f":"D627*D628","v":0.98},{"$f":"E627*E628","v":29.003308226210773},55.426140235477554,89.946771886046847,121.53440747007217]
["Number of Lights",null,null,{"$f":"'DNSP Inputs General'!Q127","v":1},{"$f":"'DNSP Inputs General'!R127","v":29.595212475725283},{"$f":"'DNSP Inputs General'!S127","v":56.557285954568933},{"$f":"'DNSP Inputs General'!T127","v":91.782420291884534},{"$f":"'DNSP Inputs General'!U127","v":124.01470150007364}]
["Unit Cost",null,null,0.98,0.97999999999999987,0.98,0.98,0.98]
[]
[]
[]
["Location of selected public lighting assets within distributors' areas (%)"]
["SP AusNet - Central"]
["Urban",null,null,0.96,0.96,0.96,0.96,0.96]
["Rural",null,null,0.04,0.04,0.04,0.04,0.04]
["Remote",null,null,0,0,0,0,0]
[]
["SP AusNet - North/East"]
["Urban",null,null,0.35,0.35,0.35,0.35,0.35]
["Rural",null,null,0.53,0.53,0.53,0.53,0.53]
["Remote",null,null,0.12,0.12,0.12,0.12,0.12]

{"sheet":"DNSP Inputs Capex","index":4,"n_rows":270,"n_cols":14,"rows_kept":270,"cut":false,"hidden":false,"merged":[[4,2,4,7],[2,2,2,7]]}
["Public Lighting Cost Build-up Model"]
[]
[{"$f":"'DNSP Inputs O & M'!$A$3","v":"AusNet"},null,"Capex Data Inputs"]
[]
[null,null,"Real 2021 $ "]
[]
["Input parameters",null,{"$f":"'DNSP Inputs General'!P2","v":"HY2021"},{"$f":"'DNSP Inputs General'!Q2","v":"2022-06-30"},{"$f":"'DNSP Inputs General'!R2","v":"2023-06-30"},{"$f":"'DNSP Inputs General'!S2","v":"2024-06-30"},{"$f":"'DNSP Inputs General'!T2","v":"2025-06-30"},{"$f":"'DNSP Inputs General'!U2","v":"2026-06-30"}]
[]
["Inputs - all lamps"]
[]
["Material premium for rural areas",null,{"$f":"'DNSP Inputs O & M'!C11","v":0.05},{"$f":"'DNSP Inputs O & M'!D11","v":0.05},{"$f":"'DNSP Inputs O & M'!E11","v":0.05},{"$f":"'DNSP Inputs O & M'!F11","v":0.05},{"$f":"'DNSP Inputs O & M'!G11","v":0.05},{"$f":"'DNSP Inputs O & M'!H11","v":0.05}]
["Labour rate (per hour)",null,{"$f":"'DNSP Inputs O & M'!C12","v":105.14613928035978},{"$f":"'DNSP Inputs O & M'!D12","v":111.36223236834823},{"$f":"'DNSP Inputs O & M'!E12","v":112.10021456669011},{"$f":"'DNSP Inputs O & M'!F12","v":112.78304720629164},{"$f":"'DNSP Inputs O & M'!G12","v":113.60949069043043},{"$f":"'DNSP Inputs O & M'!H12","v":114.68985653357629}]
["Elevated platform vehicle (per hour) - urban MV,urban T5",null,{"$f":"'DNSP Inputs O & M'!C14","v":49.790457219554725},{"$f":"'DNSP Inputs O & M'!D14","v":50.18},{"$f":"'DNSP Inputs O & M'!E14","v":50.18},{"$f":"'DNSP Inputs O & M'!F14","v":50.18},{"$f":"'DNSP Inputs O & M'!G14","v":50.18},{"$f":"'DNSP Inputs O & M'!H14","v":50.18}]
["Elevated platform vehicle (per hour) - rural MV, rural T5, S-HP",null,{"$f":"'DNSP Inputs O & M'!C15","v":89.971356195735396},{"$f":"'DNSP Inputs O & M'!D15","v":63.64},{"$f":"'DNSP Inputs O & M'!E15","v":63.64},{"$f":"'DNSP Inputs O & M'!F15","v":63.64},{"$f":"'DNSP Inputs O & M'!G15","v":63.64},{"$f":"'DNSP Inputs O & M'!H15","v":63.64}]
["Number of hours in a day",null,{"$f":"'DNSP Inputs O & M'!C17","v":8},{"$f":"'DNSP Inputs O & M'!D17","v":7.5},{"$f":"'DNSP Inputs O & M'!E17","v":7.5},{"$f":"'DNSP Inputs O & M'!F17","v":7.5},{"$f":"'DNSP Inputs O & M'!G17","v":7.5},{"$f":"'DNSP Inputs O & M'!H17","v":7.5}]
[]
[]
[]
["Inputs - MV80"]
[]
["Unit cost - luminaire",null,{"$f":"'DNSP Inputs O & M'!C30","v":212.03482530689328},{"$f":"'DNSP Inputs O & M'!D30","v":205},{"$f":"'DNSP Inputs O & M'!E30","v":205},{"$f":"'DNSP Inputs O & M'!F30","v":205},{"$f":"'DNSP Inputs O & M'!G30","v":205},{"$f":"'DNSP Inputs O & M'!H30","v":205}]
["Unit cost - miscellaneous materials (bulk lamp)",null,{"$f":"'DNSP Inputs O & M'!C31","v":1.3373336999933596},{"$f":"'DNSP Inputs O & M'!D31","v":1.3476456706921032},{"$f":"'DNSP Inputs O & M'!E31","v":1.3476456706921032},{"$f":"'DNSP Inputs O & M'!F31","v":1.3476456706921032},{"$f":"'DNSP Inputs O & M'!G31","v":1.3476456706921032},{"$f":"'DNSP Inputs O & M'!H31","v":1.3476456706921032}]
["Number of men in crew",null,{"$f":"'DNSP Inputs O & M'!C33","v":2},{"$f":"'DNSP Inputs O & M'!D33","v":2},{"$f":"'DNSP Inputs O & M'!E33","v":2},{"$f":"'DNSP Inputs O & M'!F33","v":2},{"$f":"'DNSP Inputs O & M'!G33","v":2},{"$f":"'DNSP Inputs O & M'!H33","v":2}]
["Number of luminaires replaced per day - urban",null,16,16,16,16,16,16]
["Number of luminaires replaced per day - rural",null,13,13,13,13,13,13]
["Number of luminaires replaced per day - remote",null,10,10,10,10,10,10]
[]
["Other Capex unit costs Describe :………………………",null,0,0,0,0,0,0]
[]
["Forecast Quantities to be replaced"]
["Number of luminaires replaced per year - urban",null,749.91144070326982,0,0,0,0,0]
["Number of luminaires replaced per year - rural",null,189.40010790269483,0,0,0,0,0]
["Number of luminaires replaced per year - remote",null,36.821579456375801,0,0,0,0,0]
[]
["MV80 Lights replaced with T5 Energy Efficient Lights"]
["Number of Lights MV80 replaced with T5 per year"]
["SP AusNet - Central",null,1500,0,0,0,0,0]
["SP AusNet - North/East",null,500,0,0,0,0,0]
[]
[]
[]
["Inputs - S-HP150"]
[]
["Unit cost - luminaire",null,264.8350519357885,234.07,234.07,234.07,234.07,234.07]
["Unit cost - miscellaneous materials",null,{"$f":"'DNSP Inputs O & M'!C78","v":2.6746673999867192},{"$f":"'DNSP Inputs O & M'!D78","v":2.6952913413842063},{"$f":"'DNSP Inputs O & M'!E78","v":2.6952913413842063},{"$f":"'DNSP Inputs O & M'!F78","v":2.6952913413842063},{"$f":"'DNSP Inputs O & M'!G78","v":2.6952913413842063},{"$f":"'DNSP Inputs O & M'!H78","v":2.6952913413842063}]
["Number of men in crew",null,{"$f":"'DNSP Inputs O & M'!C80","v":2},{"$f":"'DNSP Inputs O & M'!D80","v":2},{"$f":"'DNSP Inputs O & M'!E80","v":2},{"$f":"'DNSP Inputs O & M'!F80","v":2},{"$f":"'DNSP Inputs O & M'!G80","v":2},{"$f":"'DNSP Inputs O & M'!H80","v":2}]
["Number of luminaires replaced per day - urban",null,16,16,16,16,16,16]
["Number of luminaires replaced per day - rural",null,13,13,13,13,13,13]
["Number of luminaires replaced per day - remote",null,10,10,10,10,10,10]
[]
["Other Capex unit costs Describe :………………………",null,0,0,0,0,0,0]
[]
["Forecast Quantities to be replaced"]
["Number of luminaires replaced per year - urban",null,335.20457322655596,0,0,0,0,0]
["Number of luminaires replaced per year - rural",null,94.522512308131667,0,0,0,0,0]
["Number of luminaires replaced per day - remote",null,8.3798713032454337,0,0,0,0,0]
[]
[]
[]
["Inputs - S-HP250"]
[]
["Unit cost - luminaire",null,271.7697450424929,240.18,240.18,240.18,240.18,240.18]
["Unit cost - miscellaneous materials",null,{"$f":"'DNSP Inputs O & M'!C121","v":2.6746673999867192},{"$f":"'DNSP Inputs O & M'!D121","v":2.548069545426245},{"$f":"'DNSP Inputs O & M'!E121","v":2.548069545426245},{"$f":"'DNSP Inputs O & M'!F121","v":2.548069545426245},{"$f":"'DNSP Inputs O & M'!G121","v":2.548069545426245},{"$f":"'DNSP Inputs O & M'!H121","v":2.548069545426245}]
["Number of men in crew",null,{"$f":"'DNSP Inputs O & M'!C123","v":2},{"$f":"'DNSP Inputs O & M'!D123","v":2},{"$f":"'DNSP Inputs O & M'!E123","v":2},{"$f":"'DNSP Inputs O & M'!F123","v":2},{"$f":"'DNSP Inputs O & M'!G123","v":2},{"$f":"'DNSP Inputs O & M'!H123","v":2}]
["Number of luminaires replaced per day - urban",null,16,16,16,16,16,16]
["Number of luminaires replaced per day - rural",null,13,13,13,13,13,13]
["Number of luminaires replaced per day - remote",null,10,10,10,10,10,10]
[]
["Other Capex unit costs Describe :………………………",null,0,0,0,0,0,0]
[]
["Forecast Quantities to be replaced"]
["Number of luminaires replaced per year - urban",null,212.04613872600592,0,0,0,0,0]
["Number of luminaires replaced per year - rural",null,61.664737064759379,0,0,0,0,0]
["Number of luminaires replaced per day - remote",null,5.2325760941721828,0,0,0,0,0]
[]
[]
[]
["Dedicated street lighting poles"]
[]
["Cost of pole & bracket",null,945.46640226628881,1223.6275383044774,1223.6275383044774,1223.6275383044774,1223.6275383044774,1223.6275383044774]
["Number of men in crew",null,null,4,4,4,4,4]
["Number of poles & brackets replaced per day",null,4,4,4,4,4,4]
["Cost of bracket on non-dedicated poles",null,47.994220963172801,48.364296883852695,48.364296883852695,48.364296883852695,48.364296883852695,48.364296883852695]
["Number of brackets replaced per day",null,20,20,20,20,20,20]
["Plant costs (including truck mounted crane & auger, and tipper truck)",null,null,387.05857996198068,387.05857996198068,387.05857996198068,387.05857996198068,387.05857996198068]
["Other poles & brackets Capex unit costs Describe :…………………",null,22.049013744793783,20.530171694670301,20.9657602949029,21.401348895135499,21.836937495368101,22.2725260956007]
[]
[]
["Forecast Quantities to be replaced"]
["Number of poles & brackets replaced per year - urban",null,598.73311242994885,598.73311242994885,598.73311242994885,598.73311242994885,598.73311242994885,598.73311242994885]
["Number of poles & brackets replaced per year - rural",null,203.06238738354998,203.06238738354998,203.06238738354998,203.06238738354998,203.06238738354998,203.06238738354998]
["Number of poles & brackets replaced per year - remote",null,15.489433285991614,15.489433285991614,15.489433285991614,15.489433285991614,15.489433285991614,15.489433285991614]
[]
["Brackets on non-dedicated poles :"]
["Number of brackets replaced per year - urban",null,970.79642797264523,970.79642797264523,970.79642797264523,970.79642797264523,970.79642797264523,970.79642797264523]
["Number of brackets replaced per year - rural",null,327.85222323621383,327.85222323621383,327.85222323621383,327.85222323621383,327.85222323621383,327.85222323621383]
["Number of brackets replaced per year - remote",null,24.956389678402683,24.956389678402683,24.956389678402683,24.956389678402683,24.956389678402683,24.956389678402683]
[]
[]
[]
["Luminaire Replacements - Other Light types (excluding T5s)"]
["Number of luminaires replaced per year",null,129.54063428776064,0,0,0,0,0]
["Forecast Capex",null,41924.26816304175,0,0,0,0,0]
[]
[]
[]
["Inputs - T5 (2 X 14W)"]
[]
["Unit cost - luminaire",null,{"$f":"'DNSP Inputs O & M'!C189","v":258.10883852691217},{"$f":"'DNSP Inputs O & M'!D189","v":260.27999999999997},{"$f":"'DNSP Inputs O & M'!E189","v":260.27999999999997},{"$f":"'DNSP Inputs O & M'!F189","v":260.27999999999997},{"$f":"'DNSP Inputs O & M'!G189","v":260.27999999999997},{"$f":"'DNSP Inputs O & M'!H189","v":260.27999999999997}]
["Unit cost - miscellaneous materials (bulk lamp)",null,{"$f":"'DNSP Inputs O & M'!C190","v":1.3373336999933596},{"$f":"'DNSP Inputs O & M'!D190","v":1.3476456706921032},{"$f":"'DNSP Inputs O & M'!E190","v":1.3476456706921032},{"$f":"'DNSP Inputs O & M'!F190","v":1.3476456706921032},{"$f":"'DNSP Inputs O & M'!G190","v":1.3476456706921032},{"$f":"'DNSP Inputs O & M'!H190","v":1.3476456706921032}]
["Number of men in crew",null,{"$f":"'DNSP Inputs O & M'!C192","v":2},{"$f":"'DNSP Inputs O & M'!D192","v":2},{"$f":"'DNSP Inputs O & M'!E192","v":2},{"$f":"'DNSP Inputs O & M'!F192","v":2},{"$f":"'DNSP Inputs O & M'!G192","v":2},{"$f":"'DNSP Inputs O & M'!H192","v":2}]
["Number of luminaires replaced per day - urban",null,0,16,16,16,16,16]
["Number of luminaires replaced per day - rural",null,0,13,13,13,13,13]
["Number of luminaires replaced per day - remote",null,0,10,10,10,10,10]
[]
["Other Capex unit costs Describe :………………………",null,0,0,0,0,0,0]
[]
["Forecast Quantities to be replaced"]
["Number of luminaires replaced per year - urban",null,0,332.31684954821867,332.31684954821867,332.31684954821867,332.31684954821867,332.31684954821867]
["Number of luminaires replaced per year - rural",null,0,83.93658299992417,83.93658299992417,83.93658299992417,83.93658299992417,83.93658299992417]
["Number of luminaires replaced per year - remote",null,0,16.290041644520521,16.290041644520521,16.290041644520521,16.290041644520521,16.290041644520521]
[]
[]
[]
["Inputs - T5 (2x24W)"]
[]
["Unit cost - luminaire",null,{"$f":"'DNSP Inputs O & M'!C238","v":286.18776203966002},{"$f":"'DNSP Inputs O & M'!D238","v":267.33},{"$f":"'DNSP Inputs O & M'!E238","v":267.33},{"$f":"'DNSP Inputs O & M'!F238","v":267.33},{"$f":"'DNSP Inputs O & M'!G238","v":267.33},{"$f":"'DNSP Inputs O & M'!H238","v":267.33}]
["Unit cost - miscellaneous materials (bulk lamp)",null,{"$f":"'DNSP Inputs O & M'!C239","v":1.3373336999933596},{"$f":"'DNSP Inputs O & M'!D239","v":1.3476456706921032},{"$f":"'DNSP Inputs O & M'!E239","v":1.3476456706921032},{"$f":"'DNSP Inputs O & M'!F239","v":1.3476456706921032},{"$f":"'DNSP Inputs O & M'!G239","v":1.3476456706921032},{"$f":"'DNSP Inputs O & M'!H239","v":1.3476456706921032}]
["Number of men in crew",null,{"$f":"'DNSP Inputs O & M'!C241","v":2},{"$f":"'DNSP Inputs O & M'!D241","v":2},{"$f":"'DNSP Inputs O & M'!E241","v":2},{"$f":"'DNSP Inputs O & M'!F241","v":2},{"$f":"'DNSP Inputs O & M'!G241","v":2},{"$f":"'DNSP Inputs O & M'!H241","v":2}]
["Number of luminaires replaced per day - urban",null,0,16,16,16,16,16]
["Number of luminaires replaced per day - rural",null,0,13,13,13,13,13]
["Number of luminaires replaced per day - remote",null,0,10,10,10,10,10]
[]
["Other Capex unit costs Describe :………………………",null,0,0,0,0,0,0]
[]
["Forecast Quantities to be replaced"]
["Number of luminaires replaced per year - urban",null,0,35.829620457443582,35.829620457443582,35.829620457443582,35.829620457443582,35.829620457443582]
["Number of luminaires replaced per year - rural",null,0,9.049844795623649,9.049844795623649,9.049844795623649,9.049844795623649,9.049844795623649]
["Number of luminaires replaced per year - remote",null,0,1.7563539439923321,1.7563539439923321,1.7563539439923321,1.7563539439923321,1.7563539439923321]
[]
[]
[]
["Inputs - LED 18W"]
[null,null,null,null,null,null,null,null,null,"O & M"]
["Unit cost - luminaire",null,{"$f":"'DNSP Inputs O & M'!C286","v":391.14159061523941},473.57303370786519,473.57303370786519,473.57303370786519,473.57303370786519,473.57303370786519,null,{"$f":"'DNSP Inputs O & M'!D286","v":205},{"$f":"'DNSP Inputs O & M'!E286","v":205},{"$f":"'DNSP Inputs O & M'!F286","v":205},{"$f":"'DNSP Inputs O & M'!G286","v":205},{"$f":"'DNSP Inputs O & M'!H286","v":205}]
["Number of men in crew",null,{"$f":"'DNSP Inputs O & M'!C288","v":2},{"$f":"'DNSP Inputs O & M'!D288","v":2},{"$f":"'DNSP Inputs O & M'!E288","v":2},{"$f":"'DNSP Inputs O & M'!F288","v":2},{"$f":"'DNSP Inputs O & M'!G288","v":2},{"$f":"'DNSP Inputs O & M'!H288","v":2}]
["Number of luminaires replaced per day - urban",null,0,16,16,16,16,16]
["Number of luminaires replaced per day - rural",null,0,13,13,13,13,13]
["Number of luminaires replaced per day - remote",null,0,10,10,10,10,10]
[]
["Other Capex unit costs Describe :………………………",null,0,0,0,0,0,0]
[]
["Forecast Quantities to be replaced"]
["Number of luminaires replaced per year - urban",null,0,1962.1952268075418,2205.3737689377645,2157.1469454123749,2109.2298686536346,333.10175064029573]
["Number of luminaires replaced per year - rural",null,0,495.73313925151581,557.03326103975007,544.8521309491008,532.74923669037878,84.134833301560775]
["Number of luminaires replaced per year - remote",null,0,96.209700161172606,108.10655730087079,105.74249732413601,103.39362101243307,16.328517188249791]
[]
[]
["NEW"]
["Inputs - LED 14W"]
[]
["Unit cost - luminaire",null,null,{"$f":"'DNSP Inputs O & M'!D332","v":205},{"$f":"'DNSP Inputs O & M'!E332","v":205},{"$f":"'DNSP Inputs O & M'!F332","v":205},{"$f":"'DNSP Inputs O & M'!G332","v":205},{"$f":"'DNSP Inputs O & M'!H332","v":205}]
["Number of men in crew",null,null,{"$f":"'DNSP Inputs O & M'!D334","v":2},{"$f":"'DNSP Inputs O & M'!E334","v":2},{"$f":"'DNSP Inputs O & M'!F334","v":2},{"$f":"'DNSP Inputs O & M'!G334","v":2},{"$f":"'DNSP Inputs O & M'!H334","v":2}]
["Number of luminaires replaced per day - urban",null,null,16,16,16,16,16]
["Number of luminaires replaced per day - rural",null,null,13,13,13,13,13]
["Number of luminaires replaced per day - remote",null,null,10,10,10,10,10]
[]
["Other Capex unit costs Describe :………………………",null,null,0,0,0,0,0]
[]
["Forecast Quantities to be replaced"]
["Number of luminaires replaced per year - urban",null,null,13.503727553799457,13.503727553799457,13.503727553799457,13.503727553799457,13.503727553799457]
["Number of luminaires replaced per year - rural",null,null,3.4116102008532661,3.4116102008532661,3.4116102008532661,3.4116102008532661,3.4116102008532661]
["Number of luminaires replaced per year - remote",null,null,0.66211025348531205,0.66211025348531205,0.66211025348531205,0.66211025348531205,0.66211025348531205]
[]
[]
["NEW"]
["Inputs - LED 70W (L1)"]
[]
["Unit cost - luminaire",null,null,{"$f":"'DNSP Inputs O & M'!D378","v":402},{"$f":"'DNSP Inputs O & M'!E378","v":402},{"$f":"'DNSP Inputs O & M'!F378","v":402},{"$f":"'DNSP Inputs O & M'!G378","v":402},{"$f":"'DNSP Inputs O & M'!H378","v":402}]
["Number of men in crew",null,null,{"$f":"'DNSP Inputs O & M'!D380","v":2},{"$f":"'DNSP Inputs O & M'!E380","v":2},{"$f":"'DNSP Inputs O & M'!F380","v":2},{"$f":"'DNSP Inputs O & M'!G380","v":2},{"$f":"'DNSP Inputs O & M'!H380","v":2}]
["Number of luminaires replaced per day - urban",null,null,16,16,16,16,16]
["Number of luminaires replaced per day - rural",null,null,13,13,13,13,13]
["Number of luminaires replaced per day - remote",null,null,10,10,10,10,10]
[]
["Other Capex unit costs Describe :………………………",null,null,0,0,0,0,0]
[]
["Forecast Quantities to be replaced"]
["Number of luminaires replaced per year - urban",null,null,77.414359792858718,78.477812067723363,82.793708829765563,85.94510215083524,25.118707212408932]
["Number of luminaires replaced per year - rural",null,null,19.553317398660649,19.821924152296482,20.912033267373705,21.708012127365244,6.3444825492642787]
["Number of luminaires replaced per year - remote",null,null,3.7948215584734664,3.8469515719472236,4.0585151387139984,4.2129952034723148,1.2313091770788691]
[]
[]
["NEW"]
["Inputs - LED 155W (L2)"]
[]
["Unit cost - luminaire",null,null,{"$f":"'DNSP Inputs O & M'!D424","v":427},{"$f":"'DNSP Inputs O & M'!E424","v":427},{"$f":"'DNSP Inputs O & M'!F424","v":427},{"$f":"'DNSP Inputs O & M'!G424","v":427},{"$f":"'DNSP Inputs O & M'!H424","v":427}]
["Number of men in crew",null,null,{"$f":"'DNSP Inputs O & M'!D426","v":2},{"$f":"'DNSP Inputs O & M'!E426","v":2},{"$f":"'DNSP Inputs O & M'!F426","v":2},{"$f":"'DNSP Inputs O & M'!G426","v":2},{"$f":"'DNSP Inputs O & M'!H426","v":2}]
["Number of luminaires replaced per day - urban",null,null,16,16,16,16,16]
["Number of luminaires replaced per day - rural",null,null,13,13,13,13,13]
["Number of luminaires replaced per day - remote",null,null,10,10,10,10,10]
[]
["Other Capex unit costs Describe :………………………",null,null,0,0,0,0,0]
[]
["Forecast Quantities to be replaced"]
["Number of luminaires replaced per year - urban",null,null,936.03385629140996,929.84037057437911,916.2721212599148,903.00528667060985,883.57943960118268]
["Number of luminaires replaced per year - rural",null,null,236.42341210250009,234.85906160792493,231.43199347612395,228.08105666938263,223.17447661753295]
["Number of luminaires replaced per year - remote",null,null,45.88401256330441,45.58041032227348,44.915300061760526,44.264965032873036,43.312717627508952]
[]
[]
["NEW"]
["Inputs - LED 275W (L4)"]
[]
["Unit cost - luminaire",null,null,{"$f":"'DNSP Inputs O & M'!D470","v":650.88},{"$f":"'DNSP Inputs O & M'!E470","v":650.88},{"$f":"'DNSP Inputs O & M'!F470","v":650.88},{"$f":"'DNSP Inputs O & M'!G470","v":650.88},{"$f":"'DNSP Inputs O & M'!H470","v":650.88}]
["Number of men in crew",null,null,{"$f":"'DNSP Inputs O & M'!D472","v":2},{"$f":"'DNSP Inputs O & M'!E472","v":2},{"$f":"'DNSP Inputs O & M'!F472","v":2},{"$f":"'DNSP Inputs O & M'!G472","v":2},{"$f":"'DNSP Inputs O & M'!H472","v":2}]
["Number of luminaires replaced per day - urban",null,null,16,16,16,16,16]
["Number of luminaires replaced per day - rural",null,null,13,13,13,13,13]
["Number of luminaires replaced per day - remote",null,null,10,10,10,10,10]
[]
["Other Capex unit costs Describe :………………………",null,null,0,0,0,0,0]
[]
["Forecast Quantities to be replaced"]
["Number of luminaires replaced per year - urban",null,null,47.268498970173503,47.74717948102267,48.230586257450312,48.720148985545258,9.2715815975009477]
["Number of luminaires replaced per year - rural",null,null,11.93907649427241,12.059981607822804,12.182080481435463,12.30573422519319,2.3418158885328757]
["Number of luminaires replaced per year - remote",null,null,2.3170832828516423,2.3405480137756207,2.3642444243848191,2.3882425973306498,0.45448929399514443]
[]
["NEW"]
["Inputs - Smart lighting L1"]
[]
["Unit cost - luminaire",null,null,{"$f":"'DNSP Inputs O & M'!D517","v":402},{"$f":"'DNSP Inputs O & M'!E517","v":402},{"$f":"'DNSP Inputs O & M'!F517","v":402},{"$f":"'DNSP Inputs O & M'!G517","v":402},{"$f":"'DNSP Inputs O & M'!H517","v":402}]
["Number of men in crew",null,null,{"$f":"'DNSP Inputs O & M'!D519","v":2},{"$f":"'DNSP Inputs O & M'!E519","v":2},{"$f":"'DNSP Inputs O & M'!F519","v":2},{"$f":"'DNSP Inputs O & M'!G519","v":2},{"$f":"'DNSP Inputs O & M'!H519","v":2}]
["Number of luminaires replaced per day - urban",null,null,16,16,16,16,16]
["Number of luminaires replaced per day - rural",null,null,13,13,13,13,13]
["Number of luminaires replaced per day - remote",null,null,10,10,10,10,10]
[]
["Other Capex unit costs Describe :………………………",null,null,0,0,0,0,0]
[]
["Forecast Quantities to be replaced"]
["Number of luminaires replaced per year - urban",null,null,77,77,76.903152091006234,76.903152091006234,11.696015514894436]
["Number of luminaires replaced per year - rural",null,null,19,19,19.826157352191721,19.826157352191721,2]
["Number of luminaires replaced per year - remote",null,null,4,4,3.9070172593630508,3.9070172593630508,0]
[]
["Inputs - Smart lighting L2"]
[]
["Unit cost - luminaire",null,null,{"$f":"'DNSP Inputs O & M'!D561","v":427},{"$f":"'DNSP Inputs O & M'!E561","v":427},{"$f":"'DNSP Inputs O & M'!F561","v":427},{"$f":"'DNSP Inputs O & M'!G561","v":427},{"$f":"'DNSP Inputs O & M'!H561","v":427}]
["Number of men in crew",null,null,{"$f":"'DNSP Inputs O & M'!D563","v":2},{"$f":"'DNSP Inputs O & M'!E563","v":2},{"$f":"'DNSP Inputs O & M'!F563","v":2},{"$f":"'DNSP Inputs O & M'!G563","v":2},{"$f":"'DNSP Inputs O & M'!H563","v":2}]
["Number of luminaires replaced per day - urban",null,null,16,16,16,16,16]
["Number of luminaires replaced per day - rural",null,null,13,13,13,13,13]
["Number of luminaires replaced per day - remote",null,null,10,10,10,10,10]
[]
["Other Capex unit costs Describe :………………………",null,null,0,0,0,0,0]
[]
["Forecast Quantities to be replaced"]
["Number of luminaires replaced per year - urban",null,null,77,77,76.903152091006234,76.903152091006234,11.696015514894436]
["Number of luminaires replaced per year - rural",null,null,19,19,19.826157352191721,19.826157352191721,2]
["Number of luminaires replaced per year - remote",null,null,4,4,3.9070172593630508,3.9070172593630508,0]
[]
["Inputs - Smart lighting L4"]
[]
["Unit cost - luminaire",null,null,{"$f":"'DNSP Inputs O & M'!D605","v":650.88},{"$f":"'DNSP Inputs O & M'!E605","v":650.88},{"$f":"'DNSP Inputs O & M'!F605","v":650.88},{"$f":"'DNSP Inputs O & M'!G605","v":650.88},{"$f":"'DNSP Inputs O & M'!H605","v":650.88}]
["Number of men in crew",null,null,{"$f":"'DNSP Inputs O & M'!D607","v":2},{"$f":"'DNSP Inputs O & M'!E607","v":2},{"$f":"'DNSP Inputs O & M'!F607","v":2},{"$f":"'DNSP Inputs O & M'!G607","v":2},{"$f":"'DNSP Inputs O & M'!H607","v":2}]
["Number of luminaires replaced per day - urban",null,null,16,16,16,16,16]
["Number of luminaires replaced per day - rural",null,null,13,13,13,13,13]
["Number of luminaires replaced per day - remote",null,null,10,10,10,10,10]
[]
["Other Capex unit costs Describe :………………………",null,null,0,0,0,0,0]
[]
["Forecast Quantities to be replaced"]
["Number of luminaires replaced per year - urban",null,null,77,77,76.903152091006234,76.903152091006234,11.696015514894436]
["Number of luminaires replaced per year - rural",null,null,19,19,19.826157352191721,19.826157352191721,2]
["Number of luminaires replaced per year - remote",null,null,4,4,3.9070172593630508,3.9070172593630508,0]

{"sheet":"PL Tariffs","index":5,"n_rows":72,"n_cols":35,"rows_kept":72,"cut":false,"hidden":false,"merged":[[2,3,2,4],[3,2,3,7],[3,9,3,13],[3,15,3,19],[3,24,3,28],[3,30,3,34],[40,24,40,28],[40,30,40,34],[39,3,39,4],[40,2,40,7],[40,9,40,13],[40,15,40,19]]}
[{"$f":"'DNSP Inputs O & M'!$A$3","v":"AusNet"},null,null,null,"Global Check",{"$f":"IF(SUM('Total RAB'!F1,'Depn & WACC Post 2004 N & E'!F1,'Depn & WACC Post 2004 Central'!F1,'Cashflow Summary'!F1,'PL Tariff Components'!W1)<1,\"Ok\",\"Error\")","v":"Ok"}]
[]
[null,null,null,{"$f":"'DNSP Inputs General'!$B$39","v":"Central"},null,null,null,null,null,null,null,null,null,null,null,null,null,null,null,null,null,"Average"]
["Public Lighting Tariffs",null,"Nominal Prices",null,null,null,null,null,null,"Nominal Price Movement",null,null,null,null,null,"Real Price Movement (Implied X Factor)",null,null,null,null,null,"Nubmer","% of ",null,"Revised Submission Model",null,null,null,null,null,"Difference"]
[null,null,"Actual",null,null,null,null,null,null,null,null,null,null,null,null,null,null,null,null,null,null,"of Lights","Total Lights"]
[{"$f":"'DNSP Inputs General'!A$41","v":"Existing Lights"},null,{"$f":"'DNSP Inputs General'!P$2","v":"HY2021"},{"$f":"'DNSP Inputs General'!Q$2","v":"2022-06-30"},{"$f":"'DNSP Inputs General'!R$2","v":"2023-06-30"},{"$f":"'DNSP Inputs General'!S$2","v":"2024-06-30"},{"$f":"'DNSP Inputs General'!T$2","v":"2025-06-30"},{"$f":"'DNSP Inputs General'!U$2","v":"2026-06-30"},null,{"$f":"D6","v":"2022-06-30"},{"$f":"E6","v":"2023-06-30"},"2024-06-30","2025-06-30","2026-06-30",null,{"$f":"J6","v":"2022-06-30"},{"$f":"K6","v":"2023-06-30"},"2024-06-30","2025-06-30","2026-06-30",null,"2022-26","2022-26",null,{"$f":"P6","v":"2022-06-30"},{"$f":"Q6","v":"2023-06-30"},"2024-06-30","2025-06-30","2026-06-30",null,{"$f":"Y6","v":"2022-06-30"},{"$f":"Z6","v":"2023-06-30"},"2024-06-30","2025-06-30","2026-06-30"]
[{"$f":"'DNSP Inputs General'!A42","v":"Mercury Vapour 80W"},null,{"$f":"'DNSP Inputs General'!E42","v":43.97},{"$f":"'Charges Summary'!D$31","v":61.378472615458286},{"$f":"'Charges Summary'!E$31","v":62.587275052139326},{"$f":"'Charges Summary'!F$31","v":65.490871684464381},{"$f":"'Charges Summary'!G$31","v":71.177994691551859},{"$f":"'Charges Summary'!H$31","v":72.386331333944526},null,{"$f":"IF(C7=0,\"\",D7/C7-1)","v":0.39591704833882835},{"$f":"IF(D7=0,\"\",E7/D7-1)","v":1.9694241077882424E-2},{"$f":"IF(E7=0,\"\",F7/E7-1)","v":4.6392763223932709E-2},{"$f":"IF(F7=0,\"\",G7/F7-1)","v":8.683840756446326E-2},{"$f":"IF(G7=0,\"\",H7/G7-1)","v":1.6976266999779499E-2},null,{"$f":"IF(C7=0,\"\",(D7/'Charges Summary'!D$4)/C7-1)","v":0.36855434720485936},{"$f":"IF(D7=0,\"\",(E7/'Charges Summary'!E$4)/(D7/'Charges Summary'!D$4)-1)","v":-2.9375806565323792E-4},{"$f":"IF(E7=0,\"\",(F7/'Charges Summary'!F$4)/(E7/'Charges Summary'!E$4)-1)","v":2.5881420889574791E-2},{"$f":"IF(F7=0,\"\",(G7/'Charges Summary'!G$4)/(F7/'Charges Summary'!F$4)-1)","v":6.5534251588651449E-2},{"$f":"IF(G7=0,\"\",(H7/'Charges Summary'!H$4)/(G7/'Charges Summary'!G$4)-1)","v":-2.9584545421411645E-3},null,{"$f":"SUM('DNSP Inputs General'!Q42:U42)/5","v":5914.7252788838505},{"$f":"V7/V$35","v":4.8362259486093788E-2},null,62.321907585980881,63.786352164269147,67.135308615964547,73.400062830147263,74.900590548823914,null,{"$f":"D7-Y7","v":-0.94343497052259551},-1.1990771121298209,-1.6444369315001666,-2.2220681385954038,-2.5142592148793881]
[{"$f":"'DNSP Inputs General'!A43","v":"HP Sodium 150W"},null,{"$f":"'DNSP Inputs General'!E43","v":104.07},{"$f":"'Charges Summary'!D$55","v":113.46221454728752},{"$f":"'Charges Summary'!E$55","v":115.88237072130957},{"$f":"'Charges Summary'!F$55","v":118.80607603818451},{"$f":"'Charges Summary'!G$55","v":126.42570465996307},{"$f":"'Charges Summary'!H$55","v":129.04949742669888},null,9.0249010735923063E-2,2.1330062908417879E-2,2.5229940487723423E-2,6.4135007870553595E-2,2.0753633715491659E-2,null,{"$f":"IF(C8=0,\"\",(D8/'Charges Summary'!D$4)/C8-1)","v":6.8878000275184537E-2},{"$f":"IF(D8=0,\"\",(E8/'Charges Summary'!E$4)/(D8/'Charges Summary'!D$4)-1)","v":1.3099984613524907E-3},{"$f":"IF(E8=0,\"\",(F8/'Charges Summary'!F$4)/(E8/'Charges Summary'!E$4)-1)","v":5.1334308215178481E-3},{"$f":"IF(F8=0,\"\",(G8/'Charges Summary'!G$4)/(F8/'Charges Summary'!F$4)-1)","v":4.3275882880851713E-2},{"$f":"IF(G8=0,\"\",(H8/'Charges Summary'!H$4)/(G8/'Charges Summary'!G$4)-1)","v":7.4486840668797072E-4},null,{"$f":"SUM('DNSP Inputs General'!Q43:U43)/5","v":13520.059642315702},{"$f":"V8/V$35","v":0.11054792942344811},null,114.83059635444388,117.66892757885847,121.2194088237039,129.78299669228835,133.07833975556099,null,{"$f":"D8-Y8","v":-1.3683818071563678},{"$f":"E8-Z8","v":-1.7865568575489021},{"$f":"F8-AA8","v":-2.4133327855193869},{"$f":"G8-AB8","v":-3.357292032325276},{"$f":"H8-AC8","v":-4.0288423288621118}]
[{"$f":"'DNSP Inputs General'!A44","v":"HP Sodium 250W"},null,{"$f":"'DNSP Inputs General'!E44","v":105.12},{"$f":"'Charges Summary'!D$71","v":116.2960791586319},{"$f":"'Charges Summary'!E$71","v":118.76662209517212},{"$f":"'Charges Summary'!F$71","v":121.92666819873702},{"$f":"'Charges Summary'!G$71","v":129.73381121601938},{"$f":"'Charges Summary'!H$71","v":132.41410031227207},null,0.10631734359429124,2.1243561729801019E-2,2.6607190200565123E-2,6.4031463605295436E-2,2.0659911792691776E-2,null,{"$f":"IF(C9=0,\"\",(D9/'Charges Summary'!D$4)/C9-1)","v":8.4631362419320011E-2},{"$f":"IF(D9=0,\"\",(E9/'Charges Summary'!E$4)/(D9/'Charges Summary'!D$4)-1)","v":1.2251928748203689E-3},{"$f":"IF(E9=0,\"\",(F9/'Charges Summary'!F$4)/(E9/'Charges Summary'!E$4)-1)","v":6.4836837494690602E-3},{"$f":"IF(F9=0,\"\",(G9/'Charges Summary'!G$4)/(F9/'Charges Summary'!F$4)-1)","v":4.317436828547061E-2},{"$f":"IF(G9=0,\"\",(H9/'Charges Summary'!H$4)/(G9/'Charges Summary'!G$4)-1)","v":6.5298361666488169E-4},null,{"$f":"SUM('DNSP Inputs General'!Q44:U44)/5","v":6261.4611943417312},5.1197375493322234E-2,null,117.73553186638632,120.63857677996776,124.4543534271849,133.23244892232503,136.60347723422603,null,-1.4394527077544268,-1.8719546847956394,-2.5276852284478792,-3.498637706305658,-4.1893769219539649]
[{"$f":"'DNSP Inputs General'!A45","v":"Mercury Vapour 50W"},null,{"$f":"'DNSP Inputs General'!E45","v":67.27},{"$f":"IF('DNSP Inputs General'!$B45='DNSP Inputs General'!$A$42,D$7,IF('DNSP Inputs General'!$B45='DNSP Inputs General'!$A$43,D$8,D$9))*'DNSP Inputs General'!$D45","v":93.909063101651185},{"$f":"IF('DNSP Inputs General'!$B45='DNSP Inputs General'!$A$42,E$7,IF('DNSP Inputs General'!$B45='DNSP Inputs General'!$A$43,E$8,E$9))*'DNSP Inputs General'!$D45","v":95.758530829773164},{"$f":"IF('DNSP Inputs General'!$B45='DNSP Inputs General'!$A$42,F$7,IF('DNSP Inputs General'!$B45='DNSP Inputs General'!$A$43,F$8,F$9))*'DNSP Inputs General'!$D45","v":100.2010336772305},{"$f":"IF('DNSP Inputs General'!$B45='DNSP Inputs General'!$A$42,G$7,IF('DNSP Inputs General'!$B45='DNSP Inputs General'!$A$43,G$8,G$9))*'DNSP Inputs General'!$D45","v":108.90233187807435},{"$f":"IF('DNSP Inputs General'!$B45='DNSP Inputs General'!$A$42,H$7,IF('DNSP Inputs General'!$B45='DNSP Inputs General'!$A$43,H$8,H$9))*'DNSP Inputs General'!$D45","v":110.75108694093512},null,0.3960021272729477,1.9694241077882202E-2,4.6392763223932709E-2,8.683840756446326E-2,1.6976266999779277E-2,null,{"$f":"IF(C10=0,\"\",(D10/'Charges Summary'!D$4)/C10-1)","v":0.36863775842566437},{"$f":"IF(D10=0,\"\",(E10/'Charges Summary'!E$4)/(D10/'Charges Summary'!D$4)-1)","v":-2.9375806565334894E-4},{"$f":"IF(E10=0,\"\",(F10/'Charges Summary'!F$4)/(E10/'Charges Summary'!E$4)-1)","v":2.5881420889574791E-2},{"$f":"IF(F10=0,\"\",(G10/'Charges Summary'!G$4)/(F10/'Charges Summary'!F$4)-1)","v":6.5534251588651671E-2},{"$f":"IF(G10=0,\"\",(H10/'Charges Summary'!H$4)/(G10/'Charges Summary'!G$4)-1)","v":-2.9584545421413866E-3},null,{"$f":"SUM('DNSP Inputs General'!Q45:U45)/5","v":21.925942398612641},1.7927935208496322E-4,null,95.352518606550746,97.593118811331792,102.71702218242577,112.30209613012532,114.5979035397006,null,-1.4434555048995605,-1.8345879815586272,-2.5159885051952671,-3.3997642520509714,-3.8468165987654714]
[{"$f":"'DNSP Inputs General'!A46","v":"Mercury Vapour 125W"},null,{"$f":"'DNSP Inputs General'!E46","v":64.63},{"$f":"IF('DNSP Inputs General'!$B46='DNSP Inputs General'!$A$42,D$7,IF('DNSP Inputs General'!$B46='DNSP Inputs General'!$A$43,D$8,D$9))*'DNSP Inputs General'!$D46","v":90.226354744723679},{"$f":"IF('DNSP Inputs General'!$B46='DNSP Inputs General'!$A$42,E$7,IF('DNSP Inputs General'!$B46='DNSP Inputs General'!$A$43,E$8,E$9))*'DNSP Inputs General'!$D46","v":92.003294326644806},{"$f":"IF('DNSP Inputs General'!$B46='DNSP Inputs General'!$A$42,F$7,IF('DNSP Inputs General'!$B46='DNSP Inputs General'!$A$43,F$8,F$9))*'DNSP Inputs General'!$D46","v":96.271581376162644},{"$f":"IF('DNSP Inputs General'!$B46='DNSP Inputs General'!$A$42,G$7,IF('DNSP Inputs General'!$B46='DNSP Inputs General'!$A$43,G$8,G$9))*'DNSP Inputs General'!$D46","v":104.63165219658123},{"$f":"IF('DNSP Inputs General'!$B46='DNSP Inputs General'!$A$42,H$7,IF('DNSP Inputs General'!$B46='DNSP Inputs General'!$A$43,H$8,H$9))*'DNSP Inputs General'!$D46","v":106.40790706089845},null,0.39604448003595372,1.9694241077882424E-2,4.6392763223932931E-2,8.6838407564463038E-2,1.6976266999779499E-2,null,{"$f":"IF(C11=0,\"\",(D11/'Charges Summary'!D$4)/C11-1)","v":0.36867928099177738},{"$f":"IF(D11=0,\"\",(E11/'Charges Summary'!E$4)/(D11/'Charges Summary'!D$4)-1)","v":-2.9375806565334894E-4},{"$f":"IF(E11=0,\"\",(F11/'Charges Summary'!F$4)/(E11/'Charges Summary'!E$4)-1)","v":2.5881420889575013E-2},{"$f":"IF(F11=0,\"\",(G11/'Charges Summary'!G$4)/(F11/'Charges Summary'!F$4)-1)","v":6.5534251588651449E-2},{"$f":"IF(G11=0,\"\",(H11/'Charges Summary'!H$4)/(G11/'Charges Summary'!G$4)-1)","v":-2.9584545421412756E-3},null,{"$f":"SUM('DNSP Inputs General'!Q46:U46)/5","v":84.445979999999992},6.904798117839489E-4,null,91.613204151391898,93.765937681475648,98.688903665467876,107.89809236031647,110.10386810677115,null,-1.3868494066682189,-1.7626433548308427,-2.4173222893052326,-3.2664401637352398,-3.6959610458726928]
[{"$f":"'DNSP Inputs General'!A47","v":"Mercury Vapour 250W"},null,{"$f":"'DNSP Inputs General'!E47","v":110.37},{"$f":"IF('DNSP Inputs General'!$B47='DNSP Inputs General'!$A$42,D$7,IF('DNSP Inputs General'!$B47='DNSP Inputs General'!$A$43,D$8,D$9))*'DNSP Inputs General'!$D47","v":122.1108831165635},{"$f":"IF('DNSP Inputs General'!$B47='DNSP Inputs General'!$A$42,E$7,IF('DNSP Inputs General'!$B47='DNSP Inputs General'!$A$43,E$8,E$9))*'DNSP Inputs General'!$D47","v":124.70495319993074},{"$f":"IF('DNSP Inputs General'!$B47='DNSP Inputs General'!$A$42,F$7,IF('DNSP Inputs General'!$B47='DNSP Inputs General'!$A$43,F$8,F$9))*'DNSP Inputs General'!$D47","v":128.02300160867387},{"$f":"IF('DNSP Inputs General'!$B47='DNSP Inputs General'!$A$42,G$7,IF('DNSP Inputs General'!$B47='DNSP Inputs General'!$A$43,G$8,G$9))*'DNSP Inputs General'!$D47","v":136.22050177682036},{"$f":"IF('DNSP Inputs General'!$B47='DNSP Inputs General'!$A$42,H$7,IF('DNSP Inputs General'!$B47='DNSP Inputs General'!$A$43,H$8,H$9))*'DNSP Inputs General'!$D47","v":139.03480532788569},null,0.10637748587989027,2.1243561729801019E-2,2.6607190200565123E-2,6.4031463605295436E-2,2.0659911792691776E-2,null,{"$f":"IF(C12=0,\"\",(D12/'Charges Summary'!D$4)/C12-1)","v":8.4690325798630894E-2},{"$f":"IF(D12=0,\"\",(E12/'Charges Summary'!E$4)/(D12/'Charges Summary'!D$4)-1)","v":1.2251928748205909E-3},{"$f":"IF(E12=0,\"\",(F12/'Charges Summary'!F$4)/(E12/'Charges Summary'!E$4)-1)","v":6.4836837494688382E-3},{"$f":"IF(F12=0,\"\",(G12/'Charges Summary'!G$4)/(F12/'Charges Summary'!F$4)-1)","v":4.3174368285470832E-2},{"$f":"IF(G12=0,\"\",(H12/'Charges Summary'!H$4)/(G12/'Charges Summary'!G$4)-1)","v":6.5298361666488169E-4},null,{"$f":"SUM('DNSP Inputs General'!Q47:U47)/5","v":184.34323733102104},1.5072983203696286E-3,null,123.62230845970565,126.67050561896616,130.67707109854416,139.8940713684413,143.43365109593734,null,-1.5114253431421503,-1.9655524190354186,-2.6540694898702952,-3.6735695916209465,-4.3988457680516433]
[{"$f":"'DNSP Inputs General'!A48","v":"Mercury Vapour 400W"},null,{"$f":"'DNSP Inputs General'!E48","v":114.58},{"$f":"IF('DNSP Inputs General'!$B48='DNSP Inputs General'!$A$42,D$7,IF('DNSP Inputs General'!$B48='DNSP Inputs General'!$A$43,D$8,D$9))*'DNSP Inputs General'!$D48","v":126.76272628290877},{"$f":"IF('DNSP Inputs General'!$B48='DNSP Inputs General'!$A$42,E$7,IF('DNSP Inputs General'!$B48='DNSP Inputs General'!$A$43,E$8,E$9))*'DNSP Inputs General'!$D48","v":129.45561808373762},{"$f":"IF('DNSP Inputs General'!$B48='DNSP Inputs General'!$A$42,F$7,IF('DNSP Inputs General'!$B48='DNSP Inputs General'!$A$43,F$8,F$9))*'DNSP Inputs General'!$D48","v":132.90006833662335},{"$f":"IF('DNSP Inputs General'!$B48='DNSP Inputs General'!$A$42,G$7,IF('DNSP Inputs General'!$B48='DNSP Inputs General'!$A$43,G$8,G$9))*'DNSP Inputs General'!$D48","v":141.40985422546112},{"$f":"IF('DNSP Inputs General'!$B48='DNSP Inputs General'!$A$42,H$7,IF('DNSP Inputs General'!$B48='DNSP Inputs General'!$A$43,H$8,H$9))*'DNSP Inputs General'!$D48","v":144.33136934037657},null,0.10632506792554342,2.1243561729801019E-2,2.6607190200565123E-2,6.4031463605295436E-2,2.0659911792691998E-2,null,{"$f":"IF(C13=0,\"\",(D13/'Charges Summary'!D$4)/C13-1)","v":8.4638935338590127E-2},{"$f":"IF(D13=0,\"\",(E13/'Charges Summary'!E$4)/(D13/'Charges Summary'!D$4)-1)","v":1.2251928748203689E-3},{"$f":"IF(E13=0,\"\",(F13/'Charges Summary'!F$4)/(E13/'Charges Summary'!E$4)-1)","v":6.4836837494690602E-3},{"$f":"IF(F13=0,\"\",(G13/'Charges Summary'!G$4)/(F13/'Charges Summary'!F$4)-1)","v":4.3174368285470832E-2},{"$f":"IF(G13=0,\"\",(H13/'Charges Summary'!H$4)/(G13/'Charges Summary'!G$4)-1)","v":6.5298361666488169E-4},null,{"$f":"SUM('DNSP Inputs General'!Q48:U48)/5","v":34.799999999999997},2.8454519031079304E-4,null,128.33172973436109,131.49604869016488,135.65524523563155,145.22336932533429,148.89779018530638,null,-1.5690034514523177,-2.0404306064272646,-2.7551768990082053,-3.8135150998731717,-4.5664208449298087]
[{"$f":"'DNSP Inputs General'!A49","v":"HP Sodium 100W"},null,{"$f":"'DNSP Inputs General'!E49","v":111.36},{"$f":"IF('DNSP Inputs General'!$B49='DNSP Inputs General'!$A$42,D$7,IF('DNSP Inputs General'!$B49='DNSP Inputs General'!$A$43,D$8,D$9))*'DNSP Inputs General'!$D49","v":121.40456956559765},{"$f":"IF('DNSP Inputs General'!$B49='DNSP Inputs General'!$A$42,E$7,IF('DNSP Inputs General'!$B49='DNSP Inputs General'!$A$43,E$8,E$9))*'DNSP Inputs General'!$D49","v":123.99413667180124},{"$f":"IF('DNSP Inputs General'!$B49='DNSP Inputs General'!$A$42,F$7,IF('DNSP Inputs General'!$B49='DNSP Inputs General'!$A$43,F$8,F$9))*'DNSP Inputs General'!$D49","v":127.12250136085744},{"$f":"IF('DNSP Inputs General'!$B49='DNSP Inputs General'!$A$42,G$7,IF('DNSP Inputs General'!$B49='DNSP Inputs General'!$A$43,G$8,G$9))*'DNSP Inputs General'!$D49","v":135.27550398616049},{"$f":"IF('DNSP Inputs General'!$B49='DNSP Inputs General'!$A$42,H$7,IF('DNSP Inputs General'!$B49='DNSP Inputs General'!$A$43,H$8,H$9))*'DNSP Inputs General'!$D49","v":138.0829622465678},null,9.0199080150840993E-2,2.1330062908417879E-2,2.5229940487723423E-2,6.4135007870553595E-2,2.0753633715491659E-2,null,{"$f":"IF(C14=0,\"\",(D14/'Charges Summary'!D$4)/C14-1)","v":6.8829048427111683E-2},{"$f":"IF(D14=0,\"\",(E14/'Charges Summary'!E$4)/(D14/'Charges Summary'!D$4)-1)","v":1.3099984613522686E-3},{"$f":"IF(E14=0,\"\",(F14/'Charges Summary'!F$4)/(E14/'Charges Summary'!E$4)-1)","v":5.1334308215180702E-3},{"$f":"IF(F14=0,\"\",(G14/'Charges Summary'!G$4)/(F14/'Charges Summary'!F$4)-1)","v":4.3275882880851491E-2},{"$f":"IF(G14=0,\"\",(H14/'Charges Summary'!H$4)/(G14/'Charges Summary'!G$4)-1)","v":7.4486840668797072E-4},null,{"$f":"SUM('DNSP Inputs General'!Q49:U49)/5","v":2403.5134012140779},1.9652533855258659E-2,null,122.86873809925497,125.90575250937857,129.70476744136317,138.86780646074854,142.39382353845028,null,-1.4641685336573147,-1.9116158375773296,-2.5822660805057325,-3.5923024745880525,-4.3108612918824747]
[{"$f":"'DNSP Inputs General'!A50","v":"HP Sodium 400W"},null,{"$f":"'DNSP Inputs General'!E50","v":149.26},{"$f":"IF('DNSP Inputs General'!$B50='DNSP Inputs General'!$A$42,D$7,IF('DNSP Inputs General'!$B50='DNSP Inputs General'!$A$43,D$8,D$9))*'DNSP Inputs General'!$D50","v":165.14043240525729},{"$f":"IF('DNSP Inputs General'!$B50='DNSP Inputs General'!$A$42,E$7,IF('DNSP Inputs General'!$B50='DNSP Inputs General'!$A$43,E$8,E$9))*'DNSP Inputs General'!$D50","v":168.6486033751444},{"$f":"IF('DNSP Inputs General'!$B50='DNSP Inputs General'!$A$42,F$7,IF('DNSP Inputs General'!$B50='DNSP Inputs General'!$A$43,F$8,F$9))*'DNSP Inputs General'!$D50","v":173.13586884220655},{"$f":"IF('DNSP Inputs General'!$B50='DNSP Inputs General'!$A$42,G$7,IF('DNSP Inputs General'!$B50='DNSP Inputs General'!$A$43,G$8,G$9))*'DNSP Inputs General'!$D50","v":184.22201192674751},{"$f":"IF('DNSP Inputs General'!$B50='DNSP Inputs General'!$A$42,H$7,IF('DNSP Inputs General'!$B50='DNSP Inputs General'!$A$43,H$8,H$9))*'DNSP Inputs General'!$D50","v":188.02802244342632},null,0.10639442854922487,2.1243561729801019E-2,2.6607190200565123E-2,6.4031463605295436E-2,2.0659911792691776E-2,null,{"$f":"IF(C15=0,\"\",(D15/'Charges Summary'!D$4)/C15-1)","v":8.4706936358548202E-2},{"$f":"IF(D15=0,\"\",(E15/'Charges Summary'!E$4)/(D15/'Charges Summary'!D$4)-1)","v":1.2251928748203689E-3},{"$f":"IF(E15=0,\"\",(F15/'Charges Summary'!F$4)/(E15/'Charges Summary'!E$4)-1)","v":6.4836837494690602E-3},{"$f":"IF(F15=0,\"\",(G15/'Charges Summary'!G$4)/(F15/'Charges Summary'!F$4)-1)","v":4.3174368285470832E-2},{"$f":"IF(G15=0,\"\",(H15/'Charges Summary'!H$4)/(G15/'Charges Summary'!G$4)-1)","v":6.5298361666488169E-4},null,{"$f":"SUM('DNSP Inputs General'!Q50:U50)/5","v":208.93723321882118},1.7083932410706904E-3,null,167.18445525026857,171.30677902755423,176.72518186660255,189.19007746970155,193.97693767260097,null,-2.0440228450112841,-2.6581756524098239,-3.5893130243960059,-4.9680655429540366,-5.948915229174645]
[{"$f":"'DNSP Inputs General'!A51","v":"Metal Halide 70W"},null,{"$f":"'DNSP Inputs General'!E51","v":191.93},{"$f":"IF('DNSP Inputs General'!$B51='DNSP Inputs General'!$A$42,D$7,IF('DNSP Inputs General'!$B51='DNSP Inputs General'!$A$43,D$8,D$9))*'DNSP Inputs General'!$D51","v":267.92351929491178},{"$f":"IF('DNSP Inputs General'!$B51='DNSP Inputs General'!$A$42,E$7,IF('DNSP Inputs General'!$B51='DNSP Inputs General'!$A$43,E$8,E$9))*'DNSP Inputs General'!$D51","v":273.20006967434045},{"$f":"IF('DNSP Inputs General'!$B51='DNSP Inputs General'!$A$42,F$7,IF('DNSP Inputs General'!$B51='DNSP Inputs General'!$A$43,F$8,F$9))*'DNSP Inputs General'!$D51","v":285.87457581950406},{"$f":"IF('DNSP Inputs General'!$B51='DNSP Inputs General'!$A$42,G$7,IF('DNSP Inputs General'!$B51='DNSP Inputs General'!$A$43,G$8,G$9))*'DNSP Inputs General'!$D51","v":310.6994687468362},{"$f":"IF('DNSP Inputs General'!$B51='DNSP Inputs General'!$A$42,H$7,IF('DNSP Inputs General'!$B51='DNSP Inputs General'!$A$43,H$8,H$9))*'DNSP Inputs General'!$D51","v":315.97398588497208},null,{"$f":"IF(C16=0,\"\",D16/C16-1)","v":0.3959439342203499},{"$f":"IF(D16=0,\"\",E16/D16-1)","v":1.9694241077882424E-2},{"$f":"IF(E16=0,\"\",F16/E16-1)","v":4.6392763223932709E-2},{"$f":"IF(F16=0,\"\",G16/F16-1)","v":8.683840756446326E-2},{"$f":"IF(G16=0,\"\",H16/G16-1)","v":1.6976266999779277E-2},null,{"$f":"IF(C16=0,\"\",(D16/'Charges Summary'!D$4)/C16-1)","v":0.36858070607058036},{"$f":"IF(D16=0,\"\",(E16/'Charges Summary'!E$4)/(D16/'Charges Summary'!D$4)-1)","v":-2.9375806565334894E-4},{"$f":"IF(E16=0,\"\",(F16/'Charges Summary'!F$4)/(E16/'Charges Summary'!E$4)-1)","v":2.5881420889574791E-2},{"$f":"IF(F16=0,\"\",(G16/'Charges Summary'!G$4)/(F16/'Charges Summary'!F$4)-1)","v":6.5534251588651671E-2},{"$f":"IF(G16=0,\"\",(H16/'Charges Summary'!H$4)/(G16/'Charges Summary'!G$4)-1)","v":-2.9584545421414976E-3},null,{"$f":"SUM('DNSP Inputs General'!Q51:U51)/5","v":6.9749999999999996},5.7031686851085681E-5,null,272.04171264116724,278.4341679843543,293.05271680561731,320.39903099458809,326.94899305874941,null,-4.1181933462554525,-5.2340983100138487,-7.1781409861132488,-9.699562247751885,-10.975007173777328]
[{"$f":"'DNSP Inputs General'!A52","v":"Metal Halide 100W"},null,{"$f":"'DNSP Inputs General'!E52","v":248.49},{"$f":"IF('DNSP Inputs General'!$B52='DNSP Inputs General'!$A$42,D$7,IF('DNSP Inputs General'!$B52='DNSP Inputs General'!$A$43,D$8,D$9))*'DNSP Inputs General'!$D52","v":270.91249153204018},{"$f":"IF('DNSP Inputs General'!$B52='DNSP Inputs General'!$A$42,E$7,IF('DNSP Inputs General'!$B52='DNSP Inputs General'!$A$43,E$8,E$9))*'DNSP Inputs General'!$D52","v":276.69107201909486},{"$f":"IF('DNSP Inputs General'!$B52='DNSP Inputs General'!$A$42,F$7,IF('DNSP Inputs General'!$B52='DNSP Inputs General'!$A$43,F$8,F$9))*'DNSP Inputs General'!$D52","v":283.67197129962102},{"$f":"IF('DNSP Inputs General'!$B52='DNSP Inputs General'!$A$42,G$7,IF('DNSP Inputs General'!$B52='DNSP Inputs General'!$A$43,G$8,G$9))*'DNSP Inputs General'!$D52","v":301.86527541157767},{"$f":"IF('DNSP Inputs General'!$B52='DNSP Inputs General'!$A$42,H$7,IF('DNSP Inputs General'!$B52='DNSP Inputs General'!$A$43,H$8,H$9))*'DNSP Inputs General'!$D52","v":308.13007676889561},null,9.0234985440219573E-2,2.1330062908418101E-2,2.5229940487723423E-2,6.4135007870553595E-2,2.0753633715491882E-2,null,{"$f":"IF(C17=0,\"\",(D17/'Charges Summary'!D$4)/C17-1)","v":6.8864249902675922E-2},{"$f":"IF(D17=0,\"\",(E17/'Charges Summary'!E$4)/(D17/'Charges Summary'!D$4)-1)","v":1.3099984613527127E-3},{"$f":"IF(E17=0,\"\",(F17/'Charges Summary'!F$4)/(E17/'Charges Summary'!E$4)-1)","v":5.1334308215180702E-3},{"$f":"IF(F17=0,\"\",(G17/'Charges Summary'!G$4)/(F17/'Charges Summary'!F$4)-1)","v":4.3275882880851491E-2},{"$f":"IF(G17=0,\"\",(H17/'Charges Summary'!H$4)/(G17/'Charges Summary'!G$4)-1)","v":7.4486840668797072E-4},null,{"$f":"SUM('DNSP Inputs General'!Q52:U52)/5","v":7.65},6.2550882352803658E-5,null,274.17976184068863,280.95681433228151,289.43425965640722,309.88144496112267,317.74969963327123,null,-3.2672703086484489,-4.2657423131866494,-5.7622883567862004,-8.0161695495449976,-9.6196228643756285]
[{"$f":"'DNSP Inputs General'!A53","v":"Metal Halide 150W"},null,{"$f":"'DNSP Inputs General'!E53","v":282.31},{"$f":"IF('DNSP Inputs General'!$B53='DNSP Inputs General'!$A$42,D$7,IF('DNSP Inputs General'!$B53='DNSP Inputs General'!$A$43,D$8,D$9))*'DNSP Inputs General'!$D53","v":307.77610704711844},{"$f":"IF('DNSP Inputs General'!$B53='DNSP Inputs General'!$A$42,E$7,IF('DNSP Inputs General'!$B53='DNSP Inputs General'!$A$43,E$8,E$9))*'DNSP Inputs General'!$D53","v":314.34099077214142},{"$f":"IF('DNSP Inputs General'!$B53='DNSP Inputs General'!$A$42,F$7,IF('DNSP Inputs General'!$B53='DNSP Inputs General'!$A$43,F$8,F$9))*'DNSP Inputs General'!$D53","v":322.27179526217458},{"$f":"IF('DNSP Inputs General'!$B53='DNSP Inputs General'!$A$42,G$7,IF('DNSP Inputs General'!$B53='DNSP Inputs General'!$A$43,G$8,G$9))*'DNSP Inputs General'!$D53","v":342.94069938777159},{"$f":"IF('DNSP Inputs General'!$B53='DNSP Inputs General'!$A$42,H$7,IF('DNSP Inputs General'!$B53='DNSP Inputs General'!$A$43,H$8,H$9))*'DNSP Inputs General'!$D53","v":350.05796504899996},null,9.0206181315286127E-2,2.1330062908417879E-2,2.5229940487723423E-2,6.4135007870553595E-2,2.0753633715491659E-2,null,{"$f":"IF(C18=0,\"\",(D18/'Charges Summary'!D$4)/C18-1)","v":6.8836010394861313E-2},{"$f":"IF(D18=0,\"\",(E18/'Charges Summary'!E$4)/(D18/'Charges Summary'!D$4)-1)","v":1.3099984613524907E-3},{"$f":"IF(E18=0,\"\",(F18/'Charges Summary'!F$4)/(E18/'Charges Summary'!E$4)-1)","v":5.1334308215180702E-3},{"$f":"IF(F18=0,\"\",(G18/'Charges Summary'!G$4)/(F18/'Charges Summary'!F$4)-1)","v":4.3275882880851713E-2},{"$f":"IF(G18=0,\"\",(H18/'Charges Summary'!H$4)/(G18/'Charges Summary'!G$4)-1)","v":7.4486840668774867E-4},null,{"$f":"SUM('DNSP Inputs General'!Q53:U53)/5","v":7.4249999999999998},6.0711150518897661E-5,null,311.4879614934739,319.18718134605774,328.81816995351971,352.04764548478028,360.98654962520743,null,-3.7118544463554599,-4.8461905739163171,-6.5463746913451359,-9.106946097008688,-10.92858457620747]
[{"$f":"'DNSP Inputs General'!A54","v":"HP Sodium 50W"},null,{"$f":"'DNSP Inputs General'!E54","v":46.14},{"$f":"IF('DNSP Inputs General'!$B54='DNSP Inputs General'!$A$42,D$7,IF('DNSP Inputs General'!$B54='DNSP Inputs General'!$A$43,D$8,D$9))*'DNSP Inputs General'!$D54","v":50.302913118671853},{"$f":"IF('DNSP Inputs General'!$B54='DNSP Inputs General'!$A$42,E$7,IF('DNSP Inputs General'!$B54='DNSP Inputs General'!$A$43,E$8,E$9))*'DNSP Inputs General'!$D54","v":51.375877419969804},{"$f":"IF('DNSP Inputs General'!$B54='DNSP Inputs General'!$A$42,F$7,IF('DNSP Inputs General'!$B54='DNSP Inputs General'!$A$43,F$8,F$9))*'DNSP Inputs General'!$D54","v":52.672087749780218},{"$f":"IF('DNSP Inputs General'!$B54='DNSP Inputs General'!$A$42,G$7,IF('DNSP Inputs General'!$B54='DNSP Inputs General'!$A$43,G$8,G$9))*'DNSP Inputs General'!$D54","v":56.050212512170866},{"$f":"IF('DNSP Inputs General'!$B54='DNSP Inputs General'!$A$42,H$7,IF('DNSP Inputs General'!$B54='DNSP Inputs General'!$A$43,H$8,H$9))*'DNSP Inputs General'!$D54","v":57.213458092323926},null,9.0223517959944877E-2,2.1330062908417879E-2,2.5229940487723423E-2,6.4135007870553595E-2,2.0753633715491659E-2,null,{"$f":"IF(C19=0,\"\",(D19/'Charges Summary'!D$4)/C19-1)","v":6.8853007207416717E-2},{"$f":"IF(D19=0,\"\",(E19/'Charges Summary'!E$4)/(D19/'Charges Summary'!D$4)-1)","v":1.3099984613524907E-3},{"$f":"IF(E19=0,\"\",(F19/'Charges Summary'!F$4)/(E19/'Charges Summary'!E$4)-1)","v":5.1334308215178481E-3},{"$f":"IF(F19=0,\"\",(G19/'Charges Summary'!G$4)/(F19/'Charges Summary'!F$4)-1)","v":4.3275882880851713E-2},{"$f":"IF(G19=0,\"\",(H19/'Charges Summary'!H$4)/(G19/'Charges Summary'!G$4)-1)","v":7.4486840668774867E-4},null,{"$f":"SUM('DNSP Inputs General'!Q54:U54)/5","v":0},0,null,50.909578442746508,52.16793858980882,53.742026935444791,57.538651373424386,58.999625464838189,null,-0.60666532407465468,-0.79206116983901609,-1.0699391856645732,-1.4884388612535204,-1.7861673725142637]
[]
[]
[{"$f":"'DNSP Inputs General'!A$68","v":"Energy Efficient Lights"}]
[{"$f":"'DNSP Inputs General'!A69","v":"T5 2X14W"},null,{"$f":"'DNSP Inputs General'!E69","v":35.6},{"$f":"'Charges Summary'!D$89","v":51.714462090282581},{"$f":"'Charges Summary'!E$89","v":54.687349989269805},{"$f":"'Charges Summary'!F$89","v":57.302270850286362},{"$f":"'Charges Summary'!G$89","v":59.71188017829796},{"$f":"'Charges Summary'!H$89","v":61.715234632469567},null,{"$f":"IF(C23=0,\"\",D23/C23-1)","v":0.45265342950231968},5.7486586514178262E-2,4.7815826905666992E-2,4.2050852300551611E-2,3.3550349581852767E-2,null,{"$f":"IF(C23=0,\"\",(D23/'Charges Summary'!D$4)/C23-1)","v":0.4241785844604824},{"$f":"IF(D23=0,\"\",(E23/'Charges Summary'!E$4)/(D23/'Charges Summary'!D$4)-1)","v":3.6757783571050195E-2},{"$f":"IF(E23=0,\"\",(F23/'Charges Summary'!F$4)/(E23/'Charges Summary'!E$4)-1)","v":2.727658974312841E-2},{"$f":"IF(F23=0,\"\",(G23/'Charges Summary'!G$4)/(F23/'Charges Summary'!F$4)-1)","v":2.1624619902409492E-2},{"$f":"IF(G23=0,\"\",(H23/'Charges Summary'!H$4)/(G23/'Charges Summary'!G$4)-1)","v":1.3290743643110225E-2},null,{"$f":"SUM('DNSP Inputs General'!Q69:U69)/5","v":22528.43237331021},{"$f":"V23/V$35","v":0.18420566313412026},null,51.544817250187165,54.59179000929111,57.341445034692761,59.951362827100176,62.196837632966982,null,{"$f":"D23-Y23","v":0.16964484009541536},{"$f":"E23-Z23","v":9.5559979978695253E-2},{"$f":"F23-AA23","v":-3.9174184406398638E-2},{"$f":"G23-AB23","v":-0.23948264880221615},{"$f":"H23-AC23","v":-0.48160300049741522}]
[{"$f":"'DNSP Inputs General'!A70","v":"T5 2X24W"},null,{"$f":"'DNSP Inputs General'!E70","v":42.08},{"$f":"'Charges Summary'!D$105","v":55.217858526619409},{"$f":"'Charges Summary'!E$105","v":58.31702573072954},{"$f":"'Charges Summary'!F$105","v":61.050613567111441},{"$f":"'Charges Summary'!G$105","v":63.577087052718944},{"$f":"'Charges Summary'!H$105","v":65.69333383469953},null,0.31221146688734347,5.6126175241223653E-2,4.6874609981034432E-2,4.1383261166248797E-2,3.3286312413554953E-2,null,{"$f":"IF(C24=0,\"\",(D24/'Charges Summary'!D$4)/C24-1)","v":0.2864895586724292},{"$f":"IF(D24=0,\"\",(E24/'Charges Summary'!E$4)/(D24/'Charges Summary'!D$4)-1)","v":3.5424039016669795E-2},{"$f":"IF(E24=0,\"\",(F24/'Charges Summary'!F$4)/(E24/'Charges Summary'!E$4)-1)","v":2.6353822508928149E-2},{"$f":"IF(F24=0,\"\",(G24/'Charges Summary'!G$4)/(F24/'Charges Summary'!F$4)-1)","v":2.0970114858508193E-2},{"$f":"IF(G24=0,\"\",(H24/'Charges Summary'!H$4)/(G24/'Charges Summary'!G$4)-1)","v":1.3031882119119542E-2},null,{"$f":"SUM('DNSP Inputs General'!Q70:U70)/5","v":1781},1.4562499538606968E-2,null,55.057421927610918,58.239361874689443,61.121904111559722,63.869126082183016,66.251658213373446,null,0.1604365990084915,7.7663856040096846E-2,-7.1290544448281423E-2,-0.29203902946407112,-0.55832437867391604]
[{"$f":"'DNSP Inputs General'!A71","v":"LED 18W"},null,{"$f":"'DNSP Inputs General'!E71","v":16.27},{"$f":"'Charges Summary'!D$121","v":29.457088206178284},{"$f":"'Charges Summary'!E$121","v":31.567744733825336},{"$f":"'Charges Summary'!F$121","v":33.381348406593112},{"$f":"'Charges Summary'!G$121","v":35.01160670231161},{"$f":"'Charges Summary'!H$121","v":36.278702047995338},null,{"$f":"IF(C25=0,\"\",D25/C25-1)","v":0.81051556276449199},{"$f":"IF(D25=0,\"\",E25/D25-1)","v":7.1651906423132683E-2},{"$f":"IF(E25=0,\"\",F25/E25-1)","v":5.7451163776817804E-2},{"$f":"IF(F25=0,\"\",G25/F25-1)","v":4.8837400930050734E-2},{"$f":"IF(G25=0,\"\",H25/G25-1)","v":3.6190722592575941E-2},null,{"$f":"IF(C25=0,\"\",(D25/'Charges Summary'!D$4)/C25-1)","v":0.77502592081099708},{"$f":"IF(D25=0,\"\",(E25/'Charges Summary'!E$4)/(D25/'Charges Summary'!D$4)-1)","v":5.0645435537201688E-2},{"$f":"IF(E25=0,\"\",(F25/'Charges Summary'!F$4)/(E25/'Charges Summary'!E$4)-1)","v":3.672305518854202E-2},{"$f":"IF(F25=0,\"\",(G25/'Charges Summary'!G$4)/(F25/'Charges Summary'!F$4)-1)","v":2.8278138920943441E-2},{"$f":"IF(G25=0,\"\",(H25/'Charges Summary'!H$4)/(G25/'Charges Summary'!G$4)-1)","v":1.5879360184736235E-2},null,{"$f":"SUM('DNSP Inputs General'!Q71:U71)/5","v":52548.471118245019},0.42966708950811039,null,29.228545922987898,31.359196237341994,33.21847795069408,34.920797196441129,36.278316389212193,null,0.22854228319038583,0.20854849648334195,0.16287045589903215,9.0809505870481644E-2,3.8565878314500424E-4]
[{"$f":"'DNSP Inputs General'!A72","v":"LED 14W"},null,{"$f":"'DNSP Inputs General'!E72","v":16.27},{"$f":"'Charges Summary'!D$137","v":31.275865072388616},{"$f":"'Charges Summary'!E$137","v":33.429390099387952},{"$f":"'Charges Summary'!F$137","v":35.286353649812462},{"$f":"'Charges Summary'!G$137","v":36.962278298050684},{"$f":"'Charges Summary'!H$137","v":38.278479401150449},null,{"$f":"IF(C26=0,\"\",D26/C26-1)","v":0.92230270881306797},{"$f":"IF(D26=0,\"\",E26/D26-1)","v":6.8855810127552264E-2},{"$f":"IF(E26=0,\"\",F26/E26-1)","v":5.5548831280009203E-2},{"$f":"IF(F26=0,\"\",G26/F26-1)","v":4.7494979641999002E-2},{"$f":"IF(G26=0,\"\",H26/G26-1)","v":3.5609306668987983E-2},null,{"$f":"IF(C26=0,\"\",(D26/'Charges Summary'!D$4)/C26-1)","v":0.88462182041582027},{"$f":"IF(D26=0,\"\",(E26/'Charges Summary'!E$4)/(D26/'Charges Summary'!D$4)-1)","v":4.7904148191314055E-2},{"$f":"IF(E26=0,\"\",(F26/'Charges Summary'!F$4)/(E26/'Charges Summary'!E$4)-1)","v":3.4858012124962645E-2},{"$f":"IF(F26=0,\"\",(G26/'Charges Summary'!G$4)/(F26/'Charges Summary'!F$4)-1)","v":2.6962031712617796E-2},{"$f":"IF(G26=0,\"\",(H26/'Charges Summary'!H$4)/(G26/'Charges Summary'!G$4)-1)","v":1.5309341149072564E-2},null,{"$f":"SUM('DNSP Inputs General'!Q72:U72)/5","v":2732.1167820911937},2.2339387635386503E-2,null,31.054008107993265,33.232905387317004,35.143299338588498,36.901732621344387,38.32045491286226,null,0.22185696439535008,0.19648471207094786,0.14305431122396328,6.0545676706297513E-2,-4.1975511711811464E-2]
[{"$f":"'DNSP Inputs General'!A73","v":"LED 70W-125W (L1)"},null,{"$f":"'DNSP Inputs General'!E73","v":23.59},{"$f":"'Charges Summary'!D$153","v":45.363107933142558},{"$f":"'Charges Summary'!E$153","v":49.015259074438269},{"$f":"'Charges Summary'!F$153","v":52.13747317428134},{"$f":"'Charges Summary'!G$153","v":54.908840248263743},{"$f":"'Charges Summary'!H$153","v":57.028465845906425},null,0.92298041259612362,8.0509279626042263E-2,6.3698818669946089E-2,5.3154994004379175E-2,3.8602629158784874E-2,null,{"$f":"IF(C27=0,\"\",(D27/'Charges Summary'!D$4)/C27-1)","v":0.88528623988080324},{"$f":"IF(D27=0,\"\",(E27/'Charges Summary'!E$4)/(D27/'Charges Summary'!D$4)-1)","v":5.9329186922058685E-2},{"$f":"IF(E27=0,\"\",(F27/'Charges Summary'!F$4)/(E27/'Charges Summary'!E$4)-1)","v":4.2848243840691191E-2},{"$f":"IF(F27=0,\"\",(G27/'Charges Summary'!G$4)/(F27/'Charges Summary'!F$4)-1)","v":3.2511098736403454E-2},{"$f":"IF(G27=0,\"\",(H27/'Charges Summary'!H$4)/(G27/'Charges Summary'!G$4)-1)","v":1.8243988670479716E-2},null,{"$f":"SUM('DNSP Inputs General'!Q73:U73)/5","v":2664.2319699338427},2.1784321635543804E-2,null,48.821185374307021,52.611333640475671,55.935369655162596,58.981985384847007,61.428814168942637,null,-3.4580774411644626,-3.5960745660374016,-3.7978964808812563,-4.073145136583264,-4.4003483230362122]
[{"$f":"'DNSP Inputs General'!A74","v":"LED 155W-250W (L2)"},null,{"$f":"'DNSP Inputs General'!E74","v":24.3},{"$f":"'Charges Summary'!D$169","v":46.035978101825066},{"$f":"'Charges Summary'!E$169","v":49.848773377120132},{"$f":"'Charges Summary'!F$169","v":53.101832349531968},{"$f":"'Charges Summary'!G$169","v":55.98029693532412},{"$f":"'Charges Summary'!H$169","v":58.166508984300336},null,0.89448469554835652,8.2822075961147323E-2,6.5258556069204054E-2,5.4206502081608932E-2,3.9053241384232384E-2,null,{"$f":"IF(C28=0,\"\",(D28/'Charges Summary'!D$4)/C28-1)","v":0.85734909455483299},{"$f":"IF(D28=0,\"\",(E28/'Charges Summary'!E$4)/(D28/'Charges Summary'!D$4)-1)","v":6.1596647930844295E-2},{"$f":"IF(E28=0,\"\",(F28/'Charges Summary'!F$4)/(E28/'Charges Summary'!E$4)-1)","v":4.4377407339906583E-2},{"$f":"IF(F28=0,\"\",(G28/'Charges Summary'!G$4)/(F28/'Charges Summary'!F$4)-1)","v":3.3541995201151531E-2},{"$f":"IF(G28=0,\"\",(H28/'Charges Summary'!H$4)/(G28/'Charges Summary'!G$4)-1)","v":1.868576801601729E-2},null,{"$f":"SUM('DNSP Inputs General'!Q74:U74)/5","v":3178.0769527624893},2.5985819291555974E-2,null,49.485866322784091,53.435280985823042,56.889819003210391,60.044096979312535,62.558548564465355,null,-3.4498882209590249,-3.5865076087029095,-3.7879866536784235,-4.0638000439884152,-4.3920395801650187]
[{"$f":"'DNSP Inputs General'!A75","v":"LED 275W-400W (L4)"},null,{"$f":"'DNSP Inputs General'!E75","v":25.83},{"$f":"'Charges Summary'!D$185","v":52.061665036410623},{"$f":"'Charges Summary'!E$185","v":57.313060660496724},{"$f":"'Charges Summary'!F$185","v":61.73786163573638},{"$f":"'Charges Summary'!G$185","v":65.57540585928723},{"$f":"'Charges Summary'!H$185","v":68.357912897245484},null,1.015550330484345,0.10086876054412408,7.7204060021339505E-2,6.2158683859071751E-2,4.2432174097847053E-2,null,{"$f":"IF(C29=0,\"\",(D29/'Charges Summary'!D$4)/C29-1)","v":0.97604160653893124},{"$f":"IF(D29=0,\"\",(E29/'Charges Summary'!E$4)/(D29/'Charges Summary'!D$4)-1)","v":7.9289582240987366E-2},{"$f":"IF(E29=0,\"\",(F29/'Charges Summary'!F$4)/(E29/'Charges Summary'!E$4)-1)","v":5.6088756078502611E-2},{"$f":"IF(F29=0,\"\",(G29/'Charges Summary'!G$4)/(F29/'Charges Summary'!F$4)-1)","v":4.1338298680832386E-2},{"$f":"IF(G29=0,\"\",(H29/'Charges Summary'!H$4)/(G29/'Charges Summary'!G$4)-1)","v":2.1998467047548598E-2},null,{"$f":"SUM('DNSP Inputs General'!Q75:U75)/5","v":146.13419721125493},1.1948788205859626E-3,null,55.438217152585906,60.813894252877894,65.437103804847979,69.555518730070247,72.675546023250334,null,-3.3765521161752829,-3.50083359238117,-3.6992421691115993,-3.9801128707830173,-4.3176331260048499]
[{"$f":"'DNSP Inputs General'!A76","v":"Compact Fluorescent 32W"},null,{"$f":"'DNSP Inputs General'!E76","v":31.59},{"$f":"IF('DNSP Inputs General'!$B76='DNSP Inputs General'!$A$69,D$23,D$24)*'DNSP Inputs General'!$D76","v":45.488552441421533},{"$f":"IF('DNSP Inputs General'!$B76='DNSP Inputs General'!$A$69,E$23,E$24)*'DNSP Inputs General'!$D76","v":48.103534046750049},{"$f":"IF('DNSP Inputs General'!$B76='DNSP Inputs General'!$A$69,F$23,F$24)*'DNSP Inputs General'!$D76","v":50.403644304280306},{"$f":"IF('DNSP Inputs General'!$B76='DNSP Inputs General'!$A$69,G$23,G$24)*'DNSP Inputs General'!$D76","v":52.523160506329141},{"$f":"IF('DNSP Inputs General'!$B76='DNSP Inputs General'!$A$69,H$23,H$24)*'DNSP Inputs General'!$D76","v":54.285330902460252},null,0.43996683891806065,5.7486586514178262E-2,4.7815826905666992E-2,4.2050852300551611E-2,3.3550349581852767E-2,null,{"$f":"IF(C30=0,\"\",(D30/'Charges Summary'!D$4)/C30-1)","v":0.41174067583549823},{"$f":"IF(D30=0,\"\",(E30/'Charges Summary'!E$4)/(D30/'Charges Summary'!D$4)-1)","v":3.6757783571050195E-2},{"$f":"IF(E30=0,\"\",(F30/'Charges Summary'!F$4)/(E30/'Charges Summary'!E$4)-1)","v":2.7276589743128188E-2},{"$f":"IF(F30=0,\"\",(G30/'Charges Summary'!G$4)/(F30/'Charges Summary'!F$4)-1)","v":2.1624619902409492E-2},{"$f":"IF(G30=0,\"\",(H30/'Charges Summary'!H$4)/(G30/'Charges Summary'!G$4)-1)","v":1.3290743643110448E-2},null,{"$f":"SUM('DNSP Inputs General'!Q76:U76)/5","v":3111.1729493240841},2.5438772958483128E-2,null,45.339331161857125,48.019478543030928,50.438102304415928,52.733811813304584,54.708953665969361,null,0.14922127956440789,8.405550371912085E-2,-3.4458000135622058E-2,-0.21065130697544276,-0.42362276350910832]
[{"$f":"'DNSP Inputs General'!A77","v":"Compact Fluorescent 42W"},null,{"$f":"'DNSP Inputs General'!E77","v":31.59},{"$f":"IF('DNSP Inputs General'!$B77='DNSP Inputs General'!$A$69,D$23,D$24)*'DNSP Inputs General'!$D77","v":45.488552441421533},{"$f":"IF('DNSP Inputs General'!$B77='DNSP Inputs General'!$A$69,E$23,E$24)*'DNSP Inputs General'!$D77","v":48.103534046750049},{"$f":"IF('DNSP Inputs General'!$B77='DNSP Inputs General'!$A$69,F$23,F$24)*'DNSP Inputs General'!$D77","v":50.403644304280306},{"$f":"IF('DNSP Inputs General'!$B77='DNSP Inputs General'!$A$69,G$23,G$24)*'DNSP Inputs General'!$D77","v":52.523160506329141},{"$f":"IF('DNSP Inputs General'!$B77='DNSP Inputs General'!$A$69,H$23,H$24)*'DNSP Inputs General'!$D77","v":54.285330902460252},null,0.43996683891806065,5.7486586514178262E-2,4.7815826905666992E-2,4.2050852300551611E-2,3.3550349581852767E-2,null,{"$f":"IF(C31=0,\"\",(D31/'Charges Summary'!D$4)/C31-1)","v":0.41174067583549823},{"$f":"IF(D31=0,\"\",(E31/'Charges Summary'!E$4)/(D31/'Charges Summary'!D$4)-1)","v":3.6757783571050195E-2},{"$f":"IF(E31=0,\"\",(F31/'Charges Summary'!F$4)/(E31/'Charges Summary'!E$4)-1)","v":2.7276589743128188E-2},{"$f":"IF(F31=0,\"\",(G31/'Charges Summary'!G$4)/(F31/'Charges Summary'!F$4)-1)","v":2.1624619902409492E-2},{"$f":"IF(G31=0,\"\",(H31/'Charges Summary'!H$4)/(G31/'Charges Summary'!G$4)-1)","v":1.3290743643110448E-2},null,{"$f":"SUM('DNSP Inputs General'!Q77:U77)/5","v":1992.1581722933765},1.628905247886266E-2,null,45.339331161857125,48.019478543030928,50.438102304415928,52.733811813304584,54.708953665969361,null,0.14922127956440789,8.405550371912085E-2,-3.4458000135622058E-2,-0.21065130697544276,-0.42362276350910832]
[{"$f":"'DNSP Inputs General'!A78","v":"Smart lighting L1"},null,{"$f":"'DNSP Inputs General'!E78","v":25.83},{"$f":"'Charges Summary'!D$201","v":59.98039628854719},{"$f":"'Charges Summary'!E$201","v":63.94559634246572},{"$f":"'Charges Summary'!F$201","v":67.385949230844076},{"$f":"'Charges Summary'!G$201","v":70.486417935999498},{"$f":"'Charges Summary'!H$201","v":72.949801590593751},null,null,null,null,null,null,null,{"$f":"IF(C32=0,\"\",(D32/'Charges Summary'!D$4)/C32-1)","v":1.2766033041772671},{"$f":"IF(D32=0,\"\",(E32/'Charges Summary'!E$4)/(D32/'Charges Summary'!D$4)-1)","v":4.5210462297913923E-2},{"$f":"IF(E32=0,\"\",(F32/'Charges Summary'!F$4)/(E32/'Charges Summary'!E$4)-1)","v":3.3144684907314037E-2},{"$f":"IF(F32=0,\"\",(G32/'Charges Summary'!G$4)/(F32/'Charges Summary'!F$4)-1)","v":2.5506759715510974E-2},{"$f":"IF(G32=0,\"\",(H32/'Charges Summary'!H$4)/(G32/'Charges Summary'!G$4)-1)","v":1.4661335658303187E-2},null,{"$f":"SUM('DNSP Inputs General'!Q78:U78)/5","v":1271.6120005039527},{"$f":"V32/V$35","v":1.0397444789795561E-2},null,59.780028678833972,63.830373712690246,67.420784369502258,70.740099297558132,73.466102000759506,null,{"$f":"D32-Y32","v":0.20036760971321854},{"$f":"E32-Z32","v":0.11522262977547371},{"$f":"F32-AA32","v":-3.4835138658181108E-2},{"$f":"G32-AB32","v":-0.25368136155863397},{"$f":"H32-AC32","v":-0.5163004101657549}]
[{"$f":"'DNSP Inputs General'!A79","v":"Smart lighting L2"},null,{"$f":"'DNSP Inputs General'!E79","v":25.83},{"$f":"'Charges Summary'!D$217","v":60.653266457229698},{"$f":"'Charges Summary'!E$217","v":64.779110645147583},{"$f":"'Charges Summary'!F$217","v":68.350308406094697},{"$f":"'Charges Summary'!G$217","v":71.557874623059888},{"$f":"'Charges Summary'!H$217","v":74.087844728987648},null,null,null,null,null,null,null,{"$f":"IF(C33=0,\"\",(D33/'Charges Summary'!D$4)/C33-1)","v":1.3021426227562181},{"$f":"IF(D33=0,\"\",(E33/'Charges Summary'!E$4)/(D33/'Charges Summary'!D$4)-1)","v":4.7088099902921066E-2},{"$f":"IF(E33=0,\"\",(F33/'Charges Summary'!F$4)/(E33/'Charges Summary'!E$4)-1)","v":3.4446261589166083E-2},{"$f":"IF(F33=0,\"\",(G33/'Charges Summary'!G$4)/(F33/'Charges Summary'!F$4)-1)","v":2.6406495082859305E-2},{"$f":"IF(G33=0,\"\",(H33/'Charges Summary'!H$4)/(G33/'Charges Summary'!G$4)-1)","v":1.5060587265772973E-2},null,{"$f":"SUM('DNSP Inputs General'!Q79:U79)/5","v":1617.8818125270766},1.3228749662238156E-2,null,60.444709627311042,64.654321058037624,68.37523371755006,71.802210892023666,74.595836396282223,null,0.20855682991865621,0.12478958710995869,-2.4925311455362475E-2,-0.24433626896377802,-0.50799166729457568]
[{"$f":"'DNSP Inputs General'!A80","v":"Smart lighting L4"},null,{"$f":"'DNSP Inputs General'!E80","v":25.83},{"$f":"'Charges Summary'!D$233","v":66.678953391815242},{"$f":"'Charges Summary'!E$233","v":72.243397928524175},{"$f":"'Charges Summary'!F$233","v":76.986337692299116},{"$f":"'Charges Summary'!G$233","v":81.152983547022984},{"$f":"'Charges Summary'!H$233","v":84.27924864193281},null,null,null,null,null,null,null,{"$f":"IF(C34=0,\"\",(D34/'Charges Summary'!D$4)/C34-1)","v":1.5308523284944342},{"$f":"IF(D34=0,\"\",(E34/'Charges Summary'!E$4)/(D34/'Charges Summary'!D$4)-1)","v":6.2213526091469795E-2},{"$f":"IF(E34=0,\"\",(F34/'Charges Summary'!F$4)/(E34/'Charges Summary'!E$4)-1)","v":4.4763358887737859E-2},{"$f":"IF(F34=0,\"\",(G34/'Charges Summary'!G$4)/(F34/'Charges Summary'!F$4)-1)","v":3.3459038557028808E-2},{"$f":"IF(G34=0,\"\",(H34/'Charges Summary'!H$4)/(G34/'Charges Summary'!G$4)-1)","v":1.816602561979197E-2},null,{"$f":"SUM('DNSP Inputs General'!Q80:U80)/5","v":72.882821566150326},5.9593265324505221E-4,null,66.397060457112872,72.032934325092469,76.922518519187648,81.313632642781371,84.712833855067203,null,0.28189293470236976,0.21046360343170534,6.3819173111468785E-2,-0.16064909575838726,-0.43358521313439269]
[null,null,null,null,null,null,null,null,null,null,null,null,null,null,null,null,null,null,null,null,null,{"$f":"SUM(V7:V34)","v":122300.43305947246},1]
[]
["Total Revenue - Nominal ($,000)",null,null,{"$f":"'Cashflow Summary'!D7/10^3","v":9926.0433511785632},{"$f":"'Cashflow Summary'!E7/10^3","v":10205.206215543298},{"$f":"'Cashflow Summary'!F7/10^3","v":10504.688297204933},{"$f":"'Cashflow Summary'!G7/10^3","v":10955.233686323225},{"$f":"'Cashflow Summary'!H7/10^3","v":11451.476544661617},null,null,null,null,null,null,null,null,null,null,null,null,null,null,null,null,9912.928164438139,10207.067218912447,10531.951330405678,11014.928352532912,11550.293827178668,null,{"$f":"D37-Y37","v":13.115186740424178},{"$f":"E37-Z37","v":-1.86100336914933},-27.263033200744758,-59.694666209687057,-98.817282517051353]
[]
[null,null,null,null,null,null,null,null,null,null,null,null,null,null,null,null,null,null,null,null,null,null,null,null,null,null,null,null,null,null,null,null,null,null,{"$f":"SUM(AE37:AI37)/SUM(Y37:AC37)","v":-3.2794077961112644E-3}]
[null,null,null,{"$f":"'DNSP Inputs General'!$B$86","v":"North & East"},null,null,null,null,null,null,null,null,null,null,null,null,null,null,null,null,null,"Average"]
["Public Lighting Tariffs",null,"Nominal Prices",null,null,null,null,null,null,"Nominal Price Movement",null,null,null,null,null,"Real Price Movement (Implied X Factor)",null,null,null,null,null,"Nubmer","% of ",null,{"$f":"Y4","v":"Revised Submission Model"},null,null,null,null,null,"Difference"]
[null,null,"Actual",null,null,null,null,null,null,null,null,null,null,null,null,null,null,null,null,null,null,"of Lights","Total Lights"]
[{"$f":"'DNSP Inputs General'!A$88","v":"Existing Lights"},null,{"$f":"'DNSP Inputs General'!P$2","v":"HY2021"},{"$f":"'DNSP Inputs General'!Q$2","v":"2022-06-30"},{"$f":"'DNSP Inputs General'!R$2","v":"2023-06-30"},{"$f":"'DNSP Inputs General'!S$2","v":"2024-06-30"},{"$f":"'DNSP Inputs General'!T$2","v":"2025-06-30"},{"$f":"'DNSP Inputs General'!U$2","v":"2026-06-30"},null,{"$f":"D43","v":"2022-06-30"},{"$f":"E43","v":"2023-06-30"},"2024-06-30","2025-06-30","2026-06-30",null,{"$f":"J43","v":"2022-06-30"},{"$f":"K43","v":"2023-06-30"},"2024-06-30","2025-06-30","2026-06-30",null,"2022-26","2022-26",null,{"$f":"P43","v":"2022-06-30"},{"$f":"Q43","v":"2023-06-30"},{"$f":"R43","v":"2024-06-30"},{"$f":"S43","v":"2025-06-30"},{"$f":"T43","v":"2026-06-30"},null,{"$f":"Y43","v":"2022-06-30"},{"$f":"Z43","v":"2023-06-30"},{"$f":"AA43","v":"2024-06-30"},{"$f":"AB43","v":"2025-06-30"},{"$f":"AC43","v":"2026-06-30"}]
[{"$f":"'DNSP Inputs General'!A89","v":"Mercury Vapour 80W"},null,{"$f":"'DNSP Inputs General'!E89","v":49.95},{"$f":"'Charges Summary'!K$31","v":67.481766721107732},{"$f":"'Charges Summary'!L$31","v":68.780456810559699},{"$f":"'Charges Summary'!M$31","v":69.440775223021348},{"$f":"'Charges Summary'!N$31","v":75.217043889441968},{"$f":"'Charges Summary'!O$31","v":76.523838062054651},null,{"$f":"IF(C44=0,\"\",D44/C44-1)","v":0.35098632074289737},{"$f":"IF(D44=0,\"\",E44/D44-1)","v":1.9245051701435978E-2},{"$f":"IF(E44=0,\"\",F44/E44-1)","v":9.6003784080751497E-3},{"$f":"IF(F44=0,\"\",G44/F44-1)","v":8.3182663901275822E-2},{"$f":"IF(G44=0,\"\",H44/G44-1)","v":1.7373644390139553E-2},null,{"$f":"IF(C44=0,\"\",(D44/'Charges Summary'!K$4)/C44-1)","v":0.32450434964399921},{"$f":"IF(D44=0,\"\",(E44/'Charges Summary'!L$4)/(D44/'Charges Summary'!K$4)-1)","v":-7.3414245280967183E-4},{"$f":"IF(E44=0,\"\",(F44/'Charges Summary'!M$4)/(E44/'Charges Summary'!L$4)-1)","v":-1.0189761308318945E-2},{"$f":"IF(F44=0,\"\",(G44/'Charges Summary'!N$4)/(F44/'Charges Summary'!M$4)-1)","v":6.1950167642921494E-2},{"$f":"IF(G44=0,\"\",(H44/'Charges Summary'!O$4)/(G44/'Charges Summary'!N$4)-1)","v":-2.5688665249266052E-3},null,{"$f":"SUM('DNSP Inputs General'!Q89:U89)/5","v":1409.3747211161494},{"$f":"V44/V$35","v":1.1523873512621139E-2},null,68.542871999689481,70.126901375789771,71.126203988246701,77.500739405339857,79.123301400876912,null,{"$f":"D44-Y44","v":-1.0611052785817492},{"$f":"E44-Z44","v":-1.3464445652300725},{"$f":"F44-AA44","v":-1.6854287652253532},{"$f":"G44-AB44","v":-2.2836955158978895},{"$f":"H44-AC44","v":-2.599463338822261}]
[{"$f":"'DNSP Inputs General'!A90","v":"HP Sodium 150W"},null,{"$f":"'DNSP Inputs General'!E90","v":118.4},{"$f":"'Charges Summary'!K$55","v":132.79897948699869},{"$f":"'Charges Summary'!L$55","v":135.66787702894655},{"$f":"'Charges Summary'!M$55","v":136.89944637908295},{"$f":"'Charges Summary'!N$55","v":144.99742065883262},{"$f":"'Charges Summary'!O$55","v":148.14486643931701},null,0.12161300242397544,2.1603310153665234E-2,9.0778257691290776E-3,5.9152717515934317E-2,2.1706908758674315E-2,null,{"$f":"IF(C45=0,\"\",(D45/'Charges Summary'!K$4)/C45-1)","v":9.9627196455187361E-2},{"$f":"IF(D45=0,\"\",(E45/'Charges Summary'!L$4)/(D45/'Charges Summary'!K$4)-1)","v":1.5778895267919424E-3},{"$f":"IF(E45=0,\"\",(F45/'Charges Summary'!M$4)/(E45/'Charges Summary'!L$4)-1)","v":-1.0702070894711868E-2},{"$f":"IF(F45=0,\"\",(G45/'Charges Summary'!N$4)/(F45/'Charges Summary'!M$4)-1)","v":3.8391255150310499E-2},{"$f":"IF(G45=0,\"\",(H45/'Charges Summary'!O$4)/(G45/'Charges Summary'!N$4)-1)","v":1.6794573967584547E-3},null,{"$f":"SUM('DNSP Inputs General'!Q90:U90)/5","v":4731.8654033503681},{"$f":"V45/V$35","v":3.8690504072453683E-2},null,134.34635284154172,137.69802327530863,139.52099893793186,148.67308640103997,152.62228372268919,null,-1.5473733545430264,-2.0301462463620794,-2.6215525588489186,-3.6756657422073431,-4.4774172833721764]
[{"$f":"'DNSP Inputs General'!A91","v":"HP Sodium 250W"},null,{"$f":"'DNSP Inputs General'!E91","v":117.12},{"$f":"'Charges Summary'!K$71","v":132.57555660580545},{"$f":"'Charges Summary'!L$71","v":135.51996643721645},{"$f":"'Charges Summary'!M$71","v":137.24316293420702},{"$f":"'Charges Summary'!N$71","v":145.43398225203995},{"$f":"'Charges Summary'!O$71","v":148.53447308805437},null,0.13196342730366672,2.2209296395155231E-2,1.2715443652274505E-2,5.968107367038411E-2,2.1318888391856028E-2,null,{"$f":"IF(C46=0,\"\",(D46/'Charges Summary'!K$4)/C46-1)","v":0.10977473278721783},{"$f":"IF(D46=0,\"\",(E46/'Charges Summary'!L$4)/(D46/'Charges Summary'!K$4)-1)","v":2.1719972541276444E-3},{"$f":"IF(E46=0,\"\",(F46/'Charges Summary'!M$4)/(E46/'Charges Summary'!L$4)-1)","v":-7.1357574283256175E-3},{"$f":"IF(F46=0,\"\",(G46/'Charges Summary'!N$4)/(F46/'Charges Summary'!M$4)-1)","v":3.8909254491965362E-2},{"$f":"IF(G46=0,\"\",(H46/'Charges Summary'!O$4)/(G46/'Charges Summary'!N$4)-1)","v":1.2990429871451159E-3},null,{"$f":"SUM('DNSP Inputs General'!Q91:U91)/5","v":4665.2728258006264},3.8146004139919844E-2,null,134.16706868741318,137.59886384541301,139.94792531127158,149.20149119144901,153.10091869947243,null,-1.5915120816077319,-2.0788974081965534,-2.7047623770645544,-3.7675089394090548,-4.5664456114180609]
[{"$f":"'DNSP Inputs General'!A92","v":"Mercury Vapour 50W"},null,{"$f":"'DNSP Inputs General'!E92","v":73.930000000000007},{"$f":"IF('DNSP Inputs General'!$B92='DNSP Inputs General'!$A$89,D$44,IF('DNSP Inputs General'!$B92='DNSP Inputs General'!$A$90,D$45,D$46))*'DNSP Inputs General'!$D92","v":99.873014747239438},{"$f":"IF('DNSP Inputs General'!$B92='DNSP Inputs General'!$A$89,E$44,IF('DNSP Inputs General'!$B92='DNSP Inputs General'!$A$90,E$45,E$46))*'DNSP Inputs General'!$D92","v":101.79507607962836},{"$f":"IF('DNSP Inputs General'!$B92='DNSP Inputs General'!$A$89,F$44,IF('DNSP Inputs General'!$B92='DNSP Inputs General'!$A$90,F$45,F$46))*'DNSP Inputs General'!$D92","v":102.7723473300716},{"$f":"IF('DNSP Inputs General'!$B92='DNSP Inputs General'!$A$89,G$44,IF('DNSP Inputs General'!$B92='DNSP Inputs General'!$A$90,G$45,G$46))*'DNSP Inputs General'!$D92","v":111.32122495637411},{"$f":"IF('DNSP Inputs General'!$B92='DNSP Inputs General'!$A$89,H$44,IF('DNSP Inputs General'!$B92='DNSP Inputs General'!$A$90,H$45,H$46))*'DNSP Inputs General'!$D92","v":113.25528033184088},null,0.35091322531096214,1.92450517014362E-2,9.6003784080751497E-3,8.31826639012756E-2,1.7373644390139553E-2,null,{"$f":"IF(C47=0,\"\",(D47/'Charges Summary'!K$4)/C47-1)","v":0.32443268702532513},{"$f":"IF(D47=0,\"\",(E47/'Charges Summary'!L$4)/(D47/'Charges Summary'!K$4)-1)","v":-7.3414245280956081E-4},{"$f":"IF(E47=0,\"\",(F47/'Charges Summary'!M$4)/(E47/'Charges Summary'!L$4)-1)","v":-1.0189761308318945E-2},{"$f":"IF(F47=0,\"\",(G47/'Charges Summary'!N$4)/(F47/'Charges Summary'!M$4)-1)","v":6.1950167642921494E-2},{"$f":"IF(G47=0,\"\",(H47/'Charges Summary'!O$4)/(G47/'Charges Summary'!N$4)-1)","v":-2.5688665249267162E-3},null,{"$f":"SUM('DNSP Inputs General'!Q92:U92)/5","v":37.774057601387355},3.0886282784475935E-4,null,101.44345055954044,103.78781403616885,105.26678190260512,114.70109431990299,117.10248607329783,null,-1.5704358123009996,-1.9927379565404948,-2.4944345725335211,-3.3798693635288828,-3.8472057414569463]
[{"$f":"'DNSP Inputs General'!A93","v":"Mercury Vapour 125W"},null,{"$f":"'DNSP Inputs General'!E93","v":73.930000000000007},{"$f":"IF('DNSP Inputs General'!$B93='DNSP Inputs General'!$A$89,D$44,IF('DNSP Inputs General'!$B93='DNSP Inputs General'!$A$90,D$45,D$46))*'DNSP Inputs General'!$D93","v":99.873014747239438},{"$f":"IF('DNSP Inputs General'!$B93='DNSP Inputs General'!$A$89,E$44,IF('DNSP Inputs General'!$B93='DNSP Inputs General'!$A$90,E$45,E$46))*'DNSP Inputs General'!$D93","v":101.79507607962836},{"$f":"IF('DNSP Inputs General'!$B93='DNSP Inputs General'!$A$89,F$44,IF('DNSP Inputs General'!$B93='DNSP Inputs General'!$A$90,F$45,F$46))*'DNSP Inputs General'!$D93","v":102.7723473300716},{"$f":"IF('DNSP Inputs General'!$B93='DNSP Inputs General'!$A$89,G$44,IF('DNSP Inputs General'!$B93='DNSP Inputs General'!$A$90,G$45,G$46))*'DNSP Inputs General'!$D93","v":111.32122495637411},{"$f":"IF('DNSP Inputs General'!$B93='DNSP Inputs General'!$A$89,H$44,IF('DNSP Inputs General'!$B93='DNSP Inputs General'!$A$90,H$45,H$46))*'DNSP Inputs General'!$D93","v":113.25528033184088},null,0.35091322531096214,1.92450517014362E-2,9.6003784080751497E-3,8.31826639012756E-2,1.7373644390139553E-2,null,{"$f":"IF(C48=0,\"\",(D48/'Charges Summary'!K$4)/C48-1)","v":0.32443268702532513},{"$f":"IF(D48=0,\"\",(E48/'Charges Summary'!L$4)/(D48/'Charges Summary'!K$4)-1)","v":-7.3414245280956081E-4},{"$f":"IF(E48=0,\"\",(F48/'Charges Summary'!M$4)/(E48/'Charges Summary'!L$4)-1)","v":-1.0189761308318945E-2},{"$f":"IF(F48=0,\"\",(G48/'Charges Summary'!N$4)/(F48/'Charges Summary'!M$4)-1)","v":6.1950167642921494E-2},{"$f":"IF(G48=0,\"\",(H48/'Charges Summary'!O$4)/(G48/'Charges Summary'!N$4)-1)","v":-2.5688665249267162E-3},null,{"$f":"SUM('DNSP Inputs General'!Q93:U93)/5","v":5.0999999999999996},4.1700588235202427E-5,null,101.44345055954044,103.78781403616885,105.26678190260512,114.70109431990299,117.10248607329783,null,-1.5704358123009996,-1.9927379565404948,-2.4944345725335211,-3.3798693635288828,-3.8472057414569463]
[{"$f":"'DNSP Inputs General'!A94","v":"Mercury Vapour 250W"},null,{"$f":"'DNSP Inputs General'!E94","v":121.81},{"$f":"IF('DNSP Inputs General'!$B94='DNSP Inputs General'!$A$89,D$44,IF('DNSP Inputs General'!$B94='DNSP Inputs General'!$A$90,D$45,D$46))*'DNSP Inputs General'!$D94","v":137.87857887003767},{"$f":"IF('DNSP Inputs General'!$B94='DNSP Inputs General'!$A$89,E$44,IF('DNSP Inputs General'!$B94='DNSP Inputs General'!$A$90,E$45,E$46))*'DNSP Inputs General'!$D94","v":140.94076509470511},{"$f":"IF('DNSP Inputs General'!$B94='DNSP Inputs General'!$A$89,F$44,IF('DNSP Inputs General'!$B94='DNSP Inputs General'!$A$90,F$45,F$46))*'DNSP Inputs General'!$D94","v":142.73288945157532},{"$f":"IF('DNSP Inputs General'!$B94='DNSP Inputs General'!$A$89,G$44,IF('DNSP Inputs General'!$B94='DNSP Inputs General'!$A$90,G$45,G$46))*'DNSP Inputs General'!$D94","v":151.25134154212157},{"$f":"IF('DNSP Inputs General'!$B94='DNSP Inputs General'!$A$89,H$44,IF('DNSP Inputs General'!$B94='DNSP Inputs General'!$A$90,H$45,H$46))*'DNSP Inputs General'!$D94","v":154.47585201157656},null,0.13191510442523335,2.2209296395155231E-2,1.2715443652274727E-2,5.968107367038411E-2,2.1318888391856028E-2,null,{"$f":"IF(C49=0,\"\",(D49/'Charges Summary'!K$4)/C49-1)","v":0.10972735713160264},{"$f":"IF(D49=0,\"\",(E49/'Charges Summary'!L$4)/(D49/'Charges Summary'!K$4)-1)","v":2.1719972541276444E-3},{"$f":"IF(E49=0,\"\",(F49/'Charges Summary'!M$4)/(E49/'Charges Summary'!L$4)-1)","v":-7.1357574283255065E-3},{"$f":"IF(F49=0,\"\",(G49/'Charges Summary'!N$4)/(F49/'Charges Summary'!M$4)-1)","v":3.8909254491965584E-2},{"$f":"IF(G49=0,\"\",(H49/'Charges Summary'!O$4)/(G49/'Charges Summary'!N$4)-1)","v":1.2990429871451159E-3},null,{"$f":"SUM('DNSP Inputs General'!Q94:U94)/5","v":78.456762668978939},6.4150846163256719E-4,null,139.5337514349097,143.10281839922953,145.54584232372244,155.16955083910696,159.22495544745132,null,-1.6551725648720321,-2.1620533045244201,-2.8129528721471218,-3.9182092969853954,-4.7491034358747584]
[{"$f":"'DNSP Inputs General'!A95","v":"Mercury Vapour 400W"},null,{"$f":"'DNSP Inputs General'!E95","v":125.32},{"$f":"IF('DNSP Inputs General'!$B95='DNSP Inputs General'!$A$89,D$44,IF('DNSP Inputs General'!$B95='DNSP Inputs General'!$A$90,D$45,D$46))*'DNSP Inputs General'!$D95","v":141.85584556821183},{"$f":"IF('DNSP Inputs General'!$B95='DNSP Inputs General'!$A$89,E$44,IF('DNSP Inputs General'!$B95='DNSP Inputs General'!$A$90,E$45,E$46))*'DNSP Inputs General'!$D95","v":145.00636408782162},{"$f":"IF('DNSP Inputs General'!$B95='DNSP Inputs General'!$A$89,F$44,IF('DNSP Inputs General'!$B95='DNSP Inputs General'!$A$90,F$45,F$46))*'DNSP Inputs General'!$D95","v":146.85018433960153},{"$f":"IF('DNSP Inputs General'!$B95='DNSP Inputs General'!$A$89,G$44,IF('DNSP Inputs General'!$B95='DNSP Inputs General'!$A$90,G$45,G$46))*'DNSP Inputs General'!$D95","v":155.61436100968277},{"$f":"IF('DNSP Inputs General'!$B95='DNSP Inputs General'!$A$89,H$44,IF('DNSP Inputs General'!$B95='DNSP Inputs General'!$A$90,H$45,H$46))*'DNSP Inputs General'!$D95","v":158.93188620421819},null,0.13194897516926152,2.2209296395155231E-2,1.2715443652274505E-2,5.968107367038411E-2,2.1318888391856028E-2,null,{"$f":"IF(C50=0,\"\",(D50/'Charges Summary'!K$4)/C50-1)","v":0.10976056394287959},{"$f":"IF(D50=0,\"\",(E50/'Charges Summary'!L$4)/(D50/'Charges Summary'!K$4)-1)","v":2.1719972541276444E-3},{"$f":"IF(E50=0,\"\",(F50/'Charges Summary'!M$4)/(E50/'Charges Summary'!L$4)-1)","v":-7.1357574283255065E-3},{"$f":"IF(F50=0,\"\",(G50/'Charges Summary'!N$4)/(F50/'Charges Summary'!M$4)-1)","v":3.8909254491965806E-2},{"$f":"IF(G50=0,\"\",(H50/'Charges Summary'!O$4)/(G50/'Charges Summary'!N$4)-1)","v":1.2990429871448939E-3},null,{"$f":"SUM('DNSP Inputs General'!Q95:U95)/5","v":27.3},2.232207958472601E-4,null,143.55876349553211,147.23078431459192,149.7442800830606,159.64559557485046,163.8179830084355,null,-1.7029179273202715,-2.2244202267702917,-2.8940957434590757,-4.0312345651676935,-4.886096804217317]
[{"$f":"'DNSP Inputs General'!A96","v":"HP Sodium 100W"},null,{"$f":"'DNSP Inputs General'!E96","v":126.69},{"$f":"IF('DNSP Inputs General'!$B96='DNSP Inputs General'!$A$89,D$44,IF('DNSP Inputs General'!$B96='DNSP Inputs General'!$A$90,D$45,D$46))*'DNSP Inputs General'!$D96","v":142.09490805108859},{"$f":"IF('DNSP Inputs General'!$B96='DNSP Inputs General'!$A$89,E$44,IF('DNSP Inputs General'!$B96='DNSP Inputs General'!$A$90,E$45,E$46))*'DNSP Inputs General'!$D96","v":145.1646284209728},{"$f":"IF('DNSP Inputs General'!$B96='DNSP Inputs General'!$A$89,F$44,IF('DNSP Inputs General'!$B96='DNSP Inputs General'!$A$90,F$45,F$46))*'DNSP Inputs General'!$D96","v":146.48240762561875},{"$f":"IF('DNSP Inputs General'!$B96='DNSP Inputs General'!$A$89,G$44,IF('DNSP Inputs General'!$B96='DNSP Inputs General'!$A$90,G$45,G$46))*'DNSP Inputs General'!$D96","v":155.14724010495092},{"$f":"IF('DNSP Inputs General'!$B96='DNSP Inputs General'!$A$89,H$44,IF('DNSP Inputs General'!$B96='DNSP Inputs General'!$A$90,H$45,H$46))*'DNSP Inputs General'!$D96","v":158.51500709006922},null,0.12159529600669816,2.1603310153665234E-2,9.0778257691290776E-3,5.9152717515934317E-2,2.1706908758674315E-2,null,{"$f":"IF(C51=0,\"\",(D51/'Charges Summary'!K$4)/C51-1)","v":9.9609837118279199E-2},{"$f":"IF(D51=0,\"\",(E51/'Charges Summary'!L$4)/(D51/'Charges Summary'!K$4)-1)","v":1.5778895267919424E-3},{"$f":"IF(E51=0,\"\",(F51/'Charges Summary'!M$4)/(E51/'Charges Summary'!L$4)-1)","v":-1.0702070894711868E-2},{"$f":"IF(F51=0,\"\",(G51/'Charges Summary'!N$4)/(F51/'Charges Summary'!M$4)-1)","v":3.8391255150310499E-2},{"$f":"IF(G51=0,\"\",(H51/'Charges Summary'!O$4)/(G51/'Charges Summary'!N$4)-1)","v":1.6794573967586768E-3},null,{"$f":"SUM('DNSP Inputs General'!Q96:U96)/5","v":306.81442198520239},2.5086944854561893E-3,null,143.75059754044963,147.33688490458024,149.28746886358709,159.08020244911276,163.30584358327744,null,-1.6556894893610377,-2.1722564836074412,-2.8050612379683457,-3.9329623441618367,-4.7908364932082179]
[{"$f":"'DNSP Inputs General'!A97","v":"HP Sodium 400W"},null,{"$f":"'DNSP Inputs General'!E97","v":166.31},{"$f":"IF('DNSP Inputs General'!$B97='DNSP Inputs General'!$A$89,D$44,IF('DNSP Inputs General'!$B97='DNSP Inputs General'!$A$90,D$45,D$46))*'DNSP Inputs General'!$D97","v":188.25729038024372},{"$f":"IF('DNSP Inputs General'!$B97='DNSP Inputs General'!$A$89,E$44,IF('DNSP Inputs General'!$B97='DNSP Inputs General'!$A$90,E$45,E$46))*'DNSP Inputs General'!$D97","v":192.43835234084736},{"$f":"IF('DNSP Inputs General'!$B97='DNSP Inputs General'!$A$89,F$44,IF('DNSP Inputs General'!$B97='DNSP Inputs General'!$A$90,F$45,F$46))*'DNSP Inputs General'!$D97","v":194.88529136657397},{"$f":"IF('DNSP Inputs General'!$B97='DNSP Inputs General'!$A$89,G$44,IF('DNSP Inputs General'!$B97='DNSP Inputs General'!$A$90,G$45,G$46))*'DNSP Inputs General'!$D97","v":206.51625479789672},{"$f":"IF('DNSP Inputs General'!$B97='DNSP Inputs General'!$A$89,H$44,IF('DNSP Inputs General'!$B97='DNSP Inputs General'!$A$90,H$45,H$46))*'DNSP Inputs General'!$D97","v":210.91895178503719},null,0.13196614984212451,2.2209296395155231E-2,1.2715443652274505E-2,5.968107367038411E-2,2.1318888391856028E-2,null,{"$f":"IF(C52=0,\"\",(D52/'Charges Summary'!K$4)/C52-1)","v":0.10977740195860308},{"$f":"IF(D52=0,\"\",(E52/'Charges Summary'!L$4)/(D52/'Charges Summary'!K$4)-1)","v":2.1719972541276444E-3},{"$f":"IF(E52=0,\"\",(F52/'Charges Summary'!M$4)/(E52/'Charges Summary'!L$4)-1)","v":-7.1357574283255065E-3},{"$f":"IF(F52=0,\"\",(G52/'Charges Summary'!N$4)/(F52/'Charges Summary'!M$4)-1)","v":3.8909254491965584E-2},{"$f":"IF(G52=0,\"\",(H52/'Charges Summary'!O$4)/(G52/'Charges Summary'!N$4)-1)","v":1.2990429871451159E-3},null,{"$f":"SUM('DNSP Inputs General'!Q97:U97)/5","v":340.31744511199616},2.7826348329159718E-3,null,190.51723753612671,195.39038666048646,198.72605394200562,211.86611749185758,217.40330455325085,null,-2.2599471558829975,-2.9520343196390968,-3.8407625754316541,-5.3498626939608585,-6.4843527682136539]
[{"$f":"'DNSP Inputs General'!A98","v":"Metal Halide 70W"},null,{"$f":"'DNSP Inputs General'!E98","v":190.05},{"$f":"IF('DNSP Inputs General'!$B98='DNSP Inputs General'!$A$89,D$44,IF('DNSP Inputs General'!$B98='DNSP Inputs General'!$A$90,D$45,D$46))*'DNSP Inputs General'!$D98","v":256.73047003377008},{"$f":"IF('DNSP Inputs General'!$B98='DNSP Inputs General'!$A$89,E$44,IF('DNSP Inputs General'!$B98='DNSP Inputs General'!$A$90,E$45,E$46))*'DNSP Inputs General'!$D98","v":261.67126120290396},{"$f":"IF('DNSP Inputs General'!$B98='DNSP Inputs General'!$A$89,F$44,IF('DNSP Inputs General'!$B98='DNSP Inputs General'!$A$90,F$45,F$46))*'DNSP Inputs General'!$D98","v":264.18340432897014},{"$f":"IF('DNSP Inputs General'!$B98='DNSP Inputs General'!$A$89,G$44,IF('DNSP Inputs General'!$B98='DNSP Inputs General'!$A$90,G$45,G$46))*'DNSP Inputs General'!$D98","v":286.1588836595617},{"$f":"IF('DNSP Inputs General'!$B98='DNSP Inputs General'!$A$89,H$44,IF('DNSP Inputs General'!$B98='DNSP Inputs General'!$A$90,H$45,H$46))*'DNSP Inputs General'!$D98","v":291.13050634334223},null,{"$f":"IF(C53=0,\"\",D53/C53-1)","v":0.35085751135895848},{"$f":"IF(D53=0,\"\",E53/D53-1)","v":1.9245051701435978E-2},{"$f":"IF(E53=0,\"\",F53/E53-1)","v":9.6003784080751497E-3},{"$f":"IF(F53=0,\"\",G53/F53-1)","v":8.3182663901275822E-2},{"$f":"IF(G53=0,\"\",H53/G53-1)","v":1.7373644390139553E-2},null,{"$f":"IF(C53=0,\"\",(D53/'Charges Summary'!K$4)/C53-1)","v":0.32437806517562029},{"$f":"IF(D53=0,\"\",(E53/'Charges Summary'!L$4)/(D53/'Charges Summary'!K$4)-1)","v":-7.3414245280978285E-4},{"$f":"IF(E53=0,\"\",(F53/'Charges Summary'!M$4)/(E53/'Charges Summary'!L$4)-1)","v":-1.0189761308318834E-2},{"$f":"IF(F53=0,\"\",(G53/'Charges Summary'!N$4)/(F53/'Charges Summary'!M$4)-1)","v":6.1950167642921716E-2},{"$f":"IF(G53=0,\"\",(H53/'Charges Summary'!O$4)/(G53/'Charges Summary'!N$4)-1)","v":-2.5688665249266052E-3},null,{"$f":"SUM('DNSP Inputs General'!Q98:U98)/5","v":0},0,null,260.76738356111548,266.79373150713519,270.59552037348675,294.84707087957844,301.02001394277278,null,-4.0369135273454049,-5.1224703042312285,-6.4121160445166083,-8.6881872200167436,-9.8895075994305444]
[{"$f":"'DNSP Inputs General'!A99","v":"Metal Halide 100W"},null,{"$f":"'DNSP Inputs General'!E99","v":250.78},{"$f":"IF('DNSP Inputs General'!$B99='DNSP Inputs General'!$A$89,D$44,IF('DNSP Inputs General'!$B99='DNSP Inputs General'!$A$90,D$45,D$46))*'DNSP Inputs General'!$D99","v":281.2747602820989},{"$f":"IF('DNSP Inputs General'!$B99='DNSP Inputs General'!$A$89,E$44,IF('DNSP Inputs General'!$B99='DNSP Inputs General'!$A$90,E$45,E$46))*'DNSP Inputs General'!$D99","v":287.3512261668709},{"$f":"IF('DNSP Inputs General'!$B99='DNSP Inputs General'!$A$89,F$44,IF('DNSP Inputs General'!$B99='DNSP Inputs General'!$A$90,F$45,F$46))*'DNSP Inputs General'!$D99","v":289.95975053255933},{"$f":"IF('DNSP Inputs General'!$B99='DNSP Inputs General'!$A$89,G$44,IF('DNSP Inputs General'!$B99='DNSP Inputs General'!$A$90,G$45,G$46))*'DNSP Inputs General'!$D99","v":307.11165774680262},{"$f":"IF('DNSP Inputs General'!$B99='DNSP Inputs General'!$A$89,H$44,IF('DNSP Inputs General'!$B99='DNSP Inputs General'!$A$90,H$45,H$46))*'DNSP Inputs General'!$D99","v":313.77810248023764},null,0.12159965021971009,2.1603310153665234E-2,9.0778257691288555E-3,5.9152717515934317E-2,2.1706908758674093E-2,null,{"$f":"IF(C54=0,\"\",(D54/'Charges Summary'!K$4)/C54-1)","v":9.9614105980209811E-2},{"$f":"IF(D54=0,\"\",(E54/'Charges Summary'!L$4)/(D54/'Charges Summary'!K$4)-1)","v":1.5778895267919424E-3},{"$f":"IF(E54=0,\"\",(F54/'Charges Summary'!M$4)/(E54/'Charges Summary'!L$4)-1)","v":-1.0702070894711868E-2},{"$f":"IF(F54=0,\"\",(G54/'Charges Summary'!N$4)/(F54/'Charges Summary'!M$4)-1)","v":3.8391255150310499E-2},{"$f":"IF(G54=0,\"\",(H54/'Charges Summary'!O$4)/(G54/'Charges Summary'!N$4)-1)","v":1.6794573967584547E-3},null,{"$f":"SUM('DNSP Inputs General'!Q99:U99)/5","v":0},0,null,284.55217303818569,291.65117561670087,295.51232759607018,314.89689829993284,323.26149217139658,null,-3.2774127560867896,-4.2999494498299669,-5.5525770635108529,-7.7852405531302225,-9.4833896911589477]
[{"$f":"'DNSP Inputs General'!A100","v":"Metal Halide 150W"},null,{"$f":"'DNSP Inputs General'!E100","v":284.91000000000003},{"$f":"IF('DNSP Inputs General'!$B100='DNSP Inputs General'!$A$89,D$44,IF('DNSP Inputs General'!$B100='DNSP Inputs General'!$A$90,D$45,D$46))*'DNSP Inputs General'!$D100","v":319.55349742897158},{"$f":"IF('DNSP Inputs General'!$B100='DNSP Inputs General'!$A$89,E$44,IF('DNSP Inputs General'!$B100='DNSP Inputs General'!$A$90,E$45,E$46))*'DNSP Inputs General'!$D100","v":326.45691074461809},{"$f":"IF('DNSP Inputs General'!$B100='DNSP Inputs General'!$A$89,F$44,IF('DNSP Inputs General'!$B100='DNSP Inputs General'!$A$90,F$45,F$46))*'DNSP Inputs General'!$D100","v":329.42042970148583},{"$f":"IF('DNSP Inputs General'!$B100='DNSP Inputs General'!$A$89,G$44,IF('DNSP Inputs General'!$B100='DNSP Inputs General'!$A$90,G$45,G$46))*'DNSP Inputs General'!$D100","v":348.90654332359549},{"$f":"IF('DNSP Inputs General'!$B100='DNSP Inputs General'!$A$89,H$44,IF('DNSP Inputs General'!$B100='DNSP Inputs General'!$A$90,H$45,H$46))*'DNSP Inputs General'!$D100","v":356.4802258248252},null,0.12159452960223072,2.1603310153665012E-2,9.0778257691290776E-3,5.9152717515934317E-2,2.1706908758674315E-2,null,{"$f":"IF(C55=0,\"\",(D55/'Charges Summary'!K$4)/C55-1)","v":9.9609085736836356E-2},{"$f":"IF(D55=0,\"\",(E55/'Charges Summary'!L$4)/(D55/'Charges Summary'!K$4)-1)","v":1.5778895267919424E-3},{"$f":"IF(E55=0,\"\",(F55/'Charges Summary'!M$4)/(E55/'Charges Summary'!L$4)-1)","v":-1.0702070894711757E-2},{"$f":"IF(F55=0,\"\",(G55/'Charges Summary'!N$4)/(F55/'Charges Summary'!M$4)-1)","v":3.8391255150310277E-2},{"$f":"IF(G55=0,\"\",(H55/'Charges Summary'!O$4)/(G55/'Charges Summary'!N$4)-1)","v":1.6794573967586768E-3},null,{"$f":"SUM('DNSP Inputs General'!Q100:U100)/5","v":0},0,null,323.27693392812807,331.34204115618735,335.728658063708,357.7512787864701,367.25421187409739,null,-3.7234364991564917,-4.8851304115692642,-6.3082283622221667,-8.8447354628746098,-10.773986049272196]
[{"$f":"'DNSP Inputs General'!A101","v":"HP Sodium 50W"},null,{"$f":"'DNSP Inputs General'!E101","v":53.84},{"$f":"IF('DNSP Inputs General'!$B101='DNSP Inputs General'!$A$89,D$44,IF('DNSP Inputs General'!$B101='DNSP Inputs General'!$A$90,D$45,D$46))*'DNSP Inputs General'!$D101","v":60.387621336210948},{"$f":"IF('DNSP Inputs General'!$B101='DNSP Inputs General'!$A$89,E$44,IF('DNSP Inputs General'!$B101='DNSP Inputs General'!$A$90,E$45,E$46))*'DNSP Inputs General'!$D101","v":61.692193849379208},{"$f":"IF('DNSP Inputs General'!$B101='DNSP Inputs General'!$A$89,F$44,IF('DNSP Inputs General'!$B101='DNSP Inputs General'!$A$90,F$45,F$46))*'DNSP Inputs General'!$D101","v":62.252224836459199},{"$f":"IF('DNSP Inputs General'!$B101='DNSP Inputs General'!$A$89,G$44,IF('DNSP Inputs General'!$B101='DNSP Inputs General'!$A$90,G$45,G$46))*'DNSP Inputs General'!$D101","v":65.934613106948703},{"$f":"IF('DNSP Inputs General'!$B101='DNSP Inputs General'!$A$89,H$44,IF('DNSP Inputs General'!$B101='DNSP Inputs General'!$A$90,H$45,H$46))*'DNSP Inputs General'!$D101","v":67.365849737699719},null,0.12161258053883617,2.1603310153665234E-2,9.0778257691288555E-3,5.9152717515934317E-2,2.1706908758674093E-2,null,{"$f":"IF(C56=0,\"\",(D56/'Charges Summary'!K$4)/C56-1)","v":9.9626782839821182E-2},{"$f":"IF(D56=0,\"\",(E56/'Charges Summary'!L$4)/(D56/'Charges Summary'!K$4)-1)","v":1.5778895267921644E-3},{"$f":"IF(E56=0,\"\",(F56/'Charges Summary'!M$4)/(E56/'Charges Summary'!L$4)-1)","v":-1.0702070894711868E-2},{"$f":"IF(F56=0,\"\",(G56/'Charges Summary'!N$4)/(F56/'Charges Summary'!M$4)-1)","v":3.8391255150310499E-2},{"$f":"IF(G56=0,\"\",(H56/'Charges Summary'!O$4)/(G56/'Charges Summary'!N$4)-1)","v":1.6794573967582327E-3},null,{"$f":"SUM('DNSP Inputs General'!Q101:U101)/5","v":0},0,null,61.091257738846366,62.615361356057562,63.444322274619424,67.606046967783683,69.40186372302523,null,-0.70363640263541782,-0.92316750667835379,-1.192097438160225,-1.6714338608349806,-2.0360139853255106]
[]
[]
[{"$f":"'DNSP Inputs General'!A$115","v":"Energy Efficient Lights"}]
[{"$f":"'DNSP Inputs General'!A116","v":"T5 2X14W"},null,{"$f":"'DNSP Inputs General'!E116","v":40.6},{"$f":"'Charges Summary'!K$89","v":57.561329976614793},{"$f":"'Charges Summary'!L$89","v":60.665595427327332},{"$f":"'Charges Summary'!M$89","v":63.413320317257693},{"$f":"'Charges Summary'!N$89","v":65.965723553254364},{"$f":"'Charges Summary'!O$89","v":68.125736475864713},null,{"$f":"IF(C60=0,\"\",D60/C60-1)","v":0.4177667481924825},5.3929703361157433E-2,4.5292968289117441E-2,4.0250269552626561E-2,3.2744474042895266E-2,null,{"$f":"IF(C60=0,\"\",(D60/'Charges Summary'!K$4)/C60-1)","v":0.38997575025701381},{"$f":"IF(D60=0,\"\",(E60/'Charges Summary'!L$4)/(D60/'Charges Summary'!K$4)-1)","v":3.3270622276359463E-2},{"$f":"IF(E60=0,\"\",(F60/'Charges Summary'!M$4)/(E60/'Charges Summary'!L$4)-1)","v":2.4803184083980412E-2},{"$f":"IF(F60=0,\"\",(G60/'Charges Summary'!N$4)/(F60/'Charges Summary'!M$4)-1)","v":1.9859332093862925E-2},{"$f":"IF(G60=0,\"\",(H60/'Charges Summary'!O$4)/(G60/'Charges Summary'!N$4)-1)","v":1.2500664839030229E-2},null,{"$f":"SUM('DNSP Inputs General'!Q116:U116)/5","v":7103.567626689789},{"$f":"V60/V$35","v":5.8082931098334331E-2},null,57.413418522600445,60.609154948294979,63.516413112207104,66.302312398574941,68.742768476244535,null,{"$f":"D60-Y60","v":0.14791145401434846},{"$f":"E60-Z60","v":5.6440479032353608E-2},{"$f":"F60-AA60","v":-0.10309279494941137},{"$f":"G60-AB60","v":-0.33658884532057698},{"$f":"H60-AC60","v":-0.61703200037982242}]
[{"$f":"'DNSP Inputs General'!A117","v":"T5 2X24W"},null,{"$f":"'DNSP Inputs General'!E117","v":47.91},{"$f":"'Charges Summary'!K$105","v":61.621631647001188},{"$f":"'Charges Summary'!L$105","v":64.865658447679962},{"$f":"'Charges Summary'!M$105","v":67.74566992335177},{"$f":"'Charges Summary'!N$105","v":70.429348771686278},{"$f":"'Charges Summary'!O$105","v":72.717865388093827},null,0.28619560941350852,5.2644286007584862E-2,4.439963371365141E-2,3.9614027750715985E-2,3.2493792095484642E-2,null,{"$f":"IF(C61=0,\"\",(D61/'Charges Summary'!K$4)/C61-1)","v":0.26098366282822516},{"$f":"IF(D61=0,\"\",(E61/'Charges Summary'!L$4)/(D61/'Charges Summary'!K$4)-1)","v":3.2010401614037232E-2},{"$f":"IF(E61=0,\"\",(F61/'Charges Summary'!M$4)/(E61/'Charges Summary'!L$4)-1)","v":2.392736061136258E-2},{"$f":"IF(F61=0,\"\",(G61/'Charges Summary'!N$4)/(F61/'Charges Summary'!M$4)-1)","v":1.9235561874196838E-2},{"$f":"IF(G61=0,\"\",(H61/'Charges Summary'!O$4)/(G61/'Charges Summary'!N$4)-1)","v":1.2254896747507127E-2},null,{"$f":"SUM('DNSP Inputs General'!Q117:U117)/5","v":1020},8.3401176470404865E-3,null,61.484255659556155,64.82998361365442,67.886130713665693,70.827083019833225,73.424122496487044,null,0.13737598744503288,3.5674834025542168E-2,-0.14046079031392367,-0.39773424814694636,-0.70625710839321698]
[{"$f":"'DNSP Inputs General'!A118","v":"LED 18W"},null,{"$f":"'DNSP Inputs General'!E118","v":16.739999999999998},{"$f":"'Charges Summary'!K$121","v":31.576686788942666},{"$f":"'Charges Summary'!L$121","v":33.728476652900881},{"$f":"'Charges Summary'!M$121","v":35.583719844709407},{"$f":"'Charges Summary'!N$121","v":37.260305156510654},{"$f":"'Charges Summary'!O$121","v":38.579556642865874},null,{"$f":"IF(C62=0,\"\",D62/C62-1)","v":0.88630148082094795},{"$f":"IF(D62=0,\"\",E62/D62-1)","v":6.8144890511810052E-2},{"$f":"IF(E62=0,\"\",F62/E62-1)","v":5.5005247076551855E-2},{"$f":"IF(F62=0,\"\",G62/F62-1)","v":4.7116639831867424E-2},{"$f":"IF(G62=0,\"\",H62/G62-1)","v":3.5406352170594069E-2},null,{"$f":"IF(C62=0,\"\",(D62/'Charges Summary'!K$4)/C62-1)","v":0.84932628682235856},{"$f":"IF(D62=0,\"\",(E62/'Charges Summary'!L$4)/(D62/'Charges Summary'!K$4)-1)","v":4.7207163988853607E-2},{"$f":"IF(E62=0,\"\",(F62/'Charges Summary'!M$4)/(E62/'Charges Summary'!L$4)-1)","v":3.4325083233809561E-2},{"$f":"IF(F62=0,\"\",(G62/'Charges Summary'!N$4)/(F62/'Charges Summary'!M$4)-1)","v":2.6591108101868599E-2},{"$f":"IF(G62=0,\"\",(H62/'Charges Summary'!O$4)/(G62/'Charges Summary'!N$4)-1)","v":1.5110364955327915E-2},null,{"$f":"SUM('DNSP Inputs General'!Q118:U118)/5","v":24958.328037255975},0.20407391382759207,null,31.355457681173533,33.534176424697662,35.4438182806566,37.203172852659812,38.62482223894871,null,0.22122910776913329,0.19430022820321824,0.13990156405280629,5.7132303850842447E-2,-4.5265596082835202E-2]
[{"$f":"'DNSP Inputs General'!A119","v":"LED 14W"},null,{"$f":"'DNSP Inputs General'!E119","v":16.739999999999998},{"$f":"'Charges Summary'!K$137","v":33.325463350293973},{"$f":"'Charges Summary'!L$137","v":35.518166804654335},{"$f":"'Charges Summary'!M$137","v":37.414807105539225},{"$f":"'Charges Summary'!N$137","v":39.134933847283904},{"$f":"'Charges Summary'!O$137","v":40.500907978295359},null,{"$f":"IF(C63=0,\"\",D63/C63-1)","v":0.9907684199697715},{"$f":"IF(D63=0,\"\",E63/D63-1)","v":6.5796638183607481E-2},{"$f":"IF(E63=0,\"\",F63/E63-1)","v":5.3399160810190027E-2},{"$f":"IF(F63=0,\"\",G63/F63-1)","v":4.5974491780555349E-2},{"$f":"IF(G63=0,\"\",H63/G63-1)","v":3.4904214642137665E-2},null,{"$f":"IF(C63=0,\"\",(D63/'Charges Summary'!K$4)/C63-1)","v":0.95174546988301678},{"$f":"IF(D63=0,\"\",(E63/'Charges Summary'!L$4)/(D63/'Charges Summary'!K$4)-1)","v":4.4904941993699987E-2},{"$f":"IF(E63=0,\"\",(F63/'Charges Summary'!M$4)/(E63/'Charges Summary'!L$4)-1)","v":3.2750479395829535E-2},{"$f":"IF(F63=0,\"\",(G63/'Charges Summary'!N$4)/(F63/'Charges Summary'!M$4)-1)","v":2.5471348383599546E-2},{"$f":"IF(G63=0,\"\",(H63/'Charges Summary'!O$4)/(G63/'Charges Summary'!N$4)-1)","v":1.4618070303377362E-2},null,{"$f":"SUM('DNSP Inputs General'!Q119:U119)/5","v":962.88321790880616},7.8730973703140823E-3,null,33.110662259634097,35.335541050496154,37.294011842432667,39.106819490709597,40.586627078571368,null,0.21480109065987563,0.18262575415818105,0.12079526310655808,2.8114356574306498E-2,-8.571910027600893E-2]
[{"$f":"'DNSP Inputs General'!A120","v":"LED 70W-125W (L1)"},null,{"$f":"'DNSP Inputs General'!E120","v":24.09},{"$f":"'Charges Summary'!K$153","v":51.237269733914715},{"$f":"'Charges Summary'!L$153","v":55.024649891574384},{"$f":"'Charges Summary'!M$153","v":58.283410606566058},{"$f":"'Charges Summary'!N$153","v":61.202120660457624},{"$f":"'Charges Summary'!O$153","v":63.484328789402227},null,1.126910325193637,7.3918461645756661E-2,5.9223651970762736E-2,5.0077887061104054E-2,3.7289690362300343E-2,null,{"$f":"IF(C64=0,\"\",(D64/'Charges Summary'!K$4)/C64-1)","v":1.0852187278051799},{"$f":"IF(D64=0,\"\",(E64/'Charges Summary'!L$4)/(D64/'Charges Summary'!K$4)-1)","v":5.2867561849645028E-2},{"$f":"IF(E64=0,\"\",(F64/'Charges Summary'!M$4)/(E64/'Charges Summary'!L$4)-1)","v":3.8460799151250447E-2},{"$f":"IF(F64=0,\"\",(G64/'Charges Summary'!N$4)/(F64/'Charges Summary'!M$4)-1)","v":2.9494309100482896E-2},{"$f":"IF(G64=0,\"\",(H64/'Charges Summary'!O$4)/(G64/'Charges Summary'!N$4)-1)","v":1.6956786039290961E-2},null,{"$f":"SUM('DNSP Inputs General'!Q120:U120)/5","v":711.60643679010252},5.818511177667387E-3,null,56.376499424575051,60.364185321664742,63.898816062312193,67.182402681379983,69.893333799909101,null,-5.1392296906603363,-5.3395354300903577,-5.615405455746135,-5.9802820209223597,-6.4090050105068741]
[{"$f":"'DNSP Inputs General'!A121","v":"LED 155W-250W (L2)"},null,{"$f":"'DNSP Inputs General'!E121","v":24.89},{"$f":"'Charges Summary'!K$169","v":51.910139902597223},{"$f":"'Charges Summary'!L$169","v":55.85816419425624},{"$f":"'Charges Summary'!M$169","v":59.247769781816679},{"$f":"'Charges Summary'!N$169","v":62.273577347518},{"$f":"'Charges Summary'!O$169","v":64.622371927796138},null,1.085582157597317,7.6054973056651098E-2,6.0682366426732415E-2,5.1070404453096296E-2,3.7717354298929751E-2,null,{"$f":"IF(C65=0,\"\",(D65/'Charges Summary'!K$4)/C65-1)","v":1.0447006730301758},{"$f":"IF(D65=0,\"\",(E65/'Charges Summary'!L$4)/(D65/'Charges Summary'!K$4)-1)","v":5.4962193463115039E-2},{"$f":"IF(E65=0,\"\",(F65/'Charges Summary'!M$4)/(E65/'Charges Summary'!L$4)-1)","v":3.9890919954219006E-2},{"$f":"IF(F65=0,\"\",(G65/'Charges Summary'!N$4)/(F65/'Charges Summary'!M$4)-1)","v":3.0467371212665073E-2},{"$f":"IF(G65=0,\"\",(H65/'Charges Summary'!O$4)/(G65/'Charges Summary'!N$4)-1)","v":1.7376066927301759E-2},null,{"$f":"SUM('DNSP Inputs General'!Q121:U121)/5","v":1557.6399860879762},1.2736177191870812E-2,null,57.041180373052114,61.18813266701212,64.853265410359981,68.244514275845518,71.023068195431819,null,-5.1310404704548915,-5.3299684727558798,-5.6054956285433022,-5.970936928327518,-6.4006962676356807]
[{"$f":"'DNSP Inputs General'!A122","v":"LED 275W-400W (L4)"},null,{"$f":"'DNSP Inputs General'!E122","v":26.37},{"$f":"'Charges Summary'!K$185","v":57.935826837182773},{"$f":"'Charges Summary'!L$185","v":63.322451477632839},{"$f":"'Charges Summary'!M$185","v":67.883799068021105},{"$f":"'Charges Summary'!N$185","v":71.868686271481096},{"$f":"'Charges Summary'!O$185","v":74.813775840741272},null,1.1970355266280914,9.2975710100558606E-2,7.2033654477187348E-2,5.8701593873186741E-2,4.0978758928961412E-2,null,{"$f":"IF(C66=0,\"\",(D66/'Charges Summary'!K$4)/C66-1)","v":1.1539693382987943},{"$f":"IF(D66=0,\"\",(E66/'Charges Summary'!L$4)/(D66/'Charges Summary'!K$4)-1)","v":7.1551251005543604E-2},{"$f":"IF(E66=0,\"\",(F66/'Charges Summary'!M$4)/(E66/'Charges Summary'!L$4)-1)","v":5.1019700583635252E-2},{"$f":"IF(F66=0,\"\",(G66/'Charges Summary'!N$4)/(F66/'Charges Summary'!M$4)-1)","v":3.794897441225098E-2},{"$f":"IF(G66=0,\"\",(H66/'Charges Summary'!O$4)/(G66/'Charges Summary'!N$4)-1)","v":2.0573541655284577E-2},null,{"$f":"SUM('DNSP Inputs General'!Q122:U122)/5","v":123.96793943103694},1.01363450913337E-3,null,62.993531202853944,68.566745934066972,73.400550211997583,77.755936026603237,81.140065654216812,null,-5.0577043656711709,-5.2442944564341332,-5.516751143976478,-5.8872497551221414,-6.3262898134755403]
[{"$f":"'DNSP Inputs General'!A123","v":"Compact Fluorescent 32W"},null,{"$f":"'DNSP Inputs General'!E123","v":36.130000000000003},{"$f":"IF('DNSP Inputs General'!$B123='DNSP Inputs General'!$A$116,D$60,D$61)*'DNSP Inputs General'!$D123","v":50.631515274548683},{"$f":"IF('DNSP Inputs General'!$B123='DNSP Inputs General'!$A$116,E$60,E$61)*'DNSP Inputs General'!$D123","v":53.362057874031009},{"$f":"IF('DNSP Inputs General'!$B123='DNSP Inputs General'!$A$116,F$60,F$61)*'DNSP Inputs General'!$D123","v":55.778983869161536},{"$f":"IF('DNSP Inputs General'!$B123='DNSP Inputs General'!$A$116,G$60,G$61)*'DNSP Inputs General'!$D123","v":58.024103005266895},{"$f":"IF('DNSP Inputs General'!$B123='DNSP Inputs General'!$A$116,H$60,H$61)*'DNSP Inputs General'!$D123","v":59.924071739985145},null,0.40137047535423975,5.3929703361157433E-2,4.5292968289117219E-2,4.0250269552626561E-2,3.2744474042895488E-2,null,{"$f":"IF(C67=0,\"\",(D67/'Charges Summary'!K$4)/C67-1)","v":0.37390087639725444},{"$f":"IF(D67=0,\"\",(E67/'Charges Summary'!L$4)/(D67/'Charges Summary'!K$4)-1)","v":3.3270622276359463E-2},{"$f":"IF(E67=0,\"\",(F67/'Charges Summary'!M$4)/(E67/'Charges Summary'!L$4)-1)","v":2.4803184083980412E-2},{"$f":"IF(F67=0,\"\",(G67/'Charges Summary'!N$4)/(F67/'Charges Summary'!M$4)-1)","v":1.9859332093862925E-2},{"$f":"IF(G67=0,\"\",(H67/'Charges Summary'!O$4)/(G67/'Charges Summary'!N$4)-1)","v":1.2500664839030229E-2},null,{"$f":"SUM('DNSP Inputs General'!Q123:U123)/5","v":681.82705067591576},5.5750174682076209E-3,null,50.501410896379333,53.312412270335081,55.869665311447491,58.320169883325747,60.466819191526113,null,0.13010437816934939,4.9645603695928742E-2,-9.0681442285955427E-2,-0.29606687805885201,-0.54274745154096848]
[{"$f":"'DNSP Inputs General'!A124","v":"Compact Fluorescent 42W"},null,{"$f":"'DNSP Inputs General'!E124","v":36.130000000000003},{"$f":"IF('DNSP Inputs General'!$B124='DNSP Inputs General'!$A$116,D$60,D$61)*'DNSP Inputs General'!$D124","v":50.631515274548683},{"$f":"IF('DNSP Inputs General'!$B124='DNSP Inputs General'!$A$116,E$60,E$61)*'DNSP Inputs General'!$D124","v":53.362057874031009},{"$f":"IF('DNSP Inputs General'!$B124='DNSP Inputs General'!$A$116,F$60,F$61)*'DNSP Inputs General'!$D124","v":55.778983869161536},{"$f":"IF('DNSP Inputs General'!$B124='DNSP Inputs General'!$A$116,G$60,G$61)*'DNSP Inputs General'!$D124","v":58.024103005266895},{"$f":"IF('DNSP Inputs General'!$B124='DNSP Inputs General'!$A$116,H$60,H$61)*'DNSP Inputs General'!$D124","v":59.924071739985145},null,0.40137047535423975,5.3929703361157433E-2,4.5292968289117219E-2,4.0250269552626561E-2,3.2744474042895488E-2,null,{"$f":"IF(C68=0,\"\",(D68/'Charges Summary'!K$4)/C68-1)","v":0.37390087639725444},{"$f":"IF(D68=0,\"\",(E68/'Charges Summary'!L$4)/(D68/'Charges Summary'!K$4)-1)","v":3.3270622276359463E-2},{"$f":"IF(E68=0,\"\",(F68/'Charges Summary'!M$4)/(E68/'Charges Summary'!L$4)-1)","v":2.4803184083980412E-2},{"$f":"IF(F68=0,\"\",(G68/'Charges Summary'!N$4)/(F68/'Charges Summary'!M$4)-1)","v":1.9859332093862925E-2},{"$f":"IF(G68=0,\"\",(H68/'Charges Summary'!O$4)/(G68/'Charges Summary'!N$4)-1)","v":1.2500664839030229E-2},null,{"$f":"SUM('DNSP Inputs General'!Q124:U124)/5","v":2744.8418277066235},{"$f":"V68/V$35","v":2.2443435064304778E-2},null,50.501410896379333,53.312412270335081,55.869665311447491,58.320169883325747,60.466819191526113,null,0.13010437816934939,4.9645603695928742E-2,-9.0681442285955427E-2,-0.29606687805885201,-0.54274745154096848]
[{"$f":"'DNSP Inputs General'!A125","v":"Smart lighting L1"},null,{"$f":"'DNSP Inputs General'!E125","v":26.37},{"$f":"'Charges Summary'!K$201","v":67.819622800407259},{"$f":"'Charges Summary'!L$201","v":71.967606778399741},{"$f":"'Charges Summary'!M$201","v":75.592547214719602},{"$f":"'Charges Summary'!N$201","v":78.891189780287675},{"$f":"'Charges Summary'!O$201","v":81.572213739735687},null,null,null,null,null,null,null,{"$f":"IF(C69=0,\"\",(D69/'Charges Summary'!K$4)/C69-1)","v":1.5214344218750862},{"$f":"IF(D69=0,\"\",(E69/'Charges Summary'!L$4)/(D69/'Charges Summary'!K$4)-1)","v":4.0361154783265851E-2},{"$f":"IF(E69=0,\"\",(F69/'Charges Summary'!M$4)/(E69/'Charges Summary'!L$4)-1)","v":2.9779770836079855E-2},{"$f":"IF(F69=0,\"\",(G69/'Charges Summary'!N$4)/(F69/'Charges Summary'!M$4)-1)","v":2.3179813261506199E-2},{"$f":"IF(G69=0,\"\",(H69/'Charges Summary'!O$4)/(G69/'Charges Summary'!N$4)-1)","v":1.3715716776316667E-2},null,{"$f":"SUM('DNSP Inputs General'!Q125:U125)/5","v":333.41296082049536},2.7261797238147369E-3,null,67.647592130385334,71.902888559797162,75.711483732861353,79.275539545641891,82.273599062291765,null,{"$f":"D69-Y69","v":0.1720306700219254},{"$f":"E69-Z69","v":6.4718218602578759E-2},{"$f":"F69-AA69","v":-0.11893651814175143},{"$f":"G69-AB69","v":-0.38434976535421583},{"$f":"H69-AC69","v":-0.70138532255607799}]
[{"$f":"'DNSP Inputs General'!A126","v":"Smart lighting L2"},null,{"$f":"'DNSP Inputs General'!E126","v":26.37},{"$f":"'Charges Summary'!K$217","v":68.492492969089767},{"$f":"'Charges Summary'!L$217","v":72.801121081081604},{"$f":"'Charges Summary'!M$217","v":76.556906389970237},{"$f":"'Charges Summary'!N$217","v":79.962646467348051},{"$f":"'Charges Summary'!O$217","v":82.710256878129599},null,null,null,null,null,null,null,{"$f":"IF(C70=0,\"\",(D70/'Charges Summary'!K$4)/C70-1)","v":1.5464507509950822},{"$f":"IF(D70=0,\"\",(E70/'Charges Summary'!L$4)/(D70/'Charges Summary'!K$4)-1)","v":4.2071529209042335E-2},{"$f":"IF(E70=0,\"\",(F70/'Charges Summary'!M$4)/(E70/'Charges Summary'!L$4)-1)","v":3.0976451362406676E-2},{"$f":"IF(F70=0,\"\",(G70/'Charges Summary'!N$4)/(F70/'Charges Summary'!M$4)-1)","v":2.4012412239326375E-2},{"$f":"IF(G70=0,\"\",(H70/'Charges Summary'!O$4)/(G70/'Charges Summary'!N$4)-1)","v":1.4085674343403909E-2},null,{"$f":"SUM('DNSP Inputs General'!Q126:U126)/5","v":831.03839588527603},6.7950568538147141E-3,null,68.312273078862404,72.726835905144526,76.665933080909141,80.337651140107425,83.403333457814469,null,0.18021989022736307,7.4285175937077952E-2,-0.10902669093890438,-0.3750046727593741,-0.69307657968487035]
[{"$f":"'DNSP Inputs General'!A127","v":"Smart lighting L4"},null,{"$f":"'DNSP Inputs General'!E127","v":26.37},{"$f":"'Charges Summary'!K$233","v":74.518179903675318},{"$f":"'Charges Summary'!L$233","v":80.26540836445821},{"$f":"'Charges Summary'!M$233","v":85.192935676174656},{"$f":"'Charges Summary'!N$233","v":89.557755391311147},{"$f":"'Charges Summary'!O$233","v":92.901660791074747},null,null,null,null,null,null,null,{"$f":"IF(C71=0,\"\",(D71/'Charges Summary'!K$4)/C71-1)","v":1.7704769815304688},{"$f":"IF(D71=0,\"\",(E71/'Charges Summary'!L$4)/(D71/'Charges Summary'!K$4)-1)","v":5.6011427817500792E-2},{"$f":"IF(E71=0,\"\",(F71/'Charges Summary'!M$4)/(E71/'Charges Summary'!L$4)-1)","v":4.0585096502008922E-2},{"$f":"IF(F71=0,\"\",(G71/'Charges Summary'!N$4)/(F71/'Charges Summary'!M$4)-1)","v":3.0628276084947892E-2},{"$f":"IF(G71=0,\"\",(H71/'Charges Summary'!O$4)/(G71/'Charges Summary'!N$4)-1)","v":1.7004126041857859E-2},null,{"$f":"SUM('DNSP Inputs General'!Q127:U127)/5","v":60.589924044450484},4.9541872034898453E-4,null,74.26462390866422,80.105449172199371,85.213217882546743,89.849072890865131,93.520330916599448,null,0.25355599501109793,0.15995919225883881,-2.028220637208733E-2,-0.29131749955398334,-0.61867012552470158]
[null,null,null,null,null,null,null,null,null,null,null,null,null,null,null,null,null,null,null,null,null,{"$f":"SUM(V44:V71)","v":52691.979040931154},0.43084049436937]

{"sheet":"PL Tariff Components","index":6,"n_rows":68,"n_cols":26,"rows_kept":68,"cut":false,"hidden":false,"merged":[[3,21,3,25],[37,21,37,25],[2,3,2,4],[3,2,3,7],[3,9,3,13],[3,15,3,19],[36,3,36,4],[37,2,37,7],[37,9,37,13],[37,15,37,19]]}
[{"$f":"'DNSP Inputs O & M'!$A$3","v":"AusNet"},null,null,null,"Global Check",{"$f":"IF(SUM('Total RAB'!F1,'Depn & WACC Post 2004 N & E'!F1,'Depn & WACC Post 2004 Central'!F1,'Cashflow Summary'!F1,W1)<1,\"Ok\",\"Error\")","v":"Ok"},null,null,null,null,null,null,null,null,null,null,null,null,null,null,null,"Check",{"$f":"SUM(V7:Z34,V41:Z68)","v":1.6804335700726369E-12}]
[]
[null,null,null,{"$f":"'DNSP Inputs General'!$B$39","v":"Central"}]
["Public Lighting Tariffs",null,"Total Tariff",null,null,null,null,null,null,"Operations, maintenance and repair Tariff",null,null,null,null,null,"Replacement Tariff",null,null,null,null,null,"Check"]
[null,null,"Actual"]
[{"$f":"'DNSP Inputs General'!A$41","v":"Existing Lights"},null,{"$f":"'DNSP Inputs General'!P$2","v":"HY2021"},{"$f":"'DNSP Inputs General'!Q$2","v":"2022-06-30"},{"$f":"'DNSP Inputs General'!R$2","v":"2023-06-30"},{"$f":"'DNSP Inputs General'!S$2","v":"2024-06-30"},{"$f":"'DNSP Inputs General'!T$2","v":"2025-06-30"},{"$f":"'DNSP Inputs General'!U$2","v":"2026-06-30"},null,{"$f":"D6","v":"2022-06-30"},{"$f":"E6","v":"2023-06-30"},"2024-06-30","2025-06-30","2026-06-30",null,{"$f":"J6","v":"2022-06-30"},{"$f":"K6","v":"2023-06-30"},"2024-06-30","2025-06-30","2026-06-30",null,{"$f":"P6","v":"2022-06-30"},{"$f":"Q6","v":"2023-06-30"},"2024-06-30","2025-06-30","2026-06-30"]
[{"$f":"'DNSP Inputs General'!A42","v":"Mercury Vapour 80W"},null,{"$f":"'DNSP Inputs General'!E42","v":43.97},{"$f":"'Charges Summary'!D$31","v":61.378472615458286},{"$f":"'Charges Summary'!E$31","v":62.587275052139326},{"$f":"'Charges Summary'!F$31","v":65.490871684464381},{"$f":"'Charges Summary'!G$31","v":71.177994691551859},{"$f":"'Charges Summary'!H$31","v":72.386331333944526},null,{"$f":"SUM('Charges Summary'!D25,'Charges Summary'!D8)","v":25.663264462617839},{"$f":"SUM('Charges Summary'!E25,'Charges Summary'!E8)","v":26.248045315955316},{"$f":"SUM('Charges Summary'!F25,'Charges Summary'!F8)","v":26.837053432793944},{"$f":"SUM('Charges Summary'!G25,'Charges Summary'!G8)","v":27.458499056003888},{"$f":"SUM('Charges Summary'!H25,'Charges Summary'!H8)","v":28.122629136150533},null,{"$f":"SUM('Charges Summary'!D27,'Charges Summary'!D11)","v":35.715208152840447},{"$f":"SUM('Charges Summary'!E27,'Charges Summary'!E11)","v":36.339229736184009},{"$f":"SUM('Charges Summary'!F27,'Charges Summary'!F11)","v":38.653818251670444},{"$f":"SUM('Charges Summary'!G27,'Charges Summary'!G11)","v":43.719495635547965},{"$f":"SUM('Charges Summary'!H27,'Charges Summary'!H11)","v":44.26370219779399},null,{"$f":"ABS(D7-J7-P7)","v":0},{"$f":"ABS(E7-K7-Q7)","v":0},7.1054273576010019E-15,7.1054273576010019E-15,0]
[{"$f":"'DNSP Inputs General'!A43","v":"HP Sodium 150W"},null,{"$f":"'DNSP Inputs General'!E43","v":104.07},{"$f":"'Charges Summary'!D$55","v":113.46221454728752},{"$f":"'Charges Summary'!E$55","v":115.88237072130957},{"$f":"'Charges Summary'!F$55","v":118.80607603818451},{"$f":"'Charges Summary'!G$55","v":126.42570465996307},{"$f":"'Charges Summary'!H$55","v":129.04949742669888},null,{"$f":"SUM('Charges Summary'!D49,'Charges Summary'!D8)","v":72.988321733703728},{"$f":"SUM('Charges Summary'!E49,'Charges Summary'!E8)","v":74.766660973098027},{"$f":"SUM('Charges Summary'!F49,'Charges Summary'!F8)","v":76.560329330725295},{"$f":"SUM('Charges Summary'!G49,'Charges Summary'!G8)","v":78.463939638189302},{"$f":"SUM('Charges Summary'!H49,'Charges Summary'!H8)","v":80.527507487386515},null,{"$f":"SUM('Charges Summary'!D51,'Charges Summary'!D11)","v":40.473892813583788},{"$f":"SUM('Charges Summary'!E51,'Charges Summary'!E11)","v":41.115709748211543},{"$f":"SUM('Charges Summary'!F51,'Charges Summary'!F11)","v":42.245746707459219},{"$f":"SUM('Charges Summary'!G51,'Charges Summary'!G11)","v":47.961765021773758},{"$f":"SUM('Charges Summary'!H51,'Charges Summary'!H11)","v":48.521989939312363},null,{"$f":"ABS(D8-J8-P8)","v":0},0,0,1.4210854715202004E-14,0]
[{"$f":"'DNSP Inputs General'!A44","v":"HP Sodium 250W"},null,{"$f":"'DNSP Inputs General'!E44","v":105.12},{"$f":"'Charges Summary'!D$71","v":116.2960791586319},{"$f":"'Charges Summary'!E$71","v":118.76662209517212},{"$f":"'Charges Summary'!F$71","v":121.92666819873702},{"$f":"'Charges Summary'!G$71","v":129.73381121601938},{"$f":"'Charges Summary'!H$71","v":132.41410031227207},null,{"$f":"SUM('Charges Summary'!D65,'Charges Summary'!D8)","v":75.256802450832978},{"$f":"SUM('Charges Summary'!E65,'Charges Summary'!E8)","v":77.083414169970837},{"$f":"SUM('Charges Summary'!F65,'Charges Summary'!F8)","v":78.925961640405092},{"$f":"SUM('Charges Summary'!G65,'Charges Summary'!G8)","v":80.880396178771264},{"$f":"SUM('Charges Summary'!H65,'Charges Summary'!H8)","v":82.997093582430736},null,{"$f":"SUM('Charges Summary'!D67,'Charges Summary'!D11)","v":41.039276707798926},{"$f":"SUM('Charges Summary'!E67,'Charges Summary'!E11)","v":41.683207925201295},{"$f":"SUM('Charges Summary'!F67,'Charges Summary'!F11)","v":43.000706558331927},{"$f":"SUM('Charges Summary'!G67,'Charges Summary'!G11)","v":48.853415037248112},{"$f":"SUM('Charges Summary'!H67,'Charges Summary'!H11)","v":49.417006729841347},null,{"$f":"ABS(D9-J9-P9)","v":7.1054273576010019E-15},{"$f":"ABS(E9-K9-Q9)","v":7.1054273576010019E-15},{"$f":"ABS(F9-L9-R9)","v":0},{"$f":"ABS(G9-M9-S9)","v":0},{"$f":"ABS(H9-N9-T9)","v":1.4210854715202004E-14}]
[{"$f":"'DNSP Inputs General'!A45","v":"Mercury Vapour 50W"},null,{"$f":"'DNSP Inputs General'!E45","v":67.27},{"$f":"IF('DNSP Inputs General'!$B45='DNSP Inputs General'!$A$42,D$7,IF('DNSP Inputs General'!$B45='DNSP Inputs General'!$A$43,D$8,D$9))*'DNSP Inputs General'!$D45","v":93.909063101651185},{"$f":"IF('DNSP Inputs General'!$B45='DNSP Inputs General'!$A$42,E$7,IF('DNSP Inputs General'!$B45='DNSP Inputs General'!$A$43,E$8,E$9))*'DNSP Inputs General'!$D45","v":95.758530829773164},{"$f":"IF('DNSP Inputs General'!$B45='DNSP Inputs General'!$A$42,F$7,IF('DNSP Inputs General'!$B45='DNSP Inputs General'!$A$43,F$8,F$9))*'DNSP Inputs General'!$D45","v":100.2010336772305},{"$f":"IF('DNSP Inputs General'!$B45='DNSP Inputs General'!$A$42,G$7,IF('DNSP Inputs General'!$B45='DNSP Inputs General'!$A$43,G$8,G$9))*'DNSP Inputs General'!$D45","v":108.90233187807435},{"$f":"IF('DNSP Inputs General'!$B45='DNSP Inputs General'!$A$42,H$7,IF('DNSP Inputs General'!$B45='DNSP Inputs General'!$A$43,H$8,H$9))*'DNSP Inputs General'!$D45","v":110.75108694093512},null,{"$f":"IF('DNSP Inputs General'!$B45='DNSP Inputs General'!$A$42,J$7,IF('DNSP Inputs General'!$B45='DNSP Inputs General'!$A$43,J$8,J$9))*'DNSP Inputs General'!$D45","v":39.264794627805294},{"$f":"IF('DNSP Inputs General'!$B45='DNSP Inputs General'!$A$42,K$7,IF('DNSP Inputs General'!$B45='DNSP Inputs General'!$A$43,K$8,K$9))*'DNSP Inputs General'!$D45","v":40.159509333411634},{"$f":"IF('DNSP Inputs General'!$B45='DNSP Inputs General'!$A$42,L$7,IF('DNSP Inputs General'!$B45='DNSP Inputs General'!$A$43,L$8,L$9))*'DNSP Inputs General'!$D45","v":41.060691752174733},{"$f":"IF('DNSP Inputs General'!$B45='DNSP Inputs General'!$A$42,M$7,IF('DNSP Inputs General'!$B45='DNSP Inputs General'!$A$43,M$8,M$9))*'DNSP Inputs General'!$D45","v":42.011503555685948},{"$f":"IF('DNSP Inputs General'!$B45='DNSP Inputs General'!$A$42,N$7,IF('DNSP Inputs General'!$B45='DNSP Inputs General'!$A$43,N$8,N$9))*'DNSP Inputs General'!$D45","v":43.027622578310314},null,{"$f":"IF('DNSP Inputs General'!$B45='DNSP Inputs General'!$A$42,P$7,IF('DNSP Inputs General'!$B45='DNSP Inputs General'!$A$43,P$8,P$9))*'DNSP Inputs General'!$D45","v":54.644268473845884},{"$f":"IF('DNSP Inputs General'!$B45='DNSP Inputs General'!$A$42,Q$7,IF('DNSP Inputs General'!$B45='DNSP Inputs General'!$A$43,Q$8,Q$9))*'DNSP Inputs General'!$D45","v":55.599021496361537},{"$f":"IF('DNSP Inputs General'!$B45='DNSP Inputs General'!$A$42,R$7,IF('DNSP Inputs General'!$B45='DNSP Inputs General'!$A$43,R$8,R$9))*'DNSP Inputs General'!$D45","v":59.140341925055779},{"$f":"IF('DNSP Inputs General'!$B45='DNSP Inputs General'!$A$42,S$7,IF('DNSP Inputs General'!$B45='DNSP Inputs General'!$A$43,S$8,S$9))*'DNSP Inputs General'!$D45","v":66.890828322388387},{"$f":"IF('DNSP Inputs General'!$B45='DNSP Inputs General'!$A$42,T$7,IF('DNSP Inputs General'!$B45='DNSP Inputs General'!$A$43,T$8,T$9))*'DNSP Inputs General'!$D45","v":67.72346436262481},null,7.1054273576010019E-15,7.1054273576010019E-15,1.4210854715202004E-14,1.4210854715202004E-14,0]
[{"$f":"'DNSP Inputs General'!A46","v":"Mercury Vapour 125W"},null,{"$f":"'DNSP Inputs General'!E46","v":64.63},{"$f":"IF('DNSP Inputs General'!$B46='DNSP Inputs General'!$A$42,D$7,IF('DNSP Inputs General'!$B46='DNSP Inputs General'!$A$43,D$8,D$9))*'DNSP Inputs General'!$D46","v":90.226354744723679},{"$f":"IF('DNSP Inputs General'!$B46='DNSP Inputs General'!$A$42,E$7,IF('DNSP Inputs General'!$B46='DNSP Inputs General'!$A$43,E$8,E$9))*'DNSP Inputs General'!$D46","v":92.003294326644806},{"$f":"IF('DNSP Inputs General'!$B46='DNSP Inputs General'!$A$42,F$7,IF('DNSP Inputs General'!$B46='DNSP Inputs General'!$A$43,F$8,F$9))*'DNSP Inputs General'!$D46","v":96.271581376162644},{"$f":"IF('DNSP Inputs General'!$B46='DNSP Inputs General'!$A$42,G$7,IF('DNSP Inputs General'!$B46='DNSP Inputs General'!$A$43,G$8,G$9))*'DNSP Inputs General'!$D46","v":104.63165219658123},{"$f":"IF('DNSP Inputs General'!$B46='DNSP Inputs General'!$A$42,H$7,IF('DNSP Inputs General'!$B46='DNSP Inputs General'!$A$43,H$8,H$9))*'DNSP Inputs General'!$D46","v":106.40790706089845},null,{"$f":"IF('DNSP Inputs General'!$B46='DNSP Inputs General'!$A$42,J$7,IF('DNSP Inputs General'!$B46='DNSP Inputs General'!$A$43,J$8,J$9))*'DNSP Inputs General'!$D46","v":37.724998760048223},{"$f":"IF('DNSP Inputs General'!$B46='DNSP Inputs General'!$A$42,K$7,IF('DNSP Inputs General'!$B46='DNSP Inputs General'!$A$43,K$8,K$9))*'DNSP Inputs General'!$D46","v":38.584626614454315},{"$f":"IF('DNSP Inputs General'!$B46='DNSP Inputs General'!$A$42,L$7,IF('DNSP Inputs General'!$B46='DNSP Inputs General'!$A$43,L$8,L$9))*'DNSP Inputs General'!$D46","v":39.450468546207098},{"$f":"IF('DNSP Inputs General'!$B46='DNSP Inputs General'!$A$42,M$7,IF('DNSP Inputs General'!$B46='DNSP Inputs General'!$A$43,M$8,M$9))*'DNSP Inputs General'!$D46","v":40.363993612325714},{"$f":"IF('DNSP Inputs General'!$B46='DNSP Inputs General'!$A$42,N$7,IF('DNSP Inputs General'!$B46='DNSP Inputs General'!$A$43,N$8,N$9))*'DNSP Inputs General'!$D46","v":41.34026483014128},null,{"$f":"IF('DNSP Inputs General'!$B46='DNSP Inputs General'!$A$42,P$7,IF('DNSP Inputs General'!$B46='DNSP Inputs General'!$A$43,P$8,P$9))*'DNSP Inputs General'!$D46","v":52.501355984675456},{"$f":"IF('DNSP Inputs General'!$B46='DNSP Inputs General'!$A$42,Q$7,IF('DNSP Inputs General'!$B46='DNSP Inputs General'!$A$43,Q$8,Q$9))*'DNSP Inputs General'!$D46","v":53.418667712190491},{"$f":"IF('DNSP Inputs General'!$B46='DNSP Inputs General'!$A$42,R$7,IF('DNSP Inputs General'!$B46='DNSP Inputs General'!$A$43,R$8,R$9))*'DNSP Inputs General'!$D46","v":56.821112829955553},{"$f":"IF('DNSP Inputs General'!$B46='DNSP Inputs General'!$A$42,S$7,IF('DNSP Inputs General'!$B46='DNSP Inputs General'!$A$43,S$8,S$9))*'DNSP Inputs General'!$D46","v":64.2676585842555},{"$f":"IF('DNSP Inputs General'!$B46='DNSP Inputs General'!$A$42,T$7,IF('DNSP Inputs General'!$B46='DNSP Inputs General'!$A$43,T$8,T$9))*'DNSP Inputs General'!$D46","v":65.067642230757158},null,0,0,7.1054273576010019E-15,1.4210854715202004E-14,1.4210854715202004E-14]
[{"$f":"'DNSP Inputs General'!A47","v":"Mercury Vapour 250W"},null,{"$f":"'DNSP Inputs General'!E47","v":110.37},{"$f":"IF('DNSP Inputs General'!$B47='DNSP Inputs General'!$A$42,D$7,IF('DNSP Inputs General'!$B47='DNSP Inputs General'!$A$43,D$8,D$9))*'DNSP Inputs General'!$D47","v":122.1108831165635},{"$f":"IF('DNSP Inputs General'!$B47='DNSP Inputs General'!$A$42,E$7,IF('DNSP Inputs General'!$B47='DNSP Inputs General'!$A$43,E$8,E$9))*'DNSP Inputs General'!$D47","v":124.70495319993074},{"$f":"IF('DNSP Inputs General'!$B47='DNSP Inputs General'!$A$42,F$7,IF('DNSP Inputs General'!$B47='DNSP Inputs General'!$A$43,F$8,F$9))*'DNSP Inputs General'!$D47","v":128.02300160867387},{"$f":"IF('DNSP Inputs General'!$B47='DNSP Inputs General'!$A$42,G$7,IF('DNSP Inputs General'!$B47='DNSP Inputs General'!$A$43,G$8,G$9))*'DNSP Inputs General'!$D47","v":136.22050177682036},{"$f":"IF('DNSP Inputs General'!$B47='DNSP Inputs General'!$A$42,H$7,IF('DNSP Inputs General'!$B47='DNSP Inputs General'!$A$43,H$8,H$9))*'DNSP Inputs General'!$D47","v":139.03480532788569},null,{"$f":"IF('DNSP Inputs General'!$B47='DNSP Inputs General'!$A$42,J$7,IF('DNSP Inputs General'!$B47='DNSP Inputs General'!$A$43,J$8,J$9))*'DNSP Inputs General'!$D47","v":79.019642573374625},{"$f":"IF('DNSP Inputs General'!$B47='DNSP Inputs General'!$A$42,K$7,IF('DNSP Inputs General'!$B47='DNSP Inputs General'!$A$43,K$8,K$9))*'DNSP Inputs General'!$D47","v":80.93758487846938},{"$f":"IF('DNSP Inputs General'!$B47='DNSP Inputs General'!$A$42,L$7,IF('DNSP Inputs General'!$B47='DNSP Inputs General'!$A$43,L$8,L$9))*'DNSP Inputs General'!$D47","v":82.872259722425355},{"$f":"IF('DNSP Inputs General'!$B47='DNSP Inputs General'!$A$42,M$7,IF('DNSP Inputs General'!$B47='DNSP Inputs General'!$A$43,M$8,M$9))*'DNSP Inputs General'!$D47","v":84.924415987709835},{"$f":"IF('DNSP Inputs General'!$B47='DNSP Inputs General'!$A$42,N$7,IF('DNSP Inputs General'!$B47='DNSP Inputs General'!$A$43,N$8,N$9))*'DNSP Inputs General'!$D47","v":87.146948261552282},null,{"$f":"IF('DNSP Inputs General'!$B47='DNSP Inputs General'!$A$42,P$7,IF('DNSP Inputs General'!$B47='DNSP Inputs General'!$A$43,P$8,P$9))*'DNSP Inputs General'!$D47","v":43.091240543188874},{"$f":"IF('DNSP Inputs General'!$B47='DNSP Inputs General'!$A$42,Q$7,IF('DNSP Inputs General'!$B47='DNSP Inputs General'!$A$43,Q$8,Q$9))*'DNSP Inputs General'!$D47","v":43.767368321461362},{"$f":"IF('DNSP Inputs General'!$B47='DNSP Inputs General'!$A$42,R$7,IF('DNSP Inputs General'!$B47='DNSP Inputs General'!$A$43,R$8,R$9))*'DNSP Inputs General'!$D47","v":45.150741886248525},{"$f":"IF('DNSP Inputs General'!$B47='DNSP Inputs General'!$A$42,S$7,IF('DNSP Inputs General'!$B47='DNSP Inputs General'!$A$43,S$8,S$9))*'DNSP Inputs General'!$D47","v":51.296085789110521},{"$f":"IF('DNSP Inputs General'!$B47='DNSP Inputs General'!$A$42,T$7,IF('DNSP Inputs General'!$B47='DNSP Inputs General'!$A$43,T$8,T$9))*'DNSP Inputs General'!$D47","v":51.887857066333417},null,0,0,1.4210854715202004E-14,0,7.1054273576010019E-15]
[{"$f":"'DNSP Inputs General'!A48","v":"Mercury Vapour 400W"},null,{"$f":"'DNSP Inputs General'!E48","v":114.58},{"$f":"IF('DNSP Inputs General'!$B48='DNSP Inputs General'!$A$42,D$7,IF('DNSP Inputs General'!$B48='DNSP Inputs General'!$A$43,D$8,D$9))*'DNSP Inputs General'!$D48","v":126.76272628290877},{"$f":"IF('DNSP Inputs General'!$B48='DNSP Inputs General'!$A$42,E$7,IF('DNSP Inputs General'!$B48='DNSP Inputs General'!$A$43,E$8,E$9))*'DNSP Inputs General'!$D48","v":129.45561808373762},{"$f":"IF('DNSP Inputs General'!$B48='DNSP Inputs General'!$A$42,F$7,IF('DNSP Inputs General'!$B48='DNSP Inputs General'!$A$43,F$8,F$9))*'DNSP Inputs General'!$D48","v":132.90006833662335},{"$f":"IF('DNSP Inputs General'!$B48='DNSP Inputs General'!$A$42,G$7,IF('DNSP Inputs General'!$B48='DNSP Inputs General'!$A$43,G$8,G$9))*'DNSP Inputs General'!$D48","v":141.40985422546112},{"$f":"IF('DNSP Inputs General'!$B48='DNSP Inputs General'!$A$42,H$7,IF('DNSP Inputs General'!$B48='DNSP Inputs General'!$A$43,H$8,H$9))*'DNSP Inputs General'!$D48","v":144.33136934037657},null,{"$f":"IF('DNSP Inputs General'!$B48='DNSP Inputs General'!$A$42,J$7,IF('DNSP Inputs General'!$B48='DNSP Inputs General'!$A$43,J$8,J$9))*'DNSP Inputs General'!$D48","v":82.029914671407951},{"$f":"IF('DNSP Inputs General'!$B48='DNSP Inputs General'!$A$42,K$7,IF('DNSP Inputs General'!$B48='DNSP Inputs General'!$A$43,K$8,K$9))*'DNSP Inputs General'!$D48","v":84.020921445268215},{"$f":"IF('DNSP Inputs General'!$B48='DNSP Inputs General'!$A$42,L$7,IF('DNSP Inputs General'!$B48='DNSP Inputs General'!$A$43,L$8,L$9))*'DNSP Inputs General'!$D48","v":86.029298188041551},{"$f":"IF('DNSP Inputs General'!$B48='DNSP Inputs General'!$A$42,M$7,IF('DNSP Inputs General'!$B48='DNSP Inputs General'!$A$43,M$8,M$9))*'DNSP Inputs General'!$D48","v":88.15963183486069},{"$f":"IF('DNSP Inputs General'!$B48='DNSP Inputs General'!$A$42,N$7,IF('DNSP Inputs General'!$B48='DNSP Inputs General'!$A$43,N$8,N$9))*'DNSP Inputs General'!$D48","v":90.466832004849508},null,{"$f":"IF('DNSP Inputs General'!$B48='DNSP Inputs General'!$A$42,P$7,IF('DNSP Inputs General'!$B48='DNSP Inputs General'!$A$43,P$8,P$9))*'DNSP Inputs General'!$D48","v":44.732811611500836},{"$f":"IF('DNSP Inputs General'!$B48='DNSP Inputs General'!$A$42,Q$7,IF('DNSP Inputs General'!$B48='DNSP Inputs General'!$A$43,Q$8,Q$9))*'DNSP Inputs General'!$D48","v":45.434696638469411},{"$f":"IF('DNSP Inputs General'!$B48='DNSP Inputs General'!$A$42,R$7,IF('DNSP Inputs General'!$B48='DNSP Inputs General'!$A$43,R$8,R$9))*'DNSP Inputs General'!$D48","v":46.870770148581805},{"$f":"IF('DNSP Inputs General'!$B48='DNSP Inputs General'!$A$42,S$7,IF('DNSP Inputs General'!$B48='DNSP Inputs General'!$A$43,S$8,S$9))*'DNSP Inputs General'!$D48","v":53.250222390600449},{"$f":"IF('DNSP Inputs General'!$B48='DNSP Inputs General'!$A$42,T$7,IF('DNSP Inputs General'!$B48='DNSP Inputs General'!$A$43,T$8,T$9))*'DNSP Inputs General'!$D48","v":53.864537335527075},null,1.4210854715202004E-14,7.1054273576010019E-15,7.1054273576010019E-15,2.1316282072803006E-14,1.4210854715202004E-14]
[{"$f":"'DNSP Inputs General'!A49","v":"HP Sodium 100W"},null,{"$f":"'DNSP Inputs General'!E49","v":111.36},{"$f":"IF('DNSP Inputs General'!$B49='DNSP Inputs General'!$A$42,D$7,IF('DNSP Inputs General'!$B49='DNSP Inputs General'!$A$43,D$8,D$9))*'DNSP Inputs General'!$D49","v":121.40456956559765},{"$f":"IF('DNSP Inputs General'!$B49='DNSP Inputs General'!$A$42,E$7,IF('DNSP Inputs General'!$B49='DNSP Inputs General'!$A$43,E$8,E$9))*'DNSP Inputs General'!$D49","v":123.99413667180124},{"$f":"IF('DNSP Inputs General'!$B49='DNSP Inputs General'!$A$42,F$7,IF('DNSP Inputs General'!$B49='DNSP Inputs General'!$A$43,F$8,F$9))*'DNSP Inputs General'!$D49","v":127.12250136085744},{"$f":"IF('DNSP Inputs General'!$B49='DNSP Inputs General'!$A$42,G$7,IF('DNSP Inputs General'!$B49='DNSP Inputs General'!$A$43,G$8,G$9))*'DNSP Inputs General'!$D49","v":135.27550398616049},{"$f":"IF('DNSP Inputs General'!$B49='DNSP Inputs General'!$A$42,H$7,IF('DNSP Inputs General'!$B49='DNSP Inputs General'!$A$43,H$8,H$9))*'DNSP Inputs General'!$D49","v":138.0829622465678},null,{"$f":"IF('DNSP Inputs General'!$B49='DNSP Inputs General'!$A$42,J$7,IF('DNSP Inputs General'!$B49='DNSP Inputs General'!$A$43,J$8,J$9))*'DNSP Inputs General'!$D49","v":78.097504255062987},{"$f":"IF('DNSP Inputs General'!$B49='DNSP Inputs General'!$A$42,K$7,IF('DNSP Inputs General'!$B49='DNSP Inputs General'!$A$43,K$8,K$9))*'DNSP Inputs General'!$D49","v":80.00032724121489},{"$f":"IF('DNSP Inputs General'!$B49='DNSP Inputs General'!$A$42,L$7,IF('DNSP Inputs General'!$B49='DNSP Inputs General'!$A$43,L$8,L$9))*'DNSP Inputs General'!$D49","v":81.919552383876066},{"$f":"IF('DNSP Inputs General'!$B49='DNSP Inputs General'!$A$42,M$7,IF('DNSP Inputs General'!$B49='DNSP Inputs General'!$A$43,M$8,M$9))*'DNSP Inputs General'!$D49","v":83.956415412862555},{"$f":"IF('DNSP Inputs General'!$B49='DNSP Inputs General'!$A$42,N$7,IF('DNSP Inputs General'!$B49='DNSP Inputs General'!$A$43,N$8,N$9))*'DNSP Inputs General'!$D49","v":86.164433011503576},null,{"$f":"IF('DNSP Inputs General'!$B49='DNSP Inputs General'!$A$42,P$7,IF('DNSP Inputs General'!$B49='DNSP Inputs General'!$A$43,P$8,P$9))*'DNSP Inputs General'!$D49","v":43.307065310534654},{"$f":"IF('DNSP Inputs General'!$B49='DNSP Inputs General'!$A$42,Q$7,IF('DNSP Inputs General'!$B49='DNSP Inputs General'!$A$43,Q$8,Q$9))*'DNSP Inputs General'!$D49","v":43.993809430586353},{"$f":"IF('DNSP Inputs General'!$B49='DNSP Inputs General'!$A$42,R$7,IF('DNSP Inputs General'!$B49='DNSP Inputs General'!$A$43,R$8,R$9))*'DNSP Inputs General'!$D49","v":45.202948976981368},{"$f":"IF('DNSP Inputs General'!$B49='DNSP Inputs General'!$A$42,S$7,IF('DNSP Inputs General'!$B49='DNSP Inputs General'!$A$43,S$8,S$9))*'DNSP Inputs General'!$D49","v":51.319088573297925},{"$f":"IF('DNSP Inputs General'!$B49='DNSP Inputs General'!$A$42,T$7,IF('DNSP Inputs General'!$B49='DNSP Inputs General'!$A$43,T$8,T$9))*'DNSP Inputs General'!$D49","v":51.918529235064234},null,1.4210854715202004E-14,0,7.1054273576010019E-15,7.1054273576010019E-15,7.1054273576010019E-15]
[{"$f":"'DNSP Inputs General'!A50","v":"HP Sodium 400W"},null,{"$f":"'DNSP Inputs General'!E50","v":149.26},{"$f":"IF('DNSP Inputs General'!$B50='DNSP Inputs General'!$A$42,D$7,IF('DNSP Inputs General'!$B50='DNSP Inputs General'!$A$43,D$8,D$9))*'DNSP Inputs General'!$D50","v":165.14043240525729},{"$f":"IF('DNSP Inputs General'!$B50='DNSP Inputs General'!$A$42,E$7,IF('DNSP Inputs General'!$B50='DNSP Inputs General'!$A$43,E$8,E$9))*'DNSP Inputs General'!$D50","v":168.6486033751444},{"$f":"IF('DNSP Inputs General'!$B50='DNSP Inputs General'!$A$42,F$7,IF('DNSP Inputs General'!$B50='DNSP Inputs General'!$A$43,F$8,F$9))*'DNSP Inputs General'!$D50","v":173.13586884220655},{"$f":"IF('DNSP Inputs General'!$B50='DNSP Inputs General'!$A$42,G$7,IF('DNSP Inputs General'!$B50='DNSP Inputs General'!$A$43,G$8,G$9))*'DNSP Inputs General'!$D50","v":184.22201192674751},{"$f":"IF('DNSP Inputs General'!$B50='DNSP Inputs General'!$A$42,H$7,IF('DNSP Inputs General'!$B50='DNSP Inputs General'!$A$43,H$8,H$9))*'DNSP Inputs General'!$D50","v":188.02802244342632},null,{"$f":"IF('DNSP Inputs General'!$B50='DNSP Inputs General'!$A$42,J$7,IF('DNSP Inputs General'!$B50='DNSP Inputs General'!$A$43,J$8,J$9))*'DNSP Inputs General'!$D50","v":106.86465948018282},{"$f":"IF('DNSP Inputs General'!$B50='DNSP Inputs General'!$A$42,K$7,IF('DNSP Inputs General'!$B50='DNSP Inputs General'!$A$43,K$8,K$9))*'DNSP Inputs General'!$D50","v":109.45844812135859},{"$f":"IF('DNSP Inputs General'!$B50='DNSP Inputs General'!$A$42,L$7,IF('DNSP Inputs General'!$B50='DNSP Inputs General'!$A$43,L$8,L$9))*'DNSP Inputs General'!$D50","v":112.07486552937523},{"$f":"IF('DNSP Inputs General'!$B50='DNSP Inputs General'!$A$42,M$7,IF('DNSP Inputs General'!$B50='DNSP Inputs General'!$A$43,M$8,M$9))*'DNSP Inputs General'!$D50","v":114.85016257385519},{"$f":"IF('DNSP Inputs General'!$B50='DNSP Inputs General'!$A$42,N$7,IF('DNSP Inputs General'!$B50='DNSP Inputs General'!$A$43,N$8,N$9))*'DNSP Inputs General'!$D50","v":117.85587288705165},null,{"$f":"IF('DNSP Inputs General'!$B50='DNSP Inputs General'!$A$42,P$7,IF('DNSP Inputs General'!$B50='DNSP Inputs General'!$A$43,P$8,P$9))*'DNSP Inputs General'!$D50","v":58.27577292507447},{"$f":"IF('DNSP Inputs General'!$B50='DNSP Inputs General'!$A$42,Q$7,IF('DNSP Inputs General'!$B50='DNSP Inputs General'!$A$43,Q$8,Q$9))*'DNSP Inputs General'!$D50","v":59.190155253785832},{"$f":"IF('DNSP Inputs General'!$B50='DNSP Inputs General'!$A$42,R$7,IF('DNSP Inputs General'!$B50='DNSP Inputs General'!$A$43,R$8,R$9))*'DNSP Inputs General'!$D50","v":61.061003312831332},{"$f":"IF('DNSP Inputs General'!$B50='DNSP Inputs General'!$A$42,S$7,IF('DNSP Inputs General'!$B50='DNSP Inputs General'!$A$43,S$8,S$9))*'DNSP Inputs General'!$D50","v":69.371849352892312},{"$f":"IF('DNSP Inputs General'!$B50='DNSP Inputs General'!$A$42,T$7,IF('DNSP Inputs General'!$B50='DNSP Inputs General'!$A$43,T$8,T$9))*'DNSP Inputs General'!$D50","v":70.172149556374706},null,7.1054273576010019E-15,1.4210854715202004E-14,1.4210854715202004E-14,1.4210854715202004E-14,2.8421709430404007E-14]
[{"$f":"'DNSP Inputs General'!A51","v":"Metal Halide 70W"},null,{"$f":"'DNSP Inputs General'!E51","v":191.93},{"$f":"IF('DNSP Inputs General'!$B51='DNSP Inputs General'!$A$42,D$7,IF('DNSP Inputs General'!$B51='DNSP Inputs General'!$A$43,D$8,D$9))*'DNSP Inputs General'!$D51","v":267.92351929491178},{"$f":"IF('DNSP Inputs General'!$B51='DNSP Inputs General'!$A$42,E$7,IF('DNSP Inputs General'!$B51='DNSP Inputs General'!$A$43,E$8,E$9))*'DNSP Inputs General'!$D51","v":273.20006967434045},{"$f":"IF('DNSP Inputs General'!$B51='DNSP Inputs General'!$A$42,F$7,IF('DNSP Inputs General'!$B51='DNSP Inputs General'!$A$43,F$8,F$9))*'DNSP Inputs General'!$D51","v":285.87457581950406},{"$f":"IF('DNSP Inputs General'!$B51='DNSP Inputs General'!$A$42,G$7,IF('DNSP Inputs General'!$B51='DNSP Inputs General'!$A$43,G$8,G$9))*'DNSP Inputs General'!$D51","v":310.6994687468362},{"$f":"IF('DNSP Inputs General'!$B51='DNSP Inputs General'!$A$42,H$7,IF('DNSP Inputs General'!$B51='DNSP Inputs General'!$A$43,H$8,H$9))*'DNSP Inputs General'!$D51","v":315.97398588497208},null,{"$f":"IF('DNSP Inputs General'!$B51='DNSP Inputs General'!$A$42,J$7,IF('DNSP Inputs General'!$B51='DNSP Inputs General'!$A$43,J$8,J$9))*'DNSP Inputs General'!$D51","v":112.02286141100443},{"$f":"IF('DNSP Inputs General'!$B51='DNSP Inputs General'!$A$42,K$7,IF('DNSP Inputs General'!$B51='DNSP Inputs General'!$A$43,K$8,K$9))*'DNSP Inputs General'!$D51","v":114.57549163404779},{"$f":"IF('DNSP Inputs General'!$B51='DNSP Inputs General'!$A$42,L$7,IF('DNSP Inputs General'!$B51='DNSP Inputs General'!$A$43,L$8,L$9))*'DNSP Inputs General'!$D51","v":117.14657430900067},{"$f":"IF('DNSP Inputs General'!$B51='DNSP Inputs General'!$A$42,M$7,IF('DNSP Inputs General'!$B51='DNSP Inputs General'!$A$43,M$8,M$9))*'DNSP Inputs General'!$D51","v":119.8592501271815},{"$f":"IF('DNSP Inputs General'!$B51='DNSP Inputs General'!$A$42,N$7,IF('DNSP Inputs General'!$B51='DNSP Inputs General'!$A$43,N$8,N$9))*'DNSP Inputs General'!$D51","v":122.75824811068112},null,{"$f":"IF('DNSP Inputs General'!$B51='DNSP Inputs General'!$A$42,P$7,IF('DNSP Inputs General'!$B51='DNSP Inputs General'!$A$43,P$8,P$9))*'DNSP Inputs General'!$D51","v":155.90065788390734},{"$f":"IF('DNSP Inputs General'!$B51='DNSP Inputs General'!$A$42,Q$7,IF('DNSP Inputs General'!$B51='DNSP Inputs General'!$A$43,Q$8,Q$9))*'DNSP Inputs General'!$D51","v":158.62457804029265},{"$f":"IF('DNSP Inputs General'!$B51='DNSP Inputs General'!$A$42,R$7,IF('DNSP Inputs General'!$B51='DNSP Inputs General'!$A$43,R$8,R$9))*'DNSP Inputs General'!$D51","v":168.72800151050342},{"$f":"IF('DNSP Inputs General'!$B51='DNSP Inputs General'!$A$42,S$7,IF('DNSP Inputs General'!$B51='DNSP Inputs General'!$A$43,S$8,S$9))*'DNSP Inputs General'!$D51","v":190.84021861965465},{"$f":"IF('DNSP Inputs General'!$B51='DNSP Inputs General'!$A$42,T$7,IF('DNSP Inputs General'!$B51='DNSP Inputs General'!$A$43,T$8,T$9))*'DNSP Inputs General'!$D51","v":193.21573777429094},null,0,0,2.8421709430404007E-14,5.6843418860808015E-14,2.8421709430404007E-14]
[{"$f":"'DNSP Inputs General'!A52","v":"Metal Halide 100W"},null,{"$f":"'DNSP Inputs General'!E52","v":248.49},{"$f":"IF('DNSP Inputs General'!$B52='DNSP Inputs General'!$A$42,D$7,IF('DNSP Inputs General'!$B52='DNSP Inputs General'!$A$43,D$8,D$9))*'DNSP Inputs General'!$D52","v":270.91249153204018},{"$f":"IF('DNSP Inputs General'!$B52='DNSP Inputs General'!$A$42,E$7,IF('DNSP Inputs General'!$B52='DNSP Inputs General'!$A$43,E$8,E$9))*'DNSP Inputs General'!$D52","v":276.69107201909486},{"$f":"IF('DNSP Inputs General'!$B52='DNSP Inputs General'!$A$42,F$7,IF('DNSP Inputs General'!$B52='DNSP Inputs General'!$A$43,F$8,F$9))*'DNSP Inputs General'!$D52","v":283.67197129962102},{"$f":"IF('DNSP Inputs General'!$B52='DNSP Inputs General'!$A$42,G$7,IF('DNSP Inputs General'!$B52='DNSP Inputs General'!$A$43,G$8,G$9))*'DNSP Inputs General'!$D52","v":301.86527541157767},{"$f":"IF('DNSP Inputs General'!$B52='DNSP Inputs General'!$A$42,H$7,IF('DNSP Inputs General'!$B52='DNSP Inputs General'!$A$43,H$8,H$9))*'DNSP Inputs General'!$D52","v":308.13007676889561},null,{"$f":"IF('DNSP Inputs General'!$B52='DNSP Inputs General'!$A$42,J$7,IF('DNSP Inputs General'!$B52='DNSP Inputs General'!$A$43,J$8,J$9))*'DNSP Inputs General'!$D52","v":174.27341932744386},{"$f":"IF('DNSP Inputs General'!$B52='DNSP Inputs General'!$A$42,K$7,IF('DNSP Inputs General'!$B52='DNSP Inputs General'!$A$43,K$8,K$9))*'DNSP Inputs General'!$D52","v":178.51954052343649},{"$f":"IF('DNSP Inputs General'!$B52='DNSP Inputs General'!$A$42,L$7,IF('DNSP Inputs General'!$B52='DNSP Inputs General'!$A$43,L$8,L$9))*'DNSP Inputs General'!$D52","v":182.80226288775688},{"$f":"IF('DNSP Inputs General'!$B52='DNSP Inputs General'!$A$42,M$7,IF('DNSP Inputs General'!$B52='DNSP Inputs General'!$A$43,M$8,M$9))*'DNSP Inputs General'!$D52","v":187.34749244597438},{"$f":"IF('DNSP Inputs General'!$B52='DNSP Inputs General'!$A$42,N$7,IF('DNSP Inputs General'!$B52='DNSP Inputs General'!$A$43,N$8,N$9))*'DNSP Inputs General'!$D52","v":192.27465088107118},null,{"$f":"IF('DNSP Inputs General'!$B52='DNSP Inputs General'!$A$42,P$7,IF('DNSP Inputs General'!$B52='DNSP Inputs General'!$A$43,P$8,P$9))*'DNSP Inputs General'!$D52","v":96.639072204596346},{"$f":"IF('DNSP Inputs General'!$B52='DNSP Inputs General'!$A$42,Q$7,IF('DNSP Inputs General'!$B52='DNSP Inputs General'!$A$43,Q$8,Q$9))*'DNSP Inputs General'!$D52","v":98.171531495658357},{"$f":"IF('DNSP Inputs General'!$B52='DNSP Inputs General'!$A$42,R$7,IF('DNSP Inputs General'!$B52='DNSP Inputs General'!$A$43,R$8,R$9))*'DNSP Inputs General'!$D52","v":100.86970841186414},{"$f":"IF('DNSP Inputs General'!$B52='DNSP Inputs General'!$A$42,S$7,IF('DNSP Inputs General'!$B52='DNSP Inputs General'!$A$43,S$8,S$9))*'DNSP Inputs General'!$D52","v":114.51778296560326},{"$f":"IF('DNSP Inputs General'!$B52='DNSP Inputs General'!$A$42,T$7,IF('DNSP Inputs General'!$B52='DNSP Inputs General'!$A$43,T$8,T$9))*'DNSP Inputs General'!$D52","v":115.8554258878244},null,2.8421709430404007E-14,1.4210854715202004E-14,0,2.8421709430404007E-14,2.8421709430404007E-14]
[{"$f":"'DNSP Inputs General'!A53","v":"Metal Halide 150W"},null,{"$f":"'DNSP Inputs General'!E53","v":282.31},{"$f":"IF('DNSP Inputs General'!$B53='DNSP Inputs General'!$A$42,D$7,IF('DNSP Inputs General'!$B53='DNSP Inputs General'!$A$43,D$8,D$9))*'DNSP Inputs General'!$D53","v":307.77610704711844},{"$f":"IF('DNSP Inputs General'!$B53='DNSP Inputs General'!$A$42,E$7,IF('DNSP Inputs General'!$B53='DNSP Inputs General'!$A$43,E$8,E$9))*'DNSP Inputs General'!$D53","v":314.34099077214142},{"$f":"IF('DNSP Inputs General'!$B53='DNSP Inputs General'!$A$42,F$7,IF('DNSP Inputs General'!$B53='DNSP Inputs General'!$A$43,F$8,F$9))*'DNSP Inputs General'!$D53","v":322.27179526217458},{"$f":"IF('DNSP Inputs General'!$B53='DNSP Inputs General'!$A$42,G$7,IF('DNSP Inputs General'!$B53='DNSP Inputs General'!$A$43,G$8,G$9))*'DNSP Inputs General'!$D53","v":342.94069938777159},{"$f":"IF('DNSP Inputs General'!$B53='DNSP Inputs General'!$A$42,H$7,IF('DNSP Inputs General'!$B53='DNSP Inputs General'!$A$43,H$8,H$9))*'DNSP Inputs General'!$D53","v":350.05796504899996},null,{"$f":"IF('DNSP Inputs General'!$B53='DNSP Inputs General'!$A$42,J$7,IF('DNSP Inputs General'!$B53='DNSP Inputs General'!$A$43,J$8,J$9))*'DNSP Inputs General'!$D53","v":197.98715909726579},{"$f":"IF('DNSP Inputs General'!$B53='DNSP Inputs General'!$A$42,K$7,IF('DNSP Inputs General'!$B53='DNSP Inputs General'!$A$43,K$8,K$9))*'DNSP Inputs General'!$D53","v":202.81105866853497},{"$f":"IF('DNSP Inputs General'!$B53='DNSP Inputs General'!$A$42,L$7,IF('DNSP Inputs General'!$B53='DNSP Inputs General'!$A$43,L$8,L$9))*'DNSP Inputs General'!$D53","v":207.67653980379029},{"$f":"IF('DNSP Inputs General'!$B53='DNSP Inputs General'!$A$42,M$7,IF('DNSP Inputs General'!$B53='DNSP Inputs General'!$A$43,M$8,M$9))*'DNSP Inputs General'!$D53","v":212.84024802245776},{"$f":"IF('DNSP Inputs General'!$B53='DNSP Inputs General'!$A$42,N$7,IF('DNSP Inputs General'!$B53='DNSP Inputs General'!$A$43,N$8,N$9))*'DNSP Inputs General'!$D53","v":218.43785495960083},null,{"$f":"IF('DNSP Inputs General'!$B53='DNSP Inputs General'!$A$42,P$7,IF('DNSP Inputs General'!$B53='DNSP Inputs General'!$A$43,P$8,P$9))*'DNSP Inputs General'!$D53","v":109.78894794985263},{"$f":"IF('DNSP Inputs General'!$B53='DNSP Inputs General'!$A$42,Q$7,IF('DNSP Inputs General'!$B53='DNSP Inputs General'!$A$43,Q$8,Q$9))*'DNSP Inputs General'!$D53","v":111.52993210360647},{"$f":"IF('DNSP Inputs General'!$B53='DNSP Inputs General'!$A$42,R$7,IF('DNSP Inputs General'!$B53='DNSP Inputs General'!$A$43,R$8,R$9))*'DNSP Inputs General'!$D53","v":114.59525545838429},{"$f":"IF('DNSP Inputs General'!$B53='DNSP Inputs General'!$A$42,S$7,IF('DNSP Inputs General'!$B53='DNSP Inputs General'!$A$43,S$8,S$9))*'DNSP Inputs General'!$D53","v":130.1004513653138},{"$f":"IF('DNSP Inputs General'!$B53='DNSP Inputs General'!$A$42,T$7,IF('DNSP Inputs General'!$B53='DNSP Inputs General'!$A$43,T$8,T$9))*'DNSP Inputs General'!$D53","v":131.62011008939911},null,2.8421709430404007E-14,1.4210854715202004E-14,0,2.8421709430404007E-14,2.8421709430404007E-14]
[{"$f":"'DNSP Inputs General'!A54","v":"HP Sodium 50W"},null,{"$f":"'DNSP Inputs General'!E54","v":46.14},{"$f":"IF('DNSP Inputs General'!$B54='DNSP Inputs General'!$A$42,D$7,IF('DNSP Inputs General'!$B54='DNSP Inputs General'!$A$43,D$8,D$9))*'DNSP Inputs General'!$D54","v":50.302913118671853},{"$f":"IF('DNSP Inputs General'!$B54='DNSP Inputs General'!$A$42,E$7,IF('DNSP Inputs General'!$B54='DNSP Inputs General'!$A$43,E$8,E$9))*'DNSP Inputs General'!$D54","v":51.375877419969804},{"$f":"IF('DNSP Inputs General'!$B54='DNSP Inputs General'!$A$42,F$7,IF('DNSP Inputs General'!$B54='DNSP Inputs General'!$A$43,F$8,F$9))*'DNSP Inputs General'!$D54","v":52.672087749780218},{"$f":"IF('DNSP Inputs General'!$B54='DNSP Inputs General'!$A$42,G$7,IF('DNSP Inputs General'!$B54='DNSP Inputs General'!$A$43,G$8,G$9))*'DNSP Inputs General'!$D54","v":56.050212512170866},{"$f":"IF('DNSP Inputs General'!$B54='DNSP Inputs General'!$A$42,H$7,IF('DNSP Inputs General'!$B54='DNSP Inputs General'!$A$43,H$8,H$9))*'DNSP Inputs General'!$D54","v":57.213458092323926},null,{"$f":"IF('DNSP Inputs General'!$B54='DNSP Inputs General'!$A$42,J$7,IF('DNSP Inputs General'!$B54='DNSP Inputs General'!$A$43,J$8,J$9))*'DNSP Inputs General'!$D54","v":32.359012394544706},{"$f":"IF('DNSP Inputs General'!$B54='DNSP Inputs General'!$A$42,K$7,IF('DNSP Inputs General'!$B54='DNSP Inputs General'!$A$43,K$8,K$9))*'DNSP Inputs General'!$D54","v":33.147430323911792},{"$f":"IF('DNSP Inputs General'!$B54='DNSP Inputs General'!$A$42,L$7,IF('DNSP Inputs General'!$B54='DNSP Inputs General'!$A$43,L$8,L$9))*'DNSP Inputs General'!$D54","v":33.942644342230032},{"$f":"IF('DNSP Inputs General'!$B54='DNSP Inputs General'!$A$42,M$7,IF('DNSP Inputs General'!$B54='DNSP Inputs General'!$A$43,M$8,M$9))*'DNSP Inputs General'!$D54","v":34.786600581672737},{"$f":"IF('DNSP Inputs General'!$B54='DNSP Inputs General'!$A$42,N$7,IF('DNSP Inputs General'!$B54='DNSP Inputs General'!$A$43,N$8,N$9))*'DNSP Inputs General'!$D54","v":35.70147320818392},null,{"$f":"IF('DNSP Inputs General'!$B54='DNSP Inputs General'!$A$42,P$7,IF('DNSP Inputs General'!$B54='DNSP Inputs General'!$A$43,P$8,P$9))*'DNSP Inputs General'!$D54","v":17.94390072412715},{"$f":"IF('DNSP Inputs General'!$B54='DNSP Inputs General'!$A$42,Q$7,IF('DNSP Inputs General'!$B54='DNSP Inputs General'!$A$43,Q$8,Q$9))*'DNSP Inputs General'!$D54","v":18.228447096058016},{"$f":"IF('DNSP Inputs General'!$B54='DNSP Inputs General'!$A$42,R$7,IF('DNSP Inputs General'!$B54='DNSP Inputs General'!$A$43,R$8,R$9))*'DNSP Inputs General'!$D54","v":18.729443407550182},{"$f":"IF('DNSP Inputs General'!$B54='DNSP Inputs General'!$A$42,S$7,IF('DNSP Inputs General'!$B54='DNSP Inputs General'!$A$43,S$8,S$9))*'DNSP Inputs General'!$D54","v":21.263611930498119},{"$f":"IF('DNSP Inputs General'!$B54='DNSP Inputs General'!$A$42,T$7,IF('DNSP Inputs General'!$B54='DNSP Inputs General'!$A$43,T$8,T$9))*'DNSP Inputs General'!$D54","v":21.511984884140009},null,3.5527136788005009E-15,3.5527136788005009E-15,3.5527136788005009E-15,1.0658141036401503E-14,3.5527136788005009E-15]
[]
[]
[{"$f":"'DNSP Inputs General'!A$68","v":"Energy Efficient Lights"}]
[{"$f":"'DNSP Inputs General'!A69","v":"T5 2X14W"},null,{"$f":"'DNSP Inputs General'!E69","v":35.6},{"$f":"'Charges Summary'!D$89","v":51.714462090282581},{"$f":"'Charges Summary'!E$89","v":54.687349989269805},{"$f":"'Charges Summary'!F$89","v":57.302270850286362},{"$f":"'Charges Summary'!G$89","v":59.71188017829796},{"$f":"'Charges Summary'!H$89","v":61.715234632469567},null,{"$f":"SUM('Charges Summary'!D83,'Charges Summary'!D8)","v":32.405245038728594},{"$f":"SUM('Charges Summary'!E83,'Charges Summary'!E8)","v":33.169161220681275},{"$f":"SUM('Charges Summary'!F83,'Charges Summary'!F8)","v":33.938393182854405},{"$f":"SUM('Charges Summary'!G83,'Charges Summary'!G8)","v":34.753479064136236},{"$f":"SUM('Charges Summary'!H83,'Charges Summary'!H8)","v":35.632342631777135},null,{"$f":"SUM('Charges Summary'!D85,'Charges Summary'!D11)","v":19.309217051553983},{"$f":"SUM('Charges Summary'!E85,'Charges Summary'!E11)","v":21.51818876858853},{"$f":"SUM('Charges Summary'!F85,'Charges Summary'!F11)","v":23.363877667431961},{"$f":"SUM('Charges Summary'!G85,'Charges Summary'!G11)","v":24.958401114161724},{"$f":"SUM('Charges Summary'!H85,'Charges Summary'!H11)","v":26.082892000692432},null,{"$f":"ABS(D23-J23-P23)","v":3.5527136788005009E-15},{"$f":"ABS(E23-K23-Q23)","v":0},{"$f":"ABS(F23-L23-R23)","v":3.5527136788005009E-15},{"$f":"ABS(G23-M23-S23)","v":0},{"$f":"ABS(H23-N23-T23)","v":0}]
[{"$f":"'DNSP Inputs General'!A70","v":"T5 2X24W"},null,{"$f":"'DNSP Inputs General'!E70","v":42.08},{"$f":"'Charges Summary'!D$105","v":55.217858526619409},{"$f":"'Charges Summary'!E$105","v":58.31702573072954},{"$f":"'Charges Summary'!F$105","v":61.050613567111441},{"$f":"'Charges Summary'!G$105","v":63.577087052718944},{"$f":"'Charges Summary'!H$105","v":65.69333383469953},null,{"$f":"SUM('Charges Summary'!D99,'Charges Summary'!D8)","v":35.718892087496961},{"$f":"SUM('Charges Summary'!E99,'Charges Summary'!E8)","v":36.563785928784725},{"$f":"SUM('Charges Summary'!F99,'Charges Summary'!F8)","v":37.414786612258801},{"$f":"SUM('Charges Summary'!G99,'Charges Summary'!G8)","v":38.316535152806196},{"$f":"SUM('Charges Summary'!H99,'Charges Summary'!H8)","v":39.289513668980007},null,{"$f":"SUM('Charges Summary'!D101,'Charges Summary'!D11)","v":19.498966439122448},{"$f":"SUM('Charges Summary'!E101,'Charges Summary'!E11)","v":21.753239801944815},{"$f":"SUM('Charges Summary'!F101,'Charges Summary'!F11)","v":23.635826954852639},{"$f":"SUM('Charges Summary'!G101,'Charges Summary'!G11)","v":25.260551899912755},{"$f":"SUM('Charges Summary'!H101,'Charges Summary'!H11)","v":26.403820165719516},null,0,0,0,7.1054273576010019E-15,7.1054273576010019E-15]
[{"$f":"'DNSP Inputs General'!A71","v":"LED 18W"},null,{"$f":"'DNSP Inputs General'!E71","v":16.27},{"$f":"'Charges Summary'!D$121","v":29.457088206178284},{"$f":"'Charges Summary'!E$121","v":31.567744733825336},{"$f":"'Charges Summary'!F$121","v":33.381348406593112},{"$f":"'Charges Summary'!G$121","v":35.01160670231161},{"$f":"'Charges Summary'!H$121","v":36.278702047995338},null,{"$f":"SUM('Charges Summary'!D115,'Charges Summary'!D8)","v":11.635721671615052},{"$f":"SUM('Charges Summary'!E115,'Charges Summary'!E8)","v":11.892622791326932},{"$f":"SUM('Charges Summary'!F115,'Charges Summary'!F8)","v":12.149861747475335},{"$f":"SUM('Charges Summary'!G115,'Charges Summary'!G8)","v":12.422410614577792},{"$f":"SUM('Charges Summary'!H115,'Charges Summary'!H8)","v":12.712251034919516},null,{"$f":"SUM('Charges Summary'!D117,'Charges Summary'!D11)","v":17.821366534563232},{"$f":"SUM('Charges Summary'!E117,'Charges Summary'!E11)","v":19.6751219424984},{"$f":"SUM('Charges Summary'!F117,'Charges Summary'!F11)","v":21.231486659117778},{"$f":"SUM('Charges Summary'!G117,'Charges Summary'!G11)","v":22.589196087733821},{"$f":"SUM('Charges Summary'!H117,'Charges Summary'!H11)","v":23.56645101307582},null,0,3.5527136788005009E-15,0,3.5527136788005009E-15,0]
[{"$f":"'DNSP Inputs General'!A72","v":"LED 14W"},null,{"$f":"'DNSP Inputs General'!E72","v":16.27},{"$f":"'Charges Summary'!D$137","v":31.275865072388616},{"$f":"'Charges Summary'!E$137","v":33.429390099387952},{"$f":"'Charges Summary'!F$137","v":35.286353649812462},{"$f":"'Charges Summary'!G$137","v":36.962278298050684},{"$f":"'Charges Summary'!H$137","v":38.278479401150449},null,{"$f":"SUM('Charges Summary'!D131,'Charges Summary'!D$8)","v":13.454498537825383},{"$f":"SUM('Charges Summary'!E131,'Charges Summary'!E$8)","v":13.754268156889552},{"$f":"SUM('Charges Summary'!F131,'Charges Summary'!F$8)","v":14.054866990694686},{"$f":"SUM('Charges Summary'!G131,'Charges Summary'!G$8)","v":14.373082210316866},{"$f":"SUM('Charges Summary'!H131,'Charges Summary'!H$8)","v":14.712028388074623},null,{"$f":"SUM('Charges Summary'!D133,'Charges Summary'!D$11)","v":17.821366534563232},{"$f":"SUM('Charges Summary'!E133,'Charges Summary'!E$11)","v":19.675121942498404},{"$f":"SUM('Charges Summary'!F133,'Charges Summary'!F$11)","v":21.231486659117778},{"$f":"SUM('Charges Summary'!G133,'Charges Summary'!G$11)","v":22.589196087733821},{"$f":"SUM('Charges Summary'!H133,'Charges Summary'!H$11)","v":23.56645101307582},null,{"$f":"ABS(D26-J26-P26)","v":0},{"$f":"ABS(E26-K26-Q26)","v":3.5527136788005009E-15},{"$f":"ABS(F26-L26-R26)","v":0},{"$f":"ABS(G26-M26-S26)","v":3.5527136788005009E-15},{"$f":"ABS(H26-N26-T26)","v":7.1054273576010019E-15}]
[{"$f":"'DNSP Inputs General'!A73","v":"LED 70W-125W (L1)"},null,{"$f":"'DNSP Inputs General'!E73","v":23.59},{"$f":"'Charges Summary'!D$153","v":45.363107933142558},{"$f":"'Charges Summary'!E$153","v":49.015259074438269},{"$f":"'Charges Summary'!F$153","v":52.13747317428134},{"$f":"'Charges Summary'!G$153","v":54.908840248263743},{"$f":"'Charges Summary'!H$153","v":57.028465845906425},null,{"$f":"SUM('Charges Summary'!D147,'Charges Summary'!D$8)","v":22.2395244693612},{"$f":"SUM('Charges Summary'!E147,'Charges Summary'!E$8)","v":22.772044426806811},{"$f":"SUM('Charges Summary'!F147,'Charges Summary'!F$8)","v":23.306836214188628},{"$f":"SUM('Charges Summary'!G147,'Charges Summary'!G$8)","v":23.876565466494142},{"$f":"SUM('Charges Summary'!H147,'Charges Summary'!H$8)","v":24.494234902286593},null,{"$f":"SUM('Charges Summary'!D149,'Charges Summary'!D$11)","v":23.123583463781358},{"$f":"SUM('Charges Summary'!E149,'Charges Summary'!E$11)","v":26.243214647631461},{"$f":"SUM('Charges Summary'!F149,'Charges Summary'!F$11)","v":28.830636960092715},{"$f":"SUM('Charges Summary'!G149,'Charges Summary'!G$11)","v":31.032274781769601},{"$f":"SUM('Charges Summary'!H149,'Charges Summary'!H$11)","v":32.534230943619832},null,0,3.5527136788005009E-15,3.5527136788005009E-15,0,0]
[{"$f":"'DNSP Inputs General'!A74","v":"LED 155W-250W (L2)"},null,{"$f":"'DNSP Inputs General'!E74","v":24.3},{"$f":"'Charges Summary'!D$169","v":46.035978101825066},{"$f":"'Charges Summary'!E$169","v":49.848773377120132},{"$f":"'Charges Summary'!F$169","v":53.101832349531968},{"$f":"'Charges Summary'!G$169","v":55.98029693532412},{"$f":"'Charges Summary'!H$169","v":58.166508984300336},null,{"$f":"SUM('Charges Summary'!D163,'Charges Summary'!D$8)","v":22.2395244693612},{"$f":"SUM('Charges Summary'!E163,'Charges Summary'!E$8)","v":22.772044426806811},{"$f":"SUM('Charges Summary'!F163,'Charges Summary'!F$8)","v":23.306836214188628},{"$f":"SUM('Charges Summary'!G163,'Charges Summary'!G$8)","v":23.876565466494142},{"$f":"SUM('Charges Summary'!H163,'Charges Summary'!H$8)","v":24.494234902286593},null,{"$f":"SUM('Charges Summary'!D165,'Charges Summary'!D$11)","v":23.796453632463866},{"$f":"SUM('Charges Summary'!E165,'Charges Summary'!E$11)","v":27.076728950313324},{"$f":"SUM('Charges Summary'!F165,'Charges Summary'!F$11)","v":29.794996135343343},{"$f":"SUM('Charges Summary'!G165,'Charges Summary'!G$11)","v":32.103731468829977},{"$f":"SUM('Charges Summary'!H165,'Charges Summary'!H$11)","v":33.672274082013743},null,0,3.5527136788005009E-15,3.5527136788005009E-15,0,0]
[{"$f":"'DNSP Inputs General'!A75","v":"LED 275W-400W (L4)"},null,{"$f":"'DNSP Inputs General'!E75","v":25.83},{"$f":"'Charges Summary'!D$185","v":52.061665036410623},{"$f":"'Charges Summary'!E$185","v":57.313060660496724},{"$f":"'Charges Summary'!F$185","v":61.73786163573638},{"$f":"'Charges Summary'!G$185","v":65.57540585928723},{"$f":"'Charges Summary'!H$185","v":68.357912897245484},null,{"$f":"SUM('Charges Summary'!D179,'Charges Summary'!D$8)","v":22.2395244693612},{"$f":"SUM('Charges Summary'!E179,'Charges Summary'!E$8)","v":22.772044426806811},{"$f":"SUM('Charges Summary'!F179,'Charges Summary'!F$8)","v":23.306836214188628},{"$f":"SUM('Charges Summary'!G179,'Charges Summary'!G$8)","v":23.876565466494142},{"$f":"SUM('Charges Summary'!H179,'Charges Summary'!H$8)","v":24.494234902286593},null,{"$f":"SUM('Charges Summary'!D181,'Charges Summary'!D$11)","v":29.82214056704942},{"$f":"SUM('Charges Summary'!E181,'Charges Summary'!E$11)","v":34.541016233689916},{"$f":"SUM('Charges Summary'!F181,'Charges Summary'!F$11)","v":38.431025421547758},{"$f":"SUM('Charges Summary'!G181,'Charges Summary'!G$11)","v":41.698840392793073},{"$f":"SUM('Charges Summary'!H181,'Charges Summary'!H$11)","v":43.863677994958891},null,3.5527136788005009E-15,0,7.1054273576010019E-15,1.4210854715202004E-14,0]
[{"$f":"'DNSP Inputs General'!A76","v":"Compact Fluorescent 32W"},null,{"$f":"'DNSP Inputs General'!E76","v":31.59},{"$f":"IF('DNSP Inputs General'!$B76='DNSP Inputs General'!$A$69,D$23,D$24)*'DNSP Inputs General'!$D76","v":45.488552441421533},{"$f":"IF('DNSP Inputs General'!$B76='DNSP Inputs General'!$A$69,E$23,E$24)*'DNSP Inputs General'!$D76","v":48.103534046750049},{"$f":"IF('DNSP Inputs General'!$B76='DNSP Inputs General'!$A$69,F$23,F$24)*'DNSP Inputs General'!$D76","v":50.403644304280306},{"$f":"IF('DNSP Inputs General'!$B76='DNSP Inputs General'!$A$69,G$23,G$24)*'DNSP Inputs General'!$D76","v":52.523160506329141},{"$f":"IF('DNSP Inputs General'!$B76='DNSP Inputs General'!$A$69,H$23,H$24)*'DNSP Inputs General'!$D76","v":54.285330902460252},null,{"$f":"IF('DNSP Inputs General'!$B76='DNSP Inputs General'!$A$69,J$23,J$24)*'DNSP Inputs General'!$D76","v":28.5039741058876},{"$f":"IF('DNSP Inputs General'!$B76='DNSP Inputs General'!$A$69,K$23,K$24)*'DNSP Inputs General'!$D76","v":29.175922336596056},{"$f":"IF('DNSP Inputs General'!$B76='DNSP Inputs General'!$A$69,L$23,L$24)*'DNSP Inputs General'!$D76","v":29.852546380172932},{"$f":"IF('DNSP Inputs General'!$B76='DNSP Inputs General'!$A$69,M$23,M$24)*'DNSP Inputs General'!$D76","v":30.569503984609039},{"$f":"IF('DNSP Inputs General'!$B76='DNSP Inputs General'!$A$69,N$23,N$24)*'DNSP Inputs General'!$D76","v":31.342561072889186},null,{"$f":"IF('DNSP Inputs General'!$B76='DNSP Inputs General'!$A$69,P$23,P$24)*'DNSP Inputs General'!$D76","v":16.984578335533929},{"$f":"IF('DNSP Inputs General'!$B76='DNSP Inputs General'!$A$69,Q$23,Q$24)*'DNSP Inputs General'!$D76","v":18.92761171015399},{"$f":"IF('DNSP Inputs General'!$B76='DNSP Inputs General'!$A$69,R$23,R$24)*'DNSP Inputs General'!$D76","v":20.551097924107378},{"$f":"IF('DNSP Inputs General'!$B76='DNSP Inputs General'!$A$69,S$23,S$24)*'DNSP Inputs General'!$D76","v":21.953656521720102},{"$f":"IF('DNSP Inputs General'!$B76='DNSP Inputs General'!$A$69,T$23,T$24)*'DNSP Inputs General'!$D76","v":22.942769829571066},null,3.5527136788005009E-15,3.5527136788005009E-15,3.5527136788005009E-15,0,0]
[{"$f":"'DNSP Inputs General'!A77","v":"Compact Fluorescent 42W"},null,{"$f":"'DNSP Inputs General'!E77","v":31.59},{"$f":"IF('DNSP Inputs General'!$B77='DNSP Inputs General'!$A$69,D$23,D$24)*'DNSP Inputs General'!$D77","v":45.488552441421533},{"$f":"IF('DNSP Inputs General'!$B77='DNSP Inputs General'!$A$69,E$23,E$24)*'DNSP Inputs General'!$D77","v":48.103534046750049},{"$f":"IF('DNSP Inputs General'!$B77='DNSP Inputs General'!$A$69,F$23,F$24)*'DNSP Inputs General'!$D77","v":50.403644304280306},{"$f":"IF('DNSP Inputs General'!$B77='DNSP Inputs General'!$A$69,G$23,G$24)*'DNSP Inputs General'!$D77","v":52.523160506329141},{"$f":"IF('DNSP Inputs General'!$B77='DNSP Inputs General'!$A$69,H$23,H$24)*'DNSP Inputs General'!$D77","v":54.285330902460252},null,{"$f":"IF('DNSP Inputs General'!$B77='DNSP Inputs General'!$A$69,J$23,J$24)*'DNSP Inputs General'!$D77","v":28.5039741058876},{"$f":"IF('DNSP Inputs General'!$B77='DNSP Inputs General'!$A$69,K$23,K$24)*'DNSP Inputs General'!$D77","v":29.175922336596056},{"$f":"IF('DNSP Inputs General'!$B77='DNSP Inputs General'!$A$69,L$23,L$24)*'DNSP Inputs General'!$D77","v":29.852546380172932},{"$f":"IF('DNSP Inputs General'!$B77='DNSP Inputs General'!$A$69,M$23,M$24)*'DNSP Inputs General'!$D77","v":30.569503984609039},{"$f":"IF('DNSP Inputs General'!$B77='DNSP Inputs General'!$A$69,N$23,N$24)*'DNSP Inputs General'!$D77","v":31.342561072889186},null,{"$f":"IF('DNSP Inputs General'!$B77='DNSP Inputs General'!$A$69,P$23,P$24)*'DNSP Inputs General'!$D77","v":16.984578335533929},{"$f":"IF('DNSP Inputs General'!$B77='DNSP Inputs General'!$A$69,Q$23,Q$24)*'DNSP Inputs General'!$D77","v":18.92761171015399},{"$f":"IF('DNSP Inputs General'!$B77='DNSP Inputs General'!$A$69,R$23,R$24)*'DNSP Inputs General'!$D77","v":20.551097924107378},{"$f":"IF('DNSP Inputs General'!$B77='DNSP Inputs General'!$A$69,S$23,S$24)*'DNSP Inputs General'!$D77","v":21.953656521720102},{"$f":"IF('DNSP Inputs General'!$B77='DNSP Inputs General'!$A$69,T$23,T$24)*'DNSP Inputs General'!$D77","v":22.942769829571066},null,3.5527136788005009E-15,3.5527136788005009E-15,3.5527136788005009E-15,0,0]
[{"$f":"'DNSP Inputs General'!A78","v":"Smart lighting L1"},null,{"$f":"'DNSP Inputs General'!E78","v":25.83},{"$f":"'Charges Summary'!D$201","v":59.98039628854719},{"$f":"'Charges Summary'!E$201","v":63.94559634246572},{"$f":"'Charges Summary'!F$201","v":67.385949230844076},{"$f":"'Charges Summary'!G$201","v":70.486417935999498},{"$f":"'Charges Summary'!H$201","v":72.949801590593751},null,{"$f":"SUM('Charges Summary'!D$195,'Charges Summary'!D$8)","v":36.856812824765832},{"$f":"SUM('Charges Summary'!E$195,'Charges Summary'!E$8)","v":37.702381694834266},{"$f":"SUM('Charges Summary'!F$195,'Charges Summary'!F$8)","v":38.555312270751358},{"$f":"SUM('Charges Summary'!G$195,'Charges Summary'!G$8)","v":39.454143154229904},{"$f":"SUM('Charges Summary'!H$195,'Charges Summary'!H$8)","v":40.415570646973919},null,{"$f":"SUM('Charges Summary'!D$197,'Charges Summary'!D$11)","v":23.123583463781358},{"$f":"SUM('Charges Summary'!E$197,'Charges Summary'!E$11)","v":26.243214647631461},{"$f":"SUM('Charges Summary'!F$197,'Charges Summary'!F$11)","v":28.830636960092715},{"$f":"SUM('Charges Summary'!G$197,'Charges Summary'!G$11)","v":31.032274781769598},{"$f":"SUM('Charges Summary'!H$197,'Charges Summary'!H$11)","v":32.534230943619832},null,{"$f":"ABS(D32-J32-P32)","v":0},{"$f":"ABS(E32-K32-Q32)","v":7.1054273576010019E-15},{"$f":"ABS(F32-L32-R32)","v":3.5527136788005009E-15},{"$f":"ABS(G32-M32-S32)","v":3.5527136788005009E-15},{"$f":"ABS(H32-N32-T32)","v":0}]
[{"$f":"'DNSP Inputs General'!A79","v":"Smart lighting L2"},null,{"$f":"'DNSP Inputs General'!E79","v":25.83},{"$f":"'Charges Summary'!D$217","v":60.653266457229698},{"$f":"'Charges Summary'!E$217","v":64.779110645147583},{"$f":"'Charges Summary'!F$217","v":68.350308406094697},{"$f":"'Charges Summary'!G$217","v":71.557874623059888},{"$f":"'Charges Summary'!H$217","v":74.087844728987648},null,{"$f":"SUM('Charges Summary'!D$211,'Charges Summary'!D$8)","v":36.856812824765832},{"$f":"SUM('Charges Summary'!E$211,'Charges Summary'!E$8)","v":37.702381694834266},{"$f":"SUM('Charges Summary'!F$211,'Charges Summary'!F$8)","v":38.555312270751358},{"$f":"SUM('Charges Summary'!G$211,'Charges Summary'!G$8)","v":39.454143154229904},{"$f":"SUM('Charges Summary'!H$211,'Charges Summary'!H$8)","v":40.415570646973919},null,{"$f":"SUM('Charges Summary'!D$213,'Charges Summary'!D$11)","v":23.796453632463866},{"$f":"SUM('Charges Summary'!E$213,'Charges Summary'!E$11)","v":27.076728950313317},{"$f":"SUM('Charges Summary'!F$213,'Charges Summary'!F$11)","v":29.794996135343343},{"$f":"SUM('Charges Summary'!G$213,'Charges Summary'!G$11)","v":32.103731468829977},{"$f":"SUM('Charges Summary'!H$213,'Charges Summary'!H$11)","v":33.672274082013743},null,0,0,3.5527136788005009E-15,7.1054273576010019E-15,1.4210854715202004E-14]
[{"$f":"'DNSP Inputs General'!A80","v":"Smart lighting L4"},null,{"$f":"'DNSP Inputs General'!E80","v":25.83},{"$f":"'Charges Summary'!D$233","v":66.678953391815242},{"$f":"'Charges Summary'!E$233","v":72.243397928524175},{"$f":"'Charges Summary'!F$233","v":76.986337692299116},{"$f":"'Charges Summary'!G$233","v":81.152983547022984},{"$f":"'Charges Summary'!H$233","v":84.27924864193281},null,{"$f":"SUM('Charges Summary'!D$227,'Charges Summary'!D$8)","v":36.856812824765832},{"$f":"SUM('Charges Summary'!E$227,'Charges Summary'!E$8)","v":37.702381694834266},{"$f":"SUM('Charges Summary'!F$227,'Charges Summary'!F$8)","v":38.555312270751358},{"$f":"SUM('Charges Summary'!G$227,'Charges Summary'!G$8)","v":39.454143154229904},{"$f":"SUM('Charges Summary'!H$227,'Charges Summary'!H$8)","v":40.415570646973919},null,{"$f":"SUM('Charges Summary'!D$229,'Charges Summary'!D$11)","v":29.82214056704942},{"$f":"SUM('Charges Summary'!E$229,'Charges Summary'!E$11)","v":34.541016233689916},{"$f":"SUM('Charges Summary'!F$229,'Charges Summary'!F$11)","v":38.431025421547758},{"$f":"SUM('Charges Summary'!G$229,'Charges Summary'!G$11)","v":41.698840392793073},{"$f":"SUM('Charges Summary'!H$229,'Charges Summary'!H$11)","v":43.863677994958891},null,1.0658141036401503E-14,7.1054273576010019E-15,0,7.1054273576010019E-15,0]
[]
[]
[null,null,null,{"$f":"'DNSP Inputs General'!$B$86","v":"North & East"}]
["Public Lighting Tariffs",null,"Total Tariff",null,null,null,null,null,null,"Operations, maintenance and repair Tariff",null,null,null,null,null,"Replacement Tariff",null,null,null,null,null,"Check"]
[null,null,"Actual"]
[{"$f":"'DNSP Inputs General'!A$88","v":"Existing Lights"},null,{"$f":"'DNSP Inputs General'!P$2","v":"HY2021"},{"$f":"'DNSP Inputs General'!Q$2","v":44742},{"$f":"'DNSP Inputs General'!R$2","v":45107},{"$f":"'DNSP Inputs General'!S$2","v":45473},{"$f":"'DNSP Inputs General'!T$2","v":45838},{"$f":"'DNSP Inputs General'!U$2","v":46203},null,{"$f":"D40","v":44742},{"$f":"E40","v":45107},45473,45838,46203,null,{"$f":"J40","v":44742},{"$f":"K40","v":45107},45473,45838,46203,null,{"$f":"P40","v":44742},{"$f":"Q40","v":45107},{"$f":"R40","v":45473},{"$f":"S40","v":45838},{"$f":"T40","v":46203}]
[{"$f":"'DNSP Inputs General'!A89","v":"Mercury Vapour 80W"},null,{"$f":"'DNSP Inputs General'!E89","v":49.95},{"$f":"'Charges Summary'!K$31","v":67.481766721107732},{"$f":"'Charges Summary'!L$31","v":68.780456810559699},{"$f":"'Charges Summary'!M$31","v":69.440775223021348},{"$f":"'Charges Summary'!N$31","v":75.217043889441968},{"$f":"'Charges Summary'!O$31","v":76.523838062054651},null,{"$f":"SUM('Charges Summary'!K25,'Charges Summary'!K8)","v":29.412576071413444},{"$f":"SUM('Charges Summary'!L25,'Charges Summary'!L8)","v":30.083584147146144},{"$f":"SUM('Charges Summary'!M25,'Charges Summary'!M8)","v":30.759910124412009},{"$f":"SUM('Charges Summary'!N25,'Charges Summary'!N8)","v":31.472912464498361},{"$f":"SUM('Charges Summary'!O25,'Charges Summary'!O8)","v":32.234805040225581},null,{"$f":"SUM('Charges Summary'!K27,'Charges Summary'!K11)","v":38.069190649694285},{"$f":"SUM('Charges Summary'!L27,'Charges Summary'!L11)","v":38.696872663413558},{"$f":"SUM('Charges Summary'!M27,'Charges Summary'!M11)","v":38.680865098609331},{"$f":"SUM('Charges Summary'!N27,'Charges Summary'!N11)","v":43.744131424943603},{"$f":"SUM('Charges Summary'!O27,'Charges Summary'!O11)","v":44.28903302182907},null,{"$f":"ABS(D41-J41-P41)","v":7.1054273576010019E-15},{"$f":"ABS(E41-K41-Q41)","v":0},{"$f":"ABS(F41-L41-R41)","v":7.1054273576010019E-15},{"$f":"ABS(G41-M41-S41)","v":0},{"$f":"ABS(H41-N41-T41)","v":0}]
[{"$f":"'DNSP Inputs General'!A90","v":"HP Sodium 150W"},null,{"$f":"'DNSP Inputs General'!E90","v":118.4},{"$f":"'Charges Summary'!K$55","v":132.79897948699869},{"$f":"'Charges Summary'!L$55","v":135.66787702894655},{"$f":"'Charges Summary'!M$55","v":136.89944637908295},{"$f":"'Charges Summary'!N$55","v":144.99742065883262},{"$f":"'Charges Summary'!O$55","v":148.14486643931701},null,{"$f":"SUM('Charges Summary'!K49,'Charges Summary'!K8)","v":90.156996061916601},{"$f":"SUM('Charges Summary'!L49,'Charges Summary'!L8)","v":92.381111391332027},{"$f":"SUM('Charges Summary'!M49,'Charges Summary'!M8)","v":94.62665282468484},{"$f":"SUM('Charges Summary'!N49,'Charges Summary'!N8)","v":97.011019847663221},{"$f":"SUM('Charges Summary'!O49,'Charges Summary'!O8)","v":99.59754567596957},null,{"$f":"SUM('Charges Summary'!K51,'Charges Summary'!K11)","v":42.641983425082088},{"$f":"SUM('Charges Summary'!L51,'Charges Summary'!L11)","v":43.286765637614536},{"$f":"SUM('Charges Summary'!M51,'Charges Summary'!M11)","v":42.272793554398106},{"$f":"SUM('Charges Summary'!N51,'Charges Summary'!N11)","v":47.986400811169389},{"$f":"SUM('Charges Summary'!O51,'Charges Summary'!O11)","v":48.547320763347443},null,{"$f":"ABS(D42-J42-P42)","v":0},1.4210854715202004E-14,0,1.4210854715202004E-14,0]
[{"$f":"'DNSP Inputs General'!A91","v":"HP Sodium 250W"},null,{"$f":"'DNSP Inputs General'!E91","v":117.12},{"$f":"'Charges Summary'!K$71","v":132.57555660580545},{"$f":"'Charges Summary'!L$71","v":135.51996643721645},{"$f":"'Charges Summary'!M$71","v":137.24316293420702},{"$f":"'Charges Summary'!N$71","v":145.43398225203995},{"$f":"'Charges Summary'!O$71","v":148.53447308805437},null,{"$f":"SUM('Charges Summary'!K65,'Charges Summary'!K8)","v":89.71036388810586},{"$f":"SUM('Charges Summary'!L65,'Charges Summary'!L8)","v":92.009156804108486},{"$f":"SUM('Charges Summary'!M65,'Charges Summary'!M8)","v":94.215409528936206},{"$f":"SUM('Charges Summary'!N65,'Charges Summary'!N8)","v":96.55593142539621},{"$f":"SUM('Charges Summary'!O65,'Charges Summary'!O8)","v":99.092135534177956},null,{"$f":"SUM('Charges Summary'!K67,'Charges Summary'!K11)","v":42.865192717699586},{"$f":"SUM('Charges Summary'!L67,'Charges Summary'!L11)","v":43.510809633107968},{"$f":"SUM('Charges Summary'!M67,'Charges Summary'!M11)","v":43.027753405270801},{"$f":"SUM('Charges Summary'!N67,'Charges Summary'!N11)","v":48.878050826643751},{"$f":"SUM('Charges Summary'!O67,'Charges Summary'!O11)","v":49.44233755387642},null,0,0,1.4210854715202004E-14,7.1054273576010019E-15,7.1054273576010019E-15]
[{"$f":"'DNSP Inputs General'!A92","v":"Mercury Vapour 50W"},null,{"$f":"'DNSP Inputs General'!E92","v":73.930000000000007},{"$f":"IF('DNSP Inputs General'!$B92='DNSP Inputs General'!$A$89,D$41,IF('DNSP Inputs General'!$B92='DNSP Inputs General'!$A$90,D$42,D$43))*'DNSP Inputs General'!$D92","v":99.873014747239438},{"$f":"IF('DNSP Inputs General'!$B92='DNSP Inputs General'!$A$89,E$41,IF('DNSP Inputs General'!$B92='DNSP Inputs General'!$A$90,E$42,E$43))*'DNSP Inputs General'!$D92","v":101.79507607962836},{"$f":"IF('DNSP Inputs General'!$B92='DNSP Inputs General'!$A$89,F$41,IF('DNSP Inputs General'!$B92='DNSP Inputs General'!$A$90,F$42,F$43))*'DNSP Inputs General'!$D92","v":102.7723473300716},{"$f":"IF('DNSP Inputs General'!$B92='DNSP Inputs General'!$A$89,G$41,IF('DNSP Inputs General'!$B92='DNSP Inputs General'!$A$90,G$42,G$43))*'DNSP Inputs General'!$D92","v":111.32122495637411},{"$f":"IF('DNSP Inputs General'!$B92='DNSP Inputs General'!$A$89,H$41,IF('DNSP Inputs General'!$B92='DNSP Inputs General'!$A$90,H$42,H$43))*'DNSP Inputs General'!$D92","v":113.25528033184088},null,{"$f":"IF('DNSP Inputs General'!$B92='DNSP Inputs General'!$A$89,J$41,IF('DNSP Inputs General'!$B92='DNSP Inputs General'!$A$90,J$42,J$43))*'DNSP Inputs General'!$D92","v":43.530612585691898},{"$f":"IF('DNSP Inputs General'!$B92='DNSP Inputs General'!$A$89,K$41,IF('DNSP Inputs General'!$B92='DNSP Inputs General'!$A$90,K$42,K$43))*'DNSP Inputs General'!$D92","v":44.52370453777629},{"$f":"IF('DNSP Inputs General'!$B92='DNSP Inputs General'!$A$89,L$41,IF('DNSP Inputs General'!$B92='DNSP Inputs General'!$A$90,L$42,L$43))*'DNSP Inputs General'!$D92","v":45.524666984129773},{"$f":"IF('DNSP Inputs General'!$B92='DNSP Inputs General'!$A$89,M$41,IF('DNSP Inputs General'!$B92='DNSP Inputs General'!$A$90,M$42,M$43))*'DNSP Inputs General'!$D92","v":46.579910447457571},{"$f":"IF('DNSP Inputs General'!$B92='DNSP Inputs General'!$A$89,N$41,IF('DNSP Inputs General'!$B92='DNSP Inputs General'!$A$90,N$42,N$43))*'DNSP Inputs General'!$D92","v":47.707511459533862},null,{"$f":"IF('DNSP Inputs General'!$B92='DNSP Inputs General'!$A$89,P$41,IF('DNSP Inputs General'!$B92='DNSP Inputs General'!$A$90,P$42,P$43))*'DNSP Inputs General'!$D92","v":56.34240216154754},{"$f":"IF('DNSP Inputs General'!$B92='DNSP Inputs General'!$A$89,Q$41,IF('DNSP Inputs General'!$B92='DNSP Inputs General'!$A$90,Q$42,Q$43))*'DNSP Inputs General'!$D92","v":57.271371541852062},{"$f":"IF('DNSP Inputs General'!$B92='DNSP Inputs General'!$A$89,R$41,IF('DNSP Inputs General'!$B92='DNSP Inputs General'!$A$90,R$42,R$43))*'DNSP Inputs General'!$D92","v":57.247680345941809},{"$f":"IF('DNSP Inputs General'!$B92='DNSP Inputs General'!$A$89,S$41,IF('DNSP Inputs General'!$B92='DNSP Inputs General'!$A$90,S$42,S$43))*'DNSP Inputs General'!$D92","v":64.741314508916531},{"$f":"IF('DNSP Inputs General'!$B92='DNSP Inputs General'!$A$89,T$41,IF('DNSP Inputs General'!$B92='DNSP Inputs General'!$A$90,T$42,T$43))*'DNSP Inputs General'!$D92","v":65.547768872307017},null,0,7.1054273576010019E-15,1.4210854715202004E-14,0,0]
[{"$f":"'DNSP Inputs General'!A93","v":"Mercury Vapour 125W"},null,{"$f":"'DNSP Inputs General'!E93","v":73.930000000000007},{"$f":"IF('DNSP Inputs General'!$B93='DNSP Inputs General'!$A$89,D$41,IF('DNSP Inputs General'!$B93='DNSP Inputs General'!$A$90,D$42,D$43))*'DNSP Inputs General'!$D93","v":99.873014747239438},{"$f":"IF('DNSP Inputs General'!$B93='DNSP Inputs General'!$A$89,E$41,IF('DNSP Inputs General'!$B93='DNSP Inputs General'!$A$90,E$42,E$43))*'DNSP Inputs General'!$D93","v":101.79507607962836},{"$f":"IF('DNSP Inputs General'!$B93='DNSP Inputs General'!$A$89,F$41,IF('DNSP Inputs General'!$B93='DNSP Inputs General'!$A$90,F$42,F$43))*'DNSP Inputs General'!$D93","v":102.7723473300716},{"$f":"IF('DNSP Inputs General'!$B93='DNSP Inputs General'!$A$89,G$41,IF('DNSP Inputs General'!$B93='DNSP Inputs General'!$A$90,G$42,G$43))*'DNSP Inputs General'!$D93","v":111.32122495637411},{"$f":"IF('DNSP Inputs General'!$B93='DNSP Inputs General'!$A$89,H$41,IF('DNSP Inputs General'!$B93='DNSP Inputs General'!$A$90,H$42,H$43))*'DNSP Inputs General'!$D93","v":113.25528033184088},null,{"$f":"IF('DNSP Inputs General'!$B93='DNSP Inputs General'!$A$89,J$41,IF('DNSP Inputs General'!$B93='DNSP Inputs General'!$A$90,J$42,J$43))*'DNSP Inputs General'!$D93","v":43.530612585691898},{"$f":"IF('DNSP Inputs General'!$B93='DNSP Inputs General'!$A$89,K$41,IF('DNSP Inputs General'!$B93='DNSP Inputs General'!$A$90,K$42,K$43))*'DNSP Inputs General'!$D93","v":44.52370453777629},{"$f":"IF('DNSP Inputs General'!$B93='DNSP Inputs General'!$A$89,L$41,IF('DNSP Inputs General'!$B93='DNSP Inputs General'!$A$90,L$42,L$43))*'DNSP Inputs General'!$D93","v":45.524666984129773},{"$f":"IF('DNSP Inputs General'!$B93='DNSP Inputs General'!$A$89,M$41,IF('DNSP Inputs General'!$B93='DNSP Inputs General'!$A$90,M$42,M$43))*'DNSP Inputs General'!$D93","v":46.579910447457571},{"$f":"IF('DNSP Inputs General'!$B93='DNSP Inputs General'!$A$89,N$41,IF('DNSP Inputs General'!$B93='DNSP Inputs General'!$A$90,N$42,N$43))*'DNSP Inputs General'!$D93","v":47.707511459533862},null,{"$f":"IF('DNSP Inputs General'!$B93='DNSP Inputs General'!$A$89,P$41,IF('DNSP Inputs General'!$B93='DNSP Inputs General'!$A$90,P$42,P$43))*'DNSP Inputs General'!$D93","v":56.34240216154754},{"$f":"IF('DNSP Inputs General'!$B93='DNSP Inputs General'!$A$89,Q$41,IF('DNSP Inputs General'!$B93='DNSP Inputs General'!$A$90,Q$42,Q$43))*'DNSP Inputs General'!$D93","v":57.271371541852062},{"$f":"IF('DNSP Inputs General'!$B93='DNSP Inputs General'!$A$89,R$41,IF('DNSP Inputs General'!$B93='DNSP Inputs General'!$A$90,R$42,R$43))*'DNSP Inputs General'!$D93","v":57.247680345941809},{"$f":"IF('DNSP Inputs General'!$B93='DNSP Inputs General'!$A$89,S$41,IF('DNSP Inputs General'!$B93='DNSP Inputs General'!$A$90,S$42,S$43))*'DNSP Inputs General'!$D93","v":64.741314508916531},{"$f":"IF('DNSP Inputs General'!$B93='DNSP Inputs General'!$A$89,T$41,IF('DNSP Inputs General'!$B93='DNSP Inputs General'!$A$90,T$42,T$43))*'DNSP Inputs General'!$D93","v":65.547768872307017},null,0,7.1054273576010019E-15,1.4210854715202004E-14,0,0]
[{"$f":"'DNSP Inputs General'!A94","v":"Mercury Vapour 250W"},null,{"$f":"'DNSP Inputs General'!E94","v":121.81},{"$f":"IF('DNSP Inputs General'!$B94='DNSP Inputs General'!$A$89,D$41,IF('DNSP Inputs General'!$B94='DNSP Inputs General'!$A$90,D$42,D$43))*'DNSP Inputs General'!$D94","v":137.87857887003767},{"$f":"IF('DNSP Inputs General'!$B94='DNSP Inputs General'!$A$89,E$41,IF('DNSP Inputs General'!$B94='DNSP Inputs General'!$A$90,E$42,E$43))*'DNSP Inputs General'!$D94","v":140.94076509470511},{"$f":"IF('DNSP Inputs General'!$B94='DNSP Inputs General'!$A$89,F$41,IF('DNSP Inputs General'!$B94='DNSP Inputs General'!$A$90,F$42,F$43))*'DNSP Inputs General'!$D94","v":142.73288945157532},{"$f":"IF('DNSP Inputs General'!$B94='DNSP Inputs General'!$A$89,G$41,IF('DNSP Inputs General'!$B94='DNSP Inputs General'!$A$90,G$42,G$43))*'DNSP Inputs General'!$D94","v":151.25134154212157},{"$f":"IF('DNSP Inputs General'!$B94='DNSP Inputs General'!$A$89,H$41,IF('DNSP Inputs General'!$B94='DNSP Inputs General'!$A$90,H$42,H$43))*'DNSP Inputs General'!$D94","v":154.47585201157656},null,{"$f":"IF('DNSP Inputs General'!$B94='DNSP Inputs General'!$A$89,J$41,IF('DNSP Inputs General'!$B94='DNSP Inputs General'!$A$90,J$42,J$43))*'DNSP Inputs General'!$D94","v":93.298778443630098},{"$f":"IF('DNSP Inputs General'!$B94='DNSP Inputs General'!$A$89,K$41,IF('DNSP Inputs General'!$B94='DNSP Inputs General'!$A$90,K$42,K$43))*'DNSP Inputs General'!$D94","v":95.689523076272835},{"$f":"IF('DNSP Inputs General'!$B94='DNSP Inputs General'!$A$89,L$41,IF('DNSP Inputs General'!$B94='DNSP Inputs General'!$A$90,L$42,L$43))*'DNSP Inputs General'!$D94","v":97.984025910093663},{"$f":"IF('DNSP Inputs General'!$B94='DNSP Inputs General'!$A$89,M$41,IF('DNSP Inputs General'!$B94='DNSP Inputs General'!$A$90,M$42,M$43))*'DNSP Inputs General'!$D94","v":100.41816868241206},{"$f":"IF('DNSP Inputs General'!$B94='DNSP Inputs General'!$A$89,N$41,IF('DNSP Inputs General'!$B94='DNSP Inputs General'!$A$90,N$42,N$43))*'DNSP Inputs General'!$D94","v":103.05582095554507},null,{"$f":"IF('DNSP Inputs General'!$B94='DNSP Inputs General'!$A$89,P$41,IF('DNSP Inputs General'!$B94='DNSP Inputs General'!$A$90,P$42,P$43))*'DNSP Inputs General'!$D94","v":44.579800426407573},{"$f":"IF('DNSP Inputs General'!$B94='DNSP Inputs General'!$A$89,Q$41,IF('DNSP Inputs General'!$B94='DNSP Inputs General'!$A$90,Q$42,Q$43))*'DNSP Inputs General'!$D94","v":45.251242018432286},{"$f":"IF('DNSP Inputs General'!$B94='DNSP Inputs General'!$A$89,R$41,IF('DNSP Inputs General'!$B94='DNSP Inputs General'!$A$90,R$42,R$43))*'DNSP Inputs General'!$D94","v":44.748863541481633},{"$f":"IF('DNSP Inputs General'!$B94='DNSP Inputs General'!$A$89,S$41,IF('DNSP Inputs General'!$B94='DNSP Inputs General'!$A$90,S$42,S$43))*'DNSP Inputs General'!$D94","v":50.833172859709499},{"$f":"IF('DNSP Inputs General'!$B94='DNSP Inputs General'!$A$89,T$41,IF('DNSP Inputs General'!$B94='DNSP Inputs General'!$A$90,T$42,T$43))*'DNSP Inputs General'!$D94","v":51.420031056031476},null,0,7.1054273576010019E-15,2.1316282072803006E-14,7.1054273576010019E-15,1.4210854715202004E-14]
[{"$f":"'DNSP Inputs General'!A95","v":"Mercury Vapour 400W"},null,{"$f":"'DNSP Inputs General'!E95","v":125.32},{"$f":"IF('DNSP Inputs General'!$B95='DNSP Inputs General'!$A$89,D$41,IF('DNSP Inputs General'!$B95='DNSP Inputs General'!$A$90,D$42,D$43))*'DNSP Inputs General'!$D95","v":141.85584556821183},{"$f":"IF('DNSP Inputs General'!$B95='DNSP Inputs General'!$A$89,E$41,IF('DNSP Inputs General'!$B95='DNSP Inputs General'!$A$90,E$42,E$43))*'DNSP Inputs General'!$D95","v":145.00636408782162},{"$f":"IF('DNSP Inputs General'!$B95='DNSP Inputs General'!$A$89,F$41,IF('DNSP Inputs General'!$B95='DNSP Inputs General'!$A$90,F$42,F$43))*'DNSP Inputs General'!$D95","v":146.85018433960153},{"$f":"IF('DNSP Inputs General'!$B95='DNSP Inputs General'!$A$89,G$41,IF('DNSP Inputs General'!$B95='DNSP Inputs General'!$A$90,G$42,G$43))*'DNSP Inputs General'!$D95","v":155.61436100968277},{"$f":"IF('DNSP Inputs General'!$B95='DNSP Inputs General'!$A$89,H$41,IF('DNSP Inputs General'!$B95='DNSP Inputs General'!$A$90,H$42,H$43))*'DNSP Inputs General'!$D95","v":158.93188620421819},null,{"$f":"IF('DNSP Inputs General'!$B95='DNSP Inputs General'!$A$89,J$41,IF('DNSP Inputs General'!$B95='DNSP Inputs General'!$A$90,J$42,J$43))*'DNSP Inputs General'!$D95","v":95.990089360273274},{"$f":"IF('DNSP Inputs General'!$B95='DNSP Inputs General'!$A$89,K$41,IF('DNSP Inputs General'!$B95='DNSP Inputs General'!$A$90,K$42,K$43))*'DNSP Inputs General'!$D95","v":98.449797780396082},{"$f":"IF('DNSP Inputs General'!$B95='DNSP Inputs General'!$A$89,L$41,IF('DNSP Inputs General'!$B95='DNSP Inputs General'!$A$90,L$42,L$43))*'DNSP Inputs General'!$D95","v":100.81048819596175},{"$f":"IF('DNSP Inputs General'!$B95='DNSP Inputs General'!$A$89,M$41,IF('DNSP Inputs General'!$B95='DNSP Inputs General'!$A$90,M$42,M$43))*'DNSP Inputs General'!$D95","v":103.31484662517396},{"$f":"IF('DNSP Inputs General'!$B95='DNSP Inputs General'!$A$89,N$41,IF('DNSP Inputs General'!$B95='DNSP Inputs General'!$A$90,N$42,N$43))*'DNSP Inputs General'!$D95","v":106.02858502157042},null,{"$f":"IF('DNSP Inputs General'!$B95='DNSP Inputs General'!$A$89,P$41,IF('DNSP Inputs General'!$B95='DNSP Inputs General'!$A$90,P$42,P$43))*'DNSP Inputs General'!$D95","v":45.86575620793856},{"$f":"IF('DNSP Inputs General'!$B95='DNSP Inputs General'!$A$89,Q$41,IF('DNSP Inputs General'!$B95='DNSP Inputs General'!$A$90,Q$42,Q$43))*'DNSP Inputs General'!$D95","v":46.556566307425527},{"$f":"IF('DNSP Inputs General'!$B95='DNSP Inputs General'!$A$89,R$41,IF('DNSP Inputs General'!$B95='DNSP Inputs General'!$A$90,R$42,R$43))*'DNSP Inputs General'!$D95","v":46.039696143639759},{"$f":"IF('DNSP Inputs General'!$B95='DNSP Inputs General'!$A$89,S$41,IF('DNSP Inputs General'!$B95='DNSP Inputs General'!$A$90,S$42,S$43))*'DNSP Inputs General'!$D95","v":52.299514384508818},{"$f":"IF('DNSP Inputs General'!$B95='DNSP Inputs General'!$A$89,T$41,IF('DNSP Inputs General'!$B95='DNSP Inputs General'!$A$90,T$42,T$43))*'DNSP Inputs General'!$D95","v":52.903301182647773},null,0,1.4210854715202004E-14,1.4210854715202004E-14,7.1054273576010019E-15,7.1054273576010019E-15]
[{"$f":"'DNSP Inputs General'!A96","v":"HP Sodium 100W"},null,{"$f":"'DNSP Inputs General'!E96","v":126.69},{"$f":"IF('DNSP Inputs General'!$B96='DNSP Inputs General'!$A$89,D$41,IF('DNSP Inputs General'!$B96='DNSP Inputs General'!$A$90,D$42,D$43))*'DNSP Inputs General'!$D96","v":142.09490805108859},{"$f":"IF('DNSP Inputs General'!$B96='DNSP Inputs General'!$A$89,E$41,IF('DNSP Inputs General'!$B96='DNSP Inputs General'!$A$90,E$42,E$43))*'DNSP Inputs General'!$D96","v":145.1646284209728},{"$f":"IF('DNSP Inputs General'!$B96='DNSP Inputs General'!$A$89,F$41,IF('DNSP Inputs General'!$B96='DNSP Inputs General'!$A$90,F$42,F$43))*'DNSP Inputs General'!$D96","v":146.48240762561875},{"$f":"IF('DNSP Inputs General'!$B96='DNSP Inputs General'!$A$89,G$41,IF('DNSP Inputs General'!$B96='DNSP Inputs General'!$A$90,G$42,G$43))*'DNSP Inputs General'!$D96","v":155.14724010495092},{"$f":"IF('DNSP Inputs General'!$B96='DNSP Inputs General'!$A$89,H$41,IF('DNSP Inputs General'!$B96='DNSP Inputs General'!$A$90,H$42,H$43))*'DNSP Inputs General'!$D96","v":158.51500709006922},null,{"$f":"IF('DNSP Inputs General'!$B96='DNSP Inputs General'!$A$89,J$41,IF('DNSP Inputs General'!$B96='DNSP Inputs General'!$A$90,J$42,J$43))*'DNSP Inputs General'!$D96","v":96.467985786250765},{"$f":"IF('DNSP Inputs General'!$B96='DNSP Inputs General'!$A$89,K$41,IF('DNSP Inputs General'!$B96='DNSP Inputs General'!$A$90,K$42,K$43))*'DNSP Inputs General'!$D96","v":98.847789188725272},{"$f":"IF('DNSP Inputs General'!$B96='DNSP Inputs General'!$A$89,L$41,IF('DNSP Inputs General'!$B96='DNSP Inputs General'!$A$90,L$42,L$43))*'DNSP Inputs General'!$D96","v":101.25051852241279},{"$f":"IF('DNSP Inputs General'!$B96='DNSP Inputs General'!$A$89,M$41,IF('DNSP Inputs General'!$B96='DNSP Inputs General'!$A$90,M$42,M$43))*'DNSP Inputs General'!$D96","v":103.80179123699965},{"$f":"IF('DNSP Inputs General'!$B96='DNSP Inputs General'!$A$89,N$41,IF('DNSP Inputs General'!$B96='DNSP Inputs General'!$A$90,N$42,N$43))*'DNSP Inputs General'!$D96","v":106.56937387328745},null,{"$f":"IF('DNSP Inputs General'!$B96='DNSP Inputs General'!$A$89,P$41,IF('DNSP Inputs General'!$B96='DNSP Inputs General'!$A$90,P$42,P$43))*'DNSP Inputs General'!$D96","v":45.626922264837837},{"$f":"IF('DNSP Inputs General'!$B96='DNSP Inputs General'!$A$89,Q$41,IF('DNSP Inputs General'!$B96='DNSP Inputs General'!$A$90,Q$42,Q$43))*'DNSP Inputs General'!$D96","v":46.31683923224756},{"$f":"IF('DNSP Inputs General'!$B96='DNSP Inputs General'!$A$89,R$41,IF('DNSP Inputs General'!$B96='DNSP Inputs General'!$A$90,R$42,R$43))*'DNSP Inputs General'!$D96","v":45.23188910320598},{"$f":"IF('DNSP Inputs General'!$B96='DNSP Inputs General'!$A$89,S$41,IF('DNSP Inputs General'!$B96='DNSP Inputs General'!$A$90,S$42,S$43))*'DNSP Inputs General'!$D96","v":51.345448867951248},{"$f":"IF('DNSP Inputs General'!$B96='DNSP Inputs General'!$A$89,T$41,IF('DNSP Inputs General'!$B96='DNSP Inputs General'!$A$90,T$42,T$43))*'DNSP Inputs General'!$D96","v":51.945633216781765},null,7.1054273576010019E-15,2.8421709430404007E-14,2.1316282072803006E-14,2.8421709430404007E-14,7.1054273576010019E-15]
[{"$f":"'DNSP Inputs General'!A97","v":"HP Sodium 400W"},null,{"$f":"'DNSP Inputs General'!E97","v":166.31},{"$f":"IF('DNSP Inputs General'!$B97='DNSP Inputs General'!$A$89,D$41,IF('DNSP Inputs General'!$B97='DNSP Inputs General'!$A$90,D$42,D$43))*'DNSP Inputs General'!$D97","v":188.25729038024372},{"$f":"IF('DNSP Inputs General'!$B97='DNSP Inputs General'!$A$89,E$41,IF('DNSP Inputs General'!$B97='DNSP Inputs General'!$A$90,E$42,E$43))*'DNSP Inputs General'!$D97","v":192.43835234084736},{"$f":"IF('DNSP Inputs General'!$B97='DNSP Inputs General'!$A$89,F$41,IF('DNSP Inputs General'!$B97='DNSP Inputs General'!$A$90,F$42,F$43))*'DNSP Inputs General'!$D97","v":194.88529136657397},{"$f":"IF('DNSP Inputs General'!$B97='DNSP Inputs General'!$A$89,G$41,IF('DNSP Inputs General'!$B97='DNSP Inputs General'!$A$90,G$42,G$43))*'DNSP Inputs General'!$D97","v":206.51625479789672},{"$f":"IF('DNSP Inputs General'!$B97='DNSP Inputs General'!$A$89,H$41,IF('DNSP Inputs General'!$B97='DNSP Inputs General'!$A$90,H$42,H$43))*'DNSP Inputs General'!$D97","v":210.91895178503719},null,{"$f":"IF('DNSP Inputs General'!$B97='DNSP Inputs General'!$A$89,J$41,IF('DNSP Inputs General'!$B97='DNSP Inputs General'!$A$90,J$42,J$43))*'DNSP Inputs General'!$D97","v":127.38871672111031},{"$f":"IF('DNSP Inputs General'!$B97='DNSP Inputs General'!$A$89,K$41,IF('DNSP Inputs General'!$B97='DNSP Inputs General'!$A$90,K$42,K$43))*'DNSP Inputs General'!$D97","v":130.65300266183405},{"$f":"IF('DNSP Inputs General'!$B97='DNSP Inputs General'!$A$89,L$41,IF('DNSP Inputs General'!$B97='DNSP Inputs General'!$A$90,L$42,L$43))*'DNSP Inputs General'!$D97","v":133.78588153108942},{"$f":"IF('DNSP Inputs General'!$B97='DNSP Inputs General'!$A$89,M$41,IF('DNSP Inputs General'!$B97='DNSP Inputs General'!$A$90,M$42,M$43))*'DNSP Inputs General'!$D97","v":137.1094226240626},{"$f":"IF('DNSP Inputs General'!$B97='DNSP Inputs General'!$A$89,N$41,IF('DNSP Inputs General'!$B97='DNSP Inputs General'!$A$90,N$42,N$43))*'DNSP Inputs General'!$D97","v":140.71083245853268},null,{"$f":"IF('DNSP Inputs General'!$B97='DNSP Inputs General'!$A$89,P$41,IF('DNSP Inputs General'!$B97='DNSP Inputs General'!$A$90,P$42,P$43))*'DNSP Inputs General'!$D97","v":60.868573659133411},{"$f":"IF('DNSP Inputs General'!$B97='DNSP Inputs General'!$A$89,Q$41,IF('DNSP Inputs General'!$B97='DNSP Inputs General'!$A$90,Q$42,Q$43))*'DNSP Inputs General'!$D97","v":61.785349679013308},{"$f":"IF('DNSP Inputs General'!$B97='DNSP Inputs General'!$A$89,R$41,IF('DNSP Inputs General'!$B97='DNSP Inputs General'!$A$90,R$42,R$43))*'DNSP Inputs General'!$D97","v":61.099409835484536},{"$f":"IF('DNSP Inputs General'!$B97='DNSP Inputs General'!$A$89,S$41,IF('DNSP Inputs General'!$B97='DNSP Inputs General'!$A$90,S$42,S$43))*'DNSP Inputs General'!$D97","v":69.406832173834118},{"$f":"IF('DNSP Inputs General'!$B97='DNSP Inputs General'!$A$89,T$41,IF('DNSP Inputs General'!$B97='DNSP Inputs General'!$A$90,T$42,T$43))*'DNSP Inputs General'!$D97","v":70.208119326504516},null,7.1054273576010019E-15,0,1.4210854715202004E-14,0,0]
[{"$f":"'DNSP Inputs General'!A98","v":"Metal Halide 70W"},null,{"$f":"'DNSP Inputs General'!E98","v":190.05},{"$f":"IF('DNSP Inputs General'!$B98='DNSP Inputs General'!$A$89,D$41,IF('DNSP Inputs General'!$B98='DNSP Inputs General'!$A$90,D$42,D$43))*'DNSP Inputs General'!$D98","v":256.73047003377008},{"$f":"IF('DNSP Inputs General'!$B98='DNSP Inputs General'!$A$89,E$41,IF('DNSP Inputs General'!$B98='DNSP Inputs General'!$A$90,E$42,E$43))*'DNSP Inputs General'!$D98","v":261.67126120290396},{"$f":"IF('DNSP Inputs General'!$B98='DNSP Inputs General'!$A$89,F$41,IF('DNSP Inputs General'!$B98='DNSP Inputs General'!$A$90,F$42,F$43))*'DNSP Inputs General'!$D98","v":264.18340432897014},{"$f":"IF('DNSP Inputs General'!$B98='DNSP Inputs General'!$A$89,G$41,IF('DNSP Inputs General'!$B98='DNSP Inputs General'!$A$90,G$42,G$43))*'DNSP Inputs General'!$D98","v":286.1588836595617},{"$f":"IF('DNSP Inputs General'!$B98='DNSP Inputs General'!$A$89,H$41,IF('DNSP Inputs General'!$B98='DNSP Inputs General'!$A$90,H$42,H$43))*'DNSP Inputs General'!$D98","v":291.13050634334223},null,{"$f":"IF('DNSP Inputs General'!$B98='DNSP Inputs General'!$A$89,J$41,IF('DNSP Inputs General'!$B98='DNSP Inputs General'!$A$90,J$42,J$43))*'DNSP Inputs General'!$D98","v":111.8984408177338},{"$f":"IF('DNSP Inputs General'!$B98='DNSP Inputs General'!$A$89,K$41,IF('DNSP Inputs General'!$B98='DNSP Inputs General'!$A$90,K$42,K$43))*'DNSP Inputs General'!$D98","v":114.451252148108},{"$f":"IF('DNSP Inputs General'!$B98='DNSP Inputs General'!$A$89,L$41,IF('DNSP Inputs General'!$B98='DNSP Inputs General'!$A$90,L$42,L$43))*'DNSP Inputs General'!$D98","v":117.0242951266227},{"$f":"IF('DNSP Inputs General'!$B98='DNSP Inputs General'!$A$89,M$41,IF('DNSP Inputs General'!$B98='DNSP Inputs General'!$A$90,M$42,M$43))*'DNSP Inputs General'!$D98","v":119.73687120160994},{"$f":"IF('DNSP Inputs General'!$B98='DNSP Inputs General'!$A$89,N$41,IF('DNSP Inputs General'!$B98='DNSP Inputs General'!$A$90,N$42,N$43))*'DNSP Inputs General'!$D98","v":122.63544734426014},null,{"$f":"IF('DNSP Inputs General'!$B98='DNSP Inputs General'!$A$89,P$41,IF('DNSP Inputs General'!$B98='DNSP Inputs General'!$A$90,P$42,P$43))*'DNSP Inputs General'!$D98","v":144.83202921603626},{"$f":"IF('DNSP Inputs General'!$B98='DNSP Inputs General'!$A$89,Q$41,IF('DNSP Inputs General'!$B98='DNSP Inputs General'!$A$90,Q$42,Q$43))*'DNSP Inputs General'!$D98","v":147.22000905479598},{"$f":"IF('DNSP Inputs General'!$B98='DNSP Inputs General'!$A$89,R$41,IF('DNSP Inputs General'!$B98='DNSP Inputs General'!$A$90,R$42,R$43))*'DNSP Inputs General'!$D98","v":147.15910920234739},{"$f":"IF('DNSP Inputs General'!$B98='DNSP Inputs General'!$A$89,S$41,IF('DNSP Inputs General'!$B98='DNSP Inputs General'!$A$90,S$42,S$43))*'DNSP Inputs General'!$D98","v":166.42201245795172},{"$f":"IF('DNSP Inputs General'!$B98='DNSP Inputs General'!$A$89,T$41,IF('DNSP Inputs General'!$B98='DNSP Inputs General'!$A$90,T$42,T$43))*'DNSP Inputs General'!$D98","v":168.49505899908209},null,2.8421709430404007E-14,0,5.6843418860808015E-14,2.8421709430404007E-14,0]
[{"$f":"'DNSP Inputs General'!A99","v":"Metal Halide 100W"},null,{"$f":"'DNSP Inputs General'!E99","v":250.78},{"$f":"IF('DNSP Inputs General'!$B99='DNSP Inputs General'!$A$89,D$41,IF('DNSP Inputs General'!$B99='DNSP Inputs General'!$A$90,D$42,D$43))*'DNSP Inputs General'!$D99","v":281.2747602820989},{"$f":"IF('DNSP Inputs General'!$B99='DNSP Inputs General'!$A$89,E$41,IF('DNSP Inputs General'!$B99='DNSP Inputs General'!$A$90,E$42,E$43))*'DNSP Inputs General'!$D99","v":287.3512261668709},{"$f":"IF('DNSP Inputs General'!$B99='DNSP Inputs General'!$A$89,F$41,IF('DNSP Inputs General'!$B99='DNSP Inputs General'!$A$90,F$42,F$43))*'DNSP Inputs General'!$D99","v":289.95975053255933},{"$f":"IF('DNSP Inputs General'!$B99='DNSP Inputs General'!$A$89,G$41,IF('DNSP Inputs General'!$B99='DNSP Inputs General'!$A$90,G$42,G$43))*'DNSP Inputs General'!$D99","v":307.11165774680262},{"$f":"IF('DNSP Inputs General'!$B99='DNSP Inputs General'!$A$89,H$41,IF('DNSP Inputs General'!$B99='DNSP Inputs General'!$A$90,H$42,H$43))*'DNSP Inputs General'!$D99","v":313.77810248023764},null,{"$f":"IF('DNSP Inputs General'!$B99='DNSP Inputs General'!$A$89,J$41,IF('DNSP Inputs General'!$B99='DNSP Inputs General'!$A$90,J$42,J$43))*'DNSP Inputs General'!$D99","v":190.95694524936027},{"$f":"IF('DNSP Inputs General'!$B99='DNSP Inputs General'!$A$89,K$41,IF('DNSP Inputs General'!$B99='DNSP Inputs General'!$A$90,K$42,K$43))*'DNSP Inputs General'!$D99","v":195.66773074287613},{"$f":"IF('DNSP Inputs General'!$B99='DNSP Inputs General'!$A$89,L$41,IF('DNSP Inputs General'!$B99='DNSP Inputs General'!$A$90,L$42,L$43))*'DNSP Inputs General'!$D99","v":200.42389777676263},{"$f":"IF('DNSP Inputs General'!$B99='DNSP Inputs General'!$A$89,M$41,IF('DNSP Inputs General'!$B99='DNSP Inputs General'!$A$90,M$42,M$43))*'DNSP Inputs General'!$D99","v":205.47410422717024},{"$f":"IF('DNSP Inputs General'!$B99='DNSP Inputs General'!$A$89,N$41,IF('DNSP Inputs General'!$B99='DNSP Inputs General'!$A$90,N$42,N$43))*'DNSP Inputs General'!$D99","v":210.95249295523686},null,{"$f":"IF('DNSP Inputs General'!$B99='DNSP Inputs General'!$A$89,P$41,IF('DNSP Inputs General'!$B99='DNSP Inputs General'!$A$90,P$42,P$43))*'DNSP Inputs General'!$D99","v":90.317815032738622},{"$f":"IF('DNSP Inputs General'!$B99='DNSP Inputs General'!$A$89,Q$41,IF('DNSP Inputs General'!$B99='DNSP Inputs General'!$A$90,Q$42,Q$43))*'DNSP Inputs General'!$D99","v":91.683495423994799},{"$f":"IF('DNSP Inputs General'!$B99='DNSP Inputs General'!$A$89,R$41,IF('DNSP Inputs General'!$B99='DNSP Inputs General'!$A$90,R$42,R$43))*'DNSP Inputs General'!$D99","v":89.535852755796711},{"$f":"IF('DNSP Inputs General'!$B99='DNSP Inputs General'!$A$89,S$41,IF('DNSP Inputs General'!$B99='DNSP Inputs General'!$A$90,S$42,S$43))*'DNSP Inputs General'!$D99","v":101.63755351963233},{"$f":"IF('DNSP Inputs General'!$B99='DNSP Inputs General'!$A$89,T$41,IF('DNSP Inputs General'!$B99='DNSP Inputs General'!$A$90,T$42,T$43))*'DNSP Inputs General'!$D99","v":102.82560952500077},null,0,2.8421709430404007E-14,1.4210854715202004E-14,4.2632564145606011E-14,0]
[{"$f":"'DNSP Inputs General'!A100","v":"Metal Halide 150W"},null,{"$f":"'DNSP Inputs General'!E100","v":284.91000000000003},{"$f":"IF('DNSP Inputs General'!$B100='DNSP Inputs General'!$A$89,D$41,IF('DNSP Inputs General'!$B100='DNSP Inputs General'!$A$90,D$42,D$43))*'DNSP Inputs General'!$D100","v":319.55349742897158},{"$f":"IF('DNSP Inputs General'!$B100='DNSP Inputs General'!$A$89,E$41,IF('DNSP Inputs General'!$B100='DNSP Inputs General'!$A$90,E$42,E$43))*'DNSP Inputs General'!$D100","v":326.45691074461809},{"$f":"IF('DNSP Inputs General'!$B100='DNSP Inputs General'!$A$89,F$41,IF('DNSP Inputs General'!$B100='DNSP Inputs General'!$A$90,F$42,F$43))*'DNSP Inputs General'!$D100","v":329.42042970148583},{"$f":"IF('DNSP Inputs General'!$B100='DNSP Inputs General'!$A$89,G$41,IF('DNSP Inputs General'!$B100='DNSP Inputs General'!$A$90,G$42,G$43))*'DNSP Inputs General'!$D100","v":348.90654332359549},{"$f":"IF('DNSP Inputs General'!$B100='DNSP Inputs General'!$A$89,H$41,IF('DNSP Inputs General'!$B100='DNSP Inputs General'!$A$90,H$42,H$43))*'DNSP Inputs General'!$D100","v":356.4802258248252},null,{"$f":"IF('DNSP Inputs General'!$B100='DNSP Inputs General'!$A$89,J$41,IF('DNSP Inputs General'!$B100='DNSP Inputs General'!$A$90,J$42,J$43))*'DNSP Inputs General'!$D100","v":216.9443132813835},{"$f":"IF('DNSP Inputs General'!$B100='DNSP Inputs General'!$A$89,K$41,IF('DNSP Inputs General'!$B100='DNSP Inputs General'!$A$90,K$42,K$43))*'DNSP Inputs General'!$D100","v":222.29619049418747},{"$f":"IF('DNSP Inputs General'!$B100='DNSP Inputs General'!$A$89,L$41,IF('DNSP Inputs General'!$B100='DNSP Inputs General'!$A$90,L$42,L$43))*'DNSP Inputs General'!$D100","v":227.69962523006816},{"$f":"IF('DNSP Inputs General'!$B100='DNSP Inputs General'!$A$89,M$41,IF('DNSP Inputs General'!$B100='DNSP Inputs General'!$A$90,M$42,M$43))*'DNSP Inputs General'!$D100","v":233.43711526418127},{"$f":"IF('DNSP Inputs General'!$B100='DNSP Inputs General'!$A$89,N$41,IF('DNSP Inputs General'!$B100='DNSP Inputs General'!$A$90,N$42,N$43))*'DNSP Inputs General'!$D100","v":239.66105898587668},null,{"$f":"IF('DNSP Inputs General'!$B100='DNSP Inputs General'!$A$89,P$41,IF('DNSP Inputs General'!$B100='DNSP Inputs General'!$A$90,P$42,P$43))*'DNSP Inputs General'!$D100","v":102.60918414758805},{"$f":"IF('DNSP Inputs General'!$B100='DNSP Inputs General'!$A$89,Q$41,IF('DNSP Inputs General'!$B100='DNSP Inputs General'!$A$90,Q$42,Q$43))*'DNSP Inputs General'!$D100","v":104.16072025043067},{"$f":"IF('DNSP Inputs General'!$B100='DNSP Inputs General'!$A$89,R$41,IF('DNSP Inputs General'!$B100='DNSP Inputs General'!$A$90,R$42,R$43))*'DNSP Inputs General'!$D100","v":101.72080447141768},{"$f":"IF('DNSP Inputs General'!$B100='DNSP Inputs General'!$A$89,S$41,IF('DNSP Inputs General'!$B100='DNSP Inputs General'!$A$90,S$42,S$43))*'DNSP Inputs General'!$D100","v":115.4694280594142},{"$f":"IF('DNSP Inputs General'!$B100='DNSP Inputs General'!$A$89,T$41,IF('DNSP Inputs General'!$B100='DNSP Inputs General'!$A$90,T$42,T$43))*'DNSP Inputs General'!$D100","v":116.81916683894855},null,2.8421709430404007E-14,5.6843418860808015E-14,1.4210854715202004E-14,1.4210854715202004E-14,2.8421709430404007E-14]
[{"$f":"'DNSP Inputs General'!A101","v":"HP Sodium 50W"},null,{"$f":"'DNSP Inputs General'!E101","v":53.84},{"$f":"IF('DNSP Inputs General'!$B101='DNSP Inputs General'!$A$89,D$41,IF('DNSP Inputs General'!$B101='DNSP Inputs General'!$A$90,D$42,D$43))*'DNSP Inputs General'!$D101","v":60.387621336210948},{"$f":"IF('DNSP Inputs General'!$B101='DNSP Inputs General'!$A$89,E$41,IF('DNSP Inputs General'!$B101='DNSP Inputs General'!$A$90,E$42,E$43))*'DNSP Inputs General'!$D101","v":61.692193849379208},{"$f":"IF('DNSP Inputs General'!$B101='DNSP Inputs General'!$A$89,F$41,IF('DNSP Inputs General'!$B101='DNSP Inputs General'!$A$90,F$42,F$43))*'DNSP Inputs General'!$D101","v":62.252224836459199},{"$f":"IF('DNSP Inputs General'!$B101='DNSP Inputs General'!$A$89,G$41,IF('DNSP Inputs General'!$B101='DNSP Inputs General'!$A$90,G$42,G$43))*'DNSP Inputs General'!$D101","v":65.934613106948703},{"$f":"IF('DNSP Inputs General'!$B101='DNSP Inputs General'!$A$89,H$41,IF('DNSP Inputs General'!$B101='DNSP Inputs General'!$A$90,H$42,H$43))*'DNSP Inputs General'!$D101","v":67.365849737699719},null,{"$f":"IF('DNSP Inputs General'!$B101='DNSP Inputs General'!$A$89,J$41,IF('DNSP Inputs General'!$B101='DNSP Inputs General'!$A$90,J$42,J$43))*'DNSP Inputs General'!$D101","v":40.997051031783698},{"$f":"IF('DNSP Inputs General'!$B101='DNSP Inputs General'!$A$89,K$41,IF('DNSP Inputs General'!$B101='DNSP Inputs General'!$A$90,K$42,K$43))*'DNSP Inputs General'!$D101","v":42.00842201399783},{"$f":"IF('DNSP Inputs General'!$B101='DNSP Inputs General'!$A$89,L$41,IF('DNSP Inputs General'!$B101='DNSP Inputs General'!$A$90,L$42,L$43))*'DNSP Inputs General'!$D101","v":43.029536078999797},{"$f":"IF('DNSP Inputs General'!$B101='DNSP Inputs General'!$A$89,M$41,IF('DNSP Inputs General'!$B101='DNSP Inputs General'!$A$90,M$42,M$43))*'DNSP Inputs General'!$D101","v":44.113778243106665},{"$f":"IF('DNSP Inputs General'!$B101='DNSP Inputs General'!$A$89,N$41,IF('DNSP Inputs General'!$B101='DNSP Inputs General'!$A$90,N$42,N$43))*'DNSP Inputs General'!$D101","v":45.28994799154502},null,{"$f":"IF('DNSP Inputs General'!$B101='DNSP Inputs General'!$A$89,P$41,IF('DNSP Inputs General'!$B101='DNSP Inputs General'!$A$90,P$42,P$43))*'DNSP Inputs General'!$D101","v":19.390570304427253},{"$f":"IF('DNSP Inputs General'!$B101='DNSP Inputs General'!$A$89,Q$41,IF('DNSP Inputs General'!$B101='DNSP Inputs General'!$A$90,Q$42,Q$43))*'DNSP Inputs General'!$D101","v":19.683771835381382},{"$f":"IF('DNSP Inputs General'!$B101='DNSP Inputs General'!$A$89,R$41,IF('DNSP Inputs General'!$B101='DNSP Inputs General'!$A$90,R$42,R$43))*'DNSP Inputs General'!$D101","v":19.222688757459405},{"$f":"IF('DNSP Inputs General'!$B101='DNSP Inputs General'!$A$89,S$41,IF('DNSP Inputs General'!$B101='DNSP Inputs General'!$A$90,S$42,S$43))*'DNSP Inputs General'!$D101","v":21.820834863842027},{"$f":"IF('DNSP Inputs General'!$B101='DNSP Inputs General'!$A$89,T$41,IF('DNSP Inputs General'!$B101='DNSP Inputs General'!$A$90,T$42,T$43))*'DNSP Inputs General'!$D101","v":22.075901746154702},null,3.5527136788005009E-15,3.5527136788005009E-15,3.5527136788005009E-15,1.0658141036401503E-14,3.5527136788005009E-15]
[]
[]
[{"$f":"'DNSP Inputs General'!A$115","v":"Energy Efficient Lights"}]
[{"$f":"'DNSP Inputs General'!A116","v":"T5 2X14W"},null,{"$f":"'DNSP Inputs General'!E116","v":40.6},{"$f":"'Charges Summary'!K$89","v":57.561329976614793},{"$f":"'Charges Summary'!L$89","v":60.665595427327332},{"$f":"'Charges Summary'!M$89","v":63.413320317257693},{"$f":"'Charges Summary'!N$89","v":65.965723553254364},{"$f":"'Charges Summary'!O$89","v":68.125736475864713},null,{"$f":"SUM('Charges Summary'!K83,'Charges Summary'!K8)","v":38.214896468439122},{"$f":"SUM('Charges Summary'!L83,'Charges Summary'!L8)","v":39.115193440059102},{"$f":"SUM('Charges Summary'!M83,'Charges Summary'!M8)","v":40.022395802886848},{"$f":"SUM('Charges Summary'!N83,'Charges Summary'!N8)","v":40.982686649697001},{"$f":"SUM('Charges Summary'!O83,'Charges Summary'!O8)","v":42.0175136511372},null,{"$f":"SUM('Charges Summary'!K85,'Charges Summary'!K11)","v":19.346433508175672},{"$f":"SUM('Charges Summary'!L85,'Charges Summary'!L11)","v":21.550401987268231},{"$f":"SUM('Charges Summary'!M85,'Charges Summary'!M11)","v":23.390924514370845},{"$f":"SUM('Charges Summary'!N85,'Charges Summary'!N11)","v":24.983036903557363},{"$f":"SUM('Charges Summary'!O85,'Charges Summary'!O11)","v":26.108222824727509},null,{"$f":"ABS(D57-J57-P57)","v":0},{"$f":"ABS(E57-K57-Q57)","v":0},{"$f":"ABS(F57-L57-R57)","v":0},{"$f":"ABS(G57-M57-S57)","v":0},{"$f":"ABS(H57-N57-T57)","v":3.5527136788005009E-15}]
[{"$f":"'DNSP Inputs General'!A117","v":"T5 2X24W"},null,{"$f":"'DNSP Inputs General'!E117","v":47.91},{"$f":"'Charges Summary'!K$105","v":61.621631647001188},{"$f":"'Charges Summary'!L$105","v":64.865658447679962},{"$f":"'Charges Summary'!M$105","v":67.74566992335177},{"$f":"'Charges Summary'!N$105","v":70.429348771686278},{"$f":"'Charges Summary'!O$105","v":72.717865388093827},null,{"$f":"SUM('Charges Summary'!K99,'Charges Summary'!K8)","v":42.085448751257047},{"$f":"SUM('Charges Summary'!L99,'Charges Summary'!L8)","v":43.080205427055439},{"$f":"SUM('Charges Summary'!M99,'Charges Summary'!M8)","v":44.082796121560243},{"$f":"SUM('Charges Summary'!N99,'Charges Summary'!N8)","v":45.144161082377892},{"$f":"SUM('Charges Summary'!O99,'Charges Summary'!O8)","v":46.288714398339231},null,{"$f":"SUM('Charges Summary'!K101,'Charges Summary'!K11)","v":19.53618289574414},{"$f":"SUM('Charges Summary'!L101,'Charges Summary'!L11)","v":21.785453020624516},{"$f":"SUM('Charges Summary'!M101,'Charges Summary'!M11)","v":23.66287380179152},{"$f":"SUM('Charges Summary'!N101,'Charges Summary'!N11)","v":25.28518768930839},{"$f":"SUM('Charges Summary'!O101,'Charges Summary'!O11)","v":26.429150989754589},null,0,7.1054273576010019E-15,7.1054273576010019E-15,3.5527136788005009E-15,7.1054273576010019E-15]
[{"$f":"'DNSP Inputs General'!A118","v":"LED 18W"},null,{"$f":"'DNSP Inputs General'!E118","v":16.739999999999998},{"$f":"'Charges Summary'!K$121","v":31.576686788942666},{"$f":"'Charges Summary'!L$121","v":33.728476652900881},{"$f":"'Charges Summary'!M$121","v":35.583719844709407},{"$f":"'Charges Summary'!N$121","v":37.260305156510654},{"$f":"'Charges Summary'!O$121","v":38.579556642865874},null,{"$f":"SUM('Charges Summary'!K115,'Charges Summary'!K8)","v":13.718103797757745},{"$f":"SUM('Charges Summary'!L115,'Charges Summary'!L8)","v":14.021141491722778},{"$f":"SUM('Charges Summary'!M115,'Charges Summary'!M8)","v":14.325186338652749},{"$f":"SUM('Charges Summary'!N115,'Charges Summary'!N8)","v":14.646473279381194},{"$f":"SUM('Charges Summary'!O115,'Charges Summary'!O8)","v":14.987774805754977},null,{"$f":"SUM('Charges Summary'!K117,'Charges Summary'!K11)","v":17.858582991184925},{"$f":"SUM('Charges Summary'!L117,'Charges Summary'!L11)","v":19.707335161178104},{"$f":"SUM('Charges Summary'!M117,'Charges Summary'!M11)","v":21.258533506056658},{"$f":"SUM('Charges Summary'!N117,'Charges Summary'!N11)","v":22.613831877129456},{"$f":"SUM('Charges Summary'!O117,'Charges Summary'!O11)","v":23.591781837110894},null,3.5527136788005009E-15,3.5527136788005009E-15,0,3.5527136788005009E-15,3.5527136788005009E-15]
[{"$f":"'DNSP Inputs General'!A119","v":"LED 14W"},null,{"$f":"'DNSP Inputs General'!E119","v":16.739999999999998},{"$f":"'Charges Summary'!K$137","v":33.325463350293973},{"$f":"'Charges Summary'!L$137","v":35.518166804654335},{"$f":"'Charges Summary'!M$137","v":37.414807105539225},{"$f":"'Charges Summary'!N$137","v":39.134933847283904},{"$f":"'Charges Summary'!O$137","v":40.500907978295359},null,{"$f":"SUM('Charges Summary'!K131,'Charges Summary'!K$8)","v":15.466880359109053},{"$f":"SUM('Charges Summary'!L131,'Charges Summary'!L$8)","v":15.810831643476233},{"$f":"SUM('Charges Summary'!M131,'Charges Summary'!M$8)","v":16.156273599482564},{"$f":"SUM('Charges Summary'!N131,'Charges Summary'!N$8)","v":16.521101970154444},{"$f":"SUM('Charges Summary'!O131,'Charges Summary'!O$8)","v":16.909126141184466},null,{"$f":"SUM('Charges Summary'!K133,'Charges Summary'!K$11)","v":17.858582991184921},{"$f":"SUM('Charges Summary'!L133,'Charges Summary'!L$11)","v":19.707335161178104},{"$f":"SUM('Charges Summary'!M133,'Charges Summary'!M$11)","v":21.258533506056661},{"$f":"SUM('Charges Summary'!N133,'Charges Summary'!N$11)","v":22.613831877129456},{"$f":"SUM('Charges Summary'!O133,'Charges Summary'!O$11)","v":23.591781837110897},null,{"$f":"ABS(D60-J60-P60)","v":3.5527136788005009E-15},{"$f":"ABS(E60-K60-Q60)","v":3.5527136788005009E-15},{"$f":"ABS(F60-L60-R60)","v":0},{"$f":"ABS(G60-M60-S60)","v":3.5527136788005009E-15},{"$f":"ABS(H60-N60-T60)","v":3.5527136788005009E-15}]
[{"$f":"'DNSP Inputs General'!A120","v":"LED 70W-125W (L1)"},null,{"$f":"'DNSP Inputs General'!E120","v":24.09},{"$f":"'Charges Summary'!K$153","v":51.237269733914715},{"$f":"'Charges Summary'!L$153","v":55.024649891574384},{"$f":"'Charges Summary'!M$153","v":58.283410606566058},{"$f":"'Charges Summary'!N$153","v":61.202120660457624},{"$f":"'Charges Summary'!O$153","v":63.484328789402227},null,{"$f":"SUM('Charges Summary'!K147,'Charges Summary'!K$8)","v":28.076469813511665},{"$f":"SUM('Charges Summary'!L147,'Charges Summary'!L$8)","v":28.749222025263219},{"$f":"SUM('Charges Summary'!M147,'Charges Summary'!M$8)","v":29.425726799534456},{"$f":"SUM('Charges Summary'!N147,'Charges Summary'!N$8)","v":30.145210089292384},{"$f":"SUM('Charges Summary'!O147,'Charges Summary'!O$8)","v":30.924767021747314},null,{"$f":"SUM('Charges Summary'!K149,'Charges Summary'!K$11)","v":23.160799920403051},{"$f":"SUM('Charges Summary'!L149,'Charges Summary'!L$11)","v":26.275427866311162},{"$f":"SUM('Charges Summary'!M149,'Charges Summary'!M$11)","v":28.857683807031599},{"$f":"SUM('Charges Summary'!N149,'Charges Summary'!N$11)","v":31.056910571165233},{"$f":"SUM('Charges Summary'!O149,'Charges Summary'!O$11)","v":32.559561767654905},null,0,3.5527136788005009E-15,3.5527136788005009E-15,7.1054273576010019E-15,7.1054273576010019E-15]
[{"$f":"'DNSP Inputs General'!A121","v":"LED 155W-250W (L2)"},null,{"$f":"'DNSP Inputs General'!E121","v":24.89},{"$f":"'Charges Summary'!K$169","v":51.910139902597223},{"$f":"'Charges Summary'!L$169","v":55.85816419425624},{"$f":"'Charges Summary'!M$169","v":59.247769781816679},{"$f":"'Charges Summary'!N$169","v":62.273577347518},{"$f":"'Charges Summary'!O$169","v":64.622371927796138},null,{"$f":"SUM('Charges Summary'!K163,'Charges Summary'!K$8)","v":28.076469813511665},{"$f":"SUM('Charges Summary'!L163,'Charges Summary'!L$8)","v":28.749222025263219},{"$f":"SUM('Charges Summary'!M163,'Charges Summary'!M$8)","v":29.425726799534456},{"$f":"SUM('Charges Summary'!N163,'Charges Summary'!N$8)","v":30.145210089292384},{"$f":"SUM('Charges Summary'!O163,'Charges Summary'!O$8)","v":30.924767021747314},null,{"$f":"SUM('Charges Summary'!K165,'Charges Summary'!K$11)","v":23.833670089085555},{"$f":"SUM('Charges Summary'!L165,'Charges Summary'!L$11)","v":27.108942168993021},{"$f":"SUM('Charges Summary'!M165,'Charges Summary'!M$11)","v":29.822042982282223},{"$f":"SUM('Charges Summary'!N165,'Charges Summary'!N$11)","v":32.128367258225616},{"$f":"SUM('Charges Summary'!O165,'Charges Summary'!O$11)","v":33.697604906048817},null,3.5527136788005009E-15,0,0,0,7.1054273576010019E-15]
[{"$f":"'DNSP Inputs General'!A122","v":"LED 275W-400W (L4)"},null,{"$f":"'DNSP Inputs General'!E122","v":26.37},{"$f":"'Charges Summary'!K$185","v":57.935826837182773},{"$f":"'Charges Summary'!L$185","v":63.322451477632839},{"$f":"'Charges Summary'!M$185","v":67.883799068021105},{"$f":"'Charges Summary'!N$185","v":71.868686271481096},{"$f":"'Charges Summary'!O$185","v":74.813775840741272},null,{"$f":"SUM('Charges Summary'!K179,'Charges Summary'!K$8)","v":28.076469813511665},{"$f":"SUM('Charges Summary'!L179,'Charges Summary'!L$8)","v":28.749222025263219},{"$f":"SUM('Charges Summary'!M179,'Charges Summary'!M$8)","v":29.425726799534456},{"$f":"SUM('Charges Summary'!N179,'Charges Summary'!N$8)","v":30.145210089292384},{"$f":"SUM('Charges Summary'!O179,'Charges Summary'!O$8)","v":30.924767021747314},null,{"$f":"SUM('Charges Summary'!K181,'Charges Summary'!K$11)","v":29.859357023671109},{"$f":"SUM('Charges Summary'!L181,'Charges Summary'!L$11)","v":34.573229452369617},{"$f":"SUM('Charges Summary'!M181,'Charges Summary'!M$11)","v":38.458072268486646},{"$f":"SUM('Charges Summary'!N181,'Charges Summary'!N$11)","v":41.723476182188712},{"$f":"SUM('Charges Summary'!O181,'Charges Summary'!O$11)","v":43.889008818993958},null,0,0,0,0,0]
[{"$f":"'DNSP Inputs General'!A123","v":"Compact Fluorescent 32W"},null,{"$f":"'DNSP Inputs General'!E123","v":36.130000000000003},{"$f":"IF('DNSP Inputs General'!$B123='DNSP Inputs General'!$A$116,D$57,D$58)*'DNSP Inputs General'!$D123","v":50.631515274548683},{"$f":"IF('DNSP Inputs General'!$B123='DNSP Inputs General'!$A$116,E$57,E$58)*'DNSP Inputs General'!$D123","v":53.362057874031009},{"$f":"IF('DNSP Inputs General'!$B123='DNSP Inputs General'!$A$116,F$57,F$58)*'DNSP Inputs General'!$D123","v":55.778983869161536},{"$f":"IF('DNSP Inputs General'!$B123='DNSP Inputs General'!$A$116,G$57,G$58)*'DNSP Inputs General'!$D123","v":58.024103005266895},{"$f":"IF('DNSP Inputs General'!$B123='DNSP Inputs General'!$A$116,H$57,H$58)*'DNSP Inputs General'!$D123","v":59.924071739985145},null,{"$f":"IF('DNSP Inputs General'!$B123='DNSP Inputs General'!$A$116,J$57,J$58)*'DNSP Inputs General'!$D123","v":33.614200975605442},{"$f":"IF('DNSP Inputs General'!$B123='DNSP Inputs General'!$A$116,K$57,K$58)*'DNSP Inputs General'!$D123","v":34.406111098056158},{"$f":"IF('DNSP Inputs General'!$B123='DNSP Inputs General'!$A$116,L$57,L$58)*'DNSP Inputs General'!$D123","v":35.204095270925002},{"$f":"IF('DNSP Inputs General'!$B123='DNSP Inputs General'!$A$116,M$57,M$58)*'DNSP Inputs General'!$D123","v":36.048776599484135},{"$f":"IF('DNSP Inputs General'!$B123='DNSP Inputs General'!$A$116,N$57,N$58)*'DNSP Inputs General'!$D123","v":36.959020667006918},null,{"$f":"IF('DNSP Inputs General'!$B123='DNSP Inputs General'!$A$116,P$57,P$58)*'DNSP Inputs General'!$D123","v":17.017314298943237},{"$f":"IF('DNSP Inputs General'!$B123='DNSP Inputs General'!$A$116,Q$57,Q$58)*'DNSP Inputs General'!$D123","v":18.955946775974851},{"$f":"IF('DNSP Inputs General'!$B123='DNSP Inputs General'!$A$116,R$57,R$58)*'DNSP Inputs General'!$D123","v":20.574888598236534},{"$f":"IF('DNSP Inputs General'!$B123='DNSP Inputs General'!$A$116,S$57,S$58)*'DNSP Inputs General'!$D123","v":21.975326405782763},{"$f":"IF('DNSP Inputs General'!$B123='DNSP Inputs General'!$A$116,T$57,T$58)*'DNSP Inputs General'!$D123","v":22.965051072978227},null,3.5527136788005009E-15,0,0,3.5527136788005009E-15,0]
[{"$f":"'DNSP Inputs General'!A124","v":"Compact Fluorescent 42W"},null,{"$f":"'DNSP Inputs General'!E124","v":36.130000000000003},{"$f":"IF('DNSP Inputs General'!$B124='DNSP Inputs General'!$A$116,D$57,D$58)*'DNSP Inputs General'!$D124","v":50.631515274548683},{"$f":"IF('DNSP Inputs General'!$B124='DNSP Inputs General'!$A$116,E$57,E$58)*'DNSP Inputs General'!$D124","v":53.362057874031009},{"$f":"IF('DNSP Inputs General'!$B124='DNSP Inputs General'!$A$116,F$57,F$58)*'DNSP Inputs General'!$D124","v":55.778983869161536},{"$f":"IF('DNSP Inputs General'!$B124='DNSP Inputs General'!$A$116,G$57,G$58)*'DNSP Inputs General'!$D124","v":58.024103005266895},{"$f":"IF('DNSP Inputs General'!$B124='DNSP Inputs General'!$A$116,H$57,H$58)*'DNSP Inputs General'!$D124","v":59.924071739985145},null,{"$f":"IF('DNSP Inputs General'!$B124='DNSP Inputs General'!$A$116,J$57,J$58)*'DNSP Inputs General'!$D124","v":33.614200975605442},{"$f":"IF('DNSP Inputs General'!$B124='DNSP Inputs General'!$A$116,K$57,K$58)*'DNSP Inputs General'!$D124","v":34.406111098056158},{"$f":"IF('DNSP Inputs General'!$B124='DNSP Inputs General'!$A$116,L$57,L$58)*'DNSP Inputs General'!$D124","v":35.204095270925002},{"$f":"IF('DNSP Inputs General'!$B124='DNSP Inputs General'!$A$116,M$57,M$58)*'DNSP Inputs General'!$D124","v":36.048776599484135},{"$f":"IF('DNSP Inputs General'!$B124='DNSP Inputs General'!$A$116,N$57,N$58)*'DNSP Inputs General'!$D124","v":36.959020667006918},null,{"$f":"IF('DNSP Inputs General'!$B124='DNSP Inputs General'!$A$116,P$57,P$58)*'DNSP Inputs General'!$D124","v":17.017314298943237},{"$f":"IF('DNSP Inputs General'!$B124='DNSP Inputs General'!$A$116,Q$57,Q$58)*'DNSP Inputs General'!$D124","v":18.955946775974851},{"$f":"IF('DNSP Inputs General'!$B124='DNSP Inputs General'!$A$116,R$57,R$58)*'DNSP Inputs General'!$D124","v":20.574888598236534},{"$f":"IF('DNSP Inputs General'!$B124='DNSP Inputs General'!$A$116,S$57,S$58)*'DNSP Inputs General'!$D124","v":21.975326405782763},{"$f":"IF('DNSP Inputs General'!$B124='DNSP Inputs General'!$A$116,T$57,T$58)*'DNSP Inputs General'!$D124","v":22.965051072978227},null,3.5527136788005009E-15,0,0,3.5527136788005009E-15,0]
[{"$f":"'DNSP Inputs General'!A125","v":"Smart lighting L1"},null,{"$f":"'DNSP Inputs General'!E125","v":26.37},{"$f":"'Charges Summary'!K$201","v":67.819622800407259},{"$f":"'Charges Summary'!L$201","v":71.967606778399741},{"$f":"'Charges Summary'!M$201","v":75.592547214719602},{"$f":"'Charges Summary'!N$201","v":78.891189780287675},{"$f":"'Charges Summary'!O$201","v":81.572213739735687},null,{"$f":"SUM('Charges Summary'!K$195,'Charges Summary'!K$8)","v":44.658822880004209},{"$f":"SUM('Charges Summary'!L$195,'Charges Summary'!L$8)","v":45.692178912088586},{"$f":"SUM('Charges Summary'!M$195,'Charges Summary'!M$8)","v":46.734863407688003},{"$f":"SUM('Charges Summary'!N$195,'Charges Summary'!N$8)","v":47.834279209122428},{"$f":"SUM('Charges Summary'!O$195,'Charges Summary'!O$8)","v":49.012651972080782},null,{"$f":"SUM('Charges Summary'!K$197,'Charges Summary'!K$11)","v":23.160799920403051},{"$f":"SUM('Charges Summary'!L$197,'Charges Summary'!L$11)","v":26.275427866311162},{"$f":"SUM('Charges Summary'!M$197,'Charges Summary'!M$11)","v":28.857683807031599},{"$f":"SUM('Charges Summary'!N$197,'Charges Summary'!N$11)","v":31.05691057116524},{"$f":"SUM('Charges Summary'!O$197,'Charges Summary'!O$11)","v":32.559561767654905},null,{"$f":"ABS(D66-J66-P66)","v":0},{"$f":"ABS(E66-K66-Q66)","v":7.1054273576010019E-15},{"$f":"ABS(F66-L66-R66)","v":0},{"$f":"ABS(G66-M66-S66)","v":7.1054273576010019E-15},{"$f":"ABS(H66-N66-T66)","v":0}]
[{"$f":"'DNSP Inputs General'!A126","v":"Smart lighting L2"},null,{"$f":"'DNSP Inputs General'!E126","v":26.37},{"$f":"'Charges Summary'!K$217","v":68.492492969089767},{"$f":"'Charges Summary'!L$217","v":72.801121081081604},{"$f":"'Charges Summary'!M$217","v":76.556906389970237},{"$f":"'Charges Summary'!N$217","v":79.962646467348051},{"$f":"'Charges Summary'!O$217","v":82.710256878129599},null,{"$f":"SUM('Charges Summary'!K$211,'Charges Summary'!K$8)","v":44.658822880004209},{"$f":"SUM('Charges Summary'!L$211,'Charges Summary'!L$8)","v":45.692178912088586},{"$f":"SUM('Charges Summary'!M$211,'Charges Summary'!M$8)","v":46.73486340768801},{"$f":"SUM('Charges Summary'!N$211,'Charges Summary'!N$8)","v":47.834279209122428},{"$f":"SUM('Charges Summary'!O$211,'Charges Summary'!O$8)","v":49.012651972080782},null,{"$f":"SUM('Charges Summary'!K$213,'Charges Summary'!K$11)","v":23.833670089085555},{"$f":"SUM('Charges Summary'!L$213,'Charges Summary'!L$11)","v":27.108942168993025},{"$f":"SUM('Charges Summary'!M$213,'Charges Summary'!M$11)","v":29.822042982282227},{"$f":"SUM('Charges Summary'!N$213,'Charges Summary'!N$11)","v":32.128367258225616},{"$f":"SUM('Charges Summary'!O$213,'Charges Summary'!O$11)","v":33.697604906048817},null,3.5527136788005009E-15,7.1054273576010019E-15,0,7.1054273576010019E-15,0]
[{"$f":"'DNSP Inputs General'!A127","v":"Smart lighting L4"},null,{"$f":"'DNSP Inputs General'!E127","v":26.37},{"$f":"'Charges Summary'!K$233","v":74.518179903675318},{"$f":"'Charges Summary'!L$233","v":80.26540836445821},{"$f":"'Charges Summary'!M$233","v":85.192935676174656},{"$f":"'Charges Summary'!N$233","v":89.557755391311147},{"$f":"'Charges Summary'!O$233","v":92.901660791074747},null,{"$f":"SUM('Charges Summary'!K$227,'Charges Summary'!K$8)","v":44.658822880004209},{"$f":"SUM('Charges Summary'!L$227,'Charges Summary'!L$8)","v":45.692178912088586},{"$f":"SUM('Charges Summary'!M$227,'Charges Summary'!M$8)","v":46.73486340768801},{"$f":"SUM('Charges Summary'!N$227,'Charges Summary'!N$8)","v":47.834279209122428},{"$f":"SUM('Charges Summary'!O$227,'Charges Summary'!O$8)","v":49.012651972080782},null,{"$f":"SUM('Charges Summary'!K$229,'Charges Summary'!K$11)","v":29.859357023671109},{"$f":"SUM('Charges Summary'!L$229,'Charges Summary'!L$11)","v":34.573229452369617},{"$f":"SUM('Charges Summary'!M$229,'Charges Summary'!M$11)","v":38.458072268486646},{"$f":"SUM('Charges Summary'!N$229,'Charges Summary'!N$11)","v":41.723476182188712},{"$f":"SUM('Charges Summary'!O$229,'Charges Summary'!O$11)","v":43.889008818993958},null,0,7.1054273576010019E-15,0,7.1054273576010019E-15,7.1054273576010019E-15]

{"sheet":"Cashflow Summary","index":7,"n_rows":378,"n_cols":15,"rows_kept":378,"cut":false,"hidden":false,"merged":[[41,3,41,7],[15,3,15,7],[15,10,15,14],[22,3,22,7],[22,10,22,14],[3,2,3,7],[3,9,3,14],[9,3,9,7],[9,10,9,14],[29,3,29,7],[155,3,155,7],[155,10,155,14],[53,2,53,7],[53,9,53,14],[97,3,97,7],[97,10,97,14],[320,3,320,7],[320,10,320,14],[218,2,218,7],[218,9,218,14],[262,3,262,7],[262,10,262,14]]}
[{"$f":"'DNSP Inputs O & M'!$A$3","v":"AusNet"},null,null,null,"Check",{"$f":"SUM(C21,C27,C50,C213,C378)","v":2.7008354663848877E-8}]
[null,null,{"$f":"'DNSP Inputs General'!O$2","v":2020},{"$f":"'DNSP Inputs General'!Q$2","v":"2022-06-30"},{"$f":"'DNSP Inputs General'!R$2","v":"2023-06-30"},{"$f":"'DNSP Inputs General'!S$2","v":"2024-06-30"},{"$f":"'DNSP Inputs General'!T$2","v":"2025-06-30"},{"$f":"'DNSP Inputs General'!U$2","v":"2026-06-30"},null,{"$f":"C2","v":2020},{"$f":"D2","v":"2022-06-30"},"2023-06-30","2024-06-30","2025-06-30","2026-06-30"]
[]
["Public Lighting - Revenue",null,"Revenue - Nominal ",null,null,null,null,null,null,"Revenue - Real 2021 $ "]
[null,null,{"$f":"C$2","v":2020},{"$f":"D$2","v":"2022-06-30"},"2023-06-30","2024-06-30","2025-06-30","2026-06-30",null,{"$f":"J$2","v":2020},"2022-06-30","2023-06-30","2024-06-30","2025-06-30","2026-06-30"]
[]
["Total Revenue",null,{"$f":"C95+C260","v":7659842.0974978916},9926043.3511785623,10205206.215543298,10504688.297204934,10955233.686323225,11451476.544661617,null,{"$f":"J95+J260","v":7659842.0974978916},9731473.510524828,9809043.4728011489,9898980.7987125758,10121185.735916965,10372266.669888465]
[null,null,null,{"$f":"D7/C7-1","v":0.29585482635744298},{"$f":"E7/D7-1","v":2.8124284217597051E-2},2.9346009804829043E-2,4.2889934129523022E-2,4.5297332083195307E-2,null,null,{"$f":"K7/J7-1","v":0.2704535402503454},7.9710397600556426E-3,9.1688171390826856E-3,2.2447254088348911E-2,2.4807462339169639E-2]
[]
["Public Lighting - O & M",null,null,"Forecast O & M - Nominal ",null,null,null,null,null,null,"Forecast O & M - Real 2021 $ "]
[null,null,null,{"$f":"D$2","v":"2022-06-30"},"2023-06-30","2024-06-30","2025-06-30","2026-06-30",null,null,{"$f":"K$2","v":"2022-06-30"},"2023-06-30","2024-06-30","2025-06-30","2026-06-30"]
[]
["Total O & M",null,null,{"$f":"D153+D318","v":5676347.3547853325},{"$f":"E153+E318","v":5729783.4957379429},{"$f":"F153+F318","v":5789125.8211221527},{"$f":"G153+G318","v":5856496.06654137},{"$f":"H153+H318","v":6065478.9079956943},null,null,{"$f":"K153+K318","v":5565079.8576325318},{"$f":"L153+L318","v":5507355.1883576419},{"$f":"M153+M318","v":5455320.8741917014},{"$f":"N153+N318","v":5410627.1165289916},{"$f":"O153+O318","v":5493856.1388962129}]
[]
[]
["Public Lighting - Capital Charge",null,null,"Capital Charge - Nominal ",null,null,null,null,null,null,"Capital Charge - Real 2021 $ "]
[null,null,null,{"$f":"D$2","v":"2022-06-30"},"2023-06-30","2024-06-30","2025-06-30","2026-06-30",null,null,{"$f":"K$2","v":"2022-06-30"},"2023-06-30","2024-06-30","2025-06-30","2026-06-30"]
[]
["Total Capital Charge",null,null,{"$f":"D211+D376","v":4249695.9963932317},{"$f":"E211+E376","v":4475422.7198053543},{"$f":"F211+F376","v":4715562.4760827823},{"$f":"G211+G376","v":5098737.6197818564},{"$f":"H211+H376","v":5385997.6366659235},null,null,{"$f":"K211+K376","v":4166393.6528922962},{"$f":"L211+L376","v":4301688.2844435088},{"$f":"M211+M376","v":4443659.9245208735},{"$f":"N211+N376","v":4710558.6193879722},{"$f":"O211+O376","v":4878410.5309922509}]
[]
["Check",null,{"$f":"SUM(D21:O21)","v":1.1175870895385742E-8},{"$f":"ABS(D7-SUM(D13,D19))","v":1.862645149230957E-9},{"$f":"ABS(E7-SUM(E13,E19))","v":1.862645149230957E-9},{"$f":"ABS(F7-SUM(F13,F19))","v":0},{"$f":"ABS(G7-SUM(G13,G19))","v":0},{"$f":"ABS(H7-SUM(H13,H19))","v":1.862645149230957E-9},null,null,{"$f":"ABS(K7-SUM(K13,K19))","v":0},{"$f":"ABS(L7-SUM(L13,L19))","v":1.862645149230957E-9},{"$f":"ABS(M7-SUM(M13,M19))","v":1.862645149230957E-9},{"$f":"ABS(N7-SUM(N13,N19))","v":0},{"$f":"ABS(O7-SUM(O13,O19))","v":1.862645149230957E-9}]
[]
["Public Lighting - Capital Expenditure",null,null,"Forecast Capital Expenditure - Nominal ",null,null,null,null,null,null,"Forecast Capital Expenditure - Real 2021 $ "]
[null,null,null,{"$f":"D$2","v":"2022-06-30"},"2023-06-30","2024-06-30","2025-06-30","2026-06-30",null,null,{"$f":"K$2","v":"2022-06-30"},"2023-06-30","2024-06-30","2025-06-30","2026-06-30"]
[]
["Total Capital Expenditure",null,null,{"$f":"K26*'Charges Summary'!K$4","v":5180030.0326817436},{"$f":"L26*'Charges Summary'!L$4","v":5493068.6852458734},{"$f":"M26*'Charges Summary'!M$4","v":5565328.7556149624},{"$f":"N26*'Charges Summary'!N$4","v":5638245.8311976707},{"$f":"O26*'Charges Summary'!O$4","v":3886894.0167281297},null,null,{"$f":"'DNSP Inputs General'!Q14","v":5078491.3246203102},{"$f":"'DNSP Inputs General'!R14","v":5279829.5688129719},{"$f":"'DNSP Inputs General'!S14","v":5244428.1002620496},{"$f":"'DNSP Inputs General'!T14","v":5208992.7897707354},{"$f":"'DNSP Inputs General'!U14","v":3520585.4111356763}]
["Check",null,{"$f":"SUM(D27:H27)","v":0},{"$f":"ABS(D26-D34)","v":0},{"$f":"ABS(E26-E34)","v":0},{"$f":"ABS(F26-F34)","v":0},{"$f":"ABS(G26-G34)","v":0},{"$f":"ABS(H26-H34)","v":0}]
[]
[]
["Public Lighting - RAB",null,null,"RAB - Historical Cost ($)"]
[null,null,null,{"$f":"D$2","v":"2022-06-30"},"2023-06-30","2024-06-30","2025-06-30","2026-06-30"]
[]
["Opening RAB",null,null,{"$f":"'Total RAB'!T157","v":38396400.202028513},{"$f":"D36","v":41339422.941777699},{"$f":"E36","v":44524441.400321364},47702188.875708669,50726223.436119415]
["Capex",null,null,{"$f":"'Total RAB'!T158","v":5180030.0326817436},{"$f":"'Total RAB'!U158","v":5493068.6852458734},{"$f":"'Total RAB'!V158","v":5565328.7556149624},{"$f":"'Total RAB'!W158","v":5638245.8311976707},{"$f":"'Total RAB'!X158","v":3886894.0167281297}]
["Depreciation",null,null,{"$f":"'Total RAB'!T159","v":2237007.2929325528},{"$f":"'Total RAB'!U159","v":2308050.2267022054},{"$f":"'Total RAB'!V159","v":2387581.2802276635},{"$f":"'Total RAB'!W159","v":2614211.2707869257},{"$f":"'Total RAB'!X159","v":2797643.9079387225}]
["Closing RAB",null,null,{"$f":"D33+D34-D35","v":41339422.941777699},{"$f":"E33+E34-E35","v":44524441.400321364},{"$f":"F33+F34-F35","v":47702188.875708669},{"$f":"G33+G34-G35","v":50726223.436119415},{"$f":"H33+H34-H35","v":51815473.544908822}]
[]
["Average RAB",null,null,{"$f":"SUM(D33,D36)/2","v":39867911.57190311},{"$f":"SUM(E33,E36)/2","v":42931932.171049535},{"$f":"SUM(F33,F36)/2","v":46113315.138015017},{"$f":"SUM(G33,G36)/2","v":49214206.155914038},{"$f":"SUM(H33,H36)/2","v":51270848.490514114}]
[]
[{"$f":"WACC!A$8","v":"Nominal Pre Tax WACC"},null,null,{"$f":"WACC!E$8","v":5.0483926147742331E-2},{"$f":"WACC!F$8","v":5.0483926147742331E-2},{"$f":"WACC!G$8","v":5.0483926147742331E-2},{"$f":"WACC!H$8","v":5.0483926147742331E-2},{"$f":"WACC!I$8","v":5.0483926147742331E-2}]
[]
["Capital Charge",null,null,"Capital Charge - Nominal "]
[null,null,null,{"$f":"D$2","v":"2022-06-30"},"2023-06-30","2024-06-30","2025-06-30","2026-06-30"]
[]
["Depreciation",null,null,{"$f":"D35","v":2237007.2929325528},{"$f":"E35","v":2308050.2267022054},{"$f":"F35","v":2387581.2802276635},{"$f":"G35","v":2614211.2707869257},{"$f":"H35","v":2797643.9079387225}]
["Return",null,null,{"$f":"D40*D38","v":2012688.7034606785},{"$f":"E40*E38","v":2167372.493103148},{"$f":"F40*F38","v":2327981.1958551183},{"$f":"G40*G38","v":2484526.3489949303},{"$f":"H40*H38","v":2588353.728727201}]
[]
[null,null,null,{"$f":"SUM(D45:D47)","v":4249695.9963932317},{"$f":"SUM(E45:E47)","v":4475422.7198053533},{"$f":"SUM(F45:F47)","v":4715562.4760827813},{"$f":"SUM(G45:G47)","v":5098737.6197818555},{"$f":"SUM(H45:H47)","v":5385997.6366659235}]
[]
["Check",null,{"$f":"SUM(D50:H50)","v":2.7939677238464355E-9},{"$f":"ABS(D19-D48)*IF('DNSP Inputs General'!Q83=0,0,1)*IF('DNSP Inputs General'!Q130=0,0,1)","v":0},{"$f":"ABS(E19-E48)*IF('DNSP Inputs General'!R83=0,0,1)*IF('DNSP Inputs General'!R130=0,0,1)","v":9.3132257461547852E-10},{"$f":"ABS(F19-F48)*IF('DNSP Inputs General'!S83=0,0,1)*IF('DNSP Inputs General'!S130=0,0,1)","v":9.3132257461547852E-10},{"$f":"ABS(G19-G48)*IF('DNSP Inputs General'!T83=0,0,1)*IF('DNSP Inputs General'!T130=0,0,1)","v":9.3132257461547852E-10},{"$f":"ABS(H19-H48)*IF('DNSP Inputs General'!U83=0,0,1)*IF('DNSP Inputs General'!U130=0,0,1)","v":0}]
[]
[]
[{"$f":"'DNSP Inputs General'!$B$39","v":"Central"}]
["Public Lighting - Revenue",null,"Revenue - Nominal ",null,null,null,null,null,null,"Revenue - Real 2021 $ "]
[null,null,{"$f":"C$2","v":2020},{"$f":"D$2","v":"2022-06-30"},"2023-06-30","2024-06-30","2025-06-30","2026-06-30",null,{"$f":"J$2","v":2020},"2022-06-30","2023-06-30","2024-06-30","2025-06-30","2026-06-30"]
[{"$f":"'DNSP Inputs General'!A$41","v":"Existing Lights"}]
[{"$f":"'DNSP Inputs General'!A$42","v":"Mercury Vapour 80W"},null,{"$f":"IF('PL Tariffs'!C7=0,\"\",'DNSP Inputs General'!O42*'PL Tariffs'!C7)","v":863570.79999999993},{"$f":"'DNSP Inputs General'!Q42*'PL Tariffs'!D7","v":907530.63042221277},{"$f":"'DNSP Inputs General'!R42*'PL Tariffs'!E7","v":616935.83829554031},{"$f":"'DNSP Inputs General'!S42*'PL Tariffs'!F7","v":322778.59828297189},{"$f":"'DNSP Inputs General'!T42*'PL Tariffs'!G7","v":71.177994691551859},{"$f":"'DNSP Inputs General'!U42*'PL Tariffs'!H7","v":72.386331333944526},null,{"$f":"C57","v":863570.79999999993},{"$f":"D57/'Charges Summary'!D$4","v":889741.25716416957},{"$f":"E57/'Charges Summary'!E$4","v":592986.59232902201},{"$f":"F57/'Charges Summary'!F$4","v":304166.96395348205},{"$f":"G57/'Charges Summary'!G$4","v":65.759044965209611},{"$f":"H57/'Charges Summary'!H$4","v":65.564499819945425}]
[{"$f":"'DNSP Inputs General'!A$43","v":"HP Sodium 150W"},null,{"$f":"IF('PL Tariffs'!C8=0,\"\",'DNSP Inputs General'!O43*'PL Tariffs'!C8)","v":1538466.8099999998},{"$f":"'DNSP Inputs General'!Q43*'PL Tariffs'!D8","v":1638787.3308158962},{"$f":"'DNSP Inputs General'!R43*'PL Tariffs'!E8","v":1619197.1414978066},{"$f":"'DNSP Inputs General'!S43*'PL Tariffs'!F8","v":1605211.1373411382},{"$f":"'DNSP Inputs General'!T43*'PL Tariffs'!G8","v":1650927.6893283024},{"$f":"'DNSP Inputs General'!U43*'PL Tariffs'!H8","v":1627882.162162035},null,1538466.8099999998,{"$f":"D58/'Charges Summary'!D$4","v":1606663.8976873928},{"$f":"E58/'Charges Summary'!E$4","v":1556340.4419791808},{"$f":"F58/'Charges Summary'!F$4","v":1512653.5673264542},{"$f":"G58/'Charges Summary'!G$4","v":1525238.6447146547},{"$f":"H58/'Charges Summary'!H$4","v":1474467.3167034094}]
[{"$f":"'DNSP Inputs General'!A$44","v":"HP Sodium 250W"},null,{"$f":"IF('PL Tariffs'!C9=0,\"\",'DNSP Inputs General'!O44*'PL Tariffs'!C9)","v":723225.59999999998},{"$f":"'DNSP Inputs General'!Q44*'PL Tariffs'!D9","v":785953.97979015706},{"$f":"'DNSP Inputs General'!R44*'PL Tariffs'!E9","v":772439.25487596192},{"$f":"'DNSP Inputs General'!S44*'PL Tariffs'!F9","v":762720.0347401672},{"$f":"'DNSP Inputs General'!T44*'PL Tariffs'!G9","v":780110.85609331704},{"$f":"'DNSP Inputs General'!U44*'PL Tariffs'!H9","v":764892.71311453229},null,723225.59999999998,{"$f":"D59/'Charges Summary'!D$4","v":770547.74638993898},{"$f":"E59/'Charges Summary'!E$4","v":742453.41751509765},{"$f":"F59/'Charges Summary'!F$4","v":718741.07684806141},{"$f":"G59/'Charges Summary'!G$4","v":720719.16448325198},{"$f":"H59/'Charges Summary'!H$4","v":692807.70591779239}]
[{"$f":"'DNSP Inputs General'!A$45","v":"Mercury Vapour 50W"},null,{"$f":"IF('PL Tariffs'!C10=0,\"\",'DNSP Inputs General'!O45*'PL Tariffs'!C10)","v":4776.17},{"$f":"'DNSP Inputs General'!Q45*'PL Tariffs'!D10","v":5147.6117706862087},{"$f":"'DNSP Inputs General'!R45*'PL Tariffs'!E10","v":3499.3267185822983},{"$f":"'DNSP Inputs General'!S45*'PL Tariffs'!F10","v":1830.8350772403344},{"$f":"'DNSP Inputs General'!T45*'PL Tariffs'!G10","v":0},{"$f":"'DNSP Inputs General'!U45*'PL Tariffs'!H10","v":0},null,4776.17,{"$f":"D60/'Charges Summary'!D$4","v":5046.7085238904156},{"$f":"E60/'Charges Summary'!E$4","v":3363.4840083710142},{"$f":"F60/'Charges Summary'!F$4","v":1725.2678768235094},{"$f":"G60/'Charges Summary'!G$4","v":0},{"$f":"H60/'Charges Summary'!H$4","v":0}]
[{"$f":"'DNSP Inputs General'!A$46","v":"Mercury Vapour 125W"},null,{"$f":"IF('PL Tariffs'!C11=0,\"\",'DNSP Inputs General'!O46*'PL Tariffs'!C11)","v":18354.919999999998},{"$f":"'DNSP Inputs General'!Q46*'PL Tariffs'!D11","v":19048.132370614603},{"$f":"'DNSP Inputs General'!R46*'PL Tariffs'!E11","v":12948.847254403268},{"$f":"'DNSP Inputs General'!S46*'PL Tariffs'!F11","v":6774.7900295498357},{"$f":"'DNSP Inputs General'!T46*'PL Tariffs'!G11","v":0},{"$f":"'DNSP Inputs General'!U46*'PL Tariffs'!H11","v":0},null,18354.919999999998,{"$f":"D61/'Charges Summary'!D$4","v":18674.75176477011},{"$f":"E61/'Charges Summary'!E$4","v":12446.177270543425},{"$f":"F61/'Charges Summary'!F$4","v":6384.1510114743087},{"$f":"G61/'Charges Summary'!G$4","v":0},{"$f":"H61/'Charges Summary'!H$4","v":0}]
[{"$f":"'DNSP Inputs General'!A$47","v":"Mercury Vapour 250W"},null,{"$f":"IF('PL Tariffs'!C12=0,\"\",'DNSP Inputs General'!O47*'PL Tariffs'!C12)","v":67436.070000000007},{"$f":"'DNSP Inputs General'!Q47*'PL Tariffs'!D12","v":56275.788767643098},{"$f":"'DNSP Inputs General'!R47*'PL Tariffs'!E12","v":38314.191306814515},{"$f":"'DNSP Inputs General'!S47*'PL Tariffs'!F12","v":19666.812141147882},{"$f":"'DNSP Inputs General'!T47*'PL Tariffs'!G12","v":0},{"$f":"'DNSP Inputs General'!U47*'PL Tariffs'!H12","v":0},null,67436.070000000007,{"$f":"D62/'Charges Summary'!D$4","v":55172.67337052129},{"$f":"E62/'Charges Summary'!E$4","v":36826.847024546434},{"$f":"F62/'Charges Summary'!F$4","v":18532.810327071831},{"$f":"G62/'Charges Summary'!G$4","v":0},{"$f":"H62/'Charges Summary'!H$4","v":0}]
[{"$f":"'DNSP Inputs General'!A$48","v":"Mercury Vapour 400W"},null,{"$f":"IF('PL Tariffs'!C13=0,\"\",'DNSP Inputs General'!O48*'PL Tariffs'!C13)","v":13291.28},{"$f":"'DNSP Inputs General'!Q48*'PL Tariffs'!D13","v":11028.357186613062},{"$f":"'DNSP Inputs General'!R48*'PL Tariffs'!E13","v":7508.4258488567821},{"$f":"'DNSP Inputs General'!S48*'PL Tariffs'!F13","v":3854.1019817620772},{"$f":"'DNSP Inputs General'!T48*'PL Tariffs'!G13","v":0},{"$f":"'DNSP Inputs General'!U48*'PL Tariffs'!H13","v":0},null,13291.28,{"$f":"D63/'Charges Summary'!D$4","v":10812.17984136532},{"$f":"E63/'Charges Summary'!E$4","v":7216.9512313788255},{"$f":"F63/'Charges Summary'!F$4","v":3631.8718303992136},{"$f":"G63/'Charges Summary'!G$4","v":0},{"$f":"H63/'Charges Summary'!H$4","v":0}]
[{"$f":"'DNSP Inputs General'!A$49","v":"HP Sodium 100W"},null,{"$f":"IF('PL Tariffs'!C14=0,\"\",'DNSP Inputs General'!O49*'PL Tariffs'!C14)","v":278065.91999999998},{"$f":"'DNSP Inputs General'!Q49*'PL Tariffs'!D14","v":299344.53223170724},{"$f":"'DNSP Inputs General'!R49*'PL Tariffs'!E14","v":301875.56954907236},{"$f":"'DNSP Inputs General'!S49*'PL Tariffs'!F14","v":305540.63561667566},{"$f":"'DNSP Inputs General'!T49*'PL Tariffs'!G14","v":320931.83751031384},{"$f":"'DNSP Inputs General'!U49*'PL Tariffs'!H14","v":323300.42838832177},null,278065.91999999998,{"$f":"D64/'Charges Summary'!D$4","v":293476.79461700353},{"$f":"E64/'Charges Summary'!E$4","v":290156.85940510081},{"$f":"F64/'Charges Summary'!F$4","v":287922.95398243004},{"$f":"G64/'Charges Summary'!G$4","v":296498.53476573055},{"$f":"H64/'Charges Summary'!H$4","v":292831.9544343914}]
[{"$f":"'DNSP Inputs General'!A50","v":"HP Sodium 400W"},null,{"$f":"IF('PL Tariffs'!C15=0,\"\",'DNSP Inputs General'!O50*'PL Tariffs'!C15)","v":31643.119999999999},{"$f":"'DNSP Inputs General'!Q50*'PL Tariffs'!D15","v":35621.371797383232},{"$f":"'DNSP Inputs General'!R50*'PL Tariffs'!E15","v":35818.73427206574},{"$f":"'DNSP Inputs General'!S50*'PL Tariffs'!F15","v":36186.127196534777},{"$f":"'DNSP Inputs General'!T50*'PL Tariffs'!G15","v":37867.696080464404},{"$f":"'DNSP Inputs General'!U50*'PL Tariffs'!H15","v":37988.61223686843},null,31643.119999999999,{"$f":"D65/'Charges Summary'!D$4","v":34923.123322207939},{"$f":"E65/'Charges Summary'!E$4","v":34428.262809650681},{"$f":"F65/'Charges Summary'!F$4","v":34099.610399061465},{"$f":"G65/'Charges Summary'!G$4","v":34984.738472545178},{"$f":"H65/'Charges Summary'!H$4","v":34408.490032097492}]
[{"$f":"'DNSP Inputs General'!A51","v":"Metal Halide 70W"},null,{"$f":"IF('PL Tariffs'!C16=0,\"\",'DNSP Inputs General'!O51*'PL Tariffs'!C16)","v":5949.83},{"$f":"'DNSP Inputs General'!Q51*'PL Tariffs'!D16","v":5191.0181863389162},{"$f":"'DNSP Inputs General'!R51*'PL Tariffs'!E16","v":3175.9508099642076},{"$f":"'DNSP Inputs General'!S51*'PL Tariffs'!F16","v":1107.7639813005783},{"$f":"'DNSP Inputs General'!T51*'PL Tariffs'!G16","v":0},{"$f":"'DNSP Inputs General'!U51*'PL Tariffs'!H16","v":0},null,{"$f":"C66","v":5949.83},{"$f":"D66/'Charges Summary'!D$4","v":5089.264088999952},{"$f":"E66/'Charges Summary'!E$4","v":3052.6614459753405},{"$f":"F66/'Charges Summary'!F$4","v":1043.8895538973354},{"$f":"G66/'Charges Summary'!G$4","v":0},{"$f":"H66/'Charges Summary'!H$4","v":0}]
[{"$f":"'DNSP Inputs General'!A52","v":"Metal Halide 100W"},null,{"$f":"IF('PL Tariffs'!C17=0,\"\",'DNSP Inputs General'!O52*'PL Tariffs'!C17)","v":8448.66},{"$f":"'DNSP Inputs General'!Q52*'PL Tariffs'!D17","v":5756.8904450558539},{"$f":"'DNSP Inputs General'!R52*'PL Tariffs'!E17","v":3527.8111682434596},{"$f":"'DNSP Inputs General'!S52*'PL Tariffs'!F17","v":1205.6058780233893},{"$f":"'DNSP Inputs General'!T52*'PL Tariffs'!G17","v":0},{"$f":"'DNSP Inputs General'!U52*'PL Tariffs'!H17","v":0},null,8448.66,{"$f":"D67/'Charges Summary'!D$4","v":5644.0441459892136},{"$f":"E67/'Charges Summary'!E$4","v":3390.8627010817595},{"$f":"F67/'Charges Summary'!F$4","v":1136.0898200610093},{"$f":"G67/'Charges Summary'!G$4","v":0},{"$f":"H67/'Charges Summary'!H$4","v":0}]
[{"$f":"'DNSP Inputs General'!A53","v":"Metal Halide 150W"},null,{"$f":"IF('PL Tariffs'!C18=0,\"\",'DNSP Inputs General'!O53*'PL Tariffs'!C18)","v":9316.23},{"$f":"'DNSP Inputs General'!Q53*'PL Tariffs'!D18","v":6347.8822078468183},{"$f":"'DNSP Inputs General'!R53*'PL Tariffs'!E18","v":3889.9697608052502},{"$f":"'DNSP Inputs General'!S53*'PL Tariffs'!F18","v":1329.3711554564702},{"$f":"'DNSP Inputs General'!T53*'PL Tariffs'!G18","v":0},{"$f":"'DNSP Inputs General'!U53*'PL Tariffs'!H18","v":0},null,9316.23,{"$f":"D68/'Charges Summary'!D$4","v":6223.4513157005749},{"$f":"E68/'Charges Summary'!E$4","v":3738.962416409066},{"$f":"F68/'Charges Summary'!F$4","v":1252.7187071059859},{"$f":"G68/'Charges Summary'!G$4","v":0},{"$f":"H68/'Charges Summary'!H$4","v":0}]
[{"$f":"'DNSP Inputs General'!A54","v":"HP Sodium 50W"},null,{"$f":"IF('PL Tariffs'!C19=0,\"\",'DNSP Inputs General'!O54*'PL Tariffs'!C19)","v":0},{"$f":"'DNSP Inputs General'!Q54*'PL Tariffs'!D19","v":0},{"$f":"'DNSP Inputs General'!R54*'PL Tariffs'!E19","v":0},{"$f":"'DNSP Inputs General'!S54*'PL Tariffs'!F19","v":0},{"$f":"'DNSP Inputs General'!T54*'PL Tariffs'!G19","v":0},{"$f":"'DNSP Inputs General'!U54*'PL Tariffs'!H19","v":0},null,0,{"$f":"D69/'Charges Summary'!D$4","v":0},{"$f":"E69/'Charges Summary'!E$4","v":0},{"$f":"F69/'Charges Summary'!F$4","v":0},{"$f":"G69/'Charges Summary'!G$4","v":0},{"$f":"H69/'Charges Summary'!H$4","v":0}]
[]
[]
[]
[]
[]
[]
[]
[]
[]
[]
[]
[{"$f":"'DNSP Inputs General'!A$68","v":"Energy Efficient Lights"}]
[{"$f":"'DNSP Inputs General'!A$69","v":"T5 2X14W"},null,{"$f":"IF('PL Tariffs'!C23=0,\"\",'DNSP Inputs General'!O69*'PL Tariffs'!C23)","v":801640.8},{"$f":"'DNSP Inputs General'!Q69*'PL Tariffs'!D23","v":1165045.7619230456},{"$f":"'DNSP Inputs General'!R69*'PL Tariffs'!E23","v":1232020.2659088117},{"$f":"'DNSP Inputs General'!S69*'PL Tariffs'!F23","v":1290930.3336877814},{"$f":"'DNSP Inputs General'!T69*'PL Tariffs'!G23","v":1345215.0544799881},{"$f":"'DNSP Inputs General'!U69*'PL Tariffs'!H23","v":1390347.4898205628},null,{"$f":"C82","v":801640.8},{"$f":"D82/'Charges Summary'!D$4","v":1142208.5890202331},{"$f":"E82/'Charges Summary'!E$4","v":1184193.6451284338},{"$f":"F82/'Charges Summary'!F$4","v":1216494.4093630218},{"$f":"G82/'Charges Summary'!G$4","v":1242800.6385789034},{"$f":"H82/'Charges Summary'!H$4","v":1259318.3832657491}]
[{"$f":"'DNSP Inputs General'!A$70","v":"T5 2X24W"},null,{"$f":"IF('PL Tariffs'!C24=0,\"\",'DNSP Inputs General'!O70*'PL Tariffs'!C24)","v":69389.919999999998},{"$f":"'DNSP Inputs General'!Q70*'PL Tariffs'!D24","v":98343.006035909173},{"$f":"'DNSP Inputs General'!R70*'PL Tariffs'!E24","v":103862.62282642932},{"$f":"'DNSP Inputs General'!S70*'PL Tariffs'!F24","v":108731.14276302548},{"$f":"'DNSP Inputs General'!T70*'PL Tariffs'!G24","v":113230.79204089244},{"$f":"'DNSP Inputs General'!U70*'PL Tariffs'!H24","v":116999.82755959986},null,{"$f":"C83","v":69389.919999999998},{"$f":"D83/'Charges Summary'!D$4","v":96415.29100013469},{"$f":"E83/'Charges Summary'!E$4","v":99830.710030327042},{"$f":"F83/'Charges Summary'!F$4","v":102461.63084340654},{"$f":"G83/'Charges Summary'!G$4","v":104610.26301078284},{"$f":"H83/'Charges Summary'!H$4","v":105973.53162678945}]
[{"$f":"'DNSP Inputs General'!A$71","v":"LED 18W"},null,{"$f":"IF('PL Tariffs'!C25=0,\"\",'DNSP Inputs General'!O71*'PL Tariffs'!C25)","v":503702.93},{"$f":"'DNSP Inputs General'!Q71*'PL Tariffs'!D25","v":1141708.7218233906},{"$f":"'DNSP Inputs General'!R71*'PL Tariffs'!E25","v":1454862.0842272784},{"$f":"'DNSP Inputs General'!S71*'PL Tariffs'!F25","v":1785223.6588094188},{"$f":"'DNSP Inputs General'!T71*'PL Tariffs'!G25","v":2133545.6094808104},{"$f":"'DNSP Inputs General'!U71*'PL Tariffs'!H25","v":2302939.0336937052},null,{"$f":"C84","v":503702.93},{"$f":"D84/'Charges Summary'!D$4","v":1119329.0004964853},{"$f":"E84/'Charges Summary'!E$4","v":1398384.8174846238},{"$f":"F84/'Charges Summary'!F$4","v":1682286.4439170409},{"$f":"G84/'Charges Summary'!G$4","v":1971113.7167766599},{"$f":"H84/'Charges Summary'!H$4","v":2085905.4890263674}]
[{"$f":"'DNSP Inputs General'!A$72","v":"LED 14W"},null,{"$f":"IF('PL Tariffs'!C26=0,\"\",'DNSP Inputs General'!O72*'PL Tariffs'!C26)","v":43489.71},{"$f":"'DNSP Inputs General'!Q72*'PL Tariffs'!D26","v":85449.315838692739},{"$f":"'DNSP Inputs General'!R72*'PL Tariffs'!E26","v":91332.997705611022},{"$f":"'DNSP Inputs General'!S72*'PL Tariffs'!F26","v":96406.438985457469},{"$f":"'DNSP Inputs General'!T72*'PL Tariffs'!G26","v":100985.2608424294},{"$f":"'DNSP Inputs General'!U72*'PL Tariffs'!H26","v":104581.27596481521},null,{"$f":"C85","v":43489.71},{"$f":"D85/'Charges Summary'!D$4","v":83774.342319185482},{"$f":"E85/'Charges Summary'!E$4","v":87787.480828273634},{"$f":"F85/'Charges Summary'!F$4","v":90847.577899405514},{"$f":"G85/'Charges Summary'!G$4","v":93297.013175743807},{"$f":"H85/'Charges Summary'!H$4","v":94725.328978640799}]
[{"$f":"'DNSP Inputs General'!A$73","v":"LED 70W-125W (L1)"},null,{"$f":"IF('PL Tariffs'!C27=0,\"\",'DNSP Inputs General'!O73*'PL Tariffs'!C27)","v":43250.419772978443},{"$f":"'DNSP Inputs General'!Q73*'PL Tariffs'!D27","v":111835.03541350165},{"$f":"'DNSP Inputs General'!R73*'PL Tariffs'!E27","v":121406.09538254725},{"$f":"'DNSP Inputs General'!S73*'PL Tariffs'!F27","v":148721.35637498152},{"$f":"'DNSP Inputs General'!T73*'PL Tariffs'!G27","v":156119.30772539921},{"$f":"'DNSP Inputs General'!U73*'PL Tariffs'!H27","v":153018.51343518484},null,43250.419772978443,{"$f":"D86/'Charges Summary'!D$4","v":109642.85024464218},{"$f":"E86/'Charges Summary'!E$4","v":116693.15076227},{"$f":"F86/'Charges Summary'!F$4","v":140145.98143822595},{"$f":"G86/'Charges Summary'!G$4","v":144233.57417050735},{"$f":"H86/'Charges Summary'!H$4","v":138597.74506716654}]
[{"$f":"'DNSP Inputs General'!A$74","v":"LED 155W-250W (L2)"},null,{"$f":"IF('PL Tariffs'!C28=0,\"\",'DNSP Inputs General'!O74*'PL Tariffs'!C28)","v":29816.100000000002},{"$f":"'DNSP Inputs General'!Q74*'PL Tariffs'!D28","v":113488.15638108246},{"$f":"'DNSP Inputs General'!R74*'PL Tariffs'!E28","v":146367.98052325618},{"$f":"'DNSP Inputs General'!S74*'PL Tariffs'!F28","v":179787.70133950561},{"$f":"'DNSP Inputs General'!T74*'PL Tariffs'!G28","v":200276.76968840265},{"$f":"'DNSP Inputs General'!U74*'PL Tariffs'!H28","v":205071.46344534357},null,29816.100000000002,{"$f":"D87/'Charges Summary'!D$4","v":111263.56681181249},{"$f":"E87/'Charges Summary'!E$4","v":140686.02374658603},{"$f":"F87/'Charges Summary'!F$4","v":169421.01974391568},{"$f":"G87/'Charges Summary'!G$4","v":185029.22371582003},{"$f":"H87/'Charges Summary'!H$4","v":185745.12177042937}]
[{"$f":"'DNSP Inputs General'!A$75","v":"LED 275W-400W (L4)"},null,{"$f":"IF('PL Tariffs'!C29=0,\"\",'DNSP Inputs General'!O75*'PL Tariffs'!C29)","v":1756.4399999999998},{"$f":"'DNSP Inputs General'!Q75*'PL Tariffs'!D29","v":6215.6544925804365},{"$f":"'DNSP Inputs General'!R75*'PL Tariffs'!E29","v":7857.8588439846553},{"$f":"'DNSP Inputs General'!S75*'PL Tariffs'!F29","v":9679.8612923825731},{"$f":"'DNSP Inputs General'!T75*'PL Tariffs'!G29","v":10907.368207761785},{"$f":"'DNSP Inputs General'!U75*'PL Tariffs'!H29","v":10325.713500210029},null,1756.4399999999998,{"$f":"D88/'Charges Summary'!D$4","v":6093.815521966183},{"$f":"E88/'Charges Summary'!E$4","v":7552.819352771603},{"$f":"F88/'Charges Summary'!F$4","v":9121.7138820760592},{"$f":"G88/'Charges Summary'!G$4","v":10076.96436988041},{"$f":"H88/'Charges Summary'!H$4","v":9352.5977687980849}]
[{"$f":"'DNSP Inputs General'!A$76","v":"Compact Fluorescent 32W"},null,{"$f":"IF('PL Tariffs'!C30=0,\"\",'DNSP Inputs General'!O76*'PL Tariffs'!C30)","v":98150.13},{"$f":"'DNSP Inputs General'!Q76*'PL Tariffs'!D30","v":141522.7538596607},{"$f":"'DNSP Inputs General'!R76*'PL Tariffs'!E30","v":149658.41389313884},{"$f":"'DNSP Inputs General'!S76*'PL Tariffs'!F30","v":156814.45470682983},{"$f":"'DNSP Inputs General'!T76*'PL Tariffs'!G30","v":163408.63618029829},{"$f":"'DNSP Inputs General'!U76*'PL Tariffs'!H30","v":168891.0530488411},null,98150.13,{"$f":"D89/'Charges Summary'!D$4","v":138748.63141296772},{"$f":"E89/'Charges Summary'!E$4","v":143848.72357722503},{"$f":"F89/'Charges Summary'!F$4","v":147772.42619531363},{"$f":"G89/'Charges Summary'!G$4","v":150967.94874384417},{"$f":"H89/'Charges Summary'!H$4","v":152974.42504892481}]
[{"$f":"'DNSP Inputs General'!A$77","v":"Compact Fluorescent 42W"},null,{"$f":"IF('PL Tariffs'!C31=0,\"\",'DNSP Inputs General'!O77*'PL Tariffs'!C31)","v":60779.159999999996},{"$f":"'DNSP Inputs General'!Q77*'PL Tariffs'!D31","v":90620.391491973729},{"$f":"'DNSP Inputs General'!R77*'PL Tariffs'!E31","v":95829.848467425792},{"$f":"'DNSP Inputs General'!S77*'PL Tariffs'!F31","v":100412.03191414051},{"$f":"'DNSP Inputs General'!T77*'PL Tariffs'!G31","v":104634.44343736031},{"$f":"'DNSP Inputs General'!U77*'PL Tariffs'!H31","v":108144.96559298637},null,60779.159999999996,{"$f":"D90/'Charges Summary'!D$4","v":88844.054787734072},{"$f":"E90/'Charges Summary'!E$4","v":92109.765325196146},{"$f":"F90/'Charges Summary'!F$4","v":94622.205605307332},{"$f":"G90/'Charges Summary'!G$4","v":96668.374835849754},{"$f":"H90/'Charges Summary'!H$4","v":97953.169424189124}]
[{"$f":"'DNSP Inputs General'!A$78","v":"Smart lighting L1"},null,{"$f":"IF('PL Tariffs'!C32=0,\"\",'DNSP Inputs General'!O78*'PL Tariffs'!C32)","v":0},{"$f":"'DNSP Inputs General'!Q78*'PL Tariffs'!D32","v":59.98039628854719},{"$f":"'DNSP Inputs General'!R78*'PL Tariffs'!E32","v":39179.836976647217},{"$f":"'DNSP Inputs General'!S78*'PL Tariffs'!F32","v":81595.549931385933},{"$f":"'DNSP Inputs General'!T78*'PL Tariffs'!G32","v":132332.19885353881},{"$f":"'DNSP Inputs General'!U78*'PL Tariffs'!H32","v":193759.86434457856},null,0,{"$f":"D91/'Charges Summary'!D$4","v":58.804663346898806},{"$f":"E91/'Charges Summary'!E$4","v":37658.888614700525},{"$f":"F91/'Charges Summary'!F$4","v":76890.694819197728},{"$f":"G91/'Charges Summary'!G$4","v":122257.43437230843},{"$f":"H91/'Charges Summary'!H$4","v":175499.55021654096}]
[{"$f":"'DNSP Inputs General'!A$79","v":"Smart lighting L2"},null,{"$f":"IF('PL Tariffs'!C33=0,\"\",'DNSP Inputs General'!O79*'PL Tariffs'!C33)","v":0},{"$f":"'DNSP Inputs General'!Q79*'PL Tariffs'!D33","v":181.95979937168909},{"$f":"'DNSP Inputs General'!R79*'PL Tariffs'!E33","v":47512.3382084595},{"$f":"'DNSP Inputs General'!S79*'PL Tariffs'!F33","v":99055.4922803269},{"$f":"'DNSP Inputs General'!T79*'PL Tariffs'!G33","v":170472.64399423325},{"$f":"'DNSP Inputs General'!U79*'PL Tariffs'!H33","v":260894.45573927258},null,0,{"$f":"D92/'Charges Summary'!D$4","v":178.39303183737931},{"$f":"E92/'Charges Summary'!E$4","v":45667.92489419569},{"$f":"F92/'Charges Summary'!F$4","v":93343.884972853484},{"$f":"G92/'Charges Summary'!G$4","v":157494.15687156873},{"$f":"H92/'Charges Summary'!H$4","v":236307.24449107368}]
[{"$f":"'DNSP Inputs General'!A$80","v":"Smart lighting L4"},null,{"$f":"IF('PL Tariffs'!C34=0,\"\",'DNSP Inputs General'!O80*'PL Tariffs'!C34)","v":0},{"$f":"'DNSP Inputs General'!Q80*'PL Tariffs'!D34","v":66.678953391815242},{"$f":"'DNSP Inputs General'!R80*'PL Tariffs'!E34","v":2476.2175357153419},{"$f":"'DNSP Inputs General'!S80*'PL Tariffs'!F34","v":5173.1423139629842},{"$f":"'DNSP Inputs General'!T80*'PL Tariffs'!G34","v":8998.9578776451272},{"$f":"'DNSP Inputs General'!U80*'PL Tariffs'!H34","v":12730.689668622554},null,0,{"$f":"D93/'Charges Summary'!D$4","v":65.371915645011228},{"$f":"E93/'Charges Summary'!E$4","v":2380.0915868755155},{"$f":"F93/'Charges Summary'!F$4","v":4874.8553965711344},{"$f":"G93/'Charges Summary'!G$4","v":8313.8458491347428},{"$f":"H93/'Charges Summary'!H$4","v":11530.924210476913}]
[]
["Total Revenue",null,{"$f":"IF(SUM(C57:C93)=0,0,SUM(C57:C93))","v":5214521.0197729785},{"$f":"IF(SUM(D57:D93)=0,0,SUM(D57:D93))","v":6730570.9424010441},6911497.6218574224,7130736.9778211657,7430036.2998158485,7781840.6480468139,null,{"$f":"IF(SUM(J57:J93)=0,0,SUM(J57:J93))","v":5214521.0197729785},{"$f":"IF(SUM(K57:K93)=0,0,SUM(K57:K93))","v":6598638.6034579407},6643195.5614678357,6719573.8157126587,6864369.9959521517,7048464.5424826564]
[]
[]
["Public Lighting - O & M",null,null,"Forecast O & M - Nominal ",null,null,null,null,null,null,"Forecast O & M - Real 2021 $ "]
[null,null,null,{"$f":"D$2","v":"2022-06-30"},"2023-06-30","2024-06-30","2025-06-30","2026-06-30",null,null,{"$f":"K$2","v":"2022-06-30"},"2023-06-30","2024-06-30","2025-06-30","2026-06-30"]
[]
["Unit cost"]
[{"$f":"'DNSP Inputs General'!A$42","v":"Mercury Vapour 80W"},null,null,{"$f":"SUM('Charges Summary'!D25,'Charges Summary'!D8)","v":25.663264462617839},{"$f":"SUM('Charges Summary'!E25,'Charges Summary'!E8)","v":26.248045315955316},{"$f":"SUM('Charges Summary'!F25,'Charges Summary'!F8)","v":26.837053432793944},{"$f":"SUM('Charges Summary'!G25,'Charges Summary'!G8)","v":27.458499056003888},{"$f":"SUM('Charges Summary'!H25,'Charges Summary'!H8)","v":28.122629136150533},null,null,{"$f":"D102/'Charges Summary'!D$4","v":25.16021434481301},{"$f":"E102/'Charges Summary'!E$4","v":25.229104845340292},{"$f":"F102/'Charges Summary'!F$4","v":25.28961061090568},{"$f":"G102/'Charges Summary'!G$4","v":25.368018331025532},{"$f":"H102/'Charges Summary'!H$4","v":25.472296757618498}]
[{"$f":"'DNSP Inputs General'!A$43","v":"HP Sodium 150W"},null,null,{"$f":"SUM('Charges Summary'!D49,'Charges Summary'!D8)","v":72.988321733703728},{"$f":"SUM('Charges Summary'!E49,'Charges Summary'!E8)","v":74.766660973098027},{"$f":"SUM('Charges Summary'!F49,'Charges Summary'!F8)","v":76.560329330725295},{"$f":"SUM('Charges Summary'!G49,'Charges Summary'!G8)","v":78.463939638189302},{"$f":"SUM('Charges Summary'!H49,'Charges Summary'!H8)","v":80.527507487386515},null,null,{"$f":"D103/'Charges Summary'!D$4","v":71.557608041764823},{"$f":"E103/'Charges Summary'!E$4","v":71.864243829222801},{"$f":"F103/'Charges Summary'!F$4","v":72.145808475784392},{"$f":"G103/'Charges Summary'!G$4","v":72.490293624801879},{"$f":"H103/'Charges Summary'!H$4","v":72.938435376701378}]
[{"$f":"'DNSP Inputs General'!A$44","v":"HP Sodium 250W"},null,null,{"$f":"SUM('Charges Summary'!D65,'Charges Summary'!D8)","v":75.256802450832978},{"$f":"SUM('Charges Summary'!E65,'Charges Summary'!E8)","v":77.083414169970837},{"$f":"SUM('Charges Summary'!F65,'Charges Summary'!F8)","v":78.925961640405092},{"$f":"SUM('Charges Summary'!G65,'Charges Summary'!G8)","v":80.880396178771264},{"$f":"SUM('Charges Summary'!H65,'Charges Summary'!H8)","v":82.997093582430736},null,null,{"$f":"D104/'Charges Summary'!D$4","v":73.781622105259572},{"$f":"E104/'Charges Summary'!E$4","v":74.091061430347253},{"$f":"F104/'Charges Summary'!F$4","v":74.375036811532837},{"$f":"G104/'Charges Summary'!G$4","v":74.7227795918091},{"$f":"H104/'Charges Summary'!H$4","v":75.17528277730915}]
[]
[{"$f":"'DNSP Inputs General'!A$69","v":"T5 2X14W"},null,null,{"$f":"SUM('Charges Summary'!D83,'Charges Summary'!D8)","v":32.405245038728594},{"$f":"SUM('Charges Summary'!E83,'Charges Summary'!E8)","v":33.169161220681275},{"$f":"SUM('Charges Summary'!F83,'Charges Summary'!F8)","v":33.938393182854405},{"$f":"SUM('Charges Summary'!G83,'Charges Summary'!G8)","v":34.753479064136236},{"$f":"SUM('Charges Summary'!H83,'Charges Summary'!H8)","v":35.632342631777135},null,null,{"$f":"D106/'Charges Summary'!D$4","v":31.770038930870719},{"$f":"E106/'Charges Summary'!E$4","v":31.881545311104869},{"$f":"F106/'Charges Summary'!F$4","v":31.98148226307903},{"$f":"G106/'Charges Summary'!G$4","v":32.107614191430088},{"$f":"H106/'Charges Summary'!H$4","v":32.274279950555396}]
[{"$f":"'DNSP Inputs General'!A$70","v":"T5 2X24W"},null,null,{"$f":"SUM('Charges Summary'!D99,'Charges Summary'!D8)","v":35.718892087496961},{"$f":"SUM('Charges Summary'!E99,'Charges Summary'!E8)","v":36.563785928784725},{"$f":"SUM('Charges Summary'!F99,'Charges Summary'!F8)","v":37.414786612258801},{"$f":"SUM('Charges Summary'!G99,'Charges Summary'!G8)","v":38.316535152806196},{"$f":"SUM('Charges Summary'!H99,'Charges Summary'!H8)","v":39.289513668980007},null,null,{"$f":"D107/'Charges Summary'!D$4","v":35.018732024125178},{"$f":"E107/'Charges Summary'!E$4","v":35.144391806545229},{"$f":"F107/'Charges Summary'!F$4","v":35.257424474101242},{"$f":"G107/'Charges Summary'!G$4","v":35.399406360677887},{"$f":"H107/'Charges Summary'!H$4","v":35.58679193163649}]
[{"$f":"'DNSP Inputs General'!A$71","v":"LED 18W"},null,null,{"$f":"SUM('Charges Summary'!D115,'Charges Summary'!D8)","v":11.635721671615052},{"$f":"SUM('Charges Summary'!E115,'Charges Summary'!E8)","v":11.892622791326932},{"$f":"SUM('Charges Summary'!F115,'Charges Summary'!F8)","v":12.149861747475335},{"$f":"SUM('Charges Summary'!G115,'Charges Summary'!G8)","v":12.422410614577792},{"$f":"SUM('Charges Summary'!H115,'Charges Summary'!H8)","v":12.712251034919516},null,null,{"$f":"D108/'Charges Summary'!D$4","v":11.407638795947523},{"$f":"E108/'Charges Summary'!E$4","v":11.430955093105016},{"$f":"F108/'Charges Summary'!F$4","v":11.449292424723565},{"$f":"G108/'Charges Summary'!G$4","v":11.476663001258656},{"$f":"H108/'Charges Summary'!H$4","v":11.514223270205113}]
[{"$f":"'DNSP Inputs General'!A$72","v":"LED 14W"},null,null,{"$f":"SUM('Charges Summary'!D131,'Charges Summary'!D$8)","v":13.454498537825383},{"$f":"SUM('Charges Summary'!E131,'Charges Summary'!E$8)","v":13.754268156889552},{"$f":"SUM('Charges Summary'!F131,'Charges Summary'!F$8)","v":14.054866990694686},{"$f":"SUM('Charges Summary'!G131,'Charges Summary'!G$8)","v":14.373082210316866},{"$f":"SUM('Charges Summary'!H131,'Charges Summary'!H$8)","v":14.712028388074623},null,null,{"$f":"D109/'Charges Summary'!D$4","v":13.190764082517996},{"$f":"E109/'Charges Summary'!E$4","v":13.220331998975837},{"$f":"F109/'Charges Summary'!F$4","v":13.244453765121712},{"$f":"G109/'Charges Summary'!G$4","v":13.278825337138398},{"$f":"H109/'Charges Summary'!H$4","v":13.325537637084551}]
[{"$f":"'DNSP Inputs General'!A$73","v":"LED 70W-125W (L1)"},null,null,{"$f":"SUM('Charges Summary'!D147,'Charges Summary'!D$8)","v":22.2395244693612},{"$f":"SUM('Charges Summary'!E147,'Charges Summary'!E$8)","v":22.772044426806811},{"$f":"SUM('Charges Summary'!F147,'Charges Summary'!F$8)","v":23.306836214188628},{"$f":"SUM('Charges Summary'!G147,'Charges Summary'!G$8)","v":23.876565466494142},{"$f":"SUM('Charges Summary'!H147,'Charges Summary'!H$8)","v":24.494234902286593},null,null,{"$f":"D110/'Charges Summary'!D$4","v":21.803586343853752},{"$f":"E110/'Charges Summary'!E$4","v":21.888041165390153},{"$f":"F110/'Charges Summary'!F$4","v":21.962948127111964},{"$f":"G110/'Charges Summary'!G$4","v":22.058785849895756},{"$f":"H110/'Charges Summary'!H$4","v":22.185849596822734}]
[{"$f":"'DNSP Inputs General'!A$74","v":"LED 155W-250W (L2)"},null,null,{"$f":"SUM('Charges Summary'!D163,'Charges Summary'!D$8)","v":22.2395244693612},{"$f":"SUM('Charges Summary'!E163,'Charges Summary'!E$8)","v":22.772044426806811},{"$f":"SUM('Charges Summary'!F163,'Charges Summary'!F$8)","v":23.306836214188628},{"$f":"SUM('Charges Summary'!G163,'Charges Summary'!G$8)","v":23.876565466494142},{"$f":"SUM('Charges Summary'!H163,'Charges Summary'!H$8)","v":24.494234902286593},null,null,{"$f":"D111/'Charges Summary'!D$4","v":21.803586343853752},{"$f":"E111/'Charges Summary'!E$4","v":21.888041165390153},{"$f":"F111/'Charges Summary'!F$4","v":21.962948127111964},{"$f":"G111/'Charges Summary'!G$4","v":22.058785849895756},{"$f":"H111/'Charges Summary'!H$4","v":22.185849596822734}]
[{"$f":"'DNSP Inputs General'!A$75","v":"LED 275W-400W (L4)"},null,null,{"$f":"SUM('Charges Summary'!D179,'Charges Summary'!D$8)","v":22.2395244693612},{"$f":"SUM('Charges Summary'!E179,'Charges Summary'!E$8)","v":22.772044426806811},{"$f":"SUM('Charges Summary'!F179,'Charges Summary'!F$8)","v":23.306836214188628},{"$f":"SUM('Charges Summary'!G179,'Charges Summary'!G$8)","v":23.876565466494142},{"$f":"SUM('Charges Summary'!H179,'Charges Summary'!H$8)","v":24.494234902286593},null,null,{"$f":"D112/'Charges Summary'!D$4","v":21.803586343853752},{"$f":"E112/'Charges Summary'!E$4","v":21.888041165390153},{"$f":"F112/'Charges Summary'!F$4","v":21.962948127111964},{"$f":"G112/'Charges Summary'!G$4","v":22.058785849895756},{"$f":"H112/'Charges Summary'!H$4","v":22.185849596822734}]
[]
[{"$f":"'DNSP Inputs General'!A$41","v":"Existing Lights"}]
[{"$f":"'DNSP Inputs General'!A$42","v":"Mercury Vapour 80W"},null,null,{"$f":"D102*'DNSP Inputs General'!Q42","v":379452.23437485565},{"$f":"E102*'DNSP Inputs General'!R42","v":258732.46322240561},{"$f":"F102*'DNSP Inputs General'!S42","v":132269.21960694154},{"$f":"G102*'DNSP Inputs General'!T42","v":27.458499056003888},{"$f":"H102*'DNSP Inputs General'!U42","v":28.122629136150533},null,null,{"$f":"D115/'Charges Summary'!D$4","v":372014.22930415912},{"$f":"E115/'Charges Summary'!E$4","v":248688.55425067854},{"$f":"F115/'Charges Summary'!F$4","v":124642.48610767393},{"$f":"G115/'Charges Summary'!G$4","v":25.368018331025532},{"$f":"H115/'Charges Summary'!H$4","v":25.472296757618498}]
[{"$f":"'DNSP Inputs General'!A$43","v":"HP Sodium 150W"},null,null,{"$f":"D103*'DNSP Inputs General'!Q43","v":1054204.1456881445},{"$f":"E103*'DNSP Inputs General'!R43","v":1044696.9886223937},{"$f":"F103*'DNSP Inputs General'!S43","v":1034420.9439312413},{"$f":"G103*'DNSP Inputs General'!T43","v":1024619.8817786291},{"$f":"H103*'DNSP Inputs General'!U43","v":1015806.3039071187},null,null,{"$f":"D116/'Charges Summary'!D$4","v":1033539.684997602},{"$f":"E116/'Charges Summary'!E$4","v":1004142.1957445433},{"$f":"F116/'Charges Summary'!F$4","v":974775.52613208478},{"$f":"G116/'Charges Summary'!G$4","v":946613.13753091381},{"$f":"H116/'Charges Summary'!H$4","v":920074.70198156335}]
[{"$f":"'DNSP Inputs General'!A$44","v":"HP Sodium 250W"},null,null,{"$f":"D104*'DNSP Inputs General'!Q44","v":508601.69853046699},{"$f":"E104*'DNSP Inputs General'!R44","v":501338.28810113005},{"$f":"F104*'DNSP Inputs General'!S44","v":493726.37744967465},{"$f":"G104*'DNSP Inputs General'!T44","v":486347.19440352742},{"$f":"H104*'DNSP Inputs General'!U44","v":479434.38003333646},null,null,{"$f":"D117/'Charges Summary'!D$4","v":498632.11166305299},{"$f":"E117/'Charges Summary'!E$4","v":481876.50094456121},{"$f":"F117/'Charges Summary'!F$4","v":465257.77747186198},{"$f":"G117/'Charges Summary'!G$4","v":449320.42781026853},{"$f":"H117/'Charges Summary'!H$4","v":434251.53263197455}]
[{"$f":"'DNSP Inputs General'!A$45","v":"Mercury Vapour 50W"},null,null,{"$f":"IF('DNSP Inputs General'!$B45='DNSP Inputs General'!$A$42,D$102,IF('DNSP Inputs General'!$B45='DNSP Inputs General'!$A$43,D$103,D$104))*'DNSP Inputs General'!$D45*'DNSP Inputs General'!Q45","v":2152.2940632565346},{"$f":"IF('DNSP Inputs General'!$B45='DNSP Inputs General'!$A$42,E$102,IF('DNSP Inputs General'!$B45='DNSP Inputs General'!$A$43,E$103,E$104))*'DNSP Inputs General'!$D45*'DNSP Inputs General'!R45","v":1467.558480668217},{"$f":"IF('DNSP Inputs General'!$B45='DNSP Inputs General'!$A$42,F$102,IF('DNSP Inputs General'!$B45='DNSP Inputs General'!$A$43,F$103,F$104))*'DNSP Inputs General'!$D45*'DNSP Inputs General'!S45","v":750.2453018378103},{"$f":"IF('DNSP Inputs General'!$B45='DNSP Inputs General'!$A$42,G$102,IF('DNSP Inputs General'!$B45='DNSP Inputs General'!$A$43,G$103,G$104))*'DNSP Inputs General'!$D45*'DNSP Inputs General'!T45","v":0},{"$f":"IF('DNSP Inputs General'!$B45='DNSP Inputs General'!$A$42,H$102,IF('DNSP Inputs General'!$B45='DNSP Inputs General'!$A$43,H$103,H$104))*'DNSP Inputs General'!$D45*'DNSP Inputs General'!U45","v":0},null,null,{"$f":"D118/'Charges Summary'!D$4","v":2110.1048950137742},{"$f":"E118/'Charges Summary'!E$4","v":1410.5883439991003},{"$f":"F118/'Charges Summary'!F$4","v":706.9856455610277},{"$f":"G118/'Charges Summary'!G$4","v":0},{"$f":"H118/'Charges Summary'!H$4","v":0}]
[{"$f":"'DNSP Inputs General'!A$46","v":"Mercury Vapour 125W"},null,null,{"$f":"IF('DNSP Inputs General'!$B46='DNSP Inputs General'!$A$42,D$102,IF('DNSP Inputs General'!$B46='DNSP Inputs General'!$A$43,D$103,D$104))*'DNSP Inputs General'!$D46*'DNSP Inputs General'!Q46","v":7964.3112269776429},{"$f":"IF('DNSP Inputs General'!$B46='DNSP Inputs General'!$A$42,E$102,IF('DNSP Inputs General'!$B46='DNSP Inputs General'!$A$43,E$103,E$104))*'DNSP Inputs General'!$D46*'DNSP Inputs General'!R46","v":5430.5276789861282},{"$f":"IF('DNSP Inputs General'!$B46='DNSP Inputs General'!$A$42,F$102,IF('DNSP Inputs General'!$B46='DNSP Inputs General'!$A$43,F$103,F$104))*'DNSP Inputs General'!$D46*'DNSP Inputs General'!S46","v":2776.1945648696947},{"$f":"IF('DNSP Inputs General'!$B46='DNSP Inputs General'!$A$42,G$102,IF('DNSP Inputs General'!$B46='DNSP Inputs General'!$A$43,G$103,G$104))*'DNSP Inputs General'!$D46*'DNSP Inputs General'!T46","v":0},{"$f":"IF('DNSP Inputs General'!$B46='DNSP Inputs General'!$A$42,H$102,IF('DNSP Inputs General'!$B46='DNSP Inputs General'!$A$43,H$103,H$104))*'DNSP Inputs General'!$D46*'DNSP Inputs General'!U46","v":0},null,null,{"$f":"D119/'Charges Summary'!D$4","v":7808.195168289888},{"$f":"E119/'Charges Summary'!E$4","v":5219.7163838093984},{"$f":"F119/'Charges Summary'!F$4","v":2616.1172910240025},{"$f":"G119/'Charges Summary'!G$4","v":0},{"$f":"H119/'Charges Summary'!H$4","v":0}]
[{"$f":"'DNSP Inputs General'!A$47","v":"Mercury Vapour 250W"},null,null,{"$f":"IF('DNSP Inputs General'!$B47='DNSP Inputs General'!$A$42,D$102,IF('DNSP Inputs General'!$B47='DNSP Inputs General'!$A$43,D$103,D$104))*'DNSP Inputs General'!$D47*'DNSP Inputs General'!Q47","v":36416.841811790138},{"$f":"IF('DNSP Inputs General'!$B47='DNSP Inputs General'!$A$42,E$102,IF('DNSP Inputs General'!$B47='DNSP Inputs General'!$A$43,E$103,E$104))*'DNSP Inputs General'!$D47*'DNSP Inputs General'!R47","v":24867.160697085572},{"$f":"IF('DNSP Inputs General'!$B47='DNSP Inputs General'!$A$42,F$102,IF('DNSP Inputs General'!$B47='DNSP Inputs General'!$A$43,F$103,F$104))*'DNSP Inputs General'!$D47*'DNSP Inputs General'!S47","v":12730.783868474231},{"$f":"IF('DNSP Inputs General'!$B47='DNSP Inputs General'!$A$42,G$102,IF('DNSP Inputs General'!$B47='DNSP Inputs General'!$A$43,G$103,G$104))*'DNSP Inputs General'!$D47*'DNSP Inputs General'!T47","v":0},{"$f":"IF('DNSP Inputs General'!$B47='DNSP Inputs General'!$A$42,H$102,IF('DNSP Inputs General'!$B47='DNSP Inputs General'!$A$43,H$103,H$104))*'DNSP Inputs General'!$D47*'DNSP Inputs General'!U47","v":0},null,null,{"$f":"D120/'Charges Summary'!D$4","v":35703.000570346136},{"$f":"E120/'Charges Summary'!E$4","v":23901.825712383088},{"$f":"F120/'Charges Summary'!F$4","v":11996.71817964535},{"$f":"G120/'Charges Summary'!G$4","v":0},{"$f":"H120/'Charges Summary'!H$4","v":0}]
[{"$f":"'DNSP Inputs General'!A$48","v":"Mercury Vapour 400W"},null,null,{"$f":"IF('DNSP Inputs General'!$B48='DNSP Inputs General'!$A$42,D$102,IF('DNSP Inputs General'!$B48='DNSP Inputs General'!$A$43,D$103,D$104))*'DNSP Inputs General'!$D48*'DNSP Inputs General'!Q48","v":7136.6025764124915},{"$f":"IF('DNSP Inputs General'!$B48='DNSP Inputs General'!$A$42,E$102,IF('DNSP Inputs General'!$B48='DNSP Inputs General'!$A$43,E$103,E$104))*'DNSP Inputs General'!$D48*'DNSP Inputs General'!R48","v":4873.2134438255562},{"$f":"IF('DNSP Inputs General'!$B48='DNSP Inputs General'!$A$42,F$102,IF('DNSP Inputs General'!$B48='DNSP Inputs General'!$A$43,F$103,F$104))*'DNSP Inputs General'!$D48*'DNSP Inputs General'!S48","v":2494.8496474532049},{"$f":"IF('DNSP Inputs General'!$B48='DNSP Inputs General'!$A$42,G$102,IF('DNSP Inputs General'!$B48='DNSP Inputs General'!$A$43,G$103,G$104))*'DNSP Inputs General'!$D48*'DNSP Inputs General'!T48","v":0},{"$f":"IF('DNSP Inputs General'!$B48='DNSP Inputs General'!$A$42,H$102,IF('DNSP Inputs General'!$B48='DNSP Inputs General'!$A$43,H$103,H$104))*'DNSP Inputs General'!$D48*'DNSP Inputs General'!U48","v":0},null,null,{"$f":"D121/'Charges Summary'!D$4","v":6996.7112242417652},{"$f":"E121/'Charges Summary'!E$4","v":4684.0369036265529},{"$f":"F121/'Charges Summary'!F$4","v":2350.9949136125529},{"$f":"G121/'Charges Summary'!G$4","v":0},{"$f":"H121/'Charges Summary'!H$4","v":0}]
[{"$f":"'DNSP Inputs General'!A$49","v":"HP Sodium 100W"},null,null,{"$f":"IF('DNSP Inputs General'!$B49='DNSP Inputs General'!$A$42,D$102,IF('DNSP Inputs General'!$B49='DNSP Inputs General'!$A$43,D$103,D$104))*'DNSP Inputs General'!$D49*'DNSP Inputs General'!Q49","v":192563.26976279006},{"$f":"IF('DNSP Inputs General'!$B49='DNSP Inputs General'!$A$42,E$102,IF('DNSP Inputs General'!$B49='DNSP Inputs General'!$A$43,E$103,E$104))*'DNSP Inputs General'!$D49*'DNSP Inputs General'!R49","v":194768.4382365327},{"$f":"IF('DNSP Inputs General'!$B49='DNSP Inputs General'!$A$42,F$102,IF('DNSP Inputs General'!$B49='DNSP Inputs General'!$A$43,F$103,F$104))*'DNSP Inputs General'!$D49*'DNSP Inputs General'!S49","v":196894.74197610476},{"$f":"IF('DNSP Inputs General'!$B49='DNSP Inputs General'!$A$42,G$102,IF('DNSP Inputs General'!$B49='DNSP Inputs General'!$A$43,G$103,G$104))*'DNSP Inputs General'!$D49*'DNSP Inputs General'!T49","v":199180.82635260985},{"$f":"IF('DNSP Inputs General'!$B49='DNSP Inputs General'!$A$42,H$102,IF('DNSP Inputs General'!$B49='DNSP Inputs General'!$A$43,H$103,H$104))*'DNSP Inputs General'!$D49*'DNSP Inputs General'!U49","v":201741.02330389697},null,null,{"$f":"D122/'Charges Summary'!D$4","v":188788.65349445998},{"$f":"E122/'Charges Summary'!E$4","v":187207.59163905101},{"$f":"F122/'Charges Summary'!F$4","v":185541.65673888},{"$f":"G122/'Charges Summary'!G$4","v":184016.71714816487},{"$f":"H122/'Charges Summary'!H$4","v":182728.54891709817}]
[{"$f":"'DNSP Inputs General'!A50","v":"HP Sodium 400W"},null,null,{"$f":"IF('DNSP Inputs General'!$B50='DNSP Inputs General'!$A$42,D$102,IF('DNSP Inputs General'!$B50='DNSP Inputs General'!$A$43,D$103,D$104))*'DNSP Inputs General'!$D50*'DNSP Inputs General'!Q50","v":23051.082717300436},{"$f":"IF('DNSP Inputs General'!$B50='DNSP Inputs General'!$A$42,E$102,IF('DNSP Inputs General'!$B50='DNSP Inputs General'!$A$43,E$103,E$104))*'DNSP Inputs General'!$D50*'DNSP Inputs General'!R50","v":23247.527632176454},{"$f":"IF('DNSP Inputs General'!$B50='DNSP Inputs General'!$A$42,F$102,IF('DNSP Inputs General'!$B50='DNSP Inputs General'!$A$43,F$103,F$104))*'DNSP Inputs General'!$D50*'DNSP Inputs General'!S50","v":23424.119835484096},{"$f":"IF('DNSP Inputs General'!$B50='DNSP Inputs General'!$A$42,G$102,IF('DNSP Inputs General'!$B50='DNSP Inputs General'!$A$43,G$103,G$104))*'DNSP Inputs General'!$D50*'DNSP Inputs General'!T50","v":23607.988022994879},{"$f":"IF('DNSP Inputs General'!$B50='DNSP Inputs General'!$A$42,H$102,IF('DNSP Inputs General'!$B50='DNSP Inputs General'!$A$43,H$103,H$104))*'DNSP Inputs General'!$D50*'DNSP Inputs General'!U50","v":23811.243647424682},null,null,{"$f":"D123/'Charges Summary'!D$4","v":22599.23646471796},{"$f":"E123/'Charges Summary'!E$4","v":22345.066269395789},{"$f":"F123/'Charges Summary'!F$4","v":22073.46909473708},{"$f":"G123/'Charges Summary'!G$4","v":21810.655844825451},{"$f":"H123/'Charges Summary'!H$4","v":21567.224793200188}]
[{"$f":"'DNSP Inputs General'!A51","v":"Metal Halide 70W"},null,null,{"$f":"IF('DNSP Inputs General'!$B51='DNSP Inputs General'!$A$42,D$102,IF('DNSP Inputs General'!$B51='DNSP Inputs General'!$A$43,D$103,D$104))*'DNSP Inputs General'!$D51*'DNSP Inputs General'!Q51","v":2170.4429398382108},{"$f":"IF('DNSP Inputs General'!$B51='DNSP Inputs General'!$A$42,E$102,IF('DNSP Inputs General'!$B51='DNSP Inputs General'!$A$43,E$103,E$104))*'DNSP Inputs General'!$D51*'DNSP Inputs General'!R51","v":1331.9400902458055},{"$f":"IF('DNSP Inputs General'!$B51='DNSP Inputs General'!$A$42,F$102,IF('DNSP Inputs General'!$B51='DNSP Inputs General'!$A$43,F$103,F$104))*'DNSP Inputs General'!$D51*'DNSP Inputs General'!S51","v":453.94297544737759},{"$f":"IF('DNSP Inputs General'!$B51='DNSP Inputs General'!$A$42,G$102,IF('DNSP Inputs General'!$B51='DNSP Inputs General'!$A$43,G$103,G$104))*'DNSP Inputs General'!$D51*'DNSP Inputs General'!T51","v":0},{"$f":"IF('DNSP Inputs General'!$B51='DNSP Inputs General'!$A$42,H$102,IF('DNSP Inputs General'!$B51='DNSP Inputs General'!$A$43,H$103,H$104))*'DNSP Inputs General'!$D51*'DNSP Inputs General'!U51","v":0},null,null,{"$f":"D124/'Charges Summary'!D$4","v":2127.8980181598058},{"$f":"E124/'Charges Summary'!E$4","v":1280.2346148075603},{"$f":"F124/'Charges Summary'!F$4","v":427.76831358810375},{"$f":"G124/'Charges Summary'!G$4","v":0},{"$f":"H124/'Charges Summary'!H$4","v":0}]
[{"$f":"'DNSP Inputs General'!A52","v":"Metal Halide 100W"},null,null,{"$f":"IF('DNSP Inputs General'!$B52='DNSP Inputs General'!$A$42,D$102,IF('DNSP Inputs General'!$B52='DNSP Inputs General'!$A$43,D$103,D$104))*'DNSP Inputs General'!$D52*'DNSP Inputs General'!Q52","v":3703.3101607081821},{"$f":"IF('DNSP Inputs General'!$B52='DNSP Inputs General'!$A$42,E$102,IF('DNSP Inputs General'!$B52='DNSP Inputs General'!$A$43,E$103,E$104))*'DNSP Inputs General'!$D52*'DNSP Inputs General'!R52","v":2276.1241416738153},{"$f":"IF('DNSP Inputs General'!$B52='DNSP Inputs General'!$A$42,F$102,IF('DNSP Inputs General'!$B52='DNSP Inputs General'!$A$43,F$103,F$104))*'DNSP Inputs General'!$D52*'DNSP Inputs General'!S52","v":776.90961727296678},{"$f":"IF('DNSP Inputs General'!$B52='DNSP Inputs General'!$A$42,G$102,IF('DNSP Inputs General'!$B52='DNSP Inputs General'!$A$43,G$103,G$104))*'DNSP Inputs General'!$D52*'DNSP Inputs General'!T52","v":0},{"$f":"IF('DNSP Inputs General'!$B52='DNSP Inputs General'!$A$42,H$102,IF('DNSP Inputs General'!$B52='DNSP Inputs General'!$A$43,H$103,H$104))*'DNSP Inputs General'!$D52*'DNSP Inputs General'!U52","v":0},null,null,{"$f":"D125/'Charges Summary'!D$4","v":3630.7180469758969},{"$f":"E125/'Charges Summary'!E$4","v":2187.7657524612841},{"$f":"F125/'Charges Summary'!F$4","v":732.11247836516338},{"$f":"G125/'Charges Summary'!G$4","v":0},{"$f":"H125/'Charges Summary'!H$4","v":0}]
[{"$f":"'DNSP Inputs General'!A53","v":"Metal Halide 150W"},null,null,{"$f":"IF('DNSP Inputs General'!$B53='DNSP Inputs General'!$A$42,D$102,IF('DNSP Inputs General'!$B53='DNSP Inputs General'!$A$43,D$103,D$104))*'DNSP Inputs General'!$D53*'DNSP Inputs General'!Q53","v":4083.4851563811067},{"$f":"IF('DNSP Inputs General'!$B53='DNSP Inputs General'!$A$42,E$102,IF('DNSP Inputs General'!$B53='DNSP Inputs General'!$A$43,E$103,E$104))*'DNSP Inputs General'!$D53*'DNSP Inputs General'!R53","v":2509.7868510231201},{"$f":"IF('DNSP Inputs General'!$B53='DNSP Inputs General'!$A$42,F$102,IF('DNSP Inputs General'!$B53='DNSP Inputs General'!$A$43,F$103,F$104))*'DNSP Inputs General'!$D53*'DNSP Inputs General'!S53","v":856.66572669063498},{"$f":"IF('DNSP Inputs General'!$B53='DNSP Inputs General'!$A$42,G$102,IF('DNSP Inputs General'!$B53='DNSP Inputs General'!$A$43,G$103,G$104))*'DNSP Inputs General'!$D53*'DNSP Inputs General'!T53","v":0},{"$f":"IF('DNSP Inputs General'!$B53='DNSP Inputs General'!$A$42,H$102,IF('DNSP Inputs General'!$B53='DNSP Inputs General'!$A$43,H$103,H$104))*'DNSP Inputs General'!$D53*'DNSP Inputs General'!U53","v":0},null,null,{"$f":"D126/'Charges Summary'!D$4","v":4003.4408700447361},{"$f":"E126/'Charges Summary'!E$4","v":2412.3577524239045},{"$f":"F126/'Charges Summary'!F$4","v":807.26979606640225},{"$f":"G126/'Charges Summary'!G$4","v":0},{"$f":"H126/'Charges Summary'!H$4","v":0}]
[{"$f":"'DNSP Inputs General'!A54","v":"HP Sodium 50W"},null,null,{"$f":"IF('DNSP Inputs General'!$B54='DNSP Inputs General'!$A$42,D$102,IF('DNSP Inputs General'!$B54='DNSP Inputs General'!$A$43,D$103,D$104))*'DNSP Inputs General'!$D54*'DNSP Inputs General'!Q54","v":0},{"$f":"IF('DNSP Inputs General'!$B54='DNSP Inputs General'!$A$42,E$102,IF('DNSP Inputs General'!$B54='DNSP Inputs General'!$A$43,E$103,E$104))*'DNSP Inputs General'!$D54*'DNSP Inputs General'!R54","v":0},{"$f":"IF('DNSP Inputs General'!$B54='DNSP Inputs General'!$A$42,F$102,IF('DNSP Inputs General'!$B54='DNSP Inputs General'!$A$43,F$103,F$104))*'DNSP Inputs General'!$D54*'DNSP Inputs General'!S54","v":0},{"$f":"IF('DNSP Inputs General'!$B54='DNSP Inputs General'!$A$42,G$102,IF('DNSP Inputs General'!$B54='DNSP Inputs General'!$A$43,G$103,G$104))*'DNSP Inputs General'!$D54*'DNSP Inputs General'!T54","v":0},{"$f":"IF('DNSP Inputs General'!$B54='DNSP Inputs General'!$A$42,H$102,IF('DNSP Inputs General'!$B54='DNSP Inputs General'!$A$43,H$103,H$104))*'DNSP Inputs General'!$D54*'DNSP Inputs General'!U54","v":0},null,null,{"$f":"D127/'Charges Summary'!D$4","v":0},{"$f":"E127/'Charges Summary'!E$4","v":0},{"$f":"F127/'Charges Summary'!F$4","v":0},{"$f":"G127/'Charges Summary'!G$4","v":0},{"$f":"H127/'Charges Summary'!H$4","v":0}]
[]
[]
[]
[]
[]
[]
[]
[]
[]
[]
[]
[{"$f":"'DNSP Inputs General'!A$68","v":"Energy Efficient Lights"}]
[{"$f":"'DNSP Inputs General'!A$69","v":"T5 2X14W"},null,null,{"$f":"SUM('Charges Summary'!D83,'Charges Summary'!D8)*'DNSP Inputs General'!$D69*'DNSP Inputs General'!Q69","v":730039.37139554333},{"$f":"SUM('Charges Summary'!E83,'Charges Summary'!E8)*'DNSP Inputs General'!$D69*'DNSP Inputs General'!R69","v":747249.20543954161},{"$f":"SUM('Charges Summary'!F83,'Charges Summary'!F8)*'DNSP Inputs General'!$D69*'DNSP Inputs General'!S69","v":764578.7956787477},{"$f":"SUM('Charges Summary'!G83,'Charges Summary'!G8)*'DNSP Inputs General'!$D69*'DNSP Inputs General'!T69","v":782941.40283364546},{"$f":"SUM('Charges Summary'!H83,'Charges Summary'!H8)*'DNSP Inputs General'!$D69*'DNSP Inputs General'!U69","v":802740.82128260948},null,null,{"$f":"D140/'Charges Summary'!D$4","v":715729.17355155363},{"$f":"E140/'Charges Summary'!E$4","v":718241.23749785125},{"$f":"F140/'Charges Summary'!F$4","v":720492.66036199592},{"$f":"G140/'Charges Summary'!G$4","v":723334.21497996792},{"$f":"H140/'Charges Summary'!H$4","v":727088.93326336879}]
[{"$f":"'DNSP Inputs General'!A70","v":"T5 2X24W"},null,null,{"$f":"SUM('Charges Summary'!D99,'Charges Summary'!D8)*'DNSP Inputs General'!$D70*'DNSP Inputs General'!Q70","v":63615.346807832088},{"$f":"SUM('Charges Summary'!E99,'Charges Summary'!E8)*'DNSP Inputs General'!$D70*'DNSP Inputs General'!R70","v":65120.102739165595},{"$f":"SUM('Charges Summary'!F99,'Charges Summary'!F8)*'DNSP Inputs General'!$D70*'DNSP Inputs General'!S70","v":66635.73495643292},{"$f":"SUM('Charges Summary'!G99,'Charges Summary'!G8)*'DNSP Inputs General'!$D70*'DNSP Inputs General'!T70","v":68241.749107147829},{"$f":"SUM('Charges Summary'!H99,'Charges Summary'!H8)*'DNSP Inputs General'!$D70*'DNSP Inputs General'!U70","v":69974.623844453396},null,null,{"$f":"D141/'Charges Summary'!D$4","v":62368.361734966944},{"$f":"E141/'Charges Summary'!E$4","v":62592.161807457058},{"$f":"F141/'Charges Summary'!F$4","v":62793.472988374306},{"$f":"G141/'Charges Summary'!G$4","v":63046.342728367308},{"$f":"H141/'Charges Summary'!H$4","v":63380.076430244597}]
[{"$f":"'DNSP Inputs General'!A71","v":"LED 18W"},null,null,{"$f":"SUM('Charges Summary'!D115,'Charges Summary'!D8)*'DNSP Inputs General'!$D71*'DNSP Inputs General'!Q71","v":450981.60497771308},{"$f":"SUM('Charges Summary'!E115,'Charges Summary'!E8)*'DNSP Inputs General'!$D71*'DNSP Inputs General'!R71","v":548095.09285531042},{"$f":"SUM('Charges Summary'!F115,'Charges Summary'!F8)*'DNSP Inputs General'!$D71*'DNSP Inputs General'!S71","v":649770.65571660677},{"$f":"SUM('Charges Summary'!G115,'Charges Summary'!G8)*'DNSP Inputs General'!$D71*'DNSP Inputs General'!T71","v":756999.81012726203},{"$f":"SUM('Charges Summary'!H115,'Charges Summary'!H8)*'DNSP Inputs General'!$D71*'DNSP Inputs General'!U71","v":806962.14202203078},null,null,{"$f":"D142/'Charges Summary'!D$4","v":442141.4845073687},{"$f":"E142/'Charges Summary'!E$4","v":526818.22194422979},{"$f":"F142/'Charges Summary'!F$4","v":612304.43612658174},{"$f":"G142/'Charges Summary'!G$4","v":699367.61731673405},{"$f":"H142/'Charges Summary'!H$4","v":730912.42835918849}]
[{"$f":"'DNSP Inputs General'!A72","v":"LED 14W"},null,null,{"$f":"SUM('Charges Summary'!D131,'Charges Summary'!D$8)*'DNSP Inputs General'!$D72*'DNSP Inputs General'!Q72","v":36759.261249814161},{"$f":"SUM('Charges Summary'!E131,'Charges Summary'!E$8)*'DNSP Inputs General'!$D72*'DNSP Inputs General'!R72","v":37578.266856820454},{"$f":"SUM('Charges Summary'!F131,'Charges Summary'!F$8)*'DNSP Inputs General'!$D72*'DNSP Inputs General'!S72","v":38399.537975336505},{"$f":"SUM('Charges Summary'!G131,'Charges Summary'!G$8)*'DNSP Inputs General'!$D72*'DNSP Inputs General'!T72","v":39268.939117183101},{"$f":"SUM('Charges Summary'!H131,'Charges Summary'!H$8)*'DNSP Inputs General'!$D72*'DNSP Inputs General'!U72","v":40194.979657660733},null,null,{"$f":"D143/'Charges Summary'!D$4","v":36038.707918453169},{"$f":"E143/'Charges Summary'!E$4","v":36119.490919219097},{"$f":"F143/'Charges Summary'!F$4","v":36185.394401319929},{"$f":"G143/'Charges Summary'!G$4","v":36279.301550053577},{"$f":"H143/'Charges Summary'!H$4","v":36406.925008666534}]
[{"$f":"'DNSP Inputs General'!A73","v":"LED 70W-125W (L1)"},null,null,{"$f":"SUM('Charges Summary'!D147,'Charges Summary'!D$8)*'DNSP Inputs General'!$D73*'DNSP Inputs General'!Q73","v":54827.769082226267},{"$f":"SUM('Charges Summary'!E147,'Charges Summary'!E$8)*'DNSP Inputs General'!$D73*'DNSP Inputs General'!R73","v":56404.169843066265},{"$f":"SUM('Charges Summary'!F147,'Charges Summary'!F$8)*'DNSP Inputs General'!$D73*'DNSP Inputs General'!S73","v":66482.399003055456},{"$f":"SUM('Charges Summary'!G147,'Charges Summary'!G$8)*'DNSP Inputs General'!$D73*'DNSP Inputs General'!T73","v":67886.935047897103},{"$f":"SUM('Charges Summary'!H147,'Charges Summary'!H$8)*'DNSP Inputs General'!$D73*'DNSP Inputs General'!U73","v":65722.816787805205},null,null,{"$f":"D144/'Charges Summary'!D$4","v":53753.037699709996},{"$f":"E144/'Charges Summary'!E$4","v":54214.578554544372},{"$f":"F144/'Charges Summary'!F$4","v":62648.978490747024},{"$f":"G144/'Charges Summary'!G$4","v":62718.541505845278},{"$f":"H144/'Charges Summary'!H$4","v":59528.968108232853}]
[{"$f":"'DNSP Inputs General'!A74","v":"LED 155W-250W (L2)"},null,null,{"$f":"SUM('Charges Summary'!D163,'Charges Summary'!D$8)*'DNSP Inputs General'!$D74*'DNSP Inputs General'!Q74","v":54825.002854011582},{"$f":"SUM('Charges Summary'!E163,'Charges Summary'!E$8)*'DNSP Inputs General'!$D74*'DNSP Inputs General'!R74","v":66864.196033907385},{"$f":"SUM('Charges Summary'!F163,'Charges Summary'!F$8)*'DNSP Inputs General'!$D74*'DNSP Inputs General'!S74","v":78910.318590583454},{"$f":"SUM('Charges Summary'!G163,'Charges Summary'!G$8)*'DNSP Inputs General'!$D74*'DNSP Inputs General'!T74","v":85421.508364055786},{"$f":"SUM('Charges Summary'!H163,'Charges Summary'!H$8)*'DNSP Inputs General'!$D74*'DNSP Inputs General'!U74","v":86356.714286251809},null,null,{"$f":"D145/'Charges Summary'!D$4","v":53750.325694972271},{"$f":"E145/'Charges Summary'!E$4","v":64268.549975163711},{"$f":"F145/'Charges Summary'!F$4","v":74360.29575064301},{"$f":"G145/'Charges Summary'!G$4","v":78918.166124939817},{"$f":"H145/'Charges Summary'!H$4","v":78218.286158908464}]
[{"$f":"'DNSP Inputs General'!A75","v":"LED 275W-400W (L4)"},null,null,{"$f":"SUM('Charges Summary'!D179,'Charges Summary'!D$8)*'DNSP Inputs General'!$D75*'DNSP Inputs General'!Q75","v":2655.1820823279595},{"$f":"SUM('Charges Summary'!E179,'Charges Summary'!E$8)*'DNSP Inputs General'!$D75*'DNSP Inputs General'!R75","v":3122.1419451802235},{"$f":"SUM('Charges Summary'!F179,'Charges Summary'!F$8)*'DNSP Inputs General'!$D75*'DNSP Inputs General'!S75","v":3654.2720421504596},{"$f":"SUM('Charges Summary'!G179,'Charges Summary'!G$8)*'DNSP Inputs General'!$D75*'DNSP Inputs General'!T75","v":3971.4659431710893},{"$f":"SUM('Charges Summary'!H179,'Charges Summary'!H$8)*'DNSP Inputs General'!$D75*'DNSP Inputs General'!U75","v":3699.944034102421},null,null,{"$f":"D146/'Charges Summary'!D$4","v":2603.1353264971112},{"$f":"E146/'Charges Summary'!E$4","v":3000.9414235926197},{"$f":"F146/'Charges Summary'!F$4","v":3443.5642215242669},{"$f":"G146/'Charges Summary'!G$4","v":3669.1088118809203},{"$f":"H146/'Charges Summary'!H$4","v":3351.2539658707583}]
[{"$f":"'DNSP Inputs General'!A76","v":"Compact Fluorescent 32W"},null,null,{"$f":"IF('DNSP Inputs General'!$B76='DNSP Inputs General'!$A$69,D$106,D$107)*'DNSP Inputs General'!$D76*'DNSP Inputs General'!Q76","v":88680.793186471652},{"$f":"IF('DNSP Inputs General'!$B76='DNSP Inputs General'!$A$69,E$106,E$107)*'DNSP Inputs General'!$D76*'DNSP Inputs General'!R76","v":90771.340345197968},{"$f":"IF('DNSP Inputs General'!$B76='DNSP Inputs General'!$A$69,F$106,F$107)*'DNSP Inputs General'!$D76*'DNSP Inputs General'!S76","v":92876.434766436636},{"$f":"IF('DNSP Inputs General'!$B76='DNSP Inputs General'!$A$69,G$106,G$107)*'DNSP Inputs General'!$D76*'DNSP Inputs General'!T76","v":95107.013871170449},{"$f":"IF('DNSP Inputs General'!$B76='DNSP Inputs General'!$A$69,H$106,H$107)*'DNSP Inputs General'!$D76*'DNSP Inputs General'!U76","v":97512.128172510886},null,null,{"$f":"D147/'Charges Summary'!D$4","v":86942.476398112078},{"$f":"E147/'Charges Summary'!E$4","v":87247.626821529586},{"$f":"F147/'Charges Summary'!F$4","v":87521.116133494841},{"$f":"G147/'Charges Summary'!G$4","v":87866.291102514282},{"$f":"H147/'Charges Summary'!H$4","v":88322.391702852095}]
[{"$f":"'DNSP Inputs General'!A77","v":"Compact Fluorescent 42W"},null,null,{"$f":"IF('DNSP Inputs General'!$B77='DNSP Inputs General'!$A$69,D$106,D$107)*'DNSP Inputs General'!$D77*'DNSP Inputs General'!Q77","v":56784.424957882773},{"$f":"IF('DNSP Inputs General'!$B77='DNSP Inputs General'!$A$69,E$106,E$107)*'DNSP Inputs General'!$D77*'DNSP Inputs General'!R77","v":58123.052117046696},{"$f":"IF('DNSP Inputs General'!$B77='DNSP Inputs General'!$A$69,F$106,F$107)*'DNSP Inputs General'!$D77*'DNSP Inputs General'!S77","v":59470.994235028564},{"$f":"IF('DNSP Inputs General'!$B77='DNSP Inputs General'!$A$69,G$106,G$107)*'DNSP Inputs General'!$D77*'DNSP Inputs General'!T77","v":60899.287185893831},{"$f":"IF('DNSP Inputs General'!$B77='DNSP Inputs General'!$A$69,H$106,H$107)*'DNSP Inputs General'!$D77*'DNSP Inputs General'!U77","v":62439.339181960451},null,null,{"$f":"D148/'Charges Summary'!D$4","v":55671.339297788676},{"$f":"E148/'Charges Summary'!E$4","v":55866.734385008764},{"$f":"F148/'Charges Summary'!F$4","v":56041.856108146931},{"$f":"G148/'Charges Summary'!G$4","v":56262.879865618394},{"$f":"H148/'Charges Summary'!H$4","v":56554.93194795226}]
[{"$f":"'DNSP Inputs General'!A78","v":"Smart lighting L1"},null,null,{"$f":"SUM('Charges Summary'!D195,'Charges Summary'!D$8)*'DNSP Inputs General'!$D78*'DNSP Inputs General'!Q78","v":36.856812824765832},{"$f":"SUM('Charges Summary'!E195,'Charges Summary'!E$8)*'DNSP Inputs General'!$D78*'DNSP Inputs General'!R78","v":23100.467474317018},{"$f":"SUM('Charges Summary'!F195,'Charges Summary'!F$8)*'DNSP Inputs General'!$D78*'DNSP Inputs General'!S78","v":46685.428392960894},{"$f":"SUM('Charges Summary'!G195,'Charges Summary'!G$8)*'DNSP Inputs General'!$D78*'DNSP Inputs General'!T78","v":74071.766878864088},{"$f":"SUM('Charges Summary'!H195,'Charges Summary'!H$8)*'DNSP Inputs General'!$D78*'DNSP Inputs General'!U78","v":107346.63172786651},null,null,{"$f":"D149/'Charges Summary'!D$4","v":36.13434729196441},{"$f":"E149/'Charges Summary'!E$4","v":22203.714938409146},{"$f":"F149/'Charges Summary'!F$4","v":43993.51472090376},{"$f":"G149/'Charges Summary'!G$4","v":68432.507405520868},{"$f":"H149/'Charges Summary'!H$4","v":97230.072126794228}]
[{"$f":"'DNSP Inputs General'!A79","v":"Smart lighting L2"},null,null,{"$f":"SUM('Charges Summary'!D211,'Charges Summary'!D$8)*'DNSP Inputs General'!$D79*'DNSP Inputs General'!Q79","v":110.5704384742975},{"$f":"SUM('Charges Summary'!E211,'Charges Summary'!E$8)*'DNSP Inputs General'!$D79*'DNSP Inputs General'!R79","v":27652.869767880667},{"$f":"SUM('Charges Summary'!F211,'Charges Summary'!F$8)*'DNSP Inputs General'!$D79*'DNSP Inputs General'!S79","v":55875.613820353428},{"$f":"SUM('Charges Summary'!G211,'Charges Summary'!G$8)*'DNSP Inputs General'!$D79*'DNSP Inputs General'!T79","v":93991.781274357592},{"$f":"SUM('Charges Summary'!H211,'Charges Summary'!H$8)*'DNSP Inputs General'!$D79*'DNSP Inputs General'!U79","v":142320.2192735518},null,null,{"$f":"D150/'Charges Summary'!D$4","v":108.40304187589324},{"$f":"E150/'Charges Summary'!E$4","v":26579.394474921894},{"$f":"F150/'Charges Summary'!F$4","v":52653.787782653992},{"$f":"G150/'Charges Summary'!G$4","v":86835.963811077003},{"$f":"H150/'Charges Summary'!H$4","v":128907.67937785611}]
[{"$f":"'DNSP Inputs General'!A80","v":"Smart lighting L4"},null,null,{"$f":"SUM('Charges Summary'!D227,'Charges Summary'!D$8)*'DNSP Inputs General'!$D80*'DNSP Inputs General'!Q80","v":36.856812824765832},{"$f":"SUM('Charges Summary'!E227,'Charges Summary'!E$8)*'DNSP Inputs General'!$D80*'DNSP Inputs General'!R80","v":1292.2883110142341},{"$f":"SUM('Charges Summary'!F227,'Charges Summary'!F$8)*'DNSP Inputs General'!$D80*'DNSP Inputs General'!S80","v":2590.7469210063641},{"$f":"SUM('Charges Summary'!G227,'Charges Summary'!G$8)*'DNSP Inputs General'!$D80*'DNSP Inputs General'!T80","v":4375.023034584663},{"$f":"SUM('Charges Summary'!H227,'Charges Summary'!H$8)*'DNSP Inputs General'!$D80*'DNSP Inputs General'!U80","v":6104.9202025149443},null,null,{"$f":"D151/'Charges Summary'!D$4","v":36.13434729196441},{"$f":"E151/'Charges Summary'!E$4","v":1242.1221045807699},{"$f":"F151/'Charges Summary'!F$4","v":2441.3626849060802},{"$f":"G151/'Charges Summary'!G$4","v":4041.9421438017498},{"$f":"H151/'Charges Summary'!H$4","v":5529.5804075495844}]
[]
["Total O & M",null,null,{"$f":"SUM(D115:D151)","v":3760852.759666869},{"$f":"SUM(E115:E151)","v":3790913.2109265956},3827505.9266001913,3866960.0318420511,4012196.3539942321,null,null,{"$f":"SUM(K115:K151)","v":3687132.6985829468},3643751.2091582497,3606809.3219343917,3572559.1836988246,3634079.0074780793]
[]
[]
["Public Lighting - Capital Charge",null,null,"Capital Charge - Nominal ",null,null,null,null,null,null,"Capital Charge - Real 2021 $ "]
[null,null,null,{"$f":"D$2","v":"2022-06-30"},"2023-06-30","2024-06-30","2025-06-30","2026-06-30",null,null,{"$f":"K$2","v":"2022-06-30"},"2023-06-30","2024-06-30","2025-06-30","2026-06-30"]
[]
["Unit cost"]
[{"$f":"'DNSP Inputs General'!A$42","v":"Mercury Vapour 80W"},null,null,{"$f":"SUM('Charges Summary'!D27,'Charges Summary'!D11)","v":35.715208152840447},{"$f":"SUM('Charges Summary'!E27,'Charges Summary'!E11)","v":36.339229736184009},{"$f":"SUM('Charges Summary'!F27,'Charges Summary'!F11)","v":38.653818251670444},{"$f":"SUM('Charges Summary'!G27,'Charges Summary'!G11)","v":43.719495635547965},{"$f":"SUM('Charges Summary'!H27,'Charges Summary'!H11)","v":44.26370219779399},null,null,{"$f":"D160/'Charges Summary'!D$4","v":35.015120301784663},{"$f":"E160/'Charges Summary'!E$4","v":34.928552811351551},{"$f":"F160/'Charges Summary'!F$4","v":36.425012703329969},{"$f":"G160/'Charges Summary'!G$4","v":40.39102663418408},{"$f":"H160/'Charges Summary'!H$4","v":40.092203062326917}]
[{"$f":"'DNSP Inputs General'!A$43","v":"HP Sodium 150W"},null,null,{"$f":"SUM('Charges Summary'!D51,'Charges Summary'!D11)","v":40.473892813583788},{"$f":"SUM('Charges Summary'!E51,'Charges Summary'!E11)","v":41.115709748211543},{"$f":"SUM('Charges Summary'!F51,'Charges Summary'!F11)","v":42.245746707459219},{"$f":"SUM('Charges Summary'!G51,'Charges Summary'!G11)","v":47.961765021773758},{"$f":"SUM('Charges Summary'!H51,'Charges Summary'!H11)","v":48.521989939312363},null,null,{"$f":"D161/'Charges Summary'!D$4","v":39.680525446873638},{"$f":"E161/'Charges Summary'!E$4","v":39.519611443129484},{"$f":"F161/'Charges Summary'!F$4","v":39.809828112242499},{"$f":"G161/'Charges Summary'!G$4","v":44.310321980059634},{"$f":"H161/'Charges Summary'!H$4","v":43.949181316605902}]
[{"$f":"'DNSP Inputs General'!A$44","v":"HP Sodium 250W"},null,null,{"$f":"SUM('Charges Summary'!D67,'Charges Summary'!D11)","v":41.039276707798926},{"$f":"SUM('Charges Summary'!E67,'Charges Summary'!E11)","v":41.683207925201295},{"$f":"SUM('Charges Summary'!F67,'Charges Summary'!F11)","v":43.000706558331927},{"$f":"SUM('Charges Summary'!G67,'Charges Summary'!G11)","v":48.853415037248112},{"$f":"SUM('Charges Summary'!H67,'Charges Summary'!H11)","v":49.417006729841347},null,null,{"$f":"D162/'Charges Summary'!D$4","v":40.234826712259377},{"$f":"E162/'Charges Summary'!E$4","v":40.065079527875241},{"$f":"F162/'Charges Summary'!F$4","v":40.521256462722569},{"$f":"G162/'Charges Summary'!G$4","v":45.134088562904473},{"$f":"H162/'Charges Summary'!H$4","v":44.759849948654228}]
[]
[{"$f":"'DNSP Inputs General'!A$69","v":"T5 2X14W"},null,null,{"$f":"SUM('Charges Summary'!D85,'Charges Summary'!D11)","v":19.309217051553983},{"$f":"SUM('Charges Summary'!E85,'Charges Summary'!E11)","v":21.51818876858853},{"$f":"SUM('Charges Summary'!F85,'Charges Summary'!F11)","v":23.363877667431961},{"$f":"SUM('Charges Summary'!G85,'Charges Summary'!G11)","v":24.958401114161724},{"$f":"SUM('Charges Summary'!H85,'Charges Summary'!H11)","v":26.082892000692432},null,null,{"$f":"D164/'Charges Summary'!D$4","v":18.930718675922453},{"$f":"E164/'Charges Summary'!E$4","v":20.682859770687092},{"$f":"F164/'Charges Summary'!F$4","v":22.016700531220582},{"$f":"G164/'Charges Summary'!G$4","v":23.058258781217084},{"$f":"H164/'Charges Summary'!H$4","v":23.624788497619612}]
[{"$f":"'DNSP Inputs General'!A$70","v":"T5 2X24W"},null,null,{"$f":"SUM('Charges Summary'!D101,'Charges Summary'!D11)","v":19.498966439122448},{"$f":"SUM('Charges Summary'!E101,'Charges Summary'!E11)","v":21.753239801944815},{"$f":"SUM('Charges Summary'!F101,'Charges Summary'!F11)","v":23.635826954852639},{"$f":"SUM('Charges Summary'!G101,'Charges Summary'!G11)","v":25.260551899912755},{"$f":"SUM('Charges Summary'!H101,'Charges Summary'!H11)","v":26.403820165719516},null,null,{"$f":"D165/'Charges Summary'!D$4","v":19.116748604810642},{"$f":"E165/'Charges Summary'!E$4","v":20.908786200376184},{"$f":"F165/'Charges Summary'!F$4","v":22.272969037075928},{"$f":"G165/'Charges Summary'!G$4","v":23.337406110283855},{"$f":"H165/'Charges Summary'!H$4","v":23.915471755499635}]
[{"$f":"'DNSP Inputs General'!A$71","v":"LED 18W"},null,null,{"$f":"SUM('Charges Summary'!D117,'Charges Summary'!D11)","v":17.821366534563232},{"$f":"SUM('Charges Summary'!E117,'Charges Summary'!E11)","v":19.6751219424984},{"$f":"SUM('Charges Summary'!F117,'Charges Summary'!F11)","v":21.231486659117778},{"$f":"SUM('Charges Summary'!G117,'Charges Summary'!G11)","v":22.589196087733821},{"$f":"SUM('Charges Summary'!H117,'Charges Summary'!H11)","v":23.56645101307582},null,null,{"$f":"D166/'Charges Summary'!D$4","v":17.472032935647398},{"$f":"E166/'Charges Summary'!E$4","v":18.911340191507939},{"$f":"F166/'Charges Summary'!F$4","v":20.007264644173276},{"$f":"G166/'Charges Summary'!G$4","v":20.86942695840704},{"$f":"H166/'Charges Summary'!H$4","v":21.345501902497983}]
[{"$f":"'DNSP Inputs General'!A$72","v":"LED 14W"},null,null,{"$f":"SUM('Charges Summary'!D133,'Charges Summary'!D$11)","v":17.821366534563232},{"$f":"SUM('Charges Summary'!E133,'Charges Summary'!E$11)","v":19.675121942498404},{"$f":"SUM('Charges Summary'!F133,'Charges Summary'!F$11)","v":21.231486659117778},{"$f":"SUM('Charges Summary'!G133,'Charges Summary'!G$11)","v":22.589196087733821},{"$f":"SUM('Charges Summary'!H133,'Charges Summary'!H$11)","v":23.56645101307582},null,null,{"$f":"D167/'Charges Summary'!D$4","v":17.472032935647398},{"$f":"E167/'Charges Summary'!E$4","v":18.911340191507943},{"$f":"F167/'Charges Summary'!F$4","v":20.007264644173276},{"$f":"G167/'Charges Summary'!G$4","v":20.86942695840704},{"$f":"H167/'Charges Summary'!H$4","v":21.345501902497983}]
[{"$f":"'DNSP Inputs General'!A$73","v":"LED 70W-125W (L1)"},null,null,{"$f":"SUM('Charges Summary'!D149,'Charges Summary'!D$11)","v":23.123583463781358},{"$f":"SUM('Charges Summary'!E149,'Charges Summary'!E$11)","v":26.243214647631461},{"$f":"SUM('Charges Summary'!F149,'Charges Summary'!F$11)","v":28.830636960092715},{"$f":"SUM('Charges Summary'!G149,'Charges Summary'!G$11)","v":31.032274781769601},{"$f":"SUM('Charges Summary'!H149,'Charges Summary'!H$11)","v":32.534230943619832},null,null,{"$f":"D168/'Charges Summary'!D$4","v":22.6703160549344},{"$f":"E168/'Charges Summary'!E$4","v":25.224461701969098},{"$f":"F168/'Charges Summary'!F$4","v":27.168242751053153},{"$f":"G168/'Charges Summary'!G$4","v":28.669714025946469},{"$f":"H168/'Charges Summary'!H$4","v":29.468140456024784}]
[{"$f":"'DNSP Inputs General'!A$74","v":"LED 155W-250W (L2)"},null,null,{"$f":"SUM('Charges Summary'!D165,'Charges Summary'!D$11)","v":23.796453632463866},{"$f":"SUM('Charges Summary'!E165,'Charges Summary'!E$11)","v":27.076728950313324},{"$f":"SUM('Charges Summary'!F165,'Charges Summary'!F$11)","v":29.794996135343343},{"$f":"SUM('Charges Summary'!G165,'Charges Summary'!G$11)","v":32.103731468829977},{"$f":"SUM('Charges Summary'!H165,'Charges Summary'!H$11)","v":33.672274082013743},null,null,{"$f":"D169/'Charges Summary'!D$4","v":23.329996653828694},{"$f":"E169/'Charges Summary'!E$4","v":26.025619254058078},{"$f":"F169/'Charges Summary'!F$4","v":28.076996317916084},{"$f":"G169/'Charges Summary'!G$4","v":29.659598171573297},{"$f":"H169/'Charges Summary'!H$4","v":30.498932150634786}]
[{"$f":"'DNSP Inputs General'!A$75","v":"LED 275W-400W (L4)"},null,null,{"$f":"SUM('Charges Summary'!D181,'Charges Summary'!D$11)","v":29.82214056704942},{"$f":"SUM('Charges Summary'!E181,'Charges Summary'!E$11)","v":34.541016233689916},{"$f":"SUM('Charges Summary'!F181,'Charges Summary'!F$11)","v":38.431025421547758},{"$f":"SUM('Charges Summary'!G181,'Charges Summary'!G$11)","v":41.698840392793073},{"$f":"SUM('Charges Summary'!H181,'Charges Summary'!H$11)","v":43.863677994958891},null,null,{"$f":"D170/'Charges Summary'!D$4","v":29.237568353046832},{"$f":"E170/'Charges Summary'!E$4","v":33.200145364525305},{"$f":"F170/'Charges Summary'!F$4","v":36.215066259886981},{"$f":"G170/'Charges Summary'!G$4","v":38.524208672490694},{"$f":"H170/'Charges Summary'!H$4","v":39.729877934206264}]
[]
[{"$f":"'DNSP Inputs General'!A$41","v":"Existing Lights"}]
[{"$f":"'DNSP Inputs General'!A$42","v":"Mercury Vapour 80W"},null,null,{"$f":"D160*'DNSP Inputs General'!Q42","v":528078.39604735712},{"$f":"E160*'DNSP Inputs General'!R42","v":358203.37507313467},{"$f":"F160*'DNSP Inputs General'!S42","v":190509.37867603038},{"$f":"G160*'DNSP Inputs General'!T42","v":43.719495635547965},{"$f":"H160*'DNSP Inputs General'!U42","v":44.26370219779399},null,null,{"$f":"D173/'Charges Summary'!D$4","v":517727.02786001039},{"$f":"E173/'Charges Summary'!E$4","v":344298.03807834344},{"$f":"F173/'Charges Summary'!F$4","v":179524.47784580814},{"$f":"G173/'Charges Summary'!G$4","v":40.39102663418408},{"$f":"H173/'Charges Summary'!H$4","v":40.092203062326917}]
[{"$f":"'DNSP Inputs General'!A$43","v":"HP Sodium 150W"},null,null,{"$f":"D161*'DNSP Inputs General'!Q43","v":584583.18512775167},{"$f":"E161*'DNSP Inputs General'!R43","v":574500.15287541307},{"$f":"F161*'DNSP Inputs General'!S43","v":570790.19340989692},{"$f":"G161*'DNSP Inputs General'!T43","v":626307.8075496729},{"$f":"H161*'DNSP Inputs General'!U43","v":612075.85825491627},null,null,{"$f":"D174/'Charges Summary'!D$4","v":573124.21268979076},{"$f":"E174/'Charges Summary'!E$4","v":552198.24623463769},{"$f":"F174/'Charges Summary'!F$4","v":537878.04119436943},{"$f":"G174/'Charges Summary'!G$4","v":578625.50718374061},{"$f":"H174/'Charges Summary'!H$4","v":554392.61472184595}]
[{"$f":"'DNSP Inputs General'!A$44","v":"HP Sodium 250W"},null,null,{"$f":"D162*'DNSP Inputs General'!Q44","v":277352.28125969012},{"$f":"E162*'DNSP Inputs General'!R44","v":271100.96677483193},{"$f":"F162*'DNSP Inputs General'!S44","v":268993.65729049256},{"$f":"G162*'DNSP Inputs General'!T44","v":293763.66168978962},{"$f":"H162*'DNSP Inputs General'!U44","v":285458.33308119595},null,null,{"$f":"D175/'Charges Summary'!D$4","v":271915.63472688606},{"$f":"E175/'Charges Summary'!E$4","v":260576.9165705365},{"$f":"F175/'Charges Summary'!F$4","v":253483.29937619937},{"$f":"G175/'Charges Summary'!G$4","v":271398.7366729835},{"$f":"H175/'Charges Summary'!H$4","v":258556.1732858179}]
[{"$f":"'DNSP Inputs General'!A$45","v":"Mercury Vapour 50W"},null,null,{"$f":"IF('DNSP Inputs General'!$B45='DNSP Inputs General'!$A$42,D$160,IF('DNSP Inputs General'!$B45='DNSP Inputs General'!$A$43,D$161,D$162))*'DNSP Inputs General'!$D45*'DNSP Inputs General'!Q45","v":2995.3177074296736},{"$f":"IF('DNSP Inputs General'!$B45='DNSP Inputs General'!$A$42,E$160,IF('DNSP Inputs General'!$B45='DNSP Inputs General'!$A$43,E$161,E$162))*'DNSP Inputs General'!$D45*'DNSP Inputs General'!R45","v":2031.7682379140817},{"$f":"IF('DNSP Inputs General'!$B45='DNSP Inputs General'!$A$42,F$160,IF('DNSP Inputs General'!$B45='DNSP Inputs General'!$A$43,F$161,F$162))*'DNSP Inputs General'!$D45*'DNSP Inputs General'!S45","v":1080.5897754025243},{"$f":"IF('DNSP Inputs General'!$B45='DNSP Inputs General'!$A$42,G$160,IF('DNSP Inputs General'!$B45='DNSP Inputs General'!$A$43,G$161,G$162))*'DNSP Inputs General'!$D45*'DNSP Inputs General'!T45","v":0},{"$f":"IF('DNSP Inputs General'!$B45='DNSP Inputs General'!$A$42,H$160,IF('DNSP Inputs General'!$B45='DNSP Inputs General'!$A$43,H$161,H$162))*'DNSP Inputs General'!$D45*'DNSP Inputs General'!U45","v":0},null,null,{"$f":"D176/'Charges Summary'!D$4","v":2936.6036288766413},{"$f":"E176/'Charges Summary'!E$4","v":1952.8956643719143},{"$f":"F176/'Charges Summary'!F$4","v":1018.2822312624818},{"$f":"G176/'Charges Summary'!G$4","v":0},{"$f":"H176/'Charges Summary'!H$4","v":0}]
[{"$f":"'DNSP Inputs General'!A$46","v":"Mercury Vapour 125W"},null,null,{"$f":"IF('DNSP Inputs General'!$B46='DNSP Inputs General'!$A$42,D$160,IF('DNSP Inputs General'!$B46='DNSP Inputs General'!$A$43,D$161,D$162))*'DNSP Inputs General'!$D46*'DNSP Inputs General'!Q46","v":11083.82114363696},{"$f":"IF('DNSP Inputs General'!$B46='DNSP Inputs General'!$A$42,E$160,IF('DNSP Inputs General'!$B46='DNSP Inputs General'!$A$43,E$161,E$162))*'DNSP Inputs General'!$D46*'DNSP Inputs General'!R46","v":7518.3195754171402},{"$f":"IF('DNSP Inputs General'!$B46='DNSP Inputs General'!$A$42,F$160,IF('DNSP Inputs General'!$B46='DNSP Inputs General'!$A$43,F$161,F$162))*'DNSP Inputs General'!$D46*'DNSP Inputs General'!S46","v":3998.595464680142},{"$f":"IF('DNSP Inputs General'!$B46='DNSP Inputs General'!$A$42,G$160,IF('DNSP Inputs General'!$B46='DNSP Inputs General'!$A$43,G$161,G$162))*'DNSP Inputs General'!$D46*'DNSP Inputs General'!T46","v":0},{"$f":"IF('DNSP Inputs General'!$B46='DNSP Inputs General'!$A$42,H$160,IF('DNSP Inputs General'!$B46='DNSP Inputs General'!$A$43,H$161,H$162))*'DNSP Inputs General'!$D46*'DNSP Inputs General'!U46","v":0},null,null,{"$f":"D177/'Charges Summary'!D$4","v":10866.556596480224},{"$f":"E177/'Charges Summary'!E$4","v":7226.4608867340257},{"$f":"F177/'Charges Summary'!F$4","v":3768.0337204503066},{"$f":"G177/'Charges Summary'!G$4","v":0},{"$f":"H177/'Charges Summary'!H$4","v":0}]
[{"$f":"'DNSP Inputs General'!A$47","v":"Mercury Vapour 250W"},null,null,{"$f":"IF('DNSP Inputs General'!$B47='DNSP Inputs General'!$A$42,D$160,IF('DNSP Inputs General'!$B47='DNSP Inputs General'!$A$43,D$161,D$162))*'DNSP Inputs General'!$D47*'DNSP Inputs General'!Q47","v":19858.94695585296},{"$f":"IF('DNSP Inputs General'!$B47='DNSP Inputs General'!$A$42,E$160,IF('DNSP Inputs General'!$B47='DNSP Inputs General'!$A$43,E$161,E$162))*'DNSP Inputs General'!$D47*'DNSP Inputs General'!R47","v":13447.030609728943},{"$f":"IF('DNSP Inputs General'!$B47='DNSP Inputs General'!$A$42,F$160,IF('DNSP Inputs General'!$B47='DNSP Inputs General'!$A$43,F$161,F$162))*'DNSP Inputs General'!$D47*'DNSP Inputs General'!S47","v":6936.028272673655},{"$f":"IF('DNSP Inputs General'!$B47='DNSP Inputs General'!$A$42,G$160,IF('DNSP Inputs General'!$B47='DNSP Inputs General'!$A$43,G$161,G$162))*'DNSP Inputs General'!$D47*'DNSP Inputs General'!T47","v":0},{"$f":"IF('DNSP Inputs General'!$B47='DNSP Inputs General'!$A$42,H$160,IF('DNSP Inputs General'!$B47='DNSP Inputs General'!$A$43,H$161,H$162))*'DNSP Inputs General'!$D47*'DNSP Inputs General'!U47","v":0},null,null,{"$f":"D178/'Charges Summary'!D$4","v":19469.672800175158},{"$f":"E178/'Charges Summary'!E$4","v":12925.021312163344},{"$f":"F178/'Charges Summary'!F$4","v":6536.0921474264842},{"$f":"G178/'Charges Summary'!G$4","v":0},{"$f":"H178/'Charges Summary'!H$4","v":0}]
[{"$f":"'DNSP Inputs General'!A$48","v":"Mercury Vapour 400W"},null,null,{"$f":"IF('DNSP Inputs General'!$B48='DNSP Inputs General'!$A$42,D$160,IF('DNSP Inputs General'!$B48='DNSP Inputs General'!$A$43,D$161,D$162))*'DNSP Inputs General'!$D48*'DNSP Inputs General'!Q48","v":3891.7546102005726},{"$f":"IF('DNSP Inputs General'!$B48='DNSP Inputs General'!$A$42,E$160,IF('DNSP Inputs General'!$B48='DNSP Inputs General'!$A$43,E$161,E$162))*'DNSP Inputs General'!$D48*'DNSP Inputs General'!R48","v":2635.2124050312259},{"$f":"IF('DNSP Inputs General'!$B48='DNSP Inputs General'!$A$42,F$160,IF('DNSP Inputs General'!$B48='DNSP Inputs General'!$A$43,F$161,F$162))*'DNSP Inputs General'!$D48*'DNSP Inputs General'!S48","v":1359.2523343088724},{"$f":"IF('DNSP Inputs General'!$B48='DNSP Inputs General'!$A$42,G$160,IF('DNSP Inputs General'!$B48='DNSP Inputs General'!$A$43,G$161,G$162))*'DNSP Inputs General'!$D48*'DNSP Inputs General'!T48","v":0},{"$f":"IF('DNSP Inputs General'!$B48='DNSP Inputs General'!$A$42,H$160,IF('DNSP Inputs General'!$B48='DNSP Inputs General'!$A$43,H$161,H$162))*'DNSP Inputs General'!$D48*'DNSP Inputs General'!U48","v":0},null,null,{"$f":"D179/'Charges Summary'!D$4","v":3815.4686171235571},{"$f":"E179/'Charges Summary'!E$4","v":2532.9143277522726},{"$f":"F179/'Charges Summary'!F$4","v":1280.8769167866606},{"$f":"G179/'Charges Summary'!G$4","v":0},{"$f":"H179/'Charges Summary'!H$4","v":0}]
[{"$f":"'DNSP Inputs General'!A$49","v":"HP Sodium 100W"},null,null,{"$f":"IF('DNSP Inputs General'!$B49='DNSP Inputs General'!$A$42,D$160,IF('DNSP Inputs General'!$B49='DNSP Inputs General'!$A$43,D$161,D$162))*'DNSP Inputs General'!$D49*'DNSP Inputs General'!Q49","v":106781.26246891712},{"$f":"IF('DNSP Inputs General'!$B49='DNSP Inputs General'!$A$42,E$160,IF('DNSP Inputs General'!$B49='DNSP Inputs General'!$A$43,E$161,E$162))*'DNSP Inputs General'!$D49*'DNSP Inputs General'!R49","v":107107.13131253967},{"$f":"IF('DNSP Inputs General'!$B49='DNSP Inputs General'!$A$42,F$160,IF('DNSP Inputs General'!$B49='DNSP Inputs General'!$A$43,F$161,F$162))*'DNSP Inputs General'!$D49*'DNSP Inputs General'!S49","v":108645.8936405709},{"$f":"IF('DNSP Inputs General'!$B49='DNSP Inputs General'!$A$42,G$160,IF('DNSP Inputs General'!$B49='DNSP Inputs General'!$A$43,G$161,G$162))*'DNSP Inputs General'!$D49*'DNSP Inputs General'!T49","v":121751.01115770396},{"$f":"IF('DNSP Inputs General'!$B49='DNSP Inputs General'!$A$42,H$160,IF('DNSP Inputs General'!$B49='DNSP Inputs General'!$A$43,H$161,H$162))*'DNSP Inputs General'!$D49*'DNSP Inputs General'!U49","v":121559.40508442483},null,null,{"$f":"D180/'Charges Summary'!D$4","v":104688.14112254349},{"$f":"E180/'Charges Summary'!E$4","v":102949.26776604982},{"$f":"F180/'Charges Summary'!F$4","v":102381.29724355003},{"$f":"G180/'Charges Summary'!G$4","v":112481.81761756566},{"$f":"H180/'Charges Summary'!H$4","v":110103.40551729324}]
[{"$f":"'DNSP Inputs General'!A50","v":"HP Sodium 400W"},null,null,{"$f":"IF('DNSP Inputs General'!$B50='DNSP Inputs General'!$A$42,D$160,IF('DNSP Inputs General'!$B50='DNSP Inputs General'!$A$43,D$161,D$162))*'DNSP Inputs General'!$D50*'DNSP Inputs General'!Q50","v":12570.289080082797},{"$f":"IF('DNSP Inputs General'!$B50='DNSP Inputs General'!$A$42,E$160,IF('DNSP Inputs General'!$B50='DNSP Inputs General'!$A$43,E$161,E$162))*'DNSP Inputs General'!$D50*'DNSP Inputs General'!R50","v":12571.206639889289},{"$f":"IF('DNSP Inputs General'!$B50='DNSP Inputs General'!$A$42,F$160,IF('DNSP Inputs General'!$B50='DNSP Inputs General'!$A$43,F$161,F$162))*'DNSP Inputs General'!$D50*'DNSP Inputs General'!S50","v":12762.007361050686},{"$f":"IF('DNSP Inputs General'!$B50='DNSP Inputs General'!$A$42,G$160,IF('DNSP Inputs General'!$B50='DNSP Inputs General'!$A$43,G$161,G$162))*'DNSP Inputs General'!$D50*'DNSP Inputs General'!T50","v":14259.708057469517},{"$f":"IF('DNSP Inputs General'!$B50='DNSP Inputs General'!$A$42,H$160,IF('DNSP Inputs General'!$B50='DNSP Inputs General'!$A$43,H$161,H$162))*'DNSP Inputs General'!$D50*'DNSP Inputs General'!U50","v":14177.368589443757},null,null,{"$f":"D181/'Charges Summary'!D$4","v":12323.886857489975},{"$f":"E181/'Charges Summary'!E$4","v":12083.196540254894},{"$f":"F181/'Charges Summary'!F$4","v":12026.141304324387},{"$f":"G181/'Charges Summary'!G$4","v":13174.082627719721},{"$f":"H181/'Charges Summary'!H$4","v":12841.265238897311}]
[{"$f":"'DNSP Inputs General'!A51","v":"Metal Halide 70W"},null,null,{"$f":"IF('DNSP Inputs General'!$B51='DNSP Inputs General'!$A$42,D$160,IF('DNSP Inputs General'!$B51='DNSP Inputs General'!$A$43,D$161,D$162))*'DNSP Inputs General'!$D51*'DNSP Inputs General'!Q51","v":3020.5752465007049},{"$f":"IF('DNSP Inputs General'!$B51='DNSP Inputs General'!$A$42,E$160,IF('DNSP Inputs General'!$B51='DNSP Inputs General'!$A$43,E$161,E$162))*'DNSP Inputs General'!$D51*'DNSP Inputs General'!R51","v":1844.010719718402},{"$f":"IF('DNSP Inputs General'!$B51='DNSP Inputs General'!$A$42,F$160,IF('DNSP Inputs General'!$B51='DNSP Inputs General'!$A$43,F$161,F$162))*'DNSP Inputs General'!$D51*'DNSP Inputs General'!S51","v":653.82100585320075},{"$f":"IF('DNSP Inputs General'!$B51='DNSP Inputs General'!$A$42,G$160,IF('DNSP Inputs General'!$B51='DNSP Inputs General'!$A$43,G$161,G$162))*'DNSP Inputs General'!$D51*'DNSP Inputs General'!T51","v":0},{"$f":"IF('DNSP Inputs General'!$B51='DNSP Inputs General'!$A$42,H$160,IF('DNSP Inputs General'!$B51='DNSP Inputs General'!$A$43,H$161,H$162))*'DNSP Inputs General'!$D51*'DNSP Inputs General'!U51","v":0},null,null,{"$f":"D182/'Charges Summary'!D$4","v":2961.3660708401453},{"$f":"E182/'Charges Summary'!E$4","v":1772.4268311677802},{"$f":"F182/'Charges Summary'!F$4","v":616.12124030923178},{"$f":"G182/'Charges Summary'!G$4","v":0},{"$f":"H182/'Charges Summary'!H$4","v":0}]
[{"$f":"'DNSP Inputs General'!A52","v":"Metal Halide 100W"},null,null,{"$f":"IF('DNSP Inputs General'!$B52='DNSP Inputs General'!$A$42,D$160,IF('DNSP Inputs General'!$B52='DNSP Inputs General'!$A$43,D$161,D$162))*'DNSP Inputs General'!$D52*'DNSP Inputs General'!Q52","v":2053.5802843476722},{"$f":"IF('DNSP Inputs General'!$B52='DNSP Inputs General'!$A$42,E$160,IF('DNSP Inputs General'!$B52='DNSP Inputs General'!$A$43,E$161,E$162))*'DNSP Inputs General'!$D52*'DNSP Inputs General'!R52","v":1251.6870265696441},{"$f":"IF('DNSP Inputs General'!$B52='DNSP Inputs General'!$A$42,F$160,IF('DNSP Inputs General'!$B52='DNSP Inputs General'!$A$43,F$161,F$162))*'DNSP Inputs General'!$D52*'DNSP Inputs General'!S52","v":428.6962607504226},{"$f":"IF('DNSP Inputs General'!$B52='DNSP Inputs General'!$A$42,G$160,IF('DNSP Inputs General'!$B52='DNSP Inputs General'!$A$43,G$161,G$162))*'DNSP Inputs General'!$D52*'DNSP Inputs General'!T52","v":0},{"$f":"IF('DNSP Inputs General'!$B52='DNSP Inputs General'!$A$42,H$160,IF('DNSP Inputs General'!$B52='DNSP Inputs General'!$A$43,H$161,H$162))*'DNSP Inputs General'!$D52*'DNSP Inputs General'!U52","v":0},null,null,{"$f":"D183/'Charges Summary'!D$4","v":2013.3260990133176},{"$f":"E183/'Charges Summary'!E$4","v":1203.0969486204749},{"$f":"F183/'Charges Summary'!F$4","v":403.97734169584595},{"$f":"G183/'Charges Summary'!G$4","v":0},{"$f":"H183/'Charges Summary'!H$4","v":0}]
[{"$f":"'DNSP Inputs General'!A53","v":"Metal Halide 150W"},null,null,{"$f":"IF('DNSP Inputs General'!$B53='DNSP Inputs General'!$A$42,D$160,IF('DNSP Inputs General'!$B53='DNSP Inputs General'!$A$43,D$161,D$162))*'DNSP Inputs General'!$D53*'DNSP Inputs General'!Q53","v":2264.3970514657103},{"$f":"IF('DNSP Inputs General'!$B53='DNSP Inputs General'!$A$42,E$160,IF('DNSP Inputs General'!$B53='DNSP Inputs General'!$A$43,E$161,E$162))*'DNSP Inputs General'!$D53*'DNSP Inputs General'!R53","v":1380.1829097821301},{"$f":"IF('DNSP Inputs General'!$B53='DNSP Inputs General'!$A$42,F$160,IF('DNSP Inputs General'!$B53='DNSP Inputs General'!$A$43,F$161,F$162))*'DNSP Inputs General'!$D53*'DNSP Inputs General'!S53","v":472.70542876583517},{"$f":"IF('DNSP Inputs General'!$B53='DNSP Inputs General'!$A$42,G$160,IF('DNSP Inputs General'!$B53='DNSP Inputs General'!$A$43,G$161,G$162))*'DNSP Inputs General'!$D53*'DNSP Inputs General'!T53","v":0},{"$f":"IF('DNSP Inputs General'!$B53='DNSP Inputs General'!$A$42,H$160,IF('DNSP Inputs General'!$B53='DNSP Inputs General'!$A$43,H$161,H$162))*'DNSP Inputs General'!$D53*'DNSP Inputs General'!U53","v":0},null,null,{"$f":"D184/'Charges Summary'!D$4","v":2220.0104456558374},{"$f":"E184/'Charges Summary'!E$4","v":1326.6046639851618},{"$f":"F184/'Charges Summary'!F$4","v":445.44891103958372},{"$f":"G184/'Charges Summary'!G$4","v":0},{"$f":"H184/'Charges Summary'!H$4","v":0}]
[{"$f":"'DNSP Inputs General'!A54","v":"HP Sodium 50W"},null,null,{"$f":"IF('DNSP Inputs General'!$B54='DNSP Inputs General'!$A$42,D$160,IF('DNSP Inputs General'!$B54='DNSP Inputs General'!$A$43,D$161,D$162))*'DNSP Inputs General'!$D54*'DNSP Inputs General'!Q54","v":0},{"$f":"IF('DNSP Inputs General'!$B54='DNSP Inputs General'!$A$42,E$160,IF('DNSP Inputs General'!$B54='DNSP Inputs General'!$A$43,E$161,E$162))*'DNSP Inputs General'!$D54*'DNSP Inputs General'!R54","v":0},{"$f":"IF('DNSP Inputs General'!$B54='DNSP Inputs General'!$A$42,F$160,IF('DNSP Inputs General'!$B54='DNSP Inputs General'!$A$43,F$161,F$162))*'DNSP Inputs General'!$D54*'DNSP Inputs General'!S54","v":0},{"$f":"IF('DNSP Inputs General'!$B54='DNSP Inputs General'!$A$42,G$160,IF('DNSP Inputs General'!$B54='DNSP Inputs General'!$A$43,G$161,G$162))*'DNSP Inputs General'!$D54*'DNSP Inputs General'!T54","v":0},{"$f":"IF('DNSP Inputs General'!$B54='DNSP Inputs General'!$A$42,H$160,IF('DNSP Inputs General'!$B54='DNSP Inputs General'!$A$43,H$161,H$162))*'DNSP Inputs General'!$D54*'DNSP Inputs General'!U54","v":0},null,null,{"$f":"D185/'Charges Summary'!D$4","v":0},{"$f":"E185/'Charges Summary'!E$4","v":0},{"$f":"F185/'Charges Summary'!F$4","v":0},{"$f":"G185/'Charges Summary'!G$4","v":0},{"$f":"H185/'Charges Summary'!H$4","v":0}]
[]
[]
[]
[]
[]
[]
[]
[]
[]
[]
[]
[{"$f":"'DNSP Inputs General'!A$68","v":"Energy Efficient Lights"}]
[{"$f":"'DNSP Inputs General'!A$69","v":"T5 2X14W"},null,null,{"$f":"SUM('Charges Summary'!D85,'Charges Summary'!D11)*'DNSP Inputs General'!$D69*'DNSP Inputs General'!Q69","v":435006.39052750228},{"$f":"SUM('Charges Summary'!E85,'Charges Summary'!E11)*'DNSP Inputs General'!$D69*'DNSP Inputs General'!R69","v":484771.06046926999},{"$f":"SUM('Charges Summary'!F85,'Charges Summary'!F11)*'DNSP Inputs General'!$D69*'DNSP Inputs General'!S69","v":526351.53800903365},{"$f":"SUM('Charges Summary'!G85,'Charges Summary'!G11)*'DNSP Inputs General'!$D69*'DNSP Inputs General'!T69","v":562273.65164634259},{"$f":"SUM('Charges Summary'!H85,'Charges Summary'!H11)*'DNSP Inputs General'!$D69*'DNSP Inputs General'!U69","v":587606.66853795329},null,null,{"$f":"D198/'Charges Summary'!D$4","v":426479.41546867957},{"$f":"E198/'Charges Summary'!E$4","v":465952.40763058246},{"$f":"F198/'Charges Summary'!F$4","v":496001.74900102586},{"$f":"G198/'Charges Summary'!G$4","v":519466.42359893536},{"$f":"H198/'Charges Summary'!H$4","v":532229.45000238041}]
[{"$f":"'DNSP Inputs General'!A70","v":"T5 2X24W"},null,null,{"$f":"SUM('Charges Summary'!D101,'Charges Summary'!D11)*'DNSP Inputs General'!$D70*'DNSP Inputs General'!Q70","v":34727.659228077078},{"$f":"SUM('Charges Summary'!E101,'Charges Summary'!E11)*'DNSP Inputs General'!$D70*'DNSP Inputs General'!R70","v":38742.520087263714},{"$f":"SUM('Charges Summary'!F101,'Charges Summary'!F11)*'DNSP Inputs General'!$D70*'DNSP Inputs General'!S70","v":42095.40780659255},{"$f":"SUM('Charges Summary'!G101,'Charges Summary'!G11)*'DNSP Inputs General'!$D70*'DNSP Inputs General'!T70","v":44989.042933744618},{"$f":"SUM('Charges Summary'!H101,'Charges Summary'!H11)*'DNSP Inputs General'!$D70*'DNSP Inputs General'!U70","v":47025.203715146461},null,null,{"$f":"D199/'Charges Summary'!D$4","v":34046.929265167746},{"$f":"E199/'Charges Summary'!E$4","v":37238.548222869984},{"$f":"F199/'Charges Summary'!F$4","v":39668.15785503223},{"$f":"G199/'Charges Summary'!G$4","v":41563.920282415544},{"$f":"H199/'Charges Summary'!H$4","v":42593.455196544848}]
[{"$f":"'DNSP Inputs General'!A71","v":"LED 18W"},null,null,{"$f":"SUM('Charges Summary'!D117,'Charges Summary'!D11)*'DNSP Inputs General'!$D71*'DNSP Inputs General'!Q71","v":690727.11684567749},{"$f":"SUM('Charges Summary'!E117,'Charges Summary'!E11)*'DNSP Inputs General'!$D71*'DNSP Inputs General'!R71","v":906766.99137196783},{"$f":"SUM('Charges Summary'!F117,'Charges Summary'!F11)*'DNSP Inputs General'!$D71*'DNSP Inputs General'!S71","v":1135453.0030928119},{"$f":"SUM('Charges Summary'!G117,'Charges Summary'!G11)*'DNSP Inputs General'!$D71*'DNSP Inputs General'!T71","v":1376545.7993535486},{"$f":"SUM('Charges Summary'!H117,'Charges Summary'!H11)*'DNSP Inputs General'!$D71*'DNSP Inputs General'!U71","v":1495976.8916716741},null,null,{"$f":"D200/'Charges Summary'!D$4","v":677187.51598911663},{"$f":"E200/'Charges Summary'!E$4","v":871566.59554039373},{"$f":"F200/'Charges Summary'!F$4","v":1069982.0077904591},{"$f":"G200/'Charges Summary'!G$4","v":1271746.0994599264},{"$f":"H200/'Charges Summary'!H$4","v":1354993.0606671786}]
[{"$f":"'DNSP Inputs General'!A72","v":"LED 14W"},null,null,{"$f":"SUM('Charges Summary'!D133,'Charges Summary'!D$11)*'DNSP Inputs General'!$D72*'DNSP Inputs General'!Q72","v":48690.054588878585},{"$f":"SUM('Charges Summary'!E133,'Charges Summary'!E$11)*'DNSP Inputs General'!$D72*'DNSP Inputs General'!R72","v":53754.730848790576},{"$f":"SUM('Charges Summary'!F133,'Charges Summary'!F$11)*'DNSP Inputs General'!$D72*'DNSP Inputs General'!S72","v":58006.901010120971},{"$f":"SUM('Charges Summary'!G133,'Charges Summary'!G$11)*'DNSP Inputs General'!$D72*'DNSP Inputs General'!T72","v":61716.321725246307},{"$f":"SUM('Charges Summary'!H133,'Charges Summary'!H$11)*'DNSP Inputs General'!$D72*'DNSP Inputs General'!U72","v":64386.296307154465},null,null,{"$f":"D201/'Charges Summary'!D$4","v":47735.634400732328},{"$f":"E201/'Charges Summary'!E$4","v":51667.989909054544},{"$f":"F201/'Charges Summary'!F$4","v":54662.1834980856},{"$f":"G201/'Charges Summary'!G$4","v":57017.711625690245},{"$f":"H201/'Charges Summary'!H$4","v":58318.403969974243}]
[{"$f":"'DNSP Inputs General'!A73","v":"LED 70W-125W (L1)"},null,null,{"$f":"SUM('Charges Summary'!D149,'Charges Summary'!D$11)*'DNSP Inputs General'!$D73*'DNSP Inputs General'!Q73","v":57007.266331275394},{"$f":"SUM('Charges Summary'!E149,'Charges Summary'!E$11)*'DNSP Inputs General'!$D73*'DNSP Inputs General'!R73","v":65001.925539480988},{"$f":"SUM('Charges Summary'!F149,'Charges Summary'!F$11)*'DNSP Inputs General'!$D73*'DNSP Inputs General'!S73","v":82238.957371926081},{"$f":"SUM('Charges Summary'!G149,'Charges Summary'!G$11)*'DNSP Inputs General'!$D73*'DNSP Inputs General'!T73","v":88232.372677502106},{"$f":"SUM('Charges Summary'!H149,'Charges Summary'!H$11)*'DNSP Inputs General'!$D73*'DNSP Inputs General'!U73","v":87295.696647379635},null,null,{"$f":"D202/'Charges Summary'!D$4","v":55889.812544932189},{"$f":"E202/'Charges Summary'!E$4","v":62478.572207725629},{"$f":"F202/'Charges Summary'!F$4","v":77497.002947478919},{"$f":"G202/'Charges Summary'!G$4","v":81515.032664662067},{"$f":"H202/'Charges Summary'!H$4","v":79068.776958933682}]
[{"$f":"'DNSP Inputs General'!A74","v":"LED 155W-250W (L2)"},null,null,{"$f":"SUM('Charges Summary'!D165,'Charges Summary'!D$11)*'DNSP Inputs General'!$D74*'DNSP Inputs General'!Q74","v":58663.153527070885},{"$f":"SUM('Charges Summary'!E165,'Charges Summary'!E$11)*'DNSP Inputs General'!$D74*'DNSP Inputs General'!R74","v":79503.784489348807},{"$f":"SUM('Charges Summary'!F165,'Charges Summary'!F$11)*'DNSP Inputs General'!$D74*'DNSP Inputs General'!S74","v":100877.38274892216},{"$f":"SUM('Charges Summary'!G165,'Charges Summary'!G$11)*'DNSP Inputs General'!$D74*'DNSP Inputs General'!T74","v":114855.26132434688},{"$f":"SUM('Charges Summary'!H165,'Charges Summary'!H$11)*'DNSP Inputs General'!$D74*'DNSP Inputs General'!U74","v":118714.74915909175},null,null,{"$f":"D203/'Charges Summary'!D$4","v":57513.241116840218},{"$f":"E203/'Charges Summary'!E$4","v":76417.473771422345},{"$f":"F203/'Charges Summary'!F$4","v":95060.723993272652},{"$f":"G203/'Charges Summary'!G$4","v":106111.05759088024},{"$f":"H203/'Charges Summary'!H$4","v":107526.83561152089}]
[{"$f":"'DNSP Inputs General'!A75","v":"LED 275W-400W (L4)"},null,null,{"$f":"SUM('Charges Summary'!D181,'Charges Summary'!D$11)*'DNSP Inputs General'!$D75*'DNSP Inputs General'!Q75","v":3560.4724102524765},{"$f":"SUM('Charges Summary'!E181,'Charges Summary'!E$11)*'DNSP Inputs General'!$D75*'DNSP Inputs General'!R75","v":4735.7168988044323},{"$f":"SUM('Charges Summary'!F181,'Charges Summary'!F$11)*'DNSP Inputs General'!$D75*'DNSP Inputs General'!S75","v":6025.5892502321149},{"$f":"SUM('Charges Summary'!G181,'Charges Summary'!G$11)*'DNSP Inputs General'!$D75*'DNSP Inputs General'!T75","v":6935.9022645906925},{"$f":"SUM('Charges Summary'!H181,'Charges Summary'!H$11)*'DNSP Inputs General'!$D75*'DNSP Inputs General'!U75","v":6625.7694661076093},null,null,{"$f":"D204/'Charges Summary'!D$4","v":3490.6801954690714},{"$f":"E204/'Charges Summary'!E$4","v":4551.8779291789833},{"$f":"F204/'Charges Summary'!F$4","v":5678.1496605517941},{"$f":"G204/'Charges Summary'!G$4","v":6407.8555579994872},{"$f":"H204/'Charges Summary'!H$4","v":6001.3438029273275}]
[{"$f":"'DNSP Inputs General'!A76","v":"Compact Fluorescent 32W"},null,null,{"$f":"IF('DNSP Inputs General'!$B76='DNSP Inputs General'!$A$69,D$164,D$165)*'DNSP Inputs General'!$D76*'DNSP Inputs General'!Q76","v":52841.960673189038},{"$f":"IF('DNSP Inputs General'!$B76='DNSP Inputs General'!$A$69,E$164,E$165)*'DNSP Inputs General'!$D76*'DNSP Inputs General'!R76","v":58887.073547940861},{"$f":"IF('DNSP Inputs General'!$B76='DNSP Inputs General'!$A$69,F$164,F$165)*'DNSP Inputs General'!$D76*'DNSP Inputs General'!S76","v":63938.019940393213},{"$f":"IF('DNSP Inputs General'!$B76='DNSP Inputs General'!$A$69,G$164,G$165)*'DNSP Inputs General'!$D76*'DNSP Inputs General'!T76","v":68301.622309127852},{"$f":"IF('DNSP Inputs General'!$B76='DNSP Inputs General'!$A$69,H$164,H$165)*'DNSP Inputs General'!$D76*'DNSP Inputs General'!U76","v":71378.924876330231},null,null,{"$f":"D205/'Charges Summary'!D$4","v":51806.155014855642},{"$f":"E205/'Charges Summary'!E$4","v":56601.096755695427},{"$f":"F205/'Charges Summary'!F$4","v":60251.310061818825},{"$f":"G205/'Charges Summary'!G$4","v":63101.657641329904},{"$f":"H205/'Charges Summary'!H$4","v":64652.033346072734}]
[{"$f":"'DNSP Inputs General'!A77","v":"Compact Fluorescent 42W"},null,null,{"$f":"IF('DNSP Inputs General'!$B77='DNSP Inputs General'!$A$69,D$164,D$165)*'DNSP Inputs General'!$D77*'DNSP Inputs General'!Q77","v":33835.966534090949},{"$f":"IF('DNSP Inputs General'!$B77='DNSP Inputs General'!$A$69,E$164,E$165)*'DNSP Inputs General'!$D77*'DNSP Inputs General'!R77","v":37706.796350379082},{"$f":"IF('DNSP Inputs General'!$B77='DNSP Inputs General'!$A$69,F$164,F$165)*'DNSP Inputs General'!$D77*'DNSP Inputs General'!S77","v":40941.037679111956},{"$f":"IF('DNSP Inputs General'!$B77='DNSP Inputs General'!$A$69,G$164,G$165)*'DNSP Inputs General'!$D77*'DNSP Inputs General'!T77","v":43735.156251466484},{"$f":"IF('DNSP Inputs General'!$B77='DNSP Inputs General'!$A$69,H$164,H$165)*'DNSP Inputs General'!$D77*'DNSP Inputs General'!U77","v":45705.626411025914},null,null,{"$f":"D206/'Charges Summary'!D$4","v":33172.715489945396},{"$f":"E206/'Charges Summary'!E$4","v":36243.030940187367},{"$f":"F206/'Charges Summary'!F$4","v":38580.349497160416},{"$f":"G206/'Charges Summary'!G$4","v":40405.494970231361},{"$f":"H206/'Charges Summary'!H$4","v":41398.237476236864}]
[{"$f":"'DNSP Inputs General'!A78","v":"Smart lighting L1"},null,null,{"$f":"SUM('Charges Summary'!D197,'Charges Summary'!D$11)*'DNSP Inputs General'!$D78*'DNSP Inputs General'!Q78","v":23.123583463781358},{"$f":"SUM('Charges Summary'!E197,'Charges Summary'!E$11)*'DNSP Inputs General'!$D78*'DNSP Inputs General'!R78","v":16079.369502330201},{"$f":"SUM('Charges Summary'!F197,'Charges Summary'!F$11)*'DNSP Inputs General'!$D78*'DNSP Inputs General'!S78","v":34910.121538425039},{"$f":"SUM('Charges Summary'!G197,'Charges Summary'!G$11)*'DNSP Inputs General'!$D78*'DNSP Inputs General'!T78","v":58260.431974674742},{"$f":"SUM('Charges Summary'!H197,'Charges Summary'!H$11)*'DNSP Inputs General'!$D78*'DNSP Inputs General'!U78","v":86413.232616712063},null,null,{"$f":"D207/'Charges Summary'!D$4","v":22.6703160549344},{"$f":"E207/'Charges Summary'!E$4","v":15455.173676291377},{"$f":"F207/'Charges Summary'!F$4","v":32897.180098293968},{"$f":"G207/'Charges Summary'!G$4","v":53824.926966787571},{"$f":"H207/'Charges Summary'!H$4","v":78269.478089746757}]
[{"$f":"'DNSP Inputs General'!A79","v":"Smart lighting L2"},null,null,{"$f":"SUM('Charges Summary'!D213,'Charges Summary'!D$11)*'DNSP Inputs General'!$D79*'DNSP Inputs General'!Q79","v":71.389360897391597},{"$f":"SUM('Charges Summary'!E213,'Charges Summary'!E$11)*'DNSP Inputs General'!$D79*'DNSP Inputs General'!R79","v":19859.468440578836},{"$f":"SUM('Charges Summary'!F213,'Charges Summary'!F$11)*'DNSP Inputs General'!$D79*'DNSP Inputs General'!S79","v":43179.878459973472},{"$f":"SUM('Charges Summary'!G213,'Charges Summary'!G$11)*'DNSP Inputs General'!$D79*'DNSP Inputs General'!T79","v":76480.862719875629},{"$f":"SUM('Charges Summary'!H213,'Charges Summary'!H$11)*'DNSP Inputs General'!$D79*'DNSP Inputs General'!U79","v":118574.23646572082},null,null,{"$f":"D208/'Charges Summary'!D$4","v":69.989989961486074},{"$f":"E208/'Charges Summary'!E$4","v":19088.530419273797},{"$f":"F208/'Charges Summary'!F$4","v":40690.0971901995},{"$f":"G208/'Charges Summary'!G$4","v":70658.193060491714},{"$f":"H208/'Charges Summary'!H$4","v":107399.5651132176}]
[{"$f":"'DNSP Inputs General'!A80","v":"Smart lighting L4"},null,null,{"$f":"SUM('Charges Summary'!D229,'Charges Summary'!D$11)*'DNSP Inputs General'!$D80*'DNSP Inputs General'!Q80","v":29.82214056704942},{"$f":"SUM('Charges Summary'!E229,'Charges Summary'!E$11)*'DNSP Inputs General'!$D80*'DNSP Inputs General'!R80","v":1183.9292247011081},{"$f":"SUM('Charges Summary'!F229,'Charges Summary'!F$11)*'DNSP Inputs General'!$D80*'DNSP Inputs General'!S80","v":2582.3953929566201},{"$f":"SUM('Charges Summary'!G229,'Charges Summary'!G$11)*'DNSP Inputs General'!$D80*'DNSP Inputs General'!T80","v":4623.9348430604623},{"$f":"SUM('Charges Summary'!H229,'Charges Summary'!H$11)*'DNSP Inputs General'!$D80*'DNSP Inputs General'!U80","v":6625.7694661076093},null,null,{"$f":"D209/'Charges Summary'!D$4","v":29.237568353046832},{"$f":"E209/'Charges Summary'!E$4","v":1137.9694822947458},{"$f":"F209/'Charges Summary'!F$4","v":2433.4927116650538},{"$f":"G209/'Charges Summary'!G$4","v":4271.9037053329921},{"$f":"H209/'Charges Summary'!H$4","v":6001.3438029273275}]
[]
["Total Capital Charge",null,null,{"$f":"SUM(D173:D209)","v":2969718.1827341761},{"$f":"SUM(E173:E209)","v":3120584.4109308268},3303231.0512209754,3563076.2679737993,3769644.2940525827,null,null,{"$f":"SUM(K173:K209)","v":2911505.9048749935},{"$f":"SUM(L173:L209)","v":2999444.3523095879},3112764.493778266,3291810.8122533271,3414385.5350045776]
[]
["Check",null,{"$f":"SUM(D213:O213)","v":8.3819031715393066E-9},{"$f":"ABS(D95-SUM(D153,D211))","v":9.3132257461547852E-10},{"$f":"ABS(E95-SUM(E153,E211))","v":0},{"$f":"ABS(F95-SUM(F153,F211))","v":9.3132257461547852E-10},{"$f":"ABS(G95-SUM(G153,G211))","v":1.862645149230957E-9},{"$f":"ABS(H95-SUM(H153,H211))","v":9.3132257461547852E-10},null,null,{"$f":"ABS(K95-SUM(K153,K211))","v":0},{"$f":"ABS(L95-SUM(L153,L211))","v":1.862645149230957E-9},{"$f":"ABS(M95-SUM(M153,M211))","v":9.3132257461547852E-10},{"$f":"ABS(N95-SUM(N153,N211))","v":0},{"$f":"ABS(O95-SUM(O153,O211))","v":9.3132257461547852E-10}]
[]
[]
[]
[]
[{"$f":"'DNSP Inputs General'!$B$86","v":"North & East"}]
["Public Lighting - Revenue",null,"Revenue - Nominal ",null,null,null,null,null,null,"Revenue - Real 2021 $ "]
[null,null,{"$f":"C$2","v":2020},{"$f":"D$2","v":"2022-06-30"},"2023-06-30","2024-06-30","2025-06-30","2026-06-30",null,{"$f":"J$2","v":2020},"2022-06-30","2023-06-30","2024-06-30","2025-06-30","2026-06-30"]
[{"$f":"'DNSP Inputs General'!A$88","v":"Existing Lights"}]
[{"$f":"'DNSP Inputs General'!A$89","v":"Mercury Vapour 80W"},null,{"$f":"IF('PL Tariffs'!C44=0,\"\",'DNSP Inputs General'!O89*'PL Tariffs'!C44)","v":232966.80000000002},{"$f":"'DNSP Inputs General'!Q89*'PL Tariffs'!D44","v":237700.2586157445},{"$f":"'DNSP Inputs General'!R89*'PL Tariffs'!E44","v":161516.54158816618},{"$f":"'DNSP Inputs General'!S89*'PL Tariffs'!F44","v":81533.580753288086},{"$f":"'DNSP Inputs General'!T89*'PL Tariffs'!G44","v":75.217043889441968},{"$f":"'DNSP Inputs General'!U89*'PL Tariffs'!H44","v":76.523838062054651},null,{"$f":"C222","v":232966.80000000002},{"$f":"D222/'Charges Summary'!K$4","v":233040.86918876544},{"$f":"E222/'Charges Summary'!L$4","v":155246.52266230289},{"$f":"F222/'Charges Summary'!M$4","v":76832.298826213737},{"$f":"G222/'Charges Summary'!N$4","v":69.490591758171931},{"$f":"H222/'Charges Summary'!O$4","v":69.312079703207019}]
[{"$f":"'DNSP Inputs General'!A$90","v":"HP Sodium 150W"},null,{"$f":"IF('PL Tariffs'!C45=0,\"\",'DNSP Inputs General'!O90*'PL Tariffs'!C45)","v":644806.40000000002},{"$f":"'DNSP Inputs General'!Q90*'PL Tariffs'!D45","v":695717.6141342473},{"$f":"'DNSP Inputs General'!R90*'PL Tariffs'!E45","v":675337.58755784412},{"$f":"'DNSP Inputs General'!S90*'PL Tariffs'!F45","v":646769.90697216243},{"$f":"'DNSP Inputs General'!T90*'PL Tariffs'!G45","v":649357.4056803562},{"$f":"'DNSP Inputs General'!U90*'PL Tariffs'!H45","v":628097.63905684312},null,644806.40000000002,{"$f":"D223/'Charges Summary'!K$4","v":682080.18978167034},{"$f":"E223/'Charges Summary'!L$4","v":649121.20492793783},{"$f":"F223/'Charges Summary'!M$4","v":609476.71260327462},{"$f":"G223/'Charges Summary'!N$4","v":599920.28468448296},{"$f":"H223/'Charges Summary'!O$4","v":568904.47110612644}]
[{"$f":"'DNSP Inputs General'!A$91","v":"HP Sodium 250W"},null,{"$f":"IF('PL Tariffs'!C46=0,\"\",'DNSP Inputs General'!O91*'PL Tariffs'!C46)","v":601645.44000000006},{"$f":"'DNSP Inputs General'!Q91*'PL Tariffs'!D46","v":663546.6109990509},{"$f":"'DNSP Inputs General'!R91*'PL Tariffs'!E46","v":654781.77641869301},{"$f":"'DNSP Inputs General'!S91*'PL Tariffs'!F46","v":639800.64114106062},{"$f":"'DNSP Inputs General'!T91*'PL Tariffs'!G46","v":653789.55790011887},{"$f":"'DNSP Inputs General'!U91*'PL Tariffs'!H46","v":643518.36368400301},null,601645.44000000006,{"$f":"D224/'Charges Summary'!K$4","v":650539.80115542049},{"$f":"E224/'Charges Summary'!L$4","v":629363.3636042102},{"$f":"F224/'Charges Summary'!M$4","v":602909.29939772934},{"$f":"G224/'Charges Summary'!N$4","v":604015.00663295924},{"$f":"H224/'Charges Summary'!O$4","v":582871.91604233265}]
[{"$f":"'DNSP Inputs General'!A$92","v":"Mercury Vapour 50W"},null,{"$f":"IF('PL Tariffs'!C47=0,\"\",'DNSP Inputs General'!O92*'PL Tariffs'!C47)","v":9241.25},{"$f":"'DNSP Inputs General'!Q92*'PL Tariffs'!D47","v":9431.5225297160796},{"$f":"'DNSP Inputs General'!R92*'PL Tariffs'!E47","v":6408.6884456158168},{"$f":"'DNSP Inputs General'!S92*'PL Tariffs'!F47","v":3235.1071398965942},{"$f":"'DNSP Inputs General'!T92*'PL Tariffs'!G47","v":0},{"$f":"'DNSP Inputs General'!U92*'PL Tariffs'!H47","v":0},null,9241.25,{"$f":"D225/'Charges Summary'!K$4","v":9246.6462632316016},{"$f":"E225/'Charges Summary'!L$4","v":6159.9052717757659},{"$f":"F225/'Charges Summary'!M$4","v":3048.5686536872577},{"$f":"G225/'Charges Summary'!N$4","v":0},{"$f":"H225/'Charges Summary'!O$4","v":0}]
[{"$f":"'DNSP Inputs General'!A$93","v":"Mercury Vapour 125W"},null,{"$f":"IF('PL Tariffs'!C48=0,\"\",'DNSP Inputs General'!O93*'PL Tariffs'!C48)","v":1256.8100000000002},{"$f":"'DNSP Inputs General'!Q93*'PL Tariffs'!D48","v":1273.3809380273028},{"$f":"'DNSP Inputs General'!R93*'PL Tariffs'!E48","v":865.25814667684108},{"$f":"'DNSP Inputs General'!S93*'PL Tariffs'!F48","v":436.78247615280429},{"$f":"'DNSP Inputs General'!T93*'PL Tariffs'!G48","v":0},{"$f":"'DNSP Inputs General'!U93*'PL Tariffs'!H48","v":0},null,1256.8100000000002,{"$f":"D226/'Charges Summary'!K$4","v":1248.4201840352241},{"$f":"E226/'Charges Summary'!L$4","v":831.66911051945306},{"$f":"F226/'Charges Summary'!M$4","v":411.59730039787888},{"$f":"G226/'Charges Summary'!N$4","v":0},{"$f":"H226/'Charges Summary'!O$4","v":0}]
[{"$f":"'DNSP Inputs General'!A$94","v":"Mercury Vapour 250W"},null,{"$f":"IF('PL Tariffs'!C49=0,\"\",'DNSP Inputs General'!O94*'PL Tariffs'!C49)","v":31670.600000000002},{"$f":"'DNSP Inputs General'!Q94*'PL Tariffs'!D49","v":27043.7673488566},{"$f":"'DNSP Inputs General'!R94*'PL Tariffs'!E49","v":18429.593595699316},{"$f":"'DNSP Inputs General'!S94*'PL Tariffs'!F49","v":9331.9670272998774},{"$f":"'DNSP Inputs General'!T94*'PL Tariffs'!G49","v":0},{"$f":"'DNSP Inputs General'!U94*'PL Tariffs'!H49","v":0},null,31670.600000000002,{"$f":"D227/'Charges Summary'!K$4","v":26513.656677607218},{"$f":"E227/'Charges Summary'!L$4","v":17714.162844738574},{"$f":"F227/'Charges Summary'!M$4","v":8793.8794378163329},{"$f":"G227/'Charges Summary'!N$4","v":0},{"$f":"H227/'Charges Summary'!O$4","v":0}]
[{"$f":"'DNSP Inputs General'!A$95","v":"Mercury Vapour 400W"},null,{"$f":"IF('PL Tariffs'!C50=0,\"\",'DNSP Inputs General'!O95*'PL Tariffs'!C50)","v":11404.119999999999},{"$f":"'DNSP Inputs General'!Q95*'PL Tariffs'!D50","v":9681.6614600304583},{"$f":"'DNSP Inputs General'!R95*'PL Tariffs'!E50","v":6597.789565995884},{"$f":"'DNSP Inputs General'!S95*'PL Tariffs'!F50","v":3340.8416937259349},{"$f":"'DNSP Inputs General'!T95*'PL Tariffs'!G50","v":0},{"$f":"'DNSP Inputs General'!U95*'PL Tariffs'!H50","v":0},null,11404.119999999999,{"$f":"D228/'Charges Summary'!K$4","v":9491.8819818542052},{"$f":"E228/'Charges Summary'!L$4","v":6341.6655489701971},{"$f":"F228/'Charges Summary'!M$4","v":3148.2064809605886},{"$f":"G228/'Charges Summary'!N$4","v":0},{"$f":"H228/'Charges Summary'!O$4","v":0}]
[{"$f":"'DNSP Inputs General'!A$96","v":"HP Sodium 100W"},null,{"$f":"IF('PL Tariffs'!C51=0,\"\",'DNSP Inputs General'!O96*'PL Tariffs'!C51)","v":39907.35},{"$f":"'DNSP Inputs General'!Q96*'PL Tariffs'!D51","v":45025.342953632331},{"$f":"'DNSP Inputs General'!R96*'PL Tariffs'!E51","v":45282.644286205643},{"$f":"'DNSP Inputs General'!S96*'PL Tariffs'!F51","v":44957.494918386925},{"$f":"'DNSP Inputs General'!T96*'PL Tariffs'!G51","v":46821.645639629525},{"$f":"'DNSP Inputs General'!U96*'PL Tariffs'!H51","v":47009.475986674901},null,39907.35,{"$f":"D229/'Charges Summary'!K$4","v":44142.758272715349},{"$f":"E229/'Charges Summary'!L$4","v":43524.786955334916},{"$f":"F229/'Charges Summary'!M$4","v":42365.215070088641},{"$f":"G229/'Charges Summary'!N$4","v":43257.002593344347},{"$f":"H229/'Charges Summary'!O$4","v":42579.209680415785}]
[{"$f":"'DNSP Inputs General'!A97","v":"HP Sodium 400W"},null,{"$f":"IF('PL Tariffs'!C52=0,\"\",'DNSP Inputs General'!O97*'PL Tariffs'!C52)","v":58873.74},{"$f":"'DNSP Inputs General'!Q97*'PL Tariffs'!D52","v":66194.248987852348},{"$f":"'DNSP Inputs General'!R97*'PL Tariffs'!E52","v":66598.591932211726},{"$f":"'DNSP Inputs General'!S97*'PL Tariffs'!F52","v":66344.663350982504},{"$f":"'DNSP Inputs General'!T97*'PL Tariffs'!G52","v":69114.632618340343},{"$f":"'DNSP Inputs General'!U97*'PL Tariffs'!H52","v":69349.162179663894},null,58873.74,{"$f":"D230/'Charges Summary'!K$4","v":64896.712394257796},{"$f":"E230/'Charges Summary'!L$4","v":64013.256537181151},{"$f":"F230/'Charges Summary'!M$4","v":62519.184770401123},{"$f":"G230/'Charges Summary'!N$4","v":63852.771545456635},{"$f":"H230/'Charges Summary'!O$4","v":62813.559513959823}]
[{"$f":"'DNSP Inputs General'!A98","v":"Metal Halide 70W"},null,{"$f":"IF('PL Tariffs'!C53=0,\"\",'DNSP Inputs General'!O98*'PL Tariffs'!C53)","v":0},{"$f":"'DNSP Inputs General'!Q98*'PL Tariffs'!D53","v":0},{"$f":"'DNSP Inputs General'!R98*'PL Tariffs'!E53","v":0},{"$f":"'DNSP Inputs General'!S98*'PL Tariffs'!F53","v":0},{"$f":"'DNSP Inputs General'!T98*'PL Tariffs'!G53","v":0},{"$f":"'DNSP Inputs General'!U98*'PL Tariffs'!H53","v":0},null,{"$f":"C231","v":0},{"$f":"D231/'Charges Summary'!K$4","v":0},{"$f":"E231/'Charges Summary'!L$4","v":0},{"$f":"F231/'Charges Summary'!M$4","v":0},{"$f":"G231/'Charges Summary'!N$4","v":0},{"$f":"H231/'Charges Summary'!O$4","v":0}]
[{"$f":"'DNSP Inputs General'!A99","v":"Metal Halide 100W"},null,{"$f":"IF('PL Tariffs'!C54=0,\"\",'DNSP Inputs General'!O99*'PL Tariffs'!C54)","v":0},{"$f":"'DNSP Inputs General'!Q99*'PL Tariffs'!D54","v":0},{"$f":"'DNSP Inputs General'!R99*'PL Tariffs'!E54","v":0},{"$f":"'DNSP Inputs General'!S99*'PL Tariffs'!F54","v":0},{"$f":"'DNSP Inputs General'!T99*'PL Tariffs'!G54","v":0},{"$f":"'DNSP Inputs General'!U99*'PL Tariffs'!H54","v":0},null,0,{"$f":"D232/'Charges Summary'!K$4","v":0},{"$f":"E232/'Charges Summary'!L$4","v":0},{"$f":"F232/'Charges Summary'!M$4","v":0},{"$f":"G232/'Charges Summary'!N$4","v":0},{"$f":"H232/'Charges Summary'!O$4","v":0}]
[{"$f":"'DNSP Inputs General'!A100","v":"Metal Halide 150W"},null,{"$f":"IF('PL Tariffs'!C55=0,\"\",'DNSP Inputs General'!O100*'PL Tariffs'!C55)","v":0},{"$f":"'DNSP Inputs General'!Q100*'PL Tariffs'!D55","v":0},{"$f":"'DNSP Inputs General'!R100*'PL Tariffs'!E55","v":0},{"$f":"'DNSP Inputs General'!S100*'PL Tariffs'!F55","v":0},{"$f":"'DNSP Inputs General'!T100*'PL Tariffs'!G55","v":0},{"$f":"'DNSP Inputs General'!U100*'PL Tariffs'!H55","v":0},null,0,{"$f":"D233/'Charges Summary'!K$4","v":0},{"$f":"E233/'Charges Summary'!L$4","v":0},{"$f":"F233/'Charges Summary'!M$4","v":0},{"$f":"G233/'Charges Summary'!N$4","v":0},{"$f":"H233/'Charges Summary'!O$4","v":0}]
[{"$f":"'DNSP Inputs General'!A101","v":"HP Sodium 50W"},null,{"$f":"IF('PL Tariffs'!C56=0,\"\",'DNSP Inputs General'!O101*'PL Tariffs'!C56)","v":0},{"$f":"'DNSP Inputs General'!Q101*'PL Tariffs'!D56","v":0},{"$f":"'DNSP Inputs General'!R101*'PL Tariffs'!E56","v":0},{"$f":"'DNSP Inputs General'!S101*'PL Tariffs'!F56","v":0},{"$f":"'DNSP Inputs General'!T101*'PL Tariffs'!G56","v":0},{"$f":"'DNSP Inputs General'!U101*'PL Tariffs'!H56","v":0},null,0,{"$f":"D234/'Charges Summary'!K$4","v":0},{"$f":"E234/'Charges Summary'!L$4","v":0},{"$f":"F234/'Charges Summary'!M$4","v":0},{"$f":"G234/'Charges Summary'!N$4","v":0},{"$f":"H234/'Charges Summary'!O$4","v":0}]
[]
[]
[]
[]
[]
[]
[]
[]
[]
[]
[]
[{"$f":"'DNSP Inputs General'!A$115","v":"Energy Efficient Lights"}]
[{"$f":"'DNSP Inputs General'!A$116","v":"T5 2X14W"},null,{"$f":"IF('PL Tariffs'!C60=0,\"\",'DNSP Inputs General'!O116*'PL Tariffs'!C60)","v":288219.40000000002},{"$f":"'DNSP Inputs General'!Q116*'PL Tariffs'!D60","v":408890.80017108936},{"$f":"'DNSP Inputs General'!R116*'PL Tariffs'!E60","v":430942.15973142255},{"$f":"'DNSP Inputs General'!S116*'PL Tariffs'!F60","v":450460.80930658162},{"$f":"'DNSP Inputs General'!T116*'PL Tariffs'!G60","v":468591.97830406582},{"$f":"'DNSP Inputs General'!U116*'PL Tariffs'!H60","v":483935.77617435227},null,{"$f":"C247","v":288219.40000000002},{"$f":"D247/'Charges Summary'!K$4","v":400875.74170122878},{"$f":"E247/'Charges Summary'!L$4","v":414213.12708312576},{"$f":"F247/'Charges Summary'!M$4","v":424486.93152416969},{"$f":"G247/'Charges Summary'!N$4","v":432916.95846681303},{"$f":"H247/'Charges Summary'!O$4","v":438328.70826773904}]
[{"$f":"'DNSP Inputs General'!A117","v":"T5 2X24W"},null,{"$f":"IF('PL Tariffs'!C61=0,\"\",'DNSP Inputs General'!O117*'PL Tariffs'!C61)","v":48868.2},{"$f":"'DNSP Inputs General'!Q117*'PL Tariffs'!D61","v":62854.064279941209},{"$f":"'DNSP Inputs General'!R117*'PL Tariffs'!E61","v":66162.971616633557},{"$f":"'DNSP Inputs General'!S117*'PL Tariffs'!F61","v":69100.583321818805},{"$f":"'DNSP Inputs General'!T117*'PL Tariffs'!G61","v":71837.935747120006},{"$f":"'DNSP Inputs General'!U117*'PL Tariffs'!H61","v":74172.2226958557},null,{"$f":"C248","v":48868.2},{"$f":"D248/'Charges Summary'!K$4","v":61622.001831822265},{"$f":"E248/'Charges Summary'!L$4","v":63594.546858719834},{"$f":"F248/'Charges Summary'!M$4","v":65116.196514324634},{"$f":"G248/'Charges Summary'!N$4","v":66368.743141388273},{"$f":"H248/'Charges Summary'!O$4","v":67182.085235847815}]
[{"$f":"'DNSP Inputs General'!A118","v":"LED 18W"},null,{"$f":"IF('PL Tariffs'!C62=0,\"\",'DNSP Inputs General'!O118*'PL Tariffs'!C62)","v":317423.87999999995},{"$f":"'DNSP Inputs General'!Q118*'PL Tariffs'!D62","v":668388.83126461506},{"$f":"'DNSP Inputs General'!R118*'PL Tariffs'!E62","v":781349.38481312024},{"$f":"'DNSP Inputs General'!S118*'PL Tariffs'!F62","v":896076.92092592665},{"$f":"'DNSP Inputs General'!T118*'PL Tariffs'!G62","v":1014099.0082693197},{"$f":"'DNSP Inputs General'!U118*'PL Tariffs'!H62","v":1082534.300986497},null,{"$f":"C249","v":317423.87999999995},{"$f":"D249/'Charges Summary'!K$4","v":655287.10444428527},{"$f":"E249/'Charges Summary'!L$4","v":751017.65914392204},{"$f":"F249/'Charges Summary'!M$4","v":844408.51393709704},{"$f":"G249/'Charges Summary'!N$4","v":936893.24310047855},{"$f":"H249/'Charges Summary'!O$4","v":980514.12019593315}]
[{"$f":"'DNSP Inputs General'!A119","v":"LED 14W"},null,{"$f":"IF('PL Tariffs'!C63=0,\"\",'DNSP Inputs General'!O119*'PL Tariffs'!C63)","v":15685.38},{"$f":"'DNSP Inputs General'!Q119*'PL Tariffs'!D63","v":32088.529389033043},{"$f":"'DNSP Inputs General'!R119*'PL Tariffs'!E63","v":34199.846747087307},{"$f":"'DNSP Inputs General'!S119*'PL Tariffs'!F63","v":36026.089863218876},{"$f":"'DNSP Inputs General'!T119*'PL Tariffs'!G63","v":37682.371035520984},{"$f":"'DNSP Inputs General'!U119*'PL Tariffs'!H63","v":38997.644602369473},null,{"$f":"C250","v":15685.38},{"$f":"D250/'Charges Summary'!K$4","v":31459.531526627419},{"$f":"E250/'Charges Summary'!L$4","v":32872.219964979609},{"$f":"F250/'Charges Summary'!M$4","v":33948.800927637851},{"$f":"G250/'Charges Summary'!N$4","v":34813.522663271186},{"$f":"H250/'Charges Summary'!O$4","v":35322.429185071102}]
[{"$f":"'DNSP Inputs General'!A120","v":"LED 70W-125W (L1)"},null,{"$f":"IF('PL Tariffs'!C64=0,\"\",'DNSP Inputs General'!O120*'PL Tariffs'!C64)","v":11977.777724912577},{"$f":"'DNSP Inputs General'!Q120*'PL Tariffs'!D64","v":34923.263319907368},{"$f":"'DNSP Inputs General'!R120*'PL Tariffs'!E64","v":37954.002262865935},{"$f":"'DNSP Inputs General'!S120*'PL Tariffs'!F64","v":42680.930079419108},{"$f":"'DNSP Inputs General'!T120*'PL Tariffs'!G64","v":45323.475762711976},{"$f":"'DNSP Inputs General'!U120*'PL Tariffs'!H64","v":45316.123846174756},null,11977.777724912577,{"$f":"D251/'Charges Summary'!K$4","v":34238.699134676805},{"$f":"E251/'Charges Summary'!L$4","v":36480.640400604127},{"$f":"F251/'Charges Summary'!M$4","v":40219.918513886892},{"$f":"G251/'Charges Summary'!N$4","v":41872.891946104704},{"$f":"H251/'Charges Summary'!O$4","v":41045.442406056587}]
[{"$f":"'DNSP Inputs General'!A121","v":"LED 155W-250W (L2)"},null,{"$f":"IF('PL Tariffs'!C65=0,\"\",'DNSP Inputs General'!O121*'PL Tariffs'!C65)","v":6919.42},{"$f":"'DNSP Inputs General'!Q121*'PL Tariffs'!D65","v":52621.573684305768},{"$f":"'DNSP Inputs General'!R121*'PL Tariffs'!E65","v":77212.527319322791},{"$f":"'DNSP Inputs General'!S121*'PL Tariffs'!F65","v":100183.36888915244},{"$f":"'DNSP Inputs General'!T121*'PL Tariffs'!G65","v":114940.50338931322},{"$f":"'DNSP Inputs General'!U121*'PL Tariffs'!H65","v":119909.50813743158},null,6919.42,{"$f":"D252/'Charges Summary'!K$4","v":51590.088041490344},{"$f":"E252/'Charges Summary'!L$4","v":74215.162449783267},{"$f":"F252/'Charges Summary'!M$4","v":94406.727446442324},{"$f":"G252/'Charges Summary'!N$4","v":106189.80997505937},{"$f":"H252/'Charges Summary'!O$4","v":108608.99813276896}]
[{"$f":"'DNSP Inputs General'!A122","v":"LED 275W-400W (L4)"},null,{"$f":"IF('PL Tariffs'!C66=0,\"\",'DNSP Inputs General'!O122*'PL Tariffs'!C66)","v":1793.16},{"$f":"'DNSP Inputs General'!Q122*'PL Tariffs'!D66","v":6245.6857632113324},{"$f":"'DNSP Inputs General'!R122*'PL Tariffs'!E66","v":7496.1656238573933},{"$f":"'DNSP Inputs General'!S122*'PL Tariffs'!F66","v":8958.4213496693301},{"$f":"'DNSP Inputs General'!T122*'PL Tariffs'!G66","v":9894.4229537920037},{"$f":"'DNSP Inputs General'!U122*'PL Tariffs'!H66","v":9278.0080789829499},null,1793.16,{"$f":"D253/'Charges Summary'!K$4","v":6123.2581210252802},{"$f":"E253/'Charges Summary'!L$4","v":7205.1669442742532},{"$f":"F253/'Charges Summary'!M$4","v":8441.8726589678117},{"$f":"G253/'Charges Summary'!N$4","v":9141.1370430254083},{"$f":"H253/'Charges Summary'!O$4","v":8403.6301856158934}]
[{"$f":"'DNSP Inputs General'!A123","v":"Compact Fluorescent 32W"},null,{"$f":"IF('PL Tariffs'!C67=0,\"\",'DNSP Inputs General'!O123*'PL Tariffs'!C67)","v":24568.400000000001},{"$f":"'DNSP Inputs General'!Q123*'PL Tariffs'!D67","v":34521.936730898109},{"$f":"'DNSP Inputs General'!R123*'PL Tariffs'!E67","v":36383.694538248092},{"$f":"'DNSP Inputs General'!S123*'PL Tariffs'!F67","v":38031.620061209891},{"$f":"'DNSP Inputs General'!T123*'PL Tariffs'!G67","v":39562.403020196667},{"$f":"'DNSP Inputs General'!U123*'PL Tariffs'!H67","v":40857.853098966065},null,24568.400000000001,{"$f":"D254/'Charges Summary'!K$4","v":33845.239330821605},{"$f":"E254/'Charges Summary'!L$4","v":34971.291504450353},{"$f":"F254/'Charges Summary'!M$4","v":35838.690885289776},{"$f":"G254/'Charges Summary'!N$4","v":36550.423349390039},{"$f":"H254/'Charges Summary'!O$4","v":37007.327941405434}]
[{"$f":"'DNSP Inputs General'!A124","v":"Compact Fluorescent 42W"},null,{"$f":"IF('PL Tariffs'!C68=0,\"\",'DNSP Inputs General'!O124*'PL Tariffs'!C68)","v":98092.950000000012},{"$f":"'DNSP Inputs General'!Q124*'PL Tariffs'!D68","v":138975.50092574803},{"$f":"'DNSP Inputs General'!R124*'PL Tariffs'!E68","v":146470.4084651419},{"$f":"'DNSP Inputs General'!S124*'PL Tariffs'!F68","v":153104.48803104763},{"$f":"'DNSP Inputs General'!T124*'PL Tariffs'!G68","v":159266.98494401417},{"$f":"'DNSP Inputs General'!U124*'PL Tariffs'!H68","v":164482.09859840365},null,98092.950000000012,{"$f":"D255/'Charges Summary'!K$4","v":136251.30961273253},{"$f":"E255/'Charges Summary'!L$4","v":140784.47546951706},{"$f":"F255/'Charges Summary'!M$4","v":144276.37873075411},{"$f":"G255/'Charges Summary'!N$4","v":147141.61124926808},{"$f":"H255/'Charges Summary'!O$4","v":148980.97921537008}]
[{"$f":"'DNSP Inputs General'!A125","v":"Smart lighting L1"},null,{"$f":"IF('PL Tariffs'!C69=0,\"\",'DNSP Inputs General'!O125*'PL Tariffs'!C69)","v":0},{"$f":"'DNSP Inputs General'!Q125*'PL Tariffs'!D69","v":67.819622800407259},{"$f":"'DNSP Inputs General'!R125*'PL Tariffs'!E69","v":12204.708702154359},{"$f":"'DNSP Inputs General'!S125*'PL Tariffs'!F69","v":23339.435659640836},{"$f":"'DNSP Inputs General'!T125*'PL Tariffs'!G69","v":38324.192326308519},{"$f":"'DNSP Inputs General'!U125*'PL Tariffs'!H69","v":57258.806185738547},null,{"$f":"C256","v":0},{"$f":"D256/'Charges Summary'!K$4","v":66.490225704846026},{"$f":"E256/'Charges Summary'!L$4","v":11730.925931704283},{"$f":"F256/'Charges Summary'!M$4","v":21993.66786628461},{"$f":"G256/'Charges Summary'!N$4","v":35406.480575381851},{"$f":"H256/'Charges Summary'!O$4","v":51862.62266194851}]
[{"$f":"'DNSP Inputs General'!A126","v":"Smart lighting L2"},null,{"$f":"IF('PL Tariffs'!C70=0,\"\",'DNSP Inputs General'!O126*'PL Tariffs'!C70)","v":0},{"$f":"'DNSP Inputs General'!Q126*'PL Tariffs'!D70","v":205.4774789072693},{"$f":"'DNSP Inputs General'!R126*'PL Tariffs'!E70","v":25138.780513915608},{"$f":"'DNSP Inputs General'!S126*'PL Tariffs'!F70","v":55419.385198781383},{"$f":"'DNSP Inputs General'!T126*'PL Tariffs'!G70","v":98295.824326956106},{"$f":"'DNSP Inputs General'!U126*'PL Tariffs'!H70","v":153321.21773291807},null,0,{"$f":"D257/'Charges Summary'!K$4","v":201.44971891122097},{"$f":"E257/'Charges Summary'!L$4","v":24162.901337420644},{"$f":"F257/'Charges Summary'!M$4","v":52223.865614857117},{"$f":"G257/'Charges Summary'!N$4","v":90812.329847441564},{"$f":"H257/'Charges Summary'!O$4","v":138871.92191117135}]
[{"$f":"'DNSP Inputs General'!A127","v":"Smart lighting L4"},null,{"$f":"IF('PL Tariffs'!C71=0,\"\",'DNSP Inputs General'!O127*'PL Tariffs'!C71)","v":0},{"$f":"'DNSP Inputs General'!Q127*'PL Tariffs'!D71","v":74.518179903675318},{"$f":"'DNSP Inputs General'!R127*'PL Tariffs'!E71","v":2375.4718149969981},{"$f":"'DNSP Inputs General'!S127*'PL Tariffs'!F71","v":4818.2812243466078},{"$f":"'DNSP Inputs General'!T127*'PL Tariffs'!G71","v":8219.8275457231084},{"$f":"'DNSP Inputs General'!U127*'PL Tariffs'!H71","v":11521.17173186623},null,0,{"$f":"D258/'Charges Summary'!K$4","v":73.057478002958462},{"$f":"E258/'Charges Summary'!L$4","v":2283.2567818404359},{"$f":"F258/'Charges Summary'!M$4","v":4540.4558396364082},{"$f":"G258/'Charges Summary'!N$4","v":7594.0325591896726},{"$f":"H258/'Charges Summary'!O$4","v":10435.393644342343}]
[]
["Total Revenue",null,{"$f":"IF(SUM(C222:C258)=0,0,SUM(C222:C258))","v":2445321.0777249131},{"$f":"IF(SUM(D222:D258)=0,0,SUM(D222:D258))","v":3195472.4087775187},3293708.5936858756,3373951.3193837688,3525197.3865073766,3669635.8966148035,null,{"$f":"IF(SUM(J222:J258)=0,0,SUM(J222:J258))","v":2445321.0777249131},3132834.9070668863,3165847.9113333123,3179406.9829999176,3256815.7399648121,3323802.1274058078]
[]
[]
["Public Lighting - O & M",null,null,"Forecast O & M - Nominal ",null,null,null,null,null,null,"Forecast O & M - Real 2021 $ "]
[null,null,null,{"$f":"D$2","v":"2022-06-30"},"2023-06-30","2024-06-30","2025-06-30","2026-06-30",null,null,{"$f":"K$2","v":"2022-06-30"},"2023-06-30","2024-06-30","2025-06-30","2026-06-30"]
[]
["Unit cost"]
[{"$f":"'DNSP Inputs General'!A$89","v":"Mercury Vapour 80W"},null,null,{"$f":"SUM('Charges Summary'!K25,'Charges Summary'!K8)","v":29.412576071413444},{"$f":"SUM('Charges Summary'!L25,'Charges Summary'!L8)","v":30.083584147146144},{"$f":"SUM('Charges Summary'!M25,'Charges Summary'!M8)","v":30.759910124412009},{"$f":"SUM('Charges Summary'!N25,'Charges Summary'!N8)","v":31.472912464498361},{"$f":"SUM('Charges Summary'!O25,'Charges Summary'!O8)","v":32.234805040225581},null,null,{"$f":"D267/'Charges Summary'!K$4","v":28.836032121627923},{"$f":"E267/'Charges Summary'!L$4","v":28.915749322887951},{"$f":"F267/'Charges Summary'!M$4","v":28.986272707653544},{"$f":"G267/'Charges Summary'!N$4","v":29.076804915729085},{"$f":"H267/'Charges Summary'!O$4","v":29.196933043970549}]
[{"$f":"'DNSP Inputs General'!A$90","v":"HP Sodium 150W"},null,null,{"$f":"SUM('Charges Summary'!K49,'Charges Summary'!K8)","v":90.156996061916601},{"$f":"SUM('Charges Summary'!L49,'Charges Summary'!L8)","v":92.381111391332027},{"$f":"SUM('Charges Summary'!M49,'Charges Summary'!M8)","v":94.62665282468484},{"$f":"SUM('Charges Summary'!N49,'Charges Summary'!N8)","v":97.011019847663221},{"$f":"SUM('Charges Summary'!O49,'Charges Summary'!O8)","v":99.59754567596957},null,null,{"$f":"D268/'Charges Summary'!K$4","v":88.389742813369807},{"$f":"E268/'Charges Summary'!L$4","v":88.794907086061201},{"$f":"F268/'Charges Summary'!M$4","v":89.170415423676431},{"$f":"G268/'Charges Summary'!N$4","v":89.625340583534253},{"$f":"H268/'Charges Summary'!O$4","v":90.211275322319509}]
[{"$f":"'DNSP Inputs General'!A$91","v":"HP Sodium 250W"},null,null,{"$f":"SUM('Charges Summary'!K65,'Charges Summary'!K8)","v":89.71036388810586},{"$f":"SUM('Charges Summary'!L65,'Charges Summary'!L8)","v":92.009156804108486},{"$f":"SUM('Charges Summary'!M65,'Charges Summary'!M8)","v":94.215409528936206},{"$f":"SUM('Charges Summary'!N65,'Charges Summary'!N8)","v":96.55593142539621},{"$f":"SUM('Charges Summary'!O65,'Charges Summary'!O8)","v":99.092135534177956},null,null,{"$f":"D269/'Charges Summary'!K$4","v":87.951865502681741},{"$f":"E269/'Charges Summary'!L$4","v":88.437391653357196},{"$f":"F269/'Charges Summary'!M$4","v":88.782884697105686},{"$f":"G269/'Charges Summary'!N$4","v":89.204899123323315},{"$f":"H269/'Charges Summary'!O$4","v":89.753496035265684}]
[]
[{"$f":"'DNSP Inputs General'!A$116","v":"T5 2X14W"},null,null,{"$f":"SUM('Charges Summary'!K83,'Charges Summary'!K8)","v":38.214896468439122},{"$f":"SUM('Charges Summary'!L83,'Charges Summary'!L8)","v":39.115193440059102},{"$f":"SUM('Charges Summary'!M83,'Charges Summary'!M8)","v":40.022395802886848},{"$f":"SUM('Charges Summary'!N83,'Charges Summary'!N8)","v":40.982686649697001},{"$f":"SUM('Charges Summary'!O83,'Charges Summary'!O8)","v":42.0175136511372},null,null,{"$f":"D271/'Charges Summary'!K$4","v":37.465809843144427},{"$f":"E271/'Charges Summary'!L$4","v":37.596754518903161},{"$f":"F271/'Charges Summary'!M$4","v":37.71467713865119},{"$f":"G271/'Charges Summary'!N$4","v":37.86257741414552},{"$f":"H271/'Charges Summary'!O$4","v":38.057699781819011}]
[{"$f":"'DNSP Inputs General'!A$117","v":"T5 2X24W"},null,null,{"$f":"SUM('Charges Summary'!K99,'Charges Summary'!K8)","v":42.085448751257047},{"$f":"SUM('Charges Summary'!L99,'Charges Summary'!L8)","v":43.080205427055439},{"$f":"SUM('Charges Summary'!M99,'Charges Summary'!M8)","v":44.082796121560243},{"$f":"SUM('Charges Summary'!N99,'Charges Summary'!N8)","v":45.144161082377892},{"$f":"SUM('Charges Summary'!O99,'Charges Summary'!O8)","v":46.288714398339231},null,null,{"$f":"D272/'Charges Summary'!K$4","v":41.260491739921733},{"$f":"E272/'Charges Summary'!L$4","v":41.407846047008469},{"$f":"F272/'Charges Summary'!M$4","v":41.540952003020941},{"$f":"G272/'Charges Summary'!N$4","v":41.707228918112556},{"$f":"H272/'Charges Summary'!O$4","v":41.926374094500446}]
[{"$f":"'DNSP Inputs General'!A$118","v":"LED 18W"},null,null,{"$f":"SUM('Charges Summary'!K115,'Charges Summary'!K8)","v":13.718103797757745},{"$f":"SUM('Charges Summary'!L115,'Charges Summary'!L8)","v":14.021141491722778},{"$f":"SUM('Charges Summary'!M115,'Charges Summary'!M8)","v":14.325186338652749},{"$f":"SUM('Charges Summary'!N115,'Charges Summary'!N8)","v":14.646473279381194},{"$f":"SUM('Charges Summary'!O115,'Charges Summary'!O8)","v":14.987774805754977},null,null,{"$f":"D273/'Charges Summary'!K$4","v":13.449202164390991},{"$f":"E273/'Charges Summary'!L$4","v":13.476845398883764},{"$f":"F273/'Charges Summary'!M$4","v":13.499186314936575},{"$f":"G273/'Charges Summary'!N$4","v":13.531402495031013},{"$f":"H273/'Charges Summary'!O$4","v":13.575297165149985}]
[{"$f":"'DNSP Inputs General'!A$72","v":"LED 14W"},null,null,{"$f":"SUM('Charges Summary'!K131,'Charges Summary'!K$8)","v":15.466880359109053},{"$f":"SUM('Charges Summary'!L131,'Charges Summary'!L$8)","v":15.810831643476233},{"$f":"SUM('Charges Summary'!M131,'Charges Summary'!M$8)","v":16.156273599482564},{"$f":"SUM('Charges Summary'!N131,'Charges Summary'!N$8)","v":16.521101970154444},{"$f":"SUM('Charges Summary'!O131,'Charges Summary'!O$8)","v":16.909126141184466},null,null,{"$f":"D274/'Charges Summary'!K$4","v":15.163699288826409},{"$f":"E274/'Charges Summary'!L$4","v":15.197060368636743},{"$f":"F274/'Charges Summary'!M$4","v":15.224691834271637},{"$f":"G274/'Charges Summary'!N$4","v":15.263311252840703},{"$f":"H274/'Charges Summary'!O$4","v":15.315576537848981}]
[{"$f":"'DNSP Inputs General'!A$73","v":"LED 70W-125W (L1)"},null,null,{"$f":"SUM('Charges Summary'!K147,'Charges Summary'!K$8)","v":28.076469813511665},{"$f":"SUM('Charges Summary'!L147,'Charges Summary'!L$8)","v":28.749222025263219},{"$f":"SUM('Charges Summary'!M147,'Charges Summary'!M$8)","v":29.425726799534456},{"$f":"SUM('Charges Summary'!N147,'Charges Summary'!N$8)","v":30.145210089292384},{"$f":"SUM('Charges Summary'!O147,'Charges Summary'!O$8)","v":30.924767021747314},null,null,{"$f":"D275/'Charges Summary'!K$4","v":27.526116156524488},{"$f":"E275/'Charges Summary'!L$4","v":27.633186698913381},{"$f":"F275/'Charges Summary'!M$4","v":27.729019304100436},{"$f":"G275/'Charges Summary'!N$4","v":27.850183674572538},{"$f":"H275/'Charges Summary'!O$4","v":28.010355608095413}]
[{"$f":"'DNSP Inputs General'!A$74","v":"LED 155W-250W (L2)"},null,null,{"$f":"SUM('Charges Summary'!K163,'Charges Summary'!K$8)","v":28.076469813511665},{"$f":"SUM('Charges Summary'!L163,'Charges Summary'!L$8)","v":28.749222025263219},{"$f":"SUM('Charges Summary'!M163,'Charges Summary'!M$8)","v":29.425726799534456},{"$f":"SUM('Charges Summary'!N163,'Charges Summary'!N$8)","v":30.145210089292384},{"$f":"SUM('Charges Summary'!O163,'Charges Summary'!O$8)","v":30.924767021747314},null,null,{"$f":"D276/'Charges Summary'!K$4","v":27.526116156524488},{"$f":"E276/'Charges Summary'!L$4","v":27.633186698913381},{"$f":"F276/'Charges Summary'!M$4","v":27.729019304100436},{"$f":"G276/'Charges Summary'!N$4","v":27.850183674572538},{"$f":"H276/'Charges Summary'!O$4","v":28.010355608095413}]
[{"$f":"'DNSP Inputs General'!A$75","v":"LED 275W-400W (L4)"},null,null,{"$f":"SUM('Charges Summary'!K179,'Charges Summary'!K$8)","v":28.076469813511665},{"$f":"SUM('Charges Summary'!L179,'Charges Summary'!L$8)","v":28.749222025263219},{"$f":"SUM('Charges Summary'!M179,'Charges Summary'!M$8)","v":29.425726799534456},{"$f":"SUM('Charges Summary'!N179,'Charges Summary'!N$8)","v":30.145210089292384},{"$f":"SUM('Charges Summary'!O179,'Charges Summary'!O$8)","v":30.924767021747314},null,null,{"$f":"D277/'Charges Summary'!K$4","v":27.526116156524488},{"$f":"E277/'Charges Summary'!L$4","v":27.633186698913381},{"$f":"F277/'Charges Summary'!M$4","v":27.729019304100436},{"$f":"G277/'Charges Summary'!N$4","v":27.850183674572538},{"$f":"H277/'Charges Summary'!O$4","v":28.010355608095413}]
[]
[{"$f":"'DNSP Inputs General'!A$88","v":"Existing Lights"}]
[{"$f":"'DNSP Inputs General'!A$89","v":"Mercury Vapour 80W"},null,null,{"$f":"D267*'DNSP Inputs General'!Q89","v":103603.94041881819},{"$f":"E267*'DNSP Inputs General'!R89","v":70645.015973165748},{"$f":"F267*'DNSP Inputs General'!S89","v":36116.613157584354},{"$f":"G267*'DNSP Inputs General'!T89","v":31.472912464498361},{"$f":"H267*'DNSP Inputs General'!U89","v":32.234805040225581},null,null,{"$f":"D280/'Charges Summary'!K$4","v":101573.10079166756},{"$f":"E280/'Charges Summary'!L$4","v":67902.599730134229},{"$f":"F280/'Charges Summary'!M$4","v":34034.10458705233},{"$f":"G280/'Charges Summary'!N$4","v":29.076804915729085},{"$f":"H280/'Charges Summary'!O$4","v":29.196933043970549}]
[{"$f":"'DNSP Inputs General'!A$90","v":"HP Sodium 150W"},null,null,{"$f":"D268*'DNSP Inputs General'!Q90","v":472321.47746924625},{"$f":"E268*'DNSP Inputs General'!R90","v":459861.52558149956},{"$f":"F268*'DNSP Inputs General'!S90","v":447055.65335185762},{"$f":"G268*'DNSP Inputs General'!T90","v":434454.7915711269},{"$f":"H268*'DNSP Inputs General'!U90","v":422268.99114696711},null,null,{"$f":"D281/'Charges Summary'!K$4","v":463063.05380967032},{"$f":"E281/'Charges Summary'!L$4","v":442009.85267963487},{"$f":"F281/'Charges Summary'!M$4","v":421278.11918640585},{"$f":"G281/'Charges Summary'!N$4","v":401378.71680820774},{"$f":"H281/'Charges Summary'!O$4","v":382473.5234377181}]
[{"$f":"'DNSP Inputs General'!A$91","v":"HP Sodium 250W"},null,null,{"$f":"D269*'DNSP Inputs General'!Q91","v":449004.39759373874},{"$f":"E269*'DNSP Inputs General'!R91","v":444553.82275268558},{"$f":"F269*'DNSP Inputs General'!S91","v":439213.71479086473},{"$f":"G269*'DNSP Inputs General'!T91","v":434061.2746878044},{"$f":"H269*'DNSP Inputs General'!U91","v":429311.84651730553},null,null,{"$f":"D282/'Charges Summary'!K$4","v":440203.0342506835},{"$f":"E282/'Charges Summary'!L$4","v":427296.38983085268},{"$f":"F282/'Charges Summary'!M$4","v":413888.35215632583},{"$f":"G282/'Charges Summary'!N$4","v":401015.15929949854},{"$f":"H282/'Charges Summary'!O$4","v":388852.64614156366}]
[{"$f":"'DNSP Inputs General'!A$92","v":"Mercury Vapour 50W"},null,null,{"$f":"IF('DNSP Inputs General'!$B92='DNSP Inputs General'!$A$89,D$267,IF('DNSP Inputs General'!$B92='DNSP Inputs General'!$A$90,D$268,D$269))*'DNSP Inputs General'!$D92*'DNSP Inputs General'!Q92","v":4110.8196680890078},{"$f":"IF('DNSP Inputs General'!$B92='DNSP Inputs General'!$A$89,E$267,IF('DNSP Inputs General'!$B92='DNSP Inputs General'!$A$90,E$268,E$269))*'DNSP Inputs General'!$D92*'DNSP Inputs General'!R92","v":2803.0682997285221},{"$f":"IF('DNSP Inputs General'!$B92='DNSP Inputs General'!$A$89,F$267,IF('DNSP Inputs General'!$B92='DNSP Inputs General'!$A$90,F$268,F$269))*'DNSP Inputs General'!$D92*'DNSP Inputs General'!S92","v":1433.0428274520796},{"$f":"IF('DNSP Inputs General'!$B92='DNSP Inputs General'!$A$89,G$267,IF('DNSP Inputs General'!$B92='DNSP Inputs General'!$A$90,G$268,G$269))*'DNSP Inputs General'!$D92*'DNSP Inputs General'!T92","v":0},{"$f":"IF('DNSP Inputs General'!$B92='DNSP Inputs General'!$A$89,H$267,IF('DNSP Inputs General'!$B92='DNSP Inputs General'!$A$90,H$268,H$269))*'DNSP Inputs General'!$D92*'DNSP Inputs General'!U92","v":0},null,null,{"$f":"D283/'Charges Summary'!K$4","v":4030.2395719239685},{"$f":"E283/'Charges Summary'!L$4","v":2694.2541119247821},{"$f":"F283/'Charges Summary'!M$4","v":1350.4125997203937},{"$f":"G283/'Charges Summary'!N$4","v":0},{"$f":"H283/'Charges Summary'!O$4","v":0}]
[{"$f":"'DNSP Inputs General'!A$93","v":"Mercury Vapour 125W"},null,null,{"$f":"IF('DNSP Inputs General'!$B93='DNSP Inputs General'!$A$89,D$267,IF('DNSP Inputs General'!$B93='DNSP Inputs General'!$A$90,D$268,D$269))*'DNSP Inputs General'!$D93*'DNSP Inputs General'!Q93","v":555.01531046757168},{"$f":"IF('DNSP Inputs General'!$B93='DNSP Inputs General'!$A$89,E$267,IF('DNSP Inputs General'!$B93='DNSP Inputs General'!$A$90,E$268,E$269))*'DNSP Inputs General'!$D93*'DNSP Inputs General'!R93","v":378.45148857109848},{"$f":"IF('DNSP Inputs General'!$B93='DNSP Inputs General'!$A$89,F$267,IF('DNSP Inputs General'!$B93='DNSP Inputs General'!$A$90,F$268,F$269))*'DNSP Inputs General'!$D93*'DNSP Inputs General'!S93","v":193.47983468255154},{"$f":"IF('DNSP Inputs General'!$B93='DNSP Inputs General'!$A$89,G$267,IF('DNSP Inputs General'!$B93='DNSP Inputs General'!$A$90,G$268,G$269))*'DNSP Inputs General'!$D93*'DNSP Inputs General'!T93","v":0},{"$f":"IF('DNSP Inputs General'!$B93='DNSP Inputs General'!$A$89,H$267,IF('DNSP Inputs General'!$B93='DNSP Inputs General'!$A$90,H$268,H$269))*'DNSP Inputs General'!$D93*'DNSP Inputs General'!U93","v":0},null,null,{"$f":"D284/'Charges Summary'!K$4","v":544.13592613511889},{"$f":"E284/'Charges Summary'!L$4","v":363.7601264819304},{"$f":"F284/'Charges Summary'!M$4","v":182.3236553311408},{"$f":"G284/'Charges Summary'!N$4","v":0},{"$f":"H284/'Charges Summary'!O$4","v":0}]
[{"$f":"'DNSP Inputs General'!A$94","v":"Mercury Vapour 250W"},null,null,{"$f":"IF('DNSP Inputs General'!$B94='DNSP Inputs General'!$A$89,D$267,IF('DNSP Inputs General'!$B94='DNSP Inputs General'!$A$90,D$268,D$269))*'DNSP Inputs General'!$D94*'DNSP Inputs General'!Q94","v":18299.800294143835},{"$f":"IF('DNSP Inputs General'!$B94='DNSP Inputs General'!$A$89,E$267,IF('DNSP Inputs General'!$B94='DNSP Inputs General'!$A$90,E$268,E$269))*'DNSP Inputs General'!$D94*'DNSP Inputs General'!R94","v":12512.483669838202},{"$f":"IF('DNSP Inputs General'!$B94='DNSP Inputs General'!$A$89,F$267,IF('DNSP Inputs General'!$B94='DNSP Inputs General'!$A$90,F$268,F$269))*'DNSP Inputs General'!$D94*'DNSP Inputs General'!S94","v":6406.2578884827517},{"$f":"IF('DNSP Inputs General'!$B94='DNSP Inputs General'!$A$89,G$267,IF('DNSP Inputs General'!$B94='DNSP Inputs General'!$A$90,G$268,G$269))*'DNSP Inputs General'!$D94*'DNSP Inputs General'!T94","v":0},{"$f":"IF('DNSP Inputs General'!$B94='DNSP Inputs General'!$A$89,H$267,IF('DNSP Inputs General'!$B94='DNSP Inputs General'!$A$90,H$268,H$269))*'DNSP Inputs General'!$D94*'DNSP Inputs General'!U94","v":0},null,null,{"$f":"D285/'Charges Summary'!K$4","v":17941.088458898426},{"$f":"E285/'Charges Summary'!L$4","v":12026.753176552374},{"$f":"F285/'Charges Summary'!M$4","v":6036.8686852483916},{"$f":"G285/'Charges Summary'!N$4","v":0},{"$f":"H285/'Charges Summary'!O$4","v":0}]
[{"$f":"'DNSP Inputs General'!A$95","v":"Mercury Vapour 400W"},null,null,{"$f":"IF('DNSP Inputs General'!$B95='DNSP Inputs General'!$A$89,D$267,IF('DNSP Inputs General'!$B95='DNSP Inputs General'!$A$90,D$268,D$269))*'DNSP Inputs General'!$D95*'DNSP Inputs General'!Q95","v":6551.3235988386514},{"$f":"IF('DNSP Inputs General'!$B95='DNSP Inputs General'!$A$89,E$267,IF('DNSP Inputs General'!$B95='DNSP Inputs General'!$A$90,E$268,E$269))*'DNSP Inputs General'!$D95*'DNSP Inputs General'!R95","v":4479.4657990080213},{"$f":"IF('DNSP Inputs General'!$B95='DNSP Inputs General'!$A$89,F$267,IF('DNSP Inputs General'!$B95='DNSP Inputs General'!$A$90,F$268,F$269))*'DNSP Inputs General'!$D95*'DNSP Inputs General'!S95","v":2293.4386064581299},{"$f":"IF('DNSP Inputs General'!$B95='DNSP Inputs General'!$A$89,G$267,IF('DNSP Inputs General'!$B95='DNSP Inputs General'!$A$90,G$268,G$269))*'DNSP Inputs General'!$D95*'DNSP Inputs General'!T95","v":0},{"$f":"IF('DNSP Inputs General'!$B95='DNSP Inputs General'!$A$89,H$267,IF('DNSP Inputs General'!$B95='DNSP Inputs General'!$A$90,H$268,H$269))*'DNSP Inputs General'!$D95*'DNSP Inputs General'!U95","v":0},null,null,{"$f":"D286/'Charges Summary'!K$4","v":6422.9048579970913},{"$f":"E286/'Charges Summary'!L$4","v":4305.5744126436948},{"$f":"F286/'Charges Summary'!M$4","v":2161.1973707392954},{"$f":"G286/'Charges Summary'!N$4","v":0},{"$f":"H286/'Charges Summary'!O$4","v":0}]
[{"$f":"'DNSP Inputs General'!A$96","v":"HP Sodium 100W"},null,null,{"$f":"IF('DNSP Inputs General'!$B96='DNSP Inputs General'!$A$89,D$267,IF('DNSP Inputs General'!$B96='DNSP Inputs General'!$A$90,D$268,D$269))*'DNSP Inputs General'!$D96*'DNSP Inputs General'!Q96","v":30567.626973025748},{"$f":"IF('DNSP Inputs General'!$B96='DNSP Inputs General'!$A$89,E$267,IF('DNSP Inputs General'!$B96='DNSP Inputs General'!$A$90,E$268,E$269))*'DNSP Inputs General'!$D96*'DNSP Inputs General'!R96","v":30834.57261592937},{"$f":"IF('DNSP Inputs General'!$B96='DNSP Inputs General'!$A$89,F$267,IF('DNSP Inputs General'!$B96='DNSP Inputs General'!$A$90,F$268,F$269))*'DNSP Inputs General'!$D96*'DNSP Inputs General'!S96","v":31075.196986039344},{"$f":"IF('DNSP Inputs General'!$B96='DNSP Inputs General'!$A$89,G$267,IF('DNSP Inputs General'!$B96='DNSP Inputs General'!$A$90,G$268,G$269))*'DNSP Inputs General'!$D96*'DNSP Inputs General'!T96","v":31326.182036946884},{"$f":"IF('DNSP Inputs General'!$B96='DNSP Inputs General'!$A$89,H$267,IF('DNSP Inputs General'!$B96='DNSP Inputs General'!$A$90,H$268,H$269))*'DNSP Inputs General'!$D96*'DNSP Inputs General'!U96","v":31604.392000340406},null,null,{"$f":"D287/'Charges Summary'!K$4","v":29968.441769124915},{"$f":"E287/'Charges Summary'!L$4","v":29637.584666758547},{"$f":"F287/'Charges Summary'!M$4","v":29283.379913601366},{"$f":"G287/'Charges Summary'!N$4","v":28941.245423993823},{"$f":"H287/'Charges Summary'!O$4","v":28625.931380005019}]
[{"$f":"'DNSP Inputs General'!A97","v":"HP Sodium 400W"},null,null,{"$f":"IF('DNSP Inputs General'!$B97='DNSP Inputs General'!$A$89,D$267,IF('DNSP Inputs General'!$B97='DNSP Inputs General'!$A$90,D$268,D$269))*'DNSP Inputs General'!$D97*'DNSP Inputs General'!Q97","v":44791.89313650658},{"$f":"IF('DNSP Inputs General'!$B97='DNSP Inputs General'!$A$89,E$267,IF('DNSP Inputs General'!$B97='DNSP Inputs General'!$A$90,E$268,E$269))*'DNSP Inputs General'!$D97*'DNSP Inputs General'!R97","v":45216.069994103251},{"$f":"IF('DNSP Inputs General'!$B97='DNSP Inputs General'!$A$89,F$267,IF('DNSP Inputs General'!$B97='DNSP Inputs General'!$A$90,F$268,F$269))*'DNSP Inputs General'!$D97*'DNSP Inputs General'!S97","v":45544.634020630518},{"$f":"IF('DNSP Inputs General'!$B97='DNSP Inputs General'!$A$89,G$267,IF('DNSP Inputs General'!$B97='DNSP Inputs General'!$A$90,G$268,G$269))*'DNSP Inputs General'!$D97*'DNSP Inputs General'!T97","v":45886.302666337913},{"$f":"IF('DNSP Inputs General'!$B97='DNSP Inputs General'!$A$89,H$267,IF('DNSP Inputs General'!$B97='DNSP Inputs General'!$A$90,H$268,H$269))*'DNSP Inputs General'!$D97*'DNSP Inputs General'!U97","v":46265.061806999518},null,null,{"$f":"D288/'Charges Summary'!K$4","v":43913.884528059949},{"$f":"E288/'Charges Summary'!L$4","v":43460.797055316165},{"$f":"F288/'Charges Summary'!M$4","v":42918.499330872386},{"$f":"G288/'Charges Summary'!N$4","v":42392.869501296496},{"$f":"H288/'Charges Summary'!O$4","v":41904.950570306632}]
[{"$f":"'DNSP Inputs General'!A98","v":"Metal Halide 70W"},null,null,{"$f":"IF('DNSP Inputs General'!$B98='DNSP Inputs General'!$A$89,D$267,IF('DNSP Inputs General'!$B98='DNSP Inputs General'!$A$90,D$268,D$269))*'DNSP Inputs General'!$D98*'DNSP Inputs General'!Q98","v":0},{"$f":"IF('DNSP Inputs General'!$B98='DNSP Inputs General'!$A$89,E$267,IF('DNSP Inputs General'!$B98='DNSP Inputs General'!$A$90,E$268,E$269))*'DNSP Inputs General'!$D98*'DNSP Inputs General'!R98","v":0},{"$f":"IF('DNSP Inputs General'!$B98='DNSP Inputs General'!$A$89,F$267,IF('DNSP Inputs General'!$B98='DNSP Inputs General'!$A$90,F$268,F$269))*'DNSP Inputs General'!$D98*'DNSP Inputs General'!S98","v":0},{"$f":"IF('DNSP Inputs General'!$B98='DNSP Inputs General'!$A$89,G$267,IF('DNSP Inputs General'!$B98='DNSP Inputs General'!$A$90,G$268,G$269))*'DNSP Inputs General'!$D98*'DNSP Inputs General'!T98","v":0},{"$f":"IF('DNSP Inputs General'!$B98='DNSP Inputs General'!$A$89,H$267,IF('DNSP Inputs General'!$B98='DNSP Inputs General'!$A$90,H$268,H$269))*'DNSP Inputs General'!$D98*'DNSP Inputs General'!U98","v":0},null,null,{"$f":"D289/'Charges Summary'!K$4","v":0},{"$f":"E289/'Charges Summary'!L$4","v":0},{"$f":"F289/'Charges Summary'!M$4","v":0},{"$f":"G289/'Charges Summary'!N$4","v":0},{"$f":"H289/'Charges Summary'!O$4","v":0}]
[{"$f":"'DNSP Inputs General'!A99","v":"Metal Halide 100W"},null,null,{"$f":"IF('DNSP Inputs General'!$B99='DNSP Inputs General'!$A$89,D$267,IF('DNSP Inputs General'!$B99='DNSP Inputs General'!$A$90,D$268,D$269))*'DNSP Inputs General'!$D99*'DNSP Inputs General'!Q99","v":0},{"$f":"IF('DNSP Inputs General'!$B99='DNSP Inputs General'!$A$89,E$267,IF('DNSP Inputs General'!$B99='DNSP Inputs General'!$A$90,E$268,E$269))*'DNSP Inputs General'!$D99*'DNSP Inputs General'!R99","v":0},{"$f":"IF('DNSP Inputs General'!$B99='DNSP Inputs General'!$A$89,F$267,IF('DNSP Inputs General'!$B99='DNSP Inputs General'!$A$90,F$268,F$269))*'DNSP Inputs General'!$D99*'DNSP Inputs General'!S99","v":0},{"$f":"IF('DNSP Inputs General'!$B99='DNSP Inputs General'!$A$89,G$267,IF('DNSP Inputs General'!$B99='DNSP Inputs General'!$A$90,G$268,G$269))*'DNSP Inputs General'!$D99*'DNSP Inputs General'!T99","v":0},{"$f":"IF('DNSP Inputs General'!$B99='DNSP Inputs General'!$A$89,H$267,IF('DNSP Inputs General'!$B99='DNSP Inputs General'!$A$90,H$268,H$269))*'DNSP Inputs General'!$D99*'DNSP Inputs General'!U99","v":0},null,null,{"$f":"D290/'Charges Summary'!K$4","v":0},{"$f":"E290/'Charges Summary'!L$4","v":0},{"$f":"F290/'Charges Summary'!M$4","v":0},{"$f":"G290/'Charges Summary'!N$4","v":0},{"$f":"H290/'Charges Summary'!O$4","v":0}]
[{"$f":"'DNSP Inputs General'!A100","v":"Metal Halide 150W"},null,null,{"$f":"IF('DNSP Inputs General'!$B100='DNSP Inputs General'!$A$89,D$267,IF('DNSP Inputs General'!$B100='DNSP Inputs General'!$A$90,D$268,D$269))*'DNSP Inputs General'!$D100*'DNSP Inputs General'!Q100","v":0},{"$f":"IF('DNSP Inputs General'!$B100='DNSP Inputs General'!$A$89,E$267,IF('DNSP Inputs General'!$B100='DNSP Inputs General'!$A$90,E$268,E$269))*'DNSP Inputs General'!$D100*'DNSP Inputs General'!R100","v":0},{"$f":"IF('DNSP Inputs General'!$B100='DNSP Inputs General'!$A$89,F$267,IF('DNSP Inputs General'!$B100='DNSP Inputs General'!$A$90,F$268,F$269))*'DNSP Inputs General'!$D100*'DNSP Inputs General'!S100","v":0},{"$f":"IF('DNSP Inputs General'!$B100='DNSP Inputs General'!$A$89,G$267,IF('DNSP Inputs General'!$B100='DNSP Inputs General'!$A$90,G$268,G$269))*'DNSP Inputs General'!$D100*'DNSP Inputs General'!T100","v":0},{"$f":"IF('DNSP Inputs General'!$B100='DNSP Inputs General'!$A$89,H$267,IF('DNSP Inputs General'!$B100='DNSP Inputs General'!$A$90,H$268,H$269))*'DNSP Inputs General'!$D100*'DNSP Inputs General'!U100","v":0},null,null,{"$f":"D291/'Charges Summary'!K$4","v":0},{"$f":"E291/'Charges Summary'!L$4","v":0},{"$f":"F291/'Charges Summary'!M$4","v":0},{"$f":"G291/'Charges Summary'!N$4","v":0},{"$f":"H291/'Charges Summary'!O$4","v":0}]
[{"$f":"'DNSP Inputs General'!A101","v":"HP Sodium 50W"},null,null,{"$f":"IF('DNSP Inputs General'!$B101='DNSP Inputs General'!$A$89,D$267,IF('DNSP Inputs General'!$B101='DNSP Inputs General'!$A$90,D$268,D$269))*'DNSP Inputs General'!$D101*'DNSP Inputs General'!Q101","v":0},{"$f":"IF('DNSP Inputs General'!$B101='DNSP Inputs General'!$A$89,E$267,IF('DNSP Inputs General'!$B101='DNSP Inputs General'!$A$90,E$268,E$269))*'DNSP Inputs General'!$D101*'DNSP Inputs General'!R101","v":0},{"$f":"IF('DNSP Inputs General'!$B101='DNSP Inputs General'!$A$89,F$267,IF('DNSP Inputs General'!$B101='DNSP Inputs General'!$A$90,F$268,F$269))*'DNSP Inputs General'!$D101*'DNSP Inputs General'!S101","v":0},{"$f":"IF('DNSP Inputs General'!$B101='DNSP Inputs General'!$A$89,G$267,IF('DNSP Inputs General'!$B101='DNSP Inputs General'!$A$90,G$268,G$269))*'DNSP Inputs General'!$D101*'DNSP Inputs General'!T101","v":0},{"$f":"IF('DNSP Inputs General'!$B101='DNSP Inputs General'!$A$89,H$267,IF('DNSP Inputs General'!$B101='DNSP Inputs General'!$A$90,H$268,H$269))*'DNSP Inputs General'!$D101*'DNSP Inputs General'!U101","v":0},null,null,{"$f":"D292/'Charges Summary'!K$4","v":0},{"$f":"E292/'Charges Summary'!L$4","v":0},{"$f":"F292/'Charges Summary'!M$4","v":0},{"$f":"G292/'Charges Summary'!N$4","v":0},{"$f":"H292/'Charges Summary'!O$4","v":0}]
[]
[]
[]
[]
[]
[]
[]
[]
[]
[]
[]
[{"$f":"'DNSP Inputs General'!A$115","v":"Energy Efficient Lights"}]
[{"$f":"'DNSP Inputs General'!A$116","v":"T5 2X14W"},null,null,{"$f":"SUM('Charges Summary'!K83,'Charges Summary'!K8)*'DNSP Inputs General'!$D116*'DNSP Inputs General'!Q116","v":271462.10141050612},{"$f":"SUM('Charges Summary'!L83,'Charges Summary'!L8)*'DNSP Inputs General'!$D116*'DNSP Inputs General'!R116","v":277857.42183251266},{"$f":"SUM('Charges Summary'!M83,'Charges Summary'!M8)*'DNSP Inputs General'!$D116*'DNSP Inputs General'!S116","v":284301.79516795231},{"$f":"SUM('Charges Summary'!N83,'Charges Summary'!N8)*'DNSP Inputs General'!$D116*'DNSP Inputs General'!T116","v":291123.28613955941},{"$f":"SUM('Charges Summary'!O83,'Charges Summary'!O8)*'DNSP Inputs General'!$D116*'DNSP Inputs General'!U116","v":298474.2497262145},null,null,{"$f":"D305/'Charges Summary'!K$4","v":266140.91390947643},{"$f":"E305/'Charges Summary'!L$4","v":267071.08826908353},{"$f":"F305/'Charges Summary'!M$4","v":267908.75957318005},{"$f":"G305/'Charges Summary'!N$4","v":268959.37918216008},{"$f":"H305/'Charges Summary'!O$4","v":270345.44411640859}]
[{"$f":"'DNSP Inputs General'!A117","v":"T5 2X24W"},null,null,{"$f":"SUM('Charges Summary'!K99,'Charges Summary'!K8)*'DNSP Inputs General'!$D117*'DNSP Inputs General'!Q117","v":42927.157726282188},{"$f":"SUM('Charges Summary'!L99,'Charges Summary'!L8)*'DNSP Inputs General'!$D117*'DNSP Inputs General'!R117","v":43941.809535596549},{"$f":"SUM('Charges Summary'!M99,'Charges Summary'!M8)*'DNSP Inputs General'!$D117*'DNSP Inputs General'!S117","v":44964.452043991449},{"$f":"SUM('Charges Summary'!N99,'Charges Summary'!N8)*'DNSP Inputs General'!$D117*'DNSP Inputs General'!T117","v":46047.044304025447},{"$f":"SUM('Charges Summary'!O99,'Charges Summary'!O8)*'DNSP Inputs General'!$D117*'DNSP Inputs General'!U117","v":47214.488686306016},null,null,{"$f":"D306/'Charges Summary'!K$4","v":42085.701574720166},{"$f":"E306/'Charges Summary'!L$4","v":42236.00296794864},{"$f":"F306/'Charges Summary'!M$4","v":42371.77104308136},{"$f":"G306/'Charges Summary'!N$4","v":42541.373496474807},{"$f":"H306/'Charges Summary'!O$4","v":42764.901576390454}]
[{"$f":"'DNSP Inputs General'!A118","v":"LED 18W"},null,null,{"$f":"SUM('Charges Summary'!K115,'Charges Summary'!K8)*'DNSP Inputs General'!$D118*'DNSP Inputs General'!Q118","v":290373.31958971487},{"$f":"SUM('Charges Summary'!L115,'Charges Summary'!L8)*'DNSP Inputs General'!$D118*'DNSP Inputs General'!R118","v":324811.89090385637},{"$f":"SUM('Charges Summary'!M115,'Charges Summary'!M8)*'DNSP Inputs General'!$D118*'DNSP Inputs General'!S118","v":360739.93730980408},{"$f":"SUM('Charges Summary'!N115,'Charges Summary'!N8)*'DNSP Inputs General'!$D118*'DNSP Inputs General'!T118","v":398627.27814155421},{"$f":"SUM('Charges Summary'!O115,'Charges Summary'!O8)*'DNSP Inputs General'!$D118*'DNSP Inputs General'!U118","v":420553.83043628832},null,null,{"$f":"D307/'Charges Summary'!K$4","v":284681.43526846025},{"$f":"E307/'Charges Summary'!L$4","v":312202.80032225221},{"$f":"F307/'Charges Summary'!M$4","v":339939.42625681538},{"$f":"G307/'Charges Summary'!N$4","v":368278.83703754941},{"$f":"H307/'Charges Summary'!O$4","v":380920.00287611253}]
[{"$f":"'DNSP Inputs General'!A119","v":"LED 14W"},null,null,{"$f":"SUM('Charges Summary'!K131,'Charges Summary'!K$8)*'DNSP Inputs General'!$D119*'DNSP Inputs General'!Q119","v":14892.799531189437},{"$f":"SUM('Charges Summary'!L131,'Charges Summary'!L$8)*'DNSP Inputs General'!$D119*'DNSP Inputs General'!R119","v":15223.984450684773},{"$f":"SUM('Charges Summary'!M131,'Charges Summary'!M$8)*'DNSP Inputs General'!$D119*'DNSP Inputs General'!S119","v":15556.604712884862},{"$f":"SUM('Charges Summary'!N131,'Charges Summary'!N$8)*'DNSP Inputs General'!$D119*'DNSP Inputs General'!T119","v":15907.891828421827},{"$f":"SUM('Charges Summary'!O131,'Charges Summary'!O$8)*'DNSP Inputs General'!$D119*'DNSP Inputs General'!U119","v":16281.513790849613},null,null,{"$f":"D308/'Charges Summary'!K$4","v":14600.871566626649},{"$f":"E308/'Charges Summary'!L$4","v":14632.994390507336},{"$f":"F308/'Charges Summary'!M$4","v":14659.600265053397},{"$f":"G308/'Charges Summary'!N$4","v":14696.786255078947},{"$f":"H308/'Charges Summary'!O$4","v":14747.11162089264}]
[{"$f":"'DNSP Inputs General'!A120","v":"LED 70W-125W (L1)"},null,null,{"$f":"SUM('Charges Summary'!K147,'Charges Summary'!K$8)*'DNSP Inputs General'!$D120*'DNSP Inputs General'!Q120","v":19136.889094261714},{"$f":"SUM('Charges Summary'!L147,'Charges Summary'!L$8)*'DNSP Inputs General'!$D120*'DNSP Inputs General'!R120","v":19830.167751227378},{"$f":"SUM('Charges Summary'!M147,'Charges Summary'!M$8)*'DNSP Inputs General'!$D120*'DNSP Inputs General'!S120","v":21548.453925335842},{"$f":"SUM('Charges Summary'!N147,'Charges Summary'!N$8)*'DNSP Inputs General'!$D120*'DNSP Inputs General'!T120","v":22324.156158311915},{"$f":"SUM('Charges Summary'!O147,'Charges Summary'!O$8)*'DNSP Inputs General'!$D120*'DNSP Inputs General'!U120","v":22074.590674502706},null,null,{"$f":"D309/'Charges Summary'!K$4","v":18761.768683243499},{"$f":"E309/'Charges Summary'!L$4","v":19060.367173028586},{"$f":"F309/'Charges Summary'!M$4","v":20305.955361435957},{"$f":"G309/'Charges Summary'!N$4","v":20624.565148068628},{"$f":"H309/'Charges Summary'!O$4","v":19994.237442796148}]
[{"$f":"'DNSP Inputs General'!A121","v":"LED 155W-250W (L2)"},null,null,{"$f":"SUM('Charges Summary'!K163,'Charges Summary'!K$8)*'DNSP Inputs General'!$D121*'DNSP Inputs General'!Q121","v":28461.260706657627},{"$f":"SUM('Charges Summary'!L163,'Charges Summary'!L$8)*'DNSP Inputs General'!$D121*'DNSP Inputs General'!R121","v":39739.939954259535},{"$f":"SUM('Charges Summary'!M163,'Charges Summary'!M$8)*'DNSP Inputs General'!$D121*'DNSP Inputs General'!S121","v":49756.614529884297},{"$f":"SUM('Charges Summary'!N163,'Charges Summary'!N$8)*'DNSP Inputs General'!$D121*'DNSP Inputs General'!T121","v":55640.06068101641},{"$f":"SUM('Charges Summary'!O163,'Charges Summary'!O$8)*'DNSP Inputs General'!$D121*'DNSP Inputs General'!U121","v":57382.195859130661},null,null,{"$f":"D310/'Charges Summary'!K$4","v":27903.364396458532},{"$f":"E310/'Charges Summary'!L$4","v":38197.248579272011},{"$f":"F310/'Charges Summary'!M$4","v":46887.614168553831},{"$f":"G310/'Charges Summary'!N$4","v":51404.050760989172},{"$f":"H310/'Charges Summary'!O$4","v":51974.383847656049}]
[{"$f":"'DNSP Inputs General'!A122","v":"LED 275W-400W (L4)"},null,null,{"$f":"SUM('Charges Summary'!K179,'Charges Summary'!K$8)*'DNSP Inputs General'!$D122*'DNSP Inputs General'!Q122","v":3026.7421277733429},{"$f":"SUM('Charges Summary'!L179,'Charges Summary'!L$8)*'DNSP Inputs General'!$D122*'DNSP Inputs General'!R122","v":3403.3573373978643},{"$f":"SUM('Charges Summary'!M179,'Charges Summary'!M$8)*'DNSP Inputs General'!$D122*'DNSP Inputs General'!S122","v":3883.2249050520168},{"$f":"SUM('Charges Summary'!N179,'Charges Summary'!N$8)*'DNSP Inputs General'!$D122*'DNSP Inputs General'!T122","v":4150.2005133038865},{"$f":"SUM('Charges Summary'!O179,'Charges Summary'!O$8)*'DNSP Inputs General'!$D122*'DNSP Inputs General'!U122","v":3835.1257511613144},null,null,{"$f":"D311/'Charges Summary'!K$4","v":2967.4120691925609},{"$f":"E311/'Charges Summary'!L$4","v":3271.2401269429088},{"$f":"F311/'Charges Summary'!M$4","v":3659.3155060507984},{"$f":"G311/'Charges Summary'!N$4","v":3834.2358948386959},{"$f":"H311/'Charges Summary'!O$4","v":3473.6958896488663}]
[{"$f":"'DNSP Inputs General'!A123","v":"Compact Fluorescent 32W"},null,null,{"$f":"IF('DNSP Inputs General'!$B123='DNSP Inputs General'!$A$116,D$271,D$272)*'DNSP Inputs General'!$D123*'DNSP Inputs General'!Q123","v":22919.071512024548},{"$f":"IF('DNSP Inputs General'!$B123='DNSP Inputs General'!$A$116,E$271,E$272)*'DNSP Inputs General'!$D123*'DNSP Inputs General'!R123","v":23459.017255215524},{"$f":"IF('DNSP Inputs General'!$B123='DNSP Inputs General'!$A$116,F$271,F$272)*'DNSP Inputs General'!$D123*'DNSP Inputs General'!S123","v":24003.104450288749},{"$f":"IF('DNSP Inputs General'!$B123='DNSP Inputs General'!$A$116,G$271,G$272)*'DNSP Inputs General'!$D123*'DNSP Inputs General'!T123","v":24579.031029301237},{"$f":"IF('DNSP Inputs General'!$B123='DNSP Inputs General'!$A$116,H$271,H$272)*'DNSP Inputs General'!$D123*'DNSP Inputs General'!U123","v":25199.660057255544},null,null,{"$f":"D312/'Charges Summary'!K$4","v":22469.812936955288},{"$f":"E312/'Charges Summary'!L$4","v":22548.34593495286},{"$f":"F312/'Charges Summary'!M$4","v":22619.069061394468},{"$f":"G312/'Charges Summary'!N$4","v":22707.771041615772},{"$f":"H312/'Charges Summary'!O$4","v":22824.794085286652}]
[{"$f":"'DNSP Inputs General'!A124","v":"Compact Fluorescent 42W"},null,null,{"$f":"IF('DNSP Inputs General'!$B124='DNSP Inputs General'!$A$116,D$271,D$272)*'DNSP Inputs General'!$D124*'DNSP Inputs General'!Q124","v":92265.664842778613},{"$f":"IF('DNSP Inputs General'!$B124='DNSP Inputs General'!$A$116,E$271,E$272)*'DNSP Inputs General'!$D124*'DNSP Inputs General'!R124","v":94439.332870665603},{"$f":"IF('DNSP Inputs General'!$B124='DNSP Inputs General'!$A$116,F$271,F$272)*'DNSP Inputs General'!$D124*'DNSP Inputs General'!S124","v":96629.673206203879},{"$f":"IF('DNSP Inputs General'!$B124='DNSP Inputs General'!$A$116,G$271,G$272)*'DNSP Inputs General'!$D124*'DNSP Inputs General'!T124","v":98948.189847915797},{"$f":"IF('DNSP Inputs General'!$B124='DNSP Inputs General'!$A$116,H$271,H$272)*'DNSP Inputs General'!$D124*'DNSP Inputs General'!U124","v":101446.66583787414},null,null,{"$f":"D313/'Charges Summary'!K$4","v":90457.077566747947},{"$f":"E313/'Charges Summary'!L$4","v":90773.229085736864},{"$f":"F313/'Charges Summary'!M$4","v":91057.940282587544},{"$f":"G313/'Charges Summary'!N$4","v":91415.029232447312},{"$f":"H313/'Charges Summary'!O$4","v":91886.130730627745}]
[{"$f":"'DNSP Inputs General'!A125","v":"Smart lighting L1"},null,null,{"$f":"SUM('Charges Summary'!K195,'Charges Summary'!K$8)*'DNSP Inputs General'!$D125*'DNSP Inputs General'!Q125","v":44.658822880004209},{"$f":"SUM('Charges Summary'!L195,'Charges Summary'!L$8)*'DNSP Inputs General'!$D125*'DNSP Inputs General'!R125","v":7748.7602902495937},{"$f":"SUM('Charges Summary'!M195,'Charges Summary'!M$8)*'DNSP Inputs General'!$D125*'DNSP Inputs General'!S125","v":14429.53542056908},{"$f":"SUM('Charges Summary'!N195,'Charges Summary'!N$8)*'DNSP Inputs General'!$D125*'DNSP Inputs General'!T125","v":23237.196970995716},{"$f":"SUM('Charges Summary'!O195,'Charges Summary'!O$8)*'DNSP Inputs General'!$D125*'DNSP Inputs General'!U125","v":34403.944814744747},null,null,{"$f":"D314/'Charges Summary'!K$4","v":43.783422708543732},{"$f":"E314/'Charges Summary'!L$4","v":7447.9559689453135},{"$f":"F314/'Charges Summary'!M$4","v":13597.518557553225},{"$f":"G314/'Charges Summary'!N$4","v":21468.093995945426},{"$f":"H314/'Charges Summary'!O$4","v":31161.648781528686}]
[{"$f":"'DNSP Inputs General'!A126","v":"Smart lighting L2"},null,null,{"$f":"SUM('Charges Summary'!K211,'Charges Summary'!K$8)*'DNSP Inputs General'!$D126*'DNSP Inputs General'!Q126","v":133.97646864001263},{"$f":"SUM('Charges Summary'!L211,'Charges Summary'!L$8)*'DNSP Inputs General'!$D126*'DNSP Inputs General'!R126","v":15777.856711770473},{"$f":"SUM('Charges Summary'!M211,'Charges Summary'!M$8)*'DNSP Inputs General'!$D126*'DNSP Inputs General'!S126","v":33831.270352147018},{"$f":"SUM('Charges Summary'!N211,'Charges Summary'!N$8)*'DNSP Inputs General'!$D126*'DNSP Inputs General'!T126","v":58801.329291501694},{"$f":"SUM('Charges Summary'!O211,'Charges Summary'!O$8)*'DNSP Inputs General'!$D126*'DNSP Inputs General'!U126","v":90855.472686437512},null,null,{"$f":"D315/'Charges Summary'!K$4","v":131.3502681256312},{"$f":"E315/'Charges Summary'!L$4","v":15165.365512914788},{"$f":"F315/'Charges Summary'!M$4","v":31880.53620792018},{"$f":"G315/'Charges Summary'!N$4","v":54324.644486688514},{"$f":"H315/'Charges Summary'!O$4","v":82293.072639773207}]
[{"$f":"'DNSP Inputs General'!A127","v":"Smart lighting L4"},null,null,{"$f":"SUM('Charges Summary'!K227,'Charges Summary'!K$8)*'DNSP Inputs General'!$D127*'DNSP Inputs General'!Q127","v":44.658822880004209},{"$f":"SUM('Charges Summary'!L227,'Charges Summary'!L$8)*'DNSP Inputs General'!$D127*'DNSP Inputs General'!R127","v":1352.2697433821158},{"$f":"SUM('Charges Summary'!M227,'Charges Summary'!M$8)*'DNSP Inputs General'!$D127*'DNSP Inputs General'!S127","v":2643.1970337963307},{"$f":"SUM('Charges Summary'!N227,'Charges Summary'!N$8)*'DNSP Inputs General'!$D127*'DNSP Inputs General'!T127","v":4390.3459187310291},{"$f":"SUM('Charges Summary'!O227,'Charges Summary'!O$8)*'DNSP Inputs General'!$D127*'DNSP Inputs General'!U127","v":6078.2894040445935},null,null,{"$f":"D316/'Charges Summary'!K$4","v":43.783422708543732},{"$f":"E316/'Charges Summary'!L$4","v":1299.7750775075999},{"$f":"F316/'Charges Summary'!M$4","v":2490.7884883862594},{"$f":"G316/'Charges Summary'!N$4","v":4056.0984603985303},{"$f":"H316/'Charges Summary'!O$4","v":5505.4593483753151}]
[]
["Total O & M",null,null,{"$f":"SUM(D280:D316)","v":1915494.595118463},{"$f":"SUM(E280:E316)","v":1938870.2848113473},1961619.8945219619,1989536.0346993194,2053282.5540014624,null,null,{"$f":"SUM(K280:K316)","v":1877947.1590495852},1863603.9791993918,1848511.5522573094,1838067.9328301675,1859777.1314181339]
[]
[]
["Public Lighting - Capital Charge",null,null,"Capital Charge - Nominal ",null,null,null,null,null,null,"Capital Charge - Real 2021 $ "]
[null,null,null,{"$f":"D$2","v":"2022-06-30"},"2023-06-30","2024-06-30","2025-06-30","2026-06-30",null,null,{"$f":"K$2","v":"2022-06-30"},"2023-06-30","2024-06-30","2025-06-30","2026-06-30"]
[]
["Unit cost"]
[{"$f":"'DNSP Inputs General'!A$89","v":"Mercury Vapour 80W"},null,null,{"$f":"SUM('Charges Summary'!K27,'Charges Summary'!K11)","v":38.069190649694285},{"$f":"SUM('Charges Summary'!L27,'Charges Summary'!L11)","v":38.696872663413558},{"$f":"SUM('Charges Summary'!M27,'Charges Summary'!M11)","v":38.680865098609331},{"$f":"SUM('Charges Summary'!N27,'Charges Summary'!N11)","v":43.744131424943603},{"$f":"SUM('Charges Summary'!O27,'Charges Summary'!O11)","v":44.28903302182907},null,null,{"$f":"D325/'Charges Summary'!K$4","v":37.322960143089837},{"$f":"E325/'Charges Summary'!L$4","v":37.194672816973174},{"$f":"F325/'Charges Summary'!M$4","v":36.450500010610185},{"$f":"G325/'Charges Summary'!N$4","v":40.413786842442846},{"$f":"H325/'Charges Summary'!O$4","v":40.115146659236466}]
[{"$f":"'DNSP Inputs General'!A$90","v":"HP Sodium 150W"},null,null,{"$f":"SUM('Charges Summary'!K51,'Charges Summary'!K11)","v":42.641983425082088},{"$f":"SUM('Charges Summary'!L51,'Charges Summary'!L11)","v":43.286765637614536},{"$f":"SUM('Charges Summary'!M51,'Charges Summary'!M11)","v":42.272793554398106},{"$f":"SUM('Charges Summary'!N51,'Charges Summary'!N11)","v":47.986400811169389},{"$f":"SUM('Charges Summary'!O51,'Charges Summary'!O11)","v":48.547320763347443},null,null,{"$f":"D326/'Charges Summary'!K$4","v":41.806117246924373},{"$f":"E326/'Charges Summary'!L$4","v":41.60638765825383},{"$f":"F326/'Charges Summary'!M$4","v":39.835315419522715},{"$f":"G326/'Charges Summary'!N$4","v":44.333082188318393},{"$f":"H326/'Charges Summary'!O$4","v":43.972124913515451}]
[{"$f":"'DNSP Inputs General'!A$91","v":"HP Sodium 250W"},null,null,{"$f":"SUM('Charges Summary'!K67,'Charges Summary'!K11)","v":42.865192717699586},{"$f":"SUM('Charges Summary'!L67,'Charges Summary'!L11)","v":43.510809633107968},{"$f":"SUM('Charges Summary'!M67,'Charges Summary'!M11)","v":43.027753405270801},{"$f":"SUM('Charges Summary'!N67,'Charges Summary'!N11)","v":48.878050826643751},{"$f":"SUM('Charges Summary'!O67,'Charges Summary'!O11)","v":49.44233755387642},null,null,{"$f":"D327/'Charges Summary'!K$4","v":42.024951201357204},{"$f":"E327/'Charges Summary'!L$4","v":41.821734339663166},{"$f":"F327/'Charges Summary'!M$4","v":40.546743770002777},{"$f":"G327/'Charges Summary'!N$4","v":45.156848771163247},{"$f":"H327/'Charges Summary'!O$4","v":44.78279354556377}]
[]
[{"$f":"'DNSP Inputs General'!A$116","v":"T5 2X14W"},null,null,{"$f":"SUM('Charges Summary'!K85,'Charges Summary'!K11)","v":19.346433508175672},{"$f":"SUM('Charges Summary'!L85,'Charges Summary'!L11)","v":21.550401987268231},{"$f":"SUM('Charges Summary'!M85,'Charges Summary'!M11)","v":23.390924514370845},{"$f":"SUM('Charges Summary'!N85,'Charges Summary'!N11)","v":24.983036903557363},{"$f":"SUM('Charges Summary'!O85,'Charges Summary'!O11)","v":26.108222824727509},null,null,{"$f":"D329/'Charges Summary'!K$4","v":18.96720561729034},{"$f":"E329/'Charges Summary'!L$4","v":20.713822482831681},{"$f":"F329/'Charges Summary'!M$4","v":22.042187838500794},{"$f":"G329/'Charges Summary'!N$4","v":23.081018989475851},{"$f":"H329/'Charges Summary'!O$4","v":23.647732094529161}]
[{"$f":"'DNSP Inputs General'!A$117","v":"T5 2X24W"},null,null,{"$f":"SUM('Charges Summary'!K101,'Charges Summary'!K11)","v":19.53618289574414},{"$f":"SUM('Charges Summary'!L101,'Charges Summary'!L11)","v":21.785453020624516},{"$f":"SUM('Charges Summary'!M101,'Charges Summary'!M11)","v":23.66287380179152},{"$f":"SUM('Charges Summary'!N101,'Charges Summary'!N11)","v":25.28518768930839},{"$f":"SUM('Charges Summary'!O101,'Charges Summary'!O11)","v":26.429150989754589},null,null,{"$f":"D330/'Charges Summary'!K$4","v":19.153235546178532},{"$f":"E330/'Charges Summary'!L$4","v":20.939748912520773},{"$f":"F330/'Charges Summary'!M$4","v":22.29845634435614},{"$f":"G330/'Charges Summary'!N$4","v":23.360166318542618},{"$f":"H330/'Charges Summary'!O$4","v":23.938415352409177}]
[{"$f":"'DNSP Inputs General'!A$118","v":"LED 18W"},null,null,{"$f":"SUM('Charges Summary'!K117,'Charges Summary'!K11)","v":17.858582991184925},{"$f":"SUM('Charges Summary'!L117,'Charges Summary'!L11)","v":19.707335161178104},{"$f":"SUM('Charges Summary'!M117,'Charges Summary'!M11)","v":21.258533506056658},{"$f":"SUM('Charges Summary'!N117,'Charges Summary'!N11)","v":22.613831877129456},{"$f":"SUM('Charges Summary'!O117,'Charges Summary'!O11)","v":23.591781837110894},null,null,{"$f":"D331/'Charges Summary'!K$4","v":17.508519877015289},{"$f":"E331/'Charges Summary'!L$4","v":18.942302903652532},{"$f":"F331/'Charges Summary'!M$4","v":20.032751951453488},{"$f":"G331/'Charges Summary'!N$4","v":20.892187166665803},{"$f":"H331/'Charges Summary'!O$4","v":21.368445499407525}]
[{"$f":"'DNSP Inputs General'!A$72","v":"LED 14W"},null,null,{"$f":"SUM('Charges Summary'!K133,'Charges Summary'!K$11)","v":17.858582991184921},{"$f":"SUM('Charges Summary'!L133,'Charges Summary'!L$11)","v":19.707335161178104},{"$f":"SUM('Charges Summary'!M133,'Charges Summary'!M$11)","v":21.258533506056661},{"$f":"SUM('Charges Summary'!N133,'Charges Summary'!N$11)","v":22.613831877129456},{"$f":"SUM('Charges Summary'!O133,'Charges Summary'!O$11)","v":23.591781837110897},null,null,{"$f":"D332/'Charges Summary'!K$4","v":17.508519877015289},{"$f":"E332/'Charges Summary'!L$4","v":18.942302903652532},{"$f":"F332/'Charges Summary'!M$4","v":20.032751951453491},{"$f":"G332/'Charges Summary'!N$4","v":20.892187166665803},{"$f":"H332/'Charges Summary'!O$4","v":21.368445499407528}]
[{"$f":"'DNSP Inputs General'!A$73","v":"LED 70W-125W (L1)"},null,null,{"$f":"SUM('Charges Summary'!K149,'Charges Summary'!K$11)","v":23.160799920403051},{"$f":"SUM('Charges Summary'!L149,'Charges Summary'!L$11)","v":26.275427866311162},{"$f":"SUM('Charges Summary'!M149,'Charges Summary'!M$11)","v":28.857683807031599},{"$f":"SUM('Charges Summary'!N149,'Charges Summary'!N$11)","v":31.056910571165233},{"$f":"SUM('Charges Summary'!O149,'Charges Summary'!O$11)","v":32.559561767654905},null,null,{"$f":"D333/'Charges Summary'!K$4","v":22.70680299630229},{"$f":"E333/'Charges Summary'!L$4","v":25.255424414113687},{"$f":"F333/'Charges Summary'!M$4","v":27.193730058333365},{"$f":"G333/'Charges Summary'!N$4","v":28.692474234205232},{"$f":"H333/'Charges Summary'!O$4","v":29.491084052934326}]
[{"$f":"'DNSP Inputs General'!A$74","v":"LED 155W-250W (L2)"},null,null,{"$f":"SUM('Charges Summary'!K165,'Charges Summary'!K$11)","v":23.833670089085555},{"$f":"SUM('Charges Summary'!L165,'Charges Summary'!L$11)","v":27.108942168993021},{"$f":"SUM('Charges Summary'!M165,'Charges Summary'!M$11)","v":29.822042982282223},{"$f":"SUM('Charges Summary'!N165,'Charges Summary'!N$11)","v":32.128367258225616},{"$f":"SUM('Charges Summary'!O165,'Charges Summary'!O$11)","v":33.697604906048817},null,null,{"$f":"D334/'Charges Summary'!K$4","v":23.366483595196581},{"$f":"E334/'Charges Summary'!L$4","v":26.056581966202664},{"$f":"F334/'Charges Summary'!M$4","v":28.102483625196292},{"$f":"G334/'Charges Summary'!N$4","v":29.682358379832067},{"$f":"H334/'Charges Summary'!O$4","v":30.521875747544328}]
[{"$f":"'DNSP Inputs General'!A$75","v":"LED 275W-400W (L4)"},null,null,{"$f":"SUM('Charges Summary'!K181,'Charges Summary'!K$11)","v":29.859357023671109},{"$f":"SUM('Charges Summary'!L181,'Charges Summary'!L$11)","v":34.573229452369617},{"$f":"SUM('Charges Summary'!M181,'Charges Summary'!M$11)","v":38.458072268486646},{"$f":"SUM('Charges Summary'!N181,'Charges Summary'!N$11)","v":41.723476182188712},{"$f":"SUM('Charges Summary'!O181,'Charges Summary'!O$11)","v":43.889008818993958},null,null,{"$f":"D335/'Charges Summary'!K$4","v":29.274055294414723},{"$f":"E335/'Charges Summary'!L$4","v":33.231108076669891},{"$f":"F335/'Charges Summary'!M$4","v":36.240553567167204},{"$f":"G335/'Charges Summary'!N$4","v":38.546968880749461},{"$f":"H335/'Charges Summary'!O$4","v":39.752821531115799}]
[]
[{"$f":"'DNSP Inputs General'!A$88","v":"Existing Lights"}]
[{"$f":"'DNSP Inputs General'!A$89","v":"Mercury Vapour 80W"},null,null,{"$f":"D325*'DNSP Inputs General'!Q89","v":134096.3181969263},{"$f":"E325*'DNSP Inputs General'!R89","v":90871.525615000428},{"$f":"F325*'DNSP Inputs General'!S89","v":45416.967595703725},{"$f":"G325*'DNSP Inputs General'!T89","v":43.744131424943603},{"$f":"H325*'DNSP Inputs General'!U89","v":44.28903302182907},null,null,{"$f":"D338/'Charges Summary'!K$4","v":131467.76839709788},{"$f":"E338/'Charges Summary'!L$4","v":87343.922932168658},{"$f":"F338/'Charges Summary'!M$4","v":42798.194239161399},{"$f":"G338/'Charges Summary'!N$4","v":40.413786842442846},{"$f":"H338/'Charges Summary'!O$4","v":40.115146659236466}]
[{"$f":"'DNSP Inputs General'!A$90","v":"HP Sodium 150W"},null,null,{"$f":"D326*'DNSP Inputs General'!Q90","v":223396.13666500105},{"$f":"E326*'DNSP Inputs General'!R90","v":215476.06197634459},{"$f":"F326*'DNSP Inputs General'!S90","v":199714.25362030481},{"$f":"G326*'DNSP Inputs General'!T90","v":214902.61410922927},{"$f":"H326*'DNSP Inputs General'!U90","v":205828.64790987599},null,null,{"$f":"D339/'Charges Summary'!K$4","v":219017.13597199999},{"$f":"E339/'Charges Summary'!L$4","v":207111.35224830298},{"$f":"F339/'Charges Summary'!M$4","v":188198.59341686871},{"$f":"G339/'Charges Summary'!N$4","v":198541.56787627519},{"$f":"H339/'Charges Summary'!O$4","v":186430.94766840828}]
[{"$f":"'DNSP Inputs General'!A$91","v":"HP Sodium 250W"},null,null,{"$f":"D327*'DNSP Inputs General'!Q91","v":214542.21340531218},{"$f":"E327*'DNSP Inputs General'!R91","v":210227.95366600735},{"$f":"F327*'DNSP Inputs General'!S91","v":200586.92635019586},{"$f":"G327*'DNSP Inputs General'!T91","v":219728.28321231451},{"$f":"H327*'DNSP Inputs General'!U91","v":214206.51716669751},null,null,{"$f":"D340/'Charges Summary'!K$4","v":210336.76690473701},{"$f":"E340/'Charges Summary'!L$4","v":202066.97377335746},{"$f":"F340/'Charges Summary'!M$4","v":189020.94724140345},{"$f":"G340/'Charges Summary'!N$4","v":202999.8473334607},{"$f":"H340/'Charges Summary'!O$4","v":194019.269900769}]
[{"$f":"'DNSP Inputs General'!A$92","v":"Mercury Vapour 50W"},null,null,{"$f":"IF('DNSP Inputs General'!$B92='DNSP Inputs General'!$A$89,D$325,IF('DNSP Inputs General'!$B92='DNSP Inputs General'!$A$90,D$326,D$327))*'DNSP Inputs General'!$D92*'DNSP Inputs General'!Q92","v":5320.7028616270709},{"$f":"IF('DNSP Inputs General'!$B92='DNSP Inputs General'!$A$89,E$325,IF('DNSP Inputs General'!$B92='DNSP Inputs General'!$A$90,E$326,E$327))*'DNSP Inputs General'!$D92*'DNSP Inputs General'!R92","v":3605.6201458872943},{"$f":"IF('DNSP Inputs General'!$B92='DNSP Inputs General'!$A$89,F$325,IF('DNSP Inputs General'!$B92='DNSP Inputs General'!$A$90,F$326,F$327))*'DNSP Inputs General'!$D92*'DNSP Inputs General'!S92","v":1802.0643124445141},{"$f":"IF('DNSP Inputs General'!$B92='DNSP Inputs General'!$A$89,G$325,IF('DNSP Inputs General'!$B92='DNSP Inputs General'!$A$90,G$326,G$327))*'DNSP Inputs General'!$D92*'DNSP Inputs General'!T92","v":0},{"$f":"IF('DNSP Inputs General'!$B92='DNSP Inputs General'!$A$89,H$325,IF('DNSP Inputs General'!$B92='DNSP Inputs General'!$A$90,H$326,H$327))*'DNSP Inputs General'!$D92*'DNSP Inputs General'!U92","v":0},null,null,{"$f":"D341/'Charges Summary'!K$4","v":5216.4066913076322},{"$f":"E341/'Charges Summary'!L$4","v":3465.6511598509833},{"$f":"F341/'Charges Summary'!M$4","v":1698.1560539668635},{"$f":"G341/'Charges Summary'!N$4","v":0},{"$f":"H341/'Charges Summary'!O$4","v":0}]
[{"$f":"'DNSP Inputs General'!A$93","v":"Mercury Vapour 125W"},null,null,{"$f":"IF('DNSP Inputs General'!$B93='DNSP Inputs General'!$A$89,D$325,IF('DNSP Inputs General'!$B93='DNSP Inputs General'!$A$90,D$326,D$327))*'DNSP Inputs General'!$D93*'DNSP Inputs General'!Q93","v":718.36562755973114},{"$f":"IF('DNSP Inputs General'!$B93='DNSP Inputs General'!$A$89,E$325,IF('DNSP Inputs General'!$B93='DNSP Inputs General'!$A$90,E$326,E$327))*'DNSP Inputs General'!$D93*'DNSP Inputs General'!R93","v":486.80665810574254},{"$f":"IF('DNSP Inputs General'!$B93='DNSP Inputs General'!$A$89,F$325,IF('DNSP Inputs General'!$B93='DNSP Inputs General'!$A$90,F$326,F$327))*'DNSP Inputs General'!$D93*'DNSP Inputs General'!S93","v":243.30264147025269},{"$f":"IF('DNSP Inputs General'!$B93='DNSP Inputs General'!$A$89,G$325,IF('DNSP Inputs General'!$B93='DNSP Inputs General'!$A$90,G$326,G$327))*'DNSP Inputs General'!$D93*'DNSP Inputs General'!T93","v":0},{"$f":"IF('DNSP Inputs General'!$B93='DNSP Inputs General'!$A$89,H$325,IF('DNSP Inputs General'!$B93='DNSP Inputs General'!$A$90,H$326,H$327))*'DNSP Inputs General'!$D93*'DNSP Inputs General'!U93","v":0},null,null,{"$f":"D342/'Charges Summary'!K$4","v":704.28425790010522},{"$f":"E342/'Charges Summary'!L$4","v":467.90898403752254},{"$f":"F342/'Charges Summary'!M$4","v":229.27364506673806},{"$f":"G342/'Charges Summary'!N$4","v":0},{"$f":"H342/'Charges Summary'!O$4","v":0}]
[{"$f":"'DNSP Inputs General'!A$94","v":"Mercury Vapour 250W"},null,null,{"$f":"IF('DNSP Inputs General'!$B94='DNSP Inputs General'!$A$89,D$325,IF('DNSP Inputs General'!$B94='DNSP Inputs General'!$A$90,D$326,D$327))*'DNSP Inputs General'!$D94*'DNSP Inputs General'!Q94","v":8743.9670547127625},{"$f":"IF('DNSP Inputs General'!$B94='DNSP Inputs General'!$A$89,E$325,IF('DNSP Inputs General'!$B94='DNSP Inputs General'!$A$90,E$326,E$327))*'DNSP Inputs General'!$D94*'DNSP Inputs General'!R94","v":5917.1099258611157},{"$f":"IF('DNSP Inputs General'!$B94='DNSP Inputs General'!$A$89,F$325,IF('DNSP Inputs General'!$B94='DNSP Inputs General'!$A$90,F$326,F$327))*'DNSP Inputs General'!$D94*'DNSP Inputs General'!S94","v":2925.7091388171239},{"$f":"IF('DNSP Inputs General'!$B94='DNSP Inputs General'!$A$89,G$325,IF('DNSP Inputs General'!$B94='DNSP Inputs General'!$A$90,G$326,G$327))*'DNSP Inputs General'!$D94*'DNSP Inputs General'!T94","v":0},{"$f":"IF('DNSP Inputs General'!$B94='DNSP Inputs General'!$A$89,H$325,IF('DNSP Inputs General'!$B94='DNSP Inputs General'!$A$90,H$326,H$327))*'DNSP Inputs General'!$D94*'DNSP Inputs General'!U94","v":0},null,null,{"$f":"D343/'Charges Summary'!K$4","v":8572.5682187087896},{"$f":"E343/'Charges Summary'!L$4","v":5687.409668186202},{"$f":"F343/'Charges Summary'!M$4","v":2757.01075256794},{"$f":"G343/'Charges Summary'!N$4","v":0},{"$f":"H343/'Charges Summary'!O$4","v":0}]
[{"$f":"'DNSP Inputs General'!A$95","v":"Mercury Vapour 400W"},null,null,{"$f":"IF('DNSP Inputs General'!$B95='DNSP Inputs General'!$A$89,D$325,IF('DNSP Inputs General'!$B95='DNSP Inputs General'!$A$90,D$326,D$327))*'DNSP Inputs General'!$D95*'DNSP Inputs General'!Q95","v":3130.3378611918065},{"$f":"IF('DNSP Inputs General'!$B95='DNSP Inputs General'!$A$89,E$325,IF('DNSP Inputs General'!$B95='DNSP Inputs General'!$A$90,E$326,E$327))*'DNSP Inputs General'!$D95*'DNSP Inputs General'!R95","v":2118.3237669878613},{"$f":"IF('DNSP Inputs General'!$B95='DNSP Inputs General'!$A$89,F$325,IF('DNSP Inputs General'!$B95='DNSP Inputs General'!$A$90,F$326,F$327))*'DNSP Inputs General'!$D95*'DNSP Inputs General'!S95","v":1047.4030872678045},{"$f":"IF('DNSP Inputs General'!$B95='DNSP Inputs General'!$A$89,G$325,IF('DNSP Inputs General'!$B95='DNSP Inputs General'!$A$90,G$326,G$327))*'DNSP Inputs General'!$D95*'DNSP Inputs General'!T95","v":0},{"$f":"IF('DNSP Inputs General'!$B95='DNSP Inputs General'!$A$89,H$325,IF('DNSP Inputs General'!$B95='DNSP Inputs General'!$A$90,H$326,H$327))*'DNSP Inputs General'!$D95*'DNSP Inputs General'!U95","v":0},null,null,{"$f":"D344/'Charges Summary'!K$4","v":3068.9771238571134},{"$f":"E344/'Charges Summary'!L$4","v":2036.0911363265011},{"$f":"F344/'Charges Summary'!M$4","v":987.00911022129253},{"$f":"G344/'Charges Summary'!N$4","v":0},{"$f":"H344/'Charges Summary'!O$4","v":0}]
[{"$f":"'DNSP Inputs General'!A$96","v":"HP Sodium 100W"},null,null,{"$f":"IF('DNSP Inputs General'!$B96='DNSP Inputs General'!$A$89,D$325,IF('DNSP Inputs General'!$B96='DNSP Inputs General'!$A$90,D$326,D$327))*'DNSP Inputs General'!$D96*'DNSP Inputs General'!Q96","v":14457.715980606581},{"$f":"IF('DNSP Inputs General'!$B96='DNSP Inputs General'!$A$89,E$325,IF('DNSP Inputs General'!$B96='DNSP Inputs General'!$A$90,E$326,E$327))*'DNSP Inputs General'!$D96*'DNSP Inputs General'!R96","v":14448.07167027628},{"$f":"IF('DNSP Inputs General'!$B96='DNSP Inputs General'!$A$89,F$325,IF('DNSP Inputs General'!$B96='DNSP Inputs General'!$A$90,F$326,F$327))*'DNSP Inputs General'!$D96*'DNSP Inputs General'!S96","v":13882.297932347588},{"$f":"IF('DNSP Inputs General'!$B96='DNSP Inputs General'!$A$89,G$325,IF('DNSP Inputs General'!$B96='DNSP Inputs General'!$A$90,G$326,G$327))*'DNSP Inputs General'!$D96*'DNSP Inputs General'!T96","v":15495.463602682634},{"$f":"IF('DNSP Inputs General'!$B96='DNSP Inputs General'!$A$89,H$325,IF('DNSP Inputs General'!$B96='DNSP Inputs General'!$A$90,H$326,H$327))*'DNSP Inputs General'!$D96*'DNSP Inputs General'!U96","v":15405.083986334497},null,null,{"$f":"D345/'Charges Summary'!K$4","v":14174.316503590437},{"$f":"E345/'Charges Summary'!L$4","v":13887.202288576376},{"$f":"F345/'Charges Summary'!M$4","v":13081.835156487283},{"$f":"G345/'Charges Summary'!N$4","v":14315.757169350514},{"$f":"H345/'Charges Summary'!O$4","v":13953.278300410768}]
[{"$f":"'DNSP Inputs General'!A97","v":"HP Sodium 400W"},null,null,{"$f":"IF('DNSP Inputs General'!$B97='DNSP Inputs General'!$A$89,D$325,IF('DNSP Inputs General'!$B97='DNSP Inputs General'!$A$90,D$326,D$327))*'DNSP Inputs General'!$D97*'DNSP Inputs General'!Q97","v":21402.355851345765},{"$f":"IF('DNSP Inputs General'!$B97='DNSP Inputs General'!$A$89,E$325,IF('DNSP Inputs General'!$B97='DNSP Inputs General'!$A$90,E$326,E$327))*'DNSP Inputs General'!$D97*'DNSP Inputs General'!R97","v":21382.521938108468},{"$f":"IF('DNSP Inputs General'!$B97='DNSP Inputs General'!$A$89,F$325,IF('DNSP Inputs General'!$B97='DNSP Inputs General'!$A$90,F$326,F$327))*'DNSP Inputs General'!$D97*'DNSP Inputs General'!S97","v":20800.029330351987},{"$f":"IF('DNSP Inputs General'!$B97='DNSP Inputs General'!$A$89,G$325,IF('DNSP Inputs General'!$B97='DNSP Inputs General'!$A$90,G$326,G$327))*'DNSP Inputs General'!$D97*'DNSP Inputs General'!T97","v":23228.32995200243},{"$f":"IF('DNSP Inputs General'!$B97='DNSP Inputs General'!$A$89,H$325,IF('DNSP Inputs General'!$B97='DNSP Inputs General'!$A$90,H$326,H$327))*'DNSP Inputs General'!$D97*'DNSP Inputs General'!U97","v":23084.100372664376},null,null,{"$f":"D346/'Charges Summary'!K$4","v":20982.82786619784},{"$f":"E346/'Charges Summary'!L$4","v":20552.459481864978},{"$f":"F346/'Charges Summary'!M$4","v":19600.685439528737},{"$f":"G346/'Charges Summary'!N$4","v":21459.902044160139},{"$f":"H346/'Charges Summary'!O$4","v":20908.608943653187}]
[{"$f":"'DNSP Inputs General'!A98","v":"Metal Halide 70W"},null,null,{"$f":"IF('DNSP Inputs General'!$B98='DNSP Inputs General'!$A$89,D$325,IF('DNSP Inputs General'!$B98='DNSP Inputs General'!$A$90,D$326,D$327))*'DNSP Inputs General'!$D98*'DNSP Inputs General'!Q98","v":0},{"$f":"IF('DNSP Inputs General'!$B98='DNSP Inputs General'!$A$89,E$325,IF('DNSP Inputs General'!$B98='DNSP Inputs General'!$A$90,E$326,E$327))*'DNSP Inputs General'!$D98*'DNSP Inputs General'!R98","v":0},{"$f":"IF('DNSP Inputs General'!$B98='DNSP Inputs General'!$A$89,F$325,IF('DNSP Inputs General'!$B98='DNSP Inputs General'!$A$90,F$326,F$327))*'DNSP Inputs General'!$D98*'DNSP Inputs General'!S98","v":0},{"$f":"IF('DNSP Inputs General'!$B98='DNSP Inputs General'!$A$89,G$325,IF('DNSP Inputs General'!$B98='DNSP Inputs General'!$A$90,G$326,G$327))*'DNSP Inputs General'!$D98*'DNSP Inputs General'!T98","v":0},{"$f":"IF('DNSP Inputs General'!$B98='DNSP Inputs General'!$A$89,H$325,IF('DNSP Inputs General'!$B98='DNSP Inputs General'!$A$90,H$326,H$327))*'DNSP Inputs General'!$D98*'DNSP Inputs General'!U98","v":0},null,null,{"$f":"D347/'Charges Summary'!K$4","v":0},{"$f":"E347/'Charges Summary'!L$4","v":0},{"$f":"F347/'Charges Summary'!M$4","v":0},{"$f":"G347/'Charges Summary'!N$4","v":0},{"$f":"H347/'Charges Summary'!O$4","v":0}]
[{"$f":"'DNSP Inputs General'!A99","v":"Metal Halide 100W"},null,null,{"$f":"IF('DNSP Inputs General'!$B99='DNSP Inputs General'!$A$89,D$325,IF('DNSP Inputs General'!$B99='DNSP Inputs General'!$A$90,D$326,D$327))*'DNSP Inputs General'!$D99*'DNSP Inputs General'!Q99","v":0},{"$f":"IF('DNSP Inputs General'!$B99='DNSP Inputs General'!$A$89,E$325,IF('DNSP Inputs General'!$B99='DNSP Inputs General'!$A$90,E$326,E$327))*'DNSP Inputs General'!$D99*'DNSP Inputs General'!R99","v":0},{"$f":"IF('DNSP Inputs General'!$B99='DNSP Inputs General'!$A$89,F$325,IF('DNSP Inputs General'!$B99='DNSP Inputs General'!$A$90,F$326,F$327))*'DNSP Inputs General'!$D99*'DNSP Inputs General'!S99","v":0},{"$f":"IF('DNSP Inputs General'!$B99='DNSP Inputs General'!$A$89,G$325,IF('DNSP Inputs General'!$B99='DNSP Inputs General'!$A$90,G$326,G$327))*'DNSP Inputs General'!$D99*'DNSP Inputs General'!T99","v":0},{"$f":"IF('DNSP Inputs General'!$B99='DNSP Inputs General'!$A$89,H$325,IF('DNSP Inputs General'!$B99='DNSP Inputs General'!$A$90,H$326,H$327))*'DNSP Inputs General'!$D99*'DNSP Inputs General'!U99","v":0},null,null,{"$f":"D348/'Charges Summary'!K$4","v":0},{"$f":"E348/'Charges Summary'!L$4","v":0},{"$f":"F348/'Charges Summary'!M$4","v":0},{"$f":"G348/'Charges Summary'!N$4","v":0},{"$f":"H348/'Charges Summary'!O$4","v":0}]
[{"$f":"'DNSP Inputs General'!A100","v":"Metal Halide 150W"},null,null,{"$f":"IF('DNSP Inputs General'!$B100='DNSP Inputs General'!$A$89,D$325,IF('DNSP Inputs General'!$B100='DNSP Inputs General'!$A$90,D$326,D$327))*'DNSP Inputs General'!$D100*'DNSP Inputs General'!Q100","v":0},{"$f":"IF('DNSP Inputs General'!$B100='DNSP Inputs General'!$A$89,E$325,IF('DNSP Inputs General'!$B100='DNSP Inputs General'!$A$90,E$326,E$327))*'DNSP Inputs General'!$D100*'DNSP Inputs General'!R100","v":0},{"$f":"IF('DNSP Inputs General'!$B100='DNSP Inputs General'!$A$89,F$325,IF('DNSP Inputs General'!$B100='DNSP Inputs General'!$A$90,F$326,F$327))*'DNSP Inputs General'!$D100*'DNSP Inputs General'!S100","v":0},{"$f":"IF('DNSP Inputs General'!$B100='DNSP Inputs General'!$A$89,G$325,IF('DNSP Inputs General'!$B100='DNSP Inputs General'!$A$90,G$326,G$327))*'DNSP Inputs General'!$D100*'DNSP Inputs General'!T100","v":0},{"$f":"IF('DNSP Inputs General'!$B100='DNSP Inputs General'!$A$89,H$325,IF('DNSP Inputs General'!$B100='DNSP Inputs General'!$A$90,H$326,H$327))*'DNSP Inputs General'!$D100*'DNSP Inputs General'!U100","v":0},null,null,{"$f":"D349/'Charges Summary'!K$4","v":0},{"$f":"E349/'Charges Summary'!L$4","v":0},{"$f":"F349/'Charges Summary'!M$4","v":0},{"$f":"G349/'Charges Summary'!N$4","v":0},{"$f":"H349/'Charges Summary'!O$4","v":0}]
[{"$f":"'DNSP Inputs General'!A101","v":"HP Sodium 50W"},null,null,{"$f":"IF('DNSP Inputs General'!$B101='DNSP Inputs General'!$A$89,D$325,IF('DNSP Inputs General'!$B101='DNSP Inputs General'!$A$90,D$326,D$327))*'DNSP Inputs General'!$D101*'DNSP Inputs General'!Q101","v":0},{"$f":"IF('DNSP Inputs General'!$B101='DNSP Inputs General'!$A$89,E$325,IF('DNSP Inputs General'!$B101='DNSP Inputs General'!$A$90,E$326,E$327))*'DNSP Inputs General'!$D101*'DNSP Inputs General'!R101","v":0},{"$f":"IF('DNSP Inputs General'!$B101='DNSP Inputs General'!$A$89,F$325,IF('DNSP Inputs General'!$B101='DNSP Inputs General'!$A$90,F$326,F$327))*'DNSP Inputs General'!$D101*'DNSP Inputs General'!S101","v":0},{"$f":"IF('DNSP Inputs General'!$B101='DNSP Inputs General'!$A$89,G$325,IF('DNSP Inputs General'!$B101='DNSP Inputs General'!$A$90,G$326,G$327))*'DNSP Inputs General'!$D101*'DNSP Inputs General'!T101","v":0},{"$f":"IF('DNSP Inputs General'!$B101='DNSP Inputs General'!$A$89,H$325,IF('DNSP Inputs General'!$B101='DNSP Inputs General'!$A$90,H$326,H$327))*'DNSP Inputs General'!$D101*'DNSP Inputs General'!U101","v":0},null,null,{"$f":"D350/'Charges Summary'!K$4","v":0},{"$f":"E350/'Charges Summary'!L$4","v":0},{"$f":"F350/'Charges Summary'!M$4","v":0},{"$f":"G350/'Charges Summary'!N$4","v":0},{"$f":"H350/'Charges Summary'!O$4","v":0}]
[]
[]
[]
[]
[]
[]
[]
[]
[]
[]
[]
[{"$f":"'DNSP Inputs General'!A$115","v":"Energy Efficient Lights"}]
[{"$f":"'DNSP Inputs General'!A$116","v":"T5 2X14W"},null,null,{"$f":"SUM('Charges Summary'!K85,'Charges Summary'!K11)*'DNSP Inputs General'!$D116*'DNSP Inputs General'!Q116","v":137428.69876058327},{"$f":"SUM('Charges Summary'!L85,'Charges Summary'!L11)*'DNSP Inputs General'!$D116*'DNSP Inputs General'!R116","v":153084.73789890989},{"$f":"SUM('Charges Summary'!M85,'Charges Summary'!M11)*'DNSP Inputs General'!$D116*'DNSP Inputs General'!S116","v":166159.01413862931},{"$f":"SUM('Charges Summary'!N85,'Charges Summary'!N11)*'DNSP Inputs General'!$D116*'DNSP Inputs General'!T116","v":177468.69216450638},{"$f":"SUM('Charges Summary'!O85,'Charges Summary'!O11)*'DNSP Inputs General'!$D116*'DNSP Inputs General'!U116","v":185461.52644813777},null,null,{"$f":"D363/'Charges Summary'!K$4","v":134734.82779175238},{"$f":"E363/'Charges Summary'!L$4","v":147142.03881404223},{"$f":"F363/'Charges Summary'!M$4","v":156578.17195098964},{"$f":"G363/'Charges Summary'!N$4","v":163957.57928465292},{"$f":"H363/'Charges Summary'!O$4","v":167983.26415133046}]
[{"$f":"'DNSP Inputs General'!A117","v":"T5 2X24W"},null,null,{"$f":"SUM('Charges Summary'!K101,'Charges Summary'!K11)*'DNSP Inputs General'!$D117*'DNSP Inputs General'!Q117","v":19926.906553659024},{"$f":"SUM('Charges Summary'!L101,'Charges Summary'!L11)*'DNSP Inputs General'!$D117*'DNSP Inputs General'!R117","v":22221.162081037008},{"$f":"SUM('Charges Summary'!M101,'Charges Summary'!M11)*'DNSP Inputs General'!$D117*'DNSP Inputs General'!S117","v":24136.13127782735},{"$f":"SUM('Charges Summary'!N101,'Charges Summary'!N11)*'DNSP Inputs General'!$D117*'DNSP Inputs General'!T117","v":25790.891443094559},{"$f":"SUM('Charges Summary'!O101,'Charges Summary'!O11)*'DNSP Inputs General'!$D117*'DNSP Inputs General'!U117","v":26957.73400954968},null,null,{"$f":"D364/'Charges Summary'!K$4","v":19536.300257102102},{"$f":"E364/'Charges Summary'!L$4","v":21358.54389077119},{"$f":"F364/'Charges Summary'!M$4","v":22744.425471243263},{"$f":"G364/'Charges Summary'!N$4","v":23827.369644913473},{"$f":"H364/'Charges Summary'!O$4","v":24417.183659457362}]
[{"$f":"'DNSP Inputs General'!A118","v":"LED 18W"},null,null,{"$f":"SUM('Charges Summary'!K117,'Charges Summary'!K11)*'DNSP Inputs General'!$D118*'DNSP Inputs General'!Q118","v":378015.51167490025},{"$f":"SUM('Charges Summary'!L117,'Charges Summary'!L11)*'DNSP Inputs General'!$D118*'DNSP Inputs General'!R118","v":456537.49390926393},{"$f":"SUM('Charges Summary'!M117,'Charges Summary'!M11)*'DNSP Inputs General'!$D118*'DNSP Inputs General'!S118","v":535336.98361612251},{"$f":"SUM('Charges Summary'!N117,'Charges Summary'!N11)*'DNSP Inputs General'!$D118*'DNSP Inputs General'!T118","v":615471.73012776533},{"$f":"SUM('Charges Summary'!O117,'Charges Summary'!O11)*'DNSP Inputs General'!$D118*'DNSP Inputs General'!U118","v":661980.47055020859},null,null,{"$f":"D365/'Charges Summary'!K$4","v":370605.66917582508},{"$f":"E365/'Charges Summary'!L$4","v":438814.85882166988},{"$f":"F365/'Charges Summary'!M$4","v":504469.08768028166},{"$f":"G365/'Charges Summary'!N$4","v":568614.40606292908},{"$f":"H365/'Charges Summary'!O$4","v":599594.11731982057}]
[{"$f":"'DNSP Inputs General'!A119","v":"LED 14W"},null,null,{"$f":"SUM('Charges Summary'!K133,'Charges Summary'!K$11)*'DNSP Inputs General'!$D119*'DNSP Inputs General'!Q119","v":17195.729857843609},{"$f":"SUM('Charges Summary'!L133,'Charges Summary'!L$11)*'DNSP Inputs General'!$D119*'DNSP Inputs General'!R119","v":18975.862296402534},{"$f":"SUM('Charges Summary'!M133,'Charges Summary'!M$11)*'DNSP Inputs General'!$D119*'DNSP Inputs General'!S119","v":20469.485150334014},{"$f":"SUM('Charges Summary'!N133,'Charges Summary'!N$11)*'DNSP Inputs General'!$D119*'DNSP Inputs General'!T119","v":21774.47920709915},{"$f":"SUM('Charges Summary'!O133,'Charges Summary'!O$11)*'DNSP Inputs General'!$D119*'DNSP Inputs General'!U119","v":22716.130811519866},null,null,{"$f":"D366/'Charges Summary'!K$4","v":16858.659960000776},{"$f":"E366/'Charges Summary'!L$4","v":18239.225574472272},{"$f":"F366/'Charges Summary'!M$4","v":19289.200662584455},{"$f":"G366/'Charges Summary'!N$4","v":20116.736408192235},{"$f":"H366/'Charges Summary'!O$4","v":20575.317564178466}]
[{"$f":"'DNSP Inputs General'!A120","v":"LED 70W-125W (L1)"},null,null,{"$f":"SUM('Charges Summary'!K149,'Charges Summary'!K$11)*'DNSP Inputs General'!$D120*'DNSP Inputs General'!Q120","v":15786.374225645653},{"$f":"SUM('Charges Summary'!L149,'Charges Summary'!L$11)*'DNSP Inputs General'!$D120*'DNSP Inputs General'!R120","v":18123.834511638554},{"$f":"SUM('Charges Summary'!M149,'Charges Summary'!M$11)*'DNSP Inputs General'!$D120*'DNSP Inputs General'!S120","v":21132.476154083262},{"$f":"SUM('Charges Summary'!N149,'Charges Summary'!N$11)*'DNSP Inputs General'!$D120*'DNSP Inputs General'!T120","v":22999.319604400054},{"$f":"SUM('Charges Summary'!O149,'Charges Summary'!O$11)*'DNSP Inputs General'!$D120*'DNSP Inputs General'!U120","v":23241.533171672043},null,null,{"$f":"D367/'Charges Summary'!K$4","v":15476.930451433302},{"$f":"E367/'Charges Summary'!L$4","v":17420.273227575537},{"$f":"F367/'Charges Summary'!M$4","v":19913.963152450928},{"$f":"G367/'Charges Summary'!N$4","v":21248.326798036065},{"$f":"H367/'Charges Summary'!O$4","v":21051.204963260432}]
[{"$f":"'DNSP Inputs General'!A121","v":"LED 155W-250W (L2)"},null,null,{"$f":"SUM('Charges Summary'!K165,'Charges Summary'!K$11)*'DNSP Inputs General'!$D121*'DNSP Inputs General'!Q121","v":24160.312977648133},{"$f":"SUM('Charges Summary'!L165,'Charges Summary'!L$11)*'DNSP Inputs General'!$D121*'DNSP Inputs General'!R121","v":37472.587365063264},{"$f":"SUM('Charges Summary'!M165,'Charges Summary'!M$11)*'DNSP Inputs General'!$D121*'DNSP Inputs General'!S121","v":50426.754359268147},{"$f":"SUM('Charges Summary'!N165,'Charges Summary'!N$11)*'DNSP Inputs General'!$D121*'DNSP Inputs General'!T121","v":59300.44270829681},{"$f":"SUM('Charges Summary'!O165,'Charges Summary'!O$11)*'DNSP Inputs General'!$D121*'DNSP Inputs General'!U121","v":62527.312278300895},null,null,{"$f":"D368/'Charges Summary'!K$4","v":23686.723645031809},{"$f":"E368/'Charges Summary'!L$4","v":36017.913870511256},{"$f":"F368/'Charges Summary'!M$4","v":47519.1132778885},{"$f":"G368/'Charges Summary'!N$4","v":54785.759214070196},{"$f":"H368/'Charges Summary'!O$4","v":56634.614285112897}]
[{"$f":"'DNSP Inputs General'!A122","v":"LED 275W-400W (L4)"},null,null,{"$f":"SUM('Charges Summary'!K181,'Charges Summary'!K$11)*'DNSP Inputs General'!$D122*'DNSP Inputs General'!Q122","v":3218.9436354379895},{"$f":"SUM('Charges Summary'!L181,'Charges Summary'!L$11)*'DNSP Inputs General'!$D122*'DNSP Inputs General'!R122","v":4092.8082864595285},{"$f":"SUM('Charges Summary'!M181,'Charges Summary'!M$11)*'DNSP Inputs General'!$D122*'DNSP Inputs General'!S122","v":5075.1964446173133},{"$f":"SUM('Charges Summary'!N181,'Charges Summary'!N$11)*'DNSP Inputs General'!$D122*'DNSP Inputs General'!T122","v":5744.2224404881163},{"$f":"SUM('Charges Summary'!O181,'Charges Summary'!O$11)*'DNSP Inputs General'!$D122*'DNSP Inputs General'!U122","v":5442.882327821635},null,null,{"$f":"D369/'Charges Summary'!K$4","v":3155.8460518327192},{"$f":"E369/'Charges Summary'!L$4","v":3933.926817331344},{"$f":"F369/'Charges Summary'!M$4","v":4782.5571529170138},{"$f":"G369/'Charges Summary'!N$4","v":5306.901148186711},{"$f":"H369/'Charges Summary'!O$4","v":4929.9342959670266}]
[{"$f":"'DNSP Inputs General'!A123","v":"Compact Fluorescent 32W"},null,null,{"$f":"IF('DNSP Inputs General'!$B123='DNSP Inputs General'!$A$116,D$329,D$330)*'DNSP Inputs General'!$D123*'DNSP Inputs General'!Q123","v":11602.865218873556},{"$f":"IF('DNSP Inputs General'!$B123='DNSP Inputs General'!$A$116,E$329,E$330)*'DNSP Inputs General'!$D123*'DNSP Inputs General'!R123","v":12924.677283032566},{"$f":"IF('DNSP Inputs General'!$B123='DNSP Inputs General'!$A$116,F$329,F$330)*'DNSP Inputs General'!$D123*'DNSP Inputs General'!S123","v":14028.515610921142},{"$f":"IF('DNSP Inputs General'!$B123='DNSP Inputs General'!$A$116,G$329,G$330)*'DNSP Inputs General'!$D123*'DNSP Inputs General'!T123","v":14983.371990895434},{"$f":"IF('DNSP Inputs General'!$B123='DNSP Inputs General'!$A$116,H$329,H$330)*'DNSP Inputs General'!$D123*'DNSP Inputs General'!U123","v":15658.19304171052},null,null,{"$f":"D370/'Charges Summary'!K$4","v":11375.426393866313},{"$f":"E370/'Charges Summary'!L$4","v":12422.945569497493},{"$f":"F370/'Charges Summary'!M$4","v":13219.621823895306},{"$f":"G370/'Charges Summary'!N$4","v":13842.652307774271},{"$f":"H370/'Charges Summary'!O$4","v":14182.533856118782}]
[{"$f":"'DNSP Inputs General'!A124","v":"Compact Fluorescent 42W"},null,null,{"$f":"IF('DNSP Inputs General'!$B124='DNSP Inputs General'!$A$116,D$329,D$330)*'DNSP Inputs General'!$D124*'DNSP Inputs General'!Q124","v":46709.836082969414},{"$f":"IF('DNSP Inputs General'!$B124='DNSP Inputs General'!$A$116,E$329,E$330)*'DNSP Inputs General'!$D124*'DNSP Inputs General'!R124","v":52031.075594476286},{"$f":"IF('DNSP Inputs General'!$B124='DNSP Inputs General'!$A$116,F$329,F$330)*'DNSP Inputs General'!$D124*'DNSP Inputs General'!S124","v":56474.814824843736},{"$f":"IF('DNSP Inputs General'!$B124='DNSP Inputs General'!$A$116,G$329,G$330)*'DNSP Inputs General'!$D124*'DNSP Inputs General'!T124","v":60318.79509609838},{"$f":"IF('DNSP Inputs General'!$B124='DNSP Inputs General'!$A$116,H$329,H$330)*'DNSP Inputs General'!$D124*'DNSP Inputs General'!U124","v":63035.432760529511},null,null,{"$f":"D371/'Charges Summary'!K$4","v":45794.232045984587},{"$f":"E371/'Charges Summary'!L$4","v":50011.246383780184},{"$f":"F371/'Charges Summary'!M$4","v":53218.438448166555},{"$f":"G371/'Charges Summary'!N$4","v":55726.582016820779},{"$f":"H371/'Charges Summary'!O$4","v":57094.848484742331}]
[{"$f":"'DNSP Inputs General'!A125","v":"Smart lighting L1"},null,null,{"$f":"SUM('Charges Summary'!K197,'Charges Summary'!K$11)*'DNSP Inputs General'!$D125*'DNSP Inputs General'!Q125","v":23.160799920403051},{"$f":"SUM('Charges Summary'!L197,'Charges Summary'!L$11)*'DNSP Inputs General'!$D125*'DNSP Inputs General'!R125","v":4455.9484119047656},{"$f":"SUM('Charges Summary'!M197,'Charges Summary'!M$11)*'DNSP Inputs General'!$D125*'DNSP Inputs General'!S125","v":8909.900239071756},{"$f":"SUM('Charges Summary'!N197,'Charges Summary'!N$11)*'DNSP Inputs General'!$D125*'DNSP Inputs General'!T125","v":15086.9953553128},{"$f":"SUM('Charges Summary'!O197,'Charges Summary'!O$11)*'DNSP Inputs General'!$D125*'DNSP Inputs General'!U125","v":22854.861370993804},null,null,{"$f":"D372/'Charges Summary'!K$4","v":22.70680299630229},{"$f":"E372/'Charges Summary'!L$4","v":4282.9699627589707},{"$f":"F372/'Charges Summary'!M$4","v":8396.1493087313847},{"$f":"G372/'Charges Summary'!N$4","v":13938.386579436417},{"$f":"H372/'Charges Summary'!O$4","v":20700.973880419824}]
[{"$f":"'DNSP Inputs General'!A126","v":"Smart lighting L2"},null,null,{"$f":"SUM('Charges Summary'!K213,'Charges Summary'!K$11)*'DNSP Inputs General'!$D126*'DNSP Inputs General'!Q126","v":71.50101026725666},{"$f":"SUM('Charges Summary'!L213,'Charges Summary'!L$11)*'DNSP Inputs General'!$D126*'DNSP Inputs General'!R126","v":9360.9238021451383},{"$f":"SUM('Charges Summary'!M213,'Charges Summary'!M$11)*'DNSP Inputs General'!$D126*'DNSP Inputs General'!S126","v":21588.114846634366},{"$f":"SUM('Charges Summary'!N213,'Charges Summary'!N$11)*'DNSP Inputs General'!$D126*'DNSP Inputs General'!T126","v":39494.495035454413},{"$f":"SUM('Charges Summary'!O213,'Charges Summary'!O$11)*'DNSP Inputs General'!$D126*'DNSP Inputs General'!U126","v":62465.745046480566},null,null,{"$f":"D373/'Charges Summary'!K$4","v":70.099450785589738},{"$f":"E373/'Charges Summary'!L$4","v":8997.5358245058596},{"$f":"F373/'Charges Summary'!M$4","v":20343.329406936937},{"$f":"G373/'Charges Summary'!N$4","v":36487.685360753043},{"$f":"H373/'Charges Summary'!O$4","v":56578.84927139814}]
[{"$f":"'DNSP Inputs General'!A127","v":"Smart lighting L4"},null,null,{"$f":"SUM('Charges Summary'!K229,'Charges Summary'!K$11)*'DNSP Inputs General'!$D127*'DNSP Inputs General'!Q127","v":29.859357023671109},{"$f":"SUM('Charges Summary'!L229,'Charges Summary'!L$11)*'DNSP Inputs General'!$D127*'DNSP Inputs General'!R127","v":1023.2020716148821},{"$f":"SUM('Charges Summary'!M229,'Charges Summary'!M$11)*'DNSP Inputs General'!$D127*'DNSP Inputs General'!S127","v":2175.0841905502766},{"$f":"SUM('Charges Summary'!N229,'Charges Summary'!N$11)*'DNSP Inputs General'!$D127*'DNSP Inputs General'!T127","v":3829.4816269920784},{"$f":"SUM('Charges Summary'!O229,'Charges Summary'!O$11)*'DNSP Inputs General'!$D127*'DNSP Inputs General'!U127","v":5442.882327821635},null,null,{"$f":"D374/'Charges Summary'!K$4","v":29.274055294414723},{"$f":"E374/'Charges Summary'!L$4","v":983.48170433283599},{"$f":"F374/'Charges Summary'!M$4","v":2049.6673512501484},{"$f":"G374/'Charges Summary'!N$4","v":3537.9340987911414},{"$f":"H374/'Charges Summary'!O$4","v":4929.9342959670266}]
[]
["Total Capital Charge",null,null,{"$f":"SUM(D338:D374)","v":1279977.8136590554},{"$f":"SUM(E338:E374)","v":1354838.3088745272},1412331.4248618069,1535661.3518080572,1616353.3426133406,null,null,{"$f":"SUM(K338:K374)","v":1254887.7480173025},1302243.9321339207,1330895.4307426077,1418747.8071346451,1464024.9959876733]
[]
["Check",null,{"$f":"SUM(D378:O378)","v":4.6566128730773926E-9},{"$f":"ABS(D260-SUM(D318,D376))","v":4.6566128730773926E-10},{"$f":"ABS(E260-SUM(E318,E376))","v":9.3132257461547852E-10},{"$f":"ABS(F260-SUM(F318,F376))","v":0},{"$f":"ABS(G260-SUM(G318,G376))","v":0},{"$f":"ABS(H260-SUM(H318,H376))","v":4.6566128730773926E-10},null,null,{"$f":"ABS(K260-SUM(K318,K376))","v":1.3969838619232178E-9},{"$f":"ABS(L260-SUM(L318,L376))","v":0},{"$f":"ABS(M260-SUM(M318,M376))","v":4.6566128730773926E-10},{"$f":"ABS(N260-SUM(N318,N376))","v":4.6566128730773926E-10},{"$f":"ABS(O260-SUM(O318,O376))","v":4.6566128730773926E-10}]

{"sheet":"Charges Summary","index":8,"n_rows":233,"n_cols":15,"rows_kept":233,"cut":false,"hidden":false,"merged":[[1,3,1,7],[1,10,1,14]]}
[{"$f":"'DNSP Inputs O & M'!$A$3","v":"AusNet"},null,null,{"$f":"'DNSP Inputs General'!Q$2","v":"2022-06-30"},{"$f":"'DNSP Inputs General'!R$2","v":"2023-06-30"},{"$f":"'DNSP Inputs General'!S$2","v":"2024-06-30"},{"$f":"'DNSP Inputs General'!T$2","v":"2025-06-30"},{"$f":"'DNSP Inputs General'!U$2","v":"2026-06-30"},null,null,{"$f":"D1","v":"2022-06-30"},{"$f":"E1","v":"2023-06-30"},"2024-06-30","2025-06-30","2026-06-30"]
["Nominal $",null,null,{"$f":"'DNSP Inputs General'!$B$39","v":"Central"},null,null,null,null,null,null,{"$f":"'DNSP Inputs General'!$B$86","v":"North & East"}]
[]
[{"$f":"'Total RAB'!A20","v":"CPI Index"},null,null,{"$f":"(1+WACC!E6)","v":1.0199938725048476},{"$f":"D4*(1+WACC!F6)","v":1.0403874999474354},{"$f":"E4*(1+WACC!G6)","v":1.0611888749770215},{"$f":"F4*(1+WACC!H6)","v":1.0824061500468747},{"$f":"G4*(1+WACC!I6)","v":1.1040476406093749},null,null,{"$f":"D4","v":1.0199938725048476},{"$f":"E4","v":1.0403874999474354},1.0611888749770215,1.0824061500468747,1.1040476406093749]
[]
[{"$f":"'DNSP Inputs General'!$A$6","v":"Poles and Brackets"},null,null,{"$f":"D$1","v":"2022-06-30"},{"$f":"E$1","v":"2023-06-30"},"2024-06-30","2025-06-30","2026-06-30",null,null,{"$f":"K$1","v":"2022-06-30"},{"$f":"L$1","v":"2023-06-30"},"2024-06-30","2025-06-30","2026-06-30"]
["O & M"]
[{"$f":"'O & M 2022-2026'!A$10","v":"Dedicated poles - inspection"},null,null,{"$f":"'O & M 2022-2026'!$B$10*D$4","v":1.4165613890193494},{"$f":"'O & M 2022-2026'!$Y$10*E$4","v":1.4522007713163547},{"$f":"'O & M 2022-2026'!$AV$10*F$4","v":1.4881412937958685},{"$f":"'O & M 2022-2026'!$BS$10*G$4","v":1.5264198292029771},{"$f":"'O & M 2022-2026'!$CP$10*H$4","v":1.5683057422821527},null,null,{"$f":"'O & M 2022-2026'!$M$10*K$4","v":1.4231642999813867},{"$f":"'O & M 2022-2026'!$AJ$10*L$4","v":1.4589698054481137},{"$f":"'O & M 2022-2026'!$BG$10*M$4","v":1.4950778547794117},{"$f":"'O & M 2022-2026'!$CD$10*N$4","v":1.5335348150419554},{"$f":"'O & M 2022-2026'!$DA$10*O$4","v":1.5756159677745403}]
[]
["Capital Charge"]
["Depreciation and Return",null,null,{"$f":"'Depn & WACC Post 2004 Central'!H$87","v":12.303831151366701},{"$f":"'Depn & WACC Post 2004 Central'!H$143","v":12.840304660507147},{"$f":"'Depn & WACC Post 2004 Central'!H$199","v":13.323741422062636},{"$f":"'Depn & WACC Post 2004 Central'!H$255","v":13.80325125383872},{"$f":"'Depn & WACC Post 2004 Central'!H$311","v":14.234497278245758},null,null,{"$f":"'Depn & WACC Post 2004 N & E'!H$87","v":12.341047607988392},{"$f":"'Depn & WACC Post 2004 N & E'!H$143","v":12.87251787918685},{"$f":"'Depn & WACC Post 2004 N & E'!H$199","v":13.350788269001519},{"$f":"'Depn & WACC Post 2004 N & E'!H$255","v":13.827887043234357},{"$f":"'Depn & WACC Post 2004 N & E'!H$311","v":14.259828102280833}]
[]
["Total Charge",null,null,{"$f":"SUM(D8,D11)","v":13.720392540386051},{"$f":"SUM(E8,E11)","v":14.292505431823502},{"$f":"SUM(F8,F11)","v":14.811882715858504},{"$f":"SUM(G8,G11)","v":15.329671083041697},{"$f":"SUM(H8,H11)","v":15.802803020527911},null,null,{"$f":"SUM(K8,K11)","v":13.764211907969779},{"$f":"SUM(L8,L11)","v":14.331487684634963},{"$f":"SUM(M8,M11)","v":14.845866123780931},{"$f":"SUM(N8,N11)","v":15.361421858276312},{"$f":"SUM(O8,O11)","v":15.835444070055374}]
[]
[]
[]
[]
[{"$f":"'DNSP Inputs General'!$A$8","v":"Existing Lights"}]
[]
[{"$f":"'O & M 2022-2026'!$A$8","v":"MV80"},null,null,{"$f":"D$1","v":"2022-06-30"},{"$f":"E$1","v":"2023-06-30"},"2024-06-30","2025-06-30","2026-06-30",null,null,{"$f":"K$1","v":"2022-06-30"},{"$f":"L$1","v":"2023-06-30"},"2024-06-30","2025-06-30","2026-06-30"]
[]
["O & M Charge"]
[{"$f":"'O & M 2022-2026'!A$9","v":"Bulk change & repairs"},null,null,{"$f":"'O & M 2022-2026'!$B$9*D$4","v":22.914166628299284},{"$f":"'O & M 2022-2026'!$Y$9*E$4","v":23.447377260565275},{"$f":"'O & M 2022-2026'!$AV$9*F$4","v":23.98702774541178},{"$f":"'O & M 2022-2026'!$BS$9*G$4","v":24.554082542722149},{"$f":"'O & M 2022-2026'!$CP$9*H$4","v":25.161633135921193},null,null,{"$f":"'O & M 2022-2026'!$M$9*K$4","v":26.656875326132852},{"$f":"'O & M 2022-2026'!$AJ$9*L$4","v":27.276147057624346},{"$f":"'O & M 2022-2026'!$BG$9*M$4","v":27.902947876046305},{"$f":"'O & M 2022-2026'!$CD$9*N$4","v":28.561380965377644},{"$f":"'O & M 2022-2026'!$DA$9*O$4","v":29.266498814503855}]
[{"$f":"'O & M 2022-2026'!A$11","v":"Other costs"},null,null,{"$f":"'O & M 2022-2026'!$B$11*D$4","v":1.3325364452992048},{"$f":"'O & M 2022-2026'!$Y$11*E$4","v":1.3484672840736838},{"$f":"'O & M 2022-2026'!$AV$11*F$4","v":1.3618843935862952},{"$f":"'O & M 2022-2026'!$BS$11*G$4","v":1.3779966840787596},{"$f":"'O & M 2022-2026'!$CP$11*H$4","v":1.3926902579471885},null,null,{"$f":"'O & M 2022-2026'!$M$11*K$4","v":1.3325364452992048},{"$f":"'O & M 2022-2026'!$AJ$11*L$4","v":1.3484672840736838},{"$f":"'O & M 2022-2026'!$BG$11*M$4","v":1.3618843935862952},{"$f":"'O & M 2022-2026'!$CD$11*N$4","v":1.3779966840787596},{"$f":"'O & M 2022-2026'!$DA$11*O$4","v":1.3926902579471885}]
[null,null,null,{"$f":"SUM(D23:D24)","v":24.246703073598489},{"$f":"SUM(E23:E24)","v":24.79584454463896},{"$f":"SUM(F23:F24)","v":25.348912138998074},{"$f":"SUM(G23:G24)","v":25.932079226800909},{"$f":"SUM(H23:H24)","v":26.55432339386838},null,null,{"$f":"SUM(K23:K24)","v":27.989411771432056},{"$f":"SUM(L23:L24)","v":28.624614341698031},{"$f":"SUM(M23:M24)","v":29.264832269632599},{"$f":"SUM(N23:N24)","v":29.939377649456404},{"$f":"SUM(O23:O24)","v":30.659189072451042}]
["Capital Charge"]
["Depreciation and Return",null,null,{"$f":"'Depn & WACC Post 2004 Central'!H$40","v":23.411377001473749},{"$f":"'Depn & WACC Post 2004 Central'!H$96","v":23.498925075676866},{"$f":"'Depn & WACC Post 2004 Central'!H$152","v":25.330076829607808},{"$f":"'Depn & WACC Post 2004 Central'!H$208","v":29.916244381709244},{"$f":"'Depn & WACC Post 2004 Central'!H$264","v":30.029204919548235},null,null,{"$f":"'Depn & WACC Post 2004 N & E'!H$40","v":25.728143041705891},{"$f":"'Depn & WACC Post 2004 N & E'!H$96","v":25.82435478422671},{"$f":"'Depn & WACC Post 2004 N & E'!H$152","v":25.330076829607808},{"$f":"'Depn & WACC Post 2004 N & E'!H$208","v":29.916244381709244},{"$f":"'Depn & WACC Post 2004 N & E'!H$264","v":30.029204919548235}]
[]
["Poles & Brackets Charge",null,null,{"$f":"D$13","v":13.720392540386051},{"$f":"E$13","v":14.292505431823502},{"$f":"F$13","v":14.811882715858504},{"$f":"G$13","v":15.329671083041697},{"$f":"H$13","v":15.802803020527911},null,null,{"$f":"K$13","v":13.764211907969779},{"$f":"L$13","v":14.331487684634963},{"$f":"M$13","v":14.845866123780931},{"$f":"N$13","v":15.361421858276312},{"$f":"O$13","v":15.835444070055374}]
[]
["Total Charge",null,null,{"$f":"SUM(D25,D27,D29)","v":61.378472615458286},{"$f":"SUM(E25,E27,E29)","v":62.587275052139326},{"$f":"SUM(F25,F27,F29)","v":65.490871684464381},{"$f":"SUM(G25,G27,G29)","v":71.177994691551859},{"$f":"SUM(H25,H27,H29)","v":72.386331333944526},null,null,{"$f":"SUM(K25,K27,K29)","v":67.481766721107732},{"$f":"SUM(L25,L27,L29)","v":68.780456810559699},{"$f":"SUM(M25,M27,M29)","v":69.440775223021348},{"$f":"SUM(N25,N27,N29)","v":75.217043889441968},{"$f":"SUM(O25,O27,O29)","v":76.523838062054651}]
[]
["WDV RAB - MV 80 Luminaire"]
["RAB WDV",null,null,{"$f":"'Depn & WACC Post 2004 Central'!I$8","v":149.05386325099531},{"$f":"'Depn & WACC Post 2004 Central'!I$40","v":151.6621239683771},{"$f":"'Depn & WACC Post 2004 Central'!I$96","v":159.3084046511253},{"$f":"'Depn & WACC Post 2004 Central'!I$152","v":184.02441784727324},{"$f":"'Depn & WACC Post 2004 Central'!I$208","v":205.26607091202735},null,null,{"$f":"'Depn & WACC Post 2004 N & E'!I$8","v":163.80408185298413},{"$f":"'Depn & WACC Post 2004 N & E'!I$40","v":166.67045339629991},{"$f":"'Depn & WACC Post 2004 N & E'!I$96","v":175.07340223311516},{"$f":"'Depn & WACC Post 2004 N & E'!I$152","v":184.02441784727321},{"$f":"'Depn & WACC Post 2004 N & E'!I$208","v":205.26607091202735}]
[]
["Avoided Costs - MV 80 O & M"]
["Materials & labour - bulk lamp change",null,null,{"$f":"'O & M 2022-2026'!$G$9*D$4","v":-21.052739764943638},{"$f":"'O & M 2022-2026'!$AD$9*E$4","v":-21.554640352831086},{"$f":"'O & M 2022-2026'!$BA$9*F$4","v":-22.062022625951926},{"$f":"'O & M 2022-2026'!$BX$9*G$4","v":-22.597471450682814},{"$f":"'O & M 2022-2026'!$CU$9*H$4","v":-23.175078605849578},null,null,{"$f":"'O & M 2022-2026'!$R$9*K$4","v":-23.934891035157769},{"$f":"'O & M 2022-2026'!$AO$9*L$4","v":-24.506250735415581},{"$f":"'O & M 2022-2026'!$BL$9*M$4","v":-25.083815460303022},{"$f":"'O & M 2022-2026'!$CI$9*N$4","v":-25.693469099239177},{"$f":"'O & M 2022-2026'!$DF$9*O$4","v":-26.351361233641356}]
["Materials & Labour - repair of faults",null,null,{"$f":"'O & M 2022-2026'!$G$10*D$4","v":-3.9024817100838063},{"$f":"'O & M 2022-2026'!$AD$10*E$4","v":-3.9902908160183368},{"$f":"'O & M 2022-2026'!$BA$10*F$4","v":-4.0793054416767305},{"$f":"'O & M 2022-2026'!$BX$10*G$4","v":-4.1722651544181568},{"$f":"'O & M 2022-2026'!$CU$10*H$4","v":-4.2708836029060837},null,null,{"$f":"'O & M 2022-2026'!$R$10*K$4","v":-4.2791897736417992},{"$f":"'O & M 2022-2026'!$AO$10*L$4","v":-4.3760642392164462},{"$f":"'O & M 2022-2026'!$BL$10*M$4","v":-4.4742392463517735},{"$f":"'O & M 2022-2026'!$CI$10*N$4","v":-4.5768819005228876},{"$f":"'O & M 2022-2026'!$DF$10*O$4","v":-4.6859725422723288}]
[null,null,null,{"$f":"SUM(D37:D38)","v":-24.955221475027443},{"$f":"SUM(E37:E38)","v":-25.544931168849423},{"$f":"SUM(F37:F38)","v":-26.141328067628656},{"$f":"SUM(G37:G38)","v":-26.76973660510097},{"$f":"SUM(H37:H38)","v":-27.44596220875566},null,null,{"$f":"SUM(K37:K38)","v":-28.214080808799569},{"$f":"SUM(L37:L38)","v":-28.882314974632028},{"$f":"SUM(M37:M38)","v":-29.558054706654794},{"$f":"SUM(N37:N38)","v":-30.270350999762066},{"$f":"SUM(O37:O38)","v":-31.037333775913684}]
[]
[]
[]
[]
[{"$f":"'O & M 2022-2026'!$A$14","v":"S-HP 150"},null,null,{"$f":"D$1","v":"2022-06-30"},{"$f":"E$1","v":"2023-06-30"},"2024-06-30","2025-06-30","2026-06-30",null,null,{"$f":"K$1","v":"2022-06-30"},{"$f":"L$1","v":"2023-06-30"},"2024-06-30","2025-06-30","2026-06-30"]
[]
["O & M Charge"]
[{"$f":"'O & M 2022-2026'!A$15","v":"Patrols and repairs"},null,null,{"$f":"'O & M 2022-2026'!$B$15*D$4","v":70.239223899385181},{"$f":"'O & M 2022-2026'!$Y$15*E$4","v":71.965992917707993},{"$f":"'O & M 2022-2026'!$AV$15*F$4","v":73.710303643343138},{"$f":"'O & M 2022-2026'!$BS$15*G$4","v":75.559523124907557},{"$f":"'O & M 2022-2026'!$CP$15*H$4","v":77.566511487157172},null,null,{"$f":"'O & M 2022-2026'!$M$15*K$4","v":87.401295316636009},{"$f":"'O & M 2022-2026'!$AJ$15*L$4","v":89.573674301810229},{"$f":"'O & M 2022-2026'!$BG$15*M$4","v":91.769690576319135},{"$f":"'O & M 2022-2026'!$CD$15*N$4","v":94.099488348542494},{"$f":"'O & M 2022-2026'!$DA$15*O$4","v":96.629239450247837}]
[{"$f":"'O & M 2022-2026'!A$17","v":"Other costs"},null,null,{"$f":"'O & M 2022-2026'!$B$17*D$4","v":1.3325364452992048},{"$f":"'O & M 2022-2026'!$Y$17*E$4","v":1.3484672840736838},{"$f":"'O & M 2022-2026'!$AV$17*F$4","v":1.3618843935862952},{"$f":"'O & M 2022-2026'!$BS$17*G$4","v":1.3779966840787596},{"$f":"'O & M 2022-2026'!$CP$17*H$4","v":1.3926902579471885},null,null,{"$f":"'O & M 2022-2026'!$M$17*K$4","v":1.3325364452992048},{"$f":"'O & M 2022-2026'!$AJ$17*L$4","v":1.3484672840736838},{"$f":"'O & M 2022-2026'!$BG$17*M$4","v":1.3618843935862952},{"$f":"'O & M 2022-2026'!$CD$17*N$4","v":1.3779966840787596},{"$f":"'O & M 2022-2026'!$DA$17*O$4","v":1.3926902579471885}]
[null,null,null,{"$f":"SUM(D47:D48)","v":71.571760344684378},{"$f":"SUM(E47:E48)","v":73.314460201781671},{"$f":"SUM(F47:F48)","v":75.072188036929433},{"$f":"SUM(G47:G48)","v":76.937519808986323},{"$f":"SUM(H47:H48)","v":78.959201745104366},null,null,{"$f":"SUM(K47:K48)","v":88.733831761935221},{"$f":"SUM(L47:L48)","v":90.922141585883907},{"$f":"SUM(M47:M48)","v":93.131574969905429},{"$f":"SUM(N47:N48)","v":95.47748503262126},{"$f":"SUM(O47:O48)","v":98.021929708195032}]
["Capital Charge"]
["Depreciation and Return",null,null,{"$f":"'Depn & WACC Post 2004 Central'!H$41","v":28.170061662217083},{"$f":"'Depn & WACC Post 2004 Central'!H$97","v":28.275405087704396},{"$f":"'Depn & WACC Post 2004 Central'!H$153","v":28.922005285396583},{"$f":"'Depn & WACC Post 2004 Central'!H$209","v":34.158513767935041},{"$f":"'Depn & WACC Post 2004 Central'!H$265","v":34.287492661066601},null,null,{"$f":"'Depn & WACC Post 2004 N & E'!H$41","v":30.300935817093698},{"$f":"'Depn & WACC Post 2004 N & E'!H$97","v":30.414247758427685},{"$f":"'Depn & WACC Post 2004 N & E'!H$153","v":28.922005285396583},{"$f":"'Depn & WACC Post 2004 N & E'!H$209","v":34.158513767935034},{"$f":"'Depn & WACC Post 2004 N & E'!H$265","v":34.287492661066608}]
[]
["Poles & Brackets Charge",null,null,{"$f":"D$13","v":13.720392540386051},{"$f":"E$13","v":14.292505431823502},{"$f":"F$13","v":14.811882715858504},{"$f":"G$13","v":15.329671083041697},{"$f":"H$13","v":15.802803020527911},null,null,{"$f":"K$13","v":13.764211907969779},{"$f":"L$13","v":14.331487684634963},{"$f":"M$13","v":14.845866123780931},{"$f":"N$13","v":15.361421858276312},{"$f":"O$13","v":15.835444070055374}]
[]
["Total Charge",null,null,{"$f":"SUM(D49,D51,D53)","v":113.46221454728752},{"$f":"SUM(E49,E51,E53)","v":115.88237072130957},{"$f":"SUM(F49,F51,F53)","v":118.80607603818451},{"$f":"SUM(G49,G51,G53)","v":126.42570465996307},{"$f":"SUM(H49,H51,H53)","v":129.04949742669888},null,null,{"$f":"SUM(K49,K51,K53)","v":132.79897948699869},{"$f":"SUM(L49,L51,L53)","v":135.66787702894655},{"$f":"SUM(M49,M51,M53)","v":136.89944637908295},{"$f":"SUM(N49,N51,N53)","v":144.99742065883262},{"$f":"SUM(O49,O51,O53)","v":148.14486643931701}]
[]
[]
[]
[]
[{"$f":"'O & M 2022-2026'!$A$20","v":"S-HP 250"},null,null,{"$f":"D$1","v":"2022-06-30"},{"$f":"E$1","v":"2023-06-30"},"2024-06-30","2025-06-30","2026-06-30",null,null,{"$f":"K$1","v":"2022-06-30"},{"$f":"L$1","v":"2023-06-30"},"2024-06-30","2025-06-30","2026-06-30"]
[]
["O & M Charge"]
[{"$f":"'O & M 2022-2026'!A$21","v":"Patrols and repairs"},null,null,{"$f":"'O & M 2022-2026'!$B$21*D$4","v":72.507704616514431},{"$f":"'O & M 2022-2026'!$Y$21*E$4","v":74.282746114580803},{"$f":"'O & M 2022-2026'!$AV$21*F$4","v":76.075935953022935},{"$f":"'O & M 2022-2026'!$BS$21*G$4","v":77.975979665489518},{"$f":"'O & M 2022-2026'!$CP$21*H$4","v":80.036097582201393},null,null,{"$f":"'O & M 2022-2026'!$M$21*K$4","v":86.954663142825268},{"$f":"'O & M 2022-2026'!$AJ$21*L$4","v":89.201719714586687},{"$f":"'O & M 2022-2026'!$BG$21*M$4","v":91.358447280570502},{"$f":"'O & M 2022-2026'!$CD$21*N$4","v":93.644399926275483},{"$f":"'O & M 2022-2026'!$DA$21*O$4","v":96.123829308456223}]
[{"$f":"'O & M 2022-2026'!A$23","v":"Other costs"},null,null,{"$f":"'O & M 2022-2026'!$B$23*D$4","v":1.3325364452992048},{"$f":"'O & M 2022-2026'!$Y$23*E$4","v":1.3484672840736838},{"$f":"'O & M 2022-2026'!$AV$23*F$4","v":1.3618843935862952},{"$f":"'O & M 2022-2026'!$BS$23*G$4","v":1.3779966840787596},{"$f":"'O & M 2022-2026'!$CP$23*H$4","v":1.3926902579471885},null,null,{"$f":"'O & M 2022-2026'!$M$23*K$4","v":1.3325364452992048},{"$f":"'O & M 2022-2026'!$AJ$23*L$4","v":1.3484672840736838},{"$f":"'O & M 2022-2026'!$BG$23*M$4","v":1.3618843935862952},{"$f":"'O & M 2022-2026'!$CD$23*N$4","v":1.3779966840787596},{"$f":"'O & M 2022-2026'!$DA$23*O$4","v":1.3926902579471885}]
[null,null,null,{"$f":"SUM(D63:D64)","v":73.840241061813629},{"$f":"SUM(E63:E64)","v":75.631213398654481},{"$f":"SUM(F63:F64)","v":77.437820346609229},{"$f":"SUM(G63:G64)","v":79.353976349568285},{"$f":"SUM(H63:H64)","v":81.428787840148587},null,null,{"$f":"SUM(K63:K64)","v":88.28719958812448},{"$f":"SUM(L63:L64)","v":90.550186998660365},{"$f":"SUM(M63:M64)","v":92.720331674156796},{"$f":"SUM(N63:N64)","v":95.022396610354249},{"$f":"SUM(O63:O64)","v":97.516519566403417}]
["Capital Charge"]
["Depreciation and Return",null,null,{"$f":"'Depn & WACC Post 2004 Central'!H$42","v":28.735445556432225},{"$f":"'Depn & WACC Post 2004 Central'!H$98","v":28.842903264694147},{"$f":"'Depn & WACC Post 2004 Central'!H$154","v":29.676965136269288},{"$f":"'Depn & WACC Post 2004 Central'!H$210","v":35.050163783409396},{"$f":"'Depn & WACC Post 2004 Central'!H$266","v":35.182509451595585},null,null,{"$f":"'Depn & WACC Post 2004 N & E'!H$42","v":30.524145109711196},{"$f":"'Depn & WACC Post 2004 N & E'!H$98","v":30.63829175392112},{"$f":"'Depn & WACC Post 2004 N & E'!H$154","v":29.676965136269285},{"$f":"'Depn & WACC Post 2004 N & E'!H$210","v":35.050163783409396},{"$f":"'Depn & WACC Post 2004 N & E'!H$266","v":35.182509451595585}]
[]
["Poles & Brackets Charge",null,null,{"$f":"D$13","v":13.720392540386051},{"$f":"E$13","v":14.292505431823502},{"$f":"F$13","v":14.811882715858504},{"$f":"G$13","v":15.329671083041697},{"$f":"H$13","v":15.802803020527911},null,null,{"$f":"K$13","v":13.764211907969779},{"$f":"L$13","v":14.331487684634963},{"$f":"M$13","v":14.845866123780931},{"$f":"N$13","v":15.361421858276312},{"$f":"O$13","v":15.835444070055374}]
[]
["Total Charge",null,null,{"$f":"SUM(D65,D67,D69)","v":116.2960791586319},{"$f":"SUM(E65,E67,E69)","v":118.76662209517212},{"$f":"SUM(F65,F67,F69)","v":121.92666819873702},{"$f":"SUM(G65,G67,G69)","v":129.73381121601938},{"$f":"SUM(H65,H67,H69)","v":132.41410031227207},null,null,{"$f":"SUM(K65,K67,K69)","v":132.57555660580545},{"$f":"SUM(L65,L67,L69)","v":135.51996643721645},{"$f":"SUM(M65,M67,M69)","v":137.24316293420702},{"$f":"SUM(N65,N67,N69)","v":145.43398225203995},{"$f":"SUM(O65,O67,O69)","v":148.53447308805437}]
[]
[]
[]
[]
[{"$f":"'DNSP Inputs General'!$A$11","v":"Energy Efficient Lights"}]
[]
[{"$f":"'O & M 2022-2026'!$A$26","v":"T5 (2 X 14W)"},null,null,{"$f":"D$1","v":"2022-06-30"},{"$f":"E$1","v":"2023-06-30"},"2024-06-30","2025-06-30","2026-06-30",null,null,{"$f":"K$1","v":"2022-06-30"},{"$f":"L$1","v":"2023-06-30"},"2024-06-30","2025-06-30","2026-06-30"]
[]
["O & M Charge"]
[{"$f":"'O & M 2022-2026'!A$27","v":"Bulk change & repairs"},null,null,{"$f":"'O & M 2022-2026'!$B$27*D$4","v":29.656147204410043},{"$f":"'O & M 2022-2026'!$Y$27*E$4","v":30.368493165291238},{"$f":"'O & M 2022-2026'!$AV$27*F$4","v":31.088367495472241},{"$f":"'O & M 2022-2026'!$BS$27*G$4","v":31.849062550854494},{"$f":"'O & M 2022-2026'!$CP$27*H$4","v":32.671346631547792},null,null,{"$f":"'O & M 2022-2026'!$M$27*K$4","v":35.45919572315853},{"$f":"'O & M 2022-2026'!$AJ$27*L$4","v":36.307756350537304},{"$f":"'O & M 2022-2026'!$BG$27*M$4","v":37.165433554521144},{"$f":"'O & M 2022-2026'!$CD$27*N$4","v":38.071155150576288},{"$f":"'O & M 2022-2026'!$DA$27*O$4","v":39.049207425415474}]
[{"$f":"'O & M 2022-2026'!A$29","v":"Other costs"},null,null,{"$f":"'O & M 2022-2026'!$B$29*D$4","v":1.3325364452992048},{"$f":"'O & M 2022-2026'!$Y$29*E$4","v":1.3484672840736838},{"$f":"'O & M 2022-2026'!$AV$29*F$4","v":1.3618843935862952},{"$f":"'O & M 2022-2026'!$BS$29*G$4","v":1.3779966840787596},{"$f":"'O & M 2022-2026'!$CP$29*H$4","v":1.3926902579471885},null,null,{"$f":"'O & M 2022-2026'!$M$29*K$4","v":1.3325364452992048},{"$f":"'O & M 2022-2026'!$AJ$29*L$4","v":1.3484672840736838},{"$f":"'O & M 2022-2026'!$BG$29*M$4","v":1.3618843935862952},{"$f":"'O & M 2022-2026'!$CD$29*N$4","v":1.3779966840787596},{"$f":"'O & M 2022-2026'!$DA$29*O$4","v":1.3926902579471885}]
[null,null,null,{"$f":"SUM(D81:D82)","v":30.988683649709248},{"$f":"SUM(E81:E82)","v":31.716960449364922},{"$f":"SUM(F81:F82)","v":32.450251889058535},{"$f":"SUM(G81:G82)","v":33.227059234933257},{"$f":"SUM(H81:H82)","v":34.064036889494979},null,null,{"$f":"SUM(K81:K82)","v":36.791732168457735},{"$f":"SUM(L81:L82)","v":37.656223634610988},{"$f":"SUM(M81:M82)","v":38.527317948107438},{"$f":"SUM(N81:N82)","v":39.449151834655048},{"$f":"SUM(O81:O82)","v":40.441897683362662}]
["Capital Charge"]
["Depreciation and Return",null,null,{"$f":"'Depn & WACC Post 2004 Central'!$H$69","v":7.0053859001872816},{"$f":"'Depn & WACC Post 2004 Central'!$H$125","v":8.6778841080813827},{"$f":"'Depn & WACC Post 2004 Central'!$H$181","v":10.040136245369325},{"$f":"'Depn & WACC Post 2004 Central'!$H$237","v":11.155149860323005},{"$f":"'Depn & WACC Post 2004 Central'!$H$293","v":11.848394722446676},null,null,{"$f":"'Depn & WACC Post 2004 N & E'!$H$69","v":7.0053859001872807},{"$f":"'Depn & WACC Post 2004 N & E'!$H$125","v":8.6778841080813827},{"$f":"'Depn & WACC Post 2004 N & E'!$H$181","v":10.040136245369325},{"$f":"'Depn & WACC Post 2004 N & E'!$H$237","v":11.155149860323005},{"$f":"'Depn & WACC Post 2004 N & E'!$H$293","v":11.848394722446676}]
[]
["Poles & Brackets Charge",null,null,{"$f":"D$13","v":13.720392540386051},{"$f":"E$13","v":14.292505431823502},{"$f":"F$13","v":14.811882715858504},{"$f":"G$13","v":15.329671083041697},{"$f":"H$13","v":15.802803020527911},null,null,{"$f":"K$13","v":13.764211907969779},{"$f":"L$13","v":14.331487684634963},{"$f":"M$13","v":14.845866123780931},{"$f":"N$13","v":15.361421858276312},{"$f":"O$13","v":15.835444070055374}]
[]
["Total Charge",null,null,{"$f":"SUM(D83,D85,D87)","v":51.714462090282581},{"$f":"SUM(E83,E85,E87)","v":54.687349989269805},{"$f":"SUM(F83,F85,F87)","v":57.302270850286362},{"$f":"SUM(G83,G85,G87)","v":59.71188017829796},{"$f":"SUM(H83,H85,H87)","v":61.715234632469567},null,null,{"$f":"SUM(K83,K85,K87)","v":57.561329976614793},{"$f":"SUM(L83,L85,L87)","v":60.665595427327332},{"$f":"SUM(M83,M85,M87)","v":63.413320317257693},{"$f":"SUM(N83,N85,N87)","v":65.965723553254364},{"$f":"SUM(O83,O85,O87)","v":68.125736475864713}]
[]
[]
[]
[]
[{"$f":"'O & M 2022-2026'!$A$32","v":"T5 (2 X 24W)"},null,null,{"$f":"D$1","v":"2022-06-30"},{"$f":"E$1","v":"2023-06-30"},"2024-06-30","2025-06-30","2026-06-30",null,null,{"$f":"K$1","v":"2022-06-30"},{"$f":"L$1","v":"2023-06-30"},"2024-06-30","2025-06-30","2026-06-30"]
[]
["O & M Charge"]
[{"$f":"'O & M 2022-2026'!A$33","v":"Bulk change & repairs"},null,null,{"$f":"'O & M 2022-2026'!$B$33*D$4","v":32.969794253178407},{"$f":"'O & M 2022-2026'!$Y$33*E$4","v":33.763117873394684},{"$f":"'O & M 2022-2026'!$AV$33*F$4","v":34.564760924876637},{"$f":"'O & M 2022-2026'!$BS$33*G$4","v":35.412118639524458},{"$f":"'O & M 2022-2026'!$CP$33*H$4","v":36.328517668750671},null,null,{"$f":"'O & M 2022-2026'!$M$33*K$4","v":39.329748005976455},{"$f":"'O & M 2022-2026'!$AJ$33*L$4","v":40.272768337533641},{"$f":"'O & M 2022-2026'!$BG$33*M$4","v":41.225833873194539},{"$f":"'O & M 2022-2026'!$CD$33*N$4","v":42.232629583257179},{"$f":"'O & M 2022-2026'!$DA$33*O$4","v":43.320408172617505}]
[{"$f":"'O & M 2022-2026'!A$35","v":"Other costs"},null,null,{"$f":"'O & M 2022-2026'!$B$35*D$4","v":1.3325364452992048},{"$f":"'O & M 2022-2026'!$Y$35*E$4","v":1.3484672840736838},{"$f":"'O & M 2022-2026'!$AV$35*F$4","v":1.3618843935862952},{"$f":"'O & M 2022-2026'!$BS$35*G$4","v":1.3779966840787596},{"$f":"'O & M 2022-2026'!$CP$35*H$4","v":1.3926902579471885},null,null,{"$f":"'O & M 2022-2026'!$M$35*K$4","v":1.3325364452992048},{"$f":"'O & M 2022-2026'!$AJ$35*L$4","v":1.3484672840736838},{"$f":"'O & M 2022-2026'!$BG$35*M$4","v":1.3618843935862952},{"$f":"'O & M 2022-2026'!$CD$35*N$4","v":1.3779966840787596},{"$f":"'O & M 2022-2026'!$DA$35*O$4","v":1.3926902579471885}]
[null,null,null,{"$f":"SUM(D97:D98)","v":34.302330698477611},{"$f":"SUM(E97:E98)","v":35.111585157468369},{"$f":"SUM(F97:F98)","v":35.926645318462931},{"$f":"SUM(G97:G98)","v":36.790115323603217},{"$f":"SUM(H97:H98)","v":37.721207926697858},null,null,{"$f":"SUM(K97:K98)","v":40.66228445127566},{"$f":"SUM(L97:L98)","v":41.621235621607326},{"$f":"SUM(M97:M98)","v":42.587718266780833},{"$f":"SUM(N97:N98)","v":43.610626267335938},{"$f":"SUM(O97:O98)","v":44.713098430564692}]
["Capital Charge"]
["Depreciation and Return",null,null,{"$f":"'Depn & WACC Post 2004 Central'!$H$70","v":7.1951352877557477},{"$f":"'Depn & WACC Post 2004 Central'!$H$126","v":8.9129351414376679},{"$f":"'Depn & WACC Post 2004 Central'!$H$182","v":10.312085532790004},{"$f":"'Depn & WACC Post 2004 Central'!$H$238","v":11.457300646074033},{"$f":"'Depn & WACC Post 2004 Central'!$H$294","v":12.169322887473758},null,null,{"$f":"'Depn & WACC Post 2004 N & E'!$H$70","v":7.1951352877557468},{"$f":"'Depn & WACC Post 2004 N & E'!$H$126","v":8.9129351414376679},{"$f":"'Depn & WACC Post 2004 N & E'!$H$182","v":10.312085532790002},{"$f":"'Depn & WACC Post 2004 N & E'!$H$238","v":11.457300646074033},{"$f":"'Depn & WACC Post 2004 N & E'!$H$294","v":12.169322887473758}]
[]
["Poles & Brackets Charge",null,null,{"$f":"D$13","v":13.720392540386051},{"$f":"E$13","v":14.292505431823502},{"$f":"F$13","v":14.811882715858504},{"$f":"G$13","v":15.329671083041697},{"$f":"H$13","v":15.802803020527911},null,null,{"$f":"K$13","v":13.764211907969779},{"$f":"L$13","v":14.331487684634963},{"$f":"M$13","v":14.845866123780931},{"$f":"N$13","v":15.361421858276312},{"$f":"O$13","v":15.835444070055374}]
[]
["Total Charge",null,null,{"$f":"SUM(D99,D101,D103)","v":55.217858526619409},{"$f":"SUM(E99,E101,E103)","v":58.31702573072954},{"$f":"SUM(F99,F101,F103)","v":61.050613567111441},{"$f":"SUM(G99,G101,G103)","v":63.577087052718944},{"$f":"SUM(H99,H101,H103)","v":65.69333383469953},null,null,{"$f":"SUM(K99,K101,K103)","v":61.621631647001188},{"$f":"SUM(L99,L101,L103)","v":64.865658447679962},{"$f":"SUM(M99,M101,M103)","v":67.74566992335177},{"$f":"SUM(N99,N101,N103)","v":70.429348771686278},{"$f":"SUM(O99,O101,O103)","v":72.717865388093827}]
[]
[]
[]
[]
[{"$f":"'O & M 2022-2026'!$A$38","v":"LED 18W"},null,null,{"$f":"D$1","v":"2022-06-30"},{"$f":"E$1","v":"2023-06-30"},"2024-06-30","2025-06-30","2026-06-30",null,null,{"$f":"K$1","v":"2022-06-30"},{"$f":"L$1","v":"2023-06-30"},"2024-06-30","2025-06-30","2026-06-30"]
[]
["O & M Charge"]
[{"$f":"'O & M 2022-2026'!A$33","v":"Bulk change & repairs"},null,null,{"$f":"'O & M 2022-2026'!$B$39*D$4","v":8.8866238372964972},{"$f":"'O & M 2022-2026'!$Y$39*E$4","v":9.0919547359368948},{"$f":"'O & M 2022-2026'!$AV$39*F$4","v":9.2998360600931704},{"$f":"'O & M 2022-2026'!$BS$39*G$4","v":9.5179941012960558},{"$f":"'O & M 2022-2026'!$CP$39*H$4","v":9.7512550346901747},null,null,{"$f":"'O & M 2022-2026'!$M$39*K$4","v":10.962403052477153},{"$f":"'O & M 2022-2026'!$AJ$39*L$4","v":11.213704402200982},{"$f":"'O & M 2022-2026'!$BG$39*M$4","v":11.468224090287041},{"$f":"'O & M 2022-2026'!$CD$39*N$4","v":11.734941780260479},{"$f":"'O & M 2022-2026'!$DA$39*O$4","v":12.019468580033248}]
[{"$f":"'O & M 2022-2026'!A$35","v":"Other costs"},null,null,{"$f":"'O & M 2022-2026'!$B$41*D$4","v":1.3325364452992048},{"$f":"'O & M 2022-2026'!$Y$41*E$4","v":1.3484672840736838},{"$f":"'O & M 2022-2026'!$AV$41*F$4","v":1.3618843935862952},{"$f":"'O & M 2022-2026'!$BS$41*G$4","v":1.3779966840787596},{"$f":"'O & M 2022-2026'!$CP$41*H$4","v":1.3926902579471885},null,null,{"$f":"'O & M 2022-2026'!$M$41*K$4","v":1.3325364452992048},{"$f":"'O & M 2022-2026'!$AJ$41*L$4","v":1.3484672840736838},{"$f":"'O & M 2022-2026'!$BG$41*M$4","v":1.3618843935862952},{"$f":"'O & M 2022-2026'!$CD$41*N$4","v":1.3779966840787596},{"$f":"'O & M 2022-2026'!$DA$41*O$4","v":1.3926902579471885}]
[null,null,null,{"$f":"SUM(D113:D114)","v":10.219160282595702},{"$f":"SUM(E113:E114)","v":10.440422020010578},{"$f":"SUM(F113:F114)","v":10.661720453679466},{"$f":"SUM(G113:G114)","v":10.895990785374815},{"$f":"SUM(H113:H114)","v":11.143945292637364},null,null,{"$f":"SUM(K113:K114)","v":12.294939497776358},{"$f":"SUM(L113:L114)","v":12.562171686274665},{"$f":"SUM(M113:M114)","v":12.830108483873337},{"$f":"SUM(N113:N114)","v":13.112938464339239},{"$f":"SUM(O113:O114)","v":13.412158837980437}]
["Capital Charge"]
["Depreciation and Return",null,null,{"$f":"'Depn & WACC Post 2004 Central'!$H$71","v":5.5175353831965301},{"$f":"'Depn & WACC Post 2004 Central'!$H$127","v":6.8348172819912536},{"$f":"'Depn & WACC Post 2004 Central'!$H$183","v":7.9077452370551402},{"$f":"'Depn & WACC Post 2004 Central'!$H$239","v":8.7859448338951012},{"$f":"'Depn & WACC Post 2004 Central'!$H$295","v":9.3319537348300621},null,null,{"$f":"'Depn & WACC Post 2004 N & E'!$H$71","v":5.517535383196531},{"$f":"'Depn & WACC Post 2004 N & E'!$H$127","v":6.8348172819912536},{"$f":"'Depn & WACC Post 2004 N & E'!$H$183","v":7.9077452370551402},{"$f":"'Depn & WACC Post 2004 N & E'!$H$239","v":8.7859448338950994},{"$f":"'Depn & WACC Post 2004 N & E'!$H$295","v":9.3319537348300621}]
[]
["Poles & Brackets Charge",null,null,{"$f":"D$13","v":13.720392540386051},{"$f":"E$13","v":14.292505431823502},{"$f":"F$13","v":14.811882715858504},{"$f":"G$13","v":15.329671083041697},{"$f":"H$13","v":15.802803020527911},null,null,{"$f":"K$13","v":13.764211907969779},{"$f":"L$13","v":14.331487684634963},{"$f":"M$13","v":14.845866123780931},{"$f":"N$13","v":15.361421858276312},{"$f":"O$13","v":15.835444070055374}]
[]
["Total Charge",null,null,{"$f":"SUM(D115,D117,D119)","v":29.457088206178284},{"$f":"SUM(E115,E117,E119)","v":31.567744733825336},{"$f":"SUM(F115,F117,F119)","v":33.381348406593112},{"$f":"SUM(G115,G117,G119)","v":35.01160670231161},{"$f":"SUM(H115,H117,H119)","v":36.278702047995338},null,null,{"$f":"SUM(K115,K117,K119)","v":31.576686788942666},{"$f":"SUM(L115,L117,L119)","v":33.728476652900881},{"$f":"SUM(M115,M117,M119)","v":35.583719844709407},{"$f":"SUM(N115,N117,N119)","v":37.260305156510654},{"$f":"SUM(O115,O117,O119)","v":38.579556642865874}]
[]
[]
[]
[]
[{"$f":"'O & M 2022-2026'!A44","v":"LED 14W"},null,null,{"$f":"D$1","v":"2022-06-30"},{"$f":"E$1","v":"2023-06-30"},"2024-06-30","2025-06-30","2026-06-30",null,null,{"$f":"K$1","v":"2022-06-30"},{"$f":"L$1","v":"2023-06-30"},"2024-06-30","2025-06-30","2026-06-30"]
[]
["O & M Charge"]
[{"$f":"'O & M 2022-2026'!A$33","v":"Bulk change & repairs"},null,null,{"$f":"'O & M 2022-2026'!$B$45*D$4","v":10.705400703506829},{"$f":"'O & M 2022-2026'!$Y$45*E$4","v":10.953600101499514},{"$f":"'O & M 2022-2026'!$AV$45*F$4","v":11.204841303312522},{"$f":"'O & M 2022-2026'!$BS$45*G$4","v":11.46866569703513},{"$f":"'O & M 2022-2026'!$CP$45*H$4","v":11.751032387845282},null,null,{"$f":"'O & M 2022-2026'!$M$45*K$4","v":12.711179613828461},{"$f":"'O & M 2022-2026'!$AJ$45*L$4","v":13.003394553954436},{"$f":"'O & M 2022-2026'!$BG$45*M$4","v":13.299311351116858},{"$f":"'O & M 2022-2026'!$CD$45*N$4","v":13.609570471033729},{"$f":"'O & M 2022-2026'!$DA$45*O$4","v":13.940819915462736}]
[{"$f":"'O & M 2022-2026'!A$35","v":"Other costs"},null,null,{"$f":"'O & M 2022-2026'!$B$47*D$4","v":1.3325364452992048},{"$f":"'O & M 2022-2026'!$Y$47*E$4","v":1.3484672840736838},{"$f":"'O & M 2022-2026'!$AV$47*F$4","v":1.3618843935862952},{"$f":"'O & M 2022-2026'!$BS$47*G$4","v":1.3779966840787596},{"$f":"'O & M 2022-2026'!$CP$47*H$4","v":1.3926902579471885},null,null,{"$f":"'O & M 2022-2026'!$M$47*K$4","v":1.3325364452992048},{"$f":"'O & M 2022-2026'!$AJ$47*L$4","v":1.3484672840736838},{"$f":"'O & M 2022-2026'!$BG$47*M$4","v":1.3618843935862952},{"$f":"'O & M 2022-2026'!$CD$47*N$4","v":1.3779966840787596},{"$f":"'O & M 2022-2026'!$DA$47*O$4","v":1.3926902579471885}]
[null,null,null,{"$f":"SUM(D129:D130)","v":12.037937148806034},{"$f":"SUM(E129:E130)","v":12.302067385573197},{"$f":"SUM(F129:F130)","v":12.566725696898818},{"$f":"SUM(G129:G130)","v":12.846662381113889},{"$f":"SUM(H129:H130)","v":13.143722645792471},null,null,{"$f":"SUM(K129:K130)","v":14.043716059127666},{"$f":"SUM(L129:L130)","v":14.351861838028119},{"$f":"SUM(M129:M130)","v":14.661195744703154},{"$f":"SUM(N129:N130)","v":14.987567155112488},{"$f":"SUM(O129:O130)","v":15.333510173409925}]
["Capital Charge"]
["Depreciation and Return",null,null,{"$f":"'Depn & WACC Post 2004 Central'!$H$72","v":5.5175353831965301},{"$f":"'Depn & WACC Post 2004 Central'!$H$128","v":6.8348172819912554},{"$f":"'Depn & WACC Post 2004 Central'!$H$184","v":7.9077452370551402},{"$f":"'Depn & WACC Post 2004 Central'!$H$240","v":8.7859448338951012},{"$f":"'Depn & WACC Post 2004 Central'!$H$296","v":9.3319537348300639},null,null,{"$f":"'Depn & WACC Post 2004 N & E'!$H$72","v":5.5175353831965293},{"$f":"'Depn & WACC Post 2004 N & E'!$H$128","v":6.8348172819912545},{"$f":"'Depn & WACC Post 2004 N & E'!$H$184","v":7.9077452370551411},{"$f":"'Depn & WACC Post 2004 N & E'!$H$240","v":8.7859448338951012},{"$f":"'Depn & WACC Post 2004 N & E'!$H$296","v":9.3319537348300639}]
[]
["Poles & Brackets Charge",null,null,{"$f":"D$13","v":13.720392540386051},{"$f":"E$13","v":14.292505431823502},{"$f":"F$13","v":14.811882715858504},{"$f":"G$13","v":15.329671083041697},{"$f":"H$13","v":15.802803020527911},null,null,{"$f":"K$13","v":13.764211907969779},{"$f":"L$13","v":14.331487684634963},{"$f":"M$13","v":14.845866123780931},{"$f":"N$13","v":15.361421858276312},{"$f":"O$13","v":15.835444070055374}]
[]
["Total Charge",null,null,{"$f":"SUM(D131,D133,D135)","v":31.275865072388616},{"$f":"SUM(E131,E133,E135)","v":33.429390099387952},{"$f":"SUM(F131,F133,F135)","v":35.286353649812462},{"$f":"SUM(G131,G133,G135)","v":36.962278298050684},{"$f":"SUM(H131,H133,H135)","v":38.278479401150449},null,null,{"$f":"SUM(K131,K133,K135)","v":33.325463350293973},{"$f":"SUM(L131,L133,L135)","v":35.518166804654335},{"$f":"SUM(M131,M133,M135)","v":37.414807105539225},{"$f":"SUM(N131,N133,N135)","v":39.134933847283904},{"$f":"SUM(O131,O133,O135)","v":40.500907978295359}]
[]
[]
[]
[]
[{"$f":"'O & M 2022-2026'!A50","v":"LED 70W (L1)"},null,null,{"$f":"D$1","v":"2022-06-30"},{"$f":"E$1","v":"2023-06-30"},"2024-06-30","2025-06-30","2026-06-30",null,null,{"$f":"K$1","v":"2022-06-30"},{"$f":"L$1","v":"2023-06-30"},"2024-06-30","2025-06-30","2026-06-30"]
[]
["O & M Charge"]
[{"$f":"'O & M 2022-2026'!A$33","v":"Bulk change & repairs"},null,null,{"$f":"'O & M 2022-2026'!$B$51*D$4","v":19.490426635042645},{"$f":"'O & M 2022-2026'!$Y$51*E$4","v":19.97137637141677},{"$f":"'O & M 2022-2026'!$AV$51*F$4","v":20.456810526806464},{"$f":"'O & M 2022-2026'!$BS$51*G$4","v":20.972148953212407},{"$f":"'O & M 2022-2026'!$CP$51*H$4","v":21.533238902057253},null,null,{"$f":"'O & M 2022-2026'!$M$51*K$4","v":25.320769068231073},{"$f":"'O & M 2022-2026'!$AJ$51*L$4","v":25.941784935741421},{"$f":"'O & M 2022-2026'!$BG$51*M$4","v":26.568764551168751},{"$f":"'O & M 2022-2026'!$CD$51*N$4","v":27.233678590171667},{"$f":"'O & M 2022-2026'!$DA$51*O$4","v":27.956460796025588}]
[{"$f":"'O & M 2022-2026'!A$35","v":"Other costs"},null,null,{"$f":"'O & M 2022-2026'!$B$53*D$4","v":1.3325364452992048},{"$f":"'O & M 2022-2026'!$Y$53*E$4","v":1.3484672840736838},{"$f":"'O & M 2022-2026'!$AV$53*F$4","v":1.3618843935862952},{"$f":"'O & M 2022-2026'!$BS$53*G$4","v":1.3779966840787596},{"$f":"'O & M 2022-2026'!$CP$53*H$4","v":1.3926902579471885},null,null,{"$f":"'O & M 2022-2026'!$M$53*K$4","v":1.3325364452992048},{"$f":"'O & M 2022-2026'!$AJ$53*L$4","v":1.3484672840736838},{"$f":"'O & M 2022-2026'!$BG$53*M$4","v":1.3618843935862952},{"$f":"'O & M 2022-2026'!$CD$53*N$4","v":1.3779966840787596},{"$f":"'O & M 2022-2026'!$DA$53*O$4","v":1.3926902579471885}]
[null,null,null,{"$f":"SUM(D145:D146)","v":20.82296308034185},{"$f":"SUM(E145:E146)","v":21.319843655490455},{"$f":"SUM(F145:F146)","v":21.818694920392758},{"$f":"SUM(G145:G146)","v":22.350145637291167},{"$f":"SUM(H145:H146)","v":22.92592916000444},null,null,{"$f":"SUM(K145:K146)","v":26.653305513530277},{"$f":"SUM(L145:L146)","v":27.290252219815105},{"$f":"SUM(M145:M146)","v":27.930648944755045},{"$f":"SUM(N145:N146)","v":28.611675274250427},{"$f":"SUM(O145:O146)","v":29.349151053972776}]
["Capital Charge"]
["Depreciation and Return",null,null,{"$f":"'Depn & WACC Post 2004 Central'!$H$73","v":10.819752312414659},{"$f":"'Depn & WACC Post 2004 Central'!$H$129","v":13.402909987124312},{"$f":"'Depn & WACC Post 2004 Central'!$H$185","v":15.506895538030079},{"$f":"'Depn & WACC Post 2004 Central'!$H$241","v":17.229023527930881},{"$f":"'Depn & WACC Post 2004 Central'!$H$297","v":18.299733665374074},null,null,{"$f":"'Depn & WACC Post 2004 N & E'!$H$73","v":10.819752312414659},{"$f":"'Depn & WACC Post 2004 N & E'!$H$129","v":13.402909987124312},{"$f":"'Depn & WACC Post 2004 N & E'!$H$185","v":15.506895538030081},{"$f":"'Depn & WACC Post 2004 N & E'!$H$241","v":17.229023527930877},{"$f":"'Depn & WACC Post 2004 N & E'!$H$297","v":18.299733665374074}]
[]
["Poles & Brackets Charge",null,null,{"$f":"D$13","v":13.720392540386051},{"$f":"E$13","v":14.292505431823502},{"$f":"F$13","v":14.811882715858504},{"$f":"G$13","v":15.329671083041697},{"$f":"H$13","v":15.802803020527911},null,null,{"$f":"K$13","v":13.764211907969779},{"$f":"L$13","v":14.331487684634963},{"$f":"M$13","v":14.845866123780931},{"$f":"N$13","v":15.361421858276312},{"$f":"O$13","v":15.835444070055374}]
[]
["Total Charge",null,null,{"$f":"SUM(D147,D149,D151)","v":45.363107933142558},{"$f":"SUM(E147,E149,E151)","v":49.015259074438269},{"$f":"SUM(F147,F149,F151)","v":52.13747317428134},{"$f":"SUM(G147,G149,G151)","v":54.908840248263743},{"$f":"SUM(H147,H149,H151)","v":57.028465845906425},null,null,{"$f":"SUM(K147,K149,K151)","v":51.237269733914715},{"$f":"SUM(L147,L149,L151)","v":55.024649891574384},{"$f":"SUM(M147,M149,M151)","v":58.283410606566058},{"$f":"SUM(N147,N149,N151)","v":61.202120660457624},{"$f":"SUM(O147,O149,O151)","v":63.484328789402227}]
[]
[]
[]
[]
[{"$f":"'O & M 2022-2026'!A56","v":"LED 155W (L2)"},null,null,{"$f":"D$1","v":"2022-06-30"},{"$f":"E$1","v":"2023-06-30"},"2024-06-30","2025-06-30","2026-06-30",null,null,{"$f":"K$1","v":"2022-06-30"},{"$f":"L$1","v":"2023-06-30"},"2024-06-30","2025-06-30","2026-06-30"]
[]
["O & M Charge"]
[{"$f":"'O & M 2022-2026'!A$33","v":"Bulk change & repairs"},null,null,{"$f":"'O & M 2022-2026'!$B$57*D$4","v":19.490426635042645},{"$f":"'O & M 2022-2026'!$Y$57*E$4","v":19.97137637141677},{"$f":"'O & M 2022-2026'!$AV$57*F$4","v":20.456810526806464},{"$f":"'O & M 2022-2026'!$BS$57*G$4","v":20.972148953212407},{"$f":"'O & M 2022-2026'!$CP$57*H$4","v":21.533238902057253},null,null,{"$f":"'O & M 2022-2026'!$M$57*K$4","v":25.320769068231073},{"$f":"'O & M 2022-2026'!$AJ$57*L$4","v":25.941784935741421},{"$f":"'O & M 2022-2026'!$BG$57*M$4","v":26.568764551168751},{"$f":"'O & M 2022-2026'!$CD$57*N$4","v":27.233678590171667},{"$f":"'O & M 2022-2026'!$DA$57*O$4","v":27.956460796025588}]
[{"$f":"'O & M 2022-2026'!A$35","v":"Other costs"},null,null,{"$f":"'O & M 2022-2026'!$B$59*D$4","v":1.3325364452992048},{"$f":"'O & M 2022-2026'!$Y$59*E$4","v":1.3484672840736838},{"$f":"'O & M 2022-2026'!$AV$59*F$4","v":1.3618843935862952},{"$f":"'O & M 2022-2026'!$BS$59*G$4","v":1.3779966840787596},{"$f":"'O & M 2022-2026'!$CP$59*H$4","v":1.3926902579471885},null,null,{"$f":"'O & M 2022-2026'!$M$59*K$4","v":1.3325364452992048},{"$f":"'O & M 2022-2026'!$AJ$59*L$4","v":1.3484672840736838},{"$f":"'O & M 2022-2026'!$BG$59*M$4","v":1.3618843935862952},{"$f":"'O & M 2022-2026'!$CD$59*N$4","v":1.3779966840787596},{"$f":"'O & M 2022-2026'!$DA$59*O$4","v":1.3926902579471885}]
[null,null,null,{"$f":"SUM(D161:D162)","v":20.82296308034185},{"$f":"SUM(E161:E162)","v":21.319843655490455},{"$f":"SUM(F161:F162)","v":21.818694920392758},{"$f":"SUM(G161:G162)","v":22.350145637291167},{"$f":"SUM(H161:H162)","v":22.92592916000444},null,null,{"$f":"SUM(K161:K162)","v":26.653305513530277},{"$f":"SUM(L161:L162)","v":27.290252219815105},{"$f":"SUM(M161:M162)","v":27.930648944755045},{"$f":"SUM(N161:N162)","v":28.611675274250427},{"$f":"SUM(O161:O162)","v":29.349151053972776}]
["Capital Charge"]
["Depreciation and Return",null,null,{"$f":"'Depn & WACC Post 2004 Central'!$H$74","v":11.492622481097163},{"$f":"'Depn & WACC Post 2004 Central'!$H$130","v":14.236424289806175},{"$f":"'Depn & WACC Post 2004 Central'!$H$186","v":16.471254713280707},{"$f":"'Depn & WACC Post 2004 Central'!$H$242","v":18.300480214991257},{"$f":"'Depn & WACC Post 2004 Central'!$H$298","v":19.437776803767985},null,null,{"$f":"'Depn & WACC Post 2004 N & E'!$H$74","v":11.492622481097163},{"$f":"'Depn & WACC Post 2004 N & E'!$H$130","v":14.236424289806171},{"$f":"'Depn & WACC Post 2004 N & E'!$H$186","v":16.471254713280704},{"$f":"'Depn & WACC Post 2004 N & E'!$H$242","v":18.300480214991257},{"$f":"'Depn & WACC Post 2004 N & E'!$H$298","v":19.437776803767985}]
[]
["Poles & Brackets Charge",null,null,{"$f":"D$13","v":13.720392540386051},{"$f":"E$13","v":14.292505431823502},{"$f":"F$13","v":14.811882715858504},{"$f":"G$13","v":15.329671083041697},{"$f":"H$13","v":15.802803020527911},null,null,{"$f":"K$13","v":13.764211907969779},{"$f":"L$13","v":14.331487684634963},{"$f":"M$13","v":14.845866123780931},{"$f":"N$13","v":15.361421858276312},{"$f":"O$13","v":15.835444070055374}]
[]
["Total Charge",null,null,{"$f":"SUM(D163,D165,D167)","v":46.035978101825066},{"$f":"SUM(E163,E165,E167)","v":49.848773377120132},{"$f":"SUM(F163,F165,F167)","v":53.101832349531968},{"$f":"SUM(G163,G165,G167)","v":55.98029693532412},{"$f":"SUM(H163,H165,H167)","v":58.166508984300336},null,null,{"$f":"SUM(K163,K165,K167)","v":51.910139902597223},{"$f":"SUM(L163,L165,L167)","v":55.85816419425624},{"$f":"SUM(M163,M165,M167)","v":59.247769781816679},{"$f":"SUM(N163,N165,N167)","v":62.273577347518},{"$f":"SUM(O163,O165,O167)","v":64.622371927796138}]
[]
[]
[]
[]
[{"$f":"'O & M 2022-2026'!A62","v":"LED 275W (L4)"},null,null,{"$f":"D$1","v":"2022-06-30"},{"$f":"E$1","v":"2023-06-30"},"2024-06-30","2025-06-30","2026-06-30",null,null,{"$f":"K$1","v":"2022-06-30"},{"$f":"L$1","v":"2023-06-30"},"2024-06-30","2025-06-30","2026-06-30"]
[]
["O & M Charge"]
[{"$f":"'O & M 2022-2026'!A$33","v":"Bulk change & repairs"},null,null,{"$f":"'O & M 2022-2026'!$B$63*D$4","v":19.490426635042645},{"$f":"'O & M 2022-2026'!$Y$63*E$4","v":19.97137637141677},{"$f":"'O & M 2022-2026'!$AV$63*F$4","v":20.456810526806464},{"$f":"'O & M 2022-2026'!$BS$63*G$4","v":20.972148953212407},{"$f":"'O & M 2022-2026'!$CP$63*H$4","v":21.533238902057253},null,null,{"$f":"'O & M 2022-2026'!$M$63*K$4","v":25.320769068231073},{"$f":"'O & M 2022-2026'!$AJ$63*L$4","v":25.941784935741421},{"$f":"'O & M 2022-2026'!$BG$63*M$4","v":26.568764551168751},{"$f":"'O & M 2022-2026'!$CD$63*N$4","v":27.233678590171667},{"$f":"'O & M 2022-2026'!$DA$63*O$4","v":27.956460796025588}]
[{"$f":"'O & M 2022-2026'!A$35","v":"Other costs"},null,null,{"$f":"'O & M 2022-2026'!$B$65*D$4","v":1.3325364452992048},{"$f":"'O & M 2022-2026'!$Y$65*E$4","v":1.3484672840736838},{"$f":"'O & M 2022-2026'!$AV$65*F$4","v":1.3618843935862952},{"$f":"'O & M 2022-2026'!$BS$65*G$4","v":1.3779966840787596},{"$f":"'O & M 2022-2026'!$CP$65*H$4","v":1.3926902579471885},null,null,{"$f":"'O & M 2022-2026'!$M$65*K$4","v":1.3325364452992048},{"$f":"'O & M 2022-2026'!$AJ$65*L$4","v":1.3484672840736838},{"$f":"'O & M 2022-2026'!$BG$65*M$4","v":1.3618843935862952},{"$f":"'O & M 2022-2026'!$CD$65*N$4","v":1.3779966840787596},{"$f":"'O & M 2022-2026'!$DA$65*O$4","v":1.3926902579471885}]
[null,null,null,{"$f":"SUM(D177:D178)","v":20.82296308034185},{"$f":"SUM(E177:E178)","v":21.319843655490455},{"$f":"SUM(F177:F178)","v":21.818694920392758},{"$f":"SUM(G177:G178)","v":22.350145637291167},{"$f":"SUM(H177:H178)","v":22.92592916000444},null,null,{"$f":"SUM(K177:K178)","v":26.653305513530277},{"$f":"SUM(L177:L178)","v":27.290252219815105},{"$f":"SUM(M177:M178)","v":27.930648944755045},{"$f":"SUM(N177:N178)","v":28.611675274250427},{"$f":"SUM(O177:O178)","v":29.349151053972776}]
["Capital Charge"]
["Depreciation and Return",null,null,{"$f":"'Depn & WACC Post 2004 Central'!$H$75","v":17.518309415682719},{"$f":"'Depn & WACC Post 2004 Central'!$H$131","v":21.700711573182769},{"$f":"'Depn & WACC Post 2004 Central'!$H$187","v":25.107283999485119},{"$f":"'Depn & WACC Post 2004 Central'!$H$243","v":27.895589138954357},{"$f":"'Depn & WACC Post 2004 Central'!$H$299","v":29.62918071671313},null,null,{"$f":"'Depn & WACC Post 2004 N & E'!$H$75","v":17.518309415682719},{"$f":"'Depn & WACC Post 2004 N & E'!$H$131","v":21.700711573182769},{"$f":"'Depn & WACC Post 2004 N & E'!$H$187","v":25.107283999485123},{"$f":"'Depn & WACC Post 2004 N & E'!$H$243","v":27.895589138954353},{"$f":"'Depn & WACC Post 2004 N & E'!$H$299","v":29.629180716713126}]
[]
["Poles & Brackets Charge",null,null,{"$f":"D$13","v":13.720392540386051},{"$f":"E$13","v":14.292505431823502},{"$f":"F$13","v":14.811882715858504},{"$f":"G$13","v":15.329671083041697},{"$f":"H$13","v":15.802803020527911},null,null,{"$f":"K$13","v":13.764211907969779},{"$f":"L$13","v":14.331487684634963},{"$f":"M$13","v":14.845866123780931},{"$f":"N$13","v":15.361421858276312},{"$f":"O$13","v":15.835444070055374}]
[]
["Total Charge",null,null,{"$f":"SUM(D179,D181,D183)","v":52.061665036410623},{"$f":"SUM(E179,E181,E183)","v":57.313060660496724},{"$f":"SUM(F179,F181,F183)","v":61.73786163573638},{"$f":"SUM(G179,G181,G183)","v":65.57540585928723},{"$f":"SUM(H179,H181,H183)","v":68.357912897245484},null,null,{"$f":"SUM(K179,K181,K183)","v":57.935826837182773},{"$f":"SUM(L179,L181,L183)","v":63.322451477632839},{"$f":"SUM(M179,M181,M183)","v":67.883799068021105},{"$f":"SUM(N179,N181,N183)","v":71.868686271481096},{"$f":"SUM(O179,O181,O183)","v":74.813775840741272}]
[]
[]
[]
[]
[{"$f":"'O & M 2022-2026'!A68","v":"Smart lighting L1"},null,null,{"$f":"D$1","v":"2022-06-30"},{"$f":"E$1","v":"2023-06-30"},"2024-06-30","2025-06-30","2026-06-30",null,null,{"$f":"K$1","v":"2022-06-30"},{"$f":"L$1","v":"2023-06-30"},"2024-06-30","2025-06-30","2026-06-30"]
[]
["O & M Charge"]
[{"$f":"'O & M 2022-2026'!A$33","v":"Bulk change & repairs"},null,null,{"$f":"'O & M 2022-2026'!$B$69*D$4","v":34.107714990447278},{"$f":"'O & M 2022-2026'!$Y$69*E$4","v":34.901713639444225},{"$f":"'O & M 2022-2026'!$AV$69*F$4","v":35.705286583369194},{"$f":"'O & M 2022-2026'!$BS$69*G$4","v":36.549726640948165},{"$f":"'O & M 2022-2026'!$CP$69*H$4","v":37.454574646744575},null,null,{"$f":"'O & M 2022-2026'!$M$69*K$4","v":41.903122134723617},{"$f":"'O & M 2022-2026'!$AJ$69*L$4","v":42.884741822566788},{"$f":"'O & M 2022-2026'!$BG$69*M$4","v":43.877901159322299},{"$f":"'O & M 2022-2026'!$CD$69*N$4","v":44.922747710001715},{"$f":"'O & M 2022-2026'!$DA$69*O$4","v":46.044345746359056}]
[{"$f":"'O & M 2022-2026'!A$35","v":"Other costs"},null,null,{"$f":"'O & M 2022-2026'!$B$65*D$4","v":1.3325364452992048},{"$f":"'O & M 2022-2026'!$Y$65*E$4","v":1.3484672840736838},{"$f":"'O & M 2022-2026'!$AV$65*F$4","v":1.3618843935862952},{"$f":"'O & M 2022-2026'!$BS$65*G$4","v":1.3779966840787596},{"$f":"'O & M 2022-2026'!$CP$65*H$4","v":1.3926902579471885},null,null,{"$f":"'O & M 2022-2026'!$M$65*K$4","v":1.3325364452992048},{"$f":"'O & M 2022-2026'!$AJ$65*L$4","v":1.3484672840736838},{"$f":"'O & M 2022-2026'!$BG$65*M$4","v":1.3618843935862952},{"$f":"'O & M 2022-2026'!$CD$65*N$4","v":1.3779966840787596},{"$f":"'O & M 2022-2026'!$DA$65*O$4","v":1.3926902579471885}]
[null,null,null,{"$f":"SUM(D193:D194)","v":35.440251435746482},{"$f":"SUM(E193:E194)","v":36.25018092351791},{"$f":"SUM(F193:F194)","v":37.067170976955488},{"$f":"SUM(G193:G194)","v":37.927723325026925},{"$f":"SUM(H193:H194)","v":38.847264904691762},null,null,{"$f":"SUM(K193:K194)","v":43.235658580022822},{"$f":"SUM(L193:L194)","v":44.233209106640473},{"$f":"SUM(M193:M194)","v":45.239785552908593},{"$f":"SUM(N193:N194)","v":46.300744394080475},{"$f":"SUM(O193:O194)","v":47.437036004306243}]
["Capital Charge"]
["Depreciation and Return",null,null,{"$f":"'Depn & WACC Post 2004 Central'!$H$78","v":10.819752312414659},{"$f":"'Depn & WACC Post 2004 Central'!$H$134","v":13.402909987124312},{"$f":"'Depn & WACC Post 2004 Central'!$H$190","v":15.506895538030079},{"$f":"'Depn & WACC Post 2004 Central'!$H$246","v":17.229023527930877},{"$f":"'Depn & WACC Post 2004 Central'!$H$302","v":18.299733665374074},null,null,{"$f":"'Depn & WACC Post 2004 N & E'!$H$78","v":10.819752312414659},{"$f":"'Depn & WACC Post 2004 N & E'!$H$134","v":13.40290998712431},{"$f":"'Depn & WACC Post 2004 N & E'!$H$190","v":15.506895538030079},{"$f":"'Depn & WACC Post 2004 N & E'!$H$246","v":17.229023527930881},{"$f":"'Depn & WACC Post 2004 N & E'!$H$302","v":18.299733665374074}]
[]
["Poles & Brackets Charge",null,null,{"$f":"D$13","v":13.720392540386051},{"$f":"E$13","v":14.292505431823502},{"$f":"F$13","v":14.811882715858504},{"$f":"G$13","v":15.329671083041697},{"$f":"H$13","v":15.802803020527911},null,null,{"$f":"K$13","v":13.764211907969779},{"$f":"L$13","v":14.331487684634963},{"$f":"M$13","v":14.845866123780931},{"$f":"N$13","v":15.361421858276312},{"$f":"O$13","v":15.835444070055374}]
[]
["Total Charge",null,null,{"$f":"SUM(D195,D197,D199)","v":59.98039628854719},{"$f":"SUM(E195,E197,E199)","v":63.94559634246572},{"$f":"SUM(F195,F197,F199)","v":67.385949230844076},{"$f":"SUM(G195,G197,G199)","v":70.486417935999498},{"$f":"SUM(H195,H197,H199)","v":72.949801590593751},null,null,{"$f":"SUM(K195,K197,K199)","v":67.819622800407259},{"$f":"SUM(L195,L197,L199)","v":71.967606778399741},{"$f":"SUM(M195,M197,M199)","v":75.592547214719602},{"$f":"SUM(N195,N197,N199)","v":78.891189780287675},{"$f":"SUM(O195,O197,O199)","v":81.572213739735687}]
[]
[]
[]
[]
[{"$f":"'O & M 2022-2026'!A74","v":"Smart lighting L2"},null,null,{"$f":"D$1","v":"2022-06-30"},{"$f":"E$1","v":"2023-06-30"},"2024-06-30","2025-06-30","2026-06-30",null,null,{"$f":"K$1","v":"2022-06-30"},{"$f":"L$1","v":"2023-06-30"},"2024-06-30","2025-06-30","2026-06-30"]
[]
["O & M Charge"]
[{"$f":"'O & M 2022-2026'!A$33","v":"Bulk change & repairs"},null,null,{"$f":"'O & M 2022-2026'!$B$75*D$4","v":34.107714990447278},{"$f":"'O & M 2022-2026'!$Y$75*E$4","v":34.901713639444225},{"$f":"'O & M 2022-2026'!$AV$75*F$4","v":35.705286583369194},{"$f":"'O & M 2022-2026'!$BS$75*G$4","v":36.549726640948165},{"$f":"'O & M 2022-2026'!$CP$75*H$4","v":37.454574646744575},null,null,{"$f":"'O & M 2022-2026'!$M$75*K$4","v":41.903122134723617},{"$f":"'O & M 2022-2026'!$AJ$75*L$4","v":42.884741822566788},{"$f":"'O & M 2022-2026'!$BG$75*M$4","v":43.877901159322306},{"$f":"'O & M 2022-2026'!$CD$75*N$4","v":44.922747710001715},{"$f":"'O & M 2022-2026'!$DA$75*O$4","v":46.044345746359056}]
[{"$f":"'O & M 2022-2026'!A$35","v":"Other costs"},null,null,{"$f":"'O & M 2022-2026'!$B$65*D$4","v":1.3325364452992048},{"$f":"'O & M 2022-2026'!$Y$65*E$4","v":1.3484672840736838},{"$f":"'O & M 2022-2026'!$AV$65*F$4","v":1.3618843935862952},{"$f":"'O & M 2022-2026'!$BS$65*G$4","v":1.3779966840787596},{"$f":"'O & M 2022-2026'!$CP$65*H$4","v":1.3926902579471885},null,null,{"$f":"'O & M 2022-2026'!$M$65*K$4","v":1.3325364452992048},{"$f":"'O & M 2022-2026'!$AJ$65*L$4","v":1.3484672840736838},{"$f":"'O & M 2022-2026'!$BG$65*M$4","v":1.3618843935862952},{"$f":"'O & M 2022-2026'!$CD$65*N$4","v":1.3779966840787596},{"$f":"'O & M 2022-2026'!$DA$65*O$4","v":1.3926902579471885}]
[null,null,null,{"$f":"SUM(D209:D210)","v":35.440251435746482},{"$f":"SUM(E209:E210)","v":36.25018092351791},{"$f":"SUM(F209:F210)","v":37.067170976955488},{"$f":"SUM(G209:G210)","v":37.927723325026925},{"$f":"SUM(H209:H210)","v":38.847264904691762},null,null,{"$f":"SUM(K209:K210)","v":43.235658580022822},{"$f":"SUM(L209:L210)","v":44.233209106640473},{"$f":"SUM(M209:M210)","v":45.2397855529086},{"$f":"SUM(N209:N210)","v":46.300744394080475},{"$f":"SUM(O209:O210)","v":47.437036004306243}]
["Capital Charge"]
["Depreciation and Return",null,null,{"$f":"'Depn & WACC Post 2004 Central'!$H$79","v":11.492622481097163},{"$f":"'Depn & WACC Post 2004 Central'!$H$135","v":14.236424289806171},{"$f":"'Depn & WACC Post 2004 Central'!$H$191","v":16.471254713280707},{"$f":"'Depn & WACC Post 2004 Central'!$H$247","v":18.300480214991257},{"$f":"'Depn & WACC Post 2004 Central'!$H$303","v":19.437776803767981},null,null,{"$f":"'Depn & WACC Post 2004 N & E'!$H$79","v":11.492622481097163},{"$f":"'Depn & WACC Post 2004 N & E'!$H$135","v":14.236424289806173},{"$f":"'Depn & WACC Post 2004 N & E'!$H$191","v":16.471254713280707},{"$f":"'Depn & WACC Post 2004 N & E'!$H$247","v":18.300480214991257},{"$f":"'Depn & WACC Post 2004 N & E'!$H$303","v":19.437776803767985}]
[]
["Poles & Brackets Charge",null,null,{"$f":"D$13","v":13.720392540386051},{"$f":"E$13","v":14.292505431823502},{"$f":"F$13","v":14.811882715858504},{"$f":"G$13","v":15.329671083041697},{"$f":"H$13","v":15.802803020527911},null,null,{"$f":"K$13","v":13.764211907969779},{"$f":"L$13","v":14.331487684634963},{"$f":"M$13","v":14.845866123780931},{"$f":"N$13","v":15.361421858276312},{"$f":"O$13","v":15.835444070055374}]
[]
["Total Charge",null,null,{"$f":"SUM(D211,D213,D215)","v":60.653266457229698},{"$f":"SUM(E211,E213,E215)","v":64.779110645147583},{"$f":"SUM(F211,F213,F215)","v":68.350308406094697},{"$f":"SUM(G211,G213,G215)","v":71.557874623059888},{"$f":"SUM(H211,H213,H215)","v":74.087844728987648},null,null,{"$f":"SUM(K211,K213,K215)","v":68.492492969089767},{"$f":"SUM(L211,L213,L215)","v":72.801121081081604},{"$f":"SUM(M211,M213,M215)","v":76.556906389970237},{"$f":"SUM(N211,N213,N215)","v":79.962646467348051},{"$f":"SUM(O211,O213,O215)","v":82.710256878129599}]
[]
[]
[]
[]
[{"$f":"'O & M 2022-2026'!A80","v":"Smart lighting L4"},null,null,{"$f":"D$1","v":"2022-06-30"},{"$f":"E$1","v":"2023-06-30"},"2024-06-30","2025-06-30","2026-06-30",null,null,{"$f":"K$1","v":"2022-06-30"},{"$f":"L$1","v":"2023-06-30"},"2024-06-30","2025-06-30","2026-06-30"]
[]
["O & M Charge"]
[{"$f":"'O & M 2022-2026'!A$33","v":"Bulk change & repairs"},null,null,{"$f":"'O & M 2022-2026'!$B$81*D$4","v":34.107714990447278},{"$f":"'O & M 2022-2026'!$Y$81*E$4","v":34.901713639444225},{"$f":"'O & M 2022-2026'!$AV$81*F$4","v":35.705286583369194},{"$f":"'O & M 2022-2026'!$BS$81*G$4","v":36.549726640948165},{"$f":"'O & M 2022-2026'!$CP$81*H$4","v":37.454574646744575},null,null,{"$f":"'O & M 2022-2026'!$M$81*K$4","v":41.903122134723617},{"$f":"'O & M 2022-2026'!$AJ$81*L$4","v":42.884741822566788},{"$f":"'O & M 2022-2026'!$BG$81*M$4","v":43.877901159322306},{"$f":"'O & M 2022-2026'!$CD$81*N$4","v":44.922747710001715},{"$f":"'O & M 2022-2026'!$DA$81*O$4","v":46.044345746359056}]
[{"$f":"'O & M 2022-2026'!A$35","v":"Other costs"},null,null,{"$f":"'O & M 2022-2026'!$B$65*D$4","v":1.3325364452992048},{"$f":"'O & M 2022-2026'!$Y$65*E$4","v":1.3484672840736838},{"$f":"'O & M 2022-2026'!$AV$65*F$4","v":1.3618843935862952},{"$f":"'O & M 2022-2026'!$BS$65*G$4","v":1.3779966840787596},{"$f":"'O & M 2022-2026'!$CP$65*H$4","v":1.3926902579471885},null,null,{"$f":"'O & M 2022-2026'!$M$65*K$4","v":1.3325364452992048},{"$f":"'O & M 2022-2026'!$AJ$65*L$4","v":1.3484672840736838},{"$f":"'O & M 2022-2026'!$BG$65*M$4","v":1.3618843935862952},{"$f":"'O & M 2022-2026'!$CD$65*N$4","v":1.3779966840787596},{"$f":"'O & M 2022-2026'!$DA$65*O$4","v":1.3926902579471885}]
[null,null,null,{"$f":"SUM(D225:D226)","v":35.440251435746482},{"$f":"SUM(E225:E226)","v":36.25018092351791},{"$f":"SUM(F225:F226)","v":37.067170976955488},{"$f":"SUM(G225:G226)","v":37.927723325026925},{"$f":"SUM(H225:H226)","v":38.847264904691762},null,null,{"$f":"SUM(K225:K226)","v":43.235658580022822},{"$f":"SUM(L225:L226)","v":44.233209106640473},{"$f":"SUM(M225:M226)","v":45.2397855529086},{"$f":"SUM(N225:N226)","v":46.300744394080475},{"$f":"SUM(O225:O226)","v":47.437036004306243}]
["Capital Charge"]
["Depreciation and Return",null,null,{"$f":"'Depn & WACC Post 2004 Central'!$H$80","v":17.518309415682719},{"$f":"'Depn & WACC Post 2004 Central'!$H$136","v":21.700711573182769},{"$f":"'Depn & WACC Post 2004 Central'!$H$192","v":25.107283999485123},{"$f":"'Depn & WACC Post 2004 Central'!$H$248","v":27.895589138954353},{"$f":"'Depn & WACC Post 2004 Central'!$H$304","v":29.62918071671313},null,null,{"$f":"'Depn & WACC Post 2004 N & E'!$H$80","v":17.518309415682719},{"$f":"'Depn & WACC Post 2004 N & E'!$H$136","v":21.700711573182769},{"$f":"'Depn & WACC Post 2004 N & E'!$H$192","v":25.107283999485123},{"$f":"'Depn & WACC Post 2004 N & E'!$H$248","v":27.895589138954353},{"$f":"'Depn & WACC Post 2004 N & E'!$H$304","v":29.629180716713126}]
[]
["Poles & Brackets Charge",null,null,{"$f":"D$13","v":13.720392540386051},{"$f":"E$13","v":14.292505431823502},{"$f":"F$13","v":14.811882715858504},{"$f":"G$13","v":15.329671083041697},{"$f":"H$13","v":15.802803020527911},null,null,{"$f":"K$13","v":13.764211907969779},{"$f":"L$13","v":14.331487684634963},{"$f":"M$13","v":14.845866123780931},{"$f":"N$13","v":15.361421858276312},{"$f":"O$13","v":15.835444070055374}]
[]
["Total Charge",null,null,{"$f":"SUM(D227,D229,D231)","v":66.678953391815242},{"$f":"SUM(E227,E229,E231)","v":72.243397928524175},{"$f":"SUM(F227,F229,F231)","v":76.986337692299116},{"$f":"SUM(G227,G229,G231)","v":81.152983547022984},{"$f":"SUM(H227,H229,H231)","v":84.27924864193281},null,null,{"$f":"SUM(K227,K229,K231)","v":74.518179903675318},{"$f":"SUM(L227,L229,L231)","v":80.26540836445821},{"$f":"SUM(M227,M229,M231)","v":85.192935676174656},{"$f":"SUM(N227,N229,N231)","v":89.557755391311147},{"$f":"SUM(O227,O229,O231)","v":92.901660791074747}]

{"sheet":"O & M 2022-2026","index":9,"n_rows":582,"n_cols":114,"rows_kept":582,"cut":false,"hidden":false,"merged":[[489,38,489,43],[489,31,489,36],[489,24,489,29],[489,15,489,20],[489,8,489,13],[489,1,489,6],[489,107,489,112],[489,100,489,105],[489,93,489,98],[489,84,489,89],[489,77,489,82],[489,70,489,75],[489,61,489,66],[489,54,489,59],[489,47,489,52],[419,107,419,112],[349,100,349,105],[454,93,454,98],[454,100,454,105],[454,107,454,112],[454,54,454,59],[454,61,454,66],[454,70,454,75],[454,77,454,82],[454,84,454,89],[384,100,384,105],[384,107,384,112],[349,107,349,112],[349,77,349,82],[349,84,349,89],[349,93,349,98],[384,93,384,98],[384,77,384,82],[384,84,384,89],[419,31,419,36],[419,38,419,43],[419,47,419,52],[419,54,419,59],[419,61,419,66],[454,8,454,13],[454,24,454,29],[454,31,454,36],[454,38,454,43],[454,47,454,52],[119,8,119,13],[119,15,119,20],[384,1,384,6],[384,15,384,20],[349,24,349,29],[349,54,349,59],[349,61,349,66],[349,70,349,75],[349,8,349,13],[384,54,384,59],[384,61,384,66],[384,70,384,75],[384,24,384,29],[384,38,384,43],[384,31,384,36],[384,8,384,13],[384,47,384,52],[349,31,349,36],[349,38,349,43],[349,47,349,52],[160,1,160,6],[238,1,238,6],[276,15,276,20],[238,61,238,66],[160,77,160,82],[85,81,85,89],[119,70,119,75],[349,1,349,6],[349,15,349,20],[85,25,85,33],[85,35,85,43],[119,24,119,29],[119,31,119,36],[119,38,119,43],[276,38,276,43],[198,38,198,43],[160,24,160,29],[160,31,160,36],[160,38,160,43],[276,24,276,29],[276,31,276,36],[238,24,238,29],[238,31,238,36],[238,38,238,43],[85,2,85,10],[85,12,85,20],[160,15,160,20],[119,1,119,6],[85,104,85,112],[276,93,276,98],[276,100,276,105],[238,93,238,98],[238,100,238,105],[238,107,238,112],[119,93,119,98],[119,100,119,105],[119,107,119,112],[276,107,276,112],[198,107,198,112],[160,93,160,98],[160,100,160,105],[160,107,160,112],[85,94,85,102],[119,77,119,82],[160,70,160,75],[160,84,160,89],[85,71,85,79],[119,61,119,66],[314,24,314,29],[314,38,314,43],[314,47,314,52],[160,8,160,13],[198,15,198,20],[276,54,276,59],[85,48,85,56],[85,58,85,66],[198,61,198,66],[160,61,160,66],[314,61,314,66],[314,70,314,75],[314,84,314,89],[198,84,198,89],[119,47,119,52],[119,54,119,59],[119,84,119,89],[160,47,160,52],[160,54,160,59],[276,84,276,89],[276,70,276,75],[276,77,276,82],[238,70,238,75],[238,77,238,82],[238,84,238,89],[238,8,238,13],[238,15,238,20],[238,47,238,52],[238,54,238,59],[276,47,276,52],[524,84,524,89],[524,77,524,82],[524,70,524,75],[524,61,524,66],[524,54,524,59],[524,47,524,52],[314,93,314,98],[314,107,314,112],[276,1,276,6],[276,8,276,13],[276,61,276,66],[314,1,314,6],[314,15,314,20],[454,1,454,6],[454,15,454,20],[419,8,419,13],[419,24,419,29],[419,70,419,75],[419,77,419,82],[419,84,419,89],[419,93,419,98],[419,100,419,105],[419,1,419,6],[419,15,419,20],[524,38,524,43],[524,31,524,36],[524,24,524,29],[524,15,524,20],[524,8,524,13],[524,1,524,6],[559,107,559,112],[559,100,559,105],[559,93,559,98],[559,84,559,89],[559,77,559,82],[559,70,559,75],[559,61,559,66],[559,54,559,59],[559,47,559,52],[559,38,559,43],[559,31,559,36],[559,24,559,29],[559,15,559,20],[559,8,559,13],[559,1,559,6],[524,107,524,112],[524,100,524,105],[524,93,524,98]]}
[{"$f":"'DNSP Inputs O & M'!$A$3","v":"AusNet"}]
[]
["Public Lighting O & M Costs","Year",{"$f":"'DNSP Inputs General'!$Q2","v":"2022-06-30"},null,null,null,null,null,null,null,null,null,"Year",{"$f":"C3","v":"2022-06-30"},null,null,null,null,null,null,null,null,null,null,"Year",{"$f":"'DNSP Inputs General'!$R2","v":"2023-06-30"},null,null,null,null,null,null,null,null,null,"Year",{"$f":"Z3","v":"2023-06-30"},null,null,null,null,null,null,null,null,null,null,"Year",{"$f":"'DNSP Inputs General'!$S2","v":"2024-06-30"},null,null,null,null,null,null,null,null,null,"Year",{"$f":"AW3","v":"2024-06-30"},null,null,null,null,null,null,null,null,null,null,"Year",{"$f":"'DNSP Inputs General'!$T2","v":"2025-06-30"},null,null,null,null,null,null,null,null,null,"Year",{"$f":"BT3","v":"2025-06-30"},null,null,null,null,null,null,null,null,null,null,"Year",{"$f":"'DNSP Inputs General'!$U2","v":"2026-06-30"},null,null,null,null,null,null,null,null,null,"Year",{"$f":"CQ3","v":"2026-06-30"}]
[{"$f":"'DNSP Inputs O & M'!C5","v":"Real 2021 $ "}]
[]
["Summary"]
[null,{"$f":"'DNSP Inputs O & M'!$A$58","v":"SP AusNet - Central"},null,null,null,null,null,null,null,null,null,null,{"$f":"'DNSP Inputs O & M'!$A$63","v":"SP AusNet - North/East"},null,null,null,null,null,null,null,null,null,null,null,{"$f":"'DNSP Inputs O & M'!$A$58","v":"SP AusNet - Central"},null,null,null,null,null,null,null,null,null,null,{"$f":"'DNSP Inputs O & M'!$A$63","v":"SP AusNet - North/East"},null,null,null,null,null,null,null,null,null,null,null,{"$f":"'DNSP Inputs O & M'!$A$58","v":"SP AusNet - Central"},null,null,null,null,null,null,null,null,null,null,{"$f":"'DNSP Inputs O & M'!$A$63","v":"SP AusNet - North/East"},null,null,null,null,null,null,null,null,null,null,null,{"$f":"'DNSP Inputs O & M'!$A$58","v":"SP AusNet - Central"},null,null,null,null,null,null,null,null,null,null,{"$f":"'DNSP Inputs O & M'!$A$63","v":"SP AusNet - North/East"},null,null,null,null,null,null,null,null,null,null,null,{"$f":"'DNSP Inputs O & M'!$A$58","v":"SP AusNet - Central"},null,null,null,null,null,null,null,null,null,null,{"$f":"'DNSP Inputs O & M'!$A$63","v":"SP AusNet - North/East"}]
[{"$f":"$A$124","v":"MV80"},null,null,"Avoided Costs - MV 80 O & M",null,null,null,null,null,null,null,null,null,null,"Avoided Costs - MV 80 O & M",null,null,null,null,null,null,null,null,null,null,null,"Avoided Costs - MV 80 O & M",null,null,null,null,null,null,null,null,null,null,"Avoided Costs - MV 80 O & M",null,null,null,null,null,null,null,null,null,null,null,"Avoided Costs - MV 80 O & M",null,null,null,null,null,null,null,null,null,null,"Avoided Costs - MV 80 O & M",null,null,null,null,null,null,null,null,null,null,null,"Avoided Costs - MV 80 O & M",null,null,null,null,null,null,null,null,null,null,"Avoided Costs - MV 80 O & M",null,null,null,null,null,null,null,null,null,null,null,"Avoided Costs - MV 80 O & M",null,null,null,null,null,null,null,null,null,null,"Avoided Costs - MV 80 O & M"]
[{"$f":"$A$125","v":"Bulk change & repairs"},{"$f":"G145*C88+N145*C89+U145*C90","v":22.465004198532949},null,"Materials & labour - bulk lamp change",null,null,{"$f":"-((G127+G136)*C88+(N127+N136)*C89+(U127+U136)*C90)*2","v":-20.640064938079892},null,null,null,null,null,{"$f":"G145*M88+N145*M89+U145*M90+'DNSP Inputs O & M'!$D$55","v":26.134348494339765},null,"Materials & labour - bulk lamp change",null,null,{"$f":"-((G127+G136)*M88+(N127+N136)*M89+(U127+U136)*M90)*2","v":-23.465720412986123},null,null,null,null,null,null,{"$f":"AD145*Z88+AK145*Z89+AR145*Z90","v":22.537157801059635},null,"Materials & labour - bulk lamp change",null,null,{"$f":"-((AD127+AD136)*Z88+(AK127+AK136)*Z89+(AR127+AR136)*Z90)*2","v":-20.717896316439898},null,null,null,null,null,{"$f":"AD145*AJ88+AK145*AJ89+AR145*AJ90+'DNSP Inputs O & M'!$E$55","v":26.217296016150183},null,"Materials & labour - bulk lamp change",null,null,{"$f":"-((AD127+AD136)*AJ88+(AK127+AK136)*AJ89+(AR127+AR136)*AJ90)*2","v":-23.554926156507779},null,null,null,null,null,null,{"$f":"BA145*AW88+BH145*AW89+BO145*AW90","v":22.60391935029585},null,"Materials & labour - bulk lamp change",null,null,{"$f":"-((BA127+BA136)*AW88+(BH127+BH136)*AW89+(BO127+BO136)*AW90)*2","v":-20.789911340174619},null,null,null,null,null,{"$f":"BA145*BG88+BH145*BG89+BO145*BG90+'DNSP Inputs O & M'!$F$55","v":26.294044852901894},null,"Materials & labour - bulk lamp change",null,null,{"$f":"-((BA127+BA136)*BG88+(BH127+BH136)*BG89+(BO127+BO136)*BG90)*2","v":-23.637465536798221},null,null,null,null,null,null,{"$f":"BX145*BT88+CE145*BT89+CL145*BT90","v":22.684721942552535},null,"Materials & labour - bulk lamp change",null,null,{"$f":"-((BX127+BX136)*BT88+(CE127+CE136)*BT89+(CL127+CL136)*BT90)*2","v":-20.877072298327395},null,null,null,null,null,{"$f":"BX145*CD88+CE145*CD89+CL145*CD90+'DNSP Inputs O & M'!$G$55","v":26.3869352221814},null,"Materials & labour - bulk lamp change",null,null,{"$f":"-((BX127+BX136)*CD88+(CE127+CE136)*CD89+(CL127+CL136)*CD90)*2","v":-23.737364295395491},null,null,null,null,null,null,{"$f":"CU145*CQ88+DB145*CQ89+DI145*CQ90","v":22.790350896482444},null,"Materials & labour - bulk lamp change",null,null,{"$f":"-((CU127+CU136)*CQ88+(DB127+DB136)*CQ89+(DI127+DI136)*CQ90)*2","v":-20.991013207598705},null,null,null,null,null,{"$f":"CU145*DA88+DB145*DA89+DI145*DA90+'DNSP Inputs O & M'!$H$55","v":26.508365887499494},null,"Materials & labour - bulk lamp change",null,null,{"$f":"-((CU127+CU136)*DA88+(DB127+DB136)*DA89+(DI127+DI136)*DA90)*2","v":-23.867956657284122}]
[{"$f":"$A$147","v":"Dedicated poles - inspection"},{"$f":"(G148*C88+N148*C89+U148*C90)*C98","v":1.3887940184783973},null,"Materials & Labour - repair of faults",null,null,{"$f":"-((G131+G139+G141)*C88+(N131+N139+N141)*C89+(U131+U139+U141)*C90)/2","v":-3.8259854448932087},null,null,null,null,null,{"$f":"(G148*C88+N148*C89+U148*C90)*M98","v":1.3952674994864962},null,"Materials & Labour - repair of faults",null,null,{"$f":"-((G131+G139+G141)*M88+(N131+N139+N141)*M89+(U131+U139+U141)*M90)/2","v":-4.195309294489376},null,null,null,null,null,null,{"$f":"(AD148*Z88+AK148*Z89+AR148*Z90)*Z98","v":1.3958268158640177},null,"Materials & Labour - repair of faults",null,null,{"$f":"-((AD131+AD139+AD141)*Z88+(AK131+AK139+AK141)*Z89+(AR131+AR139+AR141)*Z90)/2","v":-3.8353890413138783},null,null,null,null,null,{"$f":"(AD148*Z88+AK148*Z89+AR148*Z90)*AJ98","v":1.4023330783211321},null,"Materials & Labour - repair of faults",null,null,{"$f":"-((AD131+AD139+AD141)*AJ88+(AK131+AK139+AK141)*AJ89+(AR131+AR139+AR141)*AJ90)/2","v":-4.206186867333126},null,null,null,null,null,null,{"$f":"(BA148*AW88+BH148*AW89+BO148*AW90)*AW98","v":1.4023340508805202},null,"Materials & Labour - repair of faults",null,null,{"$f":"-((BA131+BA139+BA141)*AW88+(BH131+BH139+BH141)*AW89+(BO131+BO139+BO141)*AW90)/2","v":-3.8440899050746848},null,null,null,null,null,{"$f":"(BA148*AW88+BH148*AW89+BO148*AW90)*BG98","v":1.4088706450223438},null,"Materials & Labour - repair of faults",null,null,{"$f":"-((BA131+BA139+BA141)*BG88+(BH131+BH139+BH141)*BG89+(BO131+BO139+BO141)*BG90)/2","v":-4.2162515569612022},null,null,null,null,null,null,{"$f":"(BX148*BT88+CE148*BT89+CL148*BT90)*BT98","v":1.4102098635866713},null,"Materials & Labour - repair of faults",null,null,{"$f":"-((BX131+BX139+BX141)*BT88+(CE131+CE139+CE141)*BT89+(CL131+CL139+CL141)*BT90)/2","v":-3.8546207024391657},null,null,null,null,null,{"$f":"(BX148*BT88+CE148*BT89+CL148*BT90)*CD98","v":1.4167831686613608},null,"Materials & Labour - repair of faults",null,null,{"$f":"-((BX131+BX139+BX141)*CD88+(CE131+CE139+CE141)*CD89+(CL131+CL139+CL141)*CD90)/2","v":-4.2284330150236871},null,null,null,null,null,null,{"$f":"(CU148*CQ88+DB148*CQ89+DI148*CQ90)*CQ98","v":1.4205054968611068},null,"Materials & Labour - repair of faults",null,null,{"$f":"-((CU131+CU139+CU141)*CQ88+(DB131+DB139+DB141)*CQ89+(DI131+DI139+DI141)*CQ90)/2","v":-3.8683870566933014},null,null,null,null,null,{"$f":"(CU148*CQ88+DB148*CQ89+DI148*CQ90)*DA98","v":1.4271267921961095},null,"Materials & Labour - repair of faults",null,null,{"$f":"-((CU131+CU139+CU141)*DA88+(DB131+DB139+DB141)*DA89+(DI131+DI139+DI141)*DA90)/2","v":-4.2443571906787687}]
["Other costs",{"$f":"IF(C106=0,0,C104/C106)","v":1.3064161278016617},null,null,null,null,{"$f":"SUM(G9:G10)","v":-24.466050382973101},null,null,null,null,null,{"$f":"IF(C106=0,0,C104/C106)","v":1.3064161278016617},null,null,null,null,{"$f":"SUM(R9:R10)","v":-27.6610297074755},null,null,null,null,null,null,{"$f":"IF(Z106=0,0,Z104/Z106)","v":1.2961202284166369},null,null,null,null,{"$f":"SUM(AD9:AD10)","v":-24.553285357753776},null,null,null,null,null,{"$f":"IF(Z106=0,0,Z104/Z106)","v":1.2961202284166369},null,null,null,null,{"$f":"SUM(AO9:AO10)","v":-27.761113023840906},null,null,null,null,null,null,{"$f":"IF(AW106=0,0,AW104/AW106)","v":1.2833572097293093},null,null,null,null,{"$f":"SUM(BA9:BA10)","v":-24.634001245249305},null,null,null,null,null,{"$f":"IF(AW106=0,0,AW104/AW106)","v":1.2833572097293093},null,null,null,null,{"$f":"SUM(BL9:BL10)","v":-27.853717093759421},null,null,null,null,null,null,{"$f":"IF(BT106=0,0,BT104/BT106)","v":1.273086524886323},null,null,null,null,{"$f":"SUM(BX9:BX10)","v":-24.731693000766562},null,null,null,null,null,{"$f":"IF(BT106=0,0,BT104/BT106)","v":1.273086524886323},null,null,null,null,{"$f":"SUM(CI9:CI10)","v":-27.965797310419177},null,null,null,null,null,null,{"$f":"IF(CQ106=0,0,CQ104/CQ106)","v":1.2614403642749497},null,null,null,null,{"$f":"SUM(CU9:CU10)","v":-24.859400264292006},null,null,null,null,null,{"$f":"IF(CQ106=0,0,CQ104/CQ106)","v":1.2614403642749497},null,null,null,null,{"$f":"SUM(DF9:DF10)","v":-28.112313847962891}]
[]
[]
[{"$f":"$A$165","v":"S-HP 150"}]
[{"$f":"$A$172","v":"Patrols and repairs"},{"$f":"G188*E88+N188*E89+U188*E90","v":68.862397895484776},null,null,null,null,null,null,null,null,null,null,{"$f":"G188*O88+N188*O89+U188*O90+'DNSP Inputs O & M'!$D$98","v":85.688059186081659},null,null,null,null,null,null,null,null,null,null,null,{"$f":"AD188*AB88+AK188*AB89+AR188*AB90","v":69.172296784942162},null,null,null,null,null,null,null,null,null,null,{"$f":"AD188*AL88+AK188*AL89+AR188*AL90+'DNSP Inputs O & M'!$E$98","v":86.096453779323426},null,null,null,null,null,null,null,null,null,null,null,{"$f":"BA188*AY88+BH188*AY89+BO188*AY90","v":69.460117215174563},null,null,null,null,null,null,null,null,null,null,{"$f":"BA188*BI88+BH188*BI89+BO188*BI90+'DNSP Inputs O & M'!$F$98","v":86.478187568924781},null,null,null,null,null,null,null,null,null,null,null,{"$f":"BX188*BV88+CE188*BV89+CL188*BV90","v":69.806997236328868},null,null,null,null,null,null,null,null,null,null,{"$f":"BX188*CF88+CE188*CF89+CL188*CF90+'DNSP Inputs O & M'!$G$98","v":86.935470889986561},null,null,null,null,null,null,null,null,null,null,null,{"$f":"CU188*CS88+DB188*CS89+DI188*CS90","v":70.25648951556532},null,null,null,null,null,null,null,null,null,null,{"$f":"CU188*DC88+DB188*DC89+DI188*DC90+'DNSP Inputs O & M'!$H$98","v":87.522708165848442}]
[{"$f":"$A$10","v":"Dedicated poles - inspection"},{"$f":"B$10","v":1.3887940184783973},null,null,null,null,null,null,null,null,null,null,{"$f":"M$10","v":1.3952674994864962},null,null,null,null,null,null,null,null,null,null,null,{"$f":"Y$10","v":1.3958268158640177},null,null,null,null,null,null,null,null,null,null,{"$f":"AJ$10","v":1.4023330783211321},null,null,null,null,null,null,null,null,null,null,null,{"$f":"AV10","v":1.4023340508805202},null,null,null,null,null,null,null,null,null,null,{"$f":"BG10","v":1.4088706450223438},null,null,null,null,null,null,null,null,null,null,null,{"$f":"BS10","v":1.4102098635866713},null,null,null,null,null,null,null,null,null,null,{"$f":"CD10","v":1.4167831686613608},null,null,null,null,null,null,null,null,null,null,null,{"$f":"CP10","v":1.4205054968611068},null,null,null,null,null,null,null,null,null,null,{"$f":"DA10","v":1.4271267921961095}]
[{"$f":"$A$11","v":"Other costs"},{"$f":"B$11","v":1.3064161278016617},null,null,null,null,null,null,null,null,null,null,{"$f":"M$11","v":1.3064161278016617},null,null,null,null,null,null,null,null,null,null,null,{"$f":"Y$11","v":1.2961202284166369},null,null,null,null,null,null,null,null,null,null,{"$f":"AJ$11","v":1.2961202284166369},null,null,null,null,null,null,null,null,null,null,null,{"$f":"AV11","v":1.2833572097293093},null,null,null,null,null,null,null,null,null,null,{"$f":"BG11","v":1.2833572097293093},null,null,null,null,null,null,null,null,null,null,null,{"$f":"BS11","v":1.273086524886323},null,null,null,null,null,null,null,null,null,null,{"$f":"CD11","v":1.273086524886323},null,null,null,null,null,null,null,null,null,null,null,{"$f":"CP11","v":1.2614403642749497},null,null,null,null,null,null,null,null,null,null,{"$f":"DA11","v":1.2614403642749497}]
[]
[]
[{"$f":"$A$203","v":"S-HP 250"}]
[{"$f":"$A$210","v":"Patrols and repairs"},{"$f":"G226*G88+N226*G89+U226*G90","v":71.086411958979525},null,null,null,null,null,null,null,null,null,null,{"$f":"G226*Q88+N226*Q89+U226*Q90+'DNSP Inputs O & M'!$D$141","v":85.250181875393579},null,null,null,null,null,null,null,null,null,null,null,{"$f":"AD226*AD88+AK226*AD89+AR226*AD90","v":71.3991143860666},null,null,null,null,null,null,null,null,null,null,{"$f":"AD226*AN88+AK226*AN89+AR226*AN90+'DNSP Inputs O & M'!$E$141","v":85.738938346619435},null,null,null,null,null,null,null,null,null,null,null,{"$f":"BA226*BA88+BH226*BA89+BO226*BA90","v":71.689345550923008},null,null,null,null,null,null,null,null,null,null,{"$f":"BA226*BK88+BH226*BK89+BO226*BK90+'DNSP Inputs O & M'!$F$141","v":86.090656842354036},null,null,null,null,null,null,null,null,null,null,null,{"$f":"BX226*BX88+CE226*BX89+CL226*BX90","v":72.03948320333609},null,null,null,null,null,null,null,null,null,null,{"$f":"BX226*CH88+CE226*CH89+CL226*CH90+'DNSP Inputs O & M'!$G$141","v":86.515029429775609},null,null,null,null,null,null,null,null,null,null,null,{"$f":"CU226*CU88+DB226*CU89+DI226*CU90","v":72.493336916173092},null,null,null,null,null,null,null,null,null,null,{"$f":"CU226*DE88+DB226*DE89+DI226*DE90+'DNSP Inputs O & M'!$H$141","v":87.064928878794618}]
[{"$f":"$A$10","v":"Dedicated poles - inspection"},{"$f":"B$10","v":1.3887940184783973},null,null,null,null,null,null,null,null,null,null,{"$f":"M10","v":1.3952674994864962},null,null,null,null,null,null,null,null,null,null,null,{"$f":"Y$10","v":1.3958268158640177},null,null,null,null,null,null,null,null,null,null,{"$f":"AJ$10","v":1.4023330783211321},null,null,null,null,null,null,null,null,null,null,null,{"$f":"AV10","v":1.4023340508805202},null,null,null,null,null,null,null,null,null,null,{"$f":"BG10","v":1.4088706450223438},null,null,null,null,null,null,null,null,null,null,null,{"$f":"BS10","v":1.4102098635866713},null,null,null,null,null,null,null,null,null,null,{"$f":"CD10","v":1.4167831686613608},null,null,null,null,null,null,null,null,null,null,null,{"$f":"CP10","v":1.4205054968611068},null,null,null,null,null,null,null,null,null,null,{"$f":"DA10","v":1.4271267921961095}]
[{"$f":"$A$11","v":"Other costs"},{"$f":"B$11","v":1.3064161278016617},null,null,null,null,null,null,null,null,null,null,{"$f":"M11","v":1.3064161278016617},null,null,null,null,null,null,null,null,null,null,null,{"$f":"Y$11","v":1.2961202284166369},null,null,null,null,null,null,null,null,null,null,{"$f":"AJ$11","v":1.2961202284166369},null,null,null,null,null,null,null,null,null,null,null,{"$f":"AV11","v":1.2833572097293093},null,null,null,null,null,null,null,null,null,null,{"$f":"BG11","v":1.2833572097293093},null,null,null,null,null,null,null,null,null,null,null,{"$f":"BS11","v":1.273086524886323},null,null,null,null,null,null,null,null,null,null,{"$f":"CD11","v":1.273086524886323},null,null,null,null,null,null,null,null,null,null,null,{"$f":"CP11","v":1.2614403642749497},null,null,null,null,null,null,null,null,null,null,{"$f":"DA11","v":1.2614403642749497}]
[]
[]
[{"$f":"$A$243","v":"T5 (2 X 14W)"}]
[{"$f":"$A$244","v":"Bulk change & repairs"},{"$f":"G264*I88+N264*I89+U264*I90","v":29.074828784590665},null,null,null,null,null,null,null,null,null,null,{"$f":"G264*S88+N264*S89+U264*S90+'DNSP Inputs O & M'!$D$214","v":34.764126215856265},null,null,null,null,null,null,null,null,null,null,null,{"$f":"AD264*AF88+AK264*AF89+AR264*AF90","v":29.189598266824213},null,null,null,null,null,null,null,null,null,null,{"$f":"AD264*AP88+AK264*AP89+AR264*AP90+'DNSP Inputs O & M'!$E$214","v":34.898301212165386},null,null,null,null,null,null,null,null,null,null,null,{"$f":"BA264*BC88+BH264*BC89+BO264*BC90","v":29.295791002469201},null,null,null,null,null,null,null,null,null,null,{"$f":"BA264*BM88+BH264*BM89+BO264*BM90+'DNSP Inputs O & M'!$F$214","v":35.02244928389954},null,null,null,null,null,null,null,null,null,null,null,{"$f":"BX264*BZ88+CE264*BZ89+CL264*BZ90","v":29.424317802957088},null,null,null,null,null,null,null,null,null,null,{"$f":"BX264*CJ88+CE264*CJ89+CL264*CJ90+'DNSP Inputs O & M'!$G$214","v":35.172707720597835},null,null,null,null,null,null,null,null,null,null,null,{"$f":"CU264*CW88+DB264*CW89+DI264*CW90","v":29.592334089419335},null,null,null,null,null,null,null,null,null,null,{"$f":"CU264*DG88+DB264*DG89+DI264*DG90+'DNSP Inputs O & M'!$H$214","v":35.369132625347952}]
[{"$f":"$A$10","v":"Dedicated poles - inspection"},{"$f":"B$10","v":1.3887940184783973},null,null,null,null,null,null,null,null,null,null,{"$f":"M$10","v":1.3952674994864962},null,null,null,null,null,null,null,null,null,null,null,{"$f":"Y$10","v":1.3958268158640177},null,null,null,null,null,null,null,null,null,null,{"$f":"AJ$10","v":1.4023330783211321},null,null,null,null,null,null,null,null,null,null,null,{"$f":"AV10","v":1.4023340508805202},null,null,null,null,null,null,null,null,null,null,{"$f":"BG10","v":1.4088706450223438},null,null,null,null,null,null,null,null,null,null,null,{"$f":"BS10","v":1.4102098635866713},null,null,null,null,null,null,null,null,null,null,{"$f":"CD10","v":1.4167831686613608},null,null,null,null,null,null,null,null,null,null,null,{"$f":"CP10","v":1.4205054968611068},null,null,null,null,null,null,null,null,null,null,{"$f":"DA10","v":1.4271267921961095}]
[{"$f":"$A$11","v":"Other costs"},{"$f":"B$11","v":1.3064161278016617},null,null,null,null,null,null,null,null,null,null,{"$f":"M$11","v":1.3064161278016617},null,null,null,null,null,null,null,null,null,null,null,{"$f":"Y$11","v":1.2961202284166369},null,null,null,null,null,null,null,null,null,null,{"$f":"AJ$11","v":1.2961202284166369},null,null,null,null,null,null,null,null,null,null,null,{"$f":"AV11","v":1.2833572097293093},null,null,null,null,null,null,null,null,null,null,{"$f":"BG11","v":1.2833572097293093},null,null,null,null,null,null,null,null,null,null,null,{"$f":"BS11","v":1.273086524886323},null,null,null,null,null,null,null,null,null,null,{"$f":"CD11","v":1.273086524886323},null,null,null,null,null,null,null,null,null,null,null,{"$f":"CP11","v":1.2614403642749497},null,null,null,null,null,null,null,null,null,null,{"$f":"DA11","v":1.2614403642749497}]
[]
[]
[{"$f":"A281","v":"T5 (2 X 24W)"}]
[{"$f":"A282","v":"Bulk change & repairs"},{"$f":"G302*J88+N302*J89+U302*J90","v":32.323521877845117},null,null,null,null,null,null,null,null,null,null,{"$f":"G302*T88+N302*T89+U302*T90+'DNSP Inputs O & M'!$D$263","v":38.558808112633578},null,null,null,null,null,null,null,null,null,null,null,{"$f":"AD302*AG88+AK302*AG89+AR302*AG90","v":32.452444762264577},null,null,null,null,null,null,null,null,null,null,{"$f":"AD302*AQ88+AK302*AQ89+AR302*AQ90+'DNSP Inputs O & M'!$E$263","v":38.709392740270701},null,null,null,null,null,null,null,null,null,null,null,{"$f":"BA302*BD88+BH302*BD89+BO302*BD90","v":32.571733213491413},null,null,null,null,null,null,null,null,null,null,{"$f":"BA302*BN88+BH302*BN89+BO302*BN90+'DNSP Inputs O & M'!$F$263","v":38.848724148269291},null,null,null,null,null,null,null,null,null,null,null,{"$f":"BX302*CA88+CE302*CA89+CL302*CA90","v":32.71610997220489},null,null,null,null,null,null,null,null,null,null,{"$f":"BX302*CK88+CE302*CK89+CL302*CK90+'DNSP Inputs O & M'!$G$263","v":39.017359224564878},null,null,null,null,null,null,null,null,null,null,null,{"$f":"CU302*CX88+DB302*CX89+DI302*CX90","v":32.90484607050044},null,null,null,null,null,null,null,null,null,null,{"$f":"CU302*DH88+DB302*DH89+DI302*DH90+'DNSP Inputs O & M'!$H$263","v":39.237806938029387}]
[{"$f":"$A$10","v":"Dedicated poles - inspection"},{"$f":"B$10","v":1.3887940184783973},null,null,null,null,null,null,null,null,null,null,{"$f":"M$10","v":1.3952674994864962},null,null,null,null,null,null,null,null,null,null,null,{"$f":"Y$10","v":1.3958268158640177},null,null,null,null,null,null,null,null,null,null,{"$f":"AJ$10","v":1.4023330783211321},null,null,null,null,null,null,null,null,null,null,null,{"$f":"AV10","v":1.4023340508805202},null,null,null,null,null,null,null,null,null,null,{"$f":"BG10","v":1.4088706450223438},null,null,null,null,null,null,null,null,null,null,null,{"$f":"BS10","v":1.4102098635866713},null,null,null,null,null,null,null,null,null,null,{"$f":"CD10","v":1.4167831686613608},null,null,null,null,null,null,null,null,null,null,null,{"$f":"CP10","v":1.4205054968611068},null,null,null,null,null,null,null,null,null,null,{"$f":"DA10","v":1.4271267921961095}]
[{"$f":"$A$11","v":"Other costs"},{"$f":"B$11","v":1.3064161278016617},null,null,null,null,null,null,null,null,null,null,{"$f":"M$11","v":1.3064161278016617},null,null,null,null,null,null,null,null,null,null,null,{"$f":"Y$11","v":1.2961202284166369},null,null,null,null,null,null,null,null,null,null,{"$f":"AJ$11","v":1.2961202284166369},null,null,null,null,null,null,null,null,null,null,null,{"$f":"AV11","v":1.2833572097293093},null,null,null,null,null,null,null,null,null,null,{"$f":"BG11","v":1.2833572097293093},null,null,null,null,null,null,null,null,null,null,null,{"$f":"BS11","v":1.273086524886323},null,null,null,null,null,null,null,null,null,null,{"$f":"CD11","v":1.273086524886323},null,null,null,null,null,null,null,null,null,null,null,{"$f":"CP11","v":1.2614403642749497},null,null,null,null,null,null,null,null,null,null,{"$f":"DA11","v":1.2614403642749497}]
[]
[]
[{"$f":"A319","v":"LED 18W"}]
[{"$f":"A320","v":"Bulk change & repairs"},{"$f":"G337*K88+N337*K89+U337*K90","v":8.7124286496674639},null,null,null,null,null,null,null,null,null,null,{"$f":"G337*U88+N337*U89+U337*U90+'DNSP Inputs O & M'!$D$309","v":10.747518537102833},null,null,null,null,null,null,null,null,null,null,null,{"$f":"AD337*AH88+AK337*AH89+AR337*AH90","v":8.7390080488243633},null,null,null,null,null,null,null,null,null,null,{"$f":"AD337*AR88+AK337*AR89+AR337*AR90+'DNSP Inputs O & M'!$E$309","v":10.778392092145998},null,null,null,null,null,null,null,null,null,null,null,{"$f":"BA337*BE88+BH337*BE89+BO337*BE90","v":8.7636011641137355},null,null,null,null,null,null,null,null,null,null,{"$f":"BA337*BO88+BH337*BO89+BO337*BO90+'DNSP Inputs O & M'!$F$309","v":10.806958460184921},null,null,null,null,null,null,null,null,null,null,null,{"$f":"BX337*CB88+CE337*CB89+CL337*CB90","v":8.7933666127856629},null,null,null,null,null,null,null,null,null,null,{"$f":"BX337*CL88+CE337*CL89+CL337*CL90+'DNSP Inputs O & M'!$G$309","v":10.84153280148333},null,null,null,null,null,null,null,null,null,null,null,{"$f":"CU337*CY88+DB337*CY89+DI337*CY90","v":8.8322774090690572},null,null,null,null,null,null,null,null,null,null,{"$f":"CU337*DI88+DB337*DI89+DI337*DI90+'DNSP Inputs O & M'!$H$309","v":10.886730008678926}]
[{"$f":"$A$10","v":"Dedicated poles - inspection"},{"$f":"B$10","v":1.3887940184783973},null,null,null,null,null,null,null,null,null,null,{"$f":"M$10","v":1.3952674994864962},null,null,null,null,null,null,null,null,null,null,null,{"$f":"Y$10","v":1.3958268158640177},null,null,null,null,null,null,null,null,null,null,{"$f":"AJ$10","v":1.4023330783211321},null,null,null,null,null,null,null,null,null,null,null,{"$f":"AV10","v":1.4023340508805202},null,null,null,null,null,null,null,null,null,null,{"$f":"BG10","v":1.4088706450223438},null,null,null,null,null,null,null,null,null,null,null,{"$f":"BS10","v":1.4102098635866713},null,null,null,null,null,null,null,null,null,null,{"$f":"CD10","v":1.4167831686613608},null,null,null,null,null,null,null,null,null,null,null,{"$f":"CP10","v":1.4205054968611068},null,null,null,null,null,null,null,null,null,null,{"$f":"DA10","v":1.4271267921961095}]
[{"$f":"$A$11","v":"Other costs"},{"$f":"B$11","v":1.3064161278016617},null,null,null,null,null,null,null,null,null,null,{"$f":"M$11","v":1.3064161278016617},null,null,null,null,null,null,null,null,null,null,null,{"$f":"Y$11","v":1.2961202284166369},null,null,null,null,null,null,null,null,null,null,{"$f":"AJ$11","v":1.2961202284166369},null,null,null,null,null,null,null,null,null,null,null,{"$f":"AV11","v":1.2833572097293093},null,null,null,null,null,null,null,null,null,null,{"$f":"BG11","v":1.2833572097293093},null,null,null,null,null,null,null,null,null,null,null,{"$f":"BS11","v":1.273086524886323},null,null,null,null,null,null,null,null,null,null,{"$f":"CD11","v":1.273086524886323},null,null,null,null,null,null,null,null,null,null,null,{"$f":"CP11","v":1.2614403642749497},null,null,null,null,null,null,null,null,null,null,{"$f":"DA11","v":1.2614403642749497}]
[]
[]
[{"$f":"A354","v":"LED 14W"}]
[{"$f":"A355","v":"Bulk change & repairs"},{"$f":"G372*C93+N372*C94+U372*C95","v":10.495553936237936},null,null,null,null,null,null,null,null,null,null,{"$f":"G372*M93+N372*M94+U372*M95+'DNSP Inputs O & M'!$D$355","v":12.462015661538251},null,null,null,null,null,null,null,null,null,null,null,{"$f":"AD372*Z93+AK372*Z94+AR372*Z95","v":10.528384954695182},null,null,null,null,null,null,null,null,null,null,{"$f":"AD372*AJ93+AK372*AJ94+AR372*AJ95+'DNSP Inputs O & M'!$E$355","v":12.498607061898976},null,null,null,null,null,null,null,null,null,null,null,{"$f":"BA372*AW93+BH372*AW94+BO372*AW95","v":10.558762504511881},null,null,null,null,null,null,null,null,null,null,{"$f":"BA372*BG93+BH372*BG94+BO372*BG95+'DNSP Inputs O & M'!$F$355","v":12.532463979519983},null,null,null,null,null,null,null,null,null,null,null,{"$f":"BX372*BT93+CE372*BT94+CL372*BT95","v":10.595528948665404},null,null,null,null,null,null,null,null,null,null,{"$f":"BX372*CD93+CE372*CD94+CL372*CD95+'DNSP Inputs O & M'!$G$355","v":12.573441559293018},null,null,null,null,null,null,null,null,null,null,null,{"$f":"CU372*CQ93+DB372*CQ94+DI372*CQ95","v":10.643591775948494},null,null,null,null,null,null,null,null,null,null,{"$f":"CU372*DA93+DB372*DA94+DI372*DA95+'DNSP Inputs O & M'!$H$355","v":12.627009381377921}]
[{"$f":"$A$10","v":"Dedicated poles - inspection"},{"$f":"B$10","v":1.3887940184783973},null,null,null,null,null,null,null,null,null,null,{"$f":"M$10","v":1.3952674994864962},null,null,null,null,null,null,null,null,null,null,null,{"$f":"Y$10","v":1.3958268158640177},null,null,null,null,null,null,null,null,null,null,{"$f":"AJ$10","v":1.4023330783211321},null,null,null,null,null,null,null,null,null,null,null,{"$f":"AV16","v":1.4023340508805202},null,null,null,null,null,null,null,null,null,null,{"$f":"BG16","v":1.4088706450223438},null,null,null,null,null,null,null,null,null,null,null,{"$f":"BS16","v":1.4102098635866713},null,null,null,null,null,null,null,null,null,null,{"$f":"CD16","v":1.4167831686613608},null,null,null,null,null,null,null,null,null,null,null,{"$f":"CP16","v":1.4205054968611068},null,null,null,null,null,null,null,null,null,null,{"$f":"DA16","v":1.4271267921961095}]
[{"$f":"$A$11","v":"Other costs"},{"$f":"B$11","v":1.3064161278016617},null,null,null,null,null,null,null,null,null,null,{"$f":"M$11","v":1.3064161278016617},null,null,null,null,null,null,null,null,null,null,null,{"$f":"Y$11","v":1.2961202284166369},null,null,null,null,null,null,null,null,null,null,{"$f":"AJ$11","v":1.2961202284166369},null,null,null,null,null,null,null,null,null,null,null,{"$f":"AV17","v":1.2833572097293093},null,null,null,null,null,null,null,null,null,null,{"$f":"BG17","v":1.2833572097293093},null,null,null,null,null,null,null,null,null,null,null,{"$f":"BS17","v":1.273086524886323},null,null,null,null,null,null,null,null,null,null,{"$f":"CD17","v":1.273086524886323},null,null,null,null,null,null,null,null,null,null,null,{"$f":"CP17","v":1.2614403642749497},null,null,null,null,null,null,null,null,null,null,{"$f":"DA17","v":1.2614403642749497}]
[]
[]
[{"$f":"A389","v":"LED 70W (L1)"}]
[{"$f":"A390","v":"Patrols & repairs"},{"$f":"G407*D93+N407*D94+U407*D95","v":19.108376197573691},null,null,null,null,null,null,null,null,null,null,{"$f":"G407*N93+N407*N94+U407*N95+'DNSP Inputs O & M'!$D$401","v":24.824432529236329},null,null,null,null,null,null,null,null,null,null,null,{"$f":"AD407*AA93+AK407*AA94+AR407*AA95","v":19.196094121109496},null,null,null,null,null,null,null,null,null,null,{"$f":"AD407*AK93+AK407*AK94+AR407*AK95+'DNSP Inputs O & M'!$E$401","v":24.934733392175612},null,null,null,null,null,null,null,null,null,null,null,{"$f":"BA407*AX93+BH407*AX94+BO407*AX95","v":19.277256866502135},null,null,null,null,null,null,null,null,null,null,{"$f":"BA407*BH93+BH407*BH94+BO407*BH95+'DNSP Inputs O & M'!$F$401","v":25.036791449348787},null,null,null,null,null,null,null,null,null,null,null,{"$f":"BX407*BU93+CE407*BU94+CL407*BU95","v":19.375489461422763},null,null,null,null,null,null,null,null,null,null,{"$f":"BX407*CE93+CE407*CE94+CL407*CE95+'DNSP Inputs O & M'!$G$401","v":25.160313981024853},null,null,null,null,null,null,null,null,null,null,null,{"$f":"CU407*CR93+DB407*CR94+DI407*CR95","v":19.503903735686681},null,null,null,null,null,null,null,null,null,null,{"$f":"CU407*DB93+DB407*DB94+DI407*DB95+'DNSP Inputs O & M'!$H$401","v":25.321788451624357}]
[{"$f":"$A$10","v":"Dedicated poles - inspection"},{"$f":"B$10","v":1.3887940184783973},null,null,null,null,null,null,null,null,null,null,{"$f":"M$10","v":1.3952674994864962},null,null,null,null,null,null,null,null,null,null,null,{"$f":"Y$10","v":1.3958268158640177},null,null,null,null,null,null,null,null,null,null,{"$f":"AJ$10","v":1.4023330783211321},null,null,null,null,null,null,null,null,null,null,null,{"$f":"AV22","v":1.4023340508805202},null,null,null,null,null,null,null,null,null,null,{"$f":"BG22","v":1.4088706450223438},null,null,null,null,null,null,null,null,null,null,null,{"$f":"BS22","v":1.4102098635866713},null,null,null,null,null,null,null,null,null,null,{"$f":"CD22","v":1.4167831686613608},null,null,null,null,null,null,null,null,null,null,null,{"$f":"CP22","v":1.4205054968611068},null,null,null,null,null,null,null,null,null,null,{"$f":"DA22","v":1.4271267921961095}]
[{"$f":"$A$11","v":"Other costs"},{"$f":"B$11","v":1.3064161278016617},null,null,null,null,null,null,null,null,null,null,{"$f":"M$11","v":1.3064161278016617},null,null,null,null,null,null,null,null,null,null,null,{"$f":"Y$11","v":1.2961202284166369},null,null,null,null,null,null,null,null,null,null,{"$f":"AJ$11","v":1.2961202284166369},null,null,null,null,null,null,null,null,null,null,null,{"$f":"AV23","v":1.2833572097293093},null,null,null,null,null,null,null,null,null,null,{"$f":"BG23","v":1.2833572097293093},null,null,null,null,null,null,null,null,null,null,null,{"$f":"BS23","v":1.273086524886323},null,null,null,null,null,null,null,null,null,null,{"$f":"CD23","v":1.273086524886323},null,null,null,null,null,null,null,null,null,null,null,{"$f":"CP23","v":1.2614403642749497},null,null,null,null,null,null,null,null,null,null,{"$f":"DA23","v":1.2614403642749497}]
[]
[]
[{"$f":"A424","v":"LED 155W (L2)"}]
[{"$f":"A425","v":"Patrols & repairs"},{"$f":"G442*E93+N442*E94+U442*E95","v":19.108376197573691},null,null,null,null,null,null,null,null,null,null,{"$f":"G442*O93+N442*O94+U442*O95+'DNSP Inputs O & M'!$D$447","v":24.824432529236329},null,null,null,null,null,null,null,null,null,null,null,{"$f":"AD442*AB93+AK442*AB94+AR442*AB95","v":19.196094121109496},null,null,null,null,null,null,null,null,null,null,{"$f":"AD442*AL93+AK442*AL94+AR442*AL95+'DNSP Inputs O & M'!$E$447","v":24.934733392175612},null,null,null,null,null,null,null,null,null,null,null,{"$f":"BA442*AY93+BH442*AY94+BO442*AY95","v":19.277256866502135},null,null,null,null,null,null,null,null,null,null,{"$f":"BA442*BI93+BH442*BI94+BO442*BI95+'DNSP Inputs O & M'!$F$447","v":25.036791449348787},null,null,null,null,null,null,null,null,null,null,null,{"$f":"BX442*BV93+CE442*BV94+CL442*BV95","v":19.375489461422763},null,null,null,null,null,null,null,null,null,null,{"$f":"BX442*CF93+CE442*CF94+CL442*CF95+'DNSP Inputs O & M'!$G$447","v":25.160313981024853},null,null,null,null,null,null,null,null,null,null,null,{"$f":"CU442*CS93+DB442*CS94+DI442*CS95","v":19.503903735686681},null,null,null,null,null,null,null,null,null,null,{"$f":"CU442*DC93+DB442*DC94+DI442*DC95+'DNSP Inputs O & M'!$H$447","v":25.321788451624357}]
[{"$f":"$A$10","v":"Dedicated poles - inspection"},{"$f":"B$10","v":1.3887940184783973},null,null,null,null,null,null,null,null,null,null,{"$f":"M$10","v":1.3952674994864962},null,null,null,null,null,null,null,null,null,null,null,{"$f":"Y$10","v":1.3958268158640177},null,null,null,null,null,null,null,null,null,null,{"$f":"AJ$10","v":1.4023330783211321},null,null,null,null,null,null,null,null,null,null,null,{"$f":"AV28","v":1.4023340508805202},null,null,null,null,null,null,null,null,null,null,{"$f":"BG28","v":1.4088706450223438},null,null,null,null,null,null,null,null,null,null,null,{"$f":"BS28","v":1.4102098635866713},null,null,null,null,null,null,null,null,null,null,{"$f":"CD28","v":1.4167831686613608},null,null,null,null,null,null,null,null,null,null,null,{"$f":"CP28","v":1.4205054968611068},null,null,null,null,null,null,null,null,null,null,{"$f":"DA28","v":1.4271267921961095}]
[{"$f":"$A$11","v":"Other costs"},{"$f":"B$11","v":1.3064161278016617},null,null,null,null,null,null,null,null,null,null,{"$f":"M$11","v":1.3064161278016617},null,null,null,null,null,null,null,null,null,null,null,{"$f":"Y$11","v":1.2961202284166369},null,null,null,null,null,null,null,null,null,null,{"$f":"AJ$11","v":1.2961202284166369},null,null,null,null,null,null,null,null,null,null,null,{"$f":"AV29","v":1.2833572097293093},null,null,null,null,null,null,null,null,null,null,{"$f":"BG29","v":1.2833572097293093},null,null,null,null,null,null,null,null,null,null,null,{"$f":"BS29","v":1.273086524886323},null,null,null,null,null,null,null,null,null,null,{"$f":"CD29","v":1.273086524886323},null,null,null,null,null,null,null,null,null,null,null,{"$f":"CP29","v":1.2614403642749497},null,null,null,null,null,null,null,null,null,null,{"$f":"DA29","v":1.2614403642749497}]
[]
[]
[{"$f":"A459","v":"LED 275W (L4)"}]
[{"$f":"A460","v":"Patrols & repairs"},{"$f":"G477*F93+N477*F94+U477*F95","v":19.108376197573691},null,null,null,null,null,null,null,null,null,null,{"$f":"G477*P93+N477*P94+U477*P95+'DNSP Inputs O & M'!$D$493","v":24.824432529236329},null,null,null,null,null,null,null,null,null,null,null,{"$f":"AD477*AC93+AK477*AC94+AR477*AC95","v":19.196094121109496},null,null,null,null,null,null,null,null,null,null,{"$f":"AD477*AM93+AK477*AM94+AR477*AM95+'DNSP Inputs O & M'!$E$493","v":24.934733392175612},null,null,null,null,null,null,null,null,null,null,null,{"$f":"BA477*AZ93+BH477*AZ94+BO477*AZ95","v":19.277256866502135},null,null,null,null,null,null,null,null,null,null,{"$f":"BA477*BJ93+BH477*BJ94+BO477*BJ95+'DNSP Inputs O & M'!$F$493","v":25.036791449348787},null,null,null,null,null,null,null,null,null,null,null,{"$f":"BX477*BW93+CE477*BW94+CL477*BW95","v":19.375489461422763},null,null,null,null,null,null,null,null,null,null,{"$f":"BX477*CG93+CE477*CG94+CL477*CG95+'DNSP Inputs O & M'!$G$493","v":25.160313981024853},null,null,null,null,null,null,null,null,null,null,null,{"$f":"CU477*CT93+DB477*CT94+DI477*CT95","v":19.503903735686681},null,null,null,null,null,null,null,null,null,null,{"$f":"CU477*DD93+DB477*DD94+DI477*DD95+'DNSP Inputs O & M'!$H$493","v":25.321788451624357}]
[{"$f":"$A$10","v":"Dedicated poles - inspection"},{"$f":"B$10","v":1.3887940184783973},null,null,null,null,null,null,null,null,null,null,{"$f":"M$10","v":1.3952674994864962},null,null,null,null,null,null,null,null,null,null,null,{"$f":"Y$10","v":1.3958268158640177},null,null,null,null,null,null,null,null,null,null,{"$f":"AJ$10","v":1.4023330783211321},null,null,null,null,null,null,null,null,null,null,null,{"$f":"AV34","v":1.4023340508805202},null,null,null,null,null,null,null,null,null,null,{"$f":"BG34","v":1.4088706450223438},null,null,null,null,null,null,null,null,null,null,null,{"$f":"BS34","v":1.4102098635866713},null,null,null,null,null,null,null,null,null,null,{"$f":"CD34","v":1.4167831686613608},null,null,null,null,null,null,null,null,null,null,null,{"$f":"CP34","v":1.4205054968611068},null,null,null,null,null,null,null,null,null,null,{"$f":"DA34","v":1.4271267921961095}]
[{"$f":"$A$11","v":"Other costs"},{"$f":"B$11","v":1.3064161278016617},null,null,null,null,null,null,null,null,null,null,{"$f":"M$11","v":1.3064161278016617},null,null,null,null,null,null,null,null,null,null,null,{"$f":"Y$11","v":1.2961202284166369},null,null,null,null,null,null,null,null,null,null,{"$f":"AJ$11","v":1.2961202284166369},null,null,null,null,null,null,null,null,null,null,null,{"$f":"AV35","v":1.2833572097293093},null,null,null,null,null,null,null,null,null,null,{"$f":"BG35","v":1.2833572097293093},null,null,null,null,null,null,null,null,null,null,null,{"$f":"BS35","v":1.273086524886323},null,null,null,null,null,null,null,null,null,null,{"$f":"CD35","v":1.273086524886323},null,null,null,null,null,null,null,null,null,null,null,{"$f":"CP35","v":1.2614403642749497},null,null,null,null,null,null,null,null,null,null,{"$f":"DA35","v":1.2614403642749497}]
[]
[]
[{"$f":"A494","v":"Smart lighting L1"}]
[{"$f":"A495","v":"Patrols & repairs"},{"$f":"G512*G93+N512*G94+U512*G95","v":33.439137145684349},null,null,null,null,null,null,null,null,null,null,{"$f":"G512*Q93+N512*Q94+U512*Q95+'DNSP Inputs O & M'!$D$540","v":41.081739081255577},null,null,null,null,null,null,null,null,null,null,null,{"$f":"AD512*AD93+AK512*AD94+AR512*AD95","v":33.546840615835542},null,null,null,null,null,null,null,null,null,null,{"$f":"AD512*AN93+AK512*AN94+AR512*AN95+'DNSP Inputs O & M'!$E$540","v":41.219970275242154},null,null,null,null,null,null,null,null,null,null,null,{"$f":"BA512*BA93+BH512*BA94+BO512*BA95","v":33.646495383908295},null,null,null,null,null,null,null,null,null,null,{"$f":"BA512*BK93+BH512*BK94+BO512*BK95+'DNSP Inputs O & M'!$F$540","v":41.34787142418206},null,null,null,null,null,null,null,null,null,null,null,{"$f":"BX512*BX93+CE512*BX94+CL512*BX95","v":33.767109175576415},null,null,null,null,null,null,null,null,null,null,{"$f":"BX512*CH93+CE512*CH94+CL512*CH95+'DNSP Inputs O & M'!$G$540","v":41.50267227145401},null,null,null,null,null,null,null,null,null,null,null,{"$f":"CU512*CU93+DB512*CU94+DI512*CU95","v":33.924781204252803},null,null,null,null,null,null,null,null,null,null,{"$f":"CU512*DE93+DB512*DE94+DI512*DE95+'DNSP Inputs O & M'!$H$540","v":41.705035229227114}]
[{"$f":"$A$10","v":"Dedicated poles - inspection"},{"$f":"B$10","v":1.3887940184783973},null,null,null,null,null,null,null,null,null,null,{"$f":"M$10","v":1.3952674994864962},null,null,null,null,null,null,null,null,null,null,null,{"$f":"Y$10","v":1.3958268158640177},null,null,null,null,null,null,null,null,null,null,{"$f":"AJ$10","v":1.4023330783211321},null,null,null,null,null,null,null,null,null,null,null,{"$f":"AV$10","v":1.4023340508805202},null,null,null,null,null,null,null,null,null,null,{"$f":"BG$10","v":1.4088706450223438},null,null,null,null,null,null,null,null,null,null,null,{"$f":"BS$10","v":1.4102098635866713},null,null,null,null,null,null,null,null,null,null,{"$f":"CD$10","v":1.4167831686613608},null,null,null,null,null,null,null,null,null,null,null,{"$f":"CP$10","v":1.4205054968611068},null,null,null,null,null,null,null,null,null,null,{"$f":"DA$10","v":1.4271267921961095}]
[{"$f":"$A$11","v":"Other costs"},{"$f":"B$11","v":1.3064161278016617},null,null,null,null,null,null,null,null,null,null,{"$f":"M$11","v":1.3064161278016617},null,null,null,null,null,null,null,null,null,null,null,{"$f":"Y$11","v":1.2961202284166369},null,null,null,null,null,null,null,null,null,null,{"$f":"AJ$11","v":1.2961202284166369},null,null,null,null,null,null,null,null,null,null,null,{"$f":"AV$11","v":1.2833572097293093},null,null,null,null,null,null,null,null,null,null,{"$f":"BG$11","v":1.2833572097293093},null,null,null,null,null,null,null,null,null,null,null,{"$f":"BS$11","v":1.273086524886323},null,null,null,null,null,null,null,null,null,null,{"$f":"CD$11","v":1.273086524886323},null,null,null,null,null,null,null,null,null,null,null,{"$f":"CP$11","v":1.2614403642749497},null,null,null,null,null,null,null,null,null,null,{"$f":"DA$11","v":1.2614403642749497}]
[]
[]
[{"$f":"$A$529","v":"Smart lighting L2"}]
[{"$f":"A530","v":"Patrols & repairs"},{"$f":"G547*I93+N547*I94+U547*I95","v":33.439137145684349},null,null,null,null,null,null,null,null,null,null,{"$f":"G547*S93+N547*S94+U547*S95+'DNSP Inputs O & M'!$D$584","v":41.081739081255577},null,null,null,null,null,null,null,null,null,null,null,{"$f":"AD547*AF93+AK547*AF94+AR547*AF95","v":33.546840615835542},null,null,null,null,null,null,null,null,null,null,{"$f":"AD547*AP93+AK547*AP94+AR547*AP95+'DNSP Inputs O & M'!$E$584","v":41.219970275242154},null,null,null,null,null,null,null,null,null,null,null,{"$f":"BA547*BC93+BH547*BC94+BO547*BC95","v":33.646495383908295},null,null,null,null,null,null,null,null,null,null,{"$f":"BA547*BM93+BH547*BM94+BO547*BM95+'DNSP Inputs O & M'!$F$584","v":41.347871424182067},null,null,null,null,null,null,null,null,null,null,null,{"$f":"BX547*BZ93+CE547*BZ94+CL547*BZ95","v":33.767109175576415},null,null,null,null,null,null,null,null,null,null,{"$f":"BX547*CJ93+CE547*CJ94+CL547*CJ95+'DNSP Inputs O & M'!$G$584","v":41.50267227145401},null,null,null,null,null,null,null,null,null,null,null,{"$f":"CU547*CW93+DB547*CW94+DI547*CW95","v":33.924781204252803},null,null,null,null,null,null,null,null,null,null,{"$f":"CU547*DG93+DB547*DG94+DI547*DG95+'DNSP Inputs O & M'!$H$584","v":41.705035229227114}]
[{"$f":"$A$10","v":"Dedicated poles - inspection"},{"$f":"B$10","v":1.3887940184783973},null,null,null,null,null,null,null,null,null,null,{"$f":"M$10","v":1.3952674994864962},null,null,null,null,null,null,null,null,null,null,null,{"$f":"Y$10","v":1.3958268158640177},null,null,null,null,null,null,null,null,null,null,{"$f":"AJ$10","v":1.4023330783211321},null,null,null,null,null,null,null,null,null,null,null,{"$f":"AV$10","v":1.4023340508805202},null,null,null,null,null,null,null,null,null,null,{"$f":"BG$10","v":1.4088706450223438},null,null,null,null,null,null,null,null,null,null,null,{"$f":"BS$10","v":1.4102098635866713},null,null,null,null,null,null,null,null,null,null,{"$f":"CD$10","v":1.4167831686613608},null,null,null,null,null,null,null,null,null,null,null,{"$f":"CP$10","v":1.4205054968611068},null,null,null,null,null,null,null,null,null,null,{"$f":"DA$10","v":1.4271267921961095}]
[{"$f":"$A$11","v":"Other costs"},{"$f":"B$11","v":1.3064161278016617},null,null,null,null,null,null,null,null,null,null,{"$f":"M$11","v":1.3064161278016617},null,null,null,null,null,null,null,null,null,null,null,{"$f":"Y$11","v":1.2961202284166369},null,null,null,null,null,null,null,null,null,null,{"$f":"AJ$11","v":1.2961202284166369},null,null,null,null,null,null,null,null,null,null,null,{"$f":"AV$11","v":1.2833572097293093},null,null,null,null,null,null,null,null,null,null,{"$f":"BG$11","v":1.2833572097293093},null,null,null,null,null,null,null,null,null,null,null,{"$f":"BS$11","v":1.273086524886323},null,null,null,null,null,null,null,null,null,null,{"$f":"CD$11","v":1.273086524886323},null,null,null,null,null,null,null,null,null,null,null,{"$f":"CP$11","v":1.2614403642749497},null,null,null,null,null,null,null,null,null,null,{"$f":"DA$11","v":1.2614403642749497}]
[]
[]
[{"$f":"$A$564","v":"Smart lighting L4"}]
[{"$f":"A565","v":"Patrols & repairs"},{"$f":"G582*K93+N582*K94+U582*K95","v":33.439137145684349},null,null,null,null,null,null,null,null,null,null,{"$f":"G582*U93+N582*U94+U582*U95+'DNSP Inputs O & M'!$D$628","v":41.081739081255577},null,null,null,null,null,null,null,null,null,null,null,{"$f":"AD582*AH93+AK582*AH94+AR582*AH95","v":33.546840615835542},null,null,null,null,null,null,null,null,null,null,{"$f":"AD582*AR93+AK582*AR94+AR582*AR95+'DNSP Inputs O & M'!$E$628","v":41.219970275242154},null,null,null,null,null,null,null,null,null,null,null,{"$f":"BA582*BE93+BH582*BE94+BO582*BE95","v":33.646495383908295},null,null,null,null,null,null,null,null,null,null,{"$f":"BA582*BO93+BH582*BO94+BO582*BO95+'DNSP Inputs O & M'!$F$628","v":41.347871424182067},null,null,null,null,null,null,null,null,null,null,null,{"$f":"BX582*CB93+CE582*CB94+CL582*CB95","v":33.767109175576415},null,null,null,null,null,null,null,null,null,null,{"$f":"BX582*CL93+CE582*CL94+CL582*CL95+'DNSP Inputs O & M'!$G$628","v":41.50267227145401},null,null,null,null,null,null,null,null,null,null,null,{"$f":"CU582*CY93+DB582*CY94+DI582*CY95","v":33.924781204252803},null,null,null,null,null,null,null,null,null,null,{"$f":"CU582*DI93+DB582*DI94+DI582*DI95+'DNSP Inputs O & M'!$H$628","v":41.705035229227114}]
[{"$f":"$A$10","v":"Dedicated poles - inspection"},{"$f":"B$10","v":1.3887940184783973},null,null,null,null,null,null,null,null,null,null,{"$f":"M$10","v":1.3952674994864962},null,null,null,null,null,null,null,null,null,null,null,{"$f":"Y$10","v":1.3958268158640177},null,null,null,null,null,null,null,null,null,null,{"$f":"AJ$10","v":1.4023330783211321},null,null,null,null,null,null,null,null,null,null,null,{"$f":"AV$10","v":1.4023340508805202},null,null,null,null,null,null,null,null,null,null,{"$f":"BG$10","v":1.4088706450223438},null,null,null,null,null,null,null,null,null,null,null,{"$f":"BS$10","v":1.4102098635866713},null,null,null,null,null,null,null,null,null,null,{"$f":"CD$10","v":1.4167831686613608},null,null,null,null,null,null,null,null,null,null,null,{"$f":"CP$10","v":1.4205054968611068},null,null,null,null,null,null,null,null,null,null,{"$f":"DA$10","v":1.4271267921961095}]
[{"$f":"$A$11","v":"Other costs"},{"$f":"B$11","v":1.3064161278016617},null,null,null,null,null,null,null,null,null,null,{"$f":"M$11","v":1.3064161278016617},null,null,null,null,null,null,null,null,null,null,null,{"$f":"Y$11","v":1.2961202284166369},null,null,null,null,null,null,null,null,null,null,{"$f":"AJ$11","v":1.2961202284166369},null,null,null,null,null,null,null,null,null,null,null,{"$f":"AV$11","v":1.2833572097293093},null,null,null,null,null,null,null,null,null,null,{"$f":"BG$11","v":1.2833572097293093},null,null,null,null,null,null,null,null,null,null,null,{"$f":"BS$11","v":1.273086524886323},null,null,null,null,null,null,null,null,null,null,{"$f":"CD$11","v":1.273086524886323},null,null,null,null,null,null,null,null,null,null,null,{"$f":"CP$11","v":1.2614403642749497},null,null,null,null,null,null,null,null,null,null,{"$f":"DA$11","v":1.2614403642749497}]
[]
[]
[null,null,{"$f":"B7","v":"SP AusNet - Central"},null,null,null,null,null,null,null,null,null,{"$f":"M7","v":"SP AusNet - North/East"},null,null,null,null,null,null,null,null,null,null,null,null,{"$f":"Y7","v":"SP AusNet - Central"},null,null,null,null,null,null,null,null,null,{"$f":"AJ7","v":"SP AusNet - North/East"},null,null,null,null,null,null,null,null,null,null,null,null,{"$f":"AV7","v":"SP AusNet - Central"},null,null,null,null,null,null,null,null,null,{"$f":"BG7","v":"SP AusNet - North/East"},null,null,null,null,null,null,null,null,null,null,null,null,{"$f":"BS7","v":"SP AusNet - Central"},null,null,null,null,null,null,null,null,null,{"$f":"CD7","v":"SP AusNet - North/East"},null,null,null,null,null,null,null,null,null,null,null,null,{"$f":"CP7","v":"SP AusNet - Central"},null,null,null,null,null,null,null,null,null,{"$f":"DA7","v":"SP AusNet - North/East"}]
[{"$f":"'DNSP Inputs O & M'!A57","v":"Location of selected public lighting assets within distributors' areas (%)"},null,{"$f":"$A$124","v":"MV80"},null,{"$f":"$A$165","v":"S-HP 150"},null,{"$f":"$A$203","v":"S-HP 250"},null,{"$f":"$A$243","v":"T5 (2 X 14W)"},{"$f":"$A$281","v":"T5 (2 X 24W)"},{"$f":"$A$319","v":"LED 18W"},null,{"$f":"$A$124","v":"MV80"},null,{"$f":"$A$165","v":"S-HP 150"},null,{"$f":"$A$203","v":"S-HP 250"},null,{"$f":"$A$243","v":"T5 (2 X 14W)"},{"$f":"$A$281","v":"T5 (2 X 24W)"},{"$f":"$A$319","v":"LED 18W"},null,null,null,null,{"$f":"$A$124","v":"MV80"},null,{"$f":"$A$165","v":"S-HP 150"},null,{"$f":"$A$203","v":"S-HP 250"},null,{"$f":"$A$243","v":"T5 (2 X 14W)"},{"$f":"$A$281","v":"T5 (2 X 24W)"},{"$f":"$A$319","v":"LED 18W"},null,{"$f":"$A$124","v":"MV80"},null,{"$f":"$A$165","v":"S-HP 150"},null,{"$f":"$A$203","v":"S-HP 250"},null,{"$f":"$A$243","v":"T5 (2 X 14W)"},{"$f":"$A$281","v":"T5 (2 X 24W)"},{"$f":"$A$319","v":"LED 18W"},null,null,null,null,{"$f":"$A$124","v":"MV80"},null,{"$f":"$A$165","v":"S-HP 150"},null,{"$f":"$A$203","v":"S-HP 250"},null,{"$f":"$A$243","v":"T5 (2 X 14W)"},{"$f":"$A$281","v":"T5 (2 X 24W)"},{"$f":"$A$319","v":"LED 18W"},null,{"$f":"$A$124","v":"MV80"},null,{"$f":"$A$165","v":"S-HP 150"},null,{"$f":"$A$203","v":"S-HP 250"},null,{"$f":"$A$243","v":"T5 (2 X 14W)"},{"$f":"$A$281","v":"T5 (2 X 24W)"},{"$f":"$A$319","v":"LED 18W"},null,null,null,null,{"$f":"$A$124","v":"MV80"},null,{"$f":"$A$165","v":"S-HP 150"},null,{"$f":"$A$203","v":"S-HP 250"},null,{"$f":"$A$243","v":"T5 (2 X 14W)"},{"$f":"$A$281","v":"T5 (2 X 24W)"},{"$f":"$A$319","v":"LED 18W"},null,{"$f":"$A$124","v":"MV80"},null,{"$f":"$A$165","v":"S-HP 150"},null,{"$f":"$A$203","v":"S-HP 250"},null,{"$f":"$A$243","v":"T5 (2 X 14W)"},{"$f":"$A$281","v":"T5 (2 X 24W)"},{"$f":"$A$319","v":"LED 18W"},null,null,null,null,{"$f":"$A$124","v":"MV80"},null,{"$f":"$A$165","v":"S-HP 150"},null,{"$f":"$A$203","v":"S-HP 250"},null,{"$f":"$A$243","v":"T5 (2 X 14W)"},{"$f":"$A$281","v":"T5 (2 X 24W)"},{"$f":"$A$319","v":"LED 18W"},null,{"$f":"$A$124","v":"MV80"},null,{"$f":"$A$165","v":"S-HP 150"},null,{"$f":"$A$203","v":"S-HP 250"},null,{"$f":"$A$243","v":"T5 (2 X 14W)"},{"$f":"$A$281","v":"T5 (2 X 24W)"},{"$f":"$A$319","v":"LED 18W"}]
[{"$f":"'DNSP Inputs O & M'!A59","v":"Urban"},null,{"$f":"'DNSP Inputs O & M'!$D$59","v":0.96},null,{"$f":"'DNSP Inputs O & M'!$D$102","v":0.94},null,{"$f":"'DNSP Inputs O & M'!$D$145","v":0.9},null,{"$f":"'DNSP Inputs O & M'!$D$218","v":0.96},{"$f":"'DNSP Inputs O & M'!$D$267","v":0.96},{"$f":"'DNSP Inputs O & M'!$D$315","v":0.96},null,{"$f":"'DNSP Inputs O & M'!$D$64","v":0.35},null,{"$f":"'DNSP Inputs O & M'!$D$107","v":0.3},null,{"$f":"'DNSP Inputs O & M'!$D$150","v":0.37},null,{"$f":"'DNSP Inputs O & M'!$D$223","v":0.35},{"$f":"'DNSP Inputs O & M'!$D$272","v":0.35},{"$f":"'DNSP Inputs O & M'!$D$320","v":0.35},null,null,null,null,{"$f":"'DNSP Inputs O & M'!$E$59","v":0.96},null,{"$f":"'DNSP Inputs O & M'!$E$102","v":0.94},null,{"$f":"'DNSP Inputs O & M'!$E$145","v":0.9},null,{"$f":"'DNSP Inputs O & M'!$E$218","v":0.96},{"$f":"'DNSP Inputs O & M'!$E$267","v":0.96},{"$f":"'DNSP Inputs O & M'!$E$315","v":0.96},null,{"$f":"'DNSP Inputs O & M'!$E$64","v":0.35},null,{"$f":"'DNSP Inputs O & M'!$E$107","v":0.3},null,{"$f":"'DNSP Inputs O & M'!$E$150","v":0.37},null,{"$f":"'DNSP Inputs O & M'!$E$223","v":0.35},{"$f":"'DNSP Inputs O & M'!$E$272","v":0.35},{"$f":"'DNSP Inputs O & M'!$E$320","v":0.35},null,null,null,null,{"$f":"'DNSP Inputs O & M'!$F$59","v":0.96},null,{"$f":"'DNSP Inputs O & M'!$F$102","v":0.94},null,{"$f":"'DNSP Inputs O & M'!$F$145","v":0.9},null,{"$f":"'DNSP Inputs O & M'!$F$218","v":0.96},{"$f":"'DNSP Inputs O & M'!$F$267","v":0.96},{"$f":"'DNSP Inputs O & M'!$F$315","v":0.96},null,{"$f":"'DNSP Inputs O & M'!$F$64","v":0.35},null,{"$f":"'DNSP Inputs O & M'!$F$107","v":0.3},null,{"$f":"'DNSP Inputs O & M'!$F$150","v":0.37},null,{"$f":"'DNSP Inputs O & M'!$F$223","v":0.35},{"$f":"'DNSP Inputs O & M'!$F$272","v":0.35},{"$f":"'DNSP Inputs O & M'!$F$320","v":0.35},null,null,null,null,{"$f":"'DNSP Inputs O & M'!$G$59","v":0.96},null,{"$f":"'DNSP Inputs O & M'!$G$102","v":0.94},null,{"$f":"'DNSP Inputs O & M'!$G$145","v":0.9},null,{"$f":"'DNSP Inputs O & M'!$G$218","v":0.96},{"$f":"'DNSP Inputs O & M'!$G$267","v":0.96},{"$f":"'DNSP Inputs O & M'!$G$315","v":0.96},null,{"$f":"'DNSP Inputs O & M'!$G$64","v":0.35},null,{"$f":"'DNSP Inputs O & M'!$G$107","v":0.3},null,{"$f":"'DNSP Inputs O & M'!$G$150","v":0.37},null,{"$f":"'DNSP Inputs O & M'!$G$223","v":0.35},{"$f":"'DNSP Inputs O & M'!$G$272","v":0.35},{"$f":"'DNSP Inputs O & M'!$G$320","v":0.35},null,null,null,null,{"$f":"'DNSP Inputs O & M'!$H$59","v":0.96},null,{"$f":"'DNSP Inputs O & M'!$H$102","v":0.94},null,{"$f":"'DNSP Inputs O & M'!$H$145","v":0.9},null,{"$f":"'DNSP Inputs O & M'!$H$218","v":0.96},{"$f":"'DNSP Inputs O & M'!$H$267","v":0.96},{"$f":"'DNSP Inputs O & M'!$H$315","v":0.96},null,{"$f":"'DNSP Inputs O & M'!$H$64","v":0.35},null,{"$f":"'DNSP Inputs O & M'!$H$107","v":0.3},null,{"$f":"'DNSP Inputs O & M'!$H$150","v":0.37},null,{"$f":"'DNSP Inputs O & M'!$H$223","v":0.35},{"$f":"'DNSP Inputs O & M'!$H$272","v":0.35},{"$f":"'DNSP Inputs O & M'!$H$320","v":0.35}]
[{"$f":"'DNSP Inputs O & M'!A60","v":"Rural"},null,{"$f":"'DNSP Inputs O & M'!$D$60","v":0.04},null,{"$f":"'DNSP Inputs O & M'!$D$103","v":0.06},null,{"$f":"'DNSP Inputs O & M'!$D$146","v":0.1},null,{"$f":"'DNSP Inputs O & M'!$D$219","v":0.04},{"$f":"'DNSP Inputs O & M'!$D$268","v":0.04},{"$f":"'DNSP Inputs O & M'!$D$316","v":0.04},null,{"$f":"'DNSP Inputs O & M'!$D$65","v":0.53},null,{"$f":"'DNSP Inputs O & M'!$D$108","v":0.63},null,{"$f":"'DNSP Inputs O & M'!$D$151","v":0.56999999999999995},null,{"$f":"'DNSP Inputs O & M'!$D$224","v":0.53},{"$f":"'DNSP Inputs O & M'!$D$273","v":0.53},{"$f":"'DNSP Inputs O & M'!$D$321","v":0.53},null,null,null,null,{"$f":"'DNSP Inputs O & M'!$E$60","v":0.04},null,{"$f":"'DNSP Inputs O & M'!$E$103","v":0.06},null,{"$f":"'DNSP Inputs O & M'!$E$146","v":0.1},null,{"$f":"'DNSP Inputs O & M'!$E$219","v":0.04},{"$f":"'DNSP Inputs O & M'!$E$268","v":0.04},{"$f":"'DNSP Inputs O & M'!$E$316","v":0.04},null,{"$f":"'DNSP Inputs O & M'!$E$65","v":0.53},null,{"$f":"'DNSP Inputs O & M'!$E$108","v":0.63},null,{"$f":"'DNSP Inputs O & M'!$E$151","v":0.56999999999999995},null,{"$f":"'DNSP Inputs O & M'!$E$224","v":0.53},{"$f":"'DNSP Inputs O & M'!$E$273","v":0.53},{"$f":"'DNSP Inputs O & M'!$E$321","v":0.53},null,null,null,null,{"$f":"'DNSP Inputs O & M'!$F$60","v":0.04},null,{"$f":"'DNSP Inputs O & M'!$F$103","v":0.06},null,{"$f":"'DNSP Inputs O & M'!$F$146","v":0.1},null,{"$f":"'DNSP Inputs O & M'!$F$219","v":0.04},{"$f":"'DNSP Inputs O & M'!$F$268","v":0.04},{"$f":"'DNSP Inputs O & M'!$F$316","v":0.04},null,{"$f":"'DNSP Inputs O & M'!$F$65","v":0.53},null,{"$f":"'DNSP Inputs O & M'!$F$108","v":0.63},null,{"$f":"'DNSP Inputs O & M'!$F$151","v":0.56999999999999995},null,{"$f":"'DNSP Inputs O & M'!$F$224","v":0.53},{"$f":"'DNSP Inputs O & M'!$F$273","v":0.53},{"$f":"'DNSP Inputs O & M'!$F$321","v":0.53},null,null,null,null,{"$f":"'DNSP Inputs O & M'!$G$60","v":0.04},null,{"$f":"'DNSP Inputs O & M'!$G$103","v":0.06},null,{"$f":"'DNSP Inputs O & M'!$G$146","v":0.1},null,{"$f":"'DNSP Inputs O & M'!$G$219","v":0.04},{"$f":"'DNSP Inputs O & M'!$G$268","v":0.04},{"$f":"'DNSP Inputs O & M'!$G$316","v":0.04},null,{"$f":"'DNSP Inputs O & M'!$G$65","v":0.53},null,{"$f":"'DNSP Inputs O & M'!$G$108","v":0.63},null,{"$f":"'DNSP Inputs O & M'!$G$151","v":0.56999999999999995},null,{"$f":"'DNSP Inputs O & M'!$G$224","v":0.53},{"$f":"'DNSP Inputs O & M'!$G$273","v":0.53},{"$f":"'DNSP Inputs O & M'!$G$321","v":0.53},null,null,null,null,{"$f":"'DNSP Inputs O & M'!$H$60","v":0.04},null,{"$f":"'DNSP Inputs O & M'!$H$103","v":0.06},null,{"$f":"'DNSP Inputs O & M'!$H$146","v":0.1},null,{"$f":"'DNSP Inputs O & M'!$H$219","v":0.04},{"$f":"'DNSP Inputs O & M'!$H$268","v":0.04},{"$f":"'DNSP Inputs O & M'!$H$316","v":0.04},null,{"$f":"'DNSP Inputs O & M'!$H$65","v":0.53},null,{"$f":"'DNSP Inputs O & M'!$H$108","v":0.63},null,{"$f":"'DNSP Inputs O & M'!$H$151","v":0.56999999999999995},null,{"$f":"'DNSP Inputs O & M'!$H$224","v":0.53},{"$f":"'DNSP Inputs O & M'!$H$273","v":0.53},{"$f":"'DNSP Inputs O & M'!$H$321","v":0.53}]
[{"$f":"'DNSP Inputs O & M'!A61","v":"Remote"},null,{"$f":"'DNSP Inputs O & M'!$D$61","v":0},null,{"$f":"'DNSP Inputs O & M'!$D$104","v":0},null,{"$f":"'DNSP Inputs O & M'!$D$147","v":0},null,{"$f":"'DNSP Inputs O & M'!$D$220","v":0},{"$f":"'DNSP Inputs O & M'!$D$269","v":0},{"$f":"'DNSP Inputs O & M'!$D$317","v":0},null,{"$f":"'DNSP Inputs O & M'!$D$66","v":0.12},null,{"$f":"'DNSP Inputs O & M'!$D$109","v":7.0000000000000007E-2},null,{"$f":"'DNSP Inputs O & M'!$D$152","v":0.06},null,{"$f":"'DNSP Inputs O & M'!$D$225","v":0.12},{"$f":"'DNSP Inputs O & M'!$D$274","v":0.12},{"$f":"'DNSP Inputs O & M'!$D$322","v":0.12},null,null,null,null,{"$f":"'DNSP Inputs O & M'!$E$61","v":0},null,{"$f":"'DNSP Inputs O & M'!$E$104","v":0},null,{"$f":"'DNSP Inputs O & M'!$E$147","v":0},null,{"$f":"'DNSP Inputs O & M'!$E$220","v":0},{"$f":"'DNSP Inputs O & M'!$E$269","v":0},{"$f":"'DNSP Inputs O & M'!$E$317","v":0},null,{"$f":"'DNSP Inputs O & M'!$E$66","v":0.12},null,{"$f":"'DNSP Inputs O & M'!$E$109","v":7.0000000000000007E-2},null,{"$f":"'DNSP Inputs O & M'!$E$152","v":0.06},null,{"$f":"'DNSP Inputs O & M'!$E$225","v":0.12},{"$f":"'DNSP Inputs O & M'!$E$274","v":0.12},{"$f":"'DNSP Inputs O & M'!$E$322","v":0.12},null,null,null,null,{"$f":"'DNSP Inputs O & M'!$F$61","v":0},null,{"$f":"'DNSP Inputs O & M'!$F$104","v":0},null,{"$f":"'DNSP Inputs O & M'!$F$147","v":0},null,{"$f":"'DNSP Inputs O & M'!$F$220","v":0},{"$f":"'DNSP Inputs O & M'!$F$269","v":0},{"$f":"'DNSP Inputs O & M'!$F$317","v":0},null,{"$f":"'DNSP Inputs O & M'!$F$66","v":0.12},null,{"$f":"'DNSP Inputs O & M'!$F$109","v":7.0000000000000007E-2},null,{"$f":"'DNSP Inputs O & M'!$F$152","v":0.06},null,{"$f":"'DNSP Inputs O & M'!$F$225","v":0.12},{"$f":"'DNSP Inputs O & M'!$F$274","v":0.12},{"$f":"'DNSP Inputs O & M'!$F$322","v":0.12},null,null,null,null,{"$f":"'DNSP Inputs O & M'!$G$61","v":0},null,{"$f":"'DNSP Inputs O & M'!$G$104","v":0},null,{"$f":"'DNSP Inputs O & M'!$G$147","v":0},null,{"$f":"'DNSP Inputs O & M'!$G$220","v":0},{"$f":"'DNSP Inputs O & M'!$G$269","v":0},{"$f":"'DNSP Inputs O & M'!$G$317","v":0},null,{"$f":"'DNSP Inputs O & M'!$G$66","v":0.12},null,{"$f":"'DNSP Inputs O & M'!$G$109","v":7.0000000000000007E-2},null,{"$f":"'DNSP Inputs O & M'!$G$152","v":0.06},null,{"$f":"'DNSP Inputs O & M'!$G$225","v":0.12},{"$f":"'DNSP Inputs O & M'!$G$274","v":0.12},{"$f":"'DNSP Inputs O & M'!$G$322","v":0.12},null,null,null,null,{"$f":"'DNSP Inputs O & M'!$H$61","v":0},null,{"$f":"'DNSP Inputs O & M'!$H$104","v":0},null,{"$f":"'DNSP Inputs O & M'!$H$147","v":0},null,{"$f":"'DNSP Inputs O & M'!$H$220","v":0},{"$f":"'DNSP Inputs O & M'!$H$269","v":0},{"$f":"'DNSP Inputs O & M'!$H$317","v":0},null,{"$f":"'DNSP Inputs O & M'!$H$66","v":0.12},null,{"$f":"'DNSP Inputs O & M'!$H$109","v":7.0000000000000007E-2},null,{"$f":"'DNSP Inputs O & M'!$H$152","v":0.06},null,{"$f":"'DNSP Inputs O & M'!$H$225","v":0.12},{"$f":"'DNSP Inputs O & M'!$H$274","v":0.12},{"$f":"'DNSP Inputs O & M'!$H$322","v":0.12}]
[]
[null,null,{"$f":"$A$354","v":"LED 14W"},{"$f":"$A$389","v":"LED 70W (L1)"},{"$f":"$A$424","v":"LED 155W (L2)"},{"$f":"$A$459","v":"LED 275W (L4)"},{"$f":"$A$494","v":"Smart lighting L1"},null,{"$f":"$A$529","v":"Smart lighting L2"},null,{"$f":"$A$564","v":"Smart lighting L4"},null,{"$f":"$A$354","v":"LED 14W"},{"$f":"$A$389","v":"LED 70W (L1)"},{"$f":"$A$424","v":"LED 155W (L2)"},{"$f":"$A$459","v":"LED 275W (L4)"},{"$f":"$A$494","v":"Smart lighting L1"},null,{"$f":"$A$529","v":"Smart lighting L2"},null,{"$f":"$A$564","v":"Smart lighting L4"},null,null,null,null,{"$f":"$A$354","v":"LED 14W"},{"$f":"$A$389","v":"LED 70W (L1)"},{"$f":"$A$424","v":"LED 155W (L2)"},{"$f":"$A$459","v":"LED 275W (L4)"},{"$f":"$A$494","v":"Smart lighting L1"},null,{"$f":"$A$529","v":"Smart lighting L2"},null,{"$f":"$A$564","v":"Smart lighting L4"},null,{"$f":"$A$354","v":"LED 14W"},{"$f":"$A$389","v":"LED 70W (L1)"},{"$f":"$A$424","v":"LED 155W (L2)"},{"$f":"$A$459","v":"LED 275W (L4)"},{"$f":"$A$494","v":"Smart lighting L1"},null,{"$f":"$A$529","v":"Smart lighting L2"},null,{"$f":"$A$564","v":"Smart lighting L4"},null,null,null,null,{"$f":"$A$354","v":"LED 14W"},{"$f":"$A$389","v":"LED 70W (L1)"},{"$f":"$A$424","v":"LED 155W (L2)"},{"$f":"$A$459","v":"LED 275W (L4)"},{"$f":"$A$494","v":"Smart lighting L1"},null,{"$f":"$A$529","v":"Smart lighting L2"},null,{"$f":"$A$564","v":"Smart lighting L4"},null,{"$f":"$A$354","v":"LED 14W"},{"$f":"$A$389","v":"LED 70W (L1)"},{"$f":"$A$424","v":"LED 155W (L2)"},{"$f":"$A$459","v":"LED 275W (L4)"},{"$f":"$A$494","v":"Smart lighting L1"},null,{"$f":"$A$529","v":"Smart lighting L2"},null,{"$f":"$A$564","v":"Smart lighting L4"},null,null,null,null,{"$f":"$A$354","v":"LED 14W"},{"$f":"$A$389","v":"LED 70W (L1)"},{"$f":"$A$424","v":"LED 155W (L2)"},{"$f":"$A$459","v":"LED 275W (L4)"},{"$f":"$A$494","v":"Smart lighting L1"},null,{"$f":"$A$529","v":"Smart lighting L2"},null,{"$f":"$A$564","v":"Smart lighting L4"},null,{"$f":"$A$354","v":"LED 14W"},{"$f":"$A$389","v":"LED 70W (L1)"},{"$f":"$A$424","v":"LED 155W (L2)"},{"$f":"$A$459","v":"LED 275W (L4)"},{"$f":"$A$494","v":"Smart lighting L1"},null,{"$f":"$A$529","v":"Smart lighting L2"},null,{"$f":"$A$564","v":"Smart lighting L4"},null,null,null,null,{"$f":"$A$354","v":"LED 14W"},{"$f":"$A$389","v":"LED 70W (L1)"},{"$f":"$A$424","v":"LED 155W (L2)"},{"$f":"$A$459","v":"LED 275W (L4)"},{"$f":"$A$494","v":"Smart lighting L1"},null,{"$f":"$A$529","v":"Smart lighting L2"},null,{"$f":"$A$564","v":"Smart lighting L4"},null,{"$f":"$A$354","v":"LED 14W"},{"$f":"$A$389","v":"LED 70W (L1)"},{"$f":"$A$424","v":"LED 155W (L2)"},{"$f":"$A$459","v":"LED 275W (L4)"},{"$f":"$A$494","v":"Smart lighting L1"},null,{"$f":"$A$529","v":"Smart lighting L2"},null,{"$f":"$A$564","v":"Smart lighting L4"}]
[{"$f":"A88","v":"Urban"},null,{"$f":"'DNSP Inputs O & M'!$D$361","v":0.96},{"$f":"'DNSP Inputs O & M'!$D$407","v":0.96},{"$f":"'DNSP Inputs O & M'!$D$453","v":0.96},{"$f":"'DNSP Inputs O & M'!$D$499","v":0.96},{"$f":"'DNSP Inputs O & M'!$D$546","v":0.96},null,{"$f":"'DNSP Inputs O & M'!$D$590","v":0.96},null,{"$f":"'DNSP Inputs O & M'!$D$634","v":0.96},null,{"$f":"'DNSP Inputs O & M'!$D$366","v":0.35},{"$f":"'DNSP Inputs O & M'!$D$412","v":0.35},{"$f":"'DNSP Inputs O & M'!$D$458","v":0.35},{"$f":"'DNSP Inputs O & M'!$D$504","v":0.35},{"$f":"'DNSP Inputs O & M'!$D$551","v":0.35},null,{"$f":"'DNSP Inputs O & M'!$D$595","v":0.35},null,{"$f":"'DNSP Inputs O & M'!$D$639","v":0.35},null,null,null,null,{"$f":"'DNSP Inputs O & M'!$E$361","v":0.96},{"$f":"'DNSP Inputs O & M'!$E$407","v":0.96},{"$f":"'DNSP Inputs O & M'!$E$453","v":0.96},{"$f":"'DNSP Inputs O & M'!$E$499","v":0.96},{"$f":"'DNSP Inputs O & M'!$E$546","v":0.96},null,{"$f":"'DNSP Inputs O & M'!$E$590","v":0.96},null,{"$f":"'DNSP Inputs O & M'!$E$634","v":0.96},null,{"$f":"'DNSP Inputs O & M'!$E$366","v":0.35},{"$f":"'DNSP Inputs O & M'!$E$412","v":0.35},{"$f":"'DNSP Inputs O & M'!$E$458","v":0.35},{"$f":"'DNSP Inputs O & M'!$E$504","v":0.35},{"$f":"'DNSP Inputs O & M'!$E$551","v":0.35},null,{"$f":"'DNSP Inputs O & M'!$E$595","v":0.35},null,{"$f":"'DNSP Inputs O & M'!$E$639","v":0.35},null,null,null,null,{"$f":"'DNSP Inputs O & M'!$F$361","v":0.96},{"$f":"'DNSP Inputs O & M'!$F$407","v":0.96},{"$f":"'DNSP Inputs O & M'!$F$453","v":0.96},{"$f":"'DNSP Inputs O & M'!$F$499","v":0.96},{"$f":"'DNSP Inputs O & M'!$F$546","v":0.96},null,{"$f":"'DNSP Inputs O & M'!$F$590","v":0.96},null,{"$f":"'DNSP Inputs O & M'!$F$634","v":0.96},null,{"$f":"'DNSP Inputs O & M'!$F$366","v":0.35},{"$f":"'DNSP Inputs O & M'!$F$412","v":0.35},{"$f":"'DNSP Inputs O & M'!$F$458","v":0.35},{"$f":"'DNSP Inputs O & M'!$F$504","v":0.35},{"$f":"'DNSP Inputs O & M'!$F$551","v":0.35},null,{"$f":"'DNSP Inputs O & M'!$F$595","v":0.35},null,{"$f":"'DNSP Inputs O & M'!$F$639","v":0.35},null,null,null,null,{"$f":"'DNSP Inputs O & M'!$G$361","v":0.96},{"$f":"'DNSP Inputs O & M'!$G$407","v":0.96},{"$f":"'DNSP Inputs O & M'!$G$453","v":0.96},{"$f":"'DNSP Inputs O & M'!$G$499","v":0.96},{"$f":"'DNSP Inputs O & M'!$G$546","v":0.96},null,{"$f":"'DNSP Inputs O & M'!$G$590","v":0.96},null,{"$f":"'DNSP Inputs O & M'!$G$634","v":0.96},null,{"$f":"'DNSP Inputs O & M'!$G$366","v":0.35},{"$f":"'DNSP Inputs O & M'!$G$412","v":0.35},{"$f":"'DNSP Inputs O & M'!$G$458","v":0.35},{"$f":"'DNSP Inputs O & M'!$G$504","v":0.35},{"$f":"'DNSP Inputs O & M'!$G$551","v":0.35},null,{"$f":"'DNSP Inputs O & M'!$G$595","v":0.35},null,{"$f":"'DNSP Inputs O & M'!$G$639","v":0.35},null,null,null,null,{"$f":"'DNSP Inputs O & M'!$H$361","v":0.96},{"$f":"'DNSP Inputs O & M'!$H$407","v":0.96},{"$f":"'DNSP Inputs O & M'!$H$453","v":0.96},{"$f":"'DNSP Inputs O & M'!$H$499","v":0.96},{"$f":"'DNSP Inputs O & M'!$H$546","v":0.96},null,{"$f":"'DNSP Inputs O & M'!$H$590","v":0.96},null,{"$f":"'DNSP Inputs O & M'!$H$634","v":0.96},null,{"$f":"'DNSP Inputs O & M'!$H$366","v":0.35},{"$f":"'DNSP Inputs O & M'!$H$412","v":0.35},{"$f":"'DNSP Inputs O & M'!$H$458","v":0.35},{"$f":"'DNSP Inputs O & M'!$H$504","v":0.35},{"$f":"'DNSP Inputs O & M'!$H$551","v":0.35},null,{"$f":"'DNSP Inputs O & M'!$H$595","v":0.35},null,{"$f":"'DNSP Inputs O & M'!$H$639","v":0.35}]
[{"$f":"A89","v":"Rural"},null,{"$f":"'DNSP Inputs O & M'!$D$362","v":0.04},{"$f":"'DNSP Inputs O & M'!$D$408","v":0.04},{"$f":"'DNSP Inputs O & M'!$D$454","v":0.04},{"$f":"'DNSP Inputs O & M'!$D$500","v":0.04},{"$f":"'DNSP Inputs O & M'!$D$547","v":0.04},null,{"$f":"'DNSP Inputs O & M'!$D$591","v":0.04},null,{"$f":"'DNSP Inputs O & M'!$D$635","v":0.04},null,{"$f":"'DNSP Inputs O & M'!$D$367","v":0.53},{"$f":"'DNSP Inputs O & M'!$D$413","v":0.53},{"$f":"'DNSP Inputs O & M'!$D$459","v":0.53},{"$f":"'DNSP Inputs O & M'!$D$505","v":0.53},{"$f":"'DNSP Inputs O & M'!$D$552","v":0.53},null,{"$f":"'DNSP Inputs O & M'!$D$596","v":0.53},null,{"$f":"'DNSP Inputs O & M'!$D$640","v":0.53},null,null,null,null,{"$f":"'DNSP Inputs O & M'!$E$362","v":0.04},{"$f":"'DNSP Inputs O & M'!$E$408","v":0.04},{"$f":"'DNSP Inputs O & M'!$E$454","v":0.04},{"$f":"'DNSP Inputs O & M'!$E$500","v":0.04},{"$f":"'DNSP Inputs O & M'!$E$547","v":0.04},null,{"$f":"'DNSP Inputs O & M'!$E$591","v":0.04},null,{"$f":"'DNSP Inputs O & M'!$E$635","v":0.04},null,{"$f":"'DNSP Inputs O & M'!$E$367","v":0.53},{"$f":"'DNSP Inputs O & M'!$E$413","v":0.53},{"$f":"'DNSP Inputs O & M'!$E$459","v":0.53},{"$f":"'DNSP Inputs O & M'!$E$505","v":0.53},{"$f":"'DNSP Inputs O & M'!$E$552","v":0.53},null,{"$f":"'DNSP Inputs O & M'!$E$596","v":0.53},null,{"$f":"'DNSP Inputs O & M'!$E$640","v":0.53},null,null,null,null,{"$f":"'DNSP Inputs O & M'!$F$362","v":0.04},{"$f":"'DNSP Inputs O & M'!$F$408","v":0.04},{"$f":"'DNSP Inputs O & M'!$F$454","v":0.04},{"$f":"'DNSP Inputs O & M'!$F$500","v":0.04},{"$f":"'DNSP Inputs O & M'!$F$547","v":0.04},null,{"$f":"'DNSP Inputs O & M'!$F$591","v":0.04},null,{"$f":"'DNSP Inputs O & M'!$F$635","v":0.04},null,{"$f":"'DNSP Inputs O & M'!$F$367","v":0.53},{"$f":"'DNSP Inputs O & M'!$F$413","v":0.53},{"$f":"'DNSP Inputs O & M'!$F$459","v":0.53},{"$f":"'DNSP Inputs O & M'!$F$505","v":0.53},{"$f":"'DNSP Inputs O & M'!$F$552","v":0.53},null,{"$f":"'DNSP Inputs O & M'!$F$596","v":0.53},null,{"$f":"'DNSP Inputs O & M'!$F$640","v":0.53},null,null,null,null,{"$f":"'DNSP Inputs O & M'!$G$362","v":0.04},{"$f":"'DNSP Inputs O & M'!$G$408","v":0.04},{"$f":"'DNSP Inputs O & M'!$G$454","v":0.04},{"$f":"'DNSP Inputs O & M'!$G$500","v":0.04},{"$f":"'DNSP Inputs O & M'!$G$547","v":0.04},null,{"$f":"'DNSP Inputs O & M'!$G$591","v":0.04},null,{"$f":"'DNSP Inputs O & M'!$G$635","v":0.04},null,{"$f":"'DNSP Inputs O & M'!$G$367","v":0.53},{"$f":"'DNSP Inputs O & M'!$G$413","v":0.53},{"$f":"'DNSP Inputs O & M'!$G$459","v":0.53},{"$f":"'DNSP Inputs O & M'!$G$505","v":0.53},{"$f":"'DNSP Inputs O & M'!$G$552","v":0.53},null,{"$f":"'DNSP Inputs O & M'!$G$596","v":0.53},null,{"$f":"'DNSP Inputs O & M'!$G$640","v":0.53},null,null,null,null,{"$f":"'DNSP Inputs O & M'!$H$362","v":0.04},{"$f":"'DNSP Inputs O & M'!$H$408","v":0.04},{"$f":"'DNSP Inputs O & M'!$H$454","v":0.04},{"$f":"'DNSP Inputs O & M'!$H$500","v":0.04},{"$f":"'DNSP Inputs O & M'!$H$547","v":0.04},null,{"$f":"'DNSP Inputs O & M'!$H$591","v":0.04},null,{"$f":"'DNSP Inputs O & M'!$H$635","v":0.04},null,{"$f":"'DNSP Inputs O & M'!$H$367","v":0.53},{"$f":"'DNSP Inputs O & M'!$H$413","v":0.53},{"$f":"'DNSP Inputs O & M'!$H$459","v":0.53},{"$f":"'DNSP Inputs O & M'!$H$505","v":0.53},{"$f":"'DNSP Inputs O & M'!$H$552","v":0.53},null,{"$f":"'DNSP Inputs O & M'!$H$596","v":0.53},null,{"$f":"'DNSP Inputs O & M'!$H$640","v":0.53}]
["Remote",null,{"$f":"'DNSP Inputs O & M'!$D$363","v":0},{"$f":"'DNSP Inputs O & M'!$D$409","v":0},{"$f":"'DNSP Inputs O & M'!$D$455","v":0},{"$f":"'DNSP Inputs O & M'!$D$501","v":0},{"$f":"'DNSP Inputs O & M'!$D$548","v":0},null,{"$f":"'DNSP Inputs O & M'!$D$592","v":0},null,{"$f":"'DNSP Inputs O & M'!$D$636","v":0},null,{"$f":"'DNSP Inputs O & M'!$D$368","v":0.12},{"$f":"'DNSP Inputs O & M'!$D$414","v":0.12},{"$f":"'DNSP Inputs O & M'!$D$460","v":0.12},{"$f":"'DNSP Inputs O & M'!$D$506","v":0.12},{"$f":"'DNSP Inputs O & M'!$D$553","v":0.12},null,{"$f":"'DNSP Inputs O & M'!$D$597","v":0.12},null,{"$f":"'DNSP Inputs O & M'!$D$641","v":0.12},null,null,null,null,{"$f":"'DNSP Inputs O & M'!$E$363","v":0},{"$f":"'DNSP Inputs O & M'!$E$409","v":0},{"$f":"'DNSP Inputs O & M'!$E$455","v":0},{"$f":"'DNSP Inputs O & M'!$E$501","v":0},{"$f":"'DNSP Inputs O & M'!$E$548","v":0},null,{"$f":"'DNSP Inputs O & M'!$E$592","v":0},null,{"$f":"'DNSP Inputs O & M'!$E$636","v":0},null,{"$f":"'DNSP Inputs O & M'!$E$368","v":0.12},{"$f":"'DNSP Inputs O & M'!$E$414","v":0.12},{"$f":"'DNSP Inputs O & M'!$E$460","v":0.12},{"$f":"'DNSP Inputs O & M'!$E$506","v":0.12},{"$f":"'DNSP Inputs O & M'!$E$553","v":0.12},null,{"$f":"'DNSP Inputs O & M'!$E$597","v":0.12},null,{"$f":"'DNSP Inputs O & M'!$E$641","v":0.12},null,null,null,null,{"$f":"'DNSP Inputs O & M'!$F$363","v":0},{"$f":"'DNSP Inputs O & M'!$F$409","v":0},{"$f":"'DNSP Inputs O & M'!$F$455","v":0},{"$f":"'DNSP Inputs O & M'!$F$501","v":0},{"$f":"'DNSP Inputs O & M'!$F$548","v":0},null,{"$f":"'DNSP Inputs O & M'!$F$592","v":0},null,{"$f":"'DNSP Inputs O & M'!$F$636","v":0},null,{"$f":"'DNSP Inputs O & M'!$F$368","v":0.12},{"$f":"'DNSP Inputs O & M'!$F$414","v":0.12},{"$f":"'DNSP Inputs O & M'!$F$460","v":0.12},{"$f":"'DNSP Inputs O & M'!$F$506","v":0.12},{"$f":"'DNSP Inputs O & M'!$F$553","v":0.12},null,{"$f":"'DNSP Inputs O & M'!$F$597","v":0.12},null,{"$f":"'DNSP Inputs O & M'!$F$641","v":0.12},null,null,null,null,{"$f":"'DNSP Inputs O & M'!$G$363","v":0},{"$f":"'DNSP Inputs O & M'!$G$409","v":0},{"$f":"'DNSP Inputs O & M'!$G$455","v":0},{"$f":"'DNSP Inputs O & M'!$G$501","v":0},{"$f":"'DNSP Inputs O & M'!$G$548","v":0},null,{"$f":"'DNSP Inputs O & M'!$G$592","v":0},null,{"$f":"'DNSP Inputs O & M'!$G$636","v":0},null,{"$f":"'DNSP Inputs O & M'!$G$368","v":0.12},{"$f":"'DNSP Inputs O & M'!$G$414","v":0.12},{"$f":"'DNSP Inputs O & M'!$G$460","v":0.12},{"$f":"'DNSP Inputs O & M'!$G$506","v":0.12},{"$f":"'DNSP Inputs O & M'!$G$553","v":0.12},null,{"$f":"'DNSP Inputs O & M'!$G$597","v":0.12},null,{"$f":"'DNSP Inputs O & M'!$G$641","v":0.12},null,null,null,null,{"$f":"'DNSP Inputs O & M'!$H$363","v":0},{"$f":"'DNSP Inputs O & M'!$H$409","v":0},{"$f":"'DNSP Inputs O & M'!$H$455","v":0},{"$f":"'DNSP Inputs O & M'!$H$501","v":0},{"$f":"'DNSP Inputs O & M'!$H$548","v":0},null,{"$f":"'DNSP Inputs O & M'!$H$592","v":0},null,{"$f":"'DNSP Inputs O & M'!$H$636","v":0},null,{"$f":"'DNSP Inputs O & M'!$H$368","v":0.12},{"$f":"'DNSP Inputs O & M'!$H$414","v":0.12},{"$f":"'DNSP Inputs O & M'!$H$460","v":0.12},{"$f":"'DNSP Inputs O & M'!$H$506","v":0.12},{"$f":"'DNSP Inputs O & M'!$H$553","v":0.12},null,{"$f":"'DNSP Inputs O & M'!$H$597","v":0.12},null,{"$f":"'DNSP Inputs O & M'!$H$641","v":0.12}]
[]
[]
[{"$f":"'DNSP Inputs O & M'!A161","v":"Proportion of lights on dedicated poles"},null,{"$f":"'DNSP Inputs O & M'!$D$162","v":0.38119062500000001},null,null,null,null,null,null,null,null,null,{"$f":"'DNSP Inputs O & M'!$D$163","v":0.38296744016378254},null,null,null,null,null,null,null,null,null,null,null,null,{"$f":"'DNSP Inputs O & M'!$E$162","v":0.38119062500000001},null,null,null,null,null,null,null,null,null,{"$f":"'DNSP Inputs O & M'!$E$163","v":0.38296744016378254},null,null,null,null,null,null,null,null,null,null,null,null,{"$f":"'DNSP Inputs O & M'!$F$162","v":0.38119062500000001},null,null,null,null,null,null,null,null,null,{"$f":"'DNSP Inputs O & M'!$F$163","v":0.38296744016378254},null,null,null,null,null,null,null,null,null,null,null,null,{"$f":"'DNSP Inputs O & M'!$G$162","v":0.38119062500000001},null,null,null,null,null,null,null,null,null,{"$f":"'DNSP Inputs O & M'!$G$163","v":0.38296744016378254},null,null,null,null,null,null,null,null,null,null,null,null,{"$f":"'DNSP Inputs O & M'!$H$162","v":0.38119062500000001},null,null,null,null,null,null,null,null,null,{"$f":"'DNSP Inputs O & M'!$H$163","v":0.38296744016378254}]
[]
[{"$f":"'DNSP Inputs O & M'!A167","v":"Other direct costs"}]
[{"$f":"'DNSP Inputs O & M'!$A$168","v":"Call centre"},null,{"$f":"'DNSP Inputs O & M'!$D$171","v":62440},null,null,null,null,null,null,null,null,null,null,null,null,null,null,null,null,null,null,null,null,null,null,{"$f":"'DNSP Inputs O & M'!$E$171","v":66440},null,null,null,null,null,null,null,null,null,null,null,null,null,null,null,null,null,null,null,null,null,null,{"$f":"'DNSP Inputs O & M'!$F$171","v":70440},null,null,null,null,null,null,null,null,null,null,null,null,null,null,null,null,null,null,null,null,null,null,{"$f":"'DNSP Inputs O & M'!$G$171","v":74440},null,null,null,null,null,null,null,null,null,null,null,null,null,null,null,null,null,null,null,null,null,null,{"$f":"'DNSP Inputs O & M'!$H$171","v":78440}]
[{"$f":"'DNSP Inputs O & M'!$A$173","v":"GIS and other"},null,{"$f":"'DNSP Inputs O & M'!$D$173","v":118584.41510767433},null,null,null,null,null,null,null,null,null,null,null,null,null,null,null,null,null,null,null,null,null,null,{"$f":"'DNSP Inputs O & M'!$E$173","v":118584.41510767433},null,null,null,null,null,null,null,null,null,null,null,null,null,null,null,null,null,null,null,null,null,null,{"$f":"'DNSP Inputs O & M'!$F$173","v":118584.41510767433},null,null,null,null,null,null,null,null,null,null,null,null,null,null,null,null,null,null,null,null,null,null,{"$f":"'DNSP Inputs O & M'!$G$173","v":118584.41510767433},null,null,null,null,null,null,null,null,null,null,null,null,null,null,null,null,null,null,null,null,null,null,{"$f":"'DNSP Inputs O & M'!$H$173","v":118584.41510767433}]
[{"$f":"'DNSP Inputs O & M'!A174","v":"Complaints handling"},null,{"$f":"'DNSP Inputs O & M'!$D$174","v":35575.3245323023},null,null,null,null,null,null,null,null,null,null,null,null,null,null,null,null,null,null,null,null,null,null,{"$f":"'DNSP Inputs O & M'!$E$174","v":35575.3245323023},null,null,null,null,null,null,null,null,null,null,null,null,null,null,null,null,null,null,null,null,null,null,{"$f":"'DNSP Inputs O & M'!$F$174","v":35575.3245323023},null,null,null,null,null,null,null,null,null,null,null,null,null,null,null,null,null,null,null,null,null,null,{"$f":"'DNSP Inputs O & M'!$G$174","v":35575.3245323023},null,null,null,null,null,null,null,null,null,null,null,null,null,null,null,null,null,null,null,null,null,null,{"$f":"'DNSP Inputs O & M'!$H$174","v":35575.3245323023}]
[null,null,{"$f":"SUM(C101:C103)","v":216599.73963997661},null,null,null,null,null,null,null,null,null,null,null,null,null,null,null,null,null,null,null,null,null,null,{"$f":"SUM(Z101:Z103)","v":220599.73963997661},null,null,null,null,null,null,null,null,null,null,null,null,null,null,null,null,null,null,null,null,null,null,{"$f":"SUM(AW101:AW103)","v":224599.73963997661},null,null,null,null,null,null,null,null,null,null,null,null,null,null,null,null,null,null,null,null,null,null,{"$f":"SUM(BT101:BT103)","v":228599.73963997661},null,null,null,null,null,null,null,null,null,null,null,null,null,null,null,null,null,null,null,null,null,null,{"$f":"SUM(CQ101:CQ103)","v":232599.73963997661}]
[]
[{"$f":"'DNSP Inputs General'!A83","v":"Total Number of Lights"},null,{"$f":"SUM('DNSP Inputs General'!$Q$83,'DNSP Inputs General'!$Q$130)","v":165796.89658643014},null,null,null,null,null,null,null,null,null,null,null,null,null,null,null,null,null,null,null,null,null,null,{"$f":"SUM('DNSP Inputs General'!$R$83,'DNSP Inputs General'!$R$130)","v":170200.0592255744},null,null,null,null,null,null,null,null,null,null,null,null,null,null,null,null,null,null,null,null,null,null,{"$f":"SUM('DNSP Inputs General'!$S$83,'DNSP Inputs General'!$S$130)","v":175009.52808559829},null,null,null,null,null,null,null,null,null,null,null,null,null,null,null,null,null,null,null,null,null,null,{"$f":"SUM('DNSP Inputs General'!$T$83,'DNSP Inputs General'!$T$130)","v":179563.39586611275},null,null,null,null,null,null,null,null,null,null,null,null,null,null,null,null,null,null,null,null,null,null,{"$f":"SUM('DNSP Inputs General'!$U$83,'DNSP Inputs General'!$U$130)","v":184392.18073830247}]
[]
[]
[]
[]
[]
["Mercury Vapour 80 Watt Standard Light Type - Cost build-up"]
[]
["Additional assumptions"]
["Proportion of lamps that will fail before bulk change",null,null,{"$f":"'DNSP Inputs O & M'!$D$27","v":0.19416850184289608},null,null,null,null,null,null,null,null,null,null,null,null,null,null,null,null,null,null,null,null,null,null,{"$f":"'DNSP Inputs O & M'!$E$27","v":0.19416850184289608},null,null,null,null,null,null,null,null,null,null,null,null,null,null,null,null,null,null,null,null,null,null,{"$f":"'DNSP Inputs O & M'!$F$27","v":0.19416850184289608},null,null,null,null,null,null,null,null,null,null,null,null,null,null,null,null,null,null,null,null,null,null,{"$f":"'DNSP Inputs O & M'!$G$27","v":0.19416850184289608},null,null,null,null,null,null,null,null,null,null,null,null,null,null,null,null,null,null,null,null,null,null,{"$f":"'DNSP Inputs O & M'!$H$27","v":0.19416850184289608}]
["Proportion of lamps that will fail before bulk change (per year)",null,null,{"$f":"D115/'DNSP Inputs O & M'!$D$25","v":4.854212546072402E-2},null,null,null,null,null,null,null,null,null,null,null,null,null,null,null,null,null,null,null,null,null,null,{"$f":"AA115/'DNSP Inputs O & M'!$E$25","v":4.854212546072402E-2},null,null,null,null,null,null,null,null,null,null,null,null,null,null,null,null,null,null,null,null,null,null,{"$f":"AX115/'DNSP Inputs O & M'!$F$25","v":4.854212546072402E-2},null,null,null,null,null,null,null,null,null,null,null,null,null,null,null,null,null,null,null,null,null,null,{"$f":"BU115/'DNSP Inputs O & M'!$G$25","v":4.854212546072402E-2},null,null,null,null,null,null,null,null,null,null,null,null,null,null,null,null,null,null,null,null,null,null,{"$f":"CR115/'DNSP Inputs O & M'!$H$25","v":4.854212546072402E-2}]
["Overheads are applied to material and labour components"]
["All costs and charges are exclusive of GST"]
[]
[null,"Urban",null,null,null,null,null,null,"Rural",null,null,null,null,null,null,"Remote",null,null,null,null,null,null,null,null,"Urban",null,null,null,null,null,null,"Rural",null,null,null,null,null,null,"Remote",null,null,null,null,null,null,null,null,"Urban",null,null,null,null,null,null,"Rural",null,null,null,null,null,null,"Remote",null,null,null,null,null,null,null,null,"Urban",null,null,null,null,null,null,"Rural",null,null,null,null,null,null,"Remote",null,null,null,null,null,null,null,null,"Urban",null,null,null,null,null,null,"Rural",null,null,null,null,null,null,"Remote"]
[]
[null,"Unit rate","Number","Hours","Cost","Annualised","Annualised",null,"Unit rate","Number","Hours","Cost","Annualised","Annualised",null,"Unit rate","Number","Hours","Cost","Annualised","Annualised",null,null,null,"Unit rate","Number","Hours","Cost","Annualised","Annualised",null,"Unit rate","Number","Hours","Cost","Annualised","Annualised",null,"Unit rate","Number","Hours","Cost","Annualised","Annualised",null,null,null,"Unit rate","Number","Hours","Cost","Annualised","Annualised",null,"Unit rate","Number","Hours","Cost","Annualised","Annualised",null,"Unit rate","Number","Hours","Cost","Annualised","Annualised",null,null,null,"Unit rate","Number","Hours","Cost","Annualised","Annualised",null,"Unit rate","Number","Hours","Cost","Annualised","Annualised",null,"Unit rate","Number","Hours","Cost","Annualised","Annualised",null,null,null,"Unit rate","Number","Hours","Cost","Annualised","Annualised",null,"Unit rate","Number","Hours","Cost","Annualised","Annualised",null,"Unit rate","Number","Hours","Cost","Annualised","Annualised"]
[null,null,null,null,null," cost","unit cost",null,null,null,null,null," cost","unit cost",null,null,null,null,null," cost","unit cost",null,null,null,null,null,null,null," cost","unit cost",null,null,null,null,null," cost","unit cost",null,null,null,null,null," cost","unit cost",null,null,null,null,null,null,null," cost","unit cost",null,null,null,null,null," cost","unit cost",null,null,null,null,null," cost","unit cost",null,null,null,null,null,null,null," cost","unit cost",null,null,null,null,null," cost","unit cost",null,null,null,null,null," cost","unit cost",null,null,null,null,null,null,null," cost","unit cost",null,null,null,null,null," cost","unit cost",null,null,null,null,null," cost","unit cost"]
["MV80"]
["Bulk change & repairs"]
["Materials - bulk lamp change"]
["Lamp",{"$f":"'DNSP Inputs O & M'!$D$28","v":4.71},{"$f":"'DNSP Inputs O & M'!$D$34","v":86},null,{"$f":"B127*C127","v":405.06},{"$f":"E127/'DNSP Inputs O & M'!$D$25*0.8","v":81.012},{"$f":"(F127+F128+F129)/C127","v":3.101529134138421},null,{"$f":"'DNSP Inputs O & M'!$D$28*(1+'DNSP Inputs O & M'!$D$11)","v":4.9455},{"$f":"'DNSP Inputs O & M'!$D$35","v":72},null,{"$f":"I127*J127","v":356.07600000000002},{"$f":"L127/'DNSP Inputs O & M'!$D$25*0.8","v":71.21520000000001},{"$f":"(M127+M128+M129)/J127","v":3.256605590845342},null,{"$f":"'DNSP Inputs O & M'!$D$28*(1+'DNSP Inputs O & M'!$D$11)","v":4.9455},{"$f":"'DNSP Inputs O & M'!$D$36","v":60},null,{"$f":"P127*Q127","v":296.73},{"$f":"S127/'DNSP Inputs O & M'!$D$25*0.8","v":59.346000000000004},{"$f":"(T127+T128+T129)/Q127","v":3.2566055908453415},null,null,null,{"$f":"'DNSP Inputs O & M'!$E$28","v":4.71},{"$f":"'DNSP Inputs O & M'!$E$34","v":86},null,{"$f":"Y127*Z127","v":405.06},{"$f":"AB127/'DNSP Inputs O & M'!$E$25*0.8","v":81.012},{"$f":"(AC127+AC128+AC129)/Z127","v":3.101529134138421},null,{"$f":"'DNSP Inputs O & M'!$E$28*(1+'DNSP Inputs O & M'!$E$11)","v":4.9455},{"$f":"'DNSP Inputs O & M'!$E$35","v":72},null,{"$f":"AF127*AG127","v":356.07600000000002},{"$f":"AI127/'DNSP Inputs O & M'!$E$25*0.8","v":71.21520000000001},{"$f":"(AJ127+AJ128+AJ129)/AG127","v":3.256605590845342},null,{"$f":"'DNSP Inputs O & M'!$E$28*(1+'DNSP Inputs O & M'!$E$11)","v":4.9455},{"$f":"'DNSP Inputs O & M'!$E$36","v":60},null,{"$f":"AM127*AN127","v":296.73},{"$f":"AP127/'DNSP Inputs O & M'!$E$25*0.8","v":59.346000000000004},{"$f":"(AQ127+AQ128+AQ129)/AN127","v":3.2566055908453415},null,null,null,{"$f":"'DNSP Inputs O & M'!$F$28","v":4.71},{"$f":"'DNSP Inputs O & M'!$F$34","v":86},null,{"$f":"AV127*AW127","v":405.06},{"$f":"AY127/'DNSP Inputs O & M'!$F$25*0.8","v":81.012},{"$f":"(AZ127+AZ128+AZ129)/AW127","v":3.101529134138421},null,{"$f":"'DNSP Inputs O & M'!$F$28*(1+'DNSP Inputs O & M'!$F$11)","v":4.9455},{"$f":"'DNSP Inputs O & M'!$F$35","v":72},null,{"$f":"BC127*BD127","v":356.07600000000002},{"$f":"BF127/'DNSP Inputs O & M'!$F$25*0.8","v":71.21520000000001},{"$f":"(BG127+BG128+BG129)/BD127","v":3.256605590845342},null,{"$f":"'DNSP Inputs O & M'!$F$28*(1+'DNSP Inputs O & M'!$F$11)","v":4.9455},{"$f":"'DNSP Inputs O & M'!$F$36","v":60},null,{"$f":"BJ127*BK127","v":296.73},{"$f":"BM127/'DNSP Inputs O & M'!$F$25*0.8","v":59.346000000000004},{"$f":"(BN127+BN128+BN129)/BK127","v":3.2566055908453415},null,null,null,{"$f":"'DNSP Inputs O & M'!$G$28","v":4.71},{"$f":"'DNSP Inputs O & M'!$G$34","v":86},null,{"$f":"BS127*BT127","v":405.06},{"$f":"BV127/'DNSP Inputs O & M'!$G$25*0.8","v":81.012},{"$f":"(BW127+BW128+BW129)/BT127","v":3.101529134138421},null,{"$f":"'DNSP Inputs O & M'!$G$28*(1+'DNSP Inputs O & M'!$G$11)","v":4.9455},{"$f":"'DNSP Inputs O & M'!$G$35","v":72},null,{"$f":"BZ127*CA127","v":356.07600000000002},{"$f":"CC127/'DNSP Inputs O & M'!$G$25*0.8","v":71.21520000000001},{"$f":"(CD127+CD128+CD129)/CA127","v":3.256605590845342},null,{"$f":"'DNSP Inputs O & M'!$G$28*(1+'DNSP Inputs O & M'!$G$11)","v":4.9455},{"$f":"'DNSP Inputs O & M'!$G$36","v":60},null,{"$f":"CG127*CH127","v":296.73},{"$f":"CJ127/'DNSP Inputs O & M'!$G$25*0.8","v":59.346000000000004},{"$f":"(CK127+CK128+CK129)/CH127","v":3.2566055908453415},null,null,null,{"$f":"'DNSP Inputs O & M'!$H$28","v":4.71},{"$f":"'DNSP Inputs O & M'!$H$34","v":86},null,{"$f":"CP127*CQ127","v":405.06},{"$f":"CS127/'DNSP Inputs O & M'!$H$25*0.8","v":81.012},{"$f":"(CT127+CT128+CT129)/CQ127","v":3.101529134138421},null,{"$f":"'DNSP Inputs O & M'!$H$28*(1+'DNSP Inputs O & M'!$H$11)","v":4.9455},{"$f":"'DNSP Inputs O & M'!$H$35","v":72},null,{"$f":"CW127*CX127","v":356.07600000000002},{"$f":"CZ127/'DNSP Inputs O & M'!$H$25*0.8","v":71.21520000000001},{"$f":"(DA127+DA128+DA129)/CX127","v":3.256605590845342},null,{"$f":"'DNSP Inputs O & M'!$H$28*(1+'DNSP Inputs O & M'!$H$11)","v":4.9455},{"$f":"'DNSP Inputs O & M'!$H$36","v":60},null,{"$f":"DD127*DE127","v":296.73},{"$f":"DG127/'DNSP Inputs O & M'!$H$25*0.8","v":59.346000000000004},{"$f":"(DH127+DH128+DH129)/DE127","v":3.2566055908453415}]
["PE cell",{"$f":"'DNSP Inputs O & M'!$D$29","v":15.120000000000001},{"$f":"C127*'DNSP Inputs O & M'!$D$25/'DNSP Inputs O & M'!$D$26","v":43},null,{"$f":"B128*C128","v":650.16000000000008},{"$f":"E128/'DNSP Inputs O & M'!$D$25","v":162.54000000000002},null,null,{"$f":"'DNSP Inputs O & M'!$D$29*(1+'DNSP Inputs O & M'!$D$11)","v":15.876000000000001},{"$f":"J127*'DNSP Inputs O & M'!$D$25/'DNSP Inputs O & M'!$D$26","v":36},null,{"$f":"I128*J128","v":571.53600000000006},{"$f":"L128/'DNSP Inputs O & M'!$D$25","v":142.88400000000001},null,null,{"$f":"'DNSP Inputs O & M'!$D$29*(1+'DNSP Inputs O & M'!$D$11)","v":15.876000000000001},{"$f":"Q127*'DNSP Inputs O & M'!$D$25/'DNSP Inputs O & M'!$D$26","v":30},null,{"$f":"P128*Q128","v":476.28000000000003},{"$f":"S128/'DNSP Inputs O & M'!$D$25","v":119.07000000000001},null,null,null,null,{"$f":"'DNSP Inputs O & M'!$E$29","v":15.120000000000001},{"$f":"Z127*'DNSP Inputs O & M'!$E$25/'DNSP Inputs O & M'!$E$26","v":43},null,{"$f":"Y128*Z128","v":650.16000000000008},{"$f":"AB128/'DNSP Inputs O & M'!$E$25","v":162.54000000000002},null,null,{"$f":"'DNSP Inputs O & M'!$E$29*(1+'DNSP Inputs O & M'!$E$11)","v":15.876000000000001},{"$f":"AG127*'DNSP Inputs O & M'!$E$25/'DNSP Inputs O & M'!$E$26","v":36},null,{"$f":"AF128*AG128","v":571.53600000000006},{"$f":"AI128/'DNSP Inputs O & M'!$E$25","v":142.88400000000001},null,null,{"$f":"'DNSP Inputs O & M'!$E$29*(1+'DNSP Inputs O & M'!$E$11)","v":15.876000000000001},{"$f":"AN127*'DNSP Inputs O & M'!$E$25/'DNSP Inputs O & M'!$E$26","v":30},null,{"$f":"AM128*AN128","v":476.28000000000003},{"$f":"AP128/'DNSP Inputs O & M'!$E$25","v":119.07000000000001},null,null,null,null,{"$f":"'DNSP Inputs O & M'!$F$29","v":15.120000000000001},{"$f":"AW127*'DNSP Inputs O & M'!$F$25/'DNSP Inputs O & M'!$F$26","v":43},null,{"$f":"AV128*AW128","v":650.16000000000008},{"$f":"AY128/'DNSP Inputs O & M'!$F$25","v":162.54000000000002},null,null,{"$f":"'DNSP Inputs O & M'!$F$29*(1+'DNSP Inputs O & M'!$F$11)","v":15.876000000000001},{"$f":"BD127*'DNSP Inputs O & M'!$F$25/'DNSP Inputs O & M'!$F$26","v":36},null,{"$f":"BC128*BD128","v":571.53600000000006},{"$f":"BF128/'DNSP Inputs O & M'!$F$25","v":142.88400000000001},null,null,{"$f":"'DNSP Inputs O & M'!$F$29*(1+'DNSP Inputs O & M'!$F$11)","v":15.876000000000001},{"$f":"BK127*'DNSP Inputs O & M'!$F$25/'DNSP Inputs O & M'!$F$26","v":30},null,{"$f":"BJ128*BK128","v":476.28000000000003},{"$f":"BM128/'DNSP Inputs O & M'!$F$25","v":119.07000000000001},null,null,null,null,{"$f":"'DNSP Inputs O & M'!$G$29","v":15.120000000000001},{"$f":"BT127*'DNSP Inputs O & M'!$G$25/'DNSP Inputs O & M'!$G$26","v":43},null,{"$f":"BS128*BT128","v":650.16000000000008},{"$f":"BV128/'DNSP Inputs O & M'!$G$25","v":162.54000000000002},null,null,{"$f":"'DNSP Inputs O & M'!$G$29*(1+'DNSP Inputs O & M'!$G$11)","v":15.876000000000001},{"$f":"CA127*'DNSP Inputs O & M'!$G$25/'DNSP Inputs O & M'!$G$26","v":36},null,{"$f":"BZ128*CA128","v":571.53600000000006},{"$f":"CC128/'DNSP Inputs O & M'!$G$25","v":142.88400000000001},null,null,{"$f":"'DNSP Inputs O & M'!$G$29*(1+'DNSP Inputs O & M'!$G$11)","v":15.876000000000001},{"$f":"CH127*'DNSP Inputs O & M'!$G$25/'DNSP Inputs O & M'!$G$26","v":30},null,{"$f":"CG128*CH128","v":476.28000000000003},{"$f":"CJ128/'DNSP Inputs O & M'!$G$25","v":119.07000000000001},null,null,null,null,{"$f":"'DNSP Inputs O & M'!$H$29","v":15.120000000000001},{"$f":"CQ127*'DNSP Inputs O & M'!$H$25/'DNSP Inputs O & M'!$H$26","v":43},null,{"$f":"CP128*CQ128","v":650.16000000000008},{"$f":"CS128/'DNSP Inputs O & M'!$H$25","v":162.54000000000002},null,null,{"$f":"'DNSP Inputs O & M'!$H$29*(1+'DNSP Inputs O & M'!$H$11)","v":15.876000000000001},{"$f":"CX127*'DNSP Inputs O & M'!$H$25/'DNSP Inputs O & M'!$H$26","v":36},null,{"$f":"CW128*CX128","v":571.53600000000006},{"$f":"CZ128/'DNSP Inputs O & M'!$H$25","v":142.88400000000001},null,null,{"$f":"'DNSP Inputs O & M'!$H$29*(1+'DNSP Inputs O & M'!$H$11)","v":15.876000000000001},{"$f":"DE127*'DNSP Inputs O & M'!$H$25/'DNSP Inputs O & M'!$H$26","v":30},null,{"$f":"DD128*DE128","v":476.28000000000003},{"$f":"DG128/'DNSP Inputs O & M'!$H$25","v":119.07000000000001}]
["Miscellaneous",{"$f":"'DNSP Inputs O & M'!$D$31","v":1.3476456706921032},{"$f":"'DNSP Inputs O & M'!$D$34","v":86},null,{"$f":"B129*C129","v":115.89752767952088},{"$f":"E129/'DNSP Inputs O & M'!$D$25*0.8","v":23.179505535904177},null,null,{"$f":"'DNSP Inputs O & M'!$D$31*(1+'DNSP Inputs O & M'!$D$11)","v":1.4150279542267084},{"$f":"'DNSP Inputs O & M'!$D$35","v":72},null,{"$f":"I129*J129","v":101.882012704323},{"$f":"L129/'DNSP Inputs O & M'!$D$25*0.8","v":20.376402540864603},null,null,{"$f":"'DNSP Inputs O & M'!$D$31*(1+'DNSP Inputs O & M'!$D$11)","v":1.4150279542267084},{"$f":"'DNSP Inputs O & M'!$D$36","v":60},null,{"$f":"P129*Q129","v":84.9016772536025},{"$f":"S129/'DNSP Inputs O & M'!$D$25*0.8","v":16.980335450720499},null,null,null,null,{"$f":"'DNSP Inputs O & M'!$E$31","v":1.3476456706921032},{"$f":"'DNSP Inputs O & M'!$E$34","v":86},null,{"$f":"Y129*Z129","v":115.89752767952088},{"$f":"AB129/'DNSP Inputs O & M'!$E$25*0.8","v":23.179505535904177},null,null,{"$f":"'DNSP Inputs O & M'!$E$31*(1+'DNSP Inputs O & M'!$E$11)","v":1.4150279542267084},{"$f":"'DNSP Inputs O & M'!$E$35","v":72},null,{"$f":"AF129*AG129","v":101.882012704323},{"$f":"AI129/'DNSP Inputs O & M'!$E$25*0.8","v":20.376402540864603},null,null,{"$f":"'DNSP Inputs O & M'!$E$31*(1+'DNSP Inputs O & M'!$E$11)","v":1.4150279542267084},{"$f":"'DNSP Inputs O & M'!$E$36","v":60},null,{"$f":"AM129*AN129","v":84.9016772536025},{"$f":"AP129/'DNSP Inputs O & M'!$E$25*0.8","v":16.980335450720499},null,null,null,null,{"$f":"'DNSP Inputs O & M'!$F$31","v":1.3476456706921032},{"$f":"'DNSP Inputs O & M'!$F$34","v":86},null,{"$f":"AV129*AW129","v":115.89752767952088},{"$f":"AY129/'DNSP Inputs O & M'!$F$25*0.8","v":23.179505535904177},null,null,{"$f":"'DNSP Inputs O & M'!$F$31*(1+'DNSP Inputs O & M'!$F$11)","v":1.4150279542267084},{"$f":"'DNSP Inputs O & M'!$F$35","v":72},null,{"$f":"BC129*BD129","v":101.882012704323},{"$f":"BF129/'DNSP Inputs O & M'!$F$25*0.8","v":20.376402540864603},null,null,{"$f":"'DNSP Inputs O & M'!$F$31*(1+'DNSP Inputs O & M'!$F$11)","v":1.4150279542267084},{"$f":"'DNSP Inputs O & M'!$F$36","v":60},null,{"$f":"BJ129*BK129","v":84.9016772536025},{"$f":"BM129/'DNSP Inputs O & M'!$F$25*0.8","v":16.980335450720499},null,null,null,null,{"$f":"'DNSP Inputs O & M'!$G$31","v":1.3476456706921032},{"$f":"'DNSP Inputs O & M'!$G$34","v":86},null,{"$f":"BS129*BT129","v":115.89752767952088},{"$f":"BV129/'DNSP Inputs O & M'!$G$25*0.8","v":23.179505535904177},null,null,{"$f":"'DNSP Inputs O & M'!$G$31*(1+'DNSP Inputs O & M'!$G$11)","v":1.4150279542267084},{"$f":"'DNSP Inputs O & M'!$G$35","v":72},null,{"$f":"BZ129*CA129","v":101.882012704323},{"$f":"CC129/'DNSP Inputs O & M'!$G$25*0.8","v":20.376402540864603},null,null,{"$f":"'DNSP Inputs O & M'!$G$31*(1+'DNSP Inputs O & M'!$G$11)","v":1.4150279542267084},{"$f":"'DNSP Inputs O & M'!$G$36","v":60},null,{"$f":"CG129*CH129","v":84.9016772536025},{"$f":"CJ129/'DNSP Inputs O & M'!$G$25*0.8","v":16.980335450720499},null,null,null,null,{"$f":"'DNSP Inputs O & M'!$H$31","v":1.3476456706921032},{"$f":"'DNSP Inputs O & M'!$H$34","v":86},null,{"$f":"CP129*CQ129","v":115.89752767952088},{"$f":"CS129/'DNSP Inputs O & M'!$H$25*0.8","v":23.179505535904177},null,null,{"$f":"'DNSP Inputs O & M'!$H$31*(1+'DNSP Inputs O & M'!$H$11)","v":1.4150279542267084},{"$f":"'DNSP Inputs O & M'!$H$35","v":72},null,{"$f":"CW129*CX129","v":101.882012704323},{"$f":"CZ129/'DNSP Inputs O & M'!$H$25*0.8","v":20.376402540864603},null,null,{"$f":"'DNSP Inputs O & M'!$H$31*(1+'DNSP Inputs O & M'!$H$11)","v":1.4150279542267084},{"$f":"'DNSP Inputs O & M'!$H$36","v":60},null,{"$f":"DD129*DE129","v":84.9016772536025},{"$f":"DG129/'DNSP Inputs O & M'!$H$25*0.8","v":16.980335450720499}]
["Materials - repair of faults"]
["Lamp",{"$f":"'DNSP Inputs O & M'!$D$28","v":4.71},{"$f":"'DNSP Inputs O & M'!$D$37*'DNSP Inputs O & M'!$D$40","v":17.28},null,{"$f":"B131*C131","v":81.388800000000003},{"$f":"(E131+E132+E133+E134)/'DNSP Inputs O & M'!$D$37","v":42.483645670692106},{"$f":"F131*D116","v":2.062246458175681},null,{"$f":"'DNSP Inputs O & M'!$D$28*(1+'DNSP Inputs O & M'!$D$11)","v":4.9455},{"$f":"'DNSP Inputs O & M'!$D$38*'DNSP Inputs O & M'!$D$40","v":14.399999999999999},null,{"$f":"I131*J131","v":71.215199999999996},{"$f":"(L131+L132+L133+L134)/'DNSP Inputs O & M'!$D$38","v":44.607827954226707},{"$f":"M131*D116","v":2.165358781084465},null,{"$f":"'DNSP Inputs O & M'!$D$28*(1+'DNSP Inputs O & M'!$D$11)","v":4.9455},{"$f":"'DNSP Inputs O & M'!$D$39*'DNSP Inputs O & M'!$D$40","v":11.52},null,{"$f":"P131*Q131","v":56.972159999999995},{"$f":"(S131+S132+S133+S134)/'DNSP Inputs O & M'!$D$39","v":44.607827954226707},{"$f":"T131*D116","v":2.165358781084465},null,null,null,{"$f":"'DNSP Inputs O & M'!$E$28","v":4.71},{"$f":"'DNSP Inputs O & M'!$E$37*'DNSP Inputs O & M'!$E$40","v":17.28},null,{"$f":"Y131*Z131","v":81.388800000000003},{"$f":"(AB131+AB132+AB133+AB134)/'DNSP Inputs O & M'!$E$37","v":42.483645670692106},{"$f":"AC131*AA116","v":2.062246458175681},null,{"$f":"'DNSP Inputs O & M'!$E$28*(1+'DNSP Inputs O & M'!$E$11)","v":4.9455},{"$f":"'DNSP Inputs O & M'!$E$38*'DNSP Inputs O & M'!$E$40","v":14.399999999999999},null,{"$f":"AF131*AG131","v":71.215199999999996},{"$f":"(AI131+AI132+AI133+AI134)/'DNSP Inputs O & M'!$E$38","v":44.607827954226707},{"$f":"AJ131*AA116","v":2.165358781084465},null,{"$f":"'DNSP Inputs O & M'!$E$28*(1+'DNSP Inputs O & M'!$E$11)","v":4.9455},{"$f":"'DNSP Inputs O & M'!$E$39*'DNSP Inputs O & M'!$E$40","v":11.52},null,{"$f":"AM131*AN131","v":56.972159999999995},{"$f":"(AP131+AP132+AP133+AP134)/'DNSP Inputs O & M'!$E$39","v":44.607827954226707},{"$f":"AQ131*AA116","v":2.165358781084465},null,null,null,{"$f":"'DNSP Inputs O & M'!$F$28","v":4.71},{"$f":"'DNSP Inputs O & M'!$F$37*'DNSP Inputs O & M'!$F$40","v":17.28},null,{"$f":"AV131*AW131","v":81.388800000000003},{"$f":"(AY131+AY132+AY133+AY134)/'DNSP Inputs O & M'!$F$37","v":42.483645670692106},{"$f":"AZ131*AX116","v":2.062246458175681},null,{"$f":"'DNSP Inputs O & M'!$F$28*(1+'DNSP Inputs O & M'!$F$11)","v":4.9455},{"$f":"'DNSP Inputs O & M'!$F$38*'DNSP Inputs O & M'!$F$40","v":14.399999999999999},null,{"$f":"BC131*BD131","v":71.215199999999996},{"$f":"(BF131+BF132+BF133+BF134)/'DNSP Inputs O & M'!$F$38","v":44.607827954226707},{"$f":"BG131*AX116","v":2.165358781084465},null,{"$f":"'DNSP Inputs O & M'!$F$28*(1+'DNSP Inputs O & M'!$F$11)","v":4.9455},{"$f":"'DNSP Inputs O & M'!$F$39*'DNSP Inputs O & M'!$F$40","v":11.52},null,{"$f":"BJ131*BK131","v":56.972159999999995},{"$f":"(BM131+BM132+BM133+BM134)/'DNSP Inputs O & M'!$F$39","v":44.607827954226707},{"$f":"BN131*AX116","v":2.165358781084465},null,null,null,{"$f":"'DNSP Inputs O & M'!$G$28","v":4.71},{"$f":"'DNSP Inputs O & M'!$G$37*'DNSP Inputs O & M'!$G$40","v":17.28},null,{"$f":"BS131*BT131","v":81.388800000000003},{"$f":"(BV131+BV132+BV133+BV134)/'DNSP Inputs O & M'!$G$37","v":42.483645670692106},{"$f":"BW131*BU116","v":2.062246458175681},null,{"$f":"'DNSP Inputs O & M'!$G$28*(1+'DNSP Inputs O & M'!$G$11)","v":4.9455},{"$f":"'DNSP Inputs O & M'!$G$38*'DNSP Inputs O & M'!$G$40","v":14.399999999999999},null,{"$f":"BZ131*CA131","v":71.215199999999996},{"$f":"(CC131+CC132+CC133+CC134)/'DNSP Inputs O & M'!$G$38","v":44.607827954226707},{"$f":"CD131*BU116","v":2.165358781084465},null,{"$f":"'DNSP Inputs O & M'!$G$28*(1+'DNSP Inputs O & M'!$G$11)","v":4.9455},{"$f":"'DNSP Inputs O & M'!$G$39*'DNSP Inputs O & M'!$G$40","v":11.52},null,{"$f":"CG131*CH131","v":56.972159999999995},{"$f":"(CJ131+CJ132+CJ133+CJ134)/'DNSP Inputs O & M'!$G$39","v":44.607827954226707},{"$f":"CK131*BU116","v":2.165358781084465},null,null,null,{"$f":"'DNSP Inputs O & M'!$H$28","v":4.71},{"$f":"'DNSP Inputs O & M'!$H$37*'DNSP Inputs O & M'!$H$40","v":17.28},null,{"$f":"CP131*CQ131","v":81.388800000000003},{"$f":"(CS131+CS132+CS133+CS134)/'DNSP Inputs O & M'!$H$37","v":42.483645670692106},{"$f":"CT131*CR116","v":2.062246458175681},null,{"$f":"'DNSP Inputs O & M'!$H$28*(1+'DNSP Inputs O & M'!$H$11)","v":4.9455},{"$f":"'DNSP Inputs O & M'!$H$38*'DNSP Inputs O & M'!$H$40","v":14.399999999999999},null,{"$f":"CW131*CX131","v":71.215199999999996},{"$f":"(CZ131+CZ132+CZ133+CZ134)/'DNSP Inputs O & M'!$H$38","v":44.607827954226707},{"$f":"DA131*CR116","v":2.165358781084465},null,{"$f":"'DNSP Inputs O & M'!$H$28*(1+'DNSP Inputs O & M'!$H$11)","v":4.9455},{"$f":"'DNSP Inputs O & M'!$H$39*'DNSP Inputs O & M'!$H$40","v":11.52},null,{"$f":"DD131*DE131","v":56.972159999999995},{"$f":"(DG131+DG132+DG133+DG134)/'DNSP Inputs O & M'!$H$39","v":44.607827954226707},{"$f":"DH131*CR116","v":2.165358781084465}]
["PE cell",{"$f":"'DNSP Inputs O & M'!$D$29","v":15.120000000000001},{"$f":"'DNSP Inputs O & M'!$D$37*'DNSP Inputs O & M'!$D$41","v":14.4},null,{"$f":"B132*C132","v":217.72800000000001},null,null,null,{"$f":"'DNSP Inputs O & M'!$D$29*(1+'DNSP Inputs O & M'!$D$11)","v":15.876000000000001},{"$f":"'DNSP Inputs O & M'!$D$38*'DNSP Inputs O & M'!$D$41","v":12},null,{"$f":"I132*J132","v":190.512},null,null,null,{"$f":"'DNSP Inputs O & M'!$D$29*(1+'DNSP Inputs O & M'!$D$11)","v":15.876000000000001},{"$f":"'DNSP Inputs O & M'!$D$39*'DNSP Inputs O & M'!$D$41","v":9.6},null,{"$f":"P132*Q132","v":152.40960000000001},null,null,null,null,null,{"$f":"'DNSP Inputs O & M'!$E$29","v":15.120000000000001},{"$f":"'DNSP Inputs O & M'!$E$37*'DNSP Inputs O & M'!$E$41","v":14.4},null,{"$f":"Y132*Z132","v":217.72800000000001},null,null,null,{"$f":"'DNSP Inputs O & M'!$E$29*(1+'DNSP Inputs O & M'!$E$11)","v":15.876000000000001},{"$f":"'DNSP Inputs O & M'!$E$38*'DNSP Inputs O & M'!$E$41","v":12},null,{"$f":"AF132*AG132","v":190.512},null,null,null,{"$f":"'DNSP Inputs O & M'!$E$29*(1+'DNSP Inputs O & M'!$E$11)","v":15.876000000000001},{"$f":"'DNSP Inputs O & M'!$E$39*'DNSP Inputs O & M'!$E$41","v":9.6},null,{"$f":"AM132*AN132","v":152.40960000000001},null,null,null,null,null,{"$f":"'DNSP Inputs O & M'!$F$29","v":15.120000000000001},{"$f":"'DNSP Inputs O & M'!$F$37*'DNSP Inputs O & M'!$F$41","v":14.4},null,{"$f":"AV132*AW132","v":217.72800000000001},null,null,null,{"$f":"'DNSP Inputs O & M'!$F$29*(1+'DNSP Inputs O & M'!$F$11)","v":15.876000000000001},{"$f":"'DNSP Inputs O & M'!$F$38*'DNSP Inputs O & M'!$F$41","v":12},null,{"$f":"BC132*BD132","v":190.512},null,null,null,{"$f":"'DNSP Inputs O & M'!$F$29*(1+'DNSP Inputs O & M'!$F$11)","v":15.876000000000001},{"$f":"'DNSP Inputs O & M'!$F$39*'DNSP Inputs O & M'!$F$41","v":9.6},null,{"$f":"BJ132*BK132","v":152.40960000000001},null,null,null,null,null,{"$f":"'DNSP Inputs O & M'!$G$29","v":15.120000000000001},{"$f":"'DNSP Inputs O & M'!$G$37*'DNSP Inputs O & M'!$G$41","v":14.4},null,{"$f":"BS132*BT132","v":217.72800000000001},null,null,null,{"$f":"'DNSP Inputs O & M'!$G$29*(1+'DNSP Inputs O & M'!$G$11)","v":15.876000000000001},{"$f":"'DNSP Inputs O & M'!$G$38*'DNSP Inputs O & M'!$G$41","v":12},null,{"$f":"BZ132*CA132","v":190.512},null,null,null,{"$f":"'DNSP Inputs O & M'!$G$29*(1+'DNSP Inputs O & M'!$G$11)","v":15.876000000000001},{"$f":"'DNSP Inputs O & M'!$G$39*'DNSP Inputs O & M'!$G$41","v":9.6},null,{"$f":"CG132*CH132","v":152.40960000000001},null,null,null,null,null,{"$f":"'DNSP Inputs O & M'!$H$29","v":15.120000000000001},{"$f":"'DNSP Inputs O & M'!$H$37*'DNSP Inputs O & M'!$H$41","v":14.4},null,{"$f":"CP132*CQ132","v":217.72800000000001},null,null,null,{"$f":"'DNSP Inputs O & M'!$H$29*(1+'DNSP Inputs O & M'!$H$11)","v":15.876000000000001},{"$f":"'DNSP Inputs O & M'!$H$38*'DNSP Inputs O & M'!$H$41","v":12},null,{"$f":"CW132*CX132","v":190.512},null,null,null,{"$f":"'DNSP Inputs O & M'!$H$29*(1+'DNSP Inputs O & M'!$H$11)","v":15.876000000000001},{"$f":"'DNSP Inputs O & M'!$H$39*'DNSP Inputs O & M'!$H$41","v":9.6},null,{"$f":"DD132*DE132","v":152.40960000000001}]
["Luminaire",{"$f":"'DNSP Inputs O & M'!$D$30","v":205},{"$f":"'DNSP Inputs O & M'!$D$37*'DNSP Inputs O & M'!$D$42","v":4.32},null,{"$f":"B133*C133","v":885.6},null,null,null,{"$f":"'DNSP Inputs O & M'!$D$30*(1+'DNSP Inputs O & M'!$D$11)","v":215.25},{"$f":"'DNSP Inputs O & M'!$D$38*'DNSP Inputs O & M'!$D$42","v":3.5999999999999996},null,{"$f":"I133*J133","v":774.9},null,null,null,{"$f":"'DNSP Inputs O & M'!$D$30*(1+'DNSP Inputs O & M'!$D$11)","v":215.25},{"$f":"'DNSP Inputs O & M'!$D$39*'DNSP Inputs O & M'!$D$42","v":2.88},null,{"$f":"P133*Q133","v":619.91999999999996},null,null,null,null,null,{"$f":"'DNSP Inputs O & M'!$E$30","v":205},{"$f":"'DNSP Inputs O & M'!$E$37*'DNSP Inputs O & M'!$E$42","v":4.32},null,{"$f":"Y133*Z133","v":885.6},null,null,null,{"$f":"'DNSP Inputs O & M'!$E$30*(1+'DNSP Inputs O & M'!$E$11)","v":215.25},{"$f":"'DNSP Inputs O & M'!$E$38*'DNSP Inputs O & M'!$E$42","v":3.5999999999999996},null,{"$f":"AF133*AG133","v":774.9},null,null,null,{"$f":"'DNSP Inputs O & M'!$E$30*(1+'DNSP Inputs O & M'!$E$11)","v":215.25},{"$f":"'DNSP Inputs O & M'!$E$39*'DNSP Inputs O & M'!$E$42","v":2.88},null,{"$f":"AM133*AN133","v":619.91999999999996},null,null,null,null,null,{"$f":"'DNSP Inputs O & M'!$F$30","v":205},{"$f":"'DNSP Inputs O & M'!$F$37*'DNSP Inputs O & M'!$F$42","v":4.32},null,{"$f":"AV133*AW133","v":885.6},null,null,null,{"$f":"'DNSP Inputs O & M'!$F$30*(1+'DNSP Inputs O & M'!$F$11)","v":215.25},{"$f":"'DNSP Inputs O & M'!$F$38*'DNSP Inputs O & M'!$F$42","v":3.5999999999999996},null,{"$f":"BC133*BD133","v":774.9},null,null,null,{"$f":"'DNSP Inputs O & M'!$F$30*(1+'DNSP Inputs O & M'!$F$11)","v":215.25},{"$f":"'DNSP Inputs O & M'!$F$39*'DNSP Inputs O & M'!$F$42","v":2.88},null,{"$f":"BJ133*BK133","v":619.91999999999996},null,null,null,null,null,{"$f":"'DNSP Inputs O & M'!$G$30","v":205},{"$f":"'DNSP Inputs O & M'!$G$37*'DNSP Inputs O & M'!$G$42","v":4.32},null,{"$f":"BS133*BT133","v":885.6},null,null,null,{"$f":"'DNSP Inputs O & M'!$G$30*(1+'DNSP Inputs O & M'!$G$11)","v":215.25},{"$f":"'DNSP Inputs O & M'!$G$38*'DNSP Inputs O & M'!$G$42","v":3.5999999999999996},null,{"$f":"BZ133*CA133","v":774.9},null,null,null,{"$f":"'DNSP Inputs O & M'!$G$30*(1+'DNSP Inputs O & M'!$G$11)","v":215.25},{"$f":"'DNSP Inputs O & M'!$G$39*'DNSP Inputs O & M'!$G$42","v":2.88},null,{"$f":"CG133*CH133","v":619.91999999999996},null,null,null,null,null,{"$f":"'DNSP Inputs O & M'!$H$30","v":205},{"$f":"'DNSP Inputs O & M'!$H$37*'DNSP Inputs O & M'!$H$42","v":4.32},null,{"$f":"CP133*CQ133","v":885.6},null,null,null,{"$f":"'DNSP Inputs O & M'!$H$30*(1+'DNSP Inputs O & M'!$H$11)","v":215.25},{"$f":"'DNSP Inputs O & M'!$H$38*'DNSP Inputs O & M'!$H$42","v":3.5999999999999996},null,{"$f":"CW133*CX133","v":774.9},null,null,null,{"$f":"'DNSP Inputs O & M'!$H$30*(1+'DNSP Inputs O & M'!$H$11)","v":215.25},{"$f":"'DNSP Inputs O & M'!$H$39*'DNSP Inputs O & M'!$H$42","v":2.88},null,{"$f":"DD133*DE133","v":619.91999999999996}]
["Miscellaneous",{"$f":"'DNSP Inputs O & M'!$D$32","v":13.476456706921033},{"$f":"'DNSP Inputs O & M'!$D$37*'DNSP Inputs O & M'!$D$43","v":2.8800000000000003},null,{"$f":"B134*C134","v":38.812195315932577},null,null,null,{"$f":"'DNSP Inputs O & M'!$D$32*(1+'DNSP Inputs O & M'!$D$11)","v":14.150279542267084},{"$f":"'DNSP Inputs O & M'!$D$38*'DNSP Inputs O & M'!$D$43","v":2.4000000000000004},null,{"$f":"I134*J134","v":33.960670901441006},null,null,null,{"$f":"'DNSP Inputs O & M'!$D$32*(1+'DNSP Inputs O & M'!$D$11)","v":14.150279542267084},{"$f":"'DNSP Inputs O & M'!$D$39*'DNSP Inputs O & M'!$D$43","v":1.92},null,{"$f":"P134*Q134","v":27.168536721152801},null,null,null,null,null,{"$f":"'DNSP Inputs O & M'!$E$32","v":13.476456706921033},{"$f":"'DNSP Inputs O & M'!$E$37*'DNSP Inputs O & M'!$E$43","v":2.8800000000000003},null,{"$f":"Y134*Z134","v":38.812195315932577},null,null,null,{"$f":"'DNSP Inputs O & M'!$E$32*(1+'DNSP Inputs O & M'!$E$11)","v":14.150279542267084},{"$f":"'DNSP Inputs O & M'!$E$38*'DNSP Inputs O & M'!$E$43","v":2.4000000000000004},null,{"$f":"AF134*AG134","v":33.960670901441006},null,null,null,{"$f":"'DNSP Inputs O & M'!$E$32*(1+'DNSP Inputs O & M'!$E$11)","v":14.150279542267084},{"$f":"'DNSP Inputs O & M'!$E$39*'DNSP Inputs O & M'!$E$43","v":1.92},null,{"$f":"AM134*AN134","v":27.168536721152801},null,null,null,null,null,{"$f":"'DNSP Inputs O & M'!$F$32","v":13.476456706921033},{"$f":"'DNSP Inputs O & M'!$F$37*'DNSP Inputs O & M'!$F$43","v":2.8800000000000003},null,{"$f":"AV134*AW134","v":38.812195315932577},null,null,null,{"$f":"'DNSP Inputs O & M'!$F$32*(1+'DNSP Inputs O & M'!$F$11)","v":14.150279542267084},{"$f":"'DNSP Inputs O & M'!$F$38*'DNSP Inputs O & M'!$F$43","v":2.4000000000000004},null,{"$f":"BC134*BD134","v":33.960670901441006},null,null,null,{"$f":"'DNSP Inputs O & M'!$F$32*(1+'DNSP Inputs O & M'!$F$11)","v":14.150279542267084},{"$f":"'DNSP Inputs O & M'!$F$39*'DNSP Inputs O & M'!$F$43","v":1.92},null,{"$f":"BJ134*BK134","v":27.168536721152801},null,null,null,null,null,{"$f":"'DNSP Inputs O & M'!$G$32","v":13.476456706921033},{"$f":"'DNSP Inputs O & M'!$G$37*'DNSP Inputs O & M'!$G$43","v":2.8800000000000003},null,{"$f":"BS134*BT134","v":38.812195315932577},null,null,null,{"$f":"'DNSP Inputs O & M'!$G$32*(1+'DNSP Inputs O & M'!$G$11)","v":14.150279542267084},{"$f":"'DNSP Inputs O & M'!$G$38*'DNSP Inputs O & M'!$G$43","v":2.4000000000000004},null,{"$f":"BZ134*CA134","v":33.960670901441006},null,null,null,{"$f":"'DNSP Inputs O & M'!$G$32*(1+'DNSP Inputs O & M'!$G$11)","v":14.150279542267084},{"$f":"'DNSP Inputs O & M'!$G$39*'DNSP Inputs O & M'!$G$43","v":1.92},null,{"$f":"CG134*CH134","v":27.168536721152801},null,null,null,null,null,{"$f":"'DNSP Inputs O & M'!$H$32","v":13.476456706921033},{"$f":"'DNSP Inputs O & M'!$H$37*'DNSP Inputs O & M'!$H$43","v":2.8800000000000003},null,{"$f":"CP134*CQ134","v":38.812195315932577},null,null,null,{"$f":"'DNSP Inputs O & M'!$H$32*(1+'DNSP Inputs O & M'!$H$11)","v":14.150279542267084},{"$f":"'DNSP Inputs O & M'!$H$38*'DNSP Inputs O & M'!$H$43","v":2.4000000000000004},null,{"$f":"CW134*CX134","v":33.960670901441006},null,null,null,{"$f":"'DNSP Inputs O & M'!$H$32*(1+'DNSP Inputs O & M'!$H$11)","v":14.150279542267084},{"$f":"'DNSP Inputs O & M'!$H$39*'DNSP Inputs O & M'!$H$43","v":1.92},null,{"$f":"DD134*DE134","v":27.168536721152801}]
["Labour - bulk lamp change"]
["Crew costs",{"$f":"'DNSP Inputs O & M'!$D$12","v":111.36223236834823},{"$f":"'DNSP Inputs O & M'!$D$33","v":2},{"$f":"'DNSP Inputs O & M'!$D$17","v":7.5},{"$f":"B136*C136*D136","v":1670.4334855252234},{"$f":"E136/'DNSP Inputs O & M'!$D$25*(C127+C128)/C127*0.8","v":501.13004565756705},{"$f":"(F136+F137)/C127","v":7.1399423913670583},null,{"$f":"'DNSP Inputs O & M'!$D$12","v":111.36223236834823},{"$f":"'DNSP Inputs O & M'!$D$33","v":2},{"$f":"'DNSP Inputs O & M'!$D$17","v":7.5},{"$f":"I136*J136*K136","v":1670.4334855252234},{"$f":"L136/'DNSP Inputs O & M'!$D$25*(J127+J128)/J127*0.8","v":501.13004565756705},{"$f":"(M136+M137)/J127","v":8.9488895230217658},null,{"$f":"'DNSP Inputs O & M'!$D$12","v":111.36223236834823},{"$f":"'DNSP Inputs O & M'!$D$33","v":2},{"$f":"'DNSP Inputs O & M'!$D$17","v":7.5},{"$f":"P136*Q136*R136","v":1670.4334855252234},{"$f":"S136/'DNSP Inputs O & M'!$D$25*(Q127+Q128)/Q127*0.8","v":501.13004565756705},{"$f":"(T136+T137)/Q127","v":10.738667427626119},null,null,null,{"$f":"'DNSP Inputs O & M'!$E$12","v":112.10021456669011},{"$f":"'DNSP Inputs O & M'!$E$33","v":2},{"$f":"'DNSP Inputs O & M'!$E$17","v":7.5},{"$f":"Y136*Z136*AA136","v":1681.5032185003517},{"$f":"AB136/'DNSP Inputs O & M'!$E$25*(Z127+Z128)/Z127*0.8","v":504.45096555010554},{"$f":"(AC136+AC137)/Z127","v":7.1785577389547157},null,{"$f":"'DNSP Inputs O & M'!$E$12","v":112.10021456669011},{"$f":"'DNSP Inputs O & M'!$E$33","v":2},{"$f":"'DNSP Inputs O & M'!$E$17","v":7.5},{"$f":"AF136*AG136*AH136","v":1681.5032185003517},{"$f":"AI136/'DNSP Inputs O & M'!$E$25*(AG127+AG128)/AG127*0.8","v":504.45096555010559},{"$f":"(AJ136+AJ137)/AG127","v":8.9950134104181334},null,{"$f":"'DNSP Inputs O & M'!$E$12","v":112.10021456669011},{"$f":"'DNSP Inputs O & M'!$E$33","v":2},{"$f":"'DNSP Inputs O & M'!$E$17","v":7.5},{"$f":"AM136*AN136*AO136","v":1681.5032185003517},{"$f":"AP136/'DNSP Inputs O & M'!$E$25*(AN127+AN128)/AN127*0.8","v":504.45096555010554},{"$f":"(AQ136+AQ137)/AN127","v":10.794016092501758},null,null,null,{"$f":"'DNSP Inputs O & M'!$F$12","v":112.78304720629164},{"$f":"'DNSP Inputs O & M'!$F$33","v":2},{"$f":"'DNSP Inputs O & M'!$F$17","v":7.5},{"$f":"AV136*AW136*AX136","v":1691.7457080943745},{"$f":"AY136/'DNSP Inputs O & M'!$F$25*(AW127+AW128)/AW127*0.8","v":507.52371242831242},{"$f":"(AZ136+AZ137)/AW127","v":7.2142873538175865},null,{"$f":"'DNSP Inputs O & M'!$F$12","v":112.78304720629164},{"$f":"'DNSP Inputs O & M'!$F$33","v":2},{"$f":"'DNSP Inputs O & M'!$F$17","v":7.5},{"$f":"BC136*BD136*BE136","v":1691.7457080943745},{"$f":"BF136/'DNSP Inputs O & M'!$F$25*(BD127+BD128)/BD127*0.8","v":507.52371242831242},{"$f":"(BG136+BG137)/BD127","v":9.037690450393228},null,{"$f":"'DNSP Inputs O & M'!$F$12","v":112.78304720629164},{"$f":"'DNSP Inputs O & M'!$F$33","v":2},{"$f":"'DNSP Inputs O & M'!$F$17","v":7.5},{"$f":"BJ136*BK136*BL136","v":1691.7457080943745},{"$f":"BM136/'DNSP Inputs O & M'!$F$25*(BK127+BK128)/BK127*0.8","v":507.52371242831242},{"$f":"(BN136+BN137)/BK127","v":10.845228540471874},null,null,null,{"$f":"'DNSP Inputs O & M'!$G$12","v":113.60949069043043},{"$f":"'DNSP Inputs O & M'!$G$33","v":2},{"$f":"'DNSP Inputs O & M'!$G$17","v":7.5},{"$f":"BS136*BT136*BU136","v":1704.1423603564565},{"$f":"BV136/'DNSP Inputs O & M'!$G$25*(BT127+BT128)/BT127*0.8","v":511.24270810693702},{"$f":"(BW136+BW137)/BT127","v":7.2575314896155465},null,{"$f":"'DNSP Inputs O & M'!$G$12","v":113.60949069043043},{"$f":"'DNSP Inputs O & M'!$G$33","v":2},{"$f":"'DNSP Inputs O & M'!$G$17","v":7.5},{"$f":"BZ136*CA136*CB136","v":1704.1423603564565},{"$f":"CC136/'DNSP Inputs O & M'!$G$25*(CA127+CA128)/CA127*0.8","v":511.24270810693702},{"$f":"(CD136+CD137)/CA127","v":9.0893431681519044},null,{"$f":"'DNSP Inputs O & M'!$G$12","v":113.60949069043043},{"$f":"'DNSP Inputs O & M'!$G$33","v":2},{"$f":"'DNSP Inputs O & M'!$G$17","v":7.5},{"$f":"CG136*CH136*CI136","v":1704.1423603564565},{"$f":"CJ136/'DNSP Inputs O & M'!$G$25*(CH127+CH128)/CH127*0.8","v":511.24270810693702},{"$f":"(CK136+CK137)/CH127","v":10.907211801782285},null,null,null,{"$f":"'DNSP Inputs O & M'!$H$12","v":114.68985653357629},{"$f":"'DNSP Inputs O & M'!$H$33","v":2},{"$f":"'DNSP Inputs O & M'!$H$17","v":7.5},{"$f":"CP136*CQ136*CR136","v":1720.3478480036442},{"$f":"CS136/'DNSP Inputs O & M'!$H$25*(CQ127+CQ128)/CQ127*0.8","v":516.10435440109325},{"$f":"(CT136+CT137)/CQ127","v":7.3140622604778285},null,{"$f":"'DNSP Inputs O & M'!$H$12","v":114.68985653357629},{"$f":"'DNSP Inputs O & M'!$H$33","v":2},{"$f":"'DNSP Inputs O & M'!$H$17","v":7.5},{"$f":"CW136*CX136*CY136","v":1720.3478480036442},{"$f":"CZ136/'DNSP Inputs O & M'!$H$25*(CX127+CX128)/CX127*0.8","v":516.10435440109325},{"$f":"(DA136+DA137)/CX127","v":9.1568660333485177},null,{"$f":"'DNSP Inputs O & M'!$H$12","v":114.68985653357629},{"$f":"'DNSP Inputs O & M'!$H$33","v":2},{"$f":"'DNSP Inputs O & M'!$H$17","v":7.5},{"$f":"DD136*DE136*DF136","v":1720.3478480036442},{"$f":"DG136/'DNSP Inputs O & M'!$H$25*(DE127+DE128)/DE127*0.8","v":516.10435440109325},{"$f":"(DH136+DH137)/DE127","v":10.988239240018222}]
["Elevated platform costs",{"$f":"'DNSP Inputs O & M'!$D$14","v":50.18},1,{"$f":"'DNSP Inputs O & M'!$D$17","v":7.5},{"$f":"B137*C137*D137","v":376.35},{"$f":"E137/'DNSP Inputs O & M'!$D$25*(C127+C128)/C127*0.8","v":112.905},null,null,{"$f":"'DNSP Inputs O & M'!$D$15","v":63.64},1,{"$f":"'DNSP Inputs O & M'!$D$17","v":7.5},{"$f":"I137*J137*K137","v":477.3},{"$f":"L137/'DNSP Inputs O & M'!$D$25*(J127+J128)/J127*0.8","v":143.19000000000003},null,null,{"$f":"'DNSP Inputs O & M'!$D$15","v":63.64},1,{"$f":"'DNSP Inputs O & M'!$D$17","v":7.5},{"$f":"P137*Q137*R137","v":477.3},{"$f":"S137/'DNSP Inputs O & M'!$D$25*(Q127+Q128)/Q127*0.8","v":143.19000000000003},null,null,null,null,{"$f":"'DNSP Inputs O & M'!$E$14","v":50.18},1,{"$f":"'DNSP Inputs O & M'!$E$17","v":7.5},{"$f":"Y137*Z137*AA137","v":376.35},{"$f":"AB137/'DNSP Inputs O & M'!$E$25*(Z127+Z128)/Z127*0.8","v":112.905},null,null,{"$f":"'DNSP Inputs O & M'!$E$15","v":63.64},1,{"$f":"'DNSP Inputs O & M'!$E$17","v":7.5},{"$f":"AF137*AG137*AH137","v":477.3},{"$f":"AI137/'DNSP Inputs O & M'!$E$25*(AG127+AG128)/AG127*0.8","v":143.19000000000003},null,null,{"$f":"'DNSP Inputs O & M'!$E$15","v":63.64},1,{"$f":"'DNSP Inputs O & M'!$E$17","v":7.5},{"$f":"AM137*AN137*AO137","v":477.3},{"$f":"AP137/'DNSP Inputs O & M'!$E$25*(AN127+AN128)/AN127*0.8","v":143.19000000000003},null,null,null,null,{"$f":"'DNSP Inputs O & M'!$F$14","v":50.18},1,{"$f":"'DNSP Inputs O & M'!$F$17","v":7.5},{"$f":"AV137*AW137*AX137","v":376.35},{"$f":"AY137/'DNSP Inputs O & M'!$F$25*(AW127+AW128)/AW127*0.8","v":112.905},null,null,{"$f":"'DNSP Inputs O & M'!$F$15","v":63.64},1,{"$f":"'DNSP Inputs O & M'!$F$17","v":7.5},{"$f":"BC137*BD137*BE137","v":477.3},{"$f":"BF137/'DNSP Inputs O & M'!$F$25*(BD127+BD128)/BD127*0.8","v":143.19000000000003},null,null,{"$f":"'DNSP Inputs O & M'!$F$15","v":63.64},1,{"$f":"'DNSP Inputs O & M'!$F$17","v":7.5},{"$f":"BJ137*BK137*BL137","v":477.3},{"$f":"BM137/'DNSP Inputs O & M'!$F$25*(BK127+BK128)/BK127*0.8","v":143.19000000000003},null,null,null,null,{"$f":"'DNSP Inputs O & M'!$G$14","v":50.18},1,{"$f":"'DNSP Inputs O & M'!$G$17","v":7.5},{"$f":"BS137*BT137*BU137","v":376.35},{"$f":"BV137/'DNSP Inputs O & M'!$G$25*(BT127+BT128)/BT127*0.8","v":112.905},null,null,{"$f":"'DNSP Inputs O & M'!$G$15","v":63.64},1,{"$f":"'DNSP Inputs O & M'!$G$17","v":7.5},{"$f":"BZ137*CA137*CB137","v":477.3},{"$f":"CC137/'DNSP Inputs O & M'!$G$25*(CA127+CA128)/CA127*0.8","v":143.19000000000003},null,null,{"$f":"'DNSP Inputs O & M'!$G$15","v":63.64},1,{"$f":"'DNSP Inputs O & M'!$G$17","v":7.5},{"$f":"CG137*CH137*CI137","v":477.3},{"$f":"CJ137/'DNSP Inputs O & M'!$G$25*(CH127+CH128)/CH127*0.8","v":143.19000000000003},null,null,null,null,{"$f":"'DNSP Inputs O & M'!$H$14","v":50.18},1,{"$f":"'DNSP Inputs O & M'!$H$17","v":7.5},{"$f":"CP137*CQ137*CR137","v":376.35},{"$f":"CS137/'DNSP Inputs O & M'!$H$25*(CQ127+CQ128)/CQ127*0.8","v":112.905},null,null,{"$f":"'DNSP Inputs O & M'!$H$15","v":63.64},1,{"$f":"'DNSP Inputs O & M'!$H$17","v":7.5},{"$f":"CW137*CX137*CY137","v":477.3},{"$f":"CZ137/'DNSP Inputs O & M'!$H$25*(CX127+CX128)/CX127*0.8","v":143.19000000000003},null,null,{"$f":"'DNSP Inputs O & M'!$H$15","v":63.64},1,{"$f":"'DNSP Inputs O & M'!$H$17","v":7.5},{"$f":"DD137*DE137*DF137","v":477.3},{"$f":"DG137/'DNSP Inputs O & M'!$H$25*(DE127+DE128)/DE127*0.8","v":143.19000000000003}]
["Labour - repair of faults"]
["Crew costs",{"$f":"'DNSP Inputs O & M'!$D$12","v":111.36223236834823},{"$f":"'DNSP Inputs O & M'!$D$33","v":2},{"$f":"'DNSP Inputs O & M'!$D$17","v":7.5},{"$f":"B139*C139*D139","v":1670.4334855252234},{"$f":"(E139+E140)/'DNSP Inputs O & M'!$D$37","v":71.068871025181366},{"$f":"F139*D116","v":3.4498340536563679},null,{"$f":"'DNSP Inputs O & M'!$D$12","v":111.36223236834823},{"$f":"'DNSP Inputs O & M'!$D$33","v":2},{"$f":"'DNSP Inputs O & M'!$D$17","v":7.5},{"$f":"I139*J139*K139","v":1670.4334855252234},{"$f":"(L139+L140)/'DNSP Inputs O & M'!$D$38","v":89.488895230217636},{"$f":"M139*D116","v":4.3439811796068115},null,{"$f":"'DNSP Inputs O & M'!$D$12","v":111.36223236834823},{"$f":"'DNSP Inputs O & M'!$D$33","v":2},{"$f":"'DNSP Inputs O & M'!$D$17","v":7.5},{"$f":"P139*Q139*R139","v":1670.4334855252234},{"$f":"(S139+S140)/'DNSP Inputs O & M'!$D$39","v":111.86111903777206},{"$f":"T139*D116","v":5.4299764745085151},null,null,null,{"$f":"'DNSP Inputs O & M'!$E$12","v":112.10021456669011},{"$f":"'DNSP Inputs O & M'!$E$33","v":2},{"$f":"'DNSP Inputs O & M'!$E$17","v":7.5},{"$f":"Y139*Z139*AA139","v":1681.5032185003517},{"$f":"(AB139+AB140)/'DNSP Inputs O & M'!$E$37","v":71.453236753484433},{"$f":"AC139*AA116","v":3.4684919830624579},null,{"$f":"'DNSP Inputs O & M'!$E$12","v":112.10021456669011},{"$f":"'DNSP Inputs O & M'!$E$33","v":2},{"$f":"'DNSP Inputs O & M'!$E$17","v":7.5},{"$f":"AF139*AG139*AH139","v":1681.5032185003517},{"$f":"(AI139+AI140)/'DNSP Inputs O & M'!$E$38","v":89.950134104181316},{"$f":"AJ139*AA116","v":4.3663706948941199},null,{"$f":"'DNSP Inputs O & M'!$E$12","v":112.10021456669011},{"$f":"'DNSP Inputs O & M'!$E$33","v":2},{"$f":"'DNSP Inputs O & M'!$E$17","v":7.5},{"$f":"AM139*AN139*AO139","v":1681.5032185003517},{"$f":"(AP139+AP140)/'DNSP Inputs O & M'!$E$39","v":112.43766763022666},{"$f":"AQ139*AA116","v":5.4579633686176505},null,null,null,{"$f":"'DNSP Inputs O & M'!$F$12","v":112.78304720629164},{"$f":"'DNSP Inputs O & M'!$F$33","v":2},{"$f":"'DNSP Inputs O & M'!$F$17","v":7.5},{"$f":"AV139*AW139*AX139","v":1691.7457080943745},{"$f":"(AY139+AY140)/'DNSP Inputs O & M'!$F$37","v":71.808878753276886},{"$f":"AZ139*AX116","v":3.485755601635486},null,{"$f":"'DNSP Inputs O & M'!$F$12","v":112.78304720629164},{"$f":"'DNSP Inputs O & M'!$F$33","v":2},{"$f":"'DNSP Inputs O & M'!$F$17","v":7.5},{"$f":"BC139*BD139*BE139","v":1691.7457080943745},{"$f":"(BF139+BF140)/'DNSP Inputs O & M'!$F$38","v":90.37690450393228},{"$f":"BG139*AX116","v":4.3870870371817547},null,{"$f":"'DNSP Inputs O & M'!$F$12","v":112.78304720629164},{"$f":"'DNSP Inputs O & M'!$F$33","v":2},{"$f":"'DNSP Inputs O & M'!$F$17","v":7.5},{"$f":"BJ139*BK139*BL139","v":1691.7457080943745},{"$f":"(BM139+BM140)/'DNSP Inputs O & M'!$F$39","v":112.97113062991535},{"$f":"BN139*AX116","v":5.4838587964771932},null,null,null,{"$f":"'DNSP Inputs O & M'!$G$12","v":113.60949069043043},{"$f":"'DNSP Inputs O & M'!$G$33","v":2},{"$f":"'DNSP Inputs O & M'!$G$17","v":7.5},{"$f":"BS139*BT139*BU139","v":1704.1423603564565},{"$f":"(BV139+BV140)/'DNSP Inputs O & M'!$G$37","v":72.239318067932516},{"$f":"BW139*BU116","v":3.5066500408507277},null,{"$f":"'DNSP Inputs O & M'!$G$12","v":113.60949069043043},{"$f":"'DNSP Inputs O & M'!$G$33","v":2},{"$f":"'DNSP Inputs O & M'!$G$17","v":7.5},{"$f":"BZ139*CA139*CB139","v":1704.1423603564565},{"$f":"(CC139+CC140)/'DNSP Inputs O & M'!$G$38","v":90.893431681519019},{"$f":"CD139*BU116","v":4.4121603642400435},null,{"$f":"'DNSP Inputs O & M'!$G$12","v":113.60949069043043},{"$f":"'DNSP Inputs O & M'!$G$33","v":2},{"$f":"'DNSP Inputs O & M'!$G$17","v":7.5},{"$f":"CG139*CH139*CI139","v":1704.1423603564565},{"$f":"(CJ139+CJ140)/'DNSP Inputs O & M'!$G$39","v":113.61678960189877},{"$f":"CK139*BU116","v":5.5152004553000546},null,null,null,{"$f":"'DNSP Inputs O & M'!$H$12","v":114.68985653357629},{"$f":"'DNSP Inputs O & M'!$H$33","v":2},{"$f":"'DNSP Inputs O & M'!$H$17","v":7.5},{"$f":"CP139*CQ139*CR139","v":1720.3478480036442},{"$f":"(CS139+CS140)/'DNSP Inputs O & M'!$H$37","v":72.802008611237639},{"$f":"CT139*CR116","v":3.5339642357994081},null,{"$f":"'DNSP Inputs O & M'!$H$12","v":114.68985653357629},{"$f":"'DNSP Inputs O & M'!$H$33","v":2},{"$f":"'DNSP Inputs O & M'!$H$17","v":7.5},{"$f":"CW139*CX139*CY139","v":1720.3478480036442},{"$f":"(CZ139+CZ140)/'DNSP Inputs O & M'!$H$38","v":91.568660333485184},{"$f":"DA139*CR116","v":4.4449373981784603},null,{"$f":"'DNSP Inputs O & M'!$H$12","v":114.68985653357629},{"$f":"'DNSP Inputs O & M'!$H$33","v":2},{"$f":"'DNSP Inputs O & M'!$H$17","v":7.5},{"$f":"DD139*DE139*DF139","v":1720.3478480036442},{"$f":"(DG139+DG140)/'DNSP Inputs O & M'!$H$39","v":114.46082541685648},{"$f":"DH139*CR116","v":5.5561717477230763}]
["Elevated platform costs",{"$f":"'DNSP Inputs O & M'!$D$14","v":50.18},1,{"$f":"'DNSP Inputs O & M'!$D$17","v":7.5},{"$f":"B140*C140*D140","v":376.35},null,null,null,{"$f":"'DNSP Inputs O & M'!$D$15","v":63.64},1,{"$f":"'DNSP Inputs O & M'!$D$17","v":7.5},{"$f":"I140*J140*K140","v":477.3},null,null,null,{"$f":"'DNSP Inputs O & M'!$D$15","v":63.64},1,{"$f":"'DNSP Inputs O & M'!$D$17","v":7.5},{"$f":"P140*Q140*R140","v":477.3},null,null,null,null,null,{"$f":"'DNSP Inputs O & M'!$E$14","v":50.18},1,{"$f":"'DNSP Inputs O & M'!$E$17","v":7.5},{"$f":"Y140*Z140*AA140","v":376.35},null,null,null,{"$f":"'DNSP Inputs O & M'!$E$15","v":63.64},1,{"$f":"'DNSP Inputs O & M'!$E$17","v":7.5},{"$f":"AF140*AG140*AH140","v":477.3},null,null,null,{"$f":"'DNSP Inputs O & M'!$E$15","v":63.64},1,{"$f":"'DNSP Inputs O & M'!$E$17","v":7.5},{"$f":"AM140*AN140*AO140","v":477.3},null,null,null,null,null,{"$f":"'DNSP Inputs O & M'!$F$14","v":50.18},1,{"$f":"'DNSP Inputs O & M'!$F$17","v":7.5},{"$f":"AV140*AW140*AX140","v":376.35},null,null,null,{"$f":"'DNSP Inputs O & M'!$F$15","v":63.64},1,{"$f":"'DNSP Inputs O & M'!$F$17","v":7.5},{"$f":"BC140*BD140*BE140","v":477.3},null,null,null,{"$f":"'DNSP Inputs O & M'!$F$15","v":63.64},1,{"$f":"'DNSP Inputs O & M'!$F$17","v":7.5},{"$f":"BJ140*BK140*BL140","v":477.3},null,null,null,null,null,{"$f":"'DNSP Inputs O & M'!$G$14","v":50.18},1,{"$f":"'DNSP Inputs O & M'!$G$17","v":7.5},{"$f":"BS140*BT140*BU140","v":376.35},null,null,null,{"$f":"'DNSP Inputs O & M'!$G$15","v":63.64},1,{"$f":"'DNSP Inputs O & M'!$G$17","v":7.5},{"$f":"BZ140*CA140*CB140","v":477.3},null,null,null,{"$f":"'DNSP Inputs O & M'!$G$15","v":63.64},1,{"$f":"'DNSP Inputs O & M'!$G$17","v":7.5},{"$f":"CG140*CH140*CI140","v":477.3},null,null,null,null,null,{"$f":"'DNSP Inputs O & M'!$H$14","v":50.18},1,{"$f":"'DNSP Inputs O & M'!$H$17","v":7.5},{"$f":"CP140*CQ140*CR140","v":376.35},null,null,null,{"$f":"'DNSP Inputs O & M'!$H$15","v":63.64},1,{"$f":"'DNSP Inputs O & M'!$H$17","v":7.5},{"$f":"CW140*CX140*CY140","v":477.3},null,null,null,{"$f":"'DNSP Inputs O & M'!$H$15","v":63.64},1,{"$f":"'DNSP Inputs O & M'!$H$17","v":7.5},{"$f":"DD140*DE140*DF140","v":477.3}]
["Other Maintenance and Repair costs",null,null,null,null,null,{"$f":"'DNSP Inputs O & M'!$D$50","v":2.1},null,null,null,null,null,null,{"$f":"'DNSP Inputs O & M'!$D$50","v":2.1},null,null,null,null,null,null,{"$f":"'DNSP Inputs O & M'!$D$50","v":2.1},null,null,null,null,null,null,null,null,{"$f":"'DNSP Inputs O & M'!$E$50","v":2.1},null,null,null,null,null,null,{"$f":"'DNSP Inputs O & M'!$E$50","v":2.1},null,null,null,null,null,null,{"$f":"'DNSP Inputs O & M'!$E$50","v":2.1},null,null,null,null,null,null,null,null,{"$f":"'DNSP Inputs O & M'!$F$50","v":2.1},null,null,null,null,null,null,{"$f":"'DNSP Inputs O & M'!$F$50","v":2.1},null,null,null,null,null,null,{"$f":"'DNSP Inputs O & M'!$F$50","v":2.1},null,null,null,null,null,null,null,null,{"$f":"'DNSP Inputs O & M'!$G$50","v":2.1},null,null,null,null,null,null,{"$f":"'DNSP Inputs O & M'!$G$50","v":2.1},null,null,null,null,null,null,{"$f":"'DNSP Inputs O & M'!$G$50","v":2.1},null,null,null,null,null,null,null,null,{"$f":"'DNSP Inputs O & M'!$H$50","v":2.1},null,null,null,null,null,null,{"$f":"'DNSP Inputs O & M'!$H$50","v":2.1},null,null,null,null,null,null,{"$f":"'DNSP Inputs O & M'!$H$50","v":2.1}]
[]
["Overheads",{"$f":"'DNSP Inputs O & M'!$D$18","v":0.25},null,null,null,null,{"$f":"B143*SUM(G127:G141)","v":4.4633880093343823},null,{"$f":"'DNSP Inputs O & M'!$D$18","v":0.25},null,null,null,null,{"$f":"I143*SUM(N127:N141)","v":5.2037087686395962},null,{"$f":"'DNSP Inputs O & M'!$D$18","v":0.25},null,null,null,null,{"$f":"P143*SUM(U127:U141)","v":5.9226520685161104},null,null,null,{"$f":"'DNSP Inputs O & M'!$E$18","v":0.25},null,null,null,null,{"$f":"Y143*SUM(AD127:AD141)","v":4.4777063285828191},null,{"$f":"'DNSP Inputs O & M'!$E$18","v":0.25},null,null,null,null,{"$f":"AF143*SUM(AK127:AK141)","v":5.2208371193105156},null,{"$f":"'DNSP Inputs O & M'!$E$18","v":0.25},null,null,null,null,{"$f":"AM143*SUM(AR127:AR141)","v":5.943485958262305},null,null,null,{"$f":"'DNSP Inputs O & M'!$F$18","v":0.25},null,null,null,null,{"$f":"AV143*SUM(BA127:BA141)","v":4.4909546369417939},null,{"$f":"'DNSP Inputs O & M'!$F$18","v":0.25},null,null,null,null,{"$f":"BC143*SUM(BH127:BH141)","v":5.2366854648761976},null,{"$f":"'DNSP Inputs O & M'!$F$18","v":0.25},null,null,null,null,{"$f":"BJ143*SUM(BO127:BO141)","v":5.9627629272197193},null,null,null,{"$f":"'DNSP Inputs O & M'!$G$18","v":0.25},null,null,null,null,{"$f":"BS143*SUM(BX127:BX141)","v":4.5069892806950937},null,{"$f":"'DNSP Inputs O & M'!$G$18","v":0.25},null,null,null,null,{"$f":"BZ143*SUM(CE127:CE141)","v":5.2558669760804388},null,{"$f":"'DNSP Inputs O & M'!$G$18","v":0.25},null,null,null,null,{"$f":"CG143*SUM(CL127:CL141)","v":5.9860941572530368},null,null,null,{"$f":"'DNSP Inputs O & M'!$H$18","v":0.25},null,null,null,null,{"$f":"CP143*SUM(CU127:CU141)","v":4.5279505221478349},null,{"$f":"'DNSP Inputs O & M'!$H$18","v":0.25},null,null,null,null,{"$f":"CW143*SUM(DB127:DB141)","v":5.2809419508641966},null,{"$f":"'DNSP Inputs O & M'!$H$18","v":0.25},null,null,null,null,{"$f":"DD143*SUM(DI127:DI141)","v":6.0165938399177765}]
[]
[null,null,null,null,null,null,{"$f":"SUM(G127,G131,G136,G139,G141,G143)","v":22.31694004667191},null,null,null,null,null,null,{"$f":"SUM(N127,N131,N136,N139,N141,N143)","v":26.018543843197982},null,null,null,null,null,null,{"$f":"SUM(U127,U131,U136,U139,U141,U143)","v":29.613260342580553},null,null,null,null,null,null,null,null,{"$f":"SUM(AD127,AD131,AD136,AD139,AD141,AD143)","v":22.388531642914096},null,null,null,null,null,null,{"$f":"SUM(AK127,AK131,AK136,AK139,AK141,AK143)","v":26.104185596552579},null,null,null,null,null,null,{"$f":"SUM(AR127,AR131,AR136,AR139,AR141,AR143)","v":29.717429791311524},null,null,null,null,null,null,null,null,{"$f":"SUM(BA127,BA131,BA136,BA139,BA141,BA143)","v":22.454773184708969},null,null,null,null,null,null,{"$f":"SUM(BH127,BH131,BH136,BH139,BH141,BH143)","v":26.183427324380986},null,null,null,null,null,null,{"$f":"SUM(BO127,BO131,BO136,BO139,BO141,BO143)","v":29.813814636098598},null,null,null,null,null,null,null,null,{"$f":"SUM(BX127,BX131,BX136,BX139,BX141,BX143)","v":22.53494640347547},null,null,null,null,null,null,{"$f":"SUM(CE127,CE131,CE136,CE139,CE141,CE143)","v":26.279334880402196},null,null,null,null,null,null,{"$f":"SUM(CL127,CL131,CL136,CL139,CL141,CL143)","v":29.930470786265182},null,null,null,null,null,null,null,null,{"$f":"SUM(CU127,CU131,CU136,CU139,CU141,CU143)","v":22.639752610739173},null,null,null,null,null,null,{"$f":"SUM(DB127,DB131,DB136,DB139,DB141,DB143)","v":26.404709754320983},null,null,null,null,null,null,{"$f":"SUM(DI127,DI131,DI136,DI139,DI141,DI143)","v":30.082969199588881}]
[]
["Dedicated poles - inspection"]
["Crew costs",{"$f":"'DNSP Inputs O & M'!$D$12","v":111.36223236834823},1,{"$f":"'DNSP Inputs O & M'!$D$17","v":7.5},{"$f":"B148*C148*D148","v":835.21674276261172},{"$f":"(E148+E149+E150)/'DNSP Inputs O & M'!$D$158","v":273.24793569065292},{"$f":"F148/'DNSP Inputs O & M'!$D$159","v":3.6433058092087056},null,{"$f":"'DNSP Inputs O & M'!$D$12","v":111.36223236834823},1,{"$f":"'DNSP Inputs O & M'!$D$17","v":7.5},{"$f":"I148*J148*K148","v":835.21674276261172},{"$f":"(L148+L149+L150)/'DNSP Inputs O & M'!$D$158","v":273.24793569065292},{"$f":"M148/'DNSP Inputs O & M'!$D$159","v":3.6433058092087056},null,{"$f":"'DNSP Inputs O & M'!$D$12","v":111.36223236834823},1,{"$f":"'DNSP Inputs O & M'!$D$17","v":7.5},{"$f":"P148*Q148*R148","v":835.21674276261172},{"$f":"(S148+S149+S150)/'DNSP Inputs O & M'!$D$158","v":273.24793569065292},{"$f":"T148/'DNSP Inputs O & M'!$D$159","v":3.6433058092087056},null,null,null,{"$f":"'DNSP Inputs O & M'!$E$12","v":112.10021456669011},1,{"$f":"'DNSP Inputs O & M'!$E$17","v":7.5},{"$f":"Y148*Z148*AA148","v":840.75160925017587},{"$f":"(AB148+AB149+AB150)/'DNSP Inputs O & M'!$E$158","v":274.63165231254396},{"$f":"AC148/'DNSP Inputs O & M'!$E$159","v":3.6617553641672527},null,{"$f":"'DNSP Inputs O & M'!$E$12","v":112.10021456669011},1,{"$f":"'DNSP Inputs O & M'!$E$17","v":7.5},{"$f":"AF148*AG148*AH148","v":840.75160925017587},{"$f":"(AI148+AI149+AI150)/'DNSP Inputs O & M'!$E$158","v":274.63165231254396},{"$f":"AJ148/'DNSP Inputs O & M'!$E$159","v":3.6617553641672527},null,{"$f":"'DNSP Inputs O & M'!$E$12","v":112.10021456669011},1,{"$f":"'DNSP Inputs O & M'!$E$17","v":7.5},{"$f":"AM148*AN148*AO148","v":840.75160925017587},{"$f":"(AP148+AP149+AP150)/'DNSP Inputs O & M'!$E$158","v":274.63165231254396},{"$f":"AQ148/'DNSP Inputs O & M'!$E$159","v":3.6617553641672527},null,null,null,{"$f":"'DNSP Inputs O & M'!$F$12","v":112.78304720629164},1,{"$f":"'DNSP Inputs O & M'!$F$17","v":7.5},{"$f":"AV148*AW148*AX148","v":845.87285404718727},{"$f":"(AY148+AY149+AY150)/'DNSP Inputs O & M'!$F$158","v":275.91196351179678},{"$f":"AZ148/'DNSP Inputs O & M'!$F$159","v":3.6788261801572903},null,{"$f":"'DNSP Inputs O & M'!$F$12","v":112.78304720629164},1,{"$f":"'DNSP Inputs O & M'!$F$17","v":7.5},{"$f":"BC148*BD148*BE148","v":845.87285404718727},{"$f":"(BF148+BF149+BF150)/'DNSP Inputs O & M'!$F$158","v":275.91196351179678},{"$f":"BG148/'DNSP Inputs O & M'!$F$159","v":3.6788261801572903},null,{"$f":"'DNSP Inputs O & M'!$F$12","v":112.78304720629164},1,{"$f":"'DNSP Inputs O & M'!$F$17","v":7.5},{"$f":"BJ148*BK148*BL148","v":845.87285404718727},{"$f":"(BM148+BM149+BM150)/'DNSP Inputs O & M'!$F$158","v":275.91196351179678},{"$f":"BN148/'DNSP Inputs O & M'!$F$159","v":3.6788261801572903},null,null,null,{"$f":"'DNSP Inputs O & M'!$G$12","v":113.60949069043043},1,{"$f":"'DNSP Inputs O & M'!$G$17","v":7.5},{"$f":"BS148*BT148*BU148","v":852.07118017822825},{"$f":"(BV148+BV149+BV150)/'DNSP Inputs O & M'!$G$158","v":277.46154504455706},{"$f":"BW148/'DNSP Inputs O & M'!$G$159","v":3.6994872672607606},null,{"$f":"'DNSP Inputs O & M'!$G$12","v":113.60949069043043},1,{"$f":"'DNSP Inputs O & M'!$G$17","v":7.5},{"$f":"BZ148*CA148*CB148","v":852.07118017822825},{"$f":"(CC148+CC149+CC150)/'DNSP Inputs O & M'!$G$158","v":277.46154504455706},{"$f":"CD148/'DNSP Inputs O & M'!$G$159","v":3.6994872672607606},null,{"$f":"'DNSP Inputs O & M'!$G$12","v":113.60949069043043},1,{"$f":"'DNSP Inputs O & M'!$G$17","v":7.5},{"$f":"CG148*CH148*CI148","v":852.07118017822825},{"$f":"(CJ148+CJ149+CJ150)/'DNSP Inputs O & M'!$G$158","v":277.46154504455706},{"$f":"CK148/'DNSP Inputs O & M'!$G$159","v":3.6994872672607606},null,null,null,{"$f":"'DNSP Inputs O & M'!$H$12","v":114.68985653357629},1,{"$f":"'DNSP Inputs O & M'!$H$17","v":7.5},{"$f":"CP148*CQ148*CR148","v":860.17392400182212},{"$f":"(CS148+CS149+CS150)/'DNSP Inputs O & M'!$H$158","v":279.48723100045549},{"$f":"CT148/'DNSP Inputs O & M'!$H$159","v":3.7264964133394067},null,{"$f":"'DNSP Inputs O & M'!$H$12","v":114.68985653357629},1,{"$f":"'DNSP Inputs O & M'!$H$17","v":7.5},{"$f":"CW148*CX148*CY148","v":860.17392400182212},{"$f":"(CZ148+CZ149+CZ150)/'DNSP Inputs O & M'!$H$158","v":279.48723100045549},{"$f":"DA148/'DNSP Inputs O & M'!$H$159","v":3.7264964133394067},null,{"$f":"'DNSP Inputs O & M'!$H$12","v":114.68985653357629},1,{"$f":"'DNSP Inputs O & M'!$H$17","v":7.5},{"$f":"DD148*DE148*DF148","v":860.17392400182212},{"$f":"(DG148+DG149+DG150)/'DNSP Inputs O & M'!$H$158","v":279.48723100045549},{"$f":"DH148/'DNSP Inputs O & M'!$H$159","v":3.7264964133394067}]
["Vehicle costs",{"$f":"'DNSP Inputs O & M'!$D$16","v":34.369999999999997},1,{"$f":"'DNSP Inputs O & M'!$D$17","v":7.5},{"$f":"B149*C149*D149","v":257.77499999999998},null,null,null,{"$f":"'DNSP Inputs O & M'!$D$16","v":34.369999999999997},1,{"$f":"'DNSP Inputs O & M'!$D$17","v":7.5},{"$f":"I149*J149*K149","v":257.77499999999998},null,null,null,{"$f":"'DNSP Inputs O & M'!$D$16","v":34.369999999999997},1,{"$f":"'DNSP Inputs O & M'!$D$17","v":7.5},{"$f":"P149*Q149*R149","v":257.77499999999998},null,null,null,null,null,{"$f":"'DNSP Inputs O & M'!$E$16","v":34.369999999999997},1,{"$f":"'DNSP Inputs O & M'!$E$17","v":7.5},{"$f":"Y149*Z149*AA149","v":257.77499999999998},null,null,null,{"$f":"'DNSP Inputs O & M'!$E$16","v":34.369999999999997},1,{"$f":"'DNSP Inputs O & M'!$E$17","v":7.5},{"$f":"AF149*AG149*AH149","v":257.77499999999998},null,null,null,{"$f":"'DNSP Inputs O & M'!$E$16","v":34.369999999999997},1,{"$f":"'DNSP Inputs O & M'!$E$17","v":7.5},{"$f":"AM149*AN149*AO149","v":257.77499999999998},null,null,null,null,null,{"$f":"'DNSP Inputs O & M'!$F$16","v":34.369999999999997},1,{"$f":"'DNSP Inputs O & M'!$F$17","v":7.5},{"$f":"AV149*AW149*AX149","v":257.77499999999998},null,null,null,{"$f":"'DNSP Inputs O & M'!$F$16","v":34.369999999999997},1,{"$f":"'DNSP Inputs O & M'!$F$17","v":7.5},{"$f":"BC149*BD149*BE149","v":257.77499999999998},null,null,null,{"$f":"'DNSP Inputs O & M'!$F$16","v":34.369999999999997},1,{"$f":"'DNSP Inputs O & M'!$F$17","v":7.5},{"$f":"BJ149*BK149*BL149","v":257.77499999999998},null,null,null,null,null,{"$f":"'DNSP Inputs O & M'!$G$16","v":34.369999999999997},1,{"$f":"'DNSP Inputs O & M'!$G$17","v":7.5},{"$f":"BS149*BT149*BU149","v":257.77499999999998},null,null,null,{"$f":"'DNSP Inputs O & M'!$G$16","v":34.369999999999997},1,{"$f":"'DNSP Inputs O & M'!$G$17","v":7.5},{"$f":"BZ149*CA149*CB149","v":257.77499999999998},null,null,null,{"$f":"'DNSP Inputs O & M'!$G$16","v":34.369999999999997},1,{"$f":"'DNSP Inputs O & M'!$G$17","v":7.5},{"$f":"CG149*CH149*CI149","v":257.77499999999998},null,null,null,null,null,{"$f":"'DNSP Inputs O & M'!$H$16","v":34.369999999999997},1,{"$f":"'DNSP Inputs O & M'!$H$17","v":7.5},{"$f":"CP149*CQ149*CR149","v":257.77499999999998},null,null,null,{"$f":"'DNSP Inputs O & M'!$H$16","v":34.369999999999997},1,{"$f":"'DNSP Inputs O & M'!$H$17","v":7.5},{"$f":"CW149*CX149*CY149","v":257.77499999999998},null,null,null,{"$f":"'DNSP Inputs O & M'!$H$16","v":34.369999999999997},1,{"$f":"'DNSP Inputs O & M'!$H$17","v":7.5},{"$f":"DD149*DE149*DF149","v":257.77499999999998}]
["Overheads",{"$f":"'DNSP Inputs O & M'!$D$18","v":0.25},null,null,{"$f":"B150*(E148+E149)","v":273.24793569065292},null,null,null,{"$f":"'DNSP Inputs O & M'!$D$18","v":0.25},null,null,{"$f":"I150*(L148+L149)","v":273.24793569065292},null,null,null,{"$f":"'DNSP Inputs O & M'!$D$18","v":0.25},null,null,{"$f":"P150*(S148+S149)","v":273.24793569065292},null,null,null,null,null,{"$f":"'DNSP Inputs O & M'!$E$18","v":0.25},null,null,{"$f":"Y150*(AB148+AB149)","v":274.63165231254396},null,null,null,{"$f":"'DNSP Inputs O & M'!$E$18","v":0.25},null,null,{"$f":"AF150*(AI148+AI149)","v":274.63165231254396},null,null,null,{"$f":"'DNSP Inputs O & M'!$E$18","v":0.25},null,null,{"$f":"AM150*(AP148+AP149)","v":274.63165231254396},null,null,null,null,null,{"$f":"'DNSP Inputs O & M'!$F$18","v":0.25},null,null,{"$f":"AV150*(AY148+AY149)","v":275.91196351179678},null,null,null,{"$f":"'DNSP Inputs O & M'!$F$18","v":0.25},null,null,{"$f":"BC150*(BF148+BF149)","v":275.91196351179678},null,null,null,{"$f":"'DNSP Inputs O & M'!$F$18","v":0.25},null,null,{"$f":"BJ150*(BM148+BM149)","v":275.91196351179678},null,null,null,null,null,{"$f":"'DNSP Inputs O & M'!$G$18","v":0.25},null,null,{"$f":"BS150*(BV148+BV149)","v":277.46154504455706},null,null,null,{"$f":"'DNSP Inputs O & M'!$G$18","v":0.25},null,null,{"$f":"BZ150*(CC148+CC149)","v":277.46154504455706},null,null,null,{"$f":"'DNSP Inputs O & M'!$G$18","v":0.25},null,null,{"$f":"CG150*(CJ148+CJ149)","v":277.46154504455706},null,null,null,null,null,{"$f":"'DNSP Inputs O & M'!$H$18","v":0.25},null,null,{"$f":"CP150*(CS148+CS149)","v":279.48723100045549},null,null,null,{"$f":"'DNSP Inputs O & M'!$H$18","v":0.25},null,null,{"$f":"CW150*(CZ148+CZ149)","v":279.48723100045549},null,null,null,{"$f":"'DNSP Inputs O & M'!$H$18","v":0.25},null,null,{"$f":"DD150*(DG148+DG149)","v":279.48723100045549}]
[]
[]
[]
[]
["Sodium High Pressure 150 Watt Standard Light Type - Cost build-up"]
[]
["Additional assumptions"]
["Overheads are applied to material and labour components"]
["All costs and charges are exclusive of GST"]
[]
[null,"Urban",null,null,null,null,null,null,"Rural",null,null,null,null,null,null,"Remote",null,null,null,null,null,null,null,null,"Urban",null,null,null,null,null,null,"Rural",null,null,null,null,null,null,"Remote",null,null,null,null,null,null,null,null,"Urban",null,null,null,null,null,null,"Rural",null,null,null,null,null,null,"Remote",null,null,null,null,null,null,null,null,"Urban",null,null,null,null,null,null,"Rural",null,null,null,null,null,null,"Remote",null,null,null,null,null,null,null,null,"Urban",null,null,null,null,null,null,"Rural",null,null,null,null,null,null,"Remote"]
[]
[null,"Unit rate","Number","Hours","Cost","Annualised","Annualised",null,"Unit rate","Number","Hours","Cost","Annualised","Annualised",null,"Unit rate","Number","Hours","Cost","Annualised","Annualised",null,null,null,"Unit rate","Number","Hours","Cost","Annualised","Annualised",null,"Unit rate","Number","Hours","Cost","Annualised","Annualised",null,"Unit rate","Number","Hours","Cost","Annualised","Annualised",null,null,null,"Unit rate","Number","Hours","Cost","Annualised","Annualised",null,"Unit rate","Number","Hours","Cost","Annualised","Annualised",null,"Unit rate","Number","Hours","Cost","Annualised","Annualised",null,null,null,"Unit rate","Number","Hours","Cost","Annualised","Annualised",null,"Unit rate","Number","Hours","Cost","Annualised","Annualised",null,"Unit rate","Number","Hours","Cost","Annualised","Annualised",null,null,null,"Unit rate","Number","Hours","Cost","Annualised","Annualised",null,"Unit rate","Number","Hours","Cost","Annualised","Annualised",null,"Unit rate","Number","Hours","Cost","Annualised","Annualised"]
[null,null,null,null,null," cost","unit cost",null,null,null,null,null," cost","unit cost",null,null,null,null,null," cost","unit cost",null,null,null,null,null,null,null," cost","unit cost",null,null,null,null,null," cost","unit cost",null,null,null,null,null," cost","unit cost",null,null,null,null,null,null,null," cost","unit cost",null,null,null,null,null," cost","unit cost",null,null,null,null,null," cost","unit cost",null,null,null,null,null,null,null," cost","unit cost",null,null,null,null,null," cost","unit cost",null,null,null,null,null," cost","unit cost",null,null,null,null,null,null,null," cost","unit cost",null,null,null,null,null," cost","unit cost",null,null,null,null,null," cost","unit cost"]
["S-HP 150"]
["Materials - bulk lamp change"]
["Lamp",{"$f":"'DNSP Inputs O & M'!$D$28","v":4.71},{"$f":"'DNSP Inputs O & M'!$D$34","v":86},null,{"$f":"B167*C167","v":405.06},{"$f":"E167/'DNSP Inputs O & M'!$D$25*0.8","v":81.012},{"$f":"(F167+F168+F169)/C167","v":3.101529134138421},null,{"$f":"'DNSP Inputs O & M'!$D$28*(1+'DNSP Inputs O & M'!$D$11)","v":4.9455},{"$f":"'DNSP Inputs O & M'!$D$35","v":72},null,{"$f":"I167*J167","v":356.07600000000002},{"$f":"L167/'DNSP Inputs O & M'!$D$25*0.8","v":71.21520000000001},{"$f":"(M167+M168+M169)/J167","v":3.256605590845342},null,{"$f":"'DNSP Inputs O & M'!$D$28*(1+'DNSP Inputs O & M'!$D$11)","v":4.9455},{"$f":"'DNSP Inputs O & M'!$D$36","v":60},null,{"$f":"P167*Q167","v":296.73},{"$f":"S167/'DNSP Inputs O & M'!$D$25*0.8","v":59.346000000000004},{"$f":"(T167+T168+T169)/Q167","v":3.2566055908453415},null,null,null,{"$f":"'DNSP Inputs O & M'!$E$76","v":19.329999999999998},{"$f":"'DNSP Inputs O & M'!$E$34","v":86},null,{"$f":"Y167*Z167","v":1662.3799999999999},{"$f":"AB167/'DNSP Inputs O & M'!$E$74*0.8","v":265.98079999999999},{"$f":"(AC167+AC168+AC169)/Z167","v":5.0360466146214726},null,{"$f":"'DNSP Inputs O & M'!$E$76*(1+'DNSP Inputs O & M'!$E$11)","v":20.296499999999998},{"$f":"'DNSP Inputs O & M'!$E$35","v":72},null,{"$f":"AF167*AG167","v":1461.348},{"$f":"AI167/'DNSP Inputs O & M'!$E$25*0.8","v":292.26960000000003},{"$f":"(AJ167+AJ168+AJ169)/AG167","v":6.6098111816906844},null,{"$f":"'DNSP Inputs O & M'!$E$76*(1+'DNSP Inputs O & M'!$E$11)","v":20.296499999999998},{"$f":"'DNSP Inputs O & M'!$E$36","v":60},null,{"$f":"AM167*AN167","v":1217.79},{"$f":"AP167/'DNSP Inputs O & M'!$E$25*0.8","v":243.55799999999999},{"$f":"(AQ167+AQ168+AQ169)/AN167","v":6.6098111816906835},null,null,null,{"$f":"'DNSP Inputs O & M'!$F$76","v":19.329999999999998},{"$f":"'DNSP Inputs O & M'!$F$34","v":86},null,{"$f":"AV167*AW167","v":1662.3799999999999},{"$f":"AY167/'DNSP Inputs O & M'!$F$74*0.8","v":265.98079999999999},{"$f":"(AZ167+AZ168+AZ169)/AW167","v":5.0360466146214726},null,{"$f":"'DNSP Inputs O & M'!$F$76*(1+'DNSP Inputs O & M'!$F$11)","v":20.296499999999998},{"$f":"'DNSP Inputs O & M'!$F$35","v":72},null,{"$f":"BC167*BD167","v":1461.348},{"$f":"BF167/'DNSP Inputs O & M'!$F$25*0.8","v":292.26960000000003},{"$f":"(BG167+BG168+BG169)/BD167","v":6.6098111816906844},null,{"$f":"'DNSP Inputs O & M'!$F$76*(1+'DNSP Inputs O & M'!$F$11)","v":20.296499999999998},{"$f":"'DNSP Inputs O & M'!$F$36","v":60},null,{"$f":"BJ167*BK167","v":1217.79},{"$f":"BM167/'DNSP Inputs O & M'!$E$25*0.8","v":243.55799999999999},{"$f":"(BN167+BN168+BN169)/BK167","v":6.6098111816906835},null,null,null,{"$f":"'DNSP Inputs O & M'!$G$76","v":19.329999999999998},{"$f":"'DNSP Inputs O & M'!$G$34","v":86},null,{"$f":"BS167*BT167","v":1662.3799999999999},{"$f":"BV167/'DNSP Inputs O & M'!$G$74*0.8","v":265.98079999999999},{"$f":"(BW167+BW168+BW169)/BT167","v":5.0360466146214726},null,{"$f":"'DNSP Inputs O & M'!$G$76*(1+'DNSP Inputs O & M'!$G$11)","v":20.296499999999998},{"$f":"'DNSP Inputs O & M'!$G$35","v":72},null,{"$f":"BZ167*CA167","v":1461.348},{"$f":"CC167/'DNSP Inputs O & M'!$G$25*0.8","v":292.26960000000003},{"$f":"(CD167+CD168+CD169)/CA167","v":6.6098111816906844},null,{"$f":"'DNSP Inputs O & M'!$G$76*(1+'DNSP Inputs O & M'!$G$11)","v":20.296499999999998},{"$f":"'DNSP Inputs O & M'!$G$36","v":60},null,{"$f":"CG167*CH167","v":1217.79},{"$f":"CJ167/'DNSP Inputs O & M'!$G$25*0.8","v":243.55799999999999},{"$f":"(CK167+CK168+CK169)/CH167","v":6.6098111816906835},null,null,null,{"$f":"'DNSP Inputs O & M'!$H$76","v":19.329999999999998},{"$f":"'DNSP Inputs O & M'!$H$34","v":86},null,{"$f":"CP167*CQ167","v":1662.3799999999999},{"$f":"CS167/'DNSP Inputs O & M'!$H$74*0.8","v":265.98079999999999},{"$f":"(CT167+CT168+CT169)/CQ167","v":5.0360466146214726},null,{"$f":"'DNSP Inputs O & M'!$H$76*(1+'DNSP Inputs O & M'!$H$11)","v":20.296499999999998},{"$f":"'DNSP Inputs O & M'!$H$35","v":72},null,{"$f":"CW167*CX167","v":1461.348},{"$f":"CZ167/'DNSP Inputs O & M'!$H$25*0.8","v":292.26960000000003},{"$f":"(DA167+DA168+DA169)/CX167","v":6.6098111816906844},null,{"$f":"'DNSP Inputs O & M'!$H$76*(1+'DNSP Inputs O & M'!$H$11)","v":20.296499999999998},{"$f":"'DNSP Inputs O & M'!$H$36","v":60},null,{"$f":"DD167*DE167","v":1217.79},{"$f":"DG167/'DNSP Inputs O & M'!$H$25*0.8","v":243.55799999999999},{"$f":"(DH167+DH168+DH169)/DE167","v":6.6098111816906835}]
["PE cell",{"$f":"'DNSP Inputs O & M'!$D$29","v":15.120000000000001},{"$f":"C167*'DNSP Inputs O & M'!$D$25/'DNSP Inputs O & M'!$D$26","v":43},null,{"$f":"B168*C168","v":650.16000000000008},{"$f":"E168/'DNSP Inputs O & M'!$D$25","v":162.54000000000002},null,null,{"$f":"'DNSP Inputs O & M'!$D$29*(1+'DNSP Inputs O & M'!$D$11)","v":15.876000000000001},{"$f":"J167*'DNSP Inputs O & M'!$D$25/'DNSP Inputs O & M'!$D$26","v":36},null,{"$f":"I168*J168","v":571.53600000000006},{"$f":"L168/'DNSP Inputs O & M'!$D$25","v":142.88400000000001},null,null,{"$f":"'DNSP Inputs O & M'!$D$29*(1+'DNSP Inputs O & M'!$D$11)","v":15.876000000000001},{"$f":"Q167*'DNSP Inputs O & M'!$D$25/'DNSP Inputs O & M'!$D$26","v":30},null,{"$f":"P168*Q168","v":476.28000000000003},{"$f":"S168/'DNSP Inputs O & M'!$D$25","v":119.07000000000001},null,null,null,null,{"$f":"'DNSP Inputs O & M'!$E$77","v":15.120000000000001},{"$f":"Z167*'DNSP Inputs O & M'!$E$74/'DNSP Inputs O & M'!$E$75","v":43},null,{"$f":"Y168*Z168","v":650.16000000000008},{"$f":"AB168/'DNSP Inputs O & M'!$E$74","v":130.03200000000001},null,null,{"$f":"'DNSP Inputs O & M'!$E$77*(1+'DNSP Inputs O & M'!$E$11)","v":15.876000000000001},{"$f":"AG167*'DNSP Inputs O & M'!$E$74/'DNSP Inputs O & M'!$E$75","v":36},null,{"$f":"AF168*AG168","v":571.53600000000006},{"$f":"AI168/'DNSP Inputs O & M'!$E$25","v":142.88400000000001},null,null,{"$f":"'DNSP Inputs O & M'!$E$77*(1+'DNSP Inputs O & M'!$E$11)","v":15.876000000000001},{"$f":"AN167*'DNSP Inputs O & M'!$E$74/'DNSP Inputs O & M'!$E$75","v":30},null,{"$f":"AM168*AN168","v":476.28000000000003},{"$f":"AP168/'DNSP Inputs O & M'!$E$25","v":119.07000000000001},null,null,null,null,{"$f":"'DNSP Inputs O & M'!$F$77","v":15.120000000000001},{"$f":"AW167*'DNSP Inputs O & M'!$F$74/'DNSP Inputs O & M'!$F$75","v":43},null,{"$f":"AV168*AW168","v":650.16000000000008},{"$f":"AY168/'DNSP Inputs O & M'!$F$74","v":130.03200000000001},null,null,{"$f":"'DNSP Inputs O & M'!$F$77*(1+'DNSP Inputs O & M'!$F$11)","v":15.876000000000001},{"$f":"BD167*'DNSP Inputs O & M'!$F$74/'DNSP Inputs O & M'!$F$75","v":36},null,{"$f":"BC168*BD168","v":571.53600000000006},{"$f":"BF168/'DNSP Inputs O & M'!$F$25","v":142.88400000000001},null,null,{"$f":"'DNSP Inputs O & M'!$F$77*(1+'DNSP Inputs O & M'!$F$11)","v":15.876000000000001},{"$f":"BK167*'DNSP Inputs O & M'!$F$74/'DNSP Inputs O & M'!$F$75","v":30},null,{"$f":"BJ168*BK168","v":476.28000000000003},{"$f":"BM168/'DNSP Inputs O & M'!$E$25","v":119.07000000000001},null,null,null,null,{"$f":"'DNSP Inputs O & M'!$G$77","v":15.120000000000001},{"$f":"BT167*'DNSP Inputs O & M'!$G$74/'DNSP Inputs O & M'!$G$75","v":43},null,{"$f":"BS168*BT168","v":650.16000000000008},{"$f":"BV168/'DNSP Inputs O & M'!$G$74","v":130.03200000000001},null,null,{"$f":"'DNSP Inputs O & M'!$G$77*(1+'DNSP Inputs O & M'!$G$11)","v":15.876000000000001},{"$f":"CA167*'DNSP Inputs O & M'!$G$74/'DNSP Inputs O & M'!$G$75","v":36},null,{"$f":"BZ168*CA168","v":571.53600000000006},{"$f":"CC168/'DNSP Inputs O & M'!$G$25","v":142.88400000000001},null,null,{"$f":"'DNSP Inputs O & M'!$G$77*(1+'DNSP Inputs O & M'!$G$11)","v":15.876000000000001},{"$f":"CH167*'DNSP Inputs O & M'!$G$74/'DNSP Inputs O & M'!$G$75","v":30},null,{"$f":"CG168*CH168","v":476.28000000000003},{"$f":"CJ168/'DNSP Inputs O & M'!$G$25","v":119.07000000000001},null,null,null,null,{"$f":"'DNSP Inputs O & M'!$H$77","v":15.120000000000001},{"$f":"CQ167*'DNSP Inputs O & M'!$H$74/'DNSP Inputs O & M'!$H$75","v":43},null,{"$f":"CP168*CQ168","v":650.16000000000008},{"$f":"CS168/'DNSP Inputs O & M'!$H$74","v":130.03200000000001},null,null,{"$f":"'DNSP Inputs O & M'!$H$77*(1+'DNSP Inputs O & M'!$H$11)","v":15.876000000000001},{"$f":"CX167*'DNSP Inputs O & M'!$H$74/'DNSP Inputs O & M'!$H$75","v":36},null,{"$f":"CW168*CX168","v":571.53600000000006},{"$f":"CZ168/'DNSP Inputs O & M'!$H$25","v":142.88400000000001},null,null,{"$f":"'DNSP Inputs O & M'!$H$77*(1+'DNSP Inputs O & M'!$H$11)","v":15.876000000000001},{"$f":"DE167*'DNSP Inputs O & M'!$H$74/'DNSP Inputs O & M'!$H$75","v":30},null,{"$f":"DD168*DE168","v":476.28000000000003},{"$f":"DG168/'DNSP Inputs O & M'!$H$25","v":119.07000000000001}]
["Miscellaneous",{"$f":"'DNSP Inputs O & M'!$D$31","v":1.3476456706921032},{"$f":"'DNSP Inputs O & M'!$D$34","v":86},null,{"$f":"B169*C169","v":115.89752767952088},{"$f":"E169/'DNSP Inputs O & M'!$D$25*0.8","v":23.179505535904177},null,null,{"$f":"'DNSP Inputs O & M'!$D$31*(1+'DNSP Inputs O & M'!$D$11)","v":1.4150279542267084},{"$f":"'DNSP Inputs O & M'!$D$35","v":72},null,{"$f":"I169*J169","v":101.882012704323},{"$f":"L169/'DNSP Inputs O & M'!$D$25*0.8","v":20.376402540864603},null,null,{"$f":"'DNSP Inputs O & M'!$D$31*(1+'DNSP Inputs O & M'!$D$11)","v":1.4150279542267084},{"$f":"'DNSP Inputs O & M'!$D$36","v":60},null,{"$f":"P169*Q169","v":84.9016772536025},{"$f":"S169/'DNSP Inputs O & M'!$D$25*0.8","v":16.980335450720499},null,null,null,null,{"$f":"'DNSP Inputs O & M'!E78","v":2.6952913413842063},{"$f":"'DNSP Inputs O & M'!$E$34","v":86},null,{"$f":"Y169*Z169","v":231.79505535904175},{"$f":"AB169/'DNSP Inputs O & M'!$E$74*0.8","v":37.087208857446683},null,null,{"$f":"'DNSP Inputs O & M'!E78*(1+'DNSP Inputs O & M'!$E$11)","v":2.8300559084534167},{"$f":"'DNSP Inputs O & M'!$E$35","v":72},null,{"$f":"AF169*AG169","v":203.76402540864601},{"$f":"AI169/'DNSP Inputs O & M'!$E$25*0.8","v":40.752805081729207},null,null,{"$f":"'DNSP Inputs O & M'!E78*(1+'DNSP Inputs O & M'!$E$11)","v":2.8300559084534167},{"$f":"'DNSP Inputs O & M'!$E$36","v":60},null,{"$f":"AM169*AN169","v":169.803354507205},{"$f":"AP169/'DNSP Inputs O & M'!$E$25*0.8","v":33.960670901440999},null,null,null,null,{"$f":"'DNSP Inputs O & M'!$F$78","v":2.6952913413842063},{"$f":"'DNSP Inputs O & M'!$F$34","v":86},null,{"$f":"AV169*AW169","v":231.79505535904175},{"$f":"AY169/'DNSP Inputs O & M'!$F$74*0.8","v":37.087208857446683},null,null,{"$f":"'DNSP Inputs O & M'!$F$78*(1+'DNSP Inputs O & M'!$E$11)","v":2.8300559084534167},{"$f":"'DNSP Inputs O & M'!$F$35","v":72},null,{"$f":"BC169*BD169","v":203.76402540864601},{"$f":"BF169/'DNSP Inputs O & M'!$F$25*0.8","v":40.752805081729207},null,null,{"$f":"'DNSP Inputs O & M'!$F$78*(1+'DNSP Inputs O & M'!$F$11)","v":2.8300559084534167},{"$f":"'DNSP Inputs O & M'!$F$36","v":60},null,{"$f":"BJ169*BK169","v":169.803354507205},{"$f":"BM169/'DNSP Inputs O & M'!$E$25*0.8","v":33.960670901440999},null,null,null,null,{"$f":"'DNSP Inputs O & M'!$G$78","v":2.6952913413842063},{"$f":"'DNSP Inputs O & M'!$G$34","v":86},null,{"$f":"BS169*BT169","v":231.79505535904175},{"$f":"BV169/'DNSP Inputs O & M'!$G$74*0.8","v":37.087208857446683},null,null,{"$f":"'DNSP Inputs O & M'!$G$78*(1+'DNSP Inputs O & M'!$G$11)","v":2.8300559084534167},{"$f":"'DNSP Inputs O & M'!$G$35","v":72},null,{"$f":"BZ169*CA169","v":203.76402540864601},{"$f":"CC169/'DNSP Inputs O & M'!$G$25*0.8","v":40.752805081729207},null,null,{"$f":"'DNSP Inputs O & M'!$G$78*(1+'DNSP Inputs O & M'!$G$11)","v":2.8300559084534167},{"$f":"'DNSP Inputs O & M'!$G$36","v":60},null,{"$f":"CG169*CH169","v":169.803354507205},{"$f":"CJ169/'DNSP Inputs O & M'!$G$25*0.8","v":33.960670901440999},null,null,null,null,{"$f":"'DNSP Inputs O & M'!$H$78","v":2.6952913413842063},{"$f":"'DNSP Inputs O & M'!$H$34","v":86},null,{"$f":"CP169*CQ169","v":231.79505535904175},{"$f":"CS169/'DNSP Inputs O & M'!$H$74*0.8","v":37.087208857446683},null,null,{"$f":"'DNSP Inputs O & M'!$H$78*(1+'DNSP Inputs O & M'!$H$11)","v":2.8300559084534167},{"$f":"'DNSP Inputs O & M'!$H$35","v":72},null,{"$f":"CW169*CX169","v":203.76402540864601},{"$f":"CZ169/'DNSP Inputs O & M'!$H$25*0.8","v":40.752805081729207},null,null,{"$f":"'DNSP Inputs O & M'!$H$78*(1+'DNSP Inputs O & M'!$H$11)","v":2.8300559084534167},{"$f":"'DNSP Inputs O & M'!$H$36","v":60},null,{"$f":"DD169*DE169","v":169.803354507205},{"$f":"DG169/'DNSP Inputs O & M'!$H$25*0.8","v":33.960670901440999}]
[]
[]
["Patrols and repairs"]
["Materials"]
["Lamp",{"$f":"'DNSP Inputs O & M'!$D$76","v":19.329999999999998},{"$f":"'DNSP Inputs O & M'!$D$84","v":15},null,{"$f":"B174*C174","v":289.95},{"$f":"(E174+E175+E176)/'DNSP Inputs O & M'!$D$84","v":29.58529134138421},{"$f":"F174/'DNSP Inputs O & M'!$D$74","v":5.9170582682768416},null,{"$f":"'DNSP Inputs O & M'!$D$76*(1+'DNSP Inputs O & M'!$D$11)","v":20.296499999999998},{"$f":"'DNSP Inputs O & M'!$D$85","v":11},null,{"$f":"I174*J174","v":223.26149999999998},{"$f":"(L174+L175+L176)/'DNSP Inputs O & M'!$D$85","v":31.064555908453418},{"$f":"M174/'DNSP Inputs O & M'!$D$74","v":6.2129111816906839},null,{"$f":"'DNSP Inputs O & M'!$D$76*(1+'DNSP Inputs O & M'!$D$11)","v":20.296499999999998},{"$f":"'DNSP Inputs O & M'!$D$86","v":9},null,{"$f":"P174*Q174","v":182.66849999999999},{"$f":"(S174+S175+S176)/'DNSP Inputs O & M'!$D$86","v":31.064555908453414},{"$f":"T174/'DNSP Inputs O & M'!$D$74","v":6.212911181690683},null,null,null,{"$f":"'DNSP Inputs O & M'!$E$76","v":19.329999999999998},{"$f":"'DNSP Inputs O & M'!$E$84","v":15},null,{"$f":"Y174*Z174","v":289.95},{"$f":"(AB174+AB175+AB176)/'DNSP Inputs O & M'!$E$84","v":29.58529134138421},{"$f":"AC174/'DNSP Inputs O & M'!$E$74","v":5.9170582682768416},{"$f":"AC174*AA116","v":1.4361329240855443},{"$f":"'DNSP Inputs O & M'!$E$76*(1+'DNSP Inputs O & M'!$E$11)","v":20.296499999999998},{"$f":"'DNSP Inputs O & M'!$E$85","v":11},null,{"$f":"AF174*AG174","v":223.26149999999998},{"$f":"(AI174+AI175+AI176)/'DNSP Inputs O & M'!$E$85","v":31.064555908453418},{"$f":"AJ174/'DNSP Inputs O & M'!$E$74","v":6.2129111816906839},{"$f":"AJ174*AA116","v":1.5079395702898215},{"$f":"'DNSP Inputs O & M'!$E$76*(1+'DNSP Inputs O & M'!$E$11)","v":20.296499999999998},{"$f":"'DNSP Inputs O & M'!$E$86","v":9},null,{"$f":"AM174*AN174","v":182.66849999999999},{"$f":"(AP174+AP175+AP176)/'DNSP Inputs O & M'!$E$86","v":31.064555908453414},{"$f":"AQ174/'DNSP Inputs O & M'!$E$74","v":6.212911181690683},{"$f":"AQ174*AA116","v":1.5079395702898213},null,null,{"$f":"'DNSP Inputs O & M'!$F$76","v":19.329999999999998},{"$f":"'DNSP Inputs O & M'!$F$84","v":15},null,{"$f":"AV174*AW174","v":289.95},{"$f":"(AY174+AY175+AY176)/'DNSP Inputs O & M'!$F$84","v":29.58529134138421},{"$f":"AZ174/'DNSP Inputs O & M'!$F$74","v":5.9170582682768416},{"$f":"AZ174*AX116","v":1.4361329240855443},{"$f":"'DNSP Inputs O & M'!$F$76*(1+'DNSP Inputs O & M'!$F$11)","v":20.296499999999998},{"$f":"'DNSP Inputs O & M'!$F$85","v":11},null,{"$f":"BC174*BD174","v":223.26149999999998},{"$f":"(BF174+BF175+BF176)/'DNSP Inputs O & M'!$F$85","v":31.064555908453418},{"$f":"BG174/'DNSP Inputs O & M'!$F$74","v":6.2129111816906839},{"$f":"BG174*AX116","v":1.5079395702898215},{"$f":"'DNSP Inputs O & M'!$F$76*(1+'DNSP Inputs O & M'!$F$11)","v":20.296499999999998},{"$f":"'DNSP Inputs O & M'!$F$86","v":9},null,{"$f":"BJ174*BK174","v":182.66849999999999},{"$f":"(BM174+BM175+BM176)/'DNSP Inputs O & M'!$F$86","v":31.064555908453414},{"$f":"BN174/'DNSP Inputs O & M'!$F$74","v":6.212911181690683},{"$f":"BN174*AX116","v":1.5079395702898213},null,null,{"$f":"'DNSP Inputs O & M'!$G$76","v":19.329999999999998},{"$f":"'DNSP Inputs O & M'!$G$84","v":15},null,{"$f":"BS174*BT174","v":289.95},{"$f":"(BV174+BV175+BV176)/'DNSP Inputs O & M'!$G$84","v":29.58529134138421},{"$f":"BW174/'DNSP Inputs O & M'!$G$74","v":5.9170582682768416},{"$f":"BW174*AX116","v":1.4361329240855443},{"$f":"'DNSP Inputs O & M'!$G$76*(1+'DNSP Inputs O & M'!$G$11)","v":20.296499999999998},{"$f":"'DNSP Inputs O & M'!$G$85","v":11},null,{"$f":"BZ174*CA174","v":223.26149999999998},{"$f":"(CC174+CC175+CC176)/'DNSP Inputs O & M'!$G$85","v":31.064555908453418},{"$f":"CD174/'DNSP Inputs O & M'!$G$74","v":6.2129111816906839},{"$f":"CD174*AX116","v":1.5079395702898215},{"$f":"'DNSP Inputs O & M'!$G$76*(1+'DNSP Inputs O & M'!$G$11)","v":20.296499999999998},{"$f":"'DNSP Inputs O & M'!$G$86","v":9},null,{"$f":"CG174*CH174","v":182.66849999999999},{"$f":"(CJ174+CJ175+CJ176)/'DNSP Inputs O & M'!$G$86","v":31.064555908453414},{"$f":"CK174/'DNSP Inputs O & M'!$G$74","v":6.212911181690683},{"$f":"CK174*AX116","v":1.5079395702898213},null,null,{"$f":"'DNSP Inputs O & M'!$H$76","v":19.329999999999998},{"$f":"'DNSP Inputs O & M'!$H$84","v":15},null,{"$f":"CP174*CQ174","v":289.95},{"$f":"(CS174+CS175+CS176)/'DNSP Inputs O & M'!$H$84","v":29.58529134138421},{"$f":"CT174/'DNSP Inputs O & M'!$H$74","v":5.9170582682768416},{"$f":"CT174*BU116","v":1.4361329240855443},{"$f":"'DNSP Inputs O & M'!$H$76*(1+'DNSP Inputs O & M'!$H$11)","v":20.296499999999998},{"$f":"'DNSP Inputs O & M'!$H$85","v":11},null,{"$f":"CW174*CX174","v":223.26149999999998},{"$f":"(CZ174+CZ175+CZ176)/'DNSP Inputs O & M'!$H$85","v":31.064555908453418},{"$f":"DA174/'DNSP Inputs O & M'!$H$74","v":6.2129111816906839},{"$f":"DA174*BU116","v":1.5079395702898215},{"$f":"'DNSP Inputs O & M'!$H$76*(1+'DNSP Inputs O & M'!$H$11)","v":20.296499999999998},{"$f":"'DNSP Inputs O & M'!$H$86","v":9},null,{"$f":"DD174*DE174","v":182.66849999999999},{"$f":"(DG174+DG175+DG176)/'DNSP Inputs O & M'!$H$86","v":31.064555908453414},{"$f":"DH174/'DNSP Inputs O & M'!$H$74","v":6.212911181690683},{"$f":"DH174*BU116","v":1.5079395702898213}]
["PE cell",{"$f":"'DNSP Inputs O & M'!$D$77","v":15.120000000000001},{"$f":"C174*'DNSP Inputs O & M'!$D$74/'DNSP Inputs O & M'!$D$75","v":7.5},null,{"$f":"B175*C175","v":113.4},null,null,null,{"$f":"'DNSP Inputs O & M'!$D$77*(1+'DNSP Inputs O & M'!$D$11)","v":15.876000000000001},{"$f":"J174*'DNSP Inputs O & M'!$D$74/'DNSP Inputs O & M'!$D$75","v":5.5},null,{"$f":"I175*J175","v":87.318000000000012},null,null,null,{"$f":"'DNSP Inputs O & M'!$D$77*(1+'DNSP Inputs O & M'!$D$11)","v":15.876000000000001},{"$f":"Q174*'DNSP Inputs O & M'!$D$74/'DNSP Inputs O & M'!$D$75","v":4.5},null,{"$f":"P175*Q175","v":71.442000000000007},null,null,null,null,null,{"$f":"'DNSP Inputs O & M'!$E$77","v":15.120000000000001},{"$f":"Z174*'DNSP Inputs O & M'!$E$74/'DNSP Inputs O & M'!$E$75","v":7.5},null,{"$f":"Y175*Z175","v":113.4},null,null,null,{"$f":"'DNSP Inputs O & M'!$E$77*(1+'DNSP Inputs O & M'!$E$11)","v":15.876000000000001},{"$f":"AG174*'DNSP Inputs O & M'!$E$74/'DNSP Inputs O & M'!$E$75","v":5.5},null,{"$f":"AF175*AG175","v":87.318000000000012},null,null,null,{"$f":"'DNSP Inputs O & M'!$E$77*(1+'DNSP Inputs O & M'!$E$11)","v":15.876000000000001},{"$f":"AN174*'DNSP Inputs O & M'!$E$74/'DNSP Inputs O & M'!$E$75","v":4.5},null,{"$f":"AM175*AN175","v":71.442000000000007},null,null,null,null,null,{"$f":"'DNSP Inputs O & M'!$F$77","v":15.120000000000001},{"$f":"AW174*'DNSP Inputs O & M'!$F$74/'DNSP Inputs O & M'!$F$75","v":7.5},null,{"$f":"AV175*AW175","v":113.4},null,null,null,{"$f":"'DNSP Inputs O & M'!$F$77*(1+'DNSP Inputs O & M'!$F$11)","v":15.876000000000001},{"$f":"BD174*'DNSP Inputs O & M'!$F$74/'DNSP Inputs O & M'!$F$75","v":5.5},null,{"$f":"BC175*BD175","v":87.318000000000012},null,null,null,{"$f":"'DNSP Inputs O & M'!$F$77*(1+'DNSP Inputs O & M'!$F$11)","v":15.876000000000001},{"$f":"BK174*'DNSP Inputs O & M'!$F$74/'DNSP Inputs O & M'!$F$75","v":4.5},null,{"$f":"BJ175*BK175","v":71.442000000000007},null,null,null,null,null,{"$f":"'DNSP Inputs O & M'!$G$77","v":15.120000000000001},{"$f":"BT174*'DNSP Inputs O & M'!$G$74/'DNSP Inputs O & M'!$G$75","v":7.5},null,{"$f":"BS175*BT175","v":113.4},null,null,null,{"$f":"'DNSP Inputs O & M'!$G$77*(1+'DNSP Inputs O & M'!$G$11)","v":15.876000000000001},{"$f":"CA174*'DNSP Inputs O & M'!$G$74/'DNSP Inputs O & M'!$G$75","v":5.5},null,{"$f":"BZ175*CA175","v":87.318000000000012},null,null,null,{"$f":"'DNSP Inputs O & M'!$G$77*(1+'DNSP Inputs O & M'!$G$11)","v":15.876000000000001},{"$f":"CH174*'DNSP Inputs O & M'!$G$74/'DNSP Inputs O & M'!$G$75","v":4.5},null,{"$f":"CG175*CH175","v":71.442000000000007},null,null,null,null,null,{"$f":"'DNSP Inputs O & M'!$H$77","v":15.120000000000001},{"$f":"CQ174*'DNSP Inputs O & M'!$H$74/'DNSP Inputs O & M'!$H$75","v":7.5},null,{"$f":"CP175*CQ175","v":113.4},null,null,null,{"$f":"'DNSP Inputs O & M'!$H$77*(1+'DNSP Inputs O & M'!$H$11)","v":15.876000000000001},{"$f":"CX174*'DNSP Inputs O & M'!$H$74/'DNSP Inputs O & M'!$H$75","v":5.5},null,{"$f":"CW175*CX175","v":87.318000000000012},null,null,null,{"$f":"'DNSP Inputs O & M'!$H$77*(1+'DNSP Inputs O & M'!$H$11)","v":15.876000000000001},{"$f":"DE174*'DNSP Inputs O & M'!$H$74/'DNSP Inputs O & M'!$H$75","v":4.5},null,{"$f":"DD175*DE175","v":71.442000000000007}]
["Miscellaneous",{"$f":"'DNSP Inputs O & M'!$D$78","v":2.6952913413842063},{"$f":"'DNSP Inputs O & M'!$D$84","v":15},null,{"$f":"B176*C176","v":40.429370120763096},null,null,null,{"$f":"'DNSP Inputs O & M'!$D$78*(1+'DNSP Inputs O & M'!$D$11)","v":2.8300559084534167},{"$f":"'DNSP Inputs O & M'!$D$85","v":11},null,{"$f":"I176*J176","v":31.130614992987585},null,null,null,{"$f":"'DNSP Inputs O & M'!$D$78*(1+'DNSP Inputs O & M'!$D$11)","v":2.8300559084534167},{"$f":"'DNSP Inputs O & M'!$D$86","v":9},null,{"$f":"P176*Q176","v":25.470503176080751},null,null,null,null,null,{"$f":"'DNSP Inputs O & M'!$E$78","v":2.6952913413842063},{"$f":"'DNSP Inputs O & M'!$E$84","v":15},null,{"$f":"Y176*Z176","v":40.429370120763096},null,null,null,{"$f":"'DNSP Inputs O & M'!$E$78*(1+'DNSP Inputs O & M'!$E$11)","v":2.8300559084534167},{"$f":"'DNSP Inputs O & M'!$E$85","v":11},null,{"$f":"AF176*AG176","v":31.130614992987585},null,null,null,{"$f":"'DNSP Inputs O & M'!$E$78*(1+'DNSP Inputs O & M'!$E$11)","v":2.8300559084534167},{"$f":"'DNSP Inputs O & M'!$E$86","v":9},null,{"$f":"AM176*AN176","v":25.470503176080751},null,null,null,null,null,{"$f":"'DNSP Inputs O & M'!$F$78","v":2.6952913413842063},{"$f":"'DNSP Inputs O & M'!$F$84","v":15},null,{"$f":"AV176*AW176","v":40.429370120763096},null,null,null,{"$f":"'DNSP Inputs O & M'!$F$78*(1+'DNSP Inputs O & M'!$F$11)","v":2.8300559084534167},{"$f":"'DNSP Inputs O & M'!$F$85","v":11},null,{"$f":"BC176*BD176","v":31.130614992987585},null,null,null,{"$f":"'DNSP Inputs O & M'!$F$78*(1+'DNSP Inputs O & M'!$F$11)","v":2.8300559084534167},{"$f":"'DNSP Inputs O & M'!$F$86","v":9},null,{"$f":"BJ176*BK176","v":25.470503176080751},null,null,null,null,null,{"$f":"'DNSP Inputs O & M'!$G$78","v":2.6952913413842063},{"$f":"'DNSP Inputs O & M'!$G$84","v":15},null,{"$f":"BS176*BT176","v":40.429370120763096},null,null,null,{"$f":"'DNSP Inputs O & M'!$G$78*(1+'DNSP Inputs O & M'!$G$11)","v":2.8300559084534167},{"$f":"'DNSP Inputs O & M'!$G$85","v":11},null,{"$f":"BZ176*CA176","v":31.130614992987585},null,null,null,{"$f":"'DNSP Inputs O & M'!$G$78*(1+'DNSP Inputs O & M'!$G$11)","v":2.8300559084534167},{"$f":"'DNSP Inputs O & M'!$G$86","v":9},null,{"$f":"CG176*CH176","v":25.470503176080751},null,null,null,null,null,{"$f":"'DNSP Inputs O & M'!$H$78","v":2.6952913413842063},{"$f":"'DNSP Inputs O & M'!$H$84","v":15},null,{"$f":"CP176*CQ176","v":40.429370120763096},null,null,null,{"$f":"'DNSP Inputs O & M'!$H$78*(1+'DNSP Inputs O & M'!$H$11)","v":2.8300559084534167},{"$f":"'DNSP Inputs O & M'!$H$85","v":11},null,{"$f":"CW176*CX176","v":31.130614992987585},null,null,null,{"$f":"'DNSP Inputs O & M'!$H$78*(1+'DNSP Inputs O & M'!$H$11)","v":2.8300559084534167},{"$f":"'DNSP Inputs O & M'!$H$86","v":9},null,{"$f":"DD176*DE176","v":25.470503176080751}]
["Labour - Patrol"]
["Crew costs",{"$f":"'DNSP Inputs O & M'!$D$13","v":143.47813587064053},{"$f":"'DNSP Inputs O & M'!$D$79","v":2},{"$f":"'DNSP Inputs O & M'!$D$17","v":7.5},{"$f":"B178*C178*D178","v":2152.172038059608},{"$f":"(E178+E179)/'DNSP Inputs O & M'!$D$81","v":0.80331567935320269},{"$f":"F178*'DNSP Inputs O & M'!$D$73","v":2.4099470380596082},null,{"$f":"'DNSP Inputs O & M'!$D$13","v":143.47813587064053},{"$f":"'DNSP Inputs O & M'!$D$79","v":2},{"$f":"'DNSP Inputs O & M'!$D$17","v":7.5},{"$f":"I178*J178*K178","v":2152.172038059608},{"$f":"(L178+L179)/'DNSP Inputs O & M'!$D$82","v":1.2049735190298041},{"$f":"M178*'DNSP Inputs O & M'!$D$73","v":3.6149205570894125},null,{"$f":"'DNSP Inputs O & M'!$D$13","v":143.47813587064053},{"$f":"'DNSP Inputs O & M'!$D$79","v":2},{"$f":"'DNSP Inputs O & M'!$D$17","v":7.5},{"$f":"P178*Q178*R178","v":2152.172038059608},{"$f":"(S178+S179)/'DNSP Inputs O & M'!$D$83","v":2.4099470380596082},{"$f":"T178*'DNSP Inputs O & M'!$D$73","v":7.229841114178825},null,null,null,{"$f":"'DNSP Inputs O & M'!$E$13","v":144.4289457446163},{"$f":"'DNSP Inputs O & M'!$E$79","v":2},{"$f":"'DNSP Inputs O & M'!$E$17","v":7.5},{"$f":"Y178*Z178*AA178","v":2166.4341861692446},{"$f":"(AB178+AB179)/'DNSP Inputs O & M'!$E$81","v":0.80806972872308158},{"$f":"AC178*'DNSP Inputs O & M'!$E$73","v":2.4242091861692447},null,{"$f":"'DNSP Inputs O & M'!$E$13","v":144.4289457446163},{"$f":"'DNSP Inputs O & M'!$E$79","v":2},{"$f":"'DNSP Inputs O & M'!$E$17","v":7.5},{"$f":"AF178*AG178*AH178","v":2166.4341861692446},{"$f":"(AI178+AI179)/'DNSP Inputs O & M'!$E$82","v":1.2121045930846224},{"$f":"AJ178*'DNSP Inputs O & M'!$E$73","v":3.6363137792538671},null,{"$f":"'DNSP Inputs O & M'!$E$13","v":144.4289457446163},{"$f":"'DNSP Inputs O & M'!$E$79","v":2},{"$f":"'DNSP Inputs O & M'!$E$17","v":7.5},{"$f":"AM178*AN178*AO178","v":2166.4341861692446},{"$f":"(AP178+AP179)/'DNSP Inputs O & M'!$E$83","v":2.4242091861692447},{"$f":"AQ178*'DNSP Inputs O & M'!$E$73","v":7.2726275585077342},null,null,null,{"$f":"'DNSP Inputs O & M'!$F$13","v":145.3087014046645},{"$f":"'DNSP Inputs O & M'!$F$79","v":2},{"$f":"'DNSP Inputs O & M'!$F$17","v":7.5},{"$f":"AV178*AW178*AX178","v":2179.6305210699675},{"$f":"(AY178+AY179)/'DNSP Inputs O & M'!$F$81","v":0.81246850702332252},{"$f":"AZ178*'DNSP Inputs O & M'!$F$73","v":2.4374055210699677},null,{"$f":"'DNSP Inputs O & M'!$F$13","v":145.3087014046645},{"$f":"'DNSP Inputs O & M'!$F$79","v":2},{"$f":"'DNSP Inputs O & M'!$F$17","v":7.5},{"$f":"BC178*BD178*BE178","v":2179.6305210699675},{"$f":"(BF178+BF179)/'DNSP Inputs O & M'!$F$82","v":1.2187027605349838},{"$f":"BG178*'DNSP Inputs O & M'!$F$73","v":3.6561082816049515},null,{"$f":"'DNSP Inputs O & M'!$F$13","v":145.3087014046645},{"$f":"'DNSP Inputs O & M'!$F$79","v":2},{"$f":"'DNSP Inputs O & M'!$F$17","v":7.5},{"$f":"BJ178*BK178*BL178","v":2179.6305210699675},{"$f":"(BM178+BM179)/'DNSP Inputs O & M'!$F$83","v":2.4374055210699677},{"$f":"BN178*'DNSP Inputs O & M'!$F$73","v":7.312216563209903},null,null,null,{"$f":"'DNSP Inputs O & M'!$G$13","v":146.37348403325316},{"$f":"'DNSP Inputs O & M'!$G$79","v":2},{"$f":"'DNSP Inputs O & M'!$G$17","v":7.5},{"$f":"BS178*BT178*BU178","v":2195.6022604987975},{"$f":"(BV178+BV179)/'DNSP Inputs O & M'!$G$81","v":0.81779242016626585},{"$f":"BW178*'DNSP Inputs O & M'!$G$73","v":2.4533772604987973},null,{"$f":"'DNSP Inputs O & M'!$G$13","v":146.37348403325316},{"$f":"'DNSP Inputs O & M'!$G$79","v":2},{"$f":"'DNSP Inputs O & M'!$G$17","v":7.5},{"$f":"BZ178*CA178*CB178","v":2195.6022604987975},{"$f":"(CC178+CC179)/'DNSP Inputs O & M'!$G$82","v":1.2266886302493989},{"$f":"CD178*'DNSP Inputs O & M'!$G$73","v":3.6800658907481969},null,{"$f":"'DNSP Inputs O & M'!$G$13","v":146.37348403325316},{"$f":"'DNSP Inputs O & M'!$G$79","v":2},{"$f":"'DNSP Inputs O & M'!$G$17","v":7.5},{"$f":"CG178*CH178*CI178","v":2195.6022604987975},{"$f":"(CJ178+CJ179)/'DNSP Inputs O & M'!$G$83","v":2.4533772604987978},{"$f":"CK178*'DNSP Inputs O & M'!$G$73","v":7.3601317814963938},null,null,null,{"$f":"'DNSP Inputs O & M'!$H$13","v":147.76541803041087},{"$f":"'DNSP Inputs O & M'!$H$79","v":2},{"$f":"'DNSP Inputs O & M'!$H$17","v":7.5},{"$f":"CP178*CQ178*CR178","v":2216.4812704561632},{"$f":"(CS178+CS179)/'DNSP Inputs O & M'!$H$81","v":0.82475209015205442},{"$f":"CT178*'DNSP Inputs O & M'!$H$73","v":2.4742562704561633},null,{"$f":"'DNSP Inputs O & M'!$H$13","v":147.76541803041087},{"$f":"'DNSP Inputs O & M'!$H$79","v":2},{"$f":"'DNSP Inputs O & M'!$H$17","v":7.5},{"$f":"CW178*CX178*CY178","v":2216.4812704561632},{"$f":"(CZ178+CZ179)/'DNSP Inputs O & M'!$H$82","v":1.2371281352280816},{"$f":"DA178*'DNSP Inputs O & M'!$H$73","v":3.7113844056842451},null,{"$f":"'DNSP Inputs O & M'!$H$13","v":147.76541803041087},{"$f":"'DNSP Inputs O & M'!$H$79","v":2},{"$f":"'DNSP Inputs O & M'!$H$17","v":7.5},{"$f":"DD178*DE178*DF178","v":2216.4812704561632},{"$f":"(DG178+DG179)/'DNSP Inputs O & M'!$H$83","v":2.4742562704561633},{"$f":"DH178*'DNSP Inputs O & M'!$H$73","v":7.4227688113684902}]
["Vehicle costs",{"$f":"'DNSP Inputs O & M'!$D$16","v":34.369999999999997},1,{"$f":"'DNSP Inputs O & M'!$D$17","v":7.5},{"$f":"B179*C179*D179","v":257.77499999999998},null,null,null,{"$f":"'DNSP Inputs O & M'!$D$16","v":34.369999999999997},1,{"$f":"'DNSP Inputs O & M'!$D$17","v":7.5},{"$f":"I179*J179*K179","v":257.77499999999998},null,null,null,{"$f":"'DNSP Inputs O & M'!$D$16","v":34.369999999999997},1,{"$f":"'DNSP Inputs O & M'!$D$17","v":7.5},{"$f":"P179*Q179*R179","v":257.77499999999998},null,null,null,null,null,{"$f":"'DNSP Inputs O & M'!$E$16","v":34.369999999999997},1,{"$f":"'DNSP Inputs O & M'!$E$17","v":7.5},{"$f":"Y179*Z179*AA179","v":257.77499999999998},null,null,null,{"$f":"'DNSP Inputs O & M'!$E$16","v":34.369999999999997},1,{"$f":"'DNSP Inputs O & M'!$E$17","v":7.5},{"$f":"AF179*AG179*AH179","v":257.77499999999998},null,null,null,{"$f":"'DNSP Inputs O & M'!$E$16","v":34.369999999999997},1,{"$f":"'DNSP Inputs O & M'!$E$17","v":7.5},{"$f":"AM179*AN179*AO179","v":257.77499999999998},null,null,null,null,null,{"$f":"'DNSP Inputs O & M'!$F$16","v":34.369999999999997},1,{"$f":"'DNSP Inputs O & M'!$F$17","v":7.5},{"$f":"AV179*AW179*AX179","v":257.77499999999998},null,null,null,{"$f":"'DNSP Inputs O & M'!$F$16","v":34.369999999999997},1,{"$f":"'DNSP Inputs O & M'!$F$17","v":7.5},{"$f":"BC179*BD179*BE179","v":257.77499999999998},null,null,null,{"$f":"'DNSP Inputs O & M'!$F$16","v":34.369999999999997},1,{"$f":"'DNSP Inputs O & M'!$F$17","v":7.5},{"$f":"BJ179*BK179*BL179","v":257.77499999999998},null,null,null,null,null,{"$f":"'DNSP Inputs O & M'!$G$16","v":34.369999999999997},1,{"$f":"'DNSP Inputs O & M'!$G$17","v":7.5},{"$f":"BS179*BT179*BU179","v":257.77499999999998},null,null,null,{"$f":"'DNSP Inputs O & M'!$G$16","v":34.369999999999997},1,{"$f":"'DNSP Inputs O & M'!$G$17","v":7.5},{"$f":"BZ179*CA179*CB179","v":257.77499999999998},null,null,null,{"$f":"'DNSP Inputs O & M'!$G$16","v":34.369999999999997},1,{"$f":"'DNSP Inputs O & M'!$G$17","v":7.5},{"$f":"CG179*CH179*CI179","v":257.77499999999998},null,null,null,null,null,{"$f":"'DNSP Inputs O & M'!$H$16","v":34.369999999999997},1,{"$f":"'DNSP Inputs O & M'!$H$17","v":7.5},{"$f":"CP179*CQ179*CR179","v":257.77499999999998},null,null,null,{"$f":"'DNSP Inputs O & M'!$H$16","v":34.369999999999997},1,{"$f":"'DNSP Inputs O & M'!$H$17","v":7.5},{"$f":"CW179*CX179*CY179","v":257.77499999999998},null,null,null,{"$f":"'DNSP Inputs O & M'!$H$16","v":34.369999999999997},1,{"$f":"'DNSP Inputs O & M'!$H$17","v":7.5},{"$f":"DD179*DE179*DF179","v":257.77499999999998}]
["Labour - Repair of faults"]
["Crew costs",{"$f":"'DNSP Inputs O & M'!$D$12","v":111.36223236834823},{"$f":"'DNSP Inputs O & M'!$D$80","v":2},{"$f":"'DNSP Inputs O & M'!$D$17","v":7.5},{"$f":"B181*C181*D181","v":1670.4334855252234},{"$f":"(E181+E182)/'DNSP Inputs O & M'!$D$84*(C174+C175)/C174","v":214.77334855252232},{"$f":"F181/'DNSP Inputs O & M'!$D$74","v":42.954669710504461},null,{"$f":"'DNSP Inputs O & M'!$D$12","v":111.36223236834823},{"$f":"'DNSP Inputs O & M'!$D$80","v":2},{"$f":"'DNSP Inputs O & M'!$D$17","v":7.5},{"$f":"I181*J181*K181","v":1670.4334855252234},{"$f":"(L181+L182)/'DNSP Inputs O & M'!$D$85*(J174+J175)/J174","v":292.87274802616679},{"$f":"M181/'DNSP Inputs O & M'!$D$74","v":58.574549605233358},null,{"$f":"'DNSP Inputs O & M'!$D$12","v":111.36223236834823},{"$f":"'DNSP Inputs O & M'!$D$80","v":2},{"$f":"'DNSP Inputs O & M'!$D$17","v":7.5},{"$f":"P181*Q181*R181","v":1670.4334855252234},{"$f":"(S181+S182)/'DNSP Inputs O & M'!$D$86*(Q174+Q175)/Q174","v":357.95558092087055},{"$f":"T181/'DNSP Inputs O & M'!$D$74","v":71.591116184174112},null,null,null,{"$f":"'DNSP Inputs O & M'!$E$12","v":112.10021456669011},{"$f":"'DNSP Inputs O & M'!$E$80","v":2},{"$f":"'DNSP Inputs O & M'!$E$17","v":7.5},{"$f":"Y181*Z181*AA181","v":1681.5032185003517},{"$f":"(AB181+AB182)/'DNSP Inputs O & M'!$E$84*(Z174+Z175)/Z174","v":215.88032185003516},{"$f":"AC181/'DNSP Inputs O & M'!$E$74","v":43.176064370007033},{"$f":"AC181*AA116","v":10.479289667745888},{"$f":"'DNSP Inputs O & M'!$E$12","v":112.10021456669011},{"$f":"'DNSP Inputs O & M'!$E$80","v":2},{"$f":"'DNSP Inputs O & M'!$E$17","v":7.5},{"$f":"AF181*AG181*AH181","v":1681.5032185003517},{"$f":"(AI181+AI182)/'DNSP Inputs O & M'!$E$85*(AG174+AG175)/AG174","v":294.38225706822976},{"$f":"AJ181/'DNSP Inputs O & M'!$E$74","v":58.876451413645952},{"$f":"AJ181*AA116","v":14.289940456017119},{"$f":"'DNSP Inputs O & M'!$E$12","v":112.10021456669011},{"$f":"'DNSP Inputs O & M'!$E$80","v":2},{"$f":"'DNSP Inputs O & M'!$E$17","v":7.5},{"$f":"AM181*AN181*AO181","v":1681.5032185003517},{"$f":"(AP181+AP182)/'DNSP Inputs O & M'!$E$86*(AN174+AN175)/AN174","v":359.80053641672527},{"$f":"AQ181/'DNSP Inputs O & M'!$E$74","v":71.960107283345053},{"$f":"AQ181*AA116","v":17.46548277957648},null,null,{"$f":"'DNSP Inputs O & M'!$F$12","v":112.78304720629164},{"$f":"'DNSP Inputs O & M'!$F$80","v":2},{"$f":"'DNSP Inputs O & M'!$F$17","v":7.5},{"$f":"AV181*AW181*AX181","v":1691.7457080943745},{"$f":"(AY181+AY182)/'DNSP Inputs O & M'!$F$84*(AW174+AW175)/AW174","v":216.9045708094375},{"$f":"AZ181/'DNSP Inputs O & M'!$F$74","v":43.380914161887503},{"$f":"AZ181*AX116","v":10.529008889236213},{"$f":"'DNSP Inputs O & M'!$F$12","v":112.78304720629164},{"$f":"'DNSP Inputs O & M'!$F$80","v":2},{"$f":"'DNSP Inputs O & M'!$F$17","v":7.5},{"$f":"BC181*BD181*BE181","v":1691.7457080943745},{"$f":"(BF181+BF182)/'DNSP Inputs O & M'!$F$85*(BD174+BD175)/BD174","v":295.7789601946875},{"$f":"BG181/'DNSP Inputs O & M'!$F$74","v":59.155792038937498},{"$f":"BG181*AX116","v":14.357739394413016},{"$f":"'DNSP Inputs O & M'!$F$12","v":112.78304720629164},{"$f":"'DNSP Inputs O & M'!$F$80","v":2},{"$f":"'DNSP Inputs O & M'!$F$17","v":7.5},{"$f":"BJ181*BK181*BL181","v":1691.7457080943745},{"$f":"(BM181+BM182)/'DNSP Inputs O & M'!$F$86*(BK174+BK175)/BK174","v":361.50761801572912},{"$f":"BN181/'DNSP Inputs O & M'!$F$74","v":72.301523603145824},{"$f":"BN181*AX116","v":17.548348148727019},null,null,{"$f":"'DNSP Inputs O & M'!$G$12","v":113.60949069043043},{"$f":"'DNSP Inputs O & M'!$G$80","v":2},{"$f":"'DNSP Inputs O & M'!$G$17","v":7.5},{"$f":"BS181*BT181*BU181","v":1704.1423603564565},{"$f":"(BV181+BV182)/'DNSP Inputs O & M'!$G$84*(BT174+BT175)/BT174","v":218.14423603564566},{"$f":"BW181/'DNSP Inputs O & M'!$G$74","v":43.628847207129134},{"$f":"BW181*AX116","v":10.589184874176105},{"$f":"'DNSP Inputs O & M'!$G$12","v":113.60949069043043},{"$f":"'DNSP Inputs O & M'!$G$80","v":2},{"$f":"'DNSP Inputs O & M'!$G$17","v":7.5},{"$f":"BZ181*CA181*CB181","v":1704.1423603564565},{"$f":"(CC181+CC182)/'DNSP Inputs O & M'!$G$85*(CA174+CA175)/CA174","v":297.46941277588041},{"$f":"CD181/'DNSP Inputs O & M'!$G$74","v":59.493882555176086},{"$f":"CD181*AX116","v":14.439797555694687},{"$f":"'DNSP Inputs O & M'!$G$12","v":113.60949069043043},{"$f":"'DNSP Inputs O & M'!$G$80","v":2},{"$f":"'DNSP Inputs O & M'!$G$17","v":7.5},{"$f":"CG181*CH181*CI181","v":1704.1423603564565},{"$f":"(CJ181+CJ182)/'DNSP Inputs O & M'!$G$86*(CH174+CH175)/CH174","v":363.57372672607607},{"$f":"CK181/'DNSP Inputs O & M'!$G$74","v":72.714745345215221},{"$f":"CK181*AX116","v":17.648641456960174},null,null,{"$f":"'DNSP Inputs O & M'!$H$12","v":114.68985653357629},{"$f":"'DNSP Inputs O & M'!$H$80","v":2},{"$f":"'DNSP Inputs O & M'!$H$17","v":7.5},{"$f":"CP181*CQ181*CR181","v":1720.3478480036442},{"$f":"(CS181+CS182)/'DNSP Inputs O & M'!$H$84*(CQ174+CQ175)/CQ174","v":219.76478480036442},{"$f":"CT181/'DNSP Inputs O & M'!$H$74","v":43.952956960072882},{"$f":"CT181*BU116","v":10.667849755628305},{"$f":"'DNSP Inputs O & M'!$H$12","v":114.68985653357629},{"$f":"'DNSP Inputs O & M'!$H$80","v":2},{"$f":"'DNSP Inputs O & M'!$H$17","v":7.5},{"$f":"CW181*CX181*CY181","v":1720.3478480036442},{"$f":"(CZ181+CZ182)/'DNSP Inputs O & M'!$H$85*(CX174+CX175)/CX174","v":299.679252000497},{"$f":"DA181/'DNSP Inputs O & M'!$H$74","v":59.935850400099397},{"$f":"DA181*BU116","v":14.547067848584055},{"$f":"'DNSP Inputs O & M'!$H$12","v":114.68985653357629},{"$f":"'DNSP Inputs O & M'!$H$80","v":2},{"$f":"'DNSP Inputs O & M'!$H$17","v":7.5},{"$f":"DD181*DE181*DF181","v":1720.3478480036442},{"$f":"(DG181+DG182)/'DNSP Inputs O & M'!$H$86*(DE174+DE175)/DE174","v":366.27464133394074},{"$f":"DH181/'DNSP Inputs O & M'!$H$74","v":73.254928266788141},{"$f":"DH181*BU116","v":17.779749592713841}]
["Elevated platform vehicle costs",{"$f":"'DNSP Inputs O & M'!$D$15","v":63.64},1,{"$f":"'DNSP Inputs O & M'!$D$17","v":7.5},{"$f":"B182*C182*D182","v":477.3},null,null,null,{"$f":"'DNSP Inputs O & M'!$D$15","v":63.64},1,{"$f":"'DNSP Inputs O & M'!$D$17","v":7.5},{"$f":"I182*J182*K182","v":477.3},null,null,null,{"$f":"'DNSP Inputs O & M'!$D$15","v":63.64},1,{"$f":"'DNSP Inputs O & M'!$D$17","v":7.5},{"$f":"P182*Q182*R182","v":477.3},null,null,null,null,null,{"$f":"'DNSP Inputs O & M'!$E$15","v":63.64},1,{"$f":"'DNSP Inputs O & M'!$E$17","v":7.5},{"$f":"Y182*Z182*AA182","v":477.3},null,null,null,{"$f":"'DNSP Inputs O & M'!$E$15","v":63.64},1,{"$f":"'DNSP Inputs O & M'!$E$17","v":7.5},{"$f":"AF182*AG182*AH182","v":477.3},null,null,null,{"$f":"'DNSP Inputs O & M'!$E$15","v":63.64},1,{"$f":"'DNSP Inputs O & M'!$E$17","v":7.5},{"$f":"AM182*AN182*AO182","v":477.3},null,null,null,null,null,{"$f":"'DNSP Inputs O & M'!$F$15","v":63.64},1,{"$f":"'DNSP Inputs O & M'!$F$17","v":7.5},{"$f":"AV182*AW182*AX182","v":477.3},null,null,null,{"$f":"'DNSP Inputs O & M'!$F$15","v":63.64},1,{"$f":"'DNSP Inputs O & M'!$F$17","v":7.5},{"$f":"BC182*BD182*BE182","v":477.3},null,null,null,{"$f":"'DNSP Inputs O & M'!$F$15","v":63.64},1,{"$f":"'DNSP Inputs O & M'!$F$17","v":7.5},{"$f":"BJ182*BK182*BL182","v":477.3},null,null,null,null,null,{"$f":"'DNSP Inputs O & M'!$G$15","v":63.64},1,{"$f":"'DNSP Inputs O & M'!$G$17","v":7.5},{"$f":"BS182*BT182*BU182","v":477.3},null,null,null,{"$f":"'DNSP Inputs O & M'!$G$15","v":63.64},1,{"$f":"'DNSP Inputs O & M'!$G$17","v":7.5},{"$f":"BZ182*CA182*CB182","v":477.3},null,null,null,{"$f":"'DNSP Inputs O & M'!$G$15","v":63.64},1,{"$f":"'DNSP Inputs O & M'!$G$17","v":7.5},{"$f":"CG182*CH182*CI182","v":477.3},null,null,null,null,null,{"$f":"'DNSP Inputs O & M'!$H$15","v":63.64},1,{"$f":"'DNSP Inputs O & M'!$H$17","v":7.5},{"$f":"CP182*CQ182*CR182","v":477.3},null,null,null,{"$f":"'DNSP Inputs O & M'!$H$15","v":63.64},1,{"$f":"'DNSP Inputs O & M'!$H$17","v":7.5},{"$f":"CW182*CX182*CY182","v":477.3},null,null,null,{"$f":"'DNSP Inputs O & M'!$H$15","v":63.64},1,{"$f":"'DNSP Inputs O & M'!$H$17","v":7.5},{"$f":"DD182*DE182*DF182","v":477.3}]
[]
["Other Maintenance and Repair costs",null,null,null,null,null,{"$f":"'DNSP Inputs O & M'!$D$93","v":2.7810009199165551},null,null,null,null,null,null,{"$f":"'DNSP Inputs O & M'!$D$93","v":2.7810009199165551},null,null,null,null,null,null,{"$f":"'DNSP Inputs O & M'!$D$93","v":2.7810009199165551},null,null,null,null,null,null,null,null,{"$f":"'DNSP Inputs O & M'!$E$93","v":2.7880049304923733},null,null,null,null,null,null,{"$f":"'DNSP Inputs O & M'!$E$93","v":2.7880049304923733},null,null,null,null,null,null,{"$f":"'DNSP Inputs O & M'!$E$93","v":2.7880049304923733},null,null,null,null,null,null,null,null,{"$f":"'DNSP Inputs O & M'!$F$93","v":2.7953498078454069},null,null,null,null,null,null,{"$f":"'DNSP Inputs O & M'!$F$93","v":2.7953498078454069},null,null,null,null,null,null,{"$f":"'DNSP Inputs O & M'!$F$93","v":2.7953498078454069},null,null,null,null,null,null,null,null,{"$f":"'DNSP Inputs O & M'!$G$93","v":2.8030604396557135},null,null,null,null,null,null,{"$f":"'DNSP Inputs O & M'!$G$93","v":2.8030604396557135},null,null,null,null,null,null,{"$f":"'DNSP Inputs O & M'!$G$93","v":2.8030604396557135},null,null,null,null,null,null,null,null,{"$f":"'DNSP Inputs O & M'!$H$93","v":2.809967644326262},null,null,null,null,null,null,{"$f":"'DNSP Inputs O & M'!$H$93","v":2.809967644326262},null,null,null,null,null,null,{"$f":"'DNSP Inputs O & M'!$H$93","v":2.809967644326262}]
[]
["Overheads",{"$f":"'DNSP Inputs O & M'!$D$18","v":0.25},null,null,null,null,{"$f":"B186*(G174+G178+G181+G184)","v":13.515668984189366},null,{"$f":"'DNSP Inputs O & M'!$D$18","v":0.25},null,null,null,null,{"$f":"I186*(N174+N178+N181+N184)","v":17.7958455659825},null,{"$f":"'DNSP Inputs O & M'!$D$18","v":0.25},null,null,null,null,{"$f":"P186*(U174+U178+U181+U184)","v":21.953717349990043},null,null,null,{"$f":"'DNSP Inputs O & M'!$E$18","v":0.25},null,null,null,null,{"$f":"Y186*(AD174+AD178+AD181+AD184)","v":13.576334188736373},null,{"$f":"'DNSP Inputs O & M'!$E$18","v":0.25},null,null,null,null,{"$f":"AF186*(AK174+AK178+AK181+AK184)","v":17.878420326270721},null,{"$f":"'DNSP Inputs O & M'!$E$18","v":0.25},null,null,null,null,{"$f":"AM186*(AR174+AR178+AR181+AR184)","v":22.058412738508963},null,null,null,{"$f":"'DNSP Inputs O & M'!$F$18","v":0.25},null,null,null,null,{"$f":"AV186*(BA174+BA178+BA181+BA184)","v":13.632681939769929},null,{"$f":"'DNSP Inputs O & M'!$F$18","v":0.25},null,null,null,null,{"$f":"BC186*(BH174+BH178+BH181+BH184)","v":17.955040327519637},null,{"$f":"'DNSP Inputs O & M'!$F$18","v":0.25},null,null,null,null,{"$f":"BJ186*(BO174+BO178+BO181+BO184)","v":22.155500288972956},null,null,null,{"$f":"'DNSP Inputs O & M'!$G$18","v":0.25},null,null,null,null,{"$f":"BS186*(BX174+BX178+BX181+BX184)","v":13.700585793890122},null,{"$f":"'DNSP Inputs O & M'!$G$18","v":0.25},null,null,null,null,{"$f":"BZ186*(CE174+CE178+CE181+CE184)","v":18.047480016817669},null,{"$f":"'DNSP Inputs O & M'!$G$18","v":0.25},null,null,null,null,{"$f":"CG186*(CL174+CL178+CL181+CL184)","v":22.272712187014502},null,null,null,{"$f":"'DNSP Inputs O & M'!$H$18","v":0.25},null,null,null,null,{"$f":"CP186*(CU174+CU178+CU181+CU184)","v":13.788559785783038},null,{"$f":"'DNSP Inputs O & M'!$H$18","v":0.25},null,null,null,null,{"$f":"CW186*(DB174+DB178+DB181+DB184)","v":18.167528407950147},null,{"$f":"'DNSP Inputs O & M'!$H$18","v":0.25},null,null,null,null,{"$f":"DD186*(DI174+DI178+DI181+DI184)","v":22.425143976043394}]
[]
[null,null,null,null,null,null,{"$f":"SUM(G174,G178,G181,G184,G186)","v":67.578344920946833},null,null,null,null,null,null,{"$f":"SUM(N174,N178,N181,N184,N186)","v":88.979227829912503},null,null,null,null,null,null,{"$f":"SUM(U174,U178,U181,U184,U186)","v":109.76858674995022},null,null,null,null,null,null,null,null,{"$f":"SUM(AD174,AD178,AD181,AD184,AD186)","v":67.881670943681868},null,null,null,null,null,null,{"$f":"SUM(AK174,AK178,AK181,AK184,AK186)","v":89.392101631353597},null,null,null,null,null,null,{"$f":"SUM(AR174,AR178,AR181,AR184,AR186)","v":110.29206369254482},null,null,null,null,null,null,null,null,{"$f":"SUM(BA174,BA178,BA181,BA184,BA186)","v":68.163409698849648},null,null,null,null,null,null,{"$f":"SUM(BH174,BH178,BH181,BH184,BH186)","v":89.775201637598187},null,null,null,null,null,null,{"$f":"SUM(BO174,BO178,BO181,BO184,BO186)","v":110.77750144486478},null,null,null,null,null,null,null,null,{"$f":"SUM(BX174,BX178,BX181,BX184,BX186)","v":68.502928969450608},null,null,null,null,null,null,{"$f":"SUM(CE174,CE178,CE181,CE184,CE186)","v":90.23740008408835},null,null,null,null,null,null,{"$f":"SUM(CL174,CL178,CL181,CL184,CL186)","v":111.36356093507251},null,null,null,null,null,null,null,null,{"$f":"SUM(CU174,CU178,CU181,CU184,CU186)","v":68.942798928915195},null,null,null,null,null,null,{"$f":"SUM(DB174,DB178,DB181,DB184,DB186)","v":90.837642039750733},null,null,null,null,null,null,{"$f":"SUM(DI174,DI178,DI181,DI184,DI186)","v":112.12571988021696}]
[]
[]
[]
[]
["Sodium High Pressure 250 Watt Standard Light Type - Cost build-up"]
[]
["Additional assumptions"]
["Overheads are applied to material and labour components"]
["All costs and charges are exclusive of GST"]
[]
[null,"Urban",null,null,null,null,null,null,"Rural",null,null,null,null,null,null,"Remote",null,null,null,null,null,null,null,null,"Urban",null,null,null,null,null,null,"Rural",null,null,null,null,null,null,"Remote",null,null,null,null,null,null,null,null,"Urban",null,null,null,null,null,null,"Rural",null,null,null,null,null,null,"Remote",null,null,null,null,null,null,null,null,"Urban",null,null,null,null,null,null,"Rural",null,null,null,null,null,null,"Remote",null,null,null,null,null,null,null,null,"Urban",null,null,null,null,null,null,"Rural",null,null,null,null,null,null,"Remote"]
[]
[null,"Unit rate","Number","Hours","Cost","Annualised","Annualised",null,"Unit rate","Number","Hours","Cost","Annualised","Annualised",null,"Unit rate","Number","Hours","Cost","Annualised","Annualised",null,null,null,"Unit rate","Number","Hours","Cost","Annualised","Annualised",null,"Unit rate","Number","Hours","Cost","Annualised","Annualised",null,"Unit rate","Number","Hours","Cost","Annualised","Annualised",null,null,null,"Unit rate","Number","Hours","Cost","Annualised","Annualised",null,"Unit rate","Number","Hours","Cost","Annualised","Annualised",null,"Unit rate","Number","Hours","Cost","Annualised","Annualised",null,null,null,"Unit rate","Number","Hours","Cost","Annualised","Annualised",null,"Unit rate","Number","Hours","Cost","Annualised","Annualised",null,"Unit rate","Number","Hours","Cost","Annualised","Annualised",null,null,null,"Unit rate","Number","Hours","Cost","Annualised","Annualised",null,"Unit rate","Number","Hours","Cost","Annualised","Annualised",null,"Unit rate","Number","Hours","Cost","Annualised","Annualised"]
[null,null,null,null,null," cost","unit cost",null,null,null,null,null," cost","unit cost",null,null,null,null,null," cost","unit cost",null,null,null,null,null,null,null," cost","unit cost",null,null,null,null,null," cost","unit cost",null,null,null,null,null," cost","unit cost",null,null,null,null,null,null,null," cost","unit cost",null,null,null,null,null," cost","unit cost",null,null,null,null,null," cost","unit cost",null,null,null,null,null,null,null," cost","unit cost",null,null,null,null,null," cost","unit cost",null,null,null,null,null," cost","unit cost",null,null,null,null,null,null,null," cost","unit cost",null,null,null,null,null," cost","unit cost",null,null,null,null,null," cost","unit cost"]
["S-HP 250"]
["Materials - bulk lamp change"]
["Lamp",null,null,null,null,null,null,null,null,null,null,null,null,null,null,null,null,null,null,null,null,null,null,null,{"$f":"'DNSP Inputs O & M'!$E$119","v":21.28},{"$f":"'DNSP Inputs O & M'!$E$34","v":86},null,{"$f":"Y205*Z205","v":1830.0800000000002},{"$f":"AB205/'DNSP Inputs O & M'!$E$74*0.8","v":292.81280000000004},{"$f":"(AC205+AC206+AC207)/Z205","v":5.3244911272681996},null,{"$f":"'DNSP Inputs O & M'!$E$119*(1+'DNSP Inputs O & M'!$E$11)","v":22.344000000000001},{"$f":"'DNSP Inputs O & M'!$E$35","v":72},null,{"$f":"AF205*AG205","v":1608.768},{"$f":"AI205/'DNSP Inputs O & M'!$E$25*0.8","v":321.75360000000001},{"$f":"(AJ205+AJ206+AJ207)/AG205","v":6.9883946045395113},null,{"$f":"'DNSP Inputs O & M'!$E$119*(1+'DNSP Inputs O & M'!$E$11)","v":22.344000000000001},{"$f":"'DNSP Inputs O & M'!$E$36","v":60},null,{"$f":"AM205*AN205","v":1340.64},{"$f":"AP205/'DNSP Inputs O & M'!$E$25*0.8","v":268.12800000000004},{"$f":"(AQ205+AQ206+AQ207)/AN205","v":6.9883946045395113},null,null,null,{"$f":"'DNSP Inputs O & M'!$F$119","v":21.28},{"$f":"'DNSP Inputs O & M'!$F$34","v":86},null,{"$f":"AV205*AW205","v":1830.0800000000002},{"$f":"AY205/'DNSP Inputs O & M'!$F$74*0.8","v":292.81280000000004},{"$f":"(AZ205+AZ206+AZ207)/AW205","v":5.3244911272681996},null,{"$f":"'DNSP Inputs O & M'!$F$119*(1+'DNSP Inputs O & M'!$F$11)","v":22.344000000000001},{"$f":"'DNSP Inputs O & M'!$F$35","v":72},null,{"$f":"BC205*BD205","v":1608.768},{"$f":"BF205/'DNSP Inputs O & M'!$F$25*0.8","v":321.75360000000001},{"$f":"(BG205+BG206+BG207)/BD205","v":6.9883946045395113},null,{"$f":"'DNSP Inputs O & M'!$F$119*(1+'DNSP Inputs O & M'!$F$11)","v":22.344000000000001},{"$f":"'DNSP Inputs O & M'!$F$36","v":60},null,{"$f":"BJ205*BK205","v":1340.64},{"$f":"BM205/'DNSP Inputs O & M'!$F$25*0.8","v":268.12800000000004},{"$f":"(BN205+BN206+BN207)/BK205","v":6.9883946045395113},null,null,null,{"$f":"'DNSP Inputs O & M'!$G$119","v":21.28},{"$f":"'DNSP Inputs O & M'!$G$34","v":86},null,{"$f":"BS205*BT205","v":1830.0800000000002},{"$f":"BV205/'DNSP Inputs O & M'!$G$74*0.8","v":292.81280000000004},{"$f":"(BW205+BW206+BW207)/BT205","v":5.3244911272681996},null,{"$f":"'DNSP Inputs O & M'!$G$119*(1+'DNSP Inputs O & M'!$G$11)","v":22.344000000000001},{"$f":"'DNSP Inputs O & M'!$G$35","v":72},null,{"$f":"BZ205*CA205","v":1608.768},{"$f":"CC205/'DNSP Inputs O & M'!$G$25*0.8","v":321.75360000000001},{"$f":"(CD205+CD206+CD207)/CA205","v":6.9883946045395113},null,{"$f":"'DNSP Inputs O & M'!$G$119*(1+'DNSP Inputs O & M'!$G$11)","v":22.344000000000001},{"$f":"'DNSP Inputs O & M'!$G$36","v":60},null,{"$f":"CG205*CH205","v":1340.64},{"$f":"CJ205/'DNSP Inputs O & M'!$G$25*0.8","v":268.12800000000004},{"$f":"(CK205+CK206+CK207)/CH205","v":6.9883946045395113},null,null,null,{"$f":"'DNSP Inputs O & M'!$H$119","v":21.28},{"$f":"'DNSP Inputs O & M'!$H$34","v":86},null,{"$f":"CP205*CQ205","v":1830.0800000000002},{"$f":"CS205/'DNSP Inputs O & M'!$H$74*0.8","v":292.81280000000004},{"$f":"(CT205+CT206+CT207)/CQ205","v":5.3244911272681996},null,{"$f":"'DNSP Inputs O & M'!$H$119*(1+'DNSP Inputs O & M'!$H$11)","v":22.344000000000001},{"$f":"'DNSP Inputs O & M'!$H$35","v":72},null,{"$f":"CW205*CX205","v":1608.768},{"$f":"CZ205/'DNSP Inputs O & M'!$H$25*0.8","v":321.75360000000001},{"$f":"(DA205+DA206+DA207)/CX205","v":6.9883946045395113},null,{"$f":"'DNSP Inputs O & M'!$H$119*(1+'DNSP Inputs O & M'!$H$11)","v":22.344000000000001},{"$f":"'DNSP Inputs O & M'!$H$36","v":60},null,{"$f":"DD205*DE205","v":1340.64},{"$f":"DG205/'DNSP Inputs O & M'!$H$25*0.8","v":268.12800000000004},{"$f":"(DH205+DH206+DH207)/DE205","v":6.9883946045395113}]
["PE cell",null,null,null,null,null,null,null,null,null,null,null,null,null,null,null,null,null,null,null,null,null,null,null,{"$f":"'DNSP Inputs O & M'!$E$120","v":15.120000000000001},{"$f":"Z205*'DNSP Inputs O & M'!$E$117/'DNSP Inputs O & M'!$E$118","v":43},null,{"$f":"Y206*Z206","v":650.16000000000008},{"$f":"AB206/'DNSP Inputs O & M'!$E$74","v":130.03200000000001},null,null,{"$f":"'DNSP Inputs O & M'!$E$120*(1+'DNSP Inputs O & M'!$E$11)","v":15.876000000000001},{"$f":"AG205*'DNSP Inputs O & M'!$E$117/'DNSP Inputs O & M'!$E$118","v":36},null,{"$f":"AF206*AG206","v":571.53600000000006},{"$f":"AI206/'DNSP Inputs O & M'!$E$25","v":142.88400000000001},null,null,{"$f":"'DNSP Inputs O & M'!$E$120*(1+'DNSP Inputs O & M'!$E$11)","v":15.876000000000001},{"$f":"AN205*'DNSP Inputs O & M'!$E$117/'DNSP Inputs O & M'!$E$118","v":30},null,{"$f":"AM206*AN206","v":476.28000000000003},{"$f":"AP206/'DNSP Inputs O & M'!$E$25","v":119.07000000000001},null,null,null,null,{"$f":"'DNSP Inputs O & M'!$F$120","v":15.120000000000001},{"$f":"AW205*'DNSP Inputs O & M'!$F$117/'DNSP Inputs O & M'!$F$118","v":43},null,{"$f":"AV206*AW206","v":650.16000000000008},{"$f":"AY206/'DNSP Inputs O & M'!$F$74","v":130.03200000000001},null,null,{"$f":"'DNSP Inputs O & M'!$F$120*(1+'DNSP Inputs O & M'!$F$11)","v":15.876000000000001},{"$f":"BD205*'DNSP Inputs O & M'!$F$117/'DNSP Inputs O & M'!$F$118","v":36},null,{"$f":"BC206*BD206","v":571.53600000000006},{"$f":"BF206/'DNSP Inputs O & M'!$F$25","v":142.88400000000001},null,null,{"$f":"'DNSP Inputs O & M'!$F$120*(1+'DNSP Inputs O & M'!$F$11)","v":15.876000000000001},{"$f":"BK205*'DNSP Inputs O & M'!$F$117/'DNSP Inputs O & M'!$F$118","v":30},null,{"$f":"BJ206*BK206","v":476.28000000000003},{"$f":"BM206/'DNSP Inputs O & M'!$F$25","v":119.07000000000001},null,null,null,null,{"$f":"'DNSP Inputs O & M'!$G$120","v":15.120000000000001},{"$f":"BT205*'DNSP Inputs O & M'!$G$117/'DNSP Inputs O & M'!$G$118","v":43},null,{"$f":"BS206*BT206","v":650.16000000000008},{"$f":"BV206/'DNSP Inputs O & M'!$G$74","v":130.03200000000001},null,null,{"$f":"'DNSP Inputs O & M'!$G$120*(1+'DNSP Inputs O & M'!$G$11)","v":15.876000000000001},{"$f":"CA205*'DNSP Inputs O & M'!$G$117/'DNSP Inputs O & M'!$G$118","v":36},null,{"$f":"BZ206*CA206","v":571.53600000000006},{"$f":"CC206/'DNSP Inputs O & M'!$G$25","v":142.88400000000001},null,null,{"$f":"'DNSP Inputs O & M'!$G$120*(1+'DNSP Inputs O & M'!$G$11)","v":15.876000000000001},{"$f":"CH205*'DNSP Inputs O & M'!$G$117/'DNSP Inputs O & M'!$G$118","v":30},null,{"$f":"CG206*CH206","v":476.28000000000003},{"$f":"CJ206/'DNSP Inputs O & M'!$G$25","v":119.07000000000001},null,null,null,null,{"$f":"'DNSP Inputs O & M'!$H$120","v":15.120000000000001},{"$f":"CQ205*'DNSP Inputs O & M'!$H$117/'DNSP Inputs O & M'!$H$118","v":43},null,{"$f":"CP206*CQ206","v":650.16000000000008},{"$f":"CS206/'DNSP Inputs O & M'!$H$74","v":130.03200000000001},null,null,{"$f":"'DNSP Inputs O & M'!$H$120*(1+'DNSP Inputs O & M'!$H$11)","v":15.876000000000001},{"$f":"CX205*'DNSP Inputs O & M'!$H$117/'DNSP Inputs O & M'!$H$118","v":36},null,{"$f":"CW206*CX206","v":571.53600000000006},{"$f":"CZ206/'DNSP Inputs O & M'!$H$25","v":142.88400000000001},null,null,{"$f":"'DNSP Inputs O & M'!$H$120*(1+'DNSP Inputs O & M'!$H$11)","v":15.876000000000001},{"$f":"DE205*'DNSP Inputs O & M'!$H$117/'DNSP Inputs O & M'!$H$118","v":30},null,{"$f":"DD206*DE206","v":476.28000000000003},{"$f":"DG206/'DNSP Inputs O & M'!$H$25","v":119.07000000000001}]
["Miscellaneous",null,null,null,null,null,null,null,null,null,null,null,null,null,null,null,null,null,null,null,null,null,null,null,{"$f":"'DNSP Inputs O & M'!$E$121","v":2.548069545426245},{"$f":"'DNSP Inputs O & M'!$E$34","v":86},null,{"$f":"Y207*Z207","v":219.13398090665706},{"$f":"AB207/'DNSP Inputs O & M'!$E$74*0.8","v":35.061436945065132},null,null,{"$f":"'DNSP Inputs O & M'!$E$121*(1+'DNSP Inputs O & M'!$E$11)","v":2.6754730226975574},{"$f":"'DNSP Inputs O & M'!$E$35","v":72},null,{"$f":"AF207*AG207","v":192.63405763422412},{"$f":"AI207/'DNSP Inputs O & M'!$E$25*0.8","v":38.526811526844824},null,null,{"$f":"'DNSP Inputs O & M'!$E$121*(1+'DNSP Inputs O & M'!$E$11)","v":2.6754730226975574},{"$f":"'DNSP Inputs O & M'!$E$36","v":60},null,{"$f":"AM207*AN207","v":160.52838136185343},{"$f":"AP207/'DNSP Inputs O & M'!$E$25*0.8","v":32.105676272370687},null,null,null,null,{"$f":"'DNSP Inputs O & M'!$F$121","v":2.548069545426245},{"$f":"'DNSP Inputs O & M'!$F$34","v":86},null,{"$f":"AV207*AW207","v":219.13398090665706},{"$f":"AY207/'DNSP Inputs O & M'!$F$74*0.8","v":35.061436945065132},null,null,{"$f":"'DNSP Inputs O & M'!$F$121*(1+'DNSP Inputs O & M'!$F$11)","v":2.6754730226975574},{"$f":"'DNSP Inputs O & M'!$F$35","v":72},null,{"$f":"BC207*BD207","v":192.63405763422412},{"$f":"BF207/'DNSP Inputs O & M'!$F$25*0.8","v":38.526811526844824},null,null,{"$f":"'DNSP Inputs O & M'!$F$121*(1+'DNSP Inputs O & M'!$F$11)","v":2.6754730226975574},{"$f":"'DNSP Inputs O & M'!$F$36","v":60},null,{"$f":"BJ207*BK207","v":160.52838136185343},{"$f":"BM207/'DNSP Inputs O & M'!$F$25*0.8","v":32.105676272370687},null,null,null,null,{"$f":"'DNSP Inputs O & M'!$G$121","v":2.548069545426245},{"$f":"'DNSP Inputs O & M'!$G$34","v":86},null,{"$f":"BS207*BT207","v":219.13398090665706},{"$f":"BV207/'DNSP Inputs O & M'!$G$74*0.8","v":35.061436945065132},null,null,{"$f":"'DNSP Inputs O & M'!$G$121*(1+'DNSP Inputs O & M'!$G$11)","v":2.6754730226975574},{"$f":"'DNSP Inputs O & M'!$G$35","v":72},null,{"$f":"BZ207*CA207","v":192.63405763422412},{"$f":"CC207/'DNSP Inputs O & M'!$G$25*0.8","v":38.526811526844824},null,null,{"$f":"'DNSP Inputs O & M'!$G$121*(1+'DNSP Inputs O & M'!$G$11)","v":2.6754730226975574},{"$f":"'DNSP Inputs O & M'!$G$36","v":60},null,{"$f":"CG207*CH207","v":160.52838136185343},{"$f":"CJ207/'DNSP Inputs O & M'!$G$25*0.8","v":32.105676272370687},null,null,null,null,{"$f":"'DNSP Inputs O & M'!$H$121","v":2.548069545426245},{"$f":"'DNSP Inputs O & M'!$H$34","v":86},null,{"$f":"CP207*CQ207","v":219.13398090665706},{"$f":"CS207/'DNSP Inputs O & M'!$H$74*0.8","v":35.061436945065132},null,null,{"$f":"'DNSP Inputs O & M'!$H$121*(1+'DNSP Inputs O & M'!$H$11)","v":2.6754730226975574},{"$f":"'DNSP Inputs O & M'!$H$35","v":72},null,{"$f":"CW207*CX207","v":192.63405763422412},{"$f":"CZ207/'DNSP Inputs O & M'!$H$25*0.8","v":38.526811526844824},null,null,{"$f":"'DNSP Inputs O & M'!$H$121*(1+'DNSP Inputs O & M'!$H$11)","v":2.6754730226975574},{"$f":"'DNSP Inputs O & M'!$H$36","v":60},null,{"$f":"DD207*DE207","v":160.52838136185343},{"$f":"DG207/'DNSP Inputs O & M'!$H$25*0.8","v":32.105676272370687}]
[]
[]
["Patrols and repairs"]
["Materials"]
["Lamp",{"$f":"'DNSP Inputs O & M'!$D$119","v":21.28},{"$f":"'DNSP Inputs O & M'!$D$84","v":15},null,{"$f":"B212*C212","v":319.20000000000005},{"$f":"(E212+E213+E214)/'DNSP Inputs O & M'!$D$84","v":31.388069545426244},{"$f":"F212/'DNSP Inputs O & M'!$D$74","v":6.2776139090852485},null,{"$f":"'DNSP Inputs O & M'!$D$119*(1+'DNSP Inputs O & M'!$D$11)","v":22.344000000000001},{"$f":"'DNSP Inputs O & M'!$D$85","v":11},null,{"$f":"I212*J212","v":245.78400000000002},{"$f":"(L212+L213+L214)/'DNSP Inputs O & M'!$D$85","v":32.957473022697563},{"$f":"M212/'DNSP Inputs O & M'!$D$74","v":6.5914946045395126},null,{"$f":"'DNSP Inputs O & M'!$D$119*(1+'DNSP Inputs O & M'!$D$11)","v":22.344000000000001},{"$f":"'DNSP Inputs O & M'!$D$85","v":11},null,{"$f":"P212*Q212","v":245.78400000000002},{"$f":"(S212+S213+S214)/'DNSP Inputs O & M'!$D$85","v":32.957473022697563},{"$f":"T212/'DNSP Inputs O & M'!$D$74","v":6.5914946045395126},null,null,null,{"$f":"'DNSP Inputs O & M'!$E$119","v":21.28},{"$f":"'DNSP Inputs O & M'!$E$84","v":15},null,{"$f":"Y212*Z212","v":319.20000000000005},{"$f":"(AB212+AB213+AB214)/'DNSP Inputs O & M'!$E$84","v":31.388069545426244},{"$f":"AC212/'DNSP Inputs O & M'!$E$74","v":6.2776139090852485},{"$f":"AC212*AA116","v":1.5236436098440116},{"$f":"'DNSP Inputs O & M'!$E$119*(1+'DNSP Inputs O & M'!$E$11)","v":22.344000000000001},{"$f":"'DNSP Inputs O & M'!$E$85","v":11},null,{"$f":"AF212*AG212","v":245.78400000000002},{"$f":"(AI212+AI213+AI214)/'DNSP Inputs O & M'!$E$85","v":32.957473022697563},{"$f":"AJ212/'DNSP Inputs O & M'!$E$74","v":6.5914946045395126},{"$f":"AJ212*AA116","v":1.5998257903362123},{"$f":"'DNSP Inputs O & M'!$E$119*(1+'DNSP Inputs O & M'!$E$11)","v":22.344000000000001},{"$f":"'DNSP Inputs O & M'!$E$85","v":11},null,{"$f":"AM212*AN212","v":245.78400000000002},{"$f":"(AP212+AP213+AP214)/'DNSP Inputs O & M'!$E$86","v":40.281355916630353},{"$f":"AQ212/'DNSP Inputs O & M'!$E$74","v":8.0562711833260714},{"$f":"AQ212*AA116","v":1.9553426326331484},null,null,{"$f":"'DNSP Inputs O & M'!$F$119","v":21.28},{"$f":"'DNSP Inputs O & M'!$F$84","v":15},null,{"$f":"AV212*AW212","v":319.20000000000005},{"$f":"(AY212+AY213+AY214)/'DNSP Inputs O & M'!$F$84","v":31.388069545426244},{"$f":"AZ212/'DNSP Inputs O & M'!$F$74","v":6.2776139090852485},{"$f":"AZ212*AX116","v":1.5236436098440116},{"$f":"'DNSP Inputs O & M'!$F$119*(1+'DNSP Inputs O & M'!$F$11)","v":22.344000000000001},{"$f":"'DNSP Inputs O & M'!$F$85","v":11},null,{"$f":"BC212*BD212","v":245.78400000000002},{"$f":"(BF212+BF213+BF214)/'DNSP Inputs O & M'!$F$85","v":32.957473022697563},{"$f":"BG212/'DNSP Inputs O & M'!$F$74","v":6.5914946045395126},{"$f":"BG212*AX116","v":1.5998257903362123},{"$f":"'DNSP Inputs O & M'!$F$119*(1+'DNSP Inputs O & M'!$F$11)","v":22.344000000000001},{"$f":"'DNSP Inputs O & M'!$F$85","v":11},null,{"$f":"BJ212*BK212","v":245.78400000000002},{"$f":"(BM212+BM213+BM214)/'DNSP Inputs O & M'!$F$86","v":40.281355916630353},{"$f":"BN212/'DNSP Inputs O & M'!$F$74","v":8.0562711833260714},{"$f":"BN212*AX116","v":1.9553426326331484},null,null,{"$f":"'DNSP Inputs O & M'!$G$119","v":21.28},{"$f":"'DNSP Inputs O & M'!$G$84","v":15},null,{"$f":"BS212*BT212","v":319.20000000000005},{"$f":"(BV212+BV213+BV214)/'DNSP Inputs O & M'!$G$84","v":31.388069545426244},{"$f":"BW212/'DNSP Inputs O & M'!$G$74","v":6.2776139090852485},{"$f":"BW212*AX116","v":1.5236436098440116},{"$f":"'DNSP Inputs O & M'!$G$119*(1+'DNSP Inputs O & M'!$G$11)","v":22.344000000000001},{"$f":"'DNSP Inputs O & M'!$G$85","v":11},null,{"$f":"BZ212*CA212","v":245.78400000000002},{"$f":"(CC212+CC213+CC214)/'DNSP Inputs O & M'!$G$85","v":32.957473022697563},{"$f":"CD212/'DNSP Inputs O & M'!$G$74","v":6.5914946045395126},{"$f":"CD212*AX116","v":1.5998257903362123},{"$f":"'DNSP Inputs O & M'!$G$119*(1+'DNSP Inputs O & M'!$G$11)","v":22.344000000000001},{"$f":"'DNSP Inputs O & M'!$G$85","v":11},null,{"$f":"CG212*CH212","v":245.78400000000002},{"$f":"(CJ212+CJ213+CJ214)/'DNSP Inputs O & M'!$G$86","v":40.281355916630353},{"$f":"CK212/'DNSP Inputs O & M'!$G$74","v":8.0562711833260714},{"$f":"CK212*AX116","v":1.9553426326331484},null,null,{"$f":"'DNSP Inputs O & M'!$H$119","v":21.28},{"$f":"'DNSP Inputs O & M'!$H$84","v":15},null,{"$f":"CP212*CQ212","v":319.20000000000005},{"$f":"(CS212+CS213+CS214)/'DNSP Inputs O & M'!$H$84","v":31.388069545426244},{"$f":"CT212/'DNSP Inputs O & M'!$H$74","v":6.2776139090852485},{"$f":"CT212*BU116","v":1.5236436098440116},{"$f":"'DNSP Inputs O & M'!$H$119*(1+'DNSP Inputs O & M'!$H$11)","v":22.344000000000001},{"$f":"'DNSP Inputs O & M'!$H$85","v":11},null,{"$f":"CW212*CX212","v":245.78400000000002},{"$f":"(CZ212+CZ213+CZ214)/'DNSP Inputs O & M'!$H$85","v":32.957473022697563},{"$f":"DA212/'DNSP Inputs O & M'!$H$74","v":6.5914946045395126},{"$f":"DA212*BU116","v":1.5998257903362123},{"$f":"'DNSP Inputs O & M'!$H$119*(1+'DNSP Inputs O & M'!$H$11)","v":22.344000000000001},{"$f":"'DNSP Inputs O & M'!$H$85","v":11},null,{"$f":"DD212*DE212","v":245.78400000000002},{"$f":"(DG212+DG213+DG214)/'DNSP Inputs O & M'!$H$86","v":40.281355916630353},{"$f":"DH212/'DNSP Inputs O & M'!$H$74","v":8.0562711833260714},{"$f":"DH212*BU116","v":1.9553426326331484}]
["PE cell",{"$f":"'DNSP Inputs O & M'!$D$120","v":15.120000000000001},{"$f":"C212*'DNSP Inputs O & M'!$D$74/'DNSP Inputs O & M'!$D$75","v":7.5},null,{"$f":"B213*C213","v":113.4},null,null,null,{"$f":"'DNSP Inputs O & M'!$D$120*(1+'DNSP Inputs O & M'!$D$11)","v":15.876000000000001},{"$f":"J212*'DNSP Inputs O & M'!$D$74/'DNSP Inputs O & M'!$D$75","v":5.5},null,{"$f":"I213*J213","v":87.318000000000012},null,null,null,{"$f":"'DNSP Inputs O & M'!$D$120*(1+'DNSP Inputs O & M'!$D$11)","v":15.876000000000001},{"$f":"Q212*'DNSP Inputs O & M'!$D$74/'DNSP Inputs O & M'!$D$75","v":5.5},null,{"$f":"P213*Q213","v":87.318000000000012},null,null,null,null,null,{"$f":"'DNSP Inputs O & M'!$E$120","v":15.120000000000001},{"$f":"Z212*'DNSP Inputs O & M'!$E$74/'DNSP Inputs O & M'!$E$75","v":7.5},null,{"$f":"Y213*Z213","v":113.4},null,null,null,{"$f":"'DNSP Inputs O & M'!$E$120*(1+'DNSP Inputs O & M'!$E$11)","v":15.876000000000001},{"$f":"AG212*'DNSP Inputs O & M'!$E$74/'DNSP Inputs O & M'!$E$75","v":5.5},null,{"$f":"AF213*AG213","v":87.318000000000012},null,null,null,{"$f":"'DNSP Inputs O & M'!$E$120*(1+'DNSP Inputs O & M'!$E$11)","v":15.876000000000001},{"$f":"AN212*'DNSP Inputs O & M'!$E$74/'DNSP Inputs O & M'!$E$75","v":5.5},null,{"$f":"AM213*AN213","v":87.318000000000012},null,null,null,null,null,{"$f":"'DNSP Inputs O & M'!$F$120","v":15.120000000000001},{"$f":"AW212*'DNSP Inputs O & M'!$F$74/'DNSP Inputs O & M'!$F$75","v":7.5},null,{"$f":"AV213*AW213","v":113.4},null,null,null,{"$f":"'DNSP Inputs O & M'!$F$120*(1+'DNSP Inputs O & M'!$F$11)","v":15.876000000000001},{"$f":"BD212*'DNSP Inputs O & M'!$F$74/'DNSP Inputs O & M'!$F$75","v":5.5},null,{"$f":"BC213*BD213","v":87.318000000000012},null,null,null,{"$f":"'DNSP Inputs O & M'!$F$120*(1+'DNSP Inputs O & M'!$F$11)","v":15.876000000000001},{"$f":"BK212*'DNSP Inputs O & M'!$F$74/'DNSP Inputs O & M'!$F$75","v":5.5},null,{"$f":"BJ213*BK213","v":87.318000000000012},null,null,null,null,null,{"$f":"'DNSP Inputs O & M'!$G$120","v":15.120000000000001},{"$f":"BT212*'DNSP Inputs O & M'!$G$74/'DNSP Inputs O & M'!$G$75","v":7.5},null,{"$f":"BS213*BT213","v":113.4},null,null,null,{"$f":"'DNSP Inputs O & M'!$G$120*(1+'DNSP Inputs O & M'!$G$11)","v":15.876000000000001},{"$f":"CA212*'DNSP Inputs O & M'!$G$74/'DNSP Inputs O & M'!$G$75","v":5.5},null,{"$f":"BZ213*CA213","v":87.318000000000012},null,null,null,{"$f":"'DNSP Inputs O & M'!$G$120*(1+'DNSP Inputs O & M'!$G$11)","v":15.876000000000001},{"$f":"CH212*'DNSP Inputs O & M'!$G$74/'DNSP Inputs O & M'!$G$75","v":5.5},null,{"$f":"CG213*CH213","v":87.318000000000012},null,null,null,null,null,{"$f":"'DNSP Inputs O & M'!$H$120","v":15.120000000000001},{"$f":"CQ212*'DNSP Inputs O & M'!$H$74/'DNSP Inputs O & M'!$H$75","v":7.5},null,{"$f":"CP213*CQ213","v":113.4},null,null,null,{"$f":"'DNSP Inputs O & M'!$H$120*(1+'DNSP Inputs O & M'!$H$11)","v":15.876000000000001},{"$f":"CX212*'DNSP Inputs O & M'!$H$74/'DNSP Inputs O & M'!$H$75","v":5.5},null,{"$f":"CW213*CX213","v":87.318000000000012},null,null,null,{"$f":"'DNSP Inputs O & M'!$H$120*(1+'DNSP Inputs O & M'!$H$11)","v":15.876000000000001},{"$f":"DE212*'DNSP Inputs O & M'!$H$74/'DNSP Inputs O & M'!$H$75","v":5.5},null,{"$f":"DD213*DE213","v":87.318000000000012}]
["Miscellaneous",{"$f":"'DNSP Inputs O & M'!$D$121","v":2.548069545426245},{"$f":"'DNSP Inputs O & M'!$D$84","v":15},null,{"$f":"B214*C214","v":38.221043181393675},null,null,null,{"$f":"'DNSP Inputs O & M'!$D$121*(1+'DNSP Inputs O & M'!$D$11)","v":2.6754730226975574},{"$f":"'DNSP Inputs O & M'!$D$85","v":11},null,{"$f":"I214*J214","v":29.430203249673131},null,null,null,{"$f":"'DNSP Inputs O & M'!$D$121*(1+'DNSP Inputs O & M'!$D$11)","v":2.6754730226975574},{"$f":"'DNSP Inputs O & M'!$D$85","v":11},null,{"$f":"P214*Q214","v":29.430203249673131},null,null,null,null,null,{"$f":"'DNSP Inputs O & M'!$E$121","v":2.548069545426245},{"$f":"'DNSP Inputs O & M'!$E$84","v":15},null,{"$f":"Y214*Z214","v":38.221043181393675},null,null,null,{"$f":"'DNSP Inputs O & M'!$E$121*(1+'DNSP Inputs O & M'!$E$11)","v":2.6754730226975574},{"$f":"'DNSP Inputs O & M'!$E$85","v":11},null,{"$f":"AF214*AG214","v":29.430203249673131},null,null,null,{"$f":"'DNSP Inputs O & M'!$E$121*(1+'DNSP Inputs O & M'!$E$11)","v":2.6754730226975574},{"$f":"'DNSP Inputs O & M'!$E$85","v":11},null,{"$f":"AM214*AN214","v":29.430203249673131},null,null,null,null,null,{"$f":"'DNSP Inputs O & M'!$F$121","v":2.548069545426245},{"$f":"'DNSP Inputs O & M'!$F$84","v":15},null,{"$f":"AV214*AW214","v":38.221043181393675},null,null,null,{"$f":"'DNSP Inputs O & M'!$F$121*(1+'DNSP Inputs O & M'!$F$11)","v":2.6754730226975574},{"$f":"'DNSP Inputs O & M'!$F$85","v":11},null,{"$f":"BC214*BD214","v":29.430203249673131},null,null,null,{"$f":"'DNSP Inputs O & M'!$F$121*(1+'DNSP Inputs O & M'!$F$11)","v":2.6754730226975574},{"$f":"'DNSP Inputs O & M'!$F$85","v":11},null,{"$f":"BJ214*BK214","v":29.430203249673131},null,null,null,null,null,{"$f":"'DNSP Inputs O & M'!$G$121","v":2.548069545426245},{"$f":"'DNSP Inputs O & M'!$G$84","v":15},null,{"$f":"BS214*BT214","v":38.221043181393675},null,null,null,{"$f":"'DNSP Inputs O & M'!$G$121*(1+'DNSP Inputs O & M'!$G$11)","v":2.6754730226975574},{"$f":"'DNSP Inputs O & M'!$G$85","v":11},null,{"$f":"BZ214*CA214","v":29.430203249673131},null,null,null,{"$f":"'DNSP Inputs O & M'!$G$121*(1+'DNSP Inputs O & M'!$G$11)","v":2.6754730226975574},{"$f":"'DNSP Inputs O & M'!$G$85","v":11},null,{"$f":"CG214*CH214","v":29.430203249673131},null,null,null,null,null,{"$f":"'DNSP Inputs O & M'!$H$121","v":2.548069545426245},{"$f":"'DNSP Inputs O & M'!$H$84","v":15},null,{"$f":"CP214*CQ214","v":38.221043181393675},null,null,null,{"$f":"'DNSP Inputs O & M'!$H$121*(1+'DNSP Inputs O & M'!$H$11)","v":2.6754730226975574},{"$f":"'DNSP Inputs O & M'!$H$85","v":11},null,{"$f":"CW214*CX214","v":29.430203249673131},null,null,null,{"$f":"'DNSP Inputs O & M'!$H$121*(1+'DNSP Inputs O & M'!$H$11)","v":2.6754730226975574},{"$f":"'DNSP Inputs O & M'!$H$85","v":11},null,{"$f":"DD214*DE214","v":29.430203249673131}]
["Labour - Patrol"]
["Crew costs",{"$f":"'DNSP Inputs O & M'!$D$13","v":143.47813587064053},{"$f":"'DNSP Inputs O & M'!$D$79","v":2},{"$f":"'DNSP Inputs O & M'!$D$17","v":7.5},{"$f":"B216*C216*D216","v":2152.172038059608},{"$f":"(E216+E217)/'DNSP Inputs O & M'!$D$81","v":0.80331567935320269},{"$f":"F216*'DNSP Inputs O & M'!$D$73","v":2.4099470380596082},null,{"$f":"'DNSP Inputs O & M'!$D$13","v":143.47813587064053},{"$f":"'DNSP Inputs O & M'!$D$79","v":2},{"$f":"'DNSP Inputs O & M'!$D$17","v":7.5},{"$f":"I216*J216*K216","v":2152.172038059608},{"$f":"(L216+L217)/'DNSP Inputs O & M'!$D$82","v":1.2049735190298041},{"$f":"M216*'DNSP Inputs O & M'!$D$73","v":3.6149205570894125},null,{"$f":"'DNSP Inputs O & M'!$D$13","v":143.47813587064053},{"$f":"'DNSP Inputs O & M'!$D$79","v":2},{"$f":"'DNSP Inputs O & M'!$D$17","v":7.5},{"$f":"P216*Q216*R216","v":2152.172038059608},{"$f":"(S216+S217)/'DNSP Inputs O & M'!$D$83","v":2.4099470380596082},{"$f":"T216*'DNSP Inputs O & M'!$D$73","v":7.229841114178825},null,null,null,{"$f":"'DNSP Inputs O & M'!$E$13","v":144.4289457446163},{"$f":"'DNSP Inputs O & M'!$E$79","v":2},{"$f":"'DNSP Inputs O & M'!$E$17","v":7.5},{"$f":"Y216*Z216*AA216","v":2166.4341861692446},{"$f":"(AB216+AB217)/'DNSP Inputs O & M'!$E$81","v":0.80806972872308158},{"$f":"AC216*'DNSP Inputs O & M'!$E$73","v":2.4242091861692447},null,{"$f":"'DNSP Inputs O & M'!$E$13","v":144.4289457446163},{"$f":"'DNSP Inputs O & M'!$E$79","v":2},{"$f":"'DNSP Inputs O & M'!$E$17","v":7.5},{"$f":"AF216*AG216*AH216","v":2166.4341861692446},{"$f":"(AI216+AI217)/'DNSP Inputs O & M'!$E$82","v":1.2121045930846224},{"$f":"AJ216*'DNSP Inputs O & M'!$E$73","v":3.6363137792538671},null,{"$f":"'DNSP Inputs O & M'!$E$13","v":144.4289457446163},{"$f":"'DNSP Inputs O & M'!$E$79","v":2},{"$f":"'DNSP Inputs O & M'!$E$17","v":7.5},{"$f":"AM216*AN216*AO216","v":2166.4341861692446},{"$f":"(AP216+AP217)/'DNSP Inputs O & M'!$E$83","v":2.4242091861692447},{"$f":"AQ216*'DNSP Inputs O & M'!$E$73","v":7.2726275585077342},null,null,null,{"$f":"'DNSP Inputs O & M'!$F$13","v":145.3087014046645},{"$f":"'DNSP Inputs O & M'!$F$79","v":2},{"$f":"'DNSP Inputs O & M'!$F$17","v":7.5},{"$f":"AV216*AW216*AX216","v":2179.6305210699675},{"$f":"(AY216+AY217)/'DNSP Inputs O & M'!$F$81","v":0.81246850702332252},{"$f":"AZ216*'DNSP Inputs O & M'!$F$73","v":2.4374055210699677},null,{"$f":"'DNSP Inputs O & M'!$F$13","v":145.3087014046645},{"$f":"'DNSP Inputs O & M'!$F$79","v":2},{"$f":"'DNSP Inputs O & M'!$F$17","v":7.5},{"$f":"BC216*BD216*BE216","v":2179.6305210699675},{"$f":"(BF216+BF217)/'DNSP Inputs O & M'!$F$82","v":1.2187027605349838},{"$f":"BG216*'DNSP Inputs O & M'!$F$73","v":3.6561082816049515},null,{"$f":"'DNSP Inputs O & M'!$F$13","v":145.3087014046645},{"$f":"'DNSP Inputs O & M'!$F$79","v":2},{"$f":"'DNSP Inputs O & M'!$F$17","v":7.5},{"$f":"BJ216*BK216*BL216","v":2179.6305210699675},{"$f":"(BM216+BM217)/'DNSP Inputs O & M'!$F$83","v":2.4374055210699677},{"$f":"BN216*'DNSP Inputs O & M'!$F$73","v":7.312216563209903},null,null,null,{"$f":"'DNSP Inputs O & M'!$G$13","v":146.37348403325316},{"$f":"'DNSP Inputs O & M'!$G$79","v":2},{"$f":"'DNSP Inputs O & M'!$G$17","v":7.5},{"$f":"BS216*BT216*BU216","v":2195.6022604987975},{"$f":"(BV216+BV217)/'DNSP Inputs O & M'!$G$81","v":0.81779242016626585},{"$f":"BW216*'DNSP Inputs O & M'!$G$73","v":2.4533772604987973},null,{"$f":"'DNSP Inputs O & M'!$G$13","v":146.37348403325316},{"$f":"'DNSP Inputs O & M'!$G$79","v":2},{"$f":"'DNSP Inputs O & M'!$G$17","v":7.5},{"$f":"BZ216*CA216*CB216","v":2195.6022604987975},{"$f":"(CC216+CC217)/'DNSP Inputs O & M'!$G$82","v":1.2266886302493989},{"$f":"CD216*'DNSP Inputs O & M'!$G$73","v":3.6800658907481969},null,{"$f":"'DNSP Inputs O & M'!$G$13","v":146.37348403325316},{"$f":"'DNSP Inputs O & M'!$G$79","v":2},{"$f":"'DNSP Inputs O & M'!$G$17","v":7.5},{"$f":"CG216*CH216*CI216","v":2195.6022604987975},{"$f":"(CJ216+CJ217)/'DNSP Inputs O & M'!$G$83","v":2.4533772604987978},{"$f":"CK216*'DNSP Inputs O & M'!$G$73","v":7.3601317814963938},null,null,null,{"$f":"'DNSP Inputs O & M'!$H$13","v":147.76541803041087},{"$f":"'DNSP Inputs O & M'!$H$79","v":2},{"$f":"'DNSP Inputs O & M'!$H$17","v":7.5},{"$f":"CP216*CQ216*CR216","v":2216.4812704561632},{"$f":"(CS216+CS217)/'DNSP Inputs O & M'!$H$81","v":0.82475209015205442},{"$f":"CT216*'DNSP Inputs O & M'!$H$73","v":2.4742562704561633},null,{"$f":"'DNSP Inputs O & M'!$H$13","v":147.76541803041087},{"$f":"'DNSP Inputs O & M'!$H$79","v":2},{"$f":"'DNSP Inputs O & M'!$H$17","v":7.5},{"$f":"CW216*CX216*CY216","v":2216.4812704561632},{"$f":"(CZ216+CZ217)/'DNSP Inputs O & M'!$H$82","v":1.2371281352280816},{"$f":"DA216*'DNSP Inputs O & M'!$H$73","v":3.7113844056842451},null,{"$f":"'DNSP Inputs O & M'!$H$13","v":147.76541803041087},{"$f":"'DNSP Inputs O & M'!$H$79","v":2},{"$f":"'DNSP Inputs O & M'!$H$17","v":7.5},{"$f":"DD216*DE216*DF216","v":2216.4812704561632},{"$f":"(DG216+DG217)/'DNSP Inputs O & M'!$H$83","v":2.4742562704561633},{"$f":"DH216*'DNSP Inputs O & M'!$H$73","v":7.4227688113684902}]
["Vehicle costs",{"$f":"'DNSP Inputs O & M'!$D$16","v":34.369999999999997},1,{"$f":"'DNSP Inputs O & M'!$D$17","v":7.5},{"$f":"B217*C217*D217","v":257.77499999999998},null,null,null,{"$f":"'DNSP Inputs O & M'!$D$16","v":34.369999999999997},1,{"$f":"'DNSP Inputs O & M'!$D$17","v":7.5},{"$f":"I217*J217*K217","v":257.77499999999998},null,null,null,{"$f":"'DNSP Inputs O & M'!$D$16","v":34.369999999999997},1,{"$f":"'DNSP Inputs O & M'!$D$17","v":7.5},{"$f":"P217*Q217*R217","v":257.77499999999998},null,null,null,null,null,{"$f":"'DNSP Inputs O & M'!$E$16","v":34.369999999999997},1,{"$f":"'DNSP Inputs O & M'!$E$17","v":7.5},{"$f":"Y217*Z217*AA217","v":257.77499999999998},null,null,null,{"$f":"'DNSP Inputs O & M'!$E$16","v":34.369999999999997},1,{"$f":"'DNSP Inputs O & M'!$E$17","v":7.5},{"$f":"AF217*AG217*AH217","v":257.77499999999998},null,null,null,{"$f":"'DNSP Inputs O & M'!$E$16","v":34.369999999999997},1,{"$f":"'DNSP Inputs O & M'!$E$17","v":7.5},{"$f":"AM217*AN217*AO217","v":257.77499999999998},null,null,null,null,null,{"$f":"'DNSP Inputs O & M'!$F$16","v":34.369999999999997},1,{"$f":"'DNSP Inputs O & M'!$F$17","v":7.5},{"$f":"AV217*AW217*AX217","v":257.77499999999998},null,null,null,{"$f":"'DNSP Inputs O & M'!$F$16","v":34.369999999999997},1,{"$f":"'DNSP Inputs O & M'!$F$17","v":7.5},{"$f":"BC217*BD217*BE217","v":257.77499999999998},null,null,null,{"$f":"'DNSP Inputs O & M'!$F$16","v":34.369999999999997},1,{"$f":"'DNSP Inputs O & M'!$F$17","v":7.5},{"$f":"BJ217*BK217*BL217","v":257.77499999999998},null,null,null,null,null,{"$f":"'DNSP Inputs O & M'!$G$16","v":34.369999999999997},1,{"$f":"'DNSP Inputs O & M'!$G$17","v":7.5},{"$f":"BS217*BT217*BU217","v":257.77499999999998},null,null,null,{"$f":"'DNSP Inputs O & M'!$G$16","v":34.369999999999997},1,{"$f":"'DNSP Inputs O & M'!$G$17","v":7.5},{"$f":"BZ217*CA217*CB217","v":257.77499999999998},null,null,null,{"$f":"'DNSP Inputs O & M'!$G$16","v":34.369999999999997},1,{"$f":"'DNSP Inputs O & M'!$G$17","v":7.5},{"$f":"CG217*CH217*CI217","v":257.77499999999998},null,null,null,null,null,{"$f":"'DNSP Inputs O & M'!$H$16","v":34.369999999999997},1,{"$f":"'DNSP Inputs O & M'!$H$17","v":7.5},{"$f":"CP217*CQ217*CR217","v":257.77499999999998},null,null,null,{"$f":"'DNSP Inputs O & M'!$H$16","v":34.369999999999997},1,{"$f":"'DNSP Inputs O & M'!$H$17","v":7.5},{"$f":"CW217*CX217*CY217","v":257.77499999999998},null,null,null,{"$f":"'DNSP Inputs O & M'!$H$16","v":34.369999999999997},1,{"$f":"'DNSP Inputs O & M'!$H$17","v":7.5},{"$f":"DD217*DE217*DF217","v":257.77499999999998}]
["Labour - Repair of faults"]
["Crew costs",{"$f":"'DNSP Inputs O & M'!$D$12","v":111.36223236834823},{"$f":"'DNSP Inputs O & M'!$D$80","v":2},{"$f":"'DNSP Inputs O & M'!$D$17","v":7.5},{"$f":"B219*C219*D219","v":1670.4334855252234},{"$f":"(E219+E220)/'DNSP Inputs O & M'!$D$84*(C212+C213)/C212","v":214.77334855252232},{"$f":"F219/'DNSP Inputs O & M'!$D$74","v":42.954669710504461},null,{"$f":"'DNSP Inputs O & M'!$D$12","v":111.36223236834823},{"$f":"'DNSP Inputs O & M'!$D$80","v":2},{"$f":"'DNSP Inputs O & M'!$D$17","v":7.5},{"$f":"I219*J219*K219","v":1670.4334855252234},{"$f":"(L219+L220)/'DNSP Inputs O & M'!$D$85*(J212+J213)/J212","v":292.87274802616679},{"$f":"M219/'DNSP Inputs O & M'!$D$74","v":58.574549605233358},null,{"$f":"'DNSP Inputs O & M'!$D$12","v":111.36223236834823},{"$f":"'DNSP Inputs O & M'!$D$80","v":2},{"$f":"'DNSP Inputs O & M'!$D$17","v":7.5},{"$f":"P219*Q219*R219","v":1670.4334855252234},{"$f":"(S219+S220)/'DNSP Inputs O & M'!$D$86*(Q212+Q213)/Q212","v":357.95558092087055},{"$f":"T219/'DNSP Inputs O & M'!$D$74","v":71.591116184174112},null,null,null,{"$f":"'DNSP Inputs O & M'!$E$12","v":112.10021456669011},{"$f":"'DNSP Inputs O & M'!$E$80","v":2},{"$f":"'DNSP Inputs O & M'!$E$17","v":7.5},{"$f":"Y219*Z219*AA219","v":1681.5032185003517},{"$f":"(AB219+AB220)/'DNSP Inputs O & M'!$E$84*(Z212+Z213)/Z212","v":215.88032185003516},{"$f":"AC219/'DNSP Inputs O & M'!$E$74","v":43.176064370007033},{"$f":"AC219*AA116","v":10.479289667745888},{"$f":"'DNSP Inputs O & M'!$E$12","v":112.10021456669011},{"$f":"'DNSP Inputs O & M'!$E$80","v":2},{"$f":"'DNSP Inputs O & M'!$E$17","v":7.5},{"$f":"AF219*AG219*AH219","v":1681.5032185003517},{"$f":"(AI219+AI220)/'DNSP Inputs O & M'!$E$85*(AG212+AG213)/AG212","v":294.38225706822976},{"$f":"AJ219/'DNSP Inputs O & M'!$E$74","v":58.876451413645952},{"$f":"AJ219*AA116","v":14.289940456017119},{"$f":"'DNSP Inputs O & M'!$E$12","v":112.10021456669011},{"$f":"'DNSP Inputs O & M'!$E$80","v":2},{"$f":"'DNSP Inputs O & M'!$E$17","v":7.5},{"$f":"AM219*AN219*AO219","v":1681.5032185003517},{"$f":"(AP219+AP220)/'DNSP Inputs O & M'!$E$86*(AN212+AN213)/AN212","v":359.80053641672527},{"$f":"AQ219/'DNSP Inputs O & M'!$E$74","v":71.960107283345053},{"$f":"AQ219*AA116","v":17.46548277957648},null,null,{"$f":"'DNSP Inputs O & M'!$F$12","v":112.78304720629164},{"$f":"'DNSP Inputs O & M'!$F$80","v":2},{"$f":"'DNSP Inputs O & M'!$F$17","v":7.5},{"$f":"AV219*AW219*AX219","v":1691.7457080943745},{"$f":"(AY219+AY220)/'DNSP Inputs O & M'!$F$84*(AW212+AW213)/AW212","v":216.9045708094375},{"$f":"AZ219/'DNSP Inputs O & M'!$F$74","v":43.380914161887503},{"$f":"AZ219*AX116","v":10.529008889236213},{"$f":"'DNSP Inputs O & M'!$F$12","v":112.78304720629164},{"$f":"'DNSP Inputs O & M'!$F$80","v":2},{"$f":"'DNSP Inputs O & M'!$F$17","v":7.5},{"$f":"BC219*BD219*BE219","v":1691.7457080943745},{"$f":"(BF219+BF220)/'DNSP Inputs O & M'!$F$85*(BD212+BD213)/BD212","v":295.7789601946875},{"$f":"BG219/'DNSP Inputs O & M'!$F$74","v":59.155792038937498},{"$f":"BG219*AX116","v":14.357739394413016},{"$f":"'DNSP Inputs O & M'!$F$12","v":112.78304720629164},{"$f":"'DNSP Inputs O & M'!$F$80","v":2},{"$f":"'DNSP Inputs O & M'!$F$17","v":7.5},{"$f":"BJ219*BK219*BL219","v":1691.7457080943745},{"$f":"(BM219+BM220)/'DNSP Inputs O & M'!$F$86*(BK212+BK213)/BK212","v":361.50761801572912},{"$f":"BN219/'DNSP Inputs O & M'!$F$74","v":72.301523603145824},{"$f":"BN219*AX116","v":17.548348148727019},null,null,{"$f":"'DNSP Inputs O & M'!$G$12","v":113.60949069043043},{"$f":"'DNSP Inputs O & M'!$G$80","v":2},{"$f":"'DNSP Inputs O & M'!$G$17","v":7.5},{"$f":"BS219*BT219*BU219","v":1704.1423603564565},{"$f":"(BV219+BV220)/'DNSP Inputs O & M'!$G$84*(BT212+BT213)/BT212","v":218.14423603564566},{"$f":"BW219/'DNSP Inputs O & M'!$G$74","v":43.628847207129134},{"$f":"BW219*AX116","v":10.589184874176105},{"$f":"'DNSP Inputs O & M'!$G$12","v":113.60949069043043},{"$f":"'DNSP Inputs O & M'!$G$80","v":2},{"$f":"'DNSP Inputs O & M'!$G$17","v":7.5},{"$f":"BZ219*CA219*CB219","v":1704.1423603564565},{"$f":"(CC219+CC220)/'DNSP Inputs O & M'!$G$85*(CA212+CA213)/CA212","v":297.46941277588041},{"$f":"CD219/'DNSP Inputs O & M'!$G$74","v":59.493882555176086},{"$f":"CD219*AX116","v":14.439797555694687},{"$f":"'DNSP Inputs O & M'!$G$12","v":113.60949069043043},{"$f":"'DNSP Inputs O & M'!$G$80","v":2},{"$f":"'DNSP Inputs O & M'!$G$17","v":7.5},{"$f":"CG219*CH219*CI219","v":1704.1423603564565},{"$f":"(CJ219+CJ220)/'DNSP Inputs O & M'!$G$86*(CH212+CH213)/CH212","v":363.57372672607607},{"$f":"CK219/'DNSP Inputs O & M'!$G$74","v":72.714745345215221},{"$f":"CK219*AX116","v":17.648641456960174},null,null,{"$f":"'DNSP Inputs O & M'!$H$12","v":114.68985653357629},{"$f":"'DNSP Inputs O & M'!$H$80","v":2},{"$f":"'DNSP Inputs O & M'!$H$17","v":7.5},{"$f":"CP219*CQ219*CR219","v":1720.3478480036442},{"$f":"(CS219+CS220)/'DNSP Inputs O & M'!$H$84*(CQ212+CQ213)/CQ212","v":219.76478480036442},{"$f":"CT219/'DNSP Inputs O & M'!$H$74","v":43.952956960072882},{"$f":"CT219*BU116","v":10.667849755628305},{"$f":"'DNSP Inputs O & M'!$H$12","v":114.68985653357629},{"$f":"'DNSP Inputs O & M'!$H$80","v":2},{"$f":"'DNSP Inputs O & M'!$H$17","v":7.5},{"$f":"CW219*CX219*CY219","v":1720.3478480036442},{"$f":"(CZ219+CZ220)/'DNSP Inputs O & M'!$H$85*(CX212+CX213)/CX212","v":299.679252000497},{"$f":"DA219/'DNSP Inputs O & M'!$H$74","v":59.935850400099397},{"$f":"DA219*BU116","v":14.547067848584055},{"$f":"'DNSP Inputs O & M'!$H$12","v":114.68985653357629},{"$f":"'DNSP Inputs O & M'!$H$80","v":2},{"$f":"'DNSP Inputs O & M'!$H$17","v":7.5},{"$f":"DD219*DE219*DF219","v":1720.3478480036442},{"$f":"(DG219+DG220)/'DNSP Inputs O & M'!$H$86*(DE212+DE213)/DE212","v":366.27464133394074},{"$f":"DH219/'DNSP Inputs O & M'!$H$74","v":73.254928266788141},{"$f":"DH219*BU116","v":17.779749592713841}]
["Elevated platform vehicle costs",{"$f":"'DNSP Inputs O & M'!$D$15","v":63.64},1,{"$f":"'DNSP Inputs O & M'!$D$17","v":7.5},{"$f":"B220*C220*D220","v":477.3},null,null,null,{"$f":"'DNSP Inputs O & M'!$D$15","v":63.64},1,{"$f":"'DNSP Inputs O & M'!$D$17","v":7.5},{"$f":"I220*J220*K220","v":477.3},null,null,null,{"$f":"'DNSP Inputs O & M'!$D$15","v":63.64},1,{"$f":"'DNSP Inputs O & M'!$D$17","v":7.5},{"$f":"P220*Q220*R220","v":477.3},null,null,null,null,null,{"$f":"'DNSP Inputs O & M'!$E$15","v":63.64},1,{"$f":"'DNSP Inputs O & M'!$E$17","v":7.5},{"$f":"Y220*Z220*AA220","v":477.3},null,null,null,{"$f":"'DNSP Inputs O & M'!$E$15","v":63.64},1,{"$f":"'DNSP Inputs O & M'!$E$17","v":7.5},{"$f":"AF220*AG220*AH220","v":477.3},null,null,null,{"$f":"'DNSP Inputs O & M'!$E$15","v":63.64},1,{"$f":"'DNSP Inputs O & M'!$E$17","v":7.5},{"$f":"AM220*AN220*AO220","v":477.3},null,null,null,null,null,{"$f":"'DNSP Inputs O & M'!$F$15","v":63.64},1,{"$f":"'DNSP Inputs O & M'!$F$17","v":7.5},{"$f":"AV220*AW220*AX220","v":477.3},null,null,null,{"$f":"'DNSP Inputs O & M'!$F$15","v":63.64},1,{"$f":"'DNSP Inputs O & M'!$F$17","v":7.5},{"$f":"BC220*BD220*BE220","v":477.3},null,null,null,{"$f":"'DNSP Inputs O & M'!$F$15","v":63.64},1,{"$f":"'DNSP Inputs O & M'!$F$17","v":7.5},{"$f":"BJ220*BK220*BL220","v":477.3},null,null,null,null,null,{"$f":"'DNSP Inputs O & M'!$G$15","v":63.64},1,{"$f":"'DNSP Inputs O & M'!$G$17","v":7.5},{"$f":"BS220*BT220*BU220","v":477.3},null,null,null,{"$f":"'DNSP Inputs O & M'!$G$15","v":63.64},1,{"$f":"'DNSP Inputs O & M'!$G$17","v":7.5},{"$f":"BZ220*CA220*CB220","v":477.3},null,null,null,{"$f":"'DNSP Inputs O & M'!$G$15","v":63.64},1,{"$f":"'DNSP Inputs O & M'!$G$17","v":7.5},{"$f":"CG220*CH220*CI220","v":477.3},null,null,null,null,null,{"$f":"'DNSP Inputs O & M'!$H$15","v":63.64},1,{"$f":"'DNSP Inputs O & M'!$H$17","v":7.5},{"$f":"CP220*CQ220*CR220","v":477.3},null,null,null,{"$f":"'DNSP Inputs O & M'!$H$15","v":63.64},1,{"$f":"'DNSP Inputs O & M'!$H$17","v":7.5},{"$f":"CW220*CX220*CY220","v":477.3},null,null,null,{"$f":"'DNSP Inputs O & M'!$H$15","v":63.64},1,{"$f":"'DNSP Inputs O & M'!$H$17","v":7.5},{"$f":"DD220*DE220*DF220","v":477.3}]
[]
["Other Maintenance and Repair costs",null,null,null,null,null,{"$f":"'DNSP Inputs O & M'!$D$136","v":3.5130254986130134},null,null,null,null,null,null,{"$f":"'DNSP Inputs O & M'!$D$136","v":3.5130254986130134},null,null,null,null,null,null,{"$f":"'DNSP Inputs O & M'!$D$136","v":3.5130254986130134},null,null,null,null,null,null,null,null,{"$f":"'DNSP Inputs O & M'!$E$136","v":3.5187668103739815},null,null,null,null,null,null,{"$f":"'DNSP Inputs O & M'!$E$136","v":3.5187668103739815},null,null,null,null,null,null,{"$f":"'DNSP Inputs O & M'!$E$136","v":3.5187668103739815},null,null,null,null,null,null,null,null,{"$f":"'DNSP Inputs O & M'!$F$136","v":3.5247967153917674},null,null,null,null,null,null,{"$f":"'DNSP Inputs O & M'!$F$136","v":3.5247967153917674},null,null,null,null,null,null,{"$f":"'DNSP Inputs O & M'!$F$136","v":3.5247967153917674},null,null,null,null,null,null,null,null,{"$f":"'DNSP Inputs O & M'!$G$136","v":3.5311877185806311},null,null,null,null,null,null,{"$f":"'DNSP Inputs O & M'!$G$136","v":3.5311877185806311},null,null,null,null,null,null,{"$f":"'DNSP Inputs O & M'!$G$136","v":3.5311877185806311},null,null,null,null,null,null,null,null,{"$f":"'DNSP Inputs O & M'!$H$136","v":3.5364521662532886},null,null,null,null,null,null,{"$f":"'DNSP Inputs O & M'!$H$136","v":3.5364521662532886},null,null,null,null,null,null,{"$f":"'DNSP Inputs O & M'!$H$136","v":3.5364521662532886}]
[]
["Overheads",{"$f":"'DNSP Inputs O & M'!$D$18","v":0.25},null,null,null,null,{"$f":"B224*(G212+G216+G219+G222)","v":13.788814039065583},null,{"$f":"'DNSP Inputs O & M'!$D$18","v":0.25},null,null,null,null,{"$f":"I224*(N212+N216+N219+N222)","v":18.073497566368825},null,{"$f":"'DNSP Inputs O & M'!$D$18","v":0.25},null,null,null,null,{"$f":"P224*(U212+U216+U219+U222)","v":22.231369350376369},null,null,null,{"$f":"'DNSP Inputs O & M'!$E$18","v":0.25},null,null,null,null,{"$f":"Y224*(AD212+AD216+AD219+AD222)","v":13.849163568908876},null,{"$f":"'DNSP Inputs O & M'!$E$18","v":0.25},null,null,null,null,{"$f":"AF224*(AK212+AK216+AK219+AK222)","v":18.155756651953329},null,{"$f":"'DNSP Inputs O & M'!$E$18","v":0.25},null,null,null,null,{"$f":"AM224*(AR212+AR216+AR219+AR222)","v":22.70194320888821},null,null,null,{"$f":"'DNSP Inputs O & M'!$F$18","v":0.25},null,null,null,null,{"$f":"AV224*(BA212+BA216+BA219+BA222)","v":13.905182576858621},null,{"$f":"'DNSP Inputs O & M'!$F$18","v":0.25},null,null,null,null,{"$f":"BC224*(BH212+BH216+BH219+BH222)","v":18.232047910118432},null,{"$f":"'DNSP Inputs O & M'!$F$18","v":0.25},null,null,null,null,{"$f":"BJ224*(BO212+BO216+BO219+BO222)","v":22.798702016268393},null,null,null,{"$f":"'DNSP Inputs O & M'!$G$18","v":0.25},null,null,null,null,{"$f":"BS224*(BX212+BX216+BX219+BX222)","v":13.972756523823453},null,{"$f":"'DNSP Inputs O & M'!$G$18","v":0.25},null,null,null,null,{"$f":"BZ224*(CE212+CE216+CE219+CE222)","v":18.324157692261107},null,{"$f":"'DNSP Inputs O & M'!$G$18","v":0.25},null,null,null,null,{"$f":"CG224*(CL212+CL216+CL219+CL222)","v":22.915584007154578},null,null,null,{"$f":"'DNSP Inputs O & M'!$H$18","v":0.25},null,null,null,null,{"$f":"CP224*(CU212+CU216+CU219+CU222)","v":14.060319826466896},null,{"$f":"'DNSP Inputs O & M'!$H$18","v":0.25},null,null,null,null,{"$f":"CW224*(DB212+DB216+DB219+DB222)","v":18.443795394144111},null,{"$f":"'DNSP Inputs O & M'!$H$18","v":0.25},null,null,null,null,{"$f":"DD224*(DI212+DI216+DI219+DI222)","v":23.067605106933996}]
[]
[null,null,null,null,null,null,{"$f":"SUM(G212,G216,G219,G222,G224)","v":68.94407019532791},null,null,null,null,null,null,{"$f":"SUM(N212,N216,N219,N222,N224)","v":90.36748783184413},null,null,null,null,null,null,{"$f":"SUM(U212,U216,U219,U222,U224)","v":111.15684675188184},null,null,null,null,null,null,null,null,{"$f":"SUM(AD212,AD216,AD219,AD222,AD224)","v":69.245817844544376},null,null,null,null,null,null,{"$f":"SUM(AK212,AK216,AK219,AK222,AK224)","v":90.778783259766641},null,null,null,null,null,null,{"$f":"SUM(AR212,AR216,AR219,AR222,AR224)","v":113.50971604444105},null,null,null,null,null,null,null,null,{"$f":"SUM(BA212,BA216,BA219,BA222,BA224)","v":69.525912884293106},null,null,null,null,null,null,{"$f":"SUM(BH212,BH216,BH219,BH222,BH224)","v":91.160239550592166},null,null,null,null,null,null,{"$f":"SUM(BO212,BO216,BO219,BO222,BO224)","v":113.99351008134197},null,null,null,null,null,null,null,null,{"$f":"SUM(BX212,BX216,BX219,BX222,BX224)","v":69.863782619117259},null,null,null,null,null,null,{"$f":"SUM(CE212,CE216,CE219,CE222,CE224)","v":91.620788461305537},null,null,null,null,null,null,{"$f":"SUM(CL212,CL216,CL219,CL222,CL224)","v":114.57792003577289},null,null,null,null,null,null,null,null,{"$f":"SUM(CU212,CU216,CU219,CU222,CU224)","v":70.301599132334488},null,null,null,null,null,null,{"$f":"SUM(DB212,DB216,DB219,DB222,DB224)","v":92.218976970720547},null,null,null,null,null,null,{"$f":"SUM(DI212,DI216,DI219,DI222,DI224)","v":115.33802553466998}]
[]
[]
[]
[]
["T5 (2 X 14W) - Cost build-up"]
[]
["Additional assumptions"]
["Proportion of luminaire that will fail before bulk change",null,null,{"$f":"'DNSP Inputs O & M'!$D$186","v":0.41565636121546606},null,null,null,null,null,null,null,null,null,null,null,null,null,null,null,null,null,null,null,null,null,null,{"$f":"'DNSP Inputs O & M'!$E$186","v":0.41565636121546606},null,null,null,null,null,null,null,null,null,null,null,null,null,null,null,null,null,null,null,null,null,null,{"$f":"'DNSP Inputs O & M'!$F$186","v":0.41565636121546606},null,null,null,null,null,null,null,null,null,null,null,null,null,null,null,null,null,null,null,null,null,null,{"$f":"'DNSP Inputs O & M'!$G$186","v":0.41565636121546606},null,null,null,null,null,null,null,null,null,null,null,null,null,null,null,null,null,null,null,null,null,null,{"$f":"'DNSP Inputs O & M'!$H$186","v":0.41565636121546606}]
["Proportion of lamps that will fail before bulk change (per year)",null,null,{"$f":"D234/'DNSP Inputs O & M'!$D$183","v":0.10391409030386652},null,null,null,null,null,null,null,null,null,null,null,null,null,null,null,null,null,null,null,null,null,null,{"$f":"AA234/'DNSP Inputs O & M'!$E$183","v":0.10391409030386652},null,null,null,null,null,null,null,null,null,null,null,null,null,null,null,null,null,null,null,null,null,null,{"$f":"AX234/'DNSP Inputs O & M'!$F$183","v":0.10391409030386652},null,null,null,null,null,null,null,null,null,null,null,null,null,null,null,null,null,null,null,null,null,null,{"$f":"BU234/'DNSP Inputs O & M'!$G$183","v":0.10391409030386652},null,null,null,null,null,null,null,null,null,null,null,null,null,null,null,null,null,null,null,null,null,null,{"$f":"CR234/'DNSP Inputs O & M'!$H$183","v":0.10391409030386652}]
["Overheads are applied to material and labour components"]
["All costs and charges are exclusive of GST"]
[]
[null,"Urban",null,null,null,null,null,null,"Rural",null,null,null,null,null,null,"Remote",null,null,null,null,null,null,null,null,"Urban",null,null,null,null,null,null,"Rural",null,null,null,null,null,null,"Remote",null,null,null,null,null,null,null,null,"Urban",null,null,null,null,null,null,"Rural",null,null,null,null,null,null,"Remote",null,null,null,null,null,null,null,null,"Urban",null,null,null,null,null,null,"Rural",null,null,null,null,null,null,"Remote",null,null,null,null,null,null,null,null,"Urban",null,null,null,null,null,null,"Rural",null,null,null,null,null,null,"Remote"]
[]
[null,"Unit rate","Number","Hours","Cost","Annualised","Annualised",null,"Unit rate","Number","Hours","Cost","Annualised","Annualised",null,"Unit rate","Number","Hours","Cost","Annualised","Annualised",null,null,null,"Unit rate","Number","Hours","Cost","Annualised","Annualised",null,"Unit rate","Number","Hours","Cost","Annualised","Annualised",null,"Unit rate","Number","Hours","Cost","Annualised","Annualised",null,null,null,"Unit rate","Number","Hours","Cost","Annualised","Annualised",null,"Unit rate","Number","Hours","Cost","Annualised","Annualised",null,"Unit rate","Number","Hours","Cost","Annualised","Annualised",null,null,null,"Unit rate","Number","Hours","Cost","Annualised","Annualised",null,"Unit rate","Number","Hours","Cost","Annualised","Annualised",null,"Unit rate","Number","Hours","Cost","Annualised","Annualised",null,null,null,"Unit rate","Number","Hours","Cost","Annualised","Annualised",null,"Unit rate","Number","Hours","Cost","Annualised","Annualised",null,"Unit rate","Number","Hours","Cost","Annualised","Annualised"]
[null,null,null,null,null," cost","unit cost",null,null,null,null,null," cost","unit cost",null,null,null,null,null," cost","unit cost",null,null,null,null,null,null,null," cost","unit cost",null,null,null,null,null," cost","unit cost",null,null,null,null,null," cost","unit cost",null,null,null,null,null,null,null," cost","unit cost",null,null,null,null,null," cost","unit cost",null,null,null,null,null," cost","unit cost",null,null,null,null,null,null,null," cost","unit cost",null,null,null,null,null," cost","unit cost",null,null,null,null,null," cost","unit cost",null,null,null,null,null,null,null," cost","unit cost",null,null,null,null,null," cost","unit cost",null,null,null,null,null," cost","unit cost"]
["T5 (2 X 14W)"]
["Bulk change & repairs"]
["Materials - bulk lamp change"]
["Lamp",{"$f":"'DNSP Inputs O & M'!$D$187","v":8.1},{"$f":"'DNSP Inputs O & M'!$D$193","v":73.92},null,{"$f":"B246*C246","v":598.75199999999995},{"$f":"E246/'DNSP Inputs O & M'!$D$183*0.8","v":119.7504},{"$f":"(F246+F247+F248)/C246","v":3.7795291341384205},null,{"$f":"'DNSP Inputs O & M'!$D$187*(1+'DNSP Inputs O & M'!$D$11)","v":8.5050000000000008},{"$f":"'DNSP Inputs O & M'!$D$194","v":61.44},null,{"$f":"I246*J246","v":522.54719999999998},{"$f":"L246/'DNSP Inputs O & M'!$D$183*0.8","v":104.50944},{"$f":"(M246+M247+M248)/J246","v":3.9685055908453419},null,{"$f":"'DNSP Inputs O & M'!$D$187*(1+'DNSP Inputs O & M'!$D$11)","v":8.5050000000000008},{"$f":"'DNSP Inputs O & M'!$D$195","v":48.96},null,{"$f":"P246*Q246","v":416.40480000000002},{"$f":"S246/'DNSP Inputs O & M'!$D$183*0.8","v":83.280960000000007},{"$f":"(T246+T247+T248)/Q246","v":3.9685055908453419},null,null,null,{"$f":"'DNSP Inputs O & M'!$E$187","v":8.1},{"$f":"'DNSP Inputs O & M'!$E$193","v":73.92},null,{"$f":"Y246*Z246","v":598.75199999999995},{"$f":"AB246/'DNSP Inputs O & M'!$E$183*0.8","v":119.7504},{"$f":"(AC246+AC247+AC248)/Z246","v":3.7795291341384205},null,{"$f":"'DNSP Inputs O & M'!$E$187*(1+'DNSP Inputs O & M'!$E$11)","v":8.5050000000000008},{"$f":"'DNSP Inputs O & M'!$E$194","v":61.44},null,{"$f":"AF246*AG246","v":522.54719999999998},{"$f":"AI246/'DNSP Inputs O & M'!$E$183*0.8","v":104.50944},{"$f":"(AJ246+AJ247+AJ248)/AG246","v":3.9685055908453419},null,{"$f":"'DNSP Inputs O & M'!$E$187*(1+'DNSP Inputs O & M'!$E$11)","v":8.5050000000000008},{"$f":"'DNSP Inputs O & M'!$E$195","v":48.96},null,{"$f":"AM246*AN246","v":416.40480000000002},{"$f":"AP246/'DNSP Inputs O & M'!$E$183*0.8","v":83.280960000000007},{"$f":"(AQ246+AQ247+AQ248)/AN246","v":3.9685055908453419},null,null,null,{"$f":"'DNSP Inputs O & M'!$F$187","v":8.1},{"$f":"'DNSP Inputs O & M'!$F$193","v":73.92},null,{"$f":"AV246*AW246","v":598.75199999999995},{"$f":"AY246/'DNSP Inputs O & M'!$F$183*0.8","v":119.7504},{"$f":"(AZ246+AZ247+AZ248)/AW246","v":3.7795291341384205},null,{"$f":"'DNSP Inputs O & M'!$F$187*(1+'DNSP Inputs O & M'!$F$11)","v":8.5050000000000008},{"$f":"'DNSP Inputs O & M'!$F$194","v":61.44},null,{"$f":"BC246*BD246","v":522.54719999999998},{"$f":"BF246/'DNSP Inputs O & M'!$F$183*0.8","v":104.50944},{"$f":"(BG246+BG247+BG248)/BD246","v":3.9685055908453419},null,{"$f":"'DNSP Inputs O & M'!$F$187*(1+'DNSP Inputs O & M'!$F$11)","v":8.5050000000000008},{"$f":"'DNSP Inputs O & M'!$F$195","v":48.96},null,{"$f":"BJ246*BK246","v":416.40480000000002},{"$f":"BM246/'DNSP Inputs O & M'!$F$183*0.8","v":83.280960000000007},{"$f":"(BN246+BN247+BN248)/BK246","v":3.9685055908453419},null,null,null,{"$f":"'DNSP Inputs O & M'!$G$187","v":8.1},{"$f":"'DNSP Inputs O & M'!$G$193","v":73.92},null,{"$f":"BS246*BT246","v":598.75199999999995},{"$f":"BV246/'DNSP Inputs O & M'!$G$183*0.8","v":119.7504},{"$f":"(BW246+BW247+BW248)/BT246","v":3.7795291341384205},null,{"$f":"'DNSP Inputs O & M'!$G$187*(1+'DNSP Inputs O & M'!$G$11)","v":8.5050000000000008},{"$f":"'DNSP Inputs O & M'!$G$194","v":61.44},null,{"$f":"BZ246*CA246","v":522.54719999999998},{"$f":"CC246/'DNSP Inputs O & M'!$G$183*0.8","v":104.50944},{"$f":"(CD246+CD247+CD248)/CA246","v":3.9685055908453419},null,{"$f":"'DNSP Inputs O & M'!$G$187*(1+'DNSP Inputs O & M'!$G$11)","v":8.5050000000000008},{"$f":"'DNSP Inputs O & M'!$G$195","v":48.96},null,{"$f":"CG246*CH246","v":416.40480000000002},{"$f":"CJ246/'DNSP Inputs O & M'!$G$183*0.8","v":83.280960000000007},{"$f":"(CK246+CK247+CK248)/CH246","v":3.9685055908453419},null,null,null,{"$f":"'DNSP Inputs O & M'!$H$187","v":8.1},{"$f":"'DNSP Inputs O & M'!$H$193","v":73.92},null,{"$f":"CP246*CQ246","v":598.75199999999995},{"$f":"CS246/'DNSP Inputs O & M'!$H$183*0.8","v":119.7504},{"$f":"(CT246+CT247+CT248)/CQ246","v":3.7795291341384205},null,{"$f":"'DNSP Inputs O & M'!$H$187*(1+'DNSP Inputs O & M'!$H$11)","v":8.5050000000000008},{"$f":"'DNSP Inputs O & M'!$H$194","v":61.44},null,{"$f":"CW246*CX246","v":522.54719999999998},{"$f":"CZ246/'DNSP Inputs O & M'!$H$183*0.8","v":104.50944},{"$f":"(DA246+DA247+DA248)/CX246","v":3.9685055908453419},null,{"$f":"'DNSP Inputs O & M'!$H$187*(1+'DNSP Inputs O & M'!$H$11)","v":8.5050000000000008},{"$f":"'DNSP Inputs O & M'!$H$195","v":48.96},null,{"$f":"DD246*DE246","v":416.40480000000002},{"$f":"DG246/'DNSP Inputs O & M'!$H$183*0.8","v":83.280960000000007},{"$f":"(DH246+DH247+DH248)/DE246","v":3.9685055908453419}]
["PE cell",{"$f":"'DNSP Inputs O & M'!$D$188","v":15.120000000000001},{"$f":"C246*'DNSP Inputs O & M'!$D$183/'DNSP Inputs O & M'!$D$184","v":36.96},null,{"$f":"B247*C247","v":558.8352000000001},{"$f":"E247/'DNSP Inputs O & M'!$D$183","v":139.70880000000002},null,null,{"$f":"'DNSP Inputs O & M'!$D$188*(1+'DNSP Inputs O & M'!$D$11)","v":15.876000000000001},{"$f":"J246*'DNSP Inputs O & M'!$D$183/'DNSP Inputs O & M'!$D$184","v":30.72},null,{"$f":"I247*J247","v":487.71072000000004},{"$f":"L247/'DNSP Inputs O & M'!$D$183","v":121.92768000000001},null,null,{"$f":"'DNSP Inputs O & M'!$D$188*(1+'DNSP Inputs O & M'!$D$11)","v":15.876000000000001},{"$f":"Q246*'DNSP Inputs O & M'!$D$183/'DNSP Inputs O & M'!$D$184","v":24.48},null,{"$f":"P247*Q247","v":388.64448000000004},{"$f":"S247/'DNSP Inputs O & M'!$D$183","v":97.161120000000011},null,null,null,null,{"$f":"'DNSP Inputs O & M'!$E$188","v":15.120000000000001},{"$f":"Z246*'DNSP Inputs O & M'!$E$183/'DNSP Inputs O & M'!$E$184","v":36.96},null,{"$f":"Y247*Z247","v":558.8352000000001},{"$f":"AB247/'DNSP Inputs O & M'!$E$183","v":139.70880000000002},null,null,{"$f":"'DNSP Inputs O & M'!$E$188*(1+'DNSP Inputs O & M'!$E$11)","v":15.876000000000001},{"$f":"AG246*'DNSP Inputs O & M'!$E$183/'DNSP Inputs O & M'!$E$184","v":30.72},null,{"$f":"AF247*AG247","v":487.71072000000004},{"$f":"AI247/'DNSP Inputs O & M'!$E$183","v":121.92768000000001},null,null,{"$f":"'DNSP Inputs O & M'!$E$188*(1+'DNSP Inputs O & M'!$E$11)","v":15.876000000000001},{"$f":"AN246*'DNSP Inputs O & M'!$E$183/'DNSP Inputs O & M'!$E$184","v":24.48},null,{"$f":"AM247*AN247","v":388.64448000000004},{"$f":"AP247/'DNSP Inputs O & M'!$E$183","v":97.161120000000011},null,null,null,null,{"$f":"'DNSP Inputs O & M'!$F$188","v":15.120000000000001},{"$f":"AW246*'DNSP Inputs O & M'!$F$183/'DNSP Inputs O & M'!$F$184","v":36.96},null,{"$f":"AV247*AW247","v":558.8352000000001},{"$f":"AY247/'DNSP Inputs O & M'!$F$183","v":139.70880000000002},null,null,{"$f":"'DNSP Inputs O & M'!$F$188*(1+'DNSP Inputs O & M'!$F$11)","v":15.876000000000001},{"$f":"BD246*'DNSP Inputs O & M'!$F$183/'DNSP Inputs O & M'!$F$184","v":30.72},null,{"$f":"BC247*BD247","v":487.71072000000004},{"$f":"BF247/'DNSP Inputs O & M'!$F$183","v":121.92768000000001},null,null,{"$f":"'DNSP Inputs O & M'!$F$188*(1+'DNSP Inputs O & M'!$F$11)","v":15.876000000000001},{"$f":"BK246*'DNSP Inputs O & M'!$F$183/'DNSP Inputs O & M'!$F$184","v":24.48},null,{"$f":"BJ247*BK247","v":388.64448000000004},{"$f":"BM247/'DNSP Inputs O & M'!$F$183","v":97.161120000000011},null,null,null,null,{"$f":"'DNSP Inputs O & M'!$G$188","v":15.120000000000001},{"$f":"BT246*'DNSP Inputs O & M'!$G$183/'DNSP Inputs O & M'!$G$184","v":36.96},null,{"$f":"BS247*BT247","v":558.8352000000001},{"$f":"BV247/'DNSP Inputs O & M'!$G$183","v":139.70880000000002},null,null,{"$f":"'DNSP Inputs O & M'!$G$188*(1+'DNSP Inputs O & M'!$G$11)","v":15.876000000000001},{"$f":"CA246*'DNSP Inputs O & M'!$G$183/'DNSP Inputs O & M'!$G$184","v":30.72},null,{"$f":"BZ247*CA247","v":487.71072000000004},{"$f":"CC247/'DNSP Inputs O & M'!$G$183","v":121.92768000000001},null,null,{"$f":"'DNSP Inputs O & M'!$G$188*(1+'DNSP Inputs O & M'!$G$11)","v":15.876000000000001},{"$f":"CH246*'DNSP Inputs O & M'!$G$183/'DNSP Inputs O & M'!$G$184","v":24.48},null,{"$f":"CG247*CH247","v":388.64448000000004},{"$f":"CJ247/'DNSP Inputs O & M'!$G$183","v":97.161120000000011},null,null,null,null,{"$f":"'DNSP Inputs O & M'!$H$188","v":15.120000000000001},{"$f":"CQ246*'DNSP Inputs O & M'!$H$183/'DNSP Inputs O & M'!$H$184","v":36.96},null,{"$f":"CP247*CQ247","v":558.8352000000001},{"$f":"CS247/'DNSP Inputs O & M'!$H$183","v":139.70880000000002},null,null,{"$f":"'DNSP Inputs O & M'!$H$188*(1+'DNSP Inputs O & M'!$H$11)","v":15.876000000000001},{"$f":"CX246*'DNSP Inputs O & M'!$H$183/'DNSP Inputs O & M'!$H$184","v":30.72},null,{"$f":"CW247*CX247","v":487.71072000000004},{"$f":"CZ247/'DNSP Inputs O & M'!$H$183","v":121.92768000000001},null,null,{"$f":"'DNSP Inputs O & M'!$H$188*(1+'DNSP Inputs O & M'!$H$11)","v":15.876000000000001},{"$f":"DE246*'DNSP Inputs O & M'!$H$183/'DNSP Inputs O & M'!$H$184","v":24.48},null,{"$f":"DD247*DE247","v":388.64448000000004},{"$f":"DG247/'DNSP Inputs O & M'!$H$183","v":97.161120000000011}]
["Miscellaneous",{"$f":"'DNSP Inputs O & M'!$D$190","v":1.3476456706921032},{"$f":"'DNSP Inputs O & M'!$D$193","v":73.92},null,{"$f":"B248*C248","v":99.617967977560269},{"$f":"E248/'DNSP Inputs O & M'!$D$183*0.8","v":19.923593595512056},null,null,{"$f":"'DNSP Inputs O & M'!$D$190*(1+'DNSP Inputs O & M'!$D$11)","v":1.4150279542267084},{"$f":"'DNSP Inputs O & M'!$D$194","v":61.44},null,{"$f":"I248*J248","v":86.939317507688955},{"$f":"L248/'DNSP Inputs O & M'!$D$183*0.8","v":17.38786350153779},null,null,{"$f":"'DNSP Inputs O & M'!$D$190*(1+'DNSP Inputs O & M'!$D$11)","v":1.4150279542267084},{"$f":"'DNSP Inputs O & M'!$D$195","v":48.96},null,{"$f":"P248*Q248","v":69.279768638939643},{"$f":"S248/'DNSP Inputs O & M'!$D$183*0.8","v":13.855953727787929},null,null,null,null,{"$f":"'DNSP Inputs O & M'!$E$190","v":1.3476456706921032},{"$f":"'DNSP Inputs O & M'!$E$193","v":73.92},null,{"$f":"Y248*Z248","v":99.617967977560269},{"$f":"AB248/'DNSP Inputs O & M'!$E$183*0.8","v":19.923593595512056},null,null,{"$f":"'DNSP Inputs O & M'!$E$190*(1+'DNSP Inputs O & M'!$E$11)","v":1.4150279542267084},{"$f":"'DNSP Inputs O & M'!$E$194","v":61.44},null,{"$f":"AF248*AG248","v":86.939317507688955},{"$f":"AI248/'DNSP Inputs O & M'!$E$183*0.8","v":17.38786350153779},null,null,{"$f":"'DNSP Inputs O & M'!$E$190*(1+'DNSP Inputs O & M'!$E$11)","v":1.4150279542267084},{"$f":"'DNSP Inputs O & M'!$E$195","v":48.96},null,{"$f":"AM248*AN248","v":69.279768638939643},{"$f":"AP248/'DNSP Inputs O & M'!$E$183*0.8","v":13.855953727787929},null,null,null,null,{"$f":"'DNSP Inputs O & M'!$F$190","v":1.3476456706921032},{"$f":"'DNSP Inputs O & M'!$F$193","v":73.92},null,{"$f":"AV248*AW248","v":99.617967977560269},{"$f":"AY248/'DNSP Inputs O & M'!$F$183*0.8","v":19.923593595512056},null,null,{"$f":"'DNSP Inputs O & M'!$F$190*(1+'DNSP Inputs O & M'!$F$11)","v":1.4150279542267084},{"$f":"'DNSP Inputs O & M'!$F$194","v":61.44},null,{"$f":"BC248*BD248","v":86.939317507688955},{"$f":"BF248/'DNSP Inputs O & M'!$F$183*0.8","v":17.38786350153779},null,null,{"$f":"'DNSP Inputs O & M'!$F$190*(1+'DNSP Inputs O & M'!$F$11)","v":1.4150279542267084},{"$f":"'DNSP Inputs O & M'!$F$195","v":48.96},null,{"$f":"BJ248*BK248","v":69.279768638939643},{"$f":"BM248/'DNSP Inputs O & M'!$F$183*0.8","v":13.855953727787929},null,null,null,null,{"$f":"'DNSP Inputs O & M'!$G$190","v":1.3476456706921032},{"$f":"'DNSP Inputs O & M'!$G$193","v":73.92},null,{"$f":"BS248*BT248","v":99.617967977560269},{"$f":"BV248/'DNSP Inputs O & M'!$G$183*0.8","v":19.923593595512056},null,null,{"$f":"'DNSP Inputs O & M'!$G$190*(1+'DNSP Inputs O & M'!$G$11)","v":1.4150279542267084},{"$f":"'DNSP Inputs O & M'!$G$194","v":61.44},null,{"$f":"BZ248*CA248","v":86.939317507688955},{"$f":"CC248/'DNSP Inputs O & M'!$G$183*0.8","v":17.38786350153779},null,null,{"$f":"'DNSP Inputs O & M'!$G$190*(1+'DNSP Inputs O & M'!$G$11)","v":1.4150279542267084},{"$f":"'DNSP Inputs O & M'!$G$195","v":48.96},null,{"$f":"CG248*CH248","v":69.279768638939643},{"$f":"CJ248/'DNSP Inputs O & M'!$G$183*0.8","v":13.855953727787929},null,null,null,null,{"$f":"'DNSP Inputs O & M'!$H$190","v":1.3476456706921032},{"$f":"'DNSP Inputs O & M'!$H$193","v":73.92},null,{"$f":"CP248*CQ248","v":99.617967977560269},{"$f":"CS248/'DNSP Inputs O & M'!$H$183*0.8","v":19.923593595512056},null,null,{"$f":"'DNSP Inputs O & M'!$H$190*(1+'DNSP Inputs O & M'!$H$11)","v":1.4150279542267084},{"$f":"'DNSP Inputs O & M'!$H$194","v":61.44},null,{"$f":"CW248*CX248","v":86.939317507688955},{"$f":"CZ248/'DNSP Inputs O & M'!$H$183*0.8","v":17.38786350153779},null,null,{"$f":"'DNSP Inputs O & M'!$H$190*(1+'DNSP Inputs O & M'!$H$11)","v":1.4150279542267084},{"$f":"'DNSP Inputs O & M'!$H$195","v":48.96},null,{"$f":"DD248*DE248","v":69.279768638939643},{"$f":"DG248/'DNSP Inputs O & M'!$H$183*0.8","v":13.855953727787929}]
["Materials - repair of faults"]
["Lamp",{"$f":"'DNSP Inputs O & M'!$D$187","v":8.1},{"$f":"'DNSP Inputs O & M'!$D$196*'DNSP Inputs O & M'!$D$199","v":14.975999999999999},null,{"$f":"B250*C250","v":121.30559999999998},{"$f":"(E250+E251+E252+E253)/'DNSP Inputs O & M'!$D$196","v":13.767645670692103},{"$f":"F250*D235","v":1.4306523754959359},null,{"$f":"'DNSP Inputs O & M'!$D$187*(1+'DNSP Inputs O & M'!$D$11)","v":8.5050000000000008},{"$f":"'DNSP Inputs O & M'!$D$197*'DNSP Inputs O & M'!$D$199","v":12.096},null,{"$f":"I250*J250","v":102.87648000000002},{"$f":"(L250+L251+L252+L253)/'DNSP Inputs O & M'!$D$197","v":14.456027954226707},{"$f":"M250*D235","v":1.5021849942707328},null,{"$f":"'DNSP Inputs O & M'!$D$187*(1+'DNSP Inputs O & M'!$D$11)","v":8.5050000000000008},{"$f":"'DNSP Inputs O & M'!$D$198*'DNSP Inputs O & M'!$D$199","v":9.7919999999999998},null,{"$f":"P250*Q250","v":83.280960000000007},{"$f":"(S250+S251+S252+S253)/'DNSP Inputs O & M'!$D$198","v":14.456027954226712},{"$f":"T250*D235","v":1.5021849942707333},null,null,null,{"$f":"'DNSP Inputs O & M'!$E$187","v":8.1},{"$f":"'DNSP Inputs O & M'!$E$196*'DNSP Inputs O & M'!$E$199","v":14.975999999999999},null,{"$f":"Y250*Z250","v":121.30559999999998},{"$f":"(AB250+AB251+AB252+AB253)/'DNSP Inputs O & M'!$E$196","v":13.767645670692103},{"$f":"AC250*AA235","v":1.4306523754959359},null,{"$f":"'DNSP Inputs O & M'!$E$187*(1+'DNSP Inputs O & M'!$E$11)","v":8.5050000000000008},{"$f":"'DNSP Inputs O & M'!$E$197*'DNSP Inputs O & M'!$E$199","v":12.096},null,{"$f":"AF250*AG250","v":102.87648000000002},{"$f":"(AI250+AI251+AI252+AI253)/'DNSP Inputs O & M'!$E$197","v":14.456027954226707},{"$f":"AJ250*AA235","v":1.5021849942707328},null,{"$f":"'DNSP Inputs O & M'!$E$187*(1+'DNSP Inputs O & M'!$E$11)","v":8.5050000000000008},{"$f":"'DNSP Inputs O & M'!$E$198*'DNSP Inputs O & M'!$E$199","v":9.7919999999999998},null,{"$f":"AM250*AN250","v":83.280960000000007},{"$f":"(AP250+AP251+AP252+AP253)/'DNSP Inputs O & M'!$E$198","v":14.456027954226712},{"$f":"AQ250*AA235","v":1.5021849942707333},null,null,null,{"$f":"'DNSP Inputs O & M'!$F$187","v":8.1},{"$f":"'DNSP Inputs O & M'!$F$196*'DNSP Inputs O & M'!$F$199","v":14.975999999999999},null,{"$f":"AV250*AW250","v":121.30559999999998},{"$f":"(AY250+AY251+AY252+AY253)/'DNSP Inputs O & M'!$F$196","v":13.767645670692103},{"$f":"AZ250*AX235","v":1.4306523754959359},null,{"$f":"'DNSP Inputs O & M'!$F$187*(1+'DNSP Inputs O & M'!$F$11)","v":8.5050000000000008},{"$f":"'DNSP Inputs O & M'!$F$197*'DNSP Inputs O & M'!$F$199","v":12.096},null,{"$f":"BC250*BD250","v":102.87648000000002},{"$f":"(BF250+BF251+BF252+BF253)/'DNSP Inputs O & M'!$F$197","v":14.456027954226707},{"$f":"BG250*AX235","v":1.5021849942707328},null,{"$f":"'DNSP Inputs O & M'!$F$187*(1+'DNSP Inputs O & M'!$F$11)","v":8.5050000000000008},{"$f":"'DNSP Inputs O & M'!$F$198*'DNSP Inputs O & M'!$F$199","v":9.7919999999999998},null,{"$f":"BJ250*BK250","v":83.280960000000007},{"$f":"(BM250+BM251+BM252+BM253)/'DNSP Inputs O & M'!$F$198","v":14.456027954226712},{"$f":"BN250*AX235","v":1.5021849942707333},null,null,null,{"$f":"'DNSP Inputs O & M'!$G$187","v":8.1},{"$f":"'DNSP Inputs O & M'!$G$196*'DNSP Inputs O & M'!$G$199","v":14.975999999999999},null,{"$f":"BS250*BT250","v":121.30559999999998},{"$f":"(BV250+BV251+BV252+BV253)/'DNSP Inputs O & M'!$G$196","v":13.767645670692103},{"$f":"BW250*BU235","v":1.4306523754959359},null,{"$f":"'DNSP Inputs O & M'!$G$187*(1+'DNSP Inputs O & M'!$G$11)","v":8.5050000000000008},{"$f":"'DNSP Inputs O & M'!$G$197*'DNSP Inputs O & M'!$G$199","v":12.096},null,{"$f":"BZ250*CA250","v":102.87648000000002},{"$f":"(CC250+CC251+CC252+CC253)/'DNSP Inputs O & M'!$G$197","v":14.456027954226707},{"$f":"CD250*BU235","v":1.5021849942707328},null,{"$f":"'DNSP Inputs O & M'!$G$187*(1+'DNSP Inputs O & M'!$G$11)","v":8.5050000000000008},{"$f":"'DNSP Inputs O & M'!$G$198*'DNSP Inputs O & M'!$G$199","v":9.7919999999999998},null,{"$f":"CG250*CH250","v":83.280960000000007},{"$f":"(CJ250+CJ251+CJ252+CJ253)/'DNSP Inputs O & M'!$G$198","v":14.456027954226712},{"$f":"CK250*BU235","v":1.5021849942707333},null,null,null,{"$f":"'DNSP Inputs O & M'!$H$187","v":8.1},{"$f":"'DNSP Inputs O & M'!$H$196*'DNSP Inputs O & M'!$H$199","v":14.975999999999999},null,{"$f":"CP250*CQ250","v":121.30559999999998},{"$f":"(CS250+CS251+CS252+CS253)/'DNSP Inputs O & M'!$H$196","v":13.767645670692103},{"$f":"CT250*CR235","v":1.4306523754959359},null,{"$f":"'DNSP Inputs O & M'!$H$187*(1+'DNSP Inputs O & M'!$H$11)","v":8.5050000000000008},{"$f":"'DNSP Inputs O & M'!$H$197*'DNSP Inputs O & M'!$H$199","v":12.096},null,{"$f":"CW250*CX250","v":102.87648000000002},{"$f":"(CZ250+CZ251+CZ252+CZ253)/'DNSP Inputs O & M'!$H$197","v":14.456027954226707},{"$f":"DA250*CR235","v":1.5021849942707328},null,{"$f":"'DNSP Inputs O & M'!$H$187*(1+'DNSP Inputs O & M'!$H$11)","v":8.5050000000000008},{"$f":"'DNSP Inputs O & M'!$H$198*'DNSP Inputs O & M'!$H$199","v":9.7919999999999998},null,{"$f":"DD250*DE250","v":83.280960000000007},{"$f":"(DG250+DG251+DG252+DG253)/'DNSP Inputs O & M'!$H$198","v":14.456027954226712},{"$f":"DH250*CR235","v":1.5021849942707333}]
["PE cell",{"$f":"'DNSP Inputs O & M'!$D$188","v":15.120000000000001},{"$f":"'DNSP Inputs O & M'!$D$196*'DNSP Inputs O & M'!$D$200","v":12.48},null,{"$f":"B251*C251","v":188.69760000000002},null,null,null,{"$f":"'DNSP Inputs O & M'!$D$188*(1+'DNSP Inputs O & M'!$D$11)","v":15.876000000000001},{"$f":"'DNSP Inputs O & M'!$D$197*'DNSP Inputs O & M'!$D$200","v":10.08},null,{"$f":"I251*J251","v":160.03008000000003},null,null,null,{"$f":"'DNSP Inputs O & M'!$D$188*(1+'DNSP Inputs O & M'!$D$11)","v":15.876000000000001},{"$f":"'DNSP Inputs O & M'!$D$198*'DNSP Inputs O & M'!$D$200","v":8.16},null,{"$f":"P251*Q251","v":129.54816000000002},null,null,null,null,null,{"$f":"'DNSP Inputs O & M'!$E$188","v":15.120000000000001},{"$f":"'DNSP Inputs O & M'!$E$196*'DNSP Inputs O & M'!$E$200","v":12.48},null,{"$f":"Y251*Z251","v":188.69760000000002},null,null,null,{"$f":"'DNSP Inputs O & M'!$E$188*(1+'DNSP Inputs O & M'!$E$11)","v":15.876000000000001},{"$f":"'DNSP Inputs O & M'!$E$197*'DNSP Inputs O & M'!$E$200","v":10.08},null,{"$f":"AF251*AG251","v":160.03008000000003},null,null,null,{"$f":"'DNSP Inputs O & M'!$E$188*(1+'DNSP Inputs O & M'!$E$11)","v":15.876000000000001},{"$f":"'DNSP Inputs O & M'!$E$198*'DNSP Inputs O & M'!$E$200","v":8.16},null,{"$f":"AM251*AN251","v":129.54816000000002},null,null,null,null,null,{"$f":"'DNSP Inputs O & M'!$F$188","v":15.120000000000001},{"$f":"'DNSP Inputs O & M'!$F$196*'DNSP Inputs O & M'!$F$200","v":12.48},null,{"$f":"AV251*AW251","v":188.69760000000002},null,null,null,{"$f":"'DNSP Inputs O & M'!$F$188*(1+'DNSP Inputs O & M'!$F$11)","v":15.876000000000001},{"$f":"'DNSP Inputs O & M'!$F$197*'DNSP Inputs O & M'!$F$200","v":10.08},null,{"$f":"BC251*BD251","v":160.03008000000003},null,null,null,{"$f":"'DNSP Inputs O & M'!$F$188*(1+'DNSP Inputs O & M'!$F$11)","v":15.876000000000001},{"$f":"'DNSP Inputs O & M'!$F$198*'DNSP Inputs O & M'!$F$200","v":8.16},null,{"$f":"BJ251*BK251","v":129.54816000000002},null,null,null,null,null,{"$f":"'DNSP Inputs O & M'!$G$188","v":15.120000000000001},{"$f":"'DNSP Inputs O & M'!$G$196*'DNSP Inputs O & M'!$G$200","v":12.48},null,{"$f":"BS251*BT251","v":188.69760000000002},null,null,null,{"$f":"'DNSP Inputs O & M'!$G$188*(1+'DNSP Inputs O & M'!$G$11)","v":15.876000000000001},{"$f":"'DNSP Inputs O & M'!$G$197*'DNSP Inputs O & M'!$G$200","v":10.08},null,{"$f":"BZ251*CA251","v":160.03008000000003},null,null,null,{"$f":"'DNSP Inputs O & M'!$G$188*(1+'DNSP Inputs O & M'!$G$11)","v":15.876000000000001},{"$f":"'DNSP Inputs O & M'!$G$198*'DNSP Inputs O & M'!$G$200","v":8.16},null,{"$f":"CG251*CH251","v":129.54816000000002},null,null,null,null,null,{"$f":"'DNSP Inputs O & M'!$H$188","v":15.120000000000001},{"$f":"'DNSP Inputs O & M'!$H$196*'DNSP Inputs O & M'!$H$200","v":12.48},null,{"$f":"CP251*CQ251","v":188.69760000000002},null,null,null,{"$f":"'DNSP Inputs O & M'!$H$188*(1+'DNSP Inputs O & M'!$H$11)","v":15.876000000000001},{"$f":"'DNSP Inputs O & M'!$H$197*'DNSP Inputs O & M'!$H$200","v":10.08},null,{"$f":"CW251*CX251","v":160.03008000000003},null,null,null,{"$f":"'DNSP Inputs O & M'!$H$188*(1+'DNSP Inputs O & M'!$H$11)","v":15.876000000000001},{"$f":"'DNSP Inputs O & M'!$H$198*'DNSP Inputs O & M'!$H$200","v":8.16},null,{"$f":"DD251*DE251","v":129.54816000000002}]
["Luminaire",{"$f":"'DNSP Inputs O & M'!$D$189","v":260.27999999999997},{"$f":"'DNSP Inputs O & M'!$D$196*'DNSP Inputs O & M'!$D$201","v":0},null,{"$f":"B252*C252","v":0},null,null,null,{"$f":"'DNSP Inputs O & M'!$D$189*(1+'DNSP Inputs O & M'!$D$11)","v":273.29399999999998},{"$f":"'DNSP Inputs O & M'!$D$197*'DNSP Inputs O & M'!$D$201","v":0},null,{"$f":"I252*J252","v":0},null,null,null,{"$f":"'DNSP Inputs O & M'!$D$189*(1+'DNSP Inputs O & M'!$D$11)","v":273.29399999999998},{"$f":"'DNSP Inputs O & M'!$D$198*'DNSP Inputs O & M'!$D$201","v":0},null,{"$f":"P252*Q252","v":0},null,null,null,null,null,{"$f":"'DNSP Inputs O & M'!$E$189","v":260.27999999999997},{"$f":"'DNSP Inputs O & M'!$E$196*'DNSP Inputs O & M'!$E$201","v":0},null,{"$f":"Y252*Z252","v":0},null,null,null,{"$f":"'DNSP Inputs O & M'!$E$189*(1+'DNSP Inputs O & M'!$E$11)","v":273.29399999999998},{"$f":"'DNSP Inputs O & M'!$E$197*'DNSP Inputs O & M'!$E$201","v":0},null,{"$f":"AF252*AG252","v":0},null,null,null,{"$f":"'DNSP Inputs O & M'!$E$189*(1+'DNSP Inputs O & M'!$E$11)","v":273.29399999999998},{"$f":"'DNSP Inputs O & M'!$E$198*'DNSP Inputs O & M'!$E$201","v":0},null,{"$f":"AM252*AN252","v":0},null,null,null,null,null,{"$f":"'DNSP Inputs O & M'!$F$189","v":260.27999999999997},{"$f":"'DNSP Inputs O & M'!$F$196*'DNSP Inputs O & M'!$F$201","v":0},null,{"$f":"AV252*AW252","v":0},null,null,null,{"$f":"'DNSP Inputs O & M'!$F$189*(1+'DNSP Inputs O & M'!$F$11)","v":273.29399999999998},{"$f":"'DNSP Inputs O & M'!$F$197*'DNSP Inputs O & M'!$F$201","v":0},null,{"$f":"BC252*BD252","v":0},null,null,null,{"$f":"'DNSP Inputs O & M'!$F$189*(1+'DNSP Inputs O & M'!$F$11)","v":273.29399999999998},{"$f":"'DNSP Inputs O & M'!$F$198*'DNSP Inputs O & M'!$F$201","v":0},null,{"$f":"BJ252*BK252","v":0},null,null,null,null,null,{"$f":"'DNSP Inputs O & M'!$G$189","v":260.27999999999997},{"$f":"'DNSP Inputs O & M'!$G$196*'DNSP Inputs O & M'!$G$201","v":0},null,{"$f":"BS252*BT252","v":0},null,null,null,{"$f":"'DNSP Inputs O & M'!$G$189*(1+'DNSP Inputs O & M'!$G$11)","v":273.29399999999998},{"$f":"'DNSP Inputs O & M'!$G$197*'DNSP Inputs O & M'!$G$201","v":0},null,{"$f":"BZ252*CA252","v":0},null,null,null,{"$f":"'DNSP Inputs O & M'!$G$189*(1+'DNSP Inputs O & M'!$G$11)","v":273.29399999999998},{"$f":"'DNSP Inputs O & M'!$G$198*'DNSP Inputs O & M'!$G$201","v":0},null,{"$f":"CG252*CH252","v":0},null,null,null,null,null,{"$f":"'DNSP Inputs O & M'!$H$189","v":260.27999999999997},{"$f":"'DNSP Inputs O & M'!$H$196*'DNSP Inputs O & M'!$H$201","v":0},null,{"$f":"CP252*CQ252","v":0},null,null,null,{"$f":"'DNSP Inputs O & M'!$H$189*(1+'DNSP Inputs O & M'!$H$11)","v":273.29399999999998},{"$f":"'DNSP Inputs O & M'!$H$197*'DNSP Inputs O & M'!$H$201","v":0},null,{"$f":"CW252*CX252","v":0},null,null,null,{"$f":"'DNSP Inputs O & M'!$H$189*(1+'DNSP Inputs O & M'!$H$11)","v":273.29399999999998},{"$f":"'DNSP Inputs O & M'!$H$198*'DNSP Inputs O & M'!$H$201","v":0},null,{"$f":"DD252*DE252","v":0}]
["Miscellaneous",{"$f":"'DNSP Inputs O & M'!$D$191","v":13.476456706921033},{"$f":"'DNSP Inputs O & M'!$D$196*'DNSP Inputs O & M'!$D$202","v":2.4960000000000004},null,{"$f":"B253*C253","v":33.637235940474902},null,null,null,{"$f":"'DNSP Inputs O & M'!$D$191*(1+'DNSP Inputs O & M'!$D$11)","v":14.150279542267084},{"$f":"'DNSP Inputs O & M'!$D$197*'DNSP Inputs O & M'!$D$202","v":2.016},null,{"$f":"I253*J253","v":28.52696355721044},null,null,null,{"$f":"'DNSP Inputs O & M'!$D$191*(1+'DNSP Inputs O & M'!$D$11)","v":14.150279542267084},{"$f":"'DNSP Inputs O & M'!$D$198*'DNSP Inputs O & M'!$D$202","v":1.6320000000000001},null,{"$f":"P253*Q253","v":23.093256212979881},null,null,null,null,null,{"$f":"'DNSP Inputs O & M'!$E$191","v":13.476456706921033},{"$f":"'DNSP Inputs O & M'!$E$196*'DNSP Inputs O & M'!$E$202","v":2.4960000000000004},null,{"$f":"Y253*Z253","v":33.637235940474902},null,null,null,{"$f":"'DNSP Inputs O & M'!$E$191*(1+'DNSP Inputs O & M'!$E$11)","v":14.150279542267084},{"$f":"'DNSP Inputs O & M'!$E$197*'DNSP Inputs O & M'!$E$202","v":2.016},null,{"$f":"AF253*AG253","v":28.52696355721044},null,null,null,{"$f":"'DNSP Inputs O & M'!$E$191*(1+'DNSP Inputs O & M'!$E$11)","v":14.150279542267084},{"$f":"'DNSP Inputs O & M'!$E$198*'DNSP Inputs O & M'!$E$202","v":1.6320000000000001},null,{"$f":"AM253*AN253","v":23.093256212979881},null,null,null,null,null,{"$f":"'DNSP Inputs O & M'!$F$191","v":13.476456706921033},{"$f":"'DNSP Inputs O & M'!$F$196*'DNSP Inputs O & M'!$F$202","v":2.4960000000000004},null,{"$f":"AV253*AW253","v":33.637235940474902},null,null,null,{"$f":"'DNSP Inputs O & M'!$F$191*(1+'DNSP Inputs O & M'!$F$11)","v":14.150279542267084},{"$f":"'DNSP Inputs O & M'!$F$197*'DNSP Inputs O & M'!$F$202","v":2.016},null,{"$f":"BC253*BD253","v":28.52696355721044},null,null,null,{"$f":"'DNSP Inputs O & M'!$F$191*(1+'DNSP Inputs O & M'!$F$11)","v":14.150279542267084},{"$f":"'DNSP Inputs O & M'!$F$198*'DNSP Inputs O & M'!$F$202","v":1.6320000000000001},null,{"$f":"BJ253*BK253","v":23.093256212979881},null,null,null,null,null,{"$f":"'DNSP Inputs O & M'!$G$191","v":13.476456706921033},{"$f":"'DNSP Inputs O & M'!$G$196*'DNSP Inputs O & M'!$G$202","v":2.4960000000000004},null,{"$f":"BS253*BT253","v":33.637235940474902},null,null,null,{"$f":"'DNSP Inputs O & M'!$G$191*(1+'DNSP Inputs O & M'!$G$11)","v":14.150279542267084},{"$f":"'DNSP Inputs O & M'!$G$197*'DNSP Inputs O & M'!$G$202","v":2.016},null,{"$f":"BZ253*CA253","v":28.52696355721044},null,null,null,{"$f":"'DNSP Inputs O & M'!$G$191*(1+'DNSP Inputs O & M'!$G$11)","v":14.150279542267084},{"$f":"'DNSP Inputs O & M'!$G$198*'DNSP Inputs O & M'!$G$202","v":1.6320000000000001},null,{"$f":"CG253*CH253","v":23.093256212979881},null,null,null,null,null,{"$f":"'DNSP Inputs O & M'!$H$191","v":13.476456706921033},{"$f":"'DNSP Inputs O & M'!$H$196*'DNSP Inputs O & M'!$H$202","v":2.4960000000000004},null,{"$f":"CP253*CQ253","v":33.637235940474902},null,null,null,{"$f":"'DNSP Inputs O & M'!$H$191*(1+'DNSP Inputs O & M'!$H$11)","v":14.150279542267084},{"$f":"'DNSP Inputs O & M'!$H$197*'DNSP Inputs O & M'!$H$202","v":2.016},null,{"$f":"CW253*CX253","v":28.52696355721044},null,null,null,{"$f":"'DNSP Inputs O & M'!$H$191*(1+'DNSP Inputs O & M'!$H$11)","v":14.150279542267084},{"$f":"'DNSP Inputs O & M'!$H$198*'DNSP Inputs O & M'!$H$202","v":1.6320000000000001},null,{"$f":"DD253*DE253","v":23.093256212979881}]
["Labour - bulk lamp change"]
["Crew costs",{"$f":"'DNSP Inputs O & M'!$D$12","v":111.36223236834823},{"$f":"'DNSP Inputs O & M'!$D$192","v":2},{"$f":"'DNSP Inputs O & M'!$D$17","v":7.5},{"$f":"B255*C255*D255","v":1670.4334855252234},{"$f":"E255/'DNSP Inputs O & M'!$D$183*(C246+C247)/C246*0.8","v":501.13004565756705},{"$f":"(F255+F256)/C246","v":8.3067511587874332},null,{"$f":"'DNSP Inputs O & M'!$D$12","v":111.36223236834823},{"$f":"'DNSP Inputs O & M'!$D$192","v":2},{"$f":"'DNSP Inputs O & M'!$D$17","v":7.5},{"$f":"I255*J255*K255","v":1670.4334855252234},{"$f":"L255/'DNSP Inputs O & M'!$D$183*(J246+J247)/J246*0.8","v":501.13004565756705},{"$f":"(M255+M256)/J246","v":10.486979909791131},null,{"$f":"'DNSP Inputs O & M'!$D$12","v":111.36223236834823},{"$f":"'DNSP Inputs O & M'!$D$192","v":2},{"$f":"'DNSP Inputs O & M'!$D$17","v":7.5},{"$f":"P255*Q255*R255","v":1670.4334855252234},{"$f":"S255/'DNSP Inputs O & M'!$D$183*(Q246+Q247)/Q246*0.8","v":501.13004565756705},{"$f":"(T255+T256)/Q246","v":13.160131651502596},null,null,null,{"$f":"'DNSP Inputs O & M'!$E$12","v":112.10021456669011},{"$f":"'DNSP Inputs O & M'!$E$192","v":2},{"$f":"'DNSP Inputs O & M'!$E$17","v":7.5},{"$f":"Y255*Z255*AA255","v":1681.5032185003517},{"$f":"AB255/'DNSP Inputs O & M'!$E$183*(Z246+Z247)/Z246*0.8","v":504.45096555010554},{"$f":"(AC255+AC256)/Z246","v":8.3516770231345454},null,{"$f":"'DNSP Inputs O & M'!$E$12","v":112.10021456669011},{"$f":"'DNSP Inputs O & M'!$E$192","v":2},{"$f":"'DNSP Inputs O & M'!$E$17","v":7.5},{"$f":"AF255*AG255*AH255","v":1681.5032185003517},{"$f":"AI255/'DNSP Inputs O & M'!$E$183*(AG246+AG247)/AG246*0.8","v":504.45096555010554},{"$f":"(AJ255+AJ256)/AG246","v":10.541031340333749},null,{"$f":"'DNSP Inputs O & M'!$E$12","v":112.10021456669011},{"$f":"'DNSP Inputs O & M'!$E$192","v":2},{"$f":"'DNSP Inputs O & M'!$E$17","v":7.5},{"$f":"AM255*AN255*AO255","v":1681.5032185003517},{"$f":"AP255/'DNSP Inputs O & M'!$E$183*(AN246+AN247)/AN246*0.8","v":504.45096555010554},{"$f":"(AQ255+AQ256)/AN246","v":13.227960897673723},null,null,null,{"$f":"'DNSP Inputs O & M'!$F$12","v":112.78304720629164},{"$f":"'DNSP Inputs O & M'!$F$192","v":2},{"$f":"'DNSP Inputs O & M'!$F$17","v":7.5},{"$f":"AV255*AW255*AX255","v":1691.7457080943745},{"$f":"AY255/'DNSP Inputs O & M'!$F$183*(AW246+AW247)/AW246*0.8","v":507.52371242831236},{"$f":"(AZ255+AZ256)/AW246","v":8.3932455685648311},null,{"$f":"'DNSP Inputs O & M'!$F$12","v":112.78304720629164},{"$f":"'DNSP Inputs O & M'!$F$192","v":2},{"$f":"'DNSP Inputs O & M'!$F$17","v":7.5},{"$f":"BC255*BD255*BE255","v":1691.7457080943745},{"$f":"BF255/'DNSP Inputs O & M'!$F$183*(BD246+BD247)/BD246*0.8","v":507.52371242831236},{"$f":"(BG255+BG256)/BD246","v":10.591043496554564},null,{"$f":"'DNSP Inputs O & M'!$F$12","v":112.78304720629164},{"$f":"'DNSP Inputs O & M'!$F$192","v":2},{"$f":"'DNSP Inputs O & M'!$F$17","v":7.5},{"$f":"BJ255*BK255*BL255","v":1691.7457080943745},{"$f":"BM255/'DNSP Inputs O & M'!$F$183*(BK246+BK247)/BK246*0.8","v":507.52371242831236},{"$f":"(BN255+BN256)/BK246","v":13.290721250578276},null,null,null,{"$f":"'DNSP Inputs O & M'!$G$12","v":113.60949069043043},{"$f":"'DNSP Inputs O & M'!$G$192","v":2},{"$f":"'DNSP Inputs O & M'!$G$17","v":7.5},{"$f":"BS255*BT255*BU255","v":1704.1423603564565},{"$f":"BV255/'DNSP Inputs O & M'!$G$183*(BT246+BT247)/BT246*0.8","v":511.2427081069369},{"$f":"(BW255+BW256)/BT246","v":8.443556657290813},null,{"$f":"'DNSP Inputs O & M'!$G$12","v":113.60949069043043},{"$f":"'DNSP Inputs O & M'!$G$192","v":2},{"$f":"'DNSP Inputs O & M'!$G$17","v":7.5},{"$f":"BZ255*CA255*CB255","v":1704.1423603564565},{"$f":"CC255/'DNSP Inputs O & M'!$G$183*(CA246+CA247)/CA246*0.8","v":511.24270810693702},{"$f":"(CD255+CD256)/CA246","v":10.651574025178013},null,{"$f":"'DNSP Inputs O & M'!$G$12","v":113.60949069043043},{"$f":"'DNSP Inputs O & M'!$G$192","v":2},{"$f":"'DNSP Inputs O & M'!$G$17","v":7.5},{"$f":"CG255*CH255*CI255","v":1704.1423603564565},{"$f":"CJ255/'DNSP Inputs O & M'!$G$183*(CH246+CH247)/CH246*0.8","v":511.2427081069369},{"$f":"(CK255+CK256)/CH246","v":13.366681129635147},null,null,null,{"$f":"'DNSP Inputs O & M'!$H$12","v":114.68985653357629},{"$f":"'DNSP Inputs O & M'!$H$192","v":2},{"$f":"'DNSP Inputs O & M'!$H$17","v":7.5},{"$f":"CP255*CQ255*CR255","v":1720.3478480036442},{"$f":"CS255/'DNSP Inputs O & M'!$H$183*(CQ246+CQ247)/CQ246*0.8","v":516.10435440109325},{"$f":"(CT255+CT256)/CQ246","v":8.509325681832971},null,{"$f":"'DNSP Inputs O & M'!$H$12","v":114.68985653357629},{"$f":"'DNSP Inputs O & M'!$H$192","v":2},{"$f":"'DNSP Inputs O & M'!$H$17","v":7.5},{"$f":"CW255*CX255*CY255","v":1720.3478480036442},{"$f":"CZ255/'DNSP Inputs O & M'!$H$183*(CX246+CX247)/CX246*0.8","v":516.10435440109325},{"$f":"(DA255+DA256)/CX246","v":10.730702382830295},null,{"$f":"'DNSP Inputs O & M'!$H$12","v":114.68985653357629},{"$f":"'DNSP Inputs O & M'!$H$192","v":2},{"$f":"'DNSP Inputs O & M'!$H$17","v":7.5},{"$f":"DD255*DE255*DF255","v":1720.3478480036442},{"$f":"DG255/'DNSP Inputs O & M'!$H$183*(DE246+DE247)/DE246*0.8","v":516.10435440109325},{"$f":"(DH255+DH256)/DE246","v":13.465979460806642}]
["Elevated platform vehicle costs",{"$f":"'DNSP Inputs O & M'!$D$14","v":50.18},1,{"$f":"'DNSP Inputs O & M'!$D$17","v":7.5},{"$f":"B256*C256*D256","v":376.35},{"$f":"E256/'DNSP Inputs O & M'!$D$183*(C246+C247)/C246*0.8","v":112.905},null,null,{"$f":"'DNSP Inputs O & M'!$D$15","v":63.64},1,{"$f":"'DNSP Inputs O & M'!$D$17","v":7.5},{"$f":"I256*J256*K256","v":477.3},{"$f":"L256/'DNSP Inputs O & M'!$D$183*(J246+J247)/J246*0.8","v":143.19000000000003},null,null,{"$f":"'DNSP Inputs O & M'!$D$15","v":63.64},1,{"$f":"'DNSP Inputs O & M'!$D$17","v":7.5},{"$f":"P256*Q256*R256","v":477.3},{"$f":"S256/'DNSP Inputs O & M'!$D$183*(Q246+Q247)/Q246*0.8","v":143.19},null,null,null,null,{"$f":"'DNSP Inputs O & M'!$E$14","v":50.18},1,{"$f":"'DNSP Inputs O & M'!$E$17","v":7.5},{"$f":"Y256*Z256*AA256","v":376.35},{"$f":"AB256/'DNSP Inputs O & M'!$E$183*(Z246+Z247)/Z246*0.8","v":112.905},null,null,{"$f":"'DNSP Inputs O & M'!$E$15","v":63.64},1,{"$f":"'DNSP Inputs O & M'!$E$17","v":7.5},{"$f":"AF256*AG256*AH256","v":477.3},{"$f":"AI256/'DNSP Inputs O & M'!$E$183*(AG246+AG247)/AG246*0.8","v":143.19000000000003},null,null,{"$f":"'DNSP Inputs O & M'!$E$15","v":63.64},1,{"$f":"'DNSP Inputs O & M'!$E$17","v":7.5},{"$f":"AM256*AN256*AO256","v":477.3},{"$f":"AP256/'DNSP Inputs O & M'!$E$183*(AN246+AN247)/AN246*0.8","v":143.19},null,null,null,null,{"$f":"'DNSP Inputs O & M'!$F$14","v":50.18},1,{"$f":"'DNSP Inputs O & M'!$F$17","v":7.5},{"$f":"AV256*AW256*AX256","v":376.35},{"$f":"AY256/'DNSP Inputs O & M'!$F$183*(AW246+AW247)/AW246*0.8","v":112.905},null,null,{"$f":"'DNSP Inputs O & M'!$F$15","v":63.64},1,{"$f":"'DNSP Inputs O & M'!$F$17","v":7.5},{"$f":"BC256*BD256*BE256","v":477.3},{"$f":"BF256/'DNSP Inputs O & M'!$F$183*(BD246+BD247)/BD246*0.8","v":143.19000000000003},null,null,{"$f":"'DNSP Inputs O & M'!$F$15","v":63.64},1,{"$f":"'DNSP Inputs O & M'!$F$17","v":7.5},{"$f":"BJ256*BK256*BL256","v":477.3},{"$f":"BM256/'DNSP Inputs O & M'!$F$183*(BK246+BK247)/BK246*0.8","v":143.19},null,null,null,null,{"$f":"'DNSP Inputs O & M'!$G$14","v":50.18},1,{"$f":"'DNSP Inputs O & M'!$G$17","v":7.5},{"$f":"BS256*BT256*BU256","v":376.35},{"$f":"BV256/'DNSP Inputs O & M'!$G$183*(BT246+BT247)/BT246*0.8","v":112.905},null,null,{"$f":"'DNSP Inputs O & M'!$G$15","v":63.64},1,{"$f":"'DNSP Inputs O & M'!$G$17","v":7.5},{"$f":"BZ256*CA256*CB256","v":477.3},{"$f":"CC256/'DNSP Inputs O & M'!$G$183*(CA246+CA247)/CA246*0.8","v":143.19000000000003},null,null,{"$f":"'DNSP Inputs O & M'!$G$15","v":63.64},1,{"$f":"'DNSP Inputs O & M'!$G$17","v":7.5},{"$f":"CG256*CH256*CI256","v":477.3},{"$f":"CJ256/'DNSP Inputs O & M'!$G$183*(CH246+CH247)/CH246*0.8","v":143.19},null,null,null,null,{"$f":"'DNSP Inputs O & M'!$H$14","v":50.18},1,{"$f":"'DNSP Inputs O & M'!$H$17","v":7.5},{"$f":"CP256*CQ256*CR256","v":376.35},{"$f":"CS256/'DNSP Inputs O & M'!$H$183*(CQ246+CQ247)/CQ246*0.8","v":112.905},null,null,{"$f":"'DNSP Inputs O & M'!$H$15","v":63.64},1,{"$f":"'DNSP Inputs O & M'!$H$17","v":7.5},{"$f":"CW256*CX256*CY256","v":477.3},{"$f":"CZ256/'DNSP Inputs O & M'!$H$183*(CX246+CX247)/CX246*0.8","v":143.19000000000003},null,null,{"$f":"'DNSP Inputs O & M'!$H$15","v":63.64},1,{"$f":"'DNSP Inputs O & M'!$H$17","v":7.5},{"$f":"DD256*DE256*DF256","v":477.3},{"$f":"DG256/'DNSP Inputs O & M'!$H$183*(DE246+DE247)/DE246*0.8","v":143.19}]
["Labour - repair of faults"]
["Crew costs",{"$f":"'DNSP Inputs O & M'!$D$12","v":111.36223236834823},{"$f":"'DNSP Inputs O & M'!$D$192","v":2},{"$f":"'DNSP Inputs O & M'!$D$17","v":7.5},{"$f":"B258*C258*D258","v":1670.4334855252234},{"$f":"(E258+E259)/'DNSP Inputs O & M'!$D$196","v":82.002543490593894},{"$f":"F258*D235","v":8.5212197094283155},null,{"$f":"'DNSP Inputs O & M'!$D$12","v":111.36223236834823},{"$f":"'DNSP Inputs O & M'!$D$192","v":2},{"$f":"'DNSP Inputs O & M'!$D$17","v":7.5},{"$f":"I258*J258*K258","v":1670.4334855252234},{"$f":"(L258+L259)/'DNSP Inputs O & M'!$D$197","v":106.53439908359243},{"$f":"M258*D235","v":11.070425166840579},null,{"$f":"'DNSP Inputs O & M'!$D$12","v":111.36223236834823},{"$f":"'DNSP Inputs O & M'!$D$192","v":2},{"$f":"'DNSP Inputs O & M'!$D$17","v":7.5},{"$f":"P258*Q258*R258","v":1670.4334855252234},{"$f":"(S258+S259)/'DNSP Inputs O & M'!$D$198","v":131.60131651502593},{"$f":"T258*D235","v":13.675231088450124},null,null,null,{"$f":"'DNSP Inputs O & M'!$E$12","v":112.10021456669011},{"$f":"'DNSP Inputs O & M'!$E$192","v":2},{"$f":"'DNSP Inputs O & M'!$E$17","v":7.5},{"$f":"Y258*Z258*AA258","v":1681.5032185003517},{"$f":"(AB258+AB259)/'DNSP Inputs O & M'!$E$196","v":82.446042407866656},{"$f":"AC258*AA235","v":8.5673054959674637},null,{"$f":"'DNSP Inputs O & M'!$E$12","v":112.10021456669011},{"$f":"'DNSP Inputs O & M'!$E$192","v":2},{"$f":"'DNSP Inputs O & M'!$E$17","v":7.5},{"$f":"AF258*AG258*AH258","v":1681.5032185003517},{"$f":"(AI258+AI259)/'DNSP Inputs O & M'!$E$197","v":107.08349298116823},{"$f":"AJ258*AA235","v":11.127483759698572},null,{"$f":"'DNSP Inputs O & M'!$E$12","v":112.10021456669011},{"$f":"'DNSP Inputs O & M'!$E$192","v":2},{"$f":"'DNSP Inputs O & M'!$E$17","v":7.5},{"$f":"AM258*AN258*AO258","v":1681.5032185003517},{"$f":"(AP258+AP259)/'DNSP Inputs O & M'!$E$198","v":132.27960897673722},{"$f":"AQ258*AA235","v":13.745715232568823},null,null,null,{"$f":"'DNSP Inputs O & M'!$F$12","v":112.78304720629164},{"$f":"'DNSP Inputs O & M'!$F$192","v":2},{"$f":"'DNSP Inputs O & M'!$F$17","v":7.5},{"$f":"AV258*AW258*AX258","v":1691.7457080943745},{"$f":"(AY258+AY259)/'DNSP Inputs O & M'!$F$196","v":82.856398561473327},{"$f":"AZ258*AX235","v":8.6099472823700953},null,{"$f":"'DNSP Inputs O & M'!$F$12","v":112.78304720629164},{"$f":"'DNSP Inputs O & M'!$F$192","v":2},{"$f":"'DNSP Inputs O & M'!$F$17","v":7.5},{"$f":"BC258*BD258*BE258","v":1691.7457080943745},{"$f":"(BF258+BF259)/'DNSP Inputs O & M'!$F$197","v":107.59155298087177},{"$f":"BG258*AX235","v":11.180278352387548},null,{"$f":"'DNSP Inputs O & M'!$F$12","v":112.78304720629164},{"$f":"'DNSP Inputs O & M'!$F$192","v":2},{"$f":"'DNSP Inputs O & M'!$F$17","v":7.5},{"$f":"BJ258*BK258*BL258","v":1691.7457080943745},{"$f":"(BM258+BM259)/'DNSP Inputs O & M'!$F$198","v":132.90721250578275},{"$f":"BN258*AX235","v":13.810932082361086},null,null,null,{"$f":"'DNSP Inputs O & M'!$G$12","v":113.60949069043043},{"$f":"'DNSP Inputs O & M'!$G$192","v":2},{"$f":"'DNSP Inputs O & M'!$G$17","v":7.5},{"$f":"BS258*BT258*BU258","v":1704.1423603564565},{"$f":"(BV258+BV259)/'DNSP Inputs O & M'!$G$196","v":83.353059309152911},{"$f":"BW258*BU235","v":8.6615573321548567},null,{"$f":"'DNSP Inputs O & M'!$G$12","v":113.60949069043043},{"$f":"'DNSP Inputs O & M'!$G$192","v":2},{"$f":"'DNSP Inputs O & M'!$G$17","v":7.5},{"$f":"BZ258*CA258*CB258","v":1704.1423603564565},{"$f":"(CC258+CC259)/'DNSP Inputs O & M'!$G$197","v":108.20646628752264},{"$f":"CD258*BU235","v":11.244176509263916},null,{"$f":"'DNSP Inputs O & M'!$G$12","v":113.60949069043043},{"$f":"'DNSP Inputs O & M'!$G$192","v":2},{"$f":"'DNSP Inputs O & M'!$G$17","v":7.5},{"$f":"CG258*CH258*CI258","v":1704.1423603564565},{"$f":"(CJ258+CJ259)/'DNSP Inputs O & M'!$G$198","v":133.66681129635148},{"$f":"CK258*BU235","v":13.889865099678953},null,null,null,{"$f":"'DNSP Inputs O & M'!$H$12","v":114.68985653357629},{"$f":"'DNSP Inputs O & M'!$H$192","v":2},{"$f":"'DNSP Inputs O & M'!$H$17","v":7.5},{"$f":"CP258*CQ258*CR258","v":1720.3478480036442},{"$f":"(CS258+CS259)/'DNSP Inputs O & M'!$H$196","v":84.002317628351122},{"$f":"CT258*CR235","v":8.7290244197665565},null,{"$f":"'DNSP Inputs O & M'!$H$12","v":114.68985653357629},{"$f":"'DNSP Inputs O & M'!$H$192","v":2},{"$f":"'DNSP Inputs O & M'!$H$17","v":7.5},{"$f":"CW258*CX258*CY258","v":1720.3478480036442},{"$f":"(CZ258+CZ259)/'DNSP Inputs O & M'!$H$197","v":109.0103099208157},{"$f":"DA258*CR235","v":11.327707189164119},null,{"$f":"'DNSP Inputs O & M'!$H$12","v":114.68985653357629},{"$f":"'DNSP Inputs O & M'!$H$192","v":2},{"$f":"'DNSP Inputs O & M'!$H$17","v":7.5},{"$f":"DD258*DE258*DF258","v":1720.3478480036442},{"$f":"(DG258+DG259)/'DNSP Inputs O & M'!$H$198","v":134.65979460806645},{"$f":"DH258*CR235","v":13.993050057202733}]
["Elevated platform vehicle costs",{"$f":"'DNSP Inputs O & M'!$D$14","v":50.18},1,{"$f":"'DNSP Inputs O & M'!$D$17","v":7.5},{"$f":"B259*C259*D259","v":376.35},null,null,null,{"$f":"'DNSP Inputs O & M'!$D$15","v":63.64},1,{"$f":"'DNSP Inputs O & M'!$D$17","v":7.5},{"$f":"I259*J259*K259","v":477.3},null,null,null,{"$f":"'DNSP Inputs O & M'!$D$15","v":63.64},1,{"$f":"'DNSP Inputs O & M'!$D$17","v":7.5},{"$f":"P259*Q259*R259","v":477.3},null,null,null,null,null,{"$f":"'DNSP Inputs O & M'!$E$14","v":50.18},1,{"$f":"'DNSP Inputs O & M'!$E$17","v":7.5},{"$f":"Y259*Z259*AA259","v":376.35},null,null,null,{"$f":"'DNSP Inputs O & M'!$E$15","v":63.64},1,{"$f":"'DNSP Inputs O & M'!$E$17","v":7.5},{"$f":"AF259*AG259*AH259","v":477.3},null,null,null,{"$f":"'DNSP Inputs O & M'!$E$15","v":63.64},1,{"$f":"'DNSP Inputs O & M'!$E$17","v":7.5},{"$f":"AM259*AN259*AO259","v":477.3},null,null,null,null,null,{"$f":"'DNSP Inputs O & M'!$F$14","v":50.18},1,{"$f":"'DNSP Inputs O & M'!$F$17","v":7.5},{"$f":"AV259*AW259*AX259","v":376.35},null,null,null,{"$f":"'DNSP Inputs O & M'!$F$15","v":63.64},1,{"$f":"'DNSP Inputs O & M'!$F$17","v":7.5},{"$f":"BC259*BD259*BE259","v":477.3},null,null,null,{"$f":"'DNSP Inputs O & M'!$F$15","v":63.64},1,{"$f":"'DNSP Inputs O & M'!$F$17","v":7.5},{"$f":"BJ259*BK259*BL259","v":477.3},null,null,null,null,null,{"$f":"'DNSP Inputs O & M'!$G$14","v":50.18},1,{"$f":"'DNSP Inputs O & M'!$G$17","v":7.5},{"$f":"BS259*BT259*BU259","v":376.35},null,null,null,{"$f":"'DNSP Inputs O & M'!$G$15","v":63.64},1,{"$f":"'DNSP Inputs O & M'!$G$17","v":7.5},{"$f":"BZ259*CA259*CB259","v":477.3},null,null,null,{"$f":"'DNSP Inputs O & M'!$G$15","v":63.64},1,{"$f":"'DNSP Inputs O & M'!$G$17","v":7.5},{"$f":"CG259*CH259*CI259","v":477.3},null,null,null,null,null,{"$f":"'DNSP Inputs O & M'!$H$14","v":50.18},1,{"$f":"'DNSP Inputs O & M'!$H$17","v":7.5},{"$f":"CP259*CQ259*CR259","v":376.35},null,null,null,{"$f":"'DNSP Inputs O & M'!$H$15","v":63.64},1,{"$f":"'DNSP Inputs O & M'!$H$17","v":7.5},{"$f":"CW259*CX259*CY259","v":477.3},null,null,null,{"$f":"'DNSP Inputs O & M'!$H$15","v":63.64},1,{"$f":"'DNSP Inputs O & M'!$H$17","v":7.5},{"$f":"DD259*DE259*DF259","v":477.3}]
["Other Maintenance and Repair costs",null,null,null,null,null,{"$f":"'DNSP Inputs O & M'!$D$209","v":1.0221129184665227},null,null,null,null,null,null,{"$f":"'DNSP Inputs O & M'!$D$209","v":1.0221129184665227},null,null,null,null,null,null,{"$f":"'DNSP Inputs O & M'!$D$209","v":1.0221129184665227},null,null,null,null,null,null,null,null,{"$f":"'DNSP Inputs O & M'!$E$209","v":1.0221129184665227},null,null,null,null,null,null,{"$f":"'DNSP Inputs O & M'!$E$209","v":1.0221129184665227},null,null,null,null,null,null,{"$f":"'DNSP Inputs O & M'!$E$209","v":1.0221129184665227},null,null,null,null,null,null,null,null,{"$f":"'DNSP Inputs O & M'!$F$209","v":1.0221129184665227},null,null,null,null,null,null,{"$f":"'DNSP Inputs O & M'!$F$209","v":1.0221129184665227},null,null,null,null,null,null,{"$f":"'DNSP Inputs O & M'!$F$209","v":1.0221129184665227},null,null,null,null,null,null,null,null,{"$f":"'DNSP Inputs O & M'!$G$209","v":1.0221129184665227},null,null,null,null,null,null,{"$f":"'DNSP Inputs O & M'!$G$209","v":1.0221129184665227},null,null,null,null,null,null,{"$f":"'DNSP Inputs O & M'!$G$209","v":1.0221129184665227},null,null,null,null,null,null,null,null,{"$f":"'DNSP Inputs O & M'!$H$209","v":1.0221129184665227},null,null,null,null,null,null,{"$f":"'DNSP Inputs O & M'!$H$209","v":1.0221129184665227},null,null,null,null,null,null,{"$f":"'DNSP Inputs O & M'!$H$209","v":1.0221129184665227}]
[]
["Overheads",{"$f":"'DNSP Inputs O & M'!$D$18","v":0.25},null,null,null,null,{"$f":"B262*SUM(G246:G260)","v":5.7650663240791564},null,{"$f":"'DNSP Inputs O & M'!$D$18","v":0.25},null,null,null,null,{"$f":"I262*SUM(N246:N260)","v":7.0125521450535766},null,{"$f":"'DNSP Inputs O & M'!$D$18","v":0.25},null,null,null,null,{"$f":"P262*SUM(U246:U260)","v":8.3320415608838303},null,null,null,{"$f":"'DNSP Inputs O & M'!$E$18","v":0.25},null,null,null,null,{"$f":"Y262*SUM(AD246:AD260)","v":5.787819236800722},null,{"$f":"'DNSP Inputs O & M'!$E$18","v":0.25},null,null,null,null,{"$f":"AF262*SUM(AK246:AK260)","v":7.0403296509037299},null,{"$f":"'DNSP Inputs O & M'!$E$18","v":0.25},null,null,null,null,{"$f":"AM262*SUM(AR246:AR260)","v":8.366619908456288},null,null,null,{"$f":"'DNSP Inputs O & M'!$F$18","v":0.25},null,null,null,null,{"$f":"AV262*SUM(BA246:BA260)","v":5.8088718197589513},null,{"$f":"'DNSP Inputs O & M'!$F$18","v":0.25},null,null,null,null,{"$f":"BC262*SUM(BH246:BH260)","v":7.0660313381311779},null,{"$f":"'DNSP Inputs O & M'!$F$18","v":0.25},null,null,null,null,{"$f":"BJ262*SUM(BO246:BO260)","v":8.3986142091304909},null,null,null,{"$f":"'DNSP Inputs O & M'!$G$18","v":0.25},null,null,null,null,{"$f":"BS262*SUM(BX246:BX260)","v":5.8343521043866371},null,{"$f":"'DNSP Inputs O & M'!$G$18","v":0.25},null,null,null,null,{"$f":"BZ262*SUM(CE246:CE260)","v":7.0971385095061317},null,{"$f":"'DNSP Inputs O & M'!$G$18","v":0.25},null,null,null,null,{"$f":"CG262*SUM(CL246:CL260)","v":8.4373374332241742},null,null,null,{"$f":"'DNSP Inputs O & M'!$H$18","v":0.25},null,null,null,null,{"$f":"CP262*SUM(CU246:CU260)","v":5.8676611324251011},null,{"$f":"'DNSP Inputs O & M'!$H$18","v":0.25},null,null,null,null,{"$f":"CW262*SUM(DB246:DB260)","v":7.1378032688942525},null,{"$f":"'DNSP Inputs O & M'!$H$18","v":0.25},null,null,null,null,{"$f":"DD262*SUM(DI246:DI260)","v":8.4879582553979933}]
[]
[null,null,null,null,null,null,{"$f":"SUM(G246,G250,G255,G258,G260,G262)","v":28.825331620395783},null,null,null,null,null,null,{"$f":"SUM(N246,N250,N255,N258,N260,N262)","v":35.062760725267886},null,null,null,null,null,null,{"$f":"SUM(U246,U250,U255,U258,U260,U262)","v":41.660207804419152},null,null,null,null,null,null,null,null,{"$f":"SUM(AD246,AD250,AD255,AD258,AD260,AD262)","v":28.93909618400361},null,null,null,null,null,null,{"$f":"SUM(AK246,AK250,AK255,AK258,AK260,AK262)","v":35.201648254518652},null,null,null,null,null,null,{"$f":"SUM(AR246,AR250,AR255,AR258,AR260,AR262)","v":41.833099542281438},null,null,null,null,null,null,null,null,{"$f":"SUM(BA246,BA250,BA255,BA258,BA260,BA262)","v":29.044359098794757},null,null,null,null,null,null,{"$f":"SUM(BH246,BH250,BH255,BH258,BH260,BH262)","v":35.33015669065589},null,null,null,null,null,null,{"$f":"SUM(BO246,BO250,BO255,BO258,BO260,BO262)","v":41.993071045652457},null,null,null,null,null,null,null,null,{"$f":"SUM(BX246,BX250,BX255,BX258,BX260,BX262)","v":29.171760521933187},null,null,null,null,null,null,{"$f":"SUM(CE246,CE250,CE255,CE258,CE260,CE262)","v":35.485692547530661},null,null,null,null,null,null,{"$f":"SUM(CL246,CL250,CL255,CL258,CL260,CL262)","v":42.186687166120869},null,null,null,null,null,null,null,null,{"$f":"SUM(CU246,CU250,CU255,CU258,CU260,CU262)","v":29.338305662125507},null,null,null,null,null,null,{"$f":"SUM(DB246,DB250,DB255,DB258,DB260,DB262)","v":35.689016344471263},null,null,null,null,null,null,{"$f":"SUM(DI246,DI250,DI255,DI258,DI260,DI262)","v":42.439791276989965}]
[]
[]
[]
[]
["T5 (2 X 24W) - Cost build-up"]
[]
["Additional assumptions"]
["Proportion of luminaire that will fail before bulk change",null,null,{"$f":"'DNSP Inputs O & M'!$D$235","v":0.41565636121546606},null,null,null,null,null,null,null,null,null,null,null,null,null,null,null,null,null,null,null,null,null,null,{"$f":"'DNSP Inputs O & M'!$E$235","v":0.41565636121546606},null,null,null,null,null,null,null,null,null,null,null,null,null,null,null,null,null,null,null,null,null,null,{"$f":"'DNSP Inputs O & M'!$F$235","v":0.41565636121546606},null,null,null,null,null,null,null,null,null,null,null,null,null,null,null,null,null,null,null,null,null,null,{"$f":"'DNSP Inputs O & M'!$G$235","v":0.41565636121546606},null,null,null,null,null,null,null,null,null,null,null,null,null,null,null,null,null,null,null,null,null,null,{"$f":"'DNSP Inputs O & M'!$H$235","v":0.41565636121546606}]
["Proportion of lamps that will fail before bulk change (per year)",null,null,{"$f":"D272/'DNSP Inputs O & M'!$D$232","v":0.10391409030386652},null,null,null,null,null,null,null,null,null,null,null,null,null,null,null,null,null,null,null,null,null,null,{"$f":"AA272/'DNSP Inputs O & M'!$E$232","v":0.10391409030386652},null,null,null,null,null,null,null,null,null,null,null,null,null,null,null,null,null,null,null,null,null,null,{"$f":"AX272/'DNSP Inputs O & M'!$F$232","v":0.10391409030386652},null,null,null,null,null,null,null,null,null,null,null,null,null,null,null,null,null,null,null,null,null,null,{"$f":"BU272/'DNSP Inputs O & M'!$G$232","v":0.10391409030386652},null,null,null,null,null,null,null,null,null,null,null,null,null,null,null,null,null,null,null,null,null,null,{"$f":"CR272/'DNSP Inputs O & M'!$H$232","v":0.10391409030386652}]
["Overheads are applied to material and labour components"]
["All costs and charges are exclusive of GST"]
[]
[null,"Urban",null,null,null,null,null,null,"Rural",null,null,null,null,null,null,"Remote",null,null,null,null,null,null,null,null,"Urban",null,null,null,null,null,null,"Rural",null,null,null,null,null,null,"Remote",null,null,null,null,null,null,null,null,"Urban",null,null,null,null,null,null,"Rural",null,null,null,null,null,null,"Remote",null,null,null,null,null,null,null,null,"Urban",null,null,null,null,null,null,"Rural",null,null,null,null,null,null,"Remote",null,null,null,null,null,null,null,null,"Urban",null,null,null,null,null,null,"Rural",null,null,null,null,null,null,"Remote"]
[]
[null,"Unit rate","Number","Hours","Cost","Annualised","Annualised",null,"Unit rate","Number","Hours","Cost","Annualised","Annualised",null,"Unit rate","Number","Hours","Cost","Annualised","Annualised",null,null,null,"Unit rate","Number","Hours","Cost","Annualised","Annualised",null,"Unit rate","Number","Hours","Cost","Annualised","Annualised",null,"Unit rate","Number","Hours","Cost","Annualised","Annualised",null,null,null,"Unit rate","Number","Hours","Cost","Annualised","Annualised",null,"Unit rate","Number","Hours","Cost","Annualised","Annualised",null,"Unit rate","Number","Hours","Cost","Annualised","Annualised",null,null,null,"Unit rate","Number","Hours","Cost","Annualised","Annualised",null,"Unit rate","Number","Hours","Cost","Annualised","Annualised",null,"Unit rate","Number","Hours","Cost","Annualised","Annualised",null,null,null,"Unit rate","Number","Hours","Cost","Annualised","Annualised",null,"Unit rate","Number","Hours","Cost","Annualised","Annualised",null,"Unit rate","Number","Hours","Cost","Annualised","Annualised"]
[null,null,null,null,null," cost","unit cost",null,null,null,null,null," cost","unit cost",null,null,null,null,null," cost","unit cost",null,null,null,null,null,null,null," cost","unit cost",null,null,null,null,null," cost","unit cost",null,null,null,null,null," cost","unit cost",null,null,null,null,null,null,null," cost","unit cost",null,null,null,null,null," cost","unit cost",null,null,null,null,null," cost","unit cost",null,null,null,null,null,null,null," cost","unit cost",null,null,null,null,null," cost","unit cost",null,null,null,null,null," cost","unit cost",null,null,null,null,null,null,null," cost","unit cost",null,null,null,null,null," cost","unit cost",null,null,null,null,null," cost","unit cost"]
["T5 (2 X 24W)"]
["Bulk change & repairs"]
["Materials - bulk lamp change"]
["Lamp",{"$f":"'DNSP Inputs O & M'!$D$236","v":8.1},{"$f":"'DNSP Inputs O & M'!$D$242","v":73.92},null,{"$f":"B284*C284","v":598.75199999999995},{"$f":"E284/'DNSP Inputs O & M'!$D$232","v":149.68799999999999},{"$f":"(F284+F285+F286)/C284","v":4.2519114176730257},null,{"$f":"'DNSP Inputs O & M'!$D$236*(1+'DNSP Inputs O & M'!$D$11)","v":8.5050000000000008},{"$f":"'DNSP Inputs O & M'!$D$243","v":61.44},null,{"$f":"I284*J284","v":522.54719999999998},{"$f":"L284/'DNSP Inputs O & M'!$D$232","v":130.63679999999999},{"$f":"(M284+M285+M286)/J284","v":4.4645069885566766},null,{"$f":"'DNSP Inputs O & M'!$D$236*(1+'DNSP Inputs O & M'!$D$11)","v":8.5050000000000008},{"$f":"'DNSP Inputs O & M'!$D$244","v":48.96},null,{"$f":"P284*Q284","v":416.40480000000002},{"$f":"S284/'DNSP Inputs O & M'!$D$232","v":104.10120000000001},{"$f":"(T284+T285+T286)/Q284","v":4.4645069885566775},null,null,null,{"$f":"'DNSP Inputs O & M'!$E$236","v":8.1},{"$f":"'DNSP Inputs O & M'!$E$242","v":73.92},null,{"$f":"Y284*Z284","v":598.75199999999995},{"$f":"AB284/'DNSP Inputs O & M'!$E$232","v":149.68799999999999},{"$f":"(AC284+AC285+AC286)/Z284","v":4.2519114176730257},null,{"$f":"'DNSP Inputs O & M'!$E$236*(1+'DNSP Inputs O & M'!$E$11)","v":8.5050000000000008},{"$f":"'DNSP Inputs O & M'!$E$243","v":61.44},null,{"$f":"AF284*AG284","v":522.54719999999998},{"$f":"AI284/'DNSP Inputs O & M'!$E$232","v":130.63679999999999},{"$f":"(AJ284+AJ285+AJ286)/AG284","v":4.4645069885566766},null,{"$f":"'DNSP Inputs O & M'!$E$236*(1+'DNSP Inputs O & M'!$E$11)","v":8.5050000000000008},{"$f":"'DNSP Inputs O & M'!$E$244","v":48.96},null,{"$f":"AM284*AN284","v":416.40480000000002},{"$f":"AP284/'DNSP Inputs O & M'!$E$232","v":104.10120000000001},{"$f":"(AQ284+AQ285+AQ286)/AN284","v":4.4645069885566775},null,null,null,{"$f":"'DNSP Inputs O & M'!$F$236","v":8.1},{"$f":"'DNSP Inputs O & M'!$F$242","v":73.92},null,{"$f":"AV284*AW284","v":598.75199999999995},{"$f":"AY284/'DNSP Inputs O & M'!$F$232","v":149.68799999999999},{"$f":"(AZ284+AZ285+AZ286)/AW284","v":4.2519114176730257},null,{"$f":"'DNSP Inputs O & M'!$F$236*(1+'DNSP Inputs O & M'!$F$11)","v":8.5050000000000008},{"$f":"'DNSP Inputs O & M'!$F$243","v":61.44},null,{"$f":"BC284*BD284","v":522.54719999999998},{"$f":"BF284/'DNSP Inputs O & M'!$F$232","v":130.63679999999999},{"$f":"(BG284+BG285+BG286)/BD284","v":4.4645069885566766},null,{"$f":"'DNSP Inputs O & M'!$F$236*(1+'DNSP Inputs O & M'!$F$11)","v":8.5050000000000008},{"$f":"'DNSP Inputs O & M'!$F$244","v":48.96},null,{"$f":"BJ284*BK284","v":416.40480000000002},{"$f":"BM284/'DNSP Inputs O & M'!$F$232","v":104.10120000000001},{"$f":"(BN284+BN285+BN286)/BK284","v":4.4645069885566775},null,null,null,{"$f":"'DNSP Inputs O & M'!$G$236","v":8.1},{"$f":"'DNSP Inputs O & M'!$G$242","v":73.92},null,{"$f":"BS284*BT284","v":598.75199999999995},{"$f":"BV284/'DNSP Inputs O & M'!$G$232","v":149.68799999999999},{"$f":"(BW284+BW285+BW286)/BT284","v":4.2519114176730257},null,{"$f":"'DNSP Inputs O & M'!$G$236*(1+'DNSP Inputs O & M'!$G$11)","v":8.5050000000000008},{"$f":"'DNSP Inputs O & M'!$G$243","v":61.44},null,{"$f":"BZ284*CA284","v":522.54719999999998},{"$f":"CC284/'DNSP Inputs O & M'!$G$232","v":130.63679999999999},{"$f":"(CD284+CD285+CD286)/CA284","v":4.4645069885566766},null,{"$f":"'DNSP Inputs O & M'!$G$236*(1+'DNSP Inputs O & M'!$G$11)","v":8.5050000000000008},{"$f":"'DNSP Inputs O & M'!$G$244","v":48.96},null,{"$f":"CG284*CH284","v":416.40480000000002},{"$f":"CJ284/'DNSP Inputs O & M'!$G$232","v":104.10120000000001},{"$f":"(CK284+CK285+CK286)/CH284","v":4.4645069885566775},null,null,null,{"$f":"'DNSP Inputs O & M'!$H$236","v":8.1},{"$f":"'DNSP Inputs O & M'!$H$242","v":73.92},null,{"$f":"CP284*CQ284","v":598.75199999999995},{"$f":"CS284/'DNSP Inputs O & M'!$H$232","v":149.68799999999999},{"$f":"(CT284+CT285+CT286)/CQ284","v":4.2519114176730257},null,{"$f":"'DNSP Inputs O & M'!$H$236*(1+'DNSP Inputs O & M'!$H$11)","v":8.5050000000000008},{"$f":"'DNSP Inputs O & M'!$H$243","v":61.44},null,{"$f":"CW284*CX284","v":522.54719999999998},{"$f":"CZ284/'DNSP Inputs O & M'!$H$232","v":130.63679999999999},{"$f":"(DA284+DA285+DA286)/CX284","v":4.4645069885566766},null,{"$f":"'DNSP Inputs O & M'!$H$236*(1+'DNSP Inputs O & M'!$H$11)","v":8.5050000000000008},{"$f":"'DNSP Inputs O & M'!$H$244","v":48.96},null,{"$f":"DD284*DE284","v":416.40480000000002},{"$f":"DG284/'DNSP Inputs O & M'!$H$232","v":104.10120000000001},{"$f":"(DH284+DH285+DH286)/DE284","v":4.4645069885566775}]
["PE cell",{"$f":"'DNSP Inputs O & M'!$D$237","v":15.120000000000001},{"$f":"C284*'DNSP Inputs O & M'!$D$232/'DNSP Inputs O & M'!$D$233","v":36.96},null,{"$f":"B285*C285","v":558.8352000000001},{"$f":"E285/'DNSP Inputs O & M'!$D$232","v":139.70880000000002},null,null,{"$f":"'DNSP Inputs O & M'!$D$237*(1+'DNSP Inputs O & M'!$D$11)","v":15.876000000000001},{"$f":"J284*'DNSP Inputs O & M'!$D$232/'DNSP Inputs O & M'!$D$233","v":30.72},null,{"$f":"I285*J285","v":487.71072000000004},{"$f":"L285/'DNSP Inputs O & M'!$D$232","v":121.92768000000001},null,null,{"$f":"'DNSP Inputs O & M'!$D$237*(1+'DNSP Inputs O & M'!$D$11)","v":15.876000000000001},{"$f":"Q284*'DNSP Inputs O & M'!$D$232/'DNSP Inputs O & M'!$D$233","v":24.48},null,{"$f":"P285*Q285","v":388.64448000000004},{"$f":"S285/'DNSP Inputs O & M'!$D$232","v":97.161120000000011},null,null,null,null,{"$f":"'DNSP Inputs O & M'!$E$237","v":15.120000000000001},{"$f":"Z284*'DNSP Inputs O & M'!$E$232/'DNSP Inputs O & M'!$E$233","v":36.96},null,{"$f":"Y285*Z285","v":558.8352000000001},{"$f":"AB285/'DNSP Inputs O & M'!$E$232","v":139.70880000000002},null,null,{"$f":"'DNSP Inputs O & M'!$E$237*(1+'DNSP Inputs O & M'!$E$11)","v":15.876000000000001},{"$f":"AG284*'DNSP Inputs O & M'!$E$232/'DNSP Inputs O & M'!$E$233","v":30.72},null,{"$f":"AF285*AG285","v":487.71072000000004},{"$f":"AI285/'DNSP Inputs O & M'!$E$232","v":121.92768000000001},null,null,{"$f":"'DNSP Inputs O & M'!$E$237*(1+'DNSP Inputs O & M'!$E$11)","v":15.876000000000001},{"$f":"AN284*'DNSP Inputs O & M'!$E$232/'DNSP Inputs O & M'!$E$233","v":24.48},null,{"$f":"AM285*AN285","v":388.64448000000004},{"$f":"AP285/'DNSP Inputs O & M'!$E$232","v":97.161120000000011},null,null,null,null,{"$f":"'DNSP Inputs O & M'!$F$237","v":15.120000000000001},{"$f":"AW284*'DNSP Inputs O & M'!$F$232/'DNSP Inputs O & M'!$F$233","v":36.96},null,{"$f":"AV285*AW285","v":558.8352000000001},{"$f":"AY285/'DNSP Inputs O & M'!$F$232","v":139.70880000000002},null,null,{"$f":"'DNSP Inputs O & M'!$F$237*(1+'DNSP Inputs O & M'!$F$11)","v":15.876000000000001},{"$f":"BD284*'DNSP Inputs O & M'!$F$232/'DNSP Inputs O & M'!$F$233","v":30.72},null,{"$f":"BC285*BD285","v":487.71072000000004},{"$f":"BF285/'DNSP Inputs O & M'!$F$232","v":121.92768000000001},null,null,{"$f":"'DNSP Inputs O & M'!$F$237*(1+'DNSP Inputs O & M'!$F$11)","v":15.876000000000001},{"$f":"BK284*'DNSP Inputs O & M'!$F$232/'DNSP Inputs O & M'!$F$233","v":24.48},null,{"$f":"BJ285*BK285","v":388.64448000000004},{"$f":"BM285/'DNSP Inputs O & M'!$F$232","v":97.161120000000011},null,null,null,null,{"$f":"'DNSP Inputs O & M'!$G$237","v":15.120000000000001},{"$f":"BT284*'DNSP Inputs O & M'!$G$232/'DNSP Inputs O & M'!$G$233","v":36.96},null,{"$f":"BS285*BT285","v":558.8352000000001},{"$f":"BV285/'DNSP Inputs O & M'!$G$232","v":139.70880000000002},null,null,{"$f":"'DNSP Inputs O & M'!$G$237*(1+'DNSP Inputs O & M'!$G$11)","v":15.876000000000001},{"$f":"CA284*'DNSP Inputs O & M'!$G$232/'DNSP Inputs O & M'!$G$233","v":30.72},null,{"$f":"BZ285*CA285","v":487.71072000000004},{"$f":"CC285/'DNSP Inputs O & M'!$G$232","v":121.92768000000001},null,null,{"$f":"'DNSP Inputs O & M'!$G$237*(1+'DNSP Inputs O & M'!$G$11)","v":15.876000000000001},{"$f":"CH284*'DNSP Inputs O & M'!$G$232/'DNSP Inputs O & M'!$G$233","v":24.48},null,{"$f":"CG285*CH285","v":388.64448000000004},{"$f":"CJ285/'DNSP Inputs O & M'!$G$232","v":97.161120000000011},null,null,null,null,{"$f":"'DNSP Inputs O & M'!$H$237","v":15.120000000000001},{"$f":"CQ284*'DNSP Inputs O & M'!$H$232/'DNSP Inputs O & M'!$H$233","v":36.96},null,{"$f":"CP285*CQ285","v":558.8352000000001},{"$f":"CS285/'DNSP Inputs O & M'!$H$232","v":139.70880000000002},null,null,{"$f":"'DNSP Inputs O & M'!$H$237*(1+'DNSP Inputs O & M'!$H$11)","v":15.876000000000001},{"$f":"CX284*'DNSP Inputs O & M'!$H$232/'DNSP Inputs O & M'!$H$233","v":30.72},null,{"$f":"CW285*CX285","v":487.71072000000004},{"$f":"CZ285/'DNSP Inputs O & M'!$H$232","v":121.92768000000001},null,null,{"$f":"'DNSP Inputs O & M'!$H$237*(1+'DNSP Inputs O & M'!$H$11)","v":15.876000000000001},{"$f":"DE284*'DNSP Inputs O & M'!$H$232/'DNSP Inputs O & M'!$H$233","v":24.48},null,{"$f":"DD285*DE285","v":388.64448000000004},{"$f":"DG285/'DNSP Inputs O & M'!$H$232","v":97.161120000000011}]
["Miscellaneous",{"$f":"'DNSP Inputs O & M'!$D$239","v":1.3476456706921032},{"$f":"'DNSP Inputs O & M'!$D$242","v":73.92},null,{"$f":"B286*C286","v":99.617967977560269},{"$f":"E286/'DNSP Inputs O & M'!$D$232","v":24.904491994390067},null,null,{"$f":"'DNSP Inputs O & M'!$D$239*(1+'DNSP Inputs O & M'!$D$11)","v":1.4150279542267084},{"$f":"'DNSP Inputs O & M'!$D$243","v":61.44},null,{"$f":"I286*J286","v":86.939317507688955},{"$f":"L286/'DNSP Inputs O & M'!$D$232","v":21.734829376922239},null,null,{"$f":"'DNSP Inputs O & M'!$D$239*(1+'DNSP Inputs O & M'!$D$11)","v":1.4150279542267084},{"$f":"'DNSP Inputs O & M'!$D$244","v":48.96},null,{"$f":"P286*Q286","v":69.279768638939643},{"$f":"S286/'DNSP Inputs O & M'!$D$232","v":17.319942159734911},null,null,null,null,{"$f":"'DNSP Inputs O & M'!$E$239","v":1.3476456706921032},{"$f":"'DNSP Inputs O & M'!$E$242","v":73.92},null,{"$f":"Y286*Z286","v":99.617967977560269},{"$f":"AB286/'DNSP Inputs O & M'!$E$232","v":24.904491994390067},null,null,{"$f":"'DNSP Inputs O & M'!$E$239*(1+'DNSP Inputs O & M'!$E$11)","v":1.4150279542267084},{"$f":"'DNSP Inputs O & M'!$E$243","v":61.44},null,{"$f":"AF286*AG286","v":86.939317507688955},{"$f":"AI286/'DNSP Inputs O & M'!$E$232","v":21.734829376922239},null,null,{"$f":"'DNSP Inputs O & M'!$E$239*(1+'DNSP Inputs O & M'!$E$11)","v":1.4150279542267084},{"$f":"'DNSP Inputs O & M'!$E$244","v":48.96},null,{"$f":"AM286*AN286","v":69.279768638939643},{"$f":"AP286/'DNSP Inputs O & M'!$E$232","v":17.319942159734911},null,null,null,null,{"$f":"'DNSP Inputs O & M'!$F$239","v":1.3476456706921032},{"$f":"'DNSP Inputs O & M'!$F$242","v":73.92},null,{"$f":"AV286*AW286","v":99.617967977560269},{"$f":"AY286/'DNSP Inputs O & M'!$F$232","v":24.904491994390067},null,null,{"$f":"'DNSP Inputs O & M'!$F$239*(1+'DNSP Inputs O & M'!$F$11)","v":1.4150279542267084},{"$f":"'DNSP Inputs O & M'!$F$243","v":61.44},null,{"$f":"BC286*BD286","v":86.939317507688955},{"$f":"BF286/'DNSP Inputs O & M'!$F$232","v":21.734829376922239},null,null,{"$f":"'DNSP Inputs O & M'!$F$239*(1+'DNSP Inputs O & M'!$F$11)","v":1.4150279542267084},{"$f":"'DNSP Inputs O & M'!$F$244","v":48.96},null,{"$f":"BJ286*BK286","v":69.279768638939643},{"$f":"BM286/'DNSP Inputs O & M'!$F$232","v":17.319942159734911},null,null,null,null,{"$f":"'DNSP Inputs O & M'!$G$239","v":1.3476456706921032},{"$f":"'DNSP Inputs O & M'!$G$242","v":73.92},null,{"$f":"BS286*BT286","v":99.617967977560269},{"$f":"BV286/'DNSP Inputs O & M'!$G$232","v":24.904491994390067},null,null,{"$f":"'DNSP Inputs O & M'!$G$239*(1+'DNSP Inputs O & M'!$G$11)","v":1.4150279542267084},{"$f":"'DNSP Inputs O & M'!$G$243","v":61.44},null,{"$f":"BZ286*CA286","v":86.939317507688955},{"$f":"CC286/'DNSP Inputs O & M'!$G$232","v":21.734829376922239},null,null,{"$f":"'DNSP Inputs O & M'!$G$239*(1+'DNSP Inputs O & M'!$G$11)","v":1.4150279542267084},{"$f":"'DNSP Inputs O & M'!$G$244","v":48.96},null,{"$f":"CG286*CH286","v":69.279768638939643},{"$f":"CJ286/'DNSP Inputs O & M'!$G$232","v":17.319942159734911},null,null,null,null,{"$f":"'DNSP Inputs O & M'!$H$239","v":1.3476456706921032},{"$f":"'DNSP Inputs O & M'!$H$242","v":73.92},null,{"$f":"CP286*CQ286","v":99.617967977560269},{"$f":"CS286/'DNSP Inputs O & M'!$H$232","v":24.904491994390067},null,null,{"$f":"'DNSP Inputs O & M'!$H$239*(1+'DNSP Inputs O & M'!$H$11)","v":1.4150279542267084},{"$f":"'DNSP Inputs O & M'!$H$243","v":61.44},null,{"$f":"CW286*CX286","v":86.939317507688955},{"$f":"CZ286/'DNSP Inputs O & M'!$H$232","v":21.734829376922239},null,null,{"$f":"'DNSP Inputs O & M'!$H$239*(1+'DNSP Inputs O & M'!$H$11)","v":1.4150279542267084},{"$f":"'DNSP Inputs O & M'!$H$244","v":48.96},null,{"$f":"DD286*DE286","v":69.279768638939643},{"$f":"DG286/'DNSP Inputs O & M'!$H$232","v":17.319942159734911}]
["Materials - repair of faults"]
["Lamp",{"$f":"'DNSP Inputs O & M'!$D$236","v":8.1},{"$f":"'DNSP Inputs O & M'!$D$245*'DNSP Inputs O & M'!$D$248","v":14.975999999999999},null,{"$f":"B288*C288","v":121.30559999999998},{"$f":"(E288+E289+E290+E291)/'DNSP Inputs O & M'!$D$245","v":13.767645670692103},{"$f":"F288*D273","v":1.4306523754959359},null,{"$f":"'DNSP Inputs O & M'!$D$236*(1+'DNSP Inputs O & M'!$D$11)","v":8.5050000000000008},{"$f":"'DNSP Inputs O & M'!$D$246*'DNSP Inputs O & M'!$D$248","v":12.096},null,{"$f":"I288*J288","v":102.87648000000002},{"$f":"(L288+L289+L290+L291)/'DNSP Inputs O & M'!$D$246","v":14.456027954226707},{"$f":"M288*D273","v":1.5021849942707328},null,{"$f":"'DNSP Inputs O & M'!$D$236*(1+'DNSP Inputs O & M'!$D$11)","v":8.5050000000000008},{"$f":"'DNSP Inputs O & M'!$D$247*'DNSP Inputs O & M'!$D$248","v":9.7919999999999998},null,{"$f":"P288*Q288","v":83.280960000000007},{"$f":"(S288+S289+S290+S291)/'DNSP Inputs O & M'!$D$247","v":14.456027954226712},{"$f":"T288*D273","v":1.5021849942707333},null,null,null,{"$f":"'DNSP Inputs O & M'!$E$236","v":8.1},{"$f":"'DNSP Inputs O & M'!$E$245*'DNSP Inputs O & M'!$E$248","v":14.975999999999999},null,{"$f":"Y288*Z288","v":121.30559999999998},{"$f":"(AB288+AB289+AB290+AB291)/'DNSP Inputs O & M'!$E$245","v":13.767645670692103},{"$f":"AC288*AA273","v":1.4306523754959359},null,{"$f":"'DNSP Inputs O & M'!$E$236*(1+'DNSP Inputs O & M'!$E$11)","v":8.5050000000000008},{"$f":"'DNSP Inputs O & M'!$E$246*'DNSP Inputs O & M'!$E$248","v":12.096},null,{"$f":"AF288*AG288","v":102.87648000000002},{"$f":"(AI288+AI289+AI290+AI291)/'DNSP Inputs O & M'!$E$246","v":14.456027954226707},{"$f":"AJ288*AA273","v":1.5021849942707328},null,{"$f":"'DNSP Inputs O & M'!$E$236*(1+'DNSP Inputs O & M'!$E$11)","v":8.5050000000000008},{"$f":"'DNSP Inputs O & M'!$E$247*'DNSP Inputs O & M'!$E$248","v":9.7919999999999998},null,{"$f":"AM288*AN288","v":83.280960000000007},{"$f":"(AP288+AP289+AP290+AP291)/'DNSP Inputs O & M'!$E$247","v":14.456027954226712},{"$f":"AQ288*AA273","v":1.5021849942707333},null,null,null,{"$f":"'DNSP Inputs O & M'!$F$236","v":8.1},{"$f":"'DNSP Inputs O & M'!$F$245*'DNSP Inputs O & M'!$F$248","v":14.975999999999999},null,{"$f":"AV288*AW288","v":121.30559999999998},{"$f":"(AY288+AY289+AY290+AY291)/'DNSP Inputs O & M'!$F$245","v":13.767645670692103},{"$f":"AZ288*AX273","v":1.4306523754959359},null,{"$f":"'DNSP Inputs O & M'!$F$236*(1+'DNSP Inputs O & M'!$F$11)","v":8.5050000000000008},{"$f":"'DNSP Inputs O & M'!$F$246*'DNSP Inputs O & M'!$F$248","v":12.096},null,{"$f":"BC288*BD288","v":102.87648000000002},{"$f":"(BF288+BF289+BF290+BF291)/'DNSP Inputs O & M'!$F$246","v":14.456027954226707},{"$f":"BG288*AX273","v":1.5021849942707328},null,{"$f":"'DNSP Inputs O & M'!$F$236*(1+'DNSP Inputs O & M'!$F$11)","v":8.5050000000000008},{"$f":"'DNSP Inputs O & M'!$F$247*'DNSP Inputs O & M'!$F$248","v":9.7919999999999998},null,{"$f":"BJ288*BK288","v":83.280960000000007},{"$f":"(BM288+BM289+BM290+BM291)/'DNSP Inputs O & M'!$F$247","v":14.456027954226712},{"$f":"BN288*AX273","v":1.5021849942707333},null,null,null,{"$f":"'DNSP Inputs O & M'!$G$236","v":8.1},{"$f":"'DNSP Inputs O & M'!$G$245*'DNSP Inputs O & M'!$G$248","v":14.975999999999999},null,{"$f":"BS288*BT288","v":121.30559999999998},{"$f":"(BV288+BV289+BV290+BV291)/'DNSP Inputs O & M'!$G$245","v":13.767645670692103},{"$f":"BW288*BU273","v":1.4306523754959359},null,{"$f":"'DNSP Inputs O & M'!$G$236*(1+'DNSP Inputs O & M'!$G$11)","v":8.5050000000000008},{"$f":"'DNSP Inputs O & M'!$G$246*'DNSP Inputs O & M'!$G$248","v":12.096},null,{"$f":"BZ288*CA288","v":102.87648000000002},{"$f":"(CC288+CC289+CC290+CC291)/'DNSP Inputs O & M'!$G$246","v":14.456027954226707},{"$f":"CD288*BU273","v":1.5021849942707328},null,{"$f":"'DNSP Inputs O & M'!$G$236*(1+'DNSP Inputs O & M'!$G$11)","v":8.5050000000000008},{"$f":"'DNSP Inputs O & M'!$G$247*'DNSP Inputs O & M'!$G$248","v":9.7919999999999998},null,{"$f":"CG288*CH288","v":83.280960000000007},{"$f":"(CJ288+CJ289+CJ290+CJ291)/'DNSP Inputs O & M'!$G$247","v":14.456027954226712},{"$f":"CK288*BU273","v":1.5021849942707333},null,null,null,{"$f":"'DNSP Inputs O & M'!$H$236","v":8.1},{"$f":"'DNSP Inputs O & M'!$H$245*'DNSP Inputs O & M'!$H$248","v":14.975999999999999},null,{"$f":"CP288*CQ288","v":121.30559999999998},{"$f":"(CS288+CS289+CS290+CS291)/'DNSP Inputs O & M'!$H$245","v":13.767645670692103},{"$f":"CT288*CR273","v":1.4306523754959359},null,{"$f":"'DNSP Inputs O & M'!$H$236*(1+'DNSP Inputs O & M'!$H$11)","v":8.5050000000000008},{"$f":"'DNSP Inputs O & M'!$H$246*'DNSP Inputs O & M'!$H$248","v":12.096},null,{"$f":"CW288*CX288","v":102.87648000000002},{"$f":"(CZ288+CZ289+CZ290+CZ291)/'DNSP Inputs O & M'!$H$246","v":14.456027954226707},{"$f":"DA288*CR273","v":1.5021849942707328},null,{"$f":"'DNSP Inputs O & M'!$H$236*(1+'DNSP Inputs O & M'!$H$11)","v":8.5050000000000008},{"$f":"'DNSP Inputs O & M'!$H$247*'DNSP Inputs O & M'!$H$248","v":9.7919999999999998},null,{"$f":"DD288*DE288","v":83.280960000000007},{"$f":"(DG288+DG289+DG290+DG291)/'DNSP Inputs O & M'!$H$247","v":14.456027954226712},{"$f":"DH288*CR273","v":1.5021849942707333}]
["PE cell",{"$f":"'DNSP Inputs O & M'!$D$237","v":15.120000000000001},{"$f":"'DNSP Inputs O & M'!$D$245*'DNSP Inputs O & M'!$D$249","v":12.48},null,{"$f":"B289*C289","v":188.69760000000002},null,null,null,{"$f":"'DNSP Inputs O & M'!$D$237*(1+'DNSP Inputs O & M'!$D$11)","v":15.876000000000001},{"$f":"'DNSP Inputs O & M'!$D$246*'DNSP Inputs O & M'!$D$249","v":10.08},null,{"$f":"I289*J289","v":160.03008000000003},null,null,null,{"$f":"'DNSP Inputs O & M'!$D$237*(1+'DNSP Inputs O & M'!$D$11)","v":15.876000000000001},{"$f":"'DNSP Inputs O & M'!$D$247*'DNSP Inputs O & M'!$D$249","v":8.16},null,{"$f":"P289*Q289","v":129.54816000000002},null,null,null,null,null,{"$f":"'DNSP Inputs O & M'!$E$237","v":15.120000000000001},{"$f":"'DNSP Inputs O & M'!$E$245*'DNSP Inputs O & M'!$E$249","v":12.48},null,{"$f":"Y289*Z289","v":188.69760000000002},null,null,null,{"$f":"'DNSP Inputs O & M'!$E$237*(1+'DNSP Inputs O & M'!$E$11)","v":15.876000000000001},{"$f":"'DNSP Inputs O & M'!$E$246*'DNSP Inputs O & M'!$E$249","v":10.08},null,{"$f":"AF289*AG289","v":160.03008000000003},null,null,null,{"$f":"'DNSP Inputs O & M'!$E$237*(1+'DNSP Inputs O & M'!$E$11)","v":15.876000000000001},{"$f":"'DNSP Inputs O & M'!$E$247*'DNSP Inputs O & M'!$E$249","v":8.16},null,{"$f":"AM289*AN289","v":129.54816000000002},null,null,null,null,null,{"$f":"'DNSP Inputs O & M'!$F$237","v":15.120000000000001},{"$f":"'DNSP Inputs O & M'!$F$245*'DNSP Inputs O & M'!$F$249","v":12.48},null,{"$f":"AV289*AW289","v":188.69760000000002},null,null,null,{"$f":"'DNSP Inputs O & M'!$F$237*(1+'DNSP Inputs O & M'!$F$11)","v":15.876000000000001},{"$f":"'DNSP Inputs O & M'!$F$246*'DNSP Inputs O & M'!$F$249","v":10.08},null,{"$f":"BC289*BD289","v":160.03008000000003},null,null,null,{"$f":"'DNSP Inputs O & M'!$F$237*(1+'DNSP Inputs O & M'!$F$11)","v":15.876000000000001},{"$f":"'DNSP Inputs O & M'!$F$247*'DNSP Inputs O & M'!$F$249","v":8.16},null,{"$f":"BJ289*BK289","v":129.54816000000002},null,null,null,null,null,{"$f":"'DNSP Inputs O & M'!$G$237","v":15.120000000000001},{"$f":"'DNSP Inputs O & M'!$G$245*'DNSP Inputs O & M'!$G$249","v":12.48},null,{"$f":"BS289*BT289","v":188.69760000000002},null,null,null,{"$f":"'DNSP Inputs O & M'!$G$237*(1+'DNSP Inputs O & M'!$G$11)","v":15.876000000000001},{"$f":"'DNSP Inputs O & M'!$G$246*'DNSP Inputs O & M'!$G$249","v":10.08},null,{"$f":"BZ289*CA289","v":160.03008000000003},null,null,null,{"$f":"'DNSP Inputs O & M'!$G$237*(1+'DNSP Inputs O & M'!$G$11)","v":15.876000000000001},{"$f":"'DNSP Inputs O & M'!$G$247*'DNSP Inputs O & M'!$G$249","v":8.16},null,{"$f":"CG289*CH289","v":129.54816000000002},null,null,null,null,null,{"$f":"'DNSP Inputs O & M'!$H$237","v":15.120000000000001},{"$f":"'DNSP Inputs O & M'!$H$245*'DNSP Inputs O & M'!$H$249","v":12.48},null,{"$f":"CP289*CQ289","v":188.69760000000002},null,null,null,{"$f":"'DNSP Inputs O & M'!$H$237*(1+'DNSP Inputs O & M'!$H$11)","v":15.876000000000001},{"$f":"'DNSP Inputs O & M'!$H$246*'DNSP Inputs O & M'!$H$249","v":10.08},null,{"$f":"CW289*CX289","v":160.03008000000003},null,null,null,{"$f":"'DNSP Inputs O & M'!$H$237*(1+'DNSP Inputs O & M'!$H$11)","v":15.876000000000001},{"$f":"'DNSP Inputs O & M'!$H$247*'DNSP Inputs O & M'!$H$249","v":8.16},null,{"$f":"DD289*DE289","v":129.54816000000002}]
["Luminaire",{"$f":"'DNSP Inputs O & M'!$D$238","v":267.33},{"$f":"'DNSP Inputs O & M'!$D$245*'DNSP Inputs O & M'!$D$250","v":0},null,{"$f":"B290*C290","v":0},null,null,null,{"$f":"'DNSP Inputs O & M'!$D$238*(1+'DNSP Inputs O & M'!$D$11)","v":280.69650000000001},{"$f":"'DNSP Inputs O & M'!$D$246*'DNSP Inputs O & M'!$D$250","v":0},null,{"$f":"I290*J290","v":0},null,null,null,{"$f":"'DNSP Inputs O & M'!$D$238*(1+'DNSP Inputs O & M'!$D$11)","v":280.69650000000001},{"$f":"'DNSP Inputs O & M'!$D$247*'DNSP Inputs O & M'!$D$250","v":0},null,{"$f":"P290*Q290","v":0},null,null,null,null,null,{"$f":"'DNSP Inputs O & M'!$E$238","v":267.33},{"$f":"'DNSP Inputs O & M'!$E$245*'DNSP Inputs O & M'!$E$250","v":0},null,{"$f":"Y290*Z290","v":0},null,null,null,{"$f":"'DNSP Inputs O & M'!$E$238*(1+'DNSP Inputs O & M'!$E$11)","v":280.69650000000001},{"$f":"'DNSP Inputs O & M'!$E$246*'DNSP Inputs O & M'!$E$250","v":0},null,{"$f":"AF290*AG290","v":0},null,null,null,{"$f":"'DNSP Inputs O & M'!$E$238*(1+'DNSP Inputs O & M'!$E$11)","v":280.69650000000001},{"$f":"'DNSP Inputs O & M'!$E$247*'DNSP Inputs O & M'!$E$250","v":0},null,{"$f":"AM290*AN290","v":0},null,null,null,null,null,{"$f":"'DNSP Inputs O & M'!$F$238","v":267.33},{"$f":"'DNSP Inputs O & M'!$F$245*'DNSP Inputs O & M'!$F$250","v":0},null,{"$f":"AV290*AW290","v":0},null,null,null,{"$f":"'DNSP Inputs O & M'!$F$238*(1+'DNSP Inputs O & M'!$F$11)","v":280.69650000000001},{"$f":"'DNSP Inputs O & M'!$F$246*'DNSP Inputs O & M'!$F$250","v":0},null,{"$f":"BC290*BD290","v":0},null,null,null,{"$f":"'DNSP Inputs O & M'!$F$238*(1+'DNSP Inputs O & M'!$F$11)","v":280.69650000000001},{"$f":"'DNSP Inputs O & M'!$F$247*'DNSP Inputs O & M'!$F$250","v":0},null,{"$f":"BJ290*BK290","v":0},null,null,null,null,null,{"$f":"'DNSP Inputs O & M'!$G$238","v":267.33},{"$f":"'DNSP Inputs O & M'!$G$245*'DNSP Inputs O & M'!$G$250","v":0},null,{"$f":"BS290*BT290","v":0},null,null,null,{"$f":"'DNSP Inputs O & M'!$G$238*(1+'DNSP Inputs O & M'!$G$11)","v":280.69650000000001},{"$f":"'DNSP Inputs O & M'!$G$246*'DNSP Inputs O & M'!$G$250","v":0},null,{"$f":"BZ290*CA290","v":0},null,null,null,{"$f":"'DNSP Inputs O & M'!$G$238*(1+'DNSP Inputs O & M'!$G$11)","v":280.69650000000001},{"$f":"'DNSP Inputs O & M'!$G$247*'DNSP Inputs O & M'!$G$250","v":0},null,{"$f":"CG290*CH290","v":0},null,null,null,null,null,{"$f":"'DNSP Inputs O & M'!$H$238","v":267.33},{"$f":"'DNSP Inputs O & M'!$H$245*'DNSP Inputs O & M'!$H$250","v":0},null,{"$f":"CP290*CQ290","v":0},null,null,null,{"$f":"'DNSP Inputs O & M'!$H$238*(1+'DNSP Inputs O & M'!$H$11)","v":280.69650000000001},{"$f":"'DNSP Inputs O & M'!$H$246*'DNSP Inputs O & M'!$H$250","v":0},null,{"$f":"CW290*CX290","v":0},null,null,null,{"$f":"'DNSP Inputs O & M'!$H$238*(1+'DNSP Inputs O & M'!$H$11)","v":280.69650000000001},{"$f":"'DNSP Inputs O & M'!$H$247*'DNSP Inputs O & M'!$H$250","v":0},null,{"$f":"DD290*DE290","v":0}]
["Miscellaneous",{"$f":"'DNSP Inputs O & M'!$D$240","v":13.476456706921033},{"$f":"'DNSP Inputs O & M'!$D$245*'DNSP Inputs O & M'!$D$251","v":2.4960000000000004},null,{"$f":"B291*C291","v":33.637235940474902},null,null,null,{"$f":"'DNSP Inputs O & M'!$D$240*(1+'DNSP Inputs O & M'!$D$11)","v":14.150279542267084},{"$f":"'DNSP Inputs O & M'!$D$246*'DNSP Inputs O & M'!$D$251","v":2.016},null,{"$f":"I291*J291","v":28.52696355721044},null,null,null,{"$f":"'DNSP Inputs O & M'!$D$240*(1+'DNSP Inputs O & M'!$D$11)","v":14.150279542267084},{"$f":"'DNSP Inputs O & M'!$D$247*'DNSP Inputs O & M'!$D$251","v":1.6320000000000001},null,{"$f":"P291*Q291","v":23.093256212979881},null,null,null,null,null,{"$f":"'DNSP Inputs O & M'!$E$240","v":13.476456706921033},{"$f":"'DNSP Inputs O & M'!$E$245*'DNSP Inputs O & M'!$E$251","v":2.4960000000000004},null,{"$f":"Y291*Z291","v":33.637235940474902},null,null,null,{"$f":"'DNSP Inputs O & M'!$E$240*(1+'DNSP Inputs O & M'!$E$11)","v":14.150279542267084},{"$f":"'DNSP Inputs O & M'!$E$246*'DNSP Inputs O & M'!$E$251","v":2.016},null,{"$f":"AF291*AG291","v":28.52696355721044},null,null,null,{"$f":"'DNSP Inputs O & M'!$E$240*(1+'DNSP Inputs O & M'!$E$11)","v":14.150279542267084},{"$f":"'DNSP Inputs O & M'!$E$247*'DNSP Inputs O & M'!$E$251","v":1.6320000000000001},null,{"$f":"AM291*AN291","v":23.093256212979881},null,null,null,null,null,{"$f":"'DNSP Inputs O & M'!$F$240","v":13.476456706921033},{"$f":"'DNSP Inputs O & M'!$F$245*'DNSP Inputs O & M'!$F$251","v":2.4960000000000004},null,{"$f":"AV291*AW291","v":33.637235940474902},null,null,null,{"$f":"'DNSP Inputs O & M'!$F$240*(1+'DNSP Inputs O & M'!$F$11)","v":14.150279542267084},{"$f":"'DNSP Inputs O & M'!$F$246*'DNSP Inputs O & M'!$F$251","v":2.016},null,{"$f":"BC291*BD291","v":28.52696355721044},null,null,null,{"$f":"'DNSP Inputs O & M'!$F$240*(1+'DNSP Inputs O & M'!$F$11)","v":14.150279542267084},{"$f":"'DNSP Inputs O & M'!$F$247*'DNSP Inputs O & M'!$F$251","v":1.6320000000000001},null,{"$f":"BJ291*BK291","v":23.093256212979881},null,null,null,null,null,{"$f":"'DNSP Inputs O & M'!$G$240","v":13.476456706921033},{"$f":"'DNSP Inputs O & M'!$G$245*'DNSP Inputs O & M'!$G$251","v":2.4960000000000004},null,{"$f":"BS291*BT291","v":33.637235940474902},null,null,null,{"$f":"'DNSP Inputs O & M'!$G$240*(1+'DNSP Inputs O & M'!$G$11)","v":14.150279542267084},{"$f":"'DNSP Inputs O & M'!$G$246*'DNSP Inputs O & M'!$G$251","v":2.016},null,{"$f":"BZ291*CA291","v":28.52696355721044},null,null,null,{"$f":"'DNSP Inputs O & M'!$G$240*(1+'DNSP Inputs O & M'!$G$11)","v":14.150279542267084},{"$f":"'DNSP Inputs O & M'!$G$247*'DNSP Inputs O & M'!$G$251","v":1.6320000000000001},null,{"$f":"CG291*CH291","v":23.093256212979881},null,null,null,null,null,{"$f":"'DNSP Inputs O & M'!$H$240","v":13.476456706921033},{"$f":"'DNSP Inputs O & M'!$H$245*'DNSP Inputs O & M'!$H$251","v":2.4960000000000004},null,{"$f":"CP291*CQ291","v":33.637235940474902},null,null,null,{"$f":"'DNSP Inputs O & M'!$H$240*(1+'DNSP Inputs O & M'!$H$11)","v":14.150279542267084},{"$f":"'DNSP Inputs O & M'!$H$246*'DNSP Inputs O & M'!$H$251","v":2.016},null,{"$f":"CW291*CX291","v":28.52696355721044},null,null,null,{"$f":"'DNSP Inputs O & M'!$H$240*(1+'DNSP Inputs O & M'!$H$11)","v":14.150279542267084},{"$f":"'DNSP Inputs O & M'!$H$247*'DNSP Inputs O & M'!$H$251","v":1.6320000000000001},null,{"$f":"DD291*DE291","v":23.093256212979881}]
["Labour - bulk lamp change"]
["Crew costs",{"$f":"'DNSP Inputs O & M'!$D$12","v":111.36223236834823},{"$f":"'DNSP Inputs O & M'!$D$241","v":2},{"$f":"'DNSP Inputs O & M'!$D$17","v":7.5},{"$f":"B293*C293*D293","v":1670.4334855252234},{"$f":"E293/'DNSP Inputs O & M'!$D$232*(C284+C285)/C284","v":626.41255707195876},{"$f":"(F293+F294)/C284","v":10.38343894848429},null,{"$f":"'DNSP Inputs O & M'!$D$12","v":111.36223236834823},{"$f":"'DNSP Inputs O & M'!$D$241","v":2},{"$f":"'DNSP Inputs O & M'!$D$17","v":7.5},{"$f":"I293*J293*K293","v":1670.4334855252234},{"$f":"L293/'DNSP Inputs O & M'!$D$232*(C284+C285)/C284","v":626.41255707195876},{"$f":"(M293+M294)/J284","v":13.108724887238912},null,{"$f":"'DNSP Inputs O & M'!$D$12","v":111.36223236834823},{"$f":"'DNSP Inputs O & M'!$D$241","v":2},{"$f":"'DNSP Inputs O & M'!$D$17","v":7.5},{"$f":"P293*Q293*R293","v":1670.4334855252234},{"$f":"S293/'DNSP Inputs O & M'!$D$232*(C284+C285)/C284","v":626.41255707195876},{"$f":"(T293+T294)/Q284","v":16.450164564378241},null,null,null,{"$f":"'DNSP Inputs O & M'!$E$12","v":112.10021456669011},{"$f":"'DNSP Inputs O & M'!$E$241","v":2},{"$f":"'DNSP Inputs O & M'!$E$17","v":7.5},{"$f":"Y293*Z293*AA293","v":1681.5032185003517},{"$f":"AB293/'DNSP Inputs O & M'!$E$232*(Z284+Z285)/Z284","v":630.56370693763188},{"$f":"(AC293+AC294)/Z284","v":10.439596278918181},null,{"$f":"'DNSP Inputs O & M'!$E$12","v":112.10021456669011},{"$f":"'DNSP Inputs O & M'!$E$241","v":2},{"$f":"'DNSP Inputs O & M'!$E$17","v":7.5},{"$f":"AF293*AG293*AH293","v":1681.5032185003517},{"$f":"AI293/'DNSP Inputs O & M'!$E$232*(Z284+Z285)/Z284","v":630.56370693763188},{"$f":"(AJ293+AJ294)/AG284","v":13.176289175417185},null,{"$f":"'DNSP Inputs O & M'!$E$12","v":112.10021456669011},{"$f":"'DNSP Inputs O & M'!$E$241","v":2},{"$f":"'DNSP Inputs O & M'!$E$17","v":7.5},{"$f":"AM293*AN293*AO293","v":1681.5032185003517},{"$f":"AP293/'DNSP Inputs O & M'!$E$232*(Z284+Z285)/Z284","v":630.56370693763188},{"$f":"(AQ293+AQ294)/AN284","v":16.534951122092153},null,null,null,{"$f":"'DNSP Inputs O & M'!$F$12","v":112.78304720629164},{"$f":"'DNSP Inputs O & M'!$F$241","v":2},{"$f":"'DNSP Inputs O & M'!$F$17","v":7.5},{"$f":"AV293*AW293*AX293","v":1691.7457080943745},{"$f":"AY293/'DNSP Inputs O & M'!$F$232*(AW284+AW285)/AW284","v":634.4046405353904},{"$f":"(AZ293+AZ294)/AW284","v":10.491556960706038},null,{"$f":"'DNSP Inputs O & M'!$F$12","v":112.78304720629164},{"$f":"'DNSP Inputs O & M'!$F$241","v":2},{"$f":"'DNSP Inputs O & M'!$F$17","v":7.5},{"$f":"BC293*BD293*BE293","v":1691.7457080943745},{"$f":"BF293/'DNSP Inputs O & M'!$F$232*(AW284+AW285)/AW284","v":634.4046405353904},{"$f":"(BG293+BG294)/BD284","v":13.238804370693202},null,{"$f":"'DNSP Inputs O & M'!$F$12","v":112.78304720629164},{"$f":"'DNSP Inputs O & M'!$F$241","v":2},{"$f":"'DNSP Inputs O & M'!$F$17","v":7.5},{"$f":"BJ293*BK293*BL293","v":1691.7457080943745},{"$f":"BM293/'DNSP Inputs O & M'!$F$232*(AW284+AW285)/AW284","v":634.4046405353904},{"$f":"(BN293+BN294)/BK284","v":16.61340156322284},null,null,null,{"$f":"'DNSP Inputs O & M'!$G$12","v":113.60949069043043},{"$f":"'DNSP Inputs O & M'!$G$241","v":2},{"$f":"'DNSP Inputs O & M'!$G$17","v":7.5},{"$f":"BS293*BT293*BU293","v":1704.1423603564565},{"$f":"BV293/'DNSP Inputs O & M'!$G$232*(BT284+BT285)/BT284","v":639.0533851336711},{"$f":"(BW293+BW294)/BT284","v":10.554445821613516},null,{"$f":"'DNSP Inputs O & M'!$G$12","v":113.60949069043043},{"$f":"'DNSP Inputs O & M'!$G$241","v":2},{"$f":"'DNSP Inputs O & M'!$G$17","v":7.5},{"$f":"BZ293*CA293*CB293","v":1704.1423603564565},{"$f":"CC293/'DNSP Inputs O & M'!$G$232*(BT284+BT285)/BT284","v":639.0533851336711},{"$f":"(CD293+CD294)/CA284","v":13.314467531472511},null,{"$f":"'DNSP Inputs O & M'!$G$12","v":113.60949069043043},{"$f":"'DNSP Inputs O & M'!$G$241","v":2},{"$f":"'DNSP Inputs O & M'!$G$17","v":7.5},{"$f":"CG293*CH293*CI293","v":1704.1423603564565},{"$f":"CJ293/'DNSP Inputs O & M'!$G$232*(BT284+BT285)/BT284","v":639.0533851336711},{"$f":"(CK293+CK294)/CH284","v":16.708351412043935},null,null,null,{"$f":"'DNSP Inputs O & M'!$H$12","v":114.68985653357629},{"$f":"'DNSP Inputs O & M'!$H$241","v":2},{"$f":"'DNSP Inputs O & M'!$H$17","v":7.5},{"$f":"CP293*CQ293*CR293","v":1720.3478480036442},{"$f":"CS293/'DNSP Inputs O & M'!$H$232*(CQ284+CQ285)/CQ284","v":645.13044300136653},{"$f":"(CT293+CT294)/CQ284","v":10.636657102291213},null,{"$f":"'DNSP Inputs O & M'!$H$12","v":114.68985653357629},{"$f":"'DNSP Inputs O & M'!$H$241","v":2},{"$f":"'DNSP Inputs O & M'!$H$17","v":7.5},{"$f":"CW293*CX293*CY293","v":1720.3478480036442},{"$f":"CZ293/'DNSP Inputs O & M'!$H$232*(CQ284+CQ285)/CQ284","v":645.13044300136653},{"$f":"(DA293+DA294)/CX284","v":13.413377978537866},null,{"$f":"'DNSP Inputs O & M'!$H$12","v":114.68985653357629},{"$f":"'DNSP Inputs O & M'!$H$241","v":2},{"$f":"'DNSP Inputs O & M'!$H$17","v":7.5},{"$f":"DD293*DE293*DF293","v":1720.3478480036442},{"$f":"DG293/'DNSP Inputs O & M'!$H$232*(CQ284+CQ285)/CQ284","v":645.13044300136653},{"$f":"(DH293+DH294)/DE284","v":16.832474326008303}]
["Elevated platform vehicle costs",{"$f":"'DNSP Inputs O & M'!$D$14","v":50.18},1,{"$f":"'DNSP Inputs O & M'!$D$17","v":7.5},{"$f":"B294*C294*D294","v":376.35},{"$f":"E294/'DNSP Inputs O & M'!$D$232*(C284+C285)/C284","v":141.13124999999999},null,null,{"$f":"'DNSP Inputs O & M'!$D$15","v":63.64},1,{"$f":"'DNSP Inputs O & M'!$D$17","v":7.5},{"$f":"I294*J294*K294","v":477.3},{"$f":"L294/'DNSP Inputs O & M'!$D$232*(C284+C285)/C284","v":178.98749999999998},null,null,{"$f":"'DNSP Inputs O & M'!$D$15","v":63.64},1,{"$f":"'DNSP Inputs O & M'!$D$17","v":7.5},{"$f":"P294*Q294*R294","v":477.3},{"$f":"S294/'DNSP Inputs O & M'!$D$232*(C284+C285)/C284","v":178.98749999999998},null,null,null,null,{"$f":"'DNSP Inputs O & M'!$E$14","v":50.18},1,{"$f":"'DNSP Inputs O & M'!$E$17","v":7.5},{"$f":"Y294*Z294*AA294","v":376.35},{"$f":"AB294/'DNSP Inputs O & M'!$E$232*(Z284+Z285)/Z284","v":141.13124999999999},null,null,{"$f":"'DNSP Inputs O & M'!$E$15","v":63.64},1,{"$f":"'DNSP Inputs O & M'!$E$17","v":7.5},{"$f":"AF294*AG294*AH294","v":477.3},{"$f":"AI294/'DNSP Inputs O & M'!$E$232*(Z284+Z285)/Z284","v":178.98749999999998},null,null,{"$f":"'DNSP Inputs O & M'!$E$15","v":63.64},1,{"$f":"'DNSP Inputs O & M'!$E$17","v":7.5},{"$f":"AM294*AN294*AO294","v":477.3},{"$f":"AP294/'DNSP Inputs O & M'!$E$232*(Z284+Z285)/Z284","v":178.98749999999998},null,null,null,null,{"$f":"'DNSP Inputs O & M'!$F$14","v":50.18},1,{"$f":"'DNSP Inputs O & M'!$F$17","v":7.5},{"$f":"AV294*AW294*AX294","v":376.35},{"$f":"AY294/'DNSP Inputs O & M'!$F$232*(AW284+AW285)/AW284","v":141.13124999999999},null,null,{"$f":"'DNSP Inputs O & M'!$F$15","v":63.64},1,{"$f":"'DNSP Inputs O & M'!$F$17","v":7.5},{"$f":"BC294*BD294*BE294","v":477.3},{"$f":"BF294/'DNSP Inputs O & M'!$F$232*(AW284+AW285)/AW284","v":178.98749999999998},null,null,{"$f":"'DNSP Inputs O & M'!$F$15","v":63.64},1,{"$f":"'DNSP Inputs O & M'!$F$17","v":7.5},{"$f":"BJ294*BK294*BL294","v":477.3},{"$f":"BM294/'DNSP Inputs O & M'!$F$232*(AW284+AW285)/AW284","v":178.98749999999998},null,null,null,null,{"$f":"'DNSP Inputs O & M'!$G$14","v":50.18},1,{"$f":"'DNSP Inputs O & M'!$G$17","v":7.5},{"$f":"BS294*BT294*BU294","v":376.35},{"$f":"BV294/'DNSP Inputs O & M'!$G$232*(BT284+BT285)/BT284","v":141.13124999999999},null,null,{"$f":"'DNSP Inputs O & M'!$G$15","v":63.64},1,{"$f":"'DNSP Inputs O & M'!$G$17","v":7.5},{"$f":"BZ294*CA294*CB294","v":477.3},{"$f":"CC294/'DNSP Inputs O & M'!$G$232*(BT284+BT285)/BT284","v":178.98749999999998},null,null,{"$f":"'DNSP Inputs O & M'!$G$15","v":63.64},1,{"$f":"'DNSP Inputs O & M'!$G$17","v":7.5},{"$f":"CG294*CH294*CI294","v":477.3},{"$f":"CJ294/'DNSP Inputs O & M'!$G$232*(BT284+BT285)/BT284","v":178.98749999999998},null,null,null,null,{"$f":"'DNSP Inputs O & M'!$H$14","v":50.18},1,{"$f":"'DNSP Inputs O & M'!$H$17","v":7.5},{"$f":"CP294*CQ294*CR294","v":376.35},{"$f":"CS294/'DNSP Inputs O & M'!$H$232*(CQ284+CQ285)/CQ284","v":141.13124999999999},null,null,{"$f":"'DNSP Inputs O & M'!$H$15","v":63.64},1,{"$f":"'DNSP Inputs O & M'!$H$17","v":7.5},{"$f":"CW294*CX294*CY294","v":477.3},{"$f":"CZ294/'DNSP Inputs O & M'!$H$232*(CQ284+CQ285)/CQ284","v":178.98749999999998},null,null,{"$f":"'DNSP Inputs O & M'!$H$15","v":63.64},1,{"$f":"'DNSP Inputs O & M'!$H$17","v":7.5},{"$f":"DD294*DE294*DF294","v":477.3},{"$f":"DG294/'DNSP Inputs O & M'!$H$232*(CQ284+CQ285)/CQ284","v":178.98749999999998}]
["Labour - repair of faults"]
["Crew costs",{"$f":"'DNSP Inputs O & M'!$D$12","v":111.36223236834823},{"$f":"'DNSP Inputs O & M'!$D$241","v":2},{"$f":"'DNSP Inputs O & M'!$D$17","v":7.5},{"$f":"B296*C296*D296","v":1670.4334855252234},{"$f":"(E296+E297)/'DNSP Inputs O & M'!$D$245","v":82.002543490593894},{"$f":"F296*D273","v":8.5212197094283155},null,{"$f":"'DNSP Inputs O & M'!$D$12","v":111.36223236834823},{"$f":"'DNSP Inputs O & M'!$D$241","v":2},{"$f":"'DNSP Inputs O & M'!$D$17","v":7.5},{"$f":"I296*J296*K296","v":1670.4334855252234},{"$f":"(L296+L297)/'DNSP Inputs O & M'!$D$246","v":106.53439908359243},{"$f":"M296*D273","v":11.070425166840579},null,{"$f":"'DNSP Inputs O & M'!$D$12","v":111.36223236834823},{"$f":"'DNSP Inputs O & M'!$D$241","v":2},{"$f":"'DNSP Inputs O & M'!$D$17","v":7.5},{"$f":"P296*Q296*R296","v":1670.4334855252234},{"$f":"(S296+S297)/'DNSP Inputs O & M'!$D$247","v":131.60131651502593},{"$f":"T296*D273","v":13.675231088450124},null,null,null,{"$f":"'DNSP Inputs O & M'!$E$12","v":112.10021456669011},{"$f":"'DNSP Inputs O & M'!$E$241","v":2},{"$f":"'DNSP Inputs O & M'!$E$17","v":7.5},{"$f":"Y296*Z296*AA296","v":1681.5032185003517},{"$f":"(AB296+AB297)/'DNSP Inputs O & M'!$E$245","v":82.446042407866656},{"$f":"AC296*AA273","v":8.5673054959674637},null,{"$f":"'DNSP Inputs O & M'!$E$12","v":112.10021456669011},{"$f":"'DNSP Inputs O & M'!$E$241","v":2},{"$f":"'DNSP Inputs O & M'!$E$17","v":7.5},{"$f":"AF296*AG296*AH296","v":1681.5032185003517},{"$f":"(AI296+AI297)/'DNSP Inputs O & M'!$E$246","v":107.08349298116823},{"$f":"AJ296*AA273","v":11.127483759698572},null,{"$f":"'DNSP Inputs O & M'!$E$12","v":112.10021456669011},{"$f":"'DNSP Inputs O & M'!$E$241","v":2},{"$f":"'DNSP Inputs O & M'!$E$17","v":7.5},{"$f":"AM296*AN296*AO296","v":1681.5032185003517},{"$f":"(AP296+AP297)/'DNSP Inputs O & M'!$E$247","v":132.27960897673722},{"$f":"AQ296*AA273","v":13.745715232568823},null,null,null,{"$f":"'DNSP Inputs O & M'!$F$12","v":112.78304720629164},{"$f":"'DNSP Inputs O & M'!$F$241","v":2},{"$f":"'DNSP Inputs O & M'!$F$17","v":7.5},{"$f":"AV296*AW296*AX296","v":1691.7457080943745},{"$f":"(AY296+AY297)/'DNSP Inputs O & M'!$F$245","v":82.856398561473327},{"$f":"AZ296*AX273","v":8.6099472823700953},null,{"$f":"'DNSP Inputs O & M'!$F$12","v":112.78304720629164},{"$f":"'DNSP Inputs O & M'!$F$241","v":2},{"$f":"'DNSP Inputs O & M'!$F$17","v":7.5},{"$f":"BC296*BD296*BE296","v":1691.7457080943745},{"$f":"(BF296+BF297)/'DNSP Inputs O & M'!$F$246","v":107.59155298087177},{"$f":"BG296*AX273","v":11.180278352387548},null,{"$f":"'DNSP Inputs O & M'!$F$12","v":112.78304720629164},{"$f":"'DNSP Inputs O & M'!$F$241","v":2},{"$f":"'DNSP Inputs O & M'!$F$17","v":7.5},{"$f":"BJ296*BK296*BL296","v":1691.7457080943745},{"$f":"(BM296+BM297)/'DNSP Inputs O & M'!$F$247","v":132.90721250578275},{"$f":"BN296*AX273","v":13.810932082361086},null,null,null,{"$f":"'DNSP Inputs O & M'!$G$12","v":113.60949069043043},{"$f":"'DNSP Inputs O & M'!$G$241","v":2},{"$f":"'DNSP Inputs O & M'!$G$17","v":7.5},{"$f":"BS296*BT296*BU296","v":1704.1423603564565},{"$f":"(BV296+BV297)/'DNSP Inputs O & M'!$G$245","v":83.353059309152911},{"$f":"BW296*BU273","v":8.6615573321548567},null,{"$f":"'DNSP Inputs O & M'!$G$12","v":113.60949069043043},{"$f":"'DNSP Inputs O & M'!$G$241","v":2},{"$f":"'DNSP Inputs O & M'!$G$17","v":7.5},{"$f":"BZ296*CA296*CB296","v":1704.1423603564565},{"$f":"(CC296+CC297)/'DNSP Inputs O & M'!$G$246","v":108.20646628752264},{"$f":"CD296*BU273","v":11.244176509263916},null,{"$f":"'DNSP Inputs O & M'!$G$12","v":113.60949069043043},{"$f":"'DNSP Inputs O & M'!$G$241","v":2},{"$f":"'DNSP Inputs O & M'!$G$17","v":7.5},{"$f":"CG296*CH296*CI296","v":1704.1423603564565},{"$f":"(CJ296+CJ297)/'DNSP Inputs O & M'!$G$247","v":133.66681129635148},{"$f":"CK296*BU273","v":13.889865099678953},null,null,null,{"$f":"'DNSP Inputs O & M'!$H$12","v":114.68985653357629},{"$f":"'DNSP Inputs O & M'!$H$241","v":2},{"$f":"'DNSP Inputs O & M'!$H$17","v":7.5},{"$f":"CP296*CQ296*CR296","v":1720.3478480036442},{"$f":"(CS296+CS297)/'DNSP Inputs O & M'!$H$245","v":84.002317628351122},{"$f":"CT296*CR273","v":8.7290244197665565},null,{"$f":"'DNSP Inputs O & M'!$H$12","v":114.68985653357629},{"$f":"'DNSP Inputs O & M'!$H$241","v":2},{"$f":"'DNSP Inputs O & M'!$H$17","v":7.5},{"$f":"CW296*CX296*CY296","v":1720.3478480036442},{"$f":"(CZ296+CZ297)/'DNSP Inputs O & M'!$H$246","v":109.0103099208157},{"$f":"DA296*CR273","v":11.327707189164119},null,{"$f":"'DNSP Inputs O & M'!$H$12","v":114.68985653357629},{"$f":"'DNSP Inputs O & M'!$H$241","v":2},{"$f":"'DNSP Inputs O & M'!$H$17","v":7.5},{"$f":"DD296*DE296*DF296","v":1720.3478480036442},{"$f":"(DG296+DG297)/'DNSP Inputs O & M'!$H$247","v":134.65979460806645},{"$f":"DH296*CR273","v":13.993050057202733}]
["Elevated platform vehicle costs",{"$f":"'DNSP Inputs O & M'!$D$14","v":50.18},1,{"$f":"'DNSP Inputs O & M'!$D$17","v":7.5},{"$f":"B297*C297*D297","v":376.35},null,null,null,{"$f":"'DNSP Inputs O & M'!$D$15","v":63.64},1,{"$f":"'DNSP Inputs O & M'!$D$17","v":7.5},{"$f":"I297*J297*K297","v":477.3},null,null,null,{"$f":"'DNSP Inputs O & M'!$D$15","v":63.64},1,{"$f":"'DNSP Inputs O & M'!$D$17","v":7.5},{"$f":"P297*Q297*R297","v":477.3},null,null,null,null,null,{"$f":"'DNSP Inputs O & M'!$E$14","v":50.18},1,{"$f":"'DNSP Inputs O & M'!$E$17","v":7.5},{"$f":"Y297*Z297*AA297","v":376.35},null,null,null,{"$f":"'DNSP Inputs O & M'!$E$15","v":63.64},1,{"$f":"'DNSP Inputs O & M'!$E$17","v":7.5},{"$f":"AF297*AG297*AH297","v":477.3},null,null,null,{"$f":"'DNSP Inputs O & M'!$E$15","v":63.64},1,{"$f":"'DNSP Inputs O & M'!$E$17","v":7.5},{"$f":"AM297*AN297*AO297","v":477.3},null,null,null,null,null,{"$f":"'DNSP Inputs O & M'!$F$14","v":50.18},1,{"$f":"'DNSP Inputs O & M'!$F$17","v":7.5},{"$f":"AV297*AW297*AX297","v":376.35},null,null,null,{"$f":"'DNSP Inputs O & M'!$F$15","v":63.64},1,{"$f":"'DNSP Inputs O & M'!$F$17","v":7.5},{"$f":"BC297*BD297*BE297","v":477.3},null,null,null,{"$f":"'DNSP Inputs O & M'!$F$15","v":63.64},1,{"$f":"'DNSP Inputs O & M'!$F$17","v":7.5},{"$f":"BJ297*BK297*BL297","v":477.3},null,null,null,null,null,{"$f":"'DNSP Inputs O & M'!$G$14","v":50.18},1,{"$f":"'DNSP Inputs O & M'!$G$17","v":7.5},{"$f":"BS297*BT297*BU297","v":376.35},null,null,null,{"$f":"'DNSP Inputs O & M'!$G$15","v":63.64},1,{"$f":"'DNSP Inputs O & M'!$G$17","v":7.5},{"$f":"BZ297*CA297*CB297","v":477.3},null,null,null,{"$f":"'DNSP Inputs O & M'!$G$15","v":63.64},1,{"$f":"'DNSP Inputs O & M'!$G$17","v":7.5},{"$f":"CG297*CH297*CI297","v":477.3},null,null,null,null,null,{"$f":"'DNSP Inputs O & M'!$H$14","v":50.18},1,{"$f":"'DNSP Inputs O & M'!$H$17","v":7.5},{"$f":"CP297*CQ297*CR297","v":376.35},null,null,null,{"$f":"'DNSP Inputs O & M'!$H$15","v":63.64},1,{"$f":"'DNSP Inputs O & M'!$H$17","v":7.5},{"$f":"CW297*CX297*CY297","v":477.3},null,null,null,{"$f":"'DNSP Inputs O & M'!$H$15","v":63.64},1,{"$f":"'DNSP Inputs O & M'!$H$17","v":7.5},{"$f":"DD297*DE297*DF297","v":477.3}]
["Other Maintenance and Repair costs",null,null,null,null,null,{"$f":"'DNSP Inputs O & M'!$D$258","v":1.0492502677615139},null,null,null,null,null,null,{"$f":"'DNSP Inputs O & M'!$D$258","v":1.0492502677615139},null,null,null,null,null,null,{"$f":"'DNSP Inputs O & M'!$D$258","v":1.0492502677615139},null,null,null,null,null,null,null,null,{"$f":"'DNSP Inputs O & M'!$E$258","v":1.0492502677615139},null,null,null,null,null,null,{"$f":"'DNSP Inputs O & M'!$E$258","v":1.0492502677615139},null,null,null,null,null,null,{"$f":"'DNSP Inputs O & M'!$E$258","v":1.0492502677615139},null,null,null,null,null,null,null,null,{"$f":"'DNSP Inputs O & M'!$F$258","v":1.0492502677615139},null,null,null,null,null,null,{"$f":"'DNSP Inputs O & M'!$F$258","v":1.0492502677615139},null,null,null,null,null,null,{"$f":"'DNSP Inputs O & M'!$F$258","v":1.0492502677615139},null,null,null,null,null,null,null,null,{"$f":"'DNSP Inputs O & M'!$G$258","v":1.0492502677615139},null,null,null,null,null,null,{"$f":"'DNSP Inputs O & M'!$G$258","v":1.0492502677615139},null,null,null,null,null,null,{"$f":"'DNSP Inputs O & M'!$G$258","v":1.0492502677615139},null,null,null,null,null,null,null,null,{"$f":"'DNSP Inputs O & M'!$H$258","v":1.0492502677615139},null,null,null,null,null,null,{"$f":"'DNSP Inputs O & M'!$H$258","v":1.0492502677615139},null,null,null,null,null,null,{"$f":"'DNSP Inputs O & M'!$H$258","v":1.0492502677615139}]
[]
["Overheads",{"$f":"'DNSP Inputs O & M'!$D$18","v":0.25},null,null,null,null,{"$f":"B300*SUM(G284:G298)","v":6.4091181797107701},null,{"$f":"'DNSP Inputs O & M'!$D$18","v":0.25},null,null,null,null,{"$f":"I300*SUM(N284:N298)","v":7.7987730761671035},null,{"$f":"'DNSP Inputs O & M'!$D$18","v":0.25},null,null,null,null,{"$f":"P300*SUM(U284:U298)","v":9.2853344758543219},null,null,null,{"$f":"'DNSP Inputs O & M'!$E$18","v":0.25},null,null,null,null,{"$f":"Y300*SUM(AD284:AD298)","v":6.4346789589540299},null,{"$f":"'DNSP Inputs O & M'!$E$18","v":0.25},null,null,null,null,{"$f":"AF300*SUM(AK284:AK298)","v":7.8299287964261701},null,{"$f":"'DNSP Inputs O & M'!$E$18","v":0.25},null,null,null,null,{"$f":"AM300*SUM(AR284:AR298)","v":9.3241521513124752},null,null,null,{"$f":"'DNSP Inputs O & M'!$F$18","v":0.25},null,null,null,null,{"$f":"AV300*SUM(BA284:BA298)","v":6.4583295760016526},null,{"$f":"'DNSP Inputs O & M'!$F$18","v":0.25},null,null,null,null,{"$f":"BC300*SUM(BH284:BH298)","v":7.8587562434174192},null,{"$f":"'DNSP Inputs O & M'!$F$18","v":0.25},null,null,null,null,{"$f":"BJ300*SUM(BO284:BO298)","v":9.3600689740432124},null,null,null,{"$f":"'DNSP Inputs O & M'!$G$18","v":0.25},null,null,null,null,{"$f":"BS300*SUM(BX284:BX298)","v":6.4869543036747128},null,{"$f":"'DNSP Inputs O & M'!$G$18","v":0.25},null,null,null,null,{"$f":"BZ300*SUM(CE284:CE298)","v":7.8936465728313383},null,{"$f":"'DNSP Inputs O & M'!$G$18","v":0.25},null,null,null,null,{"$f":"CG300*SUM(CL284:CL298)","v":9.4035396905779525},null,null,null,{"$f":"'DNSP Inputs O & M'!$H$18","v":0.25},null,null,null,null,{"$f":"CP300*SUM(CU284:CU298)","v":6.5243738957470621},null,{"$f":"'DNSP Inputs O & M'!$H$18","v":0.25},null,null,null,null,{"$f":"CW300*SUM(DB284:DB298)","v":7.9392568545727276},null,{"$f":"'DNSP Inputs O & M'!$H$18","v":0.25},null,null,null,null,{"$f":"DD300*SUM(DI284:DI298)","v":9.4603666584499901}]
[]
[null,null,null,null,null,null,{"$f":"SUM(G284,G288,G293,G296,G298,G300)","v":32.045590898553854},null,null,null,null,null,null,{"$f":"SUM(N284,N288,N293,N296,N298,N300)","v":38.993865380835516},null,null,null,null,null,null,{"$f":"SUM(U284,U288,U293,U296,U298,U300)","v":46.426672379271608},null,null,null,null,null,null,null,null,{"$f":"SUM(AD284,AD288,AD293,AD296,AD298,AD300)","v":32.173394794770147},null,null,null,null,null,null,{"$f":"SUM(AK284,AK288,AK293,AK296,AK298,AK300)","v":39.149643982130854},null,null,null,null,null,null,{"$f":"SUM(AR284,AR288,AR293,AR296,AR298,AR300)","v":46.620760756562376},null,null,null,null,null,null,null,null,{"$f":"SUM(BA284,BA288,BA293,BA296,BA298,BA300)","v":32.291647880008263},null,null,null,null,null,null,{"$f":"SUM(BH284,BH288,BH293,BH296,BH298,BH300)","v":39.293781217087094},null,null,null,null,null,null,{"$f":"SUM(BO284,BO288,BO293,BO296,BO298,BO300)","v":46.800344870216065},null,null,null,null,null,null,null,null,{"$f":"SUM(BX284,BX288,BX293,BX296,BX298,BX300)","v":32.434771518373566},null,null,null,null,null,null,{"$f":"SUM(CE284,CE288,CE293,CE296,CE298,CE300)","v":39.46823286415669},null,null,null,null,null,null,{"$f":"SUM(CL284,CL288,CL293,CL296,CL298,CL300)","v":47.017698452889761},null,null,null,null,null,null,null,null,{"$f":"SUM(CU284,CU288,CU293,CU296,CU298,CU300)","v":32.621869478735313},null,null,null,null,null,null,{"$f":"SUM(DB284,DB288,DB293,DB296,DB298,DB300)","v":39.696284272863636},null,null,null,null,null,null,{"$f":"SUM(DI284,DI288,DI293,DI296,DI298,DI300)","v":47.301833292249952}]
[]
[]
[]
[]
["Category P LED 18 Watt - Cost build-up"]
[]
["Additional assumptions"]
["Proportion of luminaire that will fail before bulk change",null,null,{"$f":"'DNSP Inputs O & M'!$D$284","v":4.2746393209543501E-2},null,null,null,null,null,null,null,null,null,null,null,null,null,null,null,null,null,null,null,null,null,null,{"$f":"'DNSP Inputs O & M'!$E$284","v":4.2746393209543501E-2},null,null,null,null,null,null,null,null,null,null,null,null,null,null,null,null,null,null,null,null,null,null,{"$f":"'DNSP Inputs O & M'!$F$284","v":4.2746393209543501E-2},null,null,null,null,null,null,null,null,null,null,null,null,null,null,null,null,null,null,null,null,null,null,{"$f":"'DNSP Inputs O & M'!$G$284","v":4.2746393209543501E-2},null,null,null,null,null,null,null,null,null,null,null,null,null,null,null,null,null,null,null,null,null,null,{"$f":"'DNSP Inputs O & M'!$H$284","v":4.2746393209543501E-2}]
["Proportion of lamps that will fail before bulk change (per year)",null,null,{"$f":"D310/'DNSP Inputs O & M'!$D$283","v":5.3432991511929376E-3},null,null,null,null,null,null,null,null,null,null,null,null,null,null,null,null,null,null,null,null,null,null,{"$f":"AA310/'DNSP Inputs O & M'!$E$283","v":5.3432991511929376E-3},null,null,null,null,null,null,null,null,null,null,null,null,null,null,null,null,null,null,null,null,null,null,{"$f":"AX310/'DNSP Inputs O & M'!$F$283","v":5.3432991511929376E-3},null,null,null,null,null,null,null,null,null,null,null,null,null,null,null,null,null,null,null,null,null,null,{"$f":"BU310/'DNSP Inputs O & M'!$G$283","v":5.3432991511929376E-3},null,null,null,null,null,null,null,null,null,null,null,null,null,null,null,null,null,null,null,null,null,null,{"$f":"CR310/'DNSP Inputs O & M'!$H$283","v":5.3432991511929376E-3}]
["Overheads are applied to material and labour components"]
["All costs and charges are exclusive of GST"]
[]
[null,"Urban",null,null,null,null,null,null,"Rural",null,null,null,null,null,null,"Remote",null,null,null,null,null,null,null,null,"Urban",null,null,null,null,null,null,"Rural",null,null,null,null,null,null,"Remote",null,null,null,null,null,null,null,null,"Urban",null,null,null,null,null,null,"Rural",null,null,null,null,null,null,"Remote",null,null,null,null,null,null,null,null,"Urban",null,null,null,null,null,null,"Rural",null,null,null,null,null,null,"Remote",null,null,null,null,null,null,null,null,"Urban",null,null,null,null,null,null,"Rural",null,null,null,null,null,null,"Remote"]
[]
[null,"Unit rate","Number","Hours","Cost","Annualised","Annualised",null,"Unit rate","Number","Hours","Cost","Annualised","Annualised",null,"Unit rate","Number","Hours","Cost","Annualised","Annualised",null,null,null,"Unit rate","Number","Hours","Cost","Annualised","Annualised",null,"Unit rate","Number","Hours","Cost","Annualised","Annualised",null,"Unit rate","Number","Hours","Cost","Annualised","Annualised",null,null,null,"Unit rate","Number","Hours","Cost","Annualised","Annualised",null,"Unit rate","Number","Hours","Cost","Annualised","Annualised",null,"Unit rate","Number","Hours","Cost","Annualised","Annualised",null,null,null,"Unit rate","Number","Hours","Cost","Annualised","Annualised",null,"Unit rate","Number","Hours","Cost","Annualised","Annualised",null,"Unit rate","Number","Hours","Cost","Annualised","Annualised",null,null,null,"Unit rate","Number","Hours","Cost","Annualised","Annualised",null,"Unit rate","Number","Hours","Cost","Annualised","Annualised",null,"Unit rate","Number","Hours","Cost","Annualised","Annualised"]
[null,null,null,null,null," cost","unit cost",null,null,null,null,null," cost","unit cost",null,null,null,null,null," cost","unit cost",null,null,null,null,null,null,null," cost","unit cost",null,null,null,null,null," cost","unit cost",null,null,null,null,null," cost","unit cost",null,null,null,null,null,null,null," cost","unit cost",null,null,null,null,null," cost","unit cost",null,null,null,null,null," cost","unit cost",null,null,null,null,null,null,null," cost","unit cost",null,null,null,null,null," cost","unit cost",null,null,null,null,null," cost","unit cost",null,null,null,null,null,null,null," cost","unit cost",null,null,null,null,null," cost","unit cost",null,null,null,null,null," cost","unit cost"]
["LED 18W"]
["Bulk change & repairs"]
["Materials - bulk PE cell change"]
["PE cell",{"$f":"'DNSP Inputs O & M'!$D$285","v":15.120000000000001},{"$f":"'DNSP Inputs O & M'!$D$289","v":73.92},null,{"$f":"B322*C322","v":1117.6704000000002},{"$f":"E322/'DNSP Inputs O & M'!$D$283","v":139.70880000000002},{"$f":"IFERROR(F322/C322,0)","v":1.8900000000000003},null,{"$f":"'DNSP Inputs O & M'!$D$285*(1+'DNSP Inputs O & M'!$D$11)","v":15.876000000000001},{"$f":"'DNSP Inputs O & M'!$D$290","v":61.44},null,{"$f":"I322*J322","v":975.42144000000008},{"$f":"L322/'DNSP Inputs O & M'!$D$283","v":121.92768000000001},{"$f":"IFERROR(M322/J322,0)","v":1.9845000000000002},null,{"$f":"'DNSP Inputs O & M'!$D$285*(1+'DNSP Inputs O & M'!$D$11)","v":15.876000000000001},{"$f":"'DNSP Inputs O & M'!$D$291","v":48.96},null,{"$f":"P322*Q322","v":777.28896000000009},{"$f":"S322/'DNSP Inputs O & M'!$D$283","v":97.161120000000011},{"$f":"IFERROR(T322/Q322,0)","v":1.9845000000000002},null,null,null,{"$f":"'DNSP Inputs O & M'!$E$285","v":15.120000000000001},{"$f":"'DNSP Inputs O & M'!$E$289","v":73.92},null,{"$f":"Y322*Z322","v":1117.6704000000002},{"$f":"AB322/'DNSP Inputs O & M'!$E$283","v":139.70880000000002},{"$f":"IFERROR(AC322/Z322,0)","v":1.8900000000000003},null,{"$f":"'DNSP Inputs O & M'!$E$285*(1+'DNSP Inputs O & M'!$E$11)","v":15.876000000000001},{"$f":"'DNSP Inputs O & M'!$E$290","v":61.44},null,{"$f":"AF322*AG322","v":975.42144000000008},{"$f":"AI322/'DNSP Inputs O & M'!$E$283","v":121.92768000000001},{"$f":"IFERROR(AJ322/AG322,0)","v":1.9845000000000002},null,{"$f":"'DNSP Inputs O & M'!$E$285*(1+'DNSP Inputs O & M'!$E$11)","v":15.876000000000001},{"$f":"'DNSP Inputs O & M'!$E$291","v":48.96},null,{"$f":"AM322*AN322","v":777.28896000000009},{"$f":"AP322/'DNSP Inputs O & M'!$E$283","v":97.161120000000011},{"$f":"IFERROR(AQ322/AN322,0)","v":1.9845000000000002},null,null,null,{"$f":"'DNSP Inputs O & M'!$F$285","v":15.120000000000001},{"$f":"'DNSP Inputs O & M'!$F$289","v":73.92},null,{"$f":"AV322*AW322","v":1117.6704000000002},{"$f":"AY322/'DNSP Inputs O & M'!$F$283","v":139.70880000000002},{"$f":"IFERROR(AZ322/AW322,0)","v":1.8900000000000003},null,{"$f":"'DNSP Inputs O & M'!$F$285*(1+'DNSP Inputs O & M'!$F$11)","v":15.876000000000001},{"$f":"'DNSP Inputs O & M'!$F$290","v":61.44},null,{"$f":"BC322*BD322","v":975.42144000000008},{"$f":"BF322/'DNSP Inputs O & M'!$F$283","v":121.92768000000001},{"$f":"IFERROR(BG322/BD322,0)","v":1.9845000000000002},null,{"$f":"'DNSP Inputs O & M'!$F$285*(1+'DNSP Inputs O & M'!$F$11)","v":15.876000000000001},{"$f":"'DNSP Inputs O & M'!$F$291","v":48.96},null,{"$f":"BJ322*BK322","v":777.28896000000009},{"$f":"BM322/'DNSP Inputs O & M'!$F$283","v":97.161120000000011},{"$f":"IFERROR(BN322/BK322,0)","v":1.9845000000000002},null,null,null,{"$f":"'DNSP Inputs O & M'!$G$285","v":15.120000000000001},{"$f":"'DNSP Inputs O & M'!$G$289","v":73.92},null,{"$f":"BS322*BT322","v":1117.6704000000002},{"$f":"BV322/'DNSP Inputs O & M'!$G$283","v":139.70880000000002},{"$f":"IFERROR(BW322/BT322,0)","v":1.8900000000000003},null,{"$f":"'DNSP Inputs O & M'!$G$285*(1+'DNSP Inputs O & M'!$G$11)","v":15.876000000000001},{"$f":"'DNSP Inputs O & M'!$G$290","v":61.44},null,{"$f":"BZ322*CA322","v":975.42144000000008},{"$f":"CC322/'DNSP Inputs O & M'!$G$283","v":121.92768000000001},{"$f":"IFERROR(CD322/CA322,0)","v":1.9845000000000002},null,{"$f":"'DNSP Inputs O & M'!$G$285*(1+'DNSP Inputs O & M'!$G$11)","v":15.876000000000001},{"$f":"'DNSP Inputs O & M'!$G$291","v":48.96},null,{"$f":"CG322*CH322","v":777.28896000000009},{"$f":"CJ322/'DNSP Inputs O & M'!$G$283","v":97.161120000000011},{"$f":"IFERROR(CK322/CH322,0)","v":1.9845000000000002},null,null,null,{"$f":"'DNSP Inputs O & M'!$H$285","v":15.120000000000001},{"$f":"'DNSP Inputs O & M'!$H$289","v":73.92},null,{"$f":"CP322*CQ322","v":1117.6704000000002},{"$f":"CS322/'DNSP Inputs O & M'!$H$283","v":139.70880000000002},{"$f":"IFERROR(CT322/CQ322,0)","v":1.8900000000000003},null,{"$f":"'DNSP Inputs O & M'!$H$285*(1+'DNSP Inputs O & M'!$H$11)","v":15.876000000000001},{"$f":"'DNSP Inputs O & M'!$H$290","v":61.44},null,{"$f":"CW322*CX322","v":975.42144000000008},{"$f":"CZ322/'DNSP Inputs O & M'!$H$283","v":121.92768000000001},{"$f":"IFERROR(DA322/CX322,0)","v":1.9845000000000002},null,{"$f":"'DNSP Inputs O & M'!$H$285*(1+'DNSP Inputs O & M'!$H$11)","v":15.876000000000001},{"$f":"'DNSP Inputs O & M'!$H$291","v":48.96},null,{"$f":"DD322*DE322","v":777.28896000000009},{"$f":"DG322/'DNSP Inputs O & M'!$H$283","v":97.161120000000011},{"$f":"IFERROR(DH322/DE322,0)","v":1.9845000000000002}]
["Materials - repair of faults"]
["PE cell",{"$f":"'DNSP Inputs O & M'!$D$285","v":15.120000000000001},{"$f":"'DNSP Inputs O & M'!$D$292*'DNSP Inputs O & M'!$D$295","v":22.464000000000002},null,{"$f":"B324*C324","v":339.65568000000007},{"$f":"(E324+E325+E326)/'DNSP Inputs O & M'!$D$292","v":15.926843842435392},{"$f":"F324*D311","v":8.5101891184467496E-2},null,{"$f":"'DNSP Inputs O & M'!$D$285*(1+'DNSP Inputs O & M'!$D$11)","v":15.876000000000001},{"$f":"'DNSP Inputs O & M'!$D$293*'DNSP Inputs O & M'!$D$295","v":18.144000000000002},null,{"$f":"I324*J324","v":288.05414400000006},{"$f":"(L324+L325+L326)/'DNSP Inputs O & M'!$D$293","v":16.723186034557159},{"$f":"M324*D311","v":8.9356985743690859E-2},null,{"$f":"'DNSP Inputs O & M'!$D$285*(1+'DNSP Inputs O & M'!$D$11)","v":15.876000000000001},{"$f":"'DNSP Inputs O & M'!$D$294*'DNSP Inputs O & M'!$D$295","v":14.688000000000001},null,{"$f":"P324*Q324","v":233.18668800000003},{"$f":"(S324+S325+S326)/'DNSP Inputs O & M'!$D$294","v":16.723186034557159},{"$f":"T324*D311","v":8.9356985743690859E-2},null,null,null,{"$f":"'DNSP Inputs O & M'!$E$285","v":15.120000000000001},{"$f":"'DNSP Inputs O & M'!$E$292*'DNSP Inputs O & M'!$E$295","v":22.464000000000002},null,{"$f":"Y324*Z324","v":339.65568000000007},{"$f":"(AB324+AB325+AB326)/'DNSP Inputs O & M'!$E$292","v":15.926843842435392},{"$f":"AC324*AA311","v":8.5101891184467496E-2},null,{"$f":"'DNSP Inputs O & M'!$E$285*(1+'DNSP Inputs O & M'!$E$11)","v":15.876000000000001},{"$f":"'DNSP Inputs O & M'!$E$293*'DNSP Inputs O & M'!$E$295","v":18.144000000000002},null,{"$f":"AF324*AG324","v":288.05414400000006},{"$f":"(AI324+AI325+AI326)/'DNSP Inputs O & M'!$E$293","v":16.723186034557159},{"$f":"AJ324*AA311","v":8.9356985743690859E-2},null,{"$f":"'DNSP Inputs O & M'!$E$285*(1+'DNSP Inputs O & M'!$E$11)","v":15.876000000000001},{"$f":"'DNSP Inputs O & M'!$E$294*'DNSP Inputs O & M'!$E$295","v":14.688000000000001},null,{"$f":"AM324*AN324","v":233.18668800000003},{"$f":"(AP324+AP325+AP326)/'DNSP Inputs O & M'!$E$294","v":16.723186034557159},{"$f":"AQ324*AA311","v":8.9356985743690859E-2},null,null,null,{"$f":"'DNSP Inputs O & M'!$F$285","v":15.120000000000001},{"$f":"'DNSP Inputs O & M'!$F$292*'DNSP Inputs O & M'!$F$295","v":22.464000000000002},null,{"$f":"AV324*AW324","v":339.65568000000007},{"$f":"(AY324+AY325+AY326)/'DNSP Inputs O & M'!$F$292","v":15.926843842435392},{"$f":"AZ324*AX311","v":8.5101891184467496E-2},null,{"$f":"'DNSP Inputs O & M'!$F$285*(1+'DNSP Inputs O & M'!$F$11)","v":15.876000000000001},{"$f":"'DNSP Inputs O & M'!$F$293*'DNSP Inputs O & M'!$F$295","v":18.144000000000002},null,{"$f":"BC324*BD324","v":288.05414400000006},{"$f":"(BF324+BF325+BF326)/'DNSP Inputs O & M'!$F$293","v":16.723186034557159},{"$f":"BG324*AX311","v":8.9356985743690859E-2},null,{"$f":"'DNSP Inputs O & M'!$F$285*(1+'DNSP Inputs O & M'!$F$11)","v":15.876000000000001},{"$f":"'DNSP Inputs O & M'!$F$294*'DNSP Inputs O & M'!$F$295","v":14.688000000000001},null,{"$f":"BJ324*BK324","v":233.18668800000003},{"$f":"(BM324+BM325+BM326)/'DNSP Inputs O & M'!$F$294","v":16.723186034557159},{"$f":"BN324*AX311","v":8.9356985743690859E-2},null,null,null,{"$f":"'DNSP Inputs O & M'!$G$285","v":15.120000000000001},{"$f":"'DNSP Inputs O & M'!$G$292*'DNSP Inputs O & M'!$G$295","v":22.464000000000002},null,{"$f":"BS324*BT324","v":339.65568000000007},{"$f":"(BV324+BV325+BV326)/'DNSP Inputs O & M'!$G$292","v":15.926843842435392},{"$f":"BW324*BU311","v":8.5101891184467496E-2},null,{"$f":"'DNSP Inputs O & M'!$G$285*(1+'DNSP Inputs O & M'!$G$11)","v":15.876000000000001},{"$f":"'DNSP Inputs O & M'!$G$293*'DNSP Inputs O & M'!$G$295","v":18.144000000000002},null,{"$f":"BZ324*CA324","v":288.05414400000006},{"$f":"(CC324+CC325+CC326)/'DNSP Inputs O & M'!$G$293","v":16.723186034557159},{"$f":"CD324*BU311","v":8.9356985743690859E-2},null,{"$f":"'DNSP Inputs O & M'!$G$285*(1+'DNSP Inputs O & M'!$G$11)","v":15.876000000000001},{"$f":"'DNSP Inputs O & M'!$G$294*'DNSP Inputs O & M'!$G$295","v":14.688000000000001},null,{"$f":"CG324*CH324","v":233.18668800000003},{"$f":"(CJ324+CJ325+CJ326)/'DNSP Inputs O & M'!$G$294","v":16.723186034557159},{"$f":"CK324*BU311","v":8.9356985743690859E-2},null,null,null,{"$f":"'DNSP Inputs O & M'!$H$285","v":15.120000000000001},{"$f":"'DNSP Inputs O & M'!$H$292*'DNSP Inputs O & M'!$H$295","v":22.464000000000002},null,{"$f":"CP324*CQ324","v":339.65568000000007},{"$f":"(CS324+CS325+CS326)/'DNSP Inputs O & M'!$H$292","v":15.926843842435392},{"$f":"CT324*CR311","v":8.5101891184467496E-2},null,{"$f":"'DNSP Inputs O & M'!$H$285*(1+'DNSP Inputs O & M'!$H$11)","v":15.876000000000001},{"$f":"'DNSP Inputs O & M'!$H$293*'DNSP Inputs O & M'!$H$295","v":18.144000000000002},null,{"$f":"CW324*CX324","v":288.05414400000006},{"$f":"(CZ324+CZ325+CZ326)/'DNSP Inputs O & M'!$H$293","v":16.723186034557159},{"$f":"DA324*CR311","v":8.9356985743690859E-2},null,{"$f":"'DNSP Inputs O & M'!$H$285*(1+'DNSP Inputs O & M'!$H$11)","v":15.876000000000001},{"$f":"'DNSP Inputs O & M'!$H$294*'DNSP Inputs O & M'!$H$295","v":14.688000000000001},null,{"$f":"DD324*DE324","v":233.18668800000003},{"$f":"(DG324+DG325+DG326)/'DNSP Inputs O & M'!$H$294","v":16.723186034557159},{"$f":"DH324*CR311","v":8.9356985743690859E-2}]
["Luminaire",{"$f":"'DNSP Inputs O & M'!$D$286","v":205},{"$f":"'DNSP Inputs O & M'!$D$292*'DNSP Inputs O & M'!$D$296","v":0},null,{"$f":"B325*C325","v":0},null,null,null,{"$f":"'DNSP Inputs O & M'!$D$286*(1+'DNSP Inputs O & M'!$D$11)","v":215.25},{"$f":"'DNSP Inputs O & M'!$D$293*'DNSP Inputs O & M'!$D$296","v":0},null,{"$f":"I325*J325","v":0},null,null,null,{"$f":"'DNSP Inputs O & M'!$D$286*(1+'DNSP Inputs O & M'!$D$11)","v":215.25},{"$f":"'DNSP Inputs O & M'!$D$294*'DNSP Inputs O & M'!$D$296","v":0},null,{"$f":"P325*Q325","v":0},null,null,null,null,null,{"$f":"'DNSP Inputs O & M'!$E$286","v":205},{"$f":"'DNSP Inputs O & M'!$E$292*'DNSP Inputs O & M'!$E$296","v":0},null,{"$f":"Y325*Z325","v":0},null,null,null,{"$f":"'DNSP Inputs O & M'!$E$286*(1+'DNSP Inputs O & M'!$E$11)","v":215.25},{"$f":"'DNSP Inputs O & M'!$E$293*'DNSP Inputs O & M'!$E$296","v":0},null,{"$f":"AF325*AG325","v":0},null,null,null,{"$f":"'DNSP Inputs O & M'!$E$286*(1+'DNSP Inputs O & M'!$E$11)","v":215.25},{"$f":"'DNSP Inputs O & M'!$E$294*'DNSP Inputs O & M'!$E$296","v":0},null,{"$f":"AM325*AN325","v":0},null,null,null,null,null,{"$f":"'DNSP Inputs O & M'!$F$286","v":205},{"$f":"'DNSP Inputs O & M'!$F$292*'DNSP Inputs O & M'!$F$296","v":0},null,{"$f":"AV325*AW325","v":0},null,null,null,{"$f":"'DNSP Inputs O & M'!$F$286*(1+'DNSP Inputs O & M'!$F$11)","v":215.25},{"$f":"'DNSP Inputs O & M'!$F$293*'DNSP Inputs O & M'!$F$296","v":0},null,{"$f":"BC325*BD325","v":0},null,null,null,{"$f":"'DNSP Inputs O & M'!$F$286*(1+'DNSP Inputs O & M'!$F$11)","v":215.25},{"$f":"'DNSP Inputs O & M'!$F$294*'DNSP Inputs O & M'!$F$296","v":0},null,{"$f":"BJ325*BK325","v":0},null,null,null,null,null,{"$f":"'DNSP Inputs O & M'!$G$286","v":205},{"$f":"'DNSP Inputs O & M'!$G$292*'DNSP Inputs O & M'!$G$296","v":0},null,{"$f":"BS325*BT325","v":0},null,null,null,{"$f":"'DNSP Inputs O & M'!$G$286*(1+'DNSP Inputs O & M'!$G$11)","v":215.25},{"$f":"'DNSP Inputs O & M'!$G$293*'DNSP Inputs O & M'!$G$296","v":0},null,{"$f":"BZ325*CA325","v":0},null,null,null,{"$f":"'DNSP Inputs O & M'!$G$286*(1+'DNSP Inputs O & M'!$G$11)","v":215.25},{"$f":"'DNSP Inputs O & M'!$G$294*'DNSP Inputs O & M'!$G$296","v":0},null,{"$f":"CG325*CH325","v":0},null,null,null,null,null,{"$f":"'DNSP Inputs O & M'!$H$286","v":205},{"$f":"'DNSP Inputs O & M'!$H$292*'DNSP Inputs O & M'!$H$296","v":0},null,{"$f":"CP325*CQ325","v":0},null,null,null,{"$f":"'DNSP Inputs O & M'!$H$286*(1+'DNSP Inputs O & M'!$H$11)","v":215.25},{"$f":"'DNSP Inputs O & M'!$H$293*'DNSP Inputs O & M'!$H$296","v":0},null,{"$f":"CW325*CX325","v":0},null,null,null,{"$f":"'DNSP Inputs O & M'!$H$286*(1+'DNSP Inputs O & M'!$H$11)","v":215.25},{"$f":"'DNSP Inputs O & M'!$H$294*'DNSP Inputs O & M'!$H$296","v":0},null,{"$f":"DD325*DE325","v":0}]
["Miscellaneous",{"$f":"'DNSP Inputs O & M'!$D$287","v":23.188438424353883},{"$f":"'DNSP Inputs O & M'!$D$292*'DNSP Inputs O & M'!$D$297","v":2.4960000000000004},null,{"$f":"B326*C326","v":57.878342307187303},null,null,null,{"$f":"'DNSP Inputs O & M'!$D$287*(1+'DNSP Inputs O & M'!$D$11)","v":24.347860345571579},{"$f":"'DNSP Inputs O & M'!$D$293*'DNSP Inputs O & M'!$D$297","v":2.016},null,{"$f":"I326*J326","v":49.085286456672307},null,null,null,{"$f":"'DNSP Inputs O & M'!$D$287*(1+'DNSP Inputs O & M'!$D$11)","v":24.347860345571579},{"$f":"'DNSP Inputs O & M'!$D$294*'DNSP Inputs O & M'!$D$297","v":1.6320000000000001},null,{"$f":"P326*Q326","v":39.735708083972817},null,null,null,null,null,{"$f":"'DNSP Inputs O & M'!$E$287","v":23.188438424353883},{"$f":"'DNSP Inputs O & M'!$E$292*'DNSP Inputs O & M'!$E$297","v":2.4960000000000004},null,{"$f":"Y326*Z326","v":57.878342307187303},null,null,null,{"$f":"'DNSP Inputs O & M'!$E$287*(1+'DNSP Inputs O & M'!$E$11)","v":24.347860345571579},{"$f":"'DNSP Inputs O & M'!$E$293*'DNSP Inputs O & M'!$E$297","v":2.016},null,{"$f":"AF326*AG326","v":49.085286456672307},null,null,null,{"$f":"'DNSP Inputs O & M'!$E$287*(1+'DNSP Inputs O & M'!$E$11)","v":24.347860345571579},{"$f":"'DNSP Inputs O & M'!$E$294*'DNSP Inputs O & M'!$E$297","v":1.6320000000000001},null,{"$f":"AM326*AN326","v":39.735708083972817},null,null,null,null,null,{"$f":"'DNSP Inputs O & M'!$F$287","v":23.188438424353883},{"$f":"'DNSP Inputs O & M'!$F$292*'DNSP Inputs O & M'!$F$297","v":2.4960000000000004},null,{"$f":"AV326*AW326","v":57.878342307187303},null,null,null,{"$f":"'DNSP Inputs O & M'!$F$287*(1+'DNSP Inputs O & M'!$F$11)","v":24.347860345571579},{"$f":"'DNSP Inputs O & M'!$F$293*'DNSP Inputs O & M'!$F$297","v":2.016},null,{"$f":"BC326*BD326","v":49.085286456672307},null,null,null,{"$f":"'DNSP Inputs O & M'!$F$287*(1+'DNSP Inputs O & M'!$F$11)","v":24.347860345571579},{"$f":"'DNSP Inputs O & M'!$F$294*'DNSP Inputs O & M'!$F$297","v":1.6320000000000001},null,{"$f":"BJ326*BK326","v":39.735708083972817},null,null,null,null,null,{"$f":"'DNSP Inputs O & M'!$G$287","v":23.188438424353883},{"$f":"'DNSP Inputs O & M'!$G$292*'DNSP Inputs O & M'!$G$297","v":2.4960000000000004},null,{"$f":"BS326*BT326","v":57.878342307187303},null,null,null,{"$f":"'DNSP Inputs O & M'!$G$287*(1+'DNSP Inputs O & M'!$G$11)","v":24.347860345571579},{"$f":"'DNSP Inputs O & M'!$G$293*'DNSP Inputs O & M'!$G$297","v":2.016},null,{"$f":"BZ326*CA326","v":49.085286456672307},null,null,null,{"$f":"'DNSP Inputs O & M'!$G$287*(1+'DNSP Inputs O & M'!$G$11)","v":24.347860345571579},{"$f":"'DNSP Inputs O & M'!$G$294*'DNSP Inputs O & M'!$G$297","v":1.6320000000000001},null,{"$f":"CG326*CH326","v":39.735708083972817},null,null,null,null,null,{"$f":"'DNSP Inputs O & M'!$H$287","v":23.188438424353883},{"$f":"'DNSP Inputs O & M'!$H$292*'DNSP Inputs O & M'!$H$297","v":2.4960000000000004},null,{"$f":"CP326*CQ326","v":57.878342307187303},null,null,null,{"$f":"'DNSP Inputs O & M'!$H$287*(1+'DNSP Inputs O & M'!$H$11)","v":24.347860345571579},{"$f":"'DNSP Inputs O & M'!$H$293*'DNSP Inputs O & M'!$H$297","v":2.016},null,{"$f":"CW326*CX326","v":49.085286456672307},null,null,null,{"$f":"'DNSP Inputs O & M'!$H$287*(1+'DNSP Inputs O & M'!$H$11)","v":24.347860345571579},{"$f":"'DNSP Inputs O & M'!$H$294*'DNSP Inputs O & M'!$H$297","v":1.6320000000000001},null,{"$f":"DD326*DE326","v":39.735708083972817}]
["Labour - bulk PE cell change"]
["Crew costs",{"$f":"'DNSP Inputs O & M'!$D$12","v":111.36223236834823},{"$f":"'DNSP Inputs O & M'!$D$288","v":2},{"$f":"'DNSP Inputs O & M'!$D$17","v":7.5},{"$f":"B328*C328*D328","v":1670.4334855252234},{"$f":"E328/'DNSP Inputs O & M'!$D$283","v":208.80418569065293},{"$f":"IFERROR((F328+F329)/C322,0)","v":3.4611463161614306},null,{"$f":"'DNSP Inputs O & M'!$D$12","v":111.36223236834823},{"$f":"'DNSP Inputs O & M'!$D$288","v":2},{"$f":"'DNSP Inputs O & M'!$D$17","v":7.5},{"$f":"I328*J328*K328","v":1670.4334855252234},{"$f":"L328/'DNSP Inputs O & M'!$D$283","v":208.80418569065293},{"$f":"IFERROR((M328+M329)/J322,0)","v":4.3695749624129707},null,{"$f":"'DNSP Inputs O & M'!$D$12","v":111.36223236834823},{"$f":"'DNSP Inputs O & M'!$D$288","v":2},{"$f":"'DNSP Inputs O & M'!$D$17","v":7.5},{"$f":"P328*Q328*R328","v":1670.4334855252234},{"$f":"S328/'DNSP Inputs O & M'!$D$283","v":208.80418569065293},{"$f":"IFERROR((T328+T329)/Q322,0)","v":5.4833881881260806},null,null,null,{"$f":"'DNSP Inputs O & M'!$E$12","v":112.10021456669011},{"$f":"'DNSP Inputs O & M'!$E$288","v":2},{"$f":"'DNSP Inputs O & M'!$E$17","v":7.5},{"$f":"Y328*Z328*AA328","v":1681.5032185003517},{"$f":"AB328/'DNSP Inputs O & M'!$E$283","v":210.18790231254397},{"$f":"IFERROR((AC328+AC329)/Z322,0)","v":3.4798654263060604},null,{"$f":"'DNSP Inputs O & M'!$E$12","v":112.10021456669011},{"$f":"'DNSP Inputs O & M'!$E$288","v":2},{"$f":"'DNSP Inputs O & M'!$E$17","v":7.5},{"$f":"AF328*AG328*AH328","v":1681.5032185003517},{"$f":"AI328/'DNSP Inputs O & M'!$E$283","v":210.18790231254397},{"$f":"IFERROR((AJ328+AJ329)/AG322,0)","v":4.3920963918057288},null,{"$f":"'DNSP Inputs O & M'!$E$12","v":112.10021456669011},{"$f":"'DNSP Inputs O & M'!$E$288","v":2},{"$f":"'DNSP Inputs O & M'!$E$17","v":7.5},{"$f":"AM328*AN328*AO328","v":1681.5032185003517},{"$f":"AP328/'DNSP Inputs O & M'!$E$283","v":210.18790231254397},{"$f":"IFERROR((AQ328+AQ329)/AN322,0)","v":5.5116503740307179},null,null,null,{"$f":"'DNSP Inputs O & M'!$F$12","v":112.78304720629164},{"$f":"'DNSP Inputs O & M'!$F$288","v":2},{"$f":"'DNSP Inputs O & M'!$F$17","v":7.5},{"$f":"AV328*AW328*AX328","v":1691.7457080943745},{"$f":"AY328/'DNSP Inputs O & M'!$F$283","v":211.46821351179682},{"$f":"IFERROR((AZ328+AZ329)/AW322,0)","v":3.4971856535686796},null,{"$f":"'DNSP Inputs O & M'!$F$12","v":112.78304720629164},{"$f":"'DNSP Inputs O & M'!$F$288","v":2},{"$f":"'DNSP Inputs O & M'!$F$17","v":7.5},{"$f":"BC328*BD328*BE328","v":1691.7457080943745},{"$f":"BF328/'DNSP Inputs O & M'!$F$283","v":211.46821351179682},{"$f":"IFERROR((BG328+BG329)/BD322,0)","v":4.4129347902310689},null,{"$f":"'DNSP Inputs O & M'!$F$12","v":112.78304720629164},{"$f":"'DNSP Inputs O & M'!$F$288","v":2},{"$f":"'DNSP Inputs O & M'!$F$17","v":7.5},{"$f":"BJ328*BK328*BL328","v":1691.7457080943745},{"$f":"BM328/'DNSP Inputs O & M'!$F$283","v":211.46821351179682},{"$f":"IFERROR((BN328+BN329)/BK322,0)","v":5.5378005210742822},null,null,null,{"$f":"'DNSP Inputs O & M'!$G$12","v":113.60949069043043},{"$f":"'DNSP Inputs O & M'!$G$288","v":2},{"$f":"'DNSP Inputs O & M'!$G$17","v":7.5},{"$f":"BS328*BT328*BU328","v":1704.1423603564565},{"$f":"BV328/'DNSP Inputs O & M'!$G$283","v":213.01779504455706},{"$f":"IFERROR((BW328+BW329)/BT322,0)","v":3.5181486072045058},null,{"$f":"'DNSP Inputs O & M'!$G$12","v":113.60949069043043},{"$f":"'DNSP Inputs O & M'!$G$288","v":2},{"$f":"'DNSP Inputs O & M'!$G$17","v":7.5},{"$f":"BZ328*CA328*CB328","v":1704.1423603564565},{"$f":"CC328/'DNSP Inputs O & M'!$G$283","v":213.01779504455706},{"$f":"IFERROR((CD328+CD329)/CA322,0)","v":4.4381558438241706},null,{"$f":"'DNSP Inputs O & M'!$G$12","v":113.60949069043043},{"$f":"'DNSP Inputs O & M'!$G$288","v":2},{"$f":"'DNSP Inputs O & M'!$G$17","v":7.5},{"$f":"CG328*CH328*CI328","v":1704.1423603564565},{"$f":"CJ328/'DNSP Inputs O & M'!$G$283","v":213.01779504455706},{"$f":"IFERROR((CK328+CK329)/CH322,0)","v":5.5694504706813124},null,null,null,{"$f":"'DNSP Inputs O & M'!$H$12","v":114.68985653357629},{"$f":"'DNSP Inputs O & M'!$H$288","v":2},{"$f":"'DNSP Inputs O & M'!$H$17","v":7.5},{"$f":"CP328*CQ328*CR328","v":1720.3478480036442},{"$f":"CS328/'DNSP Inputs O & M'!$H$283","v":215.04348100045553},{"$f":"IFERROR((CT328+CT329)/CQ322,0)","v":3.5455523674304046},null,{"$f":"'DNSP Inputs O & M'!$H$12","v":114.68985653357629},{"$f":"'DNSP Inputs O & M'!$H$288","v":2},{"$f":"'DNSP Inputs O & M'!$H$17","v":7.5},{"$f":"CW328*CX328*CY328","v":1720.3478480036442},{"$f":"CZ328/'DNSP Inputs O & M'!$H$283","v":215.04348100045553},{"$f":"IFERROR((DA328+DA329)/CX322,0)","v":4.4711259928459564},null,{"$f":"'DNSP Inputs O & M'!$H$12","v":114.68985653357629},{"$f":"'DNSP Inputs O & M'!$H$288","v":2},{"$f":"'DNSP Inputs O & M'!$H$17","v":7.5},{"$f":"DD328*DE328*DF328","v":1720.3478480036442},{"$f":"DG328/'DNSP Inputs O & M'!$H$283","v":215.04348100045553},{"$f":"IFERROR((DH328+DH329)/DE322,0)","v":5.610824775336102}]
["Elevated platform vehicle costs",{"$f":"'DNSP Inputs O & M'!$D$14","v":50.18},1,{"$f":"'DNSP Inputs O & M'!$D$17","v":7.5},{"$f":"B329*C329*D329","v":376.35},{"$f":"E329/'DNSP Inputs O & M'!$D$283","v":47.043750000000003},null,null,{"$f":"'DNSP Inputs O & M'!$D$15","v":63.64},1,{"$f":"'DNSP Inputs O & M'!$D$17","v":7.5},{"$f":"I329*J329*K329","v":477.3},{"$f":"L329/'DNSP Inputs O & M'!$D$283","v":59.662500000000001},null,null,{"$f":"'DNSP Inputs O & M'!$D$15","v":63.64},1,{"$f":"'DNSP Inputs O & M'!$D$17","v":7.5},{"$f":"P329*Q329*R329","v":477.3},{"$f":"S329/'DNSP Inputs O & M'!$D$283","v":59.662500000000001},null,null,null,null,{"$f":"'DNSP Inputs O & M'!$E$14","v":50.18},1,{"$f":"'DNSP Inputs O & M'!$E$17","v":7.5},{"$f":"Y329*Z329*AA329","v":376.35},{"$f":"AB329/'DNSP Inputs O & M'!$E$283","v":47.043750000000003},null,null,{"$f":"'DNSP Inputs O & M'!$E$15","v":63.64},1,{"$f":"'DNSP Inputs O & M'!$E$17","v":7.5},{"$f":"AF329*AG329*AH329","v":477.3},{"$f":"AI329/'DNSP Inputs O & M'!$E$283","v":59.662500000000001},null,null,{"$f":"'DNSP Inputs O & M'!$E$15","v":63.64},1,{"$f":"'DNSP Inputs O & M'!$E$17","v":7.5},{"$f":"AM329*AN329*AO329","v":477.3},{"$f":"AP329/'DNSP Inputs O & M'!$E$283","v":59.662500000000001},null,null,null,null,{"$f":"'DNSP Inputs O & M'!$F$14","v":50.18},1,{"$f":"'DNSP Inputs O & M'!$F$17","v":7.5},{"$f":"AV329*AW329*AX329","v":376.35},{"$f":"AY329/'DNSP Inputs O & M'!$F$283","v":47.043750000000003},null,null,{"$f":"'DNSP Inputs O & M'!$F$15","v":63.64},1,{"$f":"'DNSP Inputs O & M'!$F$17","v":7.5},{"$f":"BC329*BD329*BE329","v":477.3},{"$f":"BF329/'DNSP Inputs O & M'!$F$283","v":59.662500000000001},null,null,{"$f":"'DNSP Inputs O & M'!$F$15","v":63.64},1,{"$f":"'DNSP Inputs O & M'!$F$17","v":7.5},{"$f":"BJ329*BK329*BL329","v":477.3},{"$f":"BM329/'DNSP Inputs O & M'!$F$283","v":59.662500000000001},null,null,null,null,{"$f":"'DNSP Inputs O & M'!$G$14","v":50.18},1,{"$f":"'DNSP Inputs O & M'!$G$17","v":7.5},{"$f":"BS329*BT329*BU329","v":376.35},{"$f":"BV329/'DNSP Inputs O & M'!$G$283","v":47.043750000000003},null,null,{"$f":"'DNSP Inputs O & M'!$G$15","v":63.64},1,{"$f":"'DNSP Inputs O & M'!$G$17","v":7.5},{"$f":"BZ329*CA329*CB329","v":477.3},{"$f":"CC329/'DNSP Inputs O & M'!$G$283","v":59.662500000000001},null,null,{"$f":"'DNSP Inputs O & M'!$G$15","v":63.64},1,{"$f":"'DNSP Inputs O & M'!$G$17","v":7.5},{"$f":"CG329*CH329*CI329","v":477.3},{"$f":"CJ329/'DNSP Inputs O & M'!$G$283","v":59.662500000000001},null,null,null,null,{"$f":"'DNSP Inputs O & M'!$H$14","v":50.18},1,{"$f":"'DNSP Inputs O & M'!$H$17","v":7.5},{"$f":"CP329*CQ329*CR329","v":376.35},{"$f":"CS329/'DNSP Inputs O & M'!$H$283","v":47.043750000000003},null,null,{"$f":"'DNSP Inputs O & M'!$H$15","v":63.64},1,{"$f":"'DNSP Inputs O & M'!$H$17","v":7.5},{"$f":"CW329*CX329*CY329","v":477.3},{"$f":"CZ329/'DNSP Inputs O & M'!$H$283","v":59.662500000000001},null,null,{"$f":"'DNSP Inputs O & M'!$H$15","v":63.64},1,{"$f":"'DNSP Inputs O & M'!$H$17","v":7.5},{"$f":"DD329*DE329*DF329","v":477.3},{"$f":"DG329/'DNSP Inputs O & M'!$H$283","v":59.662500000000001}]
["Labour - repair of faults"]
["Crew costs",{"$f":"'DNSP Inputs O & M'!$D$12","v":111.36223236834823},{"$f":"'DNSP Inputs O & M'!$D$288","v":2},{"$f":"'DNSP Inputs O & M'!$D$17","v":7.5},{"$f":"B331*C331*D331","v":1670.4334855252234},{"$f":"(E331+E332)/'DNSP Inputs O & M'!$D$292","v":82.002543490593894},{"$f":"F331*D311","v":0.4381641210289523},null,{"$f":"'DNSP Inputs O & M'!$D$12","v":111.36223236834823},{"$f":"'DNSP Inputs O & M'!$D$288","v":2},{"$f":"'DNSP Inputs O & M'!$D$17","v":7.5},{"$f":"I331*J331*K331","v":1670.4334855252234},{"$f":"(L331+L332)/'DNSP Inputs O & M'!$D$293","v":106.53439908359243},{"$f":"M331*D311","v":0.56924516419620907},null,{"$f":"'DNSP Inputs O & M'!$D$12","v":111.36223236834823},{"$f":"'DNSP Inputs O & M'!$D$288","v":2},{"$f":"'DNSP Inputs O & M'!$D$17","v":7.5},{"$f":"P331*Q331*R331","v":1670.4334855252234},{"$f":"(S331+S332)/'DNSP Inputs O & M'!$D$294","v":131.60131651502593},{"$f":"T331*D311","v":0.70318520283061114},null,null,null,{"$f":"'DNSP Inputs O & M'!$E$12","v":112.10021456669011},{"$f":"'DNSP Inputs O & M'!$E$288","v":2},{"$f":"'DNSP Inputs O & M'!$E$17","v":7.5},{"$f":"Y331*Z331*AA331","v":1681.5032185003517},{"$f":"(AB331+AB332)/'DNSP Inputs O & M'!$E$292","v":82.446042407866656},{"$f":"AC331*AA311","v":0.44053386841717085},null,{"$f":"'DNSP Inputs O & M'!$E$12","v":112.10021456669011},{"$f":"'DNSP Inputs O & M'!$E$288","v":2},{"$f":"'DNSP Inputs O & M'!$E$17","v":7.5},{"$f":"AF331*AG331*AH331","v":1681.5032185003517},{"$f":"(AI331+AI332)/'DNSP Inputs O & M'!$E$293","v":107.08349298116823},{"$f":"AJ331*AA311","v":0.57217913715305113},null,{"$f":"'DNSP Inputs O & M'!$E$12","v":112.10021456669011},{"$f":"'DNSP Inputs O & M'!$E$288","v":2},{"$f":"'DNSP Inputs O & M'!$E$17","v":7.5},{"$f":"AM331*AN331*AO331","v":1681.5032185003517},{"$f":"(AP331+AP332)/'DNSP Inputs O & M'!$E$294","v":132.27960897673722},{"$f":"AQ331*AA311","v":0.70680952236553374},null,null,null,{"$f":"'DNSP Inputs O & M'!$F$12","v":112.78304720629164},{"$f":"'DNSP Inputs O & M'!$F$288","v":2},{"$f":"'DNSP Inputs O & M'!$F$17","v":7.5},{"$f":"AV331*AW331*AX331","v":1691.7457080943745},{"$f":"(AY331+AY332)/'DNSP Inputs O & M'!$F$292","v":82.856398561473327},{"$f":"AZ331*AX311","v":0.44272652410442415},null,{"$f":"'DNSP Inputs O & M'!$F$12","v":112.78304720629164},{"$f":"'DNSP Inputs O & M'!$F$288","v":2},{"$f":"'DNSP Inputs O & M'!$F$17","v":7.5},{"$f":"BC331*BD331*BE331","v":1691.7457080943745},{"$f":"(BF331+BF332)/'DNSP Inputs O & M'!$F$293","v":107.59155298087177},{"$f":"BG331*AX311","v":0.5748938537182221},null,{"$f":"'DNSP Inputs O & M'!$F$12","v":112.78304720629164},{"$f":"'DNSP Inputs O & M'!$F$288","v":2},{"$f":"'DNSP Inputs O & M'!$F$17","v":7.5},{"$f":"BJ331*BK331*BL331","v":1691.7457080943745},{"$f":"(BM331+BM332)/'DNSP Inputs O & M'!$F$294","v":132.90721250578275},{"$f":"BN331*AX311","v":0.71016299576956832},null,null,null,{"$f":"'DNSP Inputs O & M'!$G$12","v":113.60949069043043},{"$f":"'DNSP Inputs O & M'!$G$288","v":2},{"$f":"'DNSP Inputs O & M'!$G$17","v":7.5},{"$f":"BS331*BT331*BU331","v":1704.1423603564565},{"$f":"(BV331+BV332)/'DNSP Inputs O & M'!$G$292","v":83.353059309152911},{"$f":"BW331*BU311","v":0.44538033105593133},null,{"$f":"'DNSP Inputs O & M'!$G$12","v":113.60949069043043},{"$f":"'DNSP Inputs O & M'!$G$288","v":2},{"$f":"'DNSP Inputs O & M'!$G$17","v":7.5},{"$f":"BZ331*CA331*CB331","v":1704.1423603564565},{"$f":"(CC331+CC332)/'DNSP Inputs O & M'!$G$293","v":108.20646628752264},{"$f":"CD331*BU311","v":0.57817951946770696},null,{"$f":"'DNSP Inputs O & M'!$G$12","v":113.60949069043043},{"$f":"'DNSP Inputs O & M'!$G$288","v":2},{"$f":"'DNSP Inputs O & M'!$G$17","v":7.5},{"$f":"CG331*CH331*CI331","v":1704.1423603564565},{"$f":"(CJ331+CJ332)/'DNSP Inputs O & M'!$G$294","v":133.66681129635148},{"$f":"CK331*BU311","v":0.71422175934246146},null,null,null,{"$f":"'DNSP Inputs O & M'!$H$12","v":114.68985653357629},{"$f":"'DNSP Inputs O & M'!$H$288","v":2},{"$f":"'DNSP Inputs O & M'!$H$17","v":7.5},{"$f":"CP331*CQ331*CR331","v":1720.3478480036442},{"$f":"(CS331+CS332)/'DNSP Inputs O & M'!$H$292","v":84.002317628351122},{"$f":"CT331*CR311","v":0.4488495124818081},null,{"$f":"'DNSP Inputs O & M'!$H$12","v":114.68985653357629},{"$f":"'DNSP Inputs O & M'!$H$288","v":2},{"$f":"'DNSP Inputs O & M'!$H$17","v":7.5},{"$f":"CW331*CX331*CY331","v":1720.3478480036442},{"$f":"(CZ331+CZ332)/'DNSP Inputs O & M'!$H$293","v":109.0103099208157},{"$f":"DA331*CR311","v":0.58247469647117356},null,{"$f":"'DNSP Inputs O & M'!$H$12","v":114.68985653357629},{"$f":"'DNSP Inputs O & M'!$H$288","v":2},{"$f":"'DNSP Inputs O & M'!$H$17","v":7.5},{"$f":"DD331*DE331*DF331","v":1720.3478480036442},{"$f":"(DG331+DG332)/'DNSP Inputs O & M'!$H$294","v":134.65979460806645},{"$f":"DH331*CR311","v":0.71952756622909675}]
["Elevated platform vehicle costs",{"$f":"'DNSP Inputs O & M'!$D$14","v":50.18},1,{"$f":"'DNSP Inputs O & M'!$D$17","v":7.5},{"$f":"B332*C332*D332","v":376.35},null,null,null,{"$f":"'DNSP Inputs O & M'!$D$15","v":63.64},1,{"$f":"'DNSP Inputs O & M'!$D$17","v":7.5},{"$f":"I332*J332*K332","v":477.3},null,null,null,{"$f":"'DNSP Inputs O & M'!$D$15","v":63.64},1,{"$f":"'DNSP Inputs O & M'!$D$17","v":7.5},{"$f":"P332*Q332*R332","v":477.3},null,null,null,null,null,{"$f":"'DNSP Inputs O & M'!$E$14","v":50.18},1,{"$f":"'DNSP Inputs O & M'!$E$17","v":7.5},{"$f":"Y332*Z332*AA332","v":376.35},null,null,null,{"$f":"'DNSP Inputs O & M'!$E$15","v":63.64},1,{"$f":"'DNSP Inputs O & M'!$E$17","v":7.5},{"$f":"AF332*AG332*AH332","v":477.3},null,null,null,{"$f":"'DNSP Inputs O & M'!$E$15","v":63.64},1,{"$f":"'DNSP Inputs O & M'!$E$17","v":7.5},{"$f":"AM332*AN332*AO332","v":477.3},null,null,null,null,null,{"$f":"'DNSP Inputs O & M'!$F$14","v":50.18},1,{"$f":"'DNSP Inputs O & M'!$F$17","v":7.5},{"$f":"AV332*AW332*AX332","v":376.35},null,null,null,{"$f":"'DNSP Inputs O & M'!$F$15","v":63.64},1,{"$f":"'DNSP Inputs O & M'!$F$17","v":7.5},{"$f":"BC332*BD332*BE332","v":477.3},null,null,null,{"$f":"'DNSP Inputs O & M'!$F$15","v":63.64},1,{"$f":"'DNSP Inputs O & M'!$F$17","v":7.5},{"$f":"BJ332*BK332*BL332","v":477.3},null,null,null,null,null,{"$f":"'DNSP Inputs O & M'!$G$14","v":50.18},1,{"$f":"'DNSP Inputs O & M'!$G$17","v":7.5},{"$f":"BS332*BT332*BU332","v":376.35},null,null,null,{"$f":"'DNSP Inputs O & M'!$G$15","v":63.64},1,{"$f":"'DNSP Inputs O & M'!$G$17","v":7.5},{"$f":"BZ332*CA332*CB332","v":477.3},null,null,null,{"$f":"'DNSP Inputs O & M'!$G$15","v":63.64},1,{"$f":"'DNSP Inputs O & M'!$G$17","v":7.5},{"$f":"CG332*CH332*CI332","v":477.3},null,null,null,null,null,{"$f":"'DNSP Inputs O & M'!$H$14","v":50.18},1,{"$f":"'DNSP Inputs O & M'!$H$17","v":7.5},{"$f":"CP332*CQ332*CR332","v":376.35},null,null,null,{"$f":"'DNSP Inputs O & M'!$H$15","v":63.64},1,{"$f":"'DNSP Inputs O & M'!$H$17","v":7.5},{"$f":"CW332*CX332*CY332","v":477.3},null,null,null,{"$f":"'DNSP Inputs O & M'!$H$15","v":63.64},1,{"$f":"'DNSP Inputs O & M'!$H$17","v":7.5},{"$f":"DD332*DE332*DF332","v":477.3}]
["Other Maintenance and Repair costs",null,null,null,null,null,{"$f":"'DNSP Inputs O & M'!$D$304","v":1.05},null,null,null,null,null,null,{"$f":"'DNSP Inputs O & M'!$D$304","v":1.05},null,null,null,null,null,null,{"$f":"'DNSP Inputs O & M'!$D$304","v":1.05},null,null,null,null,null,null,null,null,{"$f":"'DNSP Inputs O & M'!$E$304","v":1.05},null,null,null,null,null,null,{"$f":"'DNSP Inputs O & M'!$E$304","v":1.05},null,null,null,null,null,null,{"$f":"'DNSP Inputs O & M'!$E$304","v":1.05},null,null,null,null,null,null,null,null,{"$f":"'DNSP Inputs O & M'!$F$304","v":1.05},null,null,null,null,null,null,{"$f":"'DNSP Inputs O & M'!$F$304","v":1.05},null,null,null,null,null,null,{"$f":"'DNSP Inputs O & M'!$F$304","v":1.05},null,null,null,null,null,null,null,null,{"$f":"'DNSP Inputs O & M'!$G$304","v":1.05},null,null,null,null,null,null,{"$f":"'DNSP Inputs O & M'!$G$304","v":1.05},null,null,null,null,null,null,{"$f":"'DNSP Inputs O & M'!$G$304","v":1.05},null,null,null,null,null,null,null,null,{"$f":"'DNSP Inputs O & M'!$H$304","v":1.05},null,null,null,null,null,null,{"$f":"'DNSP Inputs O & M'!$H$304","v":1.05},null,null,null,null,null,null,{"$f":"'DNSP Inputs O & M'!$H$304","v":1.05}]
[]
["Overheads",{"$f":"'DNSP Inputs O & M'!$D$18","v":0.25},null,null,null,null,{"$f":"B335*SUM(G322:G333)","v":1.7311030820937128},null,{"$f":"'DNSP Inputs O & M'!$D$18","v":0.25},null,null,null,null,{"$f":"I335*SUM(N322:N333)","v":2.0156692780882177},null,{"$f":"'DNSP Inputs O & M'!$D$18","v":0.25},null,null,null,null,{"$f":"P335*SUM(U322:U333)","v":2.3276075941750958},null,null,null,{"$f":"'DNSP Inputs O & M'!$E$18","v":0.25},null,null,null,null,{"$f":"Y335*SUM(AD322:AD333)","v":1.7363752964769246},null,{"$f":"'DNSP Inputs O & M'!$E$18","v":0.25},null,null,null,null,{"$f":"AF335*SUM(AK322:AK333)","v":2.0220331286756177},null,{"$f":"'DNSP Inputs O & M'!$E$18","v":0.25},null,null,null,null,{"$f":"AM335*SUM(AR322:AR333)","v":2.3355792205349859},null,null,null,{"$f":"'DNSP Inputs O & M'!$F$18","v":0.25},null,null,null,null,{"$f":"AV335*SUM(BA322:BA333)","v":1.7412535172143928},null,{"$f":"'DNSP Inputs O & M'!$F$18","v":0.25},null,null,null,null,{"$f":"BC335*SUM(BH322:BH333)","v":2.0279214074232454},null,{"$f":"'DNSP Inputs O & M'!$F$18","v":0.25},null,null,null,null,{"$f":"BJ335*SUM(BO322:BO333)","v":2.3429551256468857},null,null,null,{"$f":"'DNSP Inputs O & M'!$G$18","v":0.25},null,null,null,null,{"$f":"BS335*SUM(BX322:BX333)","v":1.7471577073612261},null,{"$f":"'DNSP Inputs O & M'!$G$18","v":0.25},null,null,null,null,{"$f":"BZ335*SUM(CE322:CE333)","v":2.0350480872588923},null,{"$f":"'DNSP Inputs O & M'!$G$18","v":0.25},null,null,null,null,{"$f":"CG335*SUM(CL322:CL333)","v":2.3518823039418661},null,null,null,{"$f":"'DNSP Inputs O & M'!$H$18","v":0.25},null,null,null,null,{"$f":"CP335*SUM(CU322:CU333)","v":1.75487594277417},null,{"$f":"'DNSP Inputs O & M'!$H$18","v":0.25},null,null,null,null,{"$f":"CW335*SUM(DB322:DB333)","v":2.0443644187652055},null,{"$f":"'DNSP Inputs O & M'!$H$18","v":0.25},null,null,null,null,{"$f":"DD335*SUM(DI322:DI333)","v":2.3635523318272225}]
[]
[null,null,null,null,null,null,{"$f":"SUM(G322,G324,G328,G331,G333,G335)","v":8.6555154104685634},null,null,null,null,null,null,{"$f":"SUM(N322,N324,N328,N331,N333,N335)","v":10.078346390441089},null,null,null,null,null,null,{"$f":"SUM(U322,U324,U328,U331,U333,U335)","v":11.638037970875478},null,null,null,null,null,null,null,null,{"$f":"SUM(AD322,AD324,AD328,AD331,AD333,AD335)","v":8.6818764823846237},null,null,null,null,null,null,{"$f":"SUM(AK322,AK324,AK328,AK331,AK333,AK335)","v":10.110165643378089},null,null,null,null,null,null,{"$f":"SUM(AR322,AR324,AR328,AR331,AR333,AR335)","v":11.677896102674929},null,null,null,null,null,null,null,null,{"$f":"SUM(BA322,BA324,BA328,BA331,BA333,BA335)","v":8.7062675860719647},null,null,null,null,null,null,{"$f":"SUM(BH322,BH324,BH328,BH331,BH333,BH335)","v":10.139607037116228},null,null,null,null,null,null,{"$f":"SUM(BO322,BO324,BO328,BO331,BO333,BO335)","v":11.714775628234428},null,null,null,null,null,null,null,null,{"$f":"SUM(BX322,BX324,BX328,BX331,BX333,BX335)","v":8.7357885368061297},null,null,null,null,null,null,{"$f":"SUM(CE322,CE324,CE328,CE331,CE333,CE335)","v":10.175240436294462},null,null,null,null,null,null,{"$f":"SUM(CL322,CL324,CL328,CL331,CL333,CL335)","v":11.759411519709332},null,null,null,null,null,null,null,null,{"$f":"SUM(CU322,CU324,CU328,CU331,CU333,CU335)","v":8.7743797138708501},null,null,null,null,null,null,{"$f":"SUM(DB322,DB324,DB328,DB331,DB333,DB335)","v":10.221822093826027},null,null,null,null,null,null,{"$f":"SUM(DI322,DI324,DI328,DI331,DI333,DI335)","v":11.817761659136112}]
[]
[]
[]
["NEW"]
["Category P LED 14 Watt - Cost build-up"]
[]
["Additional assumptions"]
["Proportion of luminaire that will fail before bulk change",null,null,{"$f":"'DNSP Inputs O & M'!$D$330","v":4.2746393209543501E-2},null,null,null,null,null,null,null,null,null,null,null,null,null,null,null,null,null,null,null,null,null,null,{"$f":"'DNSP Inputs O & M'!$E$330","v":4.2746393209543501E-2},null,null,null,null,null,null,null,null,null,null,null,null,null,null,null,null,null,null,null,null,null,null,{"$f":"'DNSP Inputs O & M'!$F$330","v":4.2746393209543501E-2},null,null,null,null,null,null,null,null,null,null,null,null,null,null,null,null,null,null,null,null,null,null,{"$f":"'DNSP Inputs O & M'!$G$330","v":4.2746393209543501E-2},null,null,null,null,null,null,null,null,null,null,null,null,null,null,null,null,null,null,null,null,null,null,{"$f":"'DNSP Inputs O & M'!$H$330","v":4.2746393209543501E-2}]
["Proportion of lamps that will fail before bulk change (per year)",null,null,{"$f":"D345/'DNSP Inputs O & M'!$D$329","v":5.3432991511929376E-3},null,null,null,null,null,null,null,null,null,null,null,null,null,null,null,null,null,null,null,null,null,null,{"$f":"AA345/'DNSP Inputs O & M'!$E$329","v":5.3432991511929376E-3},null,null,null,null,null,null,null,null,null,null,null,null,null,null,null,null,null,null,null,null,null,null,{"$f":"AX345/'DNSP Inputs O & M'!$F$329","v":5.3432991511929376E-3},null,null,null,null,null,null,null,null,null,null,null,null,null,null,null,null,null,null,null,null,null,null,{"$f":"BU345/'DNSP Inputs O & M'!$G$329","v":5.3432991511929376E-3},null,null,null,null,null,null,null,null,null,null,null,null,null,null,null,null,null,null,null,null,null,null,{"$f":"CR345/'DNSP Inputs O & M'!$H$329","v":5.3432991511929376E-3}]
["Overheads are applied to material and labour components"]
["All costs and charges are exclusive of GST"]
[]
[null,"Urban",null,null,null,null,null,null,"Rural",null,null,null,null,null,null,"Remote",null,null,null,null,null,null,null,null,"Urban",null,null,null,null,null,null,"Rural",null,null,null,null,null,null,"Remote",null,null,null,null,null,null,null,null,"Urban",null,null,null,null,null,null,"Rural",null,null,null,null,null,null,"Remote",null,null,null,null,null,null,null,null,"Urban",null,null,null,null,null,null,"Rural",null,null,null,null,null,null,"Remote",null,null,null,null,null,null,null,null,"Urban",null,null,null,null,null,null,"Rural",null,null,null,null,null,null,"Remote"]
[]
[null,"Unit rate","Number","Hours","Cost","Annualised","Annualised",null,"Unit rate","Number","Hours","Cost","Annualised","Annualised",null,"Unit rate","Number","Hours","Cost","Annualised","Annualised",null,null,null,"Unit rate","Number","Hours","Cost","Annualised","Annualised",null,"Unit rate","Number","Hours","Cost","Annualised","Annualised",null,"Unit rate","Number","Hours","Cost","Annualised","Annualised",null,null,null,"Unit rate","Number","Hours","Cost","Annualised","Annualised",null,"Unit rate","Number","Hours","Cost","Annualised","Annualised",null,"Unit rate","Number","Hours","Cost","Annualised","Annualised",null,null,null,"Unit rate","Number","Hours","Cost","Annualised","Annualised",null,"Unit rate","Number","Hours","Cost","Annualised","Annualised",null,"Unit rate","Number","Hours","Cost","Annualised","Annualised",null,null,null,"Unit rate","Number","Hours","Cost","Annualised","Annualised",null,"Unit rate","Number","Hours","Cost","Annualised","Annualised",null,"Unit rate","Number","Hours","Cost","Annualised","Annualised"]
[null,null,null,null,null," cost","unit cost",null,null,null,null,null," cost","unit cost",null,null,null,null,null," cost","unit cost",null,null,null,null,null,null,null," cost","unit cost",null,null,null,null,null," cost","unit cost",null,null,null,null,null," cost","unit cost",null,null,null,null,null,null,null," cost","unit cost",null,null,null,null,null," cost","unit cost",null,null,null,null,null," cost","unit cost",null,null,null,null,null,null,null," cost","unit cost",null,null,null,null,null," cost","unit cost",null,null,null,null,null," cost","unit cost",null,null,null,null,null,null,null," cost","unit cost",null,null,null,null,null," cost","unit cost",null,null,null,null,null," cost","unit cost"]
["LED 14W"]
["Bulk change & repairs"]
["Materials - bulk PE cell change"]
["PE cell",{"$f":"'DNSP Inputs O & M'!$D$331","v":15.120000000000001},{"$f":"'DNSP Inputs O & M'!$D$335","v":73.92},null,{"$f":"B357*C357","v":1117.6704000000002},{"$f":"E357/'DNSP Inputs O & M'!$D$329","v":139.70880000000002},{"$f":"IFERROR(F357/C357,0)","v":1.8900000000000003},null,{"$f":"'DNSP Inputs O & M'!$D$331*(1+'DNSP Inputs O & M'!$D$11)","v":15.876000000000001},{"$f":"'DNSP Inputs O & M'!$D$336","v":61.44},null,{"$f":"I357*J357","v":975.42144000000008},{"$f":"L357/'DNSP Inputs O & M'!$D$329","v":121.92768000000001},{"$f":"IFERROR(M357/J357,0)","v":1.9845000000000002},null,{"$f":"'DNSP Inputs O & M'!$D$331*(1+'DNSP Inputs O & M'!$D$11)","v":15.876000000000001},{"$f":"'DNSP Inputs O & M'!$D$337","v":48.96},null,{"$f":"P357*Q357","v":777.28896000000009},{"$f":"S357/'DNSP Inputs O & M'!$D$329","v":97.161120000000011},{"$f":"IFERROR(T357/Q357,0)","v":1.9845000000000002},null,null,null,{"$f":"'DNSP Inputs O & M'!$E$331","v":15.120000000000001},{"$f":"'DNSP Inputs O & M'!$E$335","v":73.92},null,{"$f":"Y357*Z357","v":1117.6704000000002},{"$f":"AB357/'DNSP Inputs O & M'!$E$329","v":139.70880000000002},{"$f":"IFERROR(AC357/Z357,0)","v":1.8900000000000003},null,{"$f":"'DNSP Inputs O & M'!$E$331*(1+'DNSP Inputs O & M'!$E$11)","v":15.876000000000001},{"$f":"'DNSP Inputs O & M'!$E$336","v":61.44},null,{"$f":"AF357*AG357","v":975.42144000000008},{"$f":"AI357/'DNSP Inputs O & M'!$E$329","v":121.92768000000001},{"$f":"IFERROR(AJ357/AG357,0)","v":1.9845000000000002},null,{"$f":"'DNSP Inputs O & M'!$E$331*(1+'DNSP Inputs O & M'!$E$11)","v":15.876000000000001},{"$f":"'DNSP Inputs O & M'!$E$337","v":48.96},null,{"$f":"AM357*AN357","v":777.28896000000009},{"$f":"AP357/'DNSP Inputs O & M'!$E$329","v":97.161120000000011},{"$f":"IFERROR(AQ357/AN357,0)","v":1.9845000000000002},null,null,null,{"$f":"'DNSP Inputs O & M'!$F$331","v":15.120000000000001},{"$f":"'DNSP Inputs O & M'!$F$335","v":73.92},null,{"$f":"AV357*AW357","v":1117.6704000000002},{"$f":"AY357/'DNSP Inputs O & M'!$F$329","v":139.70880000000002},{"$f":"IFERROR(AZ357/AW357,0)","v":1.8900000000000003},null,{"$f":"'DNSP Inputs O & M'!$F$331*(1+'DNSP Inputs O & M'!$F$11)","v":15.876000000000001},{"$f":"'DNSP Inputs O & M'!$F$336","v":61.44},null,{"$f":"BC357*BD357","v":975.42144000000008},{"$f":"BF357/'DNSP Inputs O & M'!$F$329","v":121.92768000000001},{"$f":"IFERROR(BG357/BD357,0)","v":1.9845000000000002},null,{"$f":"'DNSP Inputs O & M'!$F$331*(1+'DNSP Inputs O & M'!$F$11)","v":15.876000000000001},{"$f":"'DNSP Inputs O & M'!$F$337","v":48.96},null,{"$f":"BJ357*BK357","v":777.28896000000009},{"$f":"BM357/'DNSP Inputs O & M'!$F$329","v":97.161120000000011},{"$f":"IFERROR(BN357/BK357,0)","v":1.9845000000000002},null,null,null,{"$f":"'DNSP Inputs O & M'!$G$331","v":15.120000000000001},{"$f":"'DNSP Inputs O & M'!$G$335","v":73.92},null,{"$f":"BS357*BT357","v":1117.6704000000002},{"$f":"BV357/'DNSP Inputs O & M'!$G$329","v":139.70880000000002},{"$f":"IFERROR(BW357/BT357,0)","v":1.8900000000000003},null,{"$f":"'DNSP Inputs O & M'!$G$331*(1+'DNSP Inputs O & M'!$G$11)","v":15.876000000000001},{"$f":"'DNSP Inputs O & M'!$G$336","v":61.44},null,{"$f":"BZ357*CA357","v":975.42144000000008},{"$f":"CC357/'DNSP Inputs O & M'!$G$329","v":121.92768000000001},{"$f":"IFERROR(CD357/CA357,0)","v":1.9845000000000002},null,{"$f":"'DNSP Inputs O & M'!$G$331*(1+'DNSP Inputs O & M'!$G$11)","v":15.876000000000001},{"$f":"'DNSP Inputs O & M'!$G$337","v":48.96},null,{"$f":"CG357*CH357","v":777.28896000000009},{"$f":"CJ357/'DNSP Inputs O & M'!$G$329","v":97.161120000000011},{"$f":"IFERROR(CK357/CH357,0)","v":1.9845000000000002},null,null,null,{"$f":"'DNSP Inputs O & M'!$H$331","v":15.120000000000001},{"$f":"'DNSP Inputs O & M'!$H$335","v":73.92},null,{"$f":"CP357*CQ357","v":1117.6704000000002},{"$f":"CS357/'DNSP Inputs O & M'!$H$329","v":139.70880000000002},{"$f":"IFERROR(CT357/CQ357,0)","v":1.8900000000000003},null,{"$f":"'DNSP Inputs O & M'!$H$331*(1+'DNSP Inputs O & M'!$H$11)","v":15.876000000000001},{"$f":"'DNSP Inputs O & M'!$H$336","v":61.44},null,{"$f":"CW357*CX357","v":975.42144000000008},{"$f":"CZ357/'DNSP Inputs O & M'!$H$329","v":121.92768000000001},{"$f":"IFERROR(DA357/CX357,0)","v":1.9845000000000002},null,{"$f":"'DNSP Inputs O & M'!$H$331*(1+'DNSP Inputs O & M'!$H$11)","v":15.876000000000001},{"$f":"'DNSP Inputs O & M'!$H$337","v":48.96},null,{"$f":"DD357*DE357","v":777.28896000000009},{"$f":"DG357/'DNSP Inputs O & M'!$H$329","v":97.161120000000011},{"$f":"IFERROR(DH357/DE357,0)","v":1.9845000000000002}]
["Materials - repair of faults"]
["PE cell",{"$f":"'DNSP Inputs O & M'!$D$331","v":15.120000000000001},{"$f":"'DNSP Inputs O & M'!$D$338*'DNSP Inputs O & M'!$D$341","v":22.464000000000002},null,{"$f":"B359*C359","v":339.65568000000007},{"$f":"(E359+E360+E361)/'DNSP Inputs O & M'!$D$338","v":15.926843842435392},{"$f":"F359*D346","v":8.5101891184467496E-2},null,{"$f":"'DNSP Inputs O & M'!$D$331*(1+'DNSP Inputs O & M'!$D$11)","v":15.876000000000001},{"$f":"'DNSP Inputs O & M'!$D$339*'DNSP Inputs O & M'!$D$341","v":18.144000000000002},null,{"$f":"I359*J359","v":288.05414400000006},{"$f":"(L359+L360+L361)/'DNSP Inputs O & M'!$D$339","v":16.723186034557159},{"$f":"M359*D346","v":8.9356985743690859E-2},null,{"$f":"'DNSP Inputs O & M'!$D$331*(1+'DNSP Inputs O & M'!$D$11)","v":15.876000000000001},{"$f":"'DNSP Inputs O & M'!$D$340*'DNSP Inputs O & M'!$D$341","v":14.688000000000001},null,{"$f":"P359*Q359","v":233.18668800000003},{"$f":"(S359+S360+S361)/'DNSP Inputs O & M'!$D$340","v":16.723186034557159},{"$f":"T359*D346","v":8.9356985743690859E-2},null,null,null,{"$f":"'DNSP Inputs O & M'!$E$331","v":15.120000000000001},{"$f":"'DNSP Inputs O & M'!$E$338*'DNSP Inputs O & M'!$E$341","v":22.464000000000002},null,{"$f":"Y359*Z359","v":339.65568000000007},{"$f":"(AB359+AB360+AB361)/'DNSP Inputs O & M'!$E$338","v":15.926843842435392},{"$f":"AC359*AA346","v":8.5101891184467496E-2},null,{"$f":"'DNSP Inputs O & M'!$E$331*(1+'DNSP Inputs O & M'!$E$11)","v":15.876000000000001},{"$f":"'DNSP Inputs O & M'!$E$339*'DNSP Inputs O & M'!$E$341","v":18.144000000000002},null,{"$f":"AF359*AG359","v":288.05414400000006},{"$f":"(AI359+AI360+AI361)/'DNSP Inputs O & M'!$E$339","v":16.723186034557159},{"$f":"AJ359*AA346","v":8.9356985743690859E-2},null,{"$f":"'DNSP Inputs O & M'!$E$331*(1+'DNSP Inputs O & M'!$E$11)","v":15.876000000000001},{"$f":"'DNSP Inputs O & M'!$E$340*'DNSP Inputs O & M'!$E$341","v":14.688000000000001},null,{"$f":"AM359*AN359","v":233.18668800000003},{"$f":"(AP359+AP360+AP361)/'DNSP Inputs O & M'!$E$340","v":16.723186034557159},{"$f":"AQ359*AA346","v":8.9356985743690859E-2},null,null,null,{"$f":"'DNSP Inputs O & M'!$F$331","v":15.120000000000001},{"$f":"'DNSP Inputs O & M'!$F$338*'DNSP Inputs O & M'!$F$341","v":22.464000000000002},null,{"$f":"AV359*AW359","v":339.65568000000007},{"$f":"(AY359+AY360+AY361)/'DNSP Inputs O & M'!$F$338","v":15.926843842435392},{"$f":"AZ359*AX346","v":8.5101891184467496E-2},null,{"$f":"'DNSP Inputs O & M'!$F$331*(1+'DNSP Inputs O & M'!$F$11)","v":15.876000000000001},{"$f":"'DNSP Inputs O & M'!$F$339*'DNSP Inputs O & M'!$F$341","v":18.144000000000002},null,{"$f":"BC359*BD359","v":288.05414400000006},{"$f":"(BF359+BF360+BF361)/'DNSP Inputs O & M'!$F$339","v":16.723186034557159},{"$f":"BG359*AX346","v":8.9356985743690859E-2},null,{"$f":"'DNSP Inputs O & M'!$F$331*(1+'DNSP Inputs O & M'!$F$11)","v":15.876000000000001},{"$f":"'DNSP Inputs O & M'!$F$340*'DNSP Inputs O & M'!$F$341","v":14.688000000000001},null,{"$f":"BJ359*BK359","v":233.18668800000003},{"$f":"(BM359+BM360+BM361)/'DNSP Inputs O & M'!$F$340","v":16.723186034557159},{"$f":"BN359*AX346","v":8.9356985743690859E-2},null,null,null,{"$f":"'DNSP Inputs O & M'!$G$331","v":15.120000000000001},{"$f":"'DNSP Inputs O & M'!$G$338*'DNSP Inputs O & M'!$G$341","v":22.464000000000002},null,{"$f":"BS359*BT359","v":339.65568000000007},{"$f":"(BV359+BV360+BV361)/'DNSP Inputs O & M'!$G$338","v":15.926843842435392},{"$f":"BW359*BU346","v":8.5101891184467496E-2},null,{"$f":"'DNSP Inputs O & M'!$G$331*(1+'DNSP Inputs O & M'!$G$11)","v":15.876000000000001},{"$f":"'DNSP Inputs O & M'!$G$339*'DNSP Inputs O & M'!$G$341","v":18.144000000000002},null,{"$f":"BZ359*CA359","v":288.05414400000006},{"$f":"(CC359+CC360+CC361)/'DNSP Inputs O & M'!$G$339","v":16.723186034557159},{"$f":"CD359*BU346","v":8.9356985743690859E-2},null,{"$f":"'DNSP Inputs O & M'!$G$331*(1+'DNSP Inputs O & M'!$G$11)","v":15.876000000000001},{"$f":"'DNSP Inputs O & M'!$G$340*'DNSP Inputs O & M'!$G$341","v":14.688000000000001},null,{"$f":"CG359*CH359","v":233.18668800000003},{"$f":"(CJ359+CJ360+CJ361)/'DNSP Inputs O & M'!$G$340","v":16.723186034557159},{"$f":"CK359*BU346","v":8.9356985743690859E-2},null,null,null,{"$f":"'DNSP Inputs O & M'!$H$331","v":15.120000000000001},{"$f":"'DNSP Inputs O & M'!$H$338*'DNSP Inputs O & M'!$H$341","v":22.464000000000002},null,{"$f":"CP359*CQ359","v":339.65568000000007},{"$f":"(CS359+CS360+CS361)/'DNSP Inputs O & M'!$H$338","v":15.926843842435392},{"$f":"CT359*CR346","v":8.5101891184467496E-2},null,{"$f":"'DNSP Inputs O & M'!$H$331*(1+'DNSP Inputs O & M'!$H$11)","v":15.876000000000001},{"$f":"'DNSP Inputs O & M'!$H$339*'DNSP Inputs O & M'!$H$341","v":18.144000000000002},null,{"$f":"CW359*CX359","v":288.05414400000006},{"$f":"(CZ359+CZ360+CZ361)/'DNSP Inputs O & M'!$H$339","v":16.723186034557159},{"$f":"DA359*CR346","v":8.9356985743690859E-2},null,{"$f":"'DNSP Inputs O & M'!$H$331*(1+'DNSP Inputs O & M'!$H$11)","v":15.876000000000001},{"$f":"'DNSP Inputs O & M'!$H$340*'DNSP Inputs O & M'!$H$341","v":14.688000000000001},null,{"$f":"DD359*DE359","v":233.18668800000003},{"$f":"(DG359+DG360+DG361)/'DNSP Inputs O & M'!$H$340","v":16.723186034557159},{"$f":"DH359*CR346","v":8.9356985743690859E-2}]
["Luminaire",{"$f":"'DNSP Inputs O & M'!$D$332","v":205},{"$f":"'DNSP Inputs O & M'!$D$338*'DNSP Inputs O & M'!$D$342","v":0},null,{"$f":"B360*C360","v":0},null,null,null,{"$f":"'DNSP Inputs O & M'!$D$332*(1+'DNSP Inputs O & M'!$D$11)","v":215.25},{"$f":"'DNSP Inputs O & M'!$D$339*'DNSP Inputs O & M'!$D$342","v":0},null,{"$f":"I360*J360","v":0},null,null,null,{"$f":"'DNSP Inputs O & M'!$D$332*(1+'DNSP Inputs O & M'!$D$11)","v":215.25},{"$f":"'DNSP Inputs O & M'!$D$340*'DNSP Inputs O & M'!$D$342","v":0},null,{"$f":"P360*Q360","v":0},null,null,null,null,null,{"$f":"'DNSP Inputs O & M'!$E$332","v":205},{"$f":"'DNSP Inputs O & M'!$E$338*'DNSP Inputs O & M'!$E$342","v":0},null,{"$f":"Y360*Z360","v":0},null,null,null,{"$f":"'DNSP Inputs O & M'!$E$332*(1+'DNSP Inputs O & M'!$E$11)","v":215.25},{"$f":"'DNSP Inputs O & M'!$E$339*'DNSP Inputs O & M'!$E$342","v":0},null,{"$f":"AF360*AG360","v":0},null,null,null,{"$f":"'DNSP Inputs O & M'!$E$332*(1+'DNSP Inputs O & M'!$E$11)","v":215.25},{"$f":"'DNSP Inputs O & M'!$E$340*'DNSP Inputs O & M'!$E$342","v":0},null,{"$f":"AM360*AN360","v":0},null,null,null,null,null,{"$f":"'DNSP Inputs O & M'!$F$332","v":205},{"$f":"'DNSP Inputs O & M'!$F$338*'DNSP Inputs O & M'!$F$342","v":0},null,{"$f":"AV360*AW360","v":0},null,null,null,{"$f":"'DNSP Inputs O & M'!$F$332*(1+'DNSP Inputs O & M'!$F$11)","v":215.25},{"$f":"'DNSP Inputs O & M'!$F$339*'DNSP Inputs O & M'!$F$342","v":0},null,{"$f":"BC360*BD360","v":0},null,null,null,{"$f":"'DNSP Inputs O & M'!$F$332*(1+'DNSP Inputs O & M'!$F$11)","v":215.25},{"$f":"'DNSP Inputs O & M'!$F$340*'DNSP Inputs O & M'!$F$342","v":0},null,{"$f":"BJ360*BK360","v":0},null,null,null,null,null,{"$f":"'DNSP Inputs O & M'!$G$332","v":205},{"$f":"'DNSP Inputs O & M'!$G$338*'DNSP Inputs O & M'!$G$342","v":0},null,{"$f":"BS360*BT360","v":0},null,null,null,{"$f":"'DNSP Inputs O & M'!$G$332*(1+'DNSP Inputs O & M'!$G$11)","v":215.25},{"$f":"'DNSP Inputs O & M'!$G$339*'DNSP Inputs O & M'!$G$342","v":0},null,{"$f":"BZ360*CA360","v":0},null,null,null,{"$f":"'DNSP Inputs O & M'!$G$332*(1+'DNSP Inputs O & M'!$G$11)","v":215.25},{"$f":"'DNSP Inputs O & M'!$G$340*'DNSP Inputs O & M'!$G$342","v":0},null,{"$f":"CG360*CH360","v":0},null,null,null,null,null,{"$f":"'DNSP Inputs O & M'!$H$332","v":205},{"$f":"'DNSP Inputs O & M'!$H$338*'DNSP Inputs O & M'!$H$342","v":0},null,{"$f":"CP360*CQ360","v":0},null,null,null,{"$f":"'DNSP Inputs O & M'!$H$332*(1+'DNSP Inputs O & M'!$H$11)","v":215.25},{"$f":"'DNSP Inputs O & M'!$H$339*'DNSP Inputs O & M'!$H$342","v":0},null,{"$f":"CW360*CX360","v":0},null,null,null,{"$f":"'DNSP Inputs O & M'!$H$332*(1+'DNSP Inputs O & M'!$H$11)","v":215.25},{"$f":"'DNSP Inputs O & M'!$H$340*'DNSP Inputs O & M'!$H$342","v":0},null,{"$f":"DD360*DE360","v":0}]
["Miscellaneous",{"$f":"'DNSP Inputs O & M'!$D$333","v":23.188438424353883},{"$f":"'DNSP Inputs O & M'!$D$338*'DNSP Inputs O & M'!$D$343","v":2.4960000000000004},null,{"$f":"B361*C361","v":57.878342307187303},null,null,null,{"$f":"'DNSP Inputs O & M'!$D$333*(1+'DNSP Inputs O & M'!$D$11)","v":24.347860345571579},{"$f":"'DNSP Inputs O & M'!$D$339*'DNSP Inputs O & M'!$D$343","v":2.016},null,{"$f":"I361*J361","v":49.085286456672307},null,null,null,{"$f":"'DNSP Inputs O & M'!$D$333*(1+'DNSP Inputs O & M'!$D$11)","v":24.347860345571579},{"$f":"'DNSP Inputs O & M'!$D$340*'DNSP Inputs O & M'!$D$343","v":1.6320000000000001},null,{"$f":"P361*Q361","v":39.735708083972817},null,null,null,null,null,{"$f":"'DNSP Inputs O & M'!$E$333","v":23.188438424353883},{"$f":"'DNSP Inputs O & M'!$E$338*'DNSP Inputs O & M'!$E$343","v":2.4960000000000004},null,{"$f":"Y361*Z361","v":57.878342307187303},null,null,null,{"$f":"'DNSP Inputs O & M'!$E$333*(1+'DNSP Inputs O & M'!$E$11)","v":24.347860345571579},{"$f":"'DNSP Inputs O & M'!$E$339*'DNSP Inputs O & M'!$E$343","v":2.016},null,{"$f":"AF361*AG361","v":49.085286456672307},null,null,null,{"$f":"'DNSP Inputs O & M'!$E$333*(1+'DNSP Inputs O & M'!$E$11)","v":24.347860345571579},{"$f":"'DNSP Inputs O & M'!$E$340*'DNSP Inputs O & M'!$E$343","v":1.6320000000000001},null,{"$f":"AM361*AN361","v":39.735708083972817},null,null,null,null,null,{"$f":"'DNSP Inputs O & M'!$F$333","v":23.188438424353883},{"$f":"'DNSP Inputs O & M'!$F$338*'DNSP Inputs O & M'!$F$343","v":2.4960000000000004},null,{"$f":"AV361*AW361","v":57.878342307187303},null,null,null,{"$f":"'DNSP Inputs O & M'!$F$333*(1+'DNSP Inputs O & M'!$F$11)","v":24.347860345571579},{"$f":"'DNSP Inputs O & M'!$F$339*'DNSP Inputs O & M'!$F$343","v":2.016},null,{"$f":"BC361*BD361","v":49.085286456672307},null,null,null,{"$f":"'DNSP Inputs O & M'!$F$333*(1+'DNSP Inputs O & M'!$F$11)","v":24.347860345571579},{"$f":"'DNSP Inputs O & M'!$F$340*'DNSP Inputs O & M'!$F$343","v":1.6320000000000001},null,{"$f":"BJ361*BK361","v":39.735708083972817},null,null,null,null,null,{"$f":"'DNSP Inputs O & M'!$G$333","v":23.188438424353883},{"$f":"'DNSP Inputs O & M'!$G$338*'DNSP Inputs O & M'!$G$343","v":2.4960000000000004},null,{"$f":"BS361*BT361","v":57.878342307187303},null,null,null,{"$f":"'DNSP Inputs O & M'!$G$333*(1+'DNSP Inputs O & M'!$G$11)","v":24.347860345571579},{"$f":"'DNSP Inputs O & M'!$G$339*'DNSP Inputs O & M'!$G$343","v":2.016},null,{"$f":"BZ361*CA361","v":49.085286456672307},null,null,null,{"$f":"'DNSP Inputs O & M'!$G$333*(1+'DNSP Inputs O & M'!$G$11)","v":24.347860345571579},{"$f":"'DNSP Inputs O & M'!$G$340*'DNSP Inputs O & M'!$G$343","v":1.6320000000000001},null,{"$f":"CG361*CH361","v":39.735708083972817},null,null,null,null,null,{"$f":"'DNSP Inputs O & M'!$H$333","v":23.188438424353883},{"$f":"'DNSP Inputs O & M'!$H$338*'DNSP Inputs O & M'!$H$343","v":2.4960000000000004},null,{"$f":"CP361*CQ361","v":57.878342307187303},null,null,null,{"$f":"'DNSP Inputs O & M'!$H$333*(1+'DNSP Inputs O & M'!$H$11)","v":24.347860345571579},{"$f":"'DNSP Inputs O & M'!$H$339*'DNSP Inputs O & M'!$H$343","v":2.016},null,{"$f":"CW361*CX361","v":49.085286456672307},null,null,null,{"$f":"'DNSP Inputs O & M'!$H$333*(1+'DNSP Inputs O & M'!$H$11)","v":24.347860345571579},{"$f":"'DNSP Inputs O & M'!$H$340*'DNSP Inputs O & M'!$H$343","v":1.6320000000000001},null,{"$f":"DD361*DE361","v":39.735708083972817}]
["Labour - bulk PE cell change"]
["Crew costs",{"$f":"'DNSP Inputs O & M'!$D$12","v":111.36223236834823},{"$f":"'DNSP Inputs O & M'!$D$334","v":2},{"$f":"'DNSP Inputs O & M'!$D$17","v":7.5},{"$f":"B363*C363*D363","v":1670.4334855252234},{"$f":"E363/'DNSP Inputs O & M'!$D$329","v":208.80418569065293},{"$f":"IFERROR((F363+F364)/C357,0)","v":3.4611463161614306},null,{"$f":"'DNSP Inputs O & M'!$D$12","v":111.36223236834823},{"$f":"'DNSP Inputs O & M'!$D$334","v":2},{"$f":"'DNSP Inputs O & M'!$D$17","v":7.5},{"$f":"I363*J363*K363","v":1670.4334855252234},{"$f":"L363/'DNSP Inputs O & M'!$D$329","v":208.80418569065293},{"$f":"IFERROR((M363+M364)/J357,0)","v":4.3695749624129707},null,{"$f":"'DNSP Inputs O & M'!$D$12","v":111.36223236834823},{"$f":"'DNSP Inputs O & M'!$D$334","v":2},{"$f":"'DNSP Inputs O & M'!$D$17","v":7.5},{"$f":"P363*Q363*R363","v":1670.4334855252234},{"$f":"S363/'DNSP Inputs O & M'!$D$329","v":208.80418569065293},{"$f":"IFERROR((T363+T364)/Q357,0)","v":5.4833881881260806},null,null,null,{"$f":"'DNSP Inputs O & M'!$E$12","v":112.10021456669011},{"$f":"'DNSP Inputs O & M'!$E$334","v":2},{"$f":"'DNSP Inputs O & M'!$E$17","v":7.5},{"$f":"Y363*Z363*AA363","v":1681.5032185003517},{"$f":"AB363/'DNSP Inputs O & M'!$E$329","v":210.18790231254397},{"$f":"IFERROR((AC363+AC364)/Z357,0)","v":3.4798654263060604},null,{"$f":"'DNSP Inputs O & M'!$E$12","v":112.10021456669011},{"$f":"'DNSP Inputs O & M'!$E$334","v":2},{"$f":"'DNSP Inputs O & M'!$E$17","v":7.5},{"$f":"AF363*AG363*AH363","v":1681.5032185003517},{"$f":"AI363/'DNSP Inputs O & M'!$E$329","v":210.18790231254397},{"$f":"IFERROR((AJ363+AJ364)/AG357,0)","v":4.3920963918057288},null,{"$f":"'DNSP Inputs O & M'!$E$12","v":112.10021456669011},{"$f":"'DNSP Inputs O & M'!$E$334","v":2},{"$f":"'DNSP Inputs O & M'!$E$17","v":7.5},{"$f":"AM363*AN363*AO363","v":1681.5032185003517},{"$f":"AP363/'DNSP Inputs O & M'!$E$329","v":210.18790231254397},{"$f":"IFERROR((AQ363+AQ364)/AN357,0)","v":5.5116503740307179},null,null,null,{"$f":"'DNSP Inputs O & M'!$F$12","v":112.78304720629164},{"$f":"'DNSP Inputs O & M'!$F$334","v":2},{"$f":"'DNSP Inputs O & M'!$F$17","v":7.5},{"$f":"AV363*AW363*AX363","v":1691.7457080943745},{"$f":"AY363/'DNSP Inputs O & M'!$F$329","v":211.46821351179682},{"$f":"IFERROR((AZ363+AZ364)/AW357,0)","v":3.4971856535686796},null,{"$f":"'DNSP Inputs O & M'!$F$12","v":112.78304720629164},{"$f":"'DNSP Inputs O & M'!$F$334","v":2},{"$f":"'DNSP Inputs O & M'!$F$17","v":7.5},{"$f":"BC363*BD363*BE363","v":1691.7457080943745},{"$f":"BF363/'DNSP Inputs O & M'!$F$329","v":211.46821351179682},{"$f":"IFERROR((BG363+BG364)/BD357,0)","v":4.4129347902310689},null,{"$f":"'DNSP Inputs O & M'!$F$12","v":112.78304720629164},{"$f":"'DNSP Inputs O & M'!$F$334","v":2},{"$f":"'DNSP Inputs O & M'!$F$17","v":7.5},{"$f":"BJ363*BK363*BL363","v":1691.7457080943745},{"$f":"BM363/'DNSP Inputs O & M'!$F$329","v":211.46821351179682},{"$f":"IFERROR((BN363+BN364)/BK357,0)","v":5.5378005210742822},null,null,null,{"$f":"'DNSP Inputs O & M'!$G$12","v":113.60949069043043},{"$f":"'DNSP Inputs O & M'!$G$334","v":2},{"$f":"'DNSP Inputs O & M'!$G$17","v":7.5},{"$f":"BS363*BT363*BU363","v":1704.1423603564565},{"$f":"BV363/'DNSP Inputs O & M'!$G$329","v":213.01779504455706},{"$f":"IFERROR((BW363+BW364)/BT357,0)","v":3.5181486072045058},null,{"$f":"'DNSP Inputs O & M'!$G$12","v":113.60949069043043},{"$f":"'DNSP Inputs O & M'!$G$334","v":2},{"$f":"'DNSP Inputs O & M'!$G$17","v":7.5},{"$f":"BZ363*CA363*CB363","v":1704.1423603564565},{"$f":"CC363/'DNSP Inputs O & M'!$G$329","v":213.01779504455706},{"$f":"IFERROR((CD363+CD364)/CA357,0)","v":4.4381558438241706},null,{"$f":"'DNSP Inputs O & M'!$G$12","v":113.60949069043043},{"$f":"'DNSP Inputs O & M'!$G$334","v":2},{"$f":"'DNSP Inputs O & M'!$G$17","v":7.5},{"$f":"CG363*CH363*CI363","v":1704.1423603564565},{"$f":"CJ363/'DNSP Inputs O & M'!$G$329","v":213.01779504455706},{"$f":"IFERROR((CK363+CK364)/CH357,0)","v":5.5694504706813124},null,null,null,{"$f":"'DNSP Inputs O & M'!$H$12","v":114.68985653357629},{"$f":"'DNSP Inputs O & M'!$H$334","v":2},{"$f":"'DNSP Inputs O & M'!$H$17","v":7.5},{"$f":"CP363*CQ363*CR363","v":1720.3478480036442},{"$f":"CS363/'DNSP Inputs O & M'!$H$329","v":215.04348100045553},{"$f":"IFERROR((CT363+CT364)/CQ357,0)","v":3.5455523674304046},null,{"$f":"'DNSP Inputs O & M'!$H$12","v":114.68985653357629},{"$f":"'DNSP Inputs O & M'!$H$334","v":2},{"$f":"'DNSP Inputs O & M'!$H$17","v":7.5},{"$f":"CW363*CX363*CY363","v":1720.3478480036442},{"$f":"CZ363/'DNSP Inputs O & M'!$H$329","v":215.04348100045553},{"$f":"IFERROR((DA363+DA364)/CX357,0)","v":4.4711259928459564},null,{"$f":"'DNSP Inputs O & M'!$H$12","v":114.68985653357629},{"$f":"'DNSP Inputs O & M'!$H$334","v":2},{"$f":"'DNSP Inputs O & M'!$H$17","v":7.5},{"$f":"DD363*DE363*DF363","v":1720.3478480036442},{"$f":"DG363/'DNSP Inputs O & M'!$H$329","v":215.04348100045553},{"$f":"IFERROR((DH363+DH364)/DE357,0)","v":5.610824775336102}]
["Elevated platform vehicle costs",{"$f":"'DNSP Inputs O & M'!$D$14","v":50.18},1,{"$f":"'DNSP Inputs O & M'!$D$17","v":7.5},{"$f":"B364*C364*D364","v":376.35},{"$f":"E364/'DNSP Inputs O & M'!$D$329","v":47.043750000000003},null,null,{"$f":"'DNSP Inputs O & M'!$D$15","v":63.64},1,{"$f":"'DNSP Inputs O & M'!$D$17","v":7.5},{"$f":"I364*J364*K364","v":477.3},{"$f":"L364/'DNSP Inputs O & M'!$D$329","v":59.662500000000001},null,null,{"$f":"'DNSP Inputs O & M'!$D$15","v":63.64},1,{"$f":"'DNSP Inputs O & M'!$D$17","v":7.5},{"$f":"P364*Q364*R364","v":477.3},{"$f":"S364/'DNSP Inputs O & M'!$D$329","v":59.662500000000001},null,null,null,null,{"$f":"'DNSP Inputs O & M'!$E$14","v":50.18},1,{"$f":"'DNSP Inputs O & M'!$E$17","v":7.5},{"$f":"Y364*Z364*AA364","v":376.35},{"$f":"AB364/'DNSP Inputs O & M'!$E$329","v":47.043750000000003},null,null,{"$f":"'DNSP Inputs O & M'!$E$15","v":63.64},1,{"$f":"'DNSP Inputs O & M'!$E$17","v":7.5},{"$f":"AF364*AG364*AH364","v":477.3},{"$f":"AI364/'DNSP Inputs O & M'!$E$329","v":59.662500000000001},null,null,{"$f":"'DNSP Inputs O & M'!$E$15","v":63.64},1,{"$f":"'DNSP Inputs O & M'!$E$17","v":7.5},{"$f":"AM364*AN364*AO364","v":477.3},{"$f":"AP364/'DNSP Inputs O & M'!$E$329","v":59.662500000000001},null,null,null,null,{"$f":"'DNSP Inputs O & M'!$F$14","v":50.18},1,{"$f":"'DNSP Inputs O & M'!$F$17","v":7.5},{"$f":"AV364*AW364*AX364","v":376.35},{"$f":"AY364/'DNSP Inputs O & M'!$F$329","v":47.043750000000003},null,null,{"$f":"'DNSP Inputs O & M'!$F$15","v":63.64},1,{"$f":"'DNSP Inputs O & M'!$F$17","v":7.5},{"$f":"BC364*BD364*BE364","v":477.3},{"$f":"BF364/'DNSP Inputs O & M'!$F$329","v":59.662500000000001},null,null,{"$f":"'DNSP Inputs O & M'!$F$15","v":63.64},1,{"$f":"'DNSP Inputs O & M'!$F$17","v":7.5},{"$f":"BJ364*BK364*BL364","v":477.3},{"$f":"BM364/'DNSP Inputs O & M'!$F$329","v":59.662500000000001},null,null,null,null,{"$f":"'DNSP Inputs O & M'!$G$14","v":50.18},1,{"$f":"'DNSP Inputs O & M'!$G$17","v":7.5},{"$f":"BS364*BT364*BU364","v":376.35},{"$f":"BV364/'DNSP Inputs O & M'!$G$329","v":47.043750000000003},null,null,{"$f":"'DNSP Inputs O & M'!$G$15","v":63.64},1,{"$f":"'DNSP Inputs O & M'!$G$17","v":7.5},{"$f":"BZ364*CA364*CB364","v":477.3},{"$f":"CC364/'DNSP Inputs O & M'!$G$329","v":59.662500000000001},null,null,{"$f":"'DNSP Inputs O & M'!$G$15","v":63.64},1,{"$f":"'DNSP Inputs O & M'!$G$17","v":7.5},{"$f":"CG364*CH364*CI364","v":477.3},{"$f":"CJ364/'DNSP Inputs O & M'!$G$329","v":59.662500000000001},null,null,null,null,{"$f":"'DNSP Inputs O & M'!$H$14","v":50.18},1,{"$f":"'DNSP Inputs O & M'!$H$17","v":7.5},{"$f":"CP364*CQ364*CR364","v":376.35},{"$f":"CS364/'DNSP Inputs O & M'!$H$329","v":47.043750000000003},null,null,{"$f":"'DNSP Inputs O & M'!$H$15","v":63.64},1,{"$f":"'DNSP Inputs O & M'!$H$17","v":7.5},{"$f":"CW364*CX364*CY364","v":477.3},{"$f":"CZ364/'DNSP Inputs O & M'!$H$329","v":59.662500000000001},null,null,{"$f":"'DNSP Inputs O & M'!$H$15","v":63.64},1,{"$f":"'DNSP Inputs O & M'!$H$17","v":7.5},{"$f":"DD364*DE364*DF364","v":477.3},{"$f":"DG364/'DNSP Inputs O & M'!$H$329","v":59.662500000000001}]
["Labour - repair of faults"]
["Crew costs",{"$f":"'DNSP Inputs O & M'!$D$12","v":111.36223236834823},{"$f":"'DNSP Inputs O & M'!$D$334","v":2},{"$f":"'DNSP Inputs O & M'!$D$17","v":7.5},{"$f":"B366*C366*D366","v":1670.4334855252234},{"$f":"(E366+E367)/'DNSP Inputs O & M'!$D$329","v":255.84793569065295},{"$f":"F366*D346","v":1.3670720576103312},null,{"$f":"'DNSP Inputs O & M'!$D$12","v":111.36223236834823},{"$f":"'DNSP Inputs O & M'!$D$334","v":2},{"$f":"'DNSP Inputs O & M'!$D$17","v":7.5},{"$f":"I366*J366*K366","v":1670.4334855252234},{"$f":"(L366+L367)/'DNSP Inputs O & M'!$D$329","v":268.46668569065292},{"$f":"M366*D346","v":1.4344978137744469},null,{"$f":"'DNSP Inputs O & M'!$D$12","v":111.36223236834823},{"$f":"'DNSP Inputs O & M'!$D$334","v":2},{"$f":"'DNSP Inputs O & M'!$D$17","v":7.5},{"$f":"P366*Q366*R366","v":1670.4334855252234},{"$f":"(S366+S367)/'DNSP Inputs O & M'!$D$329","v":268.46668569065292},{"$f":"T366*D346","v":1.4344978137744469},null,null,null,{"$f":"'DNSP Inputs O & M'!$E$12","v":112.10021456669011},{"$f":"'DNSP Inputs O & M'!$E$334","v":2},{"$f":"'DNSP Inputs O & M'!$E$17","v":7.5},{"$f":"Y366*Z366*AA366","v":1681.5032185003517},{"$f":"(AB366+AB367)/'DNSP Inputs O & M'!$E$329","v":257.23165231254399},{"$f":"AC366*AA346","v":1.3744656694615731},null,{"$f":"'DNSP Inputs O & M'!$E$12","v":112.10021456669011},{"$f":"'DNSP Inputs O & M'!$E$334","v":2},{"$f":"'DNSP Inputs O & M'!$E$17","v":7.5},{"$f":"AF366*AG366*AH366","v":1681.5032185003517},{"$f":"(AI366+AI367)/'DNSP Inputs O & M'!$E$329","v":269.85040231254396},{"$f":"AJ366*AA346","v":1.4418914256256889},null,{"$f":"'DNSP Inputs O & M'!$E$12","v":112.10021456669011},{"$f":"'DNSP Inputs O & M'!$E$334","v":2},{"$f":"'DNSP Inputs O & M'!$E$17","v":7.5},{"$f":"AM366*AN366*AO366","v":1681.5032185003517},{"$f":"(AP366+AP367)/'DNSP Inputs O & M'!$E$329","v":269.85040231254396},{"$f":"AQ366*AA346","v":1.4418914256256889},null,null,null,{"$f":"'DNSP Inputs O & M'!$F$12","v":112.78304720629164},{"$f":"'DNSP Inputs O & M'!$F$334","v":2},{"$f":"'DNSP Inputs O & M'!$F$17","v":7.5},{"$f":"AV366*AW366*AX366","v":1691.7457080943745},{"$f":"(AY366+AY367)/'DNSP Inputs O & M'!$F$329","v":258.51196351179681},{"$f":"AZ366*AX346","v":1.3813067552058036},null,{"$f":"'DNSP Inputs O & M'!$F$12","v":112.78304720629164},{"$f":"'DNSP Inputs O & M'!$F$334","v":2},{"$f":"'DNSP Inputs O & M'!$F$17","v":7.5},{"$f":"BC366*BD366*BE366","v":1691.7457080943745},{"$f":"(BF366+BF367)/'DNSP Inputs O & M'!$F$329","v":271.13071351179684},{"$f":"BG366*AX346","v":1.4487325113699197},null,{"$f":"'DNSP Inputs O & M'!$F$12","v":112.78304720629164},{"$f":"'DNSP Inputs O & M'!$F$334","v":2},{"$f":"'DNSP Inputs O & M'!$F$17","v":7.5},{"$f":"BJ366*BK366*BL366","v":1691.7457080943745},{"$f":"(BM366+BM367)/'DNSP Inputs O & M'!$F$329","v":271.13071351179684},{"$f":"BN366*AX346","v":1.4487325113699197},null,null,null,{"$f":"'DNSP Inputs O & M'!$G$12","v":113.60949069043043},{"$f":"'DNSP Inputs O & M'!$G$334","v":2},{"$f":"'DNSP Inputs O & M'!$G$17","v":7.5},{"$f":"BS366*BT366*BU366","v":1704.1423603564565},{"$f":"(BV366+BV367)/'DNSP Inputs O & M'!$G$329","v":260.06154504455708},{"$f":"BW366*BU346","v":1.3895866328945057},null,{"$f":"'DNSP Inputs O & M'!$G$12","v":113.60949069043043},{"$f":"'DNSP Inputs O & M'!$G$334","v":2},{"$f":"'DNSP Inputs O & M'!$G$17","v":7.5},{"$f":"BZ366*CA366*CB366","v":1704.1423603564565},{"$f":"(CC366+CC367)/'DNSP Inputs O & M'!$G$329","v":272.68029504455706},{"$f":"CD366*BU346","v":1.4570123890586215},null,{"$f":"'DNSP Inputs O & M'!$G$12","v":113.60949069043043},{"$f":"'DNSP Inputs O & M'!$G$334","v":2},{"$f":"'DNSP Inputs O & M'!$G$17","v":7.5},{"$f":"CG366*CH366*CI366","v":1704.1423603564565},{"$f":"(CJ366+CJ367)/'DNSP Inputs O & M'!$G$329","v":272.68029504455706},{"$f":"CK366*BU346","v":1.4570123890586215},null,null,null,{"$f":"'DNSP Inputs O & M'!$H$12","v":114.68985653357629},{"$f":"'DNSP Inputs O & M'!$H$334","v":2},{"$f":"'DNSP Inputs O & M'!$H$17","v":7.5},{"$f":"CP366*CQ366*CR366","v":1720.3478480036442},{"$f":"(CS366+CS367)/'DNSP Inputs O & M'!$H$329","v":262.08723100045552},{"$f":"CT366*CR346","v":1.4004104789432414},null,{"$f":"'DNSP Inputs O & M'!$H$12","v":114.68985653357629},{"$f":"'DNSP Inputs O & M'!$H$334","v":2},{"$f":"'DNSP Inputs O & M'!$H$17","v":7.5},{"$f":"CW366*CX366*CY366","v":1720.3478480036442},{"$f":"(CZ366+CZ367)/'DNSP Inputs O & M'!$H$329","v":274.70598100045555},{"$f":"DA366*CR346","v":1.4678362351073575},null,{"$f":"'DNSP Inputs O & M'!$H$12","v":114.68985653357629},{"$f":"'DNSP Inputs O & M'!$H$334","v":2},{"$f":"'DNSP Inputs O & M'!$H$17","v":7.5},{"$f":"DD366*DE366*DF366","v":1720.3478480036442},{"$f":"(DG366+DG367)/'DNSP Inputs O & M'!$H$329","v":274.70598100045555},{"$f":"DH366*CR346","v":1.4678362351073575}]
["Elevated platform vehicle costs",{"$f":"'DNSP Inputs O & M'!$D$14","v":50.18},1,{"$f":"'DNSP Inputs O & M'!$D$17","v":7.5},{"$f":"B367*C367*D367","v":376.35},null,null,null,{"$f":"'DNSP Inputs O & M'!$D$15","v":63.64},1,{"$f":"'DNSP Inputs O & M'!$D$17","v":7.5},{"$f":"I367*J367*K367","v":477.3},null,null,null,{"$f":"'DNSP Inputs O & M'!$D$15","v":63.64},1,{"$f":"'DNSP Inputs O & M'!$D$17","v":7.5},{"$f":"P367*Q367*R367","v":477.3},null,null,null,null,null,{"$f":"'DNSP Inputs O & M'!$E$14","v":50.18},1,{"$f":"'DNSP Inputs O & M'!$E$17","v":7.5},{"$f":"Y367*Z367*AA367","v":376.35},null,null,null,{"$f":"'DNSP Inputs O & M'!$E$15","v":63.64},1,{"$f":"'DNSP Inputs O & M'!$E$17","v":7.5},{"$f":"AF367*AG367*AH367","v":477.3},null,null,null,{"$f":"'DNSP Inputs O & M'!$E$15","v":63.64},1,{"$f":"'DNSP Inputs O & M'!$E$17","v":7.5},{"$f":"AM367*AN367*AO367","v":477.3},null,null,null,null,null,{"$f":"'DNSP Inputs O & M'!$F$14","v":50.18},1,{"$f":"'DNSP Inputs O & M'!$F$17","v":7.5},{"$f":"AV367*AW367*AX367","v":376.35},null,null,null,{"$f":"'DNSP Inputs O & M'!$F$15","v":63.64},1,{"$f":"'DNSP Inputs O & M'!$F$17","v":7.5},{"$f":"BC367*BD367*BE367","v":477.3},null,null,null,{"$f":"'DNSP Inputs O & M'!$F$15","v":63.64},1,{"$f":"'DNSP Inputs O & M'!$F$17","v":7.5},{"$f":"BJ367*BK367*BL367","v":477.3},null,null,null,null,null,{"$f":"'DNSP Inputs O & M'!$G$14","v":50.18},1,{"$f":"'DNSP Inputs O & M'!$G$17","v":7.5},{"$f":"BS367*BT367*BU367","v":376.35},null,null,null,{"$f":"'DNSP Inputs O & M'!$G$15","v":63.64},1,{"$f":"'DNSP Inputs O & M'!$G$17","v":7.5},{"$f":"BZ367*CA367*CB367","v":477.3},null,null,null,{"$f":"'DNSP Inputs O & M'!$G$15","v":63.64},1,{"$f":"'DNSP Inputs O & M'!$G$17","v":7.5},{"$f":"CG367*CH367*CI367","v":477.3},null,null,null,null,null,{"$f":"'DNSP Inputs O & M'!$H$14","v":50.18},1,{"$f":"'DNSP Inputs O & M'!$H$17","v":7.5},{"$f":"CP367*CQ367*CR367","v":376.35},null,null,null,{"$f":"'DNSP Inputs O & M'!$H$15","v":63.64},1,{"$f":"'DNSP Inputs O & M'!$H$17","v":7.5},{"$f":"CW367*CX367*CY367","v":477.3},null,null,null,{"$f":"'DNSP Inputs O & M'!$H$15","v":63.64},1,{"$f":"'DNSP Inputs O & M'!$H$17","v":7.5},{"$f":"DD367*DE367*DF367","v":477.3}]
["Other Maintenance and Repair costs",null,null,null,null,null,{"$f":"'DNSP Inputs O & M'!$D$350","v":1.5501385041551246},null,null,null,null,null,null,{"$f":"'DNSP Inputs O & M'!$D$350","v":1.5501385041551246},null,null,null,null,null,null,{"$f":"'DNSP Inputs O & M'!$D$350","v":1.5501385041551246},null,null,null,null,null,null,null,null,{"$f":"'DNSP Inputs O & M'!$E$350","v":1.5501385041551246},null,null,null,null,null,null,{"$f":"'DNSP Inputs O & M'!$E$350","v":1.5501385041551246},null,null,null,null,null,null,{"$f":"'DNSP Inputs O & M'!$E$350","v":1.5501385041551246},null,null,null,null,null,null,null,null,{"$f":"'DNSP Inputs O & M'!$F$350","v":1.5501385041551246},null,null,null,null,null,null,{"$f":"'DNSP Inputs O & M'!$F$350","v":1.5501385041551246},null,null,null,null,null,null,{"$f":"'DNSP Inputs O & M'!$F$350","v":1.5501385041551246},null,null,null,null,null,null,null,null,{"$f":"'DNSP Inputs O & M'!$G$350","v":1.5501385041551246},null,null,null,null,null,null,{"$f":"'DNSP Inputs O & M'!$G$350","v":1.5501385041551246},null,null,null,null,null,null,{"$f":"'DNSP Inputs O & M'!$G$350","v":1.5501385041551246},null,null,null,null,null,null,null,null,{"$f":"'DNSP Inputs O & M'!$H$350","v":1.5501385041551246},null,null,null,null,null,null,{"$f":"'DNSP Inputs O & M'!$H$350","v":1.5501385041551246},null,null,null,null,null,null,{"$f":"'DNSP Inputs O & M'!$H$350","v":1.5501385041551246}]
[]
["Overheads",{"$f":"'DNSP Inputs O & M'!$D$18","v":0.25},null,null,null,null,{"$f":"B370*SUM(G357:G368)","v":2.0883646922778385},null,{"$f":"'DNSP Inputs O & M'!$D$18","v":0.25},null,null,null,null,{"$f":"I370*SUM(N357:N368)","v":2.3570170665215584},null,{"$f":"'DNSP Inputs O & M'!$D$18","v":0.25},null,null,null,null,{"$f":"P370*SUM(U357:U368)","v":2.6354703729498361},null,null,null,{"$f":"'DNSP Inputs O & M'!$E$18","v":0.25},null,null,null,null,{"$f":"Y370*SUM(AD357:AD368)","v":2.0948928727768066},null,{"$f":"'DNSP Inputs O & M'!$E$18","v":0.25},null,null,null,null,{"$f":"AF370*SUM(AK357:AK368)","v":2.3644958268325587},null,{"$f":"'DNSP Inputs O & M'!$E$18","v":0.25},null,null,null,null,{"$f":"AM370*SUM(AR357:AR368)","v":2.6443843223888059},null,null,null,{"$f":"'DNSP Inputs O & M'!$F$18","v":0.25},null,null,null,null,{"$f":"AV370*SUM(BA357:BA368)","v":2.1009332010285191},null,{"$f":"'DNSP Inputs O & M'!$F$18","v":0.25},null,null,null,null,{"$f":"BC370*SUM(BH357:BH368)","v":2.371415697874951},null,{"$f":"'DNSP Inputs O & M'!$F$18","v":0.25},null,null,null,null,{"$f":"BJ370*SUM(BO357:BO368)","v":2.6526321305857548},null,null,null,{"$f":"'DNSP Inputs O & M'!$G$18","v":0.25},null,null,null,null,{"$f":"BS370*SUM(BX357:BX368)","v":2.108243908859651},null,{"$f":"'DNSP Inputs O & M'!$G$18","v":0.25},null,null,null,null,{"$f":"BZ370*SUM(CE357:CE368)","v":2.3797909306954019},null,{"$f":"'DNSP Inputs O & M'!$G$18","v":0.25},null,null,null,null,{"$f":"CG370*SUM(CL357:CL368)","v":2.6626145874096876},null,null,null,{"$f":"'DNSP Inputs O & M'!$H$18","v":0.25},null,null,null,null,{"$f":"CP370*SUM(CU357:CU368)","v":2.1178008104283097},null,{"$f":"'DNSP Inputs O & M'!$H$18","v":0.25},null,null,null,null,{"$f":"CW370*SUM(DB357:DB368)","v":2.3907394294630326},null,{"$f":"'DNSP Inputs O & M'!$H$18","v":0.25},null,null,null,null,{"$f":"DD370*SUM(DI357:DI368)","v":2.6756641250855688}]
[]
[null,null,null,null,null,null,{"$f":"SUM(G357,G359,G363,G366,G368,G370)","v":10.441823461389193},null,null,null,null,null,null,{"$f":"SUM(N357,N359,N363,N366,N368,N370)","v":11.785085332607792},null,null,null,null,null,null,{"$f":"SUM(U357,U359,U363,U366,U368,U370)","v":13.177351864749181},null,null,null,null,null,null,null,null,{"$f":"SUM(AD357,AD359,AD363,AD366,AD368,AD370)","v":10.474464363884033},null,null,null,null,null,null,{"$f":"SUM(AK357,AK359,AK363,AK366,AK368,AK370)","v":11.822479134162794},null,null,null,null,null,null,{"$f":"SUM(AR357,AR359,AR363,AR366,AR368,AR370)","v":13.22192161194403},null,null,null,null,null,null,null,null,{"$f":"SUM(BA357,BA359,BA363,BA366,BA368,BA370)","v":10.504666005142596},null,null,null,null,null,null,{"$f":"SUM(BH357,BH359,BH363,BH366,BH368,BH370)","v":11.857078489374755},null,null,null,null,null,null,{"$f":"SUM(BO357,BO359,BO363,BO366,BO368,BO370)","v":13.263160652928773},null,null,null,null,null,null,null,null,{"$f":"SUM(BX357,BX359,BX363,BX366,BX368,BX370)","v":10.541219544298254},null,null,null,null,null,null,{"$f":"SUM(CE357,CE359,CE363,CE366,CE368,CE370)","v":11.898954653477009},null,null,null,null,null,null,{"$f":"SUM(CL357,CL359,CL363,CL366,CL368,CL370)","v":13.313072937048439},null,null,null,null,null,null,null,null,{"$f":"SUM(CU357,CU359,CU363,CU366,CU368,CU370)","v":10.589004052141549},null,null,null,null,null,null,{"$f":"SUM(DB357,DB359,DB363,DB366,DB368,DB370)","v":11.953697147315163},null,null,null,null,null,null,{"$f":"SUM(DI357,DI359,DI363,DI366,DI368,DI370)","v":13.378320625427843}]
[]
[]
[]
["NEW"]
["Category P LED 70 Watt (L1) - Cost build-up"]
[]
["Additional assumptions"]
[]
[]
["Overheads are applied to material and labour components"]
["All costs and charges are exclusive of GST"]
[]
[null,"Urban",null,null,null,null,null,null,"Rural",null,null,null,null,null,null,"Remote",null,null,null,null,null,null,null,null,"Urban",null,null,null,null,null,null,"Rural",null,null,null,null,null,null,"Remote",null,null,null,null,null,null,null,null,"Urban",null,null,null,null,null,null,"Rural",null,null,null,null,null,null,"Remote",null,null,null,null,null,null,null,null,"Urban",null,null,null,null,null,null,"Rural",null,null,null,null,null,null,"Remote",null,null,null,null,null,null,null,null,"Urban",null,null,null,null,null,null,"Rural",null,null,null,null,null,null,"Remote"]
[]
[null,"Unit rate","Number","Hours","Cost","Annualised","Annualised",null,"Unit rate","Number","Hours","Cost","Annualised","Annualised",null,"Unit rate","Number","Hours","Cost","Annualised","Annualised",null,null,null,"Unit rate","Number","Hours","Cost","Annualised","Annualised",null,"Unit rate","Number","Hours","Cost","Annualised","Annualised",null,"Unit rate","Number","Hours","Cost","Annualised","Annualised",null,null,null,"Unit rate","Number","Hours","Cost","Annualised","Annualised",null,"Unit rate","Number","Hours","Cost","Annualised","Annualised",null,"Unit rate","Number","Hours","Cost","Annualised","Annualised",null,null,null,"Unit rate","Number","Hours","Cost","Annualised","Annualised",null,"Unit rate","Number","Hours","Cost","Annualised","Annualised",null,"Unit rate","Number","Hours","Cost","Annualised","Annualised",null,null,null,"Unit rate","Number","Hours","Cost","Annualised","Annualised",null,"Unit rate","Number","Hours","Cost","Annualised","Annualised",null,"Unit rate","Number","Hours","Cost","Annualised","Annualised"]
[null,null,null,null,null," cost","unit cost",null,null,null,null,null," cost","unit cost",null,null,null,null,null," cost","unit cost",null,null,null,null,null,null,null," cost","unit cost",null,null,null,null,null," cost","unit cost",null,null,null,null,null," cost","unit cost",null,null,null,null,null,null,null," cost","unit cost",null,null,null,null,null," cost","unit cost",null,null,null,null,null," cost","unit cost",null,null,null,null,null,null,null," cost","unit cost",null,null,null,null,null," cost","unit cost",null,null,null,null,null," cost","unit cost",null,null,null,null,null,null,null," cost","unit cost",null,null,null,null,null," cost","unit cost",null,null,null,null,null," cost","unit cost"]
["LED 70W (L1)"]
["Patrols & repairs"]
[]
[]
["Materials - repair of faults"]
["PE cell",{"$f":"'DNSP Inputs O & M'!$D$377","v":15.120000000000001},{"$f":"'DNSP Inputs O & M'!$D$384*'DNSP Inputs O & M'!$D$387","v":17.100000000000001},null,{"$f":"B394*C394","v":258.55200000000002},{"$f":"(E394+E395+E396)/'DNSP Inputs O & M'!$D$381","v":0.1008700110020908},{"$f":"F394*'DNSP Inputs O & M'!$D$375","v":0.30261003300627237},null,{"$f":"'DNSP Inputs O & M'!$D$377*(1+'DNSP Inputs O & M'!$D$11)","v":15.876000000000001},{"$f":"'DNSP Inputs O & M'!$D$385*'DNSP Inputs O & M'!$D$387","v":13.5},null,{"$f":"I394*J394","v":214.32600000000002},{"$f":"(L394+L395+L396)/'DNSP Inputs O & M'!$D$382","v":0.12542389525917869},{"$f":"M394*'DNSP Inputs O & M'!$D$375","v":0.37627168577753606},null,{"$f":"'DNSP Inputs O & M'!$D$377*(1+'DNSP Inputs O & M'!$D$11)","v":15.876000000000001},{"$f":"'DNSP Inputs O & M'!$D$386*'DNSP Inputs O & M'!$D$387","v":9.9},null,{"$f":"P394*Q394","v":157.17240000000001},{"$f":"(S394+S395+S396)/'DNSP Inputs O & M'!$D$383","v":0.18395504638012874},{"$f":"T394*'DNSP Inputs O & M'!$D$375","v":0.55186513914038626},null,null,null,{"$f":"'DNSP Inputs O & M'!$E$377","v":15.120000000000001},{"$f":"'DNSP Inputs O & M'!$E$384*'DNSP Inputs O & M'!$E$387","v":17.100000000000001},null,{"$f":"Y394*Z394","v":258.55200000000002},{"$f":"(AB394+AB395+AB396)/'DNSP Inputs O & M'!$E$381","v":0.1008700110020908},{"$f":"AC394*'DNSP Inputs O & M'!$E$375","v":0.30261003300627237},null,{"$f":"'DNSP Inputs O & M'!$E$377*(1+'DNSP Inputs O & M'!$E$11)","v":15.876000000000001},{"$f":"'DNSP Inputs O & M'!$E$385*'DNSP Inputs O & M'!$E$387","v":13.5},null,{"$f":"AF394*AG394","v":214.32600000000002},{"$f":"(AI394+AI395+AI396)/'DNSP Inputs O & M'!$E$382","v":0.12542389525917869},{"$f":"AJ394*'DNSP Inputs O & M'!$E$375","v":0.37627168577753606},null,{"$f":"'DNSP Inputs O & M'!$E$377*(1+'DNSP Inputs O & M'!$E$11)","v":15.876000000000001},{"$f":"'DNSP Inputs O & M'!$E$386*'DNSP Inputs O & M'!$E$387","v":9.9},null,{"$f":"AM394*AN394","v":157.17240000000001},{"$f":"(AP394+AP395+AP396)/'DNSP Inputs O & M'!$E$383","v":0.18395504638012874},{"$f":"AQ394*'DNSP Inputs O & M'!$E$375","v":0.55186513914038626},null,null,null,{"$f":"'DNSP Inputs O & M'!$F$377","v":15.120000000000001},{"$f":"'DNSP Inputs O & M'!$F$384*'DNSP Inputs O & M'!$F$387","v":17.100000000000001},null,{"$f":"AV394*AW394","v":258.55200000000002},{"$f":"(AY394+AY395+AY396)/'DNSP Inputs O & M'!$F$381","v":0.1008700110020908},{"$f":"AZ394*'DNSP Inputs O & M'!$F$375","v":0.30261003300627237},null,{"$f":"'DNSP Inputs O & M'!$F$377*(1+'DNSP Inputs O & M'!$F$11)","v":15.876000000000001},{"$f":"'DNSP Inputs O & M'!$F$385*'DNSP Inputs O & M'!$F$387","v":13.5},null,{"$f":"BC394*BD394","v":214.32600000000002},{"$f":"(BF394+BF395+BF396)/'DNSP Inputs O & M'!$F$382","v":0.12542389525917869},{"$f":"BG394*'DNSP Inputs O & M'!$F$375","v":0.37627168577753606},null,{"$f":"'DNSP Inputs O & M'!$F$377*(1+'DNSP Inputs O & M'!$F$11)","v":15.876000000000001},{"$f":"'DNSP Inputs O & M'!$F$386*'DNSP Inputs O & M'!$F$387","v":9.9},null,{"$f":"BJ394*BK394","v":157.17240000000001},{"$f":"(BM394+BM395+BM396)/'DNSP Inputs O & M'!$F$383","v":0.18395504638012874},{"$f":"BN394*'DNSP Inputs O & M'!$F$375","v":0.55186513914038626},null,null,null,{"$f":"'DNSP Inputs O & M'!$G$377","v":15.120000000000001},{"$f":"'DNSP Inputs O & M'!$G$384*'DNSP Inputs O & M'!$G$387","v":17.100000000000001},null,{"$f":"BS394*BT394","v":258.55200000000002},{"$f":"(BV394+BV395+BV396)/'DNSP Inputs O & M'!$G$381","v":0.1008700110020908},{"$f":"BW394*'DNSP Inputs O & M'!$G$375","v":0.30261003300627237},null,{"$f":"'DNSP Inputs O & M'!$G$377*(1+'DNSP Inputs O & M'!$G$11)","v":15.876000000000001},{"$f":"'DNSP Inputs O & M'!$G$385*'DNSP Inputs O & M'!$G$387","v":13.5},null,{"$f":"BZ394*CA394","v":214.32600000000002},{"$f":"(CC394+CC395+CC396)/'DNSP Inputs O & M'!$G$382","v":0.12542389525917869},{"$f":"CD394*'DNSP Inputs O & M'!$G$375","v":0.37627168577753606},null,{"$f":"'DNSP Inputs O & M'!$G$377*(1+'DNSP Inputs O & M'!$G$11)","v":15.876000000000001},{"$f":"'DNSP Inputs O & M'!$G$386*'DNSP Inputs O & M'!$G$387","v":9.9},null,{"$f":"CG394*CH394","v":157.17240000000001},{"$f":"(CJ394+CJ395+CJ396)/'DNSP Inputs O & M'!$G$383","v":0.18395504638012874},{"$f":"CK394*'DNSP Inputs O & M'!$G$375","v":0.55186513914038626},null,null,null,{"$f":"'DNSP Inputs O & M'!$H$377","v":15.120000000000001},{"$f":"'DNSP Inputs O & M'!$H$384*'DNSP Inputs O & M'!$H$387","v":17.100000000000001},null,{"$f":"CP394*CQ394","v":258.55200000000002},{"$f":"(CS394+CS395+CS396)/'DNSP Inputs O & M'!$H$381","v":0.1008700110020908},{"$f":"CT394*'DNSP Inputs O & M'!$H$375","v":0.30261003300627237},null,{"$f":"'DNSP Inputs O & M'!$H$377*(1+'DNSP Inputs O & M'!$H$11)","v":15.876000000000001},{"$f":"'DNSP Inputs O & M'!$H$385*'DNSP Inputs O & M'!$H$387","v":13.5},null,{"$f":"CW394*CX394","v":214.32600000000002},{"$f":"(CZ394+CZ395+CZ396)/'DNSP Inputs O & M'!$H$382","v":0.12542389525917869},{"$f":"DA394*'DNSP Inputs O & M'!$H$375","v":0.37627168577753606},null,{"$f":"'DNSP Inputs O & M'!$H$377*(1+'DNSP Inputs O & M'!$H$11)","v":15.876000000000001},{"$f":"'DNSP Inputs O & M'!$H$386*'DNSP Inputs O & M'!$H$387","v":9.9},null,{"$f":"DD394*DE394","v":157.17240000000001},{"$f":"(DG394+DG395+DG396)/'DNSP Inputs O & M'!$H$383","v":0.18395504638012874},{"$f":"DH394*'DNSP Inputs O & M'!$H$375","v":0.55186513914038626}]
["Luminaire",{"$f":"'DNSP Inputs O & M'!$D$378","v":402},{"$f":"'DNSP Inputs O & M'!$D$384*'DNSP Inputs O & M'!$D$388","v":0},null,{"$f":"B395*C395","v":0},null,null,null,{"$f":"'DNSP Inputs O & M'!$D$378*(1+'DNSP Inputs O & M'!$D$11)","v":422.1},{"$f":"'DNSP Inputs O & M'!$D$385*'DNSP Inputs O & M'!$D$388","v":0},null,{"$f":"I395*J395","v":0},null,null,null,{"$f":"'DNSP Inputs O & M'!$D$378*(1+'DNSP Inputs O & M'!$D$11)","v":422.1},{"$f":"'DNSP Inputs O & M'!$D$386*'DNSP Inputs O & M'!$D$388","v":0},null,{"$f":"P395*Q395","v":0},null,null,null,null,null,{"$f":"'DNSP Inputs O & M'!$E$378","v":402},{"$f":"'DNSP Inputs O & M'!$E$384*'DNSP Inputs O & M'!$E$388","v":0},null,{"$f":"Y395*Z395","v":0},null,null,null,{"$f":"'DNSP Inputs O & M'!$E$378*(1+'DNSP Inputs O & M'!$E$11)","v":422.1},{"$f":"'DNSP Inputs O & M'!$E$385*'DNSP Inputs O & M'!$E$388","v":0},null,{"$f":"AF395*AG395","v":0},null,null,null,{"$f":"'DNSP Inputs O & M'!$E$378*(1+'DNSP Inputs O & M'!$E$11)","v":422.1},{"$f":"'DNSP Inputs O & M'!$E$386*'DNSP Inputs O & M'!$E$388","v":0},null,{"$f":"AM395*AN395","v":0},null,null,null,null,null,{"$f":"'DNSP Inputs O & M'!$F$378","v":402},{"$f":"'DNSP Inputs O & M'!$F$384*'DNSP Inputs O & M'!$F$388","v":0},null,{"$f":"AV395*AW395","v":0},null,null,null,{"$f":"'DNSP Inputs O & M'!$F$378*(1+'DNSP Inputs O & M'!$F$11)","v":422.1},{"$f":"'DNSP Inputs O & M'!$F$385*'DNSP Inputs O & M'!$F$388","v":0},null,{"$f":"BC395*BD395","v":0},null,null,null,{"$f":"'DNSP Inputs O & M'!$F$378*(1+'DNSP Inputs O & M'!$F$11)","v":422.1},{"$f":"'DNSP Inputs O & M'!$F$386*'DNSP Inputs O & M'!$F$388","v":0},null,{"$f":"BJ395*BK395","v":0},null,null,null,null,null,{"$f":"'DNSP Inputs O & M'!$G$378","v":402},{"$f":"'DNSP Inputs O & M'!$G$384*'DNSP Inputs O & M'!$G$388","v":0},null,{"$f":"BS395*BT395","v":0},null,null,null,{"$f":"'DNSP Inputs O & M'!$G$378*(1+'DNSP Inputs O & M'!$G$11)","v":422.1},{"$f":"'DNSP Inputs O & M'!$G$385*'DNSP Inputs O & M'!$G$388","v":0},null,{"$f":"BZ395*CA395","v":0},null,null,null,{"$f":"'DNSP Inputs O & M'!$G$378*(1+'DNSP Inputs O & M'!$G$11)","v":422.1},{"$f":"'DNSP Inputs O & M'!$G$386*'DNSP Inputs O & M'!$G$388","v":0},null,{"$f":"CG395*CH395","v":0},null,null,null,null,null,{"$f":"'DNSP Inputs O & M'!$H$378","v":402},{"$f":"'DNSP Inputs O & M'!$H$384*'DNSP Inputs O & M'!$H$388","v":0},null,{"$f":"CP395*CQ395","v":0},null,null,null,{"$f":"'DNSP Inputs O & M'!$H$378*(1+'DNSP Inputs O & M'!$H$11)","v":422.1},{"$f":"'DNSP Inputs O & M'!$H$385*'DNSP Inputs O & M'!$H$388","v":0},null,{"$f":"CW395*CX395","v":0},null,null,null,{"$f":"'DNSP Inputs O & M'!$H$378*(1+'DNSP Inputs O & M'!$H$11)","v":422.1},{"$f":"'DNSP Inputs O & M'!$H$386*'DNSP Inputs O & M'!$H$388","v":0},null,{"$f":"DD395*DE395","v":0}]
["Miscellaneous",{"$f":"'DNSP Inputs O & M'!$D$379","v":23.188438424353883},{"$f":"'DNSP Inputs O & M'!$D$384*'DNSP Inputs O & M'!$D$389","v":1.9000000000000001},null,{"$f":"B396*C396","v":44.058033006272382},null,null,null,{"$f":"'DNSP Inputs O & M'!$D$379*(1+'DNSP Inputs O & M'!$D$11)","v":24.347860345571579},{"$f":"'DNSP Inputs O & M'!$D$385*'DNSP Inputs O & M'!$D$389","v":1.5},null,{"$f":"I396*J396","v":36.521790518357371},null,null,null,{"$f":"'DNSP Inputs O & M'!$D$379*(1+'DNSP Inputs O & M'!$D$11)","v":24.347860345571579},{"$f":"'DNSP Inputs O & M'!$D$386*'DNSP Inputs O & M'!$D$389","v":1.1000000000000001},null,{"$f":"P396*Q396","v":26.782646380128739},null,null,null,null,null,{"$f":"'DNSP Inputs O & M'!$E$379","v":23.188438424353883},{"$f":"'DNSP Inputs O & M'!$E$384*'DNSP Inputs O & M'!$E$389","v":1.9000000000000001},null,{"$f":"Y396*Z396","v":44.058033006272382},null,null,null,{"$f":"'DNSP Inputs O & M'!$E$379*(1+'DNSP Inputs O & M'!$E$11)","v":24.347860345571579},{"$f":"'DNSP Inputs O & M'!$E$385*'DNSP Inputs O & M'!$E$389","v":1.5},null,{"$f":"AF396*AG396","v":36.521790518357371},null,null,null,{"$f":"'DNSP Inputs O & M'!$E$379*(1+'DNSP Inputs O & M'!$E$11)","v":24.347860345571579},{"$f":"'DNSP Inputs O & M'!$E$386*'DNSP Inputs O & M'!$E$389","v":1.1000000000000001},null,{"$f":"AM396*AN396","v":26.782646380128739},null,null,null,null,null,{"$f":"'DNSP Inputs O & M'!$F$379","v":23.188438424353883},{"$f":"'DNSP Inputs O & M'!$F$384*'DNSP Inputs O & M'!$F$389","v":1.9000000000000001},null,{"$f":"AV396*AW396","v":44.058033006272382},null,null,null,{"$f":"'DNSP Inputs O & M'!$F$379*(1+'DNSP Inputs O & M'!$F$11)","v":24.347860345571579},{"$f":"'DNSP Inputs O & M'!$F$385*'DNSP Inputs O & M'!$F$389","v":1.5},null,{"$f":"BC396*BD396","v":36.521790518357371},null,null,null,{"$f":"'DNSP Inputs O & M'!$F$379*(1+'DNSP Inputs O & M'!$F$11)","v":24.347860345571579},{"$f":"'DNSP Inputs O & M'!$F$386*'DNSP Inputs O & M'!$F$389","v":1.1000000000000001},null,{"$f":"BJ396*BK396","v":26.782646380128739},null,null,null,null,null,{"$f":"'DNSP Inputs O & M'!$G$379","v":23.188438424353883},{"$f":"'DNSP Inputs O & M'!$G$384*'DNSP Inputs O & M'!$G$389","v":1.9000000000000001},null,{"$f":"BS396*BT396","v":44.058033006272382},null,null,null,{"$f":"'DNSP Inputs O & M'!$G$379*(1+'DNSP Inputs O & M'!$G$11)","v":24.347860345571579},{"$f":"'DNSP Inputs O & M'!$G$385*'DNSP Inputs O & M'!$G$389","v":1.5},null,{"$f":"BZ396*CA396","v":36.521790518357371},null,null,null,{"$f":"'DNSP Inputs O & M'!$G$379*(1+'DNSP Inputs O & M'!$G$11)","v":24.347860345571579},{"$f":"'DNSP Inputs O & M'!$G$386*'DNSP Inputs O & M'!$G$389","v":1.1000000000000001},null,{"$f":"CG396*CH396","v":26.782646380128739},null,null,null,null,null,{"$f":"'DNSP Inputs O & M'!$H$379","v":23.188438424353883},{"$f":"'DNSP Inputs O & M'!$H$384*'DNSP Inputs O & M'!$H$389","v":1.9000000000000001},null,{"$f":"CP396*CQ396","v":44.058033006272382},null,null,null,{"$f":"'DNSP Inputs O & M'!$H$379*(1+'DNSP Inputs O & M'!$H$11)","v":24.347860345571579},{"$f":"'DNSP Inputs O & M'!$H$385*'DNSP Inputs O & M'!$H$389","v":1.5},null,{"$f":"CW396*CX396","v":36.521790518357371},null,null,null,{"$f":"'DNSP Inputs O & M'!$H$379*(1+'DNSP Inputs O & M'!$H$11)","v":24.347860345571579},{"$f":"'DNSP Inputs O & M'!$H$386*'DNSP Inputs O & M'!$H$389","v":1.1000000000000001},null,{"$f":"DD396*DE396","v":26.782646380128739}]
["Labour - Patrol"]
["Crew costs",{"$f":"'DNSP Inputs O & M'!$D$12","v":111.36223236834823},{"$f":"'DNSP Inputs O & M'!$D$380","v":2},{"$f":"'DNSP Inputs O & M'!$D$17","v":7.5},{"$f":"B398*C398*D398","v":1670.4334855252234},{"$f":"E398/'DNSP Inputs O & M'!$D$381","v":0.55681116184174118},{"$f":"(F398+F399)*'DNSP Inputs O & M'!$D$375","v":1.9282084855252237},null,{"$f":"'DNSP Inputs O & M'!$D$12","v":111.36223236834823},{"$f":"'DNSP Inputs O & M'!$D$380","v":2},{"$f":"'DNSP Inputs O & M'!$D$17","v":7.5},{"$f":"I398*J398*K398","v":1670.4334855252234},{"$f":"L398/'DNSP Inputs O & M'!$D$382","v":0.83521674276261171},{"$f":"(M398+M399)*'DNSP Inputs O & M'!$D$375","v":2.8923127282878349},null,{"$f":"'DNSP Inputs O & M'!$D$12","v":111.36223236834823},{"$f":"'DNSP Inputs O & M'!$D$380","v":2},{"$f":"'DNSP Inputs O & M'!$D$17","v":7.5},{"$f":"P398*Q398*R398","v":1670.4334855252234},{"$f":"S398/'DNSP Inputs O & M'!$D$383","v":1.6704334855252234},{"$f":"(T398+T399)*'DNSP Inputs O & M'!$D$375","v":5.7846254565756698},null,null,null,{"$f":"'DNSP Inputs O & M'!$E$12","v":112.10021456669011},{"$f":"'DNSP Inputs O & M'!$E$380","v":2},{"$f":"'DNSP Inputs O & M'!$E$17","v":7.5},{"$f":"Y398*Z398*AA398","v":1681.5032185003517},{"$f":"AB398/'DNSP Inputs O & M'!$E$381","v":0.56050107283345063},{"$f":"(AC398+AC399)*'DNSP Inputs O & M'!$E$375","v":1.9392782185003519},null,{"$f":"'DNSP Inputs O & M'!$E$12","v":112.10021456669011},{"$f":"'DNSP Inputs O & M'!$E$380","v":2},{"$f":"'DNSP Inputs O & M'!$E$17","v":7.5},{"$f":"AF398*AG398*AH398","v":1681.5032185003517},{"$f":"AI398/'DNSP Inputs O & M'!$E$382","v":0.84075160925017589},{"$f":"(AJ398+AJ399)*'DNSP Inputs O & M'!$E$375","v":2.9089173277505278},null,{"$f":"'DNSP Inputs O & M'!$E$12","v":112.10021456669011},{"$f":"'DNSP Inputs O & M'!$E$380","v":2},{"$f":"'DNSP Inputs O & M'!$E$17","v":7.5},{"$f":"AM398*AN398*AO398","v":1681.5032185003517},{"$f":"AP398/'DNSP Inputs O & M'!$E$383","v":1.6815032185003518},{"$f":"(AQ398+AQ399)*'DNSP Inputs O & M'!$E$375","v":5.8178346555010556},null,null,null,{"$f":"'DNSP Inputs O & M'!$F$12","v":112.78304720629164},{"$f":"'DNSP Inputs O & M'!$F$380","v":2},{"$f":"'DNSP Inputs O & M'!$F$17","v":7.5},{"$f":"AV398*AW398*AX398","v":1691.7457080943745},{"$f":"AY398/'DNSP Inputs O & M'!$F$381","v":0.56391523603145821},{"$f":"(AZ398+AZ399)*'DNSP Inputs O & M'!$F$375","v":1.9495207080943748},null,{"$f":"'DNSP Inputs O & M'!$F$12","v":112.78304720629164},{"$f":"'DNSP Inputs O & M'!$F$380","v":2},{"$f":"'DNSP Inputs O & M'!$F$17","v":7.5},{"$f":"BC398*BD398*BE398","v":1691.7457080943745},{"$f":"BF398/'DNSP Inputs O & M'!$F$382","v":0.84587285404718726},{"$f":"(BG398+BG399)*'DNSP Inputs O & M'!$F$375","v":2.9242810621415618},null,{"$f":"'DNSP Inputs O & M'!$F$12","v":112.78304720629164},{"$f":"'DNSP Inputs O & M'!$F$380","v":2},{"$f":"'DNSP Inputs O & M'!$F$17","v":7.5},{"$f":"BJ398*BK398*BL398","v":1691.7457080943745},{"$f":"BM398/'DNSP Inputs O & M'!$F$383","v":1.6917457080943745},{"$f":"(BN398+BN399)*'DNSP Inputs O & M'!$F$375","v":5.8485621242831236},null,null,null,{"$f":"'DNSP Inputs O & M'!$G$12","v":113.60949069043043},{"$f":"'DNSP Inputs O & M'!$G$380","v":2},{"$f":"'DNSP Inputs O & M'!$G$17","v":7.5},{"$f":"BS398*BT398*BU398","v":1704.1423603564565},{"$f":"BV398/'DNSP Inputs O & M'!$G$381","v":0.56804745345215213},{"$f":"(BW398+BW399)*'DNSP Inputs O & M'!$G$375","v":1.9619173603564564},null,{"$f":"'DNSP Inputs O & M'!$G$12","v":113.60949069043043},{"$f":"'DNSP Inputs O & M'!$G$380","v":2},{"$f":"'DNSP Inputs O & M'!$G$17","v":7.5},{"$f":"BZ398*CA398*CB398","v":1704.1423603564565},{"$f":"CC398/'DNSP Inputs O & M'!$G$382","v":0.85207118017822825},{"$f":"(CD398+CD399)*'DNSP Inputs O & M'!$G$375","v":2.9428760405346845},null,{"$f":"'DNSP Inputs O & M'!$G$12","v":113.60949069043043},{"$f":"'DNSP Inputs O & M'!$G$380","v":2},{"$f":"'DNSP Inputs O & M'!$G$17","v":7.5},{"$f":"CG398*CH398*CI398","v":1704.1423603564565},{"$f":"CJ398/'DNSP Inputs O & M'!$G$383","v":1.7041423603564565},{"$f":"(CK398+CK399)*'DNSP Inputs O & M'!$G$375","v":5.8857520810693691},null,null,null,{"$f":"'DNSP Inputs O & M'!$H$12","v":114.68985653357629},{"$f":"'DNSP Inputs O & M'!$H$380","v":2},{"$f":"'DNSP Inputs O & M'!$H$17","v":7.5},{"$f":"CP398*CQ398*CR398","v":1720.3478480036442},{"$f":"CS398/'DNSP Inputs O & M'!$H$381","v":0.57344928266788142},{"$f":"(CT398+CT399)*'DNSP Inputs O & M'!$H$375","v":1.9781228480036444},null,{"$f":"'DNSP Inputs O & M'!$H$12","v":114.68985653357629},{"$f":"'DNSP Inputs O & M'!$H$380","v":2},{"$f":"'DNSP Inputs O & M'!$H$17","v":7.5},{"$f":"CW398*CX398*CY398","v":1720.3478480036442},{"$f":"CZ398/'DNSP Inputs O & M'!$H$382","v":0.86017392400182213},{"$f":"(DA398+DA399)*'DNSP Inputs O & M'!$H$375","v":2.9671842720054662},null,{"$f":"'DNSP Inputs O & M'!$H$12","v":114.68985653357629},{"$f":"'DNSP Inputs O & M'!$H$380","v":2},{"$f":"'DNSP Inputs O & M'!$H$17","v":7.5},{"$f":"DD398*DE398*DF398","v":1720.3478480036442},{"$f":"DG398/'DNSP Inputs O & M'!$H$383","v":1.7203478480036443},{"$f":"(DH398+DH399)*'DNSP Inputs O & M'!$H$375","v":5.9343685440109324}]
["Vehicle costs",{"$f":"'DNSP Inputs O & M'!$D$16","v":34.369999999999997},1,{"$f":"'DNSP Inputs O & M'!$D$17","v":7.5},{"$f":"B399*C399*D399","v":257.77499999999998},{"$f":"E399/'DNSP Inputs O & M'!$D$381","v":8.5924999999999987E-2},null,null,{"$f":"'DNSP Inputs O & M'!$D$16","v":34.369999999999997},1,{"$f":"'DNSP Inputs O & M'!$D$17","v":7.5},{"$f":"I399*J399*K399","v":257.77499999999998},{"$f":"L399/'DNSP Inputs O & M'!$D$382","v":0.12888749999999999},null,null,{"$f":"'DNSP Inputs O & M'!$D$16","v":34.369999999999997},1,{"$f":"'DNSP Inputs O & M'!$D$17","v":7.5},{"$f":"P399*Q399*R399","v":257.77499999999998},{"$f":"S399/'DNSP Inputs O & M'!$D$383","v":0.25777499999999998},null,null,null,null,{"$f":"'DNSP Inputs O & M'!$E$16","v":34.369999999999997},1,{"$f":"'DNSP Inputs O & M'!$E$17","v":7.5},{"$f":"Y399*Z399*AA399","v":257.77499999999998},{"$f":"AB399/'DNSP Inputs O & M'!$E$381","v":8.5924999999999987E-2},null,null,{"$f":"'DNSP Inputs O & M'!$E$16","v":34.369999999999997},1,{"$f":"'DNSP Inputs O & M'!$E$17","v":7.5},{"$f":"AF399*AG399*AH399","v":257.77499999999998},{"$f":"AI399/'DNSP Inputs O & M'!$E$382","v":0.12888749999999999},null,null,{"$f":"'DNSP Inputs O & M'!$E$16","v":34.369999999999997},1,{"$f":"'DNSP Inputs O & M'!$E$17","v":7.5},{"$f":"AM399*AN399*AO399","v":257.77499999999998},{"$f":"AP399/'DNSP Inputs O & M'!$E$383","v":0.25777499999999998},null,null,null,null,{"$f":"'DNSP Inputs O & M'!$F$16","v":34.369999999999997},1,{"$f":"'DNSP Inputs O & M'!$F$17","v":7.5},{"$f":"AV399*AW399*AX399","v":257.77499999999998},{"$f":"AY399/'DNSP Inputs O & M'!$F$381","v":8.5924999999999987E-2},null,null,{"$f":"'DNSP Inputs O & M'!$F$16","v":34.369999999999997},1,{"$f":"'DNSP Inputs O & M'!$F$17","v":7.5},{"$f":"BC399*BD399*BE399","v":257.77499999999998},{"$f":"BF399/'DNSP Inputs O & M'!$F$382","v":0.12888749999999999},null,null,{"$f":"'DNSP Inputs O & M'!$F$16","v":34.369999999999997},1,{"$f":"'DNSP Inputs O & M'!$F$17","v":7.5},{"$f":"BJ399*BK399*BL399","v":257.77499999999998},{"$f":"BM399/'DNSP Inputs O & M'!$F$383","v":0.25777499999999998},null,null,null,null,{"$f":"'DNSP Inputs O & M'!$G$16","v":34.369999999999997},1,{"$f":"'DNSP Inputs O & M'!$G$17","v":7.5},{"$f":"BS399*BT399*BU399","v":257.77499999999998},{"$f":"BV399/'DNSP Inputs O & M'!$G$381","v":8.5924999999999987E-2},null,null,{"$f":"'DNSP Inputs O & M'!$G$16","v":34.369999999999997},1,{"$f":"'DNSP Inputs O & M'!$G$17","v":7.5},{"$f":"BZ399*CA399*CB399","v":257.77499999999998},{"$f":"CC399/'DNSP Inputs O & M'!$G$382","v":0.12888749999999999},null,null,{"$f":"'DNSP Inputs O & M'!$G$16","v":34.369999999999997},1,{"$f":"'DNSP Inputs O & M'!$G$17","v":7.5},{"$f":"CG399*CH399*CI399","v":257.77499999999998},{"$f":"CJ399/'DNSP Inputs O & M'!$G$383","v":0.25777499999999998},null,null,null,null,{"$f":"'DNSP Inputs O & M'!$H$16","v":34.369999999999997},1,{"$f":"'DNSP Inputs O & M'!$H$17","v":7.5},{"$f":"CP399*CQ399*CR399","v":257.77499999999998},{"$f":"CS399/'DNSP Inputs O & M'!$H$381","v":8.5924999999999987E-2},null,null,{"$f":"'DNSP Inputs O & M'!$H$16","v":34.369999999999997},1,{"$f":"'DNSP Inputs O & M'!$H$17","v":7.5},{"$f":"CW399*CX399*CY399","v":257.77499999999998},{"$f":"CZ399/'DNSP Inputs O & M'!$H$382","v":0.12888749999999999},null,null,{"$f":"'DNSP Inputs O & M'!$H$16","v":34.369999999999997},1,{"$f":"'DNSP Inputs O & M'!$H$17","v":7.5},{"$f":"DD399*DE399*DF399","v":257.77499999999998},{"$f":"DG399/'DNSP Inputs O & M'!$H$383","v":0.25777499999999998}]
["Labour - repair of faults"]
["Crew costs",{"$f":"'DNSP Inputs O & M'!$D$12","v":111.36223236834823},{"$f":"'DNSP Inputs O & M'!$D$380","v":2},{"$f":"'DNSP Inputs O & M'!$D$17","v":7.5},{"$f":"B401*C401*D401","v":1670.4334855252234},{"$f":"(E401+E402)/'DNSP Inputs O & M'!$D$384","v":107.72544660659071},{"$f":"F401/'DNSP Inputs O & M'!$D$376","v":10.77254466065907},null,{"$f":"'DNSP Inputs O & M'!$D$12","v":111.36223236834823},{"$f":"'DNSP Inputs O & M'!$D$380","v":2},{"$f":"'DNSP Inputs O & M'!$D$17","v":7.5},{"$f":"I401*J401*K401","v":1670.4334855252234},{"$f":"(L401+L402)/'DNSP Inputs O & M'!$D$385","v":143.18223236834822},{"$f":"M401/'DNSP Inputs O & M'!$D$376","v":14.318223236834822},null,{"$f":"'DNSP Inputs O & M'!$D$12","v":111.36223236834823},{"$f":"'DNSP Inputs O & M'!$D$380","v":2},{"$f":"'DNSP Inputs O & M'!$D$17","v":7.5},{"$f":"P401*Q401*R401","v":1670.4334855252234},{"$f":"(S401+S402)/'DNSP Inputs O & M'!$D$386","v":195.24849868411121},{"$f":"T401/'DNSP Inputs O & M'!$D$376","v":19.52484986841112},null,null,null,{"$f":"'DNSP Inputs O & M'!$E$12","v":112.10021456669011},{"$f":"'DNSP Inputs O & M'!$E$380","v":2},{"$f":"'DNSP Inputs O & M'!$E$17","v":7.5},{"$f":"Y401*Z401*AA401","v":1681.5032185003517},{"$f":"(AB401+AB402)/'DNSP Inputs O & M'!$E$384","v":108.30806413159746},{"$f":"AC401/'DNSP Inputs O & M'!$E$376","v":10.830806413159745},null,{"$f":"'DNSP Inputs O & M'!$E$12","v":112.10021456669011},{"$f":"'DNSP Inputs O & M'!$E$380","v":2},{"$f":"'DNSP Inputs O & M'!$E$17","v":7.5},{"$f":"AF401*AG401*AH401","v":1681.5032185003517},{"$f":"(AI401+AI402)/'DNSP Inputs O & M'!$E$385","v":143.92021456669011},{"$f":"AJ401/'DNSP Inputs O & M'!$E$376","v":14.39202145666901},null,{"$f":"'DNSP Inputs O & M'!$E$12","v":112.10021456669011},{"$f":"'DNSP Inputs O & M'!$E$380","v":2},{"$f":"'DNSP Inputs O & M'!$E$17","v":7.5},{"$f":"AM401*AN401*AO401","v":1681.5032185003517},{"$f":"(AP401+AP402)/'DNSP Inputs O & M'!$E$386","v":196.25483804548651},{"$f":"AQ401/'DNSP Inputs O & M'!$E$376","v":19.625483804548651},null,null,null,{"$f":"'DNSP Inputs O & M'!$F$12","v":112.78304720629164},{"$f":"'DNSP Inputs O & M'!$F$380","v":2},{"$f":"'DNSP Inputs O & M'!$F$17","v":7.5},{"$f":"AV401*AW401*AX401","v":1691.7457080943745},{"$f":"(AY401+AY402)/'DNSP Inputs O & M'!$F$384","v":108.84714253128287},{"$f":"AZ401/'DNSP Inputs O & M'!$F$376","v":10.884714253128287},null,{"$f":"'DNSP Inputs O & M'!$F$12","v":112.78304720629164},{"$f":"'DNSP Inputs O & M'!$F$380","v":2},{"$f":"'DNSP Inputs O & M'!$F$17","v":7.5},{"$f":"BC401*BD401*BE401","v":1691.7457080943745},{"$f":"(BF401+BF402)/'DNSP Inputs O & M'!$F$385","v":144.60304720629165},{"$f":"BG401/'DNSP Inputs O & M'!$F$376","v":14.460304720629164},null,{"$f":"'DNSP Inputs O & M'!$F$12","v":112.78304720629164},{"$f":"'DNSP Inputs O & M'!$F$380","v":2},{"$f":"'DNSP Inputs O & M'!$F$17","v":7.5},{"$f":"BJ401*BK401*BL401","v":1691.7457080943745},{"$f":"(BM401+BM402)/'DNSP Inputs O & M'!$F$386","v":197.18597346312498},{"$f":"BN401/'DNSP Inputs O & M'!$F$376","v":19.718597346312499},null,null,null,{"$f":"'DNSP Inputs O & M'!$G$12","v":113.60949069043043},{"$f":"'DNSP Inputs O & M'!$G$380","v":2},{"$f":"'DNSP Inputs O & M'!$G$17","v":7.5},{"$f":"BS401*BT401*BU401","v":1704.1423603564565},{"$f":"(BV401+BV402)/'DNSP Inputs O & M'!$G$384","v":109.49959791349772},{"$f":"BW401/'DNSP Inputs O & M'!$G$376","v":10.949959791349773},null,{"$f":"'DNSP Inputs O & M'!$G$12","v":113.60949069043043},{"$f":"'DNSP Inputs O & M'!$G$380","v":2},{"$f":"'DNSP Inputs O & M'!$G$17","v":7.5},{"$f":"BZ401*CA401*CB401","v":1704.1423603564565},{"$f":"(CC401+CC402)/'DNSP Inputs O & M'!$G$385","v":145.42949069043044},{"$f":"CD401/'DNSP Inputs O & M'!$G$376","v":14.542949069043043},null,{"$f":"'DNSP Inputs O & M'!$G$12","v":113.60949069043043},{"$f":"'DNSP Inputs O & M'!$G$380","v":2},{"$f":"'DNSP Inputs O & M'!$G$17","v":7.5},{"$f":"CG401*CH401*CI401","v":1704.1423603564565},{"$f":"(CJ401+CJ402)/'DNSP Inputs O & M'!$G$386","v":198.31294185058695},{"$f":"CK401/'DNSP Inputs O & M'!$G$376","v":19.831294185058695},null,null,null,{"$f":"'DNSP Inputs O & M'!$H$12","v":114.68985653357629},{"$f":"'DNSP Inputs O & M'!$H$380","v":2},{"$f":"'DNSP Inputs O & M'!$H$17","v":7.5},{"$f":"CP401*CQ401*CR401","v":1720.3478480036442},{"$f":"(CS401+CS402)/'DNSP Inputs O & M'!$H$384","v":110.35251831598127},{"$f":"CT401/'DNSP Inputs O & M'!$H$376","v":11.035251831598128},null,{"$f":"'DNSP Inputs O & M'!$H$12","v":114.68985653357629},{"$f":"'DNSP Inputs O & M'!$H$380","v":2},{"$f":"'DNSP Inputs O & M'!$H$17","v":7.5},{"$f":"CW401*CX401*CY401","v":1720.3478480036442},{"$f":"(CZ401+CZ402)/'DNSP Inputs O & M'!$H$385","v":146.50985653357628},{"$f":"DA401/'DNSP Inputs O & M'!$H$376","v":14.650985653357628},null,{"$f":"'DNSP Inputs O & M'!$H$12","v":114.68985653357629},{"$f":"'DNSP Inputs O & M'!$H$380","v":2},{"$f":"'DNSP Inputs O & M'!$H$17","v":7.5},{"$f":"DD401*DE401*DF401","v":1720.3478480036442},{"$f":"(DG401+DG402)/'DNSP Inputs O & M'!$H$386","v":199.78616800033132},{"$f":"DH401/'DNSP Inputs O & M'!$H$376","v":19.97861680003313}]
["Elevated platform vehicle costs",{"$f":"'DNSP Inputs O & M'!$D$14","v":50.18},1,{"$f":"'DNSP Inputs O & M'!$D$17","v":7.5},{"$f":"B402*C402*D402","v":376.35},null,null,null,{"$f":"'DNSP Inputs O & M'!$D$15","v":63.64},1,{"$f":"'DNSP Inputs O & M'!$D$17","v":7.5},{"$f":"I402*J402*K402","v":477.3},null,null,null,{"$f":"'DNSP Inputs O & M'!$D$15","v":63.64},1,{"$f":"'DNSP Inputs O & M'!$D$17","v":7.5},{"$f":"P402*Q402*R402","v":477.3},null,null,null,null,null,{"$f":"'DNSP Inputs O & M'!$E$14","v":50.18},1,{"$f":"'DNSP Inputs O & M'!$E$17","v":7.5},{"$f":"Y402*Z402*AA402","v":376.35},null,null,null,{"$f":"'DNSP Inputs O & M'!$E$15","v":63.64},1,{"$f":"'DNSP Inputs O & M'!$E$17","v":7.5},{"$f":"AF402*AG402*AH402","v":477.3},null,null,null,{"$f":"'DNSP Inputs O & M'!$E$15","v":63.64},1,{"$f":"'DNSP Inputs O & M'!$E$17","v":7.5},{"$f":"AM402*AN402*AO402","v":477.3},null,null,null,null,null,{"$f":"'DNSP Inputs O & M'!$F$14","v":50.18},1,{"$f":"'DNSP Inputs O & M'!$F$17","v":7.5},{"$f":"AV402*AW402*AX402","v":376.35},null,null,null,{"$f":"'DNSP Inputs O & M'!$F$15","v":63.64},1,{"$f":"'DNSP Inputs O & M'!$F$17","v":7.5},{"$f":"BC402*BD402*BE402","v":477.3},null,null,null,{"$f":"'DNSP Inputs O & M'!$F$15","v":63.64},1,{"$f":"'DNSP Inputs O & M'!$F$17","v":7.5},{"$f":"BJ402*BK402*BL402","v":477.3},null,null,null,null,null,{"$f":"'DNSP Inputs O & M'!$G$14","v":50.18},1,{"$f":"'DNSP Inputs O & M'!$G$17","v":7.5},{"$f":"BS402*BT402*BU402","v":376.35},null,null,null,{"$f":"'DNSP Inputs O & M'!$G$15","v":63.64},1,{"$f":"'DNSP Inputs O & M'!$G$17","v":7.5},{"$f":"BZ402*CA402*CB402","v":477.3},null,null,null,{"$f":"'DNSP Inputs O & M'!$G$15","v":63.64},1,{"$f":"'DNSP Inputs O & M'!$G$17","v":7.5},{"$f":"CG402*CH402*CI402","v":477.3},null,null,null,null,null,{"$f":"'DNSP Inputs O & M'!$H$14","v":50.18},1,{"$f":"'DNSP Inputs O & M'!$H$17","v":7.5},{"$f":"CP402*CQ402*CR402","v":376.35},null,null,null,{"$f":"'DNSP Inputs O & M'!$H$15","v":63.64},1,{"$f":"'DNSP Inputs O & M'!$H$17","v":7.5},{"$f":"CW402*CX402*CY402","v":477.3},null,null,null,{"$f":"'DNSP Inputs O & M'!$H$15","v":63.64},1,{"$f":"'DNSP Inputs O & M'!$H$17","v":7.5},{"$f":"DD402*DE402*DF402","v":477.3}]
["Other Maintenance and Repair costs",null,null,null,null,null,{"$f":"'DNSP Inputs O & M'!$D$396","v":2.1},null,null,null,null,null,null,{"$f":"'DNSP Inputs O & M'!$D$396","v":2.1},null,null,null,null,null,null,{"$f":"'DNSP Inputs O & M'!$D$396","v":2.1},null,null,null,null,null,null,null,null,{"$f":"'DNSP Inputs O & M'!$E$396","v":2.1},null,null,null,null,null,null,{"$f":"'DNSP Inputs O & M'!$E$396","v":2.1},null,null,null,null,null,null,{"$f":"'DNSP Inputs O & M'!$E$396","v":2.1},null,null,null,null,null,null,null,null,{"$f":"'DNSP Inputs O & M'!$F$396","v":2.1},null,null,null,null,null,null,{"$f":"'DNSP Inputs O & M'!$F$396","v":2.1},null,null,null,null,null,null,{"$f":"'DNSP Inputs O & M'!$F$396","v":2.1},null,null,null,null,null,null,null,null,{"$f":"'DNSP Inputs O & M'!$G$396","v":2.1},null,null,null,null,null,null,{"$f":"'DNSP Inputs O & M'!$G$396","v":2.1},null,null,null,null,null,null,{"$f":"'DNSP Inputs O & M'!$G$396","v":2.1},null,null,null,null,null,null,null,null,{"$f":"'DNSP Inputs O & M'!$H$396","v":2.1},null,null,null,null,null,null,{"$f":"'DNSP Inputs O & M'!$H$396","v":2.1},null,null,null,null,null,null,{"$f":"'DNSP Inputs O & M'!$H$396","v":2.1}]
[]
["Overheads",{"$f":"'DNSP Inputs O & M'!$D$18","v":0.25},null,null,null,null,{"$f":"B405*SUM(G392:G403)","v":3.7758407947976416},null,{"$f":"'DNSP Inputs O & M'!$D$18","v":0.25},null,null,null,null,{"$f":"I405*SUM(N392:N403)","v":4.9217019127250481},null,{"$f":"'DNSP Inputs O & M'!$D$18","v":0.25},null,null,null,null,{"$f":"P405*SUM(U392:U403)","v":6.9903351160317948},null,null,null,{"$f":"'DNSP Inputs O & M'!$E$18","v":0.25},null,null,null,null,{"$f":"Y405*SUM(AD392:AD403)","v":3.7931736661665925},null,{"$f":"'DNSP Inputs O & M'!$E$18","v":0.25},null,null,null,null,{"$f":"AF405*SUM(AK392:AK403)","v":4.944302617549269},null,{"$f":"'DNSP Inputs O & M'!$E$18","v":0.25},null,null,null,null,{"$f":"AM405*SUM(AR392:AR403)","v":7.0237958997975234},null,null,null,{"$f":"'DNSP Inputs O & M'!$F$18","v":0.25},null,null,null,null,{"$f":"AV405*SUM(BA392:BA403)","v":3.8092112485572334},null,{"$f":"'DNSP Inputs O & M'!$F$18","v":0.25},null,null,null,null,{"$f":"BC405*SUM(BH392:BH403)","v":4.9652143671370661},null,{"$f":"'DNSP Inputs O & M'!$F$18","v":0.25},null,null,null,null,{"$f":"BJ405*SUM(BO392:BO403)","v":7.0547561524340026},null,null,null,{"$f":"'DNSP Inputs O & M'!$G$18","v":0.25},null,null,null,null,{"$f":"BS405*SUM(BX392:BX403)","v":3.8286217961781253},null,{"$f":"'DNSP Inputs O & M'!$G$18","v":0.25},null,null,null,null,{"$f":"BZ405*SUM(CE392:CE403)","v":4.9905241988388163},null,{"$f":"'DNSP Inputs O & M'!$G$18","v":0.25},null,null,null,null,{"$f":"CG405*SUM(CL392:CL403)","v":7.0922278513171131},null,null,null,{"$f":"'DNSP Inputs O & M'!$H$18","v":0.25},null,null,null,null,{"$f":"CP405*SUM(CU392:CU403)","v":3.8539961781520109},null,{"$f":"'DNSP Inputs O & M'!$H$18","v":0.25},null,null,null,null,{"$f":"CW405*SUM(DB392:DB403)","v":5.0236104027851578},null,{"$f":"'DNSP Inputs O & M'!$H$18","v":0.25},null,null,null,null,{"$f":"DD405*SUM(DI392:DI403)","v":7.1412126207961126}]
[]
[null,null,null,null,null,null,{"$f":"SUM(G392,G394,G398,G401,G403,G405)","v":18.879203973988208},null,null,null,null,null,null,{"$f":"SUM(N392,N394,N398,N401,N403,N405)","v":24.60850956362524},null,null,null,null,null,null,{"$f":"SUM(U392,U394,U398,U401,U403,U405)","v":34.951675580158977},null,null,null,null,null,null,null,null,{"$f":"SUM(AD392,AD394,AD398,AD401,AD403,AD405)","v":18.965868330832961},null,null,null,null,null,null,{"$f":"SUM(AK392,AK394,AK398,AK401,AK403,AK405)","v":24.721513087746345},null,null,null,null,null,null,{"$f":"SUM(AR392,AR394,AR398,AR401,AR403,AR405)","v":35.118979498987613},null,null,null,null,null,null,null,null,{"$f":"SUM(BA392,BA394,BA398,BA401,BA403,BA405)","v":19.046056242786168},null,null,null,null,null,null,{"$f":"SUM(BH392,BH394,BH398,BH401,BH403,BH405)","v":24.82607183568533},null,null,null,null,null,null,{"$f":"SUM(BO392,BO394,BO398,BO401,BO403,BO405)","v":35.273780762170013},null,null,null,null,null,null,null,null,{"$f":"SUM(BX392,BX394,BX398,BX401,BX403,BX405)","v":19.143108980890627},null,null,null,null,null,null,{"$f":"SUM(CE392,CE394,CE398,CE401,CE403,CE405)","v":24.952620994194081},null,null,null,null,null,null,{"$f":"SUM(CL392,CL394,CL398,CL401,CL403,CL405)","v":35.461139256585568},null,null,null,null,null,null,null,null,{"$f":"SUM(CU392,CU394,CU398,CU401,CU403,CU405)","v":19.269980890760053},null,null,null,null,null,null,{"$f":"SUM(DB392,DB394,DB398,DB401,DB403,DB405)","v":25.118052013925791},null,null,null,null,null,null,{"$f":"SUM(DI392,DI394,DI398,DI401,DI403,DI405)","v":35.706063103980561}]
[]
[]
[]
["NEW"]
["Category P LED 155 Watt (L2) - Cost build-up"]
[]
["Additional assumptions"]
[]
[]
["Overheads are applied to material and labour components"]
["All costs and charges are exclusive of GST"]
[]
[null,"Urban",null,null,null,null,null,null,"Rural",null,null,null,null,null,null,"Remote",null,null,null,null,null,null,null,null,"Urban",null,null,null,null,null,null,"Rural",null,null,null,null,null,null,"Remote",null,null,null,null,null,null,null,null,"Urban",null,null,null,null,null,null,"Rural",null,null,null,null,null,null,"Remote",null,null,null,null,null,null,null,null,"Urban",null,null,null,null,null,null,"Rural",null,null,null,null,null,null,"Remote",null,null,null,null,null,null,null,null,"Urban",null,null,null,null,null,null,"Rural",null,null,null,null,null,null,"Remote"]
[]
[null,"Unit rate","Number","Hours","Cost","Annualised","Annualised",null,"Unit rate","Number","Hours","Cost","Annualised","Annualised",null,"Unit rate","Number","Hours","Cost","Annualised","Annualised",null,null,null,"Unit rate","Number","Hours","Cost","Annualised","Annualised",null,"Unit rate","Number","Hours","Cost","Annualised","Annualised",null,"Unit rate","Number","Hours","Cost","Annualised","Annualised",null,null,null,"Unit rate","Number","Hours","Cost","Annualised","Annualised",null,"Unit rate","Number","Hours","Cost","Annualised","Annualised",null,"Unit rate","Number","Hours","Cost","Annualised","Annualised",null,null,null,"Unit rate","Number","Hours","Cost","Annualised","Annualised",null,"Unit rate","Number","Hours","Cost","Annualised","Annualised",null,"Unit rate","Number","Hours","Cost","Annualised","Annualised",null,null,null,"Unit rate","Number","Hours","Cost","Annualised","Annualised",null,"Unit rate","Number","Hours","Cost","Annualised","Annualised",null,"Unit rate","Number","Hours","Cost","Annualised","Annualised"]
[null,null,null,null,null," cost","unit cost",null,null,null,null,null," cost","unit cost",null,null,null,null,null," cost","unit cost",null,null,null,null,null,null,null," cost","unit cost",null,null,null,null,null," cost","unit cost",null,null,null,null,null," cost","unit cost",null,null,null,null,null,null,null," cost","unit cost",null,null,null,null,null," cost","unit cost",null,null,null,null,null," cost","unit cost",null,null,null,null,null,null,null," cost","unit cost",null,null,null,null,null," cost","unit cost",null,null,null,null,null," cost","unit cost",null,null,null,null,null,null,null," cost","unit cost",null,null,null,null,null," cost","unit cost",null,null,null,null,null," cost","unit cost"]
["LED 155W (L2)"]
["Patrols & repairs"]
[]
[]
["Materials - repair of faults"]
["PE cell",{"$f":"'DNSP Inputs O & M'!$D$423","v":15.120000000000001},{"$f":"'DNSP Inputs O & M'!$D$430*'DNSP Inputs O & M'!$D$433","v":17.100000000000001},null,{"$f":"B429*C429","v":258.55200000000002},{"$f":"(E429+E430+E431)/'DNSP Inputs O & M'!$D$427","v":0.1008700110020908},{"$f":"F429*'DNSP Inputs O & M'!$D$421","v":0.30261003300627237},null,{"$f":"'DNSP Inputs O & M'!$D$377*(1+'DNSP Inputs O & M'!$D$11)","v":15.876000000000001},{"$f":"'DNSP Inputs O & M'!$D$431*'DNSP Inputs O & M'!$D$433","v":13.5},null,{"$f":"I429*J429","v":214.32600000000002},{"$f":"(L429+L430+L431)/'DNSP Inputs O & M'!$D$428","v":0.12542389525917869},{"$f":"M429*'DNSP Inputs O & M'!$D$421","v":0.37627168577753606},null,{"$f":"'DNSP Inputs O & M'!$D$377*(1+'DNSP Inputs O & M'!$D$11)","v":15.876000000000001},{"$f":"'DNSP Inputs O & M'!$D$432*'DNSP Inputs O & M'!$D$433","v":9.9},null,{"$f":"P429*Q429","v":157.17240000000001},{"$f":"(S429+S430+S431)/'DNSP Inputs O & M'!$D$429","v":0.18395504638012874},{"$f":"T429*'DNSP Inputs O & M'!$D$421","v":0.55186513914038626},null,null,null,{"$f":"'DNSP Inputs O & M'!$E$423","v":15.120000000000001},{"$f":"'DNSP Inputs O & M'!$E$430*'DNSP Inputs O & M'!$E$433","v":17.100000000000001},null,{"$f":"Y429*Z429","v":258.55200000000002},{"$f":"(AB429+AB430+AB431)/'DNSP Inputs O & M'!$E$427","v":0.1008700110020908},{"$f":"AC429*'DNSP Inputs O & M'!$E$421","v":0.30261003300627237},null,{"$f":"'DNSP Inputs O & M'!$E$377*(1+'DNSP Inputs O & M'!$E$11)","v":15.876000000000001},{"$f":"'DNSP Inputs O & M'!$E$431*'DNSP Inputs O & M'!$E$433","v":13.5},null,{"$f":"AF429*AG429","v":214.32600000000002},{"$f":"(AI429+AI430+AI431)/'DNSP Inputs O & M'!$E$428","v":0.12542389525917869},{"$f":"AJ429*'DNSP Inputs O & M'!$E$421","v":0.37627168577753606},null,{"$f":"'DNSP Inputs O & M'!$E$377*(1+'DNSP Inputs O & M'!$E$11)","v":15.876000000000001},{"$f":"'DNSP Inputs O & M'!$E$432*'DNSP Inputs O & M'!$E$433","v":9.9},null,{"$f":"AM429*AN429","v":157.17240000000001},{"$f":"(AP429+AP430+AP431)/'DNSP Inputs O & M'!$E$429","v":0.18395504638012874},{"$f":"AQ429*'DNSP Inputs O & M'!$E$421","v":0.55186513914038626},null,null,null,{"$f":"'DNSP Inputs O & M'!$F$423","v":15.120000000000001},{"$f":"'DNSP Inputs O & M'!$F$430*'DNSP Inputs O & M'!$F$433","v":17.100000000000001},null,{"$f":"AV429*AW429","v":258.55200000000002},{"$f":"(AY429+AY430+AY431)/'DNSP Inputs O & M'!$F$427","v":0.1008700110020908},{"$f":"AZ429*'DNSP Inputs O & M'!$F$421","v":0.30261003300627237},null,{"$f":"'DNSP Inputs O & M'!$F$377*(1+'DNSP Inputs O & M'!$F$11)","v":15.876000000000001},{"$f":"'DNSP Inputs O & M'!$F$431*'DNSP Inputs O & M'!$F$433","v":13.5},null,{"$f":"BC429*BD429","v":214.32600000000002},{"$f":"(BF429+BF430+BF431)/'DNSP Inputs O & M'!$F$428","v":0.12542389525917869},{"$f":"BG429*'DNSP Inputs O & M'!$F$421","v":0.37627168577753606},null,{"$f":"'DNSP Inputs O & M'!$F$377*(1+'DNSP Inputs O & M'!$F$11)","v":15.876000000000001},{"$f":"'DNSP Inputs O & M'!$F$432*'DNSP Inputs O & M'!$F$433","v":9.9},null,{"$f":"BJ429*BK429","v":157.17240000000001},{"$f":"(BM429+BM430+BM431)/'DNSP Inputs O & M'!$F$429","v":0.18395504638012874},{"$f":"BN429*'DNSP Inputs O & M'!$F$421","v":0.55186513914038626},null,null,null,{"$f":"'DNSP Inputs O & M'!$G$423","v":15.120000000000001},{"$f":"'DNSP Inputs O & M'!$G$430*'DNSP Inputs O & M'!$G$433","v":17.100000000000001},null,{"$f":"BS429*BT429","v":258.55200000000002},{"$f":"(BV429+BV430+BV431)/'DNSP Inputs O & M'!$G$427","v":0.1008700110020908},{"$f":"BW429*'DNSP Inputs O & M'!$G$421","v":0.30261003300627237},null,{"$f":"'DNSP Inputs O & M'!$G$377*(1+'DNSP Inputs O & M'!$G$11)","v":15.876000000000001},{"$f":"'DNSP Inputs O & M'!$G$431*'DNSP Inputs O & M'!$G$433","v":13.5},null,{"$f":"BZ429*CA429","v":214.32600000000002},{"$f":"(CC429+CC430+CC431)/'DNSP Inputs O & M'!$G$428","v":0.12542389525917869},{"$f":"CD429*'DNSP Inputs O & M'!$G$421","v":0.37627168577753606},null,{"$f":"'DNSP Inputs O & M'!$G$377*(1+'DNSP Inputs O & M'!$G$11)","v":15.876000000000001},{"$f":"'DNSP Inputs O & M'!$G$432*'DNSP Inputs O & M'!$G$433","v":9.9},null,{"$f":"CG429*CH429","v":157.17240000000001},{"$f":"(CJ429+CJ430+CJ431)/'DNSP Inputs O & M'!$G$429","v":0.18395504638012874},{"$f":"CK429*'DNSP Inputs O & M'!$G$421","v":0.55186513914038626},null,null,null,{"$f":"'DNSP Inputs O & M'!$H$423","v":15.120000000000001},{"$f":"'DNSP Inputs O & M'!$H$430*'DNSP Inputs O & M'!$H$433","v":17.100000000000001},null,{"$f":"CP429*CQ429","v":258.55200000000002},{"$f":"(CS429+CS430+CS431)/'DNSP Inputs O & M'!$H$427","v":0.1008700110020908},{"$f":"CT429*'DNSP Inputs O & M'!$H$421","v":0.30261003300627237},null,{"$f":"'DNSP Inputs O & M'!$H$377*(1+'DNSP Inputs O & M'!$H$11)","v":15.876000000000001},{"$f":"'DNSP Inputs O & M'!$H$431*'DNSP Inputs O & M'!$H$433","v":13.5},null,{"$f":"CW429*CX429","v":214.32600000000002},{"$f":"(CZ429+CZ430+CZ431)/'DNSP Inputs O & M'!$H$428","v":0.12542389525917869},{"$f":"DA429*'DNSP Inputs O & M'!$H$421","v":0.37627168577753606},null,{"$f":"'DNSP Inputs O & M'!$H$377*(1+'DNSP Inputs O & M'!$H$11)","v":15.876000000000001},{"$f":"'DNSP Inputs O & M'!$H$432*'DNSP Inputs O & M'!$H$433","v":9.9},null,{"$f":"DD429*DE429","v":157.17240000000001},{"$f":"(DG429+DG430+DG431)/'DNSP Inputs O & M'!$H$429","v":0.18395504638012874},{"$f":"DH429*'DNSP Inputs O & M'!$H$421","v":0.55186513914038626}]
["Luminaire",{"$f":"'DNSP Inputs O & M'!$D$424","v":427},{"$f":"'DNSP Inputs O & M'!$D$430*'DNSP Inputs O & M'!$D$434","v":0},null,{"$f":"B430*C430","v":0},null,null,null,{"$f":"'DNSP Inputs O & M'!$D$378*(1+'DNSP Inputs O & M'!$D$11)","v":422.1},{"$f":"'DNSP Inputs O & M'!$D$431*'DNSP Inputs O & M'!$D$434","v":0},null,{"$f":"I430*J430","v":0},null,null,null,{"$f":"'DNSP Inputs O & M'!$D$378*(1+'DNSP Inputs O & M'!$D$11)","v":422.1},{"$f":"'DNSP Inputs O & M'!$D$432*'DNSP Inputs O & M'!$D$434","v":0},null,{"$f":"P430*Q430","v":0},null,null,null,null,null,{"$f":"'DNSP Inputs O & M'!$E$424","v":427},{"$f":"'DNSP Inputs O & M'!$E$430*'DNSP Inputs O & M'!$E$434","v":0},null,{"$f":"Y430*Z430","v":0},null,null,null,{"$f":"'DNSP Inputs O & M'!$E$378*(1+'DNSP Inputs O & M'!$E$11)","v":422.1},{"$f":"'DNSP Inputs O & M'!$E$431*'DNSP Inputs O & M'!$E$434","v":0},null,{"$f":"AF430*AG430","v":0},null,null,null,{"$f":"'DNSP Inputs O & M'!$E$378*(1+'DNSP Inputs O & M'!$E$11)","v":422.1},{"$f":"'DNSP Inputs O & M'!$E$432*'DNSP Inputs O & M'!$E$434","v":0},null,{"$f":"AM430*AN430","v":0},null,null,null,null,null,{"$f":"'DNSP Inputs O & M'!$F$424","v":427},{"$f":"'DNSP Inputs O & M'!$F$430*'DNSP Inputs O & M'!$F$434","v":0},null,{"$f":"AV430*AW430","v":0},null,null,null,{"$f":"'DNSP Inputs O & M'!$F$378*(1+'DNSP Inputs O & M'!$F$11)","v":422.1},{"$f":"'DNSP Inputs O & M'!$F$431*'DNSP Inputs O & M'!$F$434","v":0},null,{"$f":"BC430*BD430","v":0},null,null,null,{"$f":"'DNSP Inputs O & M'!$F$378*(1+'DNSP Inputs O & M'!$F$11)","v":422.1},{"$f":"'DNSP Inputs O & M'!$F$432*'DNSP Inputs O & M'!$F$434","v":0},null,{"$f":"BJ430*BK430","v":0},null,null,null,null,null,{"$f":"'DNSP Inputs O & M'!$G$424","v":427},{"$f":"'DNSP Inputs O & M'!$G$430*'DNSP Inputs O & M'!$G$434","v":0},null,{"$f":"BS430*BT430","v":0},null,null,null,{"$f":"'DNSP Inputs O & M'!$G$378*(1+'DNSP Inputs O & M'!$G$11)","v":422.1},{"$f":"'DNSP Inputs O & M'!$G$431*'DNSP Inputs O & M'!$G$434","v":0},null,{"$f":"BZ430*CA430","v":0},null,null,null,{"$f":"'DNSP Inputs O & M'!$G$378*(1+'DNSP Inputs O & M'!$G$11)","v":422.1},{"$f":"'DNSP Inputs O & M'!$G$432*'DNSP Inputs O & M'!$G$434","v":0},null,{"$f":"CG430*CH430","v":0},null,null,null,null,null,{"$f":"'DNSP Inputs O & M'!$H$424","v":427},{"$f":"'DNSP Inputs O & M'!$H$430*'DNSP Inputs O & M'!$H$434","v":0},null,{"$f":"CP430*CQ430","v":0},null,null,null,{"$f":"'DNSP Inputs O & M'!$H$378*(1+'DNSP Inputs O & M'!$H$11)","v":422.1},{"$f":"'DNSP Inputs O & M'!$H$431*'DNSP Inputs O & M'!$H$434","v":0},null,{"$f":"CW430*CX430","v":0},null,null,null,{"$f":"'DNSP Inputs O & M'!$H$378*(1+'DNSP Inputs O & M'!$H$11)","v":422.1},{"$f":"'DNSP Inputs O & M'!$H$432*'DNSP Inputs O & M'!$H$434","v":0},null,{"$f":"DD430*DE430","v":0}]
["Miscellaneous",{"$f":"'DNSP Inputs O & M'!$D$425","v":23.188438424353883},{"$f":"'DNSP Inputs O & M'!$D$430*'DNSP Inputs O & M'!$D$435","v":1.9000000000000001},null,{"$f":"B431*C431","v":44.058033006272382},null,null,null,{"$f":"'DNSP Inputs O & M'!$D$379*(1+'DNSP Inputs O & M'!$D$11)","v":24.347860345571579},{"$f":"'DNSP Inputs O & M'!$D$431*'DNSP Inputs O & M'!$D$435","v":1.5},null,{"$f":"I431*J431","v":36.521790518357371},null,null,null,{"$f":"'DNSP Inputs O & M'!$D$379*(1+'DNSP Inputs O & M'!$D$11)","v":24.347860345571579},{"$f":"'DNSP Inputs O & M'!$D$432*'DNSP Inputs O & M'!$D$435","v":1.1000000000000001},null,{"$f":"P431*Q431","v":26.782646380128739},null,null,null,null,null,{"$f":"'DNSP Inputs O & M'!$E$425","v":23.188438424353883},{"$f":"'DNSP Inputs O & M'!$E$430*'DNSP Inputs O & M'!$E$435","v":1.9000000000000001},null,{"$f":"Y431*Z431","v":44.058033006272382},null,null,null,{"$f":"'DNSP Inputs O & M'!$E$379*(1+'DNSP Inputs O & M'!$E$11)","v":24.347860345571579},{"$f":"'DNSP Inputs O & M'!$E$431*'DNSP Inputs O & M'!$E$435","v":1.5},null,{"$f":"AF431*AG431","v":36.521790518357371},null,null,null,{"$f":"'DNSP Inputs O & M'!$E$379*(1+'DNSP Inputs O & M'!$E$11)","v":24.347860345571579},{"$f":"'DNSP Inputs O & M'!$E$432*'DNSP Inputs O & M'!$E$435","v":1.1000000000000001},null,{"$f":"AM431*AN431","v":26.782646380128739},null,null,null,null,null,{"$f":"'DNSP Inputs O & M'!$F$425","v":23.188438424353883},{"$f":"'DNSP Inputs O & M'!$F$430*'DNSP Inputs O & M'!$F$435","v":1.9000000000000001},null,{"$f":"AV431*AW431","v":44.058033006272382},null,null,null,{"$f":"'DNSP Inputs O & M'!$F$379*(1+'DNSP Inputs O & M'!$F$11)","v":24.347860345571579},{"$f":"'DNSP Inputs O & M'!$F$431*'DNSP Inputs O & M'!$F$435","v":1.5},null,{"$f":"BC431*BD431","v":36.521790518357371},null,null,null,{"$f":"'DNSP Inputs O & M'!$F$379*(1+'DNSP Inputs O & M'!$F$11)","v":24.347860345571579},{"$f":"'DNSP Inputs O & M'!$F$432*'DNSP Inputs O & M'!$F$435","v":1.1000000000000001},null,{"$f":"BJ431*BK431","v":26.782646380128739},null,null,null,null,null,{"$f":"'DNSP Inputs O & M'!$G$425","v":23.188438424353883},{"$f":"'DNSP Inputs O & M'!$G$430*'DNSP Inputs O & M'!$G$435","v":1.9000000000000001},null,{"$f":"BS431*BT431","v":44.058033006272382},null,null,null,{"$f":"'DNSP Inputs O & M'!$G$379*(1+'DNSP Inputs O & M'!$G$11)","v":24.347860345571579},{"$f":"'DNSP Inputs O & M'!$G$431*'DNSP Inputs O & M'!$G$435","v":1.5},null,{"$f":"BZ431*CA431","v":36.521790518357371},null,null,null,{"$f":"'DNSP Inputs O & M'!$G$379*(1+'DNSP Inputs O & M'!$G$11)","v":24.347860345571579},{"$f":"'DNSP Inputs O & M'!$G$432*'DNSP Inputs O & M'!$G$435","v":1.1000000000000001},null,{"$f":"CG431*CH431","v":26.782646380128739},null,null,null,null,null,{"$f":"'DNSP Inputs O & M'!$H$425","v":23.188438424353883},{"$f":"'DNSP Inputs O & M'!$H$430*'DNSP Inputs O & M'!$H$435","v":1.9000000000000001},null,{"$f":"CP431*CQ431","v":44.058033006272382},null,null,null,{"$f":"'DNSP Inputs O & M'!$H$379*(1+'DNSP Inputs O & M'!$H$11)","v":24.347860345571579},{"$f":"'DNSP Inputs O & M'!$H$431*'DNSP Inputs O & M'!$H$435","v":1.5},null,{"$f":"CW431*CX431","v":36.521790518357371},null,null,null,{"$f":"'DNSP Inputs O & M'!$H$379*(1+'DNSP Inputs O & M'!$H$11)","v":24.347860345571579},{"$f":"'DNSP Inputs O & M'!$H$432*'DNSP Inputs O & M'!$H$435","v":1.1000000000000001},null,{"$f":"DD431*DE431","v":26.782646380128739}]
["Labour - Patrol"]
["Crew costs",{"$f":"'DNSP Inputs O & M'!$D$12","v":111.36223236834823},{"$f":"'DNSP Inputs O & M'!$D$426","v":2},{"$f":"'DNSP Inputs O & M'!$D$17","v":7.5},{"$f":"B433*C433*D433","v":1670.4334855252234},{"$f":"E433/'DNSP Inputs O & M'!$D$427","v":0.55681116184174118},{"$f":"(F433+F434)*'DNSP Inputs O & M'!$D$421","v":1.9282084855252237},null,{"$f":"'DNSP Inputs O & M'!$D$12","v":111.36223236834823},{"$f":"'DNSP Inputs O & M'!$D$426","v":2},{"$f":"'DNSP Inputs O & M'!$D$17","v":7.5},{"$f":"I433*J433*K433","v":1670.4334855252234},{"$f":"L433/'DNSP Inputs O & M'!$D$428","v":0.83521674276261171},{"$f":"(M433+M434)*'DNSP Inputs O & M'!$D$421","v":2.8923127282878349},null,{"$f":"'DNSP Inputs O & M'!$D$12","v":111.36223236834823},{"$f":"'DNSP Inputs O & M'!$D$426","v":2},{"$f":"'DNSP Inputs O & M'!$D$17","v":7.5},{"$f":"P433*Q433*R433","v":1670.4334855252234},{"$f":"S433/'DNSP Inputs O & M'!$D$429","v":1.6704334855252234},{"$f":"(T433+T434)*'DNSP Inputs O & M'!$D$421","v":5.7846254565756698},null,null,null,{"$f":"'DNSP Inputs O & M'!$E$12","v":112.10021456669011},{"$f":"'DNSP Inputs O & M'!$E$426","v":2},{"$f":"'DNSP Inputs O & M'!$E$17","v":7.5},{"$f":"Y433*Z433*AA433","v":1681.5032185003517},{"$f":"AB433/'DNSP Inputs O & M'!$E$427","v":0.56050107283345063},{"$f":"(AC433+AC434)*'DNSP Inputs O & M'!$E$421","v":1.9392782185003519},null,{"$f":"'DNSP Inputs O & M'!$E$12","v":112.10021456669011},{"$f":"'DNSP Inputs O & M'!$E$426","v":2},{"$f":"'DNSP Inputs O & M'!$E$17","v":7.5},{"$f":"AF433*AG433*AH433","v":1681.5032185003517},{"$f":"AI433/'DNSP Inputs O & M'!$E$428","v":0.84075160925017589},{"$f":"(AJ433+AJ434)*'DNSP Inputs O & M'!$E$421","v":2.9089173277505278},null,{"$f":"'DNSP Inputs O & M'!$E$12","v":112.10021456669011},{"$f":"'DNSP Inputs O & M'!$E$426","v":2},{"$f":"'DNSP Inputs O & M'!$E$17","v":7.5},{"$f":"AM433*AN433*AO433","v":1681.5032185003517},{"$f":"AP433/'DNSP Inputs O & M'!$E$429","v":1.6815032185003518},{"$f":"(AQ433+AQ434)*'DNSP Inputs O & M'!$E$421","v":5.8178346555010556},null,null,null,{"$f":"'DNSP Inputs O & M'!$F$12","v":112.78304720629164},{"$f":"'DNSP Inputs O & M'!$F$426","v":2},{"$f":"'DNSP Inputs O & M'!$F$17","v":7.5},{"$f":"AV433*AW433*AX433","v":1691.7457080943745},{"$f":"AY433/'DNSP Inputs O & M'!$F$427","v":0.56391523603145821},{"$f":"(AZ433+AZ434)*'DNSP Inputs O & M'!$F$421","v":1.9495207080943748},null,{"$f":"'DNSP Inputs O & M'!$F$12","v":112.78304720629164},{"$f":"'DNSP Inputs O & M'!$F$426","v":2},{"$f":"'DNSP Inputs O & M'!$F$17","v":7.5},{"$f":"BC433*BD433*BE433","v":1691.7457080943745},{"$f":"BF433/'DNSP Inputs O & M'!$F$428","v":0.84587285404718726},{"$f":"(BG433+BG434)*'DNSP Inputs O & M'!$F$421","v":2.9242810621415618},null,{"$f":"'DNSP Inputs O & M'!$F$12","v":112.78304720629164},{"$f":"'DNSP Inputs O & M'!$F$426","v":2},{"$f":"'DNSP Inputs O & M'!$F$17","v":7.5},{"$f":"BJ433*BK433*BL433","v":1691.7457080943745},{"$f":"BM433/'DNSP Inputs O & M'!$F$429","v":1.6917457080943745},{"$f":"(BN433+BN434)*'DNSP Inputs O & M'!$F$421","v":5.8485621242831236},null,null,null,{"$f":"'DNSP Inputs O & M'!$G$12","v":113.60949069043043},{"$f":"'DNSP Inputs O & M'!$G$426","v":2},{"$f":"'DNSP Inputs O & M'!$G$17","v":7.5},{"$f":"BS433*BT433*BU433","v":1704.1423603564565},{"$f":"BV433/'DNSP Inputs O & M'!$G$427","v":0.56804745345215213},{"$f":"(BW433+BW434)*'DNSP Inputs O & M'!$G$421","v":1.9619173603564564},null,{"$f":"'DNSP Inputs O & M'!$G$12","v":113.60949069043043},{"$f":"'DNSP Inputs O & M'!$G$426","v":2},{"$f":"'DNSP Inputs O & M'!$G$17","v":7.5},{"$f":"BZ433*CA433*CB433","v":1704.1423603564565},{"$f":"CC433/'DNSP Inputs O & M'!$G$428","v":0.85207118017822825},{"$f":"(CD433+CD434)*'DNSP Inputs O & M'!$G$421","v":2.9428760405346845},null,{"$f":"'DNSP Inputs O & M'!$G$12","v":113.60949069043043},{"$f":"'DNSP Inputs O & M'!$G$426","v":2},{"$f":"'DNSP Inputs O & M'!$G$17","v":7.5},{"$f":"CG433*CH433*CI433","v":1704.1423603564565},{"$f":"CJ433/'DNSP Inputs O & M'!$G$429","v":1.7041423603564565},{"$f":"(CK433+CK434)*'DNSP Inputs O & M'!$G$421","v":5.8857520810693691},null,null,null,{"$f":"'DNSP Inputs O & M'!$H$12","v":114.68985653357629},{"$f":"'DNSP Inputs O & M'!$H$426","v":2},{"$f":"'DNSP Inputs O & M'!$H$17","v":7.5},{"$f":"CP433*CQ433*CR433","v":1720.3478480036442},{"$f":"CS433/'DNSP Inputs O & M'!$H$427","v":0.57344928266788142},{"$f":"(CT433+CT434)*'DNSP Inputs O & M'!$H$421","v":1.9781228480036444},null,{"$f":"'DNSP Inputs O & M'!$H$12","v":114.68985653357629},{"$f":"'DNSP Inputs O & M'!$H$426","v":2},{"$f":"'DNSP Inputs O & M'!$H$17","v":7.5},{"$f":"CW433*CX433*CY433","v":1720.3478480036442},{"$f":"CZ433/'DNSP Inputs O & M'!$H$428","v":0.86017392400182213},{"$f":"(DA433+DA434)*'DNSP Inputs O & M'!$H$421","v":2.9671842720054662},null,{"$f":"'DNSP Inputs O & M'!$H$12","v":114.68985653357629},{"$f":"'DNSP Inputs O & M'!$H$426","v":2},{"$f":"'DNSP Inputs O & M'!$H$17","v":7.5},{"$f":"DD433*DE433*DF433","v":1720.3478480036442},{"$f":"DG433/'DNSP Inputs O & M'!$H$429","v":1.7203478480036443},{"$f":"(DH433+DH434)*'DNSP Inputs O & M'!$H$421","v":5.9343685440109324}]
["Vehicle costs",{"$f":"'DNSP Inputs O & M'!$D$16","v":34.369999999999997},1,{"$f":"'DNSP Inputs O & M'!$D$17","v":7.5},{"$f":"B434*C434*D434","v":257.77499999999998},{"$f":"E434/'DNSP Inputs O & M'!$D$427","v":8.5924999999999987E-2},null,null,{"$f":"'DNSP Inputs O & M'!$D$16","v":34.369999999999997},1,{"$f":"'DNSP Inputs O & M'!$D$17","v":7.5},{"$f":"I434*J434*K434","v":257.77499999999998},{"$f":"L434/'DNSP Inputs O & M'!$D$428","v":0.12888749999999999},null,null,{"$f":"'DNSP Inputs O & M'!$D$16","v":34.369999999999997},1,{"$f":"'DNSP Inputs O & M'!$D$17","v":7.5},{"$f":"P434*Q434*R434","v":257.77499999999998},{"$f":"S434/'DNSP Inputs O & M'!$D$429","v":0.25777499999999998},null,null,null,null,{"$f":"'DNSP Inputs O & M'!$E$16","v":34.369999999999997},1,{"$f":"'DNSP Inputs O & M'!$E$17","v":7.5},{"$f":"Y434*Z434*AA434","v":257.77499999999998},{"$f":"AB434/'DNSP Inputs O & M'!$E$427","v":8.5924999999999987E-2},null,null,{"$f":"'DNSP Inputs O & M'!$E$16","v":34.369999999999997},1,{"$f":"'DNSP Inputs O & M'!$E$17","v":7.5},{"$f":"AF434*AG434*AH434","v":257.77499999999998},{"$f":"AI434/'DNSP Inputs O & M'!$E$428","v":0.12888749999999999},null,null,{"$f":"'DNSP Inputs O & M'!$E$16","v":34.369999999999997},1,{"$f":"'DNSP Inputs O & M'!$E$17","v":7.5},{"$f":"AM434*AN434*AO434","v":257.77499999999998},{"$f":"AP434/'DNSP Inputs O & M'!$E$429","v":0.25777499999999998},null,null,null,null,{"$f":"'DNSP Inputs O & M'!$F$16","v":34.369999999999997},1,{"$f":"'DNSP Inputs O & M'!$F$17","v":7.5},{"$f":"AV434*AW434*AX434","v":257.77499999999998},{"$f":"AY434/'DNSP Inputs O & M'!$F$427","v":8.5924999999999987E-2},null,null,{"$f":"'DNSP Inputs O & M'!$F$16","v":34.369999999999997},1,{"$f":"'DNSP Inputs O & M'!$F$17","v":7.5},{"$f":"BC434*BD434*BE434","v":257.77499999999998},{"$f":"BF434/'DNSP Inputs O & M'!$F$428","v":0.12888749999999999},null,null,{"$f":"'DNSP Inputs O & M'!$F$16","v":34.369999999999997},1,{"$f":"'DNSP Inputs O & M'!$F$17","v":7.5},{"$f":"BJ434*BK434*BL434","v":257.77499999999998},{"$f":"BM434/'DNSP Inputs O & M'!$F$429","v":0.25777499999999998},null,null,null,null,{"$f":"'DNSP Inputs O & M'!$G$16","v":34.369999999999997},1,{"$f":"'DNSP Inputs O & M'!$G$17","v":7.5},{"$f":"BS434*BT434*BU434","v":257.77499999999998},{"$f":"BV434/'DNSP Inputs O & M'!$G$427","v":8.5924999999999987E-2},null,null,{"$f":"'DNSP Inputs O & M'!$G$16","v":34.369999999999997},1,{"$f":"'DNSP Inputs O & M'!$G$17","v":7.5},{"$f":"BZ434*CA434*CB434","v":257.77499999999998},{"$f":"CC434/'DNSP Inputs O & M'!$G$428","v":0.12888749999999999},null,null,{"$f":"'DNSP Inputs O & M'!$G$16","v":34.369999999999997},1,{"$f":"'DNSP Inputs O & M'!$G$17","v":7.5},{"$f":"CG434*CH434*CI434","v":257.77499999999998},{"$f":"CJ434/'DNSP Inputs O & M'!$G$429","v":0.25777499999999998},null,null,null,null,{"$f":"'DNSP Inputs O & M'!$H$16","v":34.369999999999997},1,{"$f":"'DNSP Inputs O & M'!$H$17","v":7.5},{"$f":"CP434*CQ434*CR434","v":257.77499999999998},{"$f":"CS434/'DNSP Inputs O & M'!$H$427","v":8.5924999999999987E-2},null,null,{"$f":"'DNSP Inputs O & M'!$H$16","v":34.369999999999997},1,{"$f":"'DNSP Inputs O & M'!$H$17","v":7.5},{"$f":"CW434*CX434*CY434","v":257.77499999999998},{"$f":"CZ434/'DNSP Inputs O & M'!$H$428","v":0.12888749999999999},null,null,{"$f":"'DNSP Inputs O & M'!$H$16","v":34.369999999999997},1,{"$f":"'DNSP Inputs O & M'!$H$17","v":7.5},{"$f":"DD434*DE434*DF434","v":257.77499999999998},{"$f":"DG434/'DNSP Inputs O & M'!$H$429","v":0.25777499999999998}]
["Labour - repair of faults"]
["Crew costs",{"$f":"'DNSP Inputs O & M'!$D$12","v":111.36223236834823},{"$f":"'DNSP Inputs O & M'!$D$426","v":2},{"$f":"'DNSP Inputs O & M'!$D$17","v":7.5},{"$f":"B436*C436*D436","v":1670.4334855252234},{"$f":"(E436+E437)/'DNSP Inputs O & M'!$D$430","v":107.72544660659071},{"$f":"F436/'DNSP Inputs O & M'!$D$422","v":10.77254466065907},null,{"$f":"'DNSP Inputs O & M'!$D$12","v":111.36223236834823},{"$f":"'DNSP Inputs O & M'!$D$426","v":2},{"$f":"'DNSP Inputs O & M'!$D$17","v":7.5},{"$f":"I436*J436*K436","v":1670.4334855252234},{"$f":"(L436+L437)/'DNSP Inputs O & M'!$D$431","v":143.18223236834822},{"$f":"M436/'DNSP Inputs O & M'!$D$422","v":14.318223236834822},null,{"$f":"'DNSP Inputs O & M'!$D$12","v":111.36223236834823},{"$f":"'DNSP Inputs O & M'!$D$426","v":2},{"$f":"'DNSP Inputs O & M'!$D$17","v":7.5},{"$f":"P436*Q436*R436","v":1670.4334855252234},{"$f":"(S436+S437)/'DNSP Inputs O & M'!$D$432","v":195.24849868411121},{"$f":"T436/'DNSP Inputs O & M'!$D$422","v":19.52484986841112},null,null,null,{"$f":"'DNSP Inputs O & M'!$E$12","v":112.10021456669011},{"$f":"'DNSP Inputs O & M'!$E$426","v":2},{"$f":"'DNSP Inputs O & M'!$E$17","v":7.5},{"$f":"Y436*Z436*AA436","v":1681.5032185003517},{"$f":"(AB436+AB437)/'DNSP Inputs O & M'!$E$430","v":108.30806413159746},{"$f":"AC436/'DNSP Inputs O & M'!$E$422","v":10.830806413159745},null,{"$f":"'DNSP Inputs O & M'!$E$12","v":112.10021456669011},{"$f":"'DNSP Inputs O & M'!$E$426","v":2},{"$f":"'DNSP Inputs O & M'!$E$17","v":7.5},{"$f":"AF436*AG436*AH436","v":1681.5032185003517},{"$f":"(AI436+AI437)/'DNSP Inputs O & M'!$E$431","v":143.92021456669011},{"$f":"AJ436/'DNSP Inputs O & M'!$E$422","v":14.39202145666901},null,{"$f":"'DNSP Inputs O & M'!$E$12","v":112.10021456669011},{"$f":"'DNSP Inputs O & M'!$E$426","v":2},{"$f":"'DNSP Inputs O & M'!$E$17","v":7.5},{"$f":"AM436*AN436*AO436","v":1681.5032185003517},{"$f":"(AP436+AP437)/'DNSP Inputs O & M'!$E$432","v":196.25483804548651},{"$f":"AQ436/'DNSP Inputs O & M'!$E$422","v":19.625483804548651},null,null,null,{"$f":"'DNSP Inputs O & M'!$F$12","v":112.78304720629164},{"$f":"'DNSP Inputs O & M'!$F$426","v":2},{"$f":"'DNSP Inputs O & M'!$F$17","v":7.5},{"$f":"AV436*AW436*AX436","v":1691.7457080943745},{"$f":"(AY436+AY437)/'DNSP Inputs O & M'!$F$430","v":108.84714253128287},{"$f":"AZ436/'DNSP Inputs O & M'!$F$422","v":10.884714253128287},null,{"$f":"'DNSP Inputs O & M'!$F$12","v":112.78304720629164},{"$f":"'DNSP Inputs O & M'!$F$426","v":2},{"$f":"'DNSP Inputs O & M'!$F$17","v":7.5},{"$f":"BC436*BD436*BE436","v":1691.7457080943745},{"$f":"(BF436+BF437)/'DNSP Inputs O & M'!$F$431","v":144.60304720629165},{"$f":"BG436/'DNSP Inputs O & M'!$F$422","v":14.460304720629164},null,{"$f":"'DNSP Inputs O & M'!$F$12","v":112.78304720629164},{"$f":"'DNSP Inputs O & M'!$F$426","v":2},{"$f":"'DNSP Inputs O & M'!$F$17","v":7.5},{"$f":"BJ436*BK436*BL436","v":1691.7457080943745},{"$f":"(BM436+BM437)/'DNSP Inputs O & M'!$F$432","v":197.18597346312498},{"$f":"BN436/'DNSP Inputs O & M'!$F$422","v":19.718597346312499},null,null,null,{"$f":"'DNSP Inputs O & M'!$G$12","v":113.60949069043043},{"$f":"'DNSP Inputs O & M'!$G$426","v":2},{"$f":"'DNSP Inputs O & M'!$G$17","v":7.5},{"$f":"BS436*BT436*BU436","v":1704.1423603564565},{"$f":"(BV436+BV437)/'DNSP Inputs O & M'!$G$430","v":109.49959791349772},{"$f":"BW436/'DNSP Inputs O & M'!$G$422","v":10.949959791349773},null,{"$f":"'DNSP Inputs O & M'!$G$12","v":113.60949069043043},{"$f":"'DNSP Inputs O & M'!$G$426","v":2},{"$f":"'DNSP Inputs O & M'!$G$17","v":7.5},{"$f":"BZ436*CA436*CB436","v":1704.1423603564565},{"$f":"(CC436+CC437)/'DNSP Inputs O & M'!$G$431","v":145.42949069043044},{"$f":"CD436/'DNSP Inputs O & M'!$G$422","v":14.542949069043043},null,{"$f":"'DNSP Inputs O & M'!$G$12","v":113.60949069043043},{"$f":"'DNSP Inputs O & M'!$G$426","v":2},{"$f":"'DNSP Inputs O & M'!$G$17","v":7.5},{"$f":"CG436*CH436*CI436","v":1704.1423603564565},{"$f":"(CJ436+CJ437)/'DNSP Inputs O & M'!$G$432","v":198.31294185058695},{"$f":"CK436/'DNSP Inputs O & M'!$G$422","v":19.831294185058695},null,null,null,{"$f":"'DNSP Inputs O & M'!$H$12","v":114.68985653357629},{"$f":"'DNSP Inputs O & M'!$H$426","v":2},{"$f":"'DNSP Inputs O & M'!$H$17","v":7.5},{"$f":"CP436*CQ436*CR436","v":1720.3478480036442},{"$f":"(CS436+CS437)/'DNSP Inputs O & M'!$H$430","v":110.35251831598127},{"$f":"CT436/'DNSP Inputs O & M'!$H$422","v":11.035251831598128},null,{"$f":"'DNSP Inputs O & M'!$H$12","v":114.68985653357629},{"$f":"'DNSP Inputs O & M'!$H$426","v":2},{"$f":"'DNSP Inputs O & M'!$H$17","v":7.5},{"$f":"CW436*CX436*CY436","v":1720.3478480036442},{"$f":"(CZ436+CZ437)/'DNSP Inputs O & M'!$H$431","v":146.50985653357628},{"$f":"DA436/'DNSP Inputs O & M'!$H$422","v":14.650985653357628},null,{"$f":"'DNSP Inputs O & M'!$H$12","v":114.68985653357629},{"$f":"'DNSP Inputs O & M'!$H$426","v":2},{"$f":"'DNSP Inputs O & M'!$H$17","v":7.5},{"$f":"DD436*DE436*DF436","v":1720.3478480036442},{"$f":"(DG436+DG437)/'DNSP Inputs O & M'!$H$432","v":199.78616800033132},{"$f":"DH436/'DNSP Inputs O & M'!$H$422","v":19.97861680003313}]
["Elevated platform vehicle costs",{"$f":"'DNSP Inputs O & M'!$D$14","v":50.18},1,{"$f":"'DNSP Inputs O & M'!$D$17","v":7.5},{"$f":"B437*C437*D437","v":376.35},null,null,null,{"$f":"'DNSP Inputs O & M'!$D$15","v":63.64},1,{"$f":"'DNSP Inputs O & M'!$D$17","v":7.5},{"$f":"I437*J437*K437","v":477.3},null,null,null,{"$f":"'DNSP Inputs O & M'!$D$15","v":63.64},1,{"$f":"'DNSP Inputs O & M'!$D$17","v":7.5},{"$f":"P437*Q437*R437","v":477.3},null,null,null,null,null,{"$f":"'DNSP Inputs O & M'!$E$14","v":50.18},1,{"$f":"'DNSP Inputs O & M'!$E$17","v":7.5},{"$f":"Y437*Z437*AA437","v":376.35},null,null,null,{"$f":"'DNSP Inputs O & M'!$E$15","v":63.64},1,{"$f":"'DNSP Inputs O & M'!$E$17","v":7.5},{"$f":"AF437*AG437*AH437","v":477.3},null,null,null,{"$f":"'DNSP Inputs O & M'!$E$15","v":63.64},1,{"$f":"'DNSP Inputs O & M'!$E$17","v":7.5},{"$f":"AM437*AN437*AO437","v":477.3},null,null,null,null,null,{"$f":"'DNSP Inputs O & M'!$F$14","v":50.18},1,{"$f":"'DNSP Inputs O & M'!$F$17","v":7.5},{"$f":"AV437*AW437*AX437","v":376.35},null,null,null,{"$f":"'DNSP Inputs O & M'!$F$15","v":63.64},1,{"$f":"'DNSP Inputs O & M'!$F$17","v":7.5},{"$f":"BC437*BD437*BE437","v":477.3},null,null,null,{"$f":"'DNSP Inputs O & M'!$F$15","v":63.64},1,{"$f":"'DNSP Inputs O & M'!$F$17","v":7.5},{"$f":"BJ437*BK437*BL437","v":477.3},null,null,null,null,null,{"$f":"'DNSP Inputs O & M'!$G$14","v":50.18},1,{"$f":"'DNSP Inputs O & M'!$G$17","v":7.5},{"$f":"BS437*BT437*BU437","v":376.35},null,null,null,{"$f":"'DNSP Inputs O & M'!$G$15","v":63.64},1,{"$f":"'DNSP Inputs O & M'!$G$17","v":7.5},{"$f":"BZ437*CA437*CB437","v":477.3},null,null,null,{"$f":"'DNSP Inputs O & M'!$G$15","v":63.64},1,{"$f":"'DNSP Inputs O & M'!$G$17","v":7.5},{"$f":"CG437*CH437*CI437","v":477.3},null,null,null,null,null,{"$f":"'DNSP Inputs O & M'!$H$14","v":50.18},1,{"$f":"'DNSP Inputs O & M'!$H$17","v":7.5},{"$f":"CP437*CQ437*CR437","v":376.35},null,null,null,{"$f":"'DNSP Inputs O & M'!$H$15","v":63.64},1,{"$f":"'DNSP Inputs O & M'!$H$17","v":7.5},{"$f":"CW437*CX437*CY437","v":477.3},null,null,null,{"$f":"'DNSP Inputs O & M'!$H$15","v":63.64},1,{"$f":"'DNSP Inputs O & M'!$H$17","v":7.5},{"$f":"DD437*DE437*DF437","v":477.3}]
["Other Maintenance and Repair costs",null,null,null,null,null,{"$f":"'DNSP Inputs O & M'!$D$442","v":2.1},null,null,null,null,null,null,{"$f":"'DNSP Inputs O & M'!$D$442","v":2.1},null,null,null,null,null,null,{"$f":"'DNSP Inputs O & M'!$D$442","v":2.1},null,null,null,null,null,null,null,null,{"$f":"'DNSP Inputs O & M'!$E$442","v":2.1},null,null,null,null,null,null,{"$f":"'DNSP Inputs O & M'!$E$442","v":2.1},null,null,null,null,null,null,{"$f":"'DNSP Inputs O & M'!$E$442","v":2.1},null,null,null,null,null,null,null,null,{"$f":"'DNSP Inputs O & M'!$F$442","v":2.1},null,null,null,null,null,null,{"$f":"'DNSP Inputs O & M'!$F$442","v":2.1},null,null,null,null,null,null,{"$f":"'DNSP Inputs O & M'!$F$442","v":2.1},null,null,null,null,null,null,null,null,{"$f":"'DNSP Inputs O & M'!$G$442","v":2.1},null,null,null,null,null,null,{"$f":"'DNSP Inputs O & M'!$G$442","v":2.1},null,null,null,null,null,null,{"$f":"'DNSP Inputs O & M'!$G$442","v":2.1},null,null,null,null,null,null,null,null,{"$f":"'DNSP Inputs O & M'!$H$442","v":2.1},null,null,null,null,null,null,{"$f":"'DNSP Inputs O & M'!$H$442","v":2.1},null,null,null,null,null,null,{"$f":"'DNSP Inputs O & M'!$H$442","v":2.1}]
[]
["Overheads",{"$f":"'DNSP Inputs O & M'!$D$18","v":0.25},null,null,null,null,{"$f":"B440*SUM(G427:G438)","v":3.7758407947976416},null,{"$f":"'DNSP Inputs O & M'!$D$18","v":0.25},null,null,null,null,{"$f":"I440*SUM(N427:N438)","v":4.9217019127250481},null,{"$f":"'DNSP Inputs O & M'!$D$18","v":0.25},null,null,null,null,{"$f":"P440*SUM(U427:U438)","v":6.9903351160317948},null,null,null,{"$f":"'DNSP Inputs O & M'!$E$18","v":0.25},null,null,null,null,{"$f":"Y440*SUM(AD427:AD438)","v":3.7931736661665925},null,{"$f":"'DNSP Inputs O & M'!$E$18","v":0.25},null,null,null,null,{"$f":"AF440*SUM(AK427:AK438)","v":4.944302617549269},null,{"$f":"'DNSP Inputs O & M'!$E$18","v":0.25},null,null,null,null,{"$f":"AM440*SUM(AR427:AR438)","v":7.0237958997975234},null,null,null,{"$f":"'DNSP Inputs O & M'!$F$18","v":0.25},null,null,null,null,{"$f":"AV440*SUM(BA427:BA438)","v":3.8092112485572334},null,{"$f":"'DNSP Inputs O & M'!$F$18","v":0.25},null,null,null,null,{"$f":"BC440*SUM(BH427:BH438)","v":4.9652143671370661},null,{"$f":"'DNSP Inputs O & M'!$F$18","v":0.25},null,null,null,null,{"$f":"BJ440*SUM(BO427:BO438)","v":7.0547561524340026},null,null,null,{"$f":"'DNSP Inputs O & M'!$G$18","v":0.25},null,null,null,null,{"$f":"BS440*SUM(BX427:BX438)","v":3.8286217961781253},null,{"$f":"'DNSP Inputs O & M'!$G$18","v":0.25},null,null,null,null,{"$f":"BZ440*SUM(CE427:CE438)","v":4.9905241988388163},null,{"$f":"'DNSP Inputs O & M'!$G$18","v":0.25},null,null,null,null,{"$f":"CG440*SUM(CL427:CL438)","v":7.0922278513171131},null,null,null,{"$f":"'DNSP Inputs O & M'!$H$18","v":0.25},null,null,null,null,{"$f":"CP440*SUM(CU427:CU438)","v":3.8539961781520109},null,{"$f":"'DNSP Inputs O & M'!$H$18","v":0.25},null,null,null,null,{"$f":"CW440*SUM(DB427:DB438)","v":5.0236104027851578},null,{"$f":"'DNSP Inputs O & M'!$H$18","v":0.25},null,null,null,null,{"$f":"DD440*SUM(DI427:DI438)","v":7.1412126207961126}]
[]
[null,null,null,null,null,null,{"$f":"SUM(G427,G429,G433,G436,G438,G440)","v":18.879203973988208},null,null,null,null,null,null,{"$f":"SUM(N427,N429,N433,N436,N438,N440)","v":24.60850956362524},null,null,null,null,null,null,{"$f":"SUM(U427,U429,U433,U436,U438,U440)","v":34.951675580158977},null,null,null,null,null,null,null,null,{"$f":"SUM(AD427,AD429,AD433,AD436,AD438,AD440)","v":18.965868330832961},null,null,null,null,null,null,{"$f":"SUM(AK427,AK429,AK433,AK436,AK438,AK440)","v":24.721513087746345},null,null,null,null,null,null,{"$f":"SUM(AR427,AR429,AR433,AR436,AR438,AR440)","v":35.118979498987613},null,null,null,null,null,null,null,null,{"$f":"SUM(BA427,BA429,BA433,BA436,BA438,BA440)","v":19.046056242786168},null,null,null,null,null,null,{"$f":"SUM(BH427,BH429,BH433,BH436,BH438,BH440)","v":24.82607183568533},null,null,null,null,null,null,{"$f":"SUM(BO427,BO429,BO433,BO436,BO438,BO440)","v":35.273780762170013},null,null,null,null,null,null,null,null,{"$f":"SUM(BX427,BX429,BX433,BX436,BX438,BX440)","v":19.143108980890627},null,null,null,null,null,null,{"$f":"SUM(CE427,CE429,CE433,CE436,CE438,CE440)","v":24.952620994194081},null,null,null,null,null,null,{"$f":"SUM(CL427,CL429,CL433,CL436,CL438,CL440)","v":35.461139256585568},null,null,null,null,null,null,null,null,{"$f":"SUM(CU427,CU429,CU433,CU436,CU438,CU440)","v":19.269980890760053},null,null,null,null,null,null,{"$f":"SUM(DB427,DB429,DB433,DB436,DB438,DB440)","v":25.118052013925791},null,null,null,null,null,null,{"$f":"SUM(DI427,DI429,DI433,DI436,DI438,DI440)","v":35.706063103980561}]
[]
[]
[]
["NEW"]
["Category P LED 275 Watt (L4) - Cost build-up"]
[]
["Additional assumptions"]
[]
[]
["Overheads are applied to material and labour components"]
["All costs and charges are exclusive of GST"]
[]
[null,"Urban",null,null,null,null,null,null,"Rural",null,null,null,null,null,null,"Remote",null,null,null,null,null,null,null,null,"Urban",null,null,null,null,null,null,"Rural",null,null,null,null,null,null,"Remote",null,null,null,null,null,null,null,null,"Urban",null,null,null,null,null,null,"Rural",null,null,null,null,null,null,"Remote",null,null,null,null,null,null,null,null,"Urban",null,null,null,null,null,null,"Rural",null,null,null,null,null,null,"Remote",null,null,null,null,null,null,null,null,"Urban",null,null,null,null,null,null,"Rural",null,null,null,null,null,null,"Remote"]
[]
[null,"Unit rate","Number","Hours","Cost","Annualised","Annualised",null,"Unit rate","Number","Hours","Cost","Annualised","Annualised",null,"Unit rate","Number","Hours","Cost","Annualised","Annualised",null,null,null,"Unit rate","Number","Hours","Cost","Annualised","Annualised",null,"Unit rate","Number","Hours","Cost","Annualised","Annualised",null,"Unit rate","Number","Hours","Cost","Annualised","Annualised",null,null,null,"Unit rate","Number","Hours","Cost","Annualised","Annualised",null,"Unit rate","Number","Hours","Cost","Annualised","Annualised",null,"Unit rate","Number","Hours","Cost","Annualised","Annualised",null,null,null,"Unit rate","Number","Hours","Cost","Annualised","Annualised",null,"Unit rate","Number","Hours","Cost","Annualised","Annualised",null,"Unit rate","Number","Hours","Cost","Annualised","Annualised",null,null,null,"Unit rate","Number","Hours","Cost","Annualised","Annualised",null,"Unit rate","Number","Hours","Cost","Annualised","Annualised",null,"Unit rate","Number","Hours","Cost","Annualised","Annualised"]
[null,null,null,null,null," cost","unit cost",null,null,null,null,null," cost","unit cost",null,null,null,null,null," cost","unit cost",null,null,null,null,null,null,null," cost","unit cost",null,null,null,null,null," cost","unit cost",null,null,null,null,null," cost","unit cost",null,null,null,null,null,null,null," cost","unit cost",null,null,null,null,null," cost","unit cost",null,null,null,null,null," cost","unit cost",null,null,null,null,null,null,null," cost","unit cost",null,null,null,null,null," cost","unit cost",null,null,null,null,null," cost","unit cost",null,null,null,null,null,null,null," cost","unit cost",null,null,null,null,null," cost","unit cost",null,null,null,null,null," cost","unit cost"]
["LED 275W (L4)"]
["Patrols & repairs"]
[]
[]
["Materials - repair of faults"]
["PE cell",{"$f":"'DNSP Inputs O & M'!$D$469","v":15.120000000000001},{"$f":"'DNSP Inputs O & M'!$D$476*'DNSP Inputs O & M'!$D$479","v":17.100000000000001},null,{"$f":"B464*C464","v":258.55200000000002},{"$f":"(E464+E465+E466)/'DNSP Inputs O & M'!$D$473","v":0.1008700110020908},{"$f":"F464*'DNSP Inputs O & M'!$D$467","v":0.30261003300627237},null,{"$f":"'DNSP Inputs O & M'!$D$469*(1+'DNSP Inputs O & M'!$D$11)","v":15.876000000000001},{"$f":"'DNSP Inputs O & M'!$D$477*'DNSP Inputs O & M'!$D$479","v":13.5},null,{"$f":"I464*J464","v":214.32600000000002},{"$f":"(L464+L465+L466)/'DNSP Inputs O & M'!$D$474","v":0.12542389525917869},{"$f":"M464*'DNSP Inputs O & M'!$D$467","v":0.37627168577753606},null,{"$f":"'DNSP Inputs O & M'!$D$469*(1+'DNSP Inputs O & M'!$D$11)","v":15.876000000000001},{"$f":"'DNSP Inputs O & M'!$D$478*'DNSP Inputs O & M'!$D$479","v":9.9},null,{"$f":"P464*Q464","v":157.17240000000001},{"$f":"(S464+S465+S466)/'DNSP Inputs O & M'!$D$475","v":0.18395504638012874},{"$f":"T464*'DNSP Inputs O & M'!$D$467","v":0.55186513914038626},null,null,null,{"$f":"'DNSP Inputs O & M'!$E$469","v":15.120000000000001},{"$f":"'DNSP Inputs O & M'!$E$476*'DNSP Inputs O & M'!$E$479","v":17.100000000000001},null,{"$f":"Y464*Z464","v":258.55200000000002},{"$f":"(AB464+AB465+AB466)/'DNSP Inputs O & M'!$E$473","v":0.1008700110020908},{"$f":"AC464*'DNSP Inputs O & M'!$E$467","v":0.30261003300627237},null,{"$f":"'DNSP Inputs O & M'!$E$469*(1+'DNSP Inputs O & M'!$E$11)","v":15.876000000000001},{"$f":"'DNSP Inputs O & M'!$E$477*'DNSP Inputs O & M'!$E$479","v":13.5},null,{"$f":"AF464*AG464","v":214.32600000000002},{"$f":"(AI464+AI465+AI466)/'DNSP Inputs O & M'!$E$474","v":0.12542389525917869},{"$f":"AJ464*'DNSP Inputs O & M'!$E$467","v":0.37627168577753606},null,{"$f":"'DNSP Inputs O & M'!$E$469*(1+'DNSP Inputs O & M'!$E$11)","v":15.876000000000001},{"$f":"'DNSP Inputs O & M'!$E$478*'DNSP Inputs O & M'!$E$479","v":9.9},null,{"$f":"AM464*AN464","v":157.17240000000001},{"$f":"(AP464+AP465+AP466)/'DNSP Inputs O & M'!$E$475","v":0.18395504638012874},{"$f":"AQ464*'DNSP Inputs O & M'!$E$467","v":0.55186513914038626},null,null,null,{"$f":"'DNSP Inputs O & M'!$F$469","v":15.120000000000001},{"$f":"'DNSP Inputs O & M'!$F$476*'DNSP Inputs O & M'!$F$479","v":17.100000000000001},null,{"$f":"AV464*AW464","v":258.55200000000002},{"$f":"(AY464+AY465+AY466)/'DNSP Inputs O & M'!$F$473","v":0.1008700110020908},{"$f":"AZ464*'DNSP Inputs O & M'!$F$467","v":0.30261003300627237},null,{"$f":"'DNSP Inputs O & M'!$F$469*(1+'DNSP Inputs O & M'!$F$11)","v":15.876000000000001},{"$f":"'DNSP Inputs O & M'!$F$477*'DNSP Inputs O & M'!$F$479","v":13.5},null,{"$f":"BC464*BD464","v":214.32600000000002},{"$f":"(BF464+BF465+BF466)/'DNSP Inputs O & M'!$F$474","v":0.12542389525917869},{"$f":"BG464*'DNSP Inputs O & M'!$F$467","v":0.37627168577753606},null,{"$f":"'DNSP Inputs O & M'!$F$469*(1+'DNSP Inputs O & M'!$F$11)","v":15.876000000000001},{"$f":"'DNSP Inputs O & M'!$F$478*'DNSP Inputs O & M'!$F$479","v":9.9},null,{"$f":"BJ464*BK464","v":157.17240000000001},{"$f":"(BM464+BM465+BM466)/'DNSP Inputs O & M'!$F$475","v":0.18395504638012874},{"$f":"BN464*'DNSP Inputs O & M'!$F$467","v":0.55186513914038626},null,null,null,{"$f":"'DNSP Inputs O & M'!$G$469","v":15.120000000000001},{"$f":"'DNSP Inputs O & M'!$G$476*'DNSP Inputs O & M'!$G$479","v":17.100000000000001},null,{"$f":"BS464*BT464","v":258.55200000000002},{"$f":"(BV464+BV465+BV466)/'DNSP Inputs O & M'!$G$473","v":0.1008700110020908},{"$f":"BW464*'DNSP Inputs O & M'!$G$467","v":0.30261003300627237},null,{"$f":"'DNSP Inputs O & M'!$G$469*(1+'DNSP Inputs O & M'!$G$11)","v":15.876000000000001},{"$f":"'DNSP Inputs O & M'!$G$477*'DNSP Inputs O & M'!$G$479","v":13.5},null,{"$f":"BZ464*CA464","v":214.32600000000002},{"$f":"(CC464+CC465+CC466)/'DNSP Inputs O & M'!$G$474","v":0.12542389525917869},{"$f":"CD464*'DNSP Inputs O & M'!$G$467","v":0.37627168577753606},null,{"$f":"'DNSP Inputs O & M'!$G$469*(1+'DNSP Inputs O & M'!$G$11)","v":15.876000000000001},{"$f":"'DNSP Inputs O & M'!$G$478*'DNSP Inputs O & M'!$G$479","v":9.9},null,{"$f":"CG464*CH464","v":157.17240000000001},{"$f":"(CJ464+CJ465+CJ466)/'DNSP Inputs O & M'!$G$475","v":0.18395504638012874},{"$f":"CK464*'DNSP Inputs O & M'!$G$467","v":0.55186513914038626},null,null,null,{"$f":"'DNSP Inputs O & M'!$H$469","v":15.120000000000001},{"$f":"'DNSP Inputs O & M'!$H$476*'DNSP Inputs O & M'!$H$479","v":17.100000000000001},null,{"$f":"CP464*CQ464","v":258.55200000000002},{"$f":"(CS464+CS465+CS466)/'DNSP Inputs O & M'!$H$473","v":0.1008700110020908},{"$f":"CT464*'DNSP Inputs O & M'!$H$467","v":0.30261003300627237},null,{"$f":"'DNSP Inputs O & M'!$H$469*(1+'DNSP Inputs O & M'!$H$11)","v":15.876000000000001},{"$f":"'DNSP Inputs O & M'!$H$477*'DNSP Inputs O & M'!$H$479","v":13.5},null,{"$f":"CW464*CX464","v":214.32600000000002},{"$f":"(CZ464+CZ465+CZ466)/'DNSP Inputs O & M'!$H$474","v":0.12542389525917869},{"$f":"DA464*'DNSP Inputs O & M'!$H$467","v":0.37627168577753606},null,{"$f":"'DNSP Inputs O & M'!$H$469*(1+'DNSP Inputs O & M'!$H$11)","v":15.876000000000001},{"$f":"'DNSP Inputs O & M'!$H$478*'DNSP Inputs O & M'!$H$479","v":9.9},null,{"$f":"DD464*DE464","v":157.17240000000001},{"$f":"(DG464+DG465+DG466)/'DNSP Inputs O & M'!$H$475","v":0.18395504638012874},{"$f":"DH464*'DNSP Inputs O & M'!$H$467","v":0.55186513914038626}]
["Luminaire",{"$f":"'DNSP Inputs O & M'!$D$470","v":650.88},{"$f":"'DNSP Inputs O & M'!$D$476*'DNSP Inputs O & M'!$D$480","v":0},null,{"$f":"B465*C465","v":0},null,null,null,{"$f":"'DNSP Inputs O & M'!$D$470*(1+'DNSP Inputs O & M'!$D$11)","v":683.42399999999998},{"$f":"'DNSP Inputs O & M'!$D$477*'DNSP Inputs O & M'!$D$480","v":0},null,{"$f":"I465*J465","v":0},null,null,null,{"$f":"'DNSP Inputs O & M'!$D$470*(1+'DNSP Inputs O & M'!$D$11)","v":683.42399999999998},{"$f":"'DNSP Inputs O & M'!$D$478*'DNSP Inputs O & M'!$D$480","v":0},null,{"$f":"P465*Q465","v":0},null,null,null,null,null,{"$f":"'DNSP Inputs O & M'!$E$470","v":650.88},{"$f":"'DNSP Inputs O & M'!$E$476*'DNSP Inputs O & M'!$E$480","v":0},null,{"$f":"Y465*Z465","v":0},null,null,null,{"$f":"'DNSP Inputs O & M'!$E$470*(1+'DNSP Inputs O & M'!$E$11)","v":683.42399999999998},{"$f":"'DNSP Inputs O & M'!$E$477*'DNSP Inputs O & M'!$E$480","v":0},null,{"$f":"AF465*AG465","v":0},null,null,null,{"$f":"'DNSP Inputs O & M'!$E$470*(1+'DNSP Inputs O & M'!$E$11)","v":683.42399999999998},{"$f":"'DNSP Inputs O & M'!$E$478*'DNSP Inputs O & M'!$E$480","v":0},null,{"$f":"AM465*AN465","v":0},null,null,null,null,null,{"$f":"'DNSP Inputs O & M'!$F$470","v":650.88},{"$f":"'DNSP Inputs O & M'!$F$476*'DNSP Inputs O & M'!$F$480","v":0},null,{"$f":"AV465*AW465","v":0},null,null,null,{"$f":"'DNSP Inputs O & M'!$F$470*(1+'DNSP Inputs O & M'!$F$11)","v":683.42399999999998},{"$f":"'DNSP Inputs O & M'!$F$477*'DNSP Inputs O & M'!$F$480","v":0},null,{"$f":"BC465*BD465","v":0},null,null,null,{"$f":"'DNSP Inputs O & M'!$F$470*(1+'DNSP Inputs O & M'!$F$11)","v":683.42399999999998},{"$f":"'DNSP Inputs O & M'!$F$478*'DNSP Inputs O & M'!$F$480","v":0},null,{"$f":"BJ465*BK465","v":0},null,null,null,null,null,{"$f":"'DNSP Inputs O & M'!$G$470","v":650.88},{"$f":"'DNSP Inputs O & M'!$G$476*'DNSP Inputs O & M'!$G$480","v":0},null,{"$f":"BS465*BT465","v":0},null,null,null,{"$f":"'DNSP Inputs O & M'!$G$470*(1+'DNSP Inputs O & M'!$G$11)","v":683.42399999999998},{"$f":"'DNSP Inputs O & M'!$G$477*'DNSP Inputs O & M'!$G$480","v":0},null,{"$f":"BZ465*CA465","v":0},null,null,null,{"$f":"'DNSP Inputs O & M'!$G$470*(1+'DNSP Inputs O & M'!$G$11)","v":683.42399999999998},{"$f":"'DNSP Inputs O & M'!$G$478*'DNSP Inputs O & M'!$G$480","v":0},null,{"$f":"CG465*CH465","v":0},null,null,null,null,null,{"$f":"'DNSP Inputs O & M'!$H$470","v":650.88},{"$f":"'DNSP Inputs O & M'!$H$476*'DNSP Inputs O & M'!$H$480","v":0},null,{"$f":"CP465*CQ465","v":0},null,null,null,{"$f":"'DNSP Inputs O & M'!$H$470*(1+'DNSP Inputs O & M'!$H$11)","v":683.42399999999998},{"$f":"'DNSP Inputs O & M'!$H$477*'DNSP Inputs O & M'!$H$480","v":0},null,{"$f":"CW465*CX465","v":0},null,null,null,{"$f":"'DNSP Inputs O & M'!$H$470*(1+'DNSP Inputs O & M'!$H$11)","v":683.42399999999998},{"$f":"'DNSP Inputs O & M'!$H$478*'DNSP Inputs O & M'!$H$480","v":0},null,{"$f":"DD465*DE465","v":0}]
["Miscellaneous",{"$f":"'DNSP Inputs O & M'!$D$471","v":23.188438424353883},{"$f":"'DNSP Inputs O & M'!$D$476*'DNSP Inputs O & M'!$D$481","v":1.9000000000000001},null,{"$f":"B466*C466","v":44.058033006272382},null,null,null,{"$f":"'DNSP Inputs O & M'!$D$471*(1+'DNSP Inputs O & M'!$D$11)","v":24.347860345571579},{"$f":"'DNSP Inputs O & M'!$D$477*'DNSP Inputs O & M'!$D$481","v":1.5},null,{"$f":"I466*J466","v":36.521790518357371},null,null,null,{"$f":"'DNSP Inputs O & M'!$D$471*(1+'DNSP Inputs O & M'!$D$11)","v":24.347860345571579},{"$f":"'DNSP Inputs O & M'!$D$478*'DNSP Inputs O & M'!$D$481","v":1.1000000000000001},null,{"$f":"P466*Q466","v":26.782646380128739},null,null,null,null,null,{"$f":"'DNSP Inputs O & M'!$E$471","v":23.188438424353883},{"$f":"'DNSP Inputs O & M'!$E$476*'DNSP Inputs O & M'!$E$481","v":1.9000000000000001},null,{"$f":"Y466*Z466","v":44.058033006272382},null,null,null,{"$f":"'DNSP Inputs O & M'!$E$471*(1+'DNSP Inputs O & M'!$E$11)","v":24.347860345571579},{"$f":"'DNSP Inputs O & M'!$E$477*'DNSP Inputs O & M'!$E$481","v":1.5},null,{"$f":"AF466*AG466","v":36.521790518357371},null,null,null,{"$f":"'DNSP Inputs O & M'!$E$471*(1+'DNSP Inputs O & M'!$E$11)","v":24.347860345571579},{"$f":"'DNSP Inputs O & M'!$E$478*'DNSP Inputs O & M'!$E$481","v":1.1000000000000001},null,{"$f":"AM466*AN466","v":26.782646380128739},null,null,null,null,null,{"$f":"'DNSP Inputs O & M'!$F$471","v":23.188438424353883},{"$f":"'DNSP Inputs O & M'!$F$476*'DNSP Inputs O & M'!$F$481","v":1.9000000000000001},null,{"$f":"AV466*AW466","v":44.058033006272382},null,null,null,{"$f":"'DNSP Inputs O & M'!$F$471*(1+'DNSP Inputs O & M'!$F$11)","v":24.347860345571579},{"$f":"'DNSP Inputs O & M'!$F$477*'DNSP Inputs O & M'!$F$481","v":1.5},null,{"$f":"BC466*BD466","v":36.521790518357371},null,null,null,{"$f":"'DNSP Inputs O & M'!$F$471*(1+'DNSP Inputs O & M'!$F$11)","v":24.347860345571579},{"$f":"'DNSP Inputs O & M'!$F$478*'DNSP Inputs O & M'!$F$481","v":1.1000000000000001},null,{"$f":"BJ466*BK466","v":26.782646380128739},null,null,null,null,null,{"$f":"'DNSP Inputs O & M'!$G$471","v":23.188438424353883},{"$f":"'DNSP Inputs O & M'!$G$476*'DNSP Inputs O & M'!$G$481","v":1.9000000000000001},null,{"$f":"BS466*BT466","v":44.058033006272382},null,null,null,{"$f":"'DNSP Inputs O & M'!$G$471*(1+'DNSP Inputs O & M'!$G$11)","v":24.347860345571579},{"$f":"'DNSP Inputs O & M'!$G$477*'DNSP Inputs O & M'!$G$481","v":1.5},null,{"$f":"BZ466*CA466","v":36.521790518357371},null,null,null,{"$f":"'DNSP Inputs O & M'!$G$471*(1+'DNSP Inputs O & M'!$G$11)","v":24.347860345571579},{"$f":"'DNSP Inputs O & M'!$G$478*'DNSP Inputs O & M'!$G$481","v":1.1000000000000001},null,{"$f":"CG466*CH466","v":26.782646380128739},null,null,null,null,null,{"$f":"'DNSP Inputs O & M'!$H$471","v":23.188438424353883},{"$f":"'DNSP Inputs O & M'!$H$476*'DNSP Inputs O & M'!$H$481","v":1.9000000000000001},null,{"$f":"CP466*CQ466","v":44.058033006272382},null,null,null,{"$f":"'DNSP Inputs O & M'!$H$471*(1+'DNSP Inputs O & M'!$H$11)","v":24.347860345571579},{"$f":"'DNSP Inputs O & M'!$H$477*'DNSP Inputs O & M'!$H$481","v":1.5},null,{"$f":"CW466*CX466","v":36.521790518357371},null,null,null,{"$f":"'DNSP Inputs O & M'!$H$471*(1+'DNSP Inputs O & M'!$H$11)","v":24.347860345571579},{"$f":"'DNSP Inputs O & M'!$H$478*'DNSP Inputs O & M'!$H$481","v":1.1000000000000001},null,{"$f":"DD466*DE466","v":26.782646380128739}]
["Labour - Patrol"]
["Crew costs",{"$f":"'DNSP Inputs O & M'!$D$12","v":111.36223236834823},{"$f":"'DNSP Inputs O & M'!$D$472","v":2},{"$f":"'DNSP Inputs O & M'!$D$17","v":7.5},{"$f":"B468*C468*D468","v":1670.4334855252234},{"$f":"E468/'DNSP Inputs O & M'!$D$473","v":0.55681116184174118},{"$f":"(F468+F469)*'DNSP Inputs O & M'!$D$467","v":1.9282084855252237},null,{"$f":"'DNSP Inputs O & M'!$D$12","v":111.36223236834823},{"$f":"'DNSP Inputs O & M'!$D$472","v":2},{"$f":"'DNSP Inputs O & M'!$D$17","v":7.5},{"$f":"I468*J468*K468","v":1670.4334855252234},{"$f":"L468/'DNSP Inputs O & M'!$D$474","v":0.83521674276261171},{"$f":"(M468+M469)*'DNSP Inputs O & M'!$D$467","v":2.8923127282878349},null,{"$f":"'DNSP Inputs O & M'!$D$12","v":111.36223236834823},{"$f":"'DNSP Inputs O & M'!$D$472","v":2},{"$f":"'DNSP Inputs O & M'!$D$17","v":7.5},{"$f":"P468*Q468*R468","v":1670.4334855252234},{"$f":"S468/'DNSP Inputs O & M'!$D$475","v":1.6704334855252234},{"$f":"(T468+T469)*'DNSP Inputs O & M'!$D$467","v":5.7846254565756698},null,null,null,{"$f":"'DNSP Inputs O & M'!$E$12","v":112.10021456669011},{"$f":"'DNSP Inputs O & M'!$E$472","v":2},{"$f":"'DNSP Inputs O & M'!$E$17","v":7.5},{"$f":"Y468*Z468*AA468","v":1681.5032185003517},{"$f":"AB468/'DNSP Inputs O & M'!$E$473","v":0.56050107283345063},{"$f":"(AC468+AC469)*'DNSP Inputs O & M'!$E$467","v":1.9392782185003519},null,{"$f":"'DNSP Inputs O & M'!$E$12","v":112.10021456669011},{"$f":"'DNSP Inputs O & M'!$E$472","v":2},{"$f":"'DNSP Inputs O & M'!$E$17","v":7.5},{"$f":"AF468*AG468*AH468","v":1681.5032185003517},{"$f":"AI468/'DNSP Inputs O & M'!$E$474","v":0.84075160925017589},{"$f":"(AJ468+AJ469)*'DNSP Inputs O & M'!$E$467","v":2.9089173277505278},null,{"$f":"'DNSP Inputs O & M'!$E$12","v":112.10021456669011},{"$f":"'DNSP Inputs O & M'!$E$472","v":2},{"$f":"'DNSP Inputs O & M'!$E$17","v":7.5},{"$f":"AM468*AN468*AO468","v":1681.5032185003517},{"$f":"AP468/'DNSP Inputs O & M'!$E$475","v":1.6815032185003518},{"$f":"(AQ468+AQ469)*'DNSP Inputs O & M'!$E$467","v":5.8178346555010556},null,null,null,{"$f":"'DNSP Inputs O & M'!$F$12","v":112.78304720629164},{"$f":"'DNSP Inputs O & M'!$F$472","v":2},{"$f":"'DNSP Inputs O & M'!$F$17","v":7.5},{"$f":"AV468*AW468*AX468","v":1691.7457080943745},{"$f":"AY468/'DNSP Inputs O & M'!$F$473","v":0.56391523603145821},{"$f":"(AZ468+AZ469)*'DNSP Inputs O & M'!$F$467","v":1.9495207080943748},null,{"$f":"'DNSP Inputs O & M'!$F$12","v":112.78304720629164},{"$f":"'DNSP Inputs O & M'!$F$472","v":2},{"$f":"'DNSP Inputs O & M'!$F$17","v":7.5},{"$f":"BC468*BD468*BE468","v":1691.7457080943745},{"$f":"BF468/'DNSP Inputs O & M'!$F$474","v":0.84587285404718726},{"$f":"(BG468+BG469)*'DNSP Inputs O & M'!$F$467","v":2.9242810621415618},null,{"$f":"'DNSP Inputs O & M'!$F$12","v":112.78304720629164},{"$f":"'DNSP Inputs O & M'!$F$472","v":2},{"$f":"'DNSP Inputs O & M'!$F$17","v":7.5},{"$f":"BJ468*BK468*BL468","v":1691.7457080943745},{"$f":"BM468/'DNSP Inputs O & M'!$F$475","v":1.6917457080943745},{"$f":"(BN468+BN469)*'DNSP Inputs O & M'!$F$467","v":5.8485621242831236},null,null,null,{"$f":"'DNSP Inputs O & M'!$G$12","v":113.60949069043043},{"$f":"'DNSP Inputs O & M'!$G$472","v":2},{"$f":"'DNSP Inputs O & M'!$G$17","v":7.5},{"$f":"BS468*BT468*BU468","v":1704.1423603564565},{"$f":"BV468/'DNSP Inputs O & M'!$G$473","v":0.56804745345215213},{"$f":"(BW468+BW469)*'DNSP Inputs O & M'!$G$467","v":1.9619173603564564},null,{"$f":"'DNSP Inputs O & M'!$G$12","v":113.60949069043043},{"$f":"'DNSP Inputs O & M'!$G$472","v":2},{"$f":"'DNSP Inputs O & M'!$G$17","v":7.5},{"$f":"BZ468*CA468*CB468","v":1704.1423603564565},{"$f":"CC468/'DNSP Inputs O & M'!$G$474","v":0.85207118017822825},{"$f":"(CD468+CD469)*'DNSP Inputs O & M'!$G$467","v":2.9428760405346845},null,{"$f":"'DNSP Inputs O & M'!$G$12","v":113.60949069043043},{"$f":"'DNSP Inputs O & M'!$G$472","v":2},{"$f":"'DNSP Inputs O & M'!$G$17","v":7.5},{"$f":"CG468*CH468*CI468","v":1704.1423603564565},{"$f":"CJ468/'DNSP Inputs O & M'!$G$475","v":1.7041423603564565},{"$f":"(CK468+CK469)*'DNSP Inputs O & M'!$G$467","v":5.8857520810693691},null,null,null,{"$f":"'DNSP Inputs O & M'!$H$12","v":114.68985653357629},{"$f":"'DNSP Inputs O & M'!$H$472","v":2},{"$f":"'DNSP Inputs O & M'!$H$17","v":7.5},{"$f":"CP468*CQ468*CR468","v":1720.3478480036442},{"$f":"CS468/'DNSP Inputs O & M'!$H$473","v":0.57344928266788142},{"$f":"(CT468+CT469)*'DNSP Inputs O & M'!$H$467","v":1.9781228480036444},null,{"$f":"'DNSP Inputs O & M'!$H$12","v":114.68985653357629},{"$f":"'DNSP Inputs O & M'!$H$472","v":2},{"$f":"'DNSP Inputs O & M'!$H$17","v":7.5},{"$f":"CW468*CX468*CY468","v":1720.3478480036442},{"$f":"CZ468/'DNSP Inputs O & M'!$H$474","v":0.86017392400182213},{"$f":"(DA468+DA469)*'DNSP Inputs O & M'!$H$467","v":2.9671842720054662},null,{"$f":"'DNSP Inputs O & M'!$H$12","v":114.68985653357629},{"$f":"'DNSP Inputs O & M'!$H$472","v":2},{"$f":"'DNSP Inputs O & M'!$H$17","v":7.5},{"$f":"DD468*DE468*DF468","v":1720.3478480036442},{"$f":"DG468/'DNSP Inputs O & M'!$H$475","v":1.7203478480036443},{"$f":"(DH468+DH469)*'DNSP Inputs O & M'!$H$467","v":5.9343685440109324}]
["Vehicle costs",{"$f":"'DNSP Inputs O & M'!$D$16","v":34.369999999999997},1,{"$f":"'DNSP Inputs O & M'!$D$17","v":7.5},{"$f":"B469*C469*D469","v":257.77499999999998},{"$f":"E469/'DNSP Inputs O & M'!$D$473","v":8.5924999999999987E-2},null,null,{"$f":"'DNSP Inputs O & M'!$D$16","v":34.369999999999997},1,{"$f":"'DNSP Inputs O & M'!$D$17","v":7.5},{"$f":"I469*J469*K469","v":257.77499999999998},{"$f":"L469/'DNSP Inputs O & M'!$D$474","v":0.12888749999999999},null,null,{"$f":"'DNSP Inputs O & M'!$D$16","v":34.369999999999997},1,{"$f":"'DNSP Inputs O & M'!$D$17","v":7.5},{"$f":"P469*Q469*R469","v":257.77499999999998},{"$f":"S469/'DNSP Inputs O & M'!$D$475","v":0.25777499999999998},null,null,null,null,{"$f":"'DNSP Inputs O & M'!$E$16","v":34.369999999999997},1,{"$f":"'DNSP Inputs O & M'!$E$17","v":7.5},{"$f":"Y469*Z469*AA469","v":257.77499999999998},{"$f":"AB469/'DNSP Inputs O & M'!$E$473","v":8.5924999999999987E-2},null,null,{"$f":"'DNSP Inputs O & M'!$E$16","v":34.369999999999997},1,{"$f":"'DNSP Inputs O & M'!$E$17","v":7.5},{"$f":"AF469*AG469*AH469","v":257.77499999999998},{"$f":"AI469/'DNSP Inputs O & M'!$E$474","v":0.12888749999999999},null,null,{"$f":"'DNSP Inputs O & M'!$E$16","v":34.369999999999997},1,{"$f":"'DNSP Inputs O & M'!$E$17","v":7.5},{"$f":"AM469*AN469*AO469","v":257.77499999999998},{"$f":"AP469/'DNSP Inputs O & M'!$E$475","v":0.25777499999999998},null,null,null,null,{"$f":"'DNSP Inputs O & M'!$F$16","v":34.369999999999997},1,{"$f":"'DNSP Inputs O & M'!$F$17","v":7.5},{"$f":"AV469*AW469*AX469","v":257.77499999999998},{"$f":"AY469/'DNSP Inputs O & M'!$F$473","v":8.5924999999999987E-2},null,null,{"$f":"'DNSP Inputs O & M'!$F$16","v":34.369999999999997},1,{"$f":"'DNSP Inputs O & M'!$F$17","v":7.5},{"$f":"BC469*BD469*BE469","v":257.77499999999998},{"$f":"BF469/'DNSP Inputs O & M'!$F$474","v":0.12888749999999999},null,null,{"$f":"'DNSP Inputs O & M'!$F$16","v":34.369999999999997},1,{"$f":"'DNSP Inputs O & M'!$F$17","v":7.5},{"$f":"BJ469*BK469*BL469","v":257.77499999999998},{"$f":"BM469/'DNSP Inputs O & M'!$F$475","v":0.25777499999999998},null,null,null,null,{"$f":"'DNSP Inputs O & M'!$G$16","v":34.369999999999997},1,{"$f":"'DNSP Inputs O & M'!$G$17","v":7.5},{"$f":"BS469*BT469*BU469","v":257.77499999999998},{"$f":"BV469/'DNSP Inputs O & M'!$G$473","v":8.5924999999999987E-2},null,null,{"$f":"'DNSP Inputs O & M'!$G$16","v":34.369999999999997},1,{"$f":"'DNSP Inputs O & M'!$G$17","v":7.5},{"$f":"BZ469*CA469*CB469","v":257.77499999999998},{"$f":"CC469/'DNSP Inputs O & M'!$G$474","v":0.12888749999999999},null,null,{"$f":"'DNSP Inputs O & M'!$G$16","v":34.369999999999997},1,{"$f":"'DNSP Inputs O & M'!$G$17","v":7.5},{"$f":"CG469*CH469*CI469","v":257.77499999999998},{"$f":"CJ469/'DNSP Inputs O & M'!$G$475","v":0.25777499999999998},null,null,null,null,{"$f":"'DNSP Inputs O & M'!$H$16","v":34.369999999999997},1,{"$f":"'DNSP Inputs O & M'!$H$17","v":7.5},{"$f":"CP469*CQ469*CR469","v":257.77499999999998},{"$f":"CS469/'DNSP Inputs O & M'!$H$473","v":8.5924999999999987E-2},null,null,{"$f":"'DNSP Inputs O & M'!$H$16","v":34.369999999999997},1,{"$f":"'DNSP Inputs O & M'!$H$17","v":7.5},{"$f":"CW469*CX469*CY469","v":257.77499999999998},{"$f":"CZ469/'DNSP Inputs O & M'!$H$474","v":0.12888749999999999},null,null,{"$f":"'DNSP Inputs O & M'!$H$16","v":34.369999999999997},1,{"$f":"'DNSP Inputs O & M'!$H$17","v":7.5},{"$f":"DD469*DE469*DF469","v":257.77499999999998},{"$f":"DG469/'DNSP Inputs O & M'!$H$475","v":0.25777499999999998}]
["Labour - repair of faults"]
["Crew costs",{"$f":"'DNSP Inputs O & M'!$D$12","v":111.36223236834823},{"$f":"'DNSP Inputs O & M'!$D$472","v":2},{"$f":"'DNSP Inputs O & M'!$D$17","v":7.5},{"$f":"B471*C471*D471","v":1670.4334855252234},{"$f":"(E471+E472)/'DNSP Inputs O & M'!$D$476","v":107.72544660659071},{"$f":"F471/'DNSP Inputs O & M'!$D$468","v":10.77254466065907},null,{"$f":"'DNSP Inputs O & M'!$D$12","v":111.36223236834823},{"$f":"'DNSP Inputs O & M'!$D$472","v":2},{"$f":"'DNSP Inputs O & M'!$D$17","v":7.5},{"$f":"I471*J471*K471","v":1670.4334855252234},{"$f":"(L471+L472)/'DNSP Inputs O & M'!$D$477","v":143.18223236834822},{"$f":"M471/'DNSP Inputs O & M'!$D$468","v":14.318223236834822},null,{"$f":"'DNSP Inputs O & M'!$D$12","v":111.36223236834823},{"$f":"'DNSP Inputs O & M'!$D$472","v":2},{"$f":"'DNSP Inputs O & M'!$D$17","v":7.5},{"$f":"P471*Q471*R471","v":1670.4334855252234},{"$f":"(S471+S472)/'DNSP Inputs O & M'!$D$478","v":195.24849868411121},{"$f":"T471/'DNSP Inputs O & M'!$D$468","v":19.52484986841112},null,null,null,{"$f":"'DNSP Inputs O & M'!$E$12","v":112.10021456669011},{"$f":"'DNSP Inputs O & M'!$E$472","v":2},{"$f":"'DNSP Inputs O & M'!$E$17","v":7.5},{"$f":"Y471*Z471*AA471","v":1681.5032185003517},{"$f":"(AB471+AB472)/'DNSP Inputs O & M'!$E$476","v":108.30806413159746},{"$f":"AC471/'DNSP Inputs O & M'!$E$468","v":10.830806413159745},null,{"$f":"'DNSP Inputs O & M'!$E$12","v":112.10021456669011},{"$f":"'DNSP Inputs O & M'!$E$472","v":2},{"$f":"'DNSP Inputs O & M'!$E$17","v":7.5},{"$f":"AF471*AG471*AH471","v":1681.5032185003517},{"$f":"(AI471+AI472)/'DNSP Inputs O & M'!$E$477","v":143.92021456669011},{"$f":"AJ471/'DNSP Inputs O & M'!$E$468","v":14.39202145666901},null,{"$f":"'DNSP Inputs O & M'!$E$12","v":112.10021456669011},{"$f":"'DNSP Inputs O & M'!$E$472","v":2},{"$f":"'DNSP Inputs O & M'!$E$17","v":7.5},{"$f":"AM471*AN471*AO471","v":1681.5032185003517},{"$f":"(AP471+AP472)/'DNSP Inputs O & M'!$E$478","v":196.25483804548651},{"$f":"AQ471/'DNSP Inputs O & M'!$E$468","v":19.625483804548651},null,null,null,{"$f":"'DNSP Inputs O & M'!$F$12","v":112.78304720629164},{"$f":"'DNSP Inputs O & M'!$F$472","v":2},{"$f":"'DNSP Inputs O & M'!$F$17","v":7.5},{"$f":"AV471*AW471*AX471","v":1691.7457080943745},{"$f":"(AY471+AY472)/'DNSP Inputs O & M'!$F$476","v":108.84714253128287},{"$f":"AZ471/'DNSP Inputs O & M'!$F$468","v":10.884714253128287},null,{"$f":"'DNSP Inputs O & M'!$F$12","v":112.78304720629164},{"$f":"'DNSP Inputs O & M'!$F$472","v":2},{"$f":"'DNSP Inputs O & M'!$F$17","v":7.5},{"$f":"BC471*BD471*BE471","v":1691.7457080943745},{"$f":"(BF471+BF472)/'DNSP Inputs O & M'!$F$477","v":144.60304720629165},{"$f":"BG471/'DNSP Inputs O & M'!$F$468","v":14.460304720629164},null,{"$f":"'DNSP Inputs O & M'!$F$12","v":112.78304720629164},{"$f":"'DNSP Inputs O & M'!$F$472","v":2},{"$f":"'DNSP Inputs O & M'!$F$17","v":7.5},{"$f":"BJ471*BK471*BL471","v":1691.7457080943745},{"$f":"(BM471+BM472)/'DNSP Inputs O & M'!$F$478","v":197.18597346312498},{"$f":"BN471/'DNSP Inputs O & M'!$F$468","v":19.718597346312499},null,null,null,{"$f":"'DNSP Inputs O & M'!$G$12","v":113.60949069043043},{"$f":"'DNSP Inputs O & M'!$G$472","v":2},{"$f":"'DNSP Inputs O & M'!$G$17","v":7.5},{"$f":"BS471*BT471*BU471","v":1704.1423603564565},{"$f":"(BV471+BV472)/'DNSP Inputs O & M'!$G$476","v":109.49959791349772},{"$f":"BW471/'DNSP Inputs O & M'!$G$468","v":10.949959791349773},null,{"$f":"'DNSP Inputs O & M'!$G$12","v":113.60949069043043},{"$f":"'DNSP Inputs O & M'!$G$472","v":2},{"$f":"'DNSP Inputs O & M'!$G$17","v":7.5},{"$f":"BZ471*CA471*CB471","v":1704.1423603564565},{"$f":"(CC471+CC472)/'DNSP Inputs O & M'!$G$477","v":145.42949069043044},{"$f":"CD471/'DNSP Inputs O & M'!$G$468","v":14.542949069043043},null,{"$f":"'DNSP Inputs O & M'!$G$12","v":113.60949069043043},{"$f":"'DNSP Inputs O & M'!$G$472","v":2},{"$f":"'DNSP Inputs O & M'!$G$17","v":7.5},{"$f":"CG471*CH471*CI471","v":1704.1423603564565},{"$f":"(CJ471+CJ472)/'DNSP Inputs O & M'!$G$478","v":198.31294185058695},{"$f":"CK471/'DNSP Inputs O & M'!$G$468","v":19.831294185058695},null,null,null,{"$f":"'DNSP Inputs O & M'!$H$12","v":114.68985653357629},{"$f":"'DNSP Inputs O & M'!$H$472","v":2},{"$f":"'DNSP Inputs O & M'!$H$17","v":7.5},{"$f":"CP471*CQ471*CR471","v":1720.3478480036442},{"$f":"(CS471+CS472)/'DNSP Inputs O & M'!$H$476","v":110.35251831598127},{"$f":"CT471/'DNSP Inputs O & M'!$H$468","v":11.035251831598128},null,{"$f":"'DNSP Inputs O & M'!$H$12","v":114.68985653357629},{"$f":"'DNSP Inputs O & M'!$H$472","v":2},{"$f":"'DNSP Inputs O & M'!$H$17","v":7.5},{"$f":"CW471*CX471*CY471","v":1720.3478480036442},{"$f":"(CZ471+CZ472)/'DNSP Inputs O & M'!$H$477","v":146.50985653357628},{"$f":"DA471/'DNSP Inputs O & M'!$H$468","v":14.650985653357628},null,{"$f":"'DNSP Inputs O & M'!$H$12","v":114.68985653357629},{"$f":"'DNSP Inputs O & M'!$H$472","v":2},{"$f":"'DNSP Inputs O & M'!$H$17","v":7.5},{"$f":"DD471*DE471*DF471","v":1720.3478480036442},{"$f":"(DG471+DG472)/'DNSP Inputs O & M'!$H$478","v":199.78616800033132},{"$f":"DH471/'DNSP Inputs O & M'!$H$468","v":19.97861680003313}]
["Elevated platform vehicle costs",{"$f":"'DNSP Inputs O & M'!$D$14","v":50.18},1,{"$f":"'DNSP Inputs O & M'!$D$17","v":7.5},{"$f":"B472*C472*D472","v":376.35},null,null,null,{"$f":"'DNSP Inputs O & M'!$D$15","v":63.64},1,{"$f":"'DNSP Inputs O & M'!$D$17","v":7.5},{"$f":"I472*J472*K472","v":477.3},null,null,null,{"$f":"'DNSP Inputs O & M'!$D$15","v":63.64},1,{"$f":"'DNSP Inputs O & M'!$D$17","v":7.5},{"$f":"P472*Q472*R472","v":477.3},null,null,null,null,null,{"$f":"'DNSP Inputs O & M'!$E$14","v":50.18},1,{"$f":"'DNSP Inputs O & M'!$E$17","v":7.5},{"$f":"Y472*Z472*AA472","v":376.35},null,null,null,{"$f":"'DNSP Inputs O & M'!$E$15","v":63.64},1,{"$f":"'DNSP Inputs O & M'!$E$17","v":7.5},{"$f":"AF472*AG472*AH472","v":477.3},null,null,null,{"$f":"'DNSP Inputs O & M'!$E$15","v":63.64},1,{"$f":"'DNSP Inputs O & M'!$E$17","v":7.5},{"$f":"AM472*AN472*AO472","v":477.3},null,null,null,null,null,{"$f":"'DNSP Inputs O & M'!$F$14","v":50.18},1,{"$f":"'DNSP Inputs O & M'!$F$17","v":7.5},{"$f":"AV472*AW472*AX472","v":376.35},null,null,null,{"$f":"'DNSP Inputs O & M'!$F$15","v":63.64},1,{"$f":"'DNSP Inputs O & M'!$F$17","v":7.5},{"$f":"BC472*BD472*BE472","v":477.3},null,null,null,{"$f":"'DNSP Inputs O & M'!$F$15","v":63.64},1,{"$f":"'DNSP Inputs O & M'!$F$17","v":7.5},{"$f":"BJ472*BK472*BL472","v":477.3},null,null,null,null,null,{"$f":"'DNSP Inputs O & M'!$G$14","v":50.18},1,{"$f":"'DNSP Inputs O & M'!$G$17","v":7.5},{"$f":"BS472*BT472*BU472","v":376.35},null,null,null,{"$f":"'DNSP Inputs O & M'!$G$15","v":63.64},1,{"$f":"'DNSP Inputs O & M'!$G$17","v":7.5},{"$f":"BZ472*CA472*CB472","v":477.3},null,null,null,{"$f":"'DNSP Inputs O & M'!$G$15","v":63.64},1,{"$f":"'DNSP Inputs O & M'!$G$17","v":7.5},{"$f":"CG472*CH472*CI472","v":477.3},null,null,null,null,null,{"$f":"'DNSP Inputs O & M'!$H$14","v":50.18},1,{"$f":"'DNSP Inputs O & M'!$H$17","v":7.5},{"$f":"CP472*CQ472*CR472","v":376.35},null,null,null,{"$f":"'DNSP Inputs O & M'!$H$15","v":63.64},1,{"$f":"'DNSP Inputs O & M'!$H$17","v":7.5},{"$f":"CW472*CX472*CY472","v":477.3},null,null,null,{"$f":"'DNSP Inputs O & M'!$H$15","v":63.64},1,{"$f":"'DNSP Inputs O & M'!$H$17","v":7.5},{"$f":"DD472*DE472*DF472","v":477.3}]
["Other Maintenance and Repair costs",null,null,null,null,null,{"$f":"'DNSP Inputs O & M'!$D$488","v":2.1},null,null,null,null,null,null,{"$f":"'DNSP Inputs O & M'!$D$488","v":2.1},null,null,null,null,null,null,{"$f":"'DNSP Inputs O & M'!$D$488","v":2.1},null,null,null,null,null,null,null,null,{"$f":"'DNSP Inputs O & M'!$E$488","v":2.1},null,null,null,null,null,null,{"$f":"'DNSP Inputs O & M'!$E$488","v":2.1},null,null,null,null,null,null,{"$f":"'DNSP Inputs O & M'!$E$488","v":2.1},null,null,null,null,null,null,null,null,{"$f":"'DNSP Inputs O & M'!$F$488","v":2.1},null,null,null,null,null,null,{"$f":"'DNSP Inputs O & M'!$F$488","v":2.1},null,null,null,null,null,null,{"$f":"'DNSP Inputs O & M'!$F$488","v":2.1},null,null,null,null,null,null,null,null,{"$f":"'DNSP Inputs O & M'!$G$488","v":2.1},null,null,null,null,null,null,{"$f":"'DNSP Inputs O & M'!$G$488","v":2.1},null,null,null,null,null,null,{"$f":"'DNSP Inputs O & M'!$G$488","v":2.1},null,null,null,null,null,null,null,null,{"$f":"'DNSP Inputs O & M'!$H$488","v":2.1},null,null,null,null,null,null,{"$f":"'DNSP Inputs O & M'!$H$488","v":2.1},null,null,null,null,null,null,{"$f":"'DNSP Inputs O & M'!$H$488","v":2.1}]
[]
["Overheads",{"$f":"'DNSP Inputs O & M'!$D$18","v":0.25},null,null,null,null,{"$f":"B475*SUM(G462:G473)","v":3.7758407947976416},null,{"$f":"'DNSP Inputs O & M'!$D$18","v":0.25},null,null,null,null,{"$f":"I475*SUM(N462:N473)","v":4.9217019127250481},null,{"$f":"'DNSP Inputs O & M'!$D$18","v":0.25},null,null,null,null,{"$f":"P475*SUM(U462:U473)","v":6.9903351160317948},null,null,null,{"$f":"'DNSP Inputs O & M'!$E$18","v":0.25},null,null,null,null,{"$f":"Y475*SUM(AD462:AD473)","v":3.7931736661665925},null,{"$f":"'DNSP Inputs O & M'!$E$18","v":0.25},null,null,null,null,{"$f":"AF475*SUM(AK462:AK473)","v":4.944302617549269},null,{"$f":"'DNSP Inputs O & M'!$E$18","v":0.25},null,null,null,null,{"$f":"AM475*SUM(AR462:AR473)","v":7.0237958997975234},null,null,null,{"$f":"'DNSP Inputs O & M'!$F$18","v":0.25},null,null,null,null,{"$f":"AV475*SUM(BA462:BA473)","v":3.8092112485572334},null,{"$f":"'DNSP Inputs O & M'!$F$18","v":0.25},null,null,null,null,{"$f":"BC475*SUM(BH462:BH473)","v":4.9652143671370661},null,{"$f":"'DNSP Inputs O & M'!$F$18","v":0.25},null,null,null,null,{"$f":"BJ475*SUM(BO462:BO473)","v":7.0547561524340026},null,null,null,{"$f":"'DNSP Inputs O & M'!$G$18","v":0.25},null,null,null,null,{"$f":"BS475*SUM(BX462:BX473)","v":3.8286217961781253},null,{"$f":"'DNSP Inputs O & M'!$G$18","v":0.25},null,null,null,null,{"$f":"BZ475*SUM(CE462:CE473)","v":4.9905241988388163},null,{"$f":"'DNSP Inputs O & M'!$G$18","v":0.25},null,null,null,null,{"$f":"CG475*SUM(CL462:CL473)","v":7.0922278513171131},null,null,null,{"$f":"'DNSP Inputs O & M'!$H$18","v":0.25},null,null,null,null,{"$f":"CP475*SUM(CU462:CU473)","v":3.8539961781520109},null,{"$f":"'DNSP Inputs O & M'!$H$18","v":0.25},null,null,null,null,{"$f":"CW475*SUM(DB462:DB473)","v":5.0236104027851578},null,{"$f":"'DNSP Inputs O & M'!$H$18","v":0.25},null,null,null,null,{"$f":"DD475*SUM(DI462:DI473)","v":7.1412126207961126}]
[]
[null,null,null,null,null,null,{"$f":"SUM(G462,G464,G468,G471,G473,G475)","v":18.879203973988208},null,null,null,null,null,null,{"$f":"SUM(N462,N464,N468,N471,N473,N475)","v":24.60850956362524},null,null,null,null,null,null,{"$f":"SUM(U462,U464,U468,U471,U473,U475)","v":34.951675580158977},null,null,null,null,null,null,null,null,{"$f":"SUM(AD462,AD464,AD468,AD471,AD473,AD475)","v":18.965868330832961},null,null,null,null,null,null,{"$f":"SUM(AK462,AK464,AK468,AK471,AK473,AK475)","v":24.721513087746345},null,null,null,null,null,null,{"$f":"SUM(AR462,AR464,AR468,AR471,AR473,AR475)","v":35.118979498987613},null,null,null,null,null,null,null,null,{"$f":"SUM(BA462,BA464,BA468,BA471,BA473,BA475)","v":19.046056242786168},null,null,null,null,null,null,{"$f":"SUM(BH462,BH464,BH468,BH471,BH473,BH475)","v":24.82607183568533},null,null,null,null,null,null,{"$f":"SUM(BO462,BO464,BO468,BO471,BO473,BO475)","v":35.273780762170013},null,null,null,null,null,null,null,null,{"$f":"SUM(BX462,BX464,BX468,BX471,BX473,BX475)","v":19.143108980890627},null,null,null,null,null,null,{"$f":"SUM(CE462,CE464,CE468,CE471,CE473,CE475)","v":24.952620994194081},null,null,null,null,null,null,{"$f":"SUM(CL462,CL464,CL468,CL471,CL473,CL475)","v":35.461139256585568},null,null,null,null,null,null,null,null,{"$f":"SUM(CU462,CU464,CU468,CU471,CU473,CU475)","v":19.269980890760053},null,null,null,null,null,null,{"$f":"SUM(DB462,DB464,DB468,DB471,DB473,DB475)","v":25.118052013925791},null,null,null,null,null,null,{"$f":"SUM(DI462,DI464,DI468,DI471,DI473,DI475)","v":35.706063103980561}]
[]
[]
[]
["NEW"]
["Category Smart lighting L1 - Cost build-up"]
[]
["Additional assumptions"]
[]
[]
["Overheads are applied to material and labour components"]
["All costs and charges are exclusive of GST"]
[]
[null,"Urban",null,null,null,null,null,null,"Rural",null,null,null,null,null,null,"Remote",null,null,null,null,null,null,null,null,"Urban",null,null,null,null,null,null,"Rural",null,null,null,null,null,null,"Remote",null,null,null,null,null,null,null,null,"Urban",null,null,null,null,null,null,"Rural",null,null,null,null,null,null,"Remote",null,null,null,null,null,null,null,null,"Urban",null,null,null,null,null,null,"Rural",null,null,null,null,null,null,"Remote",null,null,null,null,null,null,null,null,"Urban",null,null,null,null,null,null,"Rural",null,null,null,null,null,null,"Remote"]
[]
[null,"Unit rate","Number","Hours","Cost","Annualised","Annualised",null,"Unit rate","Number","Hours","Cost","Annualised","Annualised",null,"Unit rate","Number","Hours","Cost","Annualised","Annualised",null,null,null,"Unit rate","Number","Hours","Cost","Annualised","Annualised",null,"Unit rate","Number","Hours","Cost","Annualised","Annualised",null,"Unit rate","Number","Hours","Cost","Annualised","Annualised",null,null,null,"Unit rate","Number","Hours","Cost","Annualised","Annualised",null,"Unit rate","Number","Hours","Cost","Annualised","Annualised",null,"Unit rate","Number","Hours","Cost","Annualised","Annualised",null,null,null,"Unit rate","Number","Hours","Cost","Annualised","Annualised",null,"Unit rate","Number","Hours","Cost","Annualised","Annualised",null,"Unit rate","Number","Hours","Cost","Annualised","Annualised",null,null,null,"Unit rate","Number","Hours","Cost","Annualised","Annualised",null,"Unit rate","Number","Hours","Cost","Annualised","Annualised",null,"Unit rate","Number","Hours","Cost","Annualised","Annualised"]
[null,null,null,null,null," cost","unit cost",null,null,null,null,null," cost","unit cost",null,null,null,null,null," cost","unit cost",null,null,null,null,null,null,null," cost","unit cost",null,null,null,null,null," cost","unit cost",null,null,null,null,null," cost","unit cost",null,null,null,null,null,null,null," cost","unit cost",null,null,null,null,null," cost","unit cost",null,null,null,null,null," cost","unit cost",null,null,null,null,null,null,null," cost","unit cost",null,null,null,null,null," cost","unit cost",null,null,null,null,null," cost","unit cost",null,null,null,null,null,null,null," cost","unit cost",null,null,null,null,null," cost","unit cost",null,null,null,null,null," cost","unit cost"]
["Smart lighting L1"]
["Patrols & repairs"]
[]
[]
["Materials - repair of faults"]
["PE cell",{"$f":"'DNSP Inputs O & M'!$D$516","v":114.023},{"$f":"'DNSP Inputs O & M'!$D$523*'DNSP Inputs O & M'!$D$526","v":13.5},null,{"$f":"B499*C499","v":1539.3105},{"$f":"(E499+E500+E501)/'DNSP Inputs O & M'!$D$520","v":0.52469771921217689},{"$f":"F499*'DNSP Inputs O & M'!$D$467","v":1.5740931576365307},null,{"$f":"'DNSP Inputs O & M'!$D$516*(1+'DNSP Inputs O & M'!$D$11)","v":119.72414999999999},{"$f":"'DNSP Inputs O & M'!$D$524*'DNSP Inputs O & M'!$D$526","v":9.9},null,{"$f":"I499*J499","v":1185.2690849999999},{"$f":"(L499+L500+L501)/'DNSP Inputs O & M'!$D$521","v":0.60602586569006422},{"$f":"M499*'DNSP Inputs O & M'!$D$467","v":1.8180775970701926},null,{"$f":"'DNSP Inputs O & M'!$D$516*(1+'DNSP Inputs O & M'!$D$11)","v":119.72414999999999},{"$f":"'DNSP Inputs O & M'!$D$525*'DNSP Inputs O & M'!$D$526","v":8.1},null,{"$f":"P499*Q499","v":969.76561499999991},{"$f":"(S499+S500+S501)/'DNSP Inputs O & M'!$D$522","v":0.99167868931101433},{"$f":"T499*'DNSP Inputs O & M'!$D$467","v":2.975036067933043},null,null,null,{"$f":"'DNSP Inputs O & M'!$E$516","v":114.023},{"$f":"'DNSP Inputs O & M'!$E$523*'DNSP Inputs O & M'!$E$526","v":13.5},null,{"$f":"Y499*Z499","v":1539.3105},{"$f":"(AB499+AB500+AB501)/'DNSP Inputs O & M'!$E$520","v":0.52469771921217689},{"$f":"AC499*'DNSP Inputs O & M'!$E$467","v":1.5740931576365307},null,{"$f":"'DNSP Inputs O & M'!$E$516*(1+'DNSP Inputs O & M'!$E$11)","v":119.72414999999999},{"$f":"'DNSP Inputs O & M'!$E$524*'DNSP Inputs O & M'!$E$526","v":9.9},null,{"$f":"AF499*AG499","v":1185.2690849999999},{"$f":"(AI499+AI500+AI501)/'DNSP Inputs O & M'!$E$521","v":0.60602586569006422},{"$f":"AJ499*'DNSP Inputs O & M'!$E$467","v":1.8180775970701926},null,{"$f":"'DNSP Inputs O & M'!$E$516*(1+'DNSP Inputs O & M'!$E$11)","v":119.72414999999999},{"$f":"'DNSP Inputs O & M'!$E$525*'DNSP Inputs O & M'!$E$526","v":8.1},null,{"$f":"AM499*AN499","v":969.76561499999991},{"$f":"(AP499+AP500+AP501)/'DNSP Inputs O & M'!$E$522","v":0.99167868931101433},{"$f":"AQ499*'DNSP Inputs O & M'!$E$467","v":2.975036067933043},null,null,null,{"$f":"'DNSP Inputs O & M'!$F$516","v":114.023},{"$f":"'DNSP Inputs O & M'!$F$523*'DNSP Inputs O & M'!$F$526","v":13.5},null,{"$f":"AV499*AW499","v":1539.3105},{"$f":"(AY499+AY500+AY501)/'DNSP Inputs O & M'!$F$520","v":0.52469771921217689},{"$f":"AZ499*'DNSP Inputs O & M'!$F$467","v":1.5740931576365307},null,{"$f":"'DNSP Inputs O & M'!$F$516*(1+'DNSP Inputs O & M'!$F$11)","v":119.72414999999999},{"$f":"'DNSP Inputs O & M'!$F$524*'DNSP Inputs O & M'!$F$526","v":9.9},null,{"$f":"BC499*BD499","v":1185.2690849999999},{"$f":"(BF499+BF500+BF501)/'DNSP Inputs O & M'!$F$521","v":0.60602586569006422},{"$f":"BG499*'DNSP Inputs O & M'!$F$467","v":1.8180775970701926},null,{"$f":"'DNSP Inputs O & M'!$F$516*(1+'DNSP Inputs O & M'!$F$11)","v":119.72414999999999},{"$f":"'DNSP Inputs O & M'!$F$525*'DNSP Inputs O & M'!$F$526","v":8.1},null,{"$f":"BJ499*BK499","v":969.76561499999991},{"$f":"(BM499+BM500+BM501)/'DNSP Inputs O & M'!$F$522","v":0.99167868931101433},{"$f":"BN499*'DNSP Inputs O & M'!$F$467","v":2.975036067933043},null,null,null,{"$f":"'DNSP Inputs O & M'!$G$516","v":114.023},{"$f":"'DNSP Inputs O & M'!$G$523*'DNSP Inputs O & M'!$G$526","v":13.5},null,{"$f":"BS499*BT499","v":1539.3105},{"$f":"(BV499+BV500+BV501)/'DNSP Inputs O & M'!$G$520","v":0.52469771921217689},{"$f":"BW499*'DNSP Inputs O & M'!$G$467","v":1.5740931576365307},null,{"$f":"'DNSP Inputs O & M'!$G$516*(1+'DNSP Inputs O & M'!$G$11)","v":119.72414999999999},{"$f":"'DNSP Inputs O & M'!$G$524*'DNSP Inputs O & M'!$G$526","v":9.9},null,{"$f":"BZ499*CA499","v":1185.2690849999999},{"$f":"(CC499+CC500+CC501)/'DNSP Inputs O & M'!$G$521","v":0.60602586569006422},{"$f":"CD499*'DNSP Inputs O & M'!$G$467","v":1.8180775970701926},null,{"$f":"'DNSP Inputs O & M'!$G$516*(1+'DNSP Inputs O & M'!$G$11)","v":119.72414999999999},{"$f":"'DNSP Inputs O & M'!$G$525*'DNSP Inputs O & M'!$G$526","v":8.1},null,{"$f":"CG499*CH499","v":969.76561499999991},{"$f":"(CJ499+CJ500+CJ501)/'DNSP Inputs O & M'!$G$522","v":0.99167868931101433},{"$f":"CK499*'DNSP Inputs O & M'!$G$467","v":2.975036067933043},null,null,null,{"$f":"'DNSP Inputs O & M'!$H$516","v":114.023},{"$f":"'DNSP Inputs O & M'!$H$523*'DNSP Inputs O & M'!$H$526","v":13.5},null,{"$f":"CP499*CQ499","v":1539.3105},{"$f":"(CS499+CS500+CS501)/'DNSP Inputs O & M'!$H$520","v":0.52469771921217689},{"$f":"CT499*'DNSP Inputs O & M'!$H$467","v":1.5740931576365307},null,{"$f":"'DNSP Inputs O & M'!$H$516*(1+'DNSP Inputs O & M'!$H$11)","v":119.72414999999999},{"$f":"'DNSP Inputs O & M'!$H$524*'DNSP Inputs O & M'!$H$526","v":9.9},null,{"$f":"CW499*CX499","v":1185.2690849999999},{"$f":"(CZ499+CZ500+CZ501)/'DNSP Inputs O & M'!$H$521","v":0.60602586569006422},{"$f":"DA499*'DNSP Inputs O & M'!$H$467","v":1.8180775970701926},null,{"$f":"'DNSP Inputs O & M'!$H$516*(1+'DNSP Inputs O & M'!$H$11)","v":119.72414999999999},{"$f":"'DNSP Inputs O & M'!$H$525*'DNSP Inputs O & M'!$H$526","v":8.1},null,{"$f":"DD499*DE499","v":969.76561499999991},{"$f":"(DG499+DG500+DG501)/'DNSP Inputs O & M'!$H$522","v":0.99167868931101433},{"$f":"DH499*'DNSP Inputs O & M'!$H$467","v":2.975036067933043}]
["Luminaire",{"$f":"'DNSP Inputs O & M'!$D$517","v":402},{"$f":"'DNSP Inputs O & M'!$D$523*'DNSP Inputs O & M'!$D$527","v":0},null,{"$f":"B500*C500","v":0},null,null,null,{"$f":"'DNSP Inputs O & M'!$D$517*(1+'DNSP Inputs O & M'!$D$11)","v":422.1},{"$f":"'DNSP Inputs O & M'!$D$524*'DNSP Inputs O & M'!$D$527","v":0},null,{"$f":"I500*J500","v":0},null,null,null,{"$f":"'DNSP Inputs O & M'!$D$517*(1+'DNSP Inputs O & M'!$D$11)","v":422.1},{"$f":"'DNSP Inputs O & M'!$D$525*'DNSP Inputs O & M'!$D$527","v":0},null,{"$f":"P500*Q500","v":0},null,null,null,null,null,{"$f":"'DNSP Inputs O & M'!$E$517","v":402},{"$f":"'DNSP Inputs O & M'!$E$523*'DNSP Inputs O & M'!$E$527","v":0},null,{"$f":"Y500*Z500","v":0},null,null,null,{"$f":"'DNSP Inputs O & M'!$E$517*(1+'DNSP Inputs O & M'!$E$11)","v":422.1},{"$f":"'DNSP Inputs O & M'!$E$524*'DNSP Inputs O & M'!$E$527","v":0},null,{"$f":"AF500*AG500","v":0},null,null,null,{"$f":"'DNSP Inputs O & M'!$E$517*(1+'DNSP Inputs O & M'!$E$11)","v":422.1},{"$f":"'DNSP Inputs O & M'!$E$525*'DNSP Inputs O & M'!$E$527","v":0},null,{"$f":"AM500*AN500","v":0},null,null,null,null,null,{"$f":"'DNSP Inputs O & M'!$F$517","v":402},{"$f":"'DNSP Inputs O & M'!$F$523*'DNSP Inputs O & M'!$F$527","v":0},null,{"$f":"AV500*AW500","v":0},null,null,null,{"$f":"'DNSP Inputs O & M'!$F$517*(1+'DNSP Inputs O & M'!$F$11)","v":422.1},{"$f":"'DNSP Inputs O & M'!$F$524*'DNSP Inputs O & M'!$F$527","v":0},null,{"$f":"BC500*BD500","v":0},null,null,null,{"$f":"'DNSP Inputs O & M'!$F$517*(1+'DNSP Inputs O & M'!$F$11)","v":422.1},{"$f":"'DNSP Inputs O & M'!$F$525*'DNSP Inputs O & M'!$F$527","v":0},null,{"$f":"BJ500*BK500","v":0},null,null,null,null,null,{"$f":"'DNSP Inputs O & M'!$G$517","v":402},{"$f":"'DNSP Inputs O & M'!$G$523*'DNSP Inputs O & M'!$G$527","v":0},null,{"$f":"BS500*BT500","v":0},null,null,null,{"$f":"'DNSP Inputs O & M'!$G$517*(1+'DNSP Inputs O & M'!$G$11)","v":422.1},{"$f":"'DNSP Inputs O & M'!$G$524*'DNSP Inputs O & M'!$G$527","v":0},null,{"$f":"BZ500*CA500","v":0},null,null,null,{"$f":"'DNSP Inputs O & M'!$G$517*(1+'DNSP Inputs O & M'!$G$11)","v":422.1},{"$f":"'DNSP Inputs O & M'!$G$525*'DNSP Inputs O & M'!$G$527","v":0},null,{"$f":"CG500*CH500","v":0},null,null,null,null,null,{"$f":"'DNSP Inputs O & M'!$H$517","v":402},{"$f":"'DNSP Inputs O & M'!$H$523*'DNSP Inputs O & M'!$H$527","v":0},null,{"$f":"CP500*CQ500","v":0},null,null,null,{"$f":"'DNSP Inputs O & M'!$H$517*(1+'DNSP Inputs O & M'!$H$11)","v":422.1},{"$f":"'DNSP Inputs O & M'!$H$524*'DNSP Inputs O & M'!$H$527","v":0},null,{"$f":"CW500*CX500","v":0},null,null,null,{"$f":"'DNSP Inputs O & M'!$H$517*(1+'DNSP Inputs O & M'!$H$11)","v":422.1},{"$f":"'DNSP Inputs O & M'!$H$525*'DNSP Inputs O & M'!$H$527","v":0},null,{"$f":"DD500*DE500","v":0}]
["Miscellaneous",{"$f":"'DNSP Inputs O & M'!$D$518","v":23.188438424353883},{"$f":"'DNSP Inputs O & M'!$D$523*'DNSP Inputs O & M'!$D$528","v":1.5},null,{"$f":"B501*C501","v":34.782657636530828},null,null,null,{"$f":"'DNSP Inputs O & M'!$D$518*(1+'DNSP Inputs O & M'!$D$11)","v":24.347860345571579},{"$f":"'DNSP Inputs O & M'!$D$524*'DNSP Inputs O & M'!$D$528","v":1.1000000000000001},null,{"$f":"I501*J501","v":26.782646380128739},null,null,null,{"$f":"'DNSP Inputs O & M'!$D$518*(1+'DNSP Inputs O & M'!$D$11)","v":24.347860345571579},{"$f":"'DNSP Inputs O & M'!$D$525*'DNSP Inputs O & M'!$D$528","v":0.9},null,{"$f":"P501*Q501","v":21.913074311014423},null,null,null,null,null,{"$f":"'DNSP Inputs O & M'!$E$518","v":23.188438424353883},{"$f":"'DNSP Inputs O & M'!$E$523*'DNSP Inputs O & M'!$E$528","v":1.5},null,{"$f":"Y501*Z501","v":34.782657636530828},null,null,null,{"$f":"'DNSP Inputs O & M'!$E$518*(1+'DNSP Inputs O & M'!$E$11)","v":24.347860345571579},{"$f":"'DNSP Inputs O & M'!$E$524*'DNSP Inputs O & M'!$E$528","v":1.1000000000000001},null,{"$f":"AF501*AG501","v":26.782646380128739},null,null,null,{"$f":"'DNSP Inputs O & M'!$E$518*(1+'DNSP Inputs O & M'!$E$11)","v":24.347860345571579},{"$f":"'DNSP Inputs O & M'!$E$525*'DNSP Inputs O & M'!$E$528","v":0.9},null,{"$f":"AM501*AN501","v":21.913074311014423},null,null,null,null,null,{"$f":"'DNSP Inputs O & M'!$F$518","v":23.188438424353883},{"$f":"'DNSP Inputs O & M'!$F$523*'DNSP Inputs O & M'!$F$528","v":1.5},null,{"$f":"AV501*AW501","v":34.782657636530828},null,null,null,{"$f":"'DNSP Inputs O & M'!$F$518*(1+'DNSP Inputs O & M'!$F$11)","v":24.347860345571579},{"$f":"'DNSP Inputs O & M'!$F$524*'DNSP Inputs O & M'!$F$528","v":1.1000000000000001},null,{"$f":"BC501*BD501","v":26.782646380128739},null,null,null,{"$f":"'DNSP Inputs O & M'!$F$518*(1+'DNSP Inputs O & M'!$F$11)","v":24.347860345571579},{"$f":"'DNSP Inputs O & M'!$F$525*'DNSP Inputs O & M'!$F$528","v":0.9},null,{"$f":"BJ501*BK501","v":21.913074311014423},null,null,null,null,null,{"$f":"'DNSP Inputs O & M'!$G$518","v":23.188438424353883},{"$f":"'DNSP Inputs O & M'!$G$523*'DNSP Inputs O & M'!$G$528","v":1.5},null,{"$f":"BS501*BT501","v":34.782657636530828},null,null,null,{"$f":"'DNSP Inputs O & M'!$G$518*(1+'DNSP Inputs O & M'!$G$11)","v":24.347860345571579},{"$f":"'DNSP Inputs O & M'!$G$524*'DNSP Inputs O & M'!$G$528","v":1.1000000000000001},null,{"$f":"BZ501*CA501","v":26.782646380128739},null,null,null,{"$f":"'DNSP Inputs O & M'!$G$518*(1+'DNSP Inputs O & M'!$G$11)","v":24.347860345571579},{"$f":"'DNSP Inputs O & M'!$G$525*'DNSP Inputs O & M'!$G$528","v":0.9},null,{"$f":"CG501*CH501","v":21.913074311014423},null,null,null,null,null,{"$f":"'DNSP Inputs O & M'!$H$518","v":23.188438424353883},{"$f":"'DNSP Inputs O & M'!$H$523*'DNSP Inputs O & M'!$H$528","v":1.5},null,{"$f":"CP501*CQ501","v":34.782657636530828},null,null,null,{"$f":"'DNSP Inputs O & M'!$H$518*(1+'DNSP Inputs O & M'!$H$11)","v":24.347860345571579},{"$f":"'DNSP Inputs O & M'!$H$524*'DNSP Inputs O & M'!$H$528","v":1.1000000000000001},null,{"$f":"CW501*CX501","v":26.782646380128739},null,null,null,{"$f":"'DNSP Inputs O & M'!$H$518*(1+'DNSP Inputs O & M'!$H$11)","v":24.347860345571579},{"$f":"'DNSP Inputs O & M'!$H$525*'DNSP Inputs O & M'!$H$528","v":0.9},null,{"$f":"DD501*DE501","v":21.913074311014423}]
["Labour - Patrol"]
["Crew costs",{"$f":"'DNSP Inputs O & M'!$D$12","v":111.36223236834823},{"$f":"'DNSP Inputs O & M'!$D$519","v":2},{"$f":"'DNSP Inputs O & M'!$D$17","v":7.5},{"$f":"B503*C503*D503","v":1670.4334855252234},{"$f":"E503/'DNSP Inputs O & M'!$D$520","v":0.55681116184174118},{"$f":"(F503+F504)*'DNSP Inputs O & M'!$D$467","v":1.9282084855252237},null,{"$f":"'DNSP Inputs O & M'!$D$12","v":111.36223236834823},{"$f":"'DNSP Inputs O & M'!$D$519","v":2},{"$f":"'DNSP Inputs O & M'!$D$17","v":7.5},{"$f":"I503*J503*K503","v":1670.4334855252234},{"$f":"L503/'DNSP Inputs O & M'!$D$521","v":0.83521674276261171},{"$f":"(M503+M504)*'DNSP Inputs O & M'!$D$467","v":2.8923127282878349},null,{"$f":"'DNSP Inputs O & M'!$D$12","v":111.36223236834823},{"$f":"'DNSP Inputs O & M'!$D$519","v":2},{"$f":"'DNSP Inputs O & M'!$D$17","v":7.5},{"$f":"P503*Q503*R503","v":1670.4334855252234},{"$f":"S503/'DNSP Inputs O & M'!$D$522","v":1.6704334855252234},{"$f":"(T503+T504)*'DNSP Inputs O & M'!$D$467","v":5.7846254565756698},null,null,null,{"$f":"'DNSP Inputs O & M'!$E$12","v":112.10021456669011},{"$f":"'DNSP Inputs O & M'!$E$519","v":2},{"$f":"'DNSP Inputs O & M'!$E$17","v":7.5},{"$f":"Y503*Z503*AA503","v":1681.5032185003517},{"$f":"AB503/'DNSP Inputs O & M'!$E$520","v":0.56050107283345063},{"$f":"(AC503+AC504)*'DNSP Inputs O & M'!$E$467","v":1.9392782185003519},null,{"$f":"'DNSP Inputs O & M'!$E$12","v":112.10021456669011},{"$f":"'DNSP Inputs O & M'!$E$519","v":2},{"$f":"'DNSP Inputs O & M'!$E$17","v":7.5},{"$f":"AF503*AG503*AH503","v":1681.5032185003517},{"$f":"AI503/'DNSP Inputs O & M'!$E$521","v":0.84075160925017589},{"$f":"(AJ503+AJ504)*'DNSP Inputs O & M'!$E$467","v":2.9089173277505278},null,{"$f":"'DNSP Inputs O & M'!$E$12","v":112.10021456669011},{"$f":"'DNSP Inputs O & M'!$E$519","v":2},{"$f":"'DNSP Inputs O & M'!$E$17","v":7.5},{"$f":"AM503*AN503*AO503","v":1681.5032185003517},{"$f":"AP503/'DNSP Inputs O & M'!$E$522","v":1.6815032185003518},{"$f":"(AQ503+AQ504)*'DNSP Inputs O & M'!$E$467","v":5.8178346555010556},null,null,null,{"$f":"'DNSP Inputs O & M'!$F$12","v":112.78304720629164},{"$f":"'DNSP Inputs O & M'!$F$519","v":2},{"$f":"'DNSP Inputs O & M'!$F$17","v":7.5},{"$f":"AV503*AW503*AX503","v":1691.7457080943745},{"$f":"AY503/'DNSP Inputs O & M'!$F$520","v":0.56391523603145821},{"$f":"(AZ503+AZ504)*'DNSP Inputs O & M'!$F$467","v":1.9495207080943748},null,{"$f":"'DNSP Inputs O & M'!$F$12","v":112.78304720629164},{"$f":"'DNSP Inputs O & M'!$F$519","v":2},{"$f":"'DNSP Inputs O & M'!$F$17","v":7.5},{"$f":"BC503*BD503*BE503","v":1691.7457080943745},{"$f":"BF503/'DNSP Inputs O & M'!$F$521","v":0.84587285404718726},{"$f":"(BG503+BG504)*'DNSP Inputs O & M'!$F$467","v":2.9242810621415618},null,{"$f":"'DNSP Inputs O & M'!$F$12","v":112.78304720629164},{"$f":"'DNSP Inputs O & M'!$F$519","v":2},{"$f":"'DNSP Inputs O & M'!$F$17","v":7.5},{"$f":"BJ503*BK503*BL503","v":1691.7457080943745},{"$f":"BM503/'DNSP Inputs O & M'!$F$522","v":1.6917457080943745},{"$f":"(BN503+BN504)*'DNSP Inputs O & M'!$F$467","v":5.8485621242831236},null,null,null,{"$f":"'DNSP Inputs O & M'!$G$12","v":113.60949069043043},{"$f":"'DNSP Inputs O & M'!$G$519","v":2},{"$f":"'DNSP Inputs O & M'!$G$17","v":7.5},{"$f":"BS503*BT503*BU503","v":1704.1423603564565},{"$f":"BV503/'DNSP Inputs O & M'!$G$520","v":0.56804745345215213},{"$f":"(BW503+BW504)*'DNSP Inputs O & M'!$G$467","v":1.9619173603564564},null,{"$f":"'DNSP Inputs O & M'!$G$12","v":113.60949069043043},{"$f":"'DNSP Inputs O & M'!$G$519","v":2},{"$f":"'DNSP Inputs O & M'!$G$17","v":7.5},{"$f":"BZ503*CA503*CB503","v":1704.1423603564565},{"$f":"CC503/'DNSP Inputs O & M'!$G$521","v":0.85207118017822825},{"$f":"(CD503+CD504)*'DNSP Inputs O & M'!$G$467","v":2.9428760405346845},null,{"$f":"'DNSP Inputs O & M'!$G$12","v":113.60949069043043},{"$f":"'DNSP Inputs O & M'!$G$519","v":2},{"$f":"'DNSP Inputs O & M'!$G$17","v":7.5},{"$f":"CG503*CH503*CI503","v":1704.1423603564565},{"$f":"CJ503/'DNSP Inputs O & M'!$G$522","v":1.7041423603564565},{"$f":"(CK503+CK504)*'DNSP Inputs O & M'!$G$467","v":5.8857520810693691},null,null,null,{"$f":"'DNSP Inputs O & M'!$H$12","v":114.68985653357629},{"$f":"'DNSP Inputs O & M'!$H$519","v":2},{"$f":"'DNSP Inputs O & M'!$H$17","v":7.5},{"$f":"CP503*CQ503*CR503","v":1720.3478480036442},{"$f":"CS503/'DNSP Inputs O & M'!$H$520","v":0.57344928266788142},{"$f":"(CT503+CT504)*'DNSP Inputs O & M'!$H$467","v":1.9781228480036444},null,{"$f":"'DNSP Inputs O & M'!$H$12","v":114.68985653357629},{"$f":"'DNSP Inputs O & M'!$H$519","v":2},{"$f":"'DNSP Inputs O & M'!$H$17","v":7.5},{"$f":"CW503*CX503*CY503","v":1720.3478480036442},{"$f":"CZ503/'DNSP Inputs O & M'!$H$521","v":0.86017392400182213},{"$f":"(DA503+DA504)*'DNSP Inputs O & M'!$H$467","v":2.9671842720054662},null,{"$f":"'DNSP Inputs O & M'!$H$12","v":114.68985653357629},{"$f":"'DNSP Inputs O & M'!$H$519","v":2},{"$f":"'DNSP Inputs O & M'!$H$17","v":7.5},{"$f":"DD503*DE503*DF503","v":1720.3478480036442},{"$f":"DG503/'DNSP Inputs O & M'!$H$522","v":1.7203478480036443},{"$f":"(DH503+DH504)*'DNSP Inputs O & M'!$H$467","v":5.9343685440109324}]
["Vehicle costs",{"$f":"'DNSP Inputs O & M'!$D$16","v":34.369999999999997},1,{"$f":"'DNSP Inputs O & M'!$D$17","v":7.5},{"$f":"B504*C504*D504","v":257.77499999999998},{"$f":"E504/'DNSP Inputs O & M'!$D$520","v":8.5924999999999987E-2},null,null,{"$f":"'DNSP Inputs O & M'!$D$16","v":34.369999999999997},1,{"$f":"'DNSP Inputs O & M'!$D$17","v":7.5},{"$f":"I504*J504*K504","v":257.77499999999998},{"$f":"L504/'DNSP Inputs O & M'!$D$521","v":0.12888749999999999},null,null,{"$f":"'DNSP Inputs O & M'!$D$16","v":34.369999999999997},1,{"$f":"'DNSP Inputs O & M'!$D$17","v":7.5},{"$f":"P504*Q504*R504","v":257.77499999999998},{"$f":"S504/'DNSP Inputs O & M'!$D$522","v":0.25777499999999998},null,null,null,null,{"$f":"'DNSP Inputs O & M'!$E$16","v":34.369999999999997},1,{"$f":"'DNSP Inputs O & M'!$E$17","v":7.5},{"$f":"Y504*Z504*AA504","v":257.77499999999998},{"$f":"AB504/'DNSP Inputs O & M'!$E$520","v":8.5924999999999987E-2},null,null,{"$f":"'DNSP Inputs O & M'!$E$16","v":34.369999999999997},1,{"$f":"'DNSP Inputs O & M'!$E$17","v":7.5},{"$f":"AF504*AG504*AH504","v":257.77499999999998},{"$f":"AI504/'DNSP Inputs O & M'!$E$521","v":0.12888749999999999},null,null,{"$f":"'DNSP Inputs O & M'!$E$16","v":34.369999999999997},1,{"$f":"'DNSP Inputs O & M'!$E$17","v":7.5},{"$f":"AM504*AN504*AO504","v":257.77499999999998},{"$f":"AP504/'DNSP Inputs O & M'!$E$522","v":0.25777499999999998},null,null,null,null,{"$f":"'DNSP Inputs O & M'!$F$16","v":34.369999999999997},1,{"$f":"'DNSP Inputs O & M'!$F$17","v":7.5},{"$f":"AV504*AW504*AX504","v":257.77499999999998},{"$f":"AY504/'DNSP Inputs O & M'!$F$520","v":8.5924999999999987E-2},null,null,{"$f":"'DNSP Inputs O & M'!$F$16","v":34.369999999999997},1,{"$f":"'DNSP Inputs O & M'!$F$17","v":7.5},{"$f":"BC504*BD504*BE504","v":257.77499999999998},{"$f":"BF504/'DNSP Inputs O & M'!$F$521","v":0.12888749999999999},null,null,{"$f":"'DNSP Inputs O & M'!$F$16","v":34.369999999999997},1,{"$f":"'DNSP Inputs O & M'!$F$17","v":7.5},{"$f":"BJ504*BK504*BL504","v":257.77499999999998},{"$f":"BM504/'DNSP Inputs O & M'!$F$522","v":0.25777499999999998},null,null,null,null,{"$f":"'DNSP Inputs O & M'!$G$16","v":34.369999999999997},1,{"$f":"'DNSP Inputs O & M'!$G$17","v":7.5},{"$f":"BS504*BT504*BU504","v":257.77499999999998},{"$f":"BV504/'DNSP Inputs O & M'!$G$520","v":8.5924999999999987E-2},null,null,{"$f":"'DNSP Inputs O & M'!$G$16","v":34.369999999999997},1,{"$f":"'DNSP Inputs O & M'!$G$17","v":7.5},{"$f":"BZ504*CA504*CB504","v":257.77499999999998},{"$f":"CC504/'DNSP Inputs O & M'!$G$521","v":0.12888749999999999},null,null,{"$f":"'DNSP Inputs O & M'!$G$16","v":34.369999999999997},1,{"$f":"'DNSP Inputs O & M'!$G$17","v":7.5},{"$f":"CG504*CH504*CI504","v":257.77499999999998},{"$f":"CJ504/'DNSP Inputs O & M'!$G$522","v":0.25777499999999998},null,null,null,null,{"$f":"'DNSP Inputs O & M'!$H$16","v":34.369999999999997},1,{"$f":"'DNSP Inputs O & M'!$H$17","v":7.5},{"$f":"CP504*CQ504*CR504","v":257.77499999999998},{"$f":"CS504/'DNSP Inputs O & M'!$H$520","v":8.5924999999999987E-2},null,null,{"$f":"'DNSP Inputs O & M'!$H$16","v":34.369999999999997},1,{"$f":"'DNSP Inputs O & M'!$H$17","v":7.5},{"$f":"CW504*CX504*CY504","v":257.77499999999998},{"$f":"CZ504/'DNSP Inputs O & M'!$H$521","v":0.12888749999999999},null,null,{"$f":"'DNSP Inputs O & M'!$H$16","v":34.369999999999997},1,{"$f":"'DNSP Inputs O & M'!$H$17","v":7.5},{"$f":"DD504*DE504*DF504","v":257.77499999999998},{"$f":"DG504/'DNSP Inputs O & M'!$H$522","v":0.25777499999999998}]
["Labour - repair of faults"]
["Crew costs",{"$f":"'DNSP Inputs O & M'!$D$12","v":111.36223236834823},{"$f":"'DNSP Inputs O & M'!$D$519","v":2},{"$f":"'DNSP Inputs O & M'!$D$17","v":7.5},{"$f":"B506*C506*D506","v":1670.4334855252234},{"$f":"(E506+E507)/'DNSP Inputs O & M'!$D$523","v":136.45223236834823},{"$f":"F506/'DNSP Inputs O & M'!$D$468","v":13.645223236834823},null,{"$f":"'DNSP Inputs O & M'!$D$12","v":111.36223236834823},{"$f":"'DNSP Inputs O & M'!$D$519","v":2},{"$f":"'DNSP Inputs O & M'!$D$17","v":7.5},{"$f":"I506*J506*K506","v":1670.4334855252234},{"$f":"(L506+L507)/'DNSP Inputs O & M'!$D$524","v":195.24849868411121},{"$f":"M506/'DNSP Inputs O & M'!$D$468","v":19.52484986841112},null,{"$f":"'DNSP Inputs O & M'!$D$12","v":111.36223236834823},{"$f":"'DNSP Inputs O & M'!$D$519","v":2},{"$f":"'DNSP Inputs O & M'!$D$17","v":7.5},{"$f":"P506*Q506*R506","v":1670.4334855252234},{"$f":"(S506+S507)/'DNSP Inputs O & M'!$D$525","v":238.63705394724704},{"$f":"T506/'DNSP Inputs O & M'!$D$468","v":23.863705394724704},null,null,null,{"$f":"'DNSP Inputs O & M'!$E$12","v":112.10021456669011},{"$f":"'DNSP Inputs O & M'!$E$519","v":2},{"$f":"'DNSP Inputs O & M'!$E$17","v":7.5},{"$f":"Y506*Z506*AA506","v":1681.5032185003517},{"$f":"(AB506+AB507)/'DNSP Inputs O & M'!$E$523","v":137.19021456669012},{"$f":"AC506/'DNSP Inputs O & M'!$E$468","v":13.719021456669012},null,{"$f":"'DNSP Inputs O & M'!$E$12","v":112.10021456669011},{"$f":"'DNSP Inputs O & M'!$E$519","v":2},{"$f":"'DNSP Inputs O & M'!$E$17","v":7.5},{"$f":"AF506*AG506*AH506","v":1681.5032185003517},{"$f":"(AI506+AI507)/'DNSP Inputs O & M'!$E$524","v":196.25483804548651},{"$f":"AJ506/'DNSP Inputs O & M'!$E$468","v":19.625483804548651},null,{"$f":"'DNSP Inputs O & M'!$E$12","v":112.10021456669011},{"$f":"'DNSP Inputs O & M'!$E$519","v":2},{"$f":"'DNSP Inputs O & M'!$E$17","v":7.5},{"$f":"AM506*AN506*AO506","v":1681.5032185003517},{"$f":"(AP506+AP507)/'DNSP Inputs O & M'!$E$525","v":239.86702427781685},{"$f":"AQ506/'DNSP Inputs O & M'!$E$468","v":23.986702427781687},null,null,null,{"$f":"'DNSP Inputs O & M'!$F$12","v":112.78304720629164},{"$f":"'DNSP Inputs O & M'!$F$519","v":2},{"$f":"'DNSP Inputs O & M'!$F$17","v":7.5},{"$f":"AV506*AW506*AX506","v":1691.7457080943745},{"$f":"(AY506+AY507)/'DNSP Inputs O & M'!$F$523","v":137.87304720629163},{"$f":"AZ506/'DNSP Inputs O & M'!$F$468","v":13.787304720629162},null,{"$f":"'DNSP Inputs O & M'!$F$12","v":112.78304720629164},{"$f":"'DNSP Inputs O & M'!$F$519","v":2},{"$f":"'DNSP Inputs O & M'!$F$17","v":7.5},{"$f":"BC506*BD506*BE506","v":1691.7457080943745},{"$f":"(BF506+BF507)/'DNSP Inputs O & M'!$F$524","v":197.18597346312498},{"$f":"BG506/'DNSP Inputs O & M'!$F$468","v":19.718597346312499},null,{"$f":"'DNSP Inputs O & M'!$F$12","v":112.78304720629164},{"$f":"'DNSP Inputs O & M'!$F$519","v":2},{"$f":"'DNSP Inputs O & M'!$F$17","v":7.5},{"$f":"BJ506*BK506*BL506","v":1691.7457080943745},{"$f":"(BM506+BM507)/'DNSP Inputs O & M'!$F$525","v":241.00507867715274},{"$f":"BN506/'DNSP Inputs O & M'!$F$468","v":24.100507867715272},null,null,null,{"$f":"'DNSP Inputs O & M'!$G$12","v":113.60949069043043},{"$f":"'DNSP Inputs O & M'!$G$519","v":2},{"$f":"'DNSP Inputs O & M'!$G$17","v":7.5},{"$f":"BS506*BT506*BU506","v":1704.1423603564565},{"$f":"(BV506+BV507)/'DNSP Inputs O & M'!$G$523","v":138.69949069043045},{"$f":"BW506/'DNSP Inputs O & M'!$G$468","v":13.869949069043045},null,{"$f":"'DNSP Inputs O & M'!$G$12","v":113.60949069043043},{"$f":"'DNSP Inputs O & M'!$G$519","v":2},{"$f":"'DNSP Inputs O & M'!$G$17","v":7.5},{"$f":"BZ506*CA506*CB506","v":1704.1423603564565},{"$f":"(CC506+CC507)/'DNSP Inputs O & M'!$G$524","v":198.31294185058695},{"$f":"CD506/'DNSP Inputs O & M'!$G$468","v":19.831294185058695},null,{"$f":"'DNSP Inputs O & M'!$G$12","v":113.60949069043043},{"$f":"'DNSP Inputs O & M'!$G$519","v":2},{"$f":"'DNSP Inputs O & M'!$G$17","v":7.5},{"$f":"CG506*CH506*CI506","v":1704.1423603564565},{"$f":"(CJ506+CJ507)/'DNSP Inputs O & M'!$G$525","v":242.38248448405071},{"$f":"CK506/'DNSP Inputs O & M'!$G$468","v":24.23824844840507},null,null,null,{"$f":"'DNSP Inputs O & M'!$H$12","v":114.68985653357629},{"$f":"'DNSP Inputs O & M'!$H$519","v":2},{"$f":"'DNSP Inputs O & M'!$H$17","v":7.5},{"$f":"CP506*CQ506*CR506","v":1720.3478480036442},{"$f":"(CS506+CS507)/'DNSP Inputs O & M'!$H$523","v":139.77985653357626},{"$f":"CT506/'DNSP Inputs O & M'!$H$468","v":13.977985653357626},null,{"$f":"'DNSP Inputs O & M'!$H$12","v":114.68985653357629},{"$f":"'DNSP Inputs O & M'!$H$519","v":2},{"$f":"'DNSP Inputs O & M'!$H$17","v":7.5},{"$f":"CW506*CX506*CY506","v":1720.3478480036442},{"$f":"(CZ506+CZ507)/'DNSP Inputs O & M'!$H$524","v":199.78616800033132},{"$f":"DA506/'DNSP Inputs O & M'!$H$468","v":19.97861680003313},null,{"$f":"'DNSP Inputs O & M'!$H$12","v":114.68985653357629},{"$f":"'DNSP Inputs O & M'!$H$519","v":2},{"$f":"'DNSP Inputs O & M'!$H$17","v":7.5},{"$f":"DD506*DE506*DF506","v":1720.3478480036442},{"$f":"(DG506+DG507)/'DNSP Inputs O & M'!$H$525","v":244.18309422262715},{"$f":"DH506/'DNSP Inputs O & M'!$H$468","v":24.418309422262716}]
["Elevated platform vehicle costs",{"$f":"'DNSP Inputs O & M'!$D$14","v":50.18},1,{"$f":"'DNSP Inputs O & M'!$D$17","v":7.5},{"$f":"B507*C507*D507","v":376.35},null,null,null,{"$f":"'DNSP Inputs O & M'!$D$15","v":63.64},1,{"$f":"'DNSP Inputs O & M'!$D$17","v":7.5},{"$f":"I507*J507*K507","v":477.3},null,null,null,{"$f":"'DNSP Inputs O & M'!$D$15","v":63.64},1,{"$f":"'DNSP Inputs O & M'!$D$17","v":7.5},{"$f":"P507*Q507*R507","v":477.3},null,null,null,null,null,{"$f":"'DNSP Inputs O & M'!$E$14","v":50.18},1,{"$f":"'DNSP Inputs O & M'!$E$17","v":7.5},{"$f":"Y507*Z507*AA507","v":376.35},null,null,null,{"$f":"'DNSP Inputs O & M'!$E$15","v":63.64},1,{"$f":"'DNSP Inputs O & M'!$E$17","v":7.5},{"$f":"AF507*AG507*AH507","v":477.3},null,null,null,{"$f":"'DNSP Inputs O & M'!$E$15","v":63.64},1,{"$f":"'DNSP Inputs O & M'!$E$17","v":7.5},{"$f":"AM507*AN507*AO507","v":477.3},null,null,null,null,null,{"$f":"'DNSP Inputs O & M'!$F$14","v":50.18},1,{"$f":"'DNSP Inputs O & M'!$F$17","v":7.5},{"$f":"AV507*AW507*AX507","v":376.35},null,null,null,{"$f":"'DNSP Inputs O & M'!$F$15","v":63.64},1,{"$f":"'DNSP Inputs O & M'!$F$17","v":7.5},{"$f":"BC507*BD507*BE507","v":477.3},null,null,null,{"$f":"'DNSP Inputs O & M'!$F$15","v":63.64},1,{"$f":"'DNSP Inputs O & M'!$F$17","v":7.5},{"$f":"BJ507*BK507*BL507","v":477.3},null,null,null,null,null,{"$f":"'DNSP Inputs O & M'!$G$14","v":50.18},1,{"$f":"'DNSP Inputs O & M'!$G$17","v":7.5},{"$f":"BS507*BT507*BU507","v":376.35},null,null,null,{"$f":"'DNSP Inputs O & M'!$G$15","v":63.64},1,{"$f":"'DNSP Inputs O & M'!$G$17","v":7.5},{"$f":"BZ507*CA507*CB507","v":477.3},null,null,null,{"$f":"'DNSP Inputs O & M'!$G$15","v":63.64},1,{"$f":"'DNSP Inputs O & M'!$G$17","v":7.5},{"$f":"CG507*CH507*CI507","v":477.3},null,null,null,null,null,{"$f":"'DNSP Inputs O & M'!$H$14","v":50.18},1,{"$f":"'DNSP Inputs O & M'!$H$17","v":7.5},{"$f":"CP507*CQ507*CR507","v":376.35},null,null,null,{"$f":"'DNSP Inputs O & M'!$H$15","v":63.64},1,{"$f":"'DNSP Inputs O & M'!$H$17","v":7.5},{"$f":"CW507*CX507*CY507","v":477.3},null,null,null,{"$f":"'DNSP Inputs O & M'!$H$15","v":63.64},1,{"$f":"'DNSP Inputs O & M'!$H$17","v":7.5},{"$f":"DD507*DE507*DF507","v":477.3}]
["Other Maintenance and Repair costs",null,null,null,null,null,{"$f":"'DNSP Inputs O & M'!$D$535","v":9.3202762240000006},null,null,null,null,null,null,{"$f":"'DNSP Inputs O & M'!$D$535","v":9.3202762240000006},null,null,null,null,null,null,{"$f":"'DNSP Inputs O & M'!$D$535","v":9.3202762240000006},null,null,null,null,null,null,null,null,{"$f":"'DNSP Inputs O & M'!$E$535","v":9.3202762240000006},null,null,null,null,null,null,{"$f":"'DNSP Inputs O & M'!$E$535","v":9.3202762240000006},null,null,null,null,null,null,{"$f":"'DNSP Inputs O & M'!$E$535","v":9.3202762240000006},null,null,null,null,null,null,null,null,{"$f":"'DNSP Inputs O & M'!$F$535","v":9.3202762240000006},null,null,null,null,null,null,{"$f":"'DNSP Inputs O & M'!$F$535","v":9.3202762240000006},null,null,null,null,null,null,{"$f":"'DNSP Inputs O & M'!$F$535","v":9.3202762240000006},null,null,null,null,null,null,null,null,{"$f":"'DNSP Inputs O & M'!$G$535","v":9.3202762240000006},null,null,null,null,null,null,{"$f":"'DNSP Inputs O & M'!$G$535","v":9.3202762240000006},null,null,null,null,null,null,{"$f":"'DNSP Inputs O & M'!$G$535","v":9.3202762240000006},null,null,null,null,null,null,null,null,{"$f":"'DNSP Inputs O & M'!$H$535","v":9.3202762240000006},null,null,null,null,null,null,{"$f":"'DNSP Inputs O & M'!$H$535","v":9.3202762240000006},null,null,null,null,null,null,{"$f":"'DNSP Inputs O & M'!$H$535","v":9.3202762240000006}]
[]
["Overheads",{"$f":"'DNSP Inputs O & M'!$D$18","v":0.25},null,null,null,null,{"$f":"B510*SUM(G497:G508)","v":6.6169502759991445},null,{"$f":"'DNSP Inputs O & M'!$D$18","v":0.25},null,null,null,null,{"$f":"I510*SUM(N497:N508)","v":8.388879104442287},null,{"$f":"'DNSP Inputs O & M'!$D$18","v":0.25},null,null,null,null,{"$f":"P510*SUM(U497:U508)","v":10.485910785808354},null,null,null,{"$f":"'DNSP Inputs O & M'!$E$18","v":0.25},null,null,null,null,{"$f":"Y510*SUM(AD497:AD508)","v":6.6381672642014733},null,{"$f":"'DNSP Inputs O & M'!$E$18","v":0.25},null,null,null,null,{"$f":"AF510*SUM(AK497:AK508)","v":8.4181887383423444},null,{"$f":"'DNSP Inputs O & M'!$E$18","v":0.25},null,null,null,null,{"$f":"AM510*SUM(AR497:AR508)","v":10.524962343803946},null,null,null,{"$f":"'DNSP Inputs O & M'!$F$18","v":0.25},null,null,null,null,{"$f":"AV510*SUM(BA497:BA508)","v":6.6577987025900169},null,{"$f":"'DNSP Inputs O & M'!$F$18","v":0.25},null,null,null,null,{"$f":"BC510*SUM(BH497:BH508)","v":8.4453080573810624},null,{"$f":"'DNSP Inputs O & M'!$F$18","v":0.25},null,null,null,null,{"$f":"BJ510*SUM(BO497:BO508)","v":10.561095570982861},null,null,null,{"$f":"'DNSP Inputs O & M'!$G$18","v":0.25},null,null,null,null,{"$f":"BS510*SUM(BX497:BX508)","v":6.6815589527590085},null,{"$f":"'DNSP Inputs O & M'!$G$18","v":0.25},null,null,null,null,{"$f":"BZ510*SUM(CE497:CE508)","v":8.4781310116658943},null,{"$f":"'DNSP Inputs O & M'!$G$18","v":0.25},null,null,null,null,{"$f":"CG510*SUM(CL497:CL508)","v":10.604828205351872},null,null,null,{"$f":"'DNSP Inputs O & M'!$H$18","v":0.25},null,null,null,null,{"$f":"CP510*SUM(CU497:CU508)","v":6.7126194707494502},null,{"$f":"'DNSP Inputs O & M'!$H$18","v":0.25},null,null,null,null,{"$f":"CW510*SUM(DB497:DB508)","v":8.5210387232771971},null,{"$f":"'DNSP Inputs O & M'!$H$18","v":0.25},null,null,null,null,{"$f":"DD510*SUM(DI497:DI508)","v":10.661997564551672}]
[]
[null,null,null,null,null,null,{"$f":"SUM(G497,G499,G503,G506,G508,G510)","v":33.084751379995723},null,null,null,null,null,null,{"$f":"SUM(N497,N499,N503,N506,N508,N510)","v":41.944395522211437},null,null,null,null,null,null,{"$f":"SUM(U497,U499,U503,U506,U508,U510)","v":52.429553929041774},null,null,null,null,null,null,null,null,{"$f":"SUM(AD497,AD499,AD503,AD506,AD508,AD510)","v":33.190836321007367},null,null,null,null,null,null,{"$f":"SUM(AK497,AK499,AK503,AK506,AK508,AK510)","v":42.090943691711722},null,null,null,null,null,null,{"$f":"SUM(AR497,AR499,AR503,AR506,AR508,AR510)","v":52.624811719019732},null,null,null,null,null,null,null,null,{"$f":"SUM(BA497,BA499,BA503,BA506,BA508,BA510)","v":33.288993512950086},null,null,null,null,null,null,{"$f":"SUM(BH497,BH499,BH503,BH506,BH508,BH510)","v":42.226540286905312},null,null,null,null,null,null,{"$f":"SUM(BO497,BO499,BO503,BO506,BO508,BO510)","v":52.805477854914301},null,null,null,null,null,null,null,null,{"$f":"SUM(BX497,BX499,BX503,BX506,BX508,BX510)","v":33.407794763795039},null,null,null,null,null,null,{"$f":"SUM(CE497,CE499,CE503,CE506,CE508,CE510)","v":42.390655058329472},null,null,null,null,null,null,{"$f":"SUM(CL497,CL499,CL503,CL506,CL508,CL510)","v":53.024141026759359},null,null,null,null,null,null,null,null,{"$f":"SUM(CU497,CU499,CU503,CU506,CU508,CU510)","v":33.563097353747253},null,null,null,null,null,null,{"$f":"SUM(DB497,DB499,DB503,DB506,DB508,DB510)","v":42.605193616385989},null,null,null,null,null,null,{"$f":"SUM(DI497,DI499,DI503,DI506,DI508,DI510)","v":53.309987822758359}]
[]
[]
[]
["NEW"]
["Category Smart lighting L2 - Cost build-up"]
[]
["Additional assumptions"]
[]
[]
["Overheads are applied to material and labour components"]
["All costs and charges are exclusive of GST"]
[]
[null,"Urban",null,null,null,null,null,null,"Rural",null,null,null,null,null,null,"Remote",null,null,null,null,null,null,null,null,"Urban",null,null,null,null,null,null,"Rural",null,null,null,null,null,null,"Remote",null,null,null,null,null,null,null,null,"Urban",null,null,null,null,null,null,"Rural",null,null,null,null,null,null,"Remote",null,null,null,null,null,null,null,null,"Urban",null,null,null,null,null,null,"Rural",null,null,null,null,null,null,"Remote",null,null,null,null,null,null,null,null,"Urban",null,null,null,null,null,null,"Rural",null,null,null,null,null,null,"Remote"]
[]
[null,"Unit rate","Number","Hours","Cost","Annualised","Annualised",null,"Unit rate","Number","Hours","Cost","Annualised","Annualised",null,"Unit rate","Number","Hours","Cost","Annualised","Annualised",null,null,null,"Unit rate","Number","Hours","Cost","Annualised","Annualised",null,"Unit rate","Number","Hours","Cost","Annualised","Annualised",null,"Unit rate","Number","Hours","Cost","Annualised","Annualised",null,null,null,"Unit rate","Number","Hours","Cost","Annualised","Annualised",null,"Unit rate","Number","Hours","Cost","Annualised","Annualised",null,"Unit rate","Number","Hours","Cost","Annualised","Annualised",null,null,null,"Unit rate","Number","Hours","Cost","Annualised","Annualised",null,"Unit rate","Number","Hours","Cost","Annualised","Annualised",null,"Unit rate","Number","Hours","Cost","Annualised","Annualised",null,null,null,"Unit rate","Number","Hours","Cost","Annualised","Annualised",null,"Unit rate","Number","Hours","Cost","Annualised","Annualised",null,"Unit rate","Number","Hours","Cost","Annualised","Annualised"]
[null,null,null,null,null," cost","unit cost",null,null,null,null,null," cost","unit cost",null,null,null,null,null," cost","unit cost",null,null,null,null,null,null,null," cost","unit cost",null,null,null,null,null," cost","unit cost",null,null,null,null,null," cost","unit cost",null,null,null,null,null,null,null," cost","unit cost",null,null,null,null,null," cost","unit cost",null,null,null,null,null," cost","unit cost",null,null,null,null,null,null,null," cost","unit cost",null,null,null,null,null," cost","unit cost",null,null,null,null,null," cost","unit cost",null,null,null,null,null,null,null," cost","unit cost",null,null,null,null,null," cost","unit cost",null,null,null,null,null," cost","unit cost"]
["Smart lighting L2"]
["Patrols & repairs"]
[]
[]
["Materials - repair of faults"]
["PE cell",{"$f":"'DNSP Inputs O & M'!$D$560","v":114.023},{"$f":"'DNSP Inputs O & M'!$D$567*'DNSP Inputs O & M'!$D$570","v":13.5},null,{"$f":"B534*C534","v":1539.3105},{"$f":"(E534+E535+E536)/'DNSP Inputs O & M'!$D$564","v":0.52469771921217689},{"$f":"F534*'DNSP Inputs O & M'!$D$467","v":1.5740931576365307},null,{"$f":"'DNSP Inputs O & M'!$D$560*(1+'DNSP Inputs O & M'!$D$11)","v":119.72414999999999},{"$f":"'DNSP Inputs O & M'!$D$524*'DNSP Inputs O & M'!$D$570","v":9.9},null,{"$f":"I534*J534","v":1185.2690849999999},{"$f":"(L534+L535+L536)/'DNSP Inputs O & M'!$D$565","v":0.60602586569006422},{"$f":"M534*'DNSP Inputs O & M'!$D$467","v":1.8180775970701926},null,{"$f":"'DNSP Inputs O & M'!$D$560*(1+'DNSP Inputs O & M'!$D$11)","v":119.72414999999999},{"$f":"'DNSP Inputs O & M'!$D$525*'DNSP Inputs O & M'!$D$570","v":8.1},null,{"$f":"P534*Q534","v":969.76561499999991},{"$f":"(S534+S535+S536)/'DNSP Inputs O & M'!$D$566","v":0.99167868931101433},{"$f":"T534*'DNSP Inputs O & M'!$D$467","v":2.975036067933043},null,null,null,{"$f":"'DNSP Inputs O & M'!$E$560","v":114.023},{"$f":"'DNSP Inputs O & M'!$E$567*'DNSP Inputs O & M'!$E$570","v":13.5},null,{"$f":"Y534*Z534","v":1539.3105},{"$f":"(AB534+AB535+AB536)/'DNSP Inputs O & M'!$E$564","v":0.52469771921217689},{"$f":"AC534*'DNSP Inputs O & M'!$E$467","v":1.5740931576365307},null,{"$f":"'DNSP Inputs O & M'!$E$560*(1+'DNSP Inputs O & M'!$E$11)","v":119.72414999999999},{"$f":"'DNSP Inputs O & M'!$E$524*'DNSP Inputs O & M'!$E$570","v":9.9},null,{"$f":"AF534*AG534","v":1185.2690849999999},{"$f":"(AI534+AI535+AI536)/'DNSP Inputs O & M'!$E$565","v":0.60602586569006422},{"$f":"AJ534*'DNSP Inputs O & M'!$E$467","v":1.8180775970701926},null,{"$f":"'DNSP Inputs O & M'!$E$560*(1+'DNSP Inputs O & M'!$E$11)","v":119.72414999999999},{"$f":"'DNSP Inputs O & M'!$E$525*'DNSP Inputs O & M'!$E$570","v":8.1},null,{"$f":"AM534*AN534","v":969.76561499999991},{"$f":"(AP534+AP535+AP536)/'DNSP Inputs O & M'!$E$566","v":0.99167868931101433},{"$f":"AQ534*'DNSP Inputs O & M'!$E$467","v":2.975036067933043},null,null,null,{"$f":"'DNSP Inputs O & M'!$F$560","v":114.023},{"$f":"'DNSP Inputs O & M'!$F$567*'DNSP Inputs O & M'!$F$570","v":13.5},null,{"$f":"AV534*AW534","v":1539.3105},{"$f":"(AY534+AY535+AY536)/'DNSP Inputs O & M'!$F$564","v":0.52469771921217689},{"$f":"AZ534*'DNSP Inputs O & M'!$F$467","v":1.5740931576365307},null,{"$f":"'DNSP Inputs O & M'!$F$560*(1+'DNSP Inputs O & M'!$F$11)","v":119.72414999999999},{"$f":"'DNSP Inputs O & M'!$F$524*'DNSP Inputs O & M'!$F$570","v":9.9},null,{"$f":"BC534*BD534","v":1185.2690849999999},{"$f":"(BF534+BF535+BF536)/'DNSP Inputs O & M'!$F$565","v":0.60602586569006422},{"$f":"BG534*'DNSP Inputs O & M'!$F$467","v":1.8180775970701926},null,{"$f":"'DNSP Inputs O & M'!$F$560*(1+'DNSP Inputs O & M'!$F$11)","v":119.72414999999999},{"$f":"'DNSP Inputs O & M'!$F$525*'DNSP Inputs O & M'!$F$570","v":8.1},null,{"$f":"BJ534*BK534","v":969.76561499999991},{"$f":"(BM534+BM535+BM536)/'DNSP Inputs O & M'!$F$566","v":0.99167868931101433},{"$f":"BN534*'DNSP Inputs O & M'!$F$467","v":2.975036067933043},null,null,null,{"$f":"'DNSP Inputs O & M'!$G$560","v":114.023},{"$f":"'DNSP Inputs O & M'!$G$567*'DNSP Inputs O & M'!$G$570","v":13.5},null,{"$f":"BS534*BT534","v":1539.3105},{"$f":"(BV534+BV535+BV536)/'DNSP Inputs O & M'!$G$564","v":0.52469771921217689},{"$f":"BW534*'DNSP Inputs O & M'!$G$467","v":1.5740931576365307},null,{"$f":"'DNSP Inputs O & M'!$G$560*(1+'DNSP Inputs O & M'!$G$11)","v":119.72414999999999},{"$f":"'DNSP Inputs O & M'!$G$524*'DNSP Inputs O & M'!$G$570","v":9.9},null,{"$f":"BZ534*CA534","v":1185.2690849999999},{"$f":"(CC534+CC535+CC536)/'DNSP Inputs O & M'!$G$565","v":0.60602586569006422},{"$f":"CD534*'DNSP Inputs O & M'!$G$467","v":1.8180775970701926},null,{"$f":"'DNSP Inputs O & M'!$G$560*(1+'DNSP Inputs O & M'!$G$11)","v":119.72414999999999},{"$f":"'DNSP Inputs O & M'!$G$525*'DNSP Inputs O & M'!$G$570","v":8.1},null,{"$f":"CG534*CH534","v":969.76561499999991},{"$f":"(CJ534+CJ535+CJ536)/'DNSP Inputs O & M'!$G$566","v":0.99167868931101433},{"$f":"CK534*'DNSP Inputs O & M'!$G$467","v":2.975036067933043},null,null,null,{"$f":"'DNSP Inputs O & M'!$H$560","v":114.023},{"$f":"'DNSP Inputs O & M'!$H$567*'DNSP Inputs O & M'!$H$570","v":13.5},null,{"$f":"CP534*CQ534","v":1539.3105},{"$f":"(CS534+CS535+CS536)/'DNSP Inputs O & M'!$H$564","v":0.52469771921217689},{"$f":"CT534*'DNSP Inputs O & M'!$H$467","v":1.5740931576365307},null,{"$f":"'DNSP Inputs O & M'!$H$560*(1+'DNSP Inputs O & M'!$H$11)","v":119.72414999999999},{"$f":"'DNSP Inputs O & M'!$H$524*'DNSP Inputs O & M'!$H$570","v":9.9},null,{"$f":"CW534*CX534","v":1185.2690849999999},{"$f":"(CZ534+CZ535+CZ536)/'DNSP Inputs O & M'!$H$565","v":0.60602586569006422},{"$f":"DA534*'DNSP Inputs O & M'!$H$467","v":1.8180775970701926},null,{"$f":"'DNSP Inputs O & M'!$H$560*(1+'DNSP Inputs O & M'!$H$11)","v":119.72414999999999},{"$f":"'DNSP Inputs O & M'!$H$525*'DNSP Inputs O & M'!$H$570","v":8.1},null,{"$f":"DD534*DE534","v":969.76561499999991},{"$f":"(DG534+DG535+DG536)/'DNSP Inputs O & M'!$H$566","v":0.99167868931101433},{"$f":"DH534*'DNSP Inputs O & M'!$H$467","v":2.975036067933043}]
["Luminaire",{"$f":"'DNSP Inputs O & M'!$D$561","v":427},{"$f":"'DNSP Inputs O & M'!$D$567*'DNSP Inputs O & M'!$D$571","v":0},null,{"$f":"B535*C535","v":0},null,null,null,{"$f":"'DNSP Inputs O & M'!$D$561*(1+'DNSP Inputs O & M'!$D$11)","v":448.35},{"$f":"'DNSP Inputs O & M'!$D$524*'DNSP Inputs O & M'!$D$571","v":0},null,{"$f":"I535*J535","v":0},null,null,null,{"$f":"'DNSP Inputs O & M'!$D$561*(1+'DNSP Inputs O & M'!$D$11)","v":448.35},{"$f":"'DNSP Inputs O & M'!$D$525*'DNSP Inputs O & M'!$D$571","v":0},null,{"$f":"P535*Q535","v":0},null,null,null,null,null,{"$f":"'DNSP Inputs O & M'!$E$561","v":427},{"$f":"'DNSP Inputs O & M'!$E$567*'DNSP Inputs O & M'!$E$571","v":0},null,{"$f":"Y535*Z535","v":0},null,null,null,{"$f":"'DNSP Inputs O & M'!$E$561*(1+'DNSP Inputs O & M'!$E$11)","v":448.35},{"$f":"'DNSP Inputs O & M'!$E$524*'DNSP Inputs O & M'!$E$571","v":0},null,{"$f":"AF535*AG535","v":0},null,null,null,{"$f":"'DNSP Inputs O & M'!$E$561*(1+'DNSP Inputs O & M'!$E$11)","v":448.35},{"$f":"'DNSP Inputs O & M'!$E$525*'DNSP Inputs O & M'!$E$571","v":0},null,{"$f":"AM535*AN535","v":0},null,null,null,null,null,{"$f":"'DNSP Inputs O & M'!$F$561","v":427},{"$f":"'DNSP Inputs O & M'!$F$567*'DNSP Inputs O & M'!$F$571","v":0},null,{"$f":"AV535*AW535","v":0},null,null,null,{"$f":"'DNSP Inputs O & M'!$F$561*(1+'DNSP Inputs O & M'!$F$11)","v":448.35},{"$f":"'DNSP Inputs O & M'!$F$524*'DNSP Inputs O & M'!$F$571","v":0},null,{"$f":"BC535*BD535","v":0},null,null,null,{"$f":"'DNSP Inputs O & M'!$F$561*(1+'DNSP Inputs O & M'!$F$11)","v":448.35},{"$f":"'DNSP Inputs O & M'!$F$525*'DNSP Inputs O & M'!$F$571","v":0},null,{"$f":"BJ535*BK535","v":0},null,null,null,null,null,{"$f":"'DNSP Inputs O & M'!$G$561","v":427},{"$f":"'DNSP Inputs O & M'!$G$567*'DNSP Inputs O & M'!$G$571","v":0},null,{"$f":"BS535*BT535","v":0},null,null,null,{"$f":"'DNSP Inputs O & M'!$G$561*(1+'DNSP Inputs O & M'!$G$11)","v":448.35},{"$f":"'DNSP Inputs O & M'!$G$524*'DNSP Inputs O & M'!$G$571","v":0},null,{"$f":"BZ535*CA535","v":0},null,null,null,{"$f":"'DNSP Inputs O & M'!$G$561*(1+'DNSP Inputs O & M'!$G$11)","v":448.35},{"$f":"'DNSP Inputs O & M'!$G$525*'DNSP Inputs O & M'!$G$571","v":0},null,{"$f":"CG535*CH535","v":0},null,null,null,null,null,{"$f":"'DNSP Inputs O & M'!$H$561","v":427},{"$f":"'DNSP Inputs O & M'!$H$567*'DNSP Inputs O & M'!$H$571","v":0},null,{"$f":"CP535*CQ535","v":0},null,null,null,{"$f":"'DNSP Inputs O & M'!$H$561*(1+'DNSP Inputs O & M'!$H$11)","v":448.35},{"$f":"'DNSP Inputs O & M'!$H$524*'DNSP Inputs O & M'!$H$571","v":0},null,{"$f":"CW535*CX535","v":0},null,null,null,{"$f":"'DNSP Inputs O & M'!$H$561*(1+'DNSP Inputs O & M'!$H$11)","v":448.35},{"$f":"'DNSP Inputs O & M'!$H$525*'DNSP Inputs O & M'!$H$571","v":0},null,{"$f":"DD535*DE535","v":0}]
["Miscellaneous",{"$f":"'DNSP Inputs O & M'!$D$562","v":23.188438424353883},{"$f":"'DNSP Inputs O & M'!$D$567*'DNSP Inputs O & M'!$D$572","v":1.5},null,{"$f":"B536*C536","v":34.782657636530828},null,null,null,{"$f":"'DNSP Inputs O & M'!$D$562*(1+'DNSP Inputs O & M'!$D$11)","v":24.347860345571579},{"$f":"'DNSP Inputs O & M'!$D$524*'DNSP Inputs O & M'!$D$572","v":1.1000000000000001},null,{"$f":"I536*J536","v":26.782646380128739},null,null,null,{"$f":"'DNSP Inputs O & M'!$D$562*(1+'DNSP Inputs O & M'!$D$11)","v":24.347860345571579},{"$f":"'DNSP Inputs O & M'!$D$525*'DNSP Inputs O & M'!$D$572","v":0.9},null,{"$f":"P536*Q536","v":21.913074311014423},null,null,null,null,null,{"$f":"'DNSP Inputs O & M'!$E$562","v":23.188438424353883},{"$f":"'DNSP Inputs O & M'!$E$567*'DNSP Inputs O & M'!$E$572","v":1.5},null,{"$f":"Y536*Z536","v":34.782657636530828},null,null,null,{"$f":"'DNSP Inputs O & M'!$E$562*(1+'DNSP Inputs O & M'!$E$11)","v":24.347860345571579},{"$f":"'DNSP Inputs O & M'!$E$524*'DNSP Inputs O & M'!$E$572","v":1.1000000000000001},null,{"$f":"AF536*AG536","v":26.782646380128739},null,null,null,{"$f":"'DNSP Inputs O & M'!$E$562*(1+'DNSP Inputs O & M'!$E$11)","v":24.347860345571579},{"$f":"'DNSP Inputs O & M'!$E$525*'DNSP Inputs O & M'!$E$572","v":0.9},null,{"$f":"AM536*AN536","v":21.913074311014423},null,null,null,null,null,{"$f":"'DNSP Inputs O & M'!$F$562","v":23.188438424353883},{"$f":"'DNSP Inputs O & M'!$F$567*'DNSP Inputs O & M'!$F$572","v":1.5},null,{"$f":"AV536*AW536","v":34.782657636530828},null,null,null,{"$f":"'DNSP Inputs O & M'!$F$562*(1+'DNSP Inputs O & M'!$F$11)","v":24.347860345571579},{"$f":"'DNSP Inputs O & M'!$F$524*'DNSP Inputs O & M'!$F$572","v":1.1000000000000001},null,{"$f":"BC536*BD536","v":26.782646380128739},null,null,null,{"$f":"'DNSP Inputs O & M'!$F$562*(1+'DNSP Inputs O & M'!$F$11)","v":24.347860345571579},{"$f":"'DNSP Inputs O & M'!$F$525*'DNSP Inputs O & M'!$F$572","v":0.9},null,{"$f":"BJ536*BK536","v":21.913074311014423},null,null,null,null,null,{"$f":"'DNSP Inputs O & M'!$G$562","v":23.188438424353883},{"$f":"'DNSP Inputs O & M'!$G$567*'DNSP Inputs O & M'!$G$572","v":1.5},null,{"$f":"BS536*BT536","v":34.782657636530828},null,null,null,{"$f":"'DNSP Inputs O & M'!$G$562*(1+'DNSP Inputs O & M'!$G$11)","v":24.347860345571579},{"$f":"'DNSP Inputs O & M'!$G$524*'DNSP Inputs O & M'!$G$572","v":1.1000000000000001},null,{"$f":"BZ536*CA536","v":26.782646380128739},null,null,null,{"$f":"'DNSP Inputs O & M'!$G$562*(1+'DNSP Inputs O & M'!$G$11)","v":24.347860345571579},{"$f":"'DNSP Inputs O & M'!$G$525*'DNSP Inputs O & M'!$G$572","v":0.9},null,{"$f":"CG536*CH536","v":21.913074311014423},null,null,null,null,null,{"$f":"'DNSP Inputs O & M'!$H$562","v":23.188438424353883},{"$f":"'DNSP Inputs O & M'!$H$567*'DNSP Inputs O & M'!$H$572","v":1.5},null,{"$f":"CP536*CQ536","v":34.782657636530828},null,null,null,{"$f":"'DNSP Inputs O & M'!$H$562*(1+'DNSP Inputs O & M'!$H$11)","v":24.347860345571579},{"$f":"'DNSP Inputs O & M'!$H$524*'DNSP Inputs O & M'!$H$572","v":1.1000000000000001},null,{"$f":"CW536*CX536","v":26.782646380128739},null,null,null,{"$f":"'DNSP Inputs O & M'!$H$562*(1+'DNSP Inputs O & M'!$H$11)","v":24.347860345571579},{"$f":"'DNSP Inputs O & M'!$H$525*'DNSP Inputs O & M'!$H$572","v":0.9},null,{"$f":"DD536*DE536","v":21.913074311014423}]
["Labour - Patrol"]
["Crew costs",{"$f":"'DNSP Inputs O & M'!$D$12","v":111.36223236834823},{"$f":"'DNSP Inputs O & M'!$D$563","v":2},{"$f":"'DNSP Inputs O & M'!$D$17","v":7.5},{"$f":"B538*C538*D538","v":1670.4334855252234},{"$f":"E538/'DNSP Inputs O & M'!$D$564","v":0.55681116184174118},{"$f":"(F538+F539)*'DNSP Inputs O & M'!$D$467","v":1.9282084855252237},null,{"$f":"'DNSP Inputs O & M'!$D$12","v":111.36223236834823},{"$f":"'DNSP Inputs O & M'!$D$563","v":2},{"$f":"'DNSP Inputs O & M'!$D$17","v":7.5},{"$f":"I538*J538*K538","v":1670.4334855252234},{"$f":"L538/'DNSP Inputs O & M'!$D$565","v":0.83521674276261171},{"$f":"(M538+M539)*'DNSP Inputs O & M'!$D$467","v":2.8923127282878349},null,{"$f":"'DNSP Inputs O & M'!$D$12","v":111.36223236834823},{"$f":"'DNSP Inputs O & M'!$D$563","v":2},{"$f":"'DNSP Inputs O & M'!$D$17","v":7.5},{"$f":"P538*Q538*R538","v":1670.4334855252234},{"$f":"S538/'DNSP Inputs O & M'!$D$566","v":1.6704334855252234},{"$f":"(T538+T539)*'DNSP Inputs O & M'!$D$467","v":5.7846254565756698},null,null,null,{"$f":"'DNSP Inputs O & M'!$E$12","v":112.10021456669011},{"$f":"'DNSP Inputs O & M'!$E$563","v":2},{"$f":"'DNSP Inputs O & M'!$E$17","v":7.5},{"$f":"Y538*Z538*AA538","v":1681.5032185003517},{"$f":"AB538/'DNSP Inputs O & M'!$E$564","v":0.56050107283345063},{"$f":"(AC538+AC539)*'DNSP Inputs O & M'!$E$467","v":1.9392782185003519},null,{"$f":"'DNSP Inputs O & M'!$E$12","v":112.10021456669011},{"$f":"'DNSP Inputs O & M'!$E$563","v":2},{"$f":"'DNSP Inputs O & M'!$E$17","v":7.5},{"$f":"AF538*AG538*AH538","v":1681.5032185003517},{"$f":"AI538/'DNSP Inputs O & M'!$E$565","v":0.84075160925017589},{"$f":"(AJ538+AJ539)*'DNSP Inputs O & M'!$E$467","v":2.9089173277505278},null,{"$f":"'DNSP Inputs O & M'!$E$12","v":112.10021456669011},{"$f":"'DNSP Inputs O & M'!$E$563","v":2},{"$f":"'DNSP Inputs O & M'!$E$17","v":7.5},{"$f":"AM538*AN538*AO538","v":1681.5032185003517},{"$f":"AP538/'DNSP Inputs O & M'!$E$566","v":1.6815032185003518},{"$f":"(AQ538+AQ539)*'DNSP Inputs O & M'!$E$467","v":5.8178346555010556},null,null,null,{"$f":"'DNSP Inputs O & M'!$F$12","v":112.78304720629164},{"$f":"'DNSP Inputs O & M'!$F$563","v":2},{"$f":"'DNSP Inputs O & M'!$F$17","v":7.5},{"$f":"AV538*AW538*AX538","v":1691.7457080943745},{"$f":"AY538/'DNSP Inputs O & M'!$F$564","v":0.56391523603145821},{"$f":"(AZ538+AZ539)*'DNSP Inputs O & M'!$F$467","v":1.9495207080943748},null,{"$f":"'DNSP Inputs O & M'!$F$12","v":112.78304720629164},{"$f":"'DNSP Inputs O & M'!$F$563","v":2},{"$f":"'DNSP Inputs O & M'!$F$17","v":7.5},{"$f":"BC538*BD538*BE538","v":1691.7457080943745},{"$f":"BF538/'DNSP Inputs O & M'!$F$565","v":0.84587285404718726},{"$f":"(BG538+BG539)*'DNSP Inputs O & M'!$F$467","v":2.9242810621415618},null,{"$f":"'DNSP Inputs O & M'!$F$12","v":112.78304720629164},{"$f":"'DNSP Inputs O & M'!$F$563","v":2},{"$f":"'DNSP Inputs O & M'!$F$17","v":7.5},{"$f":"BJ538*BK538*BL538","v":1691.7457080943745},{"$f":"BM538/'DNSP Inputs O & M'!$F$566","v":1.6917457080943745},{"$f":"(BN538+BN539)*'DNSP Inputs O & M'!$F$467","v":5.8485621242831236},null,null,null,{"$f":"'DNSP Inputs O & M'!$G$12","v":113.60949069043043},{"$f":"'DNSP Inputs O & M'!$G$563","v":2},{"$f":"'DNSP Inputs O & M'!$G$17","v":7.5},{"$f":"BS538*BT538*BU538","v":1704.1423603564565},{"$f":"BV538/'DNSP Inputs O & M'!$G$564","v":0.56804745345215213},{"$f":"(BW538+BW539)*'DNSP Inputs O & M'!$G$467","v":1.9619173603564564},null,{"$f":"'DNSP Inputs O & M'!$G$12","v":113.60949069043043},{"$f":"'DNSP Inputs O & M'!$G$563","v":2},{"$f":"'DNSP Inputs O & M'!$G$17","v":7.5},{"$f":"BZ538*CA538*CB538","v":1704.1423603564565},{"$f":"CC538/'DNSP Inputs O & M'!$G$565","v":0.85207118017822825},{"$f":"(CD538+CD539)*'DNSP Inputs O & M'!$G$467","v":2.9428760405346845},null,{"$f":"'DNSP Inputs O & M'!$G$12","v":113.60949069043043},{"$f":"'DNSP Inputs O & M'!$G$563","v":2},{"$f":"'DNSP Inputs O & M'!$G$17","v":7.5},{"$f":"CG538*CH538*CI538","v":1704.1423603564565},{"$f":"CJ538/'DNSP Inputs O & M'!$G$566","v":1.7041423603564565},{"$f":"(CK538+CK539)*'DNSP Inputs O & M'!$G$467","v":5.8857520810693691},null,null,null,{"$f":"'DNSP Inputs O & M'!$H$12","v":114.68985653357629},{"$f":"'DNSP Inputs O & M'!$H$563","v":2},{"$f":"'DNSP Inputs O & M'!$H$17","v":7.5},{"$f":"CP538*CQ538*CR538","v":1720.3478480036442},{"$f":"CS538/'DNSP Inputs O & M'!$H$564","v":0.57344928266788142},{"$f":"(CT538+CT539)*'DNSP Inputs O & M'!$H$467","v":1.9781228480036444},null,{"$f":"'DNSP Inputs O & M'!$H$12","v":114.68985653357629},{"$f":"'DNSP Inputs O & M'!$H$563","v":2},{"$f":"'DNSP Inputs O & M'!$H$17","v":7.5},{"$f":"CW538*CX538*CY538","v":1720.3478480036442},{"$f":"CZ538/'DNSP Inputs O & M'!$H$565","v":0.86017392400182213},{"$f":"(DA538+DA539)*'DNSP Inputs O & M'!$H$467","v":2.9671842720054662},null,{"$f":"'DNSP Inputs O & M'!$H$12","v":114.68985653357629},{"$f":"'DNSP Inputs O & M'!$H$563","v":2},{"$f":"'DNSP Inputs O & M'!$H$17","v":7.5},{"$f":"DD538*DE538*DF538","v":1720.3478480036442},{"$f":"DG538/'DNSP Inputs O & M'!$H$566","v":1.7203478480036443},{"$f":"(DH538+DH539)*'DNSP Inputs O & M'!$H$467","v":5.9343685440109324}]
["Vehicle costs",{"$f":"'DNSP Inputs O & M'!$D$16","v":34.369999999999997},1,{"$f":"'DNSP Inputs O & M'!$D$17","v":7.5},{"$f":"B539*C539*D539","v":257.77499999999998},{"$f":"E539/'DNSP Inputs O & M'!$D$564","v":8.5924999999999987E-2},null,null,{"$f":"'DNSP Inputs O & M'!$D$16","v":34.369999999999997},1,{"$f":"'DNSP Inputs O & M'!$D$17","v":7.5},{"$f":"I539*J539*K539","v":257.77499999999998},{"$f":"L539/'DNSP Inputs O & M'!$D$565","v":0.12888749999999999},null,null,{"$f":"'DNSP Inputs O & M'!$D$16","v":34.369999999999997},1,{"$f":"'DNSP Inputs O & M'!$D$17","v":7.5},{"$f":"P539*Q539*R539","v":257.77499999999998},{"$f":"S539/'DNSP Inputs O & M'!$D$566","v":0.25777499999999998},null,null,null,null,{"$f":"'DNSP Inputs O & M'!$E$16","v":34.369999999999997},1,{"$f":"'DNSP Inputs O & M'!$E$17","v":7.5},{"$f":"Y539*Z539*AA539","v":257.77499999999998},{"$f":"AB539/'DNSP Inputs O & M'!$E$564","v":8.5924999999999987E-2},null,null,{"$f":"'DNSP Inputs O & M'!$E$16","v":34.369999999999997},1,{"$f":"'DNSP Inputs O & M'!$E$17","v":7.5},{"$f":"AF539*AG539*AH539","v":257.77499999999998},{"$f":"AI539/'DNSP Inputs O & M'!$E$565","v":0.12888749999999999},null,null,{"$f":"'DNSP Inputs O & M'!$E$16","v":34.369999999999997},1,{"$f":"'DNSP Inputs O & M'!$E$17","v":7.5},{"$f":"AM539*AN539*AO539","v":257.77499999999998},{"$f":"AP539/'DNSP Inputs O & M'!$E$566","v":0.25777499999999998},null,null,null,null,{"$f":"'DNSP Inputs O & M'!$F$16","v":34.369999999999997},1,{"$f":"'DNSP Inputs O & M'!$F$17","v":7.5},{"$f":"AV539*AW539*AX539","v":257.77499999999998},{"$f":"AY539/'DNSP Inputs O & M'!$F$564","v":8.5924999999999987E-2},null,null,{"$f":"'DNSP Inputs O & M'!$F$16","v":34.369999999999997},1,{"$f":"'DNSP Inputs O & M'!$F$17","v":7.5},{"$f":"BC539*BD539*BE539","v":257.77499999999998},{"$f":"BF539/'DNSP Inputs O & M'!$F$565","v":0.12888749999999999},null,null,{"$f":"'DNSP Inputs O & M'!$F$16","v":34.369999999999997},1,{"$f":"'DNSP Inputs O & M'!$F$17","v":7.5},{"$f":"BJ539*BK539*BL539","v":257.77499999999998},{"$f":"BM539/'DNSP Inputs O & M'!$F$566","v":0.25777499999999998},null,null,null,null,{"$f":"'DNSP Inputs O & M'!$G$16","v":34.369999999999997},1,{"$f":"'DNSP Inputs O & M'!$G$17","v":7.5},{"$f":"BS539*BT539*BU539","v":257.77499999999998},{"$f":"BV539/'DNSP Inputs O & M'!$G$564","v":8.5924999999999987E-2},null,null,{"$f":"'DNSP Inputs O & M'!$G$16","v":34.369999999999997},1,{"$f":"'DNSP Inputs O & M'!$G$17","v":7.5},{"$f":"BZ539*CA539*CB539","v":257.77499999999998},{"$f":"CC539/'DNSP Inputs O & M'!$G$565","v":0.12888749999999999},null,null,{"$f":"'DNSP Inputs O & M'!$G$16","v":34.369999999999997},1,{"$f":"'DNSP Inputs O & M'!$G$17","v":7.5},{"$f":"CG539*CH539*CI539","v":257.77499999999998},{"$f":"CJ539/'DNSP Inputs O & M'!$G$566","v":0.25777499999999998},null,null,null,null,{"$f":"'DNSP Inputs O & M'!$H$16","v":34.369999999999997},1,{"$f":"'DNSP Inputs O & M'!$H$17","v":7.5},{"$f":"CP539*CQ539*CR539","v":257.77499999999998},{"$f":"CS539/'DNSP Inputs O & M'!$H$564","v":8.5924999999999987E-2},null,null,{"$f":"'DNSP Inputs O & M'!$H$16","v":34.369999999999997},1,{"$f":"'DNSP Inputs O & M'!$H$17","v":7.5},{"$f":"CW539*CX539*CY539","v":257.77499999999998},{"$f":"CZ539/'DNSP Inputs O & M'!$H$565","v":0.12888749999999999},null,null,{"$f":"'DNSP Inputs O & M'!$H$16","v":34.369999999999997},1,{"$f":"'DNSP Inputs O & M'!$H$17","v":7.5},{"$f":"DD539*DE539*DF539","v":257.77499999999998},{"$f":"DG539/'DNSP Inputs O & M'!$H$566","v":0.25777499999999998}]
["Labour - repair of faults"]
["Crew costs",{"$f":"'DNSP Inputs O & M'!$D$12","v":111.36223236834823},{"$f":"'DNSP Inputs O & M'!$D$563","v":2},{"$f":"'DNSP Inputs O & M'!$D$17","v":7.5},{"$f":"B541*C541*D541","v":1670.4334855252234},{"$f":"(E541+E542)/'DNSP Inputs O & M'!$D$567","v":136.45223236834823},{"$f":"F541/'DNSP Inputs O & M'!$D$468","v":13.645223236834823},null,{"$f":"'DNSP Inputs O & M'!$D$12","v":111.36223236834823},{"$f":"'DNSP Inputs O & M'!$D$563","v":2},{"$f":"'DNSP Inputs O & M'!$D$17","v":7.5},{"$f":"I541*J541*K541","v":1670.4334855252234},{"$f":"(L541+L542)/'DNSP Inputs O & M'!$D$568","v":195.24849868411121},{"$f":"M541/'DNSP Inputs O & M'!$D$468","v":19.52484986841112},null,{"$f":"'DNSP Inputs O & M'!$D$12","v":111.36223236834823},{"$f":"'DNSP Inputs O & M'!$D$563","v":2},{"$f":"'DNSP Inputs O & M'!$D$17","v":7.5},{"$f":"P541*Q541*R541","v":1670.4334855252234},{"$f":"(S541+S542)/'DNSP Inputs O & M'!$D$569","v":238.63705394724704},{"$f":"T541/'DNSP Inputs O & M'!$D$468","v":23.863705394724704},null,null,null,{"$f":"'DNSP Inputs O & M'!$E$12","v":112.10021456669011},{"$f":"'DNSP Inputs O & M'!$E$563","v":2},{"$f":"'DNSP Inputs O & M'!$E$17","v":7.5},{"$f":"Y541*Z541*AA541","v":1681.5032185003517},{"$f":"(AB541+AB542)/'DNSP Inputs O & M'!$E$567","v":137.19021456669012},{"$f":"AC541/'DNSP Inputs O & M'!$E$468","v":13.719021456669012},null,{"$f":"'DNSP Inputs O & M'!$E$12","v":112.10021456669011},{"$f":"'DNSP Inputs O & M'!$E$563","v":2},{"$f":"'DNSP Inputs O & M'!$E$17","v":7.5},{"$f":"AF541*AG541*AH541","v":1681.5032185003517},{"$f":"(AI541+AI542)/'DNSP Inputs O & M'!$E$568","v":196.25483804548651},{"$f":"AJ541/'DNSP Inputs O & M'!$E$468","v":19.625483804548651},null,{"$f":"'DNSP Inputs O & M'!$E$12","v":112.10021456669011},{"$f":"'DNSP Inputs O & M'!$E$563","v":2},{"$f":"'DNSP Inputs O & M'!$E$17","v":7.5},{"$f":"AM541*AN541*AO541","v":1681.5032185003517},{"$f":"(AP541+AP542)/'DNSP Inputs O & M'!$E$569","v":239.86702427781685},{"$f":"AQ541/'DNSP Inputs O & M'!$E$468","v":23.986702427781687},null,null,null,{"$f":"'DNSP Inputs O & M'!$F$12","v":112.78304720629164},{"$f":"'DNSP Inputs O & M'!$F$563","v":2},{"$f":"'DNSP Inputs O & M'!$F$17","v":7.5},{"$f":"AV541*AW541*AX541","v":1691.7457080943745},{"$f":"(AY541+AY542)/'DNSP Inputs O & M'!$F$567","v":137.87304720629163},{"$f":"AZ541/'DNSP Inputs O & M'!$F$468","v":13.787304720629162},null,{"$f":"'DNSP Inputs O & M'!$F$12","v":112.78304720629164},{"$f":"'DNSP Inputs O & M'!$F$563","v":2},{"$f":"'DNSP Inputs O & M'!$F$17","v":7.5},{"$f":"BC541*BD541*BE541","v":1691.7457080943745},{"$f":"(BF541+BF542)/'DNSP Inputs O & M'!$F$568","v":197.18597346312498},{"$f":"BG541/'DNSP Inputs O & M'!$F$468","v":19.718597346312499},null,{"$f":"'DNSP Inputs O & M'!$F$12","v":112.78304720629164},{"$f":"'DNSP Inputs O & M'!$F$563","v":2},{"$f":"'DNSP Inputs O & M'!$F$17","v":7.5},{"$f":"BJ541*BK541*BL541","v":1691.7457080943745},{"$f":"(BM541+BM542)/'DNSP Inputs O & M'!$F$569","v":241.00507867715274},{"$f":"BN541/'DNSP Inputs O & M'!$F$468","v":24.100507867715272},null,null,null,{"$f":"'DNSP Inputs O & M'!$G$12","v":113.60949069043043},{"$f":"'DNSP Inputs O & M'!$G$563","v":2},{"$f":"'DNSP Inputs O & M'!$G$17","v":7.5},{"$f":"BS541*BT541*BU541","v":1704.1423603564565},{"$f":"(BV541+BV542)/'DNSP Inputs O & M'!$G$567","v":138.69949069043045},{"$f":"BW541/'DNSP Inputs O & M'!$G$468","v":13.869949069043045},null,{"$f":"'DNSP Inputs O & M'!$G$12","v":113.60949069043043},{"$f":"'DNSP Inputs O & M'!$G$563","v":2},{"$f":"'DNSP Inputs O & M'!$G$17","v":7.5},{"$f":"BZ541*CA541*CB541","v":1704.1423603564565},{"$f":"(CC541+CC542)/'DNSP Inputs O & M'!$G$568","v":198.31294185058695},{"$f":"CD541/'DNSP Inputs O & M'!$G$468","v":19.831294185058695},null,{"$f":"'DNSP Inputs O & M'!$G$12","v":113.60949069043043},{"$f":"'DNSP Inputs O & M'!$G$563","v":2},{"$f":"'DNSP Inputs O & M'!$G$17","v":7.5},{"$f":"CG541*CH541*CI541","v":1704.1423603564565},{"$f":"(CJ541+CJ542)/'DNSP Inputs O & M'!$G$569","v":242.38248448405071},{"$f":"CK541/'DNSP Inputs O & M'!$G$468","v":24.23824844840507},null,null,null,{"$f":"'DNSP Inputs O & M'!$H$12","v":114.68985653357629},{"$f":"'DNSP Inputs O & M'!$H$563","v":2},{"$f":"'DNSP Inputs O & M'!$H$17","v":7.5},{"$f":"CP541*CQ541*CR541","v":1720.3478480036442},{"$f":"(CS541+CS542)/'DNSP Inputs O & M'!$H$567","v":139.77985653357626},{"$f":"CT541/'DNSP Inputs O & M'!$H$468","v":13.977985653357626},null,{"$f":"'DNSP Inputs O & M'!$H$12","v":114.68985653357629},{"$f":"'DNSP Inputs O & M'!$H$563","v":2},{"$f":"'DNSP Inputs O & M'!$H$17","v":7.5},{"$f":"CW541*CX541*CY541","v":1720.3478480036442},{"$f":"(CZ541+CZ542)/'DNSP Inputs O & M'!$H$568","v":199.78616800033132},{"$f":"DA541/'DNSP Inputs O & M'!$H$468","v":19.97861680003313},null,{"$f":"'DNSP Inputs O & M'!$H$12","v":114.68985653357629},{"$f":"'DNSP Inputs O & M'!$H$563","v":2},{"$f":"'DNSP Inputs O & M'!$H$17","v":7.5},{"$f":"DD541*DE541*DF541","v":1720.3478480036442},{"$f":"(DG541+DG542)/'DNSP Inputs O & M'!$H$569","v":244.18309422262715},{"$f":"DH541/'DNSP Inputs O & M'!$H$468","v":24.418309422262716}]
["Elevated platform vehicle costs",{"$f":"'DNSP Inputs O & M'!$D$14","v":50.18},1,{"$f":"'DNSP Inputs O & M'!$D$17","v":7.5},{"$f":"B542*C542*D542","v":376.35},null,null,null,{"$f":"'DNSP Inputs O & M'!$D$15","v":63.64},1,{"$f":"'DNSP Inputs O & M'!$D$17","v":7.5},{"$f":"I542*J542*K542","v":477.3},null,null,null,{"$f":"'DNSP Inputs O & M'!$D$15","v":63.64},1,{"$f":"'DNSP Inputs O & M'!$D$17","v":7.5},{"$f":"P542*Q542*R542","v":477.3},null,null,null,null,null,{"$f":"'DNSP Inputs O & M'!$E$14","v":50.18},1,{"$f":"'DNSP Inputs O & M'!$E$17","v":7.5},{"$f":"Y542*Z542*AA542","v":376.35},null,null,null,{"$f":"'DNSP Inputs O & M'!$E$15","v":63.64},1,{"$f":"'DNSP Inputs O & M'!$E$17","v":7.5},{"$f":"AF542*AG542*AH542","v":477.3},null,null,null,{"$f":"'DNSP Inputs O & M'!$E$15","v":63.64},1,{"$f":"'DNSP Inputs O & M'!$E$17","v":7.5},{"$f":"AM542*AN542*AO542","v":477.3},null,null,null,null,null,{"$f":"'DNSP Inputs O & M'!$F$14","v":50.18},1,{"$f":"'DNSP Inputs O & M'!$F$17","v":7.5},{"$f":"AV542*AW542*AX542","v":376.35},null,null,null,{"$f":"'DNSP Inputs O & M'!$F$15","v":63.64},1,{"$f":"'DNSP Inputs O & M'!$F$17","v":7.5},{"$f":"BC542*BD542*BE542","v":477.3},null,null,null,{"$f":"'DNSP Inputs O & M'!$F$15","v":63.64},1,{"$f":"'DNSP Inputs O & M'!$F$17","v":7.5},{"$f":"BJ542*BK542*BL542","v":477.3},null,null,null,null,null,{"$f":"'DNSP Inputs O & M'!$G$14","v":50.18},1,{"$f":"'DNSP Inputs O & M'!$G$17","v":7.5},{"$f":"BS542*BT542*BU542","v":376.35},null,null,null,{"$f":"'DNSP Inputs O & M'!$G$15","v":63.64},1,{"$f":"'DNSP Inputs O & M'!$G$17","v":7.5},{"$f":"BZ542*CA542*CB542","v":477.3},null,null,null,{"$f":"'DNSP Inputs O & M'!$G$15","v":63.64},1,{"$f":"'DNSP Inputs O & M'!$G$17","v":7.5},{"$f":"CG542*CH542*CI542","v":477.3},null,null,null,null,null,{"$f":"'DNSP Inputs O & M'!$H$14","v":50.18},1,{"$f":"'DNSP Inputs O & M'!$H$17","v":7.5},{"$f":"CP542*CQ542*CR542","v":376.35},null,null,null,{"$f":"'DNSP Inputs O & M'!$H$15","v":63.64},1,{"$f":"'DNSP Inputs O & M'!$H$17","v":7.5},{"$f":"CW542*CX542*CY542","v":477.3},null,null,null,{"$f":"'DNSP Inputs O & M'!$H$15","v":63.64},1,{"$f":"'DNSP Inputs O & M'!$H$17","v":7.5},{"$f":"DD542*DE542*DF542","v":477.3}]
["Other Maintenance and Repair costs",null,null,null,null,null,{"$f":"'DNSP Inputs O & M'!$D$579","v":9.3202762240000006},null,null,null,null,null,null,{"$f":"'DNSP Inputs O & M'!$D$579","v":9.3202762240000006},null,null,null,null,null,null,{"$f":"'DNSP Inputs O & M'!$D$579","v":9.3202762240000006},null,null,null,null,null,null,null,null,{"$f":"'DNSP Inputs O & M'!$E$579","v":9.3202762240000023},null,null,null,null,null,null,{"$f":"'DNSP Inputs O & M'!$E$579","v":9.3202762240000023},null,null,null,null,null,null,{"$f":"'DNSP Inputs O & M'!$E$579","v":9.3202762240000023},null,null,null,null,null,null,null,null,{"$f":"'DNSP Inputs O & M'!$F$579","v":9.3202762240000023},null,null,null,null,null,null,{"$f":"'DNSP Inputs O & M'!$F$579","v":9.3202762240000023},null,null,null,null,null,null,{"$f":"'DNSP Inputs O & M'!$F$579","v":9.3202762240000023},null,null,null,null,null,null,null,null,{"$f":"'DNSP Inputs O & M'!$G$579","v":9.3202762240000006},null,null,null,null,null,null,{"$f":"'DNSP Inputs O & M'!$G$579","v":9.3202762240000006},null,null,null,null,null,null,{"$f":"'DNSP Inputs O & M'!$G$579","v":9.3202762240000006},null,null,null,null,null,null,null,null,{"$f":"'DNSP Inputs O & M'!$H$579","v":9.3202762240000006},null,null,null,null,null,null,{"$f":"'DNSP Inputs O & M'!$H$579","v":9.3202762240000006},null,null,null,null,null,null,{"$f":"'DNSP Inputs O & M'!$H$579","v":9.3202762240000006}]
[]
["Overheads",{"$f":"'DNSP Inputs O & M'!$D$18","v":0.25},null,null,null,null,{"$f":"B545*SUM(G532:G543)","v":6.6169502759991445},null,{"$f":"'DNSP Inputs O & M'!$D$18","v":0.25},null,null,null,null,{"$f":"I545*SUM(N532:N543)","v":8.388879104442287},null,{"$f":"'DNSP Inputs O & M'!$D$18","v":0.25},null,null,null,null,{"$f":"P545*SUM(U532:U543)","v":10.485910785808354},null,null,null,{"$f":"'DNSP Inputs O & M'!$E$18","v":0.25},null,null,null,null,{"$f":"Y545*SUM(AD532:AD543)","v":6.6381672642014742},null,{"$f":"'DNSP Inputs O & M'!$E$18","v":0.25},null,null,null,null,{"$f":"AF545*SUM(AK532:AK543)","v":8.4181887383423444},null,{"$f":"'DNSP Inputs O & M'!$E$18","v":0.25},null,null,null,null,{"$f":"AM545*SUM(AR532:AR543)","v":10.524962343803947},null,null,null,{"$f":"'DNSP Inputs O & M'!$F$18","v":0.25},null,null,null,null,{"$f":"AV545*SUM(BA532:BA543)","v":6.6577987025900178},null,{"$f":"'DNSP Inputs O & M'!$F$18","v":0.25},null,null,null,null,{"$f":"BC545*SUM(BH532:BH543)","v":8.4453080573810642},null,{"$f":"'DNSP Inputs O & M'!$F$18","v":0.25},null,null,null,null,{"$f":"BJ545*SUM(BO532:BO543)","v":10.561095570982861},null,null,null,{"$f":"'DNSP Inputs O & M'!$G$18","v":0.25},null,null,null,null,{"$f":"BS545*SUM(BX532:BX543)","v":6.6815589527590085},null,{"$f":"'DNSP Inputs O & M'!$G$18","v":0.25},null,null,null,null,{"$f":"BZ545*SUM(CE532:CE543)","v":8.4781310116658943},null,{"$f":"'DNSP Inputs O & M'!$G$18","v":0.25},null,null,null,null,{"$f":"CG545*SUM(CL532:CL543)","v":10.604828205351872},null,null,null,{"$f":"'DNSP Inputs O & M'!$H$18","v":0.25},null,null,null,null,{"$f":"CP545*SUM(CU532:CU543)","v":6.7126194707494502},null,{"$f":"'DNSP Inputs O & M'!$H$18","v":0.25},null,null,null,null,{"$f":"CW545*SUM(DB532:DB543)","v":8.5210387232771971},null,{"$f":"'DNSP Inputs O & M'!$H$18","v":0.25},null,null,null,null,{"$f":"DD545*SUM(DI532:DI543)","v":10.661997564551672}]
[]
[null,null,null,null,null,null,{"$f":"SUM(G532,G534,G538,G541,G543,G545)","v":33.084751379995723},null,null,null,null,null,null,{"$f":"SUM(N532,N534,N538,N541,N543,N545)","v":41.944395522211437},null,null,null,null,null,null,{"$f":"SUM(U532,U534,U538,U541,U543,U545)","v":52.429553929041774},null,null,null,null,null,null,null,null,{"$f":"SUM(AD532,AD534,AD538,AD541,AD543,AD545)","v":33.190836321007367},null,null,null,null,null,null,{"$f":"SUM(AK532,AK534,AK538,AK541,AK543,AK545)","v":42.090943691711722},null,null,null,null,null,null,{"$f":"SUM(AR532,AR534,AR538,AR541,AR543,AR545)","v":52.624811719019739},null,null,null,null,null,null,null,null,{"$f":"SUM(BA532,BA534,BA538,BA541,BA543,BA545)","v":33.288993512950086},null,null,null,null,null,null,{"$f":"SUM(BH532,BH534,BH538,BH541,BH543,BH545)","v":42.226540286905319},null,null,null,null,null,null,{"$f":"SUM(BO532,BO534,BO538,BO541,BO543,BO545)","v":52.805477854914301},null,null,null,null,null,null,null,null,{"$f":"SUM(BX532,BX534,BX538,BX541,BX543,BX545)","v":33.407794763795039},null,null,null,null,null,null,{"$f":"SUM(CE532,CE534,CE538,CE541,CE543,CE545)","v":42.390655058329472},null,null,null,null,null,null,{"$f":"SUM(CL532,CL534,CL538,CL541,CL543,CL545)","v":53.024141026759359},null,null,null,null,null,null,null,null,{"$f":"SUM(CU532,CU534,CU538,CU541,CU543,CU545)","v":33.563097353747253},null,null,null,null,null,null,{"$f":"SUM(DB532,DB534,DB538,DB541,DB543,DB545)","v":42.605193616385989},null,null,null,null,null,null,{"$f":"SUM(DI532,DI534,DI538,DI541,DI543,DI545)","v":53.309987822758359}]
[]
[]
[]
["NEW"]
["Category Smart lighting L4 - Cost build-up"]
[]
["Additional assumptions"]
[]
[]
["Overheads are applied to material and labour components"]
["All costs and charges are exclusive of GST"]
[]
[null,"Urban",null,null,null,null,null,null,"Rural",null,null,null,null,null,null,"Remote",null,null,null,null,null,null,null,null,"Urban",null,null,null,null,null,null,"Rural",null,null,null,null,null,null,"Remote",null,null,null,null,null,null,null,null,"Urban",null,null,null,null,null,null,"Rural",null,null,null,null,null,null,"Remote",null,null,null,null,null,null,null,null,"Urban",null,null,null,null,null,null,"Rural",null,null,null,null,null,null,"Remote",null,null,null,null,null,null,null,null,"Urban",null,null,null,null,null,null,"Rural",null,null,null,null,null,null,"Remote"]
[]
[null,"Unit rate","Number","Hours","Cost","Annualised","Annualised",null,"Unit rate","Number","Hours","Cost","Annualised","Annualised",null,"Unit rate","Number","Hours","Cost","Annualised","Annualised",null,null,null,"Unit rate","Number","Hours","Cost","Annualised","Annualised",null,"Unit rate","Number","Hours","Cost","Annualised","Annualised",null,"Unit rate","Number","Hours","Cost","Annualised","Annualised",null,null,null,"Unit rate","Number","Hours","Cost","Annualised","Annualised",null,"Unit rate","Number","Hours","Cost","Annualised","Annualised",null,"Unit rate","Number","Hours","Cost","Annualised","Annualised",null,null,null,"Unit rate","Number","Hours","Cost","Annualised","Annualised",null,"Unit rate","Number","Hours","Cost","Annualised","Annualised",null,"Unit rate","Number","Hours","Cost","Annualised","Annualised",null,null,null,"Unit rate","Number","Hours","Cost","Annualised","Annualised",null,"Unit rate","Number","Hours","Cost","Annualised","Annualised",null,"Unit rate","Number","Hours","Cost","Annualised","Annualised"]
[null,null,null,null,null," cost","unit cost",null,null,null,null,null," cost","unit cost",null,null,null,null,null," cost","unit cost",null,null,null,null,null,null,null," cost","unit cost",null,null,null,null,null," cost","unit cost",null,null,null,null,null," cost","unit cost",null,null,null,null,null,null,null," cost","unit cost",null,null,null,null,null," cost","unit cost",null,null,null,null,null," cost","unit cost",null,null,null,null,null,null,null," cost","unit cost",null,null,null,null,null," cost","unit cost",null,null,null,null,null," cost","unit cost",null,null,null,null,null,null,null," cost","unit cost",null,null,null,null,null," cost","unit cost",null,null,null,null,null," cost","unit cost"]
["Smart lighting L4"]
["Patrols & repairs"]
[]
[]
["Materials - repair of faults"]
["PE cell",{"$f":"'DNSP Inputs O & M'!$D$604","v":114.023},{"$f":"'DNSP Inputs O & M'!$D$611*'DNSP Inputs O & M'!$D$614","v":13.5},null,{"$f":"B569*C569","v":1539.3105},{"$f":"(E569+E570+E571)/'DNSP Inputs O & M'!$D$608","v":0.52469771921217689},{"$f":"F569*'DNSP Inputs O & M'!$D$467","v":1.5740931576365307},null,{"$f":"'DNSP Inputs O & M'!$D$604*(1+'DNSP Inputs O & M'!$D$11)","v":119.72414999999999},{"$f":"'DNSP Inputs O & M'!$D$524*'DNSP Inputs O & M'!$D$614","v":9.9},null,{"$f":"I569*J569","v":1185.2690849999999},{"$f":"(L569+L570+L571)/'DNSP Inputs O & M'!$D$609","v":0.60602586569006422},{"$f":"M569*'DNSP Inputs O & M'!$D$467","v":1.8180775970701926},null,{"$f":"'DNSP Inputs O & M'!$D$604*(1+'DNSP Inputs O & M'!$D$11)","v":119.72414999999999},{"$f":"'DNSP Inputs O & M'!$D$525*'DNSP Inputs O & M'!$D$614","v":8.1},null,{"$f":"P569*Q569","v":969.76561499999991},{"$f":"(S569+S570+S571)/'DNSP Inputs O & M'!$D$610","v":0.99167868931101433},{"$f":"T569*'DNSP Inputs O & M'!$D$467","v":2.975036067933043},null,null,null,{"$f":"'DNSP Inputs O & M'!$E$604","v":114.023},{"$f":"'DNSP Inputs O & M'!$E$611*'DNSP Inputs O & M'!$E$614","v":13.5},null,{"$f":"Y569*Z569","v":1539.3105},{"$f":"(AB569+AB570+AB571)/'DNSP Inputs O & M'!$E$608","v":0.52469771921217689},{"$f":"AC569*'DNSP Inputs O & M'!$E$467","v":1.5740931576365307},null,{"$f":"'DNSP Inputs O & M'!$E$604*(1+'DNSP Inputs O & M'!$E$11)","v":119.72414999999999},{"$f":"'DNSP Inputs O & M'!$E$524*'DNSP Inputs O & M'!$E$614","v":9.9},null,{"$f":"AF569*AG569","v":1185.2690849999999},{"$f":"(AI569+AI570+AI571)/'DNSP Inputs O & M'!$E$609","v":0.60602586569006422},{"$f":"AJ569*'DNSP Inputs O & M'!$E$467","v":1.8180775970701926},null,{"$f":"'DNSP Inputs O & M'!$E$604*(1+'DNSP Inputs O & M'!$E$11)","v":119.72414999999999},{"$f":"'DNSP Inputs O & M'!$E$525*'DNSP Inputs O & M'!$E$614","v":8.1},null,{"$f":"AM569*AN569","v":969.76561499999991},{"$f":"(AP569+AP570+AP571)/'DNSP Inputs O & M'!$E$610","v":0.99167868931101433},{"$f":"AQ569*'DNSP Inputs O & M'!$E$467","v":2.975036067933043},null,null,null,{"$f":"'DNSP Inputs O & M'!$F$604","v":114.023},{"$f":"'DNSP Inputs O & M'!$F$611*'DNSP Inputs O & M'!$F$614","v":13.5},null,{"$f":"AV569*AW569","v":1539.3105},{"$f":"(AY569+AY570+AY571)/'DNSP Inputs O & M'!$F$608","v":0.52469771921217689},{"$f":"AZ569*'DNSP Inputs O & M'!$F$467","v":1.5740931576365307},null,{"$f":"'DNSP Inputs O & M'!$F$604*(1+'DNSP Inputs O & M'!$F$11)","v":119.72414999999999},{"$f":"'DNSP Inputs O & M'!$F$524*'DNSP Inputs O & M'!$F$614","v":9.9},null,{"$f":"BC569*BD569","v":1185.2690849999999},{"$f":"(BF569+BF570+BF571)/'DNSP Inputs O & M'!$F$609","v":0.60602586569006422},{"$f":"BG569*'DNSP Inputs O & M'!$F$467","v":1.8180775970701926},null,{"$f":"'DNSP Inputs O & M'!$F$604*(1+'DNSP Inputs O & M'!$F$11)","v":119.72414999999999},{"$f":"'DNSP Inputs O & M'!$F$525*'DNSP Inputs O & M'!$F$614","v":8.1},null,{"$f":"BJ569*BK569","v":969.76561499999991},{"$f":"(BM569+BM570+BM571)/'DNSP Inputs O & M'!$F$610","v":0.99167868931101433},{"$f":"BN569*'DNSP Inputs O & M'!$F$467","v":2.975036067933043},null,null,null,{"$f":"'DNSP Inputs O & M'!$G$604","v":114.023},{"$f":"'DNSP Inputs O & M'!$G$611*'DNSP Inputs O & M'!$G$614","v":13.5},null,{"$f":"BS569*BT569","v":1539.3105},{"$f":"(BV569+BV570+BV571)/'DNSP Inputs O & M'!$G$608","v":0.52469771921217689},{"$f":"BW569*'DNSP Inputs O & M'!$G$467","v":1.5740931576365307},null,{"$f":"'DNSP Inputs O & M'!$G$604*(1+'DNSP Inputs O & M'!$G$11)","v":119.72414999999999},{"$f":"'DNSP Inputs O & M'!$G$524*'DNSP Inputs O & M'!$G$614","v":9.9},null,{"$f":"BZ569*CA569","v":1185.2690849999999},{"$f":"(CC569+CC570+CC571)/'DNSP Inputs O & M'!$G$609","v":0.60602586569006422},{"$f":"CD569*'DNSP Inputs O & M'!$G$467","v":1.8180775970701926},null,{"$f":"'DNSP Inputs O & M'!$G$604*(1+'DNSP Inputs O & M'!$G$11)","v":119.72414999999999},{"$f":"'DNSP Inputs O & M'!$G$525*'DNSP Inputs O & M'!$G$614","v":8.1},null,{"$f":"CG569*CH569","v":969.76561499999991},{"$f":"(CJ569+CJ570+CJ571)/'DNSP Inputs O & M'!$G$610","v":0.99167868931101433},{"$f":"CK569*'DNSP Inputs O & M'!$G$467","v":2.975036067933043},null,null,null,{"$f":"'DNSP Inputs O & M'!$H$604","v":114.023},{"$f":"'DNSP Inputs O & M'!$H$611*'DNSP Inputs O & M'!$H$614","v":13.5},null,{"$f":"CP569*CQ569","v":1539.3105},{"$f":"(CS569+CS570+CS571)/'DNSP Inputs O & M'!$H$608","v":0.52469771921217689},{"$f":"CT569*'DNSP Inputs O & M'!$H$467","v":1.5740931576365307},null,{"$f":"'DNSP Inputs O & M'!$H$604*(1+'DNSP Inputs O & M'!$H$11)","v":119.72414999999999},{"$f":"'DNSP Inputs O & M'!$H$524*'DNSP Inputs O & M'!$H$614","v":9.9},null,{"$f":"CW569*CX569","v":1185.2690849999999},{"$f":"(CZ569+CZ570+CZ571)/'DNSP Inputs O & M'!$H$609","v":0.60602586569006422},{"$f":"DA569*'DNSP Inputs O & M'!$H$467","v":1.8180775970701926},null,{"$f":"'DNSP Inputs O & M'!$H$604*(1+'DNSP Inputs O & M'!$H$11)","v":119.72414999999999},{"$f":"'DNSP Inputs O & M'!$H$525*'DNSP Inputs O & M'!$H$614","v":8.1},null,{"$f":"DD569*DE569","v":969.76561499999991},{"$f":"(DG569+DG570+DG571)/'DNSP Inputs O & M'!$H$610","v":0.99167868931101433},{"$f":"DH569*'DNSP Inputs O & M'!$H$467","v":2.975036067933043}]
["Luminaire",{"$f":"'DNSP Inputs O & M'!$D$605","v":650.88},{"$f":"'DNSP Inputs O & M'!$D$611*'DNSP Inputs O & M'!$D$615","v":0},null,{"$f":"B570*C570","v":0},null,null,null,{"$f":"'DNSP Inputs O & M'!$D$605*(1+'DNSP Inputs O & M'!$D$11)","v":683.42399999999998},{"$f":"'DNSP Inputs O & M'!$D$524*'DNSP Inputs O & M'!$D$615","v":0},null,{"$f":"I570*J570","v":0},null,null,null,{"$f":"'DNSP Inputs O & M'!$D$605*(1+'DNSP Inputs O & M'!$D$11)","v":683.42399999999998},{"$f":"'DNSP Inputs O & M'!$D$525*'DNSP Inputs O & M'!$D$615","v":0},null,{"$f":"P570*Q570","v":0},null,null,null,null,null,{"$f":"'DNSP Inputs O & M'!$E$605","v":650.88},{"$f":"'DNSP Inputs O & M'!$E$611*'DNSP Inputs O & M'!$E$615","v":0},null,{"$f":"Y570*Z570","v":0},null,null,null,{"$f":"'DNSP Inputs O & M'!$E$605*(1+'DNSP Inputs O & M'!$E$11)","v":683.42399999999998},{"$f":"'DNSP Inputs O & M'!$E$524*'DNSP Inputs O & M'!$E$615","v":0},null,{"$f":"AF570*AG570","v":0},null,null,null,{"$f":"'DNSP Inputs O & M'!$E$605*(1+'DNSP Inputs O & M'!$E$11)","v":683.42399999999998},{"$f":"'DNSP Inputs O & M'!$E$525*'DNSP Inputs O & M'!$E$615","v":0},null,{"$f":"AM570*AN570","v":0},null,null,null,null,null,{"$f":"'DNSP Inputs O & M'!$F$605","v":650.88},{"$f":"'DNSP Inputs O & M'!$F$611*'DNSP Inputs O & M'!$F$615","v":0},null,{"$f":"AV570*AW570","v":0},null,null,null,{"$f":"'DNSP Inputs O & M'!$F$605*(1+'DNSP Inputs O & M'!$F$11)","v":683.42399999999998},{"$f":"'DNSP Inputs O & M'!$F$524*'DNSP Inputs O & M'!$F$615","v":0},null,{"$f":"BC570*BD570","v":0},null,null,null,{"$f":"'DNSP Inputs O & M'!$F$605*(1+'DNSP Inputs O & M'!$F$11)","v":683.42399999999998},{"$f":"'DNSP Inputs O & M'!$F$525*'DNSP Inputs O & M'!$F$615","v":0},null,{"$f":"BJ570*BK570","v":0},null,null,null,null,null,{"$f":"'DNSP Inputs O & M'!$G$605","v":650.88},{"$f":"'DNSP Inputs O & M'!$G$611*'DNSP Inputs O & M'!$G$615","v":0},null,{"$f":"BS570*BT570","v":0},null,null,null,{"$f":"'DNSP Inputs O & M'!$G$605*(1+'DNSP Inputs O & M'!$G$11)","v":683.42399999999998},{"$f":"'DNSP Inputs O & M'!$G$524*'DNSP Inputs O & M'!$G$615","v":0},null,{"$f":"BZ570*CA570","v":0},null,null,null,{"$f":"'DNSP Inputs O & M'!$G$605*(1+'DNSP Inputs O & M'!$G$11)","v":683.42399999999998},{"$f":"'DNSP Inputs O & M'!$G$525*'DNSP Inputs O & M'!$G$615","v":0},null,{"$f":"CG570*CH570","v":0},null,null,null,null,null,{"$f":"'DNSP Inputs O & M'!$H$605","v":650.88},{"$f":"'DNSP Inputs O & M'!$H$611*'DNSP Inputs O & M'!$H$615","v":0},null,{"$f":"CP570*CQ570","v":0},null,null,null,{"$f":"'DNSP Inputs O & M'!$H$605*(1+'DNSP Inputs O & M'!$H$11)","v":683.42399999999998},{"$f":"'DNSP Inputs O & M'!$H$524*'DNSP Inputs O & M'!$H$615","v":0},null,{"$f":"CW570*CX570","v":0},null,null,null,{"$f":"'DNSP Inputs O & M'!$H$605*(1+'DNSP Inputs O & M'!$H$11)","v":683.42399999999998},{"$f":"'DNSP Inputs O & M'!$H$525*'DNSP Inputs O & M'!$H$615","v":0},null,{"$f":"DD570*DE570","v":0}]
["Miscellaneous",{"$f":"'DNSP Inputs O & M'!$D$606","v":23.188438424353883},{"$f":"'DNSP Inputs O & M'!$D$611*'DNSP Inputs O & M'!$D$616","v":1.5},null,{"$f":"B571*C571","v":34.782657636530828},null,null,null,{"$f":"'DNSP Inputs O & M'!$D$606*(1+'DNSP Inputs O & M'!$D$11)","v":24.347860345571579},{"$f":"'DNSP Inputs O & M'!$D$524*'DNSP Inputs O & M'!$D$616","v":1.1000000000000001},null,{"$f":"I571*J571","v":26.782646380128739},null,null,null,{"$f":"'DNSP Inputs O & M'!$D$606*(1+'DNSP Inputs O & M'!$D$11)","v":24.347860345571579},{"$f":"'DNSP Inputs O & M'!$D$525*'DNSP Inputs O & M'!$D$616","v":0.9},null,{"$f":"P571*Q571","v":21.913074311014423},null,null,null,null,null,{"$f":"'DNSP Inputs O & M'!$E$606","v":23.188438424353883},{"$f":"'DNSP Inputs O & M'!$E$611*'DNSP Inputs O & M'!$E$616","v":1.5},null,{"$f":"Y571*Z571","v":34.782657636530828},null,null,null,{"$f":"'DNSP Inputs O & M'!$E$606*(1+'DNSP Inputs O & M'!$E$11)","v":24.347860345571579},{"$f":"'DNSP Inputs O & M'!$E$524*'DNSP Inputs O & M'!$E$616","v":1.1000000000000001},null,{"$f":"AF571*AG571","v":26.782646380128739},null,null,null,{"$f":"'DNSP Inputs O & M'!$E$606*(1+'DNSP Inputs O & M'!$E$11)","v":24.347860345571579},{"$f":"'DNSP Inputs O & M'!$E$525*'DNSP Inputs O & M'!$E$616","v":0.9},null,{"$f":"AM571*AN571","v":21.913074311014423},null,null,null,null,null,{"$f":"'DNSP Inputs O & M'!$F$606","v":23.188438424353883},{"$f":"'DNSP Inputs O & M'!$F$611*'DNSP Inputs O & M'!$F$616","v":1.5},null,{"$f":"AV571*AW571","v":34.782657636530828},null,null,null,{"$f":"'DNSP Inputs O & M'!$F$606*(1+'DNSP Inputs O & M'!$F$11)","v":24.347860345571579},{"$f":"'DNSP Inputs O & M'!$F$524*'DNSP Inputs O & M'!$F$616","v":1.1000000000000001},null,{"$f":"BC571*BD571","v":26.782646380128739},null,null,null,{"$f":"'DNSP Inputs O & M'!$F$606*(1+'DNSP Inputs O & M'!$F$11)","v":24.347860345571579},{"$f":"'DNSP Inputs O & M'!$F$525*'DNSP Inputs O & M'!$F$616","v":0.9},null,{"$f":"BJ571*BK571","v":21.913074311014423},null,null,null,null,null,{"$f":"'DNSP Inputs O & M'!$G$606","v":23.188438424353883},{"$f":"'DNSP Inputs O & M'!$G$611*'DNSP Inputs O & M'!$G$616","v":1.5},null,{"$f":"BS571*BT571","v":34.782657636530828},null,null,null,{"$f":"'DNSP Inputs O & M'!$G$606*(1+'DNSP Inputs O & M'!$G$11)","v":24.347860345571579},{"$f":"'DNSP Inputs O & M'!$G$524*'DNSP Inputs O & M'!$G$616","v":1.1000000000000001},null,{"$f":"BZ571*CA571","v":26.782646380128739},null,null,null,{"$f":"'DNSP Inputs O & M'!$G$606*(1+'DNSP Inputs O & M'!$G$11)","v":24.347860345571579},{"$f":"'DNSP Inputs O & M'!$G$525*'DNSP Inputs O & M'!$G$616","v":0.9},null,{"$f":"CG571*CH571","v":21.913074311014423},null,null,null,null,null,{"$f":"'DNSP Inputs O & M'!$H$606","v":23.188438424353883},{"$f":"'DNSP Inputs O & M'!$H$611*'DNSP Inputs O & M'!$H$616","v":1.5},null,{"$f":"CP571*CQ571","v":34.782657636530828},null,null,null,{"$f":"'DNSP Inputs O & M'!$H$606*(1+'DNSP Inputs O & M'!$H$11)","v":24.347860345571579},{"$f":"'DNSP Inputs O & M'!$H$524*'DNSP Inputs O & M'!$H$616","v":1.1000000000000001},null,{"$f":"CW571*CX571","v":26.782646380128739},null,null,null,{"$f":"'DNSP Inputs O & M'!$H$606*(1+'DNSP Inputs O & M'!$H$11)","v":24.347860345571579},{"$f":"'DNSP Inputs O & M'!$H$525*'DNSP Inputs O & M'!$H$616","v":0.9},null,{"$f":"DD571*DE571","v":21.913074311014423}]
["Labour - Patrol"]
["Crew costs",{"$f":"'DNSP Inputs O & M'!$D$12","v":111.36223236834823},{"$f":"'DNSP Inputs O & M'!$D$607","v":2},{"$f":"'DNSP Inputs O & M'!$D$17","v":7.5},{"$f":"B573*C573*D573","v":1670.4334855252234},{"$f":"E573/'DNSP Inputs O & M'!$D$608","v":0.55681116184174118},{"$f":"(F573+F574)*'DNSP Inputs O & M'!$D$467","v":1.9282084855252237},null,{"$f":"'DNSP Inputs O & M'!$D$12","v":111.36223236834823},{"$f":"'DNSP Inputs O & M'!$D$607","v":2},{"$f":"'DNSP Inputs O & M'!$D$17","v":7.5},{"$f":"I573*J573*K573","v":1670.4334855252234},{"$f":"L573/'DNSP Inputs O & M'!$D$609","v":0.83521674276261171},{"$f":"(M573+M574)*'DNSP Inputs O & M'!$D$467","v":2.8923127282878349},null,{"$f":"'DNSP Inputs O & M'!$D$12","v":111.36223236834823},{"$f":"'DNSP Inputs O & M'!$D$607","v":2},{"$f":"'DNSP Inputs O & M'!$D$17","v":7.5},{"$f":"P573*Q573*R573","v":1670.4334855252234},{"$f":"S573/'DNSP Inputs O & M'!$D$610","v":1.6704334855252234},{"$f":"(T573+T574)*'DNSP Inputs O & M'!$D$467","v":5.7846254565756698},null,null,null,{"$f":"'DNSP Inputs O & M'!$E$12","v":112.10021456669011},{"$f":"'DNSP Inputs O & M'!$E$607","v":2},{"$f":"'DNSP Inputs O & M'!$E$17","v":7.5},{"$f":"Y573*Z573*AA573","v":1681.5032185003517},{"$f":"AB573/'DNSP Inputs O & M'!$E$608","v":0.56050107283345063},{"$f":"(AC573+AC574)*'DNSP Inputs O & M'!$E$467","v":1.9392782185003519},null,{"$f":"'DNSP Inputs O & M'!$E$12","v":112.10021456669011},{"$f":"'DNSP Inputs O & M'!$E$607","v":2},{"$f":"'DNSP Inputs O & M'!$E$17","v":7.5},{"$f":"AF573*AG573*AH573","v":1681.5032185003517},{"$f":"AI573/'DNSP Inputs O & M'!$E$609","v":0.84075160925017589},{"$f":"(AJ573+AJ574)*'DNSP Inputs O & M'!$E$467","v":2.9089173277505278},null,{"$f":"'DNSP Inputs O & M'!$E$12","v":112.10021456669011},{"$f":"'DNSP Inputs O & M'!$E$607","v":2},{"$f":"'DNSP Inputs O & M'!$E$17","v":7.5},{"$f":"AM573*AN573*AO573","v":1681.5032185003517},{"$f":"AP573/'DNSP Inputs O & M'!$E$610","v":1.6815032185003518},{"$f":"(AQ573+AQ574)*'DNSP Inputs O & M'!$E$467","v":5.8178346555010556},null,null,null,{"$f":"'DNSP Inputs O & M'!$F$12","v":112.78304720629164},{"$f":"'DNSP Inputs O & M'!$F$607","v":2},{"$f":"'DNSP Inputs O & M'!$F$17","v":7.5},{"$f":"AV573*AW573*AX573","v":1691.7457080943745},{"$f":"AY573/'DNSP Inputs O & M'!$F$608","v":0.56391523603145821},{"$f":"(AZ573+AZ574)*'DNSP Inputs O & M'!$F$467","v":1.9495207080943748},null,{"$f":"'DNSP Inputs O & M'!$F$12","v":112.78304720629164},{"$f":"'DNSP Inputs O & M'!$F$607","v":2},{"$f":"'DNSP Inputs O & M'!$F$17","v":7.5},{"$f":"BC573*BD573*BE573","v":1691.7457080943745},{"$f":"BF573/'DNSP Inputs O & M'!$F$609","v":0.84587285404718726},{"$f":"(BG573+BG574)*'DNSP Inputs O & M'!$F$467","v":2.9242810621415618},null,{"$f":"'DNSP Inputs O & M'!$F$12","v":112.78304720629164},{"$f":"'DNSP Inputs O & M'!$F$607","v":2},{"$f":"'DNSP Inputs O & M'!$F$17","v":7.5},{"$f":"BJ573*BK573*BL573","v":1691.7457080943745},{"$f":"BM573/'DNSP Inputs O & M'!$F$610","v":1.6917457080943745},{"$f":"(BN573+BN574)*'DNSP Inputs O & M'!$F$467","v":5.8485621242831236},null,null,null,{"$f":"'DNSP Inputs O & M'!$G$12","v":113.60949069043043},{"$f":"'DNSP Inputs O & M'!$G$607","v":2},{"$f":"'DNSP Inputs O & M'!$G$17","v":7.5},{"$f":"BS573*BT573*BU573","v":1704.1423603564565},{"$f":"BV573/'DNSP Inputs O & M'!$G$608","v":0.56804745345215213},{"$f":"(BW573+BW574)*'DNSP Inputs O & M'!$G$467","v":1.9619173603564564},null,{"$f":"'DNSP Inputs O & M'!$G$12","v":113.60949069043043},{"$f":"'DNSP Inputs O & M'!$G$607","v":2},{"$f":"'DNSP Inputs O & M'!$G$17","v":7.5},{"$f":"BZ573*CA573*CB573","v":1704.1423603564565},{"$f":"CC573/'DNSP Inputs O & M'!$G$609","v":0.85207118017822825},{"$f":"(CD573+CD574)*'DNSP Inputs O & M'!$G$467","v":2.9428760405346845},null,{"$f":"'DNSP Inputs O & M'!$G$12","v":113.60949069043043},{"$f":"'DNSP Inputs O & M'!$G$607","v":2},{"$f":"'DNSP Inputs O & M'!$G$17","v":7.5},{"$f":"CG573*CH573*CI573","v":1704.1423603564565},{"$f":"CJ573/'DNSP Inputs O & M'!$G$610","v":1.7041423603564565},{"$f":"(CK573+CK574)*'DNSP Inputs O & M'!$G$467","v":5.8857520810693691},null,null,null,{"$f":"'DNSP Inputs O & M'!$H$12","v":114.68985653357629},{"$f":"'DNSP Inputs O & M'!$H$607","v":2},{"$f":"'DNSP Inputs O & M'!$H$17","v":7.5},{"$f":"CP573*CQ573*CR573","v":1720.3478480036442},{"$f":"CS573/'DNSP Inputs O & M'!$H$608","v":0.57344928266788142},{"$f":"(CT573+CT574)*'DNSP Inputs O & M'!$H$467","v":1.9781228480036444},null,{"$f":"'DNSP Inputs O & M'!$H$12","v":114.68985653357629},{"$f":"'DNSP Inputs O & M'!$H$607","v":2},{"$f":"'DNSP Inputs O & M'!$H$17","v":7.5},{"$f":"CW573*CX573*CY573","v":1720.3478480036442},{"$f":"CZ573/'DNSP Inputs O & M'!$H$609","v":0.86017392400182213},{"$f":"(DA573+DA574)*'DNSP Inputs O & M'!$H$467","v":2.9671842720054662},null,{"$f":"'DNSP Inputs O & M'!$H$12","v":114.68985653357629},{"$f":"'DNSP Inputs O & M'!$H$607","v":2},{"$f":"'DNSP Inputs O & M'!$H$17","v":7.5},{"$f":"DD573*DE573*DF573","v":1720.3478480036442},{"$f":"DG573/'DNSP Inputs O & M'!$H$610","v":1.7203478480036443},{"$f":"(DH573+DH574)*'DNSP Inputs O & M'!$H$467","v":5.9343685440109324}]
["Vehicle costs",{"$f":"'DNSP Inputs O & M'!$D$16","v":34.369999999999997},1,{"$f":"'DNSP Inputs O & M'!$D$17","v":7.5},{"$f":"B574*C574*D574","v":257.77499999999998},{"$f":"E574/'DNSP Inputs O & M'!$D$608","v":8.5924999999999987E-2},null,null,{"$f":"'DNSP Inputs O & M'!$D$16","v":34.369999999999997},1,{"$f":"'DNSP Inputs O & M'!$D$17","v":7.5},{"$f":"I574*J574*K574","v":257.77499999999998},{"$f":"L574/'DNSP Inputs O & M'!$D$609","v":0.12888749999999999},null,null,{"$f":"'DNSP Inputs O & M'!$D$16","v":34.369999999999997},1,{"$f":"'DNSP Inputs O & M'!$D$17","v":7.5},{"$f":"P574*Q574*R574","v":257.77499999999998},{"$f":"S574/'DNSP Inputs O & M'!$D$610","v":0.25777499999999998},null,null,null,null,{"$f":"'DNSP Inputs O & M'!$E$16","v":34.369999999999997},1,{"$f":"'DNSP Inputs O & M'!$E$17","v":7.5},{"$f":"Y574*Z574*AA574","v":257.77499999999998},{"$f":"AB574/'DNSP Inputs O & M'!$E$608","v":8.5924999999999987E-2},null,null,{"$f":"'DNSP Inputs O & M'!$E$16","v":34.369999999999997},1,{"$f":"'DNSP Inputs O & M'!$E$17","v":7.5},{"$f":"AF574*AG574*AH574","v":257.77499999999998},{"$f":"AI574/'DNSP Inputs O & M'!$E$609","v":0.12888749999999999},null,null,{"$f":"'DNSP Inputs O & M'!$E$16","v":34.369999999999997},1,{"$f":"'DNSP Inputs O & M'!$E$17","v":7.5},{"$f":"AM574*AN574*AO574","v":257.77499999999998},{"$f":"AP574/'DNSP Inputs O & M'!$E$610","v":0.25777499999999998},null,null,null,null,{"$f":"'DNSP Inputs O & M'!$F$16","v":34.369999999999997},1,{"$f":"'DNSP Inputs O & M'!$F$17","v":7.5},{"$f":"AV574*AW574*AX574","v":257.77499999999998},{"$f":"AY574/'DNSP Inputs O & M'!$F$608","v":8.5924999999999987E-2},null,null,{"$f":"'DNSP Inputs O & M'!$F$16","v":34.369999999999997},1,{"$f":"'DNSP Inputs O & M'!$F$17","v":7.5},{"$f":"BC574*BD574*BE574","v":257.77499999999998},{"$f":"BF574/'DNSP Inputs O & M'!$F$609","v":0.12888749999999999},null,null,{"$f":"'DNSP Inputs O & M'!$F$16","v":34.369999999999997},1,{"$f":"'DNSP Inputs O & M'!$F$17","v":7.5},{"$f":"BJ574*BK574*BL574","v":257.77499999999998},{"$f":"BM574/'DNSP Inputs O & M'!$F$610","v":0.25777499999999998},null,null,null,null,{"$f":"'DNSP Inputs O & M'!$G$16","v":34.369999999999997},1,{"$f":"'DNSP Inputs O & M'!$G$17","v":7.5},{"$f":"BS574*BT574*BU574","v":257.77499999999998},{"$f":"BV574/'DNSP Inputs O & M'!$G$608","v":8.5924999999999987E-2},null,null,{"$f":"'DNSP Inputs O & M'!$G$16","v":34.369999999999997},1,{"$f":"'DNSP Inputs O & M'!$G$17","v":7.5},{"$f":"BZ574*CA574*CB574","v":257.77499999999998},{"$f":"CC574/'DNSP Inputs O & M'!$G$609","v":0.12888749999999999},null,null,{"$f":"'DNSP Inputs O & M'!$G$16","v":34.369999999999997},1,{"$f":"'DNSP Inputs O & M'!$G$17","v":7.5},{"$f":"CG574*CH574*CI574","v":257.77499999999998},{"$f":"CJ574/'DNSP Inputs O & M'!$G$610","v":0.25777499999999998},null,null,null,null,{"$f":"'DNSP Inputs O & M'!$H$16","v":34.369999999999997},1,{"$f":"'DNSP Inputs O & M'!$H$17","v":7.5},{"$f":"CP574*CQ574*CR574","v":257.77499999999998},{"$f":"CS574/'DNSP Inputs O & M'!$H$608","v":8.5924999999999987E-2},null,null,{"$f":"'DNSP Inputs O & M'!$H$16","v":34.369999999999997},1,{"$f":"'DNSP Inputs O & M'!$H$17","v":7.5},{"$f":"CW574*CX574*CY574","v":257.77499999999998},{"$f":"CZ574/'DNSP Inputs O & M'!$H$609","v":0.12888749999999999},null,null,{"$f":"'DNSP Inputs O & M'!$H$16","v":34.369999999999997},1,{"$f":"'DNSP Inputs O & M'!$H$17","v":7.5},{"$f":"DD574*DE574*DF574","v":257.77499999999998},{"$f":"DG574/'DNSP Inputs O & M'!$H$610","v":0.25777499999999998}]
["Labour - repair of faults"]
["Crew costs",{"$f":"'DNSP Inputs O & M'!$D$12","v":111.36223236834823},{"$f":"'DNSP Inputs O & M'!$D$607","v":2},{"$f":"'DNSP Inputs O & M'!$D$17","v":7.5},{"$f":"B576*C576*D576","v":1670.4334855252234},{"$f":"(E576+E577)/'DNSP Inputs O & M'!$D$611","v":136.45223236834823},{"$f":"F576/'DNSP Inputs O & M'!$D$468","v":13.645223236834823},null,{"$f":"'DNSP Inputs O & M'!$D$12","v":111.36223236834823},{"$f":"'DNSP Inputs O & M'!$D$607","v":2},{"$f":"'DNSP Inputs O & M'!$D$17","v":7.5},{"$f":"I576*J576*K576","v":1670.4334855252234},{"$f":"(L576+L577)/'DNSP Inputs O & M'!$D$612","v":195.24849868411121},{"$f":"M576/'DNSP Inputs O & M'!$D$468","v":19.52484986841112},null,{"$f":"'DNSP Inputs O & M'!$D$12","v":111.36223236834823},{"$f":"'DNSP Inputs O & M'!$D$607","v":2},{"$f":"'DNSP Inputs O & M'!$D$17","v":7.5},{"$f":"P576*Q576*R576","v":1670.4334855252234},{"$f":"(S576+S577)/'DNSP Inputs O & M'!$D$613","v":238.63705394724704},{"$f":"T576/'DNSP Inputs O & M'!$D$468","v":23.863705394724704},null,null,null,{"$f":"'DNSP Inputs O & M'!$E$12","v":112.10021456669011},{"$f":"'DNSP Inputs O & M'!$E$607","v":2},{"$f":"'DNSP Inputs O & M'!$E$17","v":7.5},{"$f":"Y576*Z576*AA576","v":1681.5032185003517},{"$f":"(AB576+AB577)/'DNSP Inputs O & M'!$E$611","v":137.19021456669012},{"$f":"AC576/'DNSP Inputs O & M'!$E$468","v":13.719021456669012},null,{"$f":"'DNSP Inputs O & M'!$E$12","v":112.10021456669011},{"$f":"'DNSP Inputs O & M'!$E$607","v":2},{"$f":"'DNSP Inputs O & M'!$E$17","v":7.5},{"$f":"AF576*AG576*AH576","v":1681.5032185003517},{"$f":"(AI576+AI577)/'DNSP Inputs O & M'!$E$612","v":196.25483804548651},{"$f":"AJ576/'DNSP Inputs O & M'!$E$468","v":19.625483804548651},null,{"$f":"'DNSP Inputs O & M'!$E$12","v":112.10021456669011},{"$f":"'DNSP Inputs O & M'!$E$607","v":2},{"$f":"'DNSP Inputs O & M'!$E$17","v":7.5},{"$f":"AM576*AN576*AO576","v":1681.5032185003517},{"$f":"(AP576+AP577)/'DNSP Inputs O & M'!$E$613","v":239.86702427781685},{"$f":"AQ576/'DNSP Inputs O & M'!$E$468","v":23.986702427781687},null,null,null,{"$f":"'DNSP Inputs O & M'!$F$12","v":112.78304720629164},{"$f":"'DNSP Inputs O & M'!$F$607","v":2},{"$f":"'DNSP Inputs O & M'!$F$17","v":7.5},{"$f":"AV576*AW576*AX576","v":1691.7457080943745},{"$f":"(AY576+AY577)/'DNSP Inputs O & M'!$F$611","v":137.87304720629163},{"$f":"AZ576/'DNSP Inputs O & M'!$F$468","v":13.787304720629162},null,{"$f":"'DNSP Inputs O & M'!$F$12","v":112.78304720629164},{"$f":"'DNSP Inputs O & M'!$F$607","v":2},{"$f":"'DNSP Inputs O & M'!$F$17","v":7.5},{"$f":"BC576*BD576*BE576","v":1691.7457080943745},{"$f":"(BF576+BF577)/'DNSP Inputs O & M'!$F$612","v":197.18597346312498},{"$f":"BG576/'DNSP Inputs O & M'!$F$468","v":19.718597346312499},null,{"$f":"'DNSP Inputs O & M'!$F$12","v":112.78304720629164},{"$f":"'DNSP Inputs O & M'!$F$607","v":2},{"$f":"'DNSP Inputs O & M'!$F$17","v":7.5},{"$f":"BJ576*BK576*BL576","v":1691.7457080943745},{"$f":"(BM576+BM577)/'DNSP Inputs O & M'!$F$613","v":241.00507867715274},{"$f":"BN576/'DNSP Inputs O & M'!$F$468","v":24.100507867715272},null,null,null,{"$f":"'DNSP Inputs O & M'!$G$12","v":113.60949069043043},{"$f":"'DNSP Inputs O & M'!$G$607","v":2},{"$f":"'DNSP Inputs O & M'!$G$17","v":7.5},{"$f":"BS576*BT576*BU576","v":1704.1423603564565},{"$f":"(BV576+BV577)/'DNSP Inputs O & M'!$G$611","v":138.69949069043045},{"$f":"BW576/'DNSP Inputs O & M'!$G$468","v":13.869949069043045},null,{"$f":"'DNSP Inputs O & M'!$G$12","v":113.60949069043043},{"$f":"'DNSP Inputs O & M'!$G$607","v":2},{"$f":"'DNSP Inputs O & M'!$G$17","v":7.5},{"$f":"BZ576*CA576*CB576","v":1704.1423603564565},{"$f":"(CC576+CC577)/'DNSP Inputs O & M'!$G$612","v":198.31294185058695},{"$f":"CD576/'DNSP Inputs O & M'!$G$468","v":19.831294185058695},null,{"$f":"'DNSP Inputs O & M'!$G$12","v":113.60949069043043},{"$f":"'DNSP Inputs O & M'!$G$607","v":2},{"$f":"'DNSP Inputs O & M'!$G$17","v":7.5},{"$f":"CG576*CH576*CI576","v":1704.1423603564565},{"$f":"(CJ576+CJ577)/'DNSP Inputs O & M'!$G$613","v":242.38248448405071},{"$f":"CK576/'DNSP Inputs O & M'!$G$468","v":24.23824844840507},null,null,null,{"$f":"'DNSP Inputs O & M'!$H$12","v":114.68985653357629},{"$f":"'DNSP Inputs O & M'!$H$607","v":2},{"$f":"'DNSP Inputs O & M'!$H$17","v":7.5},{"$f":"CP576*CQ576*CR576","v":1720.3478480036442},{"$f":"(CS576+CS577)/'DNSP Inputs O & M'!$H$611","v":139.77985653357626},{"$f":"CT576/'DNSP Inputs O & M'!$H$468","v":13.977985653357626},null,{"$f":"'DNSP Inputs O & M'!$H$12","v":114.68985653357629},{"$f":"'DNSP Inputs O & M'!$H$607","v":2},{"$f":"'DNSP Inputs O & M'!$H$17","v":7.5},{"$f":"CW576*CX576*CY576","v":1720.3478480036442},{"$f":"(CZ576+CZ577)/'DNSP Inputs O & M'!$H$612","v":199.78616800033132},{"$f":"DA576/'DNSP Inputs O & M'!$H$468","v":19.97861680003313},null,{"$f":"'DNSP Inputs O & M'!$H$12","v":114.68985653357629},{"$f":"'DNSP Inputs O & M'!$H$607","v":2},{"$f":"'DNSP Inputs O & M'!$H$17","v":7.5},{"$f":"DD576*DE576*DF576","v":1720.3478480036442},{"$f":"(DG576+DG577)/'DNSP Inputs O & M'!$H$613","v":244.18309422262715},{"$f":"DH576/'DNSP Inputs O & M'!$H$468","v":24.418309422262716}]
["Elevated platform vehicle costs",{"$f":"'DNSP Inputs O & M'!$D$14","v":50.18},1,{"$f":"'DNSP Inputs O & M'!$D$17","v":7.5},{"$f":"B577*C577*D577","v":376.35},null,null,null,{"$f":"'DNSP Inputs O & M'!$D$15","v":63.64},1,{"$f":"'DNSP Inputs O & M'!$D$17","v":7.5},{"$f":"I577*J577*K577","v":477.3},null,null,null,{"$f":"'DNSP Inputs O & M'!$D$15","v":63.64},1,{"$f":"'DNSP Inputs O & M'!$D$17","v":7.5},{"$f":"P577*Q577*R577","v":477.3},null,null,null,null,null,{"$f":"'DNSP Inputs O & M'!$E$14","v":50.18},1,{"$f":"'DNSP Inputs O & M'!$E$17","v":7.5},{"$f":"Y577*Z577*AA577","v":376.35},null,null,null,{"$f":"'DNSP Inputs O & M'!$E$15","v":63.64},1,{"$f":"'DNSP Inputs O & M'!$E$17","v":7.5},{"$f":"AF577*AG577*AH577","v":477.3},null,null,null,{"$f":"'DNSP Inputs O & M'!$E$15","v":63.64},1,{"$f":"'DNSP Inputs O & M'!$E$17","v":7.5},{"$f":"AM577*AN577*AO577","v":477.3},null,null,null,null,null,{"$f":"'DNSP Inputs O & M'!$F$14","v":50.18},1,{"$f":"'DNSP Inputs O & M'!$F$17","v":7.5},{"$f":"AV577*AW577*AX577","v":376.35},null,null,null,{"$f":"'DNSP Inputs O & M'!$F$15","v":63.64},1,{"$f":"'DNSP Inputs O & M'!$F$17","v":7.5},{"$f":"BC577*BD577*BE577","v":477.3},null,null,null,{"$f":"'DNSP Inputs O & M'!$F$15","v":63.64},1,{"$f":"'DNSP Inputs O & M'!$F$17","v":7.5},{"$f":"BJ577*BK577*BL577","v":477.3},null,null,null,null,null,{"$f":"'DNSP Inputs O & M'!$G$14","v":50.18},1,{"$f":"'DNSP Inputs O & M'!$G$17","v":7.5},{"$f":"BS577*BT577*BU577","v":376.35},null,null,null,{"$f":"'DNSP Inputs O & M'!$G$15","v":63.64},1,{"$f":"'DNSP Inputs O & M'!$G$17","v":7.5},{"$f":"BZ577*CA577*CB577","v":477.3},null,null,null,{"$f":"'DNSP Inputs O & M'!$G$15","v":63.64},1,{"$f":"'DNSP Inputs O & M'!$G$17","v":7.5},{"$f":"CG577*CH577*CI577","v":477.3},null,null,null,null,null,{"$f":"'DNSP Inputs O & M'!$H$14","v":50.18},1,{"$f":"'DNSP Inputs O & M'!$H$17","v":7.5},{"$f":"CP577*CQ577*CR577","v":376.35},null,null,null,{"$f":"'DNSP Inputs O & M'!$H$15","v":63.64},1,{"$f":"'DNSP Inputs O & M'!$H$17","v":7.5},{"$f":"CW577*CX577*CY577","v":477.3},null,null,null,{"$f":"'DNSP Inputs O & M'!$H$15","v":63.64},1,{"$f":"'DNSP Inputs O & M'!$H$17","v":7.5},{"$f":"DD577*DE577*DF577","v":477.3}]
["Other Maintenance and Repair costs",null,null,null,null,null,{"$f":"'DNSP Inputs O & M'!$D$623","v":9.3202762240000006},null,null,null,null,null,null,{"$f":"'DNSP Inputs O & M'!$D$623","v":9.3202762240000006},null,null,null,null,null,null,{"$f":"'DNSP Inputs O & M'!$D$623","v":9.3202762240000006},null,null,null,null,null,null,null,null,{"$f":"'DNSP Inputs O & M'!$E$623","v":9.3202762240000006},null,null,null,null,null,null,{"$f":"'DNSP Inputs O & M'!$E$623","v":9.3202762240000006},null,null,null,null,null,null,{"$f":"'DNSP Inputs O & M'!$E$623","v":9.3202762240000006},null,null,null,null,null,null,null,null,{"$f":"'DNSP Inputs O & M'!$F$623","v":9.3202762240000023},null,null,null,null,null,null,{"$f":"'DNSP Inputs O & M'!$F$623","v":9.3202762240000023},null,null,null,null,null,null,{"$f":"'DNSP Inputs O & M'!$F$623","v":9.3202762240000023},null,null,null,null,null,null,null,null,{"$f":"'DNSP Inputs O & M'!$G$623","v":9.3202762240000006},null,null,null,null,null,null,{"$f":"'DNSP Inputs O & M'!$G$623","v":9.3202762240000006},null,null,null,null,null,null,{"$f":"'DNSP Inputs O & M'!$G$623","v":9.3202762240000006},null,null,null,null,null,null,null,null,{"$f":"'DNSP Inputs O & M'!$H$623","v":9.3202762240000006},null,null,null,null,null,null,{"$f":"'DNSP Inputs O & M'!$H$623","v":9.3202762240000006},null,null,null,null,null,null,{"$f":"'DNSP Inputs O & M'!$H$623","v":9.3202762240000006}]
[]
["Overheads",{"$f":"'DNSP Inputs O & M'!$D$18","v":0.25},null,null,null,null,{"$f":"B580*SUM(G567:G578)","v":6.6169502759991445},null,{"$f":"'DNSP Inputs O & M'!$D$18","v":0.25},null,null,null,null,{"$f":"I580*SUM(N567:N578)","v":8.388879104442287},null,{"$f":"'DNSP Inputs O & M'!$D$18","v":0.25},null,null,null,null,{"$f":"P580*SUM(U567:U578)","v":10.485910785808354},null,null,null,{"$f":"'DNSP Inputs O & M'!$E$18","v":0.25},null,null,null,null,{"$f":"Y580*SUM(AD567:AD578)","v":6.6381672642014733},null,{"$f":"'DNSP Inputs O & M'!$E$18","v":0.25},null,null,null,null,{"$f":"AF580*SUM(AK567:AK578)","v":8.4181887383423444},null,{"$f":"'DNSP Inputs O & M'!$E$18","v":0.25},null,null,null,null,{"$f":"AM580*SUM(AR567:AR578)","v":10.524962343803946},null,null,null,{"$f":"'DNSP Inputs O & M'!$F$18","v":0.25},null,null,null,null,{"$f":"AV580*SUM(BA567:BA578)","v":6.6577987025900178},null,{"$f":"'DNSP Inputs O & M'!$F$18","v":0.25},null,null,null,null,{"$f":"BC580*SUM(BH567:BH578)","v":8.4453080573810642},null,{"$f":"'DNSP Inputs O & M'!$F$18","v":0.25},null,null,null,null,{"$f":"BJ580*SUM(BO567:BO578)","v":10.561095570982861},null,null,null,{"$f":"'DNSP Inputs O & M'!$G$18","v":0.25},null,null,null,null,{"$f":"BS580*SUM(BX567:BX578)","v":6.6815589527590085},null,{"$f":"'DNSP Inputs O & M'!$G$18","v":0.25},null,null,null,null,{"$f":"BZ580*SUM(CE567:CE578)","v":8.4781310116658943},null,{"$f":"'DNSP Inputs O & M'!$G$18","v":0.25},null,null,null,null,{"$f":"CG580*SUM(CL567:CL578)","v":10.604828205351872},null,null,null,{"$f":"'DNSP Inputs O & M'!$H$18","v":0.25},null,null,null,null,{"$f":"CP580*SUM(CU567:CU578)","v":6.7126194707494502},null,{"$f":"'DNSP Inputs O & M'!$H$18","v":0.25},null,null,null,null,{"$f":"CW580*SUM(DB567:DB578)","v":8.5210387232771971},null,{"$f":"'DNSP Inputs O & M'!$H$18","v":0.25},null,null,null,null,{"$f":"DD580*SUM(DI567:DI578)","v":10.661997564551672}]
[]
[null,null,null,null,null,null,{"$f":"SUM(G567,G569,G573,G576,G578,G580)","v":33.084751379995723},null,null,null,null,null,null,{"$f":"SUM(N567,N569,N573,N576,N578,N580)","v":41.944395522211437},null,null,null,null,null,null,{"$f":"SUM(U567,U569,U573,U576,U578,U580)","v":52.429553929041774},null,null,null,null,null,null,null,null,{"$f":"SUM(AD567,AD569,AD573,AD576,AD578,AD580)","v":33.190836321007367},null,null,null,null,null,null,{"$f":"SUM(AK567,AK569,AK573,AK576,AK578,AK580)","v":42.090943691711722},null,null,null,null,null,null,{"$f":"SUM(AR567,AR569,AR573,AR576,AR578,AR580)","v":52.624811719019732},null,null,null,null,null,null,null,null,{"$f":"SUM(BA567,BA569,BA573,BA576,BA578,BA580)","v":33.288993512950086},null,null,null,null,null,null,{"$f":"SUM(BH567,BH569,BH573,BH576,BH578,BH580)","v":42.226540286905319},null,null,null,null,null,null,{"$f":"SUM(BO567,BO569,BO573,BO576,BO578,BO580)","v":52.805477854914301},null,null,null,null,null,null,null,null,{"$f":"SUM(BX567,BX569,BX573,BX576,BX578,BX580)","v":33.407794763795039},null,null,null,null,null,null,{"$f":"SUM(CE567,CE569,CE573,CE576,CE578,CE580)","v":42.390655058329472},null,null,null,null,null,null,{"$f":"SUM(CL567,CL569,CL573,CL576,CL578,CL580)","v":53.024141026759359},null,null,null,null,null,null,null,null,{"$f":"SUM(CU567,CU569,CU573,CU576,CU578,CU580)","v":33.563097353747253},null,null,null,null,null,null,{"$f":"SUM(DB567,DB569,DB573,DB576,DB578,DB580)","v":42.605193616385989},null,null,null,null,null,null,{"$f":"SUM(DI567,DI569,DI573,DI576,DI578,DI580)","v":53.309987822758359}]

{"sheet":"Capex 2022-2026","index":10,"n_rows":249,"n_cols":94,"rows_kept":249,"cut":false,"hidden":false,"merged":[[54,1,54,5],[54,7,54,11],[54,20,54,24],[54,26,54,30],[54,89,54,93],[54,13,54,17],[54,32,54,36],[54,51,54,55],[54,70,54,74],[54,77,54,81],[54,83,54,87],[54,39,54,43],[54,45,54,49],[54,58,54,62],[54,64,54,68]]}
[{"$f":"'DNSP Inputs O & M'!$A$3","v":"AusNet"}]
[]
["Public Lighting Capex Costs"]
[{"$f":"'DNSP Inputs Capex'!$C$5","v":"Real 2021 $ "}]
[]
["Summary",{"$f":"'DNSP Inputs General'!Q$2","v":"2022-06-30"},{"$f":"'DNSP Inputs General'!R$2","v":"2023-06-30"},{"$f":"'DNSP Inputs General'!S$2","v":"2024-06-30"},{"$f":"'DNSP Inputs General'!T$2","v":"2025-06-30"},{"$f":"'DNSP Inputs General'!U$2","v":"2026-06-30"}]
[]
[{"$f":"\"Existing Lights Luminaires -\"&A4","v":"Existing Lights Luminaires -Real 2021 $ "}]
["MV 80",{"$f":"SUM(F69,L69,R69)","v":0},{"$f":"SUM(Y69,AE69,AK69)","v":0},{"$f":"SUM(AR69,AX69,BD69)","v":0},{"$f":"SUM(BK69,BQ69,BW69)","v":0},{"$f":"SUM(CD69,CJ69,CP69)","v":0}]
["S-HP 150 ",{"$f":"SUM(F82,L82,R82)","v":0},{"$f":"SUM(Y82,AE82,AK82)","v":0},{"$f":"SUM(AR82,AX82,BD82)","v":0},{"$f":"SUM(BK82,BQ82,BW82)","v":0},{"$f":"SUM(CD82,CJ82,CP82)","v":0}]
["S-HP 250 ",{"$f":"SUM(F95,L95,R95)","v":0},{"$f":"SUM(Y95,AE95,AK95)","v":0},{"$f":"SUM(AR95,AX95,BD95)","v":0},{"$f":"SUM(BK95,BQ95,BW95)","v":0},{"$f":"SUM(CD95,CJ95,CP95)","v":0}]
["Other Light types (excluding T5s)",{"$f":"'DNSP Inputs Capex'!D103","v":0},{"$f":"'DNSP Inputs Capex'!E103","v":0},{"$f":"'DNSP Inputs Capex'!F103","v":0},{"$f":"'DNSP Inputs Capex'!G103","v":0},{"$f":"'DNSP Inputs Capex'!H103","v":0}]
[null,{"$f":"SUM(B9:B12)","v":0},{"$f":"SUM(C9:C12)","v":0},{"$f":"SUM(D9:D12)","v":0},{"$f":"SUM(E9:E12)","v":0},{"$f":"SUM(F9:F12)","v":0}]
[]
[{"$f":"\"Energy Efficient Luminaires - \"&A4","v":"Energy Efficient Luminaires - Real 2021 $ "}]
[{"$f":"A122","v":"T5 (2 X 14W)"},{"$f":"SUM(F132,L132,R132)","v":174353.57574560036},{"$f":"SUM(Y132,AE132,AK132)","v":174672.99806560908},{"$f":"SUM(AR132,AX132,BD132)","v":174968.54989112634},{"$f":"SUM(BK132,BQ132,BW132)","v":175326.26108748422},{"$f":"SUM(CD132,CJ132,CP132)","v":175793.87800947929}]
[{"$f":"A135","v":"T5 (2x24W)"},{"$f":"SUM(F145,L145,R145)","v":17129.657930253958},{"$f":"SUM(Y145,AE145,AK145)","v":17162.867129179343},{"$f":"SUM(AR145,AX145,BD145)","v":17193.594597961412},{"$f":"SUM(BK145,BQ145,BW145)","v":17230.784554747654},{"$f":"SUM(CD145,CJ145,CP145)","v":17279.401017689219}]
[{"$f":"A148","v":"LED 18W"},{"$f":"SUM(F158,L158,R158)","v":1577162.6042583869},{"$f":"SUM(Y158,AE158,AK158)","v":1774633.4277782629},{"$f":"SUM(AR158,AX158,BD158)","v":1737744.4738964706},{"$f":"SUM(BK158,BQ158,BW158)","v":1701414.065418114},{"$f":"SUM(CD158,CJ158,CP158)","v":269165.84737688361}]
[{"$f":"A161","v":"LED 14W"},{"$f":"SUM(F171,L171,R171)","v":6078.4195579563275},{"$f":"SUM(Y171,AE171,AK171)","v":6091.4002096898366},{"$f":"SUM(AR171,AX171,BD171)","v":6103.4108146974586},{"$f":"SUM(BK171,BQ171,BW171)","v":6117.9474458914583},{"$f":"SUM(CD171,CJ171,CP171)","v":6136.9504147790076}]
[{"$f":"A174","v":"LED 70W-125W (L1)"},{"$f":"SUM(F184,L184,R184)","v":54924.409506732234},{"$f":"SUM(Y184,AE184,AK184)","v":55754.346799398234},{"$f":"SUM(AR184,AX184,BD184)","v":58894.197880689986},{"$f":"SUM(BK184,BQ184,BW184)","v":61228.412076534565},{"$f":"SUM(CD184,CJ184,CP184)","v":17930.240317906024}]
[{"$f":"A187","v":"LED 155W-250W (L2)"},{"$f":"SUM(F197,L197,R197)","v":694914.39374561852},{"$f":"SUM(Y197,AE197,AK197)","v":691210.09181840671},{"$f":"SUM(AR197,AX197,BD197)","v":681938.843012386},{"$f":"SUM(BK197,BQ197,BW197)","v":673036.9627450055},{"$f":"SUM(CD197,CJ197,CP197)","v":659801.6169932991}]
[{"$f":"A200","v":"LED 275W-400W (L4)"},{"$f":"SUM(F210,L210,R210)","v":49026.002055810197},{"$f":"SUM(Y210,AE210,AK210)","v":49568.375016208563},{"$f":"SUM(AR210,AX210,BD210)","v":50113.114841668881},{"$f":"SUM(BK210,BQ210,BW210)","v":50674.229255608174},{"$f":"SUM(CD210,CJ210,CP210)","v":9656.4950073728014}]
[{"$f":"A213","v":"Smart lighting L1"},{"$f":"SUM(F223,L223,R223)","v":54510.534012529402},{"$f":"SUM(Y223,AE223,AK223)","v":54584.413836164364},{"$f":"SUM(AR223,AX223,BD223)","v":55028.470278230183},{"$f":"SUM(BK223,BQ223,BW223)","v":55111.803522148017},{"$f":"SUM(CD223,CJ223,CP223)","v":7416.7860659297257}]
[{"$f":"A226","v":"Smart lighting L2"},{"$f":"SUM(F236,L236,R236)","v":57039.284012529402},{"$f":"SUM(Y236,AE236,AK236)","v":57113.163836164364},{"$f":"SUM(AR236,AX236,BD236)","v":57574.04491405865},{"$f":"SUM(BK236,BQ236,BW236)","v":57657.378157976491},{"$f":"SUM(CD236,CJ236,CP236)","v":7761.6864538020873}]
[{"$f":"A239","v":"Smart lighting L4"},{"$f":"SUM(F249,L249,R249)","v":79684.746012529402},{"$f":"SUM(Y249,AE249,AK249)","v":79758.625836164356},{"$f":"SUM(AR249,AX249,BD249)","v":80370.17489282976},{"$f":"SUM(BK249,BQ249,BW249)","v":80453.50813674758},{"$f":"SUM(CD249,CJ249,CP249)","v":10850.338407276653}]
[null,{"$f":"SUM(B16:B25)","v":2764823.6268379469},{"$f":"SUM(C16:C25)","v":2960549.7103252481},2919928.8750201194,2878251.3524002577,1181793.2400644175]
[]
[{"$f":"\"Poles & Brackets - \"&A4","v":"Poles & Brackets - Real 2021 $ "}]
["Dedicated poles",{"$f":"SUM(F108,L108,R108)","v":2111561.8551770328},{"$f":"SUM(Y108,AE108,AK108)","v":2116441.4181640358},{"$f":"SUM(AR108,AX108,BD108)","v":2120982.9343753476},{"$f":"SUM(BK108,BQ108,BW108)","v":2126404.7329326845},{"$f":"SUM(CD108,CJ108,CP108)","v":2133382.9833764727}]
["Brackets",{"$f":"SUM(F118,L118,R118)","v":202105.84260533049},{"$f":"SUM(Y118,AE118,AK118)","v":202838.44032368829},{"$f":"SUM(AR118,AX118,BD118)","v":203516.29086658242},{"$f":"SUM(BK118,BQ118,BW118)","v":204336.70443779332},{"$f":"SUM(CD118,CJ118,CP118)","v":205409.18769478603}]
[null,{"$f":"SUM(B29:B30)","v":2313667.6977823633},{"$f":"SUM(C29:C30)","v":2319279.8584877239},{"$f":"SUM(D29:D30)","v":2324499.2252419302},{"$f":"SUM(E29:E30)","v":2330741.4373704777},{"$f":"SUM(F29:F30)","v":2338792.1710712588}]
[]
[]
["Customer Contributions - Real 2015 $ "]
["MV80 Lights replaced with T5 Energy Efficient Lights"]
["SP AusNet - Central"]
["WDV RAB - MV 80 Luminaire",{"$f":"'Charges Summary'!D34/'Charges Summary'!D$4","v":146.1321163478724},{"$f":"'Charges Summary'!E34/'Charges Summary'!E$4","v":145.77465028755122},{"$f":"'Charges Summary'!F34/'Charges Summary'!F$4","v":150.12257328326675},{"$f":"'Charges Summary'!G34/'Charges Summary'!G$4","v":170.01420200661636},{"$f":"'Charges Summary'!H34/'Charges Summary'!H$4","v":185.92138904325861}]
["Number of Lights MV80 replaced with T5",{"$f":"'DNSP Inputs Capex'!D37","v":0},{"$f":"'DNSP Inputs Capex'!E37","v":0},{"$f":"'DNSP Inputs Capex'!F37","v":0},{"$f":"'DNSP Inputs Capex'!G37","v":0},{"$f":"'DNSP Inputs Capex'!H37","v":0}]
[null,{"$f":"B37*B38","v":0},{"$f":"C37*C38","v":0},{"$f":"D37*D38","v":0},{"$f":"E37*E38","v":0},{"$f":"F37*F38","v":0}]
["SP AusNet - North/East"]
["WDV RAB - MV 80 Luminaire",{"$f":"'Charges Summary'!K34/'Charges Summary'!K$4","v":160.59320185004898},{"$f":"'Charges Summary'!L34/'Charges Summary'!L$4","v":160.20036131222335},{"$f":"'Charges Summary'!M34/'Charges Summary'!M$4","v":164.97855034232819},{"$f":"'Charges Summary'!N34/'Charges Summary'!N$4","v":170.01420200661633},{"$f":"'Charges Summary'!O34/'Charges Summary'!O$4","v":185.92138904325861}]
["Number of Lights MV80 replaced with T5",{"$f":"'DNSP Inputs Capex'!D38","v":0},{"$f":"'DNSP Inputs Capex'!E38","v":0},{"$f":"'DNSP Inputs Capex'!F38","v":0},{"$f":"'DNSP Inputs Capex'!G38","v":0},{"$f":"'DNSP Inputs Capex'!H38","v":0}]
[null,{"$f":"B41*B42","v":0},{"$f":"C41*C42","v":0},{"$f":"D41*D42","v":0},{"$f":"E41*E42","v":0},{"$f":"F41*F42","v":0}]
[]
["Total",{"$f":"SUM(B39,B43)","v":0},{"$f":"SUM(C39,C43)","v":0},{"$f":"SUM(D39,D43)","v":0},{"$f":"SUM(E39,E43)","v":0},{"$f":"SUM(F39,F43)","v":0}]
[]
[]
[]
[]
["Detailed calculations"]
[]
["Public Lighting Capex Costs","Year",{"$f":"'DNSP Inputs General'!$Q2","v":"2022-06-30"},null,null,null,null,null,null,null,null,null,null,null,null,null,null,null,null,null,"Year",{"$f":"'DNSP Inputs General'!$R2","v":"2023-06-30"},null,null,null,null,null,null,null,null,null,null,null,null,null,null,null,null,null,"Year",{"$f":"'DNSP Inputs General'!$S2","v":"2024-06-30"},null,null,null,null,null,null,null,null,null,null,null,null,null,null,null,null,null,"Year",{"$f":"'DNSP Inputs General'!$T2","v":"2025-06-30"},null,null,null,null,null,null,null,null,null,null,null,null,null,null,null,null,null,"Year",{"$f":"'DNSP Inputs General'!$U2","v":"2026-06-30"}]
[{"$f":"'DNSP Inputs Capex'!$C$5","v":"Real 2021 $ "}]
[]
[null,"Urban",null,null,null,null,null,"Rural",null,null,null,null,null,"Remote",null,null,null,null,null,null,"Urban",null,null,null,null,null,"Rural",null,null,null,null,null,"Remote",null,null,null,null,null,null,"Urban",null,null,null,null,null,"Rural",null,null,null,null,null,"Remote",null,null,null,null,null,null,"Urban",null,null,null,null,null,"Rural",null,null,null,null,null,"Remote",null,null,null,null,null,null,"Urban",null,null,null,null,null,"Rural",null,null,null,null,null,"Remote"]
[]
[null,"Unit rate","Number","Hours","Cost","Annualised",null,"Unit rate","Number","Hours","Cost","Annualised",null,"Unit rate","Number","Hours","Cost","Annualised",null,null,"Unit rate","Number","Hours","Cost","Annualised",null,"Unit rate","Number","Hours","Cost","Annualised",null,"Unit rate","Number","Hours","Cost","Annualised",null,null,"Unit rate","Number","Hours","Cost","Annualised",null,"Unit rate","Number","Hours","Cost","Annualised",null,"Unit rate","Number","Hours","Cost","Annualised",null,null,"Unit rate","Number","Hours","Cost","Annualised",null,"Unit rate","Number","Hours","Cost","Annualised",null,"Unit rate","Number","Hours","Cost","Annualised",null,null,"Unit rate","Number","Hours","Cost","Annualised",null,"Unit rate","Number","Hours","Cost","Annualised",null,"Unit rate","Number","Hours","Cost","Annualised"]
[null,null,null,null,null," cost",null,null,null,null,null," cost",null,null,null,null,null," cost",null,null,null,null,null,null," cost",null,null,null,null,null," cost",null,null,null,null,null," cost",null,null,null,null,null,null," cost",null,null,null,null,null," cost",null,null,null,null,null," cost",null,null,null,null,null,null," cost",null,null,null,null,null," cost",null,null,null,null,null," cost",null,null,null,null,null,null," cost",null,null,null,null,null," cost",null,null,null,null,null," cost"]
["MV80"]
["Luminaires "]
["Material & misc",{"$f":"'DNSP Inputs Capex'!$D$21+'DNSP Inputs Capex'!$D$22","v":206.34764567069212},{"$f":"'DNSP Inputs Capex'!$D$24","v":16},null,{"$f":"B61*C61","v":3301.5623307310739},{"$f":"(E61+E62+E63)/C61","v":334.27161351601859},null,{"$f":"('DNSP Inputs Capex'!$D$21+'DNSP Inputs Capex'!$D$22)*(1+'DNSP Inputs Capex'!$D$11)","v":216.66502795422673},{"$f":"'DNSP Inputs Capex'!$D$25","v":13},null,{"$f":"H61*I61","v":2816.6453634049476},{"$f":"(K61+K62+K63)/I61","v":381.87529607155165},null,{"$f":"('DNSP Inputs Capex'!$D$21+'DNSP Inputs Capex'!$D$22)*(1+'DNSP Inputs Capex'!$D$11)","v":216.66502795422673},{"$f":"'DNSP Inputs Capex'!$D$26","v":10},null,{"$f":"N61*O61","v":2166.6502795422675},{"$f":"(Q61+Q62+Q63)/O61","v":431.43837650674914},null,null,{"$f":"'DNSP Inputs Capex'!$E$21+'DNSP Inputs Capex'!$E$22","v":206.34764567069212},{"$f":"'DNSP Inputs Capex'!$E$24","v":16},null,{"$f":"U61*V61","v":3301.5623307310739},{"$f":"(X61+X62+X63)/V61","v":334.96347182696411},null,{"$f":"('DNSP Inputs Capex'!$E$21+'DNSP Inputs Capex'!$E$22)*(1+'DNSP Inputs Capex'!$E$11)","v":216.66502795422673},{"$f":"'DNSP Inputs Capex'!$E$25","v":13},null,{"$f":"AA61*AB61","v":2816.6453634049476},{"$f":"(AD61+AD62+AD63)/AB61","v":382.72681399271539},null,{"$f":"('DNSP Inputs Capex'!$E$21+'DNSP Inputs Capex'!$E$22)*(1+'DNSP Inputs Capex'!$E$11)","v":216.66502795422673},{"$f":"'DNSP Inputs Capex'!$E$26","v":10},null,{"$f":"AG61*AH61","v":2166.6502795422675},{"$f":"(AJ61+AJ62+AJ63)/AH61","v":432.54534980426195},null,null,{"$f":"'DNSP Inputs Capex'!$F$21+'DNSP Inputs Capex'!$F$22","v":206.34764567069212},{"$f":"'DNSP Inputs Capex'!$F$24","v":16},null,{"$f":"AN61*AO61","v":3301.5623307310739},{"$f":"(AQ61+AQ62+AQ63)/AO61","v":335.60362742659055},null,{"$f":"('DNSP Inputs Capex'!$F$21+'DNSP Inputs Capex'!$F$22)*(1+'DNSP Inputs Capex'!$F$11)","v":216.66502795422673},{"$f":"'DNSP Inputs Capex'!$F$25","v":13},null,{"$f":"AT61*AU61","v":2816.6453634049476},{"$f":"(AW61+AW62+AW63)/AU61","v":383.51469780764012},null,{"$f":"('DNSP Inputs Capex'!$F$21+'DNSP Inputs Capex'!$F$22)*(1+'DNSP Inputs Capex'!$F$11)","v":216.66502795422673},{"$f":"'DNSP Inputs Capex'!$F$26","v":10},null,{"$f":"AZ61*BA61","v":2166.6502795422675},{"$f":"(BC61+BC62+BC63)/BA61","v":433.5695987636642},null,null,{"$f":"'DNSP Inputs Capex'!$G$21+'DNSP Inputs Capex'!$G$22","v":206.34764567069212},{"$f":"'DNSP Inputs Capex'!$G$24","v":16},null,{"$f":"BG61*BH61","v":3301.5623307310739},{"$f":"(BJ61+BJ62+BJ63)/BH61","v":336.37841819297068},null,{"$f":"('DNSP Inputs Capex'!$G$21+'DNSP Inputs Capex'!$G$22)*(1+'DNSP Inputs Capex'!$G$11)","v":216.66502795422673},{"$f":"'DNSP Inputs Capex'!$G$25","v":13},null,{"$f":"BM61*BN61","v":2816.6453634049476},{"$f":"(BP61+BP62+BP63)/BN61","v":384.46828644318492},null,{"$f":"('DNSP Inputs Capex'!$G$21+'DNSP Inputs Capex'!$G$22)*(1+'DNSP Inputs Capex'!$G$11)","v":216.66502795422673},{"$f":"'DNSP Inputs Capex'!$G$26","v":10},null,{"$f":"BS61*BT61","v":2166.6502795422675},{"$f":"(BV61+BV62+BV63)/BT61","v":434.80926398987242},null,null,{"$f":"'DNSP Inputs Capex'!$H$21+'DNSP Inputs Capex'!$H$22","v":206.34764567069212},{"$f":"'DNSP Inputs Capex'!$H$24","v":16},null,{"$f":"BZ61*CA61","v":3301.5623307310739},{"$f":"(CC61+CC62+CC63)/CA61","v":337.3912611709199},null,{"$f":"('DNSP Inputs Capex'!$H$21+'DNSP Inputs Capex'!$H$22)*(1+'DNSP Inputs Capex'!$H$11)","v":216.66502795422673},{"$f":"'DNSP Inputs Capex'!$H$25","v":13},null,{"$f":"CF61*CG61","v":2816.6453634049476},{"$f":"(CI61+CI62+CI63)/CG61","v":385.71486241604549},null,{"$f":"('DNSP Inputs Capex'!$H$21+'DNSP Inputs Capex'!$H$22)*(1+'DNSP Inputs Capex'!$H$11)","v":216.66502795422673},{"$f":"'DNSP Inputs Capex'!$H$26","v":10},null,{"$f":"CL61*CM61","v":2166.6502795422675},{"$f":"(CO61+CO62+CO63)/CM61","v":436.42981275459113}]
["Crew costs",{"$f":"'DNSP Inputs Capex'!$D$12","v":111.36223236834823},{"$f":"'DNSP Inputs Capex'!$D$23","v":2},{"$f":"'DNSP Inputs Capex'!$D$15","v":7.5},{"$f":"B62*C62*D62","v":1670.4334855252234},null,null,{"$f":"'DNSP Inputs Capex'!$D$12","v":111.36223236834823},{"$f":"'DNSP Inputs Capex'!$D$23","v":2},{"$f":"'DNSP Inputs Capex'!$D$15","v":7.5},{"$f":"H62*I62*J62","v":1670.4334855252234},null,null,{"$f":"'DNSP Inputs Capex'!$D$12","v":111.36223236834823},{"$f":"'DNSP Inputs Capex'!$D$23","v":2},{"$f":"'DNSP Inputs Capex'!$D$15","v":7.5},{"$f":"N62*O62*P62","v":1670.4334855252234},null,null,null,{"$f":"'DNSP Inputs Capex'!$E$12","v":112.10021456669011},{"$f":"'DNSP Inputs Capex'!$E$23","v":2},{"$f":"'DNSP Inputs Capex'!$E$15","v":7.5},{"$f":"U62*V62*W62","v":1681.5032185003517},null,null,{"$f":"'DNSP Inputs Capex'!$E$12","v":112.10021456669011},{"$f":"'DNSP Inputs Capex'!$E$23","v":2},{"$f":"'DNSP Inputs Capex'!$E$15","v":7.5},{"$f":"AA62*AB62*AC62","v":1681.5032185003517},null,null,{"$f":"'DNSP Inputs Capex'!$E$12","v":112.10021456669011},{"$f":"'DNSP Inputs Capex'!$E$23","v":2},{"$f":"'DNSP Inputs Capex'!$E$15","v":7.5},{"$f":"AG62*AH62*AI62","v":1681.5032185003517},null,null,null,{"$f":"'DNSP Inputs Capex'!$F$12","v":112.78304720629164},{"$f":"'DNSP Inputs Capex'!$F$23","v":2},{"$f":"'DNSP Inputs Capex'!$F$15","v":7.5},{"$f":"AN62*AO62*AP62","v":1691.7457080943745},null,null,{"$f":"'DNSP Inputs Capex'!$F$12","v":112.78304720629164},{"$f":"'DNSP Inputs Capex'!$F$23","v":2},{"$f":"'DNSP Inputs Capex'!$F$15","v":7.5},{"$f":"AT62*AU62*AV62","v":1691.7457080943745},null,null,{"$f":"'DNSP Inputs Capex'!$F$12","v":112.78304720629164},{"$f":"'DNSP Inputs Capex'!$F$23","v":2},{"$f":"'DNSP Inputs Capex'!$F$15","v":7.5},{"$f":"AZ62*BA62*BB62","v":1691.7457080943745},null,null,null,{"$f":"'DNSP Inputs Capex'!$G$12","v":113.60949069043043},{"$f":"'DNSP Inputs Capex'!$G$23","v":2},{"$f":"'DNSP Inputs Capex'!$G$15","v":7.5},{"$f":"BG62*BH62*BI62","v":1704.1423603564565},null,null,{"$f":"'DNSP Inputs Capex'!$G$12","v":113.60949069043043},{"$f":"'DNSP Inputs Capex'!$G$23","v":2},{"$f":"'DNSP Inputs Capex'!$G$15","v":7.5},{"$f":"BM62*BN62*BO62","v":1704.1423603564565},null,null,{"$f":"'DNSP Inputs Capex'!$G$12","v":113.60949069043043},{"$f":"'DNSP Inputs Capex'!$G$23","v":2},{"$f":"'DNSP Inputs Capex'!$G$15","v":7.5},{"$f":"BS62*BT62*BU62","v":1704.1423603564565},null,null,null,{"$f":"'DNSP Inputs Capex'!$H$12","v":114.68985653357629},{"$f":"'DNSP Inputs Capex'!$H$23","v":2},{"$f":"'DNSP Inputs Capex'!$H$15","v":7.5},{"$f":"BZ62*CA62*CB62","v":1720.3478480036442},null,null,{"$f":"'DNSP Inputs Capex'!$H$12","v":114.68985653357629},{"$f":"'DNSP Inputs Capex'!$H$23","v":2},{"$f":"'DNSP Inputs Capex'!$H$15","v":7.5},{"$f":"CF62*CG62*CH62","v":1720.3478480036442},null,null,{"$f":"'DNSP Inputs Capex'!$H$12","v":114.68985653357629},{"$f":"'DNSP Inputs Capex'!$H$23","v":2},{"$f":"'DNSP Inputs Capex'!$H$15","v":7.5},{"$f":"CL62*CM62*CN62","v":1720.3478480036442}]
["Elevated platform vehicle costs",{"$f":"'DNSP Inputs Capex'!$D$13","v":50.18},1,{"$f":"'DNSP Inputs Capex'!$D$15","v":7.5},{"$f":"B63*C63*D63","v":376.35},null,null,{"$f":"'DNSP Inputs Capex'!$D$14","v":63.64},1,{"$f":"'DNSP Inputs Capex'!$D$15","v":7.5},{"$f":"H63*I63*J63","v":477.3},null,null,{"$f":"'DNSP Inputs Capex'!$D$14","v":63.64},1,{"$f":"'DNSP Inputs Capex'!$D$15","v":7.5},{"$f":"N63*O63*P63","v":477.3},null,null,null,{"$f":"'DNSP Inputs Capex'!$E$13","v":50.18},1,{"$f":"'DNSP Inputs Capex'!$E$15","v":7.5},{"$f":"U63*V63*W63","v":376.35},null,null,{"$f":"'DNSP Inputs Capex'!$E$14","v":63.64},1,{"$f":"'DNSP Inputs Capex'!$E$15","v":7.5},{"$f":"AA63*AB63*AC63","v":477.3},null,null,{"$f":"'DNSP Inputs Capex'!$E$14","v":63.64},1,{"$f":"'DNSP Inputs Capex'!$E$15","v":7.5},{"$f":"AG63*AH63*AI63","v":477.3},null,null,null,{"$f":"'DNSP Inputs Capex'!$F$13","v":50.18},1,{"$f":"'DNSP Inputs Capex'!$F$15","v":7.5},{"$f":"AN63*AO63*AP63","v":376.35},null,null,{"$f":"'DNSP Inputs Capex'!$F$14","v":63.64},1,{"$f":"'DNSP Inputs Capex'!$F$15","v":7.5},{"$f":"AT63*AU63*AV63","v":477.3},null,null,{"$f":"'DNSP Inputs Capex'!$F$14","v":63.64},1,{"$f":"'DNSP Inputs Capex'!$F$15","v":7.5},{"$f":"AZ63*BA63*BB63","v":477.3},null,null,null,{"$f":"'DNSP Inputs Capex'!$G$13","v":50.18},1,{"$f":"'DNSP Inputs Capex'!$G$15","v":7.5},{"$f":"BG63*BH63*BI63","v":376.35},null,null,{"$f":"'DNSP Inputs Capex'!$G$14","v":63.64},1,{"$f":"'DNSP Inputs Capex'!$G$15","v":7.5},{"$f":"BM63*BN63*BO63","v":477.3},null,null,{"$f":"'DNSP Inputs Capex'!$G$14","v":63.64},1,{"$f":"'DNSP Inputs Capex'!$G$15","v":7.5},{"$f":"BS63*BT63*BU63","v":477.3},null,null,null,{"$f":"'DNSP Inputs Capex'!$H$13","v":50.18},1,{"$f":"'DNSP Inputs Capex'!$H$15","v":7.5},{"$f":"BZ63*CA63*CB63","v":376.35},null,null,{"$f":"'DNSP Inputs Capex'!$H$14","v":63.64},1,{"$f":"'DNSP Inputs Capex'!$H$15","v":7.5},{"$f":"CF63*CG63*CH63","v":477.3},null,null,{"$f":"'DNSP Inputs Capex'!$H$14","v":63.64},1,{"$f":"'DNSP Inputs Capex'!$H$15","v":7.5},{"$f":"CL63*CM63*CN63","v":477.3}]
[{"$f":"'DNSP Inputs Capex'!$A$28","v":"Other Capex unit costs Describe :………………………"},null,null,null,null,{"$f":"'DNSP Inputs Capex'!$D$28","v":0},null,null,null,null,null,{"$f":"'DNSP Inputs Capex'!$D$28","v":0},null,null,null,null,null,{"$f":"'DNSP Inputs Capex'!$D$28","v":0},null,null,null,null,null,null,{"$f":"'DNSP Inputs Capex'!$E$28","v":0},null,null,null,null,null,{"$f":"'DNSP Inputs Capex'!$E$28","v":0},null,null,null,null,null,{"$f":"'DNSP Inputs Capex'!$E$28","v":0},null,null,null,null,null,null,{"$f":"'DNSP Inputs Capex'!$F$28","v":0},null,null,null,null,null,{"$f":"'DNSP Inputs Capex'!$F$28","v":0},null,null,null,null,null,{"$f":"'DNSP Inputs Capex'!$F$28","v":0},null,null,null,null,null,null,{"$f":"'DNSP Inputs Capex'!$G$28","v":0},null,null,null,null,null,{"$f":"'DNSP Inputs Capex'!$G$28","v":0},null,null,null,null,null,{"$f":"'DNSP Inputs Capex'!$G$28","v":0},null,null,null,null,null,null,{"$f":"'DNSP Inputs Capex'!$H$28","v":0},null,null,null,null,null,{"$f":"'DNSP Inputs Capex'!$H$28","v":0},null,null,null,null,null,{"$f":"'DNSP Inputs Capex'!$H$28","v":0}]
[null,null,null,null,null,{"$f":"SUM(F61,F64)","v":334.27161351601859},null,null,null,null,null,{"$f":"SUM(L61,L64)","v":381.87529607155165},null,null,null,null,null,{"$f":"SUM(R61,R64)","v":431.43837650674914},null,null,null,null,null,null,{"$f":"SUM(Y61,Y64)","v":334.96347182696411},null,null,null,null,null,{"$f":"SUM(AE61,AE64)","v":382.72681399271539},null,null,null,null,null,{"$f":"SUM(AK61,AK64)","v":432.54534980426195},null,null,null,null,null,null,{"$f":"SUM(AR61,AR64)","v":335.60362742659055},null,null,null,null,null,{"$f":"SUM(AX61,AX64)","v":383.51469780764012},null,null,null,null,null,{"$f":"SUM(BD61,BD64)","v":433.5695987636642},null,null,null,null,null,null,{"$f":"SUM(BK61,BK64)","v":336.37841819297068},null,null,null,null,null,{"$f":"SUM(BQ61,BQ64)","v":384.46828644318492},null,null,null,null,null,{"$f":"SUM(BW61,BW64)","v":434.80926398987242},null,null,null,null,null,null,{"$f":"SUM(CD61,CD64)","v":337.3912611709199},null,null,null,null,null,{"$f":"SUM(CJ61,CJ64)","v":385.71486241604549},null,null,null,null,null,{"$f":"SUM(CP61,CP64)","v":436.42981275459113}]
[]
["Number of luminaires replaced",null,null,null,null,{"$f":"'DNSP Inputs Capex'!$D$31","v":0},null,null,null,null,null,{"$f":"'DNSP Inputs Capex'!$D$32","v":0},null,null,null,null,null,{"$f":"'DNSP Inputs Capex'!$D$33","v":0},null,null,null,null,null,null,{"$f":"'DNSP Inputs Capex'!$E$31","v":0},null,null,null,null,null,{"$f":"'DNSP Inputs Capex'!$E$32","v":0},null,null,null,null,null,{"$f":"'DNSP Inputs Capex'!$E$33","v":0},null,null,null,null,null,null,{"$f":"'DNSP Inputs Capex'!$F$31","v":0},null,null,null,null,null,{"$f":"'DNSP Inputs Capex'!$F$32","v":0},null,null,null,null,null,{"$f":"'DNSP Inputs Capex'!$F$33","v":0},null,null,null,null,null,null,{"$f":"'DNSP Inputs Capex'!$G$31","v":0},null,null,null,null,null,{"$f":"'DNSP Inputs Capex'!$G$32","v":0},null,null,null,null,null,{"$f":"'DNSP Inputs Capex'!$G$33","v":0},null,null,null,null,null,null,{"$f":"'DNSP Inputs Capex'!$H$31","v":0},null,null,null,null,null,{"$f":"'DNSP Inputs Capex'!$H$32","v":0},null,null,null,null,null,{"$f":"'DNSP Inputs Capex'!$H$33","v":0}]
[]
["Capex",null,null,null,null,{"$f":"F65*F67","v":0},null,null,null,null,null,{"$f":"L65*L67","v":0},null,null,null,null,null,{"$f":"R65*R67","v":0},null,null,null,null,null,null,{"$f":"Y65*Y67","v":0},null,null,null,null,null,{"$f":"AE65*AE67","v":0},null,null,null,null,null,{"$f":"AK65*AK67","v":0},null,null,null,null,null,null,{"$f":"AR65*AR67","v":0},null,null,null,null,null,{"$f":"AX65*AX67","v":0},null,null,null,null,null,{"$f":"BD65*BD67","v":0},null,null,null,null,null,null,{"$f":"BK65*BK67","v":0},null,null,null,null,null,{"$f":"BQ65*BQ67","v":0},null,null,null,null,null,{"$f":"BW65*BW67","v":0},null,null,null,null,null,null,{"$f":"CD65*CD67","v":0},null,null,null,null,null,{"$f":"CJ65*CJ67","v":0},null,null,null,null,null,{"$f":"CP65*CP67","v":0}]
[]
[]
["S-HP 150"]
["Luminaires "]
["Material & misc",{"$f":"'DNSP Inputs Capex'!$D$44+'DNSP Inputs Capex'!$D$45","v":236.7652913413842},{"$f":"'DNSP Inputs Capex'!$D$47","v":16},null,{"$f":"B74*C74","v":3788.2446614621472},{"$f":"(E74+E75+E76)/C74","v":370.99863418671066},null,{"$f":"('DNSP Inputs Capex'!$D$44+'DNSP Inputs Capex'!$D$45)*(1+'DNSP Inputs Capex'!$D$11)","v":248.60355590845342},{"$f":"'DNSP Inputs Capex'!$D$48","v":13},null,{"$f":"H74*I74","v":3231.8462268098942},{"$f":"(K74+K75+K76)/I74","v":413.81382402577827},null,{"$f":"('DNSP Inputs Capex'!$D$44+'DNSP Inputs Capex'!$D$45)*(1+'DNSP Inputs Capex'!$D$11)","v":248.60355590845342},{"$f":"'DNSP Inputs Capex'!$D$49","v":10},null,{"$f":"N74*O74","v":2486.0355590845343},{"$f":"(Q74+Q75+Q76)/O74","v":463.37690446097577},null,null,{"$f":"'DNSP Inputs Capex'!$E$44+'DNSP Inputs Capex'!$E$45","v":236.7652913413842},{"$f":"'DNSP Inputs Capex'!$E$47","v":16},null,{"$f":"U74*V74","v":3788.2446614621472},{"$f":"(X74+X75+X76)/V74","v":371.69049249765618},null,{"$f":"('DNSP Inputs Capex'!$E$44+'DNSP Inputs Capex'!$E$45)*(1+'DNSP Inputs Capex'!$E$11)","v":248.60355590845342},{"$f":"'DNSP Inputs Capex'!$E$48","v":13},null,{"$f":"AA74*AB74","v":3231.8462268098942},{"$f":"(AD74+AD75+AD76)/AB74","v":414.66534194694202},null,{"$f":"('DNSP Inputs Capex'!$E$44+'DNSP Inputs Capex'!$E$45)*(1+'DNSP Inputs Capex'!$E$11)","v":248.60355590845342},{"$f":"'DNSP Inputs Capex'!$E$49","v":10},null,{"$f":"AG74*AH74","v":2486.0355590845343},{"$f":"(AJ74+AJ75+AJ76)/AH74","v":464.48387775848857},null,null,{"$f":"'DNSP Inputs Capex'!$F$44+'DNSP Inputs Capex'!$F$45","v":236.7652913413842},{"$f":"'DNSP Inputs Capex'!$F$47","v":16},null,{"$f":"AN74*AO74","v":3788.2446614621472},{"$f":"(AQ74+AQ75+AQ76)/AO74","v":372.33064809728262},null,{"$f":"('DNSP Inputs Capex'!$F$44+'DNSP Inputs Capex'!$F$45)*(1+'DNSP Inputs Capex'!$F$11)","v":248.60355590845342},{"$f":"'DNSP Inputs Capex'!$F$48","v":13},null,{"$f":"AT74*AU74","v":3231.8462268098942},{"$f":"(AW74+AW75+AW76)/AU74","v":415.45322576186686},null,{"$f":"('DNSP Inputs Capex'!$F$44+'DNSP Inputs Capex'!$F$45)*(1+'DNSP Inputs Capex'!$F$11)","v":248.60355590845342},{"$f":"'DNSP Inputs Capex'!$F$49","v":10},null,{"$f":"AZ74*BA74","v":2486.0355590845343},{"$f":"(BC74+BC75+BC76)/BA74","v":465.50812671789089},null,null,{"$f":"'DNSP Inputs Capex'!$G$44+'DNSP Inputs Capex'!$G$45","v":236.7652913413842},{"$f":"'DNSP Inputs Capex'!$G$47","v":16},null,{"$f":"BG74*BH74","v":3788.2446614621472},{"$f":"(BJ74+BJ75+BJ76)/BH74","v":373.10543886366276},null,{"$f":"('DNSP Inputs Capex'!$G$44+'DNSP Inputs Capex'!$G$45)*(1+'DNSP Inputs Capex'!$G$11)","v":248.60355590845342},{"$f":"'DNSP Inputs Capex'!$G$48","v":13},null,{"$f":"BM74*BN74","v":3231.8462268098942},{"$f":"(BP74+BP75+BP76)/BN74","v":416.40681439741161},null,{"$f":"('DNSP Inputs Capex'!$G$44+'DNSP Inputs Capex'!$G$45)*(1+'DNSP Inputs Capex'!$G$11)","v":248.60355590845342},{"$f":"'DNSP Inputs Capex'!$G$49","v":10},null,{"$f":"BS74*BT74","v":2486.0355590845343},{"$f":"(BV74+BV75+BV76)/BT74","v":466.74779194409911},null,null,{"$f":"'DNSP Inputs Capex'!$H$44+'DNSP Inputs Capex'!$H$45","v":236.7652913413842},{"$f":"'DNSP Inputs Capex'!$H$47","v":16},null,{"$f":"BZ74*CA74","v":3788.2446614621472},{"$f":"(CC74+CC75+CC76)/CA74","v":374.11828184161197},null,{"$f":"('DNSP Inputs Capex'!$H$44+'DNSP Inputs Capex'!$H$45)*(1+'DNSP Inputs Capex'!$H$11)","v":248.60355590845342},{"$f":"'DNSP Inputs Capex'!$H$48","v":13},null,{"$f":"CF74*CG74","v":3231.8462268098942},{"$f":"(CI74+CI75+CI76)/CG74","v":417.65339037027218},null,{"$f":"('DNSP Inputs Capex'!$H$44+'DNSP Inputs Capex'!$H$45)*(1+'DNSP Inputs Capex'!$H$11)","v":248.60355590845342},{"$f":"'DNSP Inputs Capex'!$H$49","v":10},null,{"$f":"CL74*CM74","v":2486.0355590845343},{"$f":"(CO74+CO75+CO76)/CM74","v":468.36834070881787}]
["Crew costs",{"$f":"'DNSP Inputs Capex'!$D$12","v":111.36223236834823},{"$f":"'DNSP Inputs Capex'!$D$46","v":2},{"$f":"'DNSP Inputs Capex'!$D$15","v":7.5},{"$f":"D75*C75*B75","v":1670.4334855252234},null,null,{"$f":"'DNSP Inputs Capex'!$D$12","v":111.36223236834823},{"$f":"'DNSP Inputs Capex'!$D$46","v":2},{"$f":"'DNSP Inputs Capex'!$D$15","v":7.5},{"$f":"J75*I75*H75","v":1670.4334855252234},null,null,{"$f":"'DNSP Inputs Capex'!$D$12","v":111.36223236834823},{"$f":"'DNSP Inputs Capex'!$D$46","v":2},{"$f":"'DNSP Inputs Capex'!$D$15","v":7.5},{"$f":"P75*O75*N75","v":1670.4334855252234},null,null,null,{"$f":"'DNSP Inputs Capex'!$E$12","v":112.10021456669011},{"$f":"'DNSP Inputs Capex'!$E$46","v":2},{"$f":"'DNSP Inputs Capex'!$E$15","v":7.5},{"$f":"W75*V75*U75","v":1681.5032185003517},null,null,{"$f":"'DNSP Inputs Capex'!$E$12","v":112.10021456669011},{"$f":"'DNSP Inputs Capex'!$E$46","v":2},{"$f":"'DNSP Inputs Capex'!$E$15","v":7.5},{"$f":"AC75*AB75*AA75","v":1681.5032185003517},null,null,{"$f":"'DNSP Inputs Capex'!$E$12","v":112.10021456669011},{"$f":"'DNSP Inputs Capex'!$E$46","v":2},{"$f":"'DNSP Inputs Capex'!$E$15","v":7.5},{"$f":"AI75*AH75*AG75","v":1681.5032185003517},null,null,null,{"$f":"'DNSP Inputs Capex'!$F$12","v":112.78304720629164},{"$f":"'DNSP Inputs Capex'!$F$46","v":2},{"$f":"'DNSP Inputs Capex'!$F$15","v":7.5},{"$f":"AP75*AO75*AN75","v":1691.7457080943745},null,null,{"$f":"'DNSP Inputs Capex'!$F$12","v":112.78304720629164},{"$f":"'DNSP Inputs Capex'!$F$46","v":2},{"$f":"'DNSP Inputs Capex'!$F$15","v":7.5},{"$f":"AV75*AU75*AT75","v":1691.7457080943745},null,null,{"$f":"'DNSP Inputs Capex'!$F$12","v":112.78304720629164},{"$f":"'DNSP Inputs Capex'!$F$46","v":2},{"$f":"'DNSP Inputs Capex'!$F$15","v":7.5},{"$f":"BB75*BA75*AZ75","v":1691.7457080943745},null,null,null,{"$f":"'DNSP Inputs Capex'!$G$12","v":113.60949069043043},{"$f":"'DNSP Inputs Capex'!$G$46","v":2},{"$f":"'DNSP Inputs Capex'!$G$15","v":7.5},{"$f":"BI75*BH75*BG75","v":1704.1423603564565},null,null,{"$f":"'DNSP Inputs Capex'!$G$12","v":113.60949069043043},{"$f":"'DNSP Inputs Capex'!$G$46","v":2},{"$f":"'DNSP Inputs Capex'!$G$15","v":7.5},{"$f":"BO75*BN75*BM75","v":1704.1423603564565},null,null,{"$f":"'DNSP Inputs Capex'!$G$12","v":113.60949069043043},{"$f":"'DNSP Inputs Capex'!$G$46","v":2},{"$f":"'DNSP Inputs Capex'!$G$15","v":7.5},{"$f":"BU75*BT75*BS75","v":1704.1423603564565},null,null,null,{"$f":"'DNSP Inputs Capex'!$H$12","v":114.68985653357629},{"$f":"'DNSP Inputs Capex'!$H$46","v":2},{"$f":"'DNSP Inputs Capex'!$H$15","v":7.5},{"$f":"CB75*CA75*BZ75","v":1720.3478480036442},null,null,{"$f":"'DNSP Inputs Capex'!$H$12","v":114.68985653357629},{"$f":"'DNSP Inputs Capex'!$H$46","v":2},{"$f":"'DNSP Inputs Capex'!$H$15","v":7.5},{"$f":"CH75*CG75*CF75","v":1720.3478480036442},null,null,{"$f":"'DNSP Inputs Capex'!$H$12","v":114.68985653357629},{"$f":"'DNSP Inputs Capex'!$H$46","v":2},{"$f":"'DNSP Inputs Capex'!$H$15","v":7.5},{"$f":"CN75*CM75*CL75","v":1720.3478480036442}]
["Elevated platform vehicle costs",{"$f":"'DNSP Inputs Capex'!$D$14","v":63.64},1,{"$f":"'DNSP Inputs Capex'!$D$15","v":7.5},{"$f":"B76*C76*D76","v":477.3},null,null,{"$f":"'DNSP Inputs Capex'!$D$14","v":63.64},1,{"$f":"'DNSP Inputs Capex'!$D$15","v":7.5},{"$f":"H76*I76*J76","v":477.3},null,null,{"$f":"'DNSP Inputs Capex'!$D$14","v":63.64},1,{"$f":"'DNSP Inputs Capex'!$D$15","v":7.5},{"$f":"N76*O76*P76","v":477.3},null,null,null,{"$f":"'DNSP Inputs Capex'!$E$14","v":63.64},1,{"$f":"'DNSP Inputs Capex'!$E$15","v":7.5},{"$f":"U76*V76*W76","v":477.3},null,null,{"$f":"'DNSP Inputs Capex'!$E$14","v":63.64},1,{"$f":"'DNSP Inputs Capex'!$E$15","v":7.5},{"$f":"AA76*AB76*AC76","v":477.3},null,null,{"$f":"'DNSP Inputs Capex'!$E$14","v":63.64},1,{"$f":"'DNSP Inputs Capex'!$E$15","v":7.5},{"$f":"AG76*AH76*AI76","v":477.3},null,null,null,{"$f":"'DNSP Inputs Capex'!$F$14","v":63.64},1,{"$f":"'DNSP Inputs Capex'!$F$15","v":7.5},{"$f":"AN76*AO76*AP76","v":477.3},null,null,{"$f":"'DNSP Inputs Capex'!$F$14","v":63.64},1,{"$f":"'DNSP Inputs Capex'!$F$15","v":7.5},{"$f":"AT76*AU76*AV76","v":477.3},null,null,{"$f":"'DNSP Inputs Capex'!$F$14","v":63.64},1,{"$f":"'DNSP Inputs Capex'!$F$15","v":7.5},{"$f":"AZ76*BA76*BB76","v":477.3},null,null,null,{"$f":"'DNSP Inputs Capex'!$G$14","v":63.64},1,{"$f":"'DNSP Inputs Capex'!$G$15","v":7.5},{"$f":"BG76*BH76*BI76","v":477.3},null,null,{"$f":"'DNSP Inputs Capex'!$G$14","v":63.64},1,{"$f":"'DNSP Inputs Capex'!$G$15","v":7.5},{"$f":"BM76*BN76*BO76","v":477.3},null,null,{"$f":"'DNSP Inputs Capex'!$G$14","v":63.64},1,{"$f":"'DNSP Inputs Capex'!$G$15","v":7.5},{"$f":"BS76*BT76*BU76","v":477.3},null,null,null,{"$f":"'DNSP Inputs Capex'!$H$14","v":63.64},1,{"$f":"'DNSP Inputs Capex'!$H$15","v":7.5},{"$f":"BZ76*CA76*CB76","v":477.3},null,null,{"$f":"'DNSP Inputs Capex'!$H$14","v":63.64},1,{"$f":"'DNSP Inputs Capex'!$H$15","v":7.5},{"$f":"CF76*CG76*CH76","v":477.3},null,null,{"$f":"'DNSP Inputs Capex'!$H$14","v":63.64},1,{"$f":"'DNSP Inputs Capex'!$H$15","v":7.5},{"$f":"CL76*CM76*CN76","v":477.3}]
[{"$f":"'DNSP Inputs Capex'!$A$51","v":"Other Capex unit costs Describe :………………………"},null,null,null,null,{"$f":"'DNSP Inputs Capex'!$D$51","v":0},null,null,null,null,null,{"$f":"'DNSP Inputs Capex'!$D$51","v":0},null,null,null,null,null,{"$f":"'DNSP Inputs Capex'!$D$51","v":0},null,null,null,null,null,null,{"$f":"'DNSP Inputs Capex'!$E$51","v":0},null,null,null,null,null,{"$f":"'DNSP Inputs Capex'!$E$51","v":0},null,null,null,null,null,{"$f":"'DNSP Inputs Capex'!$E$51","v":0},null,null,null,null,null,null,{"$f":"'DNSP Inputs Capex'!$F$51","v":0},null,null,null,null,null,{"$f":"'DNSP Inputs Capex'!$F$51","v":0},null,null,null,null,null,{"$f":"'DNSP Inputs Capex'!$F$51","v":0},null,null,null,null,null,null,{"$f":"'DNSP Inputs Capex'!$G$51","v":0},null,null,null,null,null,{"$f":"'DNSP Inputs Capex'!$G$51","v":0},null,null,null,null,null,{"$f":"'DNSP Inputs Capex'!$G$51","v":0},null,null,null,null,null,null,{"$f":"'DNSP Inputs Capex'!$H$51","v":0},null,null,null,null,null,{"$f":"'DNSP Inputs Capex'!$H$51","v":0},null,null,null,null,null,{"$f":"'DNSP Inputs Capex'!$H$51","v":0}]
[null,null,null,null,null,{"$f":"SUM(F74,F77)","v":370.99863418671066},null,null,null,null,null,{"$f":"SUM(L74,L77)","v":413.81382402577827},null,null,null,null,null,{"$f":"SUM(R74,R77)","v":463.37690446097577},null,null,null,null,null,null,{"$f":"SUM(Y74,Y77)","v":371.69049249765618},null,null,null,null,null,{"$f":"SUM(AE74,AE77)","v":414.66534194694202},null,null,null,null,null,{"$f":"SUM(AK74,AK77)","v":464.48387775848857},null,null,null,null,null,null,{"$f":"SUM(AR74,AR77)","v":372.33064809728262},null,null,null,null,null,{"$f":"SUM(AX74,AX77)","v":415.45322576186686},null,null,null,null,null,{"$f":"SUM(BD74,BD77)","v":465.50812671789089},null,null,null,null,null,null,{"$f":"SUM(BK74,BK77)","v":373.10543886366276},null,null,null,null,null,{"$f":"SUM(BQ74,BQ77)","v":416.40681439741161},null,null,null,null,null,{"$f":"SUM(BW74,BW77)","v":466.74779194409911},null,null,null,null,null,null,{"$f":"SUM(CD74,CD77)","v":374.11828184161197},null,null,null,null,null,{"$f":"SUM(CJ74,CJ77)","v":417.65339037027218},null,null,null,null,null,{"$f":"SUM(CP74,CP77)","v":468.36834070881787}]
[]
["Number of luminaires replaced",null,null,null,null,{"$f":"'DNSP Inputs Capex'!$D$54","v":0},null,null,null,null,null,{"$f":"'DNSP Inputs Capex'!$D$55","v":0},null,null,null,null,null,{"$f":"'DNSP Inputs Capex'!$D$56","v":0},null,null,null,null,null,null,{"$f":"'DNSP Inputs Capex'!$E$54","v":0},null,null,null,null,null,{"$f":"'DNSP Inputs Capex'!$E$55","v":0},null,null,null,null,null,{"$f":"'DNSP Inputs Capex'!$E$56","v":0},null,null,null,null,null,null,{"$f":"'DNSP Inputs Capex'!$F$54","v":0},null,null,null,null,null,{"$f":"'DNSP Inputs Capex'!$F$55","v":0},null,null,null,null,null,{"$f":"'DNSP Inputs Capex'!$F$56","v":0},null,null,null,null,null,null,{"$f":"'DNSP Inputs Capex'!$G$54","v":0},null,null,null,null,null,{"$f":"'DNSP Inputs Capex'!$G$55","v":0},null,null,null,null,null,{"$f":"'DNSP Inputs Capex'!$G$56","v":0},null,null,null,null,null,null,{"$f":"'DNSP Inputs Capex'!$H$54","v":0},null,null,null,null,null,{"$f":"'DNSP Inputs Capex'!$H$55","v":0},null,null,null,null,null,{"$f":"'DNSP Inputs Capex'!$H$56","v":0}]
[]
["Capex",null,null,null,null,{"$f":"F78*F80","v":0},null,null,null,null,null,{"$f":"L78*L80","v":0},null,null,null,null,null,{"$f":"R78*R80","v":0},null,null,null,null,null,null,{"$f":"Y78*Y80","v":0},null,null,null,null,null,{"$f":"AE78*AE80","v":0},null,null,null,null,null,{"$f":"AK78*AK80","v":0},null,null,null,null,null,null,{"$f":"AR78*AR80","v":0},null,null,null,null,null,{"$f":"AX78*AX80","v":0},null,null,null,null,null,{"$f":"BD78*BD80","v":0},null,null,null,null,null,null,{"$f":"BK78*BK80","v":0},null,null,null,null,null,{"$f":"BQ78*BQ80","v":0},null,null,null,null,null,{"$f":"BW78*BW80","v":0},null,null,null,null,null,null,{"$f":"CD78*CD80","v":0},null,null,null,null,null,{"$f":"CJ78*CJ80","v":0},null,null,null,null,null,{"$f":"CP78*CP80","v":0}]
[]
[]
["S-HP 250"]
["Luminaires "]
["Material & misc",{"$f":"'DNSP Inputs Capex'!$D$62+'DNSP Inputs Capex'!$D$63","v":242.72806954542625},{"$f":"'DNSP Inputs Capex'!$D$65","v":16},null,{"$f":"B87*C87","v":3883.64911272682},{"$f":"(E87+E88+E89)/C87","v":376.96141239075274},null,{"$f":"('DNSP Inputs Capex'!$D$62+'DNSP Inputs Capex'!$D$63)*(1+'DNSP Inputs Capex'!$D$11)","v":254.86447302269758},{"$f":"'DNSP Inputs Capex'!$D$66","v":13},null,{"$f":"H87*I87","v":3313.2381492950685},{"$f":"(K87+K88+K89)/I87","v":420.07474114002247},null,{"$f":"('DNSP Inputs Capex'!$D$62+'DNSP Inputs Capex'!$D$63)*(1+'DNSP Inputs Capex'!$D$11)","v":254.86447302269758},{"$f":"'DNSP Inputs Capex'!$D$67","v":10},null,{"$f":"N87*O87","v":2548.6447302269758},{"$f":"(Q87+Q88+Q89)/O87","v":469.6378215752199},null,null,{"$f":"'DNSP Inputs Capex'!$E$62+'DNSP Inputs Capex'!$E$63","v":242.72806954542625},{"$f":"'DNSP Inputs Capex'!$E$65","v":16},null,{"$f":"U87*V87","v":3883.64911272682},{"$f":"(X87+X88+X89)/V87","v":377.65327070169826},null,{"$f":"('DNSP Inputs Capex'!$E$62+'DNSP Inputs Capex'!$E$63)*(1+'DNSP Inputs Capex'!$E$11)","v":254.86447302269758},{"$f":"'DNSP Inputs Capex'!$E$66","v":13},null,{"$f":"AA87*AB87","v":3313.2381492950685},{"$f":"(AD87+AD88+AD89)/AB87","v":420.92625906118616},null,{"$f":"('DNSP Inputs Capex'!$E$62+'DNSP Inputs Capex'!$E$63)*(1+'DNSP Inputs Capex'!$E$11)","v":254.86447302269758},{"$f":"'DNSP Inputs Capex'!$E$67","v":10},null,{"$f":"AG87*AH87","v":2548.6447302269758},{"$f":"(AJ87+AJ88+AJ89)/AH87","v":470.74479487273277},null,null,{"$f":"'DNSP Inputs Capex'!$F$62+'DNSP Inputs Capex'!$F$63","v":242.72806954542625},{"$f":"'DNSP Inputs Capex'!$F$65","v":16},null,{"$f":"AN87*AO87","v":3883.64911272682},{"$f":"(AQ87+AQ88+AQ89)/AO87","v":378.2934263013247},null,{"$f":"('DNSP Inputs Capex'!$F$62+'DNSP Inputs Capex'!$F$63)*(1+'DNSP Inputs Capex'!$F$11)","v":254.86447302269758},{"$f":"'DNSP Inputs Capex'!$F$66","v":13},null,{"$f":"AT87*AU87","v":3313.2381492950685},{"$f":"(AW87+AW88+AW89)/AU87","v":421.714142876111},null,{"$f":"('DNSP Inputs Capex'!$F$62+'DNSP Inputs Capex'!$F$63)*(1+'DNSP Inputs Capex'!$F$11)","v":254.86447302269758},{"$f":"'DNSP Inputs Capex'!$F$67","v":10},null,{"$f":"AZ87*BA87","v":2548.6447302269758},{"$f":"(BC87+BC88+BC89)/BA87","v":471.76904383213503},null,null,{"$f":"'DNSP Inputs Capex'!$G$62+'DNSP Inputs Capex'!$G$63","v":242.72806954542625},{"$f":"'DNSP Inputs Capex'!$G$65","v":16},null,{"$f":"BG87*BH87","v":3883.64911272682},{"$f":"(BJ87+BJ88+BJ89)/BH87","v":379.06821706770478},null,{"$f":"('DNSP Inputs Capex'!$G$62+'DNSP Inputs Capex'!$G$63)*(1+'DNSP Inputs Capex'!$G$11)","v":254.86447302269758},{"$f":"'DNSP Inputs Capex'!$G$66","v":13},null,{"$f":"BM87*BN87","v":3313.2381492950685},{"$f":"(BP87+BP88+BP89)/BN87","v":422.6677315116558},null,{"$f":"('DNSP Inputs Capex'!$G$62+'DNSP Inputs Capex'!$G$63)*(1+'DNSP Inputs Capex'!$G$11)","v":254.86447302269758},{"$f":"'DNSP Inputs Capex'!$G$67","v":10},null,{"$f":"BS87*BT87","v":2548.6447302269758},{"$f":"(BV87+BV88+BV89)/BT87","v":473.00870905834324},null,null,{"$f":"'DNSP Inputs Capex'!$H$62+'DNSP Inputs Capex'!$H$63","v":242.72806954542625},{"$f":"'DNSP Inputs Capex'!$H$65","v":16},null,{"$f":"BZ87*CA87","v":3883.64911272682},{"$f":"(CC87+CC88+CC89)/CA87","v":380.08106004565406},null,{"$f":"('DNSP Inputs Capex'!$H$62+'DNSP Inputs Capex'!$H$63)*(1+'DNSP Inputs Capex'!$H$11)","v":254.86447302269758},{"$f":"'DNSP Inputs Capex'!$H$66","v":13},null,{"$f":"CF87*CG87","v":3313.2381492950685},{"$f":"(CI87+CI88+CI89)/CG87","v":423.91430748451637},null,{"$f":"('DNSP Inputs Capex'!$H$62+'DNSP Inputs Capex'!$H$63)*(1+'DNSP Inputs Capex'!$H$11)","v":254.86447302269758},{"$f":"'DNSP Inputs Capex'!$H$67","v":10},null,{"$f":"CL87*CM87","v":2548.6447302269758},{"$f":"(CO87+CO88+CO89)/CM87","v":474.62925782306201}]
["Crew costs",{"$f":"'DNSP Inputs Capex'!$D$12","v":111.36223236834823},{"$f":"'DNSP Inputs Capex'!$D$64","v":2},{"$f":"'DNSP Inputs Capex'!$D$15","v":7.5},{"$f":"D88*C88*B88","v":1670.4334855252234},null,null,{"$f":"'DNSP Inputs Capex'!$D$12","v":111.36223236834823},{"$f":"'DNSP Inputs Capex'!$D$64","v":2},{"$f":"'DNSP Inputs Capex'!$D$15","v":7.5},{"$f":"J88*I88*H88","v":1670.4334855252234},null,null,{"$f":"'DNSP Inputs Capex'!$D$12","v":111.36223236834823},{"$f":"'DNSP Inputs Capex'!$D$64","v":2},{"$f":"'DNSP Inputs Capex'!$D$15","v":7.5},{"$f":"P88*O88*N88","v":1670.4334855252234},null,null,null,{"$f":"'DNSP Inputs Capex'!$E$12","v":112.10021456669011},{"$f":"'DNSP Inputs Capex'!$E$64","v":2},{"$f":"'DNSP Inputs Capex'!$E$15","v":7.5},{"$f":"W88*V88*U88","v":1681.5032185003517},null,null,{"$f":"'DNSP Inputs Capex'!$E$12","v":112.10021456669011},{"$f":"'DNSP Inputs Capex'!$E$64","v":2},{"$f":"'DNSP Inputs Capex'!$E$15","v":7.5},{"$f":"AC88*AB88*AA88","v":1681.5032185003517},null,null,{"$f":"'DNSP Inputs Capex'!$E$12","v":112.10021456669011},{"$f":"'DNSP Inputs Capex'!$E$64","v":2},{"$f":"'DNSP Inputs Capex'!$E$15","v":7.5},{"$f":"AI88*AH88*AG88","v":1681.5032185003517},null,null,null,{"$f":"'DNSP Inputs Capex'!$F$12","v":112.78304720629164},{"$f":"'DNSP Inputs Capex'!$F$64","v":2},{"$f":"'DNSP Inputs Capex'!$F$15","v":7.5},{"$f":"AP88*AO88*AN88","v":1691.7457080943745},null,null,{"$f":"'DNSP Inputs Capex'!$F$12","v":112.78304720629164},{"$f":"'DNSP Inputs Capex'!$F$64","v":2},{"$f":"'DNSP Inputs Capex'!$F$15","v":7.5},{"$f":"AV88*AU88*AT88","v":1691.7457080943745},null,null,{"$f":"'DNSP Inputs Capex'!$F$12","v":112.78304720629164},{"$f":"'DNSP Inputs Capex'!$F$64","v":2},{"$f":"'DNSP Inputs Capex'!$F$15","v":7.5},{"$f":"BB88*BA88*AZ88","v":1691.7457080943745},null,null,null,{"$f":"'DNSP Inputs Capex'!$G$12","v":113.60949069043043},{"$f":"'DNSP Inputs Capex'!$G$64","v":2},{"$f":"'DNSP Inputs Capex'!$G$15","v":7.5},{"$f":"BI88*BH88*BG88","v":1704.1423603564565},null,null,{"$f":"'DNSP Inputs Capex'!$G$12","v":113.60949069043043},{"$f":"'DNSP Inputs Capex'!$G$64","v":2},{"$f":"'DNSP Inputs Capex'!$G$15","v":7.5},{"$f":"BO88*BN88*BM88","v":1704.1423603564565},null,null,{"$f":"'DNSP Inputs Capex'!$G$12","v":113.60949069043043},{"$f":"'DNSP Inputs Capex'!$G$64","v":2},{"$f":"'DNSP Inputs Capex'!$G$15","v":7.5},{"$f":"BU88*BT88*BS88","v":1704.1423603564565},null,null,null,{"$f":"'DNSP Inputs Capex'!$H$12","v":114.68985653357629},{"$f":"'DNSP Inputs Capex'!$H$64","v":2},{"$f":"'DNSP Inputs Capex'!$H$15","v":7.5},{"$f":"CB88*CA88*BZ88","v":1720.3478480036442},null,null,{"$f":"'DNSP Inputs Capex'!$H$12","v":114.68985653357629},{"$f":"'DNSP Inputs Capex'!$H$64","v":2},{"$f":"'DNSP Inputs Capex'!$H$15","v":7.5},{"$f":"CH88*CG88*CF88","v":1720.3478480036442},null,null,{"$f":"'DNSP Inputs Capex'!$H$12","v":114.68985653357629},{"$f":"'DNSP Inputs Capex'!$H$64","v":2},{"$f":"'DNSP Inputs Capex'!$H$15","v":7.5},{"$f":"CN88*CM88*CL88","v":1720.3478480036442}]
["Elevated platform vehicle costs",{"$f":"'DNSP Inputs Capex'!$D$14","v":63.64},1,{"$f":"'DNSP Inputs Capex'!$D$15","v":7.5},{"$f":"B89*C89*D89","v":477.3},null,null,{"$f":"'DNSP Inputs Capex'!$D$14","v":63.64},1,{"$f":"'DNSP Inputs Capex'!$D$15","v":7.5},{"$f":"H89*I89*J89","v":477.3},null,null,{"$f":"'DNSP Inputs Capex'!$D$14","v":63.64},1,{"$f":"'DNSP Inputs Capex'!$D$15","v":7.5},{"$f":"N89*O89*P89","v":477.3},null,null,null,{"$f":"'DNSP Inputs Capex'!$E$14","v":63.64},1,{"$f":"'DNSP Inputs Capex'!$E$15","v":7.5},{"$f":"U89*V89*W89","v":477.3},null,null,{"$f":"'DNSP Inputs Capex'!$E$14","v":63.64},1,{"$f":"'DNSP Inputs Capex'!$E$15","v":7.5},{"$f":"AA89*AB89*AC89","v":477.3},null,null,{"$f":"'DNSP Inputs Capex'!$E$14","v":63.64},1,{"$f":"'DNSP Inputs Capex'!$E$15","v":7.5},{"$f":"AG89*AH89*AI89","v":477.3},null,null,null,{"$f":"'DNSP Inputs Capex'!$F$14","v":63.64},1,{"$f":"'DNSP Inputs Capex'!$F$15","v":7.5},{"$f":"AN89*AO89*AP89","v":477.3},null,null,{"$f":"'DNSP Inputs Capex'!$F$14","v":63.64},1,{"$f":"'DNSP Inputs Capex'!$F$15","v":7.5},{"$f":"AT89*AU89*AV89","v":477.3},null,null,{"$f":"'DNSP Inputs Capex'!$F$14","v":63.64},1,{"$f":"'DNSP Inputs Capex'!$F$15","v":7.5},{"$f":"AZ89*BA89*BB89","v":477.3},null,null,null,{"$f":"'DNSP Inputs Capex'!$G$14","v":63.64},1,{"$f":"'DNSP Inputs Capex'!$G$15","v":7.5},{"$f":"BG89*BH89*BI89","v":477.3},null,null,{"$f":"'DNSP Inputs Capex'!$G$14","v":63.64},1,{"$f":"'DNSP Inputs Capex'!$G$15","v":7.5},{"$f":"BM89*BN89*BO89","v":477.3},null,null,{"$f":"'DNSP Inputs Capex'!$G$14","v":63.64},1,{"$f":"'DNSP Inputs Capex'!$G$15","v":7.5},{"$f":"BS89*BT89*BU89","v":477.3},null,null,null,{"$f":"'DNSP Inputs Capex'!$H$14","v":63.64},1,{"$f":"'DNSP Inputs Capex'!$H$15","v":7.5},{"$f":"BZ89*CA89*CB89","v":477.3},null,null,{"$f":"'DNSP Inputs Capex'!$H$14","v":63.64},1,{"$f":"'DNSP Inputs Capex'!$H$15","v":7.5},{"$f":"CF89*CG89*CH89","v":477.3},null,null,{"$f":"'DNSP Inputs Capex'!$H$14","v":63.64},1,{"$f":"'DNSP Inputs Capex'!$H$15","v":7.5},{"$f":"CL89*CM89*CN89","v":477.3}]
[{"$f":"'DNSP Inputs Capex'!$A$69","v":"Other Capex unit costs Describe :………………………"},null,null,null,null,{"$f":"'DNSP Inputs Capex'!$D$69","v":0},null,null,null,null,null,{"$f":"'DNSP Inputs Capex'!$D$69","v":0},null,null,null,null,null,{"$f":"'DNSP Inputs Capex'!$D$69","v":0},null,null,null,null,null,null,{"$f":"'DNSP Inputs Capex'!$E$69","v":0},null,null,null,null,null,{"$f":"'DNSP Inputs Capex'!$E$69","v":0},null,null,null,null,null,{"$f":"'DNSP Inputs Capex'!$E$69","v":0},null,null,null,null,null,null,{"$f":"'DNSP Inputs Capex'!$F$69","v":0},null,null,null,null,null,{"$f":"'DNSP Inputs Capex'!$F$69","v":0},null,null,null,null,null,{"$f":"'DNSP Inputs Capex'!$F$69","v":0},null,null,null,null,null,null,{"$f":"'DNSP Inputs Capex'!$G$69","v":0},null,null,null,null,null,{"$f":"'DNSP Inputs Capex'!$G$69","v":0},null,null,null,null,null,{"$f":"'DNSP Inputs Capex'!$G$69","v":0},null,null,null,null,null,null,{"$f":"'DNSP Inputs Capex'!$H$69","v":0},null,null,null,null,null,{"$f":"'DNSP Inputs Capex'!$H$69","v":0},null,null,null,null,null,{"$f":"'DNSP Inputs Capex'!$H$69","v":0}]
[null,null,null,null,null,{"$f":"SUM(F87,F90)","v":376.96141239075274},null,null,null,null,null,{"$f":"SUM(L87,L90)","v":420.07474114002247},null,null,null,null,null,{"$f":"SUM(R87,R90)","v":469.6378215752199},null,null,null,null,null,null,{"$f":"SUM(Y87,Y90)","v":377.65327070169826},null,null,null,null,null,{"$f":"SUM(AE87,AE90)","v":420.92625906118616},null,null,null,null,null,{"$f":"SUM(AK87,AK90)","v":470.74479487273277},null,null,null,null,null,null,{"$f":"SUM(AR87,AR90)","v":378.2934263013247},null,null,null,null,null,{"$f":"SUM(AX87,AX90)","v":421.714142876111},null,null,null,null,null,{"$f":"SUM(BD87,BD90)","v":471.76904383213503},null,null,null,null,null,null,{"$f":"SUM(BK87,BK90)","v":379.06821706770478},null,null,null,null,null,{"$f":"SUM(BQ87,BQ90)","v":422.6677315116558},null,null,null,null,null,{"$f":"SUM(BW87,BW90)","v":473.00870905834324},null,null,null,null,null,null,{"$f":"SUM(CD87,CD90)","v":380.08106004565406},null,null,null,null,null,{"$f":"SUM(CJ87,CJ90)","v":423.91430748451637},null,null,null,null,null,{"$f":"SUM(CP87,CP90)","v":474.62925782306201}]
[]
["Number of luminaires replaced",null,null,null,null,{"$f":"'DNSP Inputs Capex'!$D$72","v":0},null,null,null,null,null,{"$f":"'DNSP Inputs Capex'!$D$73","v":0},null,null,null,null,null,{"$f":"'DNSP Inputs Capex'!$D$74","v":0},null,null,null,null,null,null,{"$f":"'DNSP Inputs Capex'!$E$72","v":0},null,null,null,null,null,{"$f":"'DNSP Inputs Capex'!$E$73","v":0},null,null,null,null,null,{"$f":"'DNSP Inputs Capex'!$E$74","v":0},null,null,null,null,null,null,{"$f":"'DNSP Inputs Capex'!$F$72","v":0},null,null,null,null,null,{"$f":"'DNSP Inputs Capex'!$F$73","v":0},null,null,null,null,null,{"$f":"'DNSP Inputs Capex'!$F$74","v":0},null,null,null,null,null,null,{"$f":"'DNSP Inputs Capex'!$G$72","v":0},null,null,null,null,null,{"$f":"'DNSP Inputs Capex'!$G$73","v":0},null,null,null,null,null,{"$f":"'DNSP Inputs Capex'!$G$74","v":0},null,null,null,null,null,null,{"$f":"'DNSP Inputs Capex'!$H$72","v":0},null,null,null,null,null,{"$f":"'DNSP Inputs Capex'!$H$73","v":0},null,null,null,null,null,{"$f":"'DNSP Inputs Capex'!$H$74","v":0}]
[]
["Capex",null,null,null,null,{"$f":"F91*F93","v":0},null,null,null,null,null,{"$f":"L91*L93","v":0},null,null,null,null,null,{"$f":"R91*R93","v":0},null,null,null,null,null,null,{"$f":"Y91*Y93","v":0},null,null,null,null,null,{"$f":"AE91*AE93","v":0},null,null,null,null,null,{"$f":"AK91*AK93","v":0},null,null,null,null,null,null,{"$f":"AR91*AR93","v":0},null,null,null,null,null,{"$f":"AX91*AX93","v":0},null,null,null,null,null,{"$f":"BD91*BD93","v":0},null,null,null,null,null,null,{"$f":"BK91*BK93","v":0},null,null,null,null,null,{"$f":"BQ91*BQ93","v":0},null,null,null,null,null,{"$f":"BW91*BW93","v":0},null,null,null,null,null,null,{"$f":"CD91*CD93","v":0},null,null,null,null,null,{"$f":"CJ91*CJ93","v":0},null,null,null,null,null,{"$f":"CP91*CP93","v":0}]
[]
[]
["Dedicated poles"]
["Material",{"$f":"'DNSP Inputs Capex'!$D$80","v":1223.6275383044774},{"$f":"'DNSP Inputs Capex'!$D$82","v":4},null,{"$f":"C99*B99","v":4894.5101532179096},{"$f":"(E99+E100+E101)/C99","v":2152.9317810670891},null,{"$f":"'DNSP Inputs Capex'!$D$80*(1+'DNSP Inputs Capex'!$D$11)","v":1284.8089152197012},{"$f":"'DNSP Inputs Capex'!$D$82","v":4},null,{"$f":"I99*H99","v":5139.235660878805},{"$f":"(K99+K100+K101)/I99","v":2239.3506579823129},null,{"$f":"'DNSP Inputs Capex'!$D$80*(1+'DNSP Inputs Capex'!$D$11)","v":1284.8089152197012},{"$f":"'DNSP Inputs Capex'!$D$82","v":4},null,{"$f":"O99*N99","v":5139.235660878805},{"$f":"(Q99+Q100+Q101)/O99","v":2239.3506579823129},null,null,{"$f":"'DNSP Inputs Capex'!$E$80","v":1223.6275383044774},{"$f":"'DNSP Inputs Capex'!$E$82","v":4},null,{"$f":"V99*U99","v":4894.5101532179096},{"$f":"(X99+X100+X101)/V99","v":2158.4666475546533},null,{"$f":"'DNSP Inputs Capex'!$E$80*(1+'DNSP Inputs Capex'!$E$11)","v":1284.8089152197012},{"$f":"'DNSP Inputs Capex'!$E$82","v":4},null,{"$f":"AB99*AA99","v":5139.235660878805},{"$f":"(AD99+AD100+AD101)/AB99","v":2244.8855244698771},null,{"$f":"'DNSP Inputs Capex'!$E$80*(1+'DNSP Inputs Capex'!$E$11)","v":1284.8089152197012},{"$f":"'DNSP Inputs Capex'!$E$82","v":4},null,{"$f":"AH99*AG99","v":5139.235660878805},{"$f":"(AJ99+AJ100+AJ101)/AH99","v":2244.8855244698771},null,null,{"$f":"'DNSP Inputs Capex'!$F$80","v":1223.6275383044774},{"$f":"'DNSP Inputs Capex'!$F$82","v":4},null,{"$f":"AO99*AN99","v":4894.5101532179096},{"$f":"(AQ99+AQ100+AQ101)/AO99","v":2163.5878923516648},null,{"$f":"'DNSP Inputs Capex'!$F$80*(1+'DNSP Inputs Capex'!$F$11)","v":1284.8089152197012},{"$f":"'DNSP Inputs Capex'!$F$82","v":4},null,{"$f":"AU99*AT99","v":5139.235660878805},{"$f":"(AW99+AW100+AW101)/AU99","v":2250.0067692668881},null,{"$f":"'DNSP Inputs Capex'!$F$80*(1+'DNSP Inputs Capex'!$F$11)","v":1284.8089152197012},{"$f":"'DNSP Inputs Capex'!$F$82","v":4},null,{"$f":"BA99*AZ99","v":5139.235660878805},{"$f":"(BC99+BC100+BC101)/BA99","v":2250.0067692668881},null,null,{"$f":"'DNSP Inputs Capex'!$G$80","v":1223.6275383044774},{"$f":"'DNSP Inputs Capex'!$G$82","v":4},null,{"$f":"BH99*BG99","v":4894.5101532179096},{"$f":"(BJ99+BJ100+BJ101)/BH99","v":2169.7862184827059},null,{"$f":"'DNSP Inputs Capex'!$G$80*(1+'DNSP Inputs Capex'!$G$11)","v":1284.8089152197012},{"$f":"'DNSP Inputs Capex'!$G$82","v":4},null,{"$f":"BN99*BM99","v":5139.235660878805},{"$f":"(BP99+BP100+BP101)/BN99","v":2256.2050953979292},null,{"$f":"'DNSP Inputs Capex'!$G$80*(1+'DNSP Inputs Capex'!$G$11)","v":1284.8089152197012},{"$f":"'DNSP Inputs Capex'!$G$82","v":4},null,{"$f":"BT99*BS99","v":5139.235660878805},{"$f":"(BV99+BV100+BV101)/BT99","v":2256.2050953979292},null,null,{"$f":"'DNSP Inputs Capex'!$H$80","v":1223.6275383044774},{"$f":"'DNSP Inputs Capex'!$H$82","v":4},null,{"$f":"CA99*BZ99","v":4894.5101532179096},{"$f":"(CC99+CC100+CC101)/CA99","v":2177.8889623062996},null,{"$f":"'DNSP Inputs Capex'!$H$80*(1+'DNSP Inputs Capex'!$H$11)","v":1284.8089152197012},{"$f":"'DNSP Inputs Capex'!$H$82","v":4},null,{"$f":"CG99*CF99","v":5139.235660878805},{"$f":"(CI99+CI100+CI101)/CG99","v":2264.307839221523},null,{"$f":"'DNSP Inputs Capex'!$H$80*(1+'DNSP Inputs Capex'!$H$11)","v":1284.8089152197012},{"$f":"'DNSP Inputs Capex'!$H$82","v":4},null,{"$f":"CM99*CL99","v":5139.235660878805},{"$f":"(CO99+CO100+CO101)/CM99","v":2264.307839221523}]
["Crew costs",{"$f":"'DNSP Inputs Capex'!$D$12","v":111.36223236834823},{"$f":"'DNSP Inputs Capex'!$D$81","v":4},{"$f":"'DNSP Inputs Capex'!$D$15","v":7.5},{"$f":"B100*C100*D100","v":3340.8669710504469},null,null,{"$f":"'DNSP Inputs Capex'!$D$12","v":111.36223236834823},{"$f":"'DNSP Inputs Capex'!$D$81","v":4},{"$f":"'DNSP Inputs Capex'!$D$15","v":7.5},{"$f":"H100*I100*J100","v":3340.8669710504469},null,null,{"$f":"'DNSP Inputs Capex'!$D$12","v":111.36223236834823},{"$f":"'DNSP Inputs Capex'!$D$81","v":4},{"$f":"'DNSP Inputs Capex'!$D$15","v":7.5},{"$f":"N100*O100*P100","v":3340.8669710504469},null,null,null,{"$f":"'DNSP Inputs Capex'!$E$12","v":112.10021456669011},{"$f":"'DNSP Inputs Capex'!$E$81","v":4},{"$f":"'DNSP Inputs Capex'!$E$15","v":7.5},{"$f":"U100*V100*W100","v":3363.0064370007035},null,null,{"$f":"'DNSP Inputs Capex'!$E$12","v":112.10021456669011},{"$f":"'DNSP Inputs Capex'!$E$81","v":4},{"$f":"'DNSP Inputs Capex'!$E$15","v":7.5},{"$f":"AA100*AB100*AC100","v":3363.0064370007035},null,null,{"$f":"'DNSP Inputs Capex'!$E$12","v":112.10021456669011},{"$f":"'DNSP Inputs Capex'!$E$81","v":4},{"$f":"'DNSP Inputs Capex'!$E$15","v":7.5},{"$f":"AG100*AH100*AI100","v":3363.0064370007035},null,null,null,{"$f":"'DNSP Inputs Capex'!$F$12","v":112.78304720629164},{"$f":"'DNSP Inputs Capex'!$F$81","v":4},{"$f":"'DNSP Inputs Capex'!$F$15","v":7.5},{"$f":"AN100*AO100*AP100","v":3383.4914161887491},null,null,{"$f":"'DNSP Inputs Capex'!$F$12","v":112.78304720629164},{"$f":"'DNSP Inputs Capex'!$F$81","v":4},{"$f":"'DNSP Inputs Capex'!$F$15","v":7.5},{"$f":"AT100*AU100*AV100","v":3383.4914161887491},null,null,{"$f":"'DNSP Inputs Capex'!$F$12","v":112.78304720629164},{"$f":"'DNSP Inputs Capex'!$F$81","v":4},{"$f":"'DNSP Inputs Capex'!$F$15","v":7.5},{"$f":"AZ100*BA100*BB100","v":3383.4914161887491},null,null,null,{"$f":"'DNSP Inputs Capex'!$G$12","v":113.60949069043043},{"$f":"'DNSP Inputs Capex'!$G$81","v":4},{"$f":"'DNSP Inputs Capex'!$G$15","v":7.5},{"$f":"BG100*BH100*BI100","v":3408.284720712913},null,null,{"$f":"'DNSP Inputs Capex'!$G$12","v":113.60949069043043},{"$f":"'DNSP Inputs Capex'!$G$81","v":4},{"$f":"'DNSP Inputs Capex'!$G$15","v":7.5},{"$f":"BM100*BN100*BO100","v":3408.284720712913},null,null,{"$f":"'DNSP Inputs Capex'!$G$12","v":113.60949069043043},{"$f":"'DNSP Inputs Capex'!$G$81","v":4},{"$f":"'DNSP Inputs Capex'!$G$15","v":7.5},{"$f":"BS100*BT100*BU100","v":3408.284720712913},null,null,null,{"$f":"'DNSP Inputs Capex'!$H$12","v":114.68985653357629},{"$f":"'DNSP Inputs Capex'!$H$81","v":4},{"$f":"'DNSP Inputs Capex'!$H$15","v":7.5},{"$f":"BZ100*CA100*CB100","v":3440.6956960072885},null,null,{"$f":"'DNSP Inputs Capex'!$H$12","v":114.68985653357629},{"$f":"'DNSP Inputs Capex'!$H$81","v":4},{"$f":"'DNSP Inputs Capex'!$H$15","v":7.5},{"$f":"CF100*CG100*CH100","v":3440.6956960072885},null,null,{"$f":"'DNSP Inputs Capex'!$H$12","v":114.68985653357629},{"$f":"'DNSP Inputs Capex'!$H$81","v":4},{"$f":"'DNSP Inputs Capex'!$H$15","v":7.5},{"$f":"CL100*CM100*CN100","v":3440.6956960072885}]
["Elevated platform vehicle costs",{"$f":"'DNSP Inputs Capex'!$D$13","v":50.18},1,{"$f":"'DNSP Inputs Capex'!$D$15","v":7.5},{"$f":"B101*C101*D101","v":376.35},null,null,{"$f":"'DNSP Inputs Capex'!$D$14","v":63.64},1,{"$f":"'DNSP Inputs Capex'!$D$15","v":7.5},{"$f":"H101*I101*J101","v":477.3},null,null,{"$f":"'DNSP Inputs Capex'!$D$14","v":63.64},1,{"$f":"'DNSP Inputs Capex'!$D$15","v":7.5},{"$f":"N101*O101*P101","v":477.3},null,null,null,{"$f":"'DNSP Inputs Capex'!$E$13","v":50.18},1,{"$f":"'DNSP Inputs Capex'!$E$15","v":7.5},{"$f":"U101*V101*W101","v":376.35},null,null,{"$f":"'DNSP Inputs Capex'!$E$14","v":63.64},1,{"$f":"'DNSP Inputs Capex'!$E$15","v":7.5},{"$f":"AA101*AB101*AC101","v":477.3},null,null,{"$f":"'DNSP Inputs Capex'!$E$14","v":63.64},1,{"$f":"'DNSP Inputs Capex'!$E$15","v":7.5},{"$f":"AG101*AH101*AI101","v":477.3},null,null,null,{"$f":"'DNSP Inputs Capex'!$F$13","v":50.18},1,{"$f":"'DNSP Inputs Capex'!$F$15","v":7.5},{"$f":"AN101*AO101*AP101","v":376.35},null,null,{"$f":"'DNSP Inputs Capex'!$F$14","v":63.64},1,{"$f":"'DNSP Inputs Capex'!$F$15","v":7.5},{"$f":"AT101*AU101*AV101","v":477.3},null,null,{"$f":"'DNSP Inputs Capex'!$F$14","v":63.64},1,{"$f":"'DNSP Inputs Capex'!$F$15","v":7.5},{"$f":"AZ101*BA101*BB101","v":477.3},null,null,null,{"$f":"'DNSP Inputs Capex'!$G$13","v":50.18},1,{"$f":"'DNSP Inputs Capex'!$G$15","v":7.5},{"$f":"BG101*BH101*BI101","v":376.35},null,null,{"$f":"'DNSP Inputs Capex'!$G$14","v":63.64},1,{"$f":"'DNSP Inputs Capex'!$G$15","v":7.5},{"$f":"BM101*BN101*BO101","v":477.3},null,null,{"$f":"'DNSP Inputs Capex'!$G$14","v":63.64},1,{"$f":"'DNSP Inputs Capex'!$G$15","v":7.5},{"$f":"BS101*BT101*BU101","v":477.3},null,null,null,{"$f":"'DNSP Inputs Capex'!$H$13","v":50.18},1,{"$f":"'DNSP Inputs Capex'!$H$15","v":7.5},{"$f":"BZ101*CA101*CB101","v":376.35},null,null,{"$f":"'DNSP Inputs Capex'!$H$14","v":63.64},1,{"$f":"'DNSP Inputs Capex'!$H$15","v":7.5},{"$f":"CF101*CG101*CH101","v":477.3},null,null,{"$f":"'DNSP Inputs Capex'!$H$14","v":63.64},1,{"$f":"'DNSP Inputs Capex'!$H$15","v":7.5},{"$f":"CL101*CM101*CN101","v":477.3}]
[{"$f":"'DNSP Inputs Capex'!A85","v":"Plant costs (including truck mounted crane & auger, and tipper truck)"},null,null,null,null,{"$f":"'DNSP Inputs Capex'!$D$85","v":387.05857996198068},null,null,null,null,null,{"$f":"'DNSP Inputs Capex'!$D$85","v":387.05857996198068},null,null,null,null,null,{"$f":"'DNSP Inputs Capex'!$D$85","v":387.05857996198068},null,null,null,null,null,null,{"$f":"'DNSP Inputs Capex'!$E$85","v":387.05857996198068},null,null,null,null,null,{"$f":"'DNSP Inputs Capex'!$E$85","v":387.05857996198068},null,null,null,null,null,{"$f":"'DNSP Inputs Capex'!$E$85","v":387.05857996198068},null,null,null,null,null,null,{"$f":"'DNSP Inputs Capex'!$F$85","v":387.05857996198068},null,null,null,null,null,{"$f":"'DNSP Inputs Capex'!$F$85","v":387.05857996198068},null,null,null,null,null,{"$f":"'DNSP Inputs Capex'!$F$85","v":387.05857996198068},null,null,null,null,null,null,{"$f":"'DNSP Inputs Capex'!$G$85","v":387.05857996198068},null,null,null,null,null,{"$f":"'DNSP Inputs Capex'!$G$85","v":387.05857996198068},null,null,null,null,null,{"$f":"'DNSP Inputs Capex'!$G$85","v":387.05857996198068},null,null,null,null,null,null,{"$f":"'DNSP Inputs Capex'!$H$85","v":387.05857996198068},null,null,null,null,null,{"$f":"'DNSP Inputs Capex'!$H$85","v":387.05857996198068},null,null,null,null,null,{"$f":"'DNSP Inputs Capex'!$H$85","v":387.05857996198068}]
[{"$f":"'DNSP Inputs Capex'!$A$69","v":"Other Capex unit costs Describe :………………………"},null,null,null,null,{"$f":"'DNSP Inputs Capex'!$D$86","v":20.530171694670301},null,null,null,null,null,{"$f":"'DNSP Inputs Capex'!$D$86","v":20.530171694670301},null,null,null,null,null,{"$f":"'DNSP Inputs Capex'!$D$86","v":20.530171694670301},null,null,null,null,null,null,{"$f":"'DNSP Inputs Capex'!$E$86","v":20.9657602949029},null,null,null,null,null,{"$f":"'DNSP Inputs Capex'!$E$86","v":20.9657602949029},null,null,null,null,null,{"$f":"'DNSP Inputs Capex'!$E$86","v":20.9657602949029},null,null,null,null,null,null,{"$f":"'DNSP Inputs Capex'!$F$86","v":21.401348895135499},null,null,null,null,null,{"$f":"'DNSP Inputs Capex'!$F$86","v":21.401348895135499},null,null,null,null,null,{"$f":"'DNSP Inputs Capex'!$F$86","v":21.401348895135499},null,null,null,null,null,null,{"$f":"'DNSP Inputs Capex'!$G$86","v":21.836937495368101},null,null,null,null,null,{"$f":"'DNSP Inputs Capex'!$G$86","v":21.836937495368101},null,null,null,null,null,{"$f":"'DNSP Inputs Capex'!$G$86","v":21.836937495368101},null,null,null,null,null,null,{"$f":"'DNSP Inputs Capex'!$H$86","v":22.2725260956007},null,null,null,null,null,{"$f":"'DNSP Inputs Capex'!$H$86","v":22.2725260956007},null,null,null,null,null,{"$f":"'DNSP Inputs Capex'!$H$86","v":22.2725260956007}]
[null,null,null,null,null,{"$f":"SUM(F99,F102,F103)","v":2560.52053272374},null,null,null,null,null,{"$f":"SUM(L99,L102,L103)","v":2646.9394096389638},null,null,null,null,null,{"$f":"SUM(R99,R102,R103)","v":2646.9394096389638},null,null,null,null,null,null,{"$f":"SUM(Y99,Y102,Y103)","v":2566.4909878115368},null,null,null,null,null,{"$f":"SUM(AE99,AE102,AE103)","v":2652.9098647267606},null,null,null,null,null,{"$f":"SUM(AK99,AK102,AK103)","v":2652.9098647267606},null,null,null,null,null,null,{"$f":"SUM(AR99,AR102,AR103)","v":2572.047821208781},null,null,null,null,null,{"$f":"SUM(AX99,AX102,AX103)","v":2658.4666981240043},null,null,null,null,null,{"$f":"SUM(BD99,BD102,BD103)","v":2658.4666981240043},null,null,null,null,null,null,{"$f":"SUM(BK99,BK102,BK103)","v":2578.6817359400548},null,null,null,null,null,{"$f":"SUM(BQ99,BQ102,BQ103)","v":2665.1006128552781},null,null,null,null,null,{"$f":"SUM(BW99,BW102,BW103)","v":2665.1006128552781},null,null,null,null,null,null,{"$f":"SUM(CD99,CD102,CD103)","v":2587.2200683638812},null,null,null,null,null,{"$f":"SUM(CJ99,CJ102,CJ103)","v":2673.6389452791045},null,null,null,null,null,{"$f":"SUM(CP99,CP102,CP103)","v":2673.6389452791045}]
[]
["Number of poles & brackets replaced",null,null,null,null,{"$f":"'DNSP Inputs Capex'!$D$90","v":598.73311242994885},null,null,null,null,null,{"$f":"'DNSP Inputs Capex'!$D$91","v":203.06238738354998},null,null,null,null,null,{"$f":"'DNSP Inputs Capex'!$D$92","v":15.489433285991614},null,null,null,null,null,null,{"$f":"'DNSP Inputs Capex'!$E$90","v":598.73311242994885},null,null,null,null,null,{"$f":"'DNSP Inputs Capex'!$E$91","v":203.06238738354998},null,null,null,null,null,{"$f":"'DNSP Inputs Capex'!$E$92","v":15.489433285991614},null,null,null,null,null,null,{"$f":"'DNSP Inputs Capex'!$F$90","v":598.73311242994885},null,null,null,null,null,{"$f":"'DNSP Inputs Capex'!$F$91","v":203.06238738354998},null,null,null,null,null,{"$f":"'DNSP Inputs Capex'!$F$92","v":15.489433285991614},null,null,null,null,null,null,{"$f":"'DNSP Inputs Capex'!$G$90","v":598.73311242994885},null,null,null,null,null,{"$f":"'DNSP Inputs Capex'!$G$91","v":203.06238738354998},null,null,null,null,null,{"$f":"'DNSP Inputs Capex'!$G$92","v":15.489433285991614},null,null,null,null,null,null,{"$f":"'DNSP Inputs Capex'!$H$90","v":598.73311242994885},null,null,null,null,null,{"$f":"'DNSP Inputs Capex'!$H$91","v":203.06238738354998},null,null,null,null,null,{"$f":"'DNSP Inputs Capex'!$H$92","v":15.489433285991614}]
[]
["Capex",null,null,null,null,{"$f":"F104*F106","v":1533068.4279984755},null,null,null,null,null,{"$f":"L104*L106","v":537493.83578089229},null,null,null,null,null,{"$f":"R104*R106","v":40999.591397664757},null,null,null,null,null,null,{"$f":"Y104*Y106","v":1536643.1371558153},null,null,null,null,null,{"$f":"AE104*AE106","v":538706.2106447866},null,null,null,null,null,{"$f":"AK104*AK106","v":41092.070363434199},null,null,null,null,null,null,{"$f":"AR104*AR106","v":1539970.1973110021},null,null,null,null,null,{"$f":"AX104*AX106","v":539834.59450072353},null,null,null,null,null,{"$f":"BD104*BD106","v":41178.142563622176},null,null,null,null,null,null,{"$f":"BK104*BK106","v":1543942.1417256524},null,null,null,null,null,{"$f":"BQ104*BQ106","v":541181.69306375494},null,null,null,null,null,{"$f":"BW104*BW106","v":41280.898143277198},null,null,null,null,null,null,{"$f":"CD104*CD106","v":1549054.3240727317},null,null,null,null,null,{"$f":"CJ104*CJ106","v":542915.50723001151},null,null,null,null,null,{"$f":"CP104*CP106","v":41413.152073729674}]
[]
[]
["Brackets"]
["Material",{"$f":"'DNSP Inputs Capex'!$D$83","v":48.364296883852695},{"$f":"'DNSP Inputs Capex'!$D$84","v":20},null,{"$f":"C112*B112","v":967.28593767705388},{"$f":"(E112+E113+E114)/C112","v":150.70347116011388},null,{"$f":"'DNSP Inputs Capex'!$D$83*(1+'DNSP Inputs Capex'!$D$11)","v":50.782511728045336},{"$f":"'DNSP Inputs Capex'!$D$84","v":20},null,{"$f":"I112*H112","v":1015.6502345609067},{"$f":"(K112+K113+K114)/I112","v":158.16918600430651},null,{"$f":"'DNSP Inputs Capex'!$D$83*(1+'DNSP Inputs Capex'!$D$11)","v":50.782511728045336},{"$f":"'DNSP Inputs Capex'!$D$84","v":20},null,{"$f":"O112*N112","v":1015.6502345609067},{"$f":"(Q112+Q113+Q114)/O112","v":158.16918600430651},null,null,{"$f":"'DNSP Inputs Capex'!$E$83","v":48.364296883852695},{"$f":"'DNSP Inputs Capex'!$E$84","v":20},null,{"$f":"V112*U112","v":967.28593767705388},{"$f":"(X112+X113+X114)/V112","v":151.25695780887028},null,{"$f":"'DNSP Inputs Capex'!$E$83*(1+'DNSP Inputs Capex'!$E$11)","v":50.782511728045336},{"$f":"'DNSP Inputs Capex'!$E$84","v":20},null,{"$f":"AB112*AA112","v":1015.6502345609067},{"$f":"(AD112+AD113+AD114)/AB112","v":158.72267265306294},null,{"$f":"'DNSP Inputs Capex'!$E$83*(1+'DNSP Inputs Capex'!$E$11)","v":50.782511728045336},{"$f":"'DNSP Inputs Capex'!$E$84","v":20},null,{"$f":"AH112*AG112","v":1015.6502345609067},{"$f":"(AJ112+AJ113+AJ114)/AH112","v":158.72267265306294},null,null,{"$f":"'DNSP Inputs Capex'!$F$83","v":48.364296883852695},{"$f":"'DNSP Inputs Capex'!$F$84","v":20},null,{"$f":"AO112*AN112","v":967.28593767705388},{"$f":"(AQ112+AQ113+AQ114)/AO112","v":151.76908228857141},null,{"$f":"'DNSP Inputs Capex'!$F$83*(1+'DNSP Inputs Capex'!$F$11)","v":50.782511728045336},{"$f":"'DNSP Inputs Capex'!$F$84","v":20},null,{"$f":"AU112*AT112","v":1015.6502345609067},{"$f":"(AW112+AW113+AW114)/AU112","v":159.23479713276407},null,{"$f":"'DNSP Inputs Capex'!$F$83*(1+'DNSP Inputs Capex'!$F$11)","v":50.782511728045336},{"$f":"'DNSP Inputs Capex'!$F$84","v":20},null,{"$f":"BA112*AZ112","v":1015.6502345609067},{"$f":"(BC112+BC113+BC114)/BA112","v":159.23479713276407},null,null,{"$f":"'DNSP Inputs Capex'!$G$83","v":48.364296883852695},{"$f":"'DNSP Inputs Capex'!$G$84","v":20},null,{"$f":"BH112*BG112","v":967.28593767705388},{"$f":"(BJ112+BJ113+BJ114)/BH112","v":152.38891490167549},null,{"$f":"'DNSP Inputs Capex'!$G$83*(1+'DNSP Inputs Capex'!$G$11)","v":50.782511728045336},{"$f":"'DNSP Inputs Capex'!$G$84","v":20},null,{"$f":"BN112*BM112","v":1015.6502345609067},{"$f":"(BP112+BP113+BP114)/BN112","v":159.85462974586818},null,{"$f":"'DNSP Inputs Capex'!$G$83*(1+'DNSP Inputs Capex'!$G$11)","v":50.782511728045336},{"$f":"'DNSP Inputs Capex'!$G$84","v":20},null,{"$f":"BT112*BS112","v":1015.6502345609067},{"$f":"(BV112+BV113+BV114)/BT112","v":159.85462974586818},null,null,{"$f":"'DNSP Inputs Capex'!$H$83","v":48.364296883852695},{"$f":"'DNSP Inputs Capex'!$H$84","v":20},null,{"$f":"CA112*BZ112","v":967.28593767705388},{"$f":"(CC112+CC113+CC114)/CA112","v":153.1991892840349},null,{"$f":"'DNSP Inputs Capex'!$H$83*(1+'DNSP Inputs Capex'!$H$11)","v":50.782511728045336},{"$f":"'DNSP Inputs Capex'!$H$84","v":20},null,{"$f":"CG112*CF112","v":1015.6502345609067},{"$f":"(CI112+CI113+CI114)/CG112","v":160.66490412822753},null,{"$f":"'DNSP Inputs Capex'!$H$83*(1+'DNSP Inputs Capex'!$H$11)","v":50.782511728045336},{"$f":"'DNSP Inputs Capex'!$H$84","v":20},null,{"$f":"CM112*CL112","v":1015.6502345609067},{"$f":"(CO112+CO113+CO114)/CM112","v":160.66490412822753}]
["Crew costs",{"$f":"'DNSP Inputs Capex'!$D$12","v":111.36223236834823},{"$f":"'DNSP Inputs Capex'!$D$23","v":2},{"$f":"'DNSP Inputs Capex'!$D$15","v":7.5},{"$f":"B113*C113*D113","v":1670.4334855252234},null,null,{"$f":"'DNSP Inputs Capex'!$D$12","v":111.36223236834823},{"$f":"'DNSP Inputs Capex'!$D$23","v":2},{"$f":"'DNSP Inputs Capex'!$D$15","v":7.5},{"$f":"H113*I113*J113","v":1670.4334855252234},null,null,{"$f":"'DNSP Inputs Capex'!$D$12","v":111.36223236834823},{"$f":"'DNSP Inputs Capex'!$D$23","v":2},{"$f":"'DNSP Inputs Capex'!$D$15","v":7.5},{"$f":"N113*O113*P113","v":1670.4334855252234},null,null,null,{"$f":"'DNSP Inputs Capex'!$E$12","v":112.10021456669011},{"$f":"'DNSP Inputs Capex'!$E$23","v":2},{"$f":"'DNSP Inputs Capex'!$E$15","v":7.5},{"$f":"U113*V113*W113","v":1681.5032185003517},null,null,{"$f":"'DNSP Inputs Capex'!$E$12","v":112.10021456669011},{"$f":"'DNSP Inputs Capex'!$E$23","v":2},{"$f":"'DNSP Inputs Capex'!$E$15","v":7.5},{"$f":"AA113*AB113*AC113","v":1681.5032185003517},null,null,{"$f":"'DNSP Inputs Capex'!$E$12","v":112.10021456669011},{"$f":"'DNSP Inputs Capex'!$E$23","v":2},{"$f":"'DNSP Inputs Capex'!$E$15","v":7.5},{"$f":"AG113*AH113*AI113","v":1681.5032185003517},null,null,null,{"$f":"'DNSP Inputs Capex'!$F$12","v":112.78304720629164},{"$f":"'DNSP Inputs Capex'!$F$23","v":2},{"$f":"'DNSP Inputs Capex'!$F$15","v":7.5},{"$f":"AN113*AO113*AP113","v":1691.7457080943745},null,null,{"$f":"'DNSP Inputs Capex'!$F$12","v":112.78304720629164},{"$f":"'DNSP Inputs Capex'!$F$23","v":2},{"$f":"'DNSP Inputs Capex'!$F$15","v":7.5},{"$f":"AT113*AU113*AV113","v":1691.7457080943745},null,null,{"$f":"'DNSP Inputs Capex'!$F$12","v":112.78304720629164},{"$f":"'DNSP Inputs Capex'!$F$23","v":2},{"$f":"'DNSP Inputs Capex'!$F$15","v":7.5},{"$f":"AZ113*BA113*BB113","v":1691.7457080943745},null,null,null,{"$f":"'DNSP Inputs Capex'!$G$12","v":113.60949069043043},{"$f":"'DNSP Inputs Capex'!$G$23","v":2},{"$f":"'DNSP Inputs Capex'!$G$15","v":7.5},{"$f":"BG113*BH113*BI113","v":1704.1423603564565},null,null,{"$f":"'DNSP Inputs Capex'!$G$12","v":113.60949069043043},{"$f":"'DNSP Inputs Capex'!$G$23","v":2},{"$f":"'DNSP Inputs Capex'!$G$15","v":7.5},{"$f":"BM113*BN113*BO113","v":1704.1423603564565},null,null,{"$f":"'DNSP Inputs Capex'!$G$12","v":113.60949069043043},{"$f":"'DNSP Inputs Capex'!$G$23","v":2},{"$f":"'DNSP Inputs Capex'!$G$15","v":7.5},{"$f":"BS113*BT113*BU113","v":1704.1423603564565},null,null,null,{"$f":"'DNSP Inputs Capex'!$H$12","v":114.68985653357629},{"$f":"'DNSP Inputs Capex'!$H$23","v":2},{"$f":"'DNSP Inputs Capex'!$H$15","v":7.5},{"$f":"BZ113*CA113*CB113","v":1720.3478480036442},null,null,{"$f":"'DNSP Inputs Capex'!$H$12","v":114.68985653357629},{"$f":"'DNSP Inputs Capex'!$H$23","v":2},{"$f":"'DNSP Inputs Capex'!$H$15","v":7.5},{"$f":"CF113*CG113*CH113","v":1720.3478480036442},null,null,{"$f":"'DNSP Inputs Capex'!$H$12","v":114.68985653357629},{"$f":"'DNSP Inputs Capex'!$H$23","v":2},{"$f":"'DNSP Inputs Capex'!$H$15","v":7.5},{"$f":"CL113*CM113*CN113","v":1720.3478480036442}]
["Elevated platform costs",{"$f":"'DNSP Inputs Capex'!$D$13","v":50.18},1,{"$f":"'DNSP Inputs Capex'!$D$15","v":7.5},{"$f":"B114*C114*D114","v":376.35},null,null,{"$f":"'DNSP Inputs Capex'!$D$14","v":63.64},1,{"$f":"'DNSP Inputs Capex'!$D$15","v":7.5},{"$f":"H114*I114*J114","v":477.3},null,null,{"$f":"'DNSP Inputs Capex'!$D$14","v":63.64},1,{"$f":"'DNSP Inputs Capex'!$D$15","v":7.5},{"$f":"N114*O114*P114","v":477.3},null,null,null,{"$f":"'DNSP Inputs Capex'!$E$13","v":50.18},1,{"$f":"'DNSP Inputs Capex'!$E$15","v":7.5},{"$f":"U114*V114*W114","v":376.35},null,null,{"$f":"'DNSP Inputs Capex'!$E$14","v":63.64},1,{"$f":"'DNSP Inputs Capex'!$E$15","v":7.5},{"$f":"AA114*AB114*AC114","v":477.3},null,null,{"$f":"'DNSP Inputs Capex'!$E$14","v":63.64},1,{"$f":"'DNSP Inputs Capex'!$E$15","v":7.5},{"$f":"AG114*AH114*AI114","v":477.3},null,null,null,{"$f":"'DNSP Inputs Capex'!$F$13","v":50.18},1,{"$f":"'DNSP Inputs Capex'!$F$15","v":7.5},{"$f":"AN114*AO114*AP114","v":376.35},null,null,{"$f":"'DNSP Inputs Capex'!$F$14","v":63.64},1,{"$f":"'DNSP Inputs Capex'!$F$15","v":7.5},{"$f":"AT114*AU114*AV114","v":477.3},null,null,{"$f":"'DNSP Inputs Capex'!$F$14","v":63.64},1,{"$f":"'DNSP Inputs Capex'!$F$15","v":7.5},{"$f":"AZ114*BA114*BB114","v":477.3},null,null,null,{"$f":"'DNSP Inputs Capex'!$G$13","v":50.18},1,{"$f":"'DNSP Inputs Capex'!$G$15","v":7.5},{"$f":"BG114*BH114*BI114","v":376.35},null,null,{"$f":"'DNSP Inputs Capex'!$G$14","v":63.64},1,{"$f":"'DNSP Inputs Capex'!$G$15","v":7.5},{"$f":"BM114*BN114*BO114","v":477.3},null,null,{"$f":"'DNSP Inputs Capex'!$G$14","v":63.64},1,{"$f":"'DNSP Inputs Capex'!$G$15","v":7.5},{"$f":"BS114*BT114*BU114","v":477.3},null,null,null,{"$f":"'DNSP Inputs Capex'!$H$13","v":50.18},1,{"$f":"'DNSP Inputs Capex'!$H$15","v":7.5},{"$f":"BZ114*CA114*CB114","v":376.35},null,null,{"$f":"'DNSP Inputs Capex'!$H$14","v":63.64},1,{"$f":"'DNSP Inputs Capex'!$H$15","v":7.5},{"$f":"CF114*CG114*CH114","v":477.3},null,null,{"$f":"'DNSP Inputs Capex'!$H$14","v":63.64},1,{"$f":"'DNSP Inputs Capex'!$H$15","v":7.5},{"$f":"CL114*CM114*CN114","v":477.3}]
[]
["Number of brackets replaced",null,null,null,null,{"$f":"'DNSP Inputs Capex'!$D$95","v":970.79642797264523},null,null,null,null,null,{"$f":"'DNSP Inputs Capex'!$D$96","v":327.85222323621383},null,null,null,null,null,{"$f":"'DNSP Inputs Capex'!$D$97","v":24.956389678402683},null,null,null,null,null,null,{"$f":"'DNSP Inputs Capex'!$E$95","v":970.79642797264523},null,null,null,null,null,{"$f":"'DNSP Inputs Capex'!$E$96","v":327.85222323621383},null,null,null,null,null,{"$f":"'DNSP Inputs Capex'!$E$97","v":24.956389678402683},null,null,null,null,null,null,{"$f":"'DNSP Inputs Capex'!$F$95","v":970.79642797264523},null,null,null,null,null,{"$f":"'DNSP Inputs Capex'!$F$96","v":327.85222323621383},null,null,null,null,null,{"$f":"'DNSP Inputs Capex'!$F$97","v":24.956389678402683},null,null,null,null,null,null,{"$f":"'DNSP Inputs Capex'!$G$95","v":970.79642797264523},null,null,null,null,null,{"$f":"'DNSP Inputs Capex'!$G$96","v":327.85222323621383},null,null,null,null,null,{"$f":"'DNSP Inputs Capex'!$G$97","v":24.956389678402683},null,null,null,null,null,null,{"$f":"'DNSP Inputs Capex'!$H$95","v":970.79642797264523},null,null,null,null,null,{"$f":"'DNSP Inputs Capex'!$H$96","v":327.85222323621383},null,null,null,null,null,{"$f":"'DNSP Inputs Capex'!$H$97","v":24.956389678402683}]
[]
["Capex",null,null,null,null,{"$f":"F112*F116","v":146302.39148531712},null,null,null,null,null,{"$f":"L112*L116","v":51856.119278974125},null,null,null,null,null,{"$f":"R112*R116","v":3947.3318410392289},null,null,null,null,null,null,{"$f":"Y112*Y116","v":146839.71434686039},null,null,null,null,null,{"$f":"AE112*AE116","v":52037.581107300488},null,null,null,null,null,{"$f":"AK112*AK116","v":3961.144869527388},null,null,null,null,null,null,{"$f":"AR112*AR116","v":147336.88296243158},null,null,null,null,null,{"$f":"AX112*AX116","v":52205.482256544186},null,null,null,null,null,{"$f":"BD112*BD116","v":3973.9256476066585},null,null,null,null,null,null,{"$f":"BK112*BK116","v":147938.61424917399},null,null,null,null,null,{"$f":"BQ112*BQ116","v":52408.695756784684},null,null,null,null,null,{"$f":"BW112*BW116","v":3989.3944318346671},null,null,null,null,null,null,{"$f":"CD112*CD116","v":148725.22572524624},null,null,null,null,null,{"$f":"CJ112*CJ116","v":52674.346014472547},null,null,null,null,null,{"$f":"CP112*CP116","v":4009.6159550672542}]
[]
[" "]
[]
["T5 (2 X 14W)"]
["Luminaires "]
["Material & misc",{"$f":"'DNSP Inputs Capex'!$D$109+'DNSP Inputs Capex'!$D$110","v":261.62764567069206},{"$f":"'DNSP Inputs Capex'!$D$112","v":16},null,{"$f":"B124*C124","v":4186.042330731073},{"$f":"IFERROR((E124+E125+E126)/C124,0)","v":389.55161351601856},null,{"$f":"('DNSP Inputs Capex'!$D$109+'DNSP Inputs Capex'!$D$110)*(1+'DNSP Inputs Capex'!$D$11)","v":274.70902795422666},{"$f":"'DNSP Inputs Capex'!$D$113","v":13},null,{"$f":"H124*I124","v":3571.2173634049464},{"$f":"IFERROR((K124+K125+K126)/I124,0)","v":439.91929607155151},null,{"$f":"('DNSP Inputs Capex'!$D$109+'DNSP Inputs Capex'!$D$110)*(1+'DNSP Inputs Capex'!$D$11)","v":274.70902795422666},{"$f":"'DNSP Inputs Capex'!$D$114","v":10},null,{"$f":"N124*O124","v":2747.0902795422667},{"$f":"IFERROR((Q124+Q125+Q126)/O124,0)","v":489.48237650674901},null,null,{"$f":"'DNSP Inputs Capex'!$E$109+'DNSP Inputs Capex'!$E$110","v":261.62764567069206},{"$f":"'DNSP Inputs Capex'!$E$112","v":16},null,{"$f":"U124*V124","v":4186.042330731073},{"$f":"IFERROR((X124+X125+X126)/V124,0)","v":390.24347182696408},null,{"$f":"('DNSP Inputs Capex'!$E$109+'DNSP Inputs Capex'!$E$110)*(1+'DNSP Inputs Capex'!$E$11)","v":274.70902795422666},{"$f":"'DNSP Inputs Capex'!$E$113","v":13},null,{"$f":"AA124*AB124","v":3571.2173634049464},{"$f":"IFERROR((AD124+AD125+AD126)/AB124,0)","v":440.77081399271526},null,{"$f":"('DNSP Inputs Capex'!$E$109+'DNSP Inputs Capex'!$E$110)*(1+'DNSP Inputs Capex'!$E$11)","v":274.70902795422666},{"$f":"'DNSP Inputs Capex'!$E$114","v":10},null,{"$f":"AG124*AH124","v":2747.0902795422667},{"$f":"IFERROR((AJ124+AJ125+AJ126)/AH124,0)","v":490.58934980426181},null,null,{"$f":"'DNSP Inputs Capex'!$F$109+'DNSP Inputs Capex'!$F$110","v":261.62764567069206},{"$f":"'DNSP Inputs Capex'!$F$112","v":16},null,{"$f":"AN124*AO124","v":4186.042330731073},{"$f":"IFERROR((AQ124+AQ125+AQ126)/AO124,0)","v":390.88362742659046},null,{"$f":"('DNSP Inputs Capex'!$F$109+'DNSP Inputs Capex'!$F$110)*(1+'DNSP Inputs Capex'!$F$11)","v":274.70902795422666},{"$f":"'DNSP Inputs Capex'!$F$113","v":13},null,{"$f":"AT124*AU124","v":3571.2173634049464},{"$f":"IFERROR((AW124+AW125+AW126)/AU124,0)","v":441.5586978076401},null,{"$f":"('DNSP Inputs Capex'!$F$109+'DNSP Inputs Capex'!$F$110)*(1+'DNSP Inputs Capex'!$F$11)","v":274.70902795422666},{"$f":"'DNSP Inputs Capex'!$F$114","v":10},null,{"$f":"AZ124*BA124","v":2747.0902795422667},{"$f":"IFERROR((BC124+BC125+BC126)/BA124,0)","v":491.61359876366413},null,null,{"$f":"'DNSP Inputs Capex'!$G$109+'DNSP Inputs Capex'!$G$110","v":261.62764567069206},{"$f":"'DNSP Inputs Capex'!$G$112","v":16},null,{"$f":"BG124*BH124","v":4186.042330731073},{"$f":"IFERROR((BJ124+BJ125+BJ126)/BH124,0)","v":391.6584181929706},null,{"$f":"('DNSP Inputs Capex'!$G$109+'DNSP Inputs Capex'!$G$110)*(1+'DNSP Inputs Capex'!$G$11)","v":274.70902795422666},{"$f":"'DNSP Inputs Capex'!$G$113","v":13},null,{"$f":"BM124*BN124","v":3571.2173634049464},{"$f":"IFERROR((BP124+BP125+BP126)/BN124,0)","v":442.51228644318485},null,{"$f":"('DNSP Inputs Capex'!$G$109+'DNSP Inputs Capex'!$G$110)*(1+'DNSP Inputs Capex'!$G$11)","v":274.70902795422666},{"$f":"'DNSP Inputs Capex'!$G$114","v":10},null,{"$f":"BS124*BT124","v":2747.0902795422667},{"$f":"IFERROR((BV124+BV125+BV126)/BT124,0)","v":492.85326398987235},null,null,{"$f":"'DNSP Inputs Capex'!$H$109+'DNSP Inputs Capex'!$H$110","v":261.62764567069206},{"$f":"'DNSP Inputs Capex'!$H$112","v":16},null,{"$f":"BZ124*CA124","v":4186.042330731073},{"$f":"IFERROR((CC124+CC125+CC126)/CA124,0)","v":392.67126117091982},null,{"$f":"('DNSP Inputs Capex'!$H$109+'DNSP Inputs Capex'!$H$110)*(1+'DNSP Inputs Capex'!$H$11)","v":274.70902795422666},{"$f":"'DNSP Inputs Capex'!$H$113","v":13},null,{"$f":"CF124*CG124","v":3571.2173634049464},{"$f":"IFERROR((CI124+CI125+CI126)/CG124,0)","v":443.75886241604542},null,{"$f":"('DNSP Inputs Capex'!$H$109+'DNSP Inputs Capex'!$H$110)*(1+'DNSP Inputs Capex'!$H$11)","v":274.70902795422666},{"$f":"'DNSP Inputs Capex'!$H$114","v":10},null,{"$f":"CL124*CM124","v":2747.0902795422667},{"$f":"IFERROR((CO124+CO125+CO126)/CM124,0)","v":494.47381275459111}]
["Crew costs",{"$f":"'DNSP Inputs Capex'!$D$12","v":111.36223236834823},{"$f":"'DNSP Inputs Capex'!$D$111","v":2},{"$f":"'DNSP Inputs Capex'!$D$15","v":7.5},{"$f":"B125*C125*D125","v":1670.4334855252234},null,null,{"$f":"'DNSP Inputs Capex'!$D$12","v":111.36223236834823},{"$f":"'DNSP Inputs Capex'!$D$111","v":2},{"$f":"'DNSP Inputs Capex'!$D$15","v":7.5},{"$f":"H125*I125*J125","v":1670.4334855252234},null,null,{"$f":"'DNSP Inputs Capex'!$D$12","v":111.36223236834823},{"$f":"'DNSP Inputs Capex'!$D$111","v":2},{"$f":"'DNSP Inputs Capex'!$D$15","v":7.5},{"$f":"N125*O125*P125","v":1670.4334855252234},null,null,null,{"$f":"'DNSP Inputs Capex'!$E$12","v":112.10021456669011},{"$f":"'DNSP Inputs Capex'!$E$111","v":2},{"$f":"'DNSP Inputs Capex'!$E$15","v":7.5},{"$f":"U125*V125*W125","v":1681.5032185003517},null,null,{"$f":"'DNSP Inputs Capex'!$E$12","v":112.10021456669011},{"$f":"'DNSP Inputs Capex'!$E$111","v":2},{"$f":"'DNSP Inputs Capex'!$E$15","v":7.5},{"$f":"AA125*AB125*AC125","v":1681.5032185003517},null,null,{"$f":"'DNSP Inputs Capex'!$E$12","v":112.10021456669011},{"$f":"'DNSP Inputs Capex'!$E$111","v":2},{"$f":"'DNSP Inputs Capex'!$E$15","v":7.5},{"$f":"AG125*AH125*AI125","v":1681.5032185003517},null,null,null,{"$f":"'DNSP Inputs Capex'!$F$12","v":112.78304720629164},{"$f":"'DNSP Inputs Capex'!$F$111","v":2},{"$f":"'DNSP Inputs Capex'!$F$15","v":7.5},{"$f":"AN125*AO125*AP125","v":1691.7457080943745},null,null,{"$f":"'DNSP Inputs Capex'!$F$12","v":112.78304720629164},{"$f":"'DNSP Inputs Capex'!$F$111","v":2},{"$f":"'DNSP Inputs Capex'!$F$15","v":7.5},{"$f":"AT125*AU125*AV125","v":1691.7457080943745},null,null,{"$f":"'DNSP Inputs Capex'!$F$12","v":112.78304720629164},{"$f":"'DNSP Inputs Capex'!$F$111","v":2},{"$f":"'DNSP Inputs Capex'!$F$15","v":7.5},{"$f":"AZ125*BA125*BB125","v":1691.7457080943745},null,null,null,{"$f":"'DNSP Inputs Capex'!$G$12","v":113.60949069043043},{"$f":"'DNSP Inputs Capex'!$G$111","v":2},{"$f":"'DNSP Inputs Capex'!$G$15","v":7.5},{"$f":"BG125*BH125*BI125","v":1704.1423603564565},null,null,{"$f":"'DNSP Inputs Capex'!$G$12","v":113.60949069043043},{"$f":"'DNSP Inputs Capex'!$G$111","v":2},{"$f":"'DNSP Inputs Capex'!$G$15","v":7.5},{"$f":"BM125*BN125*BO125","v":1704.1423603564565},null,null,{"$f":"'DNSP Inputs Capex'!$G$12","v":113.60949069043043},{"$f":"'DNSP Inputs Capex'!$G$111","v":2},{"$f":"'DNSP Inputs Capex'!$G$15","v":7.5},{"$f":"BS125*BT125*BU125","v":1704.1423603564565},null,null,null,{"$f":"'DNSP Inputs Capex'!$H$12","v":114.68985653357629},{"$f":"'DNSP Inputs Capex'!$H$111","v":2},{"$f":"'DNSP Inputs Capex'!$H$15","v":7.5},{"$f":"BZ125*CA125*CB125","v":1720.3478480036442},null,null,{"$f":"'DNSP Inputs Capex'!$H$12","v":114.68985653357629},{"$f":"'DNSP Inputs Capex'!$H$111","v":2},{"$f":"'DNSP Inputs Capex'!$H$15","v":7.5},{"$f":"CF125*CG125*CH125","v":1720.3478480036442},null,null,{"$f":"'DNSP Inputs Capex'!$H$12","v":114.68985653357629},{"$f":"'DNSP Inputs Capex'!$H$111","v":2},{"$f":"'DNSP Inputs Capex'!$H$15","v":7.5},{"$f":"CL125*CM125*CN125","v":1720.3478480036442}]
["Elevated platform vehicle costs",{"$f":"'DNSP Inputs Capex'!$D$13","v":50.18},1,{"$f":"'DNSP Inputs Capex'!$D$15","v":7.5},{"$f":"B126*C126*D126","v":376.35},null,null,{"$f":"'DNSP Inputs Capex'!$D$14","v":63.64},1,{"$f":"'DNSP Inputs Capex'!$D$15","v":7.5},{"$f":"H126*I126*J126","v":477.3},null,null,{"$f":"'DNSP Inputs Capex'!$D$14","v":63.64},1,{"$f":"'DNSP Inputs Capex'!$D$15","v":7.5},{"$f":"N126*O126*P126","v":477.3},null,null,null,{"$f":"'DNSP Inputs Capex'!$E$13","v":50.18},1,{"$f":"'DNSP Inputs Capex'!$E$15","v":7.5},{"$f":"U126*V126*W126","v":376.35},null,null,{"$f":"'DNSP Inputs Capex'!$E$14","v":63.64},1,{"$f":"'DNSP Inputs Capex'!$E$15","v":7.5},{"$f":"AA126*AB126*AC126","v":477.3},null,null,{"$f":"'DNSP Inputs Capex'!$E$14","v":63.64},1,{"$f":"'DNSP Inputs Capex'!$E$15","v":7.5},{"$f":"AG126*AH126*AI126","v":477.3},null,null,null,{"$f":"'DNSP Inputs Capex'!$F$13","v":50.18},1,{"$f":"'DNSP Inputs Capex'!$F$15","v":7.5},{"$f":"AN126*AO126*AP126","v":376.35},null,null,{"$f":"'DNSP Inputs Capex'!$F$14","v":63.64},1,{"$f":"'DNSP Inputs Capex'!$F$15","v":7.5},{"$f":"AT126*AU126*AV126","v":477.3},null,null,{"$f":"'DNSP Inputs Capex'!$F$14","v":63.64},1,{"$f":"'DNSP Inputs Capex'!$F$15","v":7.5},{"$f":"AZ126*BA126*BB126","v":477.3},null,null,null,{"$f":"'DNSP Inputs Capex'!$G$13","v":50.18},1,{"$f":"'DNSP Inputs Capex'!$G$15","v":7.5},{"$f":"BG126*BH126*BI126","v":376.35},null,null,{"$f":"'DNSP Inputs Capex'!$G$14","v":63.64},1,{"$f":"'DNSP Inputs Capex'!$G$15","v":7.5},{"$f":"BM126*BN126*BO126","v":477.3},null,null,{"$f":"'DNSP Inputs Capex'!$G$14","v":63.64},1,{"$f":"'DNSP Inputs Capex'!$G$15","v":7.5},{"$f":"BS126*BT126*BU126","v":477.3},null,null,null,{"$f":"'DNSP Inputs Capex'!$H$13","v":50.18},1,{"$f":"'DNSP Inputs Capex'!$H$15","v":7.5},{"$f":"BZ126*CA126*CB126","v":376.35},null,null,{"$f":"'DNSP Inputs Capex'!$H$14","v":63.64},1,{"$f":"'DNSP Inputs Capex'!$H$15","v":7.5},{"$f":"CF126*CG126*CH126","v":477.3},null,null,{"$f":"'DNSP Inputs Capex'!$H$14","v":63.64},1,{"$f":"'DNSP Inputs Capex'!$H$15","v":7.5},{"$f":"CL126*CM126*CN126","v":477.3}]
[{"$f":"'DNSP Inputs Capex'!$A$28","v":"Other Capex unit costs Describe :………………………"},null,null,null,null,{"$f":"'DNSP Inputs Capex'!$D$116","v":0},null,null,null,null,null,{"$f":"'DNSP Inputs Capex'!$D$116","v":0},null,null,null,null,null,{"$f":"'DNSP Inputs Capex'!$D$116","v":0},null,null,null,null,null,null,{"$f":"'DNSP Inputs Capex'!$E$116","v":0},null,null,null,null,null,{"$f":"'DNSP Inputs Capex'!$E$116","v":0},null,null,null,null,null,{"$f":"'DNSP Inputs Capex'!$E$116","v":0},null,null,null,null,null,null,{"$f":"'DNSP Inputs Capex'!$F$116","v":0},null,null,null,null,null,{"$f":"'DNSP Inputs Capex'!$F$116","v":0},null,null,null,null,null,{"$f":"'DNSP Inputs Capex'!$F$116","v":0},null,null,null,null,null,null,{"$f":"'DNSP Inputs Capex'!$G$116","v":0},null,null,null,null,null,{"$f":"'DNSP Inputs Capex'!$G$116","v":0},null,null,null,null,null,{"$f":"'DNSP Inputs Capex'!$G$116","v":0},null,null,null,null,null,null,{"$f":"'DNSP Inputs Capex'!$H$116","v":0},null,null,null,null,null,{"$f":"'DNSP Inputs Capex'!$H$116","v":0},null,null,null,null,null,{"$f":"'DNSP Inputs Capex'!$H$116","v":0}]
[null,null,null,null,null,{"$f":"SUM(F124,F127)","v":389.55161351601856},null,null,null,null,null,{"$f":"SUM(L124,L127)","v":439.91929607155151},null,null,null,null,null,{"$f":"SUM(R124,R127)","v":489.48237650674901},null,null,null,null,null,null,{"$f":"SUM(Y124,Y127)","v":390.24347182696408},null,null,null,null,null,{"$f":"SUM(AE124,AE127)","v":440.77081399271526},null,null,null,null,null,{"$f":"SUM(AK124,AK127)","v":490.58934980426181},null,null,null,null,null,null,{"$f":"SUM(AR124,AR127)","v":390.88362742659046},null,null,null,null,null,{"$f":"SUM(AX124,AX127)","v":441.5586978076401},null,null,null,null,null,{"$f":"SUM(BD124,BD127)","v":491.61359876366413},null,null,null,null,null,null,{"$f":"SUM(BK124,BK127)","v":391.6584181929706},null,null,null,null,null,{"$f":"SUM(BQ124,BQ127)","v":442.51228644318485},null,null,null,null,null,{"$f":"SUM(BW124,BW127)","v":492.85326398987235},null,null,null,null,null,null,{"$f":"SUM(CD124,CD127)","v":392.67126117091982},null,null,null,null,null,{"$f":"SUM(CJ124,CJ127)","v":443.75886241604542},null,null,null,null,null,{"$f":"SUM(CP124,CP127)","v":494.47381275459111}]
[]
["Number of luminaires replaced",null,null,null,null,{"$f":"'DNSP Inputs Capex'!$D$119","v":332.31684954821867},null,null,null,null,null,{"$f":"'DNSP Inputs Capex'!$D$120","v":83.93658299992417},null,null,null,null,null,{"$f":"'DNSP Inputs Capex'!$D$121","v":16.290041644520521},null,null,null,null,null,null,{"$f":"'DNSP Inputs Capex'!$E$119","v":332.31684954821867},null,null,null,null,null,{"$f":"'DNSP Inputs Capex'!$E$120","v":83.93658299992417},null,null,null,null,null,{"$f":"'DNSP Inputs Capex'!$E$121","v":16.290041644520521},null,null,null,null,null,null,{"$f":"'DNSP Inputs Capex'!$F$119","v":332.31684954821867},null,null,null,null,null,{"$f":"'DNSP Inputs Capex'!$F$120","v":83.93658299992417},null,null,null,null,null,{"$f":"'DNSP Inputs Capex'!$F$121","v":16.290041644520521},null,null,null,null,null,null,{"$f":"'DNSP Inputs Capex'!$G$119","v":332.31684954821867},null,null,null,null,null,{"$f":"'DNSP Inputs Capex'!$G$120","v":83.93658299992417},null,null,null,null,null,{"$f":"'DNSP Inputs Capex'!$G$121","v":16.290041644520521},null,null,null,null,null,null,{"$f":"'DNSP Inputs Capex'!$H$119","v":332.31684954821867},null,null,null,null,null,{"$f":"'DNSP Inputs Capex'!$H$120","v":83.93658299992417},null,null,null,null,null,{"$f":"'DNSP Inputs Capex'!$H$121","v":16.290041644520521}]
[]
["Capex",null,null,null,null,{"$f":"F128*F130","v":129454.56494006857},null,null,null,null,null,{"$f":"L128*L130","v":36925.322507977995},null,null,null,null,null,{"$f":"R128*R130","v":7973.6882975538147},null,null,null,null,null,null,{"$f":"Y128*Y130","v":129684.48111429573},null,null,null,null,null,{"$f":"AE128*AE130","v":36996.796012643681},null,null,null,null,null,{"$f":"AK128*AK130","v":7991.7209386696704},null,null,null,null,null,null,{"$f":"AR128*AR130","v":129897.21560638423},null,null,null,null,null,{"$f":"AX128*AX130","v":37062.928287869421},null,null,null,null,null,{"$f":"BD128*BD130","v":8008.4059968726906},null,null,null,null,null,null,{"$f":"BK128*BK130","v":130154.69163292673},null,null,null,null,null,{"$f":"BQ128*BQ130","v":37142.969259524602},null,null,null,null,null,{"$f":"BW128*BW130","v":8028.6001950328864},null,null,null,null,null,null,{"$f":"CD128*CD130","v":130491.27642044584},null,null,null,null,null,{"$f":"CJ128*CJ130","v":37247.602587136324},null,null,null,null,null,{"$f":"CP128*CP130","v":8054.9990018971312}]
[]
[]
["T5 (2x24W)"]
["Luminaires "]
["Material & misc",{"$f":"'DNSP Inputs Capex'!$D$127+'DNSP Inputs Capex'!$D$128","v":268.67764567069207},{"$f":"'DNSP Inputs Capex'!$D$130","v":16},null,{"$f":"B137*C137","v":4298.8423307310732},{"$f":"IFERROR((E137+E138+E139)/C137,0)","v":396.60161351601857},null,{"$f":"('DNSP Inputs Capex'!$D$127+'DNSP Inputs Capex'!$D$128)*(1+'DNSP Inputs Capex'!$D$11)","v":282.11152795422669},{"$f":"'DNSP Inputs Capex'!$D$131","v":13},null,{"$f":"H137*I137","v":3667.4498634049469},{"$f":"IFERROR((K137+K138+K139)/I137,0)","v":447.3217960715516},null,{"$f":"('DNSP Inputs Capex'!$D$127+'DNSP Inputs Capex'!$D$128)*(1+'DNSP Inputs Capex'!$D$11)","v":282.11152795422669},{"$f":"'DNSP Inputs Capex'!$D$132","v":10},null,{"$f":"N137*O137","v":2821.1152795422668},{"$f":"IFERROR((Q137+Q138+Q139)/O137,0)","v":496.88487650674904},null,null,{"$f":"'DNSP Inputs Capex'!$E$127+'DNSP Inputs Capex'!$E$128","v":268.67764567069207},{"$f":"'DNSP Inputs Capex'!$E$130","v":16},null,{"$f":"U137*V137","v":4298.8423307310732},{"$f":"IFERROR((X137+X138+X139)/V137,0)","v":397.29347182696409},null,{"$f":"('DNSP Inputs Capex'!$E$127+'DNSP Inputs Capex'!$E$128)*(1+'DNSP Inputs Capex'!$E$11)","v":282.11152795422669},{"$f":"'DNSP Inputs Capex'!$E$131","v":13},null,{"$f":"AA137*AB137","v":3667.4498634049469},{"$f":"IFERROR((AD137+AD138+AD139)/AB137,0)","v":448.17331399271529},null,{"$f":"('DNSP Inputs Capex'!$E$127+'DNSP Inputs Capex'!$E$128)*(1+'DNSP Inputs Capex'!$E$11)","v":282.11152795422669},{"$f":"'DNSP Inputs Capex'!$E$132","v":10},null,{"$f":"AG137*AH137","v":2821.1152795422668},{"$f":"IFERROR((AJ137+AJ138+AJ139)/AH137,0)","v":497.9918498042619},null,null,{"$f":"'DNSP Inputs Capex'!$F$127+'DNSP Inputs Capex'!$F$128","v":268.67764567069207},{"$f":"'DNSP Inputs Capex'!$F$130","v":16},null,{"$f":"AN137*AO137","v":4298.8423307310732},{"$f":"IFERROR((AQ137+AQ138+AQ139)/AO137,0)","v":397.93362742659053},null,{"$f":"('DNSP Inputs Capex'!$F$127+'DNSP Inputs Capex'!$F$128)*(1+'DNSP Inputs Capex'!$F$11)","v":282.11152795422669},{"$f":"'DNSP Inputs Capex'!$F$131","v":13},null,{"$f":"AT137*AU137","v":3667.4498634049469},{"$f":"IFERROR((AW137+AW138+AW139)/AU137,0)","v":448.96119780764013},null,{"$f":"('DNSP Inputs Capex'!$F$127+'DNSP Inputs Capex'!$F$128)*(1+'DNSP Inputs Capex'!$F$11)","v":282.11152795422669},{"$f":"'DNSP Inputs Capex'!$F$132","v":10},null,{"$f":"AZ137*BA137","v":2821.1152795422668},{"$f":"IFERROR((BC137+BC138+BC139)/BA137,0)","v":499.0160987636641},null,null,{"$f":"'DNSP Inputs Capex'!$G$127+'DNSP Inputs Capex'!$G$128","v":268.67764567069207},{"$f":"'DNSP Inputs Capex'!$G$130","v":16},null,{"$f":"BG137*BH137","v":4298.8423307310732},{"$f":"IFERROR((BJ137+BJ138+BJ139)/BH137,0)","v":398.70841819297061},null,{"$f":"('DNSP Inputs Capex'!$G$127+'DNSP Inputs Capex'!$G$128)*(1+'DNSP Inputs Capex'!$G$11)","v":282.11152795422669},{"$f":"'DNSP Inputs Capex'!$G$131","v":13},null,{"$f":"BM137*BN137","v":3667.4498634049469},{"$f":"IFERROR((BP137+BP138+BP139)/BN137,0)","v":449.91478644318488},null,{"$f":"('DNSP Inputs Capex'!$G$127+'DNSP Inputs Capex'!$G$128)*(1+'DNSP Inputs Capex'!$G$11)","v":282.11152795422669},{"$f":"'DNSP Inputs Capex'!$G$132","v":10},null,{"$f":"BS137*BT137","v":2821.1152795422668},{"$f":"IFERROR((BV137+BV138+BV139)/BT137,0)","v":500.25576398987232},null,null,{"$f":"'DNSP Inputs Capex'!$H$127+'DNSP Inputs Capex'!$H$128","v":268.67764567069207},{"$f":"'DNSP Inputs Capex'!$H$130","v":16},null,{"$f":"BZ137*CA137","v":4298.8423307310732},{"$f":"IFERROR((CC137+CC138+CC139)/CA137,0)","v":399.72126117091989},null,{"$f":"('DNSP Inputs Capex'!$H$127+'DNSP Inputs Capex'!$H$128)*(1+'DNSP Inputs Capex'!$H$11)","v":282.11152795422669},{"$f":"'DNSP Inputs Capex'!$H$131","v":13},null,{"$f":"CF137*CG137","v":3667.4498634049469},{"$f":"IFERROR((CI137+CI138+CI139)/CG137,0)","v":451.16136241604551},null,{"$f":"('DNSP Inputs Capex'!$H$127+'DNSP Inputs Capex'!$H$128)*(1+'DNSP Inputs Capex'!$H$11)","v":282.11152795422669},{"$f":"'DNSP Inputs Capex'!$H$132","v":10},null,{"$f":"CL137*CM137","v":2821.1152795422668},{"$f":"IFERROR((CO137+CO138+CO139)/CM137,0)","v":501.87631275459108}]
["Crew costs",{"$f":"'DNSP Inputs Capex'!$D$12","v":111.36223236834823},{"$f":"'DNSP Inputs Capex'!$D$129","v":2},{"$f":"'DNSP Inputs Capex'!$D$15","v":7.5},{"$f":"B138*C138*D138","v":1670.4334855252234},null,null,{"$f":"'DNSP Inputs Capex'!$D$12","v":111.36223236834823},{"$f":"'DNSP Inputs Capex'!$D$129","v":2},{"$f":"'DNSP Inputs Capex'!$D$15","v":7.5},{"$f":"H138*I138*J138","v":1670.4334855252234},null,null,{"$f":"'DNSP Inputs Capex'!$D$12","v":111.36223236834823},{"$f":"'DNSP Inputs Capex'!$D$129","v":2},{"$f":"'DNSP Inputs Capex'!$D$15","v":7.5},{"$f":"N138*O138*P138","v":1670.4334855252234},null,null,null,{"$f":"'DNSP Inputs Capex'!$E$12","v":112.10021456669011},{"$f":"'DNSP Inputs Capex'!$E$129","v":2},{"$f":"'DNSP Inputs Capex'!$E$15","v":7.5},{"$f":"U138*V138*W138","v":1681.5032185003517},null,null,{"$f":"'DNSP Inputs Capex'!$E$12","v":112.10021456669011},{"$f":"'DNSP Inputs Capex'!$E$129","v":2},{"$f":"'DNSP Inputs Capex'!$E$15","v":7.5},{"$f":"AA138*AB138*AC138","v":1681.5032185003517},null,null,{"$f":"'DNSP Inputs Capex'!$E$12","v":112.10021456669011},{"$f":"'DNSP Inputs Capex'!$E$129","v":2},{"$f":"'DNSP Inputs Capex'!$E$15","v":7.5},{"$f":"AG138*AH138*AI138","v":1681.5032185003517},null,null,null,{"$f":"'DNSP Inputs Capex'!$F$12","v":112.78304720629164},{"$f":"'DNSP Inputs Capex'!$F$129","v":2},{"$f":"'DNSP Inputs Capex'!$F$15","v":7.5},{"$f":"AN138*AO138*AP138","v":1691.7457080943745},null,null,{"$f":"'DNSP Inputs Capex'!$F$12","v":112.78304720629164},{"$f":"'DNSP Inputs Capex'!$F$129","v":2},{"$f":"'DNSP Inputs Capex'!$F$15","v":7.5},{"$f":"AT138*AU138*AV138","v":1691.7457080943745},null,null,{"$f":"'DNSP Inputs Capex'!$F$12","v":112.78304720629164},{"$f":"'DNSP Inputs Capex'!$F$129","v":2},{"$f":"'DNSP Inputs Capex'!$F$15","v":7.5},{"$f":"AZ138*BA138*BB138","v":1691.7457080943745},null,null,null,{"$f":"'DNSP Inputs Capex'!$G$12","v":113.60949069043043},{"$f":"'DNSP Inputs Capex'!$G$129","v":2},{"$f":"'DNSP Inputs Capex'!$G$15","v":7.5},{"$f":"BG138*BH138*BI138","v":1704.1423603564565},null,null,{"$f":"'DNSP Inputs Capex'!$G$12","v":113.60949069043043},{"$f":"'DNSP Inputs Capex'!$G$129","v":2},{"$f":"'DNSP Inputs Capex'!$G$15","v":7.5},{"$f":"BM138*BN138*BO138","v":1704.1423603564565},null,null,{"$f":"'DNSP Inputs Capex'!$G$12","v":113.60949069043043},{"$f":"'DNSP Inputs Capex'!$G$129","v":2},{"$f":"'DNSP Inputs Capex'!$G$15","v":7.5},{"$f":"BS138*BT138*BU138","v":1704.1423603564565},null,null,null,{"$f":"'DNSP Inputs Capex'!$H$12","v":114.68985653357629},{"$f":"'DNSP Inputs Capex'!$H$129","v":2},{"$f":"'DNSP Inputs Capex'!$H$15","v":7.5},{"$f":"BZ138*CA138*CB138","v":1720.3478480036442},null,null,{"$f":"'DNSP Inputs Capex'!$H$12","v":114.68985653357629},{"$f":"'DNSP Inputs Capex'!$H$129","v":2},{"$f":"'DNSP Inputs Capex'!$H$15","v":7.5},{"$f":"CF138*CG138*CH138","v":1720.3478480036442},null,null,{"$f":"'DNSP Inputs Capex'!$H$12","v":114.68985653357629},{"$f":"'DNSP Inputs Capex'!$H$129","v":2},{"$f":"'DNSP Inputs Capex'!$H$15","v":7.5},{"$f":"CL138*CM138*CN138","v":1720.3478480036442}]
["Elevated platform vehicle costs",{"$f":"'DNSP Inputs Capex'!$D$13","v":50.18},1,{"$f":"'DNSP Inputs Capex'!$D$15","v":7.5},{"$f":"B139*C139*D139","v":376.35},null,null,{"$f":"'DNSP Inputs Capex'!$D$14","v":63.64},1,{"$f":"'DNSP Inputs Capex'!$D$15","v":7.5},{"$f":"H139*I139*J139","v":477.3},null,null,{"$f":"'DNSP Inputs Capex'!$D$14","v":63.64},1,{"$f":"'DNSP Inputs Capex'!$D$15","v":7.5},{"$f":"N139*O139*P139","v":477.3},null,null,null,{"$f":"'DNSP Inputs Capex'!$E$13","v":50.18},1,{"$f":"'DNSP Inputs Capex'!$E$15","v":7.5},{"$f":"U139*V139*W139","v":376.35},null,null,{"$f":"'DNSP Inputs Capex'!$E$14","v":63.64},1,{"$f":"'DNSP Inputs Capex'!$E$15","v":7.5},{"$f":"AA139*AB139*AC139","v":477.3},null,null,{"$f":"'DNSP Inputs Capex'!$E$14","v":63.64},1,{"$f":"'DNSP Inputs Capex'!$E$15","v":7.5},{"$f":"AG139*AH139*AI139","v":477.3},null,null,null,{"$f":"'DNSP Inputs Capex'!$F$13","v":50.18},1,{"$f":"'DNSP Inputs Capex'!$F$15","v":7.5},{"$f":"AN139*AO139*AP139","v":376.35},null,null,{"$f":"'DNSP Inputs Capex'!$F$14","v":63.64},1,{"$f":"'DNSP Inputs Capex'!$F$15","v":7.5},{"$f":"AT139*AU139*AV139","v":477.3},null,null,{"$f":"'DNSP Inputs Capex'!$F$14","v":63.64},1,{"$f":"'DNSP Inputs Capex'!$F$15","v":7.5},{"$f":"AZ139*BA139*BB139","v":477.3},null,null,null,{"$f":"'DNSP Inputs Capex'!$G$13","v":50.18},1,{"$f":"'DNSP Inputs Capex'!$G$15","v":7.5},{"$f":"BG139*BH139*BI139","v":376.35},null,null,{"$f":"'DNSP Inputs Capex'!$G$14","v":63.64},1,{"$f":"'DNSP Inputs Capex'!$G$15","v":7.5},{"$f":"BM139*BN139*BO139","v":477.3},null,null,{"$f":"'DNSP Inputs Capex'!$G$14","v":63.64},1,{"$f":"'DNSP Inputs Capex'!$G$15","v":7.5},{"$f":"BS139*BT139*BU139","v":477.3},null,null,null,{"$f":"'DNSP Inputs Capex'!$H$13","v":50.18},1,{"$f":"'DNSP Inputs Capex'!$H$15","v":7.5},{"$f":"BZ139*CA139*CB139","v":376.35},null,null,{"$f":"'DNSP Inputs Capex'!$H$14","v":63.64},1,{"$f":"'DNSP Inputs Capex'!$H$15","v":7.5},{"$f":"CF139*CG139*CH139","v":477.3},null,null,{"$f":"'DNSP Inputs Capex'!$H$14","v":63.64},1,{"$f":"'DNSP Inputs Capex'!$H$15","v":7.5},{"$f":"CL139*CM139*CN139","v":477.3}]
[{"$f":"'DNSP Inputs Capex'!$A$28","v":"Other Capex unit costs Describe :………………………"},null,null,null,null,{"$f":"'DNSP Inputs Capex'!$D$134","v":0},null,null,null,null,null,{"$f":"'DNSP Inputs Capex'!$D$134","v":0},null,null,null,null,null,{"$f":"'DNSP Inputs Capex'!$D$134","v":0},null,null,null,null,null,null,{"$f":"'DNSP Inputs Capex'!$E$134","v":0},null,null,null,null,null,{"$f":"'DNSP Inputs Capex'!$E$134","v":0},null,null,null,null,null,{"$f":"'DNSP Inputs Capex'!$E$134","v":0},null,null,null,null,null,null,{"$f":"'DNSP Inputs Capex'!$F$134","v":0},null,null,null,null,null,{"$f":"'DNSP Inputs Capex'!$F$134","v":0},null,null,null,null,null,{"$f":"'DNSP Inputs Capex'!$F$134","v":0},null,null,null,null,null,null,{"$f":"'DNSP Inputs Capex'!$G$134","v":0},null,null,null,null,null,{"$f":"'DNSP Inputs Capex'!$G$134","v":0},null,null,null,null,null,{"$f":"'DNSP Inputs Capex'!$G$134","v":0},null,null,null,null,null,null,{"$f":"'DNSP Inputs Capex'!$H$134","v":0},null,null,null,null,null,{"$f":"'DNSP Inputs Capex'!$H$134","v":0},null,null,null,null,null,{"$f":"'DNSP Inputs Capex'!$H$134","v":0}]
[null,null,null,null,null,{"$f":"SUM(F137,F140)","v":396.60161351601857},null,null,null,null,null,{"$f":"SUM(L137,L140)","v":447.3217960715516},null,null,null,null,null,{"$f":"SUM(R137,R140)","v":496.88487650674904},null,null,null,null,null,null,{"$f":"SUM(Y137,Y140)","v":397.29347182696409},null,null,null,null,null,{"$f":"SUM(AE137,AE140)","v":448.17331399271529},null,null,null,null,null,{"$f":"SUM(AK137,AK140)","v":497.9918498042619},null,null,null,null,null,null,{"$f":"SUM(AR137,AR140)","v":397.93362742659053},null,null,null,null,null,{"$f":"SUM(AX137,AX140)","v":448.96119780764013},null,null,null,null,null,{"$f":"SUM(BD137,BD140)","v":499.0160987636641},null,null,null,null,null,null,{"$f":"SUM(BK137,BK140)","v":398.70841819297061},null,null,null,null,null,{"$f":"SUM(BQ137,BQ140)","v":449.91478644318488},null,null,null,null,null,{"$f":"SUM(BW137,BW140)","v":500.25576398987232},null,null,null,null,null,null,{"$f":"SUM(CD137,CD140)","v":399.72126117091989},null,null,null,null,null,{"$f":"SUM(CJ137,CJ140)","v":451.16136241604551},null,null,null,null,null,{"$f":"SUM(CP137,CP140)","v":501.87631275459108}]
[]
["Number of luminaires replaced",null,null,null,null,{"$f":"'DNSP Inputs Capex'!$D$130","v":16},null,null,null,null,null,{"$f":"'DNSP Inputs Capex'!$D$131","v":13},null,null,null,null,null,{"$f":"'DNSP Inputs Capex'!$D$132","v":10},null,null,null,null,null,null,{"$f":"'DNSP Inputs Capex'!$E$130","v":16},null,null,null,null,null,{"$f":"'DNSP Inputs Capex'!$E$131","v":13},null,null,null,null,null,{"$f":"'DNSP Inputs Capex'!$E$132","v":10},null,null,null,null,null,null,{"$f":"'DNSP Inputs Capex'!$F$130","v":16},null,null,null,null,null,{"$f":"'DNSP Inputs Capex'!$F$131","v":13},null,null,null,null,null,{"$f":"'DNSP Inputs Capex'!$F$132","v":10},null,null,null,null,null,null,{"$f":"'DNSP Inputs Capex'!$G$130","v":16},null,null,null,null,null,{"$f":"'DNSP Inputs Capex'!$G$131","v":13},null,null,null,null,null,{"$f":"'DNSP Inputs Capex'!$G$132","v":10},null,null,null,null,null,null,{"$f":"'DNSP Inputs Capex'!$H$130","v":16},null,null,null,null,null,{"$f":"'DNSP Inputs Capex'!$H$131","v":13},null,null,null,null,null,{"$f":"'DNSP Inputs Capex'!$H$132","v":10}]
[]
["Capex",null,null,null,null,{"$f":"F141*F143","v":6345.6258162562972},null,null,null,null,null,{"$f":"L141*L143","v":5815.1833489301707},null,null,null,null,null,{"$f":"R141*R143","v":4968.8487650674906},null,null,null,null,null,null,{"$f":"Y141*Y143","v":6356.6955492314255},null,null,null,null,null,{"$f":"AE141*AE143","v":5826.253081905299},null,null,null,null,null,{"$f":"AK141*AK143","v":4979.9184980426189},null,null,null,null,null,null,{"$f":"AR141*AR143","v":6366.9380388254485},null,null,null,null,null,{"$f":"AX141*AX143","v":5836.4955714993221},null,null,null,null,null,{"$f":"BD141*BD143","v":4990.160987636641},null,null,null,null,null,null,{"$f":"BK141*BK143","v":6379.3346910875298},null,null,null,null,null,{"$f":"BQ141*BQ143","v":5848.8922237614033},null,null,null,null,null,{"$f":"BW141*BW143","v":5002.5576398987232},null,null,null,null,null,null,{"$f":"CD141*CD143","v":6395.5401787347182},null,null,null,null,null,{"$f":"CJ141*CJ143","v":5865.0977114085917},null,null,null,null,null,{"$f":"CP141*CP143","v":5018.7631275459107}]
[]
[]
["LED 18W"]
["Luminaires "]
["Material",{"$f":"'DNSP Inputs Capex'!$D$145","v":473.57303370786519},{"$f":"'DNSP Inputs Capex'!$D$147","v":16},null,{"$f":"B150*C150","v":7577.1685393258431},{"$f":"IFERROR((E150+E151+E152)/C150,0)","v":601.49700155319169},null,{"$f":"'DNSP Inputs Capex'!$D$145*(1+'DNSP Inputs Capex'!$D$11)","v":497.25168539325847},{"$f":"'DNSP Inputs Capex'!$D$148","v":13},null,{"$f":"H150*I150","v":6464.2719101123603},{"$f":"IFERROR((K150+K151+K152)/I150,0)","v":662.46195351058327},null,{"$f":"'DNSP Inputs Capex'!$D$145*(1+'DNSP Inputs Capex'!$D$11)","v":497.25168539325847},{"$f":"'DNSP Inputs Capex'!$D$149","v":10},null,{"$f":"N150*O150","v":4972.516853932585},{"$f":"IFERROR((Q150+Q151+Q152)/O150,0)","v":712.02503394578093},null,null,{"$f":"'DNSP Inputs Capex'!$E$145","v":473.57303370786519},{"$f":"'DNSP Inputs Capex'!$E$147","v":16},null,{"$f":"U150*V150","v":7577.1685393258431},{"$f":"IFERROR((X150+X151+X152)/V150,0)","v":602.18885986413716},null,{"$f":"'DNSP Inputs Capex'!$E$145*(1+'DNSP Inputs Capex'!$E$11)","v":497.25168539325847},{"$f":"'DNSP Inputs Capex'!$E$148","v":13},null,{"$f":"AA150*AB150","v":6464.2719101123603},{"$f":"IFERROR((AD150+AD151+AD152)/AB150,0)","v":663.31347143174708},null,{"$f":"'DNSP Inputs Capex'!$E$145*(1+'DNSP Inputs Capex'!$E$11)","v":497.25168539325847},{"$f":"'DNSP Inputs Capex'!$E$149","v":10},null,{"$f":"AG150*AH150","v":4972.516853932585},{"$f":"IFERROR((AJ150+AJ151+AJ152)/AH150,0)","v":713.13200724329374},null,null,{"$f":"'DNSP Inputs Capex'!$F$145","v":473.57303370786519},{"$f":"'DNSP Inputs Capex'!$F$147","v":16},null,{"$f":"AN150*AO150","v":7577.1685393258431},{"$f":"IFERROR((AQ150+AQ151+AQ152)/AO150,0)","v":602.82901546376365},null,{"$f":"'DNSP Inputs Capex'!$F$145*(1+'DNSP Inputs Capex'!$F$11)","v":497.25168539325847},{"$f":"'DNSP Inputs Capex'!$F$148","v":13},null,{"$f":"AT150*AU150","v":6464.2719101123603},{"$f":"IFERROR((AW150+AW151+AW152)/AU150,0)","v":664.10135524667191},null,{"$f":"'DNSP Inputs Capex'!$F$145*(1+'DNSP Inputs Capex'!$F$11)","v":497.25168539325847},{"$f":"'DNSP Inputs Capex'!$F$149","v":10},null,{"$f":"AZ150*BA150","v":4972.516853932585},{"$f":"IFERROR((BC150+BC151+BC152)/BA150,0)","v":714.15625620269589},null,null,{"$f":"'DNSP Inputs Capex'!$G$145","v":473.57303370786519},{"$f":"'DNSP Inputs Capex'!$G$147","v":16},null,{"$f":"BG150*BH150","v":7577.1685393258431},{"$f":"IFERROR((BJ150+BJ151+BJ152)/BH150,0)","v":603.60380623014373},null,{"$f":"'DNSP Inputs Capex'!$G$145*(1+'DNSP Inputs Capex'!$G$11)","v":497.25168539325847},{"$f":"'DNSP Inputs Capex'!$G$148","v":13},null,{"$f":"BM150*BN150","v":6464.2719101123603},{"$f":"IFERROR((BP150+BP151+BP152)/BN150,0)","v":665.05494388221655},null,{"$f":"'DNSP Inputs Capex'!$G$145*(1+'DNSP Inputs Capex'!$G$11)","v":497.25168539325847},{"$f":"'DNSP Inputs Capex'!$G$149","v":10},null,{"$f":"BS150*BT150","v":4972.516853932585},{"$f":"IFERROR((BV150+BV151+BV152)/BT150,0)","v":715.3959214289041},null,null,{"$f":"'DNSP Inputs Capex'!$H$145","v":473.57303370786519},{"$f":"'DNSP Inputs Capex'!$H$147","v":16},null,{"$f":"BZ150*CA150","v":7577.1685393258431},{"$f":"IFERROR((CC150+CC151+CC152)/CA150,0)","v":604.61664920809301},null,{"$f":"'DNSP Inputs Capex'!$H$145*(1+'DNSP Inputs Capex'!$H$11)","v":497.25168539325847},{"$f":"'DNSP Inputs Capex'!$H$148","v":13},null,{"$f":"CF150*CG150","v":6464.2719101123603},{"$f":"IFERROR((CI150+CI151+CI152)/CG150,0)","v":666.30151985507723},null,{"$f":"'DNSP Inputs Capex'!$H$145*(1+'DNSP Inputs Capex'!$H$11)","v":497.25168539325847},{"$f":"'DNSP Inputs Capex'!$H$149","v":10},null,{"$f":"CL150*CM150","v":4972.516853932585},{"$f":"IFERROR((CO150+CO151+CO152)/CM150,0)","v":717.01647019362292}]
["Crew costs",{"$f":"'DNSP Inputs Capex'!$D$12","v":111.36223236834823},{"$f":"'DNSP Inputs Capex'!$D$146","v":2},{"$f":"'DNSP Inputs Capex'!$D$15","v":7.5},{"$f":"D151*C151*B151","v":1670.4334855252234},null,null,{"$f":"'DNSP Inputs Capex'!$D$12","v":111.36223236834823},{"$f":"'DNSP Inputs Capex'!$D$146","v":2},{"$f":"'DNSP Inputs Capex'!$D$15","v":7.5},{"$f":"J151*I151*H151","v":1670.4334855252234},null,null,{"$f":"'DNSP Inputs Capex'!$D$12","v":111.36223236834823},{"$f":"'DNSP Inputs Capex'!$D$146","v":2},{"$f":"'DNSP Inputs Capex'!$D$15","v":7.5},{"$f":"P151*O151*N151","v":1670.4334855252234},null,null,null,{"$f":"'DNSP Inputs Capex'!$E$12","v":112.10021456669011},{"$f":"'DNSP Inputs Capex'!$E$146","v":2},{"$f":"'DNSP Inputs Capex'!$E$15","v":7.5},{"$f":"W151*V151*U151","v":1681.5032185003517},null,null,{"$f":"'DNSP Inputs Capex'!$E$12","v":112.10021456669011},{"$f":"'DNSP Inputs Capex'!$E$146","v":2},{"$f":"'DNSP Inputs Capex'!$E$15","v":7.5},{"$f":"AC151*AB151*AA151","v":1681.5032185003517},null,null,{"$f":"'DNSP Inputs Capex'!$E$12","v":112.10021456669011},{"$f":"'DNSP Inputs Capex'!$E$146","v":2},{"$f":"'DNSP Inputs Capex'!$E$15","v":7.5},{"$f":"AI151*AH151*AG151","v":1681.5032185003517},null,null,null,{"$f":"'DNSP Inputs Capex'!$F$12","v":112.78304720629164},{"$f":"'DNSP Inputs Capex'!$F$146","v":2},{"$f":"'DNSP Inputs Capex'!$F$15","v":7.5},{"$f":"AP151*AO151*AN151","v":1691.7457080943745},null,null,{"$f":"'DNSP Inputs Capex'!$F$12","v":112.78304720629164},{"$f":"'DNSP Inputs Capex'!$F$146","v":2},{"$f":"'DNSP Inputs Capex'!$F$15","v":7.5},{"$f":"AV151*AU151*AT151","v":1691.7457080943745},null,null,{"$f":"'DNSP Inputs Capex'!$F$12","v":112.78304720629164},{"$f":"'DNSP Inputs Capex'!$F$146","v":2},{"$f":"'DNSP Inputs Capex'!$F$15","v":7.5},{"$f":"BB151*BA151*AZ151","v":1691.7457080943745},null,null,null,{"$f":"'DNSP Inputs Capex'!$G$12","v":113.60949069043043},{"$f":"'DNSP Inputs Capex'!$G$146","v":2},{"$f":"'DNSP Inputs Capex'!$G$15","v":7.5},{"$f":"BI151*BH151*BG151","v":1704.1423603564565},null,null,{"$f":"'DNSP Inputs Capex'!$G$12","v":113.60949069043043},{"$f":"'DNSP Inputs Capex'!$G$146","v":2},{"$f":"'DNSP Inputs Capex'!$G$15","v":7.5},{"$f":"BO151*BN151*BM151","v":1704.1423603564565},null,null,{"$f":"'DNSP Inputs Capex'!$G$12","v":113.60949069043043},{"$f":"'DNSP Inputs Capex'!$G$146","v":2},{"$f":"'DNSP Inputs Capex'!$G$15","v":7.5},{"$f":"BU151*BT151*BS151","v":1704.1423603564565},null,null,null,{"$f":"'DNSP Inputs Capex'!$H$12","v":114.68985653357629},{"$f":"'DNSP Inputs Capex'!$H$146","v":2},{"$f":"'DNSP Inputs Capex'!$H$15","v":7.5},{"$f":"CB151*CA151*BZ151","v":1720.3478480036442},null,null,{"$f":"'DNSP Inputs Capex'!$H$12","v":114.68985653357629},{"$f":"'DNSP Inputs Capex'!$H$146","v":2},{"$f":"'DNSP Inputs Capex'!$H$15","v":7.5},{"$f":"CH151*CG151*CF151","v":1720.3478480036442},null,null,{"$f":"'DNSP Inputs Capex'!$H$12","v":114.68985653357629},{"$f":"'DNSP Inputs Capex'!$H$146","v":2},{"$f":"'DNSP Inputs Capex'!$H$15","v":7.5},{"$f":"CN151*CM151*CL151","v":1720.3478480036442}]
["Elevated platform vehicle costs",{"$f":"'DNSP Inputs Capex'!$D$13","v":50.18},1,{"$f":"'DNSP Inputs Capex'!$D$15","v":7.5},{"$f":"B152*C152*D152","v":376.35},null,null,{"$f":"'DNSP Inputs Capex'!$D$14","v":63.64},1,{"$f":"'DNSP Inputs Capex'!$D$15","v":7.5},{"$f":"H152*I152*J152","v":477.3},null,null,{"$f":"'DNSP Inputs Capex'!$D$14","v":63.64},1,{"$f":"'DNSP Inputs Capex'!$D$15","v":7.5},{"$f":"N152*O152*P152","v":477.3},null,null,null,{"$f":"'DNSP Inputs Capex'!$E$13","v":50.18},1,{"$f":"'DNSP Inputs Capex'!$E$15","v":7.5},{"$f":"U152*V152*W152","v":376.35},null,null,{"$f":"'DNSP Inputs Capex'!$E$14","v":63.64},1,{"$f":"'DNSP Inputs Capex'!$E$15","v":7.5},{"$f":"AA152*AB152*AC152","v":477.3},null,null,{"$f":"'DNSP Inputs Capex'!$E$14","v":63.64},1,{"$f":"'DNSP Inputs Capex'!$E$15","v":7.5},{"$f":"AG152*AH152*AI152","v":477.3},null,null,null,{"$f":"'DNSP Inputs Capex'!$F$13","v":50.18},1,{"$f":"'DNSP Inputs Capex'!$F$15","v":7.5},{"$f":"AN152*AO152*AP152","v":376.35},null,null,{"$f":"'DNSP Inputs Capex'!$F$14","v":63.64},1,{"$f":"'DNSP Inputs Capex'!$F$15","v":7.5},{"$f":"AT152*AU152*AV152","v":477.3},null,null,{"$f":"'DNSP Inputs Capex'!$F$14","v":63.64},1,{"$f":"'DNSP Inputs Capex'!$F$15","v":7.5},{"$f":"AZ152*BA152*BB152","v":477.3},null,null,null,{"$f":"'DNSP Inputs Capex'!$G$13","v":50.18},1,{"$f":"'DNSP Inputs Capex'!$G$15","v":7.5},{"$f":"BG152*BH152*BI152","v":376.35},null,null,{"$f":"'DNSP Inputs Capex'!$G$14","v":63.64},1,{"$f":"'DNSP Inputs Capex'!$G$15","v":7.5},{"$f":"BM152*BN152*BO152","v":477.3},null,null,{"$f":"'DNSP Inputs Capex'!$G$14","v":63.64},1,{"$f":"'DNSP Inputs Capex'!$G$15","v":7.5},{"$f":"BS152*BT152*BU152","v":477.3},null,null,null,{"$f":"'DNSP Inputs Capex'!$H$13","v":50.18},1,{"$f":"'DNSP Inputs Capex'!$H$15","v":7.5},{"$f":"BZ152*CA152*CB152","v":376.35},null,null,{"$f":"'DNSP Inputs Capex'!$H$14","v":63.64},1,{"$f":"'DNSP Inputs Capex'!$H$15","v":7.5},{"$f":"CF152*CG152*CH152","v":477.3},null,null,{"$f":"'DNSP Inputs Capex'!$H$14","v":63.64},1,{"$f":"'DNSP Inputs Capex'!$H$15","v":7.5},{"$f":"CL152*CM152*CN152","v":477.3}]
[{"$f":"'DNSP Inputs Capex'!$A$151","v":"Other Capex unit costs Describe :………………………"},null,null,null,null,{"$f":"'DNSP Inputs Capex'!$D$151","v":0},null,null,null,null,null,{"$f":"'DNSP Inputs Capex'!$D$151","v":0},null,null,null,null,null,{"$f":"'DNSP Inputs Capex'!$D$151","v":0},null,null,null,null,null,null,{"$f":"'DNSP Inputs Capex'!$E$151","v":0},null,null,null,null,null,{"$f":"'DNSP Inputs Capex'!$E$151","v":0},null,null,null,null,null,{"$f":"'DNSP Inputs Capex'!$E$151","v":0},null,null,null,null,null,null,{"$f":"'DNSP Inputs Capex'!$F$151","v":0},null,null,null,null,null,{"$f":"'DNSP Inputs Capex'!$F$151","v":0},null,null,null,null,null,{"$f":"'DNSP Inputs Capex'!$F$151","v":0},null,null,null,null,null,null,{"$f":"'DNSP Inputs Capex'!$G$151","v":0},null,null,null,null,null,{"$f":"'DNSP Inputs Capex'!$G$151","v":0},null,null,null,null,null,{"$f":"'DNSP Inputs Capex'!$G$151","v":0},null,null,null,null,null,null,{"$f":"'DNSP Inputs Capex'!$H$151","v":0},null,null,null,null,null,{"$f":"'DNSP Inputs Capex'!$H$151","v":0},null,null,null,null,null,{"$f":"'DNSP Inputs Capex'!$H$151","v":0}]
[null,null,null,null,null,{"$f":"SUM(F150,F153)","v":601.49700155319169},null,null,null,null,null,{"$f":"SUM(L150,L153)","v":662.46195351058327},null,null,null,null,null,{"$f":"SUM(R150,R153)","v":712.02503394578093},null,null,null,null,null,null,{"$f":"SUM(Y150,Y153)","v":602.18885986413716},null,null,null,null,null,{"$f":"SUM(AE150,AE153)","v":663.31347143174708},null,null,null,null,null,{"$f":"SUM(AK150,AK153)","v":713.13200724329374},null,null,null,null,null,null,{"$f":"SUM(AR150,AR153)","v":602.82901546376365},null,null,null,null,null,{"$f":"SUM(AX150,AX153)","v":664.10135524667191},null,null,null,null,null,{"$f":"SUM(BD150,BD153)","v":714.15625620269589},null,null,null,null,null,null,{"$f":"SUM(BK150,BK153)","v":603.60380623014373},null,null,null,null,null,{"$f":"SUM(BQ150,BQ153)","v":665.05494388221655},null,null,null,null,null,{"$f":"SUM(BW150,BW153)","v":715.3959214289041},null,null,null,null,null,null,{"$f":"SUM(CD150,CD153)","v":604.61664920809301},null,null,null,null,null,{"$f":"SUM(CJ150,CJ153)","v":666.30151985507723},null,null,null,null,null,{"$f":"SUM(CP150,CP153)","v":717.01647019362292}]
[]
["Number of luminaires replaced",null,null,null,null,{"$f":"'DNSP Inputs Capex'!$D$154","v":1962.1952268075418},null,null,null,null,null,{"$f":"'DNSP Inputs Capex'!$D$155","v":495.73313925151581},null,null,null,null,null,{"$f":"'DNSP Inputs Capex'!$D$156","v":96.209700161172606},null,null,null,null,null,null,{"$f":"'DNSP Inputs Capex'!$E$154","v":2205.3737689377645},null,null,null,null,null,{"$f":"'DNSP Inputs Capex'!$E$155","v":557.03326103975007},null,null,null,null,null,{"$f":"'DNSP Inputs Capex'!$E$156","v":108.10655730087079},null,null,null,null,null,null,{"$f":"'DNSP Inputs Capex'!$F$154","v":2157.1469454123749},null,null,null,null,null,{"$f":"'DNSP Inputs Capex'!$F$155","v":544.8521309491008},null,null,null,null,null,{"$f":"'DNSP Inputs Capex'!$F$156","v":105.74249732413601},null,null,null,null,null,null,{"$f":"'DNSP Inputs Capex'!$G$154","v":2109.2298686536346},null,null,null,null,null,{"$f":"'DNSP Inputs Capex'!$G$155","v":532.74923669037878},null,null,null,null,null,{"$f":"'DNSP Inputs Capex'!$G$156","v":103.39362101243307},null,null,null,null,null,null,{"$f":"'DNSP Inputs Capex'!$H$154","v":333.10175064029573},null,null,null,null,null,{"$f":"'DNSP Inputs Capex'!$H$155","v":84.134833301560775},null,null,null,null,null,{"$f":"'DNSP Inputs Capex'!$H$156","v":16.328517188249791}]
[]
["Capex",null,null,null,null,{"$f":"F154*F156","v":1180254.5453867214},null,null,null,null,null,{"$f":"L154*L156","v":328404.34384849318},null,null,null,null,null,{"$f":"R154*R156","v":68503.715023172335},null,null,null,null,null,null,{"$f":"Y154*Y156","v":1328051.5154909075},null,null,null,null,null,{"$f":"AE154*AE156","v":369487.66608322319},null,null,null,null,null,{"$f":"AK154*AK156","v":77094.246204132141},null,null,null,null,null,null,{"$f":"AR154*AR156","v":1300390.7693136071},null,null,null,null,null,{"$f":"AX154*AX156","v":361837.03857233498},null,null,null,null,null,{"$f":"BD154*BD156","v":75516.666010528555},null,null,null,null,null,null,{"$f":"BK154*BK156","v":1273139.1769336399},null,null,null,null,null,{"$f":"BQ154*BQ156","v":354307.51371041354},null,null,null,null,null,{"$f":"BW154*BW156","v":73967.374774060459},null,null,null,null,null,null,{"$f":"CD154*CD156","v":201398.86431748536},null,null,null,null,null,{"$f":"CJ154*CJ156","v":56059.167301583511},null,null,null,null,null,{"$f":"CP154*CP156","v":11707.815757814766}]
[]
[]
[{"$f":"'DNSP Inputs General'!A$72","v":"LED 14W"}]
["Luminaires "]
["Material",{"$f":"'DNSP Inputs Capex'!$D$162","v":205},{"$f":"'DNSP Inputs Capex'!$D$164","v":16},null,{"$f":"B163*C163","v":3280},{"$f":"IFERROR((E163+E164+E165)/C163,0)","v":332.9239678453265},null,{"$f":"'DNSP Inputs Capex'!$D$162*(1+'DNSP Inputs Capex'!$D$11)","v":215.25},{"$f":"'DNSP Inputs Capex'!$D$165","v":13},null,{"$f":"H163*I163","v":2798.25},{"$f":"IFERROR((K163+K164+K165)/I163,0)","v":380.46026811732492},null,{"$f":"'DNSP Inputs Capex'!$D$162*(1+'DNSP Inputs Capex'!$D$11)","v":215.25},{"$f":"'DNSP Inputs Capex'!$D$166","v":10},null,{"$f":"N163*O163","v":2152.5},{"$f":"IFERROR((Q163+Q164+Q165)/O163,0)","v":430.02334855252241},null,null,{"$f":"'DNSP Inputs Capex'!$E$162","v":205},{"$f":"'DNSP Inputs Capex'!$E$164","v":16},null,{"$f":"U163*V163","v":3280},{"$f":"IFERROR((X163+X164+X165)/V163,0)","v":333.61582615627202},null,{"$f":"'DNSP Inputs Capex'!$E$162*(1+'DNSP Inputs Capex'!$E$11)","v":215.25},{"$f":"'DNSP Inputs Capex'!$E$165","v":13},null,{"$f":"AA163*AB163","v":2798.25},{"$f":"IFERROR((AD163+AD164+AD165)/AB163,0)","v":381.31178603848861},null,{"$f":"'DNSP Inputs Capex'!$E$162*(1+'DNSP Inputs Capex'!$E$11)","v":215.25},{"$f":"'DNSP Inputs Capex'!$E$166","v":10},null,{"$f":"AG163*AH163","v":2152.5},{"$f":"IFERROR((AJ163+AJ164+AJ165)/AH163,0)","v":431.13032185003522},null,null,{"$f":"'DNSP Inputs Capex'!$F$162","v":205},{"$f":"'DNSP Inputs Capex'!$F$164","v":16},null,{"$f":"AN163*AO163","v":3280},{"$f":"IFERROR((AQ163+AQ164+AQ165)/AO163,0)","v":334.25598175589846},null,{"$f":"'DNSP Inputs Capex'!$F$162*(1+'DNSP Inputs Capex'!$F$11)","v":215.25},{"$f":"'DNSP Inputs Capex'!$F$165","v":13},null,{"$f":"AT163*AU163","v":2798.25},{"$f":"IFERROR((AW163+AW164+AW165)/AU163,0)","v":382.0996698534135},null,{"$f":"'DNSP Inputs Capex'!$F$162*(1+'DNSP Inputs Capex'!$F$11)","v":215.25},{"$f":"'DNSP Inputs Capex'!$F$166","v":10},null,{"$f":"AZ163*BA163","v":2152.5},{"$f":"IFERROR((BC163+BC164+BC165)/BA163,0)","v":432.15457080943742},null,null,{"$f":"'DNSP Inputs Capex'!$G$162","v":205},{"$f":"'DNSP Inputs Capex'!$G$164","v":16},null,{"$f":"BG163*BH163","v":3280},{"$f":"IFERROR((BJ163+BJ164+BJ165)/BH163,0)","v":335.03077252227854},null,{"$f":"'DNSP Inputs Capex'!$G$162*(1+'DNSP Inputs Capex'!$G$11)","v":215.25},{"$f":"'DNSP Inputs Capex'!$G$165","v":13},null,{"$f":"BM163*BN163","v":2798.25},{"$f":"IFERROR((BP163+BP164+BP165)/BN163,0)","v":383.05325848895819},null,{"$f":"'DNSP Inputs Capex'!$G$162*(1+'DNSP Inputs Capex'!$G$11)","v":215.25},{"$f":"'DNSP Inputs Capex'!$G$166","v":10},null,{"$f":"BS163*BT163","v":2152.5},{"$f":"IFERROR((BV163+BV164+BV165)/BT163,0)","v":433.39423603564563},null,null,{"$f":"'DNSP Inputs Capex'!$H$162","v":205},{"$f":"'DNSP Inputs Capex'!$H$164","v":16},null,{"$f":"BZ163*CA163","v":3280},{"$f":"IFERROR((CC163+CC164+CC165)/CA163,0)","v":336.04361550022782},null,{"$f":"'DNSP Inputs Capex'!$H$162*(1+'DNSP Inputs Capex'!$H$11)","v":215.25},{"$f":"'DNSP Inputs Capex'!$H$165","v":13},null,{"$f":"CF163*CG163","v":2798.25},{"$f":"IFERROR((CI163+CI164+CI165)/CG163,0)","v":384.29983446181882},null,{"$f":"'DNSP Inputs Capex'!$H$162*(1+'DNSP Inputs Capex'!$H$11)","v":215.25},{"$f":"'DNSP Inputs Capex'!$H$166","v":10},null,{"$f":"CL163*CM163","v":2152.5},{"$f":"IFERROR((CO163+CO164+CO165)/CM163,0)","v":435.0147848003644}]
["Crew costs",{"$f":"'DNSP Inputs Capex'!$D$12","v":111.36223236834823},{"$f":"'DNSP Inputs Capex'!$D$163","v":2},{"$f":"'DNSP Inputs Capex'!$D$15","v":7.5},{"$f":"D164*C164*B164","v":1670.4334855252234},null,null,{"$f":"'DNSP Inputs Capex'!$D$12","v":111.36223236834823},{"$f":"'DNSP Inputs Capex'!$D$163","v":2},{"$f":"'DNSP Inputs Capex'!$D$15","v":7.5},{"$f":"J164*I164*H164","v":1670.4334855252234},null,null,{"$f":"'DNSP Inputs Capex'!$D$12","v":111.36223236834823},{"$f":"'DNSP Inputs Capex'!$D$163","v":2},{"$f":"'DNSP Inputs Capex'!$D$15","v":7.5},{"$f":"P164*O164*N164","v":1670.4334855252234},null,null,null,{"$f":"'DNSP Inputs Capex'!$E$12","v":112.10021456669011},{"$f":"'DNSP Inputs Capex'!$E$163","v":2},{"$f":"'DNSP Inputs Capex'!$E$15","v":7.5},{"$f":"W164*V164*U164","v":1681.5032185003517},null,null,{"$f":"'DNSP Inputs Capex'!$E$12","v":112.10021456669011},{"$f":"'DNSP Inputs Capex'!$E$163","v":2},{"$f":"'DNSP Inputs Capex'!$E$15","v":7.5},{"$f":"AC164*AB164*AA164","v":1681.5032185003517},null,null,{"$f":"'DNSP Inputs Capex'!$E$12","v":112.10021456669011},{"$f":"'DNSP Inputs Capex'!$E$163","v":2},{"$f":"'DNSP Inputs Capex'!$E$15","v":7.5},{"$f":"AI164*AH164*AG164","v":1681.5032185003517},null,null,null,{"$f":"'DNSP Inputs Capex'!$F$12","v":112.78304720629164},{"$f":"'DNSP Inputs Capex'!$F$163","v":2},{"$f":"'DNSP Inputs Capex'!$F$15","v":7.5},{"$f":"AP164*AO164*AN164","v":1691.7457080943745},null,null,{"$f":"'DNSP Inputs Capex'!$F$12","v":112.78304720629164},{"$f":"'DNSP Inputs Capex'!$F$163","v":2},{"$f":"'DNSP Inputs Capex'!$F$15","v":7.5},{"$f":"AV164*AU164*AT164","v":1691.7457080943745},null,null,{"$f":"'DNSP Inputs Capex'!$F$12","v":112.78304720629164},{"$f":"'DNSP Inputs Capex'!$F$163","v":2},{"$f":"'DNSP Inputs Capex'!$F$15","v":7.5},{"$f":"BB164*BA164*AZ164","v":1691.7457080943745},null,null,null,{"$f":"'DNSP Inputs Capex'!$G$12","v":113.60949069043043},{"$f":"'DNSP Inputs Capex'!$G$163","v":2},{"$f":"'DNSP Inputs Capex'!$G$15","v":7.5},{"$f":"BI164*BH164*BG164","v":1704.1423603564565},null,null,{"$f":"'DNSP Inputs Capex'!$G$12","v":113.60949069043043},{"$f":"'DNSP Inputs Capex'!$G$163","v":2},{"$f":"'DNSP Inputs Capex'!$G$15","v":7.5},{"$f":"BO164*BN164*BM164","v":1704.1423603564565},null,null,{"$f":"'DNSP Inputs Capex'!$G$12","v":113.60949069043043},{"$f":"'DNSP Inputs Capex'!$G$163","v":2},{"$f":"'DNSP Inputs Capex'!$G$15","v":7.5},{"$f":"BU164*BT164*BS164","v":1704.1423603564565},null,null,null,{"$f":"'DNSP Inputs Capex'!$H$12","v":114.68985653357629},{"$f":"'DNSP Inputs Capex'!$H$163","v":2},{"$f":"'DNSP Inputs Capex'!$H$15","v":7.5},{"$f":"CB164*CA164*BZ164","v":1720.3478480036442},null,null,{"$f":"'DNSP Inputs Capex'!$H$12","v":114.68985653357629},{"$f":"'DNSP Inputs Capex'!$H$163","v":2},{"$f":"'DNSP Inputs Capex'!$H$15","v":7.5},{"$f":"CH164*CG164*CF164","v":1720.3478480036442},null,null,{"$f":"'DNSP Inputs Capex'!$H$12","v":114.68985653357629},{"$f":"'DNSP Inputs Capex'!$H$163","v":2},{"$f":"'DNSP Inputs Capex'!$H$15","v":7.5},{"$f":"CN164*CM164*CL164","v":1720.3478480036442}]
["Elevated platform vehicle costs",{"$f":"'DNSP Inputs Capex'!$D$13","v":50.18},1,{"$f":"'DNSP Inputs Capex'!$D$15","v":7.5},{"$f":"B165*C165*D165","v":376.35},null,null,{"$f":"'DNSP Inputs Capex'!$D$14","v":63.64},1,{"$f":"'DNSP Inputs Capex'!$D$15","v":7.5},{"$f":"H165*I165*J165","v":477.3},null,null,{"$f":"'DNSP Inputs Capex'!$D$14","v":63.64},1,{"$f":"'DNSP Inputs Capex'!$D$15","v":7.5},{"$f":"N165*O165*P165","v":477.3},null,null,null,{"$f":"'DNSP Inputs Capex'!$E$13","v":50.18},1,{"$f":"'DNSP Inputs Capex'!$E$15","v":7.5},{"$f":"U165*V165*W165","v":376.35},null,null,{"$f":"'DNSP Inputs Capex'!$E$14","v":63.64},1,{"$f":"'DNSP Inputs Capex'!$E$15","v":7.5},{"$f":"AA165*AB165*AC165","v":477.3},null,null,{"$f":"'DNSP Inputs Capex'!$E$14","v":63.64},1,{"$f":"'DNSP Inputs Capex'!$E$15","v":7.5},{"$f":"AG165*AH165*AI165","v":477.3},null,null,null,{"$f":"'DNSP Inputs Capex'!$F$13","v":50.18},1,{"$f":"'DNSP Inputs Capex'!$F$15","v":7.5},{"$f":"AN165*AO165*AP165","v":376.35},null,null,{"$f":"'DNSP Inputs Capex'!$F$14","v":63.64},1,{"$f":"'DNSP Inputs Capex'!$F$15","v":7.5},{"$f":"AT165*AU165*AV165","v":477.3},null,null,{"$f":"'DNSP Inputs Capex'!$F$14","v":63.64},1,{"$f":"'DNSP Inputs Capex'!$F$15","v":7.5},{"$f":"AZ165*BA165*BB165","v":477.3},null,null,null,{"$f":"'DNSP Inputs Capex'!$G$13","v":50.18},1,{"$f":"'DNSP Inputs Capex'!$G$15","v":7.5},{"$f":"BG165*BH165*BI165","v":376.35},null,null,{"$f":"'DNSP Inputs Capex'!$G$14","v":63.64},1,{"$f":"'DNSP Inputs Capex'!$G$15","v":7.5},{"$f":"BM165*BN165*BO165","v":477.3},null,null,{"$f":"'DNSP Inputs Capex'!$G$14","v":63.64},1,{"$f":"'DNSP Inputs Capex'!$G$15","v":7.5},{"$f":"BS165*BT165*BU165","v":477.3},null,null,null,{"$f":"'DNSP Inputs Capex'!$H$13","v":50.18},1,{"$f":"'DNSP Inputs Capex'!$H$15","v":7.5},{"$f":"BZ165*CA165*CB165","v":376.35},null,null,{"$f":"'DNSP Inputs Capex'!$H$14","v":63.64},1,{"$f":"'DNSP Inputs Capex'!$H$15","v":7.5},{"$f":"CF165*CG165*CH165","v":477.3},null,null,{"$f":"'DNSP Inputs Capex'!$H$14","v":63.64},1,{"$f":"'DNSP Inputs Capex'!$H$15","v":7.5},{"$f":"CL165*CM165*CN165","v":477.3}]
[{"$f":"'DNSP Inputs Capex'!$A$151","v":"Other Capex unit costs Describe :………………………"},null,null,null,null,{"$f":"'DNSP Inputs Capex'!$D$168","v":0},null,null,null,null,null,{"$f":"'DNSP Inputs Capex'!$D$168","v":0},null,null,null,null,null,{"$f":"'DNSP Inputs Capex'!$D$168","v":0},null,null,null,null,null,null,{"$f":"'DNSP Inputs Capex'!$E$168","v":0},null,null,null,null,null,{"$f":"'DNSP Inputs Capex'!$E$168","v":0},null,null,null,null,null,{"$f":"'DNSP Inputs Capex'!$E$168","v":0},null,null,null,null,null,null,{"$f":"'DNSP Inputs Capex'!$F$168","v":0},null,null,null,null,null,{"$f":"'DNSP Inputs Capex'!$F$168","v":0},null,null,null,null,null,{"$f":"'DNSP Inputs Capex'!$F$168","v":0},null,null,null,null,null,null,{"$f":"'DNSP Inputs Capex'!$G$168","v":0},null,null,null,null,null,{"$f":"'DNSP Inputs Capex'!$G$168","v":0},null,null,null,null,null,{"$f":"'DNSP Inputs Capex'!$G$168","v":0},null,null,null,null,null,null,{"$f":"'DNSP Inputs Capex'!$H$168","v":0},null,null,null,null,null,{"$f":"'DNSP Inputs Capex'!$H$168","v":0},null,null,null,null,null,{"$f":"'DNSP Inputs Capex'!$H$168","v":0}]
[null,null,null,null,null,{"$f":"SUM(F163,F166)","v":332.9239678453265},null,null,null,null,null,{"$f":"SUM(L163,L166)","v":380.46026811732492},null,null,null,null,null,{"$f":"SUM(R163,R166)","v":430.02334855252241},null,null,null,null,null,null,{"$f":"SUM(Y163,Y166)","v":333.61582615627202},null,null,null,null,null,{"$f":"SUM(AE163,AE166)","v":381.31178603848861},null,null,null,null,null,{"$f":"SUM(AK163,AK166)","v":431.13032185003522},null,null,null,null,null,null,{"$f":"SUM(AR163,AR166)","v":334.25598175589846},null,null,null,null,null,{"$f":"SUM(AX163,AX166)","v":382.0996698534135},null,null,null,null,null,{"$f":"SUM(BD163,BD166)","v":432.15457080943742},null,null,null,null,null,null,{"$f":"SUM(BK163,BK166)","v":335.03077252227854},null,null,null,null,null,{"$f":"SUM(BQ163,BQ166)","v":383.05325848895819},null,null,null,null,null,{"$f":"SUM(BW163,BW166)","v":433.39423603564563},null,null,null,null,null,null,{"$f":"SUM(CD163,CD166)","v":336.04361550022782},null,null,null,null,null,{"$f":"SUM(CJ163,CJ166)","v":384.29983446181882},null,null,null,null,null,{"$f":"SUM(CP163,CP166)","v":435.0147848003644}]
[]
["Number of luminaires replaced",null,null,null,null,{"$f":"'DNSP Inputs Capex'!$D$171","v":13.503727553799457},null,null,null,null,null,{"$f":"'DNSP Inputs Capex'!$D$172","v":3.4116102008532661},null,null,null,null,null,{"$f":"'DNSP Inputs Capex'!$D$173","v":0.66211025348531205},null,null,null,null,null,null,{"$f":"'DNSP Inputs Capex'!$E$171","v":13.503727553799457},null,null,null,null,null,{"$f":"'DNSP Inputs Capex'!$E$172","v":3.4116102008532661},null,null,null,null,null,{"$f":"'DNSP Inputs Capex'!$E$173","v":0.66211025348531205},null,null,null,null,null,null,{"$f":"'DNSP Inputs Capex'!$F$171","v":13.503727553799457},null,null,null,null,null,{"$f":"'DNSP Inputs Capex'!$F$172","v":3.4116102008532661},null,null,null,null,null,{"$f":"'DNSP Inputs Capex'!$F$173","v":0.66211025348531205},null,null,null,null,null,null,{"$f":"'DNSP Inputs Capex'!$G$171","v":13.503727553799457},null,null,null,null,null,{"$f":"'DNSP Inputs Capex'!$G$172","v":3.4116102008532661},null,null,null,null,null,{"$f":"'DNSP Inputs Capex'!$G$173","v":0.66211025348531205},null,null,null,null,null,null,{"$f":"'DNSP Inputs Capex'!$H$171","v":13.503727553799457},null,null,null,null,null,{"$f":"'DNSP Inputs Capex'!$H$172","v":3.4116102008532661},null,null,null,null,null,{"$f":"'DNSP Inputs Capex'!$H$173","v":0.66211025348531205}]
[]
["Capex",null,null,null,null,{"$f":"F167*F169","v":4495.7145579131802},null,null,null,null,null,{"$f":"L167*L169","v":1297.9821317284343},null,null,null,null,null,{"$f":"R167*R169","v":284.72286831471331},null,null,null,null,null,null,{"$f":"Y167*Y169","v":4505.0572240500205},null,null,null,null,null,{"$f":"AE167*AE169","v":1300.8871789544858},null,null,null,null,null,{"$f":"AK167*AK169","v":285.45580668533097},null,null,null,null,null,null,{"$f":"AR167*AR169","v":4513.7017108594146},null,null,null,null,null,{"$f":"AX167*AX169","v":1303.5751314145707},null,null,null,null,null,{"$f":"BD167*BD169","v":286.13397242347287},null,null,null,null,null,null,{"$f":"BK167*BK169","v":4524.1642742798113},null,null,null,null,null,{"$f":"BQ167*BQ169","v":1306.8284041310128},null,null,null,null,null,{"$f":"BW167*BW169","v":286.95476748063447},null,null,null,null,null,null,{"$f":"CD167*CD169","v":4537.8414299088172},null,null,null,null,null,{"$f":"CJ167*CJ169","v":1311.0812354361626},null,null,null,null,null,{"$f":"CP167*CP169","v":288.02774943402773}]
[]
[]
[{"$f":"'DNSP Inputs General'!A$73","v":"LED 70W-125W (L1)"}]
["Luminaires "]
["Material",{"$f":"'DNSP Inputs Capex'!$D$179","v":402},{"$f":"'DNSP Inputs Capex'!$D$181","v":16},null,{"$f":"B176*C176","v":6432},{"$f":"IFERROR((E176+E177+E178)/C176,0)","v":529.9239678453265},null,{"$f":"'DNSP Inputs Capex'!$D$179*(1+'DNSP Inputs Capex'!$D$11)","v":422.1},{"$f":"'DNSP Inputs Capex'!$D$182","v":13},null,{"$f":"H176*I176","v":5487.3},{"$f":"IFERROR((K176+K177+K178)/I176,0)","v":587.31026811732488},null,{"$f":"'DNSP Inputs Capex'!$D$179*(1+'DNSP Inputs Capex'!$D$11)","v":422.1},{"$f":"'DNSP Inputs Capex'!$D$183","v":10},null,{"$f":"N176*O176","v":4221},{"$f":"IFERROR((Q176+Q177+Q178)/O176,0)","v":636.87334855252243},null,null,{"$f":"'DNSP Inputs Capex'!$E$179","v":402},{"$f":"'DNSP Inputs Capex'!$E$181","v":16},null,{"$f":"U176*V176","v":6432},{"$f":"IFERROR((X176+X177+X178)/V176,0)","v":530.61582615627196},null,{"$f":"'DNSP Inputs Capex'!$E$179*(1+'DNSP Inputs Capex'!$E$11)","v":422.1},{"$f":"'DNSP Inputs Capex'!$E$182","v":13},null,{"$f":"AA176*AB176","v":5487.3},{"$f":"IFERROR((AD176+AD177+AD178)/AB176,0)","v":588.16178603848869},null,{"$f":"'DNSP Inputs Capex'!$E$179*(1+'DNSP Inputs Capex'!$E$11)","v":422.1},{"$f":"'DNSP Inputs Capex'!$E$183","v":10},null,{"$f":"AG176*AH176","v":4221},{"$f":"IFERROR((AJ176+AJ177+AJ178)/AH176,0)","v":637.98032185003524},null,null,{"$f":"'DNSP Inputs Capex'!$F$179","v":402},{"$f":"'DNSP Inputs Capex'!$F$181","v":16},null,{"$f":"AN176*AO176","v":6432},{"$f":"IFERROR((AQ176+AQ177+AQ178)/AO176,0)","v":531.25598175589846},null,{"$f":"'DNSP Inputs Capex'!$F$179*(1+'DNSP Inputs Capex'!$F$11)","v":422.1},{"$f":"'DNSP Inputs Capex'!$F$182","v":13},null,{"$f":"AT176*AU176","v":5487.3},{"$f":"IFERROR((AW176+AW177+AW178)/AU176,0)","v":588.94966985341341},null,{"$f":"'DNSP Inputs Capex'!$F$179*(1+'DNSP Inputs Capex'!$F$11)","v":422.1},{"$f":"'DNSP Inputs Capex'!$F$183","v":10},null,{"$f":"AZ176*BA176","v":4221},{"$f":"IFERROR((BC176+BC177+BC178)/BA176,0)","v":639.0045708094375},null,null,{"$f":"'DNSP Inputs Capex'!$G$179","v":402},{"$f":"'DNSP Inputs Capex'!$G$181","v":16},null,{"$f":"BG176*BH176","v":6432},{"$f":"IFERROR((BJ176+BJ177+BJ178)/BH176,0)","v":532.03077252227854},null,{"$f":"'DNSP Inputs Capex'!$G$179*(1+'DNSP Inputs Capex'!$G$11)","v":422.1},{"$f":"'DNSP Inputs Capex'!$G$182","v":13},null,{"$f":"BM176*BN176","v":5487.3},{"$f":"IFERROR((BP176+BP177+BP178)/BN176,0)","v":589.90325848895816},null,{"$f":"'DNSP Inputs Capex'!$G$179*(1+'DNSP Inputs Capex'!$G$11)","v":422.1},{"$f":"'DNSP Inputs Capex'!$G$183","v":10},null,{"$f":"BS176*BT176","v":4221},{"$f":"IFERROR((BV176+BV177+BV178)/BT176,0)","v":640.2442360356456},null,null,{"$f":"'DNSP Inputs Capex'!$H$179","v":402},{"$f":"'DNSP Inputs Capex'!$H$181","v":16},null,{"$f":"BZ176*CA176","v":6432},{"$f":"IFERROR((CC176+CC177+CC178)/CA176,0)","v":533.04361550022782},null,{"$f":"'DNSP Inputs Capex'!$H$179*(1+'DNSP Inputs Capex'!$H$11)","v":422.1},{"$f":"'DNSP Inputs Capex'!$H$182","v":13},null,{"$f":"CF176*CG176","v":5487.3},{"$f":"IFERROR((CI176+CI177+CI178)/CG176,0)","v":591.14983446181873},null,{"$f":"'DNSP Inputs Capex'!$H$179*(1+'DNSP Inputs Capex'!$H$11)","v":422.1},{"$f":"'DNSP Inputs Capex'!$H$183","v":10},null,{"$f":"CL176*CM176","v":4221},{"$f":"IFERROR((CO176+CO177+CO178)/CM176,0)","v":641.86478480036453}]
["Crew costs",{"$f":"'DNSP Inputs Capex'!$D$12","v":111.36223236834823},{"$f":"'DNSP Inputs Capex'!$D$180","v":2},{"$f":"'DNSP Inputs Capex'!$D$15","v":7.5},{"$f":"D177*C177*B177","v":1670.4334855252234},null,null,{"$f":"'DNSP Inputs Capex'!$D$12","v":111.36223236834823},{"$f":"'DNSP Inputs Capex'!$D$180","v":2},{"$f":"'DNSP Inputs Capex'!$D$15","v":7.5},{"$f":"J177*I177*H177","v":1670.4334855252234},null,null,{"$f":"'DNSP Inputs Capex'!$D$12","v":111.36223236834823},{"$f":"'DNSP Inputs Capex'!$D$180","v":2},{"$f":"'DNSP Inputs Capex'!$D$15","v":7.5},{"$f":"P177*O177*N177","v":1670.4334855252234},null,null,null,{"$f":"'DNSP Inputs Capex'!$E$12","v":112.10021456669011},{"$f":"'DNSP Inputs Capex'!$E$180","v":2},{"$f":"'DNSP Inputs Capex'!$E$15","v":7.5},{"$f":"W177*V177*U177","v":1681.5032185003517},null,null,{"$f":"'DNSP Inputs Capex'!$E$12","v":112.10021456669011},{"$f":"'DNSP Inputs Capex'!$E$180","v":2},{"$f":"'DNSP Inputs Capex'!$E$15","v":7.5},{"$f":"AC177*AB177*AA177","v":1681.5032185003517},null,null,{"$f":"'DNSP Inputs Capex'!$E$12","v":112.10021456669011},{"$f":"'DNSP Inputs Capex'!$E$180","v":2},{"$f":"'DNSP Inputs Capex'!$E$15","v":7.5},{"$f":"AI177*AH177*AG177","v":1681.5032185003517},null,null,null,{"$f":"'DNSP Inputs Capex'!$F$12","v":112.78304720629164},{"$f":"'DNSP Inputs Capex'!$F$180","v":2},{"$f":"'DNSP Inputs Capex'!$F$15","v":7.5},{"$f":"AP177*AO177*AN177","v":1691.7457080943745},null,null,{"$f":"'DNSP Inputs Capex'!$F$12","v":112.78304720629164},{"$f":"'DNSP Inputs Capex'!$F$180","v":2},{"$f":"'DNSP Inputs Capex'!$F$15","v":7.5},{"$f":"AV177*AU177*AT177","v":1691.7457080943745},null,null,{"$f":"'DNSP Inputs Capex'!$F$12","v":112.78304720629164},{"$f":"'DNSP Inputs Capex'!$F$180","v":2},{"$f":"'DNSP Inputs Capex'!$F$15","v":7.5},{"$f":"BB177*BA177*AZ177","v":1691.7457080943745},null,null,null,{"$f":"'DNSP Inputs Capex'!$G$12","v":113.60949069043043},{"$f":"'DNSP Inputs Capex'!$G$180","v":2},{"$f":"'DNSP Inputs Capex'!$G$15","v":7.5},{"$f":"BI177*BH177*BG177","v":1704.1423603564565},null,null,{"$f":"'DNSP Inputs Capex'!$G$12","v":113.60949069043043},{"$f":"'DNSP Inputs Capex'!$G$180","v":2},{"$f":"'DNSP Inputs Capex'!$G$15","v":7.5},{"$f":"BO177*BN177*BM177","v":1704.1423603564565},null,null,{"$f":"'DNSP Inputs Capex'!$G$12","v":113.60949069043043},{"$f":"'DNSP Inputs Capex'!$G$180","v":2},{"$f":"'DNSP Inputs Capex'!$G$15","v":7.5},{"$f":"BU177*BT177*BS177","v":1704.1423603564565},null,null,null,{"$f":"'DNSP Inputs Capex'!$H$12","v":114.68985653357629},{"$f":"'DNSP Inputs Capex'!$H$180","v":2},{"$f":"'DNSP Inputs Capex'!$H$15","v":7.5},{"$f":"CB177*CA177*BZ177","v":1720.3478480036442},null,null,{"$f":"'DNSP Inputs Capex'!$H$12","v":114.68985653357629},{"$f":"'DNSP Inputs Capex'!$H$180","v":2},{"$f":"'DNSP Inputs Capex'!$H$15","v":7.5},{"$f":"CH177*CG177*CF177","v":1720.3478480036442},null,null,{"$f":"'DNSP Inputs Capex'!$H$12","v":114.68985653357629},{"$f":"'DNSP Inputs Capex'!$H$180","v":2},{"$f":"'DNSP Inputs Capex'!$H$15","v":7.5},{"$f":"CN177*CM177*CL177","v":1720.3478480036442}]
["Elevated platform vehicle costs",{"$f":"'DNSP Inputs Capex'!$D$13","v":50.18},1,{"$f":"'DNSP Inputs Capex'!$D$15","v":7.5},{"$f":"B178*C178*D178","v":376.35},null,null,{"$f":"'DNSP Inputs Capex'!$D$14","v":63.64},1,{"$f":"'DNSP Inputs Capex'!$D$15","v":7.5},{"$f":"H178*I178*J178","v":477.3},null,null,{"$f":"'DNSP Inputs Capex'!$D$14","v":63.64},1,{"$f":"'DNSP Inputs Capex'!$D$15","v":7.5},{"$f":"N178*O178*P178","v":477.3},null,null,null,{"$f":"'DNSP Inputs Capex'!$E$13","v":50.18},1,{"$f":"'DNSP Inputs Capex'!$E$15","v":7.5},{"$f":"U178*V178*W178","v":376.35},null,null,{"$f":"'DNSP Inputs Capex'!$E$14","v":63.64},1,{"$f":"'DNSP Inputs Capex'!$E$15","v":7.5},{"$f":"AA178*AB178*AC178","v":477.3},null,null,{"$f":"'DNSP Inputs Capex'!$E$14","v":63.64},1,{"$f":"'DNSP Inputs Capex'!$E$15","v":7.5},{"$f":"AG178*AH178*AI178","v":477.3},null,null,null,{"$f":"'DNSP Inputs Capex'!$F$13","v":50.18},1,{"$f":"'DNSP Inputs Capex'!$F$15","v":7.5},{"$f":"AN178*AO178*AP178","v":376.35},null,null,{"$f":"'DNSP Inputs Capex'!$F$14","v":63.64},1,{"$f":"'DNSP Inputs Capex'!$F$15","v":7.5},{"$f":"AT178*AU178*AV178","v":477.3},null,null,{"$f":"'DNSP Inputs Capex'!$F$14","v":63.64},1,{"$f":"'DNSP Inputs Capex'!$F$15","v":7.5},{"$f":"AZ178*BA178*BB178","v":477.3},null,null,null,{"$f":"'DNSP Inputs Capex'!$G$13","v":50.18},1,{"$f":"'DNSP Inputs Capex'!$G$15","v":7.5},{"$f":"BG178*BH178*BI178","v":376.35},null,null,{"$f":"'DNSP Inputs Capex'!$G$14","v":63.64},1,{"$f":"'DNSP Inputs Capex'!$G$15","v":7.5},{"$f":"BM178*BN178*BO178","v":477.3},null,null,{"$f":"'DNSP Inputs Capex'!$G$14","v":63.64},1,{"$f":"'DNSP Inputs Capex'!$G$15","v":7.5},{"$f":"BS178*BT178*BU178","v":477.3},null,null,null,{"$f":"'DNSP Inputs Capex'!$H$13","v":50.18},1,{"$f":"'DNSP Inputs Capex'!$H$15","v":7.5},{"$f":"BZ178*CA178*CB178","v":376.35},null,null,{"$f":"'DNSP Inputs Capex'!$H$14","v":63.64},1,{"$f":"'DNSP Inputs Capex'!$H$15","v":7.5},{"$f":"CF178*CG178*CH178","v":477.3},null,null,{"$f":"'DNSP Inputs Capex'!$H$14","v":63.64},1,{"$f":"'DNSP Inputs Capex'!$H$15","v":7.5},{"$f":"CL178*CM178*CN178","v":477.3}]
[{"$f":"'DNSP Inputs Capex'!$A$185","v":"Other Capex unit costs Describe :………………………"},null,null,null,null,{"$f":"'DNSP Inputs Capex'!$D$185","v":0},null,null,null,null,null,{"$f":"'DNSP Inputs Capex'!$D$185","v":0},null,null,null,null,null,{"$f":"'DNSP Inputs Capex'!$D$185","v":0},null,null,null,null,null,null,{"$f":"'DNSP Inputs Capex'!$E$185","v":0},null,null,null,null,null,{"$f":"'DNSP Inputs Capex'!$E$185","v":0},null,null,null,null,null,{"$f":"'DNSP Inputs Capex'!$E$185","v":0},null,null,null,null,null,null,{"$f":"'DNSP Inputs Capex'!$F$185","v":0},null,null,null,null,null,{"$f":"'DNSP Inputs Capex'!$F$185","v":0},null,null,null,null,null,{"$f":"'DNSP Inputs Capex'!$F$185","v":0},null,null,null,null,null,null,{"$f":"'DNSP Inputs Capex'!$G$185","v":0},null,null,null,null,null,{"$f":"'DNSP Inputs Capex'!$G$185","v":0},null,null,null,null,null,{"$f":"'DNSP Inputs Capex'!$G$185","v":0},null,null,null,null,null,null,{"$f":"'DNSP Inputs Capex'!$H$185","v":0},null,null,null,null,null,{"$f":"'DNSP Inputs Capex'!$H$185","v":0},null,null,null,null,null,{"$f":"'DNSP Inputs Capex'!$H$185","v":0}]
[null,null,null,null,null,{"$f":"SUM(F176,F179)","v":529.9239678453265},null,null,null,null,null,{"$f":"SUM(L176,L179)","v":587.31026811732488},null,null,null,null,null,{"$f":"SUM(R176,R179)","v":636.87334855252243},null,null,null,null,null,null,{"$f":"SUM(Y176,Y179)","v":530.61582615627196},null,null,null,null,null,{"$f":"SUM(AE176,AE179)","v":588.16178603848869},null,null,null,null,null,{"$f":"SUM(AK176,AK179)","v":637.98032185003524},null,null,null,null,null,null,{"$f":"SUM(AR176,AR179)","v":531.25598175589846},null,null,null,null,null,{"$f":"SUM(AX176,AX179)","v":588.94966985341341},null,null,null,null,null,{"$f":"SUM(BD176,BD179)","v":639.0045708094375},null,null,null,null,null,null,{"$f":"SUM(BK176,BK179)","v":532.03077252227854},null,null,null,null,null,{"$f":"SUM(BQ176,BQ179)","v":589.90325848895816},null,null,null,null,null,{"$f":"SUM(BW176,BW179)","v":640.2442360356456},null,null,null,null,null,null,{"$f":"SUM(CD176,CD179)","v":533.04361550022782},null,null,null,null,null,{"$f":"SUM(CJ176,CJ179)","v":591.14983446181873},null,null,null,null,null,{"$f":"SUM(CP176,CP179)","v":641.86478480036453}]
[]
["Number of luminaires replaced",null,null,null,null,{"$f":"'DNSP Inputs Capex'!$D$188","v":77.414359792858718},null,null,null,null,null,{"$f":"'DNSP Inputs Capex'!$D$189","v":19.553317398660649},null,null,null,null,null,{"$f":"'DNSP Inputs Capex'!$D$190","v":3.7948215584734664},null,null,null,null,null,null,{"$f":"'DNSP Inputs Capex'!$E$188","v":78.477812067723363},null,null,null,null,null,{"$f":"'DNSP Inputs Capex'!$E$189","v":19.821924152296482},null,null,null,null,null,{"$f":"'DNSP Inputs Capex'!$E$190","v":3.8469515719472236},null,null,null,null,null,null,{"$f":"'DNSP Inputs Capex'!$F$188","v":82.793708829765563},null,null,null,null,null,{"$f":"'DNSP Inputs Capex'!$F$189","v":20.912033267373705},null,null,null,null,null,{"$f":"'DNSP Inputs Capex'!$F$190","v":4.0585151387139984},null,null,null,null,null,null,{"$f":"'DNSP Inputs Capex'!$G$188","v":85.94510215083524},null,null,null,null,null,{"$f":"'DNSP Inputs Capex'!$G$189","v":21.708012127365244},null,null,null,null,null,{"$f":"'DNSP Inputs Capex'!$G$190","v":4.2129952034723148},null,null,null,null,null,null,{"$f":"'DNSP Inputs Capex'!$H$188","v":25.118707212408932},null,null,null,null,null,{"$f":"'DNSP Inputs Capex'!$H$189","v":6.3444825492642787},null,null,null,null,null,{"$f":"'DNSP Inputs Capex'!$H$190","v":1.2313091770788691}]
[]
["Capex",null,null,null,null,{"$f":"F180*F182","v":41023.724709637398},null,null,null,null,null,{"$f":"L180*L182","v":11483.86408399054},null,null,null,null,null,{"$f":"R180*R182","v":2416.8207131042982},null,null,null,null,null,null,{"$f":"Y180*Y182","v":41641.569085251685},null,null,null,null,null,{"$f":"AE180*AE182","v":11658.498312134156},null,null,null,null,null,{"$f":"AK180*AK182","v":2454.2794020123888},null,null,null,null,null,null,{"$f":"AR180*AR182","v":43984.653067569103},null,null,null,null,null,{"$f":"AX180*AX182","v":12316.135088783341},null,null,null,null,null,{"$f":"BD180*BD182","v":2593.4097243375431},null,null,null,null,null,null,{"$f":"BK180*BK182","v":45725.439091815017},null,null,null,null,null,{"$f":"BQ180*BQ182","v":12805.627089250578},null,null,null,null,null,{"$f":"BW180*BW182","v":2697.3458954689713},null,null,null,null,null,null,{"$f":"CD180*CD182","v":13389.366509194106},null,null,null,null,null,{"$f":"CJ180*CJ182","v":3750.539808743476},null,null,null,null,null,{"$f":"CP180*CP182","v":790.3339999684423}]
[]
[]
[{"$f":"'DNSP Inputs General'!A$74","v":"LED 155W-250W (L2)"}]
["Luminaires "]
["Material",{"$f":"'DNSP Inputs Capex'!$D$196","v":427},{"$f":"'DNSP Inputs Capex'!$D$198","v":16},null,{"$f":"B189*C189","v":6832},{"$f":"IFERROR((E189+E190+E191)/C189,0)","v":554.9239678453265},null,{"$f":"'DNSP Inputs Capex'!$D$196*(1+'DNSP Inputs Capex'!$D$11)","v":448.35},{"$f":"'DNSP Inputs Capex'!$D$199","v":13},null,{"$f":"H189*I189","v":5828.55},{"$f":"IFERROR((K189+K190+K191)/I189,0)","v":613.56026811732488},null,{"$f":"'DNSP Inputs Capex'!$D$196*(1+'DNSP Inputs Capex'!$D$11)","v":448.35},{"$f":"'DNSP Inputs Capex'!$D$200","v":10},null,{"$f":"N189*O189","v":4483.5},{"$f":"IFERROR((Q189+Q190+Q191)/O189,0)","v":663.12334855252243},null,null,{"$f":"'DNSP Inputs Capex'!$E$196","v":427},{"$f":"'DNSP Inputs Capex'!$E$198","v":16},null,{"$f":"U189*V189","v":6832},{"$f":"IFERROR((X189+X190+X191)/V189,0)","v":555.61582615627196},null,{"$f":"'DNSP Inputs Capex'!$E$196*(1+'DNSP Inputs Capex'!$E$11)","v":448.35},{"$f":"'DNSP Inputs Capex'!$E$199","v":13},null,{"$f":"AA189*AB189","v":5828.55},{"$f":"IFERROR((AD189+AD190+AD191)/AB189,0)","v":614.41178603848869},null,{"$f":"'DNSP Inputs Capex'!$E$196*(1+'DNSP Inputs Capex'!$E$11)","v":448.35},{"$f":"'DNSP Inputs Capex'!$E$200","v":10},null,{"$f":"AG189*AH189","v":4483.5},{"$f":"IFERROR((AJ189+AJ190+AJ191)/AH189,0)","v":664.23032185003524},null,null,{"$f":"'DNSP Inputs Capex'!$F$196","v":427},{"$f":"'DNSP Inputs Capex'!$F$198","v":16},null,{"$f":"AN189*AO189","v":6832},{"$f":"IFERROR((AQ189+AQ190+AQ191)/AO189,0)","v":556.25598175589846},null,{"$f":"'DNSP Inputs Capex'!$F$196*(1+'DNSP Inputs Capex'!$F$11)","v":448.35},{"$f":"'DNSP Inputs Capex'!$F$199","v":13},null,{"$f":"AT189*AU189","v":5828.55},{"$f":"IFERROR((AW189+AW190+AW191)/AU189,0)","v":615.19966985341341},null,{"$f":"'DNSP Inputs Capex'!$F$196*(1+'DNSP Inputs Capex'!$F$11)","v":448.35},{"$f":"'DNSP Inputs Capex'!$F$200","v":10},null,{"$f":"AZ189*BA189","v":4483.5},{"$f":"IFERROR((BC189+BC190+BC191)/BA189,0)","v":665.2545708094375},null,null,{"$f":"'DNSP Inputs Capex'!$G$196","v":427},{"$f":"'DNSP Inputs Capex'!$G$198","v":16},null,{"$f":"BG189*BH189","v":6832},{"$f":"IFERROR((BJ189+BJ190+BJ191)/BH189,0)","v":557.03077252227854},null,{"$f":"'DNSP Inputs Capex'!$G$196*(1+'DNSP Inputs Capex'!$G$11)","v":448.35},{"$f":"'DNSP Inputs Capex'!$G$199","v":13},null,{"$f":"BM189*BN189","v":5828.55},{"$f":"IFERROR((BP189+BP190+BP191)/BN189,0)","v":616.15325848895816},null,{"$f":"'DNSP Inputs Capex'!$G$196*(1+'DNSP Inputs Capex'!$G$11)","v":448.35},{"$f":"'DNSP Inputs Capex'!$G$200","v":10},null,{"$f":"BS189*BT189","v":4483.5},{"$f":"IFERROR((BV189+BV190+BV191)/BT189,0)","v":666.4942360356456},null,null,{"$f":"'DNSP Inputs Capex'!$H$196","v":427},{"$f":"'DNSP Inputs Capex'!$H$198","v":16},null,{"$f":"BZ189*CA189","v":6832},{"$f":"IFERROR((CC189+CC190+CC191)/CA189,0)","v":558.04361550022782},null,{"$f":"'DNSP Inputs Capex'!$H$196*(1+'DNSP Inputs Capex'!$H$11)","v":448.35},{"$f":"'DNSP Inputs Capex'!$H$199","v":13},null,{"$f":"CF189*CG189","v":5828.55},{"$f":"IFERROR((CI189+CI190+CI191)/CG189,0)","v":617.39983446181873},null,{"$f":"'DNSP Inputs Capex'!$H$196*(1+'DNSP Inputs Capex'!$H$11)","v":448.35},{"$f":"'DNSP Inputs Capex'!$H$200","v":10},null,{"$f":"CL189*CM189","v":4483.5},{"$f":"IFERROR((CO189+CO190+CO191)/CM189,0)","v":668.11478480036453}]
["Crew costs",{"$f":"'DNSP Inputs Capex'!$D$12","v":111.36223236834823},{"$f":"'DNSP Inputs Capex'!$D$197","v":2},{"$f":"'DNSP Inputs Capex'!$D$15","v":7.5},{"$f":"D190*C190*B190","v":1670.4334855252234},null,null,{"$f":"'DNSP Inputs Capex'!$D$12","v":111.36223236834823},{"$f":"'DNSP Inputs Capex'!$D$197","v":2},{"$f":"'DNSP Inputs Capex'!$D$15","v":7.5},{"$f":"J190*I190*H190","v":1670.4334855252234},null,null,{"$f":"'DNSP Inputs Capex'!$D$12","v":111.36223236834823},{"$f":"'DNSP Inputs Capex'!$D$197","v":2},{"$f":"'DNSP Inputs Capex'!$D$15","v":7.5},{"$f":"P190*O190*N190","v":1670.4334855252234},null,null,null,{"$f":"'DNSP Inputs Capex'!$E$12","v":112.10021456669011},{"$f":"'DNSP Inputs Capex'!$E$197","v":2},{"$f":"'DNSP Inputs Capex'!$E$15","v":7.5},{"$f":"W190*V190*U190","v":1681.5032185003517},null,null,{"$f":"'DNSP Inputs Capex'!$E$12","v":112.10021456669011},{"$f":"'DNSP Inputs Capex'!$E$197","v":2},{"$f":"'DNSP Inputs Capex'!$E$15","v":7.5},{"$f":"AC190*AB190*AA190","v":1681.5032185003517},null,null,{"$f":"'DNSP Inputs Capex'!$E$12","v":112.10021456669011},{"$f":"'DNSP Inputs Capex'!$E$197","v":2},{"$f":"'DNSP Inputs Capex'!$E$15","v":7.5},{"$f":"AI190*AH190*AG190","v":1681.5032185003517},null,null,null,{"$f":"'DNSP Inputs Capex'!$F$12","v":112.78304720629164},{"$f":"'DNSP Inputs Capex'!$F$197","v":2},{"$f":"'DNSP Inputs Capex'!$F$15","v":7.5},{"$f":"AP190*AO190*AN190","v":1691.7457080943745},null,null,{"$f":"'DNSP Inputs Capex'!$F$12","v":112.78304720629164},{"$f":"'DNSP Inputs Capex'!$F$197","v":2},{"$f":"'DNSP Inputs Capex'!$F$15","v":7.5},{"$f":"AV190*AU190*AT190","v":1691.7457080943745},null,null,{"$f":"'DNSP Inputs Capex'!$F$12","v":112.78304720629164},{"$f":"'DNSP Inputs Capex'!$F$197","v":2},{"$f":"'DNSP Inputs Capex'!$F$15","v":7.5},{"$f":"BB190*BA190*AZ190","v":1691.7457080943745},null,null,null,{"$f":"'DNSP Inputs Capex'!$G$12","v":113.60949069043043},{"$f":"'DNSP Inputs Capex'!$G$197","v":2},{"$f":"'DNSP Inputs Capex'!$G$15","v":7.5},{"$f":"BI190*BH190*BG190","v":1704.1423603564565},null,null,{"$f":"'DNSP Inputs Capex'!$G$12","v":113.60949069043043},{"$f":"'DNSP Inputs Capex'!$G$197","v":2},{"$f":"'DNSP Inputs Capex'!$G$15","v":7.5},{"$f":"BO190*BN190*BM190","v":1704.1423603564565},null,null,{"$f":"'DNSP Inputs Capex'!$G$12","v":113.60949069043043},{"$f":"'DNSP Inputs Capex'!$G$197","v":2},{"$f":"'DNSP Inputs Capex'!$G$15","v":7.5},{"$f":"BU190*BT190*BS190","v":1704.1423603564565},null,null,null,{"$f":"'DNSP Inputs Capex'!$H$12","v":114.68985653357629},{"$f":"'DNSP Inputs Capex'!$H$197","v":2},{"$f":"'DNSP Inputs Capex'!$H$15","v":7.5},{"$f":"CB190*CA190*BZ190","v":1720.3478480036442},null,null,{"$f":"'DNSP Inputs Capex'!$H$12","v":114.68985653357629},{"$f":"'DNSP Inputs Capex'!$H$197","v":2},{"$f":"'DNSP Inputs Capex'!$H$15","v":7.5},{"$f":"CH190*CG190*CF190","v":1720.3478480036442},null,null,{"$f":"'DNSP Inputs Capex'!$H$12","v":114.68985653357629},{"$f":"'DNSP Inputs Capex'!$H$197","v":2},{"$f":"'DNSP Inputs Capex'!$H$15","v":7.5},{"$f":"CN190*CM190*CL190","v":1720.3478480036442}]
["Elevated platform vehicle costs",{"$f":"'DNSP Inputs Capex'!$D$13","v":50.18},1,{"$f":"'DNSP Inputs Capex'!$D$15","v":7.5},{"$f":"B191*C191*D191","v":376.35},null,null,{"$f":"'DNSP Inputs Capex'!$D$14","v":63.64},1,{"$f":"'DNSP Inputs Capex'!$D$15","v":7.5},{"$f":"H191*I191*J191","v":477.3},null,null,{"$f":"'DNSP Inputs Capex'!$D$14","v":63.64},1,{"$f":"'DNSP Inputs Capex'!$D$15","v":7.5},{"$f":"N191*O191*P191","v":477.3},null,null,null,{"$f":"'DNSP Inputs Capex'!$E$13","v":50.18},1,{"$f":"'DNSP Inputs Capex'!$E$15","v":7.5},{"$f":"U191*V191*W191","v":376.35},null,null,{"$f":"'DNSP Inputs Capex'!$E$14","v":63.64},1,{"$f":"'DNSP Inputs Capex'!$E$15","v":7.5},{"$f":"AA191*AB191*AC191","v":477.3},null,null,{"$f":"'DNSP Inputs Capex'!$E$14","v":63.64},1,{"$f":"'DNSP Inputs Capex'!$E$15","v":7.5},{"$f":"AG191*AH191*AI191","v":477.3},null,null,null,{"$f":"'DNSP Inputs Capex'!$F$13","v":50.18},1,{"$f":"'DNSP Inputs Capex'!$F$15","v":7.5},{"$f":"AN191*AO191*AP191","v":376.35},null,null,{"$f":"'DNSP Inputs Capex'!$F$14","v":63.64},1,{"$f":"'DNSP Inputs Capex'!$F$15","v":7.5},{"$f":"AT191*AU191*AV191","v":477.3},null,null,{"$f":"'DNSP Inputs Capex'!$F$14","v":63.64},1,{"$f":"'DNSP Inputs Capex'!$F$15","v":7.5},{"$f":"AZ191*BA191*BB191","v":477.3},null,null,null,{"$f":"'DNSP Inputs Capex'!$G$13","v":50.18},1,{"$f":"'DNSP Inputs Capex'!$G$15","v":7.5},{"$f":"BG191*BH191*BI191","v":376.35},null,null,{"$f":"'DNSP Inputs Capex'!$G$14","v":63.64},1,{"$f":"'DNSP Inputs Capex'!$G$15","v":7.5},{"$f":"BM191*BN191*BO191","v":477.3},null,null,{"$f":"'DNSP Inputs Capex'!$G$14","v":63.64},1,{"$f":"'DNSP Inputs Capex'!$G$15","v":7.5},{"$f":"BS191*BT191*BU191","v":477.3},null,null,null,{"$f":"'DNSP Inputs Capex'!$H$13","v":50.18},1,{"$f":"'DNSP Inputs Capex'!$H$15","v":7.5},{"$f":"BZ191*CA191*CB191","v":376.35},null,null,{"$f":"'DNSP Inputs Capex'!$H$14","v":63.64},1,{"$f":"'DNSP Inputs Capex'!$H$15","v":7.5},{"$f":"CF191*CG191*CH191","v":477.3},null,null,{"$f":"'DNSP Inputs Capex'!$H$14","v":63.64},1,{"$f":"'DNSP Inputs Capex'!$H$15","v":7.5},{"$f":"CL191*CM191*CN191","v":477.3}]
[{"$f":"'DNSP Inputs Capex'!$A$185","v":"Other Capex unit costs Describe :………………………"},null,null,null,null,{"$f":"'DNSP Inputs Capex'!$D$202","v":0},null,null,null,null,null,{"$f":"'DNSP Inputs Capex'!$D$202","v":0},null,null,null,null,null,{"$f":"'DNSP Inputs Capex'!$D$202","v":0},null,null,null,null,null,null,{"$f":"'DNSP Inputs Capex'!$E$202","v":0},null,null,null,null,null,{"$f":"'DNSP Inputs Capex'!$E$202","v":0},null,null,null,null,null,{"$f":"'DNSP Inputs Capex'!$E$202","v":0},null,null,null,null,null,null,{"$f":"'DNSP Inputs Capex'!$F$202","v":0},null,null,null,null,null,{"$f":"'DNSP Inputs Capex'!$F$202","v":0},null,null,null,null,null,{"$f":"'DNSP Inputs Capex'!$F$202","v":0},null,null,null,null,null,null,{"$f":"'DNSP Inputs Capex'!$G$202","v":0},null,null,null,null,null,{"$f":"'DNSP Inputs Capex'!$G$202","v":0},null,null,null,null,null,{"$f":"'DNSP Inputs Capex'!$G$202","v":0},null,null,null,null,null,null,{"$f":"'DNSP Inputs Capex'!$H$202","v":0},null,null,null,null,null,{"$f":"'DNSP Inputs Capex'!$H$202","v":0},null,null,null,null,null,{"$f":"'DNSP Inputs Capex'!$H$202","v":0}]
[null,null,null,null,null,{"$f":"SUM(F189,F192)","v":554.9239678453265},null,null,null,null,null,{"$f":"SUM(L189,L192)","v":613.56026811732488},null,null,null,null,null,{"$f":"SUM(R189,R192)","v":663.12334855252243},null,null,null,null,null,null,{"$f":"SUM(Y189,Y192)","v":555.61582615627196},null,null,null,null,null,{"$f":"SUM(AE189,AE192)","v":614.41178603848869},null,null,null,null,null,{"$f":"SUM(AK189,AK192)","v":664.23032185003524},null,null,null,null,null,null,{"$f":"SUM(AR189,AR192)","v":556.25598175589846},null,null,null,null,null,{"$f":"SUM(AX189,AX192)","v":615.19966985341341},null,null,null,null,null,{"$f":"SUM(BD189,BD192)","v":665.2545708094375},null,null,null,null,null,null,{"$f":"SUM(BK189,BK192)","v":557.03077252227854},null,null,null,null,null,{"$f":"SUM(BQ189,BQ192)","v":616.15325848895816},null,null,null,null,null,{"$f":"SUM(BW189,BW192)","v":666.4942360356456},null,null,null,null,null,null,{"$f":"SUM(CD189,CD192)","v":558.04361550022782},null,null,null,null,null,{"$f":"SUM(CJ189,CJ192)","v":617.39983446181873},null,null,null,null,null,{"$f":"SUM(CP189,CP192)","v":668.11478480036453}]
[]
["Number of luminaires replaced",null,null,null,null,{"$f":"'DNSP Inputs Capex'!$D$205","v":936.03385629140996},null,null,null,null,null,{"$f":"'DNSP Inputs Capex'!$D$206","v":236.42341210250009},null,null,null,null,null,{"$f":"'DNSP Inputs Capex'!$D$207","v":45.88401256330441},null,null,null,null,null,null,{"$f":"'DNSP Inputs Capex'!$E$205","v":929.84037057437911},null,null,null,null,null,{"$f":"'DNSP Inputs Capex'!$E$206","v":234.85906160792493},null,null,null,null,null,{"$f":"'DNSP Inputs Capex'!$E$207","v":45.58041032227348},null,null,null,null,null,null,{"$f":"'DNSP Inputs Capex'!$F$205","v":916.2721212599148},null,null,null,null,null,{"$f":"'DNSP Inputs Capex'!$F$206","v":231.43199347612395},null,null,null,null,null,{"$f":"'DNSP Inputs Capex'!$F$207","v":44.915300061760526},null,null,null,null,null,null,{"$f":"'DNSP Inputs Capex'!$G$205","v":903.00528667060985},null,null,null,null,null,{"$f":"'DNSP Inputs Capex'!$G$206","v":228.08105666938263},null,null,null,null,null,{"$f":"'DNSP Inputs Capex'!$G$207","v":44.264965032873036},null,null,null,null,null,null,{"$f":"'DNSP Inputs Capex'!$H$205","v":883.57943960118268},null,null,null,null,null,{"$f":"'DNSP Inputs Capex'!$H$206","v":223.17447661753295},null,null,null,null,null,{"$f":"'DNSP Inputs Capex'!$H$207","v":43.312717627508952}]
[]
["Capex",null,null,null,null,{"$f":"F193*F195","v":519427.62157079135},null,null,null,null,null,{"$f":"L193*L195","v":145060.01211882275},null,null,null,null,null,{"$f":"R193*R195","v":30426.760056004427},null,null,null,null,null,null,{"$f":"Y193*Y195","v":516634.0256901377},null,null,null,null,null,{"$f":"AE193*AE195","v":144300.1755098486},null,null,null,null,null,{"$f":"AK193*AK195","v":30275.890618420381},null,null,null,null,null,null,{"$f":"AR193*AR195","v":509681.84836699354},null,null,null,null,null,{"$f":"AX193*AX195","v":142376.88598002878},null,null,null,null,null,{"$f":"BD193*BD195","v":29880.108665363601},null,null,null,null,null,null,{"$f":"BK193*BK195","v":503001.73242583137},null,null,null,null,null,{"$f":"BQ193*BQ195","v":140532.88626644484},null,null,null,null,null,{"$f":"BW193*BW195","v":29502.344052729281},null,null,null,null,null,null,{"$f":"CD193*CD195","v":493075.86505670915},null,null,null,null,null,{"$f":"CJ193*CJ195","v":137787.88491976788},null,null,null,null,null,{"$f":"CP193*CP195","v":28937.8670168221}]
[]
[]
[{"$f":"'DNSP Inputs General'!A$75","v":"LED 275W-400W (L4)"}]
["Luminaires "]
["Material",{"$f":"'DNSP Inputs Capex'!$D$213","v":650.88},{"$f":"'DNSP Inputs Capex'!$D$215","v":16},null,{"$f":"B202*C202","v":10414.08},{"$f":"IFERROR((E202+E203+E204)/C202,0)","v":778.8039678453265},null,{"$f":"'DNSP Inputs Capex'!$D$213*(1+'DNSP Inputs Capex'!$D$11)","v":683.42399999999998},{"$f":"'DNSP Inputs Capex'!$D$216","v":13},null,{"$f":"H202*I202","v":8884.5119999999988},{"$f":"IFERROR((K202+K203+K204)/I202,0)","v":848.63426811732472},null,{"$f":"'DNSP Inputs Capex'!$D$213*(1+'DNSP Inputs Capex'!$D$11)","v":683.42399999999998},{"$f":"'DNSP Inputs Capex'!$D$217","v":10},null,{"$f":"N202*O202","v":6834.24},{"$f":"IFERROR((Q202+Q203+Q204)/O202,0)","v":898.19734855252227},null,null,{"$f":"'DNSP Inputs Capex'!$E$213","v":650.88},{"$f":"'DNSP Inputs Capex'!$E$215","v":16},null,{"$f":"U202*V202","v":10414.08},{"$f":"IFERROR((X202+X203+X204)/V202,0)","v":779.49582615627196},null,{"$f":"'DNSP Inputs Capex'!$E$213*(1+'DNSP Inputs Capex'!$E$11)","v":683.42399999999998},{"$f":"'DNSP Inputs Capex'!$E$216","v":13},null,{"$f":"AA202*AB202","v":8884.5119999999988},{"$f":"IFERROR((AD202+AD203+AD204)/AB202,0)","v":849.48578603848841},null,{"$f":"'DNSP Inputs Capex'!$E$213*(1+'DNSP Inputs Capex'!$E$11)","v":683.42399999999998},{"$f":"'DNSP Inputs Capex'!$E$217","v":10},null,{"$f":"AG202*AH202","v":6834.24},{"$f":"IFERROR((AJ202+AJ203+AJ204)/AH202,0)","v":899.30432185003497},null,null,{"$f":"'DNSP Inputs Capex'!$F$213","v":650.88},{"$f":"'DNSP Inputs Capex'!$F$215","v":16},null,{"$f":"AN202*AO202","v":10414.08},{"$f":"IFERROR((AQ202+AQ203+AQ204)/AO202,0)","v":780.13598175589846},null,{"$f":"'DNSP Inputs Capex'!$F$213*(1+'DNSP Inputs Capex'!$F$11)","v":683.42399999999998},{"$f":"'DNSP Inputs Capex'!$F$216","v":13},null,{"$f":"AT202*AU202","v":8884.5119999999988},{"$f":"IFERROR((AW202+AW203+AW204)/AU202,0)","v":850.27366985341337},null,{"$f":"'DNSP Inputs Capex'!$F$213*(1+'DNSP Inputs Capex'!$F$11)","v":683.42399999999998},{"$f":"'DNSP Inputs Capex'!$F$217","v":10},null,{"$f":"AZ202*BA202","v":6834.24},{"$f":"IFERROR((BC202+BC203+BC204)/BA202,0)","v":900.32857080943745},null,null,{"$f":"'DNSP Inputs Capex'!$G$213","v":650.88},{"$f":"'DNSP Inputs Capex'!$G$215","v":16},null,{"$f":"BG202*BH202","v":10414.08},{"$f":"IFERROR((BJ202+BJ203+BJ204)/BH202,0)","v":780.91077252227853},null,{"$f":"'DNSP Inputs Capex'!$G$213*(1+'DNSP Inputs Capex'!$G$11)","v":683.42399999999998},{"$f":"'DNSP Inputs Capex'!$G$216","v":13},null,{"$f":"BM202*BN202","v":8884.5119999999988},{"$f":"IFERROR((BP202+BP203+BP204)/BN202,0)","v":851.227258488958},null,{"$f":"'DNSP Inputs Capex'!$G$213*(1+'DNSP Inputs Capex'!$G$11)","v":683.42399999999998},{"$f":"'DNSP Inputs Capex'!$G$217","v":10},null,{"$f":"BS202*BT202","v":6834.24},{"$f":"IFERROR((BV202+BV203+BV204)/BT202,0)","v":901.56823603564555},null,null,{"$f":"'DNSP Inputs Capex'!$H$213","v":650.88},{"$f":"'DNSP Inputs Capex'!$H$215","v":16},null,{"$f":"BZ202*CA202","v":10414.08},{"$f":"IFERROR((CC202+CC203+CC204)/CA202,0)","v":781.92361550022781},null,{"$f":"'DNSP Inputs Capex'!$H$213*(1+'DNSP Inputs Capex'!$H$11)","v":683.42399999999998},{"$f":"'DNSP Inputs Capex'!$H$216","v":13},null,{"$f":"CF202*CG202","v":8884.5119999999988},{"$f":"IFERROR((CI202+CI203+CI204)/CG202,0)","v":852.47383446181868},null,{"$f":"'DNSP Inputs Capex'!$H$213*(1+'DNSP Inputs Capex'!$H$11)","v":683.42399999999998},{"$f":"'DNSP Inputs Capex'!$H$217","v":10},null,{"$f":"CL202*CM202","v":6834.24},{"$f":"IFERROR((CO202+CO203+CO204)/CM202,0)","v":903.18878480036437}]
["Crew costs",{"$f":"'DNSP Inputs Capex'!$D$12","v":111.36223236834823},{"$f":"'DNSP Inputs Capex'!$D$214","v":2},{"$f":"'DNSP Inputs Capex'!$D$15","v":7.5},{"$f":"D203*C203*B203","v":1670.4334855252234},null,null,{"$f":"'DNSP Inputs Capex'!$D$12","v":111.36223236834823},{"$f":"'DNSP Inputs Capex'!$D$214","v":2},{"$f":"'DNSP Inputs Capex'!$D$15","v":7.5},{"$f":"J203*I203*H203","v":1670.4334855252234},null,null,{"$f":"'DNSP Inputs Capex'!$D$12","v":111.36223236834823},{"$f":"'DNSP Inputs Capex'!$D$214","v":2},{"$f":"'DNSP Inputs Capex'!$D$15","v":7.5},{"$f":"P203*O203*N203","v":1670.4334855252234},null,null,null,{"$f":"'DNSP Inputs Capex'!$E$12","v":112.10021456669011},{"$f":"'DNSP Inputs Capex'!$E$214","v":2},{"$f":"'DNSP Inputs Capex'!$E$15","v":7.5},{"$f":"W203*V203*U203","v":1681.5032185003517},null,null,{"$f":"'DNSP Inputs Capex'!$E$12","v":112.10021456669011},{"$f":"'DNSP Inputs Capex'!$E$214","v":2},{"$f":"'DNSP Inputs Capex'!$E$15","v":7.5},{"$f":"AC203*AB203*AA203","v":1681.5032185003517},null,null,{"$f":"'DNSP Inputs Capex'!$E$12","v":112.10021456669011},{"$f":"'DNSP Inputs Capex'!$E$214","v":2},{"$f":"'DNSP Inputs Capex'!$E$15","v":7.5},{"$f":"AI203*AH203*AG203","v":1681.5032185003517},null,null,null,{"$f":"'DNSP Inputs Capex'!$F$12","v":112.78304720629164},{"$f":"'DNSP Inputs Capex'!$F$214","v":2},{"$f":"'DNSP Inputs Capex'!$F$15","v":7.5},{"$f":"AP203*AO203*AN203","v":1691.7457080943745},null,null,{"$f":"'DNSP Inputs Capex'!$F$12","v":112.78304720629164},{"$f":"'DNSP Inputs Capex'!$F$214","v":2},{"$f":"'DNSP Inputs Capex'!$F$15","v":7.5},{"$f":"AV203*AU203*AT203","v":1691.7457080943745},null,null,{"$f":"'DNSP Inputs Capex'!$F$12","v":112.78304720629164},{"$f":"'DNSP Inputs Capex'!$F$214","v":2},{"$f":"'DNSP Inputs Capex'!$F$15","v":7.5},{"$f":"BB203*BA203*AZ203","v":1691.7457080943745},null,null,null,{"$f":"'DNSP Inputs Capex'!$G$12","v":113.60949069043043},{"$f":"'DNSP Inputs Capex'!$G$214","v":2},{"$f":"'DNSP Inputs Capex'!$G$15","v":7.5},{"$f":"BI203*BH203*BG203","v":1704.1423603564565},null,null,{"$f":"'DNSP Inputs Capex'!$G$12","v":113.60949069043043},{"$f":"'DNSP Inputs Capex'!$G$214","v":2},{"$f":"'DNSP Inputs Capex'!$G$15","v":7.5},{"$f":"BO203*BN203*BM203","v":1704.1423603564565},null,null,{"$f":"'DNSP Inputs Capex'!$G$12","v":113.60949069043043},{"$f":"'DNSP Inputs Capex'!$G$214","v":2},{"$f":"'DNSP Inputs Capex'!$G$15","v":7.5},{"$f":"BU203*BT203*BS203","v":1704.1423603564565},null,null,null,{"$f":"'DNSP Inputs Capex'!$H$12","v":114.68985653357629},{"$f":"'DNSP Inputs Capex'!$H$214","v":2},{"$f":"'DNSP Inputs Capex'!$H$15","v":7.5},{"$f":"CB203*CA203*BZ203","v":1720.3478480036442},null,null,{"$f":"'DNSP Inputs Capex'!$H$12","v":114.68985653357629},{"$f":"'DNSP Inputs Capex'!$H$214","v":2},{"$f":"'DNSP Inputs Capex'!$H$15","v":7.5},{"$f":"CH203*CG203*CF203","v":1720.3478480036442},null,null,{"$f":"'DNSP Inputs Capex'!$H$12","v":114.68985653357629},{"$f":"'DNSP Inputs Capex'!$H$214","v":2},{"$f":"'DNSP Inputs Capex'!$H$15","v":7.5},{"$f":"CN203*CM203*CL203","v":1720.3478480036442}]
["Elevated platform vehicle costs",{"$f":"'DNSP Inputs Capex'!$D$13","v":50.18},1,{"$f":"'DNSP Inputs Capex'!$D$15","v":7.5},{"$f":"B204*C204*D204","v":376.35},null,null,{"$f":"'DNSP Inputs Capex'!$D$14","v":63.64},1,{"$f":"'DNSP Inputs Capex'!$D$15","v":7.5},{"$f":"H204*I204*J204","v":477.3},null,null,{"$f":"'DNSP Inputs Capex'!$D$14","v":63.64},1,{"$f":"'DNSP Inputs Capex'!$D$15","v":7.5},{"$f":"N204*O204*P204","v":477.3},null,null,null,{"$f":"'DNSP Inputs Capex'!$E$13","v":50.18},1,{"$f":"'DNSP Inputs Capex'!$E$15","v":7.5},{"$f":"U204*V204*W204","v":376.35},null,null,{"$f":"'DNSP Inputs Capex'!$E$14","v":63.64},1,{"$f":"'DNSP Inputs Capex'!$E$15","v":7.5},{"$f":"AA204*AB204*AC204","v":477.3},null,null,{"$f":"'DNSP Inputs Capex'!$E$14","v":63.64},1,{"$f":"'DNSP Inputs Capex'!$E$15","v":7.5},{"$f":"AG204*AH204*AI204","v":477.3},null,null,null,{"$f":"'DNSP Inputs Capex'!$F$13","v":50.18},1,{"$f":"'DNSP Inputs Capex'!$F$15","v":7.5},{"$f":"AN204*AO204*AP204","v":376.35},null,null,{"$f":"'DNSP Inputs Capex'!$F$14","v":63.64},1,{"$f":"'DNSP Inputs Capex'!$F$15","v":7.5},{"$f":"AT204*AU204*AV204","v":477.3},null,null,{"$f":"'DNSP Inputs Capex'!$F$14","v":63.64},1,{"$f":"'DNSP Inputs Capex'!$F$15","v":7.5},{"$f":"AZ204*BA204*BB204","v":477.3},null,null,null,{"$f":"'DNSP Inputs Capex'!$G$13","v":50.18},1,{"$f":"'DNSP Inputs Capex'!$G$15","v":7.5},{"$f":"BG204*BH204*BI204","v":376.35},null,null,{"$f":"'DNSP Inputs Capex'!$G$14","v":63.64},1,{"$f":"'DNSP Inputs Capex'!$G$15","v":7.5},{"$f":"BM204*BN204*BO204","v":477.3},null,null,{"$f":"'DNSP Inputs Capex'!$G$14","v":63.64},1,{"$f":"'DNSP Inputs Capex'!$G$15","v":7.5},{"$f":"BS204*BT204*BU204","v":477.3},null,null,null,{"$f":"'DNSP Inputs Capex'!$H$13","v":50.18},1,{"$f":"'DNSP Inputs Capex'!$H$15","v":7.5},{"$f":"BZ204*CA204*CB204","v":376.35},null,null,{"$f":"'DNSP Inputs Capex'!$H$14","v":63.64},1,{"$f":"'DNSP Inputs Capex'!$H$15","v":7.5},{"$f":"CF204*CG204*CH204","v":477.3},null,null,{"$f":"'DNSP Inputs Capex'!$H$14","v":63.64},1,{"$f":"'DNSP Inputs Capex'!$H$15","v":7.5},{"$f":"CL204*CM204*CN204","v":477.3}]
[{"$f":"'DNSP Inputs Capex'!$A$185","v":"Other Capex unit costs Describe :………………………"},null,null,null,null,{"$f":"'DNSP Inputs Capex'!$D$219","v":0},null,null,null,null,null,{"$f":"'DNSP Inputs Capex'!$D$219","v":0},null,null,null,null,null,{"$f":"'DNSP Inputs Capex'!$D$219","v":0},null,null,null,null,null,null,{"$f":"'DNSP Inputs Capex'!$E$219","v":0},null,null,null,null,null,{"$f":"'DNSP Inputs Capex'!$E$219","v":0},null,null,null,null,null,{"$f":"'DNSP Inputs Capex'!$E$219","v":0},null,null,null,null,null,null,{"$f":"'DNSP Inputs Capex'!$F$219","v":0},null,null,null,null,null,{"$f":"'DNSP Inputs Capex'!$F$219","v":0},null,null,null,null,null,{"$f":"'DNSP Inputs Capex'!$F$219","v":0},null,null,null,null,null,null,{"$f":"'DNSP Inputs Capex'!$G$219","v":0},null,null,null,null,null,{"$f":"'DNSP Inputs Capex'!$G$219","v":0},null,null,null,null,null,{"$f":"'DNSP Inputs Capex'!$G$219","v":0},null,null,null,null,null,null,{"$f":"'DNSP Inputs Capex'!$H$219","v":0},null,null,null,null,null,{"$f":"'DNSP Inputs Capex'!$H$219","v":0},null,null,null,null,null,{"$f":"'DNSP Inputs Capex'!$H$219","v":0}]
[null,null,null,null,null,{"$f":"SUM(F202,F205)","v":778.8039678453265},null,null,null,null,null,{"$f":"SUM(L202,L205)","v":848.63426811732472},null,null,null,null,null,{"$f":"SUM(R202,R205)","v":898.19734855252227},null,null,null,null,null,null,{"$f":"SUM(Y202,Y205)","v":779.49582615627196},null,null,null,null,null,{"$f":"SUM(AE202,AE205)","v":849.48578603848841},null,null,null,null,null,{"$f":"SUM(AK202,AK205)","v":899.30432185003497},null,null,null,null,null,null,{"$f":"SUM(AR202,AR205)","v":780.13598175589846},null,null,null,null,null,{"$f":"SUM(AX202,AX205)","v":850.27366985341337},null,null,null,null,null,{"$f":"SUM(BD202,BD205)","v":900.32857080943745},null,null,null,null,null,null,{"$f":"SUM(BK202,BK205)","v":780.91077252227853},null,null,null,null,null,{"$f":"SUM(BQ202,BQ205)","v":851.227258488958},null,null,null,null,null,{"$f":"SUM(BW202,BW205)","v":901.56823603564555},null,null,null,null,null,null,{"$f":"SUM(CD202,CD205)","v":781.92361550022781},null,null,null,null,null,{"$f":"SUM(CJ202,CJ205)","v":852.47383446181868},null,null,null,null,null,{"$f":"SUM(CP202,CP205)","v":903.18878480036437}]
[]
["Number of luminaires replaced",null,null,null,null,{"$f":"'DNSP Inputs Capex'!$D$222","v":47.268498970173503},null,null,null,null,null,{"$f":"'DNSP Inputs Capex'!$D$223","v":11.93907649427241},null,null,null,null,null,{"$f":"'DNSP Inputs Capex'!$D$224","v":2.3170832828516423},null,null,null,null,null,null,{"$f":"'DNSP Inputs Capex'!$E$222","v":47.74717948102267},null,null,null,null,null,{"$f":"'DNSP Inputs Capex'!$E$223","v":12.059981607822804},null,null,null,null,null,{"$f":"'DNSP Inputs Capex'!$E$224","v":2.3405480137756207},null,null,null,null,null,null,{"$f":"'DNSP Inputs Capex'!$F$222","v":48.230586257450312},null,null,null,null,null,{"$f":"'DNSP Inputs Capex'!$F$223","v":12.182080481435463},null,null,null,null,null,{"$f":"'DNSP Inputs Capex'!$F$224","v":2.3642444243848191},null,null,null,null,null,null,{"$f":"'DNSP Inputs Capex'!$G$222","v":48.720148985545258},null,null,null,null,null,{"$f":"'DNSP Inputs Capex'!$G$223","v":12.30573422519319},null,null,null,null,null,{"$f":"'DNSP Inputs Capex'!$G$224","v":2.3882425973306498},null,null,null,null,null,null,{"$f":"'DNSP Inputs Capex'!$H$222","v":9.2715815975009477},null,null,null,null,null,{"$f":"'DNSP Inputs Capex'!$H$223","v":2.3418158885328757},null,null,null,null,null,{"$f":"'DNSP Inputs Capex'!$H$224","v":0.45448929399514443}]
[]
["Capex",null,null,null,null,{"$f":"F206*F208","v":36812.894552063852},null,null,null,null,null,{"$f":"L206*L208","v":10131.909442713621},null,null,null,null,null,{"$f":"R206*R208","v":2081.1980610327191},null,null,null,null,null,null,{"$f":"Y206*Y208","v":37218.727116191563},null,null,null,null,null,{"$f":"AE206*AE208","v":10244.782955731069},null,null,null,null,null,{"$f":"AK206*AK208","v":2104.864944285931},null,null,null,null,null,null,{"$f":"AR206*AR208","v":37626.415760618547},null,null,null,null,null,{"$f":"AX206*AX208","v":10358.102277399768},null,null,null,null,null,{"$f":"BD206*BD208","v":2128.5968036505651},null,null,null,null,null,null,{"$f":"BK206*BK208","v":38046.08918170265},null,null,null,null,null,{"$f":"BQ206*BQ208","v":10474.976408204941},null,null,null,null,null,{"$f":"BW206*BW208","v":2153.1636657005824},null,null,null,null,null,null,{"$f":"CD206*CD208","v":7249.6686041233188},null,null,null,null,null,{"$f":"CJ206*CJ208","v":1996.3367701012314},null,null,null,null,null,{"$f":"CP206*CP208","v":410.48963314825005}]
[]
[]
[{"$f":"'DNSP Inputs General'!$A$78","v":"Smart lighting L1"}]
["Luminaires "]
["Material",{"$f":"'DNSP Inputs Capex'!$D$229","v":402},{"$f":"'DNSP Inputs Capex'!$D$231","v":16},null,{"$f":"B215*C215","v":6432},{"$f":"IFERROR((E215+E216+E217)/C215,0)","v":529.9239678453265},null,{"$f":"'DNSP Inputs Capex'!$D$229*(1+'DNSP Inputs Capex'!$D$11)","v":422.1},{"$f":"'DNSP Inputs Capex'!$D$232","v":13},null,{"$f":"H215*I215","v":5487.3},{"$f":"IFERROR((K215+K216+K217)/I215,0)","v":587.31026811732488},null,{"$f":"'DNSP Inputs Capex'!$D$229*(1+'DNSP Inputs Capex'!$D$11)","v":422.1},{"$f":"'DNSP Inputs Capex'!$D$233","v":10},null,{"$f":"N215*O215","v":4221},{"$f":"IFERROR((Q215+Q216+Q217)/O215,0)","v":636.87334855252243},null,null,{"$f":"'DNSP Inputs Capex'!$E$229","v":402},{"$f":"'DNSP Inputs Capex'!$E$231","v":16},null,{"$f":"U215*V215","v":6432},{"$f":"IFERROR((X215+X216+X217)/V215,0)","v":530.61582615627196},null,{"$f":"'DNSP Inputs Capex'!$E$229*(1+'DNSP Inputs Capex'!$E$11)","v":422.1},{"$f":"'DNSP Inputs Capex'!$E$232","v":13},null,{"$f":"AA215*AB215","v":5487.3},{"$f":"IFERROR((AD215+AD216+AD217)/AB215,0)","v":588.16178603848869},null,{"$f":"'DNSP Inputs Capex'!$E$229*(1+'DNSP Inputs Capex'!$E$11)","v":422.1},{"$f":"'DNSP Inputs Capex'!$E$233","v":10},null,{"$f":"AG215*AH215","v":4221},{"$f":"IFERROR((AJ215+AJ216+AJ217)/AH215,0)","v":637.98032185003524},null,null,{"$f":"'DNSP Inputs Capex'!$F$229","v":402},{"$f":"'DNSP Inputs Capex'!$F$231","v":16},null,{"$f":"AN215*AO215","v":6432},{"$f":"IFERROR((AQ215+AQ216+AQ217)/AO215,0)","v":531.25598175589846},null,{"$f":"'DNSP Inputs Capex'!$F$229*(1+'DNSP Inputs Capex'!$F$11)","v":422.1},{"$f":"'DNSP Inputs Capex'!$F$232","v":13},null,{"$f":"AT215*AU215","v":5487.3},{"$f":"IFERROR((AW215+AW216+AW217)/AU215,0)","v":588.94966985341341},null,{"$f":"'DNSP Inputs Capex'!$F$229*(1+'DNSP Inputs Capex'!$F$11)","v":422.1},{"$f":"'DNSP Inputs Capex'!$F$233","v":10},null,{"$f":"AZ215*BA215","v":4221},{"$f":"IFERROR((BC215+BC216+BC217)/BA215,0)","v":639.0045708094375},null,null,{"$f":"'DNSP Inputs Capex'!$G$229","v":402},{"$f":"'DNSP Inputs Capex'!$G$231","v":16},null,{"$f":"BG215*BH215","v":6432},{"$f":"IFERROR((BJ215+BJ216+BJ217)/BH215,0)","v":532.03077252227854},null,{"$f":"'DNSP Inputs Capex'!$G$229*(1+'DNSP Inputs Capex'!$G$11)","v":422.1},{"$f":"'DNSP Inputs Capex'!$G$232","v":13},null,{"$f":"BM215*BN215","v":5487.3},{"$f":"IFERROR((BP215+BP216+BP217)/BN215,0)","v":589.90325848895816},null,{"$f":"'DNSP Inputs Capex'!$G$229*(1+'DNSP Inputs Capex'!$G$11)","v":422.1},{"$f":"'DNSP Inputs Capex'!$G$233","v":10},null,{"$f":"BS215*BT215","v":4221},{"$f":"IFERROR((BV215+BV216+BV217)/BT215,0)","v":640.2442360356456},null,null,{"$f":"'DNSP Inputs Capex'!$H$229","v":402},{"$f":"'DNSP Inputs Capex'!$H$231","v":16},null,{"$f":"BZ215*CA215","v":6432},{"$f":"IFERROR((CC215+CC216+CC217)/CA215,0)","v":533.04361550022782},null,{"$f":"'DNSP Inputs Capex'!$H$229*(1+'DNSP Inputs Capex'!$H$11)","v":422.1},{"$f":"'DNSP Inputs Capex'!$H$232","v":13},null,{"$f":"CF215*CG215","v":5487.3},{"$f":"IFERROR((CI215+CI216+CI217)/CG215,0)","v":591.14983446181873},null,{"$f":"'DNSP Inputs Capex'!$H$229*(1+'DNSP Inputs Capex'!$H$11)","v":422.1},{"$f":"'DNSP Inputs Capex'!$H$233","v":10},null,{"$f":"CL215*CM215","v":4221},{"$f":"IFERROR((CO215+CO216+CO217)/CM215,0)","v":641.86478480036453}]
["Crew costs",{"$f":"'DNSP Inputs Capex'!$D$12","v":111.36223236834823},{"$f":"'DNSP Inputs Capex'!$D$230","v":2},{"$f":"'DNSP Inputs Capex'!$D$15","v":7.5},{"$f":"D216*C216*B216","v":1670.4334855252234},null,null,{"$f":"'DNSP Inputs Capex'!$D$12","v":111.36223236834823},{"$f":"'DNSP Inputs Capex'!$D$230","v":2},{"$f":"'DNSP Inputs Capex'!$D$15","v":7.5},{"$f":"J216*I216*H216","v":1670.4334855252234},null,null,{"$f":"'DNSP Inputs Capex'!$D$12","v":111.36223236834823},{"$f":"'DNSP Inputs Capex'!$D$230","v":2},{"$f":"'DNSP Inputs Capex'!$D$15","v":7.5},{"$f":"P216*O216*N216","v":1670.4334855252234},null,null,null,{"$f":"'DNSP Inputs Capex'!$E$12","v":112.10021456669011},{"$f":"'DNSP Inputs Capex'!$E$230","v":2},{"$f":"'DNSP Inputs Capex'!$E$15","v":7.5},{"$f":"W216*V216*U216","v":1681.5032185003517},null,null,{"$f":"'DNSP Inputs Capex'!$E$12","v":112.10021456669011},{"$f":"'DNSP Inputs Capex'!$E$230","v":2},{"$f":"'DNSP Inputs Capex'!$E$15","v":7.5},{"$f":"AC216*AB216*AA216","v":1681.5032185003517},null,null,{"$f":"'DNSP Inputs Capex'!$E$12","v":112.10021456669011},{"$f":"'DNSP Inputs Capex'!$E$230","v":2},{"$f":"'DNSP Inputs Capex'!$E$15","v":7.5},{"$f":"AI216*AH216*AG216","v":1681.5032185003517},null,null,null,{"$f":"'DNSP Inputs Capex'!$F$12","v":112.78304720629164},{"$f":"'DNSP Inputs Capex'!$F$230","v":2},{"$f":"'DNSP Inputs Capex'!$F$15","v":7.5},{"$f":"AP216*AO216*AN216","v":1691.7457080943745},null,null,{"$f":"'DNSP Inputs Capex'!$F$12","v":112.78304720629164},{"$f":"'DNSP Inputs Capex'!$F$230","v":2},{"$f":"'DNSP Inputs Capex'!$F$15","v":7.5},{"$f":"AV216*AU216*AT216","v":1691.7457080943745},null,null,{"$f":"'DNSP Inputs Capex'!$F$12","v":112.78304720629164},{"$f":"'DNSP Inputs Capex'!$F$230","v":2},{"$f":"'DNSP Inputs Capex'!$F$15","v":7.5},{"$f":"BB216*BA216*AZ216","v":1691.7457080943745},null,null,null,{"$f":"'DNSP Inputs Capex'!$G$12","v":113.60949069043043},{"$f":"'DNSP Inputs Capex'!$G$230","v":2},{"$f":"'DNSP Inputs Capex'!$G$15","v":7.5},{"$f":"BI216*BH216*BG216","v":1704.1423603564565},null,null,{"$f":"'DNSP Inputs Capex'!$G$12","v":113.60949069043043},{"$f":"'DNSP Inputs Capex'!$G$230","v":2},{"$f":"'DNSP Inputs Capex'!$G$15","v":7.5},{"$f":"BO216*BN216*BM216","v":1704.1423603564565},null,null,{"$f":"'DNSP Inputs Capex'!$G$12","v":113.60949069043043},{"$f":"'DNSP Inputs Capex'!$G$230","v":2},{"$f":"'DNSP Inputs Capex'!$G$15","v":7.5},{"$f":"BU216*BT216*BS216","v":1704.1423603564565},null,null,null,{"$f":"'DNSP Inputs Capex'!$H$12","v":114.68985653357629},{"$f":"'DNSP Inputs Capex'!$H$230","v":2},{"$f":"'DNSP Inputs Capex'!$H$15","v":7.5},{"$f":"CB216*CA216*BZ216","v":1720.3478480036442},null,null,{"$f":"'DNSP Inputs Capex'!$H$12","v":114.68985653357629},{"$f":"'DNSP Inputs Capex'!$H$230","v":2},{"$f":"'DNSP Inputs Capex'!$H$15","v":7.5},{"$f":"CH216*CG216*CF216","v":1720.3478480036442},null,null,{"$f":"'DNSP Inputs Capex'!$H$12","v":114.68985653357629},{"$f":"'DNSP Inputs Capex'!$H$230","v":2},{"$f":"'DNSP Inputs Capex'!$H$15","v":7.5},{"$f":"CN216*CM216*CL216","v":1720.3478480036442}]
["Elevated platform vehicle costs",{"$f":"'DNSP Inputs Capex'!$D$13","v":50.18},1,{"$f":"'DNSP Inputs Capex'!$D$15","v":7.5},{"$f":"B217*C217*D217","v":376.35},null,null,{"$f":"'DNSP Inputs Capex'!$D$14","v":63.64},1,{"$f":"'DNSP Inputs Capex'!$D$15","v":7.5},{"$f":"H217*I217*J217","v":477.3},null,null,{"$f":"'DNSP Inputs Capex'!$D$14","v":63.64},1,{"$f":"'DNSP Inputs Capex'!$D$15","v":7.5},{"$f":"N217*O217*P217","v":477.3},null,null,null,{"$f":"'DNSP Inputs Capex'!$E$13","v":50.18},1,{"$f":"'DNSP Inputs Capex'!$E$15","v":7.5},{"$f":"U217*V217*W217","v":376.35},null,null,{"$f":"'DNSP Inputs Capex'!$E$14","v":63.64},1,{"$f":"'DNSP Inputs Capex'!$E$15","v":7.5},{"$f":"AA217*AB217*AC217","v":477.3},null,null,{"$f":"'DNSP Inputs Capex'!$E$14","v":63.64},1,{"$f":"'DNSP Inputs Capex'!$E$15","v":7.5},{"$f":"AG217*AH217*AI217","v":477.3},null,null,null,{"$f":"'DNSP Inputs Capex'!$F$13","v":50.18},1,{"$f":"'DNSP Inputs Capex'!$F$15","v":7.5},{"$f":"AN217*AO217*AP217","v":376.35},null,null,{"$f":"'DNSP Inputs Capex'!$F$14","v":63.64},1,{"$f":"'DNSP Inputs Capex'!$F$15","v":7.5},{"$f":"AT217*AU217*AV217","v":477.3},null,null,{"$f":"'DNSP Inputs Capex'!$F$14","v":63.64},1,{"$f":"'DNSP Inputs Capex'!$F$15","v":7.5},{"$f":"AZ217*BA217*BB217","v":477.3},null,null,null,{"$f":"'DNSP Inputs Capex'!$G$13","v":50.18},1,{"$f":"'DNSP Inputs Capex'!$G$15","v":7.5},{"$f":"BG217*BH217*BI217","v":376.35},null,null,{"$f":"'DNSP Inputs Capex'!$G$14","v":63.64},1,{"$f":"'DNSP Inputs Capex'!$G$15","v":7.5},{"$f":"BM217*BN217*BO217","v":477.3},null,null,{"$f":"'DNSP Inputs Capex'!$G$14","v":63.64},1,{"$f":"'DNSP Inputs Capex'!$G$15","v":7.5},{"$f":"BS217*BT217*BU217","v":477.3},null,null,null,{"$f":"'DNSP Inputs Capex'!$H$13","v":50.18},1,{"$f":"'DNSP Inputs Capex'!$H$15","v":7.5},{"$f":"BZ217*CA217*CB217","v":376.35},null,null,{"$f":"'DNSP Inputs Capex'!$H$14","v":63.64},1,{"$f":"'DNSP Inputs Capex'!$H$15","v":7.5},{"$f":"CF217*CG217*CH217","v":477.3},null,null,{"$f":"'DNSP Inputs Capex'!$H$14","v":63.64},1,{"$f":"'DNSP Inputs Capex'!$H$15","v":7.5},{"$f":"CL217*CM217*CN217","v":477.3}]
[{"$f":"'DNSP Inputs Capex'!$A$185","v":"Other Capex unit costs Describe :………………………"},null,null,null,null,{"$f":"'DNSP Inputs Capex'!$D$235","v":0},null,null,null,null,null,{"$f":"'DNSP Inputs Capex'!$D$235","v":0},null,null,null,null,null,{"$f":"'DNSP Inputs Capex'!$D$235","v":0},null,null,null,null,null,null,{"$f":"'DNSP Inputs Capex'!$E$235","v":0},null,null,null,null,null,{"$f":"'DNSP Inputs Capex'!$E$235","v":0},null,null,null,null,null,{"$f":"'DNSP Inputs Capex'!$E$235","v":0},null,null,null,null,null,null,{"$f":"'DNSP Inputs Capex'!$F$235","v":0},null,null,null,null,null,{"$f":"'DNSP Inputs Capex'!$F$235","v":0},null,null,null,null,null,{"$f":"'DNSP Inputs Capex'!$F$235","v":0},null,null,null,null,null,null,{"$f":"'DNSP Inputs Capex'!$G$235","v":0},null,null,null,null,null,{"$f":"'DNSP Inputs Capex'!$G$235","v":0},null,null,null,null,null,{"$f":"'DNSP Inputs Capex'!$G$235","v":0},null,null,null,null,null,null,{"$f":"'DNSP Inputs Capex'!$H$235","v":0},null,null,null,null,null,{"$f":"'DNSP Inputs Capex'!$H$235","v":0},null,null,null,null,null,{"$f":"'DNSP Inputs Capex'!$H$235","v":0}]
[null,null,null,null,null,{"$f":"SUM(F215,F218)","v":529.9239678453265},null,null,null,null,null,{"$f":"SUM(L215,L218)","v":587.31026811732488},null,null,null,null,null,{"$f":"SUM(R215,R218)","v":636.87334855252243},null,null,null,null,null,null,{"$f":"SUM(Y215,Y218)","v":530.61582615627196},null,null,null,null,null,{"$f":"SUM(AE215,AE218)","v":588.16178603848869},null,null,null,null,null,{"$f":"SUM(AK215,AK218)","v":637.98032185003524},null,null,null,null,null,null,{"$f":"SUM(AR215,AR218)","v":531.25598175589846},null,null,null,null,null,{"$f":"SUM(AX215,AX218)","v":588.94966985341341},null,null,null,null,null,{"$f":"SUM(BD215,BD218)","v":639.0045708094375},null,null,null,null,null,null,{"$f":"SUM(BK215,BK218)","v":532.03077252227854},null,null,null,null,null,{"$f":"SUM(BQ215,BQ218)","v":589.90325848895816},null,null,null,null,null,{"$f":"SUM(BW215,BW218)","v":640.2442360356456},null,null,null,null,null,null,{"$f":"SUM(CD215,CD218)","v":533.04361550022782},null,null,null,null,null,{"$f":"SUM(CJ215,CJ218)","v":591.14983446181873},null,null,null,null,null,{"$f":"SUM(CP215,CP218)","v":641.86478480036453}]
[]
["Number of luminaires replaced",null,null,null,null,{"$f":"'DNSP Inputs Capex'!$D$238","v":77},null,null,null,null,null,{"$f":"'DNSP Inputs Capex'!$D$239","v":19},null,null,null,null,null,{"$f":"'DNSP Inputs Capex'!$D$240","v":4},null,null,null,null,null,null,{"$f":"'DNSP Inputs Capex'!$E$238","v":77},null,null,null,null,null,{"$f":"'DNSP Inputs Capex'!$E$239","v":19},null,null,null,null,null,{"$f":"'DNSP Inputs Capex'!$E$240","v":4},null,null,null,null,null,null,{"$f":"'DNSP Inputs Capex'!$F$238","v":76.903152091006234},null,null,null,null,null,{"$f":"'DNSP Inputs Capex'!$F$239","v":19.826157352191721},null,null,null,null,null,{"$f":"'DNSP Inputs Capex'!$F$240","v":3.9070172593630508},null,null,null,null,null,null,{"$f":"'DNSP Inputs Capex'!$G$238","v":76.903152091006234},null,null,null,null,null,{"$f":"'DNSP Inputs Capex'!$G$239","v":19.826157352191721},null,null,null,null,null,{"$f":"'DNSP Inputs Capex'!$G$240","v":3.9070172593630508},null,null,null,null,null,null,{"$f":"'DNSP Inputs Capex'!$H$238","v":11.696015514894436},null,null,null,null,null,{"$f":"'DNSP Inputs Capex'!$H$239","v":2},null,null,null,null,null,{"$f":"'DNSP Inputs Capex'!$H$240","v":0}]
[]
["Capex",null,null,null,null,{"$f":"F219*F221","v":40804.145524090141},null,null,null,null,null,{"$f":"L219*L221","v":11158.895094229172},null,null,null,null,null,{"$f":"R219*R221","v":2547.4933942100897},null,null,null,null,null,null,{"$f":"Y219*Y221","v":40857.41861403294},null,null,null,null,null,{"$f":"AE219*AE221","v":11175.073934731285},null,null,null,null,null,{"$f":"AK219*AK221","v":2551.921287400141},null,null,null,null,null,null,{"$f":"AR219*AR221","v":40855.259564230691},null,null,null,null,null,{"$f":"AX219*AX221","v":11676.608827035139},null,null,null,null,null,{"$f":"BD219*BD221","v":2496.6018869643508},null,null,null,null,null,null,{"$f":"BK219*BK221","v":40914.84341637633},null,null,null,null,null,{"$f":"BQ219*BQ221","v":11695.514825372711},null,null,null,null,null,{"$f":"BW219*BW221","v":2501.4452803989784},null,null,null,null,null,null,{"$f":"CD219*CD221","v":6234.4863970060887},null,null,null,null,null,{"$f":"CJ219*CJ221","v":1182.2996689236375},null,null,null,null,null,{"$f":"CP219*CP221","v":0}]
[]
[]
[{"$f":"'DNSP Inputs General'!$A$79","v":"Smart lighting L2"}]
["Luminaires "]
["Material",{"$f":"'DNSP Inputs Capex'!$D$244","v":427},{"$f":"'DNSP Inputs Capex'!$D$246","v":16},null,{"$f":"B228*C228","v":6832},{"$f":"IFERROR((E228+E229+E230)/C228,0)","v":554.9239678453265},null,{"$f":"'DNSP Inputs Capex'!$D$244*(1+'DNSP Inputs Capex'!$D$11)","v":448.35},{"$f":"'DNSP Inputs Capex'!$D$247","v":13},null,{"$f":"H228*I228","v":5828.55},{"$f":"IFERROR((K228+K229+K230)/I228,0)","v":613.56026811732488},null,{"$f":"'DNSP Inputs Capex'!$D$244*(1+'DNSP Inputs Capex'!$D$11)","v":448.35},{"$f":"'DNSP Inputs Capex'!$D$248","v":10},null,{"$f":"N228*O228","v":4483.5},{"$f":"IFERROR((Q228+Q229+Q230)/O228,0)","v":663.12334855252243},null,null,{"$f":"'DNSP Inputs Capex'!$E$244","v":427},{"$f":"'DNSP Inputs Capex'!$E$246","v":16},null,{"$f":"U228*V228","v":6832},{"$f":"IFERROR((X228+X229+X230)/V228,0)","v":555.61582615627196},null,{"$f":"'DNSP Inputs Capex'!$E$244*(1+'DNSP Inputs Capex'!$E$11)","v":448.35},{"$f":"'DNSP Inputs Capex'!$E$247","v":13},null,{"$f":"AA228*AB228","v":5828.55},{"$f":"IFERROR((AD228+AD229+AD230)/AB228,0)","v":614.41178603848869},null,{"$f":"'DNSP Inputs Capex'!$E$244*(1+'DNSP Inputs Capex'!$E$11)","v":448.35},{"$f":"'DNSP Inputs Capex'!$E$248","v":10},null,{"$f":"AG228*AH228","v":4483.5},{"$f":"IFERROR((AJ228+AJ229+AJ230)/AH228,0)","v":664.23032185003524},null,null,{"$f":"'DNSP Inputs Capex'!$F$244","v":427},{"$f":"'DNSP Inputs Capex'!$F$246","v":16},null,{"$f":"AN228*AO228","v":6832},{"$f":"IFERROR((AQ228+AQ229+AQ230)/AO228,0)","v":556.25598175589846},null,{"$f":"'DNSP Inputs Capex'!$F$244*(1+'DNSP Inputs Capex'!$F$11)","v":448.35},{"$f":"'DNSP Inputs Capex'!$F$247","v":13},null,{"$f":"AT228*AU228","v":5828.55},{"$f":"IFERROR((AW228+AW229+AW230)/AU228,0)","v":615.19966985341341},null,{"$f":"'DNSP Inputs Capex'!$F$244*(1+'DNSP Inputs Capex'!$F$11)","v":448.35},{"$f":"'DNSP Inputs Capex'!$F$248","v":10},null,{"$f":"AZ228*BA228","v":4483.5},{"$f":"IFERROR((BC228+BC229+BC230)/BA228,0)","v":665.2545708094375},null,null,{"$f":"'DNSP Inputs Capex'!$G$244","v":427},{"$f":"'DNSP Inputs Capex'!$G$246","v":16},null,{"$f":"BG228*BH228","v":6832},{"$f":"IFERROR((BJ228+BJ229+BJ230)/BH228,0)","v":557.03077252227854},null,{"$f":"'DNSP Inputs Capex'!$G$244*(1+'DNSP Inputs Capex'!$G$11)","v":448.35},{"$f":"'DNSP Inputs Capex'!$G$247","v":13},null,{"$f":"BM228*BN228","v":5828.55},{"$f":"IFERROR((BP228+BP229+BP230)/BN228,0)","v":616.15325848895816},null,{"$f":"'DNSP Inputs Capex'!$G$244*(1+'DNSP Inputs Capex'!$G$11)","v":448.35},{"$f":"'DNSP Inputs Capex'!$G$248","v":10},null,{"$f":"BS228*BT228","v":4483.5},{"$f":"IFERROR((BV228+BV229+BV230)/BT228,0)","v":666.4942360356456},null,null,{"$f":"'DNSP Inputs Capex'!$H$244","v":427},{"$f":"'DNSP Inputs Capex'!$H$246","v":16},null,{"$f":"BZ228*CA228","v":6832},{"$f":"IFERROR((CC228+CC229+CC230)/CA228,0)","v":558.04361550022782},null,{"$f":"'DNSP Inputs Capex'!$H$244*(1+'DNSP Inputs Capex'!$H$11)","v":448.35},{"$f":"'DNSP Inputs Capex'!$H$247","v":13},null,{"$f":"CF228*CG228","v":5828.55},{"$f":"IFERROR((CI228+CI229+CI230)/CG228,0)","v":617.39983446181873},null,{"$f":"'DNSP Inputs Capex'!$H$244*(1+'DNSP Inputs Capex'!$H$11)","v":448.35},{"$f":"'DNSP Inputs Capex'!$H$248","v":10},null,{"$f":"CL228*CM228","v":4483.5},{"$f":"IFERROR((CO228+CO229+CO230)/CM228,0)","v":668.11478480036453}]
["Crew costs",{"$f":"'DNSP Inputs Capex'!$D$12","v":111.36223236834823},{"$f":"'DNSP Inputs Capex'!$D$245","v":2},{"$f":"'DNSP Inputs Capex'!$D$15","v":7.5},{"$f":"D229*C229*B229","v":1670.4334855252234},null,null,{"$f":"'DNSP Inputs Capex'!$D$12","v":111.36223236834823},{"$f":"'DNSP Inputs Capex'!$D$245","v":2},{"$f":"'DNSP Inputs Capex'!$D$15","v":7.5},{"$f":"J229*I229*H229","v":1670.4334855252234},null,null,{"$f":"'DNSP Inputs Capex'!$D$12","v":111.36223236834823},{"$f":"'DNSP Inputs Capex'!$D$245","v":2},{"$f":"'DNSP Inputs Capex'!$D$15","v":7.5},{"$f":"P229*O229*N229","v":1670.4334855252234},null,null,null,{"$f":"'DNSP Inputs Capex'!$E$12","v":112.10021456669011},{"$f":"'DNSP Inputs Capex'!$E$245","v":2},{"$f":"'DNSP Inputs Capex'!$E$15","v":7.5},{"$f":"W229*V229*U229","v":1681.5032185003517},null,null,{"$f":"'DNSP Inputs Capex'!$E$12","v":112.10021456669011},{"$f":"'DNSP Inputs Capex'!$E$245","v":2},{"$f":"'DNSP Inputs Capex'!$E$15","v":7.5},{"$f":"AC229*AB229*AA229","v":1681.5032185003517},null,null,{"$f":"'DNSP Inputs Capex'!$E$12","v":112.10021456669011},{"$f":"'DNSP Inputs Capex'!$E$245","v":2},{"$f":"'DNSP Inputs Capex'!$E$15","v":7.5},{"$f":"AI229*AH229*AG229","v":1681.5032185003517},null,null,null,{"$f":"'DNSP Inputs Capex'!$F$12","v":112.78304720629164},{"$f":"'DNSP Inputs Capex'!$F$245","v":2},{"$f":"'DNSP Inputs Capex'!$F$15","v":7.5},{"$f":"AP229*AO229*AN229","v":1691.7457080943745},null,null,{"$f":"'DNSP Inputs Capex'!$F$12","v":112.78304720629164},{"$f":"'DNSP Inputs Capex'!$F$245","v":2},{"$f":"'DNSP Inputs Capex'!$F$15","v":7.5},{"$f":"AV229*AU229*AT229","v":1691.7457080943745},null,null,{"$f":"'DNSP Inputs Capex'!$F$12","v":112.78304720629164},{"$f":"'DNSP Inputs Capex'!$F$245","v":2},{"$f":"'DNSP Inputs Capex'!$F$15","v":7.5},{"$f":"BB229*BA229*AZ229","v":1691.7457080943745},null,null,null,{"$f":"'DNSP Inputs Capex'!$G$12","v":113.60949069043043},{"$f":"'DNSP Inputs Capex'!$G$245","v":2},{"$f":"'DNSP Inputs Capex'!$G$15","v":7.5},{"$f":"BI229*BH229*BG229","v":1704.1423603564565},null,null,{"$f":"'DNSP Inputs Capex'!$G$12","v":113.60949069043043},{"$f":"'DNSP Inputs Capex'!$G$245","v":2},{"$f":"'DNSP Inputs Capex'!$G$15","v":7.5},{"$f":"BO229*BN229*BM229","v":1704.1423603564565},null,null,{"$f":"'DNSP Inputs Capex'!$G$12","v":113.60949069043043},{"$f":"'DNSP Inputs Capex'!$G$245","v":2},{"$f":"'DNSP Inputs Capex'!$G$15","v":7.5},{"$f":"BU229*BT229*BS229","v":1704.1423603564565},null,null,null,{"$f":"'DNSP Inputs Capex'!$H$12","v":114.68985653357629},{"$f":"'DNSP Inputs Capex'!$H$245","v":2},{"$f":"'DNSP Inputs Capex'!$H$15","v":7.5},{"$f":"CB229*CA229*BZ229","v":1720.3478480036442},null,null,{"$f":"'DNSP Inputs Capex'!$H$12","v":114.68985653357629},{"$f":"'DNSP Inputs Capex'!$H$245","v":2},{"$f":"'DNSP Inputs Capex'!$H$15","v":7.5},{"$f":"CH229*CG229*CF229","v":1720.3478480036442},null,null,{"$f":"'DNSP Inputs Capex'!$H$12","v":114.68985653357629},{"$f":"'DNSP Inputs Capex'!$H$245","v":2},{"$f":"'DNSP Inputs Capex'!$H$15","v":7.5},{"$f":"CN229*CM229*CL229","v":1720.3478480036442}]
["Elevated platform vehicle costs",{"$f":"'DNSP Inputs Capex'!$D$13","v":50.18},1,{"$f":"'DNSP Inputs Capex'!$D$15","v":7.5},{"$f":"B230*C230*D230","v":376.35},null,null,{"$f":"'DNSP Inputs Capex'!$D$14","v":63.64},1,{"$f":"'DNSP Inputs Capex'!$D$15","v":7.5},{"$f":"H230*I230*J230","v":477.3},null,null,{"$f":"'DNSP Inputs Capex'!$D$14","v":63.64},1,{"$f":"'DNSP Inputs Capex'!$D$15","v":7.5},{"$f":"N230*O230*P230","v":477.3},null,null,null,{"$f":"'DNSP Inputs Capex'!$E$13","v":50.18},1,{"$f":"'DNSP Inputs Capex'!$E$15","v":7.5},{"$f":"U230*V230*W230","v":376.35},null,null,{"$f":"'DNSP Inputs Capex'!$E$14","v":63.64},1,{"$f":"'DNSP Inputs Capex'!$E$15","v":7.5},{"$f":"AA230*AB230*AC230","v":477.3},null,null,{"$f":"'DNSP Inputs Capex'!$E$14","v":63.64},1,{"$f":"'DNSP Inputs Capex'!$E$15","v":7.5},{"$f":"AG230*AH230*AI230","v":477.3},null,null,null,{"$f":"'DNSP Inputs Capex'!$F$13","v":50.18},1,{"$f":"'DNSP Inputs Capex'!$F$15","v":7.5},{"$f":"AN230*AO230*AP230","v":376.35},null,null,{"$f":"'DNSP Inputs Capex'!$F$14","v":63.64},1,{"$f":"'DNSP Inputs Capex'!$F$15","v":7.5},{"$f":"AT230*AU230*AV230","v":477.3},null,null,{"$f":"'DNSP Inputs Capex'!$F$14","v":63.64},1,{"$f":"'DNSP Inputs Capex'!$F$15","v":7.5},{"$f":"AZ230*BA230*BB230","v":477.3},null,null,null,{"$f":"'DNSP Inputs Capex'!$G$13","v":50.18},1,{"$f":"'DNSP Inputs Capex'!$G$15","v":7.5},{"$f":"BG230*BH230*BI230","v":376.35},null,null,{"$f":"'DNSP Inputs Capex'!$G$14","v":63.64},1,{"$f":"'DNSP Inputs Capex'!$G$15","v":7.5},{"$f":"BM230*BN230*BO230","v":477.3},null,null,{"$f":"'DNSP Inputs Capex'!$G$14","v":63.64},1,{"$f":"'DNSP Inputs Capex'!$G$15","v":7.5},{"$f":"BS230*BT230*BU230","v":477.3},null,null,null,{"$f":"'DNSP Inputs Capex'!$H$13","v":50.18},1,{"$f":"'DNSP Inputs Capex'!$H$15","v":7.5},{"$f":"BZ230*CA230*CB230","v":376.35},null,null,{"$f":"'DNSP Inputs Capex'!$H$14","v":63.64},1,{"$f":"'DNSP Inputs Capex'!$H$15","v":7.5},{"$f":"CF230*CG230*CH230","v":477.3},null,null,{"$f":"'DNSP Inputs Capex'!$H$14","v":63.64},1,{"$f":"'DNSP Inputs Capex'!$H$15","v":7.5},{"$f":"CL230*CM230*CN230","v":477.3}]
[{"$f":"'DNSP Inputs Capex'!$A$185","v":"Other Capex unit costs Describe :………………………"},null,null,null,null,{"$f":"'DNSP Inputs Capex'!$D$235","v":0},null,null,null,null,null,{"$f":"'DNSP Inputs Capex'!$D$235","v":0},null,null,null,null,null,{"$f":"'DNSP Inputs Capex'!$D$235","v":0},null,null,null,null,null,null,{"$f":"'DNSP Inputs Capex'!$E$235","v":0},null,null,null,null,null,{"$f":"'DNSP Inputs Capex'!$E$235","v":0},null,null,null,null,null,{"$f":"'DNSP Inputs Capex'!$E$235","v":0},null,null,null,null,null,null,{"$f":"'DNSP Inputs Capex'!$F$235","v":0},null,null,null,null,null,{"$f":"'DNSP Inputs Capex'!$F$235","v":0},null,null,null,null,null,{"$f":"'DNSP Inputs Capex'!$F$235","v":0},null,null,null,null,null,null,{"$f":"'DNSP Inputs Capex'!$G$235","v":0},null,null,null,null,null,{"$f":"'DNSP Inputs Capex'!$G$235","v":0},null,null,null,null,null,{"$f":"'DNSP Inputs Capex'!$G$235","v":0},null,null,null,null,null,null,{"$f":"'DNSP Inputs Capex'!$H$235","v":0},null,null,null,null,null,{"$f":"'DNSP Inputs Capex'!$H$235","v":0},null,null,null,null,null,{"$f":"'DNSP Inputs Capex'!$H$235","v":0}]
[null,null,null,null,null,{"$f":"SUM(F228,F231)","v":554.9239678453265},null,null,null,null,null,{"$f":"SUM(L228,L231)","v":613.56026811732488},null,null,null,null,null,{"$f":"SUM(R228,R231)","v":663.12334855252243},null,null,null,null,null,null,{"$f":"SUM(Y228,Y231)","v":555.61582615627196},null,null,null,null,null,{"$f":"SUM(AE228,AE231)","v":614.41178603848869},null,null,null,null,null,{"$f":"SUM(AK228,AK231)","v":664.23032185003524},null,null,null,null,null,null,{"$f":"SUM(AR228,AR231)","v":556.25598175589846},null,null,null,null,null,{"$f":"SUM(AX228,AX231)","v":615.19966985341341},null,null,null,null,null,{"$f":"SUM(BD228,BD231)","v":665.2545708094375},null,null,null,null,null,null,{"$f":"SUM(BK228,BK231)","v":557.03077252227854},null,null,null,null,null,{"$f":"SUM(BQ228,BQ231)","v":616.15325848895816},null,null,null,null,null,{"$f":"SUM(BW228,BW231)","v":666.4942360356456},null,null,null,null,null,null,{"$f":"SUM(CD228,CD231)","v":558.04361550022782},null,null,null,null,null,{"$f":"SUM(CJ228,CJ231)","v":617.39983446181873},null,null,null,null,null,{"$f":"SUM(CP228,CP231)","v":668.11478480036453}]
[]
["Number of luminaires replaced",null,null,null,null,{"$f":"'DNSP Inputs Capex'!$D$253","v":77},null,null,null,null,null,{"$f":"'DNSP Inputs Capex'!$D$254","v":19},null,null,null,null,null,{"$f":"'DNSP Inputs Capex'!$D$255","v":4},null,null,null,null,null,null,{"$f":"'DNSP Inputs Capex'!$E$253","v":77},null,null,null,null,null,{"$f":"'DNSP Inputs Capex'!$E$254","v":19},null,null,null,null,null,{"$f":"'DNSP Inputs Capex'!$E$255","v":4},null,null,null,null,null,null,{"$f":"'DNSP Inputs Capex'!$F$253","v":76.903152091006234},null,null,null,null,null,{"$f":"'DNSP Inputs Capex'!$F$254","v":19.826157352191721},null,null,null,null,null,{"$f":"'DNSP Inputs Capex'!$F$255","v":3.9070172593630508},null,null,null,null,null,null,{"$f":"'DNSP Inputs Capex'!$G$253","v":76.903152091006234},null,null,null,null,null,{"$f":"'DNSP Inputs Capex'!$G$254","v":19.826157352191721},null,null,null,null,null,{"$f":"'DNSP Inputs Capex'!$G$255","v":3.9070172593630508},null,null,null,null,null,null,{"$f":"'DNSP Inputs Capex'!$H$253","v":11.696015514894436},null,null,null,null,null,{"$f":"'DNSP Inputs Capex'!$H$254","v":2},null,null,null,null,null,{"$f":"'DNSP Inputs Capex'!$H$255","v":0}]
[]
["Capex",null,null,null,null,{"$f":"F232*F234","v":42729.145524090141},null,null,null,null,null,{"$f":"L232*L234","v":11657.645094229172},null,null,null,null,null,{"$f":"R232*R234","v":2652.4933942100897},null,null,null,null,null,null,{"$f":"Y232*Y234","v":42782.41861403294},null,null,null,null,null,{"$f":"AE232*AE234","v":11673.823934731285},null,null,null,null,null,{"$f":"AK232*AK234","v":2656.921287400141},null,null,null,null,null,null,{"$f":"AR232*AR234","v":42777.83836650585},null,null,null,null,null,{"$f":"AX232*AX234","v":12197.045457530172},null,null,null,null,null,{"$f":"BD232*BD234","v":2599.161090022631},null,null,null,null,null,null,{"$f":"BK232*BK234","v":42837.422218651482},null,null,null,null,null,{"$f":"BQ232*BQ234","v":12215.951455867744},null,null,null,null,null,{"$f":"BW232*BW234","v":2604.0044834572582},null,null,null,null,null,null,{"$f":"CD232*CD234","v":6526.8867848784494},null,null,null,null,null,{"$f":"CJ232*CJ234","v":1234.7996689236375},null,null,null,null,null,{"$f":"CP232*CP234","v":0}]
[]
[]
[{"$f":"'DNSP Inputs General'!$A$80","v":"Smart lighting L4"}]
["Luminaires "]
["Material",{"$f":"'DNSP Inputs Capex'!$D$259","v":650.88},{"$f":"'DNSP Inputs Capex'!$D$261","v":16},null,{"$f":"B241*C241","v":10414.08},{"$f":"IFERROR((E241+E242+E243)/C241,0)","v":778.8039678453265},null,{"$f":"'DNSP Inputs Capex'!$D$259*(1+'DNSP Inputs Capex'!$D$11)","v":683.42399999999998},{"$f":"'DNSP Inputs Capex'!$D$262","v":13},null,{"$f":"H241*I241","v":8884.5119999999988},{"$f":"IFERROR((K241+K242+K243)/I241,0)","v":848.63426811732472},null,{"$f":"'DNSP Inputs Capex'!$D$259*(1+'DNSP Inputs Capex'!$D$11)","v":683.42399999999998},{"$f":"'DNSP Inputs Capex'!$D$263","v":10},null,{"$f":"N241*O241","v":6834.24},{"$f":"IFERROR((Q241+Q242+Q243)/O241,0)","v":898.19734855252227},null,null,{"$f":"'DNSP Inputs Capex'!$E$259","v":650.88},{"$f":"'DNSP Inputs Capex'!$E$261","v":16},null,{"$f":"U241*V241","v":10414.08},{"$f":"IFERROR((X241+X242+X243)/V241,0)","v":779.49582615627196},null,{"$f":"'DNSP Inputs Capex'!$E$259*(1+'DNSP Inputs Capex'!$E$11)","v":683.42399999999998},{"$f":"'DNSP Inputs Capex'!$E$262","v":13},null,{"$f":"AA241*AB241","v":8884.5119999999988},{"$f":"IFERROR((AD241+AD242+AD243)/AB241,0)","v":849.48578603848841},null,{"$f":"'DNSP Inputs Capex'!$E$259*(1+'DNSP Inputs Capex'!$E$11)","v":683.42399999999998},{"$f":"'DNSP Inputs Capex'!$E$263","v":10},null,{"$f":"AG241*AH241","v":6834.24},{"$f":"IFERROR((AJ241+AJ242+AJ243)/AH241,0)","v":899.30432185003497},null,null,{"$f":"'DNSP Inputs Capex'!$F$259","v":650.88},{"$f":"'DNSP Inputs Capex'!$F$261","v":16},null,{"$f":"AN241*AO241","v":10414.08},{"$f":"IFERROR((AQ241+AQ242+AQ243)/AO241,0)","v":780.13598175589846},null,{"$f":"'DNSP Inputs Capex'!$F$259*(1+'DNSP Inputs Capex'!$F$11)","v":683.42399999999998},{"$f":"'DNSP Inputs Capex'!$F$262","v":13},null,{"$f":"AT241*AU241","v":8884.5119999999988},{"$f":"IFERROR((AW241+AW242+AW243)/AU241,0)","v":850.27366985341337},null,{"$f":"'DNSP Inputs Capex'!$F$259*(1+'DNSP Inputs Capex'!$F$11)","v":683.42399999999998},{"$f":"'DNSP Inputs Capex'!$F$263","v":10},null,{"$f":"AZ241*BA241","v":6834.24},{"$f":"IFERROR((BC241+BC242+BC243)/BA241,0)","v":900.32857080943745},null,null,{"$f":"'DNSP Inputs Capex'!$G$259","v":650.88},{"$f":"'DNSP Inputs Capex'!$G$261","v":16},null,{"$f":"BG241*BH241","v":10414.08},{"$f":"IFERROR((BJ241+BJ242+BJ243)/BH241,0)","v":780.91077252227853},null,{"$f":"'DNSP Inputs Capex'!$G$259*(1+'DNSP Inputs Capex'!$G$11)","v":683.42399999999998},{"$f":"'DNSP Inputs Capex'!$G$262","v":13},null,{"$f":"BM241*BN241","v":8884.5119999999988},{"$f":"IFERROR((BP241+BP242+BP243)/BN241,0)","v":851.227258488958},null,{"$f":"'DNSP Inputs Capex'!$G$259*(1+'DNSP Inputs Capex'!$G$11)","v":683.42399999999998},{"$f":"'DNSP Inputs Capex'!$G$263","v":10},null,{"$f":"BS241*BT241","v":6834.24},{"$f":"IFERROR((BV241+BV242+BV243)/BT241,0)","v":901.56823603564555},null,null,{"$f":"'DNSP Inputs Capex'!$H$259","v":650.88},{"$f":"'DNSP Inputs Capex'!$H$261","v":16},null,{"$f":"BZ241*CA241","v":10414.08},{"$f":"IFERROR((CC241+CC242+CC243)/CA241,0)","v":781.92361550022781},null,{"$f":"'DNSP Inputs Capex'!$H$259*(1+'DNSP Inputs Capex'!$H$11)","v":683.42399999999998},{"$f":"'DNSP Inputs Capex'!$H$262","v":13},null,{"$f":"CF241*CG241","v":8884.5119999999988},{"$f":"IFERROR((CI241+CI242+CI243)/CG241,0)","v":852.47383446181868},null,{"$f":"'DNSP Inputs Capex'!$H$259*(1+'DNSP Inputs Capex'!$H$11)","v":683.42399999999998},{"$f":"'DNSP Inputs Capex'!$H$263","v":10},null,{"$f":"CL241*CM241","v":6834.24},{"$f":"IFERROR((CO241+CO242+CO243)/CM241,0)","v":903.18878480036437}]
["Crew costs",{"$f":"'DNSP Inputs Capex'!$D$12","v":111.36223236834823},{"$f":"'DNSP Inputs Capex'!$D$260","v":2},{"$f":"'DNSP Inputs Capex'!$D$15","v":7.5},{"$f":"D242*C242*B242","v":1670.4334855252234},null,null,{"$f":"'DNSP Inputs Capex'!$D$12","v":111.36223236834823},{"$f":"'DNSP Inputs Capex'!$D$260","v":2},{"$f":"'DNSP Inputs Capex'!$D$15","v":7.5},{"$f":"J242*I242*H242","v":1670.4334855252234},null,null,{"$f":"'DNSP Inputs Capex'!$D$12","v":111.36223236834823},{"$f":"'DNSP Inputs Capex'!$D$260","v":2},{"$f":"'DNSP Inputs Capex'!$D$15","v":7.5},{"$f":"P242*O242*N242","v":1670.4334855252234},null,null,null,{"$f":"'DNSP Inputs Capex'!$E$12","v":112.10021456669011},{"$f":"'DNSP Inputs Capex'!$E$260","v":2},{"$f":"'DNSP Inputs Capex'!$E$15","v":7.5},{"$f":"W242*V242*U242","v":1681.5032185003517},null,null,{"$f":"'DNSP Inputs Capex'!$E$12","v":112.10021456669011},{"$f":"'DNSP Inputs Capex'!$E$260","v":2},{"$f":"'DNSP Inputs Capex'!$E$15","v":7.5},{"$f":"AC242*AB242*AA242","v":1681.5032185003517},null,null,{"$f":"'DNSP Inputs Capex'!$E$12","v":112.10021456669011},{"$f":"'DNSP Inputs Capex'!$E$260","v":2},{"$f":"'DNSP Inputs Capex'!$E$15","v":7.5},{"$f":"AI242*AH242*AG242","v":1681.5032185003517},null,null,null,{"$f":"'DNSP Inputs Capex'!$F$12","v":112.78304720629164},{"$f":"'DNSP Inputs Capex'!$F$260","v":2},{"$f":"'DNSP Inputs Capex'!$F$15","v":7.5},{"$f":"AP242*AO242*AN242","v":1691.7457080943745},null,null,{"$f":"'DNSP Inputs Capex'!$F$12","v":112.78304720629164},{"$f":"'DNSP Inputs Capex'!$F$260","v":2},{"$f":"'DNSP Inputs Capex'!$F$15","v":7.5},{"$f":"AV242*AU242*AT242","v":1691.7457080943745},null,null,{"$f":"'DNSP Inputs Capex'!$F$12","v":112.78304720629164},{"$f":"'DNSP Inputs Capex'!$F$260","v":2},{"$f":"'DNSP Inputs Capex'!$F$15","v":7.5},{"$f":"BB242*BA242*AZ242","v":1691.7457080943745},null,null,null,{"$f":"'DNSP Inputs Capex'!$G$12","v":113.60949069043043},{"$f":"'DNSP Inputs Capex'!$G$260","v":2},{"$f":"'DNSP Inputs Capex'!$G$15","v":7.5},{"$f":"BI242*BH242*BG242","v":1704.1423603564565},null,null,{"$f":"'DNSP Inputs Capex'!$G$12","v":113.60949069043043},{"$f":"'DNSP Inputs Capex'!$G$260","v":2},{"$f":"'DNSP Inputs Capex'!$G$15","v":7.5},{"$f":"BO242*BN242*BM242","v":1704.1423603564565},null,null,{"$f":"'DNSP Inputs Capex'!$G$12","v":113.60949069043043},{"$f":"'DNSP Inputs Capex'!$G$260","v":2},{"$f":"'DNSP Inputs Capex'!$G$15","v":7.5},{"$f":"BU242*BT242*BS242","v":1704.1423603564565},null,null,null,{"$f":"'DNSP Inputs Capex'!$H$12","v":114.68985653357629},{"$f":"'DNSP Inputs Capex'!$H$260","v":2},{"$f":"'DNSP Inputs Capex'!$H$15","v":7.5},{"$f":"CB242*CA242*BZ242","v":1720.3478480036442},null,null,{"$f":"'DNSP Inputs Capex'!$H$12","v":114.68985653357629},{"$f":"'DNSP Inputs Capex'!$H$260","v":2},{"$f":"'DNSP Inputs Capex'!$H$15","v":7.5},{"$f":"CH242*CG242*CF242","v":1720.3478480036442},null,null,{"$f":"'DNSP Inputs Capex'!$H$12","v":114.68985653357629},{"$f":"'DNSP Inputs Capex'!$H$260","v":2},{"$f":"'DNSP Inputs Capex'!$H$15","v":7.5},{"$f":"CN242*CM242*CL242","v":1720.3478480036442}]
["Elevated platform vehicle costs",{"$f":"'DNSP Inputs Capex'!$D$13","v":50.18},1,{"$f":"'DNSP Inputs Capex'!$D$15","v":7.5},{"$f":"B243*C243*D243","v":376.35},null,null,{"$f":"'DNSP Inputs Capex'!$D$14","v":63.64},1,{"$f":"'DNSP Inputs Capex'!$D$15","v":7.5},{"$f":"H243*I243*J243","v":477.3},null,null,{"$f":"'DNSP Inputs Capex'!$D$14","v":63.64},1,{"$f":"'DNSP Inputs Capex'!$D$15","v":7.5},{"$f":"N243*O243*P243","v":477.3},null,null,null,{"$f":"'DNSP Inputs Capex'!$E$13","v":50.18},1,{"$f":"'DNSP Inputs Capex'!$E$15","v":7.5},{"$f":"U243*V243*W243","v":376.35},null,null,{"$f":"'DNSP Inputs Capex'!$E$14","v":63.64},1,{"$f":"'DNSP Inputs Capex'!$E$15","v":7.5},{"$f":"AA243*AB243*AC243","v":477.3},null,null,{"$f":"'DNSP Inputs Capex'!$E$14","v":63.64},1,{"$f":"'DNSP Inputs Capex'!$E$15","v":7.5},{"$f":"AG243*AH243*AI243","v":477.3},null,null,null,{"$f":"'DNSP Inputs Capex'!$F$13","v":50.18},1,{"$f":"'DNSP Inputs Capex'!$F$15","v":7.5},{"$f":"AN243*AO243*AP243","v":376.35},null,null,{"$f":"'DNSP Inputs Capex'!$F$14","v":63.64},1,{"$f":"'DNSP Inputs Capex'!$F$15","v":7.5},{"$f":"AT243*AU243*AV243","v":477.3},null,null,{"$f":"'DNSP Inputs Capex'!$F$14","v":63.64},1,{"$f":"'DNSP Inputs Capex'!$F$15","v":7.5},{"$f":"AZ243*BA243*BB243","v":477.3},null,null,null,{"$f":"'DNSP Inputs Capex'!$G$13","v":50.18},1,{"$f":"'DNSP Inputs Capex'!$G$15","v":7.5},{"$f":"BG243*BH243*BI243","v":376.35},null,null,{"$f":"'DNSP Inputs Capex'!$G$14","v":63.64},1,{"$f":"'DNSP Inputs Capex'!$G$15","v":7.5},{"$f":"BM243*BN243*BO243","v":477.3},null,null,{"$f":"'DNSP Inputs Capex'!$G$14","v":63.64},1,{"$f":"'DNSP Inputs Capex'!$G$15","v":7.5},{"$f":"BS243*BT243*BU243","v":477.3},null,null,null,{"$f":"'DNSP Inputs Capex'!$H$13","v":50.18},1,{"$f":"'DNSP Inputs Capex'!$H$15","v":7.5},{"$f":"BZ243*CA243*CB243","v":376.35},null,null,{"$f":"'DNSP Inputs Capex'!$H$14","v":63.64},1,{"$f":"'DNSP Inputs Capex'!$H$15","v":7.5},{"$f":"CF243*CG243*CH243","v":477.3},null,null,{"$f":"'DNSP Inputs Capex'!$H$14","v":63.64},1,{"$f":"'DNSP Inputs Capex'!$H$15","v":7.5},{"$f":"CL243*CM243*CN243","v":477.3}]
[{"$f":"'DNSP Inputs Capex'!$A$185","v":"Other Capex unit costs Describe :………………………"},null,null,null,null,{"$f":"'DNSP Inputs Capex'!$D$235","v":0},null,null,null,null,null,{"$f":"'DNSP Inputs Capex'!$D$235","v":0},null,null,null,null,null,{"$f":"'DNSP Inputs Capex'!$D$235","v":0},null,null,null,null,null,null,{"$f":"'DNSP Inputs Capex'!$E$235","v":0},null,null,null,null,null,{"$f":"'DNSP Inputs Capex'!$E$235","v":0},null,null,null,null,null,{"$f":"'DNSP Inputs Capex'!$E$235","v":0},null,null,null,null,null,null,{"$f":"'DNSP Inputs Capex'!$F$235","v":0},null,null,null,null,null,{"$f":"'DNSP Inputs Capex'!$F$235","v":0},null,null,null,null,null,{"$f":"'DNSP Inputs Capex'!$F$235","v":0},null,null,null,null,null,null,{"$f":"'DNSP Inputs Capex'!$G$235","v":0},null,null,null,null,null,{"$f":"'DNSP Inputs Capex'!$G$235","v":0},null,null,null,null,null,{"$f":"'DNSP Inputs Capex'!$G$235","v":0},null,null,null,null,null,null,{"$f":"'DNSP Inputs Capex'!$H$235","v":0},null,null,null,null,null,{"$f":"'DNSP Inputs Capex'!$H$235","v":0},null,null,null,null,null,{"$f":"'DNSP Inputs Capex'!$H$235","v":0}]
[null,null,null,null,null,{"$f":"SUM(F241,F244)","v":778.8039678453265},null,null,null,null,null,{"$f":"SUM(L241,L244)","v":848.63426811732472},null,null,null,null,null,{"$f":"SUM(R241,R244)","v":898.19734855252227},null,null,null,null,null,null,{"$f":"SUM(Y241,Y244)","v":779.49582615627196},null,null,null,null,null,{"$f":"SUM(AE241,AE244)","v":849.48578603848841},null,null,null,null,null,{"$f":"SUM(AK241,AK244)","v":899.30432185003497},null,null,null,null,null,null,{"$f":"SUM(AR241,AR244)","v":780.13598175589846},null,null,null,null,null,{"$f":"SUM(AX241,AX244)","v":850.27366985341337},null,null,null,null,null,{"$f":"SUM(BD241,BD244)","v":900.32857080943745},null,null,null,null,null,null,{"$f":"SUM(BK241,BK244)","v":780.91077252227853},null,null,null,null,null,{"$f":"SUM(BQ241,BQ244)","v":851.227258488958},null,null,null,null,null,{"$f":"SUM(BW241,BW244)","v":901.56823603564555},null,null,null,null,null,null,{"$f":"SUM(CD241,CD244)","v":781.92361550022781},null,null,null,null,null,{"$f":"SUM(CJ241,CJ244)","v":852.47383446181868},null,null,null,null,null,{"$f":"SUM(CP241,CP244)","v":903.18878480036437}]
[]
["Number of luminaires replaced",null,null,null,null,{"$f":"'DNSP Inputs Capex'!$D$268","v":77},null,null,null,null,null,{"$f":"'DNSP Inputs Capex'!$D$269","v":19},null,null,null,null,null,{"$f":"'DNSP Inputs Capex'!$D$270","v":4},null,null,null,null,null,null,{"$f":"'DNSP Inputs Capex'!$E$268","v":77},null,null,null,null,null,{"$f":"'DNSP Inputs Capex'!$E$269","v":19},null,null,null,null,null,{"$f":"'DNSP Inputs Capex'!$E$270","v":4},null,null,null,null,null,null,{"$f":"'DNSP Inputs Capex'!$F$268","v":76.903152091006234},null,null,null,null,null,{"$f":"'DNSP Inputs Capex'!$F$269","v":19.826157352191721},null,null,null,null,null,{"$f":"'DNSP Inputs Capex'!$F$270","v":3.9070172593630508},null,null,null,null,null,null,{"$f":"'DNSP Inputs Capex'!$G$268","v":76.903152091006234},null,null,null,null,null,{"$f":"'DNSP Inputs Capex'!$G$269","v":19.826157352191721},null,null,null,null,null,{"$f":"'DNSP Inputs Capex'!$G$270","v":3.9070172593630508},null,null,null,null,null,null,{"$f":"'DNSP Inputs Capex'!$H$268","v":11.696015514894436},null,null,null,null,null,{"$f":"'DNSP Inputs Capex'!$H$269","v":2},null,null,null,null,null,{"$f":"'DNSP Inputs Capex'!$H$270","v":0}]
[]
["Capex",null,null,null,null,{"$f":"F245*F247","v":59967.905524090143},null,null,null,null,null,{"$f":"L245*L247","v":16124.051094229169},null,null,null,null,null,{"$f":"R245*R247","v":3592.7893942100891},null,null,null,null,null,null,{"$f":"Y245*Y247","v":60021.178614032942},null,null,null,null,null,{"$f":"AE245*AE247","v":16140.22993473128},null,null,null,null,null,{"$f":"AK245*AK247","v":3597.2172874001399},null,null,null,null,null,null,{"$f":"AR245*AR247","v":59994.916056640322},null,null,null,null,null,{"$f":"AX245*AX247","v":16857.65957093929},null,null,null,null,null,{"$f":"BD245*BD247","v":3517.5992652501409},null,null,null,null,null,null,{"$f":"BK245*BK247","v":60054.499908785961},null,null,null,null,null,{"$f":"BQ245*BQ247","v":16876.565569276856},null,null,null,null,null,{"$f":"BW245*BW247","v":3522.442658684768},null,null,null,null,null,null,{"$f":"CD245*CD247","v":9145.390738353015},null,null,null,null,null,{"$f":"CJ245*CJ247","v":1704.9476689236374},null,null,null,null,null,{"$f":"CP245*CP247","v":0}]

{"sheet":"WACC","index":11,"n_rows":18,"n_cols":9,"rows_kept":18,"cut":false,"hidden":false,"merged":[]}
[{"$f":"'DNSP Inputs O & M'!$A$3","v":"AusNet"}]
[]
["WACC"]
[null,null,null,null,{"$f":"'DNSP Inputs General'!Q2","v":"2022-06-30"},{"$f":"'DNSP Inputs General'!R2","v":"2023-06-30"},{"$f":"'DNSP Inputs General'!S2","v":"2024-06-30"},{"$f":"'DNSP Inputs General'!T2","v":"2025-06-30"},{"$f":"'DNSP Inputs General'!U2","v":"2026-06-30"}]
[]
["CPI for Nominal pre tax WACC calculation",null,null,null,{"$f":"$C$14","v":1.9993872504847632E-2},{"$f":"$C$15","v":1.9993872504847632E-2},{"$f":"$C$16","v":1.9993872504847632E-2},{"$f":"$C$17","v":1.9993872504847632E-2},{"$f":"$C$18","v":1.9993872504847632E-2}]
["Real Pre Tax WACC",null,null,null,{"$f":"'DNSP Inputs General'!B$26","v":2.9892389027807331E-2},{"$f":"'DNSP Inputs General'!C$26","v":2.9892389027807331E-2},{"$f":"'DNSP Inputs General'!D$26","v":2.9892389027807331E-2},{"$f":"'DNSP Inputs General'!E$26","v":2.9892389027807331E-2},{"$f":"'DNSP Inputs General'!F$26","v":2.9892389027807331E-2}]
["Nominal Pre Tax WACC",null,null,null,{"$f":"(1+E6)*(1+E7)-1","v":5.0483926147742331E-2},5.0483926147742331E-2,5.0483926147742331E-2,5.0483926147742331E-2,5.0483926147742331E-2]
[]
[]
[]
[null,"CPI Index","CPI"]
[]
[{"$f":"'DNSP Inputs General'!A31","v":"2020-12-31"},{"$f":"IF('DNSP Inputs General'!B31=\"\",\"\",'DNSP Inputs General'!B31)","v":117.2},{"$f":"'DNSP Inputs General'!D31","v":1.9993872504847632E-2},"Forecast"]
[{"$f":"'DNSP Inputs General'!A32","v":"2021-12-31"},{"$f":"IF('DNSP Inputs General'!B32=\"\",\"\",'DNSP Inputs General'!B32)","v":""},{"$f":"IF(B15=\"\",'DNSP Inputs General'!D32,B15/B14-1)","v":1.9993872504847632E-2},{"$f":"IF(B15=\"\",\"Forecast\",\"Actual\")","v":"Forecast"}]
[{"$f":"'DNSP Inputs General'!A33","v":"2022-12-31"},{"$f":"IF('DNSP Inputs General'!B33=\"\",\"\",'DNSP Inputs General'!B33)","v":""},{"$f":"IF(B16=\"\",'DNSP Inputs General'!D33,B16/B15-1)","v":1.9993872504847632E-2},{"$f":"IF(B16=\"\",\"Forecast\",\"Actual\")","v":"Forecast"}]
[{"$f":"'DNSP Inputs General'!A34","v":"2023-12-31"},{"$f":"IF('DNSP Inputs General'!B34=\"\",\"\",'DNSP Inputs General'!B34)","v":""},{"$f":"IF(B17=\"\",'DNSP Inputs General'!D34,B17/B16-1)","v":1.9993872504847632E-2},"Forecast"]
[{"$f":"'DNSP Inputs General'!A35","v":"2024-12-31"},{"$f":"IF('DNSP Inputs General'!B35=\"\",\"\",'DNSP Inputs General'!B35)","v":""},{"$f":"IF(B18=\"\",'DNSP Inputs General'!D35,B18/B17-1)","v":1.9993872504847632E-2},"Forecast"]

{"sheet":"Depn & WACC Post 2004 Central","index":12,"n_rows":311,"n_cols":9,"rows_kept":311,"cut":false,"hidden":false,"merged":[[141,3,141,5],[94,3,94,4],[94,6,94,7],[123,3,123,4],[123,6,123,7],[141,6,141,7],[309,6,309,7],[262,3,262,4],[262,6,262,7],[291,3,291,4],[291,6,291,7],[309,3,309,5],[258,3,258,4],[206,6,206,7],[235,3,235,4],[253,6,253,7],[179,3,179,4],[179,6,179,7],[197,6,197,7],[202,3,202,4],[197,3,197,5],[253,3,253,5],[38,3,38,4],[38,6,38,7],[235,6,235,7],[206,3,206,4],[2,3,2,4],[6,3,6,4],[6,6,6,7],[34,3,34,4],[90,3,90,4],[67,3,67,4],[67,6,67,7],[85,6,85,7],[85,3,85,5],[150,3,150,4],[150,6,150,7],[146,3,146,4]]}
[{"$f":"'DNSP Inputs O & M'!$A$3","v":"AusNet"},null,null,null,"Check",{"$f":"SUM(E33,E65,E83,E121,E139,E177,E195,E233,E251,E289,E307)","v":1.0506482794880867E-8}]
[]
[null,null,null,{"$f":"'DNSP Inputs General'!B$39","v":"Central"}]
["RAB WDV",null,null,"Year",{"$f":"'DNSP Inputs General'!$P$2","v":"HY2021"}]
[]
[]
[{"$f":"'DNSP Inputs General'!B$41","v":"Reference Light"},{"$f":"'DNSP Inputs General'!D$41","v":"Price Factor"},{"$f":"'DNSP Inputs General'!A$41","v":"Existing Lights"},"RAB for Return",null,"Volumes","Unitisation - Luminaires",null,"RAB WDV"]
[{"$f":"'DNSP Inputs General'!B$42","v":"Mercury Vapour 80W"},{"$f":"'DNSP Inputs General'!D$42","v":1},{"$f":"'DNSP Inputs General'!A$42","v":"Mercury Vapour 80W"},{"$f":"'RAB 2001 to 2004 Central'!$V$143","v":4.2735065734902831},{"$f":"F8*D8","v":83931.669103349166},{"$f":"'DNSP Inputs General'!P$42","v":19640},null,null,{"$f":"IF(F8=0,0,E8/(E$32+'Depn & WACC Post 2004 N & E'!E$32)*I$32/F8)","v":149.05386325099531}]
[{"$f":"'DNSP Inputs General'!B$43","v":"HP Sodium 150W"},{"$f":"'DNSP Inputs General'!D$43","v":1},{"$f":"'DNSP Inputs General'!A$43","v":"HP Sodium 150W"},{"$f":"'RAB 2001 to 2004 Central'!$V$157","v":5.142155614406323},76016.486447768679,{"$f":"'DNSP Inputs General'!P$43","v":14783},null,null,{"$f":"IF(F9=0,0,E9/(E$32+'Depn & WACC Post 2004 N & E'!E$32)*I$32/F9)","v":179.35111285884173}]
[{"$f":"'DNSP Inputs General'!B$44","v":"HP Sodium 250W"},{"$f":"'DNSP Inputs General'!D$44","v":1},{"$f":"'DNSP Inputs General'!A$44","v":"HP Sodium 250W"},{"$f":"'RAB 2001 to 2004 Central'!$V$171","v":5.2453606411043205},36088.081210797725,{"$f":"'DNSP Inputs General'!P$44","v":6880},null,null,{"$f":"IF(F10=0,0,E10/(E$32+'Depn & WACC Post 2004 N & E'!E$32)*I$32/F10)","v":182.95075817860891}]
[{"$f":"'DNSP Inputs General'!B$45","v":"Mercury Vapour 80W"},{"$f":"'DNSP Inputs General'!D$45","v":1.53},{"$f":"'DNSP Inputs General'!A$45","v":"Mercury Vapour 50W"},{"$f":"B11*IF(A11=C8,D8,IF(A11=C9,D9,D10))","v":6.5384650574401331},460.12257455940693,{"$f":"'DNSP Inputs General'!P$45","v":70.371650000000002},null,null,{"$f":"IF(F11=0,0,E11/(E$32+'Depn & WACC Post 2004 N & E'!E$32)*I$32/F11)","v":228.05241077402277}]
[{"$f":"'DNSP Inputs General'!B$46","v":"Mercury Vapour 80W"},{"$f":"'DNSP Inputs General'!D$46","v":1.47},{"$f":"'DNSP Inputs General'!A$46","v":"Mercury Vapour 125W"},{"$f":"B12*IF(A12=C8,D8,IF(A12=C9,D9,D10))","v":6.2820546630307161},1768.3142081106621,{"$f":"'DNSP Inputs General'!P$46","v":281.48660000000001},null,null,{"$f":"IF(F12=0,0,E12/(E$32+'Depn & WACC Post 2004 N & E'!E$32)*I$32/F12)","v":219.10917897896309}]
[{"$f":"'DNSP Inputs General'!B$47","v":"HP Sodium 250W"},{"$f":"'DNSP Inputs General'!D$47","v":1.05},{"$f":"'DNSP Inputs General'!A$47","v":"Mercury Vapour 250W"},{"$f":"B13*IF(A13=C8,D8,IF(A13=C9,D9,D10))","v":5.5076286731595365},3335.3794433946673,{"$f":"'DNSP Inputs General'!P$47","v":605.59264999999994},null,null,{"$f":"IF(F13=0,0,E13/(E$32+'Depn & WACC Post 2004 N & E'!E$32)*I$32/F13)","v":192.09829608753935}]
[{"$f":"'DNSP Inputs General'!B$48","v":"HP Sodium 250W"},{"$f":"'DNSP Inputs General'!D$48","v":1.0900000000000001},{"$f":"'DNSP Inputs General'!A$48","v":"Mercury Vapour 400W"},{"$f":"B14*IF(A14=C8,D8,IF(A14=C9,D9,D10))","v":5.7174430988037095},657.35387237599844,{"$f":"'DNSP Inputs General'!P$48","v":114.9734},null,null,{"$f":"IF(F14=0,0,E14/(E$32+'Depn & WACC Post 2004 N & E'!E$32)*I$32/F14)","v":199.41632641468374}]
[{"$f":"'DNSP Inputs General'!B$49","v":"HP Sodium 150W"},{"$f":"'DNSP Inputs General'!D$49","v":1.07},{"$f":"'DNSP Inputs General'!A$49","v":"HP Sodium 100W"},{"$f":"B15*IF(A15=C8,D8,IF(A15=C9,D9,D10))","v":5.5021065074147657},13653.251387178909,{"$f":"'DNSP Inputs General'!P$49","v":2481.4589410036815},null,null,{"$f":"IF(F15=0,0,E15/(E$32+'Depn & WACC Post 2004 N & E'!E$32)*I$32/F15)","v":191.90569075896065}]
[{"$f":"'DNSP Inputs General'!B$50","v":"HP Sodium 250W"},{"$f":"'DNSP Inputs General'!D$50","v":1.42},{"$f":"'DNSP Inputs General'!A$50","v":"HP Sodium 400W"},{"$f":"B16*IF(A16=C8,D8,IF(A16=C9,D9,D10))","v":7.4484121103681344},1579.0633673980444,{"$f":"'DNSP Inputs General'!P$50","v":212},null,null,{"$f":"IF(F16=0,0,E16/(E$32+'Depn & WACC Post 2004 N & E'!E$32)*I$32/F16)","v":259.79007661362459}]
[{"$f":"'DNSP Inputs General'!B$51","v":"Mercury Vapour 80W"},{"$f":"'DNSP Inputs General'!D$51","v":4.3651056775797761},{"$f":"'DNSP Inputs General'!A$51","v":"Metal Halide 70W"},{"$f":"B17*IF(A17=C8,D8,IF(A17=C9,D9,D10))","v":18.654307807116929},505.9980992680467,{"$f":"'DNSP Inputs General'!P$51","v":27.125},null,null,{"$f":"IF(F17=0,0,E17/(E$32+'Depn & WACC Post 2004 N & E'!E$32)*I$32/F17)","v":650.635864742119}]
[{"$f":"'DNSP Inputs General'!B$52","v":"HP Sodium 150W"},{"$f":"'DNSP Inputs General'!D$52","v":2.3876890876224905},{"$f":"'DNSP Inputs General'!A$52","v":"Metal Halide 100W"},{"$f":"B18*IF(A18=C8,D8,IF(A18=C9,D9,D10))","v":12.2778688473747},365.26659820939733,{"$f":"'DNSP Inputs General'!P$52","v":29.75},null,null,{"$f":"IF(F18=0,0,E18/(E$32+'Depn & WACC Post 2004 N & E'!E$32)*I$32/F18)","v":428.23469502600608}]
[{"$f":"'DNSP Inputs General'!B$53","v":"HP Sodium 150W"},{"$f":"'DNSP Inputs General'!D$53","v":2.7125868138140996},{"$f":"'DNSP Inputs General'!A$53","v":"Metal Halide 150W"},{"$f":"B19*IF(A19=C8,D8,IF(A19=C9,D9,D10))","v":13.948543514218731},402.76419397306586,{"$f":"'DNSP Inputs General'!P$53","v":28.875},null,null,{"$f":"IF(F19=0,0,E19/(E$32+'Depn & WACC Post 2004 N & E'!E$32)*I$32/F19)","v":486.5054637837784}]
[{"$f":"'DNSP Inputs General'!B$54","v":"HP Sodium 150W"},{"$f":"'DNSP Inputs General'!D$54","v":0.44334506707259064},{"$f":"'DNSP Inputs General'!A$54","v":"HP Sodium 50W"},{"$f":"B20*IF(A20=C8,D8,IF(A20=C9,D9,D10))","v":2.2797493257666699},0,{"$f":"'DNSP Inputs General'!P$54","v":0},null,null,{"$f":"IF(F20=0,0,E20/(E$32+'Depn & WACC Post 2004 N & E'!E$32)*I$32/F20)","v":0}]
[]
[]
[]
[]
[]
[]
[]
[]
[]
[]
[]
[null,null,null,null,{"$f":"SUM(E8:E31)","v":218763.75050638372},{"$f":"SUM(F8:F31)","v":45154.633241003678},null,null,{"$f":"'Total RAB'!S$128","v":10711712.105149977}]
[null,null,null,"Check",{"$f":"SUM(F33:I33)","v":2.7939677238464355E-9},{"$f":"ABS('DNSP Inputs General'!P$66-F32)","v":0},null,null,{"$f":"ABS(I32-SUMPRODUCT(F8:F31,I8:I31)-SUMPRODUCT('Depn & WACC Post 2004 N & E'!F8:F31,'Depn & WACC Post 2004 N & E'!I8:I31))*IF(F32=0,0,1)","v":2.7939677238464355E-9}]
[]
[null,null,null,{"$f":"'DNSP Inputs General'!B$39","v":"Central"}]
["DEPRECIATION AND RETURN",null,null,"Year",{"$f":"'DNSP Inputs General'!$Q$2","v":"2022-06-30"}]
[]
[]
[{"$f":"'DNSP Inputs General'!B$41","v":"Reference Light"},{"$f":"'DNSP Inputs General'!D$41","v":"Price Factor"},{"$f":"'DNSP Inputs General'!A$41","v":"Existing Lights"},"WACC and Dep",null,"Volumes","Unitisation - Luminaires",null,"RAB WDV"]
[{"$f":"'DNSP Inputs General'!B$42","v":"Mercury Vapour 80W"},{"$f":"'DNSP Inputs General'!D$42","v":1},{"$f":"'DNSP Inputs General'!A$42","v":"Mercury Vapour 80W"},{"$f":"'RAB 2001 to 2004 Central'!C$15","v":2.2446249818691286},{"$f":"F40*D40","v":33188.605679706983},{"$f":"IF('DNSP Inputs General'!Q$42=0,1/10^6,'DNSP Inputs General'!Q$42)","v":14785.813197209627},{"$f":"IF((E$64+'Depn & WACC Post 2004 N & E'!E$64)=0,0,E40/(E$64+'Depn & WACC Post 2004 N & E'!E$64)*G$64)","v":346156.24703324051},{"$f":"IF(F40=0,0,G40/F40)","v":23.411377001473749},{"$f":"IF(F40=0,0,E40/(E$64+'Depn & WACC Post 2004 N & E'!E$64)*I$64/F40)","v":151.6621239683771}]
[{"$f":"'DNSP Inputs General'!B$43","v":"HP Sodium 150W"},{"$f":"'DNSP Inputs General'!D$43","v":1},{"$f":"'DNSP Inputs General'!A$43","v":"HP Sodium 150W"},{"$f":"'RAB 2001 to 2004 Central'!C$20","v":2.7008759093421051},39010.002052189971,{"$f":"IF('DNSP Inputs General'!Q$43=0,1/10^6,'DNSP Inputs General'!Q$43)","v":14443.463291763097},{"$f":"IF((E$64+'Depn & WACC Post 2004 N & E'!E$64)=0,0,E41/(E$64+'Depn & WACC Post 2004 N & E'!E$64)*G$64)","v":406873.2515449354},28.170061662217083,{"$f":"IF(F41=0,0,E41/(E$64+'Depn & WACC Post 2004 N & E'!E$64)*I$64/F41)","v":182.4895384728139}]
[{"$f":"'DNSP Inputs General'!B$44","v":"HP Sodium 250W"},{"$f":"'DNSP Inputs General'!D$44","v":1},{"$f":"'DNSP Inputs General'!A$44","v":"HP Sodium 250W"},{"$f":"'RAB 2001 to 2004 Central'!C$25","v":2.7550835201640522},18619.448505856966,{"$f":"IF('DNSP Inputs General'!Q$44=0,1/10^6,'DNSP Inputs General'!Q$44)","v":6758.2156292482441},{"$f":"IF((E$64+'Depn & WACC Post 2004 N & E'!E$64)=0,0,E42/(E$64+'Depn & WACC Post 2004 N & E'!E$64)*G$64)","v":194200.33727289227},28.735445556432225,{"$f":"IF(F42=0,0,E42/(E$64+'Depn & WACC Post 2004 N & E'!E$64)*I$64/F42)","v":186.15217319305199}]
[{"$f":"'DNSP Inputs General'!B$45","v":"Mercury Vapour 80W"},{"$f":"'DNSP Inputs General'!D$45","v":1.53},{"$f":"'DNSP Inputs General'!A$45","v":"Mercury Vapour 50W"},{"$f":"B43*IF(A43=C40,D40,IF(A43=C41,D41,D42))","v":3.4342762222597667},188.24935657548167,{"$f":"'DNSP Inputs General'!Q$45","v":54.814855996531598},{"$f":"IF((E$64+'Depn & WACC Post 2004 N & E'!E$64)=0,0,E43/(E$64+'Depn & WACC Post 2004 N & E'!E$64)*G$64)","v":1963.4356262949318},35.819406812254833,{"$f":"IF(F43=0,0,E43/(E$64+'Depn & WACC Post 2004 N & E'!E$64)*I$64/F43)","v":232.04304967161696}]
[{"$f":"'DNSP Inputs General'!B$46","v":"Mercury Vapour 80W"},{"$f":"'DNSP Inputs General'!D$46","v":1.47},{"$f":"'DNSP Inputs General'!A$46","v":"Mercury Vapour 125W"},{"$f":"B44*IF(A44=C40,D40,IF(A44=C41,D41,D42))","v":3.2995987233476192},696.59461949959655,{"$f":"'DNSP Inputs General'!Q$46","v":211.11495000000002},{"$f":"IF((E$64+'Depn & WACC Post 2004 N & E'!E$64)=0,0,E44/(E$64+'Depn & WACC Post 2004 N & E'!E$64)*G$64)","v":7265.4627770930038},34.414724192166418,{"$f":"IF(F44=0,0,E44/(E$64+'Depn & WACC Post 2004 N & E'!E$64)*I$64/F44)","v":222.94332223351435}]
[{"$f":"'DNSP Inputs General'!B$47","v":"HP Sodium 250W"},{"$f":"'DNSP Inputs General'!D$47","v":1.05},{"$f":"'DNSP Inputs General'!A$47","v":"Mercury Vapour 250W"},{"$f":"B45*IF(A45=C40,D40,IF(A45=C41,D41,D42))","v":2.8928376961722551},1333.1876649640155,{"$f":"'DNSP Inputs General'!Q$47","v":460.85809332755269},{"$f":"IF((E$64+'Depn & WACC Post 2004 N & E'!E$64)=0,0,E45/(E$64+'Depn & WACC Post 2004 N & E'!E$64)*G$64)","v":13905.110782557807},30.172217834253843,{"$f":"IF(F45=0,0,E45/(E$64+'Depn & WACC Post 2004 N & E'!E$64)*I$64/F45)","v":195.45978185270459}]
[{"$f":"'DNSP Inputs General'!B$48","v":"HP Sodium 250W"},{"$f":"'DNSP Inputs General'!D$48","v":1.0900000000000001},{"$f":"'DNSP Inputs General'!A$48","v":"Mercury Vapour 400W"},{"$f":"B46*IF(A46=C40,D40,IF(A46=C41,D41,D42))","v":3.003041036978817},261.26457021715709,{"$f":"'DNSP Inputs General'!Q$48","v":87},{"$f":"IF((E$64+'Depn & WACC Post 2004 N & E'!E$64)=0,0,E46/(E$64+'Depn & WACC Post 2004 N & E'!E$64)*G$64)","v":2724.9823021164684},31.32163565651113,{"$f":"IF(F46=0,0,E46/(E$64+'Depn & WACC Post 2004 N & E'!E$64)*I$64/F46)","v":202.90586878042669}]
[{"$f":"'DNSP Inputs General'!B$49","v":"HP Sodium 150W"},{"$f":"'DNSP Inputs General'!D$49","v":1.07},{"$f":"'DNSP Inputs General'!A$49","v":"HP Sodium 100W"},{"$f":"B47*IF(A47=C40,D40,IF(A47=C41,D41,D42))","v":2.8899372229960525},7125.6535836513649,{"$f":"'DNSP Inputs General'!Q$49","v":2465.6776371993524},{"$f":"IF((E$64+'Depn & WACC Post 2004 N & E'!E$64)=0,0,E47/(E$64+'Depn & WACC Post 2004 N & E'!E$64)*G$64)","v":74320.37145458936},30.141965978572276,{"$f":"IF(F47=0,0,E47/(E$64+'Depn & WACC Post 2004 N & E'!E$64)*I$64/F47)","v":195.26380616591089}]
[{"$f":"'DNSP Inputs General'!B$50","v":"HP Sodium 250W"},{"$f":"'DNSP Inputs General'!D$50","v":1.42},{"$f":"'DNSP Inputs General'!A$50","v":"HP Sodium 400W"},{"$f":"B48*IF(A48=C40,D40,IF(A48=C41,D41,D42))","v":3.9122185986329541},843.87930457002699,{"$f":"'DNSP Inputs General'!Q$50","v":215.70351535696486},{"$f":"IF((E$64+'Depn & WACC Post 2004 N & E'!E$64)=0,0,E48/(E$64+'Depn & WACC Post 2004 N & E'!E$64)*G$64)","v":8801.6380030569726},40.804332690133769,{"$f":"IF(F48=0,0,E48/(E$64+'Depn & WACC Post 2004 N & E'!E$64)*I$64/F48)","v":264.33608593413385}]
[{"$f":"'DNSP Inputs General'!B$51","v":"Mercury Vapour 80W"},{"$f":"'DNSP Inputs General'!D$51","v":4.3651056775797761},{"$f":"'DNSP Inputs General'!A$51","v":"Metal Halide 70W"},{"$f":"B49*IF(A49=C40,D40,IF(A49=C41,D41,D42))","v":9.7980252523943356},189.83673926514027,{"$f":"'DNSP Inputs General'!Q$51","v":19.375},{"$f":"IF((E$64+'Depn & WACC Post 2004 N & E'!E$64)=0,0,E49/(E$64+'Depn & WACC Post 2004 N & E'!E$64)*G$64)","v":1979.9919842136896},102.19313466909365,{"$f":"IF(F49=0,0,E49/(E$64+'Depn & WACC Post 2004 N & E'!E$64)*I$64/F49)","v":662.02119840817079}]
[{"$f":"'DNSP Inputs General'!B$52","v":"HP Sodium 150W"},{"$f":"'DNSP Inputs General'!D$52","v":2.3876890876224905},{"$f":"'DNSP Inputs General'!A$52","v":"Metal Halide 100W"},{"$f":"B50*IF(A50=C40,D40,IF(A50=C41,D41,D42))","v":6.4488519357586158},137.03810363487059,{"$f":"'DNSP Inputs General'!Q$52","v":21.25},{"$f":"IF((E$64+'Depn & WACC Post 2004 N & E'!E$64)=0,0,E50/(E$64+'Depn & WACC Post 2004 N & E'!E$64)*G$64)","v":1429.303662606229},67.261348828528426,{"$f":"IF(F50=0,0,E50/(E$64+'Depn & WACC Post 2004 N & E'!E$64)*I$64/F50)","v":435.72827961680247}]
[{"$f":"'DNSP Inputs General'!B$53","v":"HP Sodium 150W"},{"$f":"'DNSP Inputs General'!D$53","v":2.7125868138140996},{"$f":"'DNSP Inputs General'!A$53","v":"Metal Halide 150W"},{"$f":"B51*IF(A51=C40,D40,IF(A51=C41,D41,D42))","v":7.3263603774295598},151.10618278448467,{"$f":"'DNSP Inputs General'!Q$53","v":20.625},{"$f":"IF((E$64+'Depn & WACC Post 2004 N & E'!E$64)=0,0,E51/(E$64+'Depn & WACC Post 2004 N & E'!E$64)*G$64)","v":1576.0333423159907},76.413737809260155,{"$f":"IF(F51=0,0,E51/(E$64+'Depn & WACC Post 2004 N & E'!E$64)*I$64/F51)","v":495.01871572037584}]
[{"$f":"'DNSP Inputs General'!B$54","v":"HP Sodium 150W"},{"$f":"'DNSP Inputs General'!D$54","v":0.44334506707259064},{"$f":"'DNSP Inputs General'!A$54","v":"HP Sodium 50W"},{"$f":"B52*IF(A52=C40,D40,IF(A52=C41,D41,D42))","v":1.1974200111820199},0,{"$f":"'DNSP Inputs General'!Q$54","v":0},{"$f":"IF((E$64+'Depn & WACC Post 2004 N & E'!E$64)=0,0,E52/(E$64+'Depn & WACC Post 2004 N & E'!E$64)*G$64)","v":0},0,{"$f":"IF(F52=0,0,E52/(E$64+'Depn & WACC Post 2004 N & E'!E$64)*I$64/F52)","v":0}]
[]
[]
[]
[]
[]
[]
[]
[]
[]
[]
[]
[null,null,null,null,{"$f":"SUM(E40:E63)","v":101744.86636291606},{"$f":"SUM(F40:F63)","v":39543.911170101383},{"$f":"'Total RAB'!T$134","v":1501390.5807220533},{"$f":"SUMPRODUCT(F40:F63,H40:H63)","v":1061196.1657859127},{"$f":"'Total RAB'!T$128","v":9726214.9237991311}]
[null,null,null,"Check",{"$f":"SUM(F65:I65)","v":2.3283064365386963E-9},{"$f":"ABS('DNSP Inputs General'!Q$66-F64)","v":0},{"$f":"ABS(G64-SUM(G40:G63)-SUM('Depn & WACC Post 2004 N & E'!G40:G63))*IF(F64=0,0,1)","v":2.3283064365386963E-10},{"$f":"ABS(H64+'Depn & WACC Post 2004 N & E'!H64-G64)*IF(F64=0,0,1)","v":2.3283064365386963E-10},{"$f":"ABS(I64-SUMPRODUCT(F40:F63,I40:I63)-SUMPRODUCT('Depn & WACC Post 2004 N & E'!F40:F63,'Depn & WACC Post 2004 N & E'!I40:I63))*IF(F64=0,0,1)","v":1.862645149230957E-9}]
[]
[]
[{"$f":"'DNSP Inputs General'!B$68","v":"Reference Light"},{"$f":"'DNSP Inputs General'!D$68","v":"Price Factor"},{"$f":"'DNSP Inputs General'!A$68","v":"Energy Efficient Lights"},"Unit cost",null,"Volumes","Unitisation - Luminaires & Ballasts"]
[{"$f":"'DNSP Inputs General'!B$69","v":"T5 2X14W"},{"$f":"'DNSP Inputs General'!D$69","v":1},{"$f":"'DNSP Inputs General'!A$69","v":"T5 2X14W"},{"$f":"'DNSP Inputs O & M'!$D$189","v":260.27999999999997},{"$f":"F69*D69","v":5863700.3781251805},{"$f":"'DNSP Inputs General'!Q$69","v":22528.43237331021},{"$f":"IF((E$82+'Depn & WACC Post 2004 N & E'!E$82)=0,0,E69/(E$82+'Depn & WACC Post 2004 N & E'!E$82)*G$82)","v":157820.36250131004},{"$f":"IF(F69=0,0,G69/F69)","v":7.0053859001872816}]
[{"$f":"'DNSP Inputs General'!B$70","v":"T5 2X24W"},{"$f":"'DNSP Inputs General'!D$70","v":1},{"$f":"'DNSP Inputs General'!A$70","v":"T5 2X24W"},{"$f":"'DNSP Inputs O & M'!$D$238","v":267.33},{"$f":"F70*D70","v":476114.73},{"$f":"'DNSP Inputs General'!Q$70","v":1781},{"$f":"IF((E$82+'Depn & WACC Post 2004 N & E'!E$82)=0,0,E70/(E$82+'Depn & WACC Post 2004 N & E'!E$82)*G$82)","v":12814.535947492986},{"$f":"IF(F70=0,0,G70/F70)","v":7.1951352877557477}]
[{"$f":"'DNSP Inputs General'!B$71","v":"LED 18W"},{"$f":"'DNSP Inputs General'!D$71","v":1},{"$f":"'DNSP Inputs General'!A$71","v":"LED 18W"},{"$f":"'DNSP Inputs O & M'!$D$286","v":205},{"$f":"F71*D71","v":7945465.8361210907},{"$f":"'DNSP Inputs General'!Q$71","v":38758.369932298003},{"$f":"IF((E$82+'Depn & WACC Post 2004 N & E'!E$82)=0,0,E71/(E$82+'Depn & WACC Post 2004 N & E'!E$82)*G$82)","v":213850.67749647473},{"$f":"IF(F71=0,0,G71/F71)","v":5.5175353831965301}]
[{"$f":"'DNSP Inputs General'!B$72","v":"LED 14W"},{"$f":"'DNSP Inputs General'!D$72","v":1},{"$f":"'DNSP Inputs General'!A$72","v":"LED 14W"},{"$f":"'DNSP Inputs O & M'!$D$332","v":205},560083.94032869476,{"$f":"'DNSP Inputs General'!Q$72","v":2732.1167820911937},{"$f":"IF((E$82+'Depn & WACC Post 2004 N & E'!E$82)=0,0,E72/(E$82+'Depn & WACC Post 2004 N & E'!E$82)*G$82)","v":15074.551016213205},{"$f":"IF(F72=0,0,G72/F72)","v":5.5175353831965301}]
[{"$f":"'DNSP Inputs General'!B$73","v":"LED 70W-125W (L1)"},{"$f":"'DNSP Inputs General'!D$73","v":1},{"$f":"'DNSP Inputs General'!A$73","v":"LED 70W-125W (L1)"},{"$f":"'DNSP Inputs O & M'!$D$378","v":402},991062.70016788936,{"$f":"'DNSP Inputs General'!Q$73","v":2465.3300999201228},{"$f":"IF((E$82+'Depn & WACC Post 2004 N & E'!E$82)=0,0,E73/(E$82+'Depn & WACC Post 2004 N & E'!E$82)*G$82)","v":26674.261049476212},10.819752312414659]
[{"$f":"'DNSP Inputs General'!B$74","v":"LED 155W-250W (L2)"},{"$f":"'DNSP Inputs General'!D$74","v":1},{"$f":"'DNSP Inputs General'!A$74","v":"LED 155W-250W (L2)"},{"$f":"'DNSP Inputs O & M'!$D$424","v":427},1052642.8409435938,{"$f":"'DNSP Inputs General'!Q$74","v":2465.2057164955359},{"$f":"IF((E$82+'Depn & WACC Post 2004 N & E'!E$82)=0,0,E74/(E$82+'Depn & WACC Post 2004 N & E'!E$82)*G$82)","v":28331.678637925834},11.492622481097163]
[{"$f":"'DNSP Inputs General'!B$75","v":"LED 275W-400W (L4)"},{"$f":"'DNSP Inputs General'!D$75","v":1},{"$f":"'DNSP Inputs General'!A$75","v":"LED 275W-400W (L4)"},{"$f":"'DNSP Inputs O & M'!$D$470","v":650.88},77708.717024346639,{"$f":"'DNSP Inputs General'!Q$75","v":119.39023633288262},{"$f":"IF((E$82+'Depn & WACC Post 2004 N & E'!E$82)=0,0,E75/(E$82+'Depn & WACC Post 2004 N & E'!E$82)*G$82)","v":2091.5151012909228},17.518309415682719]
[{"$f":"'DNSP Inputs General'!B$76","v":"T5 2X14W"},{"$f":"'DNSP Inputs General'!D$76","v":0.87960989252886512},{"$f":"'DNSP Inputs General'!A$76","v":"Compact Fluorescent 32W"},{"$f":"D69*B76","v":228.94486282741298},712287.06411536026,{"$f":"'DNSP Inputs General'!Q$76","v":3111.1729493240841},{"$f":"IF((E$82+'Depn & WACC Post 2004 N & E'!E$82)=0,0,E76/(E$82+'Depn & WACC Post 2004 N & E'!E$82)*G$82)","v":19171.068679266707},6.1620067387869604]
[{"$f":"'DNSP Inputs General'!B$77","v":"T5 2X14W"},{"$f":"'DNSP Inputs General'!D$77","v":0.87960989252886512},{"$f":"'DNSP Inputs General'!A$77","v":"Compact Fluorescent 42W"},{"$f":"D69*B77","v":228.94486282741298},456094.37948621681,{"$f":"'DNSP Inputs General'!Q$77","v":1992.1581722933765},{"$f":"IF((E$82+'Depn & WACC Post 2004 N & E'!E$82)=0,0,E77/(E$82+'Depn & WACC Post 2004 N & E'!E$82)*G$82)","v":12275.6920824013},6.1620067387869595]
[{"$f":"'DNSP Inputs General'!B$78","v":"Smart lighting L1"},{"$f":"'DNSP Inputs General'!D$78","v":1},{"$f":"'DNSP Inputs General'!A$78","v":"Smart lighting L1"},{"$f":"'DNSP Inputs O & M'!$D$517","v":402},402,{"$f":"'DNSP Inputs General'!Q$78","v":1},{"$f":"IF((E$82+'Depn & WACC Post 2004 N & E'!E$82)=0,0,E78/(E$82+'Depn & WACC Post 2004 N & E'!E$82)*G$82)","v":10.819752312414659},10.819752312414659]
[{"$f":"'DNSP Inputs General'!B$79","v":"Smart lighting L2"},{"$f":"'DNSP Inputs General'!D$79","v":1},{"$f":"'DNSP Inputs General'!A$79","v":"Smart lighting L2"},{"$f":"'DNSP Inputs O & M'!$D$561","v":427},1281,{"$f":"'DNSP Inputs General'!Q$79","v":3},{"$f":"IF((E$82+'Depn & WACC Post 2004 N & E'!E$82)=0,0,E79/(E$82+'Depn & WACC Post 2004 N & E'!E$82)*G$82)","v":34.477867443291487},11.492622481097163]
[{"$f":"'DNSP Inputs General'!B$80","v":"Smart lighting L4"},{"$f":"'DNSP Inputs General'!D$80","v":1},{"$f":"'DNSP Inputs General'!A$80","v":"Smart lighting L4"},{"$f":"'DNSP Inputs O & M'!$D$605","v":650.88},650.88,{"$f":"'DNSP Inputs General'!Q$80","v":1},{"$f":"IF((E$82+'Depn & WACC Post 2004 N & E'!E$82)=0,0,E80/(E$82+'Depn & WACC Post 2004 N & E'!E$82)*G$82)","v":17.518309415682719},17.518309415682719]
[]
[null,null,null,null,{"$f":"SUM(E69:E81)","v":18137494.466312371},{"$f":"SUM(F69:F81)","v":75958.176262065404},{"$f":"'Total RAB'!T$149","v":709464.10269266088},{"$f":"SUMPRODUCT(F69:F81,H69:H81)","v":488167.15844102338}]
[null,null,null,"Check",{"$f":"SUM(F83:I83)","v":2.6193447411060333E-10},{"$f":"ABS('DNSP Inputs General'!Q$81-F82)","v":0},{"$f":"ABS(G82-SUM(G69:G81)-SUM('Depn & WACC Post 2004 N & E'!G69:G81))","v":1.4551915228366852E-10},{"$f":"ABS(H82+'Depn & WACC Post 2004 N & E'!H82-G82)","v":1.1641532182693481E-10}]
[]
[]
[null,null,{"$f":"'RAB 2001 to 2004 Central'!A$27","v":"Poles & Brackets"},"Weighted Average Volumes",null,null,"Unitisation Poles & Brackets"]
[null,null,"Total Poles & Brackets",{"$f":"'DNSP Inputs General'!$D$42*F40","v":14785.813197209627},{"$f":"SUMPRODUCT('DNSP Inputs General'!$D$42:$D$63,'DNSP Inputs General'!Q$42:Q$63)+SUMPRODUCT('DNSP Inputs General'!$D$69:$D$80,'DNSP Inputs General'!Q$69:Q$80)","v":115440.04798452288},{"$f":"IF(E87=0,0,D87/E87*G87)","v":181922.1490141167},{"$f":"'Total RAB'!T$119*('DNSP Inputs General'!Q$83/('DNSP Inputs General'!Q$83+'DNSP Inputs General'!Q$130))","v":1420354.8585072395},{"$f":"F87/F40","v":12.303831151366701}]
[]
[]
[]
[null,null,null,{"$f":"'DNSP Inputs General'!B$39","v":"Central"}]
["DEPRECIATION AND RETURN",null,null,"Year",{"$f":"'DNSP Inputs General'!$R$2","v":"2023-06-30"}]
[]
[]
[{"$f":"'DNSP Inputs General'!B$41","v":"Reference Light"},{"$f":"'DNSP Inputs General'!D$41","v":"Price Factor"},{"$f":"'DNSP Inputs General'!A$41","v":"Existing Lights"},{"$f":"D$39","v":"WACC and Dep"},null,{"$f":"F$39","v":"Volumes"},{"$f":"G$39","v":"Unitisation - Luminaires"},null,{"$f":"I$39","v":"RAB WDV"}]
[{"$f":"'DNSP Inputs General'!B$42","v":"Mercury Vapour 80W"},{"$f":"'DNSP Inputs General'!D$42","v":1},{"$f":"'DNSP Inputs General'!A$42","v":"Mercury Vapour 80W"},{"$f":"'RAB 2001 to 2004 Central'!D$15","v":1.1223124909345643},{"$f":"F96*D96","v":11062.868559902327},{"$f":"IF('DNSP Inputs General'!R$42=0,1/10^6,'DNSP Inputs General'!R$42)","v":9857.2087981397508},{"$f":"IF((E$120+'Depn & WACC Post 2004 N & E'!E$120)=0,0,E96/(E$120+'Depn & WACC Post 2004 N & E'!E$120)*G$120)","v":231633.8110027888},{"$f":"IF(F96=0,0,G96/F96)","v":23.498925075676866},{"$f":"IF(F96=0,0,E96/(E$120+'Depn & WACC Post 2004 N & E'!E$120)*I$120/F96)","v":159.3084046511253}]
[{"$f":"'DNSP Inputs General'!B$43","v":"HP Sodium 150W"},{"$f":"'DNSP Inputs General'!D$43","v":1},{"$f":"'DNSP Inputs General'!A$43","v":"HP Sodium 150W"},{"$f":"'RAB 2001 to 2004 Central'!D$20","v":1.3504379546710525},18869.352278201324,{"$f":"IF('DNSP Inputs General'!R$43=0,1/10^6,'DNSP Inputs General'!R$43)","v":13972.765067016817},{"$f":"IF((E$120+'Depn & WACC Post 2004 N & E'!E$120)=0,0,E97/(E$120+'Depn & WACC Post 2004 N & E'!E$120)*G$120)","v":395085.59246522555},28.275405087704396,{"$f":"IF(F97=0,0,E97/(E$120+'Depn & WACC Post 2004 N & E'!E$120)*I$120/F97)","v":191.69003096439508}]
[{"$f":"'DNSP Inputs General'!B$44","v":"HP Sodium 250W"},{"$f":"'DNSP Inputs General'!D$44","v":1},{"$f":"'DNSP Inputs General'!A$44","v":"HP Sodium 250W"},{"$f":"'RAB 2001 to 2004 Central'!D$25","v":1.3775417600820261},8959.3129108749472,{"$f":"IF('DNSP Inputs General'!R$44=0,1/10^6,'DNSP Inputs General'!R$44)","v":6503.8412413293827},{"$f":"IF((E$120+'Depn & WACC Post 2004 N & E'!E$120)=0,0,E98/(E$120+'Depn & WACC Post 2004 N & E'!E$120)*G$120)","v":187589.66377259168},28.842903264694147,{"$f":"IF(F98=0,0,E98/(E$120+'Depn & WACC Post 2004 N & E'!E$120)*I$120/F98)","v":195.53732308212003}]
[{"$f":"'DNSP Inputs General'!B$45","v":"Mercury Vapour 80W"},{"$f":"'DNSP Inputs General'!D$45","v":1.53},{"$f":"'DNSP Inputs General'!A$45","v":"Mercury Vapour 50W"},{"$f":"B99*IF(A99=C96,D96,IF(A99=C97,D97,D98))","v":1.7171381111298833},62.749785525160554,{"$f":"'DNSP Inputs General'!R$45","v":36.543237331021068},{"$f":"IF((E$120+'Depn & WACC Post 2004 N & E'!E$120)=0,0,E99/(E$120+'Depn & WACC Post 2004 N & E'!E$120)*G$120)","v":1313.8519979784428},35.953355365785598,{"$f":"IF(F99=0,0,E99/(E$120+'Depn & WACC Post 2004 N & E'!E$120)*I$120/F99)","v":243.74185911622163}]
[{"$f":"'DNSP Inputs General'!B$46","v":"Mercury Vapour 80W"},{"$f":"'DNSP Inputs General'!D$46","v":1.47},{"$f":"'DNSP Inputs General'!A$46","v":"Mercury Vapour 125W"},{"$f":"B100*IF(A100=C96,D96,IF(A100=C97,D97,D98))","v":1.6497993616738096},232.19820649986551,{"$f":"'DNSP Inputs General'!R$46","v":140.7433},{"$f":"IF((E$120+'Depn & WACC Post 2004 N & E'!E$120)=0,0,E100/(E$120+'Depn & WACC Post 2004 N & E'!E$120)*G$120)","v":4861.7549045571623},34.543419861244992,{"$f":"IF(F100=0,0,E100/(E$120+'Depn & WACC Post 2004 N & E'!E$120)*I$120/F100)","v":234.18335483715421}]
[{"$f":"'DNSP Inputs General'!B$47","v":"HP Sodium 250W"},{"$f":"'DNSP Inputs General'!D$47","v":1.05},{"$f":"'DNSP Inputs General'!A$47","v":"Mercury Vapour 250W"},{"$f":"B101*IF(A101=C96,D96,IF(A101=C97,D97,D98))","v":1.4464188480861275},444.39588832133853,{"$f":"'DNSP Inputs General'!R$47","v":307.23872888503513},{"$f":"IF((E$120+'Depn & WACC Post 2004 N & E'!E$120)=0,0,E101/(E$120+'Depn & WACC Post 2004 N & E'!E$120)*G$120)","v":9304.7397832185925},30.285048427928853,{"$f":"IF(F101=0,0,E101/(E$120+'Depn & WACC Post 2004 N & E'!E$120)*I$120/F101)","v":205.31418923622601}]
[{"$f":"'DNSP Inputs General'!B$48","v":"HP Sodium 250W"},{"$f":"'DNSP Inputs General'!D$48","v":1.0900000000000001},{"$f":"'DNSP Inputs General'!A$48","v":"Mercury Vapour 400W"},{"$f":"B102*IF(A102=C96,D96,IF(A102=C97,D97,D98))","v":1.5015205184894085},87.088190072385686,{"$f":"'DNSP Inputs General'!R$48","v":58},{"$f":"IF((E$120+'Depn & WACC Post 2004 N & E'!E$120)=0,0,E102/(E$120+'Depn & WACC Post 2004 N & E'!E$120)*G$120)","v":1823.4483443939637},31.438764558516617,{"$f":"IF(F102=0,0,E102/(E$120+'Depn & WACC Post 2004 N & E'!E$120)*I$120/F102)","v":213.13568215951079}]
[{"$f":"'DNSP Inputs General'!B$49","v":"HP Sodium 150W"},{"$f":"'DNSP Inputs General'!D$49","v":1.07},{"$f":"'DNSP Inputs General'!A$49","v":"HP Sodium 100W"},{"$f":"B103*IF(A103=C96,D96,IF(A103=C97,D97,D98))","v":1.4449686114980262},3517.914106947444,{"$f":"'DNSP Inputs General'!R$49","v":2434.5955192067154},{"$f":"IF((E$120+'Depn & WACC Post 2004 N & E'!E$120)=0,0,E103/(E$120+'Depn & WACC Post 2004 N & E'!E$120)*G$120)","v":73657.916747399475},30.254683443843703,{"$f":"IF(F103=0,0,E103/(E$120+'Depn & WACC Post 2004 N & E'!E$120)*I$120/F103)","v":205.10833313190275}]
[{"$f":"'DNSP Inputs General'!B$50","v":"HP Sodium 250W"},{"$f":"'DNSP Inputs General'!D$50","v":1.42},{"$f":"'DNSP Inputs General'!A$50","v":"HP Sodium 400W"},{"$f":"B104*IF(A104=C96,D96,IF(A104=C97,D97,D98))","v":1.956109299316477},415.45176062608232,{"$f":"'DNSP Inputs General'!R$50","v":212.38678266661969},{"$f":"IF((E$120+'Depn & WACC Post 2004 N & E'!E$120)=0,0,E104/(E$120+'Depn & WACC Post 2004 N & E'!E$120)*G$120)","v":8698.7090265571605},40.956922635865681,{"$f":"IF(F104=0,0,E104/(E$120+'Depn & WACC Post 2004 N & E'!E$120)*I$120/F104)","v":277.66299877661032}]
[{"$f":"'DNSP Inputs General'!B$51","v":"Mercury Vapour 80W"},{"$f":"'DNSP Inputs General'!D$51","v":4.3651056775797761},{"$f":"'DNSP Inputs General'!A$51","v":"Metal Halide 70W"},{"$f":"B105*IF(A105=C96,D96,IF(A105=C97,D97,D98))","v":4.8990126261971678},56.951021779542074,{"$f":"'DNSP Inputs General'!R$51","v":11.625},{"$f":"IF((E$120+'Depn & WACC Post 2004 N & E'!E$120)=0,0,E105/(E$120+'Depn & WACC Post 2004 N & E'!E$120)*G$120)","v":1192.437760953984},102.57529126485885,{"$f":"IF(F105=0,0,E105/(E$120+'Depn & WACC Post 2004 N & E'!E$120)*I$120/F105)","v":695.39802162880335}]
[{"$f":"'DNSP Inputs General'!B$52","v":"HP Sodium 150W"},{"$f":"'DNSP Inputs General'!D$52","v":2.3876890876224905},{"$f":"'DNSP Inputs General'!A$52","v":"Metal Halide 100W"},{"$f":"B106*IF(A106=C96,D96,IF(A106=C97,D97,D98))","v":3.2244259678793079},41.111431090461174,{"$f":"'DNSP Inputs General'!R$52","v":12.75},{"$f":"IF((E$120+'Depn & WACC Post 2004 N & E'!E$120)=0,0,E106/(E$120+'Depn & WACC Post 2004 N & E'!E$120)*G$120)","v":860.7891712442198},67.512876176017244,{"$f":"IF(F106=0,0,E106/(E$120+'Depn & WACC Post 2004 N & E'!E$120)*I$120/F106)","v":457.69619513970355}]
[{"$f":"'DNSP Inputs General'!B$53","v":"HP Sodium 150W"},{"$f":"'DNSP Inputs General'!D$53","v":2.7125868138140996},{"$f":"'DNSP Inputs General'!A$53","v":"Metal Halide 150W"},{"$f":"B107*IF(A107=C96,D96,IF(A107=C97,D97,D98))","v":3.6631801887147799},45.331854835345403,{"$f":"'DNSP Inputs General'!R$53","v":12.375},{"$f":"IF((E$120+'Depn & WACC Post 2004 N & E'!E$120)=0,0,E107/(E$120+'Depn & WACC Post 2004 N & E'!E$120)*G$120)","v":949.15620107746827},76.699490996159057,{"$f":"IF(F107=0,0,E107/(E$120+'Depn & WACC Post 2004 N & E'!E$120)*I$120/F107)","v":519.97585033363464}]
[{"$f":"'DNSP Inputs General'!B$54","v":"HP Sodium 150W"},{"$f":"'DNSP Inputs General'!D$54","v":0.44334506707259064},{"$f":"'DNSP Inputs General'!A$54","v":"HP Sodium 50W"},{"$f":"B108*IF(A108=C96,D96,IF(A108=C97,D97,D98))","v":0.59871000559100995},0,{"$f":"'DNSP Inputs General'!R$54","v":0},{"$f":"IF((E$120+'Depn & WACC Post 2004 N & E'!E$120)=0,0,E108/(E$120+'Depn & WACC Post 2004 N & E'!E$120)*G$120)","v":0},0,{"$f":"IF(F108=0,0,E108/(E$120+'Depn & WACC Post 2004 N & E'!E$120)*I$120/F108)","v":0}]
[]
[]
[]
[]
[]
[]
[]
[]
[]
[]
[]
[null,null,null,null,{"$f":"SUM(E96:E119)","v":43794.725994676221},{"$f":"SUM(F96:F119)","v":33560.072674575335},{"$f":"'Total RAB'!U$134","v":1310643.4070923375},{"$f":"SUMPRODUCT(F96:F119,H96:H119)","v":916971.87117798661},{"$f":"'Total RAB'!U$128","v":8885364.3125368133}]
[null,null,null,"Check",{"$f":"SUM(F121:I121)","v":1.280568540096283E-9},{"$f":"ABS('DNSP Inputs General'!R$66-F120)","v":0},{"$f":"ABS(G120-SUM(G96:G119)-SUM('Depn & WACC Post 2004 N & E'!G96:G119))*IF(F120=0,0,1)","v":3.4924596548080444E-10},{"$f":"ABS(H120+'Depn & WACC Post 2004 N & E'!H120-G120)*IF(F120=0,0,1)","v":4.6566128730773926E-10},{"$f":"ABS(I120-SUMPRODUCT(F96:F119,I96:I119)-SUMPRODUCT('Depn & WACC Post 2004 N & E'!F96:F119,'Depn & WACC Post 2004 N & E'!I96:I119))*IF(F120=0,0,1)","v":4.6566128730773926E-10}]
[]
[]
[{"$f":"'DNSP Inputs General'!B$68","v":"Reference Light"},{"$f":"'DNSP Inputs General'!D$68","v":"Price Factor"},{"$f":"'DNSP Inputs General'!A$68","v":"Energy Efficient Lights"},{"$f":"D$68","v":"Unit cost"},null,{"$f":"F$68","v":"Volumes"},{"$f":"G$68","v":"Unitisation - Luminaires & Ballasts"}]
[{"$f":"'DNSP Inputs General'!B$69","v":"T5 2X14W"},{"$f":"'DNSP Inputs General'!D$69","v":1},{"$f":"'DNSP Inputs General'!A$69","v":"T5 2X14W"},{"$f":"'DNSP Inputs O & M'!$E$189","v":260.27999999999997},{"$f":"F125*D125","v":5863700.3781251805},{"$f":"'DNSP Inputs General'!R$69","v":22528.43237331021},{"$f":"IF((E$138+'Depn & WACC Post 2004 N & E'!E$138)=0,0,E125/(E$138+'Depn & WACC Post 2004 N & E'!E$138)*G$138)","v":195499.12527233482},{"$f":"IF(F125=0,0,G125/F125)","v":8.6778841080813827}]
[{"$f":"'DNSP Inputs General'!B$70","v":"T5 2X24W"},{"$f":"'DNSP Inputs General'!D$70","v":1},{"$f":"'DNSP Inputs General'!A$70","v":"T5 2X24W"},{"$f":"'DNSP Inputs O & M'!$E$238","v":267.33},{"$f":"F126*D126","v":476114.73},{"$f":"'DNSP Inputs General'!R$70","v":1781},{"$f":"IF((E$138+'Depn & WACC Post 2004 N & E'!E$138)=0,0,E126/(E$138+'Depn & WACC Post 2004 N & E'!E$138)*G$138)","v":15873.937486900488},{"$f":"IF(F126=0,0,G126/F126)","v":8.9129351414376679}]
[{"$f":"'DNSP Inputs General'!B$71","v":"LED 18W"},{"$f":"'DNSP Inputs General'!D$71","v":1},{"$f":"'DNSP Inputs General'!A$71","v":"LED 18W"},{"$f":"'DNSP Inputs O & M'!$E$286","v":205},{"$f":"F127*D127","v":9447831.3158372696},{"$f":"'DNSP Inputs General'!R$71","v":46086.982028474486},{"$f":"IF((E$138+'Depn & WACC Post 2004 N & E'!E$138)=0,0,E127/(E$138+'Depn & WACC Post 2004 N & E'!E$138)*G$138)","v":314996.10124303773},{"$f":"IF(F127=0,0,G127/F127)","v":6.8348172819912536}]
[{"$f":"'DNSP Inputs General'!B$72","v":"LED 14W"},{"$f":"'DNSP Inputs General'!D$72","v":1},{"$f":"'DNSP Inputs General'!A$72","v":"LED 14W"},{"$f":"'DNSP Inputs O & M'!$E$332","v":205},560083.94032869476,{"$f":"'DNSP Inputs General'!R$72","v":2732.1167820911937},{"$f":"IF((E$138+'Depn & WACC Post 2004 N & E'!E$138)=0,0,E128/(E$138+'Depn & WACC Post 2004 N & E'!E$138)*G$138)","v":18673.518998655229},{"$f":"IF(F128=0,0,G128/F128)","v":6.8348172819912554}]
[{"$f":"'DNSP Inputs General'!B$73","v":"LED 70W-125W (L1)"},{"$f":"'DNSP Inputs General'!D$73","v":1},{"$f":"'DNSP Inputs General'!A$73","v":"LED 70W-125W (L1)"},{"$f":"'DNSP Inputs O & M'!$E$378","v":402},995715.44179057912,{"$f":"'DNSP Inputs General'!R$73","v":2476.904084056167},{"$f":"IF((E$138+'Depn & WACC Post 2004 N & E'!E$138)=0,0,E129/(E$138+'Depn & WACC Post 2004 N & E'!E$138)*G$138)","v":33197.722485345395},13.402909987124312]
[{"$f":"'DNSP Inputs General'!B$74","v":"LED 155W-250W (L2)"},{"$f":"'DNSP Inputs General'!D$74","v":1},{"$f":"'DNSP Inputs General'!A$74","v":"LED 155W-250W (L2)"},{"$f":"'DNSP Inputs O & M'!$E$424","v":427},1253774.6357489428,{"$f":"'DNSP Inputs General'!R$74","v":2936.2403647516226},{"$f":"IF((E$138+'Depn & WACC Post 2004 N & E'!E$138)=0,0,E130/(E$138+'Depn & WACC Post 2004 N & E'!E$138)*G$138)","v":41801.563649459342},14.236424289806175]
[{"$f":"'DNSP Inputs General'!B$75","v":"LED 275W-400W (L4)"},{"$f":"'DNSP Inputs General'!D$75","v":1},{"$f":"'DNSP Inputs General'!A$75","v":"LED 275W-400W (L4)"},{"$f":"'DNSP Inputs O & M'!$E$470","v":650.88},89238.353447383415,{"$f":"'DNSP Inputs General'!R$75","v":137.10415659934768},{"$f":"IF((E$138+'Depn & WACC Post 2004 N & E'!E$138)=0,0,E131/(E$138+'Depn & WACC Post 2004 N & E'!E$138)*G$138)","v":2975.2577578469268},21.700711573182769]
[{"$f":"'DNSP Inputs General'!B$76","v":"T5 2X14W"},{"$f":"'DNSP Inputs General'!D$76","v":0.87960989252886512},{"$f":"'DNSP Inputs General'!A$76","v":"Compact Fluorescent 32W"},{"$f":"D125*B132","v":228.94486282741298},712287.06411536026,{"$f":"'DNSP Inputs General'!R$76","v":3111.1729493240841},{"$f":"IF((E$138+'Depn & WACC Post 2004 N & E'!E$138)=0,0,E132/(E$138+'Depn & WACC Post 2004 N & E'!E$138)*G$138)","v":23748.058222216958},7.6331527076874099]
[{"$f":"'DNSP Inputs General'!B$77","v":"T5 2X14W"},{"$f":"'DNSP Inputs General'!D$77","v":0.87960989252886512},{"$f":"'DNSP Inputs General'!A$77","v":"Compact Fluorescent 42W"},{"$f":"D125*B133","v":228.94486282741298},456094.37948621681,{"$f":"'DNSP Inputs General'!R$77","v":1992.1581722933765},{"$f":"IF((E$138+'Depn & WACC Post 2004 N & E'!E$138)=0,0,E133/(E$138+'Depn & WACC Post 2004 N & E'!E$138)*G$138)","v":15206.44754698279},7.6331527076874108]
[{"$f":"'DNSP Inputs General'!B$78","v":"Smart lighting L1"},{"$f":"'DNSP Inputs General'!D$78","v":1},{"$f":"'DNSP Inputs General'!A$78","v":"Smart lighting L1"},{"$f":"'DNSP Inputs O & M'!$E$517","v":402},{"$f":"F134*D134","v":246307.72665345442},{"$f":"'DNSP Inputs General'!R$78","v":612.70578769516021},{"$f":"IF((E$138+'Depn & WACC Post 2004 N & E'!E$138)=0,0,E134/(E$138+'Depn & WACC Post 2004 N & E'!E$138)*G$138)","v":8212.0405210683311},{"$f":"IF(F134=0,0,G134/F134)","v":13.402909987124312}]
[{"$f":"'DNSP Inputs General'!B$79","v":"Smart lighting L2"},{"$f":"'DNSP Inputs General'!D$79","v":1},{"$f":"'DNSP Inputs General'!A$79","v":"Smart lighting L2"},{"$f":"'DNSP Inputs O & M'!$E$561","v":427},313183.80590536719,{"$f":"'DNSP Inputs General'!R$79","v":733.45153607814336},{"$f":"IF((E$138+'Depn & WACC Post 2004 N & E'!E$138)=0,0,E135/(E$138+'Depn & WACC Post 2004 N & E'!E$138)*G$138)","v":10441.727263618528},14.236424289806171]
[{"$f":"'DNSP Inputs General'!B$80","v":"Smart lighting L4"},{"$f":"'DNSP Inputs General'!D$80","v":1},{"$f":"'DNSP Inputs General'!A$80","v":"Smart lighting L4"},{"$f":"'DNSP Inputs O & M'!$E$605","v":650.88},22309.588361845854,{"$f":"'DNSP Inputs General'!R$80","v":34.276039149836919},{"$f":"IF((E$138+'Depn & WACC Post 2004 N & E'!E$138)=0,0,E136/(E$138+'Depn & WACC Post 2004 N & E'!E$138)*G$138)","v":743.81443946173169},21.700711573182769]
[]
[null,null,null,null,{"$f":"SUM(E125:E137)","v":20436641.359800294},{"$f":"SUM(F125:F137)","v":85162.544273823616},{"$f":"'Total RAB'!U$149","v":982500.20122311823},{"$f":"SUMPRODUCT(F125:F137,H125:H137)","v":681369.3148869283}]
[null,null,null,"Check",{"$f":"SUM(F139:I139)","v":5.8207660913467407E-11},{"$f":"ABS('DNSP Inputs General'!R$81-F138)","v":0},{"$f":"ABS(G138-SUM(G125:G137)-SUM('Depn & WACC Post 2004 N & E'!G125:G137))","v":5.8207660913467407E-11},{"$f":"ABS(H138+'Depn & WACC Post 2004 N & E'!H138-G138)","v":0}]
[]
[]
[null,null,{"$f":"'RAB 2001 to 2004 Central'!A$27","v":"Poles & Brackets"},{"$f":"D$86","v":"Weighted Average Volumes"},null,null,{"$f":"G$86","v":"Unitisation Poles & Brackets"}]
[null,null,"Total Poles & Brackets",{"$f":"'DNSP Inputs General'!$D$42*F96","v":9857.2087981397508},{"$f":"SUMPRODUCT('DNSP Inputs General'!$D$42:$D$63,'DNSP Inputs General'!R$42:R$63)+SUMPRODUCT('DNSP Inputs General'!$D$69:$D$80,'DNSP Inputs General'!R$69:R$80)","v":118551.95535569078},{"$f":"IF(E143=0,0,D143/E143*G143)","v":126569.56407034589},{"$f":"'Total RAB'!U$119*('DNSP Inputs General'!R$83/('DNSP Inputs General'!R$83+'DNSP Inputs General'!R$130))","v":1522243.2248659115},{"$f":"F143/F96","v":12.840304660507147}]
[]
[]
[]
[null,null,null,{"$f":"'DNSP Inputs General'!B$39","v":"Central"}]
["DEPRECIATION AND RETURN",null,null,"Year",{"$f":"'DNSP Inputs General'!$S$2","v":"2024-06-30"}]
[]
[]
[{"$f":"'DNSP Inputs General'!B$41","v":"Reference Light"},{"$f":"'DNSP Inputs General'!D$41","v":"Price Factor"},{"$f":"'DNSP Inputs General'!A$41","v":"Existing Lights"},{"$f":"D$39","v":"WACC and Dep"},null,{"$f":"F$39","v":"Volumes"},{"$f":"G$39","v":"Unitisation - Luminaires"},null,{"$f":"I$39","v":"RAB WDV"}]
[{"$f":"'DNSP Inputs General'!B$42","v":"Mercury Vapour 80W"},{"$f":"'DNSP Inputs General'!D$42","v":1},{"$f":"'DNSP Inputs General'!A$42","v":"Mercury Vapour 80W"},{"$f":"'DNSP Inputs Capex'!$F$21","v":205},{"$f":"F152*D152","v":1010363.9018093245},{"$f":"IF('DNSP Inputs General'!S$42=0,1/10^6,'DNSP Inputs General'!S$42)","v":4928.6043990698754},{"$f":"IF((E$176+'Depn & WACC Post 2004 N & E'!E$176)=0,0,E152/(E$176+'Depn & WACC Post 2004 N & E'!E$176)*G$176)","v":124841.92809118297},{"$f":"IF(F152=0,0,G152/F152)","v":25.330076829607808},{"$f":"IF(F152=0,0,E152/(E$176+'Depn & WACC Post 2004 N & E'!E$176)*I$176/F152)","v":184.02441784727324}]
[{"$f":"'DNSP Inputs General'!B$43","v":"HP Sodium 150W"},{"$f":"'DNSP Inputs General'!D$43","v":1},{"$f":"'DNSP Inputs General'!A$43","v":"HP Sodium 150W"},{"$f":"'DNSP Inputs Capex'!$F$44","v":234.07},3162563.5947834793,{"$f":"IF('DNSP Inputs General'!S$43=0,1/10^6,'DNSP Inputs General'!S$43)","v":13511.187229390693},{"$f":"IF((E$176+'Depn & WACC Post 2004 N & E'!E$176)=0,0,E153/(E$176+'Depn & WACC Post 2004 N & E'!E$176)*G$176)","v":390770.62846042041},28.922005285396583,{"$f":"IF(F153=0,0,E153/(E$176+'Depn & WACC Post 2004 N & E'!E$176)*I$176/F153)","v":210.11997797810366}]
[{"$f":"'DNSP Inputs General'!B$44","v":"HP Sodium 250W"},{"$f":"'DNSP Inputs General'!D$44","v":1},{"$f":"'DNSP Inputs General'!A$44","v":"HP Sodium 250W"},{"$f":"'DNSP Inputs Capex'!$F$62","v":240.18},1502461.2798022062,{"$f":"IF('DNSP Inputs General'!S$44=0,1/10^6,'DNSP Inputs General'!S$44)","v":6255.5636597643688},{"$f":"IF((E$176+'Depn & WACC Post 2004 N & E'!E$176)=0,0,E154/(E$176+'Depn & WACC Post 2004 N & E'!E$176)*G$176)","v":185646.14463854028},29.676965136269288,{"$f":"IF(F154=0,0,E154/(E$176+'Depn & WACC Post 2004 N & E'!E$176)*I$176/F154)","v":215.60480331003944}]
[{"$f":"'DNSP Inputs General'!B$45","v":"Mercury Vapour 80W"},{"$f":"'DNSP Inputs General'!D$45","v":1.53},{"$f":"'DNSP Inputs General'!A$45","v":"Mercury Vapour 50W"},{"$f":"B155*IF(A155=C152,D152,IF(A155=C153,D153,D154))","v":313.64999999999998},5730.893194437379,{"$f":"'DNSP Inputs General'!S$45","v":18.271618665510534},{"$f":"IF((E$176+'Depn & WACC Post 2004 N & E'!E$176)=0,0,E155/(E$176+'Depn & WACC Post 2004 N & E'!E$176)*G$176)","v":708.1169020359772},38.755017549299943,{"$f":"IF(F155=0,0,E155/(E$176+'Depn & WACC Post 2004 N & E'!E$176)*I$176/F155)","v":281.55735930632801}]
[{"$f":"'DNSP Inputs General'!B$46","v":"Mercury Vapour 80W"},{"$f":"'DNSP Inputs General'!D$46","v":1.47},{"$f":"'DNSP Inputs General'!A$46","v":"Mercury Vapour 125W"},{"$f":"B156*IF(A156=C152,D152,IF(A156=C153,D153,D154))","v":301.35000000000002},21206.496727500002,{"$f":"'DNSP Inputs General'!S$46","v":70.371650000000002},{"$f":"IF((E$176+'Depn & WACC Post 2004 N & E'!E$176)=0,0,E156/(E$176+'Depn & WACC Post 2004 N & E'!E$176)*G$176)","v":2620.3033726556177},{"$f":"IF(F156=0,0,G156/F156)","v":37.235212939523485},{"$f":"IF(F156=0,0,E156/(E$176+'Depn & WACC Post 2004 N & E'!E$176)*I$176/F156)","v":270.51589423549171}]
[{"$f":"'DNSP Inputs General'!B$47","v":"HP Sodium 250W"},{"$f":"'DNSP Inputs General'!D$47","v":1.05},{"$f":"'DNSP Inputs General'!A$47","v":"Mercury Vapour 250W"},{"$f":"B157*IF(A157=C152,D152,IF(A157=C153,D153,D154))","v":252.18900000000002},38741.113899394062,{"$f":"'DNSP Inputs General'!S$47","v":153.61936444251756},{"$f":"IF((E$176+'Depn & WACC Post 2004 N & E'!E$176)=0,0,E157/(E$176+'Depn & WACC Post 2004 N & E'!E$176)*G$176)","v":4786.9043489572605},31.160813393082744,{"$f":"IF(F157=0,0,E157/(E$176+'Depn & WACC Post 2004 N & E'!E$176)*I$176/F157)","v":226.38504347554141}]
[{"$f":"'DNSP Inputs General'!B$48","v":"HP Sodium 250W"},{"$f":"'DNSP Inputs General'!D$48","v":1.0900000000000001},{"$f":"'DNSP Inputs General'!A$48","v":"Mercury Vapour 400W"},{"$f":"B158*IF(A158=C152,D152,IF(A158=C153,D153,D154))","v":261.7962},7592.0897999999997,{"$f":"'DNSP Inputs General'!S$48","v":29},{"$f":"IF((E$176+'Depn & WACC Post 2004 N & E'!E$176)=0,0,E158/(E$176+'Depn & WACC Post 2004 N & E'!E$176)*G$176)","v":938.08886795747196},32.347891998533512,{"$f":"IF(F158=0,0,E158/(E$176+'Depn & WACC Post 2004 N & E'!E$176)*I$176/F158)","v":235.00923560794297}]
[{"$f":"'DNSP Inputs General'!B$49","v":"HP Sodium 150W"},{"$f":"'DNSP Inputs General'!D$49","v":1.07},{"$f":"'DNSP Inputs General'!A$49","v":"HP Sodium 100W"},{"$f":"B159*IF(A159=C152,D152,IF(A159=C153,D153,D154))","v":250.45490000000001},601971.70854973164,{"$f":"'DNSP Inputs General'!S$49","v":2403.5134012140775},{"$f":"IF((E$176+'Depn & WACC Post 2004 N & E'!E$176)=0,0,E159/(E$176+'Depn & WACC Post 2004 N & E'!E$176)*G$176)","v":74380.437203975511},30.94654565537434,{"$f":"IF(F159=0,0,E159/(E$176+'Depn & WACC Post 2004 N & E'!E$176)*I$176/F159)","v":224.82837643657089}]
[{"$f":"'DNSP Inputs General'!B$50","v":"HP Sodium 250W"},{"$f":"'DNSP Inputs General'!D$50","v":1.42},{"$f":"'DNSP Inputs General'!A$50","v":"HP Sodium 400W"},{"$f":"B160*IF(A160=C152,D152,IF(A160=C153,D153,D154))","v":341.05559999999997},71282.059605674949,{"$f":"'DNSP Inputs General'!S$50","v":209.00421985645434},{"$f":"IF((E$176+'Depn & WACC Post 2004 N & E'!E$176)=0,0,E160/(E$176+'Depn & WACC Post 2004 N & E'!E$176)*G$176)","v":8807.7075433386817},42.141290493502382,{"$f":"IF(F160=0,0,E160/(E$176+'Depn & WACC Post 2004 N & E'!E$176)*I$176/F160)","v":306.158820700256}]
[{"$f":"'DNSP Inputs General'!B$51","v":"Mercury Vapour 80W"},{"$f":"'DNSP Inputs General'!D$51","v":4.3651056775797761},{"$f":"'DNSP Inputs General'!A$51","v":"Metal Halide 70W"},{"$f":"B161*IF(A161=C152,D152,IF(A161=C153,D153,D154))","v":894.84666390385405},3467.5308226274346,{"$f":"'DNSP Inputs General'!S$51","v":3.875},{"$f":"IF((E$176+'Depn & WACC Post 2004 N & E'!E$176)=0,0,E161/(E$176+'Depn & WACC Post 2004 N & E'!E$176)*G$176)","v":428.45279095700528},110.56846218245298,{"$f":"IF(F161=0,0,E161/(E$176+'Depn & WACC Post 2004 N & E'!E$176)*I$176/F161)","v":803.28603115844544}]
[{"$f":"'DNSP Inputs General'!B$52","v":"HP Sodium 150W"},{"$f":"'DNSP Inputs General'!D$52","v":2.3876890876224905},{"$f":"'DNSP Inputs General'!A$52","v":"Metal Halide 100W"},{"$f":"B162*IF(A162=C152,D152,IF(A162=C153,D153,D154))","v":558.88638473979631},2375.2671351441345,{"$f":"'DNSP Inputs General'!S$52","v":4.25},{"$f":"IF((E$176+'Depn & WACC Post 2004 N & E'!E$176)=0,0,E162/(E$176+'Depn & WACC Post 2004 N & E'!E$176)*G$176)","v":293.49121475143102},69.056756412101421,{"$f":"IF(F162=0,0,E162/(E$176+'Depn & WACC Post 2004 N & E'!E$176)*I$176/F162)","v":501.70117850979608}]
[{"$f":"'DNSP Inputs General'!B$53","v":"HP Sodium 150W"},{"$f":"'DNSP Inputs General'!D$53","v":2.7125868138140996},{"$f":"'DNSP Inputs General'!A$53","v":"Metal Halide 150W"},{"$f":"B163*IF(A163=C152,D152,IF(A163=C153,D153,D154))","v":634.93519550946633},2619.1076814765488,{"$f":"'DNSP Inputs General'!S$53","v":4.125},{"$f":"IF((E$176+'Depn & WACC Post 2004 N & E'!E$176)=0,0,E163/(E$176+'Depn & WACC Post 2004 N & E'!E$176)*G$176)","v":323.62048193569245},78.453450166228478,{"$f":"IF(F163=0,0,E163/(E$176+'Depn & WACC Post 2004 N & E'!E$176)*I$176/F163)","v":569.96868158231302}]
[{"$f":"'DNSP Inputs General'!B$54","v":"HP Sodium 150W"},{"$f":"'DNSP Inputs General'!D$54","v":0.44334506707259064},{"$f":"'DNSP Inputs General'!A$54","v":"HP Sodium 50W"},{"$f":"B164*IF(A164=C152,D152,IF(A164=C153,D153,D154))","v":103.77377984968129},0,{"$f":"'DNSP Inputs General'!S$54","v":0},{"$f":"IF((E$176+'Depn & WACC Post 2004 N & E'!E$176)=0,0,E164/(E$176+'Depn & WACC Post 2004 N & E'!E$176)*G$176)","v":0},0,{"$f":"IF(F164=0,0,E164/(E$176+'Depn & WACC Post 2004 N & E'!E$176)*I$176/F164)","v":0}]
[]
[]
[]
[]
[]
[]
[]
[]
[]
[]
[]
[null,null,null,null,{"$f":"SUM(E152:E175)","v":6430375.0438109953},{"$f":"SUM(F152:F175)","v":27591.385542403495},{"$f":"'Total RAB'!V$134","v":1127198.5602244954},{"$f":"SUMPRODUCT(F152:F175,H152:H175)","v":794545.82391670824},{"$f":"'Total RAB'!V$128","v":8189160.2713630237}]
[null,null,null,"Check",{"$f":"SUM(F177:I177)","v":1.8044374883174896E-9},{"$f":"ABS('DNSP Inputs General'!S$66-F176)","v":0},{"$f":"ABS(G176-SUM(G152:G175)-SUM('Depn & WACC Post 2004 N & E'!G152:G175))*IF(F176=0,0,1)","v":1.7462298274040222E-10},{"$f":"ABS(H176+'Depn & WACC Post 2004 N & E'!H176-G176)*IF(F176=0,0,1)","v":2.3283064365386963E-10},{"$f":"ABS(I176-SUMPRODUCT(F152:F175,I152:I175)-SUMPRODUCT('Depn & WACC Post 2004 N & E'!F152:F175,'Depn & WACC Post 2004 N & E'!I152:I175))*IF(F176=0,0,1)","v":1.3969838619232178E-9}]
[]
[]
[{"$f":"'DNSP Inputs General'!B$68","v":"Reference Light"},{"$f":"'DNSP Inputs General'!D$68","v":"Price Factor"},{"$f":"'DNSP Inputs General'!A$68","v":"Energy Efficient Lights"},{"$f":"D$68","v":"Unit cost"},null,{"$f":"F$68","v":"Volumes"},{"$f":"G$68","v":"Unitisation - Luminaires & Ballasts"}]
[{"$f":"'DNSP Inputs General'!B$69","v":"T5 2X14W"},{"$f":"'DNSP Inputs General'!D$69","v":1},{"$f":"'DNSP Inputs General'!A$69","v":"T5 2X14W"},{"$f":"'DNSP Inputs O & M'!$F$189","v":260.27999999999997},{"$f":"F181*D181","v":5863700.3781251805},{"$f":"'DNSP Inputs General'!S$69","v":22528.43237331021},{"$f":"IF((E$194+'Depn & WACC Post 2004 N & E'!E$194)=0,0,E181/(E$194+'Depn & WACC Post 2004 N & E'!E$194)*G$194)","v":226188.53042262353},{"$f":"IF(F181=0,0,G181/F181)","v":10.040136245369325}]
[{"$f":"'DNSP Inputs General'!B$70","v":"T5 2X24W"},{"$f":"'DNSP Inputs General'!D$70","v":1},{"$f":"'DNSP Inputs General'!A$70","v":"T5 2X24W"},{"$f":"'DNSP Inputs O & M'!$F$238","v":267.33},{"$f":"F182*D182","v":476114.73},{"$f":"'DNSP Inputs General'!S$70","v":1781},{"$f":"IF((E$194+'Depn & WACC Post 2004 N & E'!E$194)=0,0,E182/(E$194+'Depn & WACC Post 2004 N & E'!E$194)*G$194)","v":18365.824333898996},{"$f":"IF(F182=0,0,G182/F182)","v":10.312085532790004}]
[{"$f":"'DNSP Inputs General'!B$71","v":"LED 18W"},{"$f":"'DNSP Inputs General'!D$71","v":1},{"$f":"'DNSP Inputs General'!A$71","v":"LED 18W"},{"$f":"'DNSP Inputs O & M'!$F$286","v":205},{"$f":"F183*D183","v":10963333.344067322},{"$f":"'DNSP Inputs General'!S$71","v":53479.674849108887},{"$f":"IF((E$194+'Depn & WACC Post 2004 N & E'!E$194)=0,0,E183/(E$194+'Depn & WACC Post 2004 N & E'!E$194)*G$194)","v":422903.64406729839},{"$f":"IF(F183=0,0,G183/F183)","v":7.9077452370551402}]
[{"$f":"'DNSP Inputs General'!B$72","v":"LED 14W"},{"$f":"'DNSP Inputs General'!D$72","v":1},{"$f":"'DNSP Inputs General'!A$72","v":"LED 14W"},{"$f":"'DNSP Inputs O & M'!$F$332","v":205},560083.94032869476,{"$f":"'DNSP Inputs General'!S$72","v":2732.1167820911937},{"$f":"IF((E$194+'Depn & WACC Post 2004 N & E'!E$194)=0,0,E184/(E$194+'Depn & WACC Post 2004 N & E'!E$194)*G$194)","v":21604.883470660054},{"$f":"IF(F184=0,0,G184/F184)","v":7.9077452370551402}]
[{"$f":"'DNSP Inputs General'!B$73","v":"LED 70W-125W (L1)"},{"$f":"'DNSP Inputs General'!D$73","v":1},{"$f":"'DNSP Inputs General'!A$73","v":"LED 70W-125W (L1)"},{"$f":"'DNSP Inputs O & M'!$F$378","v":402},1146698.9407579142,{"$f":"'DNSP Inputs General'!S$73","v":2852.4849272584929},{"$f":"IF((E$194+'Depn & WACC Post 2004 N & E'!E$194)=0,0,E185/(E$194+'Depn & WACC Post 2004 N & E'!E$194)*G$194)","v":44233.185790802781},15.506895538030079]
[{"$f":"'DNSP Inputs General'!B$74","v":"LED 155W-250W (L2)"},{"$f":"'DNSP Inputs General'!D$74","v":1},{"$f":"'DNSP Inputs General'!A$74","v":"LED 155W-250W (L2)"},{"$f":"'DNSP Inputs O & M'!$F$424","v":427},1445700.5544865257,{"$f":"'DNSP Inputs General'!S$74","v":3385.7155842775778},{"$f":"IF((E$194+'Depn & WACC Post 2004 N & E'!E$194)=0,0,E186/(E$194+'Depn & WACC Post 2004 N & E'!E$194)*G$194)","v":55766.983775359993},16.471254713280707]
[{"$f":"'DNSP Inputs General'!B$75","v":"LED 275W-400W (L4)"},{"$f":"'DNSP Inputs General'!D$75","v":1},{"$f":"'DNSP Inputs General'!A$75","v":"LED 275W-400W (L4)"},{"$f":"'DNSP Inputs O & M'!$F$470","v":650.88},102051.2850794791,{"$f":"'DNSP Inputs General'!S$75","v":156.78970790234621},{"$f":"IF((E$194+'Depn & WACC Post 2004 N & E'!E$194)=0,0,E187/(E$194+'Depn & WACC Post 2004 N & E'!E$194)*G$194)","v":3936.5637245005228},25.107283999485119]
[{"$f":"'DNSP Inputs General'!B$76","v":"T5 2X14W"},{"$f":"'DNSP Inputs General'!D$76","v":0.87960989252886512},{"$f":"'DNSP Inputs General'!A$76","v":"Compact Fluorescent 32W"},{"$f":"D181*B188","v":228.94486282741298},712287.06411536026,{"$f":"'DNSP Inputs General'!S$76","v":3111.1729493240841},{"$f":"IF((E$194+'Depn & WACC Post 2004 N & E'!E$194)=0,0,E188/(E$194+'Depn & WACC Post 2004 N & E'!E$194)*G$194)","v":27476.022627679169},8.8314031637644757]
[{"$f":"'DNSP Inputs General'!B$77","v":"T5 2X14W"},{"$f":"'DNSP Inputs General'!D$77","v":0.87960989252886512},{"$f":"'DNSP Inputs General'!A$77","v":"Compact Fluorescent 42W"},{"$f":"D181*B189","v":228.94486282741298},456094.37948621681,{"$f":"'DNSP Inputs General'!S$77","v":1992.1581722933765},{"$f":"IF((E$194+'Depn & WACC Post 2004 N & E'!E$194)=0,0,E189/(E$194+'Depn & WACC Post 2004 N & E'!E$194)*G$194)","v":17593.551985510978},8.8314031637644739]
[{"$f":"'DNSP Inputs General'!B$78","v":"Smart lighting L1"},{"$f":"'DNSP Inputs General'!D$78","v":1},{"$f":"'DNSP Inputs General'!A$78","v":"Smart lighting L1"},{"$f":"'DNSP Inputs O & M'!$F$517","v":402},486769.29607460654,{"$f":"'DNSP Inputs General'!S$78","v":1210.8688957079764},{"$f":"IF((E$194+'Depn & WACC Post 2004 N & E'!E$194)=0,0,E190/(E$194+'Depn & WACC Post 2004 N & E'!E$194)*G$194)","v":18776.81747599343},{"$f":"IF(F190=0,0,G190/F190)","v":15.506895538030079}]
[{"$f":"'DNSP Inputs General'!B$79","v":"Smart lighting L2"},{"$f":"'DNSP Inputs General'!D$79","v":1},{"$f":"'DNSP Inputs General'!A$79","v":"Smart lighting L2"},{"$f":"'DNSP Inputs O & M'!$F$561","v":427},618822.30219648941,{"$f":"'DNSP Inputs General'!S$79","v":1449.2325578372117},{"$f":"IF((E$194+'Depn & WACC Post 2004 N & E'!E$194)=0,0,E191/(E$194+'Depn & WACC Post 2004 N & E'!E$194)*G$194)","v":23870.678598916027},16.471254713280707]
[{"$f":"'DNSP Inputs General'!B$80","v":"Smart lighting L4"},{"$f":"'DNSP Inputs General'!D$80","v":1},{"$f":"'DNSP Inputs General'!A$80","v":"Smart lighting L4"},{"$f":"'DNSP Inputs O & M'!$F$605","v":650.88},43736.265034062468,{"$f":"'DNSP Inputs General'!S$80","v":67.19558910100551},{"$f":"IF((E$194+'Depn & WACC Post 2004 N & E'!E$194)=0,0,E192/(E$194+'Depn & WACC Post 2004 N & E'!E$194)*G$194)","v":1687.0987390716525},25.107283999485123]
[]
[null,null,null,null,{"$f":"SUM(E181:E193)","v":22875392.479751848},{"$f":"SUM(F181:F193)","v":94746.842388212375},{"$f":"'Total RAB'!V$149","v":1261905.9266899307},{"$f":"SUMPRODUCT(F181:F193,H181:H193)","v":882403.78501231549}]
[null,null,null,"Check",{"$f":"SUM(F195:I195)","v":5.8207660913467407E-11},{"$f":"ABS('DNSP Inputs General'!S$81-F194)","v":0},{"$f":"ABS(G194-SUM(G181:G193)-SUM('Depn & WACC Post 2004 N & E'!G181:G193))","v":5.8207660913467407E-11},{"$f":"ABS(H194+'Depn & WACC Post 2004 N & E'!H194-G194)","v":0}]
[]
[]
[null,null,{"$f":"'RAB 2001 to 2004 Central'!A$27","v":"Poles & Brackets"},{"$f":"D$86","v":"Weighted Average Volumes"},null,null,{"$f":"G$86","v":"Unitisation Poles & Brackets"}]
[null,null,"Total Poles & Brackets",{"$f":"'DNSP Inputs General'!$D$42*F152","v":4928.6043990698754},{"$f":"SUMPRODUCT('DNSP Inputs General'!$D$42:$D$63,'DNSP Inputs General'!S$42:S$63)+SUMPRODUCT('DNSP Inputs General'!$D$69:$D$80,'DNSP Inputs General'!S$69:S$80)","v":122058.91654419308},{"$f":"IF(E199=0,0,D199/E199*G199)","v":65667.450584847422},{"$f":"'Total RAB'!V$119*('DNSP Inputs General'!S$83/('DNSP Inputs General'!S$83+'DNSP Inputs General'!S$130))","v":1626281.4422919517},{"$f":"F199/F152","v":13.323741422062636}]
[]
[]
[]
[null,null,null,{"$f":"'DNSP Inputs General'!B$39","v":"Central"}]
["DEPRECIATION AND RETURN",null,null,"Year",{"$f":"'DNSP Inputs General'!$T$2","v":"2025-06-30"}]
[]
[]
[{"$f":"'DNSP Inputs General'!B$41","v":"Reference Light"},{"$f":"'DNSP Inputs General'!D$41","v":"Price Factor"},{"$f":"'DNSP Inputs General'!A$41","v":"Existing Lights"},{"$f":"D$39","v":"WACC and Dep"},null,{"$f":"F$39","v":"Volumes"},{"$f":"G$39","v":"Unitisation - Luminaires"},null,{"$f":"I$39","v":"RAB WDV"}]
[{"$f":"'DNSP Inputs General'!B$42","v":"Mercury Vapour 80W"},{"$f":"'DNSP Inputs General'!D$42","v":1},{"$f":"'DNSP Inputs General'!A$42","v":"Mercury Vapour 80W"},{"$f":"'DNSP Inputs Capex'!$G$21","v":205},{"$f":"F208*D208","v":205},{"$f":"IF('DNSP Inputs General'!T$42=0,1/10^6,'DNSP Inputs General'!T$42)","v":1},{"$f":"IF((E$232+'Depn & WACC Post 2004 N & E'!E$232)=0,0,E208/(E$232+'Depn & WACC Post 2004 N & E'!E$232)*G$232)","v":29.916244381709244},{"$f":"IF(F208=0,0,G208/F208)","v":29.916244381709244},{"$f":"IF(F208=0,0,E208/(E$232+'Depn & WACC Post 2004 N & E'!E$232)*I$232/F208)","v":205.26607091202735}]
[{"$f":"'DNSP Inputs General'!B$43","v":"HP Sodium 150W"},{"$f":"'DNSP Inputs General'!D$43","v":1},{"$f":"'DNSP Inputs General'!A$43","v":"HP Sodium 150W"},{"$f":"'DNSP Inputs Capex'!$G$44","v":234.07},3056598.6978710708,{"$f":"IF('DNSP Inputs General'!T$43=0,1/10^6,'DNSP Inputs General'!T$43)","v":13058.481214470334},{"$f":"IF((E$232+'Depn & WACC Post 2004 N & E'!E$232)=0,0,E209/(E$232+'Depn & WACC Post 2004 N & E'!E$232)*G$232)","v":446058.31035280594},34.158513767935041,{"$f":"IF(F209=0,0,E209/(E$232+'Depn & WACC Post 2004 N & E'!E$232)*I$232/F209)","v":234.3738010652597}]
[{"$f":"'DNSP Inputs General'!B$44","v":"HP Sodium 250W"},{"$f":"'DNSP Inputs General'!D$44","v":1},{"$f":"'DNSP Inputs General'!A$44","v":"HP Sodium 250W"},{"$f":"'DNSP Inputs Capex'!$G$62","v":240.18},1444242.0496265898,{"$f":"IF('DNSP Inputs General'!T$44=0,1/10^6,'DNSP Inputs General'!T$44)","v":6013.165332777874},{"$f":"IF((E$232+'Depn & WACC Post 2004 N & E'!E$232)=0,0,E210/(E$232+'Depn & WACC Post 2004 N & E'!E$232)*G$232)","v":210762.42977058393},35.050163783409396,{"$f":"IF(F210=0,0,E210/(E$232+'Depn & WACC Post 2004 N & E'!E$232)*I$232/F210)","v":240.49173127634498}]
[{"$f":"'DNSP Inputs General'!B$45","v":"Mercury Vapour 80W"},{"$f":"'DNSP Inputs General'!D$45","v":1.53},{"$f":"'DNSP Inputs General'!A$45","v":"Mercury Vapour 50W"},{"$f":"B211*IF(A211=C208,D208,IF(A211=C209,D209,D210))","v":313.64999999999998},0,{"$f":"'DNSP Inputs General'!T$45","v":0},{"$f":"IF((E$232+'Depn & WACC Post 2004 N & E'!E$232)=0,0,E211/(E$232+'Depn & WACC Post 2004 N & E'!E$232)*G$232)","v":0},0,{"$f":"IF(F211=0,0,E211/(E$232+'Depn & WACC Post 2004 N & E'!E$232)*I$232/F211)","v":0}]
[{"$f":"'DNSP Inputs General'!B$46","v":"Mercury Vapour 80W"},{"$f":"'DNSP Inputs General'!D$46","v":1.47},{"$f":"'DNSP Inputs General'!A$46","v":"Mercury Vapour 125W"},{"$f":"B212*IF(A212=C208,D208,IF(A212=C209,D209,D210))","v":301.35000000000002},0,{"$f":"'DNSP Inputs General'!T$46","v":0},{"$f":"IF((E$232+'Depn & WACC Post 2004 N & E'!E$232)=0,0,E212/(E$232+'Depn & WACC Post 2004 N & E'!E$232)*G$232)","v":0},{"$f":"IF(F212=0,0,G212/F212)","v":0},{"$f":"IF(F212=0,0,E212/(E$232+'Depn & WACC Post 2004 N & E'!E$232)*I$232/F212)","v":0}]
[{"$f":"'DNSP Inputs General'!B$47","v":"HP Sodium 250W"},{"$f":"'DNSP Inputs General'!D$47","v":1.05},{"$f":"'DNSP Inputs General'!A$47","v":"Mercury Vapour 250W"},{"$f":"B213*IF(A213=C208,D208,IF(A213=C209,D209,D210))","v":252.18900000000002},0,{"$f":"'DNSP Inputs General'!T$47","v":0},{"$f":"IF((E$232+'Depn & WACC Post 2004 N & E'!E$232)=0,0,E213/(E$232+'Depn & WACC Post 2004 N & E'!E$232)*G$232)","v":0},0,{"$f":"IF(F213=0,0,E213/(E$232+'Depn & WACC Post 2004 N & E'!E$232)*I$232/F213)","v":0}]
[{"$f":"'DNSP Inputs General'!B$48","v":"HP Sodium 250W"},{"$f":"'DNSP Inputs General'!D$48","v":1.0900000000000001},{"$f":"'DNSP Inputs General'!A$48","v":"Mercury Vapour 400W"},{"$f":"B214*IF(A214=C208,D208,IF(A214=C209,D209,D210))","v":261.7962},0,{"$f":"'DNSP Inputs General'!T$48","v":0},{"$f":"IF((E$232+'Depn & WACC Post 2004 N & E'!E$232)=0,0,E214/(E$232+'Depn & WACC Post 2004 N & E'!E$232)*G$232)","v":0},0,{"$f":"IF(F214=0,0,E214/(E$232+'Depn & WACC Post 2004 N & E'!E$232)*I$232/F214)","v":0}]
[{"$f":"'DNSP Inputs General'!B$49","v":"HP Sodium 150W"},{"$f":"'DNSP Inputs General'!D$49","v":1.07},{"$f":"'DNSP Inputs General'!A$49","v":"HP Sodium 100W"},{"$f":"B215*IF(A215=C208,D208,IF(A215=C209,D209,D210))","v":250.45490000000001},594187.03979609755,{"$f":"'DNSP Inputs General'!T$49","v":2372.4312832214405},{"$f":"IF((E$232+'Depn & WACC Post 2004 N & E'!E$232)=0,0,E215/(E$232+'Depn & WACC Post 2004 N & E'!E$232)*G$232)","v":86711.437516997321},36.549609731690488,{"$f":"IF(F215=0,0,E215/(E$232+'Depn & WACC Post 2004 N & E'!E$232)*I$232/F215)","v":250.7799671398279}]
[{"$f":"'DNSP Inputs General'!B$50","v":"HP Sodium 250W"},{"$f":"'DNSP Inputs General'!D$50","v":1.42},{"$f":"'DNSP Inputs General'!A$50","v":"HP Sodium 400W"},{"$f":"B216*IF(A216=C208,D208,IF(A216=C209,D209,D210))","v":341.05559999999997},70105.573553695853,{"$f":"'DNSP Inputs General'!T$50","v":205.55467657970098},{"$f":"IF((E$232+'Depn & WACC Post 2004 N & E'!E$232)=0,0,E216/(E$232+'Depn & WACC Post 2004 N & E'!E$232)*G$232)","v":10230.709614401258},49.771232572441335,{"$f":"IF(F216=0,0,E216/(E$232+'Depn & WACC Post 2004 N & E'!E$232)*I$232/F216)","v":341.49825841240983}]
[{"$f":"'DNSP Inputs General'!B$51","v":"Mercury Vapour 80W"},{"$f":"'DNSP Inputs General'!D$51","v":4.3651056775797761},{"$f":"'DNSP Inputs General'!A$51","v":"Metal Halide 70W"},{"$f":"B217*IF(A217=C208,D208,IF(A217=C209,D209,D210))","v":894.84666390385405},0,{"$f":"'DNSP Inputs General'!T$51","v":0},{"$f":"IF((E$232+'Depn & WACC Post 2004 N & E'!E$232)=0,0,E217/(E$232+'Depn & WACC Post 2004 N & E'!E$232)*G$232)","v":0},0,{"$f":"IF(F217=0,0,E217/(E$232+'Depn & WACC Post 2004 N & E'!E$232)*I$232/F217)","v":0}]
[{"$f":"'DNSP Inputs General'!B$52","v":"HP Sodium 150W"},{"$f":"'DNSP Inputs General'!D$52","v":2.3876890876224905},{"$f":"'DNSP Inputs General'!A$52","v":"Metal Halide 100W"},{"$f":"B218*IF(A218=C208,D208,IF(A218=C209,D209,D210))","v":558.88638473979631},0,{"$f":"'DNSP Inputs General'!T$52","v":0},{"$f":"IF((E$232+'Depn & WACC Post 2004 N & E'!E$232)=0,0,E218/(E$232+'Depn & WACC Post 2004 N & E'!E$232)*G$232)","v":0},0,{"$f":"IF(F218=0,0,E218/(E$232+'Depn & WACC Post 2004 N & E'!E$232)*I$232/F218)","v":0}]
[{"$f":"'DNSP Inputs General'!B$53","v":"HP Sodium 150W"},{"$f":"'DNSP Inputs General'!D$53","v":2.7125868138140996},{"$f":"'DNSP Inputs General'!A$53","v":"Metal Halide 150W"},{"$f":"B219*IF(A219=C208,D208,IF(A219=C209,D209,D210))","v":634.93519550946633},0,{"$f":"'DNSP Inputs General'!T$53","v":0},{"$f":"IF((E$232+'Depn & WACC Post 2004 N & E'!E$232)=0,0,E219/(E$232+'Depn & WACC Post 2004 N & E'!E$232)*G$232)","v":0},0,{"$f":"IF(F219=0,0,E219/(E$232+'Depn & WACC Post 2004 N & E'!E$232)*I$232/F219)","v":0}]
[{"$f":"'DNSP Inputs General'!B$54","v":"HP Sodium 150W"},{"$f":"'DNSP Inputs General'!D$54","v":0.44334506707259064},{"$f":"'DNSP Inputs General'!A$54","v":"HP Sodium 50W"},{"$f":"B220*IF(A220=C208,D208,IF(A220=C209,D209,D210))","v":103.77377984968129},0,{"$f":"'DNSP Inputs General'!T$54","v":0},{"$f":"IF((E$232+'Depn & WACC Post 2004 N & E'!E$232)=0,0,E220/(E$232+'Depn & WACC Post 2004 N & E'!E$232)*G$232)","v":0},0,{"$f":"IF(F220=0,0,E220/(E$232+'Depn & WACC Post 2004 N & E'!E$232)*I$232/F220)","v":0}]
[]
[]
[]
[]
[]
[]
[]
[]
[]
[]
[]
[null,null,null,null,{"$f":"SUM(E208:E231)","v":5165338.3608474545},{"$f":"SUM(F208:F231)","v":21650.632507049351},{"$f":"'Total RAB'!W$134","v":1092051.4468261178},{"$f":"SUMPRODUCT(F208:F231,H208:H231)","v":753792.80349917023},{"$f":"'Total RAB'!W$128","v":7492956.230189234}]
[null,null,null,"Check",{"$f":"SUM(F233:I233)","v":6.4028427004814148E-10},{"$f":"ABS('DNSP Inputs General'!T$66-F232)","v":0},{"$f":"ABS(G232-SUM(G208:G231)-SUM('Depn & WACC Post 2004 N & E'!G208:G231))*IF(F232=0,0,1)","v":1.7462298274040222E-10},{"$f":"ABS(H232+'Depn & WACC Post 2004 N & E'!H232-G232)*IF(F232=0,0,1)","v":0},{"$f":"ABS(I232-SUMPRODUCT(F208:F231,I208:I231)-SUMPRODUCT('Depn & WACC Post 2004 N & E'!F208:F231,'Depn & WACC Post 2004 N & E'!I208:I231))*IF(F232=0,0,1)","v":4.6566128730773926E-10}]
[]
[]
[{"$f":"'DNSP Inputs General'!B$68","v":"Reference Light"},{"$f":"'DNSP Inputs General'!D$68","v":"Price Factor"},{"$f":"'DNSP Inputs General'!A$68","v":"Energy Efficient Lights"},{"$f":"D$68","v":"Unit cost"},null,{"$f":"F$68","v":"Volumes"},{"$f":"G$68","v":"Unitisation - Luminaires & Ballasts"}]
[{"$f":"'DNSP Inputs General'!B$69","v":"T5 2X14W"},{"$f":"'DNSP Inputs General'!D$69","v":1},{"$f":"'DNSP Inputs General'!A$69","v":"T5 2X14W"},{"$f":"'DNSP Inputs O & M'!$G$189","v":260.27999999999997},{"$f":"F237*D237","v":5863700.3781251805},{"$f":"'DNSP Inputs General'!T$69","v":22528.43237331021},{"$f":"IF((E$250+'Depn & WACC Post 2004 N & E'!E$250)=0,0,E237/(E$250+'Depn & WACC Post 2004 N & E'!E$250)*G$250)","v":251308.03924242768},{"$f":"IF(F237=0,0,G237/F237)","v":11.155149860323005}]
[{"$f":"'DNSP Inputs General'!B$70","v":"T5 2X24W"},{"$f":"'DNSP Inputs General'!D$70","v":1},{"$f":"'DNSP Inputs General'!A$70","v":"T5 2X24W"},{"$f":"'DNSP Inputs O & M'!$G$238","v":267.33},{"$f":"F238*D238","v":476114.73},{"$f":"'DNSP Inputs General'!T$70","v":1781},{"$f":"IF((E$250+'Depn & WACC Post 2004 N & E'!E$250)=0,0,E238/(E$250+'Depn & WACC Post 2004 N & E'!E$250)*G$250)","v":20405.452450657853},{"$f":"IF(F238=0,0,G238/F238)","v":11.457300646074033}]
[{"$f":"'DNSP Inputs General'!B$71","v":"LED 18W"},{"$f":"'DNSP Inputs General'!D$71","v":1},{"$f":"'DNSP Inputs General'!A$71","v":"LED 18W"},{"$f":"'DNSP Inputs O & M'!$G$286","v":205},{"$f":"F239*D239","v":12492338.716768708},{"$f":"'DNSP Inputs General'!T$71","v":60938.237642774184},{"$f":"IF((E$250+'Depn & WACC Post 2004 N & E'!E$250)=0,0,E239/(E$250+'Depn & WACC Post 2004 N & E'!E$250)*G$250)","v":535399.99420420383},{"$f":"IF(F239=0,0,G239/F239)","v":8.7859448338951012}]
[{"$f":"'DNSP Inputs General'!B$72","v":"LED 14W"},{"$f":"'DNSP Inputs General'!D$72","v":1},{"$f":"'DNSP Inputs General'!A$72","v":"LED 14W"},{"$f":"'DNSP Inputs O & M'!$G$332","v":205},560083.94032869476,{"$f":"'DNSP Inputs General'!T$72","v":2732.1167820911937},{"$f":"IF((E$250+'Depn & WACC Post 2004 N & E'!E$250)=0,0,E240/(E$250+'Depn & WACC Post 2004 N & E'!E$250)*G$250)","v":24004.227327212233},{"$f":"IF(F240=0,0,G240/F240)","v":8.7859448338951012}]
[{"$f":"'DNSP Inputs General'!B$73","v":"LED 70W-125W (L1)"},{"$f":"'DNSP Inputs General'!D$73","v":1},{"$f":"'DNSP Inputs General'!A$73","v":"LED 70W-125W (L1)"},{"$f":"'DNSP Inputs O & M'!$G$378","v":402},1142984.6527781105,{"$f":"'DNSP Inputs General'!T$73","v":2843.2454049206731},{"$f":"IF((E$250+'Depn & WACC Post 2004 N & E'!E$250)=0,0,E241/(E$250+'Depn & WACC Post 2004 N & E'!E$250)*G$250)","v":48986.341977059637},17.229023527930881]
[{"$f":"'DNSP Inputs General'!B$74","v":"LED 155W-250W (L2)"},{"$f":"'DNSP Inputs General'!D$74","v":1},{"$f":"'DNSP Inputs General'!A$74","v":"LED 155W-250W (L2)"},{"$f":"'DNSP Inputs O & M'!$G$424","v":427},1527647.8571692805,{"$f":"'DNSP Inputs General'!T$74","v":3577.6296420826243},{"$f":"IF((E$250+'Depn & WACC Post 2004 N & E'!E$250)=0,0,E242/(E$250+'Depn & WACC Post 2004 N & E'!E$250)*G$250)","v":65472.340481499319},18.300480214991257]
[{"$f":"'DNSP Inputs General'!B$75","v":"LED 275W-400W (L4)"},{"$f":"'DNSP Inputs General'!D$75","v":1},{"$f":"'DNSP Inputs General'!A$75","v":"LED 275W-400W (L4)"},{"$f":"'DNSP Inputs O & M'!$G$470","v":650.88},108262.96423238267,{"$f":"'DNSP Inputs General'!T$75","v":166.33321692536668},{"$f":"IF((E$250+'Depn & WACC Post 2004 N & E'!E$250)=0,0,E243/(E$250+'Depn & WACC Post 2004 N & E'!E$250)*G$250)","v":4639.9630795105977},27.895589138954357]
[{"$f":"'DNSP Inputs General'!B$76","v":"T5 2X14W"},{"$f":"'DNSP Inputs General'!D$76","v":0.87960989252886512},{"$f":"'DNSP Inputs General'!A$76","v":"Compact Fluorescent 32W"},{"$f":"D237*B244","v":228.94486282741298},712287.06411536026,{"$f":"'DNSP Inputs General'!T$76","v":3111.1729493240841},{"$f":"IF((E$250+'Depn & WACC Post 2004 N & E'!E$250)=0,0,E244/(E$250+'Depn & WACC Post 2004 N & E'!E$250)*G$250)","v":30527.389518120279},9.8121801697821027]
[{"$f":"'DNSP Inputs General'!B$77","v":"T5 2X14W"},{"$f":"'DNSP Inputs General'!D$77","v":0.87960989252886512},{"$f":"'DNSP Inputs General'!A$77","v":"Compact Fluorescent 42W"},{"$f":"D237*B245","v":228.94486282741298},456094.37948621681,{"$f":"'DNSP Inputs General'!T$77","v":1992.1581722933765},{"$f":"IF((E$250+'Depn & WACC Post 2004 N & E'!E$250)=0,0,E245/(E$250+'Depn & WACC Post 2004 N & E'!E$250)*G$250)","v":19547.41491324643},9.8121801697821045]
[{"$f":"'DNSP Inputs General'!B$78","v":"Smart lighting L1"},{"$f":"'DNSP Inputs General'!D$78","v":1},{"$f":"'DNSP Inputs General'!A$78","v":"Smart lighting L1"},{"$f":"'DNSP Inputs O & M'!$G$517","v":402},754720.49079618568,{"$f":"'DNSP Inputs General'!T$78","v":1877.4141562094171},{"$f":"IF((E$250+'Depn & WACC Post 2004 N & E'!E$250)=0,0,E246/(E$250+'Depn & WACC Post 2004 N & E'!E$250)*G$250)","v":32346.012669002546},{"$f":"IF(F246=0,0,G246/F246)","v":17.229023527930877}]
[{"$f":"'DNSP Inputs General'!B$79","v":"Smart lighting L2"},{"$f":"'DNSP Inputs General'!D$79","v":1},{"$f":"'DNSP Inputs General'!A$79","v":"Smart lighting L2"},{"$f":"'DNSP Inputs O & M'!$G$561","v":427},1017244.0052052644,{"$f":"'DNSP Inputs General'!T$79","v":2382.3044618390268},{"$f":"IF((E$250+'Depn & WACC Post 2004 N & E'!E$250)=0,0,E247/(E$250+'Depn & WACC Post 2004 N & E'!E$250)*G$250)","v":43597.3156699705},18.300480214991257]
[{"$f":"'DNSP Inputs General'!B$80","v":"Smart lighting L4"},{"$f":"'DNSP Inputs General'!D$80","v":1},{"$f":"'DNSP Inputs General'!A$80","v":"Smart lighting L4"},{"$f":"'DNSP Inputs O & M'!$G$605","v":650.88},72175.309488255123,{"$f":"'DNSP Inputs General'!T$80","v":110.88881128357781},{"$f":"IF((E$250+'Depn & WACC Post 2004 N & E'!E$250)=0,0,E248/(E$250+'Depn & WACC Post 2004 N & E'!E$250)*G$250)","v":3093.308719673732},27.895589138954353]
[]
[null,null,null,null,{"$f":"SUM(E237:E249)","v":25183654.488493644},{"$f":"SUM(F237:F249)","v":104040.93361305374},{"$f":"'Total RAB'!W$149","v":1535265.6683476437},{"$f":"SUMPRODUCT(F237:F249,H237:H249)","v":1079327.8002525845}]
[null,null,null,"Check",{"$f":"SUM(F251:I251)","v":5.2386894822120667E-10},{"$f":"ABS('DNSP Inputs General'!T$81-F250)","v":0},{"$f":"ABS(G250-SUM(G237:G249)-SUM('Depn & WACC Post 2004 N & E'!G237:G249))","v":2.9103830456733704E-10},{"$f":"ABS(H250+'Depn & WACC Post 2004 N & E'!H250-G250)","v":2.3283064365386963E-10}]
[]
[]
[null,null,{"$f":"'RAB 2001 to 2004 Central'!A$27","v":"Poles & Brackets"},{"$f":"D$86","v":"Weighted Average Volumes"},null,null,{"$f":"G$86","v":"Unitisation Poles & Brackets"}]
[null,null,"Total Poles & Brackets",{"$f":"'DNSP Inputs General'!$D$42*F208","v":1},{"$f":"SUMPRODUCT('DNSP Inputs General'!$D$42:$D$63,'DNSP Inputs General'!T$42:T$63)+SUMPRODUCT('DNSP Inputs General'!$D$69:$D$80,'DNSP Inputs General'!T$69:T$80)","v":125329.57869189975},{"$f":"IF(E255=0,0,D255/E255*G255)","v":13.80325125383872},{"$f":"'Total RAB'!W$119*('DNSP Inputs General'!T$83/('DNSP Inputs General'!T$83+'DNSP Inputs General'!T$130))","v":1729955.6642220437},{"$f":"F255/F208","v":13.80325125383872}]
[]
[]
[]
[null,null,null,{"$f":"'DNSP Inputs General'!B$39","v":"Central"}]
["DEPRECIATION AND RETURN",null,null,"Year",{"$f":"'DNSP Inputs General'!$U$2","v":"2026-06-30"}]
[]
[]
[{"$f":"'DNSP Inputs General'!B$41","v":"Reference Light"},{"$f":"'DNSP Inputs General'!D$41","v":"Price Factor"},{"$f":"'DNSP Inputs General'!A$41","v":"Existing Lights"},{"$f":"D$39","v":"WACC and Dep"},null,{"$f":"F$39","v":"Volumes"},{"$f":"G$39","v":"Unitisation - Luminaires"},null,{"$f":"I$39","v":"RAB WDV"}]
[{"$f":"'DNSP Inputs General'!B$42","v":"Mercury Vapour 80W"},{"$f":"'DNSP Inputs General'!D$42","v":1},{"$f":"'DNSP Inputs General'!A$42","v":"Mercury Vapour 80W"},{"$f":"'DNSP Inputs Capex'!$H$21","v":205},{"$f":"F264*D264","v":205},{"$f":"IF('DNSP Inputs General'!U$42=0,1/10^6,'DNSP Inputs General'!U$42)","v":1},{"$f":"IF((E$288+'Depn & WACC Post 2004 N & E'!E$288)=0,0,E264/(E$288+'Depn & WACC Post 2004 N & E'!E$288)*G$288)","v":30.029204919548235},{"$f":"IF(F264=0,0,G264/F264)","v":30.029204919548235},{"$f":"IF(F264=0,0,E264/(E$288+'Depn & WACC Post 2004 N & E'!E$288)*I$288/F264)","v":193.11214630882861}]
[{"$f":"'DNSP Inputs General'!B$43","v":"HP Sodium 150W"},{"$f":"'DNSP Inputs General'!D$43","v":1},{"$f":"'DNSP Inputs General'!A$43","v":"HP Sodium 150W"},{"$f":"'DNSP Inputs Capex'!$H$44","v":234.07},2952652.9377900157,{"$f":"IF('DNSP Inputs General'!U$43=0,1/10^6,'DNSP Inputs General'!U$43)","v":12614.401408937565},{"$f":"IF((E$288+'Depn & WACC Post 2004 N & E'!E$288)=0,0,E265/(E$288+'Depn & WACC Post 2004 N & E'!E$288)*G$288)","v":432516.19573269499},34.287492661066601,{"$f":"IF(F265=0,0,E265/(E$288+'Depn & WACC Post 2004 N & E'!E$288)*I$288/F265)","v":220.49639066589029}]
[{"$f":"'DNSP Inputs General'!B$44","v":"HP Sodium 250W"},{"$f":"'DNSP Inputs General'!D$44","v":1},{"$f":"'DNSP Inputs General'!A$44","v":"HP Sodium 250W"},{"$f":"'DNSP Inputs Capex'!$H$62","v":240.18},1387404.5996808547,{"$f":"IF('DNSP Inputs General'!U$44=0,1/10^6,'DNSP Inputs General'!U$44)","v":5776.5201085887866},{"$f":"IF((E$288+'Depn & WACC Post 2004 N & E'!E$288)=0,0,E266/(E$288+'Depn & WACC Post 2004 N & E'!E$288)*G$288)","v":203232.47331775693},35.182509451595585,{"$f":"IF(F266=0,0,E266/(E$288+'Depn & WACC Post 2004 N & E'!E$288)*I$288/F266)","v":226.2520746363632}]
[{"$f":"'DNSP Inputs General'!B$45","v":"Mercury Vapour 80W"},{"$f":"'DNSP Inputs General'!D$45","v":1.53},{"$f":"'DNSP Inputs General'!A$45","v":"Mercury Vapour 50W"},{"$f":"B267*IF(A267=C264,D264,IF(A267=C265,D265,D266))","v":313.64999999999998},0,{"$f":"'DNSP Inputs General'!U$45","v":0},{"$f":"IF((E$288+'Depn & WACC Post 2004 N & E'!E$288)=0,0,E267/(E$288+'Depn & WACC Post 2004 N & E'!E$288)*G$288)","v":0},0,{"$f":"IF(F267=0,0,E267/(E$288+'Depn & WACC Post 2004 N & E'!E$288)*I$288/F267)","v":0}]
[{"$f":"'DNSP Inputs General'!B$46","v":"Mercury Vapour 80W"},{"$f":"'DNSP Inputs General'!D$46","v":1.47},{"$f":"'DNSP Inputs General'!A$46","v":"Mercury Vapour 125W"},{"$f":"B268*IF(A268=C264,D264,IF(A268=C265,D265,D266))","v":301.35000000000002},0,{"$f":"'DNSP Inputs General'!U$46","v":0},{"$f":"IF((E$288+'Depn & WACC Post 2004 N & E'!E$288)=0,0,E268/(E$288+'Depn & WACC Post 2004 N & E'!E$288)*G$288)","v":0},{"$f":"IF(F268=0,0,G268/F268)","v":0},{"$f":"IF(F268=0,0,E268/(E$288+'Depn & WACC Post 2004 N & E'!E$288)*I$288/F268)","v":0}]
[{"$f":"'DNSP Inputs General'!B$47","v":"HP Sodium 250W"},{"$f":"'DNSP Inputs General'!D$47","v":1.05},{"$f":"'DNSP Inputs General'!A$47","v":"Mercury Vapour 250W"},{"$f":"B269*IF(A269=C264,D264,IF(A269=C265,D265,D266))","v":252.18900000000002},0,{"$f":"'DNSP Inputs General'!U$47","v":0},{"$f":"IF((E$288+'Depn & WACC Post 2004 N & E'!E$288)=0,0,E269/(E$288+'Depn & WACC Post 2004 N & E'!E$288)*G$288)","v":0},0,{"$f":"IF(F269=0,0,E269/(E$288+'Depn & WACC Post 2004 N & E'!E$288)*I$288/F269)","v":0}]
[{"$f":"'DNSP Inputs General'!B$48","v":"HP Sodium 250W"},{"$f":"'DNSP Inputs General'!D$48","v":1.0900000000000001},{"$f":"'DNSP Inputs General'!A$48","v":"Mercury Vapour 400W"},{"$f":"B270*IF(A270=C264,D264,IF(A270=C265,D265,D266))","v":261.7962},0,{"$f":"'DNSP Inputs General'!U$48","v":0},{"$f":"IF((E$288+'Depn & WACC Post 2004 N & E'!E$288)=0,0,E270/(E$288+'Depn & WACC Post 2004 N & E'!E$288)*G$288)","v":0},0,{"$f":"IF(F270=0,0,E270/(E$288+'Depn & WACC Post 2004 N & E'!E$288)*I$288/F270)","v":0}]
[{"$f":"'DNSP Inputs General'!B$49","v":"HP Sodium 150W"},{"$f":"'DNSP Inputs General'!D$49","v":1.07},{"$f":"'DNSP Inputs General'!A$49","v":"HP Sodium 100W"},{"$f":"B271*IF(A271=C264,D264,IF(A271=C265,D265,D266))","v":250.45490000000001},586402.37104246323,{"$f":"'DNSP Inputs General'!U$49","v":2341.3491652288026},{"$f":"IF((E$288+'Depn & WACC Post 2004 N & E'!E$288)=0,0,E271/(E$288+'Depn & WACC Post 2004 N & E'!E$288)*G$288)","v":85898.521782161391},36.687617147341271,{"$f":"IF(F271=0,0,E271/(E$288+'Depn & WACC Post 2004 N & E'!E$288)*I$288/F271)","v":235.9311380125026}]
[{"$f":"'DNSP Inputs General'!B$50","v":"HP Sodium 250W"},{"$f":"'DNSP Inputs General'!D$50","v":1.42},{"$f":"'DNSP Inputs General'!A$50","v":"HP Sodium 400W"},{"$f":"B272*IF(A272=C264,D264,IF(A272=C265,D265,D266))","v":341.05559999999997},68905.84058294163,{"$f":"'DNSP Inputs General'!U$50","v":202.03697163436587},{"$f":"IF((E$288+'Depn & WACC Post 2004 N & E'!E$288)=0,0,E272/(E$288+'Depn & WACC Post 2004 N & E'!E$288)*G$288)","v":10093.598083018913},49.959163421265728,{"$f":"IF(F272=0,0,E272/(E$288+'Depn & WACC Post 2004 N & E'!E$288)*I$288/F272)","v":321.27794598363573}]
[{"$f":"'DNSP Inputs General'!B$51","v":"Mercury Vapour 80W"},{"$f":"'DNSP Inputs General'!D$51","v":4.3651056775797761},{"$f":"'DNSP Inputs General'!A$51","v":"Metal Halide 70W"},{"$f":"B273*IF(A273=C264,D264,IF(A273=C265,D265,D266))","v":894.84666390385405},0,{"$f":"'DNSP Inputs General'!U$51","v":0},{"$f":"IF((E$288+'Depn & WACC Post 2004 N & E'!E$288)=0,0,E273/(E$288+'Depn & WACC Post 2004 N & E'!E$288)*G$288)","v":0},0,{"$f":"IF(F273=0,0,E273/(E$288+'Depn & WACC Post 2004 N & E'!E$288)*I$288/F273)","v":0}]
[{"$f":"'DNSP Inputs General'!B$52","v":"HP Sodium 150W"},{"$f":"'DNSP Inputs General'!D$52","v":2.3876890876224905},{"$f":"'DNSP Inputs General'!A$52","v":"Metal Halide 100W"},{"$f":"B274*IF(A274=C264,D264,IF(A274=C265,D265,D266))","v":558.88638473979631},0,{"$f":"'DNSP Inputs General'!U$52","v":0},{"$f":"IF((E$288+'Depn & WACC Post 2004 N & E'!E$288)=0,0,E274/(E$288+'Depn & WACC Post 2004 N & E'!E$288)*G$288)","v":0},0,{"$f":"IF(F274=0,0,E274/(E$288+'Depn & WACC Post 2004 N & E'!E$288)*I$288/F274)","v":0}]
[{"$f":"'DNSP Inputs General'!B$53","v":"HP Sodium 150W"},{"$f":"'DNSP Inputs General'!D$53","v":2.7125868138140996},{"$f":"'DNSP Inputs General'!A$53","v":"Metal Halide 150W"},{"$f":"B275*IF(A275=C264,D264,IF(A275=C265,D265,D266))","v":634.93519550946633},0,{"$f":"'DNSP Inputs General'!U$53","v":0},{"$f":"IF((E$288+'Depn & WACC Post 2004 N & E'!E$288)=0,0,E275/(E$288+'Depn & WACC Post 2004 N & E'!E$288)*G$288)","v":0},0,{"$f":"IF(F275=0,0,E275/(E$288+'Depn & WACC Post 2004 N & E'!E$288)*I$288/F275)","v":0}]
[{"$f":"'DNSP Inputs General'!B$54","v":"HP Sodium 150W"},{"$f":"'DNSP Inputs General'!D$54","v":0.44334506707259064},{"$f":"'DNSP Inputs General'!A$54","v":"HP Sodium 50W"},{"$f":"B276*IF(A276=C264,D264,IF(A276=C265,D265,D266))","v":103.77377984968129},0,{"$f":"'DNSP Inputs General'!U$54","v":0},{"$f":"IF((E$288+'Depn & WACC Post 2004 N & E'!E$288)=0,0,E276/(E$288+'Depn & WACC Post 2004 N & E'!E$288)*G$288)","v":0},0,{"$f":"IF(F276=0,0,E276/(E$288+'Depn & WACC Post 2004 N & E'!E$288)*I$288/F276)","v":0}]
[]
[]
[]
[]
[]
[]
[]
[]
[]
[]
[]
[null,null,null,null,{"$f":"SUM(E264:E287)","v":4995570.7490962753},{"$f":"SUM(F264:F287)","v":20935.307654389522},{"$f":"'Total RAB'!X$134","v":1056904.3334277405},{"$f":"SUMPRODUCT(F264:F287,H264:H287)","v":731770.81812055176},{"$f":"'Total RAB'!X$128","v":6796752.1890154444}]
[null,null,null,"Check",{"$f":"SUM(F289:I289)","v":7.5669959187507629E-10},{"$f":"ABS('DNSP Inputs General'!U$66-F288)","v":0},{"$f":"ABS(G288-SUM(G264:G287)-SUM('Depn & WACC Post 2004 N & E'!G264:G287))*IF(F288=0,0,1)","v":5.8207660913467407E-11},{"$f":"ABS(H288+'Depn & WACC Post 2004 N & E'!H288-G288)*IF(F288=0,0,1)","v":0},{"$f":"ABS(I288-SUMPRODUCT(F264:F287,I264:I287)-SUMPRODUCT('Depn & WACC Post 2004 N & E'!F264:F287,'Depn & WACC Post 2004 N & E'!I264:I287))*IF(F288=0,0,1)","v":6.9849193096160889E-10}]
[]
[]
[{"$f":"'DNSP Inputs General'!B$68","v":"Reference Light"},{"$f":"'DNSP Inputs General'!D$68","v":"Price Factor"},{"$f":"'DNSP Inputs General'!A$68","v":"Energy Efficient Lights"},{"$f":"D$68","v":"Unit cost"},null,{"$f":"F$68","v":"Volumes"},{"$f":"G$68","v":"Unitisation - Luminaires & Ballasts"}]
[{"$f":"'DNSP Inputs General'!B$69","v":"T5 2X14W"},{"$f":"'DNSP Inputs General'!D$69","v":1},{"$f":"'DNSP Inputs General'!A$69","v":"T5 2X14W"},{"$f":"'DNSP Inputs O & M'!$H$189","v":260.27999999999997},{"$f":"F293*D293","v":5863700.3781251805},{"$f":"'DNSP Inputs General'!U$69","v":22528.43237331021},{"$f":"IF((E$306+'Depn & WACC Post 2004 N & E'!E$306)=0,0,E293/(E$306+'Depn & WACC Post 2004 N & E'!E$306)*G$306)","v":266925.75923692551},{"$f":"IF(F293=0,0,G293/F293)","v":11.848394722446676}]
[{"$f":"'DNSP Inputs General'!B$70","v":"T5 2X24W"},{"$f":"'DNSP Inputs General'!D$70","v":1},{"$f":"'DNSP Inputs General'!A$70","v":"T5 2X24W"},{"$f":"'DNSP Inputs O & M'!$H$238","v":267.33},{"$f":"F294*D294","v":476114.73},{"$f":"'DNSP Inputs General'!U$70","v":1781},{"$f":"IF((E$306+'Depn & WACC Post 2004 N & E'!E$306)=0,0,E294/(E$306+'Depn & WACC Post 2004 N & E'!E$306)*G$306)","v":21673.564062590762},{"$f":"IF(F294=0,0,G294/F294)","v":12.169322887473758}]
[{"$f":"'DNSP Inputs General'!B$71","v":"LED 18W"},{"$f":"'DNSP Inputs General'!D$71","v":1},{"$f":"'DNSP Inputs General'!A$71","v":"LED 18W"},{"$f":"'DNSP Inputs O & M'!$H$286","v":205},{"$f":"F295*D295","v":13013213.683406753},{"$f":"'DNSP Inputs General'!U$71","v":63479.091138569529},{"$f":"IF((E$306+'Depn & WACC Post 2004 N & E'!E$306)=0,0,E295/(E$306+'Depn & WACC Post 2004 N & E'!E$306)*G$306)","v":592383.94163419178},{"$f":"IF(F295=0,0,G295/F295)","v":9.3319537348300621}]
[{"$f":"'DNSP Inputs General'!B$72","v":"LED 14W"},{"$f":"'DNSP Inputs General'!D$72","v":1},{"$f":"'DNSP Inputs General'!A$72","v":"LED 14W"},{"$f":"'DNSP Inputs O & M'!$H$332","v":205},560083.94032869476,{"$f":"'DNSP Inputs General'!U$72","v":2732.1167820911937},{"$f":"IF((E$306+'Depn & WACC Post 2004 N & E'!E$306)=0,0,E296/(E$306+'Depn & WACC Post 2004 N & E'!E$306)*G$306)","v":25495.987408627811},{"$f":"IF(F296=0,0,G296/F296)","v":9.3319537348300639}]
[{"$f":"'DNSP Inputs General'!B$73","v":"LED 70W-125W (L1)"},{"$f":"'DNSP Inputs General'!D$73","v":1},{"$f":"'DNSP Inputs General'!A$73","v":"LED 70W-125W (L1)"},{"$f":"'DNSP Inputs O & M'!$H$378","v":402},1078644.5240725307,{"$f":"'DNSP Inputs General'!U$73","v":2683.1953335137578},{"$f":"IF((E$306+'Depn & WACC Post 2004 N & E'!E$306)=0,0,E297/(E$306+'Depn & WACC Post 2004 N & E'!E$306)*G$306)","v":49101.759975476329},18.299733665374074]
[{"$f":"'DNSP Inputs General'!B$74","v":"LED 155W-250W (L2)"},{"$f":"'DNSP Inputs General'!D$74","v":1},{"$f":"'DNSP Inputs General'!A$74","v":"LED 155W-250W (L2)"},{"$f":"'DNSP Inputs O & M'!$H$424","v":427},1505428.4057995714,{"$f":"'DNSP Inputs General'!U$74","v":3525.5934562050852},{"$f":"IF((E$306+'Depn & WACC Post 2004 N & E'!E$306)=0,0,E298/(E$306+'Depn & WACC Post 2004 N & E'!E$306)*G$306)","v":68529.698702539405},19.437776803767985]
[{"$f":"'DNSP Inputs General'!B$75","v":"LED 275W-400W (L4)"},{"$f":"'DNSP Inputs General'!D$75","v":1},{"$f":"'DNSP Inputs General'!A$75","v":"LED 275W-400W (L4)"},{"$f":"'DNSP Inputs O & M'!$H$470","v":650.88},98317.811620716151,{"$f":"'DNSP Inputs General'!U$75","v":151.05366829633135},{"$f":"IF((E$306+'Depn & WACC Post 2004 N & E'!E$306)=0,0,E299/(E$306+'Depn & WACC Post 2004 N & E'!E$306)*G$306)","v":4475.5964358744422},29.62918071671313]
[{"$f":"'DNSP Inputs General'!B$76","v":"T5 2X14W"},{"$f":"'DNSP Inputs General'!D$76","v":0.87960989252886512},{"$f":"'DNSP Inputs General'!A$76","v":"Compact Fluorescent 32W"},{"$f":"D293*B300","v":228.94486282741298},712287.06411536026,{"$f":"'DNSP Inputs General'!U$76","v":3111.1729493240841},{"$f":"IF((E$306+'Depn & WACC Post 2004 N & E'!E$306)=0,0,E300/(E$306+'Depn & WACC Post 2004 N & E'!E$306)*G$306)","v":32424.536235329149},10.42196520845089]
[{"$f":"'DNSP Inputs General'!B$77","v":"T5 2X14W"},{"$f":"'DNSP Inputs General'!D$77","v":0.87960989252886512},{"$f":"'DNSP Inputs General'!A$77","v":"Compact Fluorescent 42W"},{"$f":"D293*B301","v":228.94486282741298},456094.37948621681,{"$f":"'DNSP Inputs General'!U$77","v":1992.1581722933765},{"$f":"IF((E$306+'Depn & WACC Post 2004 N & E'!E$306)=0,0,E301/(E$306+'Depn & WACC Post 2004 N & E'!E$306)*G$306)","v":20762.203161372687},10.42196520845089]
[{"$f":"'DNSP Inputs General'!B$78","v":"Smart lighting L1"},{"$f":"'DNSP Inputs General'!D$78","v":1},{"$f":"'DNSP Inputs General'!A$78","v":"Smart lighting L1"},{"$f":"'DNSP Inputs O & M'!$H$517","v":402},1067740.6074886983,{"$f":"'DNSP Inputs General'!U$78","v":2656.0711629072098},{"$f":"IF((E$306+'Depn & WACC Post 2004 N & E'!E$306)=0,0,E302/(E$306+'Depn & WACC Post 2004 N & E'!E$306)*G$306)","v":48605.394877482329},{"$f":"IF(F302=0,0,G302/F302)","v":18.299733665374074}]
[{"$f":"'DNSP Inputs General'!B$79","v":"Smart lighting L2"},{"$f":"'DNSP Inputs General'!D$79","v":1},{"$f":"'DNSP Inputs General'!A$79","v":"Smart lighting L2"},{"$f":"'DNSP Inputs O & M'!$H$561","v":427},1503646.5564381874,{"$f":"'DNSP Inputs General'!U$79","v":3521.4205068810011},{"$f":"IF((E$306+'Depn & WACC Post 2004 N & E'!E$306)=0,0,E303/(E$306+'Depn & WACC Post 2004 N & E'!E$306)*G$306)","v":68448.585844964415},19.437776803767981]
[{"$f":"'DNSP Inputs General'!B$80","v":"Smart lighting L4"},{"$f":"'DNSP Inputs General'!D$80","v":1},{"$f":"'DNSP Inputs General'!A$80","v":"Smart lighting L4"},{"$f":"'DNSP Inputs O & M'!$H$605","v":650.88},98317.811620716151,{"$f":"'DNSP Inputs General'!U$80","v":151.05366829633135},{"$f":"IF((E$306+'Depn & WACC Post 2004 N & E'!E$306)=0,0,E304/(E$306+'Depn & WACC Post 2004 N & E'!E$306)*G$306)","v":4475.5964358744422},29.62918071671313]
[]
[null,null,null,null,{"$f":"SUM(E293:E305)","v":26433589.892502632},{"$f":"SUM(F293:F305)","v":108312.35921168809},{"$f":"'Total RAB'!X$149","v":1711788.6484848098},{"$f":"SUMPRODUCT(F293:F305,H293:H305)","v":1203302.6240112495}]
[null,null,null,"Check",{"$f":"SUM(F307:I307)","v":0},{"$f":"ABS('DNSP Inputs General'!U$81-F306)","v":0},{"$f":"ABS(G306-SUM(G293:G305)-SUM('Depn & WACC Post 2004 N & E'!G293:G305))","v":0},{"$f":"ABS(H306+'Depn & WACC Post 2004 N & E'!H306-G306)","v":0}]
[]
[]
[null,null,{"$f":"'RAB 2001 to 2004 Central'!A$27","v":"Poles & Brackets"},{"$f":"D$86","v":"Weighted Average Volumes"},null,null,{"$f":"G$86","v":"Unitisation Poles & Brackets"}]
[null,null,"Total Poles & Brackets",{"$f":"'DNSP Inputs General'!$D$42*F264","v":1},{"$f":"SUMPRODUCT('DNSP Inputs General'!$D$42:$D$63,'DNSP Inputs General'!U$42:U$63)+SUMPRODUCT('DNSP Inputs General'!$D$69:$D$80,'DNSP Inputs General'!U$69:U$80)","v":128882.02625353774},{"$f":"IF(E311=0,0,D311/E311*G311)","v":14.234497278245758},{"$f":"'Total RAB'!X$119*('DNSP Inputs General'!U$83/('DNSP Inputs General'!U$83+'DNSP Inputs General'!U$130))","v":1834570.8519207814},{"$f":"F311/F264","v":14.234497278245758}]

{"sheet":"Depn & WACC Post 2004 N & E","index":13,"n_rows":311,"n_cols":9,"rows_kept":311,"cut":false,"hidden":false,"merged":[[309,3,309,5],[258,3,258,4],[150,6,150,7],[146,3,146,4],[179,3,179,4],[179,6,179,7],[206,6,206,7],[235,3,235,4],[253,3,253,5],[253,6,253,7],[150,3,150,4],[309,6,309,7],[262,3,262,4],[262,6,262,7],[291,3,291,4],[291,6,291,7],[235,6,235,7],[206,3,206,4],[197,6,197,7],[202,3,202,4],[197,3,197,5],[67,3,67,4],[85,3,85,5],[141,6,141,7],[94,6,94,7],[123,3,123,4],[123,6,123,7],[67,6,67,7],[85,6,85,7],[94,3,94,4],[141,3,141,5],[90,3,90,4],[2,3,2,4],[6,3,6,4],[6,6,6,7],[38,3,38,4],[38,6,38,7],[34,3,34,4]]}
[{"$f":"'DNSP Inputs O & M'!$A$3","v":"AusNet"},null,null,null,"Check",{"$f":"SUM(E33,E65,E83,E121,E139,E177,E195,E233,E251,E289,E307)","v":1.0069925338029861E-8}]
[]
[null,null,null,{"$f":"'DNSP Inputs General'!B$86","v":"North & East"}]
["RAB WDV",null,null,"Year",{"$f":"'DNSP Inputs General'!$P$2","v":"HY2021"}]
[]
[]
[{"$f":"'DNSP Inputs General'!B$88","v":"Reference Light"},{"$f":"'DNSP Inputs General'!D$88","v":"Price Factor"},{"$f":"'DNSP Inputs General'!A$88","v":"Existing Lights"},"RAB for Return",null,"Volumes","Unitisation - Luminaires",null,"RAB WDV"]
[{"$f":"'DNSP Inputs General'!B$89","v":"Mercury Vapour 80W"},{"$f":"'DNSP Inputs General'!D$89","v":1},{"$f":"'DNSP Inputs General'!A$89","v":"Mercury Vapour 80W"},{"$f":"'RAB 2001 to 2004 N & E'!$V$143","v":4.6964084344764121},{"$f":"F8*D8","v":21904.048938397988},{"$f":"'DNSP Inputs General'!P$89","v":4664},null,null,{"$f":"IF(F8=0,0,E8/(E$32+'Depn & WACC Post 2004 Central'!E$32)*I$32/F8)","v":163.80408185298413}]
[{"$f":"'DNSP Inputs General'!B$90","v":"HP Sodium 150W"},{"$f":"'DNSP Inputs General'!D$90","v":1},{"$f":"'DNSP Inputs General'!A$90","v":"HP Sodium 150W"},{"$f":"'RAB 2001 to 2004 N & E'!$V$157","v":5.531124819744929},30122.505768330884,{"$f":"'DNSP Inputs General'!P$90","v":5446},null,null,{"$f":"IF(F9=0,0,E9/(E$32+'Depn & WACC Post 2004 Central'!E$32)*I$32/F9)","v":192.91780843877558}]
[{"$f":"'DNSP Inputs General'!B$91","v":"HP Sodium 250W"},{"$f":"'DNSP Inputs General'!D$91","v":1},{"$f":"'DNSP Inputs General'!A$91","v":"HP Sodium 250W"},{"$f":"'RAB 2001 to 2004 N & E'!$V$171","v":5.5718693850562708},28622.693031034065,{"$f":"'DNSP Inputs General'!P$91","v":5137},null,null,{"$f":"IF(F10=0,0,E10/(E$32+'Depn & WACC Post 2004 Central'!E$32)*I$32/F10)","v":194.33892123261361}]
[{"$f":"'DNSP Inputs General'!B$92","v":"Mercury Vapour 80W"},{"$f":"'DNSP Inputs General'!D$92","v":1.48},{"$f":"'DNSP Inputs General'!A$92","v":"Mercury Vapour 50W"},{"$f":"B11*IF(A11=C8,D8,IF(A11=C9,D9,D10))","v":6.95068448302509},868.83556037813628,{"$f":"'DNSP Inputs General'!P$92","v":125},null,null,{"$f":"IF(F11=0,0,E11/(E$32+'Depn & WACC Post 2004 Central'!E$32)*I$32/F11)","v":242.43004114241651}]
[{"$f":"'DNSP Inputs General'!B$93","v":"Mercury Vapour 80W"},{"$f":"'DNSP Inputs General'!D$93","v":1.48},{"$f":"'DNSP Inputs General'!A$93","v":"Mercury Vapour 125W"},{"$f":"B12*IF(A12=C8,D8,IF(A12=C9,D9,D10))","v":6.95068448302509},118.16163621142653,{"$f":"'DNSP Inputs General'!P$93","v":17},null,null,{"$f":"IF(F12=0,0,E12/(E$32+'Depn & WACC Post 2004 Central'!E$32)*I$32/F12)","v":242.43004114241648}]
[{"$f":"'DNSP Inputs General'!B$94","v":"HP Sodium 250W"},{"$f":"'DNSP Inputs General'!D$94","v":1.04},{"$f":"'DNSP Inputs General'!A$94","v":"Mercury Vapour 250W"},{"$f":"B13*IF(A13=C8,D8,IF(A13=C9,D9,D10))","v":5.7947441604585217},1506.6334817192158,{"$f":"'DNSP Inputs General'!P$94","v":260},null,null,{"$f":"IF(F13=0,0,E13/(E$32+'Depn & WACC Post 2004 Central'!E$32)*I$32/F13)","v":202.11247808191817}]
[{"$f":"'DNSP Inputs General'!B$95","v":"HP Sodium 250W"},{"$f":"'DNSP Inputs General'!D$95","v":1.07},{"$f":"'DNSP Inputs General'!A$95","v":"Mercury Vapour 400W"},{"$f":"B14*IF(A14=C8,D8,IF(A14=C9,D9,D10))","v":5.9619002420102101},542.53292202292914,{"$f":"'DNSP Inputs General'!P$95","v":91},null,null,{"$f":"IF(F14=0,0,E14/(E$32+'Depn & WACC Post 2004 Central'!E$32)*I$32/F14)","v":207.94264571889656}]
[{"$f":"'DNSP Inputs General'!B$96","v":"HP Sodium 150W"},{"$f":"'DNSP Inputs General'!D$96","v":1.07},{"$f":"'DNSP Inputs General'!A$96","v":"HP Sodium 100W"},{"$f":"B15*IF(A15=C8,D8,IF(A15=C9,D9,D10))","v":5.9183035571270741},1864.2656204950283,{"$f":"'DNSP Inputs General'!P$96","v":315},null,null,{"$f":"IF(F15=0,0,E15/(E$32+'Depn & WACC Post 2004 Central'!E$32)*I$32/F15)","v":206.42205502948988}]
[{"$f":"'DNSP Inputs General'!B$97","v":"HP Sodium 250W"},{"$f":"'DNSP Inputs General'!D$97","v":1.42},{"$f":"'DNSP Inputs General'!A$97","v":"HP Sodium 400W"},{"$f":"B16*IF(A16=C$8,D$8,IF(A16=C$9,D$9,D$10))","v":7.9120545267799045},2800.867302480086,{"$f":"'DNSP Inputs General'!P$97","v":354},null,null,{"$f":"IF(F16=0,0,E16/(E$32+'Depn & WACC Post 2004 Central'!E$32)*I$32/F16)","v":275.9612681503113}]
[{"$f":"'DNSP Inputs General'!B$98","v":"Mercury Vapour 80W"},{"$f":"'DNSP Inputs General'!D$98","v":3.8044420368364027},{"$f":"'DNSP Inputs General'!A$98","v":"Metal Halide 70W"},{"$f":"B17*IF(A17=C8,D8,IF(A17=C9,D9,D10))","v":17.867213670275103},0,{"$f":"'DNSP Inputs General'!P$98","v":0},null,null,{"$f":"IF(F17=0,0,E17/(E$32+'Depn & WACC Post 2004 Central'!E$32)*I$32/F17)","v":0}]
[{"$f":"'DNSP Inputs General'!B$99","v":"HP Sodium 150W"},{"$f":"'DNSP Inputs General'!D$99","v":2.1180491097797653},{"$f":"'DNSP Inputs General'!A$99","v":"Metal Halide 100W"},{"$f":"B18*IF(A18=C8,D8,IF(A18=C9,D9,D10))","v":11.715194000541512},0,{"$f":"'DNSP Inputs General'!P$99","v":0},null,null,{"$f":"IF(F18=0,0,E18/(E$32+'Depn & WACC Post 2004 Central'!E$32)*I$32/F18)","v":0}]
[{"$f":"'DNSP Inputs General'!B$100","v":"HP Sodium 150W"},{"$f":"'DNSP Inputs General'!D$100","v":2.4062948274407225},{"$f":"'DNSP Inputs General'!A$100","v":"Metal Halide 150W"},{"$f":"B19*IF(A19=C8,D8,IF(A19=C9,D9,D10))","v":13.309517043681222},0,{"$f":"'DNSP Inputs General'!P$100","v":0},null,null,{"$f":"IF(F19=0,0,E19/(E$32+'Depn & WACC Post 2004 Central'!E$32)*I$32/F19)","v":0}]
[{"$f":"'DNSP Inputs General'!B$101","v":"HP Sodium 150W"},{"$f":"'DNSP Inputs General'!D$101","v":0.45472955868703063},{"$f":"'DNSP Inputs General'!A$101","v":"HP Sodium 50W"},{"$f":"B20*IF(A20=C8,D8,IF(A20=C9,D9,D10))","v":2.5151659483254933},0,{"$f":"'DNSP Inputs General'!P$101","v":0},null,null,{"$f":"IF(F20=0,0,E20/(E$32+'Depn & WACC Post 2004 Central'!E$32)*I$32/F20)","v":0}]
[]
[]
[]
[]
[]
[]
[]
[]
[]
[]
[]
[null,null,null,null,{"$f":"SUM(E8:E31)","v":88350.544261069765},{"$f":"SUM(F8:F31)","v":16409},null,null,{"$f":"'Total RAB'!S$128","v":10711712.105149977}]
[null,null,null,"Check",{"$f":"SUM(F33:I33)","v":2.7939677238464355E-9},{"$f":"ABS('DNSP Inputs General'!P$113-F32)","v":0},null,null,{"$f":"ABS(I32-SUMPRODUCT(F8:F31,I8:I31)-SUMPRODUCT('Depn & WACC Post 2004 Central'!F8:F31,'Depn & WACC Post 2004 Central'!I8:I31))*IF(F32=0,0,1)","v":2.7939677238464355E-9}]
[]
[null,null,null,{"$f":"'DNSP Inputs General'!B$86","v":"North & East"}]
["DEPRECIATION AND RETURN",null,null,"Year",{"$f":"'DNSP Inputs General'!$Q$2","v":"2022-06-30"}]
[]
[]
[{"$f":"'DNSP Inputs General'!B$88","v":"Reference Light"},{"$f":"'DNSP Inputs General'!D$88","v":"Price Factor"},{"$f":"'DNSP Inputs General'!A$88","v":"Existing Lights"},"WACC and Dep",null,"Volumes","Unitisation - Luminaires",null,"RAB WDV"]
[{"$f":"'DNSP Inputs General'!B$89","v":"Mercury Vapour 80W"},{"$f":"'DNSP Inputs General'!D$89","v":1},{"$f":"'DNSP Inputs General'!A$89","v":"Mercury Vapour 80W"},{"$f":"'RAB 2001 to 2004 N & E'!C$15","v":2.4667507855210768},{"$f":"F40*D40","v":8688.973750231502},{"$f":"IF('DNSP Inputs General'!Q$89=0,1/10^6,'DNSP Inputs General'!Q$89)","v":3522.4368027903729},{"$f":"IF((E$64+'Depn & WACC Post 2004 Central'!E$64)=0,0,E40/(E$64+'Depn & WACC Post 2004 Central'!E$64)*G$64)","v":90625.75791755988},{"$f":"IF(F40=0,0,G40/F40)","v":25.728143041705891},{"$f":"IF(F40=0,0,E40/(E$64+'Depn & WACC Post 2004 Central'!E$64)*I$64/F40)","v":166.67045339629991}]
[{"$f":"'DNSP Inputs General'!B$90","v":"HP Sodium 150W"},{"$f":"'DNSP Inputs General'!D$90","v":1},{"$f":"'DNSP Inputs General'!A$90","v":"HP Sodium 150W"},{"$f":"'RAB 2001 to 2004 N & E'!C$20","v":2.9051788583294385},15219.876777351979,{"$f":"IF('DNSP Inputs General'!Q$90=0,1/10^6,'DNSP Inputs General'!Q$90)","v":5238.8777144357464},{"$f":"IF((E$64+'Depn & WACC Post 2004 Central'!E$64)=0,0,E41/(E$64+'Depn & WACC Post 2004 Central'!E$64)*G$64)","v":158742.89737872008},30.300935817093698,{"$f":"IF(F41=0,0,E41/(E$64+'Depn & WACC Post 2004 Central'!E$64)*I$64/F41)","v":196.29363467004163}]
[{"$f":"'DNSP Inputs General'!B$91","v":"HP Sodium 250W"},{"$f":"'DNSP Inputs General'!D$91","v":1},{"$f":"'DNSP Inputs General'!A$91","v":"HP Sodium 250W"},{"$f":"'RAB 2001 to 2004 N & E'!C$25","v":2.9265796137981588},14647.662316279828,{"$f":"IF('DNSP Inputs General'!Q$91=0,1/10^6,'DNSP Inputs General'!Q$91)","v":5005.0448814785095},{"$f":"IF((E$64+'Depn & WACC Post 2004 Central'!E$64)=0,0,E42/(E$64+'Depn & WACC Post 2004 Central'!E$64)*G$64)","v":152774.71624286729},30.524145109711196,{"$f":"IF(F42=0,0,E42/(E$64+'Depn & WACC Post 2004 Central'!E$64)*I$64/F42)","v":197.7396152035966}]
[{"$f":"'DNSP Inputs General'!B$92","v":"Mercury Vapour 80W"},{"$f":"'DNSP Inputs General'!D$92","v":1.48},{"$f":"'DNSP Inputs General'!A$92","v":"Mercury Vapour 50W"},{"$f":"B43*IF(A43=C40,D40,IF(A43=C41,D41,D42))","v":3.6507911625711937},344.76298916400049,{"$f":"'DNSP Inputs General'!Q$92","v":94.435144003468395},{"$f":"IF((E$64+'Depn & WACC Post 2004 Central'!E$64)=0,0,E43/(E$64+'Depn & WACC Post 2004 Central'!E$64)*G$64)","v":3595.8685217662878},38.077651701724726,{"$f":"IF(F43=0,0,E43/(E$64+'Depn & WACC Post 2004 Central'!E$64)*I$64/F43)","v":246.67227102652387}]
[{"$f":"'DNSP Inputs General'!B$93","v":"Mercury Vapour 80W"},{"$f":"'DNSP Inputs General'!D$93","v":1.48},{"$f":"'DNSP Inputs General'!A$93","v":"Mercury Vapour 125W"},{"$f":"B44*IF(A44=C40,D40,IF(A44=C41,D41,D42))","v":3.6507911625711937},46.547587322782718,{"$f":"'DNSP Inputs General'!Q$93","v":12.75},{"$f":"IF((E$64+'Depn & WACC Post 2004 Central'!E$64)=0,0,E44/(E$64+'Depn & WACC Post 2004 Central'!E$64)*G$64)","v":485.49005919699022},{"$f":"IF(F44=0,0,G44/F44)","v":38.077651701724726},{"$f":"IF(F44=0,0,E44/(E$64+'Depn & WACC Post 2004 Central'!E$64)*I$64/F44)","v":246.67227102652384}]
[{"$f":"'DNSP Inputs General'!B$94","v":"HP Sodium 250W"},{"$f":"'DNSP Inputs General'!D$94","v":1.04},{"$f":"'DNSP Inputs General'!A$94","v":"Mercury Vapour 250W"},{"$f":"B45*IF(A45=C40,D40,IF(A45=C41,D41,D42))","v":3.0436427983500853},596.98590169824888,{"$f":"'DNSP Inputs General'!Q$94","v":196.14190667244733},{"$f":"IF((E$64+'Depn & WACC Post 2004 Central'!E$64)=0,0,E45/(E$64+'Depn & WACC Post 2004 Central'!E$64)*G$64)","v":6226.5465822198221},31.745110914099648,{"$f":"IF(F45=0,0,E45/(E$64+'Depn & WACC Post 2004 Central'!E$64)*I$64/F45)","v":205.64919981174049}]
[{"$f":"'DNSP Inputs General'!B$95","v":"HP Sodium 250W"},{"$f":"'DNSP Inputs General'!D$95","v":1.07},{"$f":"'DNSP Inputs General'!A$95","v":"Mercury Vapour 400W"},{"$f":"B46*IF(A46=C40,D40,IF(A46=C41,D41,D42))","v":3.13144018676403},213.72079274664506,{"$f":"'DNSP Inputs General'!Q$95","v":68.25},{"$f":"IF((E$64+'Depn & WACC Post 2004 Central'!E$64)=0,0,E46/(E$64+'Depn & WACC Post 2004 Central'!E$64)*G$64)","v":2229.1020069994343},32.660835267390979,{"$f":"IF(F46=0,0,E46/(E$64+'Depn & WACC Post 2004 Central'!E$64)*I$64/F46)","v":211.58138826784838}]
[{"$f":"'DNSP Inputs General'!B$96","v":"HP Sodium 150W"},{"$f":"'DNSP Inputs General'!D$96","v":1.07},{"$f":"'DNSP Inputs General'!A$96","v":"HP Sodium 100W"},{"$f":"B47*IF(A47=C40,D40,IF(A47=C41,D41,D42))","v":3.1085413784124993},984.9975876563966,{"$f":"'DNSP Inputs General'!Q$96","v":316.86809591687819},{"$f":"IF((E$64+'Depn & WACC Post 2004 Central'!E$64)=0,0,E47/(E$64+'Depn & WACC Post 2004 Central'!E$64)*G$64)","v":10273.497825442359},32.422001324290264,{"$f":"IF(F47=0,0,E47/(E$64+'Depn & WACC Post 2004 Central'!E$64)*I$64/F47)","v":210.03418909694457}]
[{"$f":"'DNSP Inputs General'!B$97","v":"HP Sodium 250W"},{"$f":"'DNSP Inputs General'!D$97","v":1.42},{"$f":"'DNSP Inputs General'!A$97","v":"HP Sodium 400W"},{"$f":"B48*IF(A48=C40,D40,IF(A48=C41,D41,D42))","v":4.1557430515933849},1461.2251654694919,{"$f":"'DNSP Inputs General'!Q$97","v":351.61585962568898},{"$f":"IF((E$64+'Depn & WACC Post 2004 Central'!E$64)=0,0,E48/(E$64+'Depn & WACC Post 2004 Central'!E$64)*G$64)","v":15240.538401368325},43.344286055789887,{"$f":"IF(F48=0,0,E48/(E$64+'Depn & WACC Post 2004 Central'!E$64)*I$64/F48)","v":280.79025358910712}]
[{"$f":"'DNSP Inputs General'!B$98","v":"Mercury Vapour 80W"},{"$f":"'DNSP Inputs General'!D$98","v":3.8044420368364027},{"$f":"'DNSP Inputs General'!A$98","v":"Metal Halide 70W"},{"$f":"B49*IF(A49=C40,D40,IF(A49=C41,D41,D42))","v":9.3846103828356018},0,{"$f":"'DNSP Inputs General'!Q$98","v":0},{"$f":"IF((E$64+'Depn & WACC Post 2004 Central'!E$64)=0,0,E49/(E$64+'Depn & WACC Post 2004 Central'!E$64)*G$64)","v":0},0,{"$f":"IF(F49=0,0,E49/(E$64+'Depn & WACC Post 2004 Central'!E$64)*I$64/F49)","v":0}]
[{"$f":"'DNSP Inputs General'!B$99","v":"HP Sodium 150W"},{"$f":"'DNSP Inputs General'!D$99","v":2.1180491097797653},{"$f":"'DNSP Inputs General'!A$99","v":"Metal Halide 100W"},{"$f":"B50*IF(A50=C40,D40,IF(A50=C41,D41,D42))","v":6.1533114946356617},0,{"$f":"'DNSP Inputs General'!Q$99","v":0},{"$f":"IF((E$64+'Depn & WACC Post 2004 Central'!E$64)=0,0,E50/(E$64+'Depn & WACC Post 2004 Central'!E$64)*G$64)","v":0},0,{"$f":"IF(F50=0,0,E50/(E$64+'Depn & WACC Post 2004 Central'!E$64)*I$64/F50)","v":0}]
[{"$f":"'DNSP Inputs General'!B$100","v":"HP Sodium 150W"},{"$f":"'DNSP Inputs General'!D$100","v":2.4062948274407225},{"$f":"'DNSP Inputs General'!A$100","v":"Metal Halide 150W"},{"$f":"B51*IF(A51=C40,D40,IF(A51=C41,D41,D42))","v":6.9907168595882716},0,{"$f":"'DNSP Inputs General'!Q$100","v":0},{"$f":"IF((E$64+'Depn & WACC Post 2004 Central'!E$64)=0,0,E51/(E$64+'Depn & WACC Post 2004 Central'!E$64)*G$64)","v":0},0,{"$f":"IF(F51=0,0,E51/(E$64+'Depn & WACC Post 2004 Central'!E$64)*I$64/F51)","v":0}]
[{"$f":"'DNSP Inputs General'!B$101","v":"HP Sodium 150W"},{"$f":"'DNSP Inputs General'!D$101","v":0.45472955868703063},{"$f":"'DNSP Inputs General'!A$101","v":"HP Sodium 50W"},{"$f":"B52*IF(A52=C40,D40,IF(A52=C41,D41,D42))","v":1.321070700155037},0,{"$f":"'DNSP Inputs General'!Q$101","v":0},{"$f":"IF((E$64+'Depn & WACC Post 2004 Central'!E$64)=0,0,E52/(E$64+'Depn & WACC Post 2004 Central'!E$64)*G$64)","v":0},0,{"$f":"IF(F52=0,0,E52/(E$64+'Depn & WACC Post 2004 Central'!E$64)*I$64/F52)","v":0}]
[]
[]
[]
[]
[]
[]
[]
[]
[]
[]
[]
[null,null,null,null,{"$f":"SUM(E40:E63)","v":42204.752867920884},{"$f":"SUM(F40:F63)","v":14806.42040492311},{"$f":"'Total RAB'!T$134","v":1501390.5807220533},{"$f":"SUMPRODUCT(F40:F63,H40:H63)","v":440194.41493614041},{"$f":"'Total RAB'!T$128","v":9726214.9237991311}]
[null,null,null,"Check",{"$f":"SUM(F65:I65)","v":2.3283064365386963E-9},{"$f":"ABS('DNSP Inputs General'!Q$113-F64)","v":0},{"$f":"ABS(G64-SUM(G40:G63)-SUM('Depn & WACC Post 2004 Central'!G40:G63))*IF(F64=0,0,1)","v":2.3283064365386963E-10},{"$f":"ABS(H64+'Depn & WACC Post 2004 Central'!H64-G64)*IF(F64=0,0,1)","v":2.3283064365386963E-10},{"$f":"ABS(I64-SUMPRODUCT(F40:F63,I40:I63)-SUMPRODUCT('Depn & WACC Post 2004 Central'!F40:F63,'Depn & WACC Post 2004 Central'!I40:I63))*IF(F64=0,0,1)","v":1.862645149230957E-9}]
[]
[]
[{"$f":"'DNSP Inputs General'!A$115","v":"Energy Efficient Lights"},{"$f":"'DNSP Inputs General'!D$115","v":"Price Factor"},{"$f":"'DNSP Inputs General'!A$115","v":"Energy Efficient Lights"},"Unit cost",null,"Volumes","Unitisation - Luminaires & Ballasts"]
[{"$f":"'DNSP Inputs General'!B$116","v":"T5 2X14W"},{"$f":"'DNSP Inputs General'!D$116","v":1},{"$f":"'DNSP Inputs General'!A$116","v":"T5 2X14W"},{"$f":"'DNSP Inputs O & M'!$D$189","v":260.27999999999997},{"$f":"F69*D69","v":1848916.5818748181},{"$f":"'DNSP Inputs General'!Q$116","v":7103.567626689789},{"$f":"IF((E$82+'Depn & WACC Post 2004 Central'!E$82)=0,0,E69/(E$82+'Depn & WACC Post 2004 Central'!E$82)*G$82)","v":49763.232493039475},{"$f":"IF(F69=0,0,G69/F69)","v":7.0053859001872807}]
[{"$f":"'DNSP Inputs General'!B$117","v":"T5 2X24W"},{"$f":"'DNSP Inputs General'!D$117","v":1},{"$f":"'DNSP Inputs General'!A$117","v":"T5 2X24W"},{"$f":"'DNSP Inputs O & M'!$D$238","v":267.33},{"$f":"F70*D70","v":272676.59999999998},{"$f":"'DNSP Inputs General'!Q$117","v":1020},{"$f":"IF((E$82+'Depn & WACC Post 2004 Central'!E$82)=0,0,E70/(E$82+'Depn & WACC Post 2004 Central'!E$82)*G$82)","v":7339.0379935108622},{"$f":"IF(F70=0,0,G70/F70)","v":7.1951352877557468}]
[{"$f":"'DNSP Inputs General'!B$118","v":"LED 18W"},{"$f":"'DNSP Inputs General'!D$118","v":1},{"$f":"'DNSP Inputs General'!A$118","v":"LED 18W"},{"$f":"'DNSP Inputs O & M'!$D$286","v":205},{"$f":"F71*D71","v":4339268.1228743363},{"$f":"'DNSP Inputs General'!Q$118","v":21167.16157499676},{"$f":"IF((E$82+'Depn & WACC Post 2004 Central'!E$82)=0,0,E71/(E$82+'Depn & WACC Post 2004 Central'!E$82)*G$82)","v":116790.56295188263},{"$f":"IF(F71=0,0,G71/F71)","v":5.517535383196531}]
[{"$f":"'DNSP Inputs General'!B$119","v":"LED 14W"},{"$f":"'DNSP Inputs General'!D$119","v":1},{"$f":"'DNSP Inputs General'!A$119","v":"LED 14W"},{"$f":"'DNSP Inputs O & M'!$D$332","v":205},197391.05967130527,{"$f":"'DNSP Inputs General'!Q$119","v":962.88321790880616},{"$f":"IF((E$82+'Depn & WACC Post 2004 Central'!E$82)=0,0,E72/(E$82+'Depn & WACC Post 2004 Central'!E$82)*G$82)","v":5312.7422246979722},5.5175353831965293]
[{"$f":"'DNSP Inputs General'!B$120","v":"LED 70W-125W (L1)"},{"$f":"'DNSP Inputs General'!D$120","v":1},{"$f":"'DNSP Inputs General'!A$120","v":"LED 70W-125W (L1)"},{"$f":"'DNSP Inputs O & M'!$D$378","v":402},274002.73136158223,{"$f":"'DNSP Inputs General'!Q$120","v":681.59883423279166},{"$f":"IF((E$82+'Depn & WACC Post 2004 Central'!E$82)=0,0,E73/(E$82+'Depn & WACC Post 2004 Central'!E$82)*G$82)","v":7374.7305628293834},10.819752312414659]
[{"$f":"'DNSP Inputs General'!B$121","v":"LED 155W-250W (L2)"},{"$f":"'DNSP Inputs General'!D$121","v":1},{"$f":"'DNSP Inputs General'!A$121","v":"LED 155W-250W (L2)"},{"$f":"'DNSP Inputs O & M'!$D$424","v":427},432852.07871447771,{"$f":"'DNSP Inputs General'!Q$121","v":1013.705102375826},{"$f":"IF((E$82+'Depn & WACC Post 2004 Central'!E$82)=0,0,E74/(E$82+'Depn & WACC Post 2004 Central'!E$82)*G$82)","v":11650.130048767318},11.492622481097163]
[{"$f":"'DNSP Inputs General'!B$122","v":"LED 275W-400W (L4)"},{"$f":"'DNSP Inputs General'!D$122","v":1},{"$f":"'DNSP Inputs General'!A$122","v":"LED 275W-400W (L4)"},{"$f":"'DNSP Inputs O & M'!$D$470","v":650.88},70167.151682902753,{"$f":"'DNSP Inputs General'!Q$122","v":107.80351475372228},{"$f":"IF((E$82+'Depn & WACC Post 2004 Central'!E$82)=0,0,E75/(E$82+'Depn & WACC Post 2004 Central'!E$82)*G$82)","v":1888.5353275538239},17.518309415682719]
[{"$f":"'DNSP Inputs General'!B$123","v":"T5 2X14W"},{"$f":"'DNSP Inputs General'!D$123","v":0.87960989252886512},{"$f":"'DNSP Inputs General'!A$123","v":"Compact Fluorescent 32W"},{"$f":"D69*B76","v":228.94486282741298},156100.80058901708,{"$f":"'DNSP Inputs General'!Q$123","v":681.82705067591576},{"$f":"IF((E$82+'Depn & WACC Post 2004 Central'!E$82)=0,0,E76/(E$82+'Depn & WACC Post 2004 Central'!E$82)*G$82)","v":4201.422880952231},6.1620067387869604]
[{"$f":"'DNSP Inputs General'!B$124","v":"T5 2X14W"},{"$f":"'DNSP Inputs General'!D$124","v":0.87960989252886512},{"$f":"'DNSP Inputs General'!A$124","v":"Compact Fluorescent 42W"},{"$f":"D69*B77","v":228.94486282741298},628417.43572723842,{"$f":"'DNSP Inputs General'!Q$124","v":2744.8418277066235},{"$f":"IF((E$82+'Depn & WACC Post 2004 Central'!E$82)=0,0,E77/(E$82+'Depn & WACC Post 2004 Central'!E$82)*G$82)","v":16913.733839232533},6.1620067387869613]
[{"$f":"'DNSP Inputs General'!B$125","v":"Smart lighting L1"},{"$f":"'DNSP Inputs General'!D$125","v":1},{"$f":"'DNSP Inputs General'!A$125","v":"Smart lighting L1"},{"$f":"'DNSP Inputs O & M'!$D$517","v":402},402,{"$f":"'DNSP Inputs General'!Q$125","v":1},{"$f":"IF((E$82+'Depn & WACC Post 2004 Central'!E$82)=0,0,E78/(E$82+'Depn & WACC Post 2004 Central'!E$82)*G$82)","v":10.819752312414659},10.819752312414659]
[{"$f":"'DNSP Inputs General'!B$126","v":"Smart lighting L2"},{"$f":"'DNSP Inputs General'!D$126","v":1},{"$f":"'DNSP Inputs General'!A$126","v":"Smart lighting L2"},{"$f":"'DNSP Inputs O & M'!$D$561","v":427},1281,{"$f":"'DNSP Inputs General'!Q$126","v":3},{"$f":"IF((E$82+'Depn & WACC Post 2004 Central'!E$82)=0,0,E79/(E$82+'Depn & WACC Post 2004 Central'!E$82)*G$82)","v":34.477867443291487},11.492622481097163]
[{"$f":"'DNSP Inputs General'!B$127","v":"Smart lighting L4"},{"$f":"'DNSP Inputs General'!D$127","v":1},{"$f":"'DNSP Inputs General'!A$127","v":"Smart lighting L4"},{"$f":"'DNSP Inputs O & M'!$D$605","v":650.88},650.88,{"$f":"'DNSP Inputs General'!Q$127","v":1},{"$f":"IF((E$82+'Depn & WACC Post 2004 Central'!E$82)=0,0,E80/(E$82+'Depn & WACC Post 2004 Central'!E$82)*G$82)","v":17.518309415682719},17.518309415682719]
[]
[null,null,null,null,{"$f":"SUM(E69:E81)","v":8222126.4424956776},{"$f":"SUM(F69:F81)","v":35488.388749340236},{"$f":"'Total RAB'!T$149","v":709464.10269266088},{"$f":"SUMPRODUCT(F69:F81,H69:H81)","v":221296.94425163764}]
[null,null,null,"Check",{"$f":"SUM(F83:I83)","v":2.9103830456733704E-10},{"$f":"ABS('DNSP Inputs General'!Q$128-F82)","v":0},{"$f":"ABS(G82-SUM(G69:G81)-SUM('Depn & WACC Post 2004 Central'!G69:G81))","v":1.7462298274040222E-10},{"$f":"ABS(H82+'Depn & WACC Post 2004 Central'!H82-G82)","v":1.1641532182693481E-10}]
[]
[]
[null,null,{"$f":"'RAB 2001 to 2004 Central'!A$27","v":"Poles & Brackets"},"Weighted Average Volumes",null,null,"Unitisation Poles & Brackets"]
[null,null,"Total Poles & Brackets",{"$f":"'DNSP Inputs General'!$D$89*F40","v":3522.4368027903729},{"$f":"SUMPRODUCT('DNSP Inputs General'!$D$89:$D$110,'DNSP Inputs General'!Q$89:Q$110)+SUMPRODUCT('DNSP Inputs General'!$D$116:$D$127,'DNSP Inputs General'!Q$116:Q$127)","v":50116.203592872414},{"$f":"IF(E87=0,0,D87/E87*G87)","v":43470.560279366407},{"$f":"'Total RAB'!T$119-'Depn & WACC Post 2004 Central'!G$87","v":618486.45447127731},{"$f":"F87/F40","v":12.341047607988392}]
[]
[]
[]
[null,null,null,{"$f":"'DNSP Inputs General'!B$86","v":"North & East"}]
["DEPRECIATION AND RETURN",null,null,"Year",{"$f":"'DNSP Inputs General'!$R$2","v":"2023-06-30"}]
[]
[]
[{"$f":"'DNSP Inputs General'!B$88","v":"Reference Light"},{"$f":"'DNSP Inputs General'!D$88","v":"Price Factor"},{"$f":"'DNSP Inputs General'!A$88","v":"Existing Lights"},{"$f":"D$39","v":"WACC and Dep"},null,{"$f":"F$39","v":"Volumes"},{"$f":"G$39","v":"Unitisation - Luminaires"},null,{"$f":"I$39","v":"RAB WDV"}]
[{"$f":"'DNSP Inputs General'!B$89","v":"Mercury Vapour 80W"},{"$f":"'DNSP Inputs General'!D$89","v":1},{"$f":"'DNSP Inputs General'!A$89","v":"Mercury Vapour 80W"},{"$f":"'RAB 2001 to 2004 N & E'!D$15","v":1.2333753927605384},{"$f":"F96*D96","v":2896.324583410501},{"$f":"IF('DNSP Inputs General'!R$89=0,1/10^6,'DNSP Inputs General'!R$89)","v":2348.2912018602487},{"$f":"IF((E$120+'Depn & WACC Post 2004 Central'!E$120)=0,0,E96/(E$120+'Depn & WACC Post 2004 Central'!E$120)*G$120)","v":60643.105133517209},{"$f":"IF(F96=0,0,G96/F96)","v":25.82435478422671},{"$f":"IF(F96=0,0,E96/(E$120+'Depn & WACC Post 2004 Central'!E$120)*I$120/F96)","v":175.07340223311516}]
[{"$f":"'DNSP Inputs General'!B$90","v":"HP Sodium 150W"},{"$f":"'DNSP Inputs General'!D$90","v":1},{"$f":"'DNSP Inputs General'!A$90","v":"HP Sodium 150W"},{"$f":"'RAB 2001 to 2004 N & E'!D$20","v":1.4525894291647192},7230.8070435481231,{"$f":"IF('DNSP Inputs General'!R$90=0,1/10^6,'DNSP Inputs General'!R$90)","v":4977.8739252605228},{"$f":"IF((E$120+'Depn & WACC Post 2004 Central'!E$120)=0,0,E97/(E$120+'Depn & WACC Post 2004 Central'!E$120)*G$120)","v":151398.29087309047},30.414247758427685,{"$f":"IF(F97=0,0,E97/(E$120+'Depn & WACC Post 2004 Central'!E$120)*I$120/F97)","v":206.19008203376788}]
[{"$f":"'DNSP Inputs General'!B$91","v":"HP Sodium 250W"},{"$f":"'DNSP Inputs General'!D$91","v":1},{"$f":"'DNSP Inputs General'!A$91","v":"HP Sodium 250W"},{"$f":"'RAB 2001 to 2004 N & E'!D$25","v":1.4632898068990794},7070.0688936536108,{"$f":"IF('DNSP Inputs General'!R$91=0,1/10^6,'DNSP Inputs General'!R$91)","v":4831.6258750111156},{"$f":"IF((E$120+'Depn & WACC Post 2004 Central'!E$120)=0,0,E98/(E$120+'Depn & WACC Post 2004 Central'!E$120)*G$120)","v":148032.76320438497},30.63829175392112,{"$f":"IF(F98=0,0,E98/(E$120+'Depn & WACC Post 2004 Central'!E$120)*I$120/F98)","v":207.70896391363169}]
[{"$f":"'DNSP Inputs General'!B$92","v":"Mercury Vapour 80W"},{"$f":"'DNSP Inputs General'!D$92","v":1.48},{"$f":"'DNSP Inputs General'!A$92","v":"Mercury Vapour 50W"},{"$f":"B99*IF(A99=C96,D96,IF(A99=C97,D97,D98))","v":1.8253955812855969},114.92099638800016,{"$f":"'DNSP Inputs General'!R$92","v":62.956762668978932},{"$f":"IF((E$120+'Depn & WACC Post 2004 Central'!E$120)=0,0,E99/(E$120+'Depn & WACC Post 2004 Central'!E$120)*G$120)","v":2406.2103073405065},38.220045080655538,{"$f":"IF(F99=0,0,E99/(E$120+'Depn & WACC Post 2004 Central'!E$120)*I$120/F99)","v":259.10863530501052}]
[{"$f":"'DNSP Inputs General'!B$93","v":"Mercury Vapour 80W"},{"$f":"'DNSP Inputs General'!D$93","v":1.48},{"$f":"'DNSP Inputs General'!A$93","v":"Mercury Vapour 125W"},{"$f":"B100*IF(A100=C96,D96,IF(A100=C97,D97,D98))","v":1.8253955812855969},15.515862440927574,{"$f":"'DNSP Inputs General'!R$93","v":8.5},{"$f":"IF((E$120+'Depn & WACC Post 2004 Central'!E$120)=0,0,E100/(E$120+'Depn & WACC Post 2004 Central'!E$120)*G$120)","v":324.87038318557205},{"$f":"IF(F100=0,0,G100/F100)","v":38.220045080655538},{"$f":"IF(F100=0,0,E100/(E$120+'Depn & WACC Post 2004 Central'!E$120)*I$120/F100)","v":259.10863530501052}]
[{"$f":"'DNSP Inputs General'!B$94","v":"HP Sodium 250W"},{"$f":"'DNSP Inputs General'!D$94","v":1.04},{"$f":"'DNSP Inputs General'!A$94","v":"Mercury Vapour 250W"},{"$f":"B101*IF(A101=C96,D96,IF(A101=C97,D97,D98))","v":1.5218213991750427},198.99530056608296,{"$f":"'DNSP Inputs General'!R$94","v":130.7612711149649},{"$f":"IF((E$120+'Depn & WACC Post 2004 Central'!E$120)=0,0,E101/(E$120+'Depn & WACC Post 2004 Central'!E$120)*G$120)","v":4166.5540535152277},31.863823424077964,{"$f":"IF(F101=0,0,E101/(E$120+'Depn & WACC Post 2004 Central'!E$120)*I$120/F101)","v":216.01732247017696}]
[{"$f":"'DNSP Inputs General'!B$95","v":"HP Sodium 250W"},{"$f":"'DNSP Inputs General'!D$95","v":1.07},{"$f":"'DNSP Inputs General'!A$95","v":"Mercury Vapour 400W"},{"$f":"B102*IF(A102=C96,D96,IF(A102=C97,D97,D98))","v":1.565720093382015},71.240264248881687,{"$f":"'DNSP Inputs General'!R$95","v":45.5},{"$f":"IF((E$120+'Depn & WACC Post 2004 Central'!E$120)=0,0,E102/(E$120+'Depn & WACC Post 2004 Central'!E$120)*G$120)","v":1491.6252340396497},32.782972176695601,{"$f":"IF(F102=0,0,E102/(E$120+'Depn & WACC Post 2004 Central'!E$120)*I$120/F102)","v":222.24859138758598}]
[{"$f":"'DNSP Inputs General'!B$96","v":"HP Sodium 150W"},{"$f":"'DNSP Inputs General'!D$96","v":1.07},{"$f":"'DNSP Inputs General'!A$96","v":"HP Sodium 100W"},{"$f":"B103*IF(A103=C96,D96,IF(A103=C97,D97,D98))","v":1.5542706892062497},484.83909275542118,{"$f":"'DNSP Inputs General'!R$96","v":311.93993177792191},{"$f":"IF((E$120+'Depn & WACC Post 2004 Central'!E$120)=0,0,E103/(E$120+'Depn & WACC Post 2004 Central'!E$120)*G$120)","v":10151.537656799597},32.54324510151762,{"$f":"IF(F103=0,0,E103/(E$120+'Depn & WACC Post 2004 Central'!E$120)*I$120/F103)","v":220.62338777613164}]
[{"$f":"'DNSP Inputs General'!B$97","v":"HP Sodium 250W"},{"$f":"'DNSP Inputs General'!D$97","v":1.42},{"$f":"'DNSP Inputs General'!A$97","v":"HP Sodium 400W"},{"$f":"B104*IF(A104=C96,D96,IF(A104=C97,D97,D98))","v":2.0778715257966924},719.10466988924918,{"$f":"'DNSP Inputs General'!R$97","v":346.07754183143339},{"$f":"IF((E$120+'Depn & WACC Post 2004 Central'!E$120)=0,0,E104/(E$120+'Depn & WACC Post 2004 Central'!E$120)*G$120)","v":15056.579068478039},43.506374290567983,{"$f":"IF(F104=0,0,E104/(E$120+'Depn & WACC Post 2004 Central'!E$120)*I$120/F104)","v":294.94672875735699}]
[{"$f":"'DNSP Inputs General'!B$98","v":"Mercury Vapour 80W"},{"$f":"'DNSP Inputs General'!D$98","v":3.8044420368364027},{"$f":"'DNSP Inputs General'!A$98","v":"Metal Halide 70W"},{"$f":"B105*IF(A105=C96,D96,IF(A105=C97,D97,D98))","v":4.6923051914178009},0,{"$f":"'DNSP Inputs General'!R$98","v":0},{"$f":"IF((E$120+'Depn & WACC Post 2004 Central'!E$120)=0,0,E105/(E$120+'Depn & WACC Post 2004 Central'!E$120)*G$120)","v":0},0,{"$f":"IF(F105=0,0,E105/(E$120+'Depn & WACC Post 2004 Central'!E$120)*I$120/F105)","v":0}]
[{"$f":"'DNSP Inputs General'!B$99","v":"HP Sodium 150W"},{"$f":"'DNSP Inputs General'!D$99","v":2.1180491097797653},{"$f":"'DNSP Inputs General'!A$99","v":"Metal Halide 100W"},{"$f":"B106*IF(A106=C96,D96,IF(A106=C97,D97,D98))","v":3.0766557473178309},0,{"$f":"'DNSP Inputs General'!R$99","v":0},{"$f":"IF((E$120+'Depn & WACC Post 2004 Central'!E$120)=0,0,E106/(E$120+'Depn & WACC Post 2004 Central'!E$120)*G$120)","v":0},0,{"$f":"IF(F106=0,0,E106/(E$120+'Depn & WACC Post 2004 Central'!E$120)*I$120/F106)","v":0}]
[{"$f":"'DNSP Inputs General'!B$100","v":"HP Sodium 150W"},{"$f":"'DNSP Inputs General'!D$100","v":2.4062948274407225},{"$f":"'DNSP Inputs General'!A$100","v":"Metal Halide 150W"},{"$f":"B107*IF(A107=C96,D96,IF(A107=C97,D97,D98))","v":3.4953584297941358},0,{"$f":"'DNSP Inputs General'!R$100","v":0},{"$f":"IF((E$120+'Depn & WACC Post 2004 Central'!E$120)=0,0,E107/(E$120+'Depn & WACC Post 2004 Central'!E$120)*G$120)","v":0},0,{"$f":"IF(F107=0,0,E107/(E$120+'Depn & WACC Post 2004 Central'!E$120)*I$120/F107)","v":0}]
[{"$f":"'DNSP Inputs General'!B$101","v":"HP Sodium 150W"},{"$f":"'DNSP Inputs General'!D$101","v":0.45472955868703063},{"$f":"'DNSP Inputs General'!A$101","v":"HP Sodium 50W"},{"$f":"B108*IF(A108=C96,D96,IF(A108=C97,D97,D98))","v":0.66053535007751851},0,{"$f":"'DNSP Inputs General'!R$101","v":0},{"$f":"IF((E$120+'Depn & WACC Post 2004 Central'!E$120)=0,0,E108/(E$120+'Depn & WACC Post 2004 Central'!E$120)*G$120)","v":0},0,{"$f":"IF(F108=0,0,E108/(E$120+'Depn & WACC Post 2004 Central'!E$120)*I$120/F108)","v":0}]
[]
[]
[]
[]
[]
[]
[]
[]
[]
[]
[]
[null,null,null,null,{"$f":"SUM(E96:E119)","v":18801.816706900794},{"$f":"SUM(F96:F119)","v":13063.526509525187},{"$f":"'Total RAB'!U$134","v":1310643.4070923375},{"$f":"SUMPRODUCT(F96:F119,H96:H119)","v":393671.53591435123},{"$f":"'Total RAB'!U$128","v":8885364.3125368133}]
[null,null,null,"Check",{"$f":"SUM(F121:I121)","v":8.149072527885437E-10},{"$f":"ABS('DNSP Inputs General'!R$113-F120)","v":0},{"$f":"ABS(G120-SUM(G96:G119)-SUM('Depn & WACC Post 2004 Central'!G96:G119))*IF(F120=0,0,1)","v":3.4924596548080444E-10},{"$f":"ABS(H120+'Depn & WACC Post 2004 Central'!H120-G120)*IF(F120=0,0,1)","v":4.6566128730773926E-10},{"$f":"ABS(I120-SUMPRODUCT(F96:F119,I96:I119)-SUMPRODUCT('Depn & WACC Post 2004 Central'!F96:F119,'Depn & WACC Post 2004 Central'!I96:I119))*IF(F120=0,0,1)","v":0}]
[]
[]
[{"$f":"'DNSP Inputs General'!A$115","v":"Energy Efficient Lights"},{"$f":"'DNSP Inputs General'!D$115","v":"Price Factor"},{"$f":"'DNSP Inputs General'!A$115","v":"Energy Efficient Lights"},{"$f":"D$68","v":"Unit cost"},null,{"$f":"F$68","v":"Volumes"},{"$f":"G$68","v":"Unitisation - Luminaires & Ballasts"}]
[{"$f":"'DNSP Inputs General'!B$116","v":"T5 2X14W"},{"$f":"'DNSP Inputs General'!D$116","v":1},{"$f":"'DNSP Inputs General'!A$116","v":"T5 2X14W"},{"$f":"'DNSP Inputs O & M'!$E$189","v":260.27999999999997},{"$f":"F125*D125","v":1848916.5818748181},{"$f":"'DNSP Inputs General'!R$116","v":7103.567626689789},{"$f":"IF((E$138+'Depn & WACC Post 2004 Central'!E$138)=0,0,E125/(E$138+'Depn & WACC Post 2004 Central'!E$138)*G$138)","v":61643.936618332707},{"$f":"IF(F125=0,0,G125/F125)","v":8.6778841080813827}]
[{"$f":"'DNSP Inputs General'!B$117","v":"T5 2X24W"},{"$f":"'DNSP Inputs General'!D$117","v":1},{"$f":"'DNSP Inputs General'!A$117","v":"T5 2X24W"},{"$f":"'DNSP Inputs O & M'!$E$238","v":267.33},{"$f":"F126*D126","v":272676.59999999998},{"$f":"'DNSP Inputs General'!R$117","v":1020},{"$f":"IF((E$138+'Depn & WACC Post 2004 Central'!E$138)=0,0,E126/(E$138+'Depn & WACC Post 2004 Central'!E$138)*G$138)","v":9091.1938442664214},{"$f":"IF(F126=0,0,G126/F126)","v":8.9129351414376679}]
[{"$f":"'DNSP Inputs General'!B$118","v":"LED 18W"},{"$f":"'DNSP Inputs General'!D$118","v":1},{"$f":"'DNSP Inputs General'!A$118","v":"LED 18W"},{"$f":"'DNSP Inputs O & M'!$E$286","v":205},{"$f":"F127*D127","v":4749002.6168410834},{"$f":"'DNSP Inputs General'!R$118","v":23165.86642361504},{"$f":"IF((E$138+'Depn & WACC Post 2004 Central'!E$138)=0,0,E127/(E$138+'Depn & WACC Post 2004 Central'!E$138)*G$138)","v":158334.46418442499},{"$f":"IF(F127=0,0,G127/F127)","v":6.8348172819912536}]
[{"$f":"'DNSP Inputs General'!B$119","v":"LED 14W"},{"$f":"'DNSP Inputs General'!D$119","v":1},{"$f":"'DNSP Inputs General'!A$119","v":"LED 14W"},{"$f":"'DNSP Inputs O & M'!$E$332","v":205},197391.05967130527,{"$f":"'DNSP Inputs General'!R$119","v":962.88321790880616},{"$f":"IF((E$138+'Depn & WACC Post 2004 Central'!E$138)=0,0,E128/(E$138+'Depn & WACC Post 2004 Central'!E$138)*G$138)","v":6581.1308583024593},{"$f":"IF(F128=0,0,G128/F128)","v":6.8348172819912545}]
[{"$f":"'DNSP Inputs General'!B$120","v":"LED 70W-125W (L1)"},{"$f":"'DNSP Inputs General'!D$120","v":1},{"$f":"'DNSP Inputs General'!A$120","v":"LED 70W-125W (L1)"},{"$f":"'DNSP Inputs O & M'!$E$378","v":402},277284.97936355614,{"$f":"'DNSP Inputs General'!R$120","v":689.76363025760236},{"$f":"IF((E$138+'Depn & WACC Post 2004 Central'!E$138)=0,0,E129/(E$138+'Depn & WACC Post 2004 Central'!E$138)*G$138)","v":9244.8398487347404},13.402909987124312]
[{"$f":"'DNSP Inputs General'!B$121","v":"LED 155W-250W (L2)"},{"$f":"'DNSP Inputs General'!D$121","v":1},{"$f":"'DNSP Inputs General'!A$121","v":"LED 155W-250W (L2)"},{"$f":"'DNSP Inputs O & M'!$E$424","v":427},590240.4713963198,{"$f":"'DNSP Inputs General'!R$121","v":1382.296185939859},{"$f":"IF((E$138+'Depn & WACC Post 2004 Central'!E$138)=0,0,E130/(E$138+'Depn & WACC Post 2004 Central'!E$138)*G$138)","v":19678.954997220637},14.236424289806171]
[{"$f":"'DNSP Inputs General'!B$122","v":"LED 275W-400W (L4)"},{"$f":"'DNSP Inputs General'!D$122","v":1},{"$f":"'DNSP Inputs General'!A$122","v":"LED 275W-400W (L4)"},{"$f":"'DNSP Inputs O & M'!$E$470","v":650.88},77051.72758480029,{"$f":"'DNSP Inputs General'!R$122","v":118.38084990290113},{"$f":"IF((E$138+'Depn & WACC Post 2004 Central'!E$138)=0,0,E131/(E$138+'Depn & WACC Post 2004 Central'!E$138)*G$138)","v":2568.9486795310991},21.700711573182769]
[{"$f":"'DNSP Inputs General'!B$123","v":"T5 2X14W"},{"$f":"'DNSP Inputs General'!D$123","v":0.87960989252886512},{"$f":"'DNSP Inputs General'!A$123","v":"Compact Fluorescent 32W"},{"$f":"D125*B132","v":228.94486282741298},156100.80058901708,{"$f":"'DNSP Inputs General'!R$123","v":681.82705067591576},{"$f":"IF((E$138+'Depn & WACC Post 2004 Central'!E$138)=0,0,E132/(E$138+'Depn & WACC Post 2004 Central'!E$138)*G$138)","v":5204.4899980413875},7.6331527076874099]
[{"$f":"'DNSP Inputs General'!B$124","v":"T5 2X14W"},{"$f":"'DNSP Inputs General'!D$124","v":0.87960989252886512},{"$f":"'DNSP Inputs General'!A$124","v":"Compact Fluorescent 42W"},{"$f":"D125*B133","v":228.94486282741298},628417.43572723842,{"$f":"'DNSP Inputs General'!R$124","v":2744.8418277066235},{"$f":"IF((E$138+'Depn & WACC Post 2004 Central'!E$138)=0,0,E133/(E$138+'Depn & WACC Post 2004 Central'!E$138)*G$138)","v":20951.796829332474},7.6331527076874108]
[{"$f":"'DNSP Inputs General'!B$125","v":"Smart lighting L1"},{"$f":"'DNSP Inputs General'!D$125","v":1},{"$f":"'DNSP Inputs General'!A$125","v":"Smart lighting L1"},{"$f":"'DNSP Inputs O & M'!$E$517","v":402},{"$f":"F134*D134","v":68173.628635079469},{"$f":"'DNSP Inputs General'!R$125","v":169.58614088328227},{"$f":"IF((E$138+'Depn & WACC Post 2004 Central'!E$138)=0,0,E134/(E$138+'Depn & WACC Post 2004 Central'!E$138)*G$138)","v":2272.9477813224144},{"$f":"IF(F134=0,0,G134/F134)","v":13.40290998712431}]
[{"$f":"'DNSP Inputs General'!B$126","v":"Smart lighting L2"},{"$f":"'DNSP Inputs General'!D$126","v":1},{"$f":"'DNSP Inputs General'!A$126","v":"Smart lighting L2"},{"$f":"'DNSP Inputs O & M'!$E$561","v":427},147446.34588094844,{"$f":"'DNSP Inputs General'!R$126","v":345.30760159472703},{"$f":"IF((E$138+'Depn & WACC Post 2004 Central'!E$138)=0,0,E135/(E$138+'Depn & WACC Post 2004 Central'!E$138)*G$138)","v":4915.9455267978847},14.236424289806173]
[{"$f":"'DNSP Inputs General'!B$127","v":"Smart lighting L4"},{"$f":"'DNSP Inputs General'!D$127","v":1},{"$f":"'DNSP Inputs General'!A$127","v":"Smart lighting L4"},{"$f":"'DNSP Inputs O & M'!$E$605","v":650.88},19262.931896200073,{"$f":"'DNSP Inputs General'!R$127","v":29.595212475725283},{"$f":"IF((E$138+'Depn & WACC Post 2004 Central'!E$138)=0,0,E136/(E$138+'Depn & WACC Post 2004 Central'!E$138)*G$138)","v":642.23716988277477},21.700711573182769]
[]
[null,null,null,null,{"$f":"SUM(E125:E137)","v":9031965.1794603653},{"$f":"SUM(F125:F137)","v":38413.915767650265},{"$f":"'Total RAB'!U$149","v":982500.20122311823},{"$f":"SUMPRODUCT(F125:F137,H125:H137)","v":301130.88633618999}]
[null,null,null,"Check",{"$f":"SUM(F139:I139)","v":0},{"$f":"ABS('DNSP Inputs General'!R$128-F138)","v":0},{"$f":"ABS(G138-SUM(G125:G137)-SUM('Depn & WACC Post 2004 Central'!G125:G137))","v":0},{"$f":"ABS(H138+'Depn & WACC Post 2004 Central'!H138-G138)","v":0}]
[]
[]
[null,null,{"$f":"'RAB 2001 to 2004 Central'!A$27","v":"Poles & Brackets"},{"$f":"D$86","v":"Weighted Average Volumes"},null,null,{"$f":"G$86","v":"Unitisation Poles & Brackets"}]
[null,null,"Total Poles & Brackets",{"$f":"'DNSP Inputs General'!$D$89*F96","v":2348.2912018602487},{"$f":"SUMPRODUCT('DNSP Inputs General'!$D$89:$D$110,'DNSP Inputs General'!R$89:R$110)+SUMPRODUCT('DNSP Inputs General'!$D$116:$D$127,'DNSP Inputs General'!R$116:R$127)","v":51274.808302358346},{"$f":"IF(E143=0,0,D143/E143*G143)","v":30228.420481483226},{"$f":"'Total RAB'!U$119-'Depn & WACC Post 2004 Central'!G$143","v":660035.88662398607},{"$f":"F143/F96","v":12.87251787918685}]
[]
[]
[]
[null,null,null,{"$f":"'DNSP Inputs General'!B$86","v":"North & East"}]
["DEPRECIATION AND RETURN",null,null,"Year",{"$f":"'DNSP Inputs General'!$S$2","v":"2024-06-30"}]
[]
[]
[{"$f":"'DNSP Inputs General'!B$88","v":"Reference Light"},{"$f":"'DNSP Inputs General'!D$88","v":"Price Factor"},{"$f":"'DNSP Inputs General'!A$88","v":"Existing Lights"},{"$f":"D$39","v":"WACC and Dep"},null,{"$f":"F$39","v":"Volumes"},{"$f":"G$39","v":"Unitisation - Luminaires"},null,{"$f":"I$39","v":"RAB WDV"}]
[{"$f":"'DNSP Inputs General'!B$89","v":"Mercury Vapour 80W"},{"$f":"'DNSP Inputs General'!D$89","v":1},{"$f":"'DNSP Inputs General'!A$89","v":"Mercury Vapour 80W"},{"$f":"'DNSP Inputs Capex'!$F$21","v":205},{"$f":"F152*D152","v":240699.84819067549},{"$f":"IF('DNSP Inputs General'!S$89=0,1/10^6,'DNSP Inputs General'!S$89)","v":1174.1456009301244},{"$f":"IF((E$176+'Depn & WACC Post 2004 Central'!E$176)=0,0,E152/(E$176+'Depn & WACC Post 2004 Central'!E$176)*G$176)","v":29741.198280706078},{"$f":"IF(F152=0,0,G152/F152)","v":25.330076829607808},{"$f":"IF(F152=0,0,E152/(E$176+'Depn & WACC Post 2004 Central'!E$176)*I$176/F152)","v":184.02441784727321}]
[{"$f":"'DNSP Inputs General'!B$90","v":"HP Sodium 150W"},{"$f":"'DNSP Inputs General'!D$90","v":1},{"$f":"'DNSP Inputs General'!A$90","v":"HP Sodium 150W"},{"$f":"'DNSP Inputs Capex'!$F$44","v":234.07},1105844.00542985,{"$f":"IF('DNSP Inputs General'!S$90=0,1/10^6,'DNSP Inputs General'!S$90)","v":4724.4157962568888},{"$f":"IF((E$176+'Depn & WACC Post 2004 Central'!E$176)=0,0,E153/(E$176+'Depn & WACC Post 2004 Central'!E$176)*G$176)","v":136639.57862975285},28.922005285396583,{"$f":"IF(F153=0,0,E153/(E$176+'Depn & WACC Post 2004 Central'!E$176)*I$176/F153)","v":210.11997797810363}]
[{"$f":"'DNSP Inputs General'!B$91","v":"HP Sodium 250W"},{"$f":"'DNSP Inputs General'!D$91","v":1},{"$f":"'DNSP Inputs General'!A$91","v":"HP Sodium 250W"},{"$f":"'DNSP Inputs Capex'!$F$62","v":240.18},1119671.936320256,{"$f":"IF('DNSP Inputs General'!S$91=0,1/10^6,'DNSP Inputs General'!S$91)","v":4661.8033821311346},{"$f":"IF((E$176+'Depn & WACC Post 2004 Central'!E$176)=0,0,E154/(E$176+'Depn & WACC Post 2004 Central'!E$176)*G$176)","v":138348.17644364791},29.676965136269285,{"$f":"IF(F154=0,0,E154/(E$176+'Depn & WACC Post 2004 Central'!E$176)*I$176/F154)","v":215.60480331003944}]
[{"$f":"'DNSP Inputs General'!B$92","v":"Mercury Vapour 80W"},{"$f":"'DNSP Inputs General'!D$92","v":1.48},{"$f":"'DNSP Inputs General'!A$92","v":"Mercury Vapour 50W"},{"$f":"B155*IF(A155=C152,D152,IF(A155=C153,D153,D154))","v":303.39999999999998},9550.5408968841039,{"$f":"'DNSP Inputs General'!S$92","v":31.478381334489466},{"$f":"IF((E$176+'Depn & WACC Post 2004 Central'!E$176)=0,0,E155/(E$176+'Depn & WACC Post 2004 Central'!E$176)*G$176)","v":1180.0777301579797},37.488513707819557,{"$f":"IF(F155=0,0,E155/(E$176+'Depn & WACC Post 2004 Central'!E$176)*I$176/F155)","v":272.3561384139644}]
[{"$f":"'DNSP Inputs General'!B$93","v":"Mercury Vapour 80W"},{"$f":"'DNSP Inputs General'!D$93","v":1.48},{"$f":"'DNSP Inputs General'!A$93","v":"Mercury Vapour 125W"},{"$f":"B156*IF(A156=C152,D152,IF(A156=C153,D153,D154))","v":303.39999999999998},1289.4499999999998,{"$f":"'DNSP Inputs General'!S$93","v":4.25},{"$f":"IF((E$176+'Depn & WACC Post 2004 Central'!E$176)=0,0,E156/(E$176+'Depn & WACC Post 2004 Central'!E$176)*G$176)","v":159.32618325823307},{"$f":"IF(F156=0,0,G156/F156)","v":37.48851370781955},{"$f":"IF(F156=0,0,E156/(E$176+'Depn & WACC Post 2004 Central'!E$176)*I$176/F156)","v":272.35613841396435}]
[{"$f":"'DNSP Inputs General'!B$94","v":"HP Sodium 250W"},{"$f":"'DNSP Inputs General'!D$94","v":1.04},{"$f":"'DNSP Inputs General'!A$94","v":"Mercury Vapour 250W"},{"$f":"B157*IF(A157=C152,D152,IF(A157=C153,D153,D154))","v":249.78720000000001},16331.245890123981,{"$f":"'DNSP Inputs General'!S$94","v":65.380635557482449},{"$f":"IF((E$176+'Depn & WACC Post 2004 Central'!E$176)=0,0,E157/(E$176+'Depn & WACC Post 2004 Central'!E$176)*G$176)","v":2017.910795707596},30.864043741720057,{"$f":"IF(F157=0,0,E157/(E$176+'Depn & WACC Post 2004 Central'!E$176)*I$176/F157)","v":224.22899544244103}]
[{"$f":"'DNSP Inputs General'!B$95","v":"HP Sodium 250W"},{"$f":"'DNSP Inputs General'!D$95","v":1.07},{"$f":"'DNSP Inputs General'!A$95","v":"Mercury Vapour 400W"},{"$f":"B158*IF(A158=C152,D152,IF(A158=C153,D153,D154))","v":256.99260000000004},5846.581650000001,{"$f":"'DNSP Inputs General'!S$95","v":22.75},{"$f":"IF((E$176+'Depn & WACC Post 2004 Central'!E$176)=0,0,E158/(E$176+'Depn & WACC Post 2004 Central'!E$176)*G$176)","v":722.41152382963514},31.754352695808137,{"$f":"IF(F158=0,0,E158/(E$176+'Depn & WACC Post 2004 Central'!E$176)*I$176/F158)","v":230.69713954174225}]
[{"$f":"'DNSP Inputs General'!B$96","v":"HP Sodium 150W"},{"$f":"'DNSP Inputs General'!D$96","v":1.07},{"$f":"'DNSP Inputs General'!A$96","v":"HP Sodium 100W"},{"$f":"B159*IF(A159=C152,D152,IF(A159=C153,D153,D154))","v":250.45490000000001},76868.103662066249,{"$f":"'DNSP Inputs General'!S$96","v":306.91395401753471},{"$f":"IF((E$176+'Depn & WACC Post 2004 Central'!E$176)=0,0,E159/(E$176+'Depn & WACC Post 2004 Central'!E$176)*G$176)","v":9497.9266902750987},30.94654565537434,{"$f":"IF(F159=0,0,E159/(E$176+'Depn & WACC Post 2004 Central'!E$176)*I$176/F159)","v":224.82837643657086}]
[{"$f":"'DNSP Inputs General'!B$97","v":"HP Sodium 250W"},{"$f":"'DNSP Inputs General'!D$97","v":1.42},{"$f":"'DNSP Inputs General'!A$97","v":"HP Sodium 400W"},{"$f":"B160*IF(A160=C152,D152,IF(A160=C153,D153,D154))","v":341.05559999999997},116105.31922291745,{"$f":"'DNSP Inputs General'!S$97","v":340.42930015785538},{"$f":"IF((E$176+'Depn & WACC Post 2004 Central'!E$176)=0,0,E160/(E$176+'Depn & WACC Post 2004 Central'!E$176)*G$176)","v":14346.130030451897},42.141290493502375,{"$f":"IF(F160=0,0,E160/(E$176+'Depn & WACC Post 2004 Central'!E$176)*I$176/F160)","v":306.15882070025594}]
[{"$f":"'DNSP Inputs General'!B$98","v":"Mercury Vapour 80W"},{"$f":"'DNSP Inputs General'!D$98","v":3.8044420368364027},{"$f":"'DNSP Inputs General'!A$98","v":"Metal Halide 70W"},{"$f":"B161*IF(A161=C152,D152,IF(A161=C153,D153,D154))","v":779.91061755146256},0,{"$f":"'DNSP Inputs General'!S$98","v":0},{"$f":"IF((E$176+'Depn & WACC Post 2004 Central'!E$176)=0,0,E161/(E$176+'Depn & WACC Post 2004 Central'!E$176)*G$176)","v":0},0,{"$f":"IF(F161=0,0,E161/(E$176+'Depn & WACC Post 2004 Central'!E$176)*I$176/F161)","v":0}]
[{"$f":"'DNSP Inputs General'!B$99","v":"HP Sodium 150W"},{"$f":"'DNSP Inputs General'!D$99","v":2.1180491097797653},{"$f":"'DNSP Inputs General'!A$99","v":"Metal Halide 100W"},{"$f":"B162*IF(A162=C152,D152,IF(A162=C153,D153,D154))","v":495.77175512614969},0,{"$f":"'DNSP Inputs General'!S$99","v":0},{"$f":"IF((E$176+'Depn & WACC Post 2004 Central'!E$176)=0,0,E162/(E$176+'Depn & WACC Post 2004 Central'!E$176)*G$176)","v":0},0,{"$f":"IF(F162=0,0,E162/(E$176+'Depn & WACC Post 2004 Central'!E$176)*I$176/F162)","v":0}]
[{"$f":"'DNSP Inputs General'!B$100","v":"HP Sodium 150W"},{"$f":"'DNSP Inputs General'!D$100","v":2.4062948274407225},{"$f":"'DNSP Inputs General'!A$100","v":"Metal Halide 150W"},{"$f":"B163*IF(A163=C152,D152,IF(A163=C153,D153,D154))","v":563.24143025904993},0,{"$f":"'DNSP Inputs General'!S$100","v":0},{"$f":"IF((E$176+'Depn & WACC Post 2004 Central'!E$176)=0,0,E163/(E$176+'Depn & WACC Post 2004 Central'!E$176)*G$176)","v":0},0,{"$f":"IF(F163=0,0,E163/(E$176+'Depn & WACC Post 2004 Central'!E$176)*I$176/F163)","v":0}]
[{"$f":"'DNSP Inputs General'!B$101","v":"HP Sodium 150W"},{"$f":"'DNSP Inputs General'!D$101","v":0.45472955868703063},{"$f":"'DNSP Inputs General'!A$101","v":"HP Sodium 50W"},{"$f":"B164*IF(A164=C152,D152,IF(A164=C153,D153,D154))","v":106.43854780187326},0,{"$f":"'DNSP Inputs General'!S$101","v":0},{"$f":"IF((E$176+'Depn & WACC Post 2004 Central'!E$176)=0,0,E164/(E$176+'Depn & WACC Post 2004 Central'!E$176)*G$176)","v":0},0,{"$f":"IF(F164=0,0,E164/(E$176+'Depn & WACC Post 2004 Central'!E$176)*I$176/F164)","v":0}]
[]
[]
[]
[]
[]
[]
[]
[]
[]
[]
[]
[null,null,null,null,{"$f":"SUM(E152:E175)","v":2692207.0312627731},{"$f":"SUM(F152:F175)","v":11331.567050385509},{"$f":"'Total RAB'!V$134","v":1127198.5602244954},{"$f":"SUMPRODUCT(F152:F175,H152:H175)","v":332652.7363077873},{"$f":"'Total RAB'!V$128","v":8189160.2713630237}]
[null,null,null,"Check",{"$f":"SUM(F177:I177)","v":2.2118911147117615E-9},{"$f":"ABS('DNSP Inputs General'!S$113-F176)","v":0},{"$f":"ABS(G176-SUM(G152:G175)-SUM('Depn & WACC Post 2004 Central'!G152:G175))*IF(F176=0,0,1)","v":1.1641532182693481E-10},{"$f":"ABS(H176+'Depn & WACC Post 2004 Central'!H176-G176)*IF(F176=0,0,1)","v":2.3283064365386963E-10},{"$f":"ABS(I176-SUMPRODUCT(F152:F175,I152:I175)-SUMPRODUCT('Depn & WACC Post 2004 Central'!F152:F175,'Depn & WACC Post 2004 Central'!I152:I175))*IF(F176=0,0,1)","v":1.862645149230957E-9}]
[]
[]
[{"$f":"'DNSP Inputs General'!A$115","v":"Energy Efficient Lights"},{"$f":"'DNSP Inputs General'!D$115","v":"Price Factor"},{"$f":"'DNSP Inputs General'!A$115","v":"Energy Efficient Lights"},{"$f":"D$68","v":"Unit cost"},null,{"$f":"F$68","v":"Volumes"},{"$f":"G$68","v":"Unitisation - Luminaires & Ballasts"}]
[{"$f":"'DNSP Inputs General'!B$116","v":"T5 2X14W"},{"$f":"'DNSP Inputs General'!D$116","v":1},{"$f":"'DNSP Inputs General'!A$116","v":"T5 2X14W"},{"$f":"'DNSP Inputs O & M'!$F$189","v":260.27999999999997},{"$f":"F181*D181","v":1848916.5818748181},{"$f":"'DNSP Inputs General'!S$116","v":7103.567626689789},{"$f":"IF((E$194+'Depn & WACC Post 2004 Central'!E$194)=0,0,E181/(E$194+'Depn & WACC Post 2004 Central'!E$194)*G$194)","v":71320.786800160306},{"$f":"IF(F181=0,0,G181/F181)","v":10.040136245369325}]
[{"$f":"'DNSP Inputs General'!B$117","v":"T5 2X24W"},{"$f":"'DNSP Inputs General'!D$117","v":1},{"$f":"'DNSP Inputs General'!A$117","v":"T5 2X24W"},{"$f":"'DNSP Inputs O & M'!$F$238","v":267.33},{"$f":"F182*D182","v":272676.59999999998},{"$f":"'DNSP Inputs General'!S$117","v":1020},{"$f":"IF((E$194+'Depn & WACC Post 2004 Central'!E$194)=0,0,E182/(E$194+'Depn & WACC Post 2004 Central'!E$194)*G$194)","v":10518.327243445801},{"$f":"IF(F182=0,0,G182/F182)","v":10.312085532790002}]
[{"$f":"'DNSP Inputs General'!B$118","v":"LED 18W"},{"$f":"'DNSP Inputs General'!D$118","v":1},{"$f":"'DNSP Inputs General'!A$118","v":"LED 18W"},{"$f":"'DNSP Inputs O & M'!$F$286","v":205},{"$f":"F183*D183","v":5162354.2898685131},{"$f":"'DNSP Inputs General'!S$118","v":25182.216048139089},{"$f":"IF((E$194+'Depn & WACC Post 2004 Central'!E$194)=0,0,E183/(E$194+'Depn & WACC Post 2004 Central'!E$194)*G$194)","v":199134.54901316541},{"$f":"IF(F183=0,0,G183/F183)","v":7.9077452370551402}]
[{"$f":"'DNSP Inputs General'!B$119","v":"LED 14W"},{"$f":"'DNSP Inputs General'!D$119","v":1},{"$f":"'DNSP Inputs General'!A$119","v":"LED 14W"},{"$f":"'DNSP Inputs O & M'!$F$332","v":205},197391.05967130527,{"$f":"'DNSP Inputs General'!S$119","v":962.88321790880616},{"$f":"IF((E$194+'Depn & WACC Post 2004 Central'!E$194)=0,0,E184/(E$194+'Depn & WACC Post 2004 Central'!E$194)*G$194)","v":7614.2351802586891},{"$f":"IF(F184=0,0,G184/F184)","v":7.9077452370551411}]
[{"$f":"'DNSP Inputs General'!B$120","v":"LED 70W-125W (L1)"},{"$f":"'DNSP Inputs General'!D$120","v":1},{"$f":"'DNSP Inputs General'!A$120","v":"LED 70W-125W (L1)"},{"$f":"'DNSP Inputs O & M'!$F$378","v":402},294384.52062710165,{"$f":"'DNSP Inputs General'!S$120","v":732.29980255497924},{"$f":"IF((E$194+'Depn & WACC Post 2004 Central'!E$194)=0,0,E185/(E$194+'Depn & WACC Post 2004 Central'!E$194)*G$194)","v":11355.696540740117},15.506895538030081]
[{"$f":"'DNSP Inputs General'!B$121","v":"LED 155W-250W (L2)"},{"$f":"'DNSP Inputs General'!D$121","v":1},{"$f":"'DNSP Inputs General'!A$121","v":"LED 155W-250W (L2)"},{"$f":"'DNSP Inputs O & M'!$F$424","v":427},722023.77698268869,{"$f":"'DNSP Inputs General'!S$121","v":1690.9221943388495},{"$f":"IF((E$194+'Depn & WACC Post 2004 Central'!E$194)=0,0,E186/(E$194+'Depn & WACC Post 2004 Central'!E$194)*G$194)","v":27851.610163294728},16.471254713280704]
[{"$f":"'DNSP Inputs General'!B$122","v":"LED 275W-400W (L4)"},{"$f":"'DNSP Inputs General'!D$122","v":1},{"$f":"'DNSP Inputs General'!A$122","v":"LED 275W-400W (L4)"},{"$f":"'DNSP Inputs O & M'!$F$470","v":650.88},85894.681324922945,{"$f":"'DNSP Inputs General'!S$122","v":131.96700056066086},{"$f":"IF((E$194+'Depn & WACC Post 2004 Central'!E$194)=0,0,E187/(E$194+'Depn & WACC Post 2004 Central'!E$194)*G$194)","v":3313.3329616367246},25.107283999485123]
[{"$f":"'DNSP Inputs General'!B$123","v":"T5 2X14W"},{"$f":"'DNSP Inputs General'!D$123","v":0.87960989252886512},{"$f":"'DNSP Inputs General'!A$123","v":"Compact Fluorescent 32W"},{"$f":"D181*B188","v":228.94486282741298},156100.80058901708,{"$f":"'DNSP Inputs General'!S$123","v":681.82705067591576},{"$f":"IF((E$194+'Depn & WACC Post 2004 Central'!E$194)=0,0,E188/(E$194+'Depn & WACC Post 2004 Central'!E$194)*G$194)","v":6021.4895724794833},8.8314031637644757]
[{"$f":"'DNSP Inputs General'!B$124","v":"T5 2X14W"},{"$f":"'DNSP Inputs General'!D$124","v":0.87960989252886512},{"$f":"'DNSP Inputs General'!A$124","v":"Compact Fluorescent 42W"},{"$f":"D181*B189","v":228.94486282741298},628417.43572723842,{"$f":"'DNSP Inputs General'!S$124","v":2744.8418277066235},{"$f":"IF((E$194+'Depn & WACC Post 2004 Central'!E$194)=0,0,E189/(E$194+'Depn & WACC Post 2004 Central'!E$194)*G$194)","v":24240.804801241342},8.8314031637644757]
[{"$f":"'DNSP Inputs General'!B$125","v":"Smart lighting L1"},{"$f":"'DNSP Inputs General'!D$125","v":1},{"$f":"'DNSP Inputs General'!A$125","v":"Smart lighting L1"},{"$f":"'DNSP Inputs O & M'!$F$517","v":402},124118.75880468593,{"$f":"'DNSP Inputs General'!S$125","v":308.75313135494014},{"$f":"IF((E$194+'Depn & WACC Post 2004 Central'!E$194)=0,0,E190/(E$194+'Depn & WACC Post 2004 Central'!E$194)*G$194)","v":4787.8025549607364},{"$f":"IF(F190=0,0,G190/F190)","v":15.506895538030079}]
[{"$f":"'DNSP Inputs General'!B$126","v":"Smart lighting L2"},{"$f":"'DNSP Inputs General'!D$126","v":1},{"$f":"'DNSP Inputs General'!A$126","v":"Smart lighting L2"},{"$f":"'DNSP Inputs O & M'!$F$561","v":427},309104.4112903169,{"$f":"'DNSP Inputs General'!S$126","v":723.89791871268596},{"$f":"IF((E$194+'Depn & WACC Post 2004 Central'!E$194)=0,0,E191/(E$194+'Depn & WACC Post 2004 Central'!E$194)*G$194)","v":11923.507005530422},16.471254713280707]
[{"$f":"'DNSP Inputs General'!B$127","v":"Smart lighting L4"},{"$f":"'DNSP Inputs General'!D$127","v":1},{"$f":"'DNSP Inputs General'!A$127","v":"Smart lighting L4"},{"$f":"'DNSP Inputs O & M'!$F$605","v":650.88},36812.006282109825,{"$f":"'DNSP Inputs General'!S$127","v":56.557285954568933},{"$f":"IF((E$194+'Depn & WACC Post 2004 Central'!E$194)=0,0,E192/(E$194+'Depn & WACC Post 2004 Central'!E$194)*G$194)","v":1419.9998407014532},25.107283999485123]
[]
[null,null,null,null,{"$f":"SUM(E181:E193)","v":9838194.9230427202},{"$f":"SUM(F181:F193)","v":41339.733104596904},{"$f":"'Total RAB'!V$149","v":1261905.9266899307},{"$f":"SUMPRODUCT(F181:F193,H181:H193)","v":379502.14167761517}]
[null,null,null,"Check",{"$f":"SUM(F195:I195)","v":0},{"$f":"ABS('DNSP Inputs General'!S$128-F194)","v":0},{"$f":"ABS(G194-SUM(G181:G193)-SUM('Depn & WACC Post 2004 Central'!G181:G193))","v":0},{"$f":"ABS(H194+'Depn & WACC Post 2004 Central'!H194-G194)","v":0}]
[]
[]
[null,null,{"$f":"'RAB 2001 to 2004 Central'!A$27","v":"Poles & Brackets"},{"$f":"D$86","v":"Weighted Average Volumes"},null,null,{"$f":"G$86","v":"Unitisation Poles & Brackets"}]
[null,null,"Total Poles & Brackets",{"$f":"'DNSP Inputs General'!$D$89*F152","v":1174.1456009301244},{"$f":"SUMPRODUCT('DNSP Inputs General'!$D$89:$D$110,'DNSP Inputs General'!S$89:S$110)+SUMPRODUCT('DNSP Inputs General'!$D$116:$D$127,'DNSP Inputs General'!S$116:S$127)","v":52444.584751756331},{"$f":"IF(E199=0,0,D199/E199*G199)","v":15675.769314997644},{"$f":"'Total RAB'!V$119-'Depn & WACC Post 2004 Central'!G$199","v":700176.54687640443},{"$f":"F199/F152","v":13.350788269001519}]
[]
[]
[]
[null,null,null,{"$f":"'DNSP Inputs General'!B$86","v":"North & East"}]
["DEPRECIATION AND RETURN",null,null,"Year",{"$f":"'DNSP Inputs General'!$T$2","v":"2025-06-30"}]
[]
[]
[{"$f":"'DNSP Inputs General'!B$88","v":"Reference Light"},{"$f":"'DNSP Inputs General'!D$88","v":"Price Factor"},{"$f":"'DNSP Inputs General'!A$88","v":"Existing Lights"},{"$f":"D$39","v":"WACC and Dep"},null,{"$f":"F$39","v":"Volumes"},{"$f":"G$39","v":"Unitisation - Luminaires"},null,{"$f":"I$39","v":"RAB WDV"}]
[{"$f":"'DNSP Inputs General'!B$89","v":"Mercury Vapour 80W"},{"$f":"'DNSP Inputs General'!D$89","v":1},{"$f":"'DNSP Inputs General'!A$89","v":"Mercury Vapour 80W"},{"$f":"'DNSP Inputs Capex'!$G$21","v":205},{"$f":"F208*D208","v":205},{"$f":"IF('DNSP Inputs General'!T$89=0,1/10^6,'DNSP Inputs General'!T$89)","v":1},{"$f":"IF((E$232+'Depn & WACC Post 2004 Central'!E$232)=0,0,E208/(E$232+'Depn & WACC Post 2004 Central'!E$232)*G$232)","v":29.916244381709244},{"$f":"IF(F208=0,0,G208/F208)","v":29.916244381709244},{"$f":"IF(F208=0,0,E208/(E$232+'Depn & WACC Post 2004 Central'!E$232)*I$232/F208)","v":205.26607091202735}]
[{"$f":"'DNSP Inputs General'!B$90","v":"HP Sodium 150W"},{"$f":"'DNSP Inputs General'!D$90","v":1},{"$f":"'DNSP Inputs General'!A$90","v":"HP Sodium 150W"},{"$f":"'DNSP Inputs Capex'!$G$44","v":234.07},1048260.6328924521,{"$f":"IF('DNSP Inputs General'!T$90=0,1/10^6,'DNSP Inputs General'!T$90)","v":4478.406600130098},{"$f":"IF((E$232+'Depn & WACC Post 2004 Central'!E$232)=0,0,E209/(E$232+'Depn & WACC Post 2004 Central'!E$232)*G$232)","v":152975.71350895509},34.158513767935034,{"$f":"IF(F209=0,0,E209/(E$232+'Depn & WACC Post 2004 Central'!E$232)*I$232/F209)","v":234.3738010652597}]
[{"$f":"'DNSP Inputs General'!B$91","v":"HP Sodium 250W"},{"$f":"'DNSP Inputs General'!D$91","v":1},{"$f":"'DNSP Inputs General'!A$91","v":"HP Sodium 250W"},{"$f":"'DNSP Inputs Capex'!$G$62","v":240.18},1079714.4765266716,{"$f":"IF('DNSP Inputs General'!T$91=0,1/10^6,'DNSP Inputs General'!T$91)","v":4495.4387398062763},{"$f":"IF((E$232+'Depn & WACC Post 2004 Central'!E$232)=0,0,E210/(E$232+'Depn & WACC Post 2004 Central'!E$232)*G$232)","v":157565.86410849352},35.050163783409396,{"$f":"IF(F210=0,0,E210/(E$232+'Depn & WACC Post 2004 Central'!E$232)*I$232/F210)","v":240.49173127634504}]
[{"$f":"'DNSP Inputs General'!B$92","v":"Mercury Vapour 80W"},{"$f":"'DNSP Inputs General'!D$92","v":1.48},{"$f":"'DNSP Inputs General'!A$92","v":"Mercury Vapour 50W"},{"$f":"B211*IF(A211=C208,D208,IF(A211=C209,D209,D210))","v":303.39999999999998},0,{"$f":"'DNSP Inputs General'!T$92","v":0},{"$f":"IF((E$232+'Depn & WACC Post 2004 Central'!E$232)=0,0,E211/(E$232+'Depn & WACC Post 2004 Central'!E$232)*G$232)","v":0},0,{"$f":"IF(F211=0,0,E211/(E$232+'Depn & WACC Post 2004 Central'!E$232)*I$232/F211)","v":0}]
[{"$f":"'DNSP Inputs General'!B$93","v":"Mercury Vapour 80W"},{"$f":"'DNSP Inputs General'!D$93","v":1.48},{"$f":"'DNSP Inputs General'!A$93","v":"Mercury Vapour 125W"},{"$f":"B212*IF(A212=C208,D208,IF(A212=C209,D209,D210))","v":303.39999999999998},0,{"$f":"'DNSP Inputs General'!T$93","v":0},{"$f":"IF((E$232+'Depn & WACC Post 2004 Central'!E$232)=0,0,E212/(E$232+'Depn & WACC Post 2004 Central'!E$232)*G$232)","v":0},{"$f":"IF(F212=0,0,G212/F212)","v":0},{"$f":"IF(F212=0,0,E212/(E$232+'Depn & WACC Post 2004 Central'!E$232)*I$232/F212)","v":0}]
[{"$f":"'DNSP Inputs General'!B$94","v":"HP Sodium 250W"},{"$f":"'DNSP Inputs General'!D$94","v":1.04},{"$f":"'DNSP Inputs General'!A$94","v":"Mercury Vapour 250W"},{"$f":"B213*IF(A213=C208,D208,IF(A213=C209,D209,D210))","v":249.78720000000001},0,{"$f":"'DNSP Inputs General'!T$94","v":0},{"$f":"IF((E$232+'Depn & WACC Post 2004 Central'!E$232)=0,0,E213/(E$232+'Depn & WACC Post 2004 Central'!E$232)*G$232)","v":0},0,{"$f":"IF(F213=0,0,E213/(E$232+'Depn & WACC Post 2004 Central'!E$232)*I$232/F213)","v":0}]
[{"$f":"'DNSP Inputs General'!B$95","v":"HP Sodium 250W"},{"$f":"'DNSP Inputs General'!D$95","v":1.07},{"$f":"'DNSP Inputs General'!A$95","v":"Mercury Vapour 400W"},{"$f":"B214*IF(A214=C208,D208,IF(A214=C209,D209,D210))","v":256.99260000000004},0,{"$f":"'DNSP Inputs General'!T$95","v":0},{"$f":"IF((E$232+'Depn & WACC Post 2004 Central'!E$232)=0,0,E214/(E$232+'Depn & WACC Post 2004 Central'!E$232)*G$232)","v":0},0,{"$f":"IF(F214=0,0,E214/(E$232+'Depn & WACC Post 2004 Central'!E$232)*I$232/F214)","v":0}]
[{"$f":"'DNSP Inputs General'!B$96","v":"HP Sodium 150W"},{"$f":"'DNSP Inputs General'!D$96","v":1.07},{"$f":"'DNSP Inputs General'!A$96","v":"HP Sodium 100W"},{"$f":"B215*IF(A215=C208,D208,IF(A215=C209,D209,D210))","v":250.45490000000001},75584.396915963167,{"$f":"'DNSP Inputs General'!T$96","v":301.78845339405683},{"$f":"IF((E$232+'Depn & WACC Post 2004 Central'!E$232)=0,0,E215/(E$232+'Depn & WACC Post 2004 Central'!E$232)*G$232)","v":11030.250193083242},36.549609731690495,{"$f":"IF(F215=0,0,E215/(E$232+'Depn & WACC Post 2004 Central'!E$232)*I$232/F215)","v":250.77996713982793}]
[{"$f":"'DNSP Inputs General'!B$97","v":"HP Sodium 250W"},{"$f":"'DNSP Inputs General'!D$97","v":1.42},{"$f":"'DNSP Inputs General'!A$97","v":"HP Sodium 400W"},{"$f":"B216*IF(A216=C208,D208,IF(A216=C209,D209,D210))","v":341.05559999999997},114140.80949461275,{"$f":"'DNSP Inputs General'!T$97","v":334.66921374289927},{"$f":"IF((E$232+'Depn & WACC Post 2004 Central'!E$232)=0,0,E216/(E$232+'Depn & WACC Post 2004 Central'!E$232)*G$232)","v":16656.899272033923},49.771232572441342,{"$f":"IF(F216=0,0,E216/(E$232+'Depn & WACC Post 2004 Central'!E$232)*I$232/F216)","v":341.49825841240994}]
[{"$f":"'DNSP Inputs General'!B$98","v":"Mercury Vapour 80W"},{"$f":"'DNSP Inputs General'!D$98","v":3.8044420368364027},{"$f":"'DNSP Inputs General'!A$98","v":"Metal Halide 70W"},{"$f":"B217*IF(A217=C208,D208,IF(A217=C209,D209,D210))","v":779.91061755146256},0,{"$f":"'DNSP Inputs General'!T$98","v":0},{"$f":"IF((E$232+'Depn & WACC Post 2004 Central'!E$232)=0,0,E217/(E$232+'Depn & WACC Post 2004 Central'!E$232)*G$232)","v":0},0,{"$f":"IF(F217=0,0,E217/(E$232+'Depn & WACC Post 2004 Central'!E$232)*I$232/F217)","v":0}]
[{"$f":"'DNSP Inputs General'!B$99","v":"HP Sodium 150W"},{"$f":"'DNSP Inputs General'!D$99","v":2.1180491097797653},{"$f":"'DNSP Inputs General'!A$99","v":"Metal Halide 100W"},{"$f":"B218*IF(A218=C208,D208,IF(A218=C209,D209,D210))","v":495.77175512614969},0,{"$f":"'DNSP Inputs General'!T$99","v":0},{"$f":"IF((E$232+'Depn & WACC Post 2004 Central'!E$232)=0,0,E218/(E$232+'Depn & WACC Post 2004 Central'!E$232)*G$232)","v":0},0,{"$f":"IF(F218=0,0,E218/(E$232+'Depn & WACC Post 2004 Central'!E$232)*I$232/F218)","v":0}]
[{"$f":"'DNSP Inputs General'!B$100","v":"HP Sodium 150W"},{"$f":"'DNSP Inputs General'!D$100","v":2.4062948274407225},{"$f":"'DNSP Inputs General'!A$100","v":"Metal Halide 150W"},{"$f":"B219*IF(A219=C208,D208,IF(A219=C209,D209,D210))","v":563.24143025904993},0,{"$f":"'DNSP Inputs General'!T$100","v":0},{"$f":"IF((E$232+'Depn & WACC Post 2004 Central'!E$232)=0,0,E219/(E$232+'Depn & WACC Post 2004 Central'!E$232)*G$232)","v":0},0,{"$f":"IF(F219=0,0,E219/(E$232+'Depn & WACC Post 2004 Central'!E$232)*I$232/F219)","v":0}]
[{"$f":"'DNSP Inputs General'!B$101","v":"HP Sodium 150W"},{"$f":"'DNSP Inputs General'!D$101","v":0.45472955868703063},{"$f":"'DNSP Inputs General'!A$101","v":"HP Sodium 50W"},{"$f":"B220*IF(A220=C208,D208,IF(A220=C209,D209,D210))","v":106.43854780187326},0,{"$f":"'DNSP Inputs General'!T$101","v":0},{"$f":"IF((E$232+'Depn & WACC Post 2004 Central'!E$232)=0,0,E220/(E$232+'Depn & WACC Post 2004 Central'!E$232)*G$232)","v":0},0,{"$f":"IF(F220=0,0,E220/(E$232+'Depn & WACC Post 2004 Central'!E$232)*I$232/F220)","v":0}]
[]
[]
[]
[]
[]
[]
[]
[]
[]
[]
[]
[null,null,null,null,{"$f":"SUM(E208:E231)","v":2317905.3158296999},{"$f":"SUM(F208:F231)","v":9611.3030070733312},{"$f":"'Total RAB'!W$134","v":1092051.4468261178},{"$f":"SUMPRODUCT(F208:F231,H208:H231)","v":338258.64332694752},{"$f":"'Total RAB'!W$128","v":7492956.230189234}]
[null,null,null,"Check",{"$f":"SUM(F233:I233)","v":2.3283064365386963E-10},{"$f":"ABS('DNSP Inputs General'!T$113-F232)","v":0},{"$f":"ABS(G232-SUM(G208:G231)-SUM('Depn & WACC Post 2004 Central'!G208:G231))*IF(F232=0,0,1)","v":2.3283064365386963E-10},{"$f":"ABS(H232+'Depn & WACC Post 2004 Central'!H232-G232)*IF(F232=0,0,1)","v":0},{"$f":"ABS(I232-SUMPRODUCT(F208:F231,I208:I231)-SUMPRODUCT('Depn & WACC Post 2004 Central'!F208:F231,'Depn & WACC Post 2004 Central'!I208:I231))*IF(F232=0,0,1)","v":0}]
[]
[]
[{"$f":"'DNSP Inputs General'!A$115","v":"Energy Efficient Lights"},{"$f":"'DNSP Inputs General'!D$115","v":"Price Factor"},{"$f":"'DNSP Inputs General'!A$115","v":"Energy Efficient Lights"},{"$f":"D$68","v":"Unit cost"},null,{"$f":"F$68","v":"Volumes"},{"$f":"G$68","v":"Unitisation - Luminaires & Ballasts"}]
[{"$f":"'DNSP Inputs General'!B$116","v":"T5 2X14W"},{"$f":"'DNSP Inputs General'!D$116","v":1},{"$f":"'DNSP Inputs General'!A$116","v":"T5 2X14W"},{"$f":"'DNSP Inputs O & M'!$G$189","v":260.27999999999997},{"$f":"F237*D237","v":1848916.5818748181},{"$f":"'DNSP Inputs General'!T$116","v":7103.567626689789},{"$f":"IF((E$250+'Depn & WACC Post 2004 Central'!E$250)=0,0,E237/(E$250+'Depn & WACC Post 2004 Central'!E$250)*G$250)","v":79241.361418663626},{"$f":"IF(F237=0,0,G237/F237)","v":11.155149860323005}]
[{"$f":"'DNSP Inputs General'!B$117","v":"T5 2X24W"},{"$f":"'DNSP Inputs General'!D$117","v":1},{"$f":"'DNSP Inputs General'!A$117","v":"T5 2X24W"},{"$f":"'DNSP Inputs O & M'!$G$238","v":267.33},{"$f":"F238*D238","v":272676.59999999998},{"$f":"'DNSP Inputs General'!T$117","v":1020},{"$f":"IF((E$250+'Depn & WACC Post 2004 Central'!E$250)=0,0,E238/(E$250+'Depn & WACC Post 2004 Central'!E$250)*G$250)","v":11686.446658995514},{"$f":"IF(F238=0,0,G238/F238)","v":11.457300646074033}]
[{"$f":"'DNSP Inputs General'!B$118","v":"LED 18W"},{"$f":"'DNSP Inputs General'!D$118","v":1},{"$f":"'DNSP Inputs General'!A$118","v":"LED 18W"},{"$f":"'DNSP Inputs O & M'!$G$286","v":205},{"$f":"F239*D239","v":5579404.028549266},{"$f":"'DNSP Inputs General'!T$118","v":27216.605017313494},{"$f":"IF((E$250+'Depn & WACC Post 2004 Central'!E$250)=0,0,E239/(E$250+'Depn & WACC Post 2004 Central'!E$250)*G$250)","v":239123.59024802895},{"$f":"IF(F239=0,0,G239/F239)","v":8.7859448338950994}]
[{"$f":"'DNSP Inputs General'!B$119","v":"LED 14W"},{"$f":"'DNSP Inputs General'!D$119","v":1},{"$f":"'DNSP Inputs General'!A$119","v":"LED 14W"},{"$f":"'DNSP Inputs O & M'!$G$332","v":205},197391.05967130527,{"$f":"'DNSP Inputs General'!T$119","v":962.88321790880616},{"$f":"IF((E$250+'Depn & WACC Post 2004 Central'!E$250)=0,0,E240/(E$250+'Depn & WACC Post 2004 Central'!E$250)*G$250)","v":8459.8388340301663},{"$f":"IF(F240=0,0,G240/F240)","v":8.7859448338951012}]
[{"$f":"'DNSP Inputs General'!B$120","v":"LED 70W-125W (L1)"},{"$f":"'DNSP Inputs General'!D$120","v":1},{"$f":"'DNSP Inputs General'!A$120","v":"LED 70W-125W (L1)"},{"$f":"'DNSP Inputs O & M'!$G$378","v":402},297702.7112784686,{"$f":"'DNSP Inputs General'!T$120","v":740.55400815539451},{"$f":"IF((E$250+'Depn & WACC Post 2004 Central'!E$250)=0,0,E241/(E$250+'Depn & WACC Post 2004 Central'!E$250)*G$250)","v":12759.022430212808},17.229023527930877]
[{"$f":"'DNSP Inputs General'!B$121","v":"LED 155W-250W (L2)"},{"$f":"'DNSP Inputs General'!D$121","v":1},{"$f":"'DNSP Inputs General'!A$121","v":"LED 155W-250W (L2)"},{"$f":"'DNSP Inputs O & M'!$G$424","v":427},788128.72228855314,{"$f":"'DNSP Inputs General'!T$121","v":1845.7347126195623},{"$f":"IF((E$250+'Depn & WACC Post 2004 Central'!E$250)=0,0,E242/(E$250+'Depn & WACC Post 2004 Central'!E$250)*G$250)","v":33777.83159041687},18.300480214991257]
[{"$f":"'DNSP Inputs General'!B$122","v":"LED 275W-400W (L4)"},{"$f":"'DNSP Inputs General'!D$122","v":1},{"$f":"'DNSP Inputs General'!A$122","v":"LED 275W-400W (L4)"},{"$f":"'DNSP Inputs O & M'!$G$470","v":650.88},89609.012579372691,{"$f":"'DNSP Inputs General'!T$122","v":137.67363043782677},{"$f":"IF((E$250+'Depn & WACC Post 2004 Central'!E$250)=0,0,E243/(E$250+'Depn & WACC Post 2004 Central'!E$250)*G$250)","v":3840.487029961856},27.895589138954353]
[{"$f":"'DNSP Inputs General'!B$123","v":"T5 2X14W"},{"$f":"'DNSP Inputs General'!D$123","v":0.87960989252886512},{"$f":"'DNSP Inputs General'!A$123","v":"Compact Fluorescent 32W"},{"$f":"D237*B244","v":228.94486282741298},156100.80058901708,{"$f":"'DNSP Inputs General'!T$123","v":681.82705067591576},{"$f":"IF((E$250+'Depn & WACC Post 2004 Central'!E$250)=0,0,E244/(E$250+'Depn & WACC Post 2004 Central'!E$250)*G$250)","v":6690.2098658632376},9.8121801697821027]
[{"$f":"'DNSP Inputs General'!B$124","v":"T5 2X14W"},{"$f":"'DNSP Inputs General'!D$124","v":0.87960989252886512},{"$f":"'DNSP Inputs General'!A$124","v":"Compact Fluorescent 42W"},{"$f":"D237*B245","v":228.94486282741298},628417.43572723842,{"$f":"'DNSP Inputs General'!T$124","v":2744.8418277066235},{"$f":"IF((E$250+'Depn & WACC Post 2004 Central'!E$250)=0,0,E245/(E$250+'Depn & WACC Post 2004 Central'!E$250)*G$250)","v":26932.882551011397},9.8121801697821045]
[{"$f":"'DNSP Inputs General'!B$125","v":"Smart lighting L1"},{"$f":"'DNSP Inputs General'!D$125","v":1},{"$f":"'DNSP Inputs General'!A$125","v":"Smart lighting L1"},{"$f":"'DNSP Inputs O & M'!$G$517","v":402},195285.75190820053,{"$f":"'DNSP Inputs General'!T$125","v":485.78545250796151},{"$f":"IF((E$250+'Depn & WACC Post 2004 Central'!E$250)=0,0,E246/(E$250+'Depn & WACC Post 2004 Central'!E$250)*G$250)","v":8369.6089907862188},{"$f":"IF(F246=0,0,G246/F246)","v":17.229023527930881}]
[{"$f":"'DNSP Inputs General'!B$126","v":"Smart lighting L2"},{"$f":"'DNSP Inputs General'!D$126","v":1},{"$f":"'DNSP Inputs General'!A$126","v":"Smart lighting L2"},{"$f":"'DNSP Inputs O & M'!$G$561","v":427},524899.04776662483,{"$f":"'DNSP Inputs General'!T$126","v":1229.271774629098},{"$f":"IF((E$250+'Depn & WACC Post 2004 Central'!E$250)=0,0,E247/(E$250+'Depn & WACC Post 2004 Central'!E$250)*G$250)","v":22496.263790446999},18.300480214991257]
[{"$f":"'DNSP Inputs General'!B$127","v":"Smart lighting L4"},{"$f":"'DNSP Inputs General'!D$127","v":1},{"$f":"'DNSP Inputs General'!A$127","v":"Smart lighting L4"},{"$f":"'DNSP Inputs O & M'!$G$605","v":650.88},59739.341719581804,{"$f":"'DNSP Inputs General'!T$127","v":91.782420291884534},{"$f":"IF((E$250+'Depn & WACC Post 2004 Central'!E$250)=0,0,E248/(E$250+'Depn & WACC Post 2004 Central'!E$250)*G$250)","v":2560.3246866412378},27.895589138954353]
[]
[null,null,null,null,{"$f":"SUM(E237:E249)","v":10638271.093952445},{"$f":"SUM(F237:F249)","v":44260.526738936343},{"$f":"'Total RAB'!W$149","v":1535265.6683476437},{"$f":"SUMPRODUCT(F237:F249,H237:H249)","v":455937.86809505889}]
[null,null,null,"Check",{"$f":"SUM(F251:I251)","v":4.6566128730773926E-10},{"$f":"ABS('DNSP Inputs General'!T$128-F250)","v":0},{"$f":"ABS(G250-SUM(G237:G249)-SUM('Depn & WACC Post 2004 Central'!G237:G249))","v":2.3283064365386963E-10},{"$f":"ABS(H250+'Depn & WACC Post 2004 Central'!H250-G250)","v":2.3283064365386963E-10}]
[]
[]
[null,null,{"$f":"'RAB 2001 to 2004 Central'!A$27","v":"Poles & Brackets"},{"$f":"D$86","v":"Weighted Average Volumes"},null,null,{"$f":"G$86","v":"Unitisation Poles & Brackets"}]
[null,null,"Total Poles & Brackets",{"$f":"'DNSP Inputs General'!$D$89*F208","v":1},{"$f":"SUMPRODUCT('DNSP Inputs General'!$D$89:$D$110,'DNSP Inputs General'!T$89:T$110)+SUMPRODUCT('DNSP Inputs General'!$D$116:$D$127,'DNSP Inputs General'!T$116:T$127)","v":53620.978972982812},{"$f":"IF(E255=0,0,D255/E255*G255)","v":13.827887043234357},{"$f":"'Total RAB'!W$119-'Depn & WACC Post 2004 Central'!G$255","v":741464.84038605099},{"$f":"F255/F208","v":13.827887043234357}]
[]
[]
[]
[null,null,null,{"$f":"'DNSP Inputs General'!B$86","v":"North & East"}]
["DEPRECIATION AND RETURN",null,null,"Year",{"$f":"'DNSP Inputs General'!$U$2","v":"2026-06-30"}]
[]
[]
[{"$f":"'DNSP Inputs General'!B$88","v":"Reference Light"},{"$f":"'DNSP Inputs General'!D$88","v":"Price Factor"},{"$f":"'DNSP Inputs General'!A$88","v":"Existing Lights"},{"$f":"D$39","v":"WACC and Dep"},null,{"$f":"F$39","v":"Volumes"},{"$f":"G$39","v":"Unitisation - Luminaires"},null,{"$f":"I$39","v":"RAB WDV"}]
[{"$f":"'DNSP Inputs General'!B$89","v":"Mercury Vapour 80W"},{"$f":"'DNSP Inputs General'!D$89","v":1},{"$f":"'DNSP Inputs General'!A$89","v":"Mercury Vapour 80W"},{"$f":"'DNSP Inputs Capex'!$H$21","v":205},{"$f":"F264*D264","v":205},{"$f":"IF('DNSP Inputs General'!U$89=0,1/10^6,'DNSP Inputs General'!U$89)","v":1},{"$f":"IF((E$288+'Depn & WACC Post 2004 Central'!E$288)=0,0,E264/(E$288+'Depn & WACC Post 2004 Central'!E$288)*G$288)","v":30.029204919548235},{"$f":"IF(F264=0,0,G264/F264)","v":30.029204919548235},{"$f":"IF(F264=0,0,E264/(E$288+'Depn & WACC Post 2004 Central'!E$288)*I$288/F264)","v":193.11214630882861}]
[{"$f":"'DNSP Inputs General'!B$90","v":"HP Sodium 150W"},{"$f":"'DNSP Inputs General'!D$90","v":1},{"$f":"'DNSP Inputs General'!A$90","v":"HP Sodium 150W"},{"$f":"'DNSP Inputs Capex'!$H$44","v":234.07},992398.98018509464,{"$f":"IF('DNSP Inputs General'!U$90=0,1/10^6,'DNSP Inputs General'!U$90)","v":4239.7529806685807},{"$f":"IF((E$288+'Depn & WACC Post 2004 Central'!E$288)=0,0,E265/(E$288+'Depn & WACC Post 2004 Central'!E$288)*G$288)","v":145370.49920940923},34.287492661066608,{"$f":"IF(F265=0,0,E265/(E$288+'Depn & WACC Post 2004 Central'!E$288)*I$288/F265)","v":220.49639066589029}]
[{"$f":"'DNSP Inputs General'!B$91","v":"HP Sodium 250W"},{"$f":"'DNSP Inputs General'!D$91","v":1},{"$f":"'DNSP Inputs General'!A$91","v":"HP Sodium 250W"},{"$f":"'DNSP Inputs Capex'!$H$62","v":240.18},1040568.1413633674,{"$f":"IF('DNSP Inputs General'!U$91=0,1/10^6,'DNSP Inputs General'!U$91)","v":4332.4512505760986},{"$f":"IF((E$288+'Depn & WACC Post 2004 Central'!E$288)=0,0,E266/(E$288+'Depn & WACC Post 2004 Central'!E$288)*G$288)","v":152426.5070719707},35.182509451595585,{"$f":"IF(F266=0,0,E266/(E$288+'Depn & WACC Post 2004 Central'!E$288)*I$288/F266)","v":226.2520746363632}]
[{"$f":"'DNSP Inputs General'!B$92","v":"Mercury Vapour 80W"},{"$f":"'DNSP Inputs General'!D$92","v":1.48},{"$f":"'DNSP Inputs General'!A$92","v":"Mercury Vapour 50W"},{"$f":"B267*IF(A267=C264,D264,IF(A267=C265,D265,D266))","v":303.39999999999998},0,{"$f":"'DNSP Inputs General'!U$92","v":0},{"$f":"IF((E$288+'Depn & WACC Post 2004 Central'!E$288)=0,0,E267/(E$288+'Depn & WACC Post 2004 Central'!E$288)*G$288)","v":0},0,{"$f":"IF(F267=0,0,E267/(E$288+'Depn & WACC Post 2004 Central'!E$288)*I$288/F267)","v":0}]
[{"$f":"'DNSP Inputs General'!B$93","v":"Mercury Vapour 80W"},{"$f":"'DNSP Inputs General'!D$93","v":1.48},{"$f":"'DNSP Inputs General'!A$93","v":"Mercury Vapour 125W"},{"$f":"B268*IF(A268=C264,D264,IF(A268=C265,D265,D266))","v":303.39999999999998},0,{"$f":"'DNSP Inputs General'!U$93","v":0},{"$f":"IF((E$288+'Depn & WACC Post 2004 Central'!E$288)=0,0,E268/(E$288+'Depn & WACC Post 2004 Central'!E$288)*G$288)","v":0},{"$f":"IF(F268=0,0,G268/F268)","v":0},{"$f":"IF(F268=0,0,E268/(E$288+'Depn & WACC Post 2004 Central'!E$288)*I$288/F268)","v":0}]
[{"$f":"'DNSP Inputs General'!B$94","v":"HP Sodium 250W"},{"$f":"'DNSP Inputs General'!D$94","v":1.04},{"$f":"'DNSP Inputs General'!A$94","v":"Mercury Vapour 250W"},{"$f":"B269*IF(A269=C264,D264,IF(A269=C265,D265,D266))","v":249.78720000000001},0,{"$f":"'DNSP Inputs General'!U$94","v":0},{"$f":"IF((E$288+'Depn & WACC Post 2004 Central'!E$288)=0,0,E269/(E$288+'Depn & WACC Post 2004 Central'!E$288)*G$288)","v":0},0,{"$f":"IF(F269=0,0,E269/(E$288+'Depn & WACC Post 2004 Central'!E$288)*I$288/F269)","v":0}]
[{"$f":"'DNSP Inputs General'!B$95","v":"HP Sodium 250W"},{"$f":"'DNSP Inputs General'!D$95","v":1.07},{"$f":"'DNSP Inputs General'!A$95","v":"Mercury Vapour 400W"},{"$f":"B270*IF(A270=C264,D264,IF(A270=C265,D265,D266))","v":256.99260000000004},0,{"$f":"'DNSP Inputs General'!U$95","v":0},{"$f":"IF((E$288+'Depn & WACC Post 2004 Central'!E$288)=0,0,E270/(E$288+'Depn & WACC Post 2004 Central'!E$288)*G$288)","v":0},0,{"$f":"IF(F270=0,0,E270/(E$288+'Depn & WACC Post 2004 Central'!E$288)*I$288/F270)","v":0}]
[{"$f":"'DNSP Inputs General'!B$96","v":"HP Sodium 150W"},{"$f":"'DNSP Inputs General'!D$96","v":1.07},{"$f":"'DNSP Inputs General'!A$96","v":"HP Sodium 100W"},{"$f":"B271*IF(A271=C264,D264,IF(A271=C265,D265,D266))","v":250.45490000000001},74275.324610780503,{"$f":"'DNSP Inputs General'!U$96","v":296.56167481962024},{"$f":"IF((E$288+'Depn & WACC Post 2004 Central'!E$288)=0,0,E271/(E$288+'Depn & WACC Post 2004 Central'!E$288)*G$288)","v":10880.141186356544},36.687617147341271,{"$f":"IF(F271=0,0,E271/(E$288+'Depn & WACC Post 2004 Central'!E$288)*I$288/F271)","v":235.93113801250266}]
[{"$f":"'DNSP Inputs General'!B$97","v":"HP Sodium 250W"},{"$f":"'DNSP Inputs General'!D$97","v":1.42},{"$f":"'DNSP Inputs General'!A$97","v":"HP Sodium 400W"},{"$f":"B272*IF(A272=C264,D264,IF(A272=C265,D265,D266))","v":341.05559999999997},112137.48179816463,{"$f":"'DNSP Inputs General'!U$97","v":328.79531020210385},{"$f":"IF((E$288+'Depn & WACC Post 2004 Central'!E$288)=0,0,E272/(E$288+'Depn & WACC Post 2004 Central'!E$288)*G$288)","v":16426.338634532662},49.959163421265721,{"$f":"IF(F272=0,0,E272/(E$288+'Depn & WACC Post 2004 Central'!E$288)*I$288/F272)","v":321.27794598363568}]
[{"$f":"'DNSP Inputs General'!B$98","v":"Mercury Vapour 80W"},{"$f":"'DNSP Inputs General'!D$98","v":3.8044420368364027},{"$f":"'DNSP Inputs General'!A$98","v":"Metal Halide 70W"},{"$f":"B273*IF(A273=C264,D264,IF(A273=C265,D265,D266))","v":779.91061755146256},0,{"$f":"'DNSP Inputs General'!U$98","v":0},{"$f":"IF((E$288+'Depn & WACC Post 2004 Central'!E$288)=0,0,E273/(E$288+'Depn & WACC Post 2004 Central'!E$288)*G$288)","v":0},0,{"$f":"IF(F273=0,0,E273/(E$288+'Depn & WACC Post 2004 Central'!E$288)*I$288/F273)","v":0}]
[{"$f":"'DNSP Inputs General'!B$99","v":"HP Sodium 150W"},{"$f":"'DNSP Inputs General'!D$99","v":2.1180491097797653},{"$f":"'DNSP Inputs General'!A$99","v":"Metal Halide 100W"},{"$f":"B274*IF(A274=C264,D264,IF(A274=C265,D265,D266))","v":495.77175512614969},0,{"$f":"'DNSP Inputs General'!U$99","v":0},{"$f":"IF((E$288+'Depn & WACC Post 2004 Central'!E$288)=0,0,E274/(E$288+'Depn & WACC Post 2004 Central'!E$288)*G$288)","v":0},0,{"$f":"IF(F274=0,0,E274/(E$288+'Depn & WACC Post 2004 Central'!E$288)*I$288/F274)","v":0}]
[{"$f":"'DNSP Inputs General'!B$100","v":"HP Sodium 150W"},{"$f":"'DNSP Inputs General'!D$100","v":2.4062948274407225},{"$f":"'DNSP Inputs General'!A$100","v":"Metal Halide 150W"},{"$f":"B275*IF(A275=C264,D264,IF(A275=C265,D265,D266))","v":563.24143025904993},0,{"$f":"'DNSP Inputs General'!U$100","v":0},{"$f":"IF((E$288+'Depn & WACC Post 2004 Central'!E$288)=0,0,E275/(E$288+'Depn & WACC Post 2004 Central'!E$288)*G$288)","v":0},0,{"$f":"IF(F275=0,0,E275/(E$288+'Depn & WACC Post 2004 Central'!E$288)*I$288/F275)","v":0}]
[{"$f":"'DNSP Inputs General'!B$101","v":"HP Sodium 150W"},{"$f":"'DNSP Inputs General'!D$101","v":0.45472955868703063},{"$f":"'DNSP Inputs General'!A$101","v":"HP Sodium 50W"},{"$f":"B276*IF(A276=C264,D264,IF(A276=C265,D265,D266))","v":106.43854780187326},0,{"$f":"'DNSP Inputs General'!U$101","v":0},{"$f":"IF((E$288+'Depn & WACC Post 2004 Central'!E$288)=0,0,E276/(E$288+'Depn & WACC Post 2004 Central'!E$288)*G$288)","v":0},0,{"$f":"IF(F276=0,0,E276/(E$288+'Depn & WACC Post 2004 Central'!E$288)*I$288/F276)","v":0}]
[]
[]
[]
[]
[]
[]
[]
[]
[]
[]
[]
[null,null,null,null,{"$f":"SUM(E264:E287)","v":2219584.9279574072},{"$f":"SUM(F264:F287)","v":9198.5612162664038},{"$f":"'Total RAB'!X$134","v":1056904.3334277405},{"$f":"SUMPRODUCT(F264:F287,H264:H287)","v":325133.51530718867},{"$f":"'Total RAB'!X$128","v":6796752.1890154444}]
[null,null,null,"Check",{"$f":"SUM(F289:I289)","v":9.3132257461547852E-10},{"$f":"ABS('DNSP Inputs General'!U$113-F288)","v":0},{"$f":"ABS(G288-SUM(G264:G287)-SUM('Depn & WACC Post 2004 Central'!G264:G287))*IF(F288=0,0,1)","v":0},{"$f":"ABS(H288+'Depn & WACC Post 2004 Central'!H288-G288)*IF(F288=0,0,1)","v":0},{"$f":"ABS(I288-SUMPRODUCT(F264:F287,I264:I287)-SUMPRODUCT('Depn & WACC Post 2004 Central'!F264:F287,'Depn & WACC Post 2004 Central'!I264:I287))*IF(F288=0,0,1)","v":9.3132257461547852E-10}]
[]
[]
[{"$f":"'DNSP Inputs General'!A$115","v":"Energy Efficient Lights"},{"$f":"'DNSP Inputs General'!D$115","v":"Price Factor"},{"$f":"'DNSP Inputs General'!A$115","v":"Energy Efficient Lights"},{"$f":"D$68","v":"Unit cost"},null,{"$f":"F$68","v":"Volumes"},{"$f":"G$68","v":"Unitisation - Luminaires & Ballasts"}]
[{"$f":"'DNSP Inputs General'!B$116","v":"T5 2X14W"},{"$f":"'DNSP Inputs General'!D$116","v":1},{"$f":"'DNSP Inputs General'!A$116","v":"T5 2X14W"},{"$f":"'DNSP Inputs O & M'!$H$189","v":260.27999999999997},{"$f":"F293*D293","v":1848916.5818748181},{"$f":"'DNSP Inputs General'!U$116","v":7103.567626689789},{"$f":"IF((E$306+'Depn & WACC Post 2004 Central'!E$306)=0,0,E293/(E$306+'Depn & WACC Post 2004 Central'!E$306)*G$306)","v":84165.873178614347},{"$f":"IF(F293=0,0,G293/F293)","v":11.848394722446676}]
[{"$f":"'DNSP Inputs General'!B$117","v":"T5 2X24W"},{"$f":"'DNSP Inputs General'!D$117","v":1},{"$f":"'DNSP Inputs General'!A$117","v":"T5 2X24W"},{"$f":"'DNSP Inputs O & M'!$H$238","v":267.33},{"$f":"F294*D294","v":272676.59999999998},{"$f":"'DNSP Inputs General'!U$117","v":1020},{"$f":"IF((E$306+'Depn & WACC Post 2004 Central'!E$306)=0,0,E294/(E$306+'Depn & WACC Post 2004 Central'!E$306)*G$306)","v":12412.709345223233},{"$f":"IF(F294=0,0,G294/F294)","v":12.169322887473758}]
[{"$f":"'DNSP Inputs General'!B$118","v":"LED 18W"},{"$f":"'DNSP Inputs General'!D$118","v":1},{"$f":"'DNSP Inputs General'!A$118","v":"LED 18W"},{"$f":"'DNSP Inputs O & M'!$H$286","v":205},{"$f":"F295*D295","v":5752257.1800541729},{"$f":"'DNSP Inputs General'!U$118","v":28059.791122215476},{"$f":"IF((E$306+'Depn & WACC Post 2004 Central'!E$306)=0,0,E295/(E$306+'Depn & WACC Post 2004 Central'!E$306)*G$306)","v":261852.67256151015},{"$f":"IF(F295=0,0,G295/F295)","v":9.3319537348300621}]
[{"$f":"'DNSP Inputs General'!B$119","v":"LED 14W"},{"$f":"'DNSP Inputs General'!D$119","v":1},{"$f":"'DNSP Inputs General'!A$119","v":"LED 14W"},{"$f":"'DNSP Inputs O & M'!$H$332","v":205},197391.05967130527,{"$f":"'DNSP Inputs General'!U$119","v":962.88321790880616},{"$f":"IF((E$306+'Depn & WACC Post 2004 Central'!E$306)=0,0,E296/(E$306+'Depn & WACC Post 2004 Central'!E$306)*G$306)","v":8985.5816415692734},{"$f":"IF(F296=0,0,G296/F296)","v":9.3319537348300639}]
[{"$f":"'DNSP Inputs General'!B$120","v":"LED 70W-125W (L1)"},{"$f":"'DNSP Inputs General'!D$120","v":1},{"$f":"'DNSP Inputs General'!A$120","v":"LED 70W-125W (L1)"},{"$f":"'DNSP Inputs O & M'!$H$378","v":402},286953.99531739752,{"$f":"'DNSP Inputs General'!U$120","v":713.81590874974506},{"$f":"IF((E$306+'Depn & WACC Post 2004 Central'!E$306)=0,0,E297/(E$306+'Depn & WACC Post 2004 Central'!E$306)*G$306)","v":13062.641016227299},18.299733665374074]
[{"$f":"'DNSP Inputs General'!B$121","v":"LED 155W-250W (L2)"},{"$f":"'DNSP Inputs General'!D$121","v":1},{"$f":"'DNSP Inputs General'!A$121","v":"LED 155W-250W (L2)"},{"$f":"'DNSP Inputs O & M'!$H$424","v":427},792316.32091579027,{"$f":"'DNSP Inputs General'!U$121","v":1855.5417351657852},{"$f":"IF((E$306+'Depn & WACC Post 2004 Central'!E$306)=0,0,E298/(E$306+'Depn & WACC Post 2004 Central'!E$306)*G$306)","v":36067.606098228898},19.437776803767985]
[{"$f":"'DNSP Inputs General'!B$122","v":"LED 275W-400W (L4)"},{"$f":"'DNSP Inputs General'!D$122","v":1},{"$f":"'DNSP Inputs General'!A$122","v":"LED 275W-400W (L4)"},{"$f":"'DNSP Inputs O & M'!$H$470","v":650.88},80718.688912367928,{"$f":"'DNSP Inputs General'!U$122","v":124.01470150007364},{"$f":"IF((E$306+'Depn & WACC Post 2004 Central'!E$306)=0,0,E299/(E$306+'Depn & WACC Post 2004 Central'!E$306)*G$306)","v":3674.4540022749165},29.629180716713126]
[{"$f":"'DNSP Inputs General'!B$123","v":"T5 2X14W"},{"$f":"'DNSP Inputs General'!D$123","v":0.87960989252886512},{"$f":"'DNSP Inputs General'!A$123","v":"Compact Fluorescent 32W"},{"$f":"D293*B300","v":228.94486282741298},156100.80058901708,{"$f":"'DNSP Inputs General'!U$123","v":681.82705067591576},{"$f":"IF((E$306+'Depn & WACC Post 2004 Central'!E$306)=0,0,E300/(E$306+'Depn & WACC Post 2004 Central'!E$306)*G$306)","v":7105.9778003250767},10.42196520845089]
[{"$f":"'DNSP Inputs General'!B$124","v":"T5 2X14W"},{"$f":"'DNSP Inputs General'!D$124","v":0.87960989252886512},{"$f":"'DNSP Inputs General'!A$124","v":"Compact Fluorescent 42W"},{"$f":"D293*B301","v":228.94486282741298},628417.43572723842,{"$f":"'DNSP Inputs General'!U$124","v":2744.8418277066235},{"$f":"IF((E$306+'Depn & WACC Post 2004 Central'!E$306)=0,0,E301/(E$306+'Depn & WACC Post 2004 Central'!E$306)*G$306)","v":28606.646031059186},10.421965208450892]
[{"$f":"'DNSP Inputs General'!B$125","v":"Smart lighting L1"},{"$f":"'DNSP Inputs General'!D$125","v":1},{"$f":"'DNSP Inputs General'!A$125","v":"Smart lighting L1"},{"$f":"'DNSP Inputs O & M'!$H$517","v":402},282179.9119012297,{"$f":"'DNSP Inputs General'!U$125","v":701.94007935629281},{"$f":"IF((E$306+'Depn & WACC Post 2004 Central'!E$306)=0,0,E302/(E$306+'Depn & WACC Post 2004 Central'!E$306)*G$306)","v":12845.3165012717},{"$f":"IF(F302=0,0,G302/F302)","v":18.299733665374074}]
[{"$f":"'DNSP Inputs General'!B$126","v":"Smart lighting L2"},{"$f":"'DNSP Inputs General'!D$126","v":1},{"$f":"'DNSP Inputs General'!A$126","v":"Smart lighting L2"},{"$f":"'DNSP Inputs O & M'!$H$561","v":427},791536.17027717433,{"$f":"'DNSP Inputs General'!U$126","v":1853.7146844898696},{"$f":"IF((E$306+'Depn & WACC Post 2004 Central'!E$306)=0,0,E303/(E$306+'Depn & WACC Post 2004 Central'!E$306)*G$306)","v":36032.092294981274},19.437776803767985]
[{"$f":"'DNSP Inputs General'!B$127","v":"Smart lighting L4"},{"$f":"'DNSP Inputs General'!D$127","v":1},{"$f":"'DNSP Inputs General'!A$127","v":"Smart lighting L4"},{"$f":"'DNSP Inputs O & M'!$H$605","v":650.88},80718.688912367928,{"$f":"'DNSP Inputs General'!U$127","v":124.01470150007364},{"$f":"IF((E$306+'Depn & WACC Post 2004 Central'!E$306)=0,0,E304/(E$306+'Depn & WACC Post 2004 Central'!E$306)*G$306)","v":3674.4540022749165},29.629180716713126]
[]
[null,null,null,null,{"$f":"SUM(E293:E305)","v":11170183.434152881},{"$f":"SUM(F293:F305)","v":45945.952655958463},{"$f":"'Total RAB'!X$149","v":1711788.6484848098},{"$f":"SUMPRODUCT(F293:F305,H293:H305)","v":508486.02447356028}]
[null,null,null,"Check",{"$f":"SUM(F307:I307)","v":0},{"$f":"ABS('DNSP Inputs General'!U$128-F306)","v":0},{"$f":"ABS(G306-SUM(G293:G305)-SUM('Depn & WACC Post 2004 Central'!G293:G305))","v":0},{"$f":"ABS(H306+'Depn & WACC Post 2004 Central'!H306-G306)","v":0}]
[]
[]
[null,null,{"$f":"'RAB 2001 to 2004 Central'!A$27","v":"Poles & Brackets"},{"$f":"D$86","v":"Weighted Average Volumes"},null,null,{"$f":"G$86","v":"Unitisation Poles & Brackets"}]
[null,null,"Total Poles & Brackets",{"$f":"'DNSP Inputs General'!$D$89*F264","v":1},{"$f":"SUMPRODUCT('DNSP Inputs General'!$D$89:$D$110,'DNSP Inputs General'!U$89:U$110)+SUMPRODUCT('DNSP Inputs General'!$D$116:$D$127,'DNSP Inputs General'!U$116:U$127)","v":54890.83018521066},{"$f":"IF(E311=0,0,D311/E311*G311)","v":14.259828102280833},{"$f":"'Total RAB'!X$119-'Depn & WACC Post 2004 Central'!G$311","v":782733.80283259205},{"$f":"F311/F264","v":14.259828102280833}]

{"sheet":"Total RAB","index":14,"n_rows":162,"n_cols":24,"rows_kept":162,"cut":false,"hidden":false,"merged":[]}
[{"$f":"'DNSP Inputs O & M'!$A$3","v":"AusNet"},null,null,null,"Check",{"$f":"SUM(B162)","v":3.166496753692627E-8}]
[]
["Total Public Lighting RAB"]
["Historical cost ($)"]
[]
[null,"Life (years)",2005,2006,2007,2008,2009,2010,2011,2012,2013,2014,2015,2016,2017,2018,2019,2020,{"$f":"'DNSP Inputs General'!P2","v":"HY2021"},{"$f":"'DNSP Inputs General'!Q2","v":"2022-06-30"},{"$f":"'DNSP Inputs General'!R2","v":"2023-06-30"},{"$f":"'DNSP Inputs General'!S2","v":"2024-06-30"},{"$f":"'DNSP Inputs General'!T2","v":"2025-06-30"},{"$f":"'DNSP Inputs General'!U2","v":"2026-06-30"}]
[]
["Capital Expenditure (Nominal $)"]
["(Net of customer contributions)"]
[]
["Poles and Brackets",{"$f":"'DNSP Inputs O & M'!$C$160","v":35},382620.48073362443,679083.51279141498,342454.50012480229,822296.52427371382,{"$f":"'DNSP Inputs General'!D6","v":945891.23557411402},{"$f":"'DNSP Inputs General'!E6","v":957809.46514234785},{"$f":"'DNSP Inputs General'!F6","v":880178.8893283339},{"$f":"'DNSP Inputs General'!G6","v":925158.84987236292},{"$f":"'DNSP Inputs General'!H6","v":998447.23143259203},{"$f":"'DNSP Inputs General'!I6","v":775787.61765560566},{"$f":"'DNSP Inputs General'!J6","v":1086336.9712855413},{"$f":"'DNSP Inputs General'!K6","v":1960186},{"$f":"'DNSP Inputs General'!L6","v":3550606.6064872313},{"$f":"'DNSP Inputs General'!M6","v":4528111},{"$f":"'DNSP Inputs General'!N6","v":1787545},{"$f":"'DNSP Inputs General'!O6","v":2317131.1779765785},{"$f":"'DNSP Inputs General'!P6","v":1181527.8287529736},{"$f":"'DNSP Inputs General'!Q6*T$20","v":2359926.8747504083},{"$f":"'DNSP Inputs General'!R6*U$20","v":2412949.7736504846},{"$f":"'DNSP Inputs General'!S6*V$20","v":2466732.7177194422},{"$f":"'DNSP Inputs General'!T6*W$20","v":2522808.8659788975},{"$f":"'DNSP Inputs General'!U6*X$20","v":2582137.978346901}]
[]
["Existing Lights"]
["Luminaires",{"$f":"'DNSP Inputs O & M'!$C$24","v":20},181379.51926637554,321916.48720858502,162405.4206197157,389965.41978608596,{"$f":"'DNSP Inputs General'!D9","v":448491.44047919766},{"$f":"'DNSP Inputs General'!E9","v":418018.41375785205},{"$f":"'DNSP Inputs General'!F9","v":-892269.53277506784},{"$f":"'DNSP Inputs General'!G9","v":258757.31488222803},{"$f":"'DNSP Inputs General'!H9","v":398955.56933179055},{"$f":"'DNSP Inputs General'!I9","v":829176.38234439434},{"$f":"'DNSP Inputs General'!J9","v":1161608.1294883217},{"$f":"'DNSP Inputs General'!K9","v":3323078},{"$f":"'DNSP Inputs General'!L9","v":3418777},{"$f":"'DNSP Inputs General'!M9","v":1644455},{"$f":"'DNSP Inputs General'!N9","v":1417144.999184818},{"$f":"'DNSP Inputs General'!O9","v":442221.25990150566},{"$f":"'DNSP Inputs General'!P9","v":0},{"$f":"'DNSP Inputs General'!Q9*T$20","v":0},{"$f":"'DNSP Inputs General'!R9*U$20","v":0},{"$f":"'DNSP Inputs General'!S9*V$20","v":0},{"$f":"'DNSP Inputs General'!T9*W$20","v":0},{"$f":"'DNSP Inputs General'!U9*X$20","v":0}]
[]
["Energy Efficient Lights"]
["Luminaires and Ballasts",{"$f":"'DNSP Inputs O & M'!$C$182","v":20},null,null,null,null,{"$f":"'DNSP Inputs General'!D12","v":0},{"$f":"'DNSP Inputs General'!E12","v":1941138.4570565673},{"$f":"'DNSP Inputs General'!F12","v":0},{"$f":"'DNSP Inputs General'!G12","v":0},{"$f":"'DNSP Inputs General'!H12","v":0},{"$f":"'DNSP Inputs General'!I12","v":0},{"$f":"'DNSP Inputs General'!J12","v":0},{"$f":"'DNSP Inputs General'!K12","v":0},{"$f":"'DNSP Inputs General'!L12","v":0},{"$f":"'DNSP Inputs General'!M12","v":483844},{"$f":"'DNSP Inputs General'!N12","v":638979},{"$f":"'DNSP Inputs General'!O12","v":640010.64768795366},{"$f":"'DNSP Inputs General'!P12","v":2682244.4062899249},{"$f":"'DNSP Inputs General'!Q12*T$20","v":2820103.1579313353},{"$f":"'DNSP Inputs General'!R12*U$20","v":3080118.9115953888},{"$f":"'DNSP Inputs General'!S12*V$20","v":3098596.0378955207},{"$f":"'DNSP Inputs General'!T12*W$20","v":3115436.9652187731},{"$f":"'DNSP Inputs General'!U12*X$20","v":1304756.0383812287}]
[]
[]
["CPI Index",null,null,null,null,null,null,null,null,null,null,null,null,null,null,null,null,null,1,{"$f":"S20*(1+WACC!E$6)","v":1.0199938725048476},{"$f":"T20*(1+WACC!F$6)","v":1.0403874999474354},{"$f":"U20*(1+WACC!G$6)","v":1.0611888749770215},{"$f":"V20*(1+WACC!H$6)","v":1.0824061500468747},{"$f":"W20*(1+WACC!I$6)","v":1.1040476406093749}]
[]
["Year counter",null,0.5,{"$f":"C22+1","v":1.5},{"$f":"D22+1","v":2.5},3.5,4.5,5.5,6.5,7.5,8.5,9.5,10.5,11.5,12.5,13.5,14.5,15.5,{"$f":"R22+0.5","v":16},17,18,19,20,21]
["Depreciation",null,{"$f":"$C$6","v":2005},{"$f":"$D$6","v":2006},{"$f":"$E$6","v":2007},{"$f":"$F$6","v":2008},{"$f":"G$6","v":2009},{"$f":"H$6","v":2010},2011,2012,2013,2014,2015,2016,2017,2018,2019,2020,"HY2021","2022-06-30","2023-06-30","2024-06-30","2025-06-30","2026-06-30"]
[{"$f":"$A$11","v":"Poles and Brackets"}]
["RAB 2001-04",null,{"$f":"SUM('RAB 2001 to 2004 Central'!F114,'RAB 2001 to 2004 N & E'!F114)","v":138807.09768723094},{"$f":"SUM('RAB 2001 to 2004 Central'!G114,'RAB 2001 to 2004 N & E'!G114)","v":138807.09768723094},{"$f":"SUM('RAB 2001 to 2004 Central'!H114,'RAB 2001 to 2004 N & E'!H114)","v":138807.09768723094},{"$f":"SUM('RAB 2001 to 2004 Central'!I114,'RAB 2001 to 2004 N & E'!I114)","v":138807.09768723094},{"$f":"SUM('RAB 2001 to 2004 Central'!J114,'RAB 2001 to 2004 N & E'!J114)","v":138807.09768723094},{"$f":"SUM('RAB 2001 to 2004 Central'!K114,'RAB 2001 to 2004 N & E'!K114)","v":138807.09768723094},{"$f":"SUM('RAB 2001 to 2004 Central'!L114,'RAB 2001 to 2004 N & E'!L114)","v":138807.09768723094},{"$f":"SUM('RAB 2001 to 2004 Central'!M114,'RAB 2001 to 2004 N & E'!M114)","v":138807.09768723094},{"$f":"SUM('RAB 2001 to 2004 Central'!N114,'RAB 2001 to 2004 N & E'!N114)","v":138807.09768723094},{"$f":"SUM('RAB 2001 to 2004 Central'!O114,'RAB 2001 to 2004 N & E'!O114)","v":138807.09768723094},{"$f":"SUM('RAB 2001 to 2004 Central'!P114,'RAB 2001 to 2004 N & E'!P114)","v":138807.09768723094},{"$f":"SUM('RAB 2001 to 2004 Central'!Q114,'RAB 2001 to 2004 N & E'!Q114)","v":138807.09768723094},{"$f":"SUM('RAB 2001 to 2004 Central'!R114,'RAB 2001 to 2004 N & E'!R114)","v":138807.09768723094},{"$f":"SUM('RAB 2001 to 2004 Central'!S114,'RAB 2001 to 2004 N & E'!S114)","v":138807.09768723094},{"$f":"SUM('RAB 2001 to 2004 Central'!T114,'RAB 2001 to 2004 N & E'!T114)","v":138807.09768723094},{"$f":"SUM('RAB 2001 to 2004 Central'!U114,'RAB 2001 to 2004 N & E'!U114)","v":138807.09768723094},{"$f":"SUM('RAB 2001 to 2004 Central'!V114,'RAB 2001 to 2004 N & E'!V114)","v":69403.54884361547},{"$f":"SUM('RAB 2001 to 2004 Central'!W114,'RAB 2001 to 2004 N & E'!W114)","v":138807.09768723094},{"$f":"SUM('RAB 2001 to 2004 Central'!X114,'RAB 2001 to 2004 N & E'!X114)","v":138807.09768723094},{"$f":"SUM('RAB 2001 to 2004 Central'!Y114,'RAB 2001 to 2004 N & E'!Y114)","v":138807.09768723094},{"$f":"SUM('RAB 2001 to 2004 Central'!Z114,'RAB 2001 to 2004 N & E'!Z114)","v":138807.09768723094},{"$f":"SUM('RAB 2001 to 2004 Central'!AA114,'RAB 2001 to 2004 N & E'!AA114)","v":138807.09768723094}]
["Depn Capex 2005",null,{"$f":"C$11/$B$11/2","v":5466.0068676232058},{"$f":"C26*2","v":10932.013735246412},{"$f":"D26","v":10932.013735246412},10932.013735246412,10932.013735246412,10932.013735246412,10932.013735246412,10932.013735246412,10932.013735246412,10932.013735246412,{"$f":"L26","v":10932.013735246412},{"$f":"M26","v":10932.013735246412},{"$f":"N26","v":10932.013735246412},{"$f":"O26","v":10932.013735246412},{"$f":"P26","v":10932.013735246412},{"$f":"Q26","v":10932.013735246412},{"$f":"R26*0.5","v":5466.0068676232058},{"$f":"S26*2","v":10932.013735246412},{"$f":"T26","v":10932.013735246412},{"$f":"U26","v":10932.013735246412},{"$f":"V26","v":10932.013735246412},{"$f":"W26","v":10932.013735246412}]
["Depn Capex 2006",null,null,{"$f":"D$11/$B$11/2","v":9701.1930398773566},{"$f":"D27*2","v":19402.386079754713},{"$f":"E27","v":19402.386079754713},19402.386079754713,19402.386079754713,19402.386079754713,19402.386079754713,19402.386079754713,19402.386079754713,19402.386079754713,19402.386079754713,19402.386079754713,19402.386079754713,19402.386079754713,19402.386079754713,{"$f":"R27*0.5","v":9701.1930398773566},{"$f":"S27*2","v":19402.386079754713},19402.386079754713,19402.386079754713,19402.386079754713,19402.386079754713]
["Depn Capex 2007",null,null,null,{"$f":"E$11/$B$11/2","v":4892.2071446400323},{"$f":"E28*2","v":9784.4142892800646},{"$f":"F28","v":9784.4142892800646},9784.4142892800646,9784.4142892800646,9784.4142892800646,9784.4142892800646,9784.4142892800646,9784.4142892800646,9784.4142892800646,9784.4142892800646,9784.4142892800646,9784.4142892800646,9784.4142892800646,4892.2071446400323,9784.4142892800646,9784.4142892800646,9784.4142892800646,9784.4142892800646,9784.4142892800646]
["Depn Capex 2008",null,null,null,null,{"$f":"F$11/$B$11/2","v":11747.093203910197},{"$f":"F29*2","v":23494.186407820394},{"$f":"G29","v":23494.186407820394},23494.186407820394,23494.186407820394,23494.186407820394,23494.186407820394,23494.186407820394,23494.186407820394,23494.186407820394,23494.186407820394,23494.186407820394,23494.186407820394,11747.093203910197,23494.186407820394,23494.186407820394,23494.186407820394,23494.186407820394,23494.186407820394]
["Depn Capex 2009",null,null,null,null,null,{"$f":"G$11/$B$11/2","v":13512.731936773058},{"$f":"G30*2","v":27025.463873546116},{"$f":"H30","v":27025.463873546116},{"$f":"I30","v":27025.463873546116},{"$f":"J30","v":27025.463873546116},{"$f":"K30","v":27025.463873546116},27025.463873546116,27025.463873546116,27025.463873546116,27025.463873546116,27025.463873546116,27025.463873546116,13512.731936773058,27025.463873546116,27025.463873546116,27025.463873546116,27025.463873546116,27025.463873546116]
["Depn Capex 2010",null,null,null,null,null,null,{"$f":"H$11/$B$11/2","v":13682.992359176398},{"$f":"H31*2","v":27365.984718352796},{"$f":"I31","v":27365.984718352796},{"$f":"J31","v":27365.984718352796},{"$f":"K31","v":27365.984718352796},27365.984718352796,27365.984718352796,27365.984718352796,27365.984718352796,27365.984718352796,27365.984718352796,13682.992359176398,27365.984718352796,27365.984718352796,27365.984718352796,27365.984718352796,27365.984718352796]
["Depn Capex 2011",null,null,null,null,null,null,null,{"$f":"I$11/$B$11/2","v":12573.984133261913},{"$f":"I32*2","v":25147.968266523825},{"$f":"J32","v":25147.968266523825},{"$f":"K32","v":25147.968266523825},25147.968266523825,25147.968266523825,25147.968266523825,25147.968266523825,25147.968266523825,25147.968266523825,12573.984133261913,25147.968266523825,25147.968266523825,25147.968266523825,25147.968266523825,25147.968266523825]
["Depn Capex 2012",null,null,null,null,null,null,null,null,{"$f":"J$11/$B$11/2","v":13216.554998176613},{"$f":"J33*2","v":26433.109996353225},{"$f":"K33","v":26433.109996353225},{"$f":"L33","v":26433.109996353225},26433.109996353225,26433.109996353225,26433.109996353225,26433.109996353225,26433.109996353225,13216.554998176613,26433.109996353225,{"$f":"T33","v":26433.109996353225},26433.109996353225,26433.109996353225,26433.109996353225]
["Depn Capex 2013",null,null,null,null,null,null,null,null,null,{"$f":"K$11/$B$11/2","v":14263.531877608457},{"$f":"K34*2","v":28527.063755216914},28527.063755216914,28527.063755216914,28527.063755216914,28527.063755216914,28527.063755216914,28527.063755216914,14263.531877608457,28527.063755216914,{"$f":"T34","v":28527.063755216914},28527.063755216914,28527.063755216914,28527.063755216914]
["Depn Capex 2014",null,null,null,null,null,null,null,null,null,null,{"$f":"L$11/$B$11/2","v":11082.680252222937},{"$f":"L35*2","v":22165.360504445875},22165.360504445875,22165.360504445875,22165.360504445875,22165.360504445875,22165.360504445875,11082.680252222937,22165.360504445875,{"$f":"T35","v":22165.360504445875},22165.360504445875,22165.360504445875,22165.360504445875]
["Depn Capex 2015",null,null,null,null,null,null,null,null,null,null,null,{"$f":"M$11/$B$11/2","v":15519.099589793448},{"$f":"M36*2","v":31038.199179586896},31038.199179586896,31038.199179586896,31038.199179586896,31038.199179586896,15519.099589793448,31038.199179586896,{"$f":"T36","v":31038.199179586896},31038.199179586896,31038.199179586896,31038.199179586896]
["Depn Capex 2016",null,null,null,null,null,null,null,null,null,null,null,null,{"$f":"N$11/$B$11/2","v":28002.657142857144},{"$f":"N37*2","v":56005.314285714288},56005.314285714288,56005.314285714288,56005.314285714288,28002.657142857144,56005.314285714288,{"$f":"T37","v":56005.314285714288},56005.314285714288,56005.314285714288,56005.314285714288]
["Depn Capex 2017",null,null,null,null,null,null,null,null,null,null,null,null,null,{"$f":"O$11/$B$11/2","v":50722.951521246163},{"$f":"O38*2","v":101445.90304249233},101445.90304249233,101445.90304249233,50722.951521246163,101445.90304249233,{"$f":"T38","v":101445.90304249233},101445.90304249233,101445.90304249233,101445.90304249233]
["Depn Capex 2018",null,null,null,null,null,null,null,null,null,null,null,null,null,null,{"$f":"P$11/$B$11/2","v":64687.3},{"$f":"P39*2","v":129374.6},129374.6,64687.3,129374.6,{"$f":"T39","v":129374.6},129374.6,129374.6,129374.6]
["Depn Capex 2019",null,null,null,null,null,null,null,null,null,null,null,null,null,null,null,{"$f":"Q$11/$B$11/2","v":25536.357142857141},{"$f":"Q40*2","v":51072.714285714283},25536.357142857141,51072.714285714283,{"$f":"T40","v":51072.714285714283},51072.714285714283,51072.714285714283,51072.714285714283]
["Depn Capex 2020",null,null,null,null,null,null,null,null,null,null,null,null,null,null,null,null,{"$f":"R$11/$B$11/2","v":33101.873971093977},{"$f":"R41*2*0.5","v":33101.873971093977},66203.747942187954,{"$f":"T41","v":66203.747942187954},66203.747942187954,66203.747942187954,66203.747942187954]
["Depn Capex HY2021",null,null,null,null,null,null,null,null,null,null,null,null,null,null,null,null,null,{"$f":"S$11/$B$11/2*0.5","v":8439.4844910926677},{"$f":"S42*2*2","v":33757.937964370671},{"$f":"T42","v":33757.937964370671},33757.937964370671,33757.937964370671,33757.937964370671]
["Depn Capex 2021-22",null,null,null,null,null,null,null,null,null,null,null,null,null,null,null,null,null,null,{"$f":"T$11/$B$11/2","v":33713.241067862975},{"$f":"T43*2","v":67426.48213572595},67426.48213572595,{"$f":"V43","v":67426.48213572595},67426.48213572595]
["Depn Capex 2022-23",null,null,null,null,null,null,null,null,null,null,null,null,null,null,null,null,null,null,null,{"$f":"U$11/$B$11/2","v":34470.711052149782},{"$f":"U44*2","v":68941.422104299563},{"$f":"V44","v":68941.422104299563},68941.422104299563]
["Depn Capex 2023-24",null,null,null,null,null,null,null,null,null,null,null,null,null,null,null,null,null,null,null,null,{"$f":"V$11/$B$11/2","v":35239.03882456346},{"$f":"V45*2","v":70478.077649126921},70478.077649126921]
["Depn Capex 2024-25",null,null,null,null,null,null,null,null,null,null,null,null,null,null,null,null,null,null,null,null,null,{"$f":"W$11/$B$11/2","v":36040.126656841392},{"$f":"W46*2","v":72080.253313682784}]
["Depn Capex 2025-26",null,null,null,null,null,null,null,null,null,null,null,null,null,null,null,null,null,null,null,null,null,null,{"$f":"X$11/$B$11/2","v":36887.68540495573}]
["Total Depreciation",null,{"$f":"SUM(C25:C41)","v":144273.10455485416},{"$f":"SUM(D25:D41)","v":159440.30446235472},{"$f":"SUM(E25:E47)","v":174033.70464687209},{"$f":"SUM(F25:F47)","v":190673.00499542232},215932.83013610559,243128.55443205504,269385.53092449333,295176.07005593192,322656.15693171695,348002.36906154832,374604.14890356467,418125.90563621529,496851.51430031861,612261.76582156483,702485.42296442192,761123.6540783731,405552.24851582618,861696.70708170068,929880.6592017134,999590.40907842666,1070869.5745598315,1143797.3866216284]
[]
[{"$f":"$A$13","v":"Existing Lights"}]
[{"$f":"$A$14","v":"Luminaires"}]
[{"$f":"A25","v":"RAB 2001-04"},null,{"$f":"SUM('RAB 2001 to 2004 Central'!F77,'RAB 2001 to 2004 N & E'!F77)","v":289293.14017705631},{"$f":"SUM('RAB 2001 to 2004 Central'!G77,'RAB 2001 to 2004 N & E'!G77)","v":289293.14017705631},{"$f":"SUM('RAB 2001 to 2004 Central'!H77,'RAB 2001 to 2004 N & E'!H77)","v":289293.14017705631},{"$f":"SUM('RAB 2001 to 2004 Central'!I77,'RAB 2001 to 2004 N & E'!I77)","v":289293.14017705631},{"$f":"SUM('RAB 2001 to 2004 Central'!J77,'RAB 2001 to 2004 N & E'!J77)","v":289293.14017705631},{"$f":"SUM('RAB 2001 to 2004 Central'!K77,'RAB 2001 to 2004 N & E'!K77)","v":289293.14017705631},{"$f":"SUM('RAB 2001 to 2004 Central'!L77,'RAB 2001 to 2004 N & E'!L77)","v":289293.14017705631},{"$f":"SUM('RAB 2001 to 2004 Central'!M77,'RAB 2001 to 2004 N & E'!M77)","v":289293.14017705631},{"$f":"SUM('RAB 2001 to 2004 Central'!N77,'RAB 2001 to 2004 N & E'!N77)","v":289293.14017705631},{"$f":"SUM('RAB 2001 to 2004 Central'!O77,'RAB 2001 to 2004 N & E'!O77)","v":289293.14017705631},{"$f":"SUM('RAB 2001 to 2004 Central'!P77,'RAB 2001 to 2004 N & E'!P77)","v":289293.14017705631},{"$f":"SUM('RAB 2001 to 2004 Central'!Q77,'RAB 2001 to 2004 N & E'!Q77)","v":289293.14017705631},{"$f":"SUM('RAB 2001 to 2004 Central'!R77,'RAB 2001 to 2004 N & E'!R77)","v":289293.14017705631},{"$f":"SUM('RAB 2001 to 2004 Central'!S77,'RAB 2001 to 2004 N & E'!S77)","v":289293.14017705631},{"$f":"SUM('RAB 2001 to 2004 Central'!T77,'RAB 2001 to 2004 N & E'!T77)","v":289293.14017705631},{"$f":"SUM('RAB 2001 to 2004 Central'!U77,'RAB 2001 to 2004 N & E'!U77)","v":289293.14017705631},{"$f":"SUM('RAB 2001 to 2004 Central'!V77,'RAB 2001 to 2004 N & E'!V77)","v":144646.57008852815},{"$f":"SUM('RAB 2001 to 2004 Central'!W77,'RAB 2001 to 2004 N & E'!W77)","v":289293.14017705631},{"$f":"SUM('RAB 2001 to 2004 Central'!X77,'RAB 2001 to 2004 N & E'!X77)","v":144646.57008852815},{"$f":"SUM('RAB 2001 to 2004 Central'!Y77,'RAB 2001 to 2004 N & E'!Y77)","v":0},{"$f":"SUM('RAB 2001 to 2004 Central'!Z77,'RAB 2001 to 2004 N & E'!Z77)","v":0},{"$f":"SUM('RAB 2001 to 2004 Central'!AA77,'RAB 2001 to 2004 N & E'!AA77)","v":0}]
[{"$f":"A26","v":"Depn Capex 2005"},null,{"$f":"C$14/$B$14/2","v":4534.4879816593884},{"$f":"C53*2","v":9068.9759633187768},{"$f":"D53","v":9068.9759633187768},9068.9759633187768,9068.9759633187768,9068.9759633187768,9068.9759633187768,9068.9759633187768,9068.9759633187768,9068.9759633187768,{"$f":"L53","v":9068.9759633187768},{"$f":"M53","v":9068.9759633187768},{"$f":"N53","v":9068.9759633187768},{"$f":"O53","v":9068.9759633187768},{"$f":"P53","v":9068.9759633187768},{"$f":"Q53","v":9068.9759633187768},{"$f":"R53*0.5","v":4534.4879816593884},{"$f":"S53*2","v":9068.9759633187768},{"$f":"T53","v":9068.9759633187768},{"$f":"U53","v":9068.9759633187768},{"$f":"V53","v":9068.9759633187768},{"$f":"W53","v":9068.9759633187768}]
["Depn Capex 2006",null,null,{"$f":"D$14/$B$14/2","v":8047.9121802146256},{"$f":"D54*2","v":16095.824360429251},{"$f":"E54","v":16095.824360429251},16095.824360429251,16095.824360429251,16095.824360429251,16095.824360429251,16095.824360429251,16095.824360429251,16095.824360429251,16095.824360429251,16095.824360429251,16095.824360429251,16095.824360429251,16095.824360429251,{"$f":"R54*0.5","v":8047.9121802146256},{"$f":"S54*2","v":16095.824360429251},16095.824360429251,16095.824360429251,16095.824360429251,16095.824360429251]
["Depn Capex 2007",null,null,null,{"$f":"E$14/$B$14/2","v":4060.1355154928924},{"$f":"E55*2","v":8120.2710309857848},{"$f":"F55","v":8120.2710309857848},8120.2710309857848,8120.2710309857848,8120.2710309857848,8120.2710309857848,8120.2710309857848,8120.2710309857848,8120.2710309857848,8120.2710309857848,8120.2710309857848,8120.2710309857848,8120.2710309857848,4060.1355154928924,8120.2710309857848,8120.2710309857848,8120.2710309857848,8120.2710309857848,8120.2710309857848]
["Depn Capex 2008",null,null,null,null,{"$f":"F$14/$B$14/2","v":9749.1354946521496},{"$f":"F56*2","v":19498.270989304299},{"$f":"G56","v":19498.270989304299},19498.270989304299,19498.270989304299,19498.270989304299,19498.270989304299,19498.270989304299,19498.270989304299,19498.270989304299,19498.270989304299,19498.270989304299,19498.270989304299,9749.1354946521496,19498.270989304299,19498.270989304299,19498.270989304299,19498.270989304299,19498.270989304299]
["Depn Capex 2009",null,null,null,null,null,{"$f":"G$14/$B$14/2","v":11212.286011979941},{"$f":"G57*2","v":22424.572023959881},{"$f":"H57","v":22424.572023959881},{"$f":"I57","v":22424.572023959881},{"$f":"J57","v":22424.572023959881},{"$f":"K57","v":22424.572023959881},22424.572023959881,22424.572023959881,22424.572023959881,22424.572023959881,22424.572023959881,22424.572023959881,11212.286011979941,22424.572023959881,22424.572023959881,22424.572023959881,22424.572023959881,22424.572023959881]
["Depn Capex 2010",null,null,null,null,null,null,{"$f":"H$14/$B$14/2","v":10450.460343946301},{"$f":"H58*2","v":20900.920687892602},{"$f":"I58","v":20900.920687892602},{"$f":"J58","v":20900.920687892602},{"$f":"K58","v":20900.920687892602},20900.920687892602,20900.920687892602,20900.920687892602,20900.920687892602,20900.920687892602,20900.920687892602,10450.460343946301,20900.920687892602,20900.920687892602,20900.920687892602,20900.920687892602,20900.920687892602]
["Depn Capex 2011",null,null,null,null,null,null,null,{"$f":"I$14/$B$14/2","v":-22306.738319376695},{"$f":"I59*2","v":-44613.476638753389},{"$f":"J59","v":-44613.476638753389},{"$f":"K59","v":-44613.476638753389},-44613.476638753389,-44613.476638753389,-44613.476638753389,-44613.476638753389,-44613.476638753389,-44613.476638753389,-22306.738319376695,-44613.476638753389,-44613.476638753389,-44613.476638753389,-44613.476638753389,-44613.476638753389]
["Depn Capex 2012",null,null,null,null,null,null,null,null,{"$f":"J$14/$B$14/2","v":6468.9328720557005},{"$f":"J60*2","v":12937.865744111401},{"$f":"K60","v":12937.865744111401},12937.865744111401,12937.865744111401,12937.865744111401,12937.865744111401,12937.865744111401,12937.865744111401,6468.9328720557005,12937.865744111401,12937.865744111401,12937.865744111401,12937.865744111401,12937.865744111401]
["Depn Capex 2013",null,null,null,null,null,null,null,null,null,{"$f":"K$14/$B$14/2","v":9973.8892332947635},{"$f":"K61*2","v":19947.778466589527},19947.778466589527,19947.778466589527,19947.778466589527,19947.778466589527,19947.778466589527,19947.778466589527,9973.8892332947635,19947.778466589527,19947.778466589527,19947.778466589527,19947.778466589527,19947.778466589527]
["Depn Capex 2014",null,null,null,null,null,null,null,null,null,null,{"$f":"L$14/$B$14/2","v":20729.409558609859},{"$f":"L62*2","v":41458.819117219718},{"$f":"M62","v":41458.819117219718},{"$f":"N62","v":41458.819117219718},{"$f":"O62","v":41458.819117219718},{"$f":"P62","v":41458.819117219718},{"$f":"Q62","v":41458.819117219718},20729.409558609859,41458.819117219718,{"$f":"T62","v":41458.819117219718},{"$f":"U62","v":41458.819117219718},{"$f":"V62","v":41458.819117219718},{"$f":"W62","v":41458.819117219718}]
["Depn Capex 2015",null,null,null,null,null,null,null,null,null,null,null,{"$f":"M$14/$B$14/2","v":29040.203237208043},{"$f":"M63*2","v":58080.406474416086},58080.406474416086,58080.406474416086,{"$f":"P63","v":58080.406474416086},{"$f":"Q63","v":58080.406474416086},29040.203237208043,58080.406474416086,{"$f":"T63","v":58080.406474416086},{"$f":"U63","v":58080.406474416086},{"$f":"V63","v":58080.406474416086},{"$f":"W63","v":58080.406474416086}]
["Depn Capex 2016",null,null,null,null,null,null,null,null,null,null,null,null,{"$f":"N$14/$B$14/2","v":83076.95},{"$f":"N64*2","v":166153.9},166153.9,166153.9,166153.9,83076.95,166153.9,166153.9,166153.9,166153.9,166153.9]
["Depn Capex 2017",null,null,null,null,null,null,null,null,null,null,null,null,null,{"$f":"O$14/$B$14/2","v":85469.425000000003},{"$f":"O65*2","v":170938.85},170938.85,170938.85,85469.425000000003,170938.85,170938.85,170938.85,170938.85,170938.85]
["Depn Capex 2018",null,null,null,null,null,null,null,null,null,null,null,null,null,null,{"$f":"P$14/$B$14/2","v":41111.375},{"$f":"P66*2","v":82222.75},{"$f":"Q66","v":82222.75},41111.375,82222.75,{"$f":"T66","v":82222.75},{"$f":"U66","v":82222.75},{"$f":"V66","v":82222.75},{"$f":"W66","v":82222.75}]
["Depn Capex 2019",null,null,null,null,null,null,null,null,null,null,null,null,null,null,null,{"$f":"Q$14/$B$14/2","v":35428.62497962045},{"$f":"Q67*2","v":70857.2499592409},35428.62497962045,70857.2499592409,70857.2499592409,70857.2499592409,70857.2499592409,70857.2499592409]
["Depn Capex 2020",null,null,null,null,null,null,null,null,null,null,null,null,null,null,null,null,{"$f":"R$14/$B$14/2","v":11055.531497537642},{"$f":"R68*2*0.5","v":11055.531497537642},22111.062995075285,{"$f":"T68","v":22111.062995075285},{"$f":"U68","v":22111.062995075285},{"$f":"V68","v":22111.062995075285},{"$f":"W68","v":22111.062995075285}]
["Depn Capex HY2021",null,null,null,null,null,null,null,null,null,null,null,null,null,null,null,null,null,{"$f":"S$14/$B$14/2*0.5","v":0},{"$f":"S69*2*2","v":0},{"$f":"T69","v":0},{"$f":"U69","v":0},{"$f":"V69","v":0},{"$f":"W69","v":0}]
["Depn Capex 2021-22",null,null,null,null,null,null,null,null,null,null,null,null,null,null,null,null,null,null,{"$f":"T$14/$B$14/2","v":0},{"$f":"T70*2","v":0},{"$f":"U70","v":0},{"$f":"V70","v":0},{"$f":"W70","v":0}]
["Depn Capex 2022-23",null,null,null,null,null,null,null,null,null,null,null,null,null,null,null,null,null,null,null,{"$f":"U$14/$B$14/2","v":0},{"$f":"U71*2","v":0},{"$f":"V71","v":0},{"$f":"W71","v":0}]
["Depn Capex 2023-24",null,null,null,null,null,null,null,null,null,null,null,null,null,null,null,null,null,null,null,null,{"$f":"V$14/$B$14/2","v":0},{"$f":"V72*2","v":0},0]
["Depn Capex 2024-25",null,null,null,null,null,null,null,null,null,null,null,null,null,null,null,null,null,null,null,null,null,{"$f":"W$14/$B$14/2","v":0},{"$f":"W73*2","v":0}]
["Depn Capex 2025-26",null,null,null,null,null,null,null,null,null,null,null,null,null,null,null,null,null,null,null,null,null,null,{"$f":"X$14/$B$14/2","v":0}]
["Total Depreciation",null,{"$f":"SUM(C52:C68)","v":293827.62815871567},306410.02832058968,{"$f":"SUM(E52:E74)","v":318518.07601629721},{"$f":"SUM(F52:F74)","v":332327.34702644229},353288.76853307436,374951.51488900062,363095.2369135702,347257.43146624923,363700.25357159972,394403.55236350436,444173.1651593222,556290.31839653023,724836.69339653035,851417.49339653028,927957.49337615073,974441.6498533088,492748.59067542321,985497.18135084643,840850.61126231821,696204.04117379012,696204.04117379012,696204.04117379012]
[]
[{"$f":"$A$16","v":"Energy Efficient Lights"}]
[{"$f":"$A$17","v":"Luminaires and Ballasts"}]
[{"$f":"A52","v":"RAB 2001-04"}]
[{"$f":"A53","v":"Depn Capex 2005"}]
["Depn Capex 2006"]
["Depn Capex 2007"]
["Depn Capex 2008"]
["Depn Capex 2009",null,null,null,null,null,{"$f":"G$17/$B$17/2","v":0},{"$f":"G84*2","v":0},{"$f":"H84","v":0},{"$f":"I84","v":0},{"$f":"J84","v":0},{"$f":"K84","v":0},{"$f":"L84","v":0},0,0,0,0,0,{"$f":"R84*0.5","v":0},{"$f":"S84*2","v":0},0,0,0,0]
["Depn Capex 2010",null,null,null,null,null,null,{"$f":"H$17/$B$17/2","v":48528.461426414186},{"$f":"H85*2","v":97056.922852828371},{"$f":"I85","v":97056.922852828371},{"$f":"J85","v":97056.922852828371},{"$f":"K85","v":97056.922852828371},{"$f":"L85","v":97056.922852828371},97056.922852828371,97056.922852828371,97056.922852828371,97056.922852828371,97056.922852828371,{"$f":"R85*0.5","v":48528.461426414186},{"$f":"S85*2","v":97056.922852828371},97056.922852828371,97056.922852828371,97056.922852828371,97056.922852828371]
["Depn Capex 2011",null,null,null,null,null,null,null,{"$f":"I$17/$B$17/2","v":0},{"$f":"I86*2","v":0},{"$f":"J86","v":0},{"$f":"K86","v":0},{"$f":"L86","v":0},0,0,0,0,0,0,0,0,0,0,0]
["Depn Capex 2012",null,null,null,null,null,null,null,null,{"$f":"J$17/$B$17/2","v":0},{"$f":"J87*2","v":0},{"$f":"K87","v":0},{"$f":"L87","v":0},0,0,0,0,0,0,0,0,0,0,0]
["Depn Capex 2013",null,null,null,null,null,null,null,null,null,{"$f":"K$17/$B$17/2","v":0},{"$f":"K88*2","v":0},{"$f":"L88","v":0},0,0,0,0,0,0,0,0,0,0,0]
["Depn Capex 2014",null,null,null,null,null,null,null,null,null,null,{"$f":"L$17/$B$17/2","v":0},{"$f":"L89","v":0},0,0,0,0,0,0,0,0,0,0,0]
["Depn Capex 2015",null,null,null,null,null,null,null,null,null,null,null,{"$f":"M$17/$B$17/2","v":0},{"$f":"M90*2","v":0},0,0,0,0,0,0,0,0,0,0]
["Depn Capex 2016",null,null,null,null,null,null,null,null,null,null,null,null,{"$f":"N$17/$B$17/2","v":0},{"$f":"N91*2","v":0},0,0,0,0,0,{"$f":"T91","v":0},0,0,0]
["Depn Capex 2017",null,null,null,null,null,null,null,null,null,null,null,null,null,{"$f":"O$17/$B$17/2","v":0},{"$f":"O92*2","v":0},0,0,0,0,{"$f":"T92","v":0},0,0,0]
["Depn Capex 2018",null,null,null,null,null,null,null,null,null,null,null,null,null,null,{"$f":"P$17/$B$17/2","v":12096.1},{"$f":"P93*2","v":24192.2},24192.2,12096.1,24192.2,{"$f":"T93","v":24192.2},24192.2,24192.2,24192.2]
["Depn Capex 2019",null,null,null,null,null,null,null,null,null,null,null,null,null,null,null,{"$f":"Q$17/$B$17/2","v":15974.475},{"$f":"Q94*2","v":31948.95},15974.475,31948.95,{"$f":"T94","v":31948.95},31948.95,31948.95,31948.95]
["Depn Capex 2020",null,null,null,null,null,null,null,null,null,null,null,null,null,null,null,null,{"$f":"R$17/$B$17/2","v":16000.266192198842},{"$f":"R95*2*0.5","v":16000.266192198842},{"$f":"S95*2","v":32000.532384397684},32000.532384397684,32000.532384397684,32000.532384397684,32000.532384397684]
["Depn Capex HY2021",null,null,null,null,null,null,null,null,null,null,null,null,null,null,null,null,null,{"$f":"S$17/$B$17/2*0.5","v":33528.055078624064},{"$f":"S96*2*2","v":134112.22031449626},134112.22031449626,134112.22031449626,134112.22031449626,134112.22031449626]
["Depn Capex 2021-22",null,null,null,null,null,null,null,null,null,null,null,null,null,null,null,null,null,null,{"$f":"T$17/$B$17/2","v":70502.578948283379},{"$f":"T97*2","v":141005.15789656676},{"$f":"U97","v":141005.15789656676},141005.15789656676,141005.15789656676]
["Depn Capex 2022-23",null,null,null,null,null,null,null,null,null,null,null,null,null,null,null,null,null,null,null,{"$f":"U$17/$B$17/2","v":77002.97278988472},{"$f":"U98*2","v":154005.94557976944},154005.94557976944,{"$f":"W98","v":154005.94557976944}]
["Depn Capex 2023-24",null,null,null,null,null,null,null,null,null,null,null,null,null,null,null,null,null,null,null,null,{"$f":"V$17/$B$17/2","v":77464.900947388014},{"$f":"V99*2","v":154929.80189477603},{"$f":"W99","v":154929.80189477603}]
["Depn Capex 2024-25",null,null,null,null,null,null,null,null,null,null,null,null,null,null,null,null,null,null,null,null,null,{"$f":"W$17/$B$17/2","v":77885.924130469328},{"$f":"W100*2","v":155771.84826093866}]
["Depn Capex 2025-26",null,null,null,null,null,null,null,null,null,null,null,null,null,null,null,null,null,null,null,null,null,null,{"$f":"X$17/$B$17/2","v":32618.900959530718}]
["Total Depreciation",null,{"$f":"SUM(C79:C95)","v":0},0,{"$f":"SUM(E79:E101)","v":0},{"$f":"SUM(F79:F101)","v":0},0,48528.461426414186,97056.922852828371,97056.922852828371,97056.922852828371,97056.922852828371,97056.922852828371,97056.922852828371,97056.922852828371,109153.02285282838,137223.59785282836,169198.33904502721,126127.35769723709,389813.40450000571,537318.95623817388,691786.82997544657,847137.65505330393,957642.48014330398]
[]
[]
["Nominal pre tax WACC",null,null,null,null,null,null,null,null,null,null,null,null,null,null,null,null,null,null,{"$f":"WACC!E$8","v":5.0483926147742331E-2},{"$f":"WACC!F$8","v":5.0483926147742331E-2},{"$f":"WACC!G$8","v":5.0483926147742331E-2},{"$f":"WACC!H$8","v":5.0483926147742331E-2},{"$f":"WACC!I$8","v":5.0483926147742331E-2}]
[]
[]
[{"$f":"$A$11","v":"Poles and Brackets"}]
["RAB",null,{"$f":"$C$6","v":2005},{"$f":"$D$6","v":2006},{"$f":"$E$6","v":2007},{"$f":"$F$6","v":2008},{"$f":"G$6","v":2009},{"$f":"H$6","v":2010},2011,2012,2013,2014,2015,2016,2017,2018,2019,2020,"HY2021","2022-06-30","2023-06-30","2024-06-30","2025-06-30","2026-06-30"]
["Opening RAB",null,{"$f":"SUM('RAB 2001 to 2004 Central'!E114,'RAB 2001 to 2004 N & E'!E114)","v":4580634.2236786205},{"$f":"C113","v":4818981.5998573909},5338624.808186451,5507045.6036643805,6138669.1229426721,6868627.5283806808,7583308.4390909737,8194101.7974948138,8824084.5773112457,9499875.6518121213,{"$f":"L113","v":9927660.9004061781},{"$f":"M113","v":10639393.722788153},{"$f":"N113","v":12181453.817151938},{"$f":"O113","v":15235208.909338851},{"$f":"P113","v":19151058.143517286},{"$f":"Q113","v":20236117.720552865},{"$f":"R113","v":21792125.244451072},{"$f":"S113","v":22568100.824688219},{"$f":"T113","v":24066330.992356926},{"$f":"U113","v":25549400.106805697},{"$f":"V113","v":27016542.415446714},{"$f":"W113","v":28468481.70686578}]
["Additional Capex",null,{"$f":"C$11","v":382620.48073362443},679083.51279141498,342454.50012480229,822296.52427371382,945891.23557411402,957809.46514234785,880178.8893283339,925158.84987236292,998447.23143259203,775787.61765560566,1086336.9712855413,1960186,3550606.6064872313,4528111,1787545,2317131.1779765785,1181527.8287529736,2359926.8747504083,2412949.7736504846,2466732.7177194422,2522808.8659788975,2582137.978346901]
["Depreciation",null,{"$f":"C$48","v":144273.10455485416},159440.30446235472,174033.70464687209,190673.00499542232,215932.83013610559,243128.55443205504,269385.53092449333,295176.07005593192,322656.15693171695,348002.36906154832,374604.14890356467,418125.90563621529,496851.51430031861,612261.76582156483,702485.42296442192,761123.6540783731,405552.24851582618,861696.70708170068,929880.6592017134,999590.40907842666,1070869.5745598315,1143797.3866216284]
["Closing RAB",null,{"$f":"C110+C111-C112","v":4818981.5998573909},5338624.808186451,5507045.6036643805,6138669.1229426721,6868627.5283806808,7583308.4390909737,8194101.7974948138,8824084.5773112457,9499875.6518121213,9927660.9004061781,{"$f":"M110+M111-M112","v":10639393.722788153},12181453.817151938,15235208.909338851,19151058.143517286,20236117.720552865,21792125.244451072,22568100.824688219,{"$f":"T110+T111-T112","v":24066330.992356926},25549400.106805697,27016542.415446714,28468481.70686578,29906822.298591051]
["Average RAB",null,{"$f":"SUM(C110,C113)/2","v":4699807.9117680062},5078803.2040219214,5422835.2059254162,5822857.3633035263,{"$f":"SUM(G110,G113)/2","v":6503648.325661676},7225967.9837358277,7888705.1182928942,8509093.1874030307,9161980.1145616844,9713768.2761091497,{"$f":"SUM(M110,M113)/2","v":10283527.311597165},11410423.769970044,13708331.363245394,17193133.526428066,19693587.932035074,21014121.482501969,22180113.034569643,23317215.908522572,24807865.549581312,26282971.261126205,27742512.061156247,29187652.002728418]
[]
["Total Value to be recovered by change in unit rates",null,null,null,null,null,null,null,null,null,null,null,null,null,null,null,null,null,null,{"$f":"T$6","v":44742},45107,45473,45838,46203]
["Depreciation",null,null,null,null,null,null,null,null,null,null,null,null,null,null,null,null,null,null,{"$f":"T112","v":861696.70708170068},{"$f":"U112","v":929880.6592017134},{"$f":"V112","v":999590.40907842666},{"$f":"W112","v":1070869.5745598315},{"$f":"X112","v":1143797.3866216284}]
["ROA",null,null,null,null,null,null,null,null,null,null,null,null,null,null,null,null,null,null,{"$f":"T$105*T114","v":1177144.6058968161},{"$f":"U$105*U114","v":1252398.4522881841},1326867.5800899295,1400550.9300482629,1473507.268131745]
[null,null,null,null,null,null,null,null,null,null,null,null,null,null,null,null,null,null,null,{"$f":"SUM(T117:T118)","v":2038841.3129785168},2182279.1114898976,2326457.9891683562,2471420.5046080947,2617304.6547533735]
[]
[]
[{"$f":"$A$13","v":"Existing Lights"}]
[{"$f":"$A$14","v":"Luminaires"}]
["RAB",null,{"$f":"$C$6","v":2005},{"$f":"$D$6","v":2006},{"$f":"$E$6","v":2007},{"$f":"$F$6","v":2008},{"$f":"G$6","v":2009},{"$f":"H$6","v":2010},2011,2012,2013,2014,2015,2016,2017,2018,2019,2020,"HY2021","2022-06-30","2023-06-30","2024-06-30","2025-06-30","2026-06-30"]
["Opening RAB",null,{"$f":"SUM('RAB 2001 to 2004 Central'!E77,'RAB 2001 to 2004 N & E'!E77)","v":5207276.5231870133},{"$f":"C128","v":5094828.4142946731},5110334.8731826684,4954222.2177860867,5011860.2905457309,5107062.9624918541,5150129.8613607055,3894765.0916720675,3806264.9750880464,3841520.2908482375,{"$f":"L128","v":4276293.1208291268},{"$f":"M128","v":4993728.0851581264},{"$f":"N128","v":7760515.7667615963},{"$f":"O128","v":10454456.073365066},{"$f":"P128","v":11247493.579968536},{"$f":"Q128","v":11736681.085777204},{"$f":"R128","v":11204460.6958254},{"$f":"S128","v":10711712.105149977},{"$f":"T128","v":9726214.9237991311},{"$f":"U128","v":8885364.3125368133},{"$f":"V128","v":8189160.2713630237},{"$f":"W128","v":7492956.230189234}]
["Additional Capex",null,{"$f":"C$14","v":181379.51926637554},321916.48720858502,162405.4206197157,389965.41978608596,448491.44047919766,418018.41375785205,-892269.53277506784,258757.31488222803,398955.56933179055,829176.38234439434,1161608.1294883217,3323078,3418777,1644455,1417144.999184818,442221.25990150566,0,0,0,0,0,0]
["Depreciation",null,{"$f":"C$75","v":293827.62815871567},306410.02832058968,318518.07601629721,332327.34702644229,353288.76853307436,374951.51488900062,363095.2369135702,347257.43146624923,363700.25357159972,394403.55236350436,444173.1651593222,556290.31839653023,724836.69339653035,851417.49339653028,927957.49337615073,974441.6498533088,492748.59067542321,985497.18135084643,840850.61126231821,696204.04117379012,696204.04117379012,696204.04117379012]
["Closing RAB",null,{"$f":"C125+C126-C127","v":5094828.4142946731},5110334.8731826684,4954222.2177860867,5011860.2905457309,5107062.9624918541,5150129.8613607055,3894765.0916720675,3806264.9750880464,3841520.2908482375,4276293.1208291268,{"$f":"M125+M126-M127","v":4993728.0851581264},7760515.7667615963,10454456.073365066,11247493.579968536,11736681.085777204,11204460.6958254,10711712.105149977,{"$f":"T125+T126-T127","v":9726214.9237991311},8885364.3125368133,8189160.2713630237,7492956.230189234,6796752.1890154444]
["Average RAB",null,{"$f":"SUM(C125,C128)/2","v":5151052.4687408432},5102581.6437386703,5032278.5454843771,4983041.2541659083,5059461.6265187925,5128596.4119262798,4522447.4765163865,3850515.0333800567,3823892.6329681417,4058906.7058386821,{"$f":"SUM(M125,M128)/2","v":4635010.6029936261},6377121.9259598609,9107485.9200633317,10850974.826666802,11492087.332872871,11470570.890801303,10958086.400487687,10218963.514474554,9305789.6181679722,8537262.2919499185,7841058.2507761288,7144854.2096023392]
[]
["Total Value to be recovered by change in unit rates",null,null,null,null,null,null,null,null,null,null,null,null,null,null,null,null,null,null,{"$f":"T$6","v":"2022-06-30"},"2023-06-30","2024-06-30","2025-06-30","2026-06-30"]
["Depreciation",null,null,null,null,null,null,null,null,null,null,null,null,null,null,null,null,null,null,{"$f":"T127","v":985497.18135084643},{"$f":"U127","v":840850.61126231821},{"$f":"V127","v":696204.04117379012},{"$f":"W127","v":696204.04117379012},{"$f":"X127","v":696204.04117379012}]
["ROA",null,null,null,null,null,null,null,null,null,null,null,null,null,null,null,null,null,null,{"$f":"T$105*T129","v":515893.39937120682},{"$f":"U$105*U129","v":469792.79583001923},430994.51905070513,395847.40565232775,360700.29225395038]
[null,null,null,null,null,null,null,null,null,null,null,null,null,null,null,null,null,null,null,{"$f":"SUM(T132:T133)","v":1501390.5807220533},1310643.4070923375,1127198.5602244954,1092051.4468261178,1056904.3334277405]
[]
[]
[{"$f":"$A$16","v":"Energy Efficient Lights"}]
[{"$f":"$A$17","v":"Luminaires and Ballasts"}]
["RAB",null,{"$f":"$C$6","v":2005},{"$f":"$D$6","v":2006},{"$f":"$E$6","v":2007},{"$f":"$F$6","v":2008},{"$f":"G$6","v":2009},{"$f":"H$6","v":2010},2011,2012,2013,2014,2015,2016,2017,2018,2019,2020,"HY2021","2022-06-30","2023-06-30","2024-06-30","2025-06-30","2026-06-30"]
["Opening RAB",null,0,{"$f":"C143","v":0},0,0,0,0,1892609.9956301532,1795553.0727773248,1698496.1499244964,1601439.227071668,{"$f":"L143","v":1504382.3042188396},{"$f":"M143","v":1407325.3813660112},{"$f":"N143","v":1310268.4585131828},{"$f":"O143","v":1213211.5356603544},{"$f":"P143","v":1587902.5128075262},{"$f":"Q143","v":2089657.9149546977},{"$f":"R143","v":2560470.2235976243},{"$f":"S143","v":5116587.2721903119},{"$f":"T143","v":7546877.0256216414},{"$f":"U143","v":10089676.980978858},{"$f":"V143","v":12496486.188898932},{"$f":"W143","v":14764785.499064401}]
["Additional Capex",null,{"$f":"C$17","v":0},0,0,0,0,1941138.4570565673,0,0,0,0,0,0,0,483844,638979,640010.64768795366,2682244.4062899249,2820103.1579313353,3080118.9115953888,3098596.0378955207,3115436.9652187731,1304756.0383812287]
["Depreciation",null,{"$f":"C$102","v":0},0,0,0,0,48528.461426414186,97056.922852828371,97056.922852828371,97056.922852828371,97056.922852828371,97056.922852828371,97056.922852828371,97056.922852828371,109153.02285282838,137223.59785282836,169198.33904502721,126127.35769723709,389813.40450000571,537318.95623817388,691786.82997544657,847137.65505330393,957642.48014330398]
["Closing RAB",null,{"$f":"C140+C141-C142","v":0},0,0,0,0,1892609.9956301532,1795553.0727773248,1698496.1499244964,1601439.227071668,1504382.3042188396,{"$f":"M140+M141-M142","v":1407325.3813660112},1310268.4585131828,1213211.5356603544,1587902.5128075262,2089657.9149546977,2560470.2235976243,5116587.2721903119,{"$f":"T140+T141-T142","v":7546877.0256216414},10089676.980978858,12496486.188898932,14764785.499064401,15111899.057302326]
["Average RAB",null,{"$f":"SUM(C140,C143)/2","v":0},0,0,0,{"$f":"SUM(G140,G143)/2","v":0},946304.99781507661,1844081.5342037389,1747024.6113509107,1649967.6884980821,1552910.7656452539,{"$f":"SUM(M140,M143)/2","v":1455853.8427924253},1358796.9199395971,1261739.9970867685,1400557.0242339403,1838780.2138811119,2325064.069276161,3838528.7478939681,6331732.1489059767,8818277.0033002496,11293081.584938895,13630635.843981666,14938342.278183363]
[]
["Total Value to be recovered by change in unit rates",null,null,null,null,null,null,null,null,null,null,null,null,null,null,null,null,null,null,{"$f":"T$6","v":"2022-06-30"},"2023-06-30","2024-06-30","2025-06-30","2026-06-30"]
["Depreciation",null,null,null,null,null,null,null,null,null,null,null,null,null,null,null,null,null,null,{"$f":"T142","v":389813.40450000571},{"$f":"U142","v":537318.95623817388},{"$f":"V142","v":691786.82997544657},{"$f":"W142","v":847137.65505330393},{"$f":"X142","v":957642.48014330398}]
["ROA",null,null,null,null,null,null,null,null,null,null,null,null,null,null,null,null,null,null,{"$f":"T$105*T144","v":319650.69819265517},{"$f":"U$105*U144","v":445181.24498494435},570119.09671448404,688128.01329433988,754146.16834150581]
[null,null,null,null,null,null,null,null,null,null,null,null,null,null,null,null,null,null,null,{"$f":"SUM(T147:T148)","v":709464.10269266088},982500.20122311823,1261905.9266899307,1535265.6683476437,1711788.6484848098]
[]
[]
[]
["Total Public Lighting RAB"]
["Historical cost ($)"]
[]
["RAB",null,{"$f":"C$6","v":2005},{"$f":"D$6","v":2006},{"$f":"E$6","v":2007},2008,2009,2010,2011,2012,2013,2014,2015,2016,2017,2018,2019,2020,"HY2021","2022-06-30","2023-06-30","2024-06-30","2025-06-30","2026-06-30"]
["Opening RAB",null,{"$f":"SUM(C110,C125,C140)","v":9787910.7468656339},{"$f":"C160","v":9913810.0141520649},{"$f":"D160","v":10448959.68136912},10461267.821450468,11150529.413488403,11975690.490872534,14626048.296081832,13884419.961944206,14328845.702323787,14942835.169732023,{"$f":"L160","v":15708336.325454142},{"$f":"M160","v":17040447.18931229},{"$f":"N160","v":21252238.042426717},{"$f":"O160","v":26902876.518364273},{"$f":"P160","v":31986454.236293349},{"$f":"Q160","v":34062456.721284769},{"$f":"R160","v":35557056.163874097},{"$f":"S160","v":38396400.202028513},{"$f":"T160","v":41339422.941777699},{"$f":"U160","v":44524441.400321364},{"$f":"V160","v":47702188.875708669},{"$f":"W160","v":50726223.436119415}]
["Capex",null,{"$f":"SUM(C111,C126,C141)","v":564000},{"$f":"SUM(D111,D126,D141)","v":1001000},504859.92074451799,1212261.9440597999,1394382.6760533117,3316966.3359567672,-12090.643446733942,1183916.164754591,1397402.8007643826,1604964,{"$f":"SUM(M111,M126,M141)","v":2247945.100773863},5283264,6969383.6064872313,6656410,3843668.999184818,{"$f":"SUM(R111,R126,R141)","v":3399363.0855660383},3863772.2350428985,5180030.0326817436,5493068.6852458734,5565328.7556149624,5638245.8311976707,3886894.0167281297]
["Depreciation",null,{"$f":"SUM(C112,C127,C142)","v":438100.73271356983},465850.33278294443,492551.78066316934,523000.35202186462,569221.59866917995,666608.53074746986,729537.69069089193,739490.42437500949,783413.33335614507,839462.84427788109,{"$f":"SUM(M112,M127,M142)","v":915834.23691571527},1071473.1468855739,1318745.1305496774,1572832.2820709236,1767666.5141934012,{"$f":"SUM(R112,R127,R142)","v":1904763.6429767092},1024428.1968884864,2237007.2929325528,2308050.2267022054,2387581.2802276635,2614211.2707869257,2797643.9079387225]
["Closing RAB",null,{"$f":"C157+C158-C159","v":9913810.0141520649},{"$f":"D157+D158-D159","v":10448959.68136912},{"$f":"E157+E158-E159","v":10461267.821450468},11150529.413488403,11975690.490872534,14626048.296081832,13884419.961944206,14328845.702323787,14942835.169732023,15708336.325454142,{"$f":"M157+M158-M159","v":17040447.18931229},21252238.042426717,26902876.518364273,31986454.236293349,34062456.721284769,35557056.163874097,38396400.202028513,41339422.941777699,44524441.400321364,47702188.875708669,50726223.436119415,51815473.544908822]
["Average RAB",null,{"$f":"SUM(C157,C160)/2","v":9850860.3805088494},{"$f":"SUM(D157,D160)/2","v":10181384.847760592},{"$f":"SUM(E157,E160)/2","v":10455113.751409795},10805898.617469436,11563109.952180468,13300869.393477183,14255234.129013019,14106632.832133997,14635840.436027905,15325585.747593082,{"$f":"SUM(M157,M160)/2","v":16374391.757383216},19146342.615869503,24077557.280395493,29444665.377328813,33024455.478789061,34809756.442579433,36976728.182951301,39867911.57190311,42931932.171049535,46113315.138015017,49214206.155914038,51270848.490514114]
["Check",{"$f":"SUM(C162:X162)","v":3.166496753692627E-8},{"$f":"ABS(C160-SUM(C113,C128,C143))","v":0},1.862645149230957E-9,0,0,1.862645149230957E-9,0,0,1.862645149230957E-9,3.7252902984619141E-9,3.7252902984619141E-9,{"$f":"ABS(M160-SUM(M113,M128,M143))","v":0},0,0,3.7252902984619141E-9,0,0,7.4505805969238281E-9,7.4505805969238281E-9,0,0,0,0]

{"sheet":"RAB 2001 to 2004 Central","index":15,"n_rows":239,"n_cols":40,"rows_kept":239,"cut":false,"hidden":false,"merged":[[207,1,207,5],[207,7,207,11],[207,13,207,17],[207,19,207,23],[45,5,45,26],[52,5,52,26],[82,5,82,26],[89,5,89,26]]}
[{"$f":"'Inputs PL Final Decision 2004'!$A$126","v":"SP AusNet - Central"}]
[]
["Public Lighting RAB - Assets constructed between 1 January 2001 and 31 December 2004."]
["Historical cost ($)"]
[]
["Summary"]
[]
["Cost Per Unit",null,{"$f":"'DNSP Inputs General'!Q2","v":"2022-06-30"},{"$f":"'DNSP Inputs General'!R2","v":"2023-06-30"},{"$f":"'DNSP Inputs General'!S2","v":"2024-06-30"},{"$f":"'DNSP Inputs General'!T2","v":"2025-06-30"},{"$f":"'DNSP Inputs General'!U2","v":"2026-06-30"}]
["Rate of return (per annum) (Nominal Pre tax WACC)",null,{"$f":"WACC!E$8","v":5.0483926147742331E-2},{"$f":"WACC!F$8","v":5.0483926147742331E-2},{"$f":"WACC!G$8","v":5.0483926147742331E-2},{"$f":"WACC!H$8","v":5.0483926147742331E-2},{"$f":"WACC!I$8","v":5.0483926147742331E-2}]
[]
["Luminaires"]
[{"$f":"$A$134","v":"MV 80"}]
["Luminaire - depreciation",null,{"$f":"W144","v":2.1367532867451411},{"$f":"X144","v":1.0683766433725705},0,0,0]
["Luminaire - return on",null,{"$f":"W143*C$9","v":0.10787169512398742},{"$f":"X143*D$9","v":5.3935847561993711E-2},0,0,0]
["Capital Charge",null,{"$f":"SUM(C13:C14)","v":2.2446249818691286},{"$f":"SUM(D13:D14)","v":1.1223124909345643},0,0,0]
[]
[{"$f":"$A$148","v":"S-HP 150 "}]
["Luminaire - depreciation",null,{"$f":"W158","v":2.5710778072031615},{"$f":"X158","v":1.2855389036015807},0,0,0]
["Luminaire - return on",null,{"$f":"W157*C$9","v":0.12979810213894369},{"$f":"X157*D$9","v":6.4899051069471844E-2},0,0,0]
["Capital Charge",null,{"$f":"SUM(C18:C19)","v":2.7008759093421051},{"$f":"SUM(D18:D19)","v":1.3504379546710525},0,0,0]
[]
[{"$f":"$A$162","v":"S-HP 250 "}]
["Luminaire - depreciation",null,{"$f":"W172","v":2.6226803205521598},{"$f":"X172","v":1.3113401602760799},0,0,0]
["Luminaire - return on",null,{"$f":"W171*C$9","v":0.13240319961189245},{"$f":"X171*D$9","v":6.6201599805946226E-2},0,0,0]
["Capital Charge",null,{"$f":"SUM(C23:C24)","v":2.7550835201640522},{"$f":"SUM(D23:D24)","v":1.3775417600820261},0,0,0]
[]
[{"$f":"$A$176","v":"Poles & Brackets"}]
[{"$f":"$A$177","v":"Dedicated poles"}]
["Dedicated poles - depreciation",null,{"$f":"W186","v":0.91476154288995293},{"$f":"X186","v":0.91476154288995293},0.91476154288995293,0.91476154288995293,0.91476154288995293]
["Dedicated poles - return on",null,{"$f":"W185*C$9","v":0.73889206678481945},{"$f":"X185*D$9","v":0.69271131261076813},0.64653055843671692,0.60034980426266582,0.5541690500886145]
["Capital Charge",null,{"$f":"SUM(C29:C30)","v":1.6536536096747723},{"$f":"SUM(D29:D30)","v":1.6074728555007209},1.5612921013266698,1.5151113471526187,1.4689305929785674]
[]
[{"$f":"A191","v":"Brackets"}]
["Brackets - depreciation",null,{"$f":"W200","v":0.18807135179628345},{"$f":"X200","v":0.18807135179628345},0.18807135179628345,0.18807135179628345,0.18807135179628345]
["Brackets - return on",null,{"$f":"W199*C$9","v":0.15191328375343424},{"$f":"X199*D$9","v":0.14241870351884461},0.13292412328425499,0.12342954304966532,0.11393496281507569]
["Capital Charge",null,{"$f":"SUM(C34:C35)","v":0.3399846355497177},0.3304900553151281,0.32099547508053844,0.31150089484594878,0.30200631461135913]
[]
[]
[]
[]
["Closing RAB at 31 December 2004 and Depreciation per annum 2005 onwards"]
[]
["Note : Calculation of the closing $ value of RAB in 2004 is Unit WDV at 31 December 2004 multiplied by volumes at 31 December 2004."]
[]
["Luminaires"]
["Depreciation",null,null,null,"Closing RAB per unit","Depreciation per unit"]
[null,null,null,null,2004,2005,2006,2007,2008,2009,2010,2011,2012,2013,2014,2015,2016,2017,2018,2019,2020,{"$f":"'DNSP Inputs General'!P2","v":"HY2021"},{"$f":"'DNSP Inputs General'!Q2","v":"2022-06-30"},{"$f":"'DNSP Inputs General'!R2","v":"2023-06-30"},{"$f":"'DNSP Inputs General'!S2","v":"2024-06-30"},{"$f":"'DNSP Inputs General'!T2","v":"2025-06-30"},{"$f":"'DNSP Inputs General'!U2","v":"2026-06-30"}]
[{"$f":"'DNSP Inputs General'!A$42","v":"Mercury Vapour 80W"},null,null,null,{"$f":"F143+F144/2","v":38.461559161412552},{"$f":"F144","v":2.1367532867451411},{"$f":"G144","v":2.1367532867451411},2.1367532867451411,2.1367532867451411,2.1367532867451411,2.1367532867451411,2.1367532867451411,2.1367532867451411,2.1367532867451411,2.1367532867451411,2.1367532867451411,2.1367532867451411,2.1367532867451411,2.1367532867451411,2.1367532867451411,2.1367532867451411,{"$f":"V144","v":1.0683766433725705},2.1367532867451411,1.0683766433725705,0,0,0]
[{"$f":"'DNSP Inputs General'!A$43","v":"HP Sodium 150W"},null,null,null,{"$f":"F157+F158/2","v":46.279400529656911},{"$f":"F158","v":2.5710778072031615},{"$f":"G158","v":2.5710778072031615},2.5710778072031615,2.5710778072031615,2.5710778072031615,2.5710778072031615,2.5710778072031615,2.5710778072031615,2.5710778072031615,2.5710778072031615,2.5710778072031615,2.5710778072031615,2.5710778072031615,2.5710778072031615,2.5710778072031615,2.5710778072031615,{"$f":"V158","v":1.2855389036015807},2.5710778072031615,1.2855389036015807,0,0,0]
[{"$f":"'DNSP Inputs General'!A$44","v":"HP Sodium 250W"},null,null,null,{"$f":"F171+F172/2","v":47.208245769938877},{"$f":"F172","v":2.6226803205521598},{"$f":"G172","v":2.6226803205521598},2.6226803205521598,2.6226803205521598,2.6226803205521598,2.6226803205521598,2.6226803205521598,2.6226803205521598,2.6226803205521598,2.6226803205521598,2.6226803205521598,2.6226803205521598,2.6226803205521598,2.6226803205521598,2.6226803205521598,2.6226803205521598,{"$f":"V172","v":1.3113401602760799},2.6226803205521598,1.3113401602760799,0,0,0]
[]
[]
["Light Type",null,"Assumed",null,"Closing RAB","Depreciation"]
[null,null," 2004 Volumes",null,{"$f":"E$47","v":2004},2005,2006,2007,2008,2009,2010,2011,2012,2013,2014,2015,2016,2017,2018,2019,2020,{"$f":"V$47","v":"HY2021"},{"$f":"W$47","v":"2022-06-30"},"2023-06-30","2024-06-30","2025-06-30","2026-06-30"]
[{"$f":"'DNSP Inputs General'!A$42","v":"Mercury Vapour 80W"},null,{"$f":"54830.8388653408+5129.42975845582+3216.02650170813","v":63176.295125504752},null,{"$f":"E48*$C55","v":2429858.8125684606},{"$f":"F48*$C55","v":134992.15625380332},134992.15625380332,134992.15625380332,134992.15625380332,134992.15625380332,134992.15625380332,134992.15625380332,134992.15625380332,134992.15625380332,134992.15625380332,134992.15625380332,134992.15625380332,{"$f":"R48*$C55","v":134992.15625380332},{"$f":"S48*$C55","v":134992.15625380332},134992.15625380332,134992.15625380332,{"$f":"V48*$C55","v":67496.078126901659},134992.15625380332,67496.078126901659,0,0,0]
[{"$f":"'DNSP Inputs General'!A$43","v":"HP Sodium 150W"},null,11309.578750263752,null,{"$f":"E49*$C56","v":523400.52480515285},{"$f":"F49*$C56","v":29077.806933619599},29077.806933619599,29077.806933619599,29077.806933619599,29077.806933619599,29077.806933619599,29077.806933619599,29077.806933619599,29077.806933619599,29077.806933619599,29077.806933619599,29077.806933619599,{"$f":"R49*$C56","v":29077.806933619599},{"$f":"S49*$C56","v":29077.806933619599},29077.806933619599,29077.806933619599,{"$f":"V49*$C56","v":14538.903466809799},29077.806933619599,14538.903466809799,0,0,0]
[{"$f":"'DNSP Inputs General'!A$44","v":"HP Sodium 250W"},null,5935.0914346750506,null,{"$f":"E50*$C57","v":280185.2551151989},{"$f":"F50*$C57","v":15565.847506399939},15565.847506399939,15565.847506399939,15565.847506399939,15565.847506399939,15565.847506399939,15565.847506399939,15565.847506399939,15565.847506399939,15565.847506399939,15565.847506399939,15565.847506399939,{"$f":"R50*$C57","v":15565.847506399939},{"$f":"S50*$C57","v":15565.847506399939},15565.847506399939,15565.847506399939,{"$f":"V50*$C57","v":7782.9237531999697},15565.847506399939,7782.9237531999697,0,0,0]
[{"$f":"'DNSP Inputs General'!A$45","v":"Mercury Vapour 50W"},null,393.03223566379955,null,{"$f":"IF('DNSP Inputs General'!$B45='DNSP Inputs General'!$A$42,E$48,IF('DNSP Inputs General'!$B45='DNSP Inputs General'!$A$43,E$49,E$50))*'DNSP Inputs General'!$D45*$C58","v":23128.447854017966},{"$f":"IF('DNSP Inputs General'!$B45='DNSP Inputs General'!$A$42,F$48,IF('DNSP Inputs General'!$B45='DNSP Inputs General'!$A$43,F$49,F$50))*'DNSP Inputs General'!$D45*$C58","v":1284.9137696676644},{"$f":"IF('DNSP Inputs General'!$B45='DNSP Inputs General'!$A$42,G$48,IF('DNSP Inputs General'!$B45='DNSP Inputs General'!$A$43,G$49,G$50))*'DNSP Inputs General'!$D45*$C58","v":1284.9137696676644},{"$f":"IF('DNSP Inputs General'!$B45='DNSP Inputs General'!$A$42,H$48,IF('DNSP Inputs General'!$B45='DNSP Inputs General'!$A$43,H$49,H$50))*'DNSP Inputs General'!$D45*$C58","v":1284.9137696676644},{"$f":"IF('DNSP Inputs General'!$B45='DNSP Inputs General'!$A$42,I$48,IF('DNSP Inputs General'!$B45='DNSP Inputs General'!$A$43,I$49,I$50))*'DNSP Inputs General'!$D45*$C58","v":1284.9137696676644},{"$f":"IF('DNSP Inputs General'!$B45='DNSP Inputs General'!$A$42,J$48,IF('DNSP Inputs General'!$B45='DNSP Inputs General'!$A$43,J$49,J$50))*'DNSP Inputs General'!$D45*$C58","v":1284.9137696676644},{"$f":"IF('DNSP Inputs General'!$B45='DNSP Inputs General'!$A$42,K$48,IF('DNSP Inputs General'!$B45='DNSP Inputs General'!$A$43,K$49,K$50))*'DNSP Inputs General'!$D45*$C58","v":1284.9137696676644},{"$f":"IF('DNSP Inputs General'!$B45='DNSP Inputs General'!$A$42,L$48,IF('DNSP Inputs General'!$B45='DNSP Inputs General'!$A$43,L$49,L$50))*'DNSP Inputs General'!$D45*$C58","v":1284.9137696676644},{"$f":"IF('DNSP Inputs General'!$B45='DNSP Inputs General'!$A$42,M$48,IF('DNSP Inputs General'!$B45='DNSP Inputs General'!$A$43,M$49,M$50))*'DNSP Inputs General'!$D45*$C58","v":1284.9137696676644},{"$f":"IF('DNSP Inputs General'!$B45='DNSP Inputs General'!$A$42,N$48,IF('DNSP Inputs General'!$B45='DNSP Inputs General'!$A$43,N$49,N$50))*'DNSP Inputs General'!$D45*$C58","v":1284.9137696676644},{"$f":"IF('DNSP Inputs General'!$B45='DNSP Inputs General'!$A$42,O$48,IF('DNSP Inputs General'!$B45='DNSP Inputs General'!$A$43,O$49,O$50))*'DNSP Inputs General'!$D45*$C58","v":1284.9137696676644},{"$f":"IF('DNSP Inputs General'!$B45='DNSP Inputs General'!$A$42,P$48,IF('DNSP Inputs General'!$B45='DNSP Inputs General'!$A$43,P$49,P$50))*'DNSP Inputs General'!$D45*$C58","v":1284.9137696676644},{"$f":"IF('DNSP Inputs General'!$B45='DNSP Inputs General'!$A$42,Q$48,IF('DNSP Inputs General'!$B45='DNSP Inputs General'!$A$43,Q$49,Q$50))*'DNSP Inputs General'!$D45*$C58","v":1284.9137696676644},{"$f":"IF('DNSP Inputs General'!$B45='DNSP Inputs General'!$A$42,R$48,IF('DNSP Inputs General'!$B45='DNSP Inputs General'!$A$43,R$49,R$50))*'DNSP Inputs General'!$D45*$C58","v":1284.9137696676644},{"$f":"IF('DNSP Inputs General'!$B45='DNSP Inputs General'!$A$42,S$48,IF('DNSP Inputs General'!$B45='DNSP Inputs General'!$A$43,S$49,S$50))*'DNSP Inputs General'!$D45*$C58","v":1284.9137696676644},{"$f":"IF('DNSP Inputs General'!$B45='DNSP Inputs General'!$A$42,T$48,IF('DNSP Inputs General'!$B45='DNSP Inputs General'!$A$43,T$49,T$50))*'DNSP Inputs General'!$D45*$C58","v":1284.9137696676644},{"$f":"IF('DNSP Inputs General'!$B45='DNSP Inputs General'!$A$42,U$48,IF('DNSP Inputs General'!$B45='DNSP Inputs General'!$A$43,U$49,U$50))*'DNSP Inputs General'!$D45*$C58","v":1284.9137696676644},{"$f":"IF('DNSP Inputs General'!$B45='DNSP Inputs General'!$A$42,V$48,IF('DNSP Inputs General'!$B45='DNSP Inputs General'!$A$43,V$49,V$50))*'DNSP Inputs General'!$D45*$C58","v":642.45688483383219},{"$f":"IF('DNSP Inputs General'!$B45='DNSP Inputs General'!$A$42,W$48,IF('DNSP Inputs General'!$B45='DNSP Inputs General'!$A$43,W$49,W$50))*'DNSP Inputs General'!$D45*$C58","v":1284.9137696676644},{"$f":"IF('DNSP Inputs General'!$B45='DNSP Inputs General'!$A$42,X$48,IF('DNSP Inputs General'!$B45='DNSP Inputs General'!$A$43,X$49,X$50))*'DNSP Inputs General'!$D45*$C58","v":642.45688483383219},{"$f":"IF('DNSP Inputs General'!$B45='DNSP Inputs General'!$A$42,Y$48,IF('DNSP Inputs General'!$B45='DNSP Inputs General'!$A$43,Y$49,Y$50))*'DNSP Inputs General'!$D45*$C58","v":0},{"$f":"IF('DNSP Inputs General'!$B45='DNSP Inputs General'!$A$42,Z$48,IF('DNSP Inputs General'!$B45='DNSP Inputs General'!$A$43,Z$49,Z$50))*'DNSP Inputs General'!$D45*$C58","v":0},{"$f":"IF('DNSP Inputs General'!$B45='DNSP Inputs General'!$A$42,AA$48,IF('DNSP Inputs General'!$B45='DNSP Inputs General'!$A$43,AA$49,AA$50))*'DNSP Inputs General'!$D45*$C58","v":0}]
[{"$f":"'DNSP Inputs General'!A$46","v":"Mercury Vapour 125W"},null,908.95051917080264,null,{"$f":"IF('DNSP Inputs General'!$B46='DNSP Inputs General'!$A$42,E$48,IF('DNSP Inputs General'!$B46='DNSP Inputs General'!$A$43,E$49,E$50))*'DNSP Inputs General'!$D46*$C59","v":51390.691626790183},{"$f":"IF('DNSP Inputs General'!$B46='DNSP Inputs General'!$A$42,F$48,IF('DNSP Inputs General'!$B46='DNSP Inputs General'!$A$43,F$49,F$50))*'DNSP Inputs General'!$D46*$C59","v":2855.0384237105645},{"$f":"IF('DNSP Inputs General'!$B46='DNSP Inputs General'!$A$42,G$48,IF('DNSP Inputs General'!$B46='DNSP Inputs General'!$A$43,G$49,G$50))*'DNSP Inputs General'!$D46*$C59","v":2855.0384237105645},{"$f":"IF('DNSP Inputs General'!$B46='DNSP Inputs General'!$A$42,H$48,IF('DNSP Inputs General'!$B46='DNSP Inputs General'!$A$43,H$49,H$50))*'DNSP Inputs General'!$D46*$C59","v":2855.0384237105645},{"$f":"IF('DNSP Inputs General'!$B46='DNSP Inputs General'!$A$42,I$48,IF('DNSP Inputs General'!$B46='DNSP Inputs General'!$A$43,I$49,I$50))*'DNSP Inputs General'!$D46*$C59","v":2855.0384237105645},{"$f":"IF('DNSP Inputs General'!$B46='DNSP Inputs General'!$A$42,J$48,IF('DNSP Inputs General'!$B46='DNSP Inputs General'!$A$43,J$49,J$50))*'DNSP Inputs General'!$D46*$C59","v":2855.0384237105645},{"$f":"IF('DNSP Inputs General'!$B46='DNSP Inputs General'!$A$42,K$48,IF('DNSP Inputs General'!$B46='DNSP Inputs General'!$A$43,K$49,K$50))*'DNSP Inputs General'!$D46*$C59","v":2855.0384237105645},{"$f":"IF('DNSP Inputs General'!$B46='DNSP Inputs General'!$A$42,L$48,IF('DNSP Inputs General'!$B46='DNSP Inputs General'!$A$43,L$49,L$50))*'DNSP Inputs General'!$D46*$C59","v":2855.0384237105645},{"$f":"IF('DNSP Inputs General'!$B46='DNSP Inputs General'!$A$42,M$48,IF('DNSP Inputs General'!$B46='DNSP Inputs General'!$A$43,M$49,M$50))*'DNSP Inputs General'!$D46*$C59","v":2855.0384237105645},{"$f":"IF('DNSP Inputs General'!$B46='DNSP Inputs General'!$A$42,N$48,IF('DNSP Inputs General'!$B46='DNSP Inputs General'!$A$43,N$49,N$50))*'DNSP Inputs General'!$D46*$C59","v":2855.0384237105645},{"$f":"IF('DNSP Inputs General'!$B46='DNSP Inputs General'!$A$42,O$48,IF('DNSP Inputs General'!$B46='DNSP Inputs General'!$A$43,O$49,O$50))*'DNSP Inputs General'!$D46*$C59","v":2855.0384237105645},{"$f":"IF('DNSP Inputs General'!$B46='DNSP Inputs General'!$A$42,P$48,IF('DNSP Inputs General'!$B46='DNSP Inputs General'!$A$43,P$49,P$50))*'DNSP Inputs General'!$D46*$C59","v":2855.0384237105645},{"$f":"IF('DNSP Inputs General'!$B46='DNSP Inputs General'!$A$42,Q$48,IF('DNSP Inputs General'!$B46='DNSP Inputs General'!$A$43,Q$49,Q$50))*'DNSP Inputs General'!$D46*$C59","v":2855.0384237105645},{"$f":"IF('DNSP Inputs General'!$B46='DNSP Inputs General'!$A$42,R$48,IF('DNSP Inputs General'!$B46='DNSP Inputs General'!$A$43,R$49,R$50))*'DNSP Inputs General'!$D46*$C59","v":2855.0384237105645},{"$f":"IF('DNSP Inputs General'!$B46='DNSP Inputs General'!$A$42,S$48,IF('DNSP Inputs General'!$B46='DNSP Inputs General'!$A$43,S$49,S$50))*'DNSP Inputs General'!$D46*$C59","v":2855.0384237105645},{"$f":"IF('DNSP Inputs General'!$B46='DNSP Inputs General'!$A$42,T$48,IF('DNSP Inputs General'!$B46='DNSP Inputs General'!$A$43,T$49,T$50))*'DNSP Inputs General'!$D46*$C59","v":2855.0384237105645},{"$f":"IF('DNSP Inputs General'!$B46='DNSP Inputs General'!$A$42,U$48,IF('DNSP Inputs General'!$B46='DNSP Inputs General'!$A$43,U$49,U$50))*'DNSP Inputs General'!$D46*$C59","v":2855.0384237105645},{"$f":"IF('DNSP Inputs General'!$B46='DNSP Inputs General'!$A$42,V$48,IF('DNSP Inputs General'!$B46='DNSP Inputs General'!$A$43,V$49,V$50))*'DNSP Inputs General'!$D46*$C59","v":1427.5192118552823},{"$f":"IF('DNSP Inputs General'!$B46='DNSP Inputs General'!$A$42,W$48,IF('DNSP Inputs General'!$B46='DNSP Inputs General'!$A$43,W$49,W$50))*'DNSP Inputs General'!$D46*$C59","v":2855.0384237105645},{"$f":"IF('DNSP Inputs General'!$B46='DNSP Inputs General'!$A$42,X$48,IF('DNSP Inputs General'!$B46='DNSP Inputs General'!$A$43,X$49,X$50))*'DNSP Inputs General'!$D46*$C59","v":1427.5192118552823},{"$f":"IF('DNSP Inputs General'!$B46='DNSP Inputs General'!$A$42,Y$48,IF('DNSP Inputs General'!$B46='DNSP Inputs General'!$A$43,Y$49,Y$50))*'DNSP Inputs General'!$D46*$C59","v":0},{"$f":"IF('DNSP Inputs General'!$B46='DNSP Inputs General'!$A$42,Z$48,IF('DNSP Inputs General'!$B46='DNSP Inputs General'!$A$43,Z$49,Z$50))*'DNSP Inputs General'!$D46*$C59","v":0},{"$f":"IF('DNSP Inputs General'!$B46='DNSP Inputs General'!$A$42,AA$48,IF('DNSP Inputs General'!$B46='DNSP Inputs General'!$A$43,AA$49,AA$50))*'DNSP Inputs General'!$D46*$C59","v":0}]
[{"$f":"'DNSP Inputs General'!A$47","v":"Mercury Vapour 250W"},null,906.91934482628687,null,{"$f":"IF('DNSP Inputs General'!$B47='DNSP Inputs General'!$A$42,E$48,IF('DNSP Inputs General'!$B47='DNSP Inputs General'!$A$43,E$49,E$50))*'DNSP Inputs General'!$D47*$C60","v":44954.774890274864},{"$f":"IF('DNSP Inputs General'!$B47='DNSP Inputs General'!$A$42,F$48,IF('DNSP Inputs General'!$B47='DNSP Inputs General'!$A$43,F$49,F$50))*'DNSP Inputs General'!$D47*$C60","v":2497.4874939041588},{"$f":"IF('DNSP Inputs General'!$B47='DNSP Inputs General'!$A$42,G$48,IF('DNSP Inputs General'!$B47='DNSP Inputs General'!$A$43,G$49,G$50))*'DNSP Inputs General'!$D47*$C60","v":2497.4874939041588},{"$f":"IF('DNSP Inputs General'!$B47='DNSP Inputs General'!$A$42,H$48,IF('DNSP Inputs General'!$B47='DNSP Inputs General'!$A$43,H$49,H$50))*'DNSP Inputs General'!$D47*$C60","v":2497.4874939041588},{"$f":"IF('DNSP Inputs General'!$B47='DNSP Inputs General'!$A$42,I$48,IF('DNSP Inputs General'!$B47='DNSP Inputs General'!$A$43,I$49,I$50))*'DNSP Inputs General'!$D47*$C60","v":2497.4874939041588},{"$f":"IF('DNSP Inputs General'!$B47='DNSP Inputs General'!$A$42,J$48,IF('DNSP Inputs General'!$B47='DNSP Inputs General'!$A$43,J$49,J$50))*'DNSP Inputs General'!$D47*$C60","v":2497.4874939041588},{"$f":"IF('DNSP Inputs General'!$B47='DNSP Inputs General'!$A$42,K$48,IF('DNSP Inputs General'!$B47='DNSP Inputs General'!$A$43,K$49,K$50))*'DNSP Inputs General'!$D47*$C60","v":2497.4874939041588},{"$f":"IF('DNSP Inputs General'!$B47='DNSP Inputs General'!$A$42,L$48,IF('DNSP Inputs General'!$B47='DNSP Inputs General'!$A$43,L$49,L$50))*'DNSP Inputs General'!$D47*$C60","v":2497.4874939041588},{"$f":"IF('DNSP Inputs General'!$B47='DNSP Inputs General'!$A$42,M$48,IF('DNSP Inputs General'!$B47='DNSP Inputs General'!$A$43,M$49,M$50))*'DNSP Inputs General'!$D47*$C60","v":2497.4874939041588},{"$f":"IF('DNSP Inputs General'!$B47='DNSP Inputs General'!$A$42,N$48,IF('DNSP Inputs General'!$B47='DNSP Inputs General'!$A$43,N$49,N$50))*'DNSP Inputs General'!$D47*$C60","v":2497.4874939041588},{"$f":"IF('DNSP Inputs General'!$B47='DNSP Inputs General'!$A$42,O$48,IF('DNSP Inputs General'!$B47='DNSP Inputs General'!$A$43,O$49,O$50))*'DNSP Inputs General'!$D47*$C60","v":2497.4874939041588},{"$f":"IF('DNSP Inputs General'!$B47='DNSP Inputs General'!$A$42,P$48,IF('DNSP Inputs General'!$B47='DNSP Inputs General'!$A$43,P$49,P$50))*'DNSP Inputs General'!$D47*$C60","v":2497.4874939041588},{"$f":"IF('DNSP Inputs General'!$B47='DNSP Inputs General'!$A$42,Q$48,IF('DNSP Inputs General'!$B47='DNSP Inputs General'!$A$43,Q$49,Q$50))*'DNSP Inputs General'!$D47*$C60","v":2497.4874939041588},{"$f":"IF('DNSP Inputs General'!$B47='DNSP Inputs General'!$A$42,R$48,IF('DNSP Inputs General'!$B47='DNSP Inputs General'!$A$43,R$49,R$50))*'DNSP Inputs General'!$D47*$C60","v":2497.4874939041588},{"$f":"IF('DNSP Inputs General'!$B47='DNSP Inputs General'!$A$42,S$48,IF('DNSP Inputs General'!$B47='DNSP Inputs General'!$A$43,S$49,S$50))*'DNSP Inputs General'!$D47*$C60","v":2497.4874939041588},{"$f":"IF('DNSP Inputs General'!$B47='DNSP Inputs General'!$A$42,T$48,IF('DNSP Inputs General'!$B47='DNSP Inputs General'!$A$43,T$49,T$50))*'DNSP Inputs General'!$D47*$C60","v":2497.4874939041588},{"$f":"IF('DNSP Inputs General'!$B47='DNSP Inputs General'!$A$42,U$48,IF('DNSP Inputs General'!$B47='DNSP Inputs General'!$A$43,U$49,U$50))*'DNSP Inputs General'!$D47*$C60","v":2497.4874939041588},{"$f":"IF('DNSP Inputs General'!$B47='DNSP Inputs General'!$A$42,V$48,IF('DNSP Inputs General'!$B47='DNSP Inputs General'!$A$43,V$49,V$50))*'DNSP Inputs General'!$D47*$C60","v":1248.7437469520794},{"$f":"IF('DNSP Inputs General'!$B47='DNSP Inputs General'!$A$42,W$48,IF('DNSP Inputs General'!$B47='DNSP Inputs General'!$A$43,W$49,W$50))*'DNSP Inputs General'!$D47*$C60","v":2497.4874939041588},{"$f":"IF('DNSP Inputs General'!$B47='DNSP Inputs General'!$A$42,X$48,IF('DNSP Inputs General'!$B47='DNSP Inputs General'!$A$43,X$49,X$50))*'DNSP Inputs General'!$D47*$C60","v":1248.7437469520794},{"$f":"IF('DNSP Inputs General'!$B47='DNSP Inputs General'!$A$42,Y$48,IF('DNSP Inputs General'!$B47='DNSP Inputs General'!$A$43,Y$49,Y$50))*'DNSP Inputs General'!$D47*$C60","v":0},{"$f":"IF('DNSP Inputs General'!$B47='DNSP Inputs General'!$A$42,Z$48,IF('DNSP Inputs General'!$B47='DNSP Inputs General'!$A$43,Z$49,Z$50))*'DNSP Inputs General'!$D47*$C60","v":0},{"$f":"IF('DNSP Inputs General'!$B47='DNSP Inputs General'!$A$42,AA$48,IF('DNSP Inputs General'!$B47='DNSP Inputs General'!$A$43,AA$49,AA$50))*'DNSP Inputs General'!$D47*$C60","v":0}]
[{"$f":"'DNSP Inputs General'!A$48","v":"Mercury Vapour 400W"},null,156.40042452771351,null,{"$f":"IF('DNSP Inputs General'!$B48='DNSP Inputs General'!$A$42,E$48,IF('DNSP Inputs General'!$B48='DNSP Inputs General'!$A$43,E$49,E$50))*'DNSP Inputs General'!$D48*$C61","v":8047.8947507935136},{"$f":"IF('DNSP Inputs General'!$B48='DNSP Inputs General'!$A$42,F$48,IF('DNSP Inputs General'!$B48='DNSP Inputs General'!$A$43,F$49,F$50))*'DNSP Inputs General'!$D48*$C61","v":447.10526393297295},{"$f":"IF('DNSP Inputs General'!$B48='DNSP Inputs General'!$A$42,G$48,IF('DNSP Inputs General'!$B48='DNSP Inputs General'!$A$43,G$49,G$50))*'DNSP Inputs General'!$D48*$C61","v":447.10526393297295},{"$f":"IF('DNSP Inputs General'!$B48='DNSP Inputs General'!$A$42,H$48,IF('DNSP Inputs General'!$B48='DNSP Inputs General'!$A$43,H$49,H$50))*'DNSP Inputs General'!$D48*$C61","v":447.10526393297295},{"$f":"IF('DNSP Inputs General'!$B48='DNSP Inputs General'!$A$42,I$48,IF('DNSP Inputs General'!$B48='DNSP Inputs General'!$A$43,I$49,I$50))*'DNSP Inputs General'!$D48*$C61","v":447.10526393297295},{"$f":"IF('DNSP Inputs General'!$B48='DNSP Inputs General'!$A$42,J$48,IF('DNSP Inputs General'!$B48='DNSP Inputs General'!$A$43,J$49,J$50))*'DNSP Inputs General'!$D48*$C61","v":447.10526393297295},{"$f":"IF('DNSP Inputs General'!$B48='DNSP Inputs General'!$A$42,K$48,IF('DNSP Inputs General'!$B48='DNSP Inputs General'!$A$43,K$49,K$50))*'DNSP Inputs General'!$D48*$C61","v":447.10526393297295},{"$f":"IF('DNSP Inputs General'!$B48='DNSP Inputs General'!$A$42,L$48,IF('DNSP Inputs General'!$B48='DNSP Inputs General'!$A$43,L$49,L$50))*'DNSP Inputs General'!$D48*$C61","v":447.10526393297295},{"$f":"IF('DNSP Inputs General'!$B48='DNSP Inputs General'!$A$42,M$48,IF('DNSP Inputs General'!$B48='DNSP Inputs General'!$A$43,M$49,M$50))*'DNSP Inputs General'!$D48*$C61","v":447.10526393297295},{"$f":"IF('DNSP Inputs General'!$B48='DNSP Inputs General'!$A$42,N$48,IF('DNSP Inputs General'!$B48='DNSP Inputs General'!$A$43,N$49,N$50))*'DNSP Inputs General'!$D48*$C61","v":447.10526393297295},{"$f":"IF('DNSP Inputs General'!$B48='DNSP Inputs General'!$A$42,O$48,IF('DNSP Inputs General'!$B48='DNSP Inputs General'!$A$43,O$49,O$50))*'DNSP Inputs General'!$D48*$C61","v":447.10526393297295},{"$f":"IF('DNSP Inputs General'!$B48='DNSP Inputs General'!$A$42,P$48,IF('DNSP Inputs General'!$B48='DNSP Inputs General'!$A$43,P$49,P$50))*'DNSP Inputs General'!$D48*$C61","v":447.10526393297295},{"$f":"IF('DNSP Inputs General'!$B48='DNSP Inputs General'!$A$42,Q$48,IF('DNSP Inputs General'!$B48='DNSP Inputs General'!$A$43,Q$49,Q$50))*'DNSP Inputs General'!$D48*$C61","v":447.10526393297295},{"$f":"IF('DNSP Inputs General'!$B48='DNSP Inputs General'!$A$42,R$48,IF('DNSP Inputs General'!$B48='DNSP Inputs General'!$A$43,R$49,R$50))*'DNSP Inputs General'!$D48*$C61","v":447.10526393297295},{"$f":"IF('DNSP Inputs General'!$B48='DNSP Inputs General'!$A$42,S$48,IF('DNSP Inputs General'!$B48='DNSP Inputs General'!$A$43,S$49,S$50))*'DNSP Inputs General'!$D48*$C61","v":447.10526393297295},{"$f":"IF('DNSP Inputs General'!$B48='DNSP Inputs General'!$A$42,T$48,IF('DNSP Inputs General'!$B48='DNSP Inputs General'!$A$43,T$49,T$50))*'DNSP Inputs General'!$D48*$C61","v":447.10526393297295},{"$f":"IF('DNSP Inputs General'!$B48='DNSP Inputs General'!$A$42,U$48,IF('DNSP Inputs General'!$B48='DNSP Inputs General'!$A$43,U$49,U$50))*'DNSP Inputs General'!$D48*$C61","v":447.10526393297295},{"$f":"IF('DNSP Inputs General'!$B48='DNSP Inputs General'!$A$42,V$48,IF('DNSP Inputs General'!$B48='DNSP Inputs General'!$A$43,V$49,V$50))*'DNSP Inputs General'!$D48*$C61","v":223.55263196648647},{"$f":"IF('DNSP Inputs General'!$B48='DNSP Inputs General'!$A$42,W$48,IF('DNSP Inputs General'!$B48='DNSP Inputs General'!$A$43,W$49,W$50))*'DNSP Inputs General'!$D48*$C61","v":447.10526393297295},{"$f":"IF('DNSP Inputs General'!$B48='DNSP Inputs General'!$A$42,X$48,IF('DNSP Inputs General'!$B48='DNSP Inputs General'!$A$43,X$49,X$50))*'DNSP Inputs General'!$D48*$C61","v":223.55263196648647},{"$f":"IF('DNSP Inputs General'!$B48='DNSP Inputs General'!$A$42,Y$48,IF('DNSP Inputs General'!$B48='DNSP Inputs General'!$A$43,Y$49,Y$50))*'DNSP Inputs General'!$D48*$C61","v":0},{"$f":"IF('DNSP Inputs General'!$B48='DNSP Inputs General'!$A$42,Z$48,IF('DNSP Inputs General'!$B48='DNSP Inputs General'!$A$43,Z$49,Z$50))*'DNSP Inputs General'!$D48*$C61","v":0},{"$f":"IF('DNSP Inputs General'!$B48='DNSP Inputs General'!$A$42,AA$48,IF('DNSP Inputs General'!$B48='DNSP Inputs General'!$A$43,AA$49,AA$50))*'DNSP Inputs General'!$D48*$C61","v":0}]
[{"$f":"'DNSP Inputs General'!A$49","v":"HP Sodium 100W"},null,1699.0773391874332,null,{"$f":"IF('DNSP Inputs General'!$B49='DNSP Inputs General'!$A$42,E$48,IF('DNSP Inputs General'!$B49='DNSP Inputs General'!$A$43,E$49,E$50))*'DNSP Inputs General'!$D49*$C62","v":84136.540360897285},{"$f":"IF('DNSP Inputs General'!$B49='DNSP Inputs General'!$A$42,F$48,IF('DNSP Inputs General'!$B49='DNSP Inputs General'!$A$43,F$49,F$50))*'DNSP Inputs General'!$D49*$C62","v":4674.2522422720704},{"$f":"IF('DNSP Inputs General'!$B49='DNSP Inputs General'!$A$42,G$48,IF('DNSP Inputs General'!$B49='DNSP Inputs General'!$A$43,G$49,G$50))*'DNSP Inputs General'!$D49*$C62","v":4674.2522422720704},{"$f":"IF('DNSP Inputs General'!$B49='DNSP Inputs General'!$A$42,H$48,IF('DNSP Inputs General'!$B49='DNSP Inputs General'!$A$43,H$49,H$50))*'DNSP Inputs General'!$D49*$C62","v":4674.2522422720704},{"$f":"IF('DNSP Inputs General'!$B49='DNSP Inputs General'!$A$42,I$48,IF('DNSP Inputs General'!$B49='DNSP Inputs General'!$A$43,I$49,I$50))*'DNSP Inputs General'!$D49*$C62","v":4674.2522422720704},{"$f":"IF('DNSP Inputs General'!$B49='DNSP Inputs General'!$A$42,J$48,IF('DNSP Inputs General'!$B49='DNSP Inputs General'!$A$43,J$49,J$50))*'DNSP Inputs General'!$D49*$C62","v":4674.2522422720704},{"$f":"IF('DNSP Inputs General'!$B49='DNSP Inputs General'!$A$42,K$48,IF('DNSP Inputs General'!$B49='DNSP Inputs General'!$A$43,K$49,K$50))*'DNSP Inputs General'!$D49*$C62","v":4674.2522422720704},{"$f":"IF('DNSP Inputs General'!$B49='DNSP Inputs General'!$A$42,L$48,IF('DNSP Inputs General'!$B49='DNSP Inputs General'!$A$43,L$49,L$50))*'DNSP Inputs General'!$D49*$C62","v":4674.2522422720704},{"$f":"IF('DNSP Inputs General'!$B49='DNSP Inputs General'!$A$42,M$48,IF('DNSP Inputs General'!$B49='DNSP Inputs General'!$A$43,M$49,M$50))*'DNSP Inputs General'!$D49*$C62","v":4674.2522422720704},{"$f":"IF('DNSP Inputs General'!$B49='DNSP Inputs General'!$A$42,N$48,IF('DNSP Inputs General'!$B49='DNSP Inputs General'!$A$43,N$49,N$50))*'DNSP Inputs General'!$D49*$C62","v":4674.2522422720704},{"$f":"IF('DNSP Inputs General'!$B49='DNSP Inputs General'!$A$42,O$48,IF('DNSP Inputs General'!$B49='DNSP Inputs General'!$A$43,O$49,O$50))*'DNSP Inputs General'!$D49*$C62","v":4674.2522422720704},{"$f":"IF('DNSP Inputs General'!$B49='DNSP Inputs General'!$A$42,P$48,IF('DNSP Inputs General'!$B49='DNSP Inputs General'!$A$43,P$49,P$50))*'DNSP Inputs General'!$D49*$C62","v":4674.2522422720704},{"$f":"IF('DNSP Inputs General'!$B49='DNSP Inputs General'!$A$42,Q$48,IF('DNSP Inputs General'!$B49='DNSP Inputs General'!$A$43,Q$49,Q$50))*'DNSP Inputs General'!$D49*$C62","v":4674.2522422720704},{"$f":"IF('DNSP Inputs General'!$B49='DNSP Inputs General'!$A$42,R$48,IF('DNSP Inputs General'!$B49='DNSP Inputs General'!$A$43,R$49,R$50))*'DNSP Inputs General'!$D49*$C62","v":4674.2522422720704},{"$f":"IF('DNSP Inputs General'!$B49='DNSP Inputs General'!$A$42,S$48,IF('DNSP Inputs General'!$B49='DNSP Inputs General'!$A$43,S$49,S$50))*'DNSP Inputs General'!$D49*$C62","v":4674.2522422720704},{"$f":"IF('DNSP Inputs General'!$B49='DNSP Inputs General'!$A$42,T$48,IF('DNSP Inputs General'!$B49='DNSP Inputs General'!$A$43,T$49,T$50))*'DNSP Inputs General'!$D49*$C62","v":4674.2522422720704},{"$f":"IF('DNSP Inputs General'!$B49='DNSP Inputs General'!$A$42,U$48,IF('DNSP Inputs General'!$B49='DNSP Inputs General'!$A$43,U$49,U$50))*'DNSP Inputs General'!$D49*$C62","v":4674.2522422720704},{"$f":"IF('DNSP Inputs General'!$B49='DNSP Inputs General'!$A$42,V$48,IF('DNSP Inputs General'!$B49='DNSP Inputs General'!$A$43,V$49,V$50))*'DNSP Inputs General'!$D49*$C62","v":2337.1261211360352},{"$f":"IF('DNSP Inputs General'!$B49='DNSP Inputs General'!$A$42,W$48,IF('DNSP Inputs General'!$B49='DNSP Inputs General'!$A$43,W$49,W$50))*'DNSP Inputs General'!$D49*$C62","v":4674.2522422720704},{"$f":"IF('DNSP Inputs General'!$B49='DNSP Inputs General'!$A$42,X$48,IF('DNSP Inputs General'!$B49='DNSP Inputs General'!$A$43,X$49,X$50))*'DNSP Inputs General'!$D49*$C62","v":2337.1261211360352},{"$f":"IF('DNSP Inputs General'!$B49='DNSP Inputs General'!$A$42,Y$48,IF('DNSP Inputs General'!$B49='DNSP Inputs General'!$A$43,Y$49,Y$50))*'DNSP Inputs General'!$D49*$C62","v":0},{"$f":"IF('DNSP Inputs General'!$B49='DNSP Inputs General'!$A$42,Z$48,IF('DNSP Inputs General'!$B49='DNSP Inputs General'!$A$43,Z$49,Z$50))*'DNSP Inputs General'!$D49*$C62","v":0},{"$f":"IF('DNSP Inputs General'!$B49='DNSP Inputs General'!$A$42,AA$48,IF('DNSP Inputs General'!$B49='DNSP Inputs General'!$A$43,AA$49,AA$50))*'DNSP Inputs General'!$D49*$C62","v":0}]
[{"$f":"'DNSP Inputs General'!A$50","v":"HP Sodium 400W"},null,295.53586712704305,null,{"$f":"IF('DNSP Inputs General'!$B50='DNSP Inputs General'!$A$42,E$48,IF('DNSP Inputs General'!$B50='DNSP Inputs General'!$A$43,E$49,E$50))*'DNSP Inputs General'!$D50*$C63","v":19811.456385814938},{"$f":"IF('DNSP Inputs General'!$B50='DNSP Inputs General'!$A$42,F$48,IF('DNSP Inputs General'!$B50='DNSP Inputs General'!$A$43,F$49,F$50))*'DNSP Inputs General'!$D50*$C63","v":1100.6364658786074},{"$f":"IF('DNSP Inputs General'!$B50='DNSP Inputs General'!$A$42,G$48,IF('DNSP Inputs General'!$B50='DNSP Inputs General'!$A$43,G$49,G$50))*'DNSP Inputs General'!$D50*$C63","v":1100.6364658786074},{"$f":"IF('DNSP Inputs General'!$B50='DNSP Inputs General'!$A$42,H$48,IF('DNSP Inputs General'!$B50='DNSP Inputs General'!$A$43,H$49,H$50))*'DNSP Inputs General'!$D50*$C63","v":1100.6364658786074},{"$f":"IF('DNSP Inputs General'!$B50='DNSP Inputs General'!$A$42,I$48,IF('DNSP Inputs General'!$B50='DNSP Inputs General'!$A$43,I$49,I$50))*'DNSP Inputs General'!$D50*$C63","v":1100.6364658786074},{"$f":"IF('DNSP Inputs General'!$B50='DNSP Inputs General'!$A$42,J$48,IF('DNSP Inputs General'!$B50='DNSP Inputs General'!$A$43,J$49,J$50))*'DNSP Inputs General'!$D50*$C63","v":1100.6364658786074},{"$f":"IF('DNSP Inputs General'!$B50='DNSP Inputs General'!$A$42,K$48,IF('DNSP Inputs General'!$B50='DNSP Inputs General'!$A$43,K$49,K$50))*'DNSP Inputs General'!$D50*$C63","v":1100.6364658786074},{"$f":"IF('DNSP Inputs General'!$B50='DNSP Inputs General'!$A$42,L$48,IF('DNSP Inputs General'!$B50='DNSP Inputs General'!$A$43,L$49,L$50))*'DNSP Inputs General'!$D50*$C63","v":1100.6364658786074},{"$f":"IF('DNSP Inputs General'!$B50='DNSP Inputs General'!$A$42,M$48,IF('DNSP Inputs General'!$B50='DNSP Inputs General'!$A$43,M$49,M$50))*'DNSP Inputs General'!$D50*$C63","v":1100.6364658786074},{"$f":"IF('DNSP Inputs General'!$B50='DNSP Inputs General'!$A$42,N$48,IF('DNSP Inputs General'!$B50='DNSP Inputs General'!$A$43,N$49,N$50))*'DNSP Inputs General'!$D50*$C63","v":1100.6364658786074},{"$f":"IF('DNSP Inputs General'!$B50='DNSP Inputs General'!$A$42,O$48,IF('DNSP Inputs General'!$B50='DNSP Inputs General'!$A$43,O$49,O$50))*'DNSP Inputs General'!$D50*$C63","v":1100.6364658786074},{"$f":"IF('DNSP Inputs General'!$B50='DNSP Inputs General'!$A$42,P$48,IF('DNSP Inputs General'!$B50='DNSP Inputs General'!$A$43,P$49,P$50))*'DNSP Inputs General'!$D50*$C63","v":1100.6364658786074},{"$f":"IF('DNSP Inputs General'!$B50='DNSP Inputs General'!$A$42,Q$48,IF('DNSP Inputs General'!$B50='DNSP Inputs General'!$A$43,Q$49,Q$50))*'DNSP Inputs General'!$D50*$C63","v":1100.6364658786074},{"$f":"IF('DNSP Inputs General'!$B50='DNSP Inputs General'!$A$42,R$48,IF('DNSP Inputs General'!$B50='DNSP Inputs General'!$A$43,R$49,R$50))*'DNSP Inputs General'!$D50*$C63","v":1100.6364658786074},{"$f":"IF('DNSP Inputs General'!$B50='DNSP Inputs General'!$A$42,S$48,IF('DNSP Inputs General'!$B50='DNSP Inputs General'!$A$43,S$49,S$50))*'DNSP Inputs General'!$D50*$C63","v":1100.6364658786074},{"$f":"IF('DNSP Inputs General'!$B50='DNSP Inputs General'!$A$42,T$48,IF('DNSP Inputs General'!$B50='DNSP Inputs General'!$A$43,T$49,T$50))*'DNSP Inputs General'!$D50*$C63","v":1100.6364658786074},{"$f":"IF('DNSP Inputs General'!$B50='DNSP Inputs General'!$A$42,U$48,IF('DNSP Inputs General'!$B50='DNSP Inputs General'!$A$43,U$49,U$50))*'DNSP Inputs General'!$D50*$C63","v":1100.6364658786074},{"$f":"IF('DNSP Inputs General'!$B50='DNSP Inputs General'!$A$42,V$48,IF('DNSP Inputs General'!$B50='DNSP Inputs General'!$A$43,V$49,V$50))*'DNSP Inputs General'!$D50*$C63","v":550.3182329393037},{"$f":"IF('DNSP Inputs General'!$B50='DNSP Inputs General'!$A$42,W$48,IF('DNSP Inputs General'!$B50='DNSP Inputs General'!$A$43,W$49,W$50))*'DNSP Inputs General'!$D50*$C63","v":1100.6364658786074},{"$f":"IF('DNSP Inputs General'!$B50='DNSP Inputs General'!$A$42,X$48,IF('DNSP Inputs General'!$B50='DNSP Inputs General'!$A$43,X$49,X$50))*'DNSP Inputs General'!$D50*$C63","v":550.3182329393037},{"$f":"IF('DNSP Inputs General'!$B50='DNSP Inputs General'!$A$42,Y$48,IF('DNSP Inputs General'!$B50='DNSP Inputs General'!$A$43,Y$49,Y$50))*'DNSP Inputs General'!$D50*$C63","v":0},{"$f":"IF('DNSP Inputs General'!$B50='DNSP Inputs General'!$A$42,Z$48,IF('DNSP Inputs General'!$B50='DNSP Inputs General'!$A$43,Z$49,Z$50))*'DNSP Inputs General'!$D50*$C63","v":0},{"$f":"IF('DNSP Inputs General'!$B50='DNSP Inputs General'!$A$42,AA$48,IF('DNSP Inputs General'!$B50='DNSP Inputs General'!$A$43,AA$49,AA$50))*'DNSP Inputs General'!$D50*$C63","v":0}]
[]
[]
[]
[]
[]
[]
[]
[]
[]
[]
[]
[]
[]
[null,null,null,null,{"$f":"SUM(E55:E76)","v":3464914.3983574007},{"$f":"SUM(F55:F76)","v":192495.24435318893},192495.24435318893,192495.24435318893,192495.24435318893,192495.24435318893,192495.24435318893,192495.24435318893,192495.24435318893,192495.24435318893,192495.24435318893,192495.24435318893,192495.24435318893,{"$f":"SUM(R55:R76)","v":192495.24435318893},{"$f":"SUM(S55:S76)","v":192495.24435318893},192495.24435318893,192495.24435318893,{"$f":"SUM(V55:V76)","v":96247.622176594465},192495.24435318893,96247.622176594465,0,0,0]
[]
["WDV",null,null,null,{"$f":"E77","v":3464914.3983574007},{"$f":"E79-F77","v":3272419.1540042115},{"$f":"F79-G77","v":3079923.9096510224},2887428.6652978333,2694933.4209446441,2502438.176591455,2309942.9322382659,2117447.6878850767,1924952.4435318878,1732457.1991786989,1539961.95482551,1347466.7104723211,1154971.4661191322,962476.22176594334,769980.97741275444,577485.73305956554,384990.48870637664,288742.86652978219,96247.622176593257,-1.2078089639544487E-9,-1.2078089639544487E-9,-1.2078089639544487E-9,-1.2078089639544487E-9]
[]
[]
["Poles & Brackets"]
["Depreciation",null,null,null,"Closing RAB per unit","Depreciation per unit"]
[null,null,null,null,{"$f":"E$47","v":2004},2005,2006,2007,2008,2009,2010,2011,2012,2013,2014,2015,2016,2017,2018,2019,2020,{"$f":"V$47","v":"HY2021"},{"$f":"W$47","v":"2022-06-30"},"2023-06-30","2024-06-30","2025-06-30","2026-06-30",{"$f":"EOMONTH(AA84,12)","v":"2027-06-30"},{"$f":"EOMONTH(AB84,12)","v":"2028-06-30"},"2029-06-30","2030-06-30","2031-06-30","2032-06-30","2033-06-30","2034-06-30","2035-06-30","2036-06-30","2037-06-30","2038-06-30","2039-06-30"]
[{"$f":"'RAB 2001 to 2004 Central'!A$28","v":"Dedicated poles"},null,null,null,{"$f":"F185+F186/2","v":30.187130915368446},{"$f":"F186","v":0.91476154288995293},{"$f":"G186","v":0.91476154288995293},0.91476154288995293,0.91476154288995293,0.91476154288995293,0.91476154288995293,0.91476154288995293,0.91476154288995293,0.91476154288995293,0.91476154288995293,0.91476154288995293,0.91476154288995293,0.91476154288995293,0.91476154288995293,0.91476154288995293,0.91476154288995293,{"$f":"V186","v":0.45738077144497646},0.91476154288995293,0.91476154288995293,0.91476154288995293,0.91476154288995293,0.91476154288995293,{"$f":"AB186","v":0.91476154288995293},0.91476154288995293,0.91476154288995293,0.91476154288995293,0.91476154288995293,0.91476154288995293,0.91476154288995293,0.91476154288995293,0.91476154288995293,0.91476154288995293,0.91476154288995293,0.45738077144497646,0]
[{"$f":"'RAB 2001 to 2004 Central'!A$33","v":"Brackets"},null,null,null,{"$f":"F199+F200/2","v":6.2063546092773541},{"$f":"F200","v":0.18807135179628345},{"$f":"G200","v":0.18807135179628345},0.18807135179628345,0.18807135179628345,0.18807135179628345,0.18807135179628345,0.18807135179628345,0.18807135179628345,0.18807135179628345,0.18807135179628345,0.18807135179628345,0.18807135179628345,0.18807135179628345,0.18807135179628345,0.18807135179628345,0.18807135179628345,{"$f":"V200","v":9.4035675898141727E-2},0.18807135179628345,0.18807135179628345,0.18807135179628345,0.18807135179628345,0.18807135179628345,{"$f":"AB200","v":0.18807135179628345},0.18807135179628345,0.18807135179628345,0.18807135179628345,0.18807135179628345,0.18807135179628345,0.18807135179628345,0.18807135179628345,0.18807135179628345,0.18807135179628345,0.18807135179628345,9.4035675898141727E-2,0]
[null,null,null,null,{"$f":"SUM(E85:E86)","v":36.393485524645797},{"$f":"SUM(F85:F86)","v":1.1028328946862365},{"$f":"SUM(G85:G86)","v":1.1028328946862365},1.1028328946862365,1.1028328946862365,1.1028328946862365,1.1028328946862365,1.1028328946862365,1.1028328946862365,1.1028328946862365,1.1028328946862365,1.1028328946862365,1.1028328946862365,1.1028328946862365,1.1028328946862365,1.1028328946862365,1.1028328946862365,{"$f":"SUM(V85:V86)","v":0.55141644734311823},1.1028328946862365,1.1028328946862365,1.1028328946862365,1.1028328946862365,1.1028328946862365,{"$f":"SUM(AB85:AB86)","v":1.1028328946862365},1.1028328946862365,1.1028328946862365,1.1028328946862365,1.1028328946862365,1.1028328946862365,1.1028328946862365,1.1028328946862365,1.1028328946862365,1.1028328946862365,1.1028328946862365,0.55141644734311823,0]
[]
[]
["Light Type",null,"Assumed",null,"Closing RAB","Depreciation"]
[null,null," 2004 Volumes",null,{"$f":"E$47","v":2004},2005,2006,2007,2008,2009,2010,2011,2012,2013,2014,2015,2016,2017,2018,2019,2020,{"$f":"V$47","v":"HY2021"},{"$f":"W$47","v":"2022-06-30"},"2023-06-30","2024-06-30","2025-06-30","2026-06-30",{"$f":"AB$84","v":"2027-06-30"},"2028-06-30","2029-06-30","2030-06-30","2031-06-30","2032-06-30","2033-06-30","2034-06-30","2035-06-30","2036-06-30","2037-06-30","2038-06-30","2039-06-30"]
[{"$f":"'DNSP Inputs General'!A$42","v":"Mercury Vapour 80W"},null,{"$f":"C$55","v":63176.295125504752},null,{"$f":"E$87*$C92","v":2299205.5821508081},{"$f":"F$87*$C92","v":69672.896428812383},69672.896428812383,69672.896428812383,69672.896428812383,69672.896428812383,69672.896428812383,69672.896428812383,69672.896428812383,69672.896428812383,69672.896428812383,69672.896428812383,69672.896428812383,{"$f":"R$87*$C92","v":69672.896428812383},{"$f":"S$87*$C92","v":69672.896428812383},69672.896428812383,69672.896428812383,34836.448214406191,69672.896428812383,69672.896428812383,69672.896428812383,69672.896428812383,69672.896428812383,69672.896428812383,69672.896428812383,69672.896428812383,69672.896428812383,69672.896428812383,69672.896428812383,69672.896428812383,{"$f":"AI$87*$C92","v":69672.896428812383},69672.896428812383,69672.896428812383,69672.896428812383,34836.448214406191,0]
[{"$f":"'DNSP Inputs General'!A$43","v":"HP Sodium 150W"},null,{"$f":"C$56","v":11309.578750263752},null,{"$f":"E$87*$C93","v":411594.99053756555},12472.575470835323,12472.575470835323,12472.575470835323,12472.575470835323,12472.575470835323,12472.575470835323,12472.575470835323,12472.575470835323,12472.575470835323,12472.575470835323,12472.575470835323,12472.575470835323,{"$f":"R$87*$C93","v":12472.575470835323},12472.575470835323,12472.575470835323,12472.575470835323,6236.2877354176617,12472.575470835323,12472.575470835323,12472.575470835323,12472.575470835323,12472.575470835323,12472.575470835323,12472.575470835323,12472.575470835323,12472.575470835323,12472.575470835323,12472.575470835323,12472.575470835323,12472.575470835323,12472.575470835323,12472.575470835323,12472.575470835323,6236.2877354176617,0]
[{"$f":"'DNSP Inputs General'!A$44","v":"HP Sodium 250W"},null,{"$f":"C$57","v":5935.0914346750506},null,{"$f":"E$87*$C94","v":215998.66421529572},6545.4140671301739,6545.4140671301739,6545.4140671301739,6545.4140671301739,6545.4140671301739,6545.4140671301739,6545.4140671301739,6545.4140671301739,6545.4140671301739,6545.4140671301739,6545.4140671301739,6545.4140671301739,{"$f":"R$87*$C94","v":6545.4140671301739},6545.4140671301739,6545.4140671301739,6545.4140671301739,3272.7070335650869,6545.4140671301739,6545.4140671301739,6545.4140671301739,6545.4140671301739,6545.4140671301739,6545.4140671301739,6545.4140671301739,6545.4140671301739,6545.4140671301739,6545.4140671301739,6545.4140671301739,6545.4140671301739,6545.4140671301739,6545.4140671301739,6545.4140671301739,6545.4140671301739,3272.7070335650869,0]
[{"$f":"'DNSP Inputs General'!A$45","v":"Mercury Vapour 50W"},null,{"$f":"C$58","v":393.03223566379955},null,{"$f":"E$87*'DNSP Inputs General'!$D45*$C95","v":21884.833858404985},{"$f":"F$87*'DNSP Inputs General'!$D45*$C95","v":663.17678358803005},{"$f":"G$87*'DNSP Inputs General'!$D45*$C95","v":663.17678358803005},{"$f":"H$87*'DNSP Inputs General'!$D45*$C95","v":663.17678358803005},{"$f":"I$87*'DNSP Inputs General'!$D45*$C95","v":663.17678358803005},{"$f":"J$87*'DNSP Inputs General'!$D45*$C95","v":663.17678358803005},{"$f":"K$87*'DNSP Inputs General'!$D45*$C95","v":663.17678358803005},{"$f":"L$87*'DNSP Inputs General'!$D45*$C95","v":663.17678358803005},{"$f":"M$87*'DNSP Inputs General'!$D45*$C95","v":663.17678358803005},{"$f":"N$87*'DNSP Inputs General'!$D45*$C95","v":663.17678358803005},{"$f":"O$87*'DNSP Inputs General'!$D45*$C95","v":663.17678358803005},{"$f":"P$87*'DNSP Inputs General'!$D45*$C95","v":663.17678358803005},{"$f":"Q$87*'DNSP Inputs General'!$D45*$C95","v":663.17678358803005},{"$f":"R$87*'DNSP Inputs General'!$D45*$C95","v":663.17678358803005},{"$f":"S$87*'DNSP Inputs General'!$D45*$C95","v":663.17678358803005},{"$f":"T$87*'DNSP Inputs General'!$D45*$C95","v":663.17678358803005},{"$f":"U$87*'DNSP Inputs General'!$D45*$C95","v":663.17678358803005},{"$f":"V$87*'DNSP Inputs General'!$D45*$C95","v":331.58839179401502},{"$f":"W$87*'DNSP Inputs General'!$D45*$C95","v":663.17678358803005},{"$f":"X$87*'DNSP Inputs General'!$D45*$C95","v":663.17678358803005},{"$f":"Y$87*'DNSP Inputs General'!$D45*$C95","v":663.17678358803005},{"$f":"Z$87*'DNSP Inputs General'!$D45*$C95","v":663.17678358803005},{"$f":"AA$87*'DNSP Inputs General'!$D45*$C95","v":663.17678358803005},{"$f":"AB$87*'DNSP Inputs General'!$D45*$C95","v":663.17678358803005},{"$f":"AC$87*'DNSP Inputs General'!$D45*$C95","v":663.17678358803005},{"$f":"AD$87*'DNSP Inputs General'!$D45*$C95","v":663.17678358803005},{"$f":"AE$87*'DNSP Inputs General'!$D45*$C95","v":663.17678358803005},{"$f":"AF$87*'DNSP Inputs General'!$D45*$C95","v":663.17678358803005},{"$f":"AG$87*'DNSP Inputs General'!$D45*$C95","v":663.17678358803005},{"$f":"AH$87*'DNSP Inputs General'!$D45*$C95","v":663.17678358803005},{"$f":"AI$87*'DNSP Inputs General'!$D45*$C95","v":663.17678358803005},{"$f":"AJ$87*'DNSP Inputs General'!$D45*$C95","v":663.17678358803005},{"$f":"AK$87*'DNSP Inputs General'!$D45*$C95","v":663.17678358803005},{"$f":"AL$87*'DNSP Inputs General'!$D45*$C95","v":663.17678358803005},{"$f":"AM$87*'DNSP Inputs General'!$D45*$C95","v":331.58839179401502},{"$f":"AN$87*'DNSP Inputs General'!$D45*$C95","v":0}]
[{"$f":"'DNSP Inputs General'!A$46","v":"Mercury Vapour 125W"},null,{"$f":"C$59","v":908.95051917080264},null,{"$f":"E$87*'DNSP Inputs General'!$D46*$C96","v":48627.420016230979},{"$f":"F$87*'DNSP Inputs General'!$D46*$C96","v":1473.5581823100297},{"$f":"G$87*'DNSP Inputs General'!$D46*$C96","v":1473.5581823100297},{"$f":"H$87*'DNSP Inputs General'!$D46*$C96","v":1473.5581823100297},{"$f":"I$87*'DNSP Inputs General'!$D46*$C96","v":1473.5581823100297},{"$f":"J$87*'DNSP Inputs General'!$D46*$C96","v":1473.5581823100297},{"$f":"K$87*'DNSP Inputs General'!$D46*$C96","v":1473.5581823100297},{"$f":"L$87*'DNSP Inputs General'!$D46*$C96","v":1473.5581823100297},{"$f":"M$87*'DNSP Inputs General'!$D46*$C96","v":1473.5581823100297},{"$f":"N$87*'DNSP Inputs General'!$D46*$C96","v":1473.5581823100297},{"$f":"O$87*'DNSP Inputs General'!$D46*$C96","v":1473.5581823100297},{"$f":"P$87*'DNSP Inputs General'!$D46*$C96","v":1473.5581823100297},{"$f":"Q$87*'DNSP Inputs General'!$D46*$C96","v":1473.5581823100297},{"$f":"R$87*'DNSP Inputs General'!$D46*$C96","v":1473.5581823100297},{"$f":"S$87*'DNSP Inputs General'!$D46*$C96","v":1473.5581823100297},{"$f":"T$87*'DNSP Inputs General'!$D46*$C96","v":1473.5581823100297},{"$f":"U$87*'DNSP Inputs General'!$D46*$C96","v":1473.5581823100297},{"$f":"V$87*'DNSP Inputs General'!$D46*$C96","v":736.77909115501484},{"$f":"W$87*'DNSP Inputs General'!$D46*$C96","v":1473.5581823100297},{"$f":"X$87*'DNSP Inputs General'!$D46*$C96","v":1473.5581823100297},{"$f":"Y$87*'DNSP Inputs General'!$D46*$C96","v":1473.5581823100297},{"$f":"Z$87*'DNSP Inputs General'!$D46*$C96","v":1473.5581823100297},{"$f":"AA$87*'DNSP Inputs General'!$D46*$C96","v":1473.5581823100297},{"$f":"AB$87*'DNSP Inputs General'!$D46*$C96","v":1473.5581823100297},{"$f":"AC$87*'DNSP Inputs General'!$D46*$C96","v":1473.5581823100297},{"$f":"AD$87*'DNSP Inputs General'!$D46*$C96","v":1473.5581823100297},{"$f":"AE$87*'DNSP Inputs General'!$D46*$C96","v":1473.5581823100297},{"$f":"AF$87*'DNSP Inputs General'!$D46*$C96","v":1473.5581823100297},{"$f":"AG$87*'DNSP Inputs General'!$D46*$C96","v":1473.5581823100297},{"$f":"AH$87*'DNSP Inputs General'!$D46*$C96","v":1473.5581823100297},{"$f":"AI$87*'DNSP Inputs General'!$D46*$C96","v":1473.5581823100297},{"$f":"AJ$87*'DNSP Inputs General'!$D46*$C96","v":1473.5581823100297},{"$f":"AK$87*'DNSP Inputs General'!$D46*$C96","v":1473.5581823100297},{"$f":"AL$87*'DNSP Inputs General'!$D46*$C96","v":1473.5581823100297},{"$f":"AM$87*'DNSP Inputs General'!$D46*$C96","v":736.77909115501484},{"$f":"AN$87*'DNSP Inputs General'!$D46*$C96","v":0}]
[{"$f":"'DNSP Inputs General'!A$47","v":"Mercury Vapour 250W"},null,{"$f":"C$60","v":906.91934482628687},null,{"$f":"E$87*'DNSP Inputs General'!$D47*$C97","v":34656.253850354558},{"$f":"F$87*'DNSP Inputs General'!$D47*$C97","v":1050.1895106168049},{"$f":"G$87*'DNSP Inputs General'!$D47*$C97","v":1050.1895106168049},{"$f":"H$87*'DNSP Inputs General'!$D47*$C97","v":1050.1895106168049},{"$f":"I$87*'DNSP Inputs General'!$D47*$C97","v":1050.1895106168049},{"$f":"J$87*'DNSP Inputs General'!$D47*$C97","v":1050.1895106168049},{"$f":"K$87*'DNSP Inputs General'!$D47*$C97","v":1050.1895106168049},{"$f":"L$87*'DNSP Inputs General'!$D47*$C97","v":1050.1895106168049},{"$f":"M$87*'DNSP Inputs General'!$D47*$C97","v":1050.1895106168049},{"$f":"N$87*'DNSP Inputs General'!$D47*$C97","v":1050.1895106168049},{"$f":"O$87*'DNSP Inputs General'!$D47*$C97","v":1050.1895106168049},{"$f":"P$87*'DNSP Inputs General'!$D47*$C97","v":1050.1895106168049},{"$f":"Q$87*'DNSP Inputs General'!$D47*$C97","v":1050.1895106168049},{"$f":"R$87*'DNSP Inputs General'!$D47*$C97","v":1050.1895106168049},{"$f":"S$87*'DNSP Inputs General'!$D47*$C97","v":1050.1895106168049},{"$f":"T$87*'DNSP Inputs General'!$D47*$C97","v":1050.1895106168049},{"$f":"U$87*'DNSP Inputs General'!$D47*$C97","v":1050.1895106168049},{"$f":"V$87*'DNSP Inputs General'!$D47*$C97","v":525.09475530840245},{"$f":"W$87*'DNSP Inputs General'!$D47*$C97","v":1050.1895106168049},{"$f":"X$87*'DNSP Inputs General'!$D47*$C97","v":1050.1895106168049},{"$f":"Y$87*'DNSP Inputs General'!$D47*$C97","v":1050.1895106168049},{"$f":"Z$87*'DNSP Inputs General'!$D47*$C97","v":1050.1895106168049},{"$f":"AA$87*'DNSP Inputs General'!$D47*$C97","v":1050.1895106168049},{"$f":"AB$87*'DNSP Inputs General'!$D47*$C97","v":1050.1895106168049},{"$f":"AC$87*'DNSP Inputs General'!$D47*$C97","v":1050.1895106168049},{"$f":"AD$87*'DNSP Inputs General'!$D47*$C97","v":1050.1895106168049},{"$f":"AE$87*'DNSP Inputs General'!$D47*$C97","v":1050.1895106168049},{"$f":"AF$87*'DNSP Inputs General'!$D47*$C97","v":1050.1895106168049},{"$f":"AG$87*'DNSP Inputs General'!$D47*$C97","v":1050.1895106168049},{"$f":"AH$87*'DNSP Inputs General'!$D47*$C97","v":1050.1895106168049},{"$f":"AI$87*'DNSP Inputs General'!$D47*$C97","v":1050.1895106168049},{"$f":"AJ$87*'DNSP Inputs General'!$D47*$C97","v":1050.1895106168049},{"$f":"AK$87*'DNSP Inputs General'!$D47*$C97","v":1050.1895106168049},{"$f":"AL$87*'DNSP Inputs General'!$D47*$C97","v":1050.1895106168049},{"$f":"AM$87*'DNSP Inputs General'!$D47*$C97","v":525.09475530840245},{"$f":"AN$87*'DNSP Inputs General'!$D47*$C97","v":0}]
[{"$f":"'DNSP Inputs General'!A$48","v":"Mercury Vapour 400W"},null,{"$f":"C$61","v":156.40042452771351},null,{"$f":"E$87*'DNSP Inputs General'!$D48*$C98","v":6204.2326788466016},{"$f":"F$87*'DNSP Inputs General'!$D48*$C98","v":188.00705087413948},{"$f":"G$87*'DNSP Inputs General'!$D48*$C98","v":188.00705087413948},{"$f":"H$87*'DNSP Inputs General'!$D48*$C98","v":188.00705087413948},{"$f":"I$87*'DNSP Inputs General'!$D48*$C98","v":188.00705087413948},{"$f":"J$87*'DNSP Inputs General'!$D48*$C98","v":188.00705087413948},{"$f":"K$87*'DNSP Inputs General'!$D48*$C98","v":188.00705087413948},{"$f":"L$87*'DNSP Inputs General'!$D48*$C98","v":188.00705087413948},{"$f":"M$87*'DNSP Inputs General'!$D48*$C98","v":188.00705087413948},{"$f":"N$87*'DNSP Inputs General'!$D48*$C98","v":188.00705087413948},{"$f":"O$87*'DNSP Inputs General'!$D48*$C98","v":188.00705087413948},{"$f":"P$87*'DNSP Inputs General'!$D48*$C98","v":188.00705087413948},{"$f":"Q$87*'DNSP Inputs General'!$D48*$C98","v":188.00705087413948},{"$f":"R$87*'DNSP Inputs General'!$D48*$C98","v":188.00705087413948},{"$f":"S$87*'DNSP Inputs General'!$D48*$C98","v":188.00705087413948},{"$f":"T$87*'DNSP Inputs General'!$D48*$C98","v":188.00705087413948},{"$f":"U$87*'DNSP Inputs General'!$D48*$C98","v":188.00705087413948},{"$f":"V$87*'DNSP Inputs General'!$D48*$C98","v":94.00352543706974},{"$f":"W$87*'DNSP Inputs General'!$D48*$C98","v":188.00705087413948},{"$f":"X$87*'DNSP Inputs General'!$D48*$C98","v":188.00705087413948},{"$f":"Y$87*'DNSP Inputs General'!$D48*$C98","v":188.00705087413948},{"$f":"Z$87*'DNSP Inputs General'!$D48*$C98","v":188.00705087413948},{"$f":"AA$87*'DNSP Inputs General'!$D48*$C98","v":188.00705087413948},{"$f":"AB$87*'DNSP Inputs General'!$D48*$C98","v":188.00705087413948},{"$f":"AC$87*'DNSP Inputs General'!$D48*$C98","v":188.00705087413948},{"$f":"AD$87*'DNSP Inputs General'!$D48*$C98","v":188.00705087413948},{"$f":"AE$87*'DNSP Inputs General'!$D48*$C98","v":188.00705087413948},{"$f":"AF$87*'DNSP Inputs General'!$D48*$C98","v":188.00705087413948},{"$f":"AG$87*'DNSP Inputs General'!$D48*$C98","v":188.00705087413948},{"$f":"AH$87*'DNSP Inputs General'!$D48*$C98","v":188.00705087413948},{"$f":"AI$87*'DNSP Inputs General'!$D48*$C98","v":188.00705087413948},{"$f":"AJ$87*'DNSP Inputs General'!$D48*$C98","v":188.00705087413948},{"$f":"AK$87*'DNSP Inputs General'!$D48*$C98","v":188.00705087413948},{"$f":"AL$87*'DNSP Inputs General'!$D48*$C98","v":188.00705087413948},{"$f":"AM$87*'DNSP Inputs General'!$D48*$C98","v":94.00352543706974},{"$f":"AN$87*'DNSP Inputs General'!$D48*$C98","v":0}]
[{"$f":"'DNSP Inputs General'!A$49","v":"HP Sodium 100W"},null,{"$f":"C$62","v":1699.0773391874332},null,{"$f":"E$87*'DNSP Inputs General'!$D49*$C99","v":66163.820807399563},{"$f":"F$87*'DNSP Inputs General'!$D49*$C99","v":2004.9642668908962},{"$f":"G$87*'DNSP Inputs General'!$D49*$C99","v":2004.9642668908962},{"$f":"H$87*'DNSP Inputs General'!$D49*$C99","v":2004.9642668908962},{"$f":"I$87*'DNSP Inputs General'!$D49*$C99","v":2004.9642668908962},{"$f":"J$87*'DNSP Inputs General'!$D49*$C99","v":2004.9642668908962},{"$f":"K$87*'DNSP Inputs General'!$D49*$C99","v":2004.9642668908962},{"$f":"L$87*'DNSP Inputs General'!$D49*$C99","v":2004.9642668908962},{"$f":"M$87*'DNSP Inputs General'!$D49*$C99","v":2004.9642668908962},{"$f":"N$87*'DNSP Inputs General'!$D49*$C99","v":2004.9642668908962},{"$f":"O$87*'DNSP Inputs General'!$D49*$C99","v":2004.9642668908962},{"$f":"P$87*'DNSP Inputs General'!$D49*$C99","v":2004.9642668908962},{"$f":"Q$87*'DNSP Inputs General'!$D49*$C99","v":2004.9642668908962},{"$f":"R$87*'DNSP Inputs General'!$D49*$C99","v":2004.9642668908962},{"$f":"S$87*'DNSP Inputs General'!$D49*$C99","v":2004.9642668908962},{"$f":"T$87*'DNSP Inputs General'!$D49*$C99","v":2004.9642668908962},{"$f":"U$87*'DNSP Inputs General'!$D49*$C99","v":2004.9642668908962},{"$f":"V$87*'DNSP Inputs General'!$D49*$C99","v":1002.4821334454481},{"$f":"W$87*'DNSP Inputs General'!$D49*$C99","v":2004.9642668908962},{"$f":"X$87*'DNSP Inputs General'!$D49*$C99","v":2004.9642668908962},{"$f":"Y$87*'DNSP Inputs General'!$D49*$C99","v":2004.9642668908962},{"$f":"Z$87*'DNSP Inputs General'!$D49*$C99","v":2004.9642668908962},{"$f":"AA$87*'DNSP Inputs General'!$D49*$C99","v":2004.9642668908962},{"$f":"AB$87*'DNSP Inputs General'!$D49*$C99","v":2004.9642668908962},{"$f":"AC$87*'DNSP Inputs General'!$D49*$C99","v":2004.9642668908962},{"$f":"AD$87*'DNSP Inputs General'!$D49*$C99","v":2004.9642668908962},{"$f":"AE$87*'DNSP Inputs General'!$D49*$C99","v":2004.9642668908962},{"$f":"AF$87*'DNSP Inputs General'!$D49*$C99","v":2004.9642668908962},{"$f":"AG$87*'DNSP Inputs General'!$D49*$C99","v":2004.9642668908962},{"$f":"AH$87*'DNSP Inputs General'!$D49*$C99","v":2004.9642668908962},{"$f":"AI$87*'DNSP Inputs General'!$D49*$C99","v":2004.9642668908962},{"$f":"AJ$87*'DNSP Inputs General'!$D49*$C99","v":2004.9642668908962},{"$f":"AK$87*'DNSP Inputs General'!$D49*$C99","v":2004.9642668908962},{"$f":"AL$87*'DNSP Inputs General'!$D49*$C99","v":2004.9642668908962},{"$f":"AM$87*'DNSP Inputs General'!$D49*$C99","v":1002.4821334454481},{"$f":"AN$87*'DNSP Inputs General'!$D49*$C99","v":0}]
[{"$f":"'DNSP Inputs General'!A$50","v":"HP Sodium 400W"},null,{"$f":"C$63","v":295.53586712704305},null,{"$f":"E$87*'DNSP Inputs General'!$D50*$C100","v":15272.924029268392},{"$f":"F$87*'DNSP Inputs General'!$D50*$C100","v":462.81587967479982},{"$f":"G$87*'DNSP Inputs General'!$D50*$C100","v":462.81587967479982},{"$f":"H$87*'DNSP Inputs General'!$D50*$C100","v":462.81587967479982},{"$f":"I$87*'DNSP Inputs General'!$D50*$C100","v":462.81587967479982},{"$f":"J$87*'DNSP Inputs General'!$D50*$C100","v":462.81587967479982},{"$f":"K$87*'DNSP Inputs General'!$D50*$C100","v":462.81587967479982},{"$f":"L$87*'DNSP Inputs General'!$D50*$C100","v":462.81587967479982},{"$f":"M$87*'DNSP Inputs General'!$D50*$C100","v":462.81587967479982},{"$f":"N$87*'DNSP Inputs General'!$D50*$C100","v":462.81587967479982},{"$f":"O$87*'DNSP Inputs General'!$D50*$C100","v":462.81587967479982},{"$f":"P$87*'DNSP Inputs General'!$D50*$C100","v":462.81587967479982},{"$f":"Q$87*'DNSP Inputs General'!$D50*$C100","v":462.81587967479982},{"$f":"R$87*'DNSP Inputs General'!$D50*$C100","v":462.81587967479982},{"$f":"S$87*'DNSP Inputs General'!$D50*$C100","v":462.81587967479982},{"$f":"T$87*'DNSP Inputs General'!$D50*$C100","v":462.81587967479982},{"$f":"U$87*'DNSP Inputs General'!$D50*$C100","v":462.81587967479982},{"$f":"V$87*'DNSP Inputs General'!$D50*$C100","v":231.40793983739991},{"$f":"W$87*'DNSP Inputs General'!$D50*$C100","v":462.81587967479982},{"$f":"X$87*'DNSP Inputs General'!$D50*$C100","v":462.81587967479982},{"$f":"Y$87*'DNSP Inputs General'!$D50*$C100","v":462.81587967479982},{"$f":"Z$87*'DNSP Inputs General'!$D50*$C100","v":462.81587967479982},{"$f":"AA$87*'DNSP Inputs General'!$D50*$C100","v":462.81587967479982},{"$f":"AB$87*'DNSP Inputs General'!$D50*$C100","v":462.81587967479982},{"$f":"AC$87*'DNSP Inputs General'!$D50*$C100","v":462.81587967479982},{"$f":"AD$87*'DNSP Inputs General'!$D50*$C100","v":462.81587967479982},{"$f":"AE$87*'DNSP Inputs General'!$D50*$C100","v":462.81587967479982},{"$f":"AF$87*'DNSP Inputs General'!$D50*$C100","v":462.81587967479982},{"$f":"AG$87*'DNSP Inputs General'!$D50*$C100","v":462.81587967479982},{"$f":"AH$87*'DNSP Inputs General'!$D50*$C100","v":462.81587967479982},{"$f":"AI$87*'DNSP Inputs General'!$D50*$C100","v":462.81587967479982},{"$f":"AJ$87*'DNSP Inputs General'!$D50*$C100","v":462.81587967479982},{"$f":"AK$87*'DNSP Inputs General'!$D50*$C100","v":462.81587967479982},{"$f":"AL$87*'DNSP Inputs General'!$D50*$C100","v":462.81587967479982},{"$f":"AM$87*'DNSP Inputs General'!$D50*$C100","v":231.40793983739991},{"$f":"AN$87*'DNSP Inputs General'!$D50*$C100","v":0}]
[]
[]
[]
[]
[]
[]
[]
[]
[]
[]
[]
[]
[]
[null,null,null,null,{"$f":"SUM(E92:E113)","v":3119608.7221441739},{"$f":"SUM(F92:F113)","v":94533.59764073258},94533.59764073258,94533.59764073258,94533.59764073258,94533.59764073258,94533.59764073258,94533.59764073258,94533.59764073258,94533.59764073258,94533.59764073258,94533.59764073258,94533.59764073258,{"$f":"SUM(R92:R113)","v":94533.59764073258},{"$f":"SUM(S92:S113)","v":94533.59764073258},94533.59764073258,94533.59764073258,{"$f":"SUM(V92:V113)","v":47266.79882036629},94533.59764073258,94533.59764073258,94533.59764073258,94533.59764073258,94533.59764073258,{"$f":"SUM(AB92:AB113)","v":94533.59764073258},94533.59764073258,94533.59764073258,94533.59764073258,94533.59764073258,94533.59764073258,94533.59764073258,94533.59764073258,94533.59764073258,94533.59764073258,94533.59764073258,47266.79882036629,0]
[]
["WDV",null,null,null,{"$f":"E114","v":3119608.7221441739},{"$f":"E116-F114","v":3025075.1245034412},{"$f":"F116-G114","v":2930541.5268627084},2836007.9292219756,2741474.3315812428,2646940.7339405101,2552407.1362997773,2457873.5386590445,2363339.9410183118,2268806.343377579,2174272.7457368462,2079739.1480961137,1985205.5504553812,1890671.9528146486,1796138.3551739161,1701604.7575331836,1607071.159892451,1559804.3610720846,1465270.7634313521,1370737.1657906196,1276203.568149887,1181669.9705091545,1087136.372868422,992602.77522768942,898069.17758695688,803535.57994622434,709001.98230549181,614468.38466475927,519934.78702402668,425401.18938329408,330867.59174256149,236333.9941018289,141800.3964610963,47266.798820363721,-2.5684130378067493E-9,-2.5684130378067493E-9]
[]
[]
[]
[]
["Detailed calculations"]
[]
[]
["DEPRECIATION PROFILE"]
["Year Counter",1,{"$f":"B125+1","v":2},3,4,5,6,7,8,9,10,11,12,13,14,15,16,17,18,19,20,{"$f":"U125+0.5","v":20.5},21.5,22.5,23.5,24.5,25.5,26.5,27.5,28.5,29.5,30.5,31.5,32.5,33.5,34.5,35.5,36.5,37.5,38.5]
["Numerator",2001,{"$f":"B126+1","v":2002},2003,2004,2005,2006,2007,2008,2009,2010,2011,2012,2013,2014,2015,2016,2017,2018,2019,2020,{"$f":"V$91","v":"HY2021"},{"$f":"W$91","v":"2022-06-30"},"2023-06-30","2024-06-30","2025-06-30","2026-06-30","2027-06-30","2028-06-30","2029-06-30","2030-06-30","2031-06-30","2032-06-30","2033-06-30","2034-06-30","2035-06-30","2036-06-30","2037-06-30","2038-06-30","2039-06-30"]
[{"$f":"'Inputs PL Final Decision 2004'!$A$65","v":"20 year asset life"},10,29,47,64,{"$f":"E127+10-4","v":70},{"$f":"F127-4","v":66},{"$f":"IF(G127-4<0,0,G127-4)","v":62},58,54,50,46,42,38,34,30,26,22,18,14,10,{"$f":"IF(U127-4<0,0,U127-2)","v":8},{"$f":"IF(V127-4<0,0,V127-4)","v":4},{"$f":"IF(W127-2<0,0,W127-2)","v":2},{"$f":"IF(X127-2<0,0,X127-2)","v":0},0,0,0,0,0,0,0,0,0,0,0,0,0,0,0]
[]
[{"$f":"'Inputs PL Final Decision 2004'!$A$74","v":"35 year asset life"},17.5,51.5,84.5,116.5,{"$f":"E129+17.5-4","v":130},{"$f":"F129-4","v":126},{"$f":"IF(G129-4<0,0,G129-4)","v":122},118,114,110,106,102,98,94,90,86,82,78,74,70,{"$f":"IF(U129-2<0,0,U129-2)","v":68},{"$f":"IF(V129-4<0,0,V129-4)","v":64},60,56,52,48,44,40,36,32,28,24,20,16,{"$f":"IF(AI129-1<0,0,AI129-4)","v":12},{"$f":"IF(AJ129-4<0,0,AJ129-4)","v":8},{"$f":"IF(AK129-4<0,0,AK129-4)","v":4},{"$f":"IF(AL129-2<0,0,AL129-2)","v":2},{"$f":"IF(AM129-2<0,0,AM129-2)","v":0}]
[]
[]
[]
[]
["MV 80",null,null,{"$f":"'Inputs PL Final Decision 2004'!$B$88","v":"Location of selected public lighting assets within distributors' areas (%)"},null,null,null,null,null,{"$f":"'Inputs PL Final Decision 2004'!$B$107","v":"Proportion of lights installed at 1 January 2001 (%)"}]
["Luminaire",null,null,{"$f":"'Inputs PL Final Decision 2004'!$B$92","v":"CitiPower"},{"$f":"IF($A$1='Inputs PL Final Decision 2004'!$A$123,'Inputs PL Final Decision 2004'!$C$92,IF($A$1='Inputs PL Final Decision 2004'!$A$124,'Inputs PL Final Decision 2004'!$D$92,IF($A$1='Inputs PL Final Decision 2004'!$A$125,'Inputs PL Final Decision 2004'!$E$92,IF($A$1='Inputs PL Final Decision 2004'!$A$126,'Inputs PL Final Decision 2004'!$F$92,IF($A$1='Inputs PL Final Decision 2004'!$A$127,'Inputs PL Final Decision 2004'!$G$92,'Inputs PL Final Decision 2004'!$H$92)))))","v":0},null,null,null,null,{"$f":"IF($A$1='Inputs PL Final Decision 2004'!$A$123,'Inputs PL Final Decision 2004'!$C$110,IF($A$1='Inputs PL Final Decision 2004'!$A$124,'Inputs PL Final Decision 2004'!$D$110,IF($A$1='Inputs PL Final Decision 2004'!$A$125,'Inputs PL Final Decision 2004'!$E$110,IF($A$1='Inputs PL Final Decision 2004'!$A$126,'Inputs PL Final Decision 2004'!$F$110,IF($A$1='Inputs PL Final Decision 2004'!$A$127,'Inputs PL Final Decision 2004'!$G$110,'Inputs PL Final Decision 2004'!$H$110)))))","v":0.88453792189886593}]
["Capital cost",{"$f":"($F$214*E135+$L$214*E136+$R$214*E137+$X$214*E138)*J135","v":213.67532867451413},null,{"$f":"'Inputs PL Final Decision 2004'!$B$93","v":"Urban"},{"$f":"IF($A$1='Inputs PL Final Decision 2004'!$A$123,'Inputs PL Final Decision 2004'!$C$93,IF($A$1='Inputs PL Final Decision 2004'!$A$124,'Inputs PL Final Decision 2004'!$D$93,IF($A$1='Inputs PL Final Decision 2004'!$A$125,'Inputs PL Final Decision 2004'!$E$93,IF($A$1='Inputs PL Final Decision 2004'!$A$126,'Inputs PL Final Decision 2004'!$F$93,IF($A$1='Inputs PL Final Decision 2004'!$A$127,'Inputs PL Final Decision 2004'!$G$93,'Inputs PL Final Decision 2004'!$H$93)))))","v":0.96}]
[{"$f":"'Inputs PL Final Decision 2004'!$A$20","v":"Depreciation period"},{"$f":"'Inputs PL Final Decision 2004'!$B$20","v":20},null,{"$f":"'Inputs PL Final Decision 2004'!$B$94","v":"Rural"},{"$f":"IF($A$1='Inputs PL Final Decision 2004'!$A$123,'Inputs PL Final Decision 2004'!$C$94,IF($A$1='Inputs PL Final Decision 2004'!$A$124,'Inputs PL Final Decision 2004'!$D$94,IF($A$1='Inputs PL Final Decision 2004'!$A$125,'Inputs PL Final Decision 2004'!$E$94,IF($A$1='Inputs PL Final Decision 2004'!$A$126,'Inputs PL Final Decision 2004'!$F$94,IF($A$1='Inputs PL Final Decision 2004'!$A$127,'Inputs PL Final Decision 2004'!$G$94,'Inputs PL Final Decision 2004'!$H$94)))))","v":0.04}]
[{"$f":"'Inputs PL Final Decision 2004'!$A$16","v":"Number of years from 1 January 2001"},{"$f":"'Inputs PL Final Decision 2004'!$B$16","v":4},null,{"$f":"'Inputs PL Final Decision 2004'!$B$95","v":"Remote"},{"$f":"IF($A$1='Inputs PL Final Decision 2004'!$A$123,'Inputs PL Final Decision 2004'!$C$95,IF($A$1='Inputs PL Final Decision 2004'!$A$124,'Inputs PL Final Decision 2004'!$D$95,IF($A$1='Inputs PL Final Decision 2004'!$A$125,'Inputs PL Final Decision 2004'!$E$95,IF($A$1='Inputs PL Final Decision 2004'!$A$126,'Inputs PL Final Decision 2004'!$F$95,IF($A$1='Inputs PL Final Decision 2004'!$A$127,'Inputs PL Final Decision 2004'!$G$95,'Inputs PL Final Decision 2004'!$H$95)))))","v":0}]
[]
[]
[]
[null,null,null,null,2004,{"$f":"E142+1","v":2005},2006,2007,2008,2009,2010,2011,2012,2013,2014,2015,{"$f":"P142+1","v":2016},{"$f":"Q142+1","v":2017},{"$f":"R142+1","v":2018},{"$f":"S142+1","v":2019},{"$f":"T142+1","v":2020},{"$f":"V$91","v":"HY2021"},{"$f":"W$91","v":"2022-06-30"},"2023-06-30","2024-06-30","2025-06-30","2026-06-30","2027-06-30","2028-06-30","2029-06-30","2030-06-30","2031-06-30","2032-06-30","2033-06-30","2034-06-30","2035-06-30","2036-06-30","2037-06-30","2038-06-30","2039-06-30"]
["RAB for Return",null,null,null,{"$f":"E$127/$B137*$B136/$B137","v":34.188052587922265},37.393182518039978,35.256429231294831,33.119675944549691,30.982922657804551,28.84616937105941,26.709416084314267,24.572662797569123,22.435909510823983,20.299156224078843,18.162402937333702,16.025649650588559,{"$f":"Q$127/$B137*$B136/$B137","v":13.88889636384342},11.752143077098278,9.6153897903531362,7.4786365036079943,5.3418832168628532,4.2735065734902831,2.1367532867451415,1.0683766433725708,0,0,0,0,0,0,0,0,0,0,0,0,0,0,0,0]
["Depreciation",null,null,null,{"$f":"IF(E143=0,0,$B$136*$B$138/$B$137/$B$137)","v":2.1367532867451411},2.1367532867451411,2.1367532867451411,2.1367532867451411,2.1367532867451411,2.1367532867451411,2.1367532867451411,2.1367532867451411,2.1367532867451411,2.1367532867451411,2.1367532867451411,2.1367532867451411,{"$f":"IF(Q143=0,0,$B$136*$B$138/$B$137/$B$137)","v":2.1367532867451411},2.1367532867451411,2.1367532867451411,2.1367532867451411,2.1367532867451411,{"$f":"IF(V143=0,0,$B$136*$B$138/$B$137/$B$137)*0.5","v":1.0683766433725705},2.1367532867451411,{"$f":"IF(X143=0,0,$B$136*$B$138/$B$137/$B$137)/2","v":1.0683766433725705},0,0,{"$f":"IF(AA143=0,0,$B$136*$B$138/$B$137/$B$137)","v":0},0,0,0,0,0,0,0,0,0,0,0,0,0]
[]
[]
[]
["S-HP 150 ",null,null,{"$f":"'Inputs PL Final Decision 2004'!$B$88","v":"Location of selected public lighting assets within distributors' areas (%)"},null,null,null,null,null,{"$f":"'Inputs PL Final Decision 2004'!$B$107","v":"Proportion of lights installed at 1 January 2001 (%)"}]
["Luminaire",null,null,{"$f":"'Inputs PL Final Decision 2004'!$B$92","v":"CitiPower"},{"$f":"IF($A$1='Inputs PL Final Decision 2004'!$A$123,'Inputs PL Final Decision 2004'!$C$97,IF($A$1='Inputs PL Final Decision 2004'!$A$124,'Inputs PL Final Decision 2004'!$D$97,IF($A$1='Inputs PL Final Decision 2004'!$A$125,'Inputs PL Final Decision 2004'!$E$97,IF($A$1='Inputs PL Final Decision 2004'!$A$126,'Inputs PL Final Decision 2004'!$F$97,IF($A$1='Inputs PL Final Decision 2004'!$A$127,'Inputs PL Final Decision 2004'!$G$97,'Inputs PL Final Decision 2004'!$H$97)))))","v":0},null,null,null,null,{"$f":"IF($A$1='Inputs PL Final Decision 2004'!$A$123,'Inputs PL Final Decision 2004'!$C$111,IF($A$1='Inputs PL Final Decision 2004'!$A$124,'Inputs PL Final Decision 2004'!$D$111,IF($A$1='Inputs PL Final Decision 2004'!$A$125,'Inputs PL Final Decision 2004'!$E$111,IF($A$1='Inputs PL Final Decision 2004'!$A$126,'Inputs PL Final Decision 2004'!$F$111,IF($A$1='Inputs PL Final Decision 2004'!$A$127,'Inputs PL Final Decision 2004'!$G$111,'Inputs PL Final Decision 2004'!$H$111)))))","v":0.9271778402248092}]
["Capital cost",{"$f":"($F$220*E149+$L$220*E150+$R$220*E151+$X$220*E152)*J149","v":257.10778072031616},null,{"$f":"'Inputs PL Final Decision 2004'!$B$93","v":"Urban"},{"$f":"IF($A$1='Inputs PL Final Decision 2004'!$A$123,'Inputs PL Final Decision 2004'!$C$98,IF($A$1='Inputs PL Final Decision 2004'!$A$124,'Inputs PL Final Decision 2004'!$D$98,IF($A$1='Inputs PL Final Decision 2004'!$A$125,'Inputs PL Final Decision 2004'!$E$98,IF($A$1='Inputs PL Final Decision 2004'!$A$126,'Inputs PL Final Decision 2004'!$F$98,IF($A$1='Inputs PL Final Decision 2004'!$A$127,'Inputs PL Final Decision 2004'!$G$98,'Inputs PL Final Decision 2004'!$H$98)))))","v":0.94}]
[{"$f":"'Inputs PL Final Decision 2004'!$A$20","v":"Depreciation period"},{"$f":"'Inputs PL Final Decision 2004'!$B$30","v":20},null,{"$f":"'Inputs PL Final Decision 2004'!$B$94","v":"Rural"},{"$f":"IF($A$1='Inputs PL Final Decision 2004'!$A$123,'Inputs PL Final Decision 2004'!$C$99,IF($A$1='Inputs PL Final Decision 2004'!$A$124,'Inputs PL Final Decision 2004'!$D$99,IF($A$1='Inputs PL Final Decision 2004'!$A$125,'Inputs PL Final Decision 2004'!$E$99,IF($A$1='Inputs PL Final Decision 2004'!$A$126,'Inputs PL Final Decision 2004'!$F$99,IF($A$1='Inputs PL Final Decision 2004'!$A$127,'Inputs PL Final Decision 2004'!$G$99,'Inputs PL Final Decision 2004'!$H$99)))))","v":0.06}]
[{"$f":"'Inputs PL Final Decision 2004'!$A$16","v":"Number of years from 1 January 2001"},{"$f":"'Inputs PL Final Decision 2004'!$B$16","v":4},null,{"$f":"'Inputs PL Final Decision 2004'!$B$95","v":"Remote"},{"$f":"IF($A$1='Inputs PL Final Decision 2004'!$A$123,'Inputs PL Final Decision 2004'!$C$100,IF($A$1='Inputs PL Final Decision 2004'!$A$124,'Inputs PL Final Decision 2004'!$D$100,IF($A$1='Inputs PL Final Decision 2004'!$A$125,'Inputs PL Final Decision 2004'!$E$100,IF($A$1='Inputs PL Final Decision 2004'!$A$126,'Inputs PL Final Decision 2004'!$F$100,IF($A$1='Inputs PL Final Decision 2004'!$A$127,'Inputs PL Final Decision 2004'!$G$100,'Inputs PL Final Decision 2004'!$H$100)))))","v":0}]
[]
[]
[]
[null,null,null,null,2004,{"$f":"E156+1","v":2005},2006,2007,2008,2009,2010,2011,2012,2013,2014,2015,{"$f":"P156+1","v":2016},{"$f":"Q156+1","v":2017},{"$f":"R156+1","v":2018},{"$f":"S156+1","v":2019},{"$f":"T156+1","v":2020},{"$f":"V$91","v":"HY2021"},{"$f":"W$91","v":"2022-06-30"},"2023-06-30","2024-06-30","2025-06-30","2026-06-30","2027-06-30","2028-06-30","2029-06-30","2030-06-30","2031-06-30","2032-06-30","2033-06-30","2034-06-30","2035-06-30","2036-06-30","2037-06-30","2038-06-30","2039-06-30"]
["RAB for Return",null,null,null,{"$f":"E$127/$B151*$B150/$B151","v":41.137244915250584},44.993861626055327,42.42278381885216,39.851706011649,37.280628204445847,34.709550397242687,32.13847259003952,29.567394782836356,26.996316975633199,24.425239168430032,21.854161361226872,19.283083554023712,{"$f":"Q$127/$B151*$B150/$B151","v":16.712005746820552},14.14092793961739,11.569850132414228,8.9987723252110658,6.4276945180079039,5.142155614406323,2.5710778072031615,1.2855389036015807,0,0,0,0,0,0,0,0,0,0,0,0,0,0,0,0]
["Depreciation",null,null,null,{"$f":"IF(E157=0,0,$B$150*$B$152/$B$151/$B$151)","v":2.5710778072031615},2.5710778072031615,2.5710778072031615,2.5710778072031615,2.5710778072031615,2.5710778072031615,2.5710778072031615,2.5710778072031615,2.5710778072031615,2.5710778072031615,2.5710778072031615,2.5710778072031615,{"$f":"IF(Q157=0,0,$B$150*$B$152/$B$151/$B$151)","v":2.5710778072031615},2.5710778072031615,2.5710778072031615,2.5710778072031615,2.5710778072031615,{"$f":"IF(V157=0,0,$B$150*$B$152/$B$151/$B$151)*0.5","v":1.2855389036015807},2.5710778072031615,{"$f":"IF(X157=0,0,$B$150*$B$152/$B$151/$B$151)*0.5","v":1.2855389036015807},0,0,{"$f":"IF(AA157=0,0,$B$150*$B$152/$B$151/$B$151)","v":0},0,0,0,0,0,0,0,0,0,0,0,0,0]
[]
[]
[]
["S-HP 250 ",null,null,{"$f":"'Inputs PL Final Decision 2004'!$B$88","v":"Location of selected public lighting assets within distributors' areas (%)"},null,null,null,null,null,{"$f":"'Inputs PL Final Decision 2004'!$B$107","v":"Proportion of lights installed at 1 January 2001 (%)"}]
["Luminaire",null,null,{"$f":"'Inputs PL Final Decision 2004'!$B$92","v":"CitiPower"},{"$f":"IF($A$1='Inputs PL Final Decision 2004'!$A$123,'Inputs PL Final Decision 2004'!$C$102,IF($A$1='Inputs PL Final Decision 2004'!$A$124,'Inputs PL Final Decision 2004'!$D$102,IF($A$1='Inputs PL Final Decision 2004'!$A$125,'Inputs PL Final Decision 2004'!$E$102,IF($A$1='Inputs PL Final Decision 2004'!$A$126,'Inputs PL Final Decision 2004'!$F$102,IF($A$1='Inputs PL Final Decision 2004'!$A$127,'Inputs PL Final Decision 2004'!$G$102,'Inputs PL Final Decision 2004'!$H$102)))))","v":0},null,null,null,null,{"$f":"IF($A$1='Inputs PL Final Decision 2004'!$A$123,'Inputs PL Final Decision 2004'!$C$112,IF($A$1='Inputs PL Final Decision 2004'!$A$124,'Inputs PL Final Decision 2004'!$D$112,IF($A$1='Inputs PL Final Decision 2004'!$A$125,'Inputs PL Final Decision 2004'!$E$112,IF($A$1='Inputs PL Final Decision 2004'!$A$126,'Inputs PL Final Decision 2004'!$F$112,IF($A$1='Inputs PL Final Decision 2004'!$A$127,'Inputs PL Final Decision 2004'!$G$112,'Inputs PL Final Decision 2004'!$H$112)))))","v":0.93238356164383551}]
["Capital cost",{"$f":"($F$226*E163+$L$226*E164+$R$226*E165+$X$226*E166)*J163","v":262.268032055216},null,{"$f":"'Inputs PL Final Decision 2004'!$B$93","v":"Urban"},{"$f":"IF($A$1='Inputs PL Final Decision 2004'!$A$123,'Inputs PL Final Decision 2004'!$C$103,IF($A$1='Inputs PL Final Decision 2004'!$A$124,'Inputs PL Final Decision 2004'!$D$103,IF($A$1='Inputs PL Final Decision 2004'!$A$125,'Inputs PL Final Decision 2004'!$E$103,IF($A$1='Inputs PL Final Decision 2004'!$A$126,'Inputs PL Final Decision 2004'!$F$103,IF($A$1='Inputs PL Final Decision 2004'!$A$127,'Inputs PL Final Decision 2004'!$G$103,'Inputs PL Final Decision 2004'!$H$103)))))","v":0.9}]
[{"$f":"'Inputs PL Final Decision 2004'!$A$20","v":"Depreciation period"},{"$f":"'Inputs PL Final Decision 2004'!$B$41","v":20},null,{"$f":"'Inputs PL Final Decision 2004'!$B$94","v":"Rural"},{"$f":"IF($A$1='Inputs PL Final Decision 2004'!$A$123,'Inputs PL Final Decision 2004'!$C$104,IF($A$1='Inputs PL Final Decision 2004'!$A$124,'Inputs PL Final Decision 2004'!$D$104,IF($A$1='Inputs PL Final Decision 2004'!$A$125,'Inputs PL Final Decision 2004'!$E$104,IF($A$1='Inputs PL Final Decision 2004'!$A$126,'Inputs PL Final Decision 2004'!$F$104,IF($A$1='Inputs PL Final Decision 2004'!$A$127,'Inputs PL Final Decision 2004'!$G$104,'Inputs PL Final Decision 2004'!$H$104)))))","v":0.1}]
[{"$f":"'Inputs PL Final Decision 2004'!$A$16","v":"Number of years from 1 January 2001"},{"$f":"'Inputs PL Final Decision 2004'!$B$16","v":4},null,{"$f":"'Inputs PL Final Decision 2004'!$B$95","v":"Remote"},{"$f":"IF($A$1='Inputs PL Final Decision 2004'!$A$123,'Inputs PL Final Decision 2004'!$C$105,IF($A$1='Inputs PL Final Decision 2004'!$A$124,'Inputs PL Final Decision 2004'!$D$105,IF($A$1='Inputs PL Final Decision 2004'!$A$125,'Inputs PL Final Decision 2004'!$E$105,IF($A$1='Inputs PL Final Decision 2004'!$A$126,'Inputs PL Final Decision 2004'!$F$105,IF($A$1='Inputs PL Final Decision 2004'!$A$127,'Inputs PL Final Decision 2004'!$G$105,'Inputs PL Final Decision 2004'!$H$105)))))","v":0}]
[]
[]
[]
[null,null,null,null,2004,{"$f":"E170+1","v":2005},2006,2007,2008,2009,2010,2011,2012,2013,2014,2015,{"$f":"P170+1","v":2016},{"$f":"Q170+1","v":2017},{"$f":"R170+1","v":2018},{"$f":"S170+1","v":2019},{"$f":"T170+1","v":2020},{"$f":"V$91","v":"HY2021"},{"$f":"W$91","v":"2022-06-30"},"2023-06-30","2024-06-30","2025-06-30","2026-06-30","2027-06-30","2028-06-30","2029-06-30","2030-06-30","2031-06-30","2032-06-30","2033-06-30","2034-06-30","2035-06-30","2036-06-30","2037-06-30","2038-06-30","2039-06-30"]
["RAB for Return",null,null,null,{"$f":"E$127/$B165*$B164/$B165","v":41.962885128834564},45.896905609662795,43.274225289110639,40.651544968558483,38.028864648006319,35.406184327454163,32.783504006902,30.160823686349836,27.53814336579768,24.91546304524552,22.29278272469336,19.670102404141197,{"$f":"Q$127/$B165*$B164/$B165","v":17.047422083589041},14.424741763036881,11.802061442484719,9.1793811219325594,6.5567008013803996,5.2453606411043205,2.6226803205521603,1.3113401602760801,0,0,0,0,0,0,0,0,0,0,0,0,0,0,0,0]
["Depreciation",null,null,null,{"$f":"IF(E171=0,0,$B$164*$B$166/$B$165/$B$165)","v":2.6226803205521598},2.6226803205521598,2.6226803205521598,2.6226803205521598,2.6226803205521598,2.6226803205521598,2.6226803205521598,2.6226803205521598,2.6226803205521598,2.6226803205521598,2.6226803205521598,2.6226803205521598,{"$f":"IF(Q171=0,0,$B$164*$B$166/$B$165/$B$165)","v":2.6226803205521598},2.6226803205521598,2.6226803205521598,2.6226803205521598,2.6226803205521598,{"$f":"IF(V171=0,0,$B$164*$B$166/$B$165/$B$165)*0.5","v":1.3113401602760799},2.6226803205521598,{"$f":"IF(X171=0,0,$B$164*$B$166/$B$165/$B$165)/2","v":1.3113401602760799},0,0,{"$f":"IF(AA171=0,0,$B$164*$B$166/$B$165/$B$165)","v":0},0,0,0,0,0,0,0,0,0,0,0,0,0]
[]
[]
[]
["Poles & Brackets",null,null,{"$f":"'Inputs PL Final Decision 2004'!$B$88","v":"Location of selected public lighting assets within distributors' areas (%)"},null,null,null,null,null,{"$f":"'Inputs PL Final Decision 2004'!$A$114","v":"Proportion of lights on dedicated poles"},null,null,null,{"$f":"'Inputs PL Final Decision 2004'!$A$115","v":"Proportion of dedicated poles at 1 Jan 2001"}]
["Dedicated poles",null,null,{"$f":"'Inputs PL Final Decision 2004'!$B$92","v":"CitiPower"},{"$f":"IF($A$1='Inputs PL Final Decision 2004'!$A$123,'Inputs PL Final Decision 2004'!$C$92,IF($A$1='Inputs PL Final Decision 2004'!$A$124,'Inputs PL Final Decision 2004'!$D$92,IF($A$1='Inputs PL Final Decision 2004'!$A$125,'Inputs PL Final Decision 2004'!$E$92,IF($A$1='Inputs PL Final Decision 2004'!$A$126,'Inputs PL Final Decision 2004'!$F$92,IF($A$1='Inputs PL Final Decision 2004'!$A$127,'Inputs PL Final Decision 2004'!$G$92,'Inputs PL Final Decision 2004'!$H$92)))))","v":0},null,null,null,null,{"$f":"IF($A$1='Inputs PL Final Decision 2004'!$A$123,'Inputs PL Final Decision 2004'!$C$114,IF($A$1='Inputs PL Final Decision 2004'!$A$124,'Inputs PL Final Decision 2004'!$D$114,IF($A$1='Inputs PL Final Decision 2004'!$A$125,'Inputs PL Final Decision 2004'!$E$114,IF($A$1='Inputs PL Final Decision 2004'!$A$126,'Inputs PL Final Decision 2004'!$F$114,IF($A$1='Inputs PL Final Decision 2004'!$A$127,'Inputs PL Final Decision 2004'!$G$114,'Inputs PL Final Decision 2004'!$H$114)))))","v":0.38119062500000001},null,null,null,{"$f":"IF($A$1='Inputs PL Final Decision 2004'!$A$123,'Inputs PL Final Decision 2004'!$C$115,IF($A$1='Inputs PL Final Decision 2004'!$A$124,'Inputs PL Final Decision 2004'!$D$115,IF($A$1='Inputs PL Final Decision 2004'!$A$125,'Inputs PL Final Decision 2004'!$E$115,IF($A$1='Inputs PL Final Decision 2004'!$A$126,'Inputs PL Final Decision 2004'!$F$115,IF($A$1='Inputs PL Final Decision 2004'!$A$127,'Inputs PL Final Decision 2004'!$G$115,'Inputs PL Final Decision 2004'!$H$115)))))","v":0.89230769230769236}]
["Capital cost",{"$f":"($F$231*E177+$L$231*E178+$R$231*E179+$X$231*E180)*J177*N177","v":280.14572251004807},null,{"$f":"'Inputs PL Final Decision 2004'!$B$93","v":"Urban"},{"$f":"IF($A$1='Inputs PL Final Decision 2004'!$A$123,'Inputs PL Final Decision 2004'!$C$93,IF($A$1='Inputs PL Final Decision 2004'!$A$124,'Inputs PL Final Decision 2004'!$D$93,IF($A$1='Inputs PL Final Decision 2004'!$A$125,'Inputs PL Final Decision 2004'!$E$93,IF($A$1='Inputs PL Final Decision 2004'!$A$126,'Inputs PL Final Decision 2004'!$F$93,IF($A$1='Inputs PL Final Decision 2004'!$A$127,'Inputs PL Final Decision 2004'!$G$93,'Inputs PL Final Decision 2004'!$H$93)))))","v":0.96}]
[{"$f":"'Inputs PL Final Decision 2004'!$A$52","v":"Depreciation of dedicated street lighting pole & bracket"},{"$f":"'Inputs PL Final Decision 2004'!$B$52","v":35},null,{"$f":"'Inputs PL Final Decision 2004'!$B$94","v":"Rural"},{"$f":"IF($A$1='Inputs PL Final Decision 2004'!$A$123,'Inputs PL Final Decision 2004'!$C$94,IF($A$1='Inputs PL Final Decision 2004'!$A$124,'Inputs PL Final Decision 2004'!$D$94,IF($A$1='Inputs PL Final Decision 2004'!$A$125,'Inputs PL Final Decision 2004'!$E$94,IF($A$1='Inputs PL Final Decision 2004'!$A$126,'Inputs PL Final Decision 2004'!$F$94,IF($A$1='Inputs PL Final Decision 2004'!$A$127,'Inputs PL Final Decision 2004'!$G$94,'Inputs PL Final Decision 2004'!$H$94)))))","v":0.04}]
[{"$f":"'Inputs PL Final Decision 2004'!$A$16","v":"Number of years from 1 January 2001"},{"$f":"'Inputs PL Final Decision 2004'!$B$16","v":4},null,{"$f":"'Inputs PL Final Decision 2004'!$B$95","v":"Remote"},{"$f":"IF($A$1='Inputs PL Final Decision 2004'!$A$123,'Inputs PL Final Decision 2004'!$C$95,IF($A$1='Inputs PL Final Decision 2004'!$A$124,'Inputs PL Final Decision 2004'!$D$95,IF($A$1='Inputs PL Final Decision 2004'!$A$125,'Inputs PL Final Decision 2004'!$E$95,IF($A$1='Inputs PL Final Decision 2004'!$A$126,'Inputs PL Final Decision 2004'!$F$95,IF($A$1='Inputs PL Final Decision 2004'!$A$127,'Inputs PL Final Decision 2004'!$G$95,'Inputs PL Final Decision 2004'!$H$95)))))","v":0}]
[]
[]
[]
[null,null,null,null,2004,{"$f":"E184+1","v":2005},2006,2007,2008,2009,2010,2011,2012,2013,2014,2015,{"$f":"P184+1","v":2016},{"$f":"Q184+1","v":2017},{"$f":"R184+1","v":2018},{"$f":"S184+1","v":2019},{"$f":"T184+1","v":2020},{"$f":"V$91","v":"HY2021"},{"$f":"W$91","v":"2022-06-30"},"2023-06-30","2024-06-30","2025-06-30","2026-06-30","2027-06-30","2028-06-30","2029-06-30","2030-06-30","2031-06-30","2032-06-30","2033-06-30","2034-06-30","2035-06-30","2036-06-30","2037-06-30","2038-06-30","2039-06-30"]
["RAB for Return",null,null,null,{"$f":"E$129/$B179*$B178/$B179","v":26.642429936669881},29.729750143923468,28.814988601033516,27.900227058143564,26.985465515253608,26.070703972363656,25.155942429473704,24.241180886583749,23.3264193436938,22.411657800803845,21.496896257913892,20.582134715023944,{"$f":"Q$129/$B179*$B178/$B179","v":19.667373172133988},18.752611629244036,17.837850086354081,16.923088543464129,16.008327000574177,15.550946229129201,14.636184686239247,13.721423143349293,12.806661600459341,11.891900057569389,10.977138514679435,10.062376971789481,9.1476154288995293,8.2328538860095755,7.3180923431196234,6.4033308002296705,5.4885692573397176,4.5738077144497646,3.6590461715598117,2.7442846286698588,1.8295230857799059,0.91476154288995293,0.45738077144497646,0]
["Depreciation",null,null,null,{"$f":"IF(E185=0,0,$B$178*$B$180/$B$179/$B$179)","v":0.91476154288995293},0.91476154288995293,0.91476154288995293,0.91476154288995293,0.91476154288995293,0.91476154288995293,0.91476154288995293,0.91476154288995293,0.91476154288995293,0.91476154288995293,0.91476154288995293,0.91476154288995293,{"$f":"IF(Q185=0,0,$B$178*$B$180/$B$179/$B$179)","v":0.91476154288995293},0.91476154288995293,0.91476154288995293,0.91476154288995293,0.91476154288995293,{"$f":"IF(V185=0,0,$B$178*$B$180/$B$179/$B$179)*0.5","v":0.45738077144497646},0.91476154288995293,0.91476154288995293,0.91476154288995293,0.91476154288995293,0.91476154288995293,0.91476154288995293,0.91476154288995293,0.91476154288995293,0.91476154288995293,0.91476154288995293,0.91476154288995293,0.91476154288995293,0.91476154288995293,0.91476154288995293,0.91476154288995293,0.91476154288995293,{"$f":"IF(AM185=0,0,$B$178*$B$180/$B$179/$B$179)/2","v":0.45738077144497646},0]
[]
[]
[]
["Poles & Brackets",null,null,{"$f":"'Inputs PL Final Decision 2004'!$B$88","v":"Location of selected public lighting assets within distributors' areas (%)"},null,null,null,null,null,{"$f":"'Inputs PL Final Decision 2004'!$A$117","v":"Proportion of non-dedicated poles at 1 Jan 2001"}]
["Brackets",null,null,{"$f":"'Inputs PL Final Decision 2004'!$B$92","v":"CitiPower"},{"$f":"IF($A$1='Inputs PL Final Decision 2004'!$A$123,'Inputs PL Final Decision 2004'!$C$92,IF($A$1='Inputs PL Final Decision 2004'!$A$124,'Inputs PL Final Decision 2004'!$D$92,IF($A$1='Inputs PL Final Decision 2004'!$A$125,'Inputs PL Final Decision 2004'!$E$92,IF($A$1='Inputs PL Final Decision 2004'!$A$126,'Inputs PL Final Decision 2004'!$F$92,IF($A$1='Inputs PL Final Decision 2004'!$A$127,'Inputs PL Final Decision 2004'!$G$92,'Inputs PL Final Decision 2004'!$H$92)))))","v":0},null,null,null,null,{"$f":"IF($A$1='Inputs PL Final Decision 2004'!$A$123,'Inputs PL Final Decision 2004'!$C$117,IF($A$1='Inputs PL Final Decision 2004'!$A$124,'Inputs PL Final Decision 2004'!$D$117,IF($A$1='Inputs PL Final Decision 2004'!$A$125,'Inputs PL Final Decision 2004'!$E$117,IF($A$1='Inputs PL Final Decision 2004'!$A$126,'Inputs PL Final Decision 2004'!$F$117,IF($A$1='Inputs PL Final Decision 2004'!$A$127,'Inputs PL Final Decision 2004'!$G$117,'Inputs PL Final Decision 2004'!$H$117)))))","v":0.54998659800000005}]
["Capital cost",{"$f":"($F$236*E191+$L$236*E192+$R$236*E193+$X$236*E194)*J191","v":57.596851487611808},null,{"$f":"'Inputs PL Final Decision 2004'!$B$93","v":"Urban"},{"$f":"IF($A$1='Inputs PL Final Decision 2004'!$A$123,'Inputs PL Final Decision 2004'!$C$93,IF($A$1='Inputs PL Final Decision 2004'!$A$124,'Inputs PL Final Decision 2004'!$D$93,IF($A$1='Inputs PL Final Decision 2004'!$A$125,'Inputs PL Final Decision 2004'!$E$93,IF($A$1='Inputs PL Final Decision 2004'!$A$126,'Inputs PL Final Decision 2004'!$F$93,IF($A$1='Inputs PL Final Decision 2004'!$A$127,'Inputs PL Final Decision 2004'!$G$93,'Inputs PL Final Decision 2004'!$H$93)))))","v":0.96}]
[{"$f":"'Inputs PL Final Decision 2004'!$A$52","v":"Depreciation of dedicated street lighting pole & bracket"},{"$f":"'Inputs PL Final Decision 2004'!$B$52","v":35},null,{"$f":"'Inputs PL Final Decision 2004'!$B$94","v":"Rural"},{"$f":"IF($A$1='Inputs PL Final Decision 2004'!$A$123,'Inputs PL Final Decision 2004'!$C$94,IF($A$1='Inputs PL Final Decision 2004'!$A$124,'Inputs PL Final Decision 2004'!$D$94,IF($A$1='Inputs PL Final Decision 2004'!$A$125,'Inputs PL Final Decision 2004'!$E$94,IF($A$1='Inputs PL Final Decision 2004'!$A$126,'Inputs PL Final Decision 2004'!$F$94,IF($A$1='Inputs PL Final Decision 2004'!$A$127,'Inputs PL Final Decision 2004'!$G$94,'Inputs PL Final Decision 2004'!$H$94)))))","v":0.04}]
[{"$f":"'Inputs PL Final Decision 2004'!$A$16","v":"Number of years from 1 January 2001"},{"$f":"'Inputs PL Final Decision 2004'!$B$16","v":4},null,{"$f":"'Inputs PL Final Decision 2004'!$B$95","v":"Remote"},{"$f":"IF($A$1='Inputs PL Final Decision 2004'!$A$123,'Inputs PL Final Decision 2004'!$C$95,IF($A$1='Inputs PL Final Decision 2004'!$A$124,'Inputs PL Final Decision 2004'!$D$95,IF($A$1='Inputs PL Final Decision 2004'!$A$125,'Inputs PL Final Decision 2004'!$E$95,IF($A$1='Inputs PL Final Decision 2004'!$A$126,'Inputs PL Final Decision 2004'!$F$95,IF($A$1='Inputs PL Final Decision 2004'!$A$127,'Inputs PL Final Decision 2004'!$G$95,'Inputs PL Final Decision 2004'!$H$95)))))","v":0}]
[]
[]
[]
[null,null,null,null,2004,{"$f":"E198+1","v":2005},2006,2007,2008,2009,2010,2011,2012,2013,2014,2015,{"$f":"P198+1","v":2016},{"$f":"Q198+1","v":2017},{"$f":"R198+1","v":2018},{"$f":"S198+1","v":2019},{"$f":"T198+1","v":2020},{"$f":"V$91","v":"HY2021"},{"$f":"W$91","v":"2022-06-30"},"2023-06-30","2024-06-30","2025-06-30","2026-06-30","2027-06-30","2028-06-30","2029-06-30","2030-06-30","2031-06-30","2032-06-30","2033-06-30","2034-06-30","2035-06-30","2036-06-30","2037-06-30","2038-06-30","2039-06-30"]
["RAB for Return",null,null,null,{"$f":"E$129/$B193*$B192/$B193","v":5.477578121066756},6.1123189333792123,5.9242475815829287,5.7361762297866461,5.5481048779903626,5.3600335261940781,5.1719621743977946,4.9838908226015111,4.7958194708052275,4.6077481190089449,4.4196767672126613,4.2316054154163778,{"$f":"Q$129/$B193*$B192/$B193","v":4.0435340636200943},3.8554627118238112,3.6673913600275276,3.4793200082312437,3.2912486564349606,3.1972129805368188,3.0091416287405353,2.8210702769442517,2.6329989251479686,2.4449275733516846,2.2568562215554016,2.068784869759118,1.8807135179628343,1.6926421661665509,1.5045708143702676,1.3164994625739843,1.1284281107777008,0.94035675898141713,0.75228540718513381,0.56421405538885039,0.37614270359256691,0.18807135179628345,9.4035675898141727E-2,0]
["Depreciation",null,null,null,{"$f":"IF(E199=0,0,$B$192*$B$194/$B$193/$B$193)","v":0.18807135179628345},0.18807135179628345,0.18807135179628345,0.18807135179628345,0.18807135179628345,0.18807135179628345,0.18807135179628345,0.18807135179628345,0.18807135179628345,0.18807135179628345,0.18807135179628345,0.18807135179628345,{"$f":"IF(Q199=0,0,$B$192*$B$194/$B$193/$B$193)","v":0.18807135179628345},0.18807135179628345,0.18807135179628345,0.18807135179628345,0.18807135179628345,{"$f":"IF(V199=0,0,$B$192*$B$194/$B$193/$B$193)*0.5","v":9.4035675898141727E-2},0.18807135179628345,0.18807135179628345,0.18807135179628345,0.18807135179628345,0.18807135179628345,0.18807135179628345,0.18807135179628345,0.18807135179628345,0.18807135179628345,0.18807135179628345,0.18807135179628345,0.18807135179628345,0.18807135179628345,0.18807135179628345,0.18807135179628345,0.18807135179628345,{"$f":"IF(AM199=0,0,$B$192*$B$194/$B$193/$B$193)/2","v":9.4035675898141727E-2},0]
[]
[]
[]
[]
[]
[]
[]
[null,"CitiPower",null,null,null,null,null,"Urban",null,null,null,null,null,"Rural",null,null,null,null,null,"Remote"]
[]
[null,"Unit rate","Number","Hours","Cost","Annualised",null,"Unit rate","Number","Hours","Cost","Annualised",null,"Unit rate","Number","Hours","Cost","Annualised",null,"Unit rate","Number","Hours","Cost","Annualised"]
[null,null,null,null,null," cost",null,null,null,null,null," cost",null,null,null,null,null," cost",null,null,null,null,null," cost"]
["MV80"]
["Luminaires "]
["Material & misc",{"$f":"'Inputs PL Final Decision 2004'!$B$21+'Inputs PL Final Decision 2004'!$B$22","v":159.55000000000001},{"$f":"'Inputs PL Final Decision 2004'!$B$24","v":16},null,{"$f":"B214*C214","v":2552.8000000000002},{"$f":"(E214+E215+E216)/C214","v":240.24687500000002},null,{"$f":"'Inputs PL Final Decision 2004'!$B$21+'Inputs PL Final Decision 2004'!$B$22","v":159.55000000000001},{"$f":"'Inputs PL Final Decision 2004'!$B$24","v":16},null,{"$f":"H214*I214","v":2552.8000000000002},{"$f":"(K214+K215+K216)/I214","v":240.24687500000002},null,{"$f":"('Inputs PL Final Decision 2004'!$B$21+'Inputs PL Final Decision 2004'!$B$22)*(1+'Inputs PL Final Decision 2004'!$B$10)","v":167.52750000000003},{"$f":"'Inputs PL Final Decision 2004'!$B$25","v":13},null,{"$f":"N214*O214","v":2177.8575000000005},{"$f":"(Q214+Q215+Q216)/O214","v":273.2544230769231},null,{"$f":"('Inputs PL Final Decision 2004'!$B$21+'Inputs PL Final Decision 2004'!$B$22)*(1+'Inputs PL Final Decision 2004'!$B$10)","v":167.52750000000003},{"$f":"'Inputs PL Final Decision 2004'!$B$26","v":10},null,{"$f":"T214*U214","v":1675.2750000000003},{"$f":"(W214+W215+W216)/U214","v":304.97250000000003}]
["Crew costs",{"$f":"'Inputs PL Final Decision 2004'!$B$11","v":60},{"$f":"'Inputs PL Final Decision 2004'!$B$23","v":2},{"$f":"'Inputs PL Final Decision 2004'!$B$14","v":8.33},{"$f":"B215*C215*D215","v":999.6},null,null,{"$f":"'Inputs PL Final Decision 2004'!$B$11","v":60},{"$f":"'Inputs PL Final Decision 2004'!$B$23","v":2},{"$f":"'Inputs PL Final Decision 2004'!$B$14","v":8.33},{"$f":"H215*I215*J215","v":999.6},null,null,{"$f":"'Inputs PL Final Decision 2004'!$B$11","v":60},{"$f":"'Inputs PL Final Decision 2004'!$B$23","v":2},{"$f":"'Inputs PL Final Decision 2004'!$B$14","v":8.33},{"$f":"N215*O215*P215","v":999.6},null,null,{"$f":"'Inputs PL Final Decision 2004'!$B$11","v":60},{"$f":"'Inputs PL Final Decision 2004'!$B$23","v":2},{"$f":"'Inputs PL Final Decision 2004'!$B$14","v":8.33},{"$f":"T215*U215*V215","v":999.6}]
["Elevated platform costs",{"$f":"'Inputs PL Final Decision 2004'!$B$12","v":35},1,{"$f":"'Inputs PL Final Decision 2004'!$B$14","v":8.33},{"$f":"B216*C216*D216","v":291.55},null,null,{"$f":"'Inputs PL Final Decision 2004'!$B$12","v":35},1,{"$f":"'Inputs PL Final Decision 2004'!$B$14","v":8.33},{"$f":"H216*I216*J216","v":291.55},null,null,{"$f":"'Inputs PL Final Decision 2004'!$B$13","v":45},1,{"$f":"'Inputs PL Final Decision 2004'!$B$14","v":8.33},{"$f":"N216*O216*P216","v":374.85},null,null,{"$f":"'Inputs PL Final Decision 2004'!$B$13","v":45},1,{"$f":"'Inputs PL Final Decision 2004'!$B$14","v":8.33},{"$f":"T216*U216*V216","v":374.85}]
[]
["S-HP 150"]
["Luminaires "]
["Material & misc",{"$f":"'Inputs PL Final Decision 2004'!$B$31+'Inputs PL Final Decision 2004'!$B$32","v":189.64},{"$f":"'Inputs PL Final Decision 2004'!$B$35","v":16},null,{"$f":"B220*C220","v":3034.24},{"$f":"(E220+E221+E222)/C220","v":291.16187500000001},null,{"$f":"'Inputs PL Final Decision 2004'!$B$31+'Inputs PL Final Decision 2004'!$B$32","v":189.64},{"$f":"'Inputs PL Final Decision 2004'!$B$35","v":16},null,{"$f":"H220*I220","v":3034.24},{"$f":"(K220+K221+K222)/I220","v":275.54312499999997},null,{"$f":"('Inputs PL Final Decision 2004'!$B$31+'Inputs PL Final Decision 2004'!$B$32)*(1+'Inputs PL Final Decision 2004'!$B$10)","v":199.12199999999999},{"$f":"'Inputs PL Final Decision 2004'!$B$36","v":13},null,{"$f":"N220*O220","v":2588.5859999999998},{"$f":"(Q220+Q221+Q222)/O220","v":304.84892307692303},null,{"$f":"('Inputs PL Final Decision 2004'!$B$31+'Inputs PL Final Decision 2004'!$B$32)*(1+'Inputs PL Final Decision 2004'!$B$10)","v":199.12199999999999},{"$f":"'Inputs PL Final Decision 2004'!$B$37","v":10},null,{"$f":"T220*U220","v":1991.2199999999998},{"$f":"(W220+W221+W222)/U220","v":336.56699999999995}]
["Crew costs",{"$f":"'Inputs PL Final Decision 2004'!$B$11","v":60},{"$f":"'Inputs PL Final Decision 2004'!$B$34","v":2.5},{"$f":"'Inputs PL Final Decision 2004'!$B$14","v":8.33},{"$f":"D221*C221*B221","v":1249.5},null,null,{"$f":"'Inputs PL Final Decision 2004'!$B$11","v":60},{"$f":"'Inputs PL Final Decision 2004'!$B$33","v":2},{"$f":"'Inputs PL Final Decision 2004'!$B$14","v":8.33},{"$f":"J221*I221*H221","v":999.6},null,null,{"$f":"'Inputs PL Final Decision 2004'!$B$11","v":60},{"$f":"'Inputs PL Final Decision 2004'!$B$33","v":2},{"$f":"'Inputs PL Final Decision 2004'!$B$14","v":8.33},{"$f":"P221*O221*N221","v":999.6},null,null,{"$f":"'Inputs PL Final Decision 2004'!$B$11","v":60},{"$f":"'Inputs PL Final Decision 2004'!$B$33","v":2},{"$f":"'Inputs PL Final Decision 2004'!$B$14","v":8.33},{"$f":"V221*U221*T221","v":999.6}]
["Elevated platform vehicle costs",{"$f":"'Inputs PL Final Decision 2004'!$B$13","v":45},1,{"$f":"'Inputs PL Final Decision 2004'!$B$14","v":8.33},{"$f":"D222*C222*B222","v":374.85},null,null,{"$f":"'Inputs PL Final Decision 2004'!$B$13","v":45},1,{"$f":"'Inputs PL Final Decision 2004'!$B$14","v":8.33},{"$f":"J222*I222*H222","v":374.85},null,null,{"$f":"'Inputs PL Final Decision 2004'!$B$13","v":45},1,{"$f":"'Inputs PL Final Decision 2004'!$B$14","v":8.33},{"$f":"P222*O222*N222","v":374.85},null,null,{"$f":"'Inputs PL Final Decision 2004'!$B$13","v":45},1,{"$f":"'Inputs PL Final Decision 2004'!$B$14","v":8.33},{"$f":"V222*U222*T222","v":374.85}]
[]
["S-HP 250"]
["Luminaires "]
["Material & misc",{"$f":"'Inputs PL Final Decision 2004'!$B$42+'Inputs PL Final Decision 2004'!$B$43","v":192.44},{"$f":"'Inputs PL Final Decision 2004'!$B$46","v":16},null,{"$f":"B226*C226","v":3079.04},{"$f":"(E226+E227+E228)/C226","v":293.96187500000002},null,{"$f":"'Inputs PL Final Decision 2004'!$B$42+'Inputs PL Final Decision 2004'!$B$43","v":192.44},{"$f":"'Inputs PL Final Decision 2004'!$B$46","v":16},null,{"$f":"H226*I226","v":3079.04},{"$f":"(K226+K227+K228)/I226","v":278.34312499999999},null,{"$f":"('Inputs PL Final Decision 2004'!$B$42+'Inputs PL Final Decision 2004'!$B$43)*(1+'Inputs PL Final Decision 2004'!$B$10)","v":202.06200000000001},{"$f":"'Inputs PL Final Decision 2004'!$B$47","v":13},null,{"$f":"N226*O226","v":2626.806},{"$f":"(Q226+Q227+Q228)/O226","v":307.78892307692308},null,{"$f":"('Inputs PL Final Decision 2004'!$B$42+'Inputs PL Final Decision 2004'!$B$43)*(1+'Inputs PL Final Decision 2004'!$B$10)","v":202.06200000000001},{"$f":"'Inputs PL Final Decision 2004'!$B$48","v":10},null,{"$f":"T226*U226","v":2020.6200000000001},{"$f":"(W226+W227+W228)/U226","v":339.50700000000001}]
["Crew costs",{"$f":"'Inputs PL Final Decision 2004'!$B$11","v":60},{"$f":"'Inputs PL Final Decision 2004'!$B$45","v":2.5},{"$f":"'Inputs PL Final Decision 2004'!$B$14","v":8.33},{"$f":"D227*C227*B227","v":1249.5},null,null,{"$f":"'Inputs PL Final Decision 2004'!$B$11","v":60},{"$f":"'Inputs PL Final Decision 2004'!$B$44","v":2},{"$f":"'Inputs PL Final Decision 2004'!$B$14","v":8.33},{"$f":"J227*I227*H227","v":999.6},null,null,{"$f":"'Inputs PL Final Decision 2004'!$B$11","v":60},{"$f":"'Inputs PL Final Decision 2004'!$B$44","v":2},{"$f":"'Inputs PL Final Decision 2004'!$B$14","v":8.33},{"$f":"P227*O227*N227","v":999.6},null,null,{"$f":"'Inputs PL Final Decision 2004'!$B$11","v":60},{"$f":"'Inputs PL Final Decision 2004'!$B$44","v":2},{"$f":"'Inputs PL Final Decision 2004'!$B$14","v":8.33},{"$f":"V227*U227*T227","v":999.6}]
["Elevated platform vehicle costs",{"$f":"'Inputs PL Final Decision 2004'!$B$13","v":45},1,{"$f":"'Inputs PL Final Decision 2004'!$B$14","v":8.33},{"$f":"D228*C228*B228","v":374.85},null,null,{"$f":"'Inputs PL Final Decision 2004'!$B$13","v":45},1,{"$f":"'Inputs PL Final Decision 2004'!$B$14","v":8.33},{"$f":"J228*I228*H228","v":374.85},null,null,{"$f":"'Inputs PL Final Decision 2004'!$B$13","v":45},1,{"$f":"'Inputs PL Final Decision 2004'!$B$14","v":8.33},{"$f":"P228*O228*N228","v":374.85},null,null,{"$f":"'Inputs PL Final Decision 2004'!$B$13","v":45},1,{"$f":"'Inputs PL Final Decision 2004'!$B$14","v":8.33},{"$f":"V228*U228*T228","v":374.85}]
[]
["Dedicated poles"]
["Material",{"$f":"'Inputs PL Final Decision 2004'!$B$53","v":500},{"$f":"'Inputs PL Final Decision 2004'!$B$54","v":4},null,{"$f":"C231*B231","v":2000},{"$f":"(E231+E232+E233)/C231","v":822.78750000000002},null,{"$f":"'Inputs PL Final Decision 2004'!$B$53","v":500},{"$f":"'Inputs PL Final Decision 2004'!$B$54","v":4},null,{"$f":"I231*H231","v":2000},{"$f":"(K231+K232+K233)/I231","v":822.78750000000002},null,{"$f":"'Inputs PL Final Decision 2004'!$B$53","v":500},{"$f":"'Inputs PL Final Decision 2004'!$B$54","v":4},null,{"$f":"O231*N231","v":2000},{"$f":"(Q231+Q232+Q233)/O231","v":843.61249999999995},null,{"$f":"'Inputs PL Final Decision 2004'!$B$53","v":500},{"$f":"'Inputs PL Final Decision 2004'!$B$54","v":4},null,{"$f":"U231*T231","v":2000},{"$f":"(W231+W232+W233)/U231","v":843.61249999999995}]
["Crew costs",{"$f":"'Inputs PL Final Decision 2004'!$B$11","v":60},{"$f":"'Inputs PL Final Decision 2004'!$B$23","v":2},{"$f":"'Inputs PL Final Decision 2004'!$B$14","v":8.33},{"$f":"B232*C232*D232","v":999.6},null,null,{"$f":"'Inputs PL Final Decision 2004'!$B$11","v":60},{"$f":"'Inputs PL Final Decision 2004'!$B$23","v":2},{"$f":"'Inputs PL Final Decision 2004'!$B$14","v":8.33},{"$f":"H232*I232*J232","v":999.6},null,null,{"$f":"'Inputs PL Final Decision 2004'!$B$11","v":60},{"$f":"'Inputs PL Final Decision 2004'!$B$23","v":2},{"$f":"'Inputs PL Final Decision 2004'!$B$14","v":8.33},{"$f":"N232*O232*P232","v":999.6},null,null,{"$f":"'Inputs PL Final Decision 2004'!$B$11","v":60},{"$f":"'Inputs PL Final Decision 2004'!$B$23","v":2},{"$f":"'Inputs PL Final Decision 2004'!$B$14","v":8.33},{"$f":"T232*U232*V232","v":999.6}]
["Elevated platform costs",{"$f":"'Inputs PL Final Decision 2004'!$B$12","v":35},1,{"$f":"'Inputs PL Final Decision 2004'!$B$14","v":8.33},{"$f":"B233*C233*D233","v":291.55},null,null,{"$f":"'Inputs PL Final Decision 2004'!$B$12","v":35},1,{"$f":"'Inputs PL Final Decision 2004'!$B$14","v":8.33},{"$f":"H233*I233*J233","v":291.55},null,null,{"$f":"'Inputs PL Final Decision 2004'!$B$13","v":45},1,{"$f":"'Inputs PL Final Decision 2004'!$B$14","v":8.33},{"$f":"N233*O233*P233","v":374.85},null,null,{"$f":"'Inputs PL Final Decision 2004'!$B$13","v":45},1,{"$f":"'Inputs PL Final Decision 2004'!$B$14","v":8.33},{"$f":"T233*U233*V233","v":374.85}]
[]
["Brackets"]
["Material",{"$f":"'Inputs PL Final Decision 2004'!$B$55","v":40},{"$f":"'Inputs PL Final Decision 2004'!$B$56","v":20},null,{"$f":"C236*B236","v":800},{"$f":"(E236+E237+E238)/C236","v":104.5575},null,{"$f":"'Inputs PL Final Decision 2004'!$B$55","v":40},{"$f":"'Inputs PL Final Decision 2004'!$B$56","v":20},null,{"$f":"I236*H236","v":800},{"$f":"(K236+K237+K238)/I236","v":104.5575},null,{"$f":"'Inputs PL Final Decision 2004'!$B$55","v":40},{"$f":"'Inputs PL Final Decision 2004'!$B$56","v":20},null,{"$f":"O236*N236","v":800},{"$f":"(Q236+Q237+Q238)/O236","v":108.7225},null,{"$f":"'Inputs PL Final Decision 2004'!$B$55","v":40},{"$f":"'Inputs PL Final Decision 2004'!$B$56","v":20},null,{"$f":"U236*T236","v":800},{"$f":"(W236+W237+W238)/U236","v":108.7225}]
["Crew costs",{"$f":"'Inputs PL Final Decision 2004'!$B$11","v":60},{"$f":"'Inputs PL Final Decision 2004'!$B$23","v":2},{"$f":"'Inputs PL Final Decision 2004'!$B$14","v":8.33},{"$f":"B237*C237*D237","v":999.6},null,null,{"$f":"'Inputs PL Final Decision 2004'!$B$11","v":60},{"$f":"'Inputs PL Final Decision 2004'!$B$23","v":2},{"$f":"'Inputs PL Final Decision 2004'!$B$14","v":8.33},{"$f":"H237*I237*J237","v":999.6},null,null,{"$f":"'Inputs PL Final Decision 2004'!$B$11","v":60},{"$f":"'Inputs PL Final Decision 2004'!$B$23","v":2},{"$f":"'Inputs PL Final Decision 2004'!$B$14","v":8.33},{"$f":"N237*O237*P237","v":999.6},null,null,{"$f":"'Inputs PL Final Decision 2004'!$B$11","v":60},{"$f":"'Inputs PL Final Decision 2004'!$B$23","v":2},{"$f":"'Inputs PL Final Decision 2004'!$B$14","v":8.33},{"$f":"T237*U237*V237","v":999.6}]
["Elevated platform costs",{"$f":"'Inputs PL Final Decision 2004'!$B$12","v":35},1,{"$f":"'Inputs PL Final Decision 2004'!$B$14","v":8.33},{"$f":"B238*C238*D238","v":291.55},null,null,{"$f":"'Inputs PL Final Decision 2004'!$B$12","v":35},1,{"$f":"'Inputs PL Final Decision 2004'!$B$14","v":8.33},{"$f":"H238*I238*J238","v":291.55},null,null,{"$f":"'Inputs PL Final Decision 2004'!$B$13","v":45},1,{"$f":"'Inputs PL Final Decision 2004'!$B$14","v":8.33},{"$f":"N238*O238*P238","v":374.85},null,null,{"$f":"'Inputs PL Final Decision 2004'!$B$13","v":45},1,{"$f":"'Inputs PL Final Decision 2004'!$B$14","v":8.33},{"$f":"T238*U238*V238","v":374.85}]
[" "]

{"sheet":"RAB 2001 to 2004 N & E","index":16,"n_rows":239,"n_cols":40,"rows_kept":239,"cut":false,"hidden":false,"merged":[[207,1,207,5],[207,7,207,11],[207,13,207,17],[207,19,207,23],[45,5,45,26],[52,5,52,26],[82,5,82,26],[89,5,89,26]]}
[{"$f":"'Inputs PL Final Decision 2004'!$A$127","v":"SP AusNet - North/East"}]
[]
["Public Lighting RAB - Assets constructed between 1 January 2001 and 31 December 2004."]
["Historical cost ($)"]
[]
["Summary"]
[]
["Cost Per Unit",null,{"$f":"'DNSP Inputs General'!Q2","v":"2022-06-30"},{"$f":"'DNSP Inputs General'!R2","v":"2023-06-30"},{"$f":"'DNSP Inputs General'!S2","v":"2024-06-30"},{"$f":"'DNSP Inputs General'!T2","v":"2025-06-30"},{"$f":"'DNSP Inputs General'!U2","v":"2026-06-30"}]
["Rate of return (per annum) (Nominal Pre tax WACC)",null,{"$f":"WACC!E$8","v":5.0483926147742331E-2},{"$f":"WACC!F$8","v":5.0483926147742331E-2},{"$f":"WACC!G$8","v":5.0483926147742331E-2},{"$f":"WACC!H$8","v":5.0483926147742331E-2},{"$f":"WACC!I$8","v":5.0483926147742331E-2}]
[]
["Luminaires"]
[{"$f":"$A$134","v":"MV 80"}]
["Luminaire - depreciation",null,{"$f":"W144","v":2.348204217238206},{"$f":"X144","v":1.174102108619103},0,0,0]
["Luminaire - return on",null,{"$f":"W143*C$9","v":0.11854656828287068},{"$f":"X143*D$9","v":5.9273284141435338E-2},0,0,0]
["Capital Charge",null,{"$f":"SUM(C13:C14)","v":2.4667507855210768},{"$f":"SUM(D13:D14)","v":1.2333753927605384},0,0,0]
[]
[{"$f":"$A$148","v":"S-HP 150 "}]
["Luminaire - depreciation",null,{"$f":"W158","v":2.7655624098724645},{"$f":"X158","v":1.3827812049362322},0,0,0]
["Luminaire - return on",null,{"$f":"W157*C$9","v":0.1396164484569738},{"$f":"X157*D$9","v":6.9808224228486898E-2},0,0,0]
["Capital Charge",null,{"$f":"SUM(C18:C19)","v":2.9051788583294385},{"$f":"SUM(D18:D19)","v":1.4525894291647192},0,0,0]
[]
[{"$f":"$A$162","v":"S-HP 250 "}]
["Luminaire - depreciation",null,{"$f":"W172","v":2.785934692528135},{"$f":"X172","v":1.3929673462640675},0,0,0]
["Luminaire - return on",null,{"$f":"W171*C$9","v":0.14064492127002362},{"$f":"X171*D$9","v":7.032246063501181E-2},0,0,0]
["Capital Charge",null,{"$f":"SUM(C23:C24)","v":2.9265796137981588},{"$f":"SUM(D23:D24)","v":1.4632898068990794},0,0,0]
[]
[{"$f":"$A$176","v":"Poles & Brackets"}]
[{"$f":"$A$177","v":"Dedicated poles"}]
["Dedicated poles - depreciation",null,{"$f":"W186","v":0.92962471672939739},{"$f":"X186","v":0.92962471672939739},0.92962471672939739,0.92962471672939739,0.92962471672939739]
["Dedicated poles - return on",null,{"$f":"W185*C$9","v":0.75089768871172446},{"$f":"X185*D$9","v":0.7039665831672417},0.65703547762275893,0.61010437207827628,0.5631732665337934]
["Capital Charge",null,{"$f":"SUM(C29:C30)","v":1.6805224054411219},{"$f":"SUM(D29:D30)","v":1.6335912998966391},1.5866601943521563,1.5397290888076736,1.4927979832631908]
[]
[{"$f":"A191","v":"Brackets"}]
["Brackets - depreciation",null,{"$f":"W200","v":0.19258177577179436},{"$f":"X200","v":0.19258177577179436},0.19258177577179436,0.19258177577179436,0.19258177577179436]
["Brackets - return on",null,{"$f":"W199*C$9","v":0.15555654632742941},{"$f":"X199*D$9","v":0.14583426218196507},0.13611197803650077,0.12638969389103644,0.11666740974557208]
["Capital Charge",null,{"$f":"SUM(C34:C35)","v":0.3481383220992238},{"$f":"SUM(D34:D35)","v":0.33841603795375941},0.32869375380829513,0.3189714696628308,0.30924918551736646]
[]
[]
[]
[]
["Closing RAB at 31 December 2004 and Depreciation per annum 2005 onwards"]
[]
["Note : Calculation of the closing $ value of RAB in 2004 is Unit WDV at 31 December 2004 multiplied by volumes at 31 December 2004."]
[]
["Luminaires"]
["Depreciation",null,null,null,"Closing RAB per unit","Depreciation per unit"]
[null,null,null,null,2004,2005,2006,2007,2008,2009,2010,2011,2012,2013,2014,2015,2016,2017,2018,2019,2020,{"$f":"'DNSP Inputs General'!P2","v":"HY2021"},{"$f":"'DNSP Inputs General'!Q2","v":"2022-06-30"},{"$f":"'DNSP Inputs General'!R2","v":"2023-06-30"},{"$f":"'DNSP Inputs General'!S2","v":"2024-06-30"},{"$f":"'DNSP Inputs General'!T2","v":"2025-06-30"},{"$f":"'DNSP Inputs General'!U2","v":"2026-06-30"}]
[{"$f":"'DNSP Inputs General'!A$89","v":"Mercury Vapour 80W"},null,null,null,{"$f":"F143+F144/2","v":42.267675910287707},{"$f":"F144","v":2.348204217238206},{"$f":"G144","v":2.348204217238206},2.348204217238206,2.348204217238206,2.348204217238206,2.348204217238206,2.348204217238206,2.348204217238206,2.348204217238206,2.348204217238206,2.348204217238206,2.348204217238206,2.348204217238206,2.348204217238206,2.348204217238206,2.348204217238206,{"$f":"V144","v":1.174102108619103},2.348204217238206,1.174102108619103,0,0,0]
[{"$f":"'DNSP Inputs General'!A$90","v":"HP Sodium 150W"},null,null,null,{"$f":"F157+F158/2","v":49.780123377704356},{"$f":"F158","v":2.7655624098724645},{"$f":"G158","v":2.7655624098724645},2.7655624098724645,2.7655624098724645,2.7655624098724645,2.7655624098724645,2.7655624098724645,2.7655624098724645,2.7655624098724645,2.7655624098724645,2.7655624098724645,2.7655624098724645,2.7655624098724645,2.7655624098724645,2.7655624098724645,2.7655624098724645,{"$f":"V158","v":1.3827812049362322},2.7655624098724645,1.3827812049362322,0,0,0]
[{"$f":"'DNSP Inputs General'!A$91","v":"HP Sodium 250W"},null,null,null,{"$f":"F171+F172/2","v":50.146824465506434},{"$f":"F172","v":2.785934692528135},{"$f":"G172","v":2.785934692528135},2.785934692528135,2.785934692528135,2.785934692528135,2.785934692528135,2.785934692528135,2.785934692528135,2.785934692528135,2.785934692528135,2.785934692528135,2.785934692528135,2.785934692528135,2.785934692528135,2.785934692528135,2.785934692528135,{"$f":"V172","v":1.3929673462640675},2.785934692528135,1.3929673462640675,0,0,0]
[]
[]
["Light Type",null,"Assumed",null,"Closing RAB","Depreciation"]
[null,null," 2004 Volumes",null,{"$f":"E$47","v":2004},2005,2006,2007,2008,2009,2010,2011,2012,2013,2014,2015,2016,2017,2018,2019,2020,{"$f":"V$47","v":"HY2021"},{"$f":"W$47","v":"2022-06-30"},"2023-06-30","2024-06-30","2025-06-30","2026-06-30"]
[{"$f":"'DNSP Inputs General'!A$89","v":"Mercury Vapour 80W"},null,{"$f":"25106.4810513172+2278.72731269898+1469.46836533056","v":28854.676729346738},null,{"$f":"E48*$C55","v":1219620.1244921484},{"$f":"F48*$C55","v":67756.673582897143},67756.673582897143,67756.673582897143,67756.673582897143,67756.673582897143,67756.673582897143,67756.673582897143,67756.673582897143,67756.673582897143,67756.673582897143,67756.673582897143,67756.673582897143,{"$f":"R48*$C55","v":67756.673582897143},{"$f":"S48*$C55","v":67756.673582897143},67756.673582897143,67756.673582897143,{"$f":"V48*$C55","v":33878.336791448572},67756.673582897143,33878.336791448572,0,0,0]
[{"$f":"'DNSP Inputs General'!A$90","v":"HP Sodium 150W"},null,4252.263490243743,null,{"$f":"E49*$C56","v":211678.20117884126},{"$f":"F49*$C56","v":11759.900065491183},11759.900065491183,11759.900065491183,11759.900065491183,11759.900065491183,11759.900065491183,11759.900065491183,11759.900065491183,11759.900065491183,11759.900065491183,11759.900065491183,11759.900065491183,{"$f":"R49*$C56","v":11759.900065491183},{"$f":"S49*$C56","v":11759.900065491183},11759.900065491183,11759.900065491183,{"$f":"V49*$C56","v":5879.9500327455917},11759.900065491183,5879.9500327455917,0,0,0]
[{"$f":"'DNSP Inputs General'!A$91","v":"HP Sodium 250W"},null,4329.4481153353427,null,{"$f":"E50*$C57","v":217108.07467223908},{"$f":"F50*$C57","v":12061.559704013282},12061.559704013282,12061.559704013282,12061.559704013282,12061.559704013282,12061.559704013282,12061.559704013282,12061.559704013282,12061.559704013282,12061.559704013282,12061.559704013282,12061.559704013282,{"$f":"R50*$C57","v":12061.559704013282},{"$f":"S50*$C57","v":12061.559704013282},12061.559704013282,12061.559704013282,{"$f":"V50*$C57","v":6030.7798520066408},12061.559704013282,6030.7798520066408,0,0,0]
[{"$f":"'DNSP Inputs General'!A$92","v":"Mercury Vapour 50W"},null,546.38589867473945,null,{"$f":"IF('DNSP Inputs General'!$B92='DNSP Inputs General'!$A$89,E$48,IF('DNSP Inputs General'!$B92='DNSP Inputs General'!$A$90,E$49,E$50))*'DNSP Inputs General'!$D92*$C58","v":34179.803888960072},{"$f":"IF('DNSP Inputs General'!$B92='DNSP Inputs General'!$A$89,F$48,IF('DNSP Inputs General'!$B92='DNSP Inputs General'!$A$90,F$49,F$50))*'DNSP Inputs General'!$D92*$C58","v":1898.8779938311152},{"$f":"IF('DNSP Inputs General'!$B92='DNSP Inputs General'!$A$89,G$48,IF('DNSP Inputs General'!$B92='DNSP Inputs General'!$A$90,G$49,G$50))*'DNSP Inputs General'!$D92*$C58","v":1898.8779938311152},{"$f":"IF('DNSP Inputs General'!$B92='DNSP Inputs General'!$A$89,H$48,IF('DNSP Inputs General'!$B92='DNSP Inputs General'!$A$90,H$49,H$50))*'DNSP Inputs General'!$D92*$C58","v":1898.8779938311152},{"$f":"IF('DNSP Inputs General'!$B92='DNSP Inputs General'!$A$89,I$48,IF('DNSP Inputs General'!$B92='DNSP Inputs General'!$A$90,I$49,I$50))*'DNSP Inputs General'!$D92*$C58","v":1898.8779938311152},{"$f":"IF('DNSP Inputs General'!$B92='DNSP Inputs General'!$A$89,J$48,IF('DNSP Inputs General'!$B92='DNSP Inputs General'!$A$90,J$49,J$50))*'DNSP Inputs General'!$D92*$C58","v":1898.8779938311152},{"$f":"IF('DNSP Inputs General'!$B92='DNSP Inputs General'!$A$89,K$48,IF('DNSP Inputs General'!$B92='DNSP Inputs General'!$A$90,K$49,K$50))*'DNSP Inputs General'!$D92*$C58","v":1898.8779938311152},{"$f":"IF('DNSP Inputs General'!$B92='DNSP Inputs General'!$A$89,L$48,IF('DNSP Inputs General'!$B92='DNSP Inputs General'!$A$90,L$49,L$50))*'DNSP Inputs General'!$D92*$C58","v":1898.8779938311152},{"$f":"IF('DNSP Inputs General'!$B92='DNSP Inputs General'!$A$89,M$48,IF('DNSP Inputs General'!$B92='DNSP Inputs General'!$A$90,M$49,M$50))*'DNSP Inputs General'!$D92*$C58","v":1898.8779938311152},{"$f":"IF('DNSP Inputs General'!$B92='DNSP Inputs General'!$A$89,N$48,IF('DNSP Inputs General'!$B92='DNSP Inputs General'!$A$90,N$49,N$50))*'DNSP Inputs General'!$D92*$C58","v":1898.8779938311152},{"$f":"IF('DNSP Inputs General'!$B92='DNSP Inputs General'!$A$89,O$48,IF('DNSP Inputs General'!$B92='DNSP Inputs General'!$A$90,O$49,O$50))*'DNSP Inputs General'!$D92*$C58","v":1898.8779938311152},{"$f":"IF('DNSP Inputs General'!$B92='DNSP Inputs General'!$A$89,P$48,IF('DNSP Inputs General'!$B92='DNSP Inputs General'!$A$90,P$49,P$50))*'DNSP Inputs General'!$D92*$C58","v":1898.8779938311152},{"$f":"IF('DNSP Inputs General'!$B92='DNSP Inputs General'!$A$89,Q$48,IF('DNSP Inputs General'!$B92='DNSP Inputs General'!$A$90,Q$49,Q$50))*'DNSP Inputs General'!$D92*$C58","v":1898.8779938311152},{"$f":"IF('DNSP Inputs General'!$B92='DNSP Inputs General'!$A$89,R$48,IF('DNSP Inputs General'!$B92='DNSP Inputs General'!$A$90,R$49,R$50))*'DNSP Inputs General'!$D92*$C58","v":1898.8779938311152},{"$f":"IF('DNSP Inputs General'!$B92='DNSP Inputs General'!$A$89,S$48,IF('DNSP Inputs General'!$B92='DNSP Inputs General'!$A$90,S$49,S$50))*'DNSP Inputs General'!$D92*$C58","v":1898.8779938311152},{"$f":"IF('DNSP Inputs General'!$B92='DNSP Inputs General'!$A$89,T$48,IF('DNSP Inputs General'!$B92='DNSP Inputs General'!$A$90,T$49,T$50))*'DNSP Inputs General'!$D92*$C58","v":1898.8779938311152},{"$f":"IF('DNSP Inputs General'!$B92='DNSP Inputs General'!$A$89,U$48,IF('DNSP Inputs General'!$B92='DNSP Inputs General'!$A$90,U$49,U$50))*'DNSP Inputs General'!$D92*$C58","v":1898.8779938311152},{"$f":"IF('DNSP Inputs General'!$B92='DNSP Inputs General'!$A$89,V$48,IF('DNSP Inputs General'!$B92='DNSP Inputs General'!$A$90,V$49,V$50))*'DNSP Inputs General'!$D92*$C58","v":949.4389969155576},{"$f":"IF('DNSP Inputs General'!$B92='DNSP Inputs General'!$A$89,W$48,IF('DNSP Inputs General'!$B92='DNSP Inputs General'!$A$90,W$49,W$50))*'DNSP Inputs General'!$D92*$C58","v":1898.8779938311152},{"$f":"IF('DNSP Inputs General'!$B92='DNSP Inputs General'!$A$89,X$48,IF('DNSP Inputs General'!$B92='DNSP Inputs General'!$A$90,X$49,X$50))*'DNSP Inputs General'!$D92*$C58","v":949.4389969155576},{"$f":"IF('DNSP Inputs General'!$B92='DNSP Inputs General'!$A$89,Y$48,IF('DNSP Inputs General'!$B92='DNSP Inputs General'!$A$90,Y$49,Y$50))*'DNSP Inputs General'!$D92*$C58","v":0},{"$f":"IF('DNSP Inputs General'!$B92='DNSP Inputs General'!$A$89,Z$48,IF('DNSP Inputs General'!$B92='DNSP Inputs General'!$A$90,Z$49,Z$50))*'DNSP Inputs General'!$D92*$C58","v":0},{"$f":"IF('DNSP Inputs General'!$B92='DNSP Inputs General'!$A$89,AA$48,IF('DNSP Inputs General'!$B92='DNSP Inputs General'!$A$90,AA$49,AA$50))*'DNSP Inputs General'!$D92*$C58","v":0}]
[{"$f":"'DNSP Inputs General'!A$93","v":"Mercury Vapour 125W"},null,61.950817507730676,null,{"$f":"IF('DNSP Inputs General'!$B93='DNSP Inputs General'!$A$89,E$48,IF('DNSP Inputs General'!$B93='DNSP Inputs General'!$A$90,E$49,E$50))*'DNSP Inputs General'!$D93*$C59","v":3875.405273655324},{"$f":"IF('DNSP Inputs General'!$B93='DNSP Inputs General'!$A$89,F$48,IF('DNSP Inputs General'!$B93='DNSP Inputs General'!$A$90,F$49,F$50))*'DNSP Inputs General'!$D93*$C59","v":215.30029298085134},{"$f":"IF('DNSP Inputs General'!$B93='DNSP Inputs General'!$A$89,G$48,IF('DNSP Inputs General'!$B93='DNSP Inputs General'!$A$90,G$49,G$50))*'DNSP Inputs General'!$D93*$C59","v":215.30029298085134},{"$f":"IF('DNSP Inputs General'!$B93='DNSP Inputs General'!$A$89,H$48,IF('DNSP Inputs General'!$B93='DNSP Inputs General'!$A$90,H$49,H$50))*'DNSP Inputs General'!$D93*$C59","v":215.30029298085134},{"$f":"IF('DNSP Inputs General'!$B93='DNSP Inputs General'!$A$89,I$48,IF('DNSP Inputs General'!$B93='DNSP Inputs General'!$A$90,I$49,I$50))*'DNSP Inputs General'!$D93*$C59","v":215.30029298085134},{"$f":"IF('DNSP Inputs General'!$B93='DNSP Inputs General'!$A$89,J$48,IF('DNSP Inputs General'!$B93='DNSP Inputs General'!$A$90,J$49,J$50))*'DNSP Inputs General'!$D93*$C59","v":215.30029298085134},{"$f":"IF('DNSP Inputs General'!$B93='DNSP Inputs General'!$A$89,K$48,IF('DNSP Inputs General'!$B93='DNSP Inputs General'!$A$90,K$49,K$50))*'DNSP Inputs General'!$D93*$C59","v":215.30029298085134},{"$f":"IF('DNSP Inputs General'!$B93='DNSP Inputs General'!$A$89,L$48,IF('DNSP Inputs General'!$B93='DNSP Inputs General'!$A$90,L$49,L$50))*'DNSP Inputs General'!$D93*$C59","v":215.30029298085134},{"$f":"IF('DNSP Inputs General'!$B93='DNSP Inputs General'!$A$89,M$48,IF('DNSP Inputs General'!$B93='DNSP Inputs General'!$A$90,M$49,M$50))*'DNSP Inputs General'!$D93*$C59","v":215.30029298085134},{"$f":"IF('DNSP Inputs General'!$B93='DNSP Inputs General'!$A$89,N$48,IF('DNSP Inputs General'!$B93='DNSP Inputs General'!$A$90,N$49,N$50))*'DNSP Inputs General'!$D93*$C59","v":215.30029298085134},{"$f":"IF('DNSP Inputs General'!$B93='DNSP Inputs General'!$A$89,O$48,IF('DNSP Inputs General'!$B93='DNSP Inputs General'!$A$90,O$49,O$50))*'DNSP Inputs General'!$D93*$C59","v":215.30029298085134},{"$f":"IF('DNSP Inputs General'!$B93='DNSP Inputs General'!$A$89,P$48,IF('DNSP Inputs General'!$B93='DNSP Inputs General'!$A$90,P$49,P$50))*'DNSP Inputs General'!$D93*$C59","v":215.30029298085134},{"$f":"IF('DNSP Inputs General'!$B93='DNSP Inputs General'!$A$89,Q$48,IF('DNSP Inputs General'!$B93='DNSP Inputs General'!$A$90,Q$49,Q$50))*'DNSP Inputs General'!$D93*$C59","v":215.30029298085134},{"$f":"IF('DNSP Inputs General'!$B93='DNSP Inputs General'!$A$89,R$48,IF('DNSP Inputs General'!$B93='DNSP Inputs General'!$A$90,R$49,R$50))*'DNSP Inputs General'!$D93*$C59","v":215.30029298085134},{"$f":"IF('DNSP Inputs General'!$B93='DNSP Inputs General'!$A$89,S$48,IF('DNSP Inputs General'!$B93='DNSP Inputs General'!$A$90,S$49,S$50))*'DNSP Inputs General'!$D93*$C59","v":215.30029298085134},{"$f":"IF('DNSP Inputs General'!$B93='DNSP Inputs General'!$A$89,T$48,IF('DNSP Inputs General'!$B93='DNSP Inputs General'!$A$90,T$49,T$50))*'DNSP Inputs General'!$D93*$C59","v":215.30029298085134},{"$f":"IF('DNSP Inputs General'!$B93='DNSP Inputs General'!$A$89,U$48,IF('DNSP Inputs General'!$B93='DNSP Inputs General'!$A$90,U$49,U$50))*'DNSP Inputs General'!$D93*$C59","v":215.30029298085134},{"$f":"IF('DNSP Inputs General'!$B93='DNSP Inputs General'!$A$89,V$48,IF('DNSP Inputs General'!$B93='DNSP Inputs General'!$A$90,V$49,V$50))*'DNSP Inputs General'!$D93*$C59","v":107.65014649042567},{"$f":"IF('DNSP Inputs General'!$B93='DNSP Inputs General'!$A$89,W$48,IF('DNSP Inputs General'!$B93='DNSP Inputs General'!$A$90,W$49,W$50))*'DNSP Inputs General'!$D93*$C59","v":215.30029298085134},{"$f":"IF('DNSP Inputs General'!$B93='DNSP Inputs General'!$A$89,X$48,IF('DNSP Inputs General'!$B93='DNSP Inputs General'!$A$90,X$49,X$50))*'DNSP Inputs General'!$D93*$C59","v":107.65014649042567},{"$f":"IF('DNSP Inputs General'!$B93='DNSP Inputs General'!$A$89,Y$48,IF('DNSP Inputs General'!$B93='DNSP Inputs General'!$A$90,Y$49,Y$50))*'DNSP Inputs General'!$D93*$C59","v":0},{"$f":"IF('DNSP Inputs General'!$B93='DNSP Inputs General'!$A$89,Z$48,IF('DNSP Inputs General'!$B93='DNSP Inputs General'!$A$90,Z$49,Z$50))*'DNSP Inputs General'!$D93*$C59","v":0},{"$f":"IF('DNSP Inputs General'!$B93='DNSP Inputs General'!$A$89,AA$48,IF('DNSP Inputs General'!$B93='DNSP Inputs General'!$A$90,AA$49,AA$50))*'DNSP Inputs General'!$D93*$C59","v":0}]
[{"$f":"'DNSP Inputs General'!A$94","v":"Mercury Vapour 250W"},null,450.92070448249871,null,{"$f":"IF('DNSP Inputs General'!$B94='DNSP Inputs General'!$A$89,E$48,IF('DNSP Inputs General'!$B94='DNSP Inputs General'!$A$90,E$49,E$50))*'DNSP Inputs General'!$D94*$C60","v":23516.731072168219},{"$f":"IF('DNSP Inputs General'!$B94='DNSP Inputs General'!$A$89,F$48,IF('DNSP Inputs General'!$B94='DNSP Inputs General'!$A$90,F$49,F$50))*'DNSP Inputs General'!$D94*$C60","v":1306.4850595649009},{"$f":"IF('DNSP Inputs General'!$B94='DNSP Inputs General'!$A$89,G$48,IF('DNSP Inputs General'!$B94='DNSP Inputs General'!$A$90,G$49,G$50))*'DNSP Inputs General'!$D94*$C60","v":1306.4850595649009},{"$f":"IF('DNSP Inputs General'!$B94='DNSP Inputs General'!$A$89,H$48,IF('DNSP Inputs General'!$B94='DNSP Inputs General'!$A$90,H$49,H$50))*'DNSP Inputs General'!$D94*$C60","v":1306.4850595649009},{"$f":"IF('DNSP Inputs General'!$B94='DNSP Inputs General'!$A$89,I$48,IF('DNSP Inputs General'!$B94='DNSP Inputs General'!$A$90,I$49,I$50))*'DNSP Inputs General'!$D94*$C60","v":1306.4850595649009},{"$f":"IF('DNSP Inputs General'!$B94='DNSP Inputs General'!$A$89,J$48,IF('DNSP Inputs General'!$B94='DNSP Inputs General'!$A$90,J$49,J$50))*'DNSP Inputs General'!$D94*$C60","v":1306.4850595649009},{"$f":"IF('DNSP Inputs General'!$B94='DNSP Inputs General'!$A$89,K$48,IF('DNSP Inputs General'!$B94='DNSP Inputs General'!$A$90,K$49,K$50))*'DNSP Inputs General'!$D94*$C60","v":1306.4850595649009},{"$f":"IF('DNSP Inputs General'!$B94='DNSP Inputs General'!$A$89,L$48,IF('DNSP Inputs General'!$B94='DNSP Inputs General'!$A$90,L$49,L$50))*'DNSP Inputs General'!$D94*$C60","v":1306.4850595649009},{"$f":"IF('DNSP Inputs General'!$B94='DNSP Inputs General'!$A$89,M$48,IF('DNSP Inputs General'!$B94='DNSP Inputs General'!$A$90,M$49,M$50))*'DNSP Inputs General'!$D94*$C60","v":1306.4850595649009},{"$f":"IF('DNSP Inputs General'!$B94='DNSP Inputs General'!$A$89,N$48,IF('DNSP Inputs General'!$B94='DNSP Inputs General'!$A$90,N$49,N$50))*'DNSP Inputs General'!$D94*$C60","v":1306.4850595649009},{"$f":"IF('DNSP Inputs General'!$B94='DNSP Inputs General'!$A$89,O$48,IF('DNSP Inputs General'!$B94='DNSP Inputs General'!$A$90,O$49,O$50))*'DNSP Inputs General'!$D94*$C60","v":1306.4850595649009},{"$f":"IF('DNSP Inputs General'!$B94='DNSP Inputs General'!$A$89,P$48,IF('DNSP Inputs General'!$B94='DNSP Inputs General'!$A$90,P$49,P$50))*'DNSP Inputs General'!$D94*$C60","v":1306.4850595649009},{"$f":"IF('DNSP Inputs General'!$B94='DNSP Inputs General'!$A$89,Q$48,IF('DNSP Inputs General'!$B94='DNSP Inputs General'!$A$90,Q$49,Q$50))*'DNSP Inputs General'!$D94*$C60","v":1306.4850595649009},{"$f":"IF('DNSP Inputs General'!$B94='DNSP Inputs General'!$A$89,R$48,IF('DNSP Inputs General'!$B94='DNSP Inputs General'!$A$90,R$49,R$50))*'DNSP Inputs General'!$D94*$C60","v":1306.4850595649009},{"$f":"IF('DNSP Inputs General'!$B94='DNSP Inputs General'!$A$89,S$48,IF('DNSP Inputs General'!$B94='DNSP Inputs General'!$A$90,S$49,S$50))*'DNSP Inputs General'!$D94*$C60","v":1306.4850595649009},{"$f":"IF('DNSP Inputs General'!$B94='DNSP Inputs General'!$A$89,T$48,IF('DNSP Inputs General'!$B94='DNSP Inputs General'!$A$90,T$49,T$50))*'DNSP Inputs General'!$D94*$C60","v":1306.4850595649009},{"$f":"IF('DNSP Inputs General'!$B94='DNSP Inputs General'!$A$89,U$48,IF('DNSP Inputs General'!$B94='DNSP Inputs General'!$A$90,U$49,U$50))*'DNSP Inputs General'!$D94*$C60","v":1306.4850595649009},{"$f":"IF('DNSP Inputs General'!$B94='DNSP Inputs General'!$A$89,V$48,IF('DNSP Inputs General'!$B94='DNSP Inputs General'!$A$90,V$49,V$50))*'DNSP Inputs General'!$D94*$C60","v":653.24252978245045},{"$f":"IF('DNSP Inputs General'!$B94='DNSP Inputs General'!$A$89,W$48,IF('DNSP Inputs General'!$B94='DNSP Inputs General'!$A$90,W$49,W$50))*'DNSP Inputs General'!$D94*$C60","v":1306.4850595649009},{"$f":"IF('DNSP Inputs General'!$B94='DNSP Inputs General'!$A$89,X$48,IF('DNSP Inputs General'!$B94='DNSP Inputs General'!$A$90,X$49,X$50))*'DNSP Inputs General'!$D94*$C60","v":653.24252978245045},{"$f":"IF('DNSP Inputs General'!$B94='DNSP Inputs General'!$A$89,Y$48,IF('DNSP Inputs General'!$B94='DNSP Inputs General'!$A$90,Y$49,Y$50))*'DNSP Inputs General'!$D94*$C60","v":0},{"$f":"IF('DNSP Inputs General'!$B94='DNSP Inputs General'!$A$89,Z$48,IF('DNSP Inputs General'!$B94='DNSP Inputs General'!$A$90,Z$49,Z$50))*'DNSP Inputs General'!$D94*$C60","v":0},{"$f":"IF('DNSP Inputs General'!$B94='DNSP Inputs General'!$A$89,AA$48,IF('DNSP Inputs General'!$B94='DNSP Inputs General'!$A$90,AA$49,AA$50))*'DNSP Inputs General'!$D94*$C60","v":0}]
[{"$f":"'DNSP Inputs General'!A$95","v":"Mercury Vapour 400W"},null,137.1042682548138,null,{"$f":"IF('DNSP Inputs General'!$B95='DNSP Inputs General'!$A$89,E$48,IF('DNSP Inputs General'!$B95='DNSP Inputs General'!$A$90,E$49,E$50))*'DNSP Inputs General'!$D95*$C61","v":7356.6177308010647},{"$f":"IF('DNSP Inputs General'!$B95='DNSP Inputs General'!$A$89,F$48,IF('DNSP Inputs General'!$B95='DNSP Inputs General'!$A$90,F$49,F$50))*'DNSP Inputs General'!$D95*$C61","v":408.70098504450351},{"$f":"IF('DNSP Inputs General'!$B95='DNSP Inputs General'!$A$89,G$48,IF('DNSP Inputs General'!$B95='DNSP Inputs General'!$A$90,G$49,G$50))*'DNSP Inputs General'!$D95*$C61","v":408.70098504450351},{"$f":"IF('DNSP Inputs General'!$B95='DNSP Inputs General'!$A$89,H$48,IF('DNSP Inputs General'!$B95='DNSP Inputs General'!$A$90,H$49,H$50))*'DNSP Inputs General'!$D95*$C61","v":408.70098504450351},{"$f":"IF('DNSP Inputs General'!$B95='DNSP Inputs General'!$A$89,I$48,IF('DNSP Inputs General'!$B95='DNSP Inputs General'!$A$90,I$49,I$50))*'DNSP Inputs General'!$D95*$C61","v":408.70098504450351},{"$f":"IF('DNSP Inputs General'!$B95='DNSP Inputs General'!$A$89,J$48,IF('DNSP Inputs General'!$B95='DNSP Inputs General'!$A$90,J$49,J$50))*'DNSP Inputs General'!$D95*$C61","v":408.70098504450351},{"$f":"IF('DNSP Inputs General'!$B95='DNSP Inputs General'!$A$89,K$48,IF('DNSP Inputs General'!$B95='DNSP Inputs General'!$A$90,K$49,K$50))*'DNSP Inputs General'!$D95*$C61","v":408.70098504450351},{"$f":"IF('DNSP Inputs General'!$B95='DNSP Inputs General'!$A$89,L$48,IF('DNSP Inputs General'!$B95='DNSP Inputs General'!$A$90,L$49,L$50))*'DNSP Inputs General'!$D95*$C61","v":408.70098504450351},{"$f":"IF('DNSP Inputs General'!$B95='DNSP Inputs General'!$A$89,M$48,IF('DNSP Inputs General'!$B95='DNSP Inputs General'!$A$90,M$49,M$50))*'DNSP Inputs General'!$D95*$C61","v":408.70098504450351},{"$f":"IF('DNSP Inputs General'!$B95='DNSP Inputs General'!$A$89,N$48,IF('DNSP Inputs General'!$B95='DNSP Inputs General'!$A$90,N$49,N$50))*'DNSP Inputs General'!$D95*$C61","v":408.70098504450351},{"$f":"IF('DNSP Inputs General'!$B95='DNSP Inputs General'!$A$89,O$48,IF('DNSP Inputs General'!$B95='DNSP Inputs General'!$A$90,O$49,O$50))*'DNSP Inputs General'!$D95*$C61","v":408.70098504450351},{"$f":"IF('DNSP Inputs General'!$B95='DNSP Inputs General'!$A$89,P$48,IF('DNSP Inputs General'!$B95='DNSP Inputs General'!$A$90,P$49,P$50))*'DNSP Inputs General'!$D95*$C61","v":408.70098504450351},{"$f":"IF('DNSP Inputs General'!$B95='DNSP Inputs General'!$A$89,Q$48,IF('DNSP Inputs General'!$B95='DNSP Inputs General'!$A$90,Q$49,Q$50))*'DNSP Inputs General'!$D95*$C61","v":408.70098504450351},{"$f":"IF('DNSP Inputs General'!$B95='DNSP Inputs General'!$A$89,R$48,IF('DNSP Inputs General'!$B95='DNSP Inputs General'!$A$90,R$49,R$50))*'DNSP Inputs General'!$D95*$C61","v":408.70098504450351},{"$f":"IF('DNSP Inputs General'!$B95='DNSP Inputs General'!$A$89,S$48,IF('DNSP Inputs General'!$B95='DNSP Inputs General'!$A$90,S$49,S$50))*'DNSP Inputs General'!$D95*$C61","v":408.70098504450351},{"$f":"IF('DNSP Inputs General'!$B95='DNSP Inputs General'!$A$89,T$48,IF('DNSP Inputs General'!$B95='DNSP Inputs General'!$A$90,T$49,T$50))*'DNSP Inputs General'!$D95*$C61","v":408.70098504450351},{"$f":"IF('DNSP Inputs General'!$B95='DNSP Inputs General'!$A$89,U$48,IF('DNSP Inputs General'!$B95='DNSP Inputs General'!$A$90,U$49,U$50))*'DNSP Inputs General'!$D95*$C61","v":408.70098504450351},{"$f":"IF('DNSP Inputs General'!$B95='DNSP Inputs General'!$A$89,V$48,IF('DNSP Inputs General'!$B95='DNSP Inputs General'!$A$90,V$49,V$50))*'DNSP Inputs General'!$D95*$C61","v":204.35049252225176},{"$f":"IF('DNSP Inputs General'!$B95='DNSP Inputs General'!$A$89,W$48,IF('DNSP Inputs General'!$B95='DNSP Inputs General'!$A$90,W$49,W$50))*'DNSP Inputs General'!$D95*$C61","v":408.70098504450351},{"$f":"IF('DNSP Inputs General'!$B95='DNSP Inputs General'!$A$89,X$48,IF('DNSP Inputs General'!$B95='DNSP Inputs General'!$A$90,X$49,X$50))*'DNSP Inputs General'!$D95*$C61","v":204.35049252225176},{"$f":"IF('DNSP Inputs General'!$B95='DNSP Inputs General'!$A$89,Y$48,IF('DNSP Inputs General'!$B95='DNSP Inputs General'!$A$90,Y$49,Y$50))*'DNSP Inputs General'!$D95*$C61","v":0},{"$f":"IF('DNSP Inputs General'!$B95='DNSP Inputs General'!$A$89,Z$48,IF('DNSP Inputs General'!$B95='DNSP Inputs General'!$A$90,Z$49,Z$50))*'DNSP Inputs General'!$D95*$C61","v":0},{"$f":"IF('DNSP Inputs General'!$B95='DNSP Inputs General'!$A$89,AA$48,IF('DNSP Inputs General'!$B95='DNSP Inputs General'!$A$90,AA$49,AA$50))*'DNSP Inputs General'!$D95*$C61","v":0}]
[{"$f":"'DNSP Inputs General'!A$96","v":"HP Sodium 100W"},null,92.418432675467074,null,{"$f":"IF('DNSP Inputs General'!$B96='DNSP Inputs General'!$A$89,E$48,IF('DNSP Inputs General'!$B96='DNSP Inputs General'!$A$90,E$49,E$50))*'DNSP Inputs General'!$D96*$C62","v":4922.6430496259318},{"$f":"IF('DNSP Inputs General'!$B96='DNSP Inputs General'!$A$89,F$48,IF('DNSP Inputs General'!$B96='DNSP Inputs General'!$A$90,F$49,F$50))*'DNSP Inputs General'!$D96*$C62","v":273.48016942366291},{"$f":"IF('DNSP Inputs General'!$B96='DNSP Inputs General'!$A$89,G$48,IF('DNSP Inputs General'!$B96='DNSP Inputs General'!$A$90,G$49,G$50))*'DNSP Inputs General'!$D96*$C62","v":273.48016942366291},{"$f":"IF('DNSP Inputs General'!$B96='DNSP Inputs General'!$A$89,H$48,IF('DNSP Inputs General'!$B96='DNSP Inputs General'!$A$90,H$49,H$50))*'DNSP Inputs General'!$D96*$C62","v":273.48016942366291},{"$f":"IF('DNSP Inputs General'!$B96='DNSP Inputs General'!$A$89,I$48,IF('DNSP Inputs General'!$B96='DNSP Inputs General'!$A$90,I$49,I$50))*'DNSP Inputs General'!$D96*$C62","v":273.48016942366291},{"$f":"IF('DNSP Inputs General'!$B96='DNSP Inputs General'!$A$89,J$48,IF('DNSP Inputs General'!$B96='DNSP Inputs General'!$A$90,J$49,J$50))*'DNSP Inputs General'!$D96*$C62","v":273.48016942366291},{"$f":"IF('DNSP Inputs General'!$B96='DNSP Inputs General'!$A$89,K$48,IF('DNSP Inputs General'!$B96='DNSP Inputs General'!$A$90,K$49,K$50))*'DNSP Inputs General'!$D96*$C62","v":273.48016942366291},{"$f":"IF('DNSP Inputs General'!$B96='DNSP Inputs General'!$A$89,L$48,IF('DNSP Inputs General'!$B96='DNSP Inputs General'!$A$90,L$49,L$50))*'DNSP Inputs General'!$D96*$C62","v":273.48016942366291},{"$f":"IF('DNSP Inputs General'!$B96='DNSP Inputs General'!$A$89,M$48,IF('DNSP Inputs General'!$B96='DNSP Inputs General'!$A$90,M$49,M$50))*'DNSP Inputs General'!$D96*$C62","v":273.48016942366291},{"$f":"IF('DNSP Inputs General'!$B96='DNSP Inputs General'!$A$89,N$48,IF('DNSP Inputs General'!$B96='DNSP Inputs General'!$A$90,N$49,N$50))*'DNSP Inputs General'!$D96*$C62","v":273.48016942366291},{"$f":"IF('DNSP Inputs General'!$B96='DNSP Inputs General'!$A$89,O$48,IF('DNSP Inputs General'!$B96='DNSP Inputs General'!$A$90,O$49,O$50))*'DNSP Inputs General'!$D96*$C62","v":273.48016942366291},{"$f":"IF('DNSP Inputs General'!$B96='DNSP Inputs General'!$A$89,P$48,IF('DNSP Inputs General'!$B96='DNSP Inputs General'!$A$90,P$49,P$50))*'DNSP Inputs General'!$D96*$C62","v":273.48016942366291},{"$f":"IF('DNSP Inputs General'!$B96='DNSP Inputs General'!$A$89,Q$48,IF('DNSP Inputs General'!$B96='DNSP Inputs General'!$A$90,Q$49,Q$50))*'DNSP Inputs General'!$D96*$C62","v":273.48016942366291},{"$f":"IF('DNSP Inputs General'!$B96='DNSP Inputs General'!$A$89,R$48,IF('DNSP Inputs General'!$B96='DNSP Inputs General'!$A$90,R$49,R$50))*'DNSP Inputs General'!$D96*$C62","v":273.48016942366291},{"$f":"IF('DNSP Inputs General'!$B96='DNSP Inputs General'!$A$89,S$48,IF('DNSP Inputs General'!$B96='DNSP Inputs General'!$A$90,S$49,S$50))*'DNSP Inputs General'!$D96*$C62","v":273.48016942366291},{"$f":"IF('DNSP Inputs General'!$B96='DNSP Inputs General'!$A$89,T$48,IF('DNSP Inputs General'!$B96='DNSP Inputs General'!$A$90,T$49,T$50))*'DNSP Inputs General'!$D96*$C62","v":273.48016942366291},{"$f":"IF('DNSP Inputs General'!$B96='DNSP Inputs General'!$A$89,U$48,IF('DNSP Inputs General'!$B96='DNSP Inputs General'!$A$90,U$49,U$50))*'DNSP Inputs General'!$D96*$C62","v":273.48016942366291},{"$f":"IF('DNSP Inputs General'!$B96='DNSP Inputs General'!$A$89,V$48,IF('DNSP Inputs General'!$B96='DNSP Inputs General'!$A$90,V$49,V$50))*'DNSP Inputs General'!$D96*$C62","v":136.74008471183146},{"$f":"IF('DNSP Inputs General'!$B96='DNSP Inputs General'!$A$89,W$48,IF('DNSP Inputs General'!$B96='DNSP Inputs General'!$A$90,W$49,W$50))*'DNSP Inputs General'!$D96*$C62","v":273.48016942366291},{"$f":"IF('DNSP Inputs General'!$B96='DNSP Inputs General'!$A$89,X$48,IF('DNSP Inputs General'!$B96='DNSP Inputs General'!$A$90,X$49,X$50))*'DNSP Inputs General'!$D96*$C62","v":136.74008471183146},{"$f":"IF('DNSP Inputs General'!$B96='DNSP Inputs General'!$A$89,Y$48,IF('DNSP Inputs General'!$B96='DNSP Inputs General'!$A$90,Y$49,Y$50))*'DNSP Inputs General'!$D96*$C62","v":0},{"$f":"IF('DNSP Inputs General'!$B96='DNSP Inputs General'!$A$89,Z$48,IF('DNSP Inputs General'!$B96='DNSP Inputs General'!$A$90,Z$49,Z$50))*'DNSP Inputs General'!$D96*$C62","v":0},{"$f":"IF('DNSP Inputs General'!$B96='DNSP Inputs General'!$A$89,AA$48,IF('DNSP Inputs General'!$B96='DNSP Inputs General'!$A$90,AA$49,AA$50))*'DNSP Inputs General'!$D96*$C62","v":0}]
[{"$f":"'DNSP Inputs General'!A$97","v":"HP Sodium 400W"},null,282.33323388769065,null,{"$f":"IF('DNSP Inputs General'!$B97='DNSP Inputs General'!$A$89,E$48,IF('DNSP Inputs General'!$B97='DNSP Inputs General'!$A$90,E$49,E$50))*'DNSP Inputs General'!$D97*$C63","v":20104.523471173608},{"$f":"IF('DNSP Inputs General'!$B97='DNSP Inputs General'!$A$89,F$48,IF('DNSP Inputs General'!$B97='DNSP Inputs General'!$A$90,F$49,F$50))*'DNSP Inputs General'!$D97*$C63","v":1116.917970620756},{"$f":"IF('DNSP Inputs General'!$B97='DNSP Inputs General'!$A$89,G$48,IF('DNSP Inputs General'!$B97='DNSP Inputs General'!$A$90,G$49,G$50))*'DNSP Inputs General'!$D97*$C63","v":1116.917970620756},{"$f":"IF('DNSP Inputs General'!$B97='DNSP Inputs General'!$A$89,H$48,IF('DNSP Inputs General'!$B97='DNSP Inputs General'!$A$90,H$49,H$50))*'DNSP Inputs General'!$D97*$C63","v":1116.917970620756},{"$f":"IF('DNSP Inputs General'!$B97='DNSP Inputs General'!$A$89,I$48,IF('DNSP Inputs General'!$B97='DNSP Inputs General'!$A$90,I$49,I$50))*'DNSP Inputs General'!$D97*$C63","v":1116.917970620756},{"$f":"IF('DNSP Inputs General'!$B97='DNSP Inputs General'!$A$89,J$48,IF('DNSP Inputs General'!$B97='DNSP Inputs General'!$A$90,J$49,J$50))*'DNSP Inputs General'!$D97*$C63","v":1116.917970620756},{"$f":"IF('DNSP Inputs General'!$B97='DNSP Inputs General'!$A$89,K$48,IF('DNSP Inputs General'!$B97='DNSP Inputs General'!$A$90,K$49,K$50))*'DNSP Inputs General'!$D97*$C63","v":1116.917970620756},{"$f":"IF('DNSP Inputs General'!$B97='DNSP Inputs General'!$A$89,L$48,IF('DNSP Inputs General'!$B97='DNSP Inputs General'!$A$90,L$49,L$50))*'DNSP Inputs General'!$D97*$C63","v":1116.917970620756},{"$f":"IF('DNSP Inputs General'!$B97='DNSP Inputs General'!$A$89,M$48,IF('DNSP Inputs General'!$B97='DNSP Inputs General'!$A$90,M$49,M$50))*'DNSP Inputs General'!$D97*$C63","v":1116.917970620756},{"$f":"IF('DNSP Inputs General'!$B97='DNSP Inputs General'!$A$89,N$48,IF('DNSP Inputs General'!$B97='DNSP Inputs General'!$A$90,N$49,N$50))*'DNSP Inputs General'!$D97*$C63","v":1116.917970620756},{"$f":"IF('DNSP Inputs General'!$B97='DNSP Inputs General'!$A$89,O$48,IF('DNSP Inputs General'!$B97='DNSP Inputs General'!$A$90,O$49,O$50))*'DNSP Inputs General'!$D97*$C63","v":1116.917970620756},{"$f":"IF('DNSP Inputs General'!$B97='DNSP Inputs General'!$A$89,P$48,IF('DNSP Inputs General'!$B97='DNSP Inputs General'!$A$90,P$49,P$50))*'DNSP Inputs General'!$D97*$C63","v":1116.917970620756},{"$f":"IF('DNSP Inputs General'!$B97='DNSP Inputs General'!$A$89,Q$48,IF('DNSP Inputs General'!$B97='DNSP Inputs General'!$A$90,Q$49,Q$50))*'DNSP Inputs General'!$D97*$C63","v":1116.917970620756},{"$f":"IF('DNSP Inputs General'!$B97='DNSP Inputs General'!$A$89,R$48,IF('DNSP Inputs General'!$B97='DNSP Inputs General'!$A$90,R$49,R$50))*'DNSP Inputs General'!$D97*$C63","v":1116.917970620756},{"$f":"IF('DNSP Inputs General'!$B97='DNSP Inputs General'!$A$89,S$48,IF('DNSP Inputs General'!$B97='DNSP Inputs General'!$A$90,S$49,S$50))*'DNSP Inputs General'!$D97*$C63","v":1116.917970620756},{"$f":"IF('DNSP Inputs General'!$B97='DNSP Inputs General'!$A$89,T$48,IF('DNSP Inputs General'!$B97='DNSP Inputs General'!$A$90,T$49,T$50))*'DNSP Inputs General'!$D97*$C63","v":1116.917970620756},{"$f":"IF('DNSP Inputs General'!$B97='DNSP Inputs General'!$A$89,U$48,IF('DNSP Inputs General'!$B97='DNSP Inputs General'!$A$90,U$49,U$50))*'DNSP Inputs General'!$D97*$C63","v":1116.917970620756},{"$f":"IF('DNSP Inputs General'!$B97='DNSP Inputs General'!$A$89,V$48,IF('DNSP Inputs General'!$B97='DNSP Inputs General'!$A$90,V$49,V$50))*'DNSP Inputs General'!$D97*$C63","v":558.45898531037801},{"$f":"IF('DNSP Inputs General'!$B97='DNSP Inputs General'!$A$89,W$48,IF('DNSP Inputs General'!$B97='DNSP Inputs General'!$A$90,W$49,W$50))*'DNSP Inputs General'!$D97*$C63","v":1116.917970620756},{"$f":"IF('DNSP Inputs General'!$B97='DNSP Inputs General'!$A$89,X$48,IF('DNSP Inputs General'!$B97='DNSP Inputs General'!$A$90,X$49,X$50))*'DNSP Inputs General'!$D97*$C63","v":558.45898531037801},{"$f":"IF('DNSP Inputs General'!$B97='DNSP Inputs General'!$A$89,Y$48,IF('DNSP Inputs General'!$B97='DNSP Inputs General'!$A$90,Y$49,Y$50))*'DNSP Inputs General'!$D97*$C63","v":0},{"$f":"IF('DNSP Inputs General'!$B97='DNSP Inputs General'!$A$89,Z$48,IF('DNSP Inputs General'!$B97='DNSP Inputs General'!$A$90,Z$49,Z$50))*'DNSP Inputs General'!$D97*$C63","v":0},{"$f":"IF('DNSP Inputs General'!$B97='DNSP Inputs General'!$A$89,AA$48,IF('DNSP Inputs General'!$B97='DNSP Inputs General'!$A$90,AA$49,AA$50))*'DNSP Inputs General'!$D97*$C63","v":0}]
[]
[]
[]
[]
[]
[]
[]
[]
[]
[]
[]
[]
[]
[null,null,null,null,{"$f":"SUM(E55:E76)","v":1742362.1248296131},{"$f":"SUM(F55:F76)","v":96797.895823867409},96797.895823867409,96797.895823867409,96797.895823867409,96797.895823867409,96797.895823867409,96797.895823867409,96797.895823867409,96797.895823867409,96797.895823867409,96797.895823867409,96797.895823867409,{"$f":"SUM(R55:R76)","v":96797.895823867409},{"$f":"SUM(S55:S76)","v":96797.895823867409},96797.895823867409,96797.895823867409,{"$f":"SUM(V55:V76)","v":48398.947911933705},96797.895823867409,48398.947911933705,0,0,0]
[]
["`",null,null,null,{"$f":"E77","v":1742362.1248296131},{"$f":"E79-F77","v":1645564.2290057456},{"$f":"F79-G77","v":1548766.3331818781},1451968.4373580106,1355170.541534143,1258372.6457102755,1161574.749886408,1064776.8540625405,967978.95823867305,871181.06241480564,774383.16659093823,677585.27076707082,580787.37494320341,483989.479119336,387191.58329546859,290393.68747160118,193595.79164773377,145196.84373580007,48398.947911932657,-1.0477378964424133E-9,-1.0477378964424133E-9,-1.0477378964424133E-9,-1.0477378964424133E-9]
[]
[]
["Poles & Brackets"]
["Depreciation",null,null,null,"Closing RAB per unit","Depreciation per unit"]
[null,null,null,null,{"$f":"E$47","v":2004},2005,2006,2007,2008,2009,2010,2011,2012,2013,2014,2015,2016,2017,2018,2019,2020,{"$f":"V$47","v":"HY2021"},{"$f":"W$47","v":"2022-06-30"},"2023-06-30","2024-06-30","2025-06-30","2026-06-30",{"$f":"EOMONTH(AA84,12)","v":"2027-06-30"},{"$f":"EOMONTH(AB84,12)","v":"2028-06-30"},"2029-06-30","2030-06-30","2031-06-30","2032-06-30","2033-06-30","2034-06-30","2035-06-30","2036-06-30","2037-06-30","2038-06-30","2039-06-30"]
[{"$f":"'RAB 2001 to 2004 N & E'!A$28","v":"Dedicated poles"},null,null,null,{"$f":"F185+F186/2","v":30.677615652070116},{"$f":"F186","v":0.92962471672939739},{"$f":"G186","v":0.92962471672939739},0.92962471672939739,0.92962471672939739,0.92962471672939739,0.92962471672939739,0.92962471672939739,0.92962471672939739,0.92962471672939739,0.92962471672939739,0.92962471672939739,0.92962471672939739,0.92962471672939739,0.92962471672939739,0.92962471672939739,0.92962471672939739,{"$f":"V186","v":0.4648123583646987},0.92962471672939739,0.92962471672939739,0.92962471672939739,0.92962471672939739,0.92962471672939739,{"$f":"AB186","v":0.92962471672939739},0.92962471672939739,0.92962471672939739,0.92962471672939739,0.92962471672939739,0.92962471672939739,0.92962471672939739,0.92962471672939739,0.92962471672939739,0.92962471672939739,0.92962471672939739,0.4648123583646987,0]
[{"$f":"'RAB 2001 to 2004 N & E'!A$33","v":"Brackets"},null,null,null,{"$f":"F199+F200/2","v":6.3551986004692136},{"$f":"F200","v":0.19258177577179436},{"$f":"G200","v":0.19258177577179436},0.19258177577179436,0.19258177577179436,0.19258177577179436,0.19258177577179436,0.19258177577179436,0.19258177577179436,0.19258177577179436,0.19258177577179436,0.19258177577179436,0.19258177577179436,0.19258177577179436,0.19258177577179436,0.19258177577179436,0.19258177577179436,{"$f":"V200","v":9.6290887885897181E-2},0.19258177577179436,0.19258177577179436,0.19258177577179436,0.19258177577179436,0.19258177577179436,{"$f":"AB200","v":0.19258177577179436},0.19258177577179436,0.19258177577179436,0.19258177577179436,0.19258177577179436,0.19258177577179436,0.19258177577179436,0.19258177577179436,0.19258177577179436,0.19258177577179436,0.19258177577179436,9.6290887885897181E-2,0]
[null,null,null,null,{"$f":"SUM(E85:E86)","v":37.032814252539332},{"$f":"SUM(F85:F86)","v":1.1222064925011916},{"$f":"SUM(G85:G86)","v":1.1222064925011916},1.1222064925011916,1.1222064925011916,1.1222064925011916,1.1222064925011916,1.1222064925011916,1.1222064925011916,1.1222064925011916,1.1222064925011916,1.1222064925011916,1.1222064925011916,1.1222064925011916,1.1222064925011916,1.1222064925011916,1.1222064925011916,{"$f":"SUM(V85:V86)","v":0.56110324625059582},1.1222064925011916,1.1222064925011916,1.1222064925011916,1.1222064925011916,1.1222064925011916,{"$f":"SUM(AB85:AB86)","v":1.1222064925011916},1.1222064925011916,1.1222064925011916,1.1222064925011916,1.1222064925011916,1.1222064925011916,1.1222064925011916,1.1222064925011916,1.1222064925011916,1.1222064925011916,1.1222064925011916,0.56110324625059582,0]
[]
[]
["Light Type",null,"Assumed",null,"Closing RAB","Depreciation"]
[null,null," 2004 Volumes",null,{"$f":"E$47","v":2004},2005,2006,2007,2008,2009,2010,2011,2012,2013,2014,2015,2016,2017,2018,2019,2020,{"$f":"V$47","v":"HY2021"},{"$f":"W$47","v":"2022-06-30"},"2023-06-30","2024-06-30","2025-06-30","2026-06-30",{"$f":"AB$84","v":"2027-06-30"},"2028-06-30","2029-06-30","2030-06-30","2031-06-30","2032-06-30","2033-06-30","2034-06-30","2035-06-30","2036-06-30","2037-06-30","2038-06-30","2039-06-30"]
[{"$f":"'DNSP Inputs General'!A$89","v":"Mercury Vapour 80W"},null,{"$f":"C$55","v":28854.676729346738},null,{"$f":"E$87*$C92","v":1068569.8836349668},{"$f":"F$87*$C92","v":32380.90556469596},32380.90556469596,32380.90556469596,32380.90556469596,32380.90556469596,32380.90556469596,32380.90556469596,32380.90556469596,32380.90556469596,32380.90556469596,32380.90556469596,32380.90556469596,{"$f":"R$87*$C92","v":32380.90556469596},{"$f":"S$87*$C92","v":32380.90556469596},32380.90556469596,32380.90556469596,16190.45278234798,32380.90556469596,32380.90556469596,32380.90556469596,32380.90556469596,32380.90556469596,32380.90556469596,32380.90556469596,32380.90556469596,32380.90556469596,32380.90556469596,32380.90556469596,32380.90556469596,{"$f":"AI$87*$C92","v":32380.90556469596},32380.90556469596,32380.90556469596,32380.90556469596,16190.45278234798,0]
[{"$f":"'DNSP Inputs General'!A$90","v":"HP Sodium 150W"},null,{"$f":"C$56","v":4252.263490243743},null,{"$f":"E$87*$C93","v":157473.28398705114},4771.9176965773058,4771.9176965773058,4771.9176965773058,4771.9176965773058,4771.9176965773058,4771.9176965773058,4771.9176965773058,4771.9176965773058,4771.9176965773058,4771.9176965773058,4771.9176965773058,4771.9176965773058,{"$f":"R$87*$C93","v":4771.9176965773058},4771.9176965773058,4771.9176965773058,4771.9176965773058,2385.9588482886529,4771.9176965773058,4771.9176965773058,4771.9176965773058,4771.9176965773058,4771.9176965773058,{"$f":"AB$87*$C93","v":4771.9176965773058},4771.9176965773058,4771.9176965773058,4771.9176965773058,4771.9176965773058,4771.9176965773058,4771.9176965773058,4771.9176965773058,4771.9176965773058,4771.9176965773058,4771.9176965773058,2385.9588482886529,0]
[{"$f":"'DNSP Inputs General'!A$91","v":"HP Sodium 250W"},null,{"$f":"C$57","v":4329.4481153353427},null,{"$f":"E$87*$C94","v":160331.64787122022},4858.5347839763699,4858.5347839763699,4858.5347839763699,4858.5347839763699,4858.5347839763699,4858.5347839763699,4858.5347839763699,4858.5347839763699,4858.5347839763699,4858.5347839763699,4858.5347839763699,4858.5347839763699,{"$f":"R$87*$C94","v":4858.5347839763699},4858.5347839763699,4858.5347839763699,4858.5347839763699,2429.267391988185,4858.5347839763699,4858.5347839763699,4858.5347839763699,4858.5347839763699,4858.5347839763699,4858.5347839763699,4858.5347839763699,4858.5347839763699,4858.5347839763699,4858.5347839763699,4858.5347839763699,4858.5347839763699,4858.5347839763699,4858.5347839763699,4858.5347839763699,4858.5347839763699,2429.267391988185,0]
[{"$f":"'DNSP Inputs General'!A$92","v":"Mercury Vapour 50W"},null,{"$f":"C$58","v":546.38589867473945},null,{"$f":"E$87*'DNSP Inputs General'!$D92*$C95","v":29946.627093826035},{"$f":"F$87*'DNSP Inputs General'!$D92*$C95","v":907.4735482977585},{"$f":"G$87*'DNSP Inputs General'!$D92*$C95","v":907.4735482977585},{"$f":"H$87*'DNSP Inputs General'!$D92*$C95","v":907.4735482977585},{"$f":"I$87*'DNSP Inputs General'!$D92*$C95","v":907.4735482977585},{"$f":"J$87*'DNSP Inputs General'!$D92*$C95","v":907.4735482977585},{"$f":"K$87*'DNSP Inputs General'!$D92*$C95","v":907.4735482977585},{"$f":"L$87*'DNSP Inputs General'!$D92*$C95","v":907.4735482977585},{"$f":"M$87*'DNSP Inputs General'!$D92*$C95","v":907.4735482977585},{"$f":"N$87*'DNSP Inputs General'!$D92*$C95","v":907.4735482977585},{"$f":"O$87*'DNSP Inputs General'!$D92*$C95","v":907.4735482977585},{"$f":"P$87*'DNSP Inputs General'!$D92*$C95","v":907.4735482977585},{"$f":"Q$87*'DNSP Inputs General'!$D92*$C95","v":907.4735482977585},{"$f":"R$87*'DNSP Inputs General'!$D92*$C95","v":907.4735482977585},{"$f":"S$87*'DNSP Inputs General'!$D92*$C95","v":907.4735482977585},{"$f":"T$87*'DNSP Inputs General'!$D92*$C95","v":907.4735482977585},{"$f":"U$87*'DNSP Inputs General'!$D92*$C95","v":907.4735482977585},{"$f":"V$87*'DNSP Inputs General'!$D92*$C95","v":453.73677414887925},{"$f":"W$87*'DNSP Inputs General'!$D92*$C95","v":907.4735482977585},{"$f":"X$87*'DNSP Inputs General'!$D92*$C95","v":907.4735482977585},{"$f":"Y$87*'DNSP Inputs General'!$D92*$C95","v":907.4735482977585},{"$f":"Z$87*'DNSP Inputs General'!$D92*$C95","v":907.4735482977585},{"$f":"AA$87*'DNSP Inputs General'!$D92*$C95","v":907.4735482977585},{"$f":"AB$87*'DNSP Inputs General'!$D92*$C95","v":907.4735482977585},{"$f":"AC$87*'DNSP Inputs General'!$D92*$C95","v":907.4735482977585},{"$f":"AD$87*'DNSP Inputs General'!$D92*$C95","v":907.4735482977585},{"$f":"AE$87*'DNSP Inputs General'!$D92*$C95","v":907.4735482977585},{"$f":"AF$87*'DNSP Inputs General'!$D92*$C95","v":907.4735482977585},{"$f":"AG$87*'DNSP Inputs General'!$D92*$C95","v":907.4735482977585},{"$f":"AH$87*'DNSP Inputs General'!$D92*$C95","v":907.4735482977585},{"$f":"AI$87*'DNSP Inputs General'!$D92*$C95","v":907.4735482977585},{"$f":"AJ$87*'DNSP Inputs General'!$D92*$C95","v":907.4735482977585},{"$f":"AK$87*'DNSP Inputs General'!$D92*$C95","v":907.4735482977585},{"$f":"AL$87*'DNSP Inputs General'!$D92*$C95","v":907.4735482977585},{"$f":"AM$87*'DNSP Inputs General'!$D92*$C95","v":453.73677414887925},{"$f":"AN$87*'DNSP Inputs General'!$D92*$C95","v":0}]
[{"$f":"'DNSP Inputs General'!A$93","v":"Mercury Vapour 125W"},null,{"$f":"C$59","v":61.950817507730676},null,{"$f":"E$87*'DNSP Inputs General'!$D93*$C96","v":3395.4354139839925},{"$f":"F$87*'DNSP Inputs General'!$D93*$C96","v":102.89198224193915},{"$f":"G$87*'DNSP Inputs General'!$D93*$C96","v":102.89198224193915},{"$f":"H$87*'DNSP Inputs General'!$D93*$C96","v":102.89198224193915},{"$f":"I$87*'DNSP Inputs General'!$D93*$C96","v":102.89198224193915},{"$f":"J$87*'DNSP Inputs General'!$D93*$C96","v":102.89198224193915},{"$f":"K$87*'DNSP Inputs General'!$D93*$C96","v":102.89198224193915},{"$f":"L$87*'DNSP Inputs General'!$D93*$C96","v":102.89198224193915},{"$f":"M$87*'DNSP Inputs General'!$D93*$C96","v":102.89198224193915},{"$f":"N$87*'DNSP Inputs General'!$D93*$C96","v":102.89198224193915},{"$f":"O$87*'DNSP Inputs General'!$D93*$C96","v":102.89198224193915},{"$f":"P$87*'DNSP Inputs General'!$D93*$C96","v":102.89198224193915},{"$f":"Q$87*'DNSP Inputs General'!$D93*$C96","v":102.89198224193915},{"$f":"R$87*'DNSP Inputs General'!$D93*$C96","v":102.89198224193915},{"$f":"S$87*'DNSP Inputs General'!$D93*$C96","v":102.89198224193915},{"$f":"T$87*'DNSP Inputs General'!$D93*$C96","v":102.89198224193915},{"$f":"U$87*'DNSP Inputs General'!$D93*$C96","v":102.89198224193915},{"$f":"V$87*'DNSP Inputs General'!$D93*$C96","v":51.445991120969573},{"$f":"W$87*'DNSP Inputs General'!$D93*$C96","v":102.89198224193915},{"$f":"X$87*'DNSP Inputs General'!$D93*$C96","v":102.89198224193915},{"$f":"Y$87*'DNSP Inputs General'!$D93*$C96","v":102.89198224193915},{"$f":"Z$87*'DNSP Inputs General'!$D93*$C96","v":102.89198224193915},{"$f":"AA$87*'DNSP Inputs General'!$D93*$C96","v":102.89198224193915},{"$f":"AB$87*'DNSP Inputs General'!$D93*$C96","v":102.89198224193915},{"$f":"AC$87*'DNSP Inputs General'!$D93*$C96","v":102.89198224193915},{"$f":"AD$87*'DNSP Inputs General'!$D93*$C96","v":102.89198224193915},{"$f":"AE$87*'DNSP Inputs General'!$D93*$C96","v":102.89198224193915},{"$f":"AF$87*'DNSP Inputs General'!$D93*$C96","v":102.89198224193915},{"$f":"AG$87*'DNSP Inputs General'!$D93*$C96","v":102.89198224193915},{"$f":"AH$87*'DNSP Inputs General'!$D93*$C96","v":102.89198224193915},{"$f":"AI$87*'DNSP Inputs General'!$D93*$C96","v":102.89198224193915},{"$f":"AJ$87*'DNSP Inputs General'!$D93*$C96","v":102.89198224193915},{"$f":"AK$87*'DNSP Inputs General'!$D93*$C96","v":102.89198224193915},{"$f":"AL$87*'DNSP Inputs General'!$D93*$C96","v":102.89198224193915},{"$f":"AM$87*'DNSP Inputs General'!$D93*$C96","v":51.445991120969573},{"$f":"AN$87*'DNSP Inputs General'!$D93*$C96","v":0}]
[{"$f":"'DNSP Inputs General'!A$94","v":"Mercury Vapour 250W"},null,{"$f":"C$60","v":450.92070448249871},null,{"$f":"E$87*'DNSP Inputs General'!$D94*$C97","v":17366.817199393536},{"$f":"F$87*'DNSP Inputs General'!$D94*$C97","v":526.2671878604101},{"$f":"G$87*'DNSP Inputs General'!$D94*$C97","v":526.2671878604101},{"$f":"H$87*'DNSP Inputs General'!$D94*$C97","v":526.2671878604101},{"$f":"I$87*'DNSP Inputs General'!$D94*$C97","v":526.2671878604101},{"$f":"J$87*'DNSP Inputs General'!$D94*$C97","v":526.2671878604101},{"$f":"K$87*'DNSP Inputs General'!$D94*$C97","v":526.2671878604101},{"$f":"L$87*'DNSP Inputs General'!$D94*$C97","v":526.2671878604101},{"$f":"M$87*'DNSP Inputs General'!$D94*$C97","v":526.2671878604101},{"$f":"N$87*'DNSP Inputs General'!$D94*$C97","v":526.2671878604101},{"$f":"O$87*'DNSP Inputs General'!$D94*$C97","v":526.2671878604101},{"$f":"P$87*'DNSP Inputs General'!$D94*$C97","v":526.2671878604101},{"$f":"Q$87*'DNSP Inputs General'!$D94*$C97","v":526.2671878604101},{"$f":"R$87*'DNSP Inputs General'!$D94*$C97","v":526.2671878604101},{"$f":"S$87*'DNSP Inputs General'!$D94*$C97","v":526.2671878604101},{"$f":"T$87*'DNSP Inputs General'!$D94*$C97","v":526.2671878604101},{"$f":"U$87*'DNSP Inputs General'!$D94*$C97","v":526.2671878604101},{"$f":"V$87*'DNSP Inputs General'!$D94*$C97","v":263.13359393020505},{"$f":"W$87*'DNSP Inputs General'!$D94*$C97","v":526.2671878604101},{"$f":"X$87*'DNSP Inputs General'!$D94*$C97","v":526.2671878604101},{"$f":"Y$87*'DNSP Inputs General'!$D94*$C97","v":526.2671878604101},{"$f":"Z$87*'DNSP Inputs General'!$D94*$C97","v":526.2671878604101},{"$f":"AA$87*'DNSP Inputs General'!$D94*$C97","v":526.2671878604101},{"$f":"AB$87*'DNSP Inputs General'!$D94*$C97","v":526.2671878604101},{"$f":"AC$87*'DNSP Inputs General'!$D94*$C97","v":526.2671878604101},{"$f":"AD$87*'DNSP Inputs General'!$D94*$C97","v":526.2671878604101},{"$f":"AE$87*'DNSP Inputs General'!$D94*$C97","v":526.2671878604101},{"$f":"AF$87*'DNSP Inputs General'!$D94*$C97","v":526.2671878604101},{"$f":"AG$87*'DNSP Inputs General'!$D94*$C97","v":526.2671878604101},{"$f":"AH$87*'DNSP Inputs General'!$D94*$C97","v":526.2671878604101},{"$f":"AI$87*'DNSP Inputs General'!$D94*$C97","v":526.2671878604101},{"$f":"AJ$87*'DNSP Inputs General'!$D94*$C97","v":526.2671878604101},{"$f":"AK$87*'DNSP Inputs General'!$D94*$C97","v":526.2671878604101},{"$f":"AL$87*'DNSP Inputs General'!$D94*$C97","v":526.2671878604101},{"$f":"AM$87*'DNSP Inputs General'!$D94*$C97","v":263.13359393020505},{"$f":"AN$87*'DNSP Inputs General'!$D94*$C97","v":0}]
[{"$f":"'DNSP Inputs General'!A$95","v":"Mercury Vapour 400W"},null,{"$f":"C$61","v":137.1042682548138},null,{"$f":"E$87*'DNSP Inputs General'!$D95*$C98","v":5432.7718824766043},{"$f":"F$87*'DNSP Inputs General'!$D95*$C98","v":164.62945098413948},{"$f":"G$87*'DNSP Inputs General'!$D95*$C98","v":164.62945098413948},{"$f":"H$87*'DNSP Inputs General'!$D95*$C98","v":164.62945098413948},{"$f":"I$87*'DNSP Inputs General'!$D95*$C98","v":164.62945098413948},{"$f":"J$87*'DNSP Inputs General'!$D95*$C98","v":164.62945098413948},{"$f":"K$87*'DNSP Inputs General'!$D95*$C98","v":164.62945098413948},{"$f":"L$87*'DNSP Inputs General'!$D95*$C98","v":164.62945098413948},{"$f":"M$87*'DNSP Inputs General'!$D95*$C98","v":164.62945098413948},{"$f":"N$87*'DNSP Inputs General'!$D95*$C98","v":164.62945098413948},{"$f":"O$87*'DNSP Inputs General'!$D95*$C98","v":164.62945098413948},{"$f":"P$87*'DNSP Inputs General'!$D95*$C98","v":164.62945098413948},{"$f":"Q$87*'DNSP Inputs General'!$D95*$C98","v":164.62945098413948},{"$f":"R$87*'DNSP Inputs General'!$D95*$C98","v":164.62945098413948},{"$f":"S$87*'DNSP Inputs General'!$D95*$C98","v":164.62945098413948},{"$f":"T$87*'DNSP Inputs General'!$D95*$C98","v":164.62945098413948},{"$f":"U$87*'DNSP Inputs General'!$D95*$C98","v":164.62945098413948},{"$f":"V$87*'DNSP Inputs General'!$D95*$C98","v":82.314725492069741},{"$f":"W$87*'DNSP Inputs General'!$D95*$C98","v":164.62945098413948},{"$f":"X$87*'DNSP Inputs General'!$D95*$C98","v":164.62945098413948},{"$f":"Y$87*'DNSP Inputs General'!$D95*$C98","v":164.62945098413948},{"$f":"Z$87*'DNSP Inputs General'!$D95*$C98","v":164.62945098413948},{"$f":"AA$87*'DNSP Inputs General'!$D95*$C98","v":164.62945098413948},{"$f":"AB$87*'DNSP Inputs General'!$D95*$C98","v":164.62945098413948},{"$f":"AC$87*'DNSP Inputs General'!$D95*$C98","v":164.62945098413948},{"$f":"AD$87*'DNSP Inputs General'!$D95*$C98","v":164.62945098413948},{"$f":"AE$87*'DNSP Inputs General'!$D95*$C98","v":164.62945098413948},{"$f":"AF$87*'DNSP Inputs General'!$D95*$C98","v":164.62945098413948},{"$f":"AG$87*'DNSP Inputs General'!$D95*$C98","v":164.62945098413948},{"$f":"AH$87*'DNSP Inputs General'!$D95*$C98","v":164.62945098413948},{"$f":"AI$87*'DNSP Inputs General'!$D95*$C98","v":164.62945098413948},{"$f":"AJ$87*'DNSP Inputs General'!$D95*$C98","v":164.62945098413948},{"$f":"AK$87*'DNSP Inputs General'!$D95*$C98","v":164.62945098413948},{"$f":"AL$87*'DNSP Inputs General'!$D95*$C98","v":164.62945098413948},{"$f":"AM$87*'DNSP Inputs General'!$D95*$C98","v":82.314725492069741},{"$f":"AN$87*'DNSP Inputs General'!$D95*$C98","v":0}]
[{"$f":"'DNSP Inputs General'!A$96","v":"HP Sodium 100W"},null,{"$f":"C$62","v":92.418432675467074},null,{"$f":"E$87*'DNSP Inputs General'!$D96*$C99","v":3662.0906763360808},{"$f":"F$87*'DNSP Inputs General'!$D96*$C99","v":110.97244473745698},{"$f":"G$87*'DNSP Inputs General'!$D96*$C99","v":110.97244473745698},{"$f":"H$87*'DNSP Inputs General'!$D96*$C99","v":110.97244473745698},{"$f":"I$87*'DNSP Inputs General'!$D96*$C99","v":110.97244473745698},{"$f":"J$87*'DNSP Inputs General'!$D96*$C99","v":110.97244473745698},{"$f":"K$87*'DNSP Inputs General'!$D96*$C99","v":110.97244473745698},{"$f":"L$87*'DNSP Inputs General'!$D96*$C99","v":110.97244473745698},{"$f":"M$87*'DNSP Inputs General'!$D96*$C99","v":110.97244473745698},{"$f":"N$87*'DNSP Inputs General'!$D96*$C99","v":110.97244473745698},{"$f":"O$87*'DNSP Inputs General'!$D96*$C99","v":110.97244473745698},{"$f":"P$87*'DNSP Inputs General'!$D96*$C99","v":110.97244473745698},{"$f":"Q$87*'DNSP Inputs General'!$D96*$C99","v":110.97244473745698},{"$f":"R$87*'DNSP Inputs General'!$D96*$C99","v":110.97244473745698},{"$f":"S$87*'DNSP Inputs General'!$D96*$C99","v":110.97244473745698},{"$f":"T$87*'DNSP Inputs General'!$D96*$C99","v":110.97244473745698},{"$f":"U$87*'DNSP Inputs General'!$D96*$C99","v":110.97244473745698},{"$f":"V$87*'DNSP Inputs General'!$D96*$C99","v":55.486222368728491},{"$f":"W$87*'DNSP Inputs General'!$D96*$C99","v":110.97244473745698},{"$f":"X$87*'DNSP Inputs General'!$D96*$C99","v":110.97244473745698},{"$f":"Y$87*'DNSP Inputs General'!$D96*$C99","v":110.97244473745698},{"$f":"Z$87*'DNSP Inputs General'!$D96*$C99","v":110.97244473745698},{"$f":"AA$87*'DNSP Inputs General'!$D96*$C99","v":110.97244473745698},{"$f":"AB$87*'DNSP Inputs General'!$D96*$C99","v":110.97244473745698},{"$f":"AC$87*'DNSP Inputs General'!$D96*$C99","v":110.97244473745698},{"$f":"AD$87*'DNSP Inputs General'!$D96*$C99","v":110.97244473745698},{"$f":"AE$87*'DNSP Inputs General'!$D96*$C99","v":110.97244473745698},{"$f":"AF$87*'DNSP Inputs General'!$D96*$C99","v":110.97244473745698},{"$f":"AG$87*'DNSP Inputs General'!$D96*$C99","v":110.97244473745698},{"$f":"AH$87*'DNSP Inputs General'!$D96*$C99","v":110.97244473745698},{"$f":"AI$87*'DNSP Inputs General'!$D96*$C99","v":110.97244473745698},{"$f":"AJ$87*'DNSP Inputs General'!$D96*$C99","v":110.97244473745698},{"$f":"AK$87*'DNSP Inputs General'!$D96*$C99","v":110.97244473745698},{"$f":"AL$87*'DNSP Inputs General'!$D96*$C99","v":110.97244473745698},{"$f":"AM$87*'DNSP Inputs General'!$D96*$C99","v":55.486222368728491},{"$f":"AN$87*'DNSP Inputs General'!$D96*$C99","v":0}]
[{"$f":"'DNSP Inputs General'!A$97","v":"HP Sodium 400W"},null,{"$f":"C$63","v":282.33323388769065},null,{"$f":"E$87*'DNSP Inputs General'!$D97*$C100","v":14846.943775191859},{"$f":"F$87*'DNSP Inputs General'!$D97*$C100","v":449.90738712702591},{"$f":"G$87*'DNSP Inputs General'!$D97*$C100","v":449.90738712702591},{"$f":"H$87*'DNSP Inputs General'!$D97*$C100","v":449.90738712702591},{"$f":"I$87*'DNSP Inputs General'!$D97*$C100","v":449.90738712702591},{"$f":"J$87*'DNSP Inputs General'!$D97*$C100","v":449.90738712702591},{"$f":"K$87*'DNSP Inputs General'!$D97*$C100","v":449.90738712702591},{"$f":"L$87*'DNSP Inputs General'!$D97*$C100","v":449.90738712702591},{"$f":"M$87*'DNSP Inputs General'!$D97*$C100","v":449.90738712702591},{"$f":"N$87*'DNSP Inputs General'!$D97*$C100","v":449.90738712702591},{"$f":"O$87*'DNSP Inputs General'!$D97*$C100","v":449.90738712702591},{"$f":"P$87*'DNSP Inputs General'!$D97*$C100","v":449.90738712702591},{"$f":"Q$87*'DNSP Inputs General'!$D97*$C100","v":449.90738712702591},{"$f":"R$87*'DNSP Inputs General'!$D97*$C100","v":449.90738712702591},{"$f":"S$87*'DNSP Inputs General'!$D97*$C100","v":449.90738712702591},{"$f":"T$87*'DNSP Inputs General'!$D97*$C100","v":449.90738712702591},{"$f":"U$87*'DNSP Inputs General'!$D97*$C100","v":449.90738712702591},{"$f":"V$87*'DNSP Inputs General'!$D97*$C100","v":224.95369356351296},{"$f":"W$87*'DNSP Inputs General'!$D97*$C100","v":449.90738712702591},{"$f":"X$87*'DNSP Inputs General'!$D97*$C100","v":449.90738712702591},{"$f":"Y$87*'DNSP Inputs General'!$D97*$C100","v":449.90738712702591},{"$f":"Z$87*'DNSP Inputs General'!$D97*$C100","v":449.90738712702591},{"$f":"AA$87*'DNSP Inputs General'!$D97*$C100","v":449.90738712702591},{"$f":"AB$87*'DNSP Inputs General'!$D97*$C100","v":449.90738712702591},{"$f":"AC$87*'DNSP Inputs General'!$D97*$C100","v":449.90738712702591},{"$f":"AD$87*'DNSP Inputs General'!$D97*$C100","v":449.90738712702591},{"$f":"AE$87*'DNSP Inputs General'!$D97*$C100","v":449.90738712702591},{"$f":"AF$87*'DNSP Inputs General'!$D97*$C100","v":449.90738712702591},{"$f":"AG$87*'DNSP Inputs General'!$D97*$C100","v":449.90738712702591},{"$f":"AH$87*'DNSP Inputs General'!$D97*$C100","v":449.90738712702591},{"$f":"AI$87*'DNSP Inputs General'!$D97*$C100","v":449.90738712702591},{"$f":"AJ$87*'DNSP Inputs General'!$D97*$C100","v":449.90738712702591},{"$f":"AK$87*'DNSP Inputs General'!$D97*$C100","v":449.90738712702591},{"$f":"AL$87*'DNSP Inputs General'!$D97*$C100","v":449.90738712702591},{"$f":"AM$87*'DNSP Inputs General'!$D97*$C100","v":224.95369356351296},{"$f":"AN$87*'DNSP Inputs General'!$D97*$C100","v":0}]
[]
[]
[]
[]
[]
[]
[]
[]
[]
[]
[]
[]
[]
[null,null,null,null,{"$f":"SUM(E92:E113)","v":1461025.5015344461},{"$f":"SUM(F92:F113)","v":44273.50004649836},44273.50004649836,44273.50004649836,44273.50004649836,44273.50004649836,44273.50004649836,44273.50004649836,44273.50004649836,44273.50004649836,44273.50004649836,44273.50004649836,44273.50004649836,{"$f":"SUM(R92:R113)","v":44273.50004649836},{"$f":"SUM(S92:S113)","v":44273.50004649836},44273.50004649836,44273.50004649836,{"$f":"SUM(V92:V113)","v":22136.75002324918},44273.50004649836,44273.50004649836,44273.50004649836,44273.50004649836,44273.50004649836,{"$f":"SUM(AB92:AB113)","v":44273.50004649836},44273.50004649836,44273.50004649836,44273.50004649836,44273.50004649836,44273.50004649836,44273.50004649836,44273.50004649836,44273.50004649836,44273.50004649836,44273.50004649836,22136.75002324918,0]
[]
["WDV",null,null,null,{"$f":"E114","v":1461025.5015344461},{"$f":"E116-F114","v":1416752.0014879478},{"$f":"F116-G114","v":1372478.5014414494},1328205.001394951,1283931.5013484526,1239658.0013019543,1195384.5012554559,1151111.0012089575,1106837.5011624591,1062564.0011159608,1018290.5010694624,974017.00102296402,929743.50097646564,885470.00092996727,841196.50088346889,796923.00083697052,752649.50079047214,730512.75076722295,686239.25072072458,641965.7506742262,597692.25062772783,553418.75058122945,509145.25053473108,464871.7504882327,420598.25044173433,376324.75039523595,332051.25034873758,287777.7503022392,243504.25025574083,199230.75020924245,154957.25016274408,110683.75011624572,66410.250069747359,22136.750023248998,-1.8189894035458565E-10,-1.8189894035458565E-10]
[]
[]
[]
[]
["Detailed calculations"]
[]
[]
["DEPRECIATION PROFILE"]
["Year Counter",1,{"$f":"B125+1","v":2},3,4,5,6,7,8,9,10,11,12,13,14,15,16,17,18,19,20,{"$f":"U125+0.5","v":20.5},21.5,22.5,23.5,24.5,25.5,26.5,27.5,28.5,29.5,30.5,31.5,32.5,33.5,34.5,35.5,36.5,37.5,38.5]
["Numerator",2001,{"$f":"B126+1","v":2002},2003,2004,2005,2006,2007,2008,2009,2010,2011,2012,2013,2014,2015,2016,2017,2018,2019,2020,{"$f":"V$91","v":"HY2021"},{"$f":"W$91","v":"2022-06-30"},{"$f":"X$91","v":"2023-06-30"},"2024-06-30","2025-06-30","2026-06-30","2027-06-30","2028-06-30","2029-06-30","2030-06-30","2031-06-30","2032-06-30","2033-06-30","2034-06-30","2035-06-30","2036-06-30","2037-06-30","2038-06-30","2039-06-30"]
[{"$f":"'Inputs PL Final Decision 2004'!$A$65","v":"20 year asset life"},10,29,47,64,{"$f":"E127+10-4","v":70},{"$f":"F127-4","v":66},{"$f":"IF(G127-4<0,0,G127-4)","v":62},58,54,50,46,42,38,34,30,26,22,18,14,10,{"$f":"IF(U127-4<0,0,U127-2)","v":8},{"$f":"IF(V127-4<0,0,V127-4)","v":4},{"$f":"IF(W127-2<0,0,W127-2)","v":2},{"$f":"IF(X127-2<0,0,X127-2)","v":0},0,0,0,0,0,0,0,0,0,0,0,0,0,0,0]
[]
[{"$f":"'Inputs PL Final Decision 2004'!$A$74","v":"35 year asset life"},17.5,51.5,84.5,116.5,{"$f":"E129+17.5-4","v":130},{"$f":"F129-4","v":126},{"$f":"IF(G129-4<0,0,G129-4)","v":122},118,114,110,106,102,98,94,90,86,82,78,74,70,{"$f":"IF(U129-2<0,0,U129-2)","v":68},64,60,56,52,48,44,40,36,32,28,24,20,16,{"$f":"IF(AI129-1<0,0,AI129-4)","v":12},{"$f":"IF(AJ129-4<0,0,AJ129-4)","v":8},{"$f":"IF(AK129-4<0,0,AK129-4)","v":4},{"$f":"IF(AL129-2<0,0,AL129-2)","v":2},{"$f":"IF(AM129-2<0,0,AM129-2)","v":0}]
[]
[]
[]
[]
["MV 80",null,null,{"$f":"'Inputs PL Final Decision 2004'!$B$88","v":"Location of selected public lighting assets within distributors' areas (%)"},null,null,null,null,null,{"$f":"'Inputs PL Final Decision 2004'!$B$107","v":"Proportion of lights installed at 1 January 2001 (%)"}]
["Luminaire",null,null,{"$f":"'Inputs PL Final Decision 2004'!$B$92","v":"CitiPower"},{"$f":"IF($A$1='Inputs PL Final Decision 2004'!$A$123,'Inputs PL Final Decision 2004'!$C$92,IF($A$1='Inputs PL Final Decision 2004'!$A$124,'Inputs PL Final Decision 2004'!$D$92,IF($A$1='Inputs PL Final Decision 2004'!$A$125,'Inputs PL Final Decision 2004'!$E$92,IF($A$1='Inputs PL Final Decision 2004'!$A$126,'Inputs PL Final Decision 2004'!$F$92,IF($A$1='Inputs PL Final Decision 2004'!$A$127,'Inputs PL Final Decision 2004'!$G$92,'Inputs PL Final Decision 2004'!$H$92)))))","v":0},null,null,null,null,{"$f":"IF($A$1='Inputs PL Final Decision 2004'!$A$123,'Inputs PL Final Decision 2004'!$C$110,IF($A$1='Inputs PL Final Decision 2004'!$A$124,'Inputs PL Final Decision 2004'!$D$110,IF($A$1='Inputs PL Final Decision 2004'!$A$125,'Inputs PL Final Decision 2004'!$E$110,IF($A$1='Inputs PL Final Decision 2004'!$A$126,'Inputs PL Final Decision 2004'!$F$110,IF($A$1='Inputs PL Final Decision 2004'!$A$127,'Inputs PL Final Decision 2004'!$G$110,'Inputs PL Final Decision 2004'!$H$110)))))","v":0.88441954863731531}]
["Capital cost",{"$f":"($F$214*E135+$L$214*E136+$R$214*E137+$X$214*E138)*J135","v":234.8204217238206},null,{"$f":"'Inputs PL Final Decision 2004'!$B$93","v":"Urban"},{"$f":"IF($A$1='Inputs PL Final Decision 2004'!$A$123,'Inputs PL Final Decision 2004'!$C$93,IF($A$1='Inputs PL Final Decision 2004'!$A$124,'Inputs PL Final Decision 2004'!$D$93,IF($A$1='Inputs PL Final Decision 2004'!$A$125,'Inputs PL Final Decision 2004'!$E$93,IF($A$1='Inputs PL Final Decision 2004'!$A$126,'Inputs PL Final Decision 2004'!$F$93,IF($A$1='Inputs PL Final Decision 2004'!$A$127,'Inputs PL Final Decision 2004'!$G$93,'Inputs PL Final Decision 2004'!$H$93)))))","v":0.35}]
[{"$f":"'Inputs PL Final Decision 2004'!$A$20","v":"Depreciation period"},{"$f":"'Inputs PL Final Decision 2004'!$B$20","v":20},null,{"$f":"'Inputs PL Final Decision 2004'!$B$94","v":"Rural"},{"$f":"IF($A$1='Inputs PL Final Decision 2004'!$A$123,'Inputs PL Final Decision 2004'!$C$94,IF($A$1='Inputs PL Final Decision 2004'!$A$124,'Inputs PL Final Decision 2004'!$D$94,IF($A$1='Inputs PL Final Decision 2004'!$A$125,'Inputs PL Final Decision 2004'!$E$94,IF($A$1='Inputs PL Final Decision 2004'!$A$126,'Inputs PL Final Decision 2004'!$F$94,IF($A$1='Inputs PL Final Decision 2004'!$A$127,'Inputs PL Final Decision 2004'!$G$94,'Inputs PL Final Decision 2004'!$H$94)))))","v":0.53}]
[{"$f":"'Inputs PL Final Decision 2004'!$A$16","v":"Number of years from 1 January 2001"},{"$f":"'Inputs PL Final Decision 2004'!$B$16","v":4},null,{"$f":"'Inputs PL Final Decision 2004'!$B$95","v":"Remote"},{"$f":"IF($A$1='Inputs PL Final Decision 2004'!$A$123,'Inputs PL Final Decision 2004'!$C$95,IF($A$1='Inputs PL Final Decision 2004'!$A$124,'Inputs PL Final Decision 2004'!$D$95,IF($A$1='Inputs PL Final Decision 2004'!$A$125,'Inputs PL Final Decision 2004'!$E$95,IF($A$1='Inputs PL Final Decision 2004'!$A$126,'Inputs PL Final Decision 2004'!$F$95,IF($A$1='Inputs PL Final Decision 2004'!$A$127,'Inputs PL Final Decision 2004'!$G$95,'Inputs PL Final Decision 2004'!$H$95)))))","v":0.12}]
[]
[]
[]
[null,null,null,null,2004,{"$f":"E142+1","v":2005},2006,2007,2008,2009,2010,2011,2012,2013,2014,2015,{"$f":"P142+1","v":2016},{"$f":"Q142+1","v":2017},{"$f":"R142+1","v":2018},{"$f":"S142+1","v":2019},{"$f":"T142+1","v":2020},{"$f":"V$91","v":"HY2021"},{"$f":"W$91","v":"2022-06-30"},{"$f":"X$91","v":"2023-06-30"},"2024-06-30","2025-06-30","2026-06-30","2027-06-30","2028-06-30","2029-06-30","2030-06-30","2031-06-30","2032-06-30","2033-06-30","2034-06-30","2035-06-30","2036-06-30","2037-06-30","2038-06-30","2039-06-30"]
["RAB for Return",null,null,null,{"$f":"E$127/$B137*$B136/$B137","v":37.571267475811297},41.093573801668605,38.745369584430399,36.397165367192194,34.048961149953989,31.700756932715784,29.352552715477579,27.00434849823937,24.656144281001165,22.307940063762956,19.959735846524751,17.611531629286546,{"$f":"Q$127/$B137*$B136/$B137","v":15.263327412048341},12.915123194810135,10.566918977571927,8.2187147603337216,5.8705105430955147,4.6964084344764121,2.348204217238206,1.174102108619103,0,0,0,0,0,0,0,0,0,0,0,0,0,0,0,0]
["Depreciation",null,null,null,{"$f":"IF(E143=0,0,$B$136*$B$138/$B$137/$B$137)","v":2.348204217238206},2.348204217238206,2.348204217238206,2.348204217238206,2.348204217238206,2.348204217238206,2.348204217238206,2.348204217238206,2.348204217238206,2.348204217238206,2.348204217238206,2.348204217238206,{"$f":"IF(Q143=0,0,$B$136*$B$138/$B$137/$B$137)","v":2.348204217238206},{"$f":"IF(R143=0,0,$B$136*$B$138/$B$137/$B$137)","v":2.348204217238206},{"$f":"IF(S143=0,0,$B$136*$B$138/$B$137/$B$137)","v":2.348204217238206},{"$f":"IF(T143=0,0,$B$136*$B$138/$B$137/$B$137)","v":2.348204217238206},{"$f":"IF(U143=0,0,$B$136*$B$138/$B$137/$B$137)","v":2.348204217238206},{"$f":"IF(V143=0,0,$B$136*$B$138/$B$137/$B$137)*0.5","v":1.174102108619103},{"$f":"IF(W143=0,0,$B$136*$B$138/$B$137/$B$137)","v":2.348204217238206},{"$f":"IF(X143=0,0,$B$136*$B$138/$B$137/$B$137)*0.5","v":1.174102108619103},{"$f":"IF(Y143=0,0,$B$136*$B$138/$B$137/$B$137)","v":0},0,0,0,0,0,0,0,0,0,0,0,0,0,0,0]
[]
[]
[]
["S-HP 150 ",null,null,{"$f":"'Inputs PL Final Decision 2004'!$B$88","v":"Location of selected public lighting assets within distributors' areas (%)"},null,null,null,null,null,{"$f":"'Inputs PL Final Decision 2004'!$B$107","v":"Proportion of lights installed at 1 January 2001 (%)"}]
["Luminaire",null,null,{"$f":"'Inputs PL Final Decision 2004'!$B$92","v":"CitiPower"},{"$f":"IF($A$1='Inputs PL Final Decision 2004'!$A$123,'Inputs PL Final Decision 2004'!$C$97,IF($A$1='Inputs PL Final Decision 2004'!$A$124,'Inputs PL Final Decision 2004'!$D$97,IF($A$1='Inputs PL Final Decision 2004'!$A$125,'Inputs PL Final Decision 2004'!$E$97,IF($A$1='Inputs PL Final Decision 2004'!$A$126,'Inputs PL Final Decision 2004'!$F$97,IF($A$1='Inputs PL Final Decision 2004'!$A$127,'Inputs PL Final Decision 2004'!$G$97,'Inputs PL Final Decision 2004'!$H$97)))))","v":0},null,null,null,null,{"$f":"IF($A$1='Inputs PL Final Decision 2004'!$A$123,'Inputs PL Final Decision 2004'!$C$111,IF($A$1='Inputs PL Final Decision 2004'!$A$124,'Inputs PL Final Decision 2004'!$D$111,IF($A$1='Inputs PL Final Decision 2004'!$A$125,'Inputs PL Final Decision 2004'!$E$111,IF($A$1='Inputs PL Final Decision 2004'!$A$126,'Inputs PL Final Decision 2004'!$F$111,IF($A$1='Inputs PL Final Decision 2004'!$A$127,'Inputs PL Final Decision 2004'!$G$111,'Inputs PL Final Decision 2004'!$H$111)))))","v":0.92717784022480954}]
["Capital cost",{"$f":"($F$220*E149+$L$220*E150+$R$220*E151+$X$220*E152)*J149","v":276.55624098724644},null,{"$f":"'Inputs PL Final Decision 2004'!$B$93","v":"Urban"},{"$f":"IF($A$1='Inputs PL Final Decision 2004'!$A$123,'Inputs PL Final Decision 2004'!$C$98,IF($A$1='Inputs PL Final Decision 2004'!$A$124,'Inputs PL Final Decision 2004'!$D$98,IF($A$1='Inputs PL Final Decision 2004'!$A$125,'Inputs PL Final Decision 2004'!$E$98,IF($A$1='Inputs PL Final Decision 2004'!$A$126,'Inputs PL Final Decision 2004'!$F$98,IF($A$1='Inputs PL Final Decision 2004'!$A$127,'Inputs PL Final Decision 2004'!$G$98,'Inputs PL Final Decision 2004'!$H$98)))))","v":0.3}]
[{"$f":"'Inputs PL Final Decision 2004'!$A$20","v":"Depreciation period"},{"$f":"'Inputs PL Final Decision 2004'!$B$30","v":20},null,{"$f":"'Inputs PL Final Decision 2004'!$B$94","v":"Rural"},{"$f":"IF($A$1='Inputs PL Final Decision 2004'!$A$123,'Inputs PL Final Decision 2004'!$C$99,IF($A$1='Inputs PL Final Decision 2004'!$A$124,'Inputs PL Final Decision 2004'!$D$99,IF($A$1='Inputs PL Final Decision 2004'!$A$125,'Inputs PL Final Decision 2004'!$E$99,IF($A$1='Inputs PL Final Decision 2004'!$A$126,'Inputs PL Final Decision 2004'!$F$99,IF($A$1='Inputs PL Final Decision 2004'!$A$127,'Inputs PL Final Decision 2004'!$G$99,'Inputs PL Final Decision 2004'!$H$99)))))","v":0.63}]
[{"$f":"'Inputs PL Final Decision 2004'!$A$16","v":"Number of years from 1 January 2001"},{"$f":"'Inputs PL Final Decision 2004'!$B$16","v":4},null,{"$f":"'Inputs PL Final Decision 2004'!$B$95","v":"Remote"},{"$f":"IF($A$1='Inputs PL Final Decision 2004'!$A$123,'Inputs PL Final Decision 2004'!$C$100,IF($A$1='Inputs PL Final Decision 2004'!$A$124,'Inputs PL Final Decision 2004'!$D$100,IF($A$1='Inputs PL Final Decision 2004'!$A$125,'Inputs PL Final Decision 2004'!$E$100,IF($A$1='Inputs PL Final Decision 2004'!$A$126,'Inputs PL Final Decision 2004'!$F$100,IF($A$1='Inputs PL Final Decision 2004'!$A$127,'Inputs PL Final Decision 2004'!$G$100,'Inputs PL Final Decision 2004'!$H$100)))))","v":7.0000000000000007E-2}]
[]
[]
[]
[null,null,null,null,2004,{"$f":"E156+1","v":2005},2006,2007,2008,2009,2010,2011,2012,2013,2014,2015,{"$f":"P156+1","v":2016},{"$f":"Q156+1","v":2017},{"$f":"R156+1","v":2018},{"$f":"S156+1","v":2019},{"$f":"T156+1","v":2020},{"$f":"V$91","v":"HY2021"},{"$f":"W$91","v":"2022-06-30"},{"$f":"X$91","v":"2023-06-30"},"2024-06-30","2025-06-30","2026-06-30","2027-06-30","2028-06-30","2029-06-30","2030-06-30","2031-06-30","2032-06-30","2033-06-30","2034-06-30","2035-06-30","2036-06-30","2037-06-30","2038-06-30","2039-06-30"]
["RAB for Return",null,null,null,{"$f":"E$127/$B151*$B150/$B151","v":44.248998557959432},48.397342172768127,45.631779762895661,42.866217353023202,40.10065494315073,37.335092533278271,34.569530123405805,31.803967713533336,29.038405303660873,26.272842893788415,23.507280483915945,20.741718074043483,{"$f":"Q$127/$B151*$B150/$B151","v":17.976155664171021},15.210593254298555,12.445030844426089,9.679468434553625,6.913906024681161,5.531124819744929,2.7655624098724645,1.3827812049362322,0,0,0,0,0,0,0,0,0,0,0,0,0,0,0,0]
["Depreciation",null,null,null,{"$f":"IF(E157=0,0,$B$150*$B$152/$B$151/$B$151)","v":2.7655624098724645},2.7655624098724645,2.7655624098724645,2.7655624098724645,2.7655624098724645,2.7655624098724645,2.7655624098724645,2.7655624098724645,2.7655624098724645,2.7655624098724645,2.7655624098724645,2.7655624098724645,{"$f":"IF(Q157=0,0,$B$150*$B$152/$B$151/$B$151)","v":2.7655624098724645},{"$f":"IF(R157=0,0,$B$150*$B$152/$B$151/$B$151)","v":2.7655624098724645},{"$f":"IF(S157=0,0,$B$150*$B$152/$B$151/$B$151)","v":2.7655624098724645},{"$f":"IF(T157=0,0,$B$150*$B$152/$B$151/$B$151)","v":2.7655624098724645},{"$f":"IF(U157=0,0,$B$150*$B$152/$B$151/$B$151)","v":2.7655624098724645},{"$f":"IF(V157=0,0,$B$150*$B$152/$B$151/$B$151)*0.5","v":1.3827812049362322},{"$f":"IF(W157=0,0,$B$150*$B$152/$B$151/$B$151)","v":2.7655624098724645},{"$f":"IF(X157=0,0,$B$150*$B$152/$B$151/$B$151)*0.5","v":1.3827812049362322},{"$f":"IF(Y157=0,0,$B$150*$B$152/$B$151/$B$151)","v":0},0,0,0,0,0,0,0,0,0,0,0,0,0,0,0]
[]
[]
[]
["S-HP 250 ",null,null,{"$f":"'Inputs PL Final Decision 2004'!$B$88","v":"Location of selected public lighting assets within distributors' areas (%)"},null,null,null,null,null,{"$f":"'Inputs PL Final Decision 2004'!$B$107","v":"Proportion of lights installed at 1 January 2001 (%)"}]
["Luminaire",null,null,{"$f":"'Inputs PL Final Decision 2004'!$B$92","v":"CitiPower"},{"$f":"IF($A$1='Inputs PL Final Decision 2004'!$A$123,'Inputs PL Final Decision 2004'!$C$102,IF($A$1='Inputs PL Final Decision 2004'!$A$124,'Inputs PL Final Decision 2004'!$D$102,IF($A$1='Inputs PL Final Decision 2004'!$A$125,'Inputs PL Final Decision 2004'!$E$102,IF($A$1='Inputs PL Final Decision 2004'!$A$126,'Inputs PL Final Decision 2004'!$F$102,IF($A$1='Inputs PL Final Decision 2004'!$A$127,'Inputs PL Final Decision 2004'!$G$102,'Inputs PL Final Decision 2004'!$H$102)))))","v":0},null,null,null,null,{"$f":"IF($A$1='Inputs PL Final Decision 2004'!$A$123,'Inputs PL Final Decision 2004'!$C$112,IF($A$1='Inputs PL Final Decision 2004'!$A$124,'Inputs PL Final Decision 2004'!$D$112,IF($A$1='Inputs PL Final Decision 2004'!$A$125,'Inputs PL Final Decision 2004'!$E$112,IF($A$1='Inputs PL Final Decision 2004'!$A$126,'Inputs PL Final Decision 2004'!$F$112,IF($A$1='Inputs PL Final Decision 2004'!$A$127,'Inputs PL Final Decision 2004'!$G$112,'Inputs PL Final Decision 2004'!$H$112)))))","v":0.93238356164383573}]
["Capital cost",{"$f":"($F$226*E163+$L$226*E164+$R$226*E165+$X$226*E166)*J163","v":278.59346925281352},null,{"$f":"'Inputs PL Final Decision 2004'!$B$93","v":"Urban"},{"$f":"IF($A$1='Inputs PL Final Decision 2004'!$A$123,'Inputs PL Final Decision 2004'!$C$103,IF($A$1='Inputs PL Final Decision 2004'!$A$124,'Inputs PL Final Decision 2004'!$D$103,IF($A$1='Inputs PL Final Decision 2004'!$A$125,'Inputs PL Final Decision 2004'!$E$103,IF($A$1='Inputs PL Final Decision 2004'!$A$126,'Inputs PL Final Decision 2004'!$F$103,IF($A$1='Inputs PL Final Decision 2004'!$A$127,'Inputs PL Final Decision 2004'!$G$103,'Inputs PL Final Decision 2004'!$H$103)))))","v":0.37}]
[{"$f":"'Inputs PL Final Decision 2004'!$A$20","v":"Depreciation period"},{"$f":"'Inputs PL Final Decision 2004'!$B$41","v":20},null,{"$f":"'Inputs PL Final Decision 2004'!$B$94","v":"Rural"},{"$f":"IF($A$1='Inputs PL Final Decision 2004'!$A$123,'Inputs PL Final Decision 2004'!$C$104,IF($A$1='Inputs PL Final Decision 2004'!$A$124,'Inputs PL Final Decision 2004'!$D$104,IF($A$1='Inputs PL Final Decision 2004'!$A$125,'Inputs PL Final Decision 2004'!$E$104,IF($A$1='Inputs PL Final Decision 2004'!$A$126,'Inputs PL Final Decision 2004'!$F$104,IF($A$1='Inputs PL Final Decision 2004'!$A$127,'Inputs PL Final Decision 2004'!$G$104,'Inputs PL Final Decision 2004'!$H$104)))))","v":0.56999999999999995}]
[{"$f":"'Inputs PL Final Decision 2004'!$A$16","v":"Number of years from 1 January 2001"},{"$f":"'Inputs PL Final Decision 2004'!$B$16","v":4},null,{"$f":"'Inputs PL Final Decision 2004'!$B$95","v":"Remote"},{"$f":"IF($A$1='Inputs PL Final Decision 2004'!$A$123,'Inputs PL Final Decision 2004'!$C$105,IF($A$1='Inputs PL Final Decision 2004'!$A$124,'Inputs PL Final Decision 2004'!$D$105,IF($A$1='Inputs PL Final Decision 2004'!$A$125,'Inputs PL Final Decision 2004'!$E$105,IF($A$1='Inputs PL Final Decision 2004'!$A$126,'Inputs PL Final Decision 2004'!$F$105,IF($A$1='Inputs PL Final Decision 2004'!$A$127,'Inputs PL Final Decision 2004'!$G$105,'Inputs PL Final Decision 2004'!$H$105)))))","v":0.06}]
[]
[]
[]
[null,null,null,null,2004,{"$f":"E170+1","v":2005},2006,2007,2008,2009,2010,2011,2012,2013,2014,2015,{"$f":"P170+1","v":2016},{"$f":"Q170+1","v":2017},{"$f":"R170+1","v":2018},{"$f":"S170+1","v":2019},{"$f":"T170+1","v":2020},{"$f":"V$91","v":"HY2021"},{"$f":"W$91","v":"2022-06-30"},{"$f":"X$91","v":"2023-06-30"},"2024-06-30","2025-06-30","2026-06-30","2027-06-30","2028-06-30","2029-06-30","2030-06-30","2031-06-30","2032-06-30","2033-06-30","2034-06-30","2035-06-30","2036-06-30","2037-06-30","2038-06-30","2039-06-30"]
["RAB for Return",null,null,null,{"$f":"E$127/$B165*$B164/$B165","v":44.574955080450167},48.753857119242369,45.967922426714225,43.181987734186094,40.396053041657964,37.610118349129827,34.82418365660169,32.038248964073553,29.252314271545419,26.466379579017286,23.680444886489148,20.894510193961015,{"$f":"Q$127/$B165*$B164/$B165","v":18.108575501432878},15.322640808904746,12.536706116376608,9.7507714238484731,6.9648367313203376,5.5718693850562708,2.7859346925281354,1.3929673462640677,0,0,0,0,0,0,0,0,0,0,0,0,0,0,0,0]
["Depreciation",null,null,null,{"$f":"IF(E171=0,0,$B$164*$B$166/$B$165/$B$165)","v":2.785934692528135},2.785934692528135,2.785934692528135,2.785934692528135,2.785934692528135,2.785934692528135,2.785934692528135,2.785934692528135,2.785934692528135,2.785934692528135,2.785934692528135,2.785934692528135,{"$f":"IF(Q171=0,0,$B$164*$B$166/$B$165/$B$165)","v":2.785934692528135},{"$f":"IF(R171=0,0,$B$164*$B$166/$B$165/$B$165)","v":2.785934692528135},{"$f":"IF(S171=0,0,$B$164*$B$166/$B$165/$B$165)","v":2.785934692528135},{"$f":"IF(T171=0,0,$B$164*$B$166/$B$165/$B$165)","v":2.785934692528135},{"$f":"IF(U171=0,0,$B$164*$B$166/$B$165/$B$165)","v":2.785934692528135},{"$f":"IF(V171=0,0,$B$164*$B$166/$B$165/$B$165)*0.5","v":1.3929673462640675},{"$f":"IF(W171=0,0,$B$164*$B$166/$B$165/$B$165)","v":2.785934692528135},{"$f":"IF(X171=0,0,$B$164*$B$166/$B$165/$B$165)*0.5","v":1.3929673462640675},{"$f":"IF(Y171=0,0,$B$164*$B$166/$B$165/$B$165)","v":0},0,0,0,0,0,0,0,0,0,0,0,0,0,0,0]
[]
[]
[]
["Poles & Brackets",null,null,{"$f":"'Inputs PL Final Decision 2004'!$B$88","v":"Location of selected public lighting assets within distributors' areas (%)"},null,null,null,null,null,{"$f":"'Inputs PL Final Decision 2004'!$A$114","v":"Proportion of lights on dedicated poles"},null,null,null,{"$f":"'Inputs PL Final Decision 2004'!$A$115","v":"Proportion of dedicated poles at 1 Jan 2001"}]
["Dedicated poles",null,null,{"$f":"'Inputs PL Final Decision 2004'!$B$92","v":"CitiPower"},{"$f":"IF($A$1='Inputs PL Final Decision 2004'!$A$123,'Inputs PL Final Decision 2004'!$C$92,IF($A$1='Inputs PL Final Decision 2004'!$A$124,'Inputs PL Final Decision 2004'!$D$92,IF($A$1='Inputs PL Final Decision 2004'!$A$125,'Inputs PL Final Decision 2004'!$E$92,IF($A$1='Inputs PL Final Decision 2004'!$A$126,'Inputs PL Final Decision 2004'!$F$92,IF($A$1='Inputs PL Final Decision 2004'!$A$127,'Inputs PL Final Decision 2004'!$G$92,'Inputs PL Final Decision 2004'!$H$92)))))","v":0},null,null,null,null,{"$f":"IF($A$1='Inputs PL Final Decision 2004'!$A$123,'Inputs PL Final Decision 2004'!$C$114,IF($A$1='Inputs PL Final Decision 2004'!$A$124,'Inputs PL Final Decision 2004'!$D$114,IF($A$1='Inputs PL Final Decision 2004'!$A$125,'Inputs PL Final Decision 2004'!$E$114,IF($A$1='Inputs PL Final Decision 2004'!$A$126,'Inputs PL Final Decision 2004'!$F$114,IF($A$1='Inputs PL Final Decision 2004'!$A$127,'Inputs PL Final Decision 2004'!$G$114,'Inputs PL Final Decision 2004'!$H$114)))))","v":0.38296744016378254},null,null,null,{"$f":"IF($A$1='Inputs PL Final Decision 2004'!$A$123,'Inputs PL Final Decision 2004'!$C$115,IF($A$1='Inputs PL Final Decision 2004'!$A$124,'Inputs PL Final Decision 2004'!$D$115,IF($A$1='Inputs PL Final Decision 2004'!$A$125,'Inputs PL Final Decision 2004'!$E$115,IF($A$1='Inputs PL Final Decision 2004'!$A$126,'Inputs PL Final Decision 2004'!$F$115,IF($A$1='Inputs PL Final Decision 2004'!$A$127,'Inputs PL Final Decision 2004'!$G$115,'Inputs PL Final Decision 2004'!$H$115)))))","v":0.88888888888888884}]
["Capital cost",{"$f":"($F$231*E177+$L$231*E178+$R$231*E179+$X$231*E180)*J177*N177","v":284.69756949837796},null,{"$f":"'Inputs PL Final Decision 2004'!$B$93","v":"Urban"},{"$f":"IF($A$1='Inputs PL Final Decision 2004'!$A$123,'Inputs PL Final Decision 2004'!$C$93,IF($A$1='Inputs PL Final Decision 2004'!$A$124,'Inputs PL Final Decision 2004'!$D$93,IF($A$1='Inputs PL Final Decision 2004'!$A$125,'Inputs PL Final Decision 2004'!$E$93,IF($A$1='Inputs PL Final Decision 2004'!$A$126,'Inputs PL Final Decision 2004'!$F$93,IF($A$1='Inputs PL Final Decision 2004'!$A$127,'Inputs PL Final Decision 2004'!$G$93,'Inputs PL Final Decision 2004'!$H$93)))))","v":0.35}]
[{"$f":"'Inputs PL Final Decision 2004'!$A$52","v":"Depreciation of dedicated street lighting pole & bracket"},{"$f":"'Inputs PL Final Decision 2004'!$B$52","v":35},null,{"$f":"'Inputs PL Final Decision 2004'!$B$94","v":"Rural"},{"$f":"IF($A$1='Inputs PL Final Decision 2004'!$A$123,'Inputs PL Final Decision 2004'!$C$94,IF($A$1='Inputs PL Final Decision 2004'!$A$124,'Inputs PL Final Decision 2004'!$D$94,IF($A$1='Inputs PL Final Decision 2004'!$A$125,'Inputs PL Final Decision 2004'!$E$94,IF($A$1='Inputs PL Final Decision 2004'!$A$126,'Inputs PL Final Decision 2004'!$F$94,IF($A$1='Inputs PL Final Decision 2004'!$A$127,'Inputs PL Final Decision 2004'!$G$94,'Inputs PL Final Decision 2004'!$H$94)))))","v":0.53}]
[{"$f":"'Inputs PL Final Decision 2004'!$A$16","v":"Number of years from 1 January 2001"},{"$f":"'Inputs PL Final Decision 2004'!$B$16","v":4},null,{"$f":"'Inputs PL Final Decision 2004'!$B$95","v":"Remote"},{"$f":"IF($A$1='Inputs PL Final Decision 2004'!$A$123,'Inputs PL Final Decision 2004'!$C$95,IF($A$1='Inputs PL Final Decision 2004'!$A$124,'Inputs PL Final Decision 2004'!$D$95,IF($A$1='Inputs PL Final Decision 2004'!$A$125,'Inputs PL Final Decision 2004'!$E$95,IF($A$1='Inputs PL Final Decision 2004'!$A$126,'Inputs PL Final Decision 2004'!$F$95,IF($A$1='Inputs PL Final Decision 2004'!$A$127,'Inputs PL Final Decision 2004'!$G$95,'Inputs PL Final Decision 2004'!$H$95)))))","v":0.12}]
[]
[]
[]
[null,null,null,null,2004,{"$f":"E184+1","v":2005},2006,2007,2008,2009,2010,2011,2012,2013,2014,2015,{"$f":"P184+1","v":2016},{"$f":"Q184+1","v":2017},{"$f":"R184+1","v":2018},{"$f":"S184+1","v":2019},{"$f":"T184+1","v":2020},{"$f":"V$91","v":"HY2021"},{"$f":"W$91","v":"2022-06-30"},{"$f":"X$91","v":"2023-06-30"},"2024-06-30","2025-06-30","2026-06-30","2027-06-30","2028-06-30","2029-06-30","2030-06-30","2031-06-30","2032-06-30","2033-06-30","2034-06-30","2035-06-30","2036-06-30","2037-06-30","2038-06-30","2039-06-30"]
["RAB for Return",null,null,null,{"$f":"E$129/$B179*$B178/$B179","v":27.075319874743702},30.212803293705417,29.283178576976017,28.35355386024662,27.423929143517224,26.494304426787824,25.564679710058428,24.635054993329032,23.705430276599632,22.775805559870236,21.846180843140836,20.916556126411443,{"$f":"Q$129/$B179*$B178/$B179","v":19.986931409682047},19.057306692952647,18.127681976223251,17.198057259493851,16.268432542764454,15.803620184399756,14.873995467670358,13.94437075094096,13.014746034211564,12.085121317482168,11.15549660075277,10.225871884023372,9.2962471672939753,8.3666224505645754,7.4369977338351791,6.507373017105782,5.5777483003763848,4.6481235836469876,3.7184988669175896,2.7888741501881924,1.8592494334587948,0.92962471672939739,0.4648123583646987,0]
["Depreciation",null,null,null,{"$f":"IF(E185=0,0,$B$178*$B$180/$B$179/$B$179)","v":0.92962471672939739},0.92962471672939739,0.92962471672939739,0.92962471672939739,0.92962471672939739,0.92962471672939739,0.92962471672939739,0.92962471672939739,0.92962471672939739,0.92962471672939739,0.92962471672939739,0.92962471672939739,{"$f":"IF(Q185=0,0,$B$178*$B$180/$B$179/$B$179)","v":0.92962471672939739},{"$f":"IF(R185=0,0,$B$178*$B$180/$B$179/$B$179)","v":0.92962471672939739},{"$f":"IF(S185=0,0,$B$178*$B$180/$B$179/$B$179)","v":0.92962471672939739},{"$f":"IF(T185=0,0,$B$178*$B$180/$B$179/$B$179)","v":0.92962471672939739},{"$f":"IF(U185=0,0,$B$178*$B$180/$B$179/$B$179)","v":0.92962471672939739},{"$f":"IF(V185=0,0,$B$178*$B$180/$B$179/$B$179)*0.5","v":0.4648123583646987},{"$f":"IF(W185=0,0,$B$178*$B$180/$B$179/$B$179)","v":0.92962471672939739},0.92962471672939739,0.92962471672939739,0.92962471672939739,0.92962471672939739,0.92962471672939739,0.92962471672939739,0.92962471672939739,0.92962471672939739,0.92962471672939739,0.92962471672939739,0.92962471672939739,0.92962471672939739,0.92962471672939739,0.92962471672939739,0.92962471672939739,{"$f":"IF(AM185=0,0,$B$178*$B$180/$B$179/$B$179)*0.5","v":0.4648123583646987},{"$f":"IF(AN185=0,0,$B$178*$B$180/$B$179/$B$179)","v":0}]
[]
[]
[]
["Poles & Brackets",null,null,{"$f":"'Inputs PL Final Decision 2004'!$B$88","v":"Location of selected public lighting assets within distributors' areas (%)"},null,null,null,null,null,{"$f":"'Inputs PL Final Decision 2004'!$A$117","v":"Proportion of non-dedicated poles at 1 Jan 2001"}]
["Brackets",null,null,{"$f":"'Inputs PL Final Decision 2004'!$B$92","v":"CitiPower"},{"$f":"IF($A$1='Inputs PL Final Decision 2004'!$A$123,'Inputs PL Final Decision 2004'!$C$92,IF($A$1='Inputs PL Final Decision 2004'!$A$124,'Inputs PL Final Decision 2004'!$D$92,IF($A$1='Inputs PL Final Decision 2004'!$A$125,'Inputs PL Final Decision 2004'!$E$92,IF($A$1='Inputs PL Final Decision 2004'!$A$126,'Inputs PL Final Decision 2004'!$F$92,IF($A$1='Inputs PL Final Decision 2004'!$A$127,'Inputs PL Final Decision 2004'!$G$92,'Inputs PL Final Decision 2004'!$H$92)))))","v":0},null,null,null,null,{"$f":"IF($A$1='Inputs PL Final Decision 2004'!$A$123,'Inputs PL Final Decision 2004'!$C$117,IF($A$1='Inputs PL Final Decision 2004'!$A$124,'Inputs PL Final Decision 2004'!$D$117,IF($A$1='Inputs PL Final Decision 2004'!$A$125,'Inputs PL Final Decision 2004'!$E$117,IF($A$1='Inputs PL Final Decision 2004'!$A$126,'Inputs PL Final Decision 2004'!$F$117,IF($A$1='Inputs PL Final Decision 2004'!$A$127,'Inputs PL Final Decision 2004'!$G$117,'Inputs PL Final Decision 2004'!$H$117)))))","v":0.54983737742466199}]
["Capital cost",{"$f":"($F$236*E191+$L$236*E192+$R$236*E193+$X$236*E194)*J191","v":58.978168830112018},null,{"$f":"'Inputs PL Final Decision 2004'!$B$93","v":"Urban"},{"$f":"IF($A$1='Inputs PL Final Decision 2004'!$A$123,'Inputs PL Final Decision 2004'!$C$93,IF($A$1='Inputs PL Final Decision 2004'!$A$124,'Inputs PL Final Decision 2004'!$D$93,IF($A$1='Inputs PL Final Decision 2004'!$A$125,'Inputs PL Final Decision 2004'!$E$93,IF($A$1='Inputs PL Final Decision 2004'!$A$126,'Inputs PL Final Decision 2004'!$F$93,IF($A$1='Inputs PL Final Decision 2004'!$A$127,'Inputs PL Final Decision 2004'!$G$93,'Inputs PL Final Decision 2004'!$H$93)))))","v":0.35}]
[{"$f":"'Inputs PL Final Decision 2004'!$A$52","v":"Depreciation of dedicated street lighting pole & bracket"},{"$f":"'Inputs PL Final Decision 2004'!$B$52","v":35},null,{"$f":"'Inputs PL Final Decision 2004'!$B$94","v":"Rural"},{"$f":"IF($A$1='Inputs PL Final Decision 2004'!$A$123,'Inputs PL Final Decision 2004'!$C$94,IF($A$1='Inputs PL Final Decision 2004'!$A$124,'Inputs PL Final Decision 2004'!$D$94,IF($A$1='Inputs PL Final Decision 2004'!$A$125,'Inputs PL Final Decision 2004'!$E$94,IF($A$1='Inputs PL Final Decision 2004'!$A$126,'Inputs PL Final Decision 2004'!$F$94,IF($A$1='Inputs PL Final Decision 2004'!$A$127,'Inputs PL Final Decision 2004'!$G$94,'Inputs PL Final Decision 2004'!$H$94)))))","v":0.53}]
[{"$f":"'Inputs PL Final Decision 2004'!$A$16","v":"Number of years from 1 January 2001"},{"$f":"'Inputs PL Final Decision 2004'!$B$16","v":4},null,{"$f":"'Inputs PL Final Decision 2004'!$B$95","v":"Remote"},{"$f":"IF($A$1='Inputs PL Final Decision 2004'!$A$123,'Inputs PL Final Decision 2004'!$C$95,IF($A$1='Inputs PL Final Decision 2004'!$A$124,'Inputs PL Final Decision 2004'!$D$95,IF($A$1='Inputs PL Final Decision 2004'!$A$125,'Inputs PL Final Decision 2004'!$E$95,IF($A$1='Inputs PL Final Decision 2004'!$A$126,'Inputs PL Final Decision 2004'!$F$95,IF($A$1='Inputs PL Final Decision 2004'!$A$127,'Inputs PL Final Decision 2004'!$G$95,'Inputs PL Final Decision 2004'!$H$95)))))","v":0.12}]
[]
[]
[]
[null,null,null,null,2004,{"$f":"E198+1","v":2005},2006,2007,2008,2009,2010,2011,2012,2013,2014,2015,{"$f":"P198+1","v":2016},{"$f":"Q198+1","v":2017},{"$f":"R198+1","v":2018},{"$f":"S198+1","v":2019},{"$f":"T198+1","v":2020},{"$f":"V$91","v":"HY2021"},{"$f":"W$91","v":"2022-06-30"},{"$f":"X$91","v":"2023-06-30"},"2024-06-30","2025-06-30","2026-06-30","2027-06-30","2028-06-30","2029-06-30","2030-06-30","2031-06-30","2032-06-30","2033-06-30","2034-06-30","2035-06-30","2036-06-30","2037-06-30","2038-06-30","2039-06-30"]
["RAB for Return",null,null,null,{"$f":"E$129/$B193*$B192/$B193","v":5.6089442193535106},6.2589077125833166,6.0663259368115217,5.8737441610397276,5.6811623852679327,5.4885806094961396,5.2959988337243447,5.1034170579525506,4.9108352821807557,4.7182535064089608,4.5256717306371668,4.3330899548653727,{"$f":"Q$129/$B193*$B192/$B193","v":4.1405081790935787},3.9479264033217842,3.7553446275499898,3.5627628517781957,3.3701810760064013,3.2738901881205038,3.0813084123487093,2.8887266365769149,2.6961448608051213,2.5035630850333268,2.3109813092615323,2.1183995334897379,1.9258177577179432,1.7332359819461489,1.5406542061743547,1.3480724304025606,1.1554906546307662,0.96290887885897158,0.77032710308717733,0.57774532731538308,0.38516355154358867,0.19258177577179433,9.6290887885897167E-2,0]
["Depreciation",null,null,null,{"$f":"IF(E199=0,0,$B$192*$B$194/$B$193/$B$193)","v":0.19258177577179436},0.19258177577179436,0.19258177577179436,0.19258177577179436,0.19258177577179436,0.19258177577179436,0.19258177577179436,0.19258177577179436,0.19258177577179436,0.19258177577179436,0.19258177577179436,0.19258177577179436,{"$f":"IF(Q199=0,0,$B$192*$B$194/$B$193/$B$193)","v":0.19258177577179436},{"$f":"IF(R199=0,0,$B$192*$B$194/$B$193/$B$193)","v":0.19258177577179436},{"$f":"IF(S199=0,0,$B$192*$B$194/$B$193/$B$193)","v":0.19258177577179436},{"$f":"IF(T199=0,0,$B$192*$B$194/$B$193/$B$193)","v":0.19258177577179436},{"$f":"IF(U199=0,0,$B$192*$B$194/$B$193/$B$193)","v":0.19258177577179436},{"$f":"IF(V199=0,0,$B$192*$B$194/$B$193/$B$193)*0.5","v":9.6290887885897181E-2},{"$f":"IF(W199=0,0,$B$192*$B$194/$B$193/$B$193)","v":0.19258177577179436},0.19258177577179436,0.19258177577179436,0.19258177577179436,0.19258177577179436,0.19258177577179436,0.19258177577179436,0.19258177577179436,0.19258177577179436,0.19258177577179436,0.19258177577179436,0.19258177577179436,0.19258177577179436,0.19258177577179436,0.19258177577179436,0.19258177577179436,{"$f":"IF(AM199=0,0,$B$192*$B$194/$B$193/$B$193)*0.5","v":9.6290887885897181E-2},{"$f":"IF(AN199=0,0,$B$192*$B$194/$B$193/$B$193)","v":0}]
[]
[]
[]
[]
[]
[]
[]
[null,"CitiPower",null,null,null,null,null,"Urban",null,null,null,null,null,"Rural",null,null,null,null,null,"Remote"]
[]
[null,"Unit rate","Number","Hours","Cost","Annualised",null,"Unit rate","Number","Hours","Cost","Annualised",null,"Unit rate","Number","Hours","Cost","Annualised",null,"Unit rate","Number","Hours","Cost","Annualised"]
[null,null,null,null,null," cost",null,null,null,null,null," cost",null,null,null,null,null," cost",null,null,null,null,null," cost"]
["MV80"]
["Luminaires "]
["Material & misc",{"$f":"'Inputs PL Final Decision 2004'!$B$21+'Inputs PL Final Decision 2004'!$B$22","v":159.55000000000001},{"$f":"'Inputs PL Final Decision 2004'!$B$24","v":16},null,{"$f":"B214*C214","v":2552.8000000000002},{"$f":"(E214+E215+E216)/C214","v":240.24687500000002},null,{"$f":"'Inputs PL Final Decision 2004'!$B$21+'Inputs PL Final Decision 2004'!$B$22","v":159.55000000000001},{"$f":"'Inputs PL Final Decision 2004'!$B$24","v":16},null,{"$f":"H214*I214","v":2552.8000000000002},{"$f":"(K214+K215+K216)/I214","v":240.24687500000002},null,{"$f":"('Inputs PL Final Decision 2004'!$B$21+'Inputs PL Final Decision 2004'!$B$22)*(1+'Inputs PL Final Decision 2004'!$B$10)","v":167.52750000000003},{"$f":"'Inputs PL Final Decision 2004'!$B$25","v":13},null,{"$f":"N214*O214","v":2177.8575000000005},{"$f":"(Q214+Q215+Q216)/O214","v":273.2544230769231},null,{"$f":"('Inputs PL Final Decision 2004'!$B$21+'Inputs PL Final Decision 2004'!$B$22)*(1+'Inputs PL Final Decision 2004'!$B$10)","v":167.52750000000003},{"$f":"'Inputs PL Final Decision 2004'!$B$26","v":10},null,{"$f":"T214*U214","v":1675.2750000000003},{"$f":"(W214+W215+W216)/U214","v":304.97250000000003}]
["Crew costs",{"$f":"'Inputs PL Final Decision 2004'!$B$11","v":60},{"$f":"'Inputs PL Final Decision 2004'!$B$23","v":2},{"$f":"'Inputs PL Final Decision 2004'!$B$14","v":8.33},{"$f":"B215*C215*D215","v":999.6},null,null,{"$f":"'Inputs PL Final Decision 2004'!$B$11","v":60},{"$f":"'Inputs PL Final Decision 2004'!$B$23","v":2},{"$f":"'Inputs PL Final Decision 2004'!$B$14","v":8.33},{"$f":"H215*I215*J215","v":999.6},null,null,{"$f":"'Inputs PL Final Decision 2004'!$B$11","v":60},{"$f":"'Inputs PL Final Decision 2004'!$B$23","v":2},{"$f":"'Inputs PL Final Decision 2004'!$B$14","v":8.33},{"$f":"N215*O215*P215","v":999.6},null,null,{"$f":"'Inputs PL Final Decision 2004'!$B$11","v":60},{"$f":"'Inputs PL Final Decision 2004'!$B$23","v":2},{"$f":"'Inputs PL Final Decision 2004'!$B$14","v":8.33},{"$f":"T215*U215*V215","v":999.6}]
["Elevated platform costs",{"$f":"'Inputs PL Final Decision 2004'!$B$12","v":35},1,{"$f":"'Inputs PL Final Decision 2004'!$B$14","v":8.33},{"$f":"B216*C216*D216","v":291.55},null,null,{"$f":"'Inputs PL Final Decision 2004'!$B$12","v":35},1,{"$f":"'Inputs PL Final Decision 2004'!$B$14","v":8.33},{"$f":"H216*I216*J216","v":291.55},null,null,{"$f":"'Inputs PL Final Decision 2004'!$B$13","v":45},1,{"$f":"'Inputs PL Final Decision 2004'!$B$14","v":8.33},{"$f":"N216*O216*P216","v":374.85},null,null,{"$f":"'Inputs PL Final Decision 2004'!$B$13","v":45},1,{"$f":"'Inputs PL Final Decision 2004'!$B$14","v":8.33},{"$f":"T216*U216*V216","v":374.85}]
[]
["S-HP 150"]
["Luminaires "]
["Material & misc",{"$f":"'Inputs PL Final Decision 2004'!$B$31+'Inputs PL Final Decision 2004'!$B$32","v":189.64},{"$f":"'Inputs PL Final Decision 2004'!$B$35","v":16},null,{"$f":"B220*C220","v":3034.24},{"$f":"(E220+E221+E222)/C220","v":291.16187500000001},null,{"$f":"'Inputs PL Final Decision 2004'!$B$31+'Inputs PL Final Decision 2004'!$B$32","v":189.64},{"$f":"'Inputs PL Final Decision 2004'!$B$35","v":16},null,{"$f":"H220*I220","v":3034.24},{"$f":"(K220+K221+K222)/I220","v":275.54312499999997},null,{"$f":"('Inputs PL Final Decision 2004'!$B$31+'Inputs PL Final Decision 2004'!$B$32)*(1+'Inputs PL Final Decision 2004'!$B$10)","v":199.12199999999999},{"$f":"'Inputs PL Final Decision 2004'!$B$36","v":13},null,{"$f":"N220*O220","v":2588.5859999999998},{"$f":"(Q220+Q221+Q222)/O220","v":304.84892307692303},null,{"$f":"('Inputs PL Final Decision 2004'!$B$31+'Inputs PL Final Decision 2004'!$B$32)*(1+'Inputs PL Final Decision 2004'!$B$10)","v":199.12199999999999},{"$f":"'Inputs PL Final Decision 2004'!$B$37","v":10},null,{"$f":"T220*U220","v":1991.2199999999998},{"$f":"(W220+W221+W222)/U220","v":336.56699999999995}]
["Crew costs",{"$f":"'Inputs PL Final Decision 2004'!$B$11","v":60},{"$f":"'Inputs PL Final Decision 2004'!$B$34","v":2.5},{"$f":"'Inputs PL Final Decision 2004'!$B$14","v":8.33},{"$f":"D221*C221*B221","v":1249.5},null,null,{"$f":"'Inputs PL Final Decision 2004'!$B$11","v":60},{"$f":"'Inputs PL Final Decision 2004'!$B$33","v":2},{"$f":"'Inputs PL Final Decision 2004'!$B$14","v":8.33},{"$f":"J221*I221*H221","v":999.6},null,null,{"$f":"'Inputs PL Final Decision 2004'!$B$11","v":60},{"$f":"'Inputs PL Final Decision 2004'!$B$33","v":2},{"$f":"'Inputs PL Final Decision 2004'!$B$14","v":8.33},{"$f":"P221*O221*N221","v":999.6},null,null,{"$f":"'Inputs PL Final Decision 2004'!$B$11","v":60},{"$f":"'Inputs PL Final Decision 2004'!$B$33","v":2},{"$f":"'Inputs PL Final Decision 2004'!$B$14","v":8.33},{"$f":"V221*U221*T221","v":999.6}]
["Elevated platform vehicle costs",{"$f":"'Inputs PL Final Decision 2004'!$B$13","v":45},1,{"$f":"'Inputs PL Final Decision 2004'!$B$14","v":8.33},{"$f":"D222*C222*B222","v":374.85},null,null,{"$f":"'Inputs PL Final Decision 2004'!$B$13","v":45},1,{"$f":"'Inputs PL Final Decision 2004'!$B$14","v":8.33},{"$f":"J222*I222*H222","v":374.85},null,null,{"$f":"'Inputs PL Final Decision 2004'!$B$13","v":45},1,{"$f":"'Inputs PL Final Decision 2004'!$B$14","v":8.33},{"$f":"P222*O222*N222","v":374.85},null,null,{"$f":"'Inputs PL Final Decision 2004'!$B$13","v":45},1,{"$f":"'Inputs PL Final Decision 2004'!$B$14","v":8.33},{"$f":"V222*U222*T222","v":374.85}]
[]
["S-HP 250"]
["Luminaires "]
["Material & misc",{"$f":"'Inputs PL Final Decision 2004'!$B$42+'Inputs PL Final Decision 2004'!$B$43","v":192.44},{"$f":"'Inputs PL Final Decision 2004'!$B$46","v":16},null,{"$f":"B226*C226","v":3079.04},{"$f":"(E226+E227+E228)/C226","v":293.96187500000002},null,{"$f":"'Inputs PL Final Decision 2004'!$B$42+'Inputs PL Final Decision 2004'!$B$43","v":192.44},{"$f":"'Inputs PL Final Decision 2004'!$B$46","v":16},null,{"$f":"H226*I226","v":3079.04},{"$f":"(K226+K227+K228)/I226","v":278.34312499999999},null,{"$f":"('Inputs PL Final Decision 2004'!$B$42+'Inputs PL Final Decision 2004'!$B$43)*(1+'Inputs PL Final Decision 2004'!$B$10)","v":202.06200000000001},{"$f":"'Inputs PL Final Decision 2004'!$B$47","v":13},null,{"$f":"N226*O226","v":2626.806},{"$f":"(Q226+Q227+Q228)/O226","v":307.78892307692308},null,{"$f":"('Inputs PL Final Decision 2004'!$B$42+'Inputs PL Final Decision 2004'!$B$43)*(1+'Inputs PL Final Decision 2004'!$B$10)","v":202.06200000000001},{"$f":"'Inputs PL Final Decision 2004'!$B$48","v":10},null,{"$f":"T226*U226","v":2020.6200000000001},{"$f":"(W226+W227+W228)/U226","v":339.50700000000001}]
["Crew costs",{"$f":"'Inputs PL Final Decision 2004'!$B$11","v":60},{"$f":"'Inputs PL Final Decision 2004'!$B$45","v":2.5},{"$f":"'Inputs PL Final Decision 2004'!$B$14","v":8.33},{"$f":"D227*C227*B227","v":1249.5},null,null,{"$f":"'Inputs PL Final Decision 2004'!$B$11","v":60},{"$f":"'Inputs PL Final Decision 2004'!$B$44","v":2},{"$f":"'Inputs PL Final Decision 2004'!$B$14","v":8.33},{"$f":"J227*I227*H227","v":999.6},null,null,{"$f":"'Inputs PL Final Decision 2004'!$B$11","v":60},{"$f":"'Inputs PL Final Decision 2004'!$B$44","v":2},{"$f":"'Inputs PL Final Decision 2004'!$B$14","v":8.33},{"$f":"P227*O227*N227","v":999.6},null,null,{"$f":"'Inputs PL Final Decision 2004'!$B$11","v":60},{"$f":"'Inputs PL Final Decision 2004'!$B$44","v":2},{"$f":"'Inputs PL Final Decision 2004'!$B$14","v":8.33},{"$f":"V227*U227*T227","v":999.6}]
["Elevated platform vehicle costs",{"$f":"'Inputs PL Final Decision 2004'!$B$13","v":45},1,{"$f":"'Inputs PL Final Decision 2004'!$B$14","v":8.33},{"$f":"D228*C228*B228","v":374.85},null,null,{"$f":"'Inputs PL Final Decision 2004'!$B$13","v":45},1,{"$f":"'Inputs PL Final Decision 2004'!$B$14","v":8.33},{"$f":"J228*I228*H228","v":374.85},null,null,{"$f":"'Inputs PL Final Decision 2004'!$B$13","v":45},1,{"$f":"'Inputs PL Final Decision 2004'!$B$14","v":8.33},{"$f":"P228*O228*N228","v":374.85},null,null,{"$f":"'Inputs PL Final Decision 2004'!$B$13","v":45},1,{"$f":"'Inputs PL Final Decision 2004'!$B$14","v":8.33},{"$f":"V228*U228*T228","v":374.85}]
[]
["Dedicated poles"]
["Material",{"$f":"'Inputs PL Final Decision 2004'!$B$53","v":500},{"$f":"'Inputs PL Final Decision 2004'!$B$54","v":4},null,{"$f":"C231*B231","v":2000},{"$f":"(E231+E232+E233)/C231","v":822.78750000000002},null,{"$f":"'Inputs PL Final Decision 2004'!$B$53","v":500},{"$f":"'Inputs PL Final Decision 2004'!$B$54","v":4},null,{"$f":"I231*H231","v":2000},{"$f":"(K231+K232+K233)/I231","v":822.78750000000002},null,{"$f":"'Inputs PL Final Decision 2004'!$B$53","v":500},{"$f":"'Inputs PL Final Decision 2004'!$B$54","v":4},null,{"$f":"O231*N231","v":2000},{"$f":"(Q231+Q232+Q233)/O231","v":843.61249999999995},null,{"$f":"'Inputs PL Final Decision 2004'!$B$53","v":500},{"$f":"'Inputs PL Final Decision 2004'!$B$54","v":4},null,{"$f":"U231*T231","v":2000},{"$f":"(W231+W232+W233)/U231","v":843.61249999999995}]
["Crew costs",{"$f":"'Inputs PL Final Decision 2004'!$B$11","v":60},{"$f":"'Inputs PL Final Decision 2004'!$B$23","v":2},{"$f":"'Inputs PL Final Decision 2004'!$B$14","v":8.33},{"$f":"B232*C232*D232","v":999.6},null,null,{"$f":"'Inputs PL Final Decision 2004'!$B$11","v":60},{"$f":"'Inputs PL Final Decision 2004'!$B$23","v":2},{"$f":"'Inputs PL Final Decision 2004'!$B$14","v":8.33},{"$f":"H232*I232*J232","v":999.6},null,null,{"$f":"'Inputs PL Final Decision 2004'!$B$11","v":60},{"$f":"'Inputs PL Final Decision 2004'!$B$23","v":2},{"$f":"'Inputs PL Final Decision 2004'!$B$14","v":8.33},{"$f":"N232*O232*P232","v":999.6},null,null,{"$f":"'Inputs PL Final Decision 2004'!$B$11","v":60},{"$f":"'Inputs PL Final Decision 2004'!$B$23","v":2},{"$f":"'Inputs PL Final Decision 2004'!$B$14","v":8.33},{"$f":"T232*U232*V232","v":999.6}]
["Elevated platform costs",{"$f":"'Inputs PL Final Decision 2004'!$B$12","v":35},1,{"$f":"'Inputs PL Final Decision 2004'!$B$14","v":8.33},{"$f":"B233*C233*D233","v":291.55},null,null,{"$f":"'Inputs PL Final Decision 2004'!$B$12","v":35},1,{"$f":"'Inputs PL Final Decision 2004'!$B$14","v":8.33},{"$f":"H233*I233*J233","v":291.55},null,null,{"$f":"'Inputs PL Final Decision 2004'!$B$13","v":45},1,{"$f":"'Inputs PL Final Decision 2004'!$B$14","v":8.33},{"$f":"N233*O233*P233","v":374.85},null,null,{"$f":"'Inputs PL Final Decision 2004'!$B$13","v":45},1,{"$f":"'Inputs PL Final Decision 2004'!$B$14","v":8.33},{"$f":"T233*U233*V233","v":374.85}]
[]
["Brackets"]
["Material",{"$f":"'Inputs PL Final Decision 2004'!$B$55","v":40},{"$f":"'Inputs PL Final Decision 2004'!$B$56","v":20},null,{"$f":"C236*B236","v":800},{"$f":"(E236+E237+E238)/C236","v":104.5575},null,{"$f":"'Inputs PL Final Decision 2004'!$B$55","v":40},{"$f":"'Inputs PL Final Decision 2004'!$B$56","v":20},null,{"$f":"I236*H236","v":800},{"$f":"(K236+K237+K238)/I236","v":104.5575},null,{"$f":"'Inputs PL Final Decision 2004'!$B$55","v":40},{"$f":"'Inputs PL Final Decision 2004'!$B$56","v":20},null,{"$f":"O236*N236","v":800},{"$f":"(Q236+Q237+Q238)/O236","v":108.7225},null,{"$f":"'Inputs PL Final Decision 2004'!$B$55","v":40},{"$f":"'Inputs PL Final Decision 2004'!$B$56","v":20},null,{"$f":"U236*T236","v":800},{"$f":"(W236+W237+W238)/U236","v":108.7225}]
["Crew costs",{"$f":"'Inputs PL Final Decision 2004'!$B$11","v":60},{"$f":"'Inputs PL Final Decision 2004'!$B$23","v":2},{"$f":"'Inputs PL Final Decision 2004'!$B$14","v":8.33},{"$f":"B237*C237*D237","v":999.6},null,null,{"$f":"'Inputs PL Final Decision 2004'!$B$11","v":60},{"$f":"'Inputs PL Final Decision 2004'!$B$23","v":2},{"$f":"'Inputs PL Final Decision 2004'!$B$14","v":8.33},{"$f":"H237*I237*J237","v":999.6},null,null,{"$f":"'Inputs PL Final Decision 2004'!$B$11","v":60},{"$f":"'Inputs PL Final Decision 2004'!$B$23","v":2},{"$f":"'Inputs PL Final Decision 2004'!$B$14","v":8.33},{"$f":"N237*O237*P237","v":999.6},null,null,{"$f":"'Inputs PL Final Decision 2004'!$B$11","v":60},{"$f":"'Inputs PL Final Decision 2004'!$B$23","v":2},{"$f":"'Inputs PL Final Decision 2004'!$B$14","v":8.33},{"$f":"T237*U237*V237","v":999.6}]
["Elevated platform costs",{"$f":"'Inputs PL Final Decision 2004'!$B$12","v":35},1,{"$f":"'Inputs PL Final Decision 2004'!$B$14","v":8.33},{"$f":"B238*C238*D238","v":291.55},null,null,{"$f":"'Inputs PL Final Decision 2004'!$B$12","v":35},1,{"$f":"'Inputs PL Final Decision 2004'!$B$14","v":8.33},{"$f":"H238*I238*J238","v":291.55},null,null,{"$f":"'Inputs PL Final Decision 2004'!$B$13","v":45},1,{"$f":"'Inputs PL Final Decision 2004'!$B$14","v":8.33},{"$f":"N238*O238*P238","v":374.85},null,null,{"$f":"'Inputs PL Final Decision 2004'!$B$13","v":45},1,{"$f":"'Inputs PL Final Decision 2004'!$B$14","v":8.33},{"$f":"T238*U238*V238","v":374.85}]
[" "]

{"sheet":"Inputs PL Final Decision 2004","index":17,"n_rows":128,"n_cols":8,"rows_kept":128,"cut":false,"hidden":false,"merged":[[116,0,116,1],[107,5,107,6],[107,7,108,7],[113,0,113,1],[114,0,114,1],[107,1,108,1],[107,2,108,2],[107,3,108,3],[107,4,108,4],[88,5,88,6],[88,7,89,7],[88,1,89,1],[88,2,89,2],[88,3,89,3],[88,4,89,4]]}
[{"$f":"'Inputs PL Final Decision 2004'!$A$127","v":"SP AusNet - North/East"}]
[]
["Final Decision - Cost Build-up Model 2004"]
[]
[]
[]
["Input parameters"]
[]
["Inputs - all lamps"]
["Material premium for rural areas",0.05]
["Labour rate (per hour)",60]
["Elevated platform vehicle (per hour) - urban MV",35]
["Elevated platform vehicle (per hour) - rural MV, S-HP",45]
["Number of hours in a day",8.33]
["Rate of return (per annum)",9.5000000000000001E-2]
["Number of years from 1 January 2001",4]
[]
["Inputs - MV80"]
[]
["Depreciation period",20,"years"]
["Unit cost - luminaire",158.55000000000001]
["Unit cost - miscellaneous materials (bulk lamp)",1]
["Number of men in crew",2]
["Number of luminaires replaced per day - urban",16]
["Number of luminaires replaced per day - rural",13]
["Number of luminaires replaced per day - remote",10]
[]
["Inputs - S-HP150"]
[]
["Depreciation period ",20,"years"]
["Unit cost - luminaire",187.64]
["Unit cost - miscellaneous materials",2]
["Number of men in crew - repairs (exc CitiPower)",2]
["Number of men in crew - repairs (CitiPower)",2.5]
["Number of luminaires replaced per day - urban",16]
["Number of luminaires replaced per day - rural",13]
["Number of luminaires replaced per day - remote",10]
[]
["Inputs - S-HP250"]
[]
["Depreciation period ",{"$f":"B30","v":20},"years"]
["Unit cost - luminaire",190.44]
["Unit cost - miscellaneous materials",2]
["Number of men in crew - repairs (exc CitiPower)",{"$f":"B33","v":2}]
["Number of men in crew - repairs (CitiPower)",{"$f":"B34","v":2.5}]
["Number of luminaires replaced per day - urban",{"$f":"B35","v":16}]
["Number of luminaires replaced per day - rural",{"$f":"B36","v":13}]
["Number of luminaires replaced per day - remote",{"$f":"B37","v":10}]
[]
["Dedicated street lighting poles"]
[]
["Depreciation of dedicated street lighting pole & bracket",35,"years"]
["Cost of pole & bracket",500]
["Number of poles & brackets replaced per day",4]
["Cost of bracket",40]
["Number of brackets replaced per day",20]
[]
[]
[]
[]
[]
[]
["DEPRECIATION PROFILE"]
[]
["20 year asset life"]
[null,2001,2002,2003,2004]
["New assets in 2001","10/20","19/20","18/20","17/20","Assume half the asset base in first year"]
["New assets in 2002",null,"10/20","19/20","18/20","In subsequent years - depreciation of 1/20 per year"]
["New assets in 2003",null,null,"10/20","19/20"]
["New assets in 2004",null,null,null,"10/20"]
[]
["Total","10/20","29/20","47/20","64/20"]
[]
["35 year asset life"]
[null,2001,2002,2003,2004]
["New assets in 2001","17.5/35","34/35","33/35","32/35","Assume half the asset base in first year"]
["New assets in 2002",null,"17.5/35","34/35","33/35","In subsequent years - depreciation of 1/35 per year"]
["New assets in 2003",null,null,"17.5/35","34/35"]
["New assets in 2004",null,null,null,"17.5/35"]
[]
["Total","17.5/35","51.5/35","84.5/35","116.5/35"]
[]
[]
[]
[]
[]
[]
[null,"Location of selected public lighting assets within distributors' areas (%)"]
[null,null,"AGL (%)","CitiPower (%)","Powercor (%)","TXU (%)",null,"United Energy (%)"]
[null,null,null,null,null,"central","north/east"]
[null,"MV 80 Watt"]
[null,"CitiPower",0,1,0,0,0,0]
[null,"Urban",0.97,0,0.39,0.96,0.35,0.84]
[null,"Rural",0.03,0,0.57099999999999995,0.04,0.53,0.16]
[null,"Remote",0,0,3.9E-2,0,0.12,0]
[null,"S-HP 150 Watt"]
[null,"CitiPower",0,1,0,0,0,0]
[null,"Urban",0.98,0,0.52,0.94,0.3,0.84]
[null,"Rural",0.02,0,0.441,0.06,0.63,0.16]
[null,"Remote",0,0,3.9E-2,0,7.0000000000000007E-2,0]
[null,"S-HP 250 Watt"]
[null,"CitiPower",0,1,0,0,0,0]
[null,"Urban",0.96,0,0.48,0.9,0.37,0.84]
[null,"Rural",0.04,0,0.48099999999999998,0.1,0.56999999999999995,0.16]
[null,"Remote",0,0,3.9E-2,0,0.06,0]
[]
[null,"Proportion of lights installed at 1 January 2001 (%)"]
[null,null,"AGL","CitiPower","Powercor","TXU",null,"United Energy"]
[null,null,null,null,null,"central","north/east"]
[null,"MV 80 Watt",0.905787037037037,1,0.86777777777777776,0.88453792189886593,0.88441954863731531,0.89212199870214148]
[null,"S-HP 150 Watt",0.92852830188679247,0.97046808510638294,0.79574999999999996,0.9271778402248092,0.92717784022480954,0.76780200027653589]
[null,"S-HP 250 Watt",0.97372093023255812,1,0.8570165745856354,0.93238356164383551,0.93238356164383573,0.79881039340498805]
[]
["Proportion of lights on dedicated poles",null,0.1908204,0.19633080440438641,0.28800286795458091,0.38119062500000001,0.38296744016378254,0.2370560408218817]
["Proportion of dedicated poles at 1 Jan 2001",null,0.91293333333333337,0.91293333333333337,0.88888888888888884,0.89230769230769236,0.88888888888888884,0.91293333333333337]
[]
["Proportion of non-dedicated poles at 1 Jan 2001",null,0.74134150899999995,0.85329845683448124,0.6107644460365671,0.54998659800000005,0.54983737742466199,0.66538387625035467]
[]
[]
[]
[]
[]
["Jemena",{"$f":"C108","v":"AGL"}]
["Citipower",{"$f":"D108","v":"CitiPower"}]
["Powercor",{"$f":"E108","v":"Powercor"}]
["SP AusNet - Central",{"$f":"F108","v":"TXU"},{"$f":"F109","v":"central"}]
["SP AusNet - North/East",{"$f":"F108","v":"TXU"},{"$f":"G109","v":"north/east"}]
["United Energy",{"$f":"H108","v":"United Energy"}]